{"text_format":"1","workbook":"xlsx","n_sheets":23,"sheets":["Portada","Sup Generales","Sup fijo","Sup Personal Directo","Sup Personal Indirecto","Actividades Mtto","CAPEX Vehículo","OPEX Combustible ","OPEX Mtto","OPEX Personal Directo","OPEX Personal Indirecto","OPEX Otros Gastos","OPEX impuestos","Componentes costos","FO con SITPQ","FO sin SITPQ","Tarifa usuario","Resultados","Indicadores","Datos Históricos","LogUsuarios","Resultados TT-TU","RegistroUsuarios"],"not_rendered":{"charts":19,"images":5,"macros":1,"external_links":2,"defined_names":57,"comments":2,"pivot_tables":0},"unopened":[],"bounds":{"document_bytes":16777216,"sheet_cells":100000,"rows_first":2000,"rows_last":500,"rows_between":2000,"halvings":0,"cell_chars":16384,"cell_head_chars":4096},"cells_cut":0,"cells_raw":0,"read":"whole","date_system":"1900"}

{"sheet":"Portada","index":0,"n_rows":44,"n_cols":4,"rows_kept":44,"cut":false,"hidden":false,"merged":[[8,1,11,3]]}
[]
[null,"MODELO DE TARIFA TÉCNICA"]
[null,"Transporte Convencional"]
[null,"Fecha actualización",null,{"$f":"+TODAY()","v":"2017-06-26"}]
[]
[]
[null,"CONTENIDO"]
[]
[null,"Este modelo se realiza con base en estimaciones unitarias para diferentes tipologías de bus, asociadas a los tres tipos de servicio existentes para el transporte convencional del Distrito Metropolitano de Quito, estos son servicio urbano, servicio intraparroquial y servicio interparroquial. El servicio intraparroquial se presta con vehículos de tipología minibús, mientras los servicios urbano e interparroquial se prestan con buses tipo. Se presenta la información por tipo de servicio."]
[]
[]
[]
[null,"No.","Hoja","Descripción"]
[null,1,"Sup Generales ","Variables macro y precios de la energía"]
[null,{"$f":"B14+1","v":2},"Sup Fijo","Resumen de los supuestos de entrada fijos sobre: las características de los vehículos, el kilometraje, la demanda, los costos de operación, mantenimiento y administración por tipo de servicio. Adicionalmente, se establecen los supuestos sobre los costos y plazos de financiación; así como, de la estructura de capital."]
[null,{"$f":"B15+1","v":3},"Sup Personal Directo","Supuestos sobre la vinculación de personal directo que incluyen cantidad de personas por bus, salarios y factor prestacional. Se plantean escenarios de remuneración, en el primero se tienen los parámetros del esquema actual de remuneración basado principalmente en un pago diario al personal que trabajan jornadas de 16 horas; en el segundo se emplea un esquema propuesto de operación con todas las prestaciones legales para el 100% del personal de acuerdo a la normatividad laboral, pasando a jornadas de 8 horas de trabajo."]
[null,4,"Sup Personal Indirecto","Supuestos sobre la cantidad de personal, salario mensual por cargo y factor prestacional."]
[null,5,"CAPEX Vehículo","Costos del vehículo según tipología"]
[null,6,"OPEX Combustible","Estimación de los costos de combustible por tipología de vehículo"]
[null,7,"OPEX Mtto","Estimación de los costos de mantenimiento por tipología de vehículo"]
[null,8,"OPEX Personal Directo","Estimación de los costos de personal para los conductores y ayudantes"]
[null,9,"OPEX Personal Indirecto","Estimación de los costos de personal administrativo y de mantenimiento"]
[null,10,"Actividades Mtto","Listado de repuestos y servicios asociado al mantenimiento de los vehículos con sus costos unitarios y rendimiento"]
[null,11,"OPEX Otros gastos","Estimación de costos Administrativos, Seguros y Recaudo"]
[null,12,"OPEX Impuestos","Estimación de los impuestos por tipología de vehículo"]
[null,13,"Componentes de costos","Componentes de costos del sistema para alternativas con y sin SITP-Q"]
[null,14,"FO con SITPQ","Flujo de caja para escenario con implementación del SITP-Q"]
[null,15,"FO sin SITPQ","Flujo de caja para escenario sin implementación del SITP-Q"]
[null,16,"Resultados","Resumen de los resultados con tablas y gráficos que fueron utilizados en el Producto 1."]
[null,17,"Indicadores","Listado de indicadores aplicados al transporte convencional"]
[null,18,"Datos históricos","Registro de históricos de simulaciones."]
[]
[]
[null,"- Codificación de Fuentes de Información"]
[]
[null,null,"Código","Subsistema Transporte Convencional"]
[null,null,"SDM","Secretaria de Movilidad"]
[null,null,"Oper","Información recolectada en entrevistas/reportes a los operadores de convencional"]
[null,null,"Bench","Valor que proviende de una o varias referencias de otros subsistemas a través de un ejercicio de benchmark"]
[null,null,"Calc","Cálculos"]
[null,null,"Sup","Supuestos"]
[null,null,"Mdo","Cotizaciones de mercado"]
[null,null,"M2014","Mesas de negociación con operadores 2014"]
[null,null,"NA","No Aplica"]

{"sheet":"Sup Generales","index":1,"n_rows":25,"n_cols":26,"rows_kept":25,"cut":false,"hidden":false,"merged":[]}
[null,null,null,null,null,null,null,null,null,null,null,null,null,null,null,null,null,null,null,null,null,null,"Público","DCSA","Con ramal a Pisulí"]
[null,"Estructura de costos Transporte Convencional",null,null,null,null,null,null,null,null,null,null,null,null,null,null,null,null,null,null,null,null,"Privado","Politécnica","Sin ramal a Pisulí"]
[null,"SUPUESTOS GENERALES"]
[]
[null,"Variables Macroeconómicas"]
[null,"Variable",0,{"$f":"C6+1","v":1},{"$f":"D6+1","v":2},3,4,5,6,7,8,9,10,{"$f":"M6+1","v":11},12,13,14,15,16,17,{"$f":"T6+1","v":18},{"$f":"U6+1","v":19},20,21,22,23]
[null,"Inflación1",2.4E-2,1.6E-2,2.6000000000000002E-2,4.3200000000000001E-3,2.7000000000000001E-3,6.7000000000000002E-3,1.9411250000000001E-2,1.7353906249999999E-2,1.4560644531249998E-2,1.3380725097656249E-2,1.3053315734863282E-2,1.1434980201721193E-2,1.2324352726936341E-2,1.3527396817803383E-2,1.4380821420028804E-2,1.3752017847532407E-2,1.3301781797223957E-2,1.3144423955470701E-2,1.3114886312697509E-2,1.3122582634926787E-2,1.3333532939077485E-2,1.345968046559513E-2,1.3451215921569098E-2,1.3335015234261633E-2]
[null,"Incremento acumulado Inflación",{"$f":"C7","v":2.4E-2},{"$f":"((1+D7)*(1+C8))-1","v":4.0383999999999975E-2},6.7433984000000002E-2,7.2045298810880176E-2,7.4939821117669503E-2,8.2141917919157814E-2,0.10314764522336617,0.1222915660384809,0.13863285459198726,0.1538685878064423,0.16893039879962068,{"$f":"((1+N7)*(1+M8))-1","v":0.18229709476708456},{"$f":"((1+O7)*(1+N8))-1","v":0.19686814119102625},{"$f":"((1+P7)*(1+O8))-1","v":0.21305865147550396},{"$f":"((1+Q7)*(1+P8))-1","v":0.2305034313143941},{"$f":"((1+R7)*(1+Q8))-1","v":0.24742533646327947},{"$f":"((1+S7)*(1+R8))-1","v":0.26401831609724247},{"$f":"((1+T7)*(1+S8))-1","v":0.28063310873150482},{"$f":"((1+U7)*(1+T8))-1","v":0.2974284663607949},{"$f":"((1+V7)*(1+U8))-1","v":0.31445407862352082},{"$f":"((1+W7)*(1+V8))-1","v":0.33198039537775248},{"$f":"((1+X7)*(1+W8))-1","v":0.34990842588597415},{"$f":"((1+Y7)*(1+X8))-1","v":0.36806633559691204},{"$f":"((1+Z7)*(1+Y8))-1","v":0.38630952102357741}]
[null,"Crec. costos de mantenimiento y servicios",{"$f":"C7","v":2.4E-2},1.6E-2,2.6000000000000002E-2,4.3200000000000001E-3,2.7000000000000001E-3,6.7000000000000002E-3,1.9411250000000001E-2,1.7353906249999999E-2,1.4560644531249998E-2,1.3380725097656249E-2,1.3053315734863282E-2,{"$f":"N7","v":1.1434980201721193E-2},1.2324352726936341E-2,1.3527396817803383E-2,1.4380821420028804E-2,1.3752017847532407E-2,1.3301781797223957E-2,1.3144423955470701E-2,{"$f":"U7","v":1.3114886312697509E-2},1.3122582634926787E-2,1.3333532939077485E-2,1.345968046559513E-2,1.3451215921569098E-2,1.3335015234261633E-2]
[null,"Crec. Acumulado de mantenimiento y servicios",{"$f":"C9","v":2.4E-2},{"$f":"((1+D9))*(1+C10)-1","v":4.0383999999999975E-2},{"$f":"((1+E5)*(1+E9))*(1+D10)-1","v":6.7433984000000002E-2},7.2045298810880176E-2,7.4939821117669503E-2,8.2141917919157814E-2,0.10314764522336617,0.1222915660384809,0.13863285459198726,0.1538685878064423,0.16893039879962068,{"$f":"((1+N5)*(1+N9))*(1+M10)-1","v":0.18229709476708456},{"$f":"((1+O5)*(1+O9))*(1+N10)-1","v":0.19686814119102625},{"$f":"((1+P5)*(1+P9))*(1+O10)-1","v":0.21305865147550396},{"$f":"((1+Q5)*(1+Q9))*(1+P10)-1","v":0.2305034313143941},{"$f":"((1+R5)*(1+R9))*(1+Q10)-1","v":0.24742533646327947},{"$f":"((1+S5)*(1+S9))*(1+R10)-1","v":0.26401831609724247},{"$f":"((1+T5)*(1+T9))*(1+S10)-1","v":0.28063310873150482},{"$f":"((1+U5)*(1+U9))*(1+T10)-1","v":0.2974284663607949},{"$f":"((1+V5)*(1+V9))*(1+U10)-1","v":0.31445407862352082},{"$f":"((1+W5)*(1+W9))*(1+V10)-1","v":0.33198039537775248},{"$f":"((1+X5)*(1+X9))*(1+W10)-1","v":0.34990842588597415},{"$f":"((1+Y5)*(1+Y9))*(1+X10)-1","v":0.36806633559691204},{"$f":"((1+Z5)*(1+Z9))*(1+Y10)-1","v":0.38630952102357741}]
[null,"Incremento real salario mínimo",{"$f":"C9","v":2.4E-2},5.7633196721332432E-4,8.0000000000000002E-3,8.0000000000000002E-3,8.0000000000000002E-3,8.0000000000000002E-3,8.0000000000000002E-3,8.0000000000000002E-3,8.0000000000000002E-3,8.0000000000000002E-3,8.0000000000000002E-3,8.0000000000000002E-3,8.0000000000000002E-3,8.0000000000000002E-3,8.0000000000000002E-3,8.0000000000000002E-3,8.0000000000000002E-3,8.0000000000000002E-3,8.0000000000000002E-3,8.0000000000000002E-3,8.0000000000000002E-3,8.0000000000000002E-3,8.0000000000000002E-3,8.0000000000000002E-3]
[null,"Incremento acumulado salario mínimo",null,{"$f":"((1+C7)*(1+D11))*(1+C12)-1","v":2.459016393442659E-2},{"$f":"((1+D7)*(1+E11))*(1+D12)-1","v":4.931147540983627E-2},8.5206322360656062E-2,9.8613568982640176E-2,0.1103924642238443,0.1267747504840171,0.15783603171422489,0.18735244173875731,0.21427818704483714,0.24037031853502677,{"$f":"((1+M7)*(1+N11))*(1+M12)-1","v":0.26661375404246579},{"$f":"((1+N7)*(1+O11))*(1+N12)-1","v":0.29134623690111461},{"$f":"((1+O7)*(1+P11))*(1+O12)-1","v":0.31771933336462421},{"$f":"((1+P7)*(1+Q11))*(1+P12)-1","v":0.34622900284699121},{"$f":"((1+Q7)*(1+R11))*(1+Q12)-1","v":0.37651359278121621},{"$f":"((1+R7)*(1+S11))*(1+R12)-1","v":0.40660697973472648},{"$f":"((1+S7)*(1+T11))*(1+S12)-1","v":0.43671989772443887},{"$f":"((1+T7)*(1+U11))*(1+T12)-1","v":0.46724959119071263},{"$f":"((1+U7)*(1+V11))*(1+U12)-1","v":0.49838434199370307},{"$f":"((1+V7)*(1+W11))*(1+V12)-1","v":0.53019139045511898},{"$f":"((1+W7)*(1+X11))*(1+W12)-1","v":0.56299900174494799},{"$f":"((1+X7)*(1+Y11))*(1+X12)-1","v":0.59670876062749101},{"$f":"((1+Y7)*(1+Z11))*(1+Y12)-1","v":0.63113192640999682}]
[null,"Salario Mínimo",366,{"$f":"(1+D12)*smmlv","v":375.00000000000011},384.04800000000006,397.18551398400012,402.09256624764629,406.40364190592703,412.39955867715025,423.76798760740633,434.57099367638517,444.4258164584104,453.9755365838198,{"$f":"(1+N12)*smmlv","v":463.58063397954248},472.63272270580796,482.28527601145248,492.7198150419988,503.80397495792511,514.81815458290987,525.83948256714461,{"$f":"(1+U12)*smmlv","v":537.01335037580077},548.40866916969537,560.05004890657358,572.05763463865094,584.39540638966173,596.99428506605886]
[null,"1. Inflación proyectada  Fondo Monetario Internacional"]
[]
[]
[null,"Precios de energía"]
[null,"Variable",0,{"$f":"C18+1","v":1},{"$f":"D18+1","v":2},3,4,5,6,7,8,9,10,11,12,13,14,15,16,17,18,{"$f":"U18+1","v":19},20,21,22,23]
[null,"Aumento % Precios WTI",{"$f":"(1+33%)^(1/3)-1","v":9.9724448886266748E-2}]
[null,"Aumento en precios diésel",{"$f":"C19","v":9.9724448886266748E-2},{"$f":"+D7","v":1.6E-2},{"$f":"+E7","v":2.6000000000000002E-2},4.3200000000000001E-3,2.7000000000000001E-3,6.7000000000000002E-3,1.9411250000000001E-2,1.7353906249999999E-2,1.4560644531249998E-2,1.3380725097656249E-2,1.3053315734863282E-2,1.1434980201721193E-2,1.2324352726936341E-2,1.3527396817803383E-2,1.4380821420028804E-2,1.3752017847532407E-2,1.3301781797223957E-2,1.3144423955470701E-2,1.3114886312697509E-2,1.3122582634926787E-2,1.3333532939077485E-2,1.345968046559513E-2,1.3451215921569098E-2,1.3335015234261633E-2]
[null,"Costo diésel",{"$f":"'Sup fijo'!D107","v":1.04},{"$f":"(C21*(1+C20))*(1+D20)","v":1.162012841671185},{"$f":"(D21)*(1+E20)","v":1.1922251755546358},{"$f":"(E21)*(1+F20)","v":1.1973755883130319},{"$f":"(F21)*(1+G20)","v":1.200608502401477},{"$f":"(G21)*(1+H20)","v":1.2086525793675669},{"$f":"(H21)*(1+I20)","v":1.2321140367488157},{"$f":"(I21)*(1+J20)","v":1.2534960282318639},{"$f":"(J21)*(1+K20)","v":1.2717477383202818},{"$f":"(K21)*(1+L20)","v":1.2887646452003116},{"$f":"(L21)*(1+M20)","v":1.3055872970220403},{"$f":"(M21)*(1+N20)","v":1.3205166619151063},{"$f":"(N21)*(1+O20)","v":1.3367911750383445},{"$f":"(O21)*(1+P20)","v":1.3548744797256258},{"$f":"(P21)*(1+Q20)","v":1.3743586876651144},{"$f":"(Q21)*(1+R20)","v":1.3932588928667962},{"$f":"(R21)*(1+S20)","v":1.4117917186467519},{"$f":"(S21)*(1+T20)","v":1.4303489075334674},{"$f":"(T21)*(1+U20)","v":1.44910777084326},{"$f":"(U21)*(1+V20)","v":1.4681238073130654},{"$f":"(V21)*(1+W20)","v":1.4876990844565181},{"$f":"(W21)*(1+X20)","v":1.5077230387622611},{"$f":"(X21)*(1+Y20)","v":1.5280037469065766},{"$f":"(Y21)*(1+Z20)","v":1.5483797001495847}]
[null,"Aumento en precios de energía",{"$f":"50%*C19+50%*C7","v":6.1862224443133371E-2},{"$f":"+D7","v":1.6E-2},2.6000000000000002E-2,4.3200000000000001E-3,2.7000000000000001E-3,6.7000000000000002E-3,1.9411250000000001E-2,1.7353906249999999E-2,1.4560644531249998E-2,1.3380725097656249E-2,1.3053315734863282E-2,{"$f":"+N7","v":1.1434980201721193E-2},1.2324352726936341E-2,1.3527396817803383E-2,1.4380821420028804E-2,1.3752017847532407E-2,1.3301781797223957E-2,1.3144423955470701E-2,{"$f":"+U7","v":1.3114886312697509E-2},1.3122582634926787E-2,1.3333532939077485E-2,1.345968046559513E-2,1.3451215921569098E-2,1.3335015234261633E-2]
[null,"Costo KWH",{"$f":"'Sup fijo'!D109","v":0.06},{"$f":"(C23*(1+C22))*(1+D22)","v":6.4731121202053404E-2},{"$f":"(D23)*(1+E22)","v":6.6414130353306788E-2},6.6701039396433084E-2,6.6881132202803451E-2,6.7329235788562231E-2,6.8636180416762962E-2,6.9827286257073559E-2,7.0844016550844643E-2,7.1791960861125312E-2,7.2729083993470528E-2,{"$f":"(M23)*(1+N22)","v":7.3560739629025193E-2},{"$f":"(N23)*(1+O22)","v":7.4467328131067628E-2},{"$f":"(O23)*(1+P22)","v":7.5474677228658152E-2},{"$f":"(P23)*(1+Q22)","v":7.656006508361779E-2},{"$f":"(Q23)*(1+R22)","v":7.761292046505594E-2},{"$f":"(R23)*(1+S22)","v":7.8645310597727405E-2},{"$f":"(S23)*(1+T22)","v":7.9679057902333608E-2},{"$f":"(T23)*(1+U22)","v":8.0724039688225557E-2},{"$f":"(U23)*(1+V22)","v":8.1783347569659409E-2},{"$f":"(V23)*(1+W22)","v":8.2873808528347498E-2},{"$f":"(W23)*(1+X22)","v":8.3989263510105966E-2},{"$f":"(X23)*(1+Y22)","v":8.5119021228673972E-2},{"$f":"(Y23)*(1+Z22)","v":8.6254084673483791E-2}]
[]
[null,"Inflación"]

{"sheet":"Sup fijo","index":2,"n_rows":372,"n_cols":47,"rows_kept":372,"cut":false,"hidden":false,"merged":[[56,2,56,5],[94,8,94,9],[167,1,167,2],[156,1,156,2],[156,3,156,4],[94,2,94,6]]}
[null,null,null,null,null,null,null,null,null,null,null,null,null,null,null,null,null,null,null,null,null,null,null,null,null,null,null,null,null,null,null,null,null,null,null,null,null,null,null,null,{"$f":"C96","v":"Euro III"},{"$f":"D96","v":"Euro IV "},{"$f":"E96","v":"Euro V "},{"$f":"F96","v":"Euro VI "},{"$f":"G96","v":"Híbrido "},{"$f":"I96","v":"Eléctrico "},{"$f":"J96","v":"Gas"}]
[null,"Estructura de costos Transporte Convencional",null,null,null,null,null,null,null,null,null,null,null,null,null,null,null,null,null,null,null,null,null,null,null,null,null,null,null,null,null,null,null,null,null,null,null,null,null,null,null,null,null,"Diésel",{"$f":"AS1","v":"Híbrido "},{"$f":"AT1","v":"Eléctrico "},{"$f":"AU1","v":"Gas"}]
[null,"SUPUESTOS FIJOS"]
[]
[null,"Parámetros Principales "]
[]
[null,"Parámetros operacionales "]
[null,"Parámetro","Unidad","Fuente",1,{"$f":"E8+1","v":2},{"$f":"F8+1","v":3},4,5,6,7,8,9,10,11,12,{"$f":"P8+1","v":13},14,15,16,17,18,19,20]
[null,"Días equivalentes de operación al mes"]
[null,"Para Kilometraje","días","Oper",27.416666666666671,27.416666666666671,27.416666666666671,27.416666666666671,27.416666666666671,27.416666666666671,27.416666666666671,27.416666666666671,27.416666666666671,27.416666666666671,27.416666666666671,27.416666666666671,27.416666666666671,27.416666666666671,27.416666666666671,27.416666666666671,27.416666666666671,27.416666666666671,27.416666666666671,27.416666666666671]
[null,"Para Demanda","días","Oper",26.416666666666668,26.416666666666668,26.416666666666668,26.416666666666668,26.416666666666668,26.416666666666668,26.416666666666668,26.416666666666668,26.416666666666668,26.416666666666668,26.416666666666668,26.416666666666668,26.416666666666668,26.416666666666668,26.416666666666668,26.416666666666668,26.416666666666668,26.416666666666668,26.416666666666668,26.416666666666668]
[null,"% Demanda","%",null,0,{"$f":"+E12","v":0},{"$f":"+F12","v":0},0,0,0,0,0,0,0,0,0,0,0,0,0,0,0,0,0]
[null,"KILOMETRAJE"]
[null,"Intracantonal Rural"]
[null,"Recorrido dia laborable","km","SDM",214,214,214,214,214,214,214,214,214,214,214,214,214,214,214,214,214,214,214,214]
[null,"Recorrido mes  ","km","Calc",{"$f":"+E15*E$10","v":5867.1666666666679},{"$f":"+F15*F$10","v":5867.1666666666679},5867.1666666666679,5867.1666666666679,5867.1666666666679,5867.1666666666679,5867.1666666666679,5867.1666666666679,5867.1666666666679,5867.1666666666679,5867.1666666666679,5867.1666666666679,5867.1666666666679,5867.1666666666679,5867.1666666666679,5867.1666666666679,5867.1666666666679,5867.1666666666679,5867.1666666666679,5867.1666666666679]
[null,"Recorrido Año  ","km","Calc",{"$f":"+E16*12","v":70406.000000000015},{"$f":"+F16*12","v":70406.000000000015},70406.000000000015,70406.000000000015,70406.000000000015,70406.000000000015,70406.000000000015,70406.000000000015,70406.000000000015,70406.000000000015,70406.000000000015,70406.000000000015,{"$f":"+Q16*12","v":70406.000000000015},{"$f":"+R16*12","v":70406.000000000015},{"$f":"+S16*12","v":70406.000000000015},{"$f":"+T16*12","v":70406.000000000015},{"$f":"+U16*12","v":70406.000000000015},{"$f":"+V16*12","v":70406.000000000015},{"$f":"+W16*12","v":70406.000000000015},{"$f":"+X16*12","v":70406.000000000015}]
[null,"Intracantonal Urbano"]
[null,"Recorrido dia laborable","km","SDM",194,194,194,194,194,194,194,194,194,194,194,194,194,194,194,194,194,194,194,194]
[null,"Recorrido mes  ","km","Calc",{"$f":"+E19*E$10","v":5318.8333333333339},{"$f":"+F19*F$10","v":5318.8333333333339},{"$f":"+G19*G$10","v":5318.8333333333339},{"$f":"+H19*H$10","v":5318.8333333333339},{"$f":"+I19*I$10","v":5318.8333333333339},{"$f":"+J19*J$10","v":5318.8333333333339},{"$f":"+K19*K$10","v":5318.8333333333339},{"$f":"+L19*L$10","v":5318.8333333333339},{"$f":"+M19*M$10","v":5318.8333333333339},{"$f":"+N19*N$10","v":5318.8333333333339},{"$f":"+O19*O$10","v":5318.8333333333339},{"$f":"+P19*P$10","v":5318.8333333333339},{"$f":"+Q19*Q$10","v":5318.8333333333339},{"$f":"+R19*R$10","v":5318.8333333333339},{"$f":"+S19*S$10","v":5318.8333333333339},{"$f":"+T19*T$10","v":5318.8333333333339},{"$f":"+U19*U$10","v":5318.8333333333339},{"$f":"+V19*V$10","v":5318.8333333333339},{"$f":"+W19*W$10","v":5318.8333333333339},{"$f":"+X19*X$10","v":5318.8333333333339}]
[null,"Recorrido Año  ","km","Calc",{"$f":"+E20*12","v":63826.000000000007},{"$f":"+F20*12","v":63826.000000000007},63826.000000000007,63826.000000000007,63826.000000000007,63826.000000000007,63826.000000000007,63826.000000000007,63826.000000000007,63826.000000000007,63826.000000000007,63826.000000000007,{"$f":"+Q20*12","v":63826.000000000007},{"$f":"+R20*12","v":63826.000000000007},{"$f":"+S20*12","v":63826.000000000007},{"$f":"+T20*12","v":63826.000000000007},{"$f":"+U20*12","v":63826.000000000007},{"$f":"+V20*12","v":63826.000000000007},{"$f":"+W20*12","v":63826.000000000007},{"$f":"+X20*12","v":63826.000000000007}]
[null,"Intracantonal Combinado"]
[null,"Recorrido dia laborable","km","SDM",342,342,342,342,342,342,342,342,342,342,342,342,342,342,342,342,342,342,342,342]
[null,"Recorrido mes  ","km","Calc",{"$f":"+E23*E$10","v":9376.5000000000018},{"$f":"+F23*F$10","v":9376.5000000000018},{"$f":"+G23*G$10","v":9376.5000000000018},{"$f":"+H23*H$10","v":9376.5000000000018},{"$f":"+I23*I$10","v":9376.5000000000018},{"$f":"+J23*J$10","v":9376.5000000000018},{"$f":"+K23*K$10","v":9376.5000000000018},{"$f":"+L23*L$10","v":9376.5000000000018},{"$f":"+M23*M$10","v":9376.5000000000018},{"$f":"+N23*N$10","v":9376.5000000000018},{"$f":"+O23*O$10","v":9376.5000000000018},{"$f":"+P23*P$10","v":9376.5000000000018},{"$f":"+Q23*Q$10","v":9376.5000000000018},{"$f":"+R23*R$10","v":9376.5000000000018},{"$f":"+S23*S$10","v":9376.5000000000018},{"$f":"+T23*T$10","v":9376.5000000000018},{"$f":"+U23*U$10","v":9376.5000000000018},{"$f":"+V23*V$10","v":9376.5000000000018},{"$f":"+W23*W$10","v":9376.5000000000018},{"$f":"+X23*X$10","v":9376.5000000000018}]
[null,"Recorrido Año  ","km","Calc",{"$f":"+E24*12","v":112518.00000000003},{"$f":"+F24*12","v":112518.00000000003},112518.00000000003,112518.00000000003,112518.00000000003,112518.00000000003,112518.00000000003,112518.00000000003,112518.00000000003,112518.00000000003,112518.00000000003,112518.00000000003,{"$f":"+Q24*12","v":112518.00000000003},{"$f":"+R24*12","v":112518.00000000003},{"$f":"+S24*12","v":112518.00000000003},{"$f":"+T24*12","v":112518.00000000003},{"$f":"+U24*12","v":112518.00000000003},{"$f":"+V24*12","v":112518.00000000003},{"$f":"+W24*12","v":112518.00000000003},{"$f":"+X24*12","v":112518.00000000003}]
[null,"Otro"]
[null,"Recorrido dia laborable","km","SDM",200,200,200,200,200,200,200,200,200,200,200,200,200,200,200,200,200,200,200,200]
[null,"Recorrido mes  ","km","Calc",{"$f":"+E27*E$10","v":5483.3333333333339},{"$f":"+F27*F$10","v":5483.3333333333339},{"$f":"+G27*G$10","v":5483.3333333333339},{"$f":"+H27*H$10","v":5483.3333333333339},{"$f":"+I27*I$10","v":5483.3333333333339},{"$f":"+J27*J$10","v":5483.3333333333339},{"$f":"+K27*K$10","v":5483.3333333333339},{"$f":"+L27*L$10","v":5483.3333333333339},{"$f":"+M27*M$10","v":5483.3333333333339},{"$f":"+N27*N$10","v":5483.3333333333339},{"$f":"+O27*O$10","v":5483.3333333333339},{"$f":"+P27*P$10","v":5483.3333333333339},{"$f":"+Q27*Q$10","v":5483.3333333333339},{"$f":"+R27*R$10","v":5483.3333333333339},{"$f":"+S27*S$10","v":5483.3333333333339},{"$f":"+T27*T$10","v":5483.3333333333339},{"$f":"+U27*U$10","v":5483.3333333333339},{"$f":"+V27*V$10","v":5483.3333333333339},{"$f":"+W27*W$10","v":5483.3333333333339},{"$f":"+X27*X$10","v":5483.3333333333339}]
[null,"Recorrido Año  ","km","Calc",{"$f":"+E28*12","v":65800},{"$f":"+F28*12","v":65800},65800,65800,65800,65800,65800,65800,65800,65800,65800,65800,{"$f":"+Q28*12","v":65800},{"$f":"+R28*12","v":65800},{"$f":"+S28*12","v":65800},{"$f":"+T28*12","v":65800},{"$f":"+U28*12","v":65800},{"$f":"+V28*12","v":65800},{"$f":"+W28*12","v":65800},{"$f":"+X28*12","v":65800}]
[null,"DEMANDA"]
[null,{"$f":"+B14","v":"Intracantonal Rural"}]
[null,"Demanda día laborable","pas","SDM",972,972,972,972,972,972,972,972,972,972,972,972,972,972,972,972,972,972,972,972]
[null,"Demanda mes ","pas","Calc",{"$f":"+E32*E$11","v":25677},{"$f":"+F32*F$11","v":25677},25677,25677,25677,25677,25677,25677,25677,25677,25677,25677,25677,25677,25677,25677,25677,25677,25677,25677]
[null,"Demanda Año ","pas","Calc",{"$f":"+E33*12","v":308124},{"$f":"+F33*12","v":308124},308124,308124,308124,308124,308124,308124,308124,308124,308124,308124,{"$f":"+Q33*12","v":308124},{"$f":"+R33*12","v":308124},{"$f":"+S33*12","v":308124},{"$f":"+T33*12","v":308124},{"$f":"+U33*12","v":308124},{"$f":"+V33*12","v":308124},{"$f":"+W33*12","v":308124},{"$f":"+X33*12","v":308124}]
[null,{"$f":"+B18","v":"Intracantonal Urbano"}]
[null,"Demanda día laborable","pas","SDM",{"$f":"864*1.1","v":950.40000000000009},{"$f":"+E36*(1+F12)","v":950.40000000000009},{"$f":"+F36*(1+G12)","v":950.40000000000009},950.40000000000009,950.40000000000009,950.40000000000009,950.40000000000009,950.40000000000009,950.40000000000009,950.40000000000009,950.40000000000009,950.40000000000009,950.40000000000009,950.40000000000009,950.40000000000009,950.40000000000009,950.40000000000009,950.40000000000009,950.40000000000009,950.40000000000009]
[null,"Demanda mes ","pas","Calc",{"$f":"+E36*E$11","v":25106.400000000005},{"$f":"+F36*F$11","v":25106.400000000005},{"$f":"+G36*G$11","v":25106.400000000005},{"$f":"+H36*H$11","v":25106.400000000005},{"$f":"+I36*I$11","v":25106.400000000005},{"$f":"+J36*J$11","v":25106.400000000005},{"$f":"+K36*K$11","v":25106.400000000005},{"$f":"+L36*L$11","v":25106.400000000005},{"$f":"+M36*M$11","v":25106.400000000005},{"$f":"+N36*N$11","v":25106.400000000005},{"$f":"+O36*O$11","v":25106.400000000005},{"$f":"+P36*P$11","v":25106.400000000005},{"$f":"+Q36*Q$11","v":25106.400000000005},{"$f":"+R36*R$11","v":25106.400000000005},{"$f":"+S36*S$11","v":25106.400000000005},{"$f":"+T36*T$11","v":25106.400000000005},{"$f":"+U36*U$11","v":25106.400000000005},{"$f":"+V36*V$11","v":25106.400000000005},{"$f":"+W36*W$11","v":25106.400000000005},{"$f":"+X36*X$11","v":25106.400000000005}]
[null,"Demanda Año ","pas","Calc",{"$f":"+E37*12","v":301276.80000000005},{"$f":"+F37*12","v":301276.80000000005},301276.80000000005,301276.80000000005,301276.80000000005,301276.80000000005,301276.80000000005,301276.80000000005,301276.80000000005,301276.80000000005,301276.80000000005,301276.80000000005,{"$f":"+Q37*12","v":301276.80000000005},{"$f":"+R37*12","v":301276.80000000005},{"$f":"+S37*12","v":301276.80000000005},{"$f":"+T37*12","v":301276.80000000005},{"$f":"+U37*12","v":301276.80000000005},{"$f":"+V37*12","v":301276.80000000005},{"$f":"+W37*12","v":301276.80000000005},{"$f":"+X37*12","v":301276.80000000005}]
[null,{"$f":"+B22","v":"Intracantonal Combinado"}]
[null,"Demanda día laborable","pas","SDM",972,972,972,972,972,972,972,972,972,972,972,972,972,972,972,972,972,972,972,972]
[null,"Demanda mes ","pas","Calc",{"$f":"+E40*E$11","v":25677},{"$f":"+F40*F$11","v":25677},{"$f":"+G40*G$11","v":25677},{"$f":"+H40*H$11","v":25677},{"$f":"+I40*I$11","v":25677},{"$f":"+J40*J$11","v":25677},{"$f":"+K40*K$11","v":25677},{"$f":"+L40*L$11","v":25677},{"$f":"+M40*M$11","v":25677},{"$f":"+N40*N$11","v":25677},{"$f":"+O40*O$11","v":25677},{"$f":"+P40*P$11","v":25677},{"$f":"+Q40*Q$11","v":25677},{"$f":"+R40*R$11","v":25677},{"$f":"+S40*S$11","v":25677},{"$f":"+T40*T$11","v":25677},{"$f":"+U40*U$11","v":25677},{"$f":"+V40*V$11","v":25677},{"$f":"+W40*W$11","v":25677},{"$f":"+X40*X$11","v":25677}]
[null,"Demanda Año ","pas","Calc",{"$f":"+E41*12","v":308124},{"$f":"+F41*12","v":308124},308124,308124,308124,308124,308124,308124,308124,308124,308124,308124,{"$f":"+Q41*12","v":308124},{"$f":"+R41*12","v":308124},{"$f":"+S41*12","v":308124},{"$f":"+T41*12","v":308124},{"$f":"+U41*12","v":308124},{"$f":"+V41*12","v":308124},{"$f":"+W41*12","v":308124},{"$f":"+X41*12","v":308124}]
[null,"Otro"]
[null,"Demanda día laborable","pas","SDM",1100,1100,1100,1100,1100,1100,1100,1100,1100,1100,1100,1100,1100,1100,1100,1100,1100,1100,1100,1100]
[null,"Demanda mes ","pas","Calc",{"$f":"+E44*E$11","v":29058.333333333336},{"$f":"+F44*F$11","v":29058.333333333336},{"$f":"+G44*G$11","v":29058.333333333336},{"$f":"+H44*H$11","v":29058.333333333336},{"$f":"+I44*I$11","v":29058.333333333336},{"$f":"+J44*J$11","v":29058.333333333336},{"$f":"+K44*K$11","v":29058.333333333336},{"$f":"+L44*L$11","v":29058.333333333336},{"$f":"+M44*M$11","v":29058.333333333336},{"$f":"+N44*N$11","v":29058.333333333336},{"$f":"+O44*O$11","v":29058.333333333336},{"$f":"+P44*P$11","v":29058.333333333336},{"$f":"+Q44*Q$11","v":29058.333333333336},{"$f":"+R44*R$11","v":29058.333333333336},{"$f":"+S44*S$11","v":29058.333333333336},{"$f":"+T44*T$11","v":29058.333333333336},{"$f":"+U44*U$11","v":29058.333333333336},{"$f":"+V44*V$11","v":29058.333333333336},{"$f":"+W44*W$11","v":29058.333333333336},{"$f":"+X44*X$11","v":29058.333333333336}]
[null,"Demanda Año ","pas","Calc",{"$f":"+E45*12","v":348700},{"$f":"+F45*12","v":348700},348700,348700,348700,348700,348700,348700,348700,348700,348700,348700,{"$f":"+Q45*12","v":348700},{"$f":"+R45*12","v":348700},{"$f":"+S45*12","v":348700},{"$f":"+T45*12","v":348700},{"$f":"+U45*12","v":348700},{"$f":"+V45*12","v":348700},{"$f":"+W45*12","v":348700},{"$f":"+X45*12","v":348700}]
[]
[]
[null,"Selección de tipología de vehículo por servicio"]
[null,"Denominación","Tipología","Tecnología","Combustible","Precio USD","Vida útil flota  ","Plazo a remunerar tarifa ","Valor salvamento"]
[null,{"$f":"B31","v":"Intracantonal Rural"},"Minibús","Euro III","Diésel",{"$f":"IF(E51=$AR$2,IF(C51=$C$58,+VLOOKUP(D51,$B$59:$D$62,2,FALSE),0)+IF(C51=$D$58,+VLOOKUP(D51,$B$59:$D$62,3,FALSE),0)+IF(C51=$E$58,+VLOOKUP(D51,$B$59:$E$62,4,FALSE),0)+IF(C51=$F$58,+VLOOKUP(D51,$B$59:$F$62,5,FALSE),0),0)+IF(AND(E51=$G$57,$C51=$G$58),$G$62,0)+IF(AND(E51=$H$57,$C51=$H$58),$H$62,0)+IF(AND(E51=$I$57,$C51=$I$58),$I$62,0)","v":90000},12,{"$f":"G51","v":12},{"$f":"VLOOKUP(G51,$B$67:$C$86,2,FALSE)","v":0.2}]
[null,{"$f":"B35","v":"Intracantonal Urbano"},"Bus Tipo","Euro III","Diésel",{"$f":"IF(E52=$AR$2,IF(C52=$C$58,+VLOOKUP(D52,$B$59:$D$62,2,FALSE),0)+IF(C52=$D$58,+VLOOKUP(D52,$B$59:$D$62,3,FALSE),0)+IF(C52=$E$58,+VLOOKUP(D52,$B$59:$E$62,4,FALSE),0)+IF(C52=$F$58,+VLOOKUP(D52,$B$59:$F$62,5,FALSE),0),0)+IF(AND(E52=$G$57,$C52=$G$58),$G$62,0)+IF(AND(E52=$H$57,$C52=$H$58),$H$62,0)+IF(AND(E52=$I$57,$C52=$I$58),$I$62,0)","v":122000},12,{"$f":"G52","v":12},{"$f":"VLOOKUP(G52,$B$67:$C$86,2,FALSE)","v":0.2}]
[null,{"$f":"B39","v":"Intracantonal Combinado"},"Bus Tipo","Euro III","Diésel",{"$f":"IF(E53=$AR$2,IF(C53=$C$58,+VLOOKUP(D53,$B$59:$D$62,2,FALSE),0)+IF(C53=$D$58,+VLOOKUP(D53,$B$59:$D$62,3,FALSE),0)+IF(C53=$E$58,+VLOOKUP(D53,$B$59:$E$62,4,FALSE),0)+IF(C53=$F$58,+VLOOKUP(D53,$B$59:$F$62,5,FALSE),0),0)+IF(AND(E53=$G$57,$C53=$G$58),$G$62,0)+IF(AND(E53=$H$57,$C53=$H$58),$H$62,0)+IF(AND(E53=$I$57,$C53=$I$58),$I$62,0)","v":122000},12,12,{"$f":"VLOOKUP(G53,$B$67:$C$86,2,FALSE)","v":0.2}]
[null,{"$f":"B43","v":"Otro"},"Articulado","Euro III","Diésel",{"$f":"IF(E54=$AR$2,IF(C54=$C$58,+VLOOKUP(D54,$B$59:$D$62,2,FALSE),0)+IF(C54=$D$58,+VLOOKUP(D54,$B$59:$D$62,3,FALSE),0)+IF(C54=$E$58,+VLOOKUP(D54,$B$59:$E$62,4,FALSE),0)+IF(C54=$F$58,+VLOOKUP(D54,$B$59:$F$62,5,FALSE),0),0)+IF(AND(E54=$G$57,$C54=$G$58),$G$62,0)+IF(AND(E54=$H$57,$C54=$H$58),$H$62,0)+IF(AND(E54=$I$57,$C54=$I$58),$I$62,0)","v":206078.58000000002},12,12,{"$f":"VLOOKUP(G54,$B$67:$C$86,2,FALSE)","v":0.2}]
[]
[null,"Tabla de precios US ( chasis + carrocería) "]
[null,"Combustible","Diésel",null,null,null,{"$f":"AS2","v":"Híbrido "},{"$f":"AT2","v":"Eléctrico "},{"$f":"AU2","v":"Gas"},"Fuente"]
[null,"Tipología","Minibús","Bus Tipo","Articulado","Biarticulado","Bus Tipo","Bus Tipo","Bus Tipo","Fuente"]
[null,"Euro III",90000,122000,{"$f":"+E60*90%","v":206078.58000000002},288940.77,"n/a","n/a","n/a","Bench"]
[null,"Euro IV ",94950,128790,228976.2,321045.3,"n/a","n/a","n/a","Bench"]
[null,"Euro V ",105500,143100,254418,356717,"n/a","n/a","n/a","Bench"]
[null,"Euro VI ",{"$f":"+C61*1.2","v":126600},{"$f":"+D61*1.2","v":171720},{"$f":"+E61*1.2","v":305301.59999999998},{"$f":"+F61*1.2","v":428060.39999999997},{"$f":"500/330*D62","v":260181.81818181818},200000,155000,"Bench"]
[]
[]
[null,"Tabla valor de salvamento según vida útil"]
[null,"Vida útil","% salvamento","Fuente"]
[null,20,0.03,"Sup"]
[null,{"$f":"B67-1","v":19},{"$f":"C69-($C$75-$C$67)/8","v":5.1250000000000018E-2},"Sup"]
[null,{"$f":"B68-1","v":18},7.2500000000000023E-2,"Sup"]
[null,17,9.3750000000000028E-2,"Sup"]
[null,16,0.11500000000000003,"Sup"]
[null,15,0.13625000000000004,"Sup"]
[null,14,0.15750000000000003,"Sup"]
[null,13,{"$f":"C75-($C$75-$C$67)/8","v":0.17875000000000002},"Sup"]
[null,12,0.2,"Sup"]
[null,11,{"$f":"$C77-($C$86-$C$75)/11","v":0.26818181818181852},"Sup"]
[null,10,0.3363636363636367,"Sup"]
[null,9,0.40454545454545487,"Sup"]
[null,8,0.47272727272727305,"Sup"]
[null,7,0.54090909090909123,"Sup"]
[null,6,0.60909090909090935,"Sup"]
[null,5,0.67727272727272747,"Sup"]
[null,4,0.74545454545454559,"Sup"]
[null,3,0.81363636363636371,"Sup"]
[null,2,{"$f":"$C86-($C$86-$C$75)/11","v":0.88181818181818183},"Sup"]
[null,1,0.95,"Sup"]
[]
[null,"Combustible "]
[null,"Tipología","Combustible",{"$f":"+D50","v":"Tecnología"},"Rendimiento"]
[null,{"$f":"+'Sup Personal Directo'!B46","v":"Intracantonal Rural"},{"$f":"+E51","v":"Diésel"},{"$f":"+D51","v":"Euro III"},{"$f":"+HLOOKUP(D90,$C$96:$J$97,2,FALSE)","v":9.7357477693177721}]
[null,{"$f":"+'Sup Personal Directo'!B47","v":"Intracantonal Urbano"},{"$f":"+E52","v":"Diésel"},{"$f":"+D52","v":"Euro III"},{"$f":"+HLOOKUP(D91,$C$96:$J$99,3,FALSE)","v":8.1475007815265261}]
[null,{"$f":"+'Sup Personal Directo'!B48","v":"Intracantonal Combinado"},{"$f":"+E53","v":"Diésel"},{"$f":"+D53","v":"Euro III"},{"$f":"+HLOOKUP(D92,$C$96:$J$99,4,FALSE)","v":8.7662983092374027}]
[null,{"$f":"+'Sup Personal Directo'!B49","v":"Otro"},{"$f":"+E54","v":"Diésel"},{"$f":"+D54","v":"Euro III"},{"$f":"+HLOOKUP(D93,$C$96:$J$100,5,FALSE)","v":5.4261760000000008}]
[]
[null,"Rendimientos de combustible","Km/ Galón",null,null,null,null,null,"Otros "]
[null,"Tipo ","Euro III","Euro IV ","Euro V ","Euro VI ","Híbrido ","Fuente","Eléctrico ","Gas","Fuente"]
[null,{"$f":"+B90","v":"Intracantonal Rural"},{"$f":"9.44/(2-(1+0.5%)^(9-3))","v":9.7357477693177721},{"$f":"D98/C98*C97","v":11.072564705882352},{"$f":"E98/D98*D97","v":11.139066596007773},null,null,"Oper",null,null,"Bench"]
[null,{"$f":"+B91","v":"Intracantonal Urbano"},{"$f":"7.9/(2-(1+0.5%)^(9-3))","v":8.1475007815265261},{"$f":"D99/C99*C98","v":9.2662352941176476},{"$f":"E99/D99*D98","v":9.3218883589471844},{"$f":"F99/E99*E98","v":9.3218883589471844},{"$f":"E98*1.3","v":12.118454866631341},"Oper",1,3,"Bench"]
[null,{"$f":"+B92","v":"Intracantonal Combinado"},{"$f":"8.5/(2-(1+0.5%)^(9-3))","v":8.7662983092374027},9.9700000000000006,{"$f":"E100/D100*D99","v":10.029879879879882},{"$f":"E99","v":10.029879879879882},{"$f":"E99*1.3","v":13.038843843843846},"Oper",1,2.4000000000000004,"Bench"]
[null,{"$f":"+B93","v":"Otro"},5.4261760000000008,6.66,6.7,{"$f":"E100/D100*E100","v":6.740240240240241},{"$f":"E100*1.3","v":8.7100000000000009},"Bench",{"$f":"I99/G99*G100","v":0.66800401203610815},1.9200000000000004,"Bench"]
[]
[null,"Urea y Pérdida de Eficiencia","Unidad","Valor","Fuente"]
[null,"Urea para diésel ","%",0.05,"Bench","* Solo aplica para euro V y Euro VI "]
[null,"Pérdida eficiencia vejez ","%",5.0000000000000001E-3,"Bench","* Aplica del tercer año en adelante "]
[]
[null,"Precios","Unidad","Valor","Fuente"]
[null,{"$f":"+C90","v":"Diésel"},"USD/Galón",1.04,"Mdo"]
[null,"Urea ","USD/Litro",{"$f":"475/710","v":0.66901408450704225},"Mdo"]
[null,"Kwh","USD/kw",0.06,"Mdo"]
[null,"m3/gas","USD/m3",1,"Mdo"]
[]
[]
[null,"SITP-Q"]
[null,"Parámetro","Unidad","Valor","Fuente"]
[null,"SITP-Q"]
[null,"Costo Por pasajero","USD/Pas",2.2372516606815669E-2,"Calc"]
[null,"Escenario"]
[null,"Incluye año 2 SITP-Q","-","Si","Sup","* En caso de no mantiene gasto actual "]
[]
[null,"Gastos Administrativos"]
[null,"Parámetro","Unidad","Valor","Fuente"]
[null,"Luz ","USD/mes",100,"Oper"]
[null,"Agua ","USD/mes",50,"Oper"]
[null,"Teléfonos ","USD/mes",400,"Oper"]
[null,"Internet","USD/mes",50,"Oper"]
[null,"Limpieza oficina ","USD/mes",500,"Oper"]
[null,"Seguridad alarmas","USD/mes",50,"Oper"]
[null,"Útiles oficina ","USD/mes",300,"Oper"]
[null,"Mantenimiento oficinas ","USD/mes",100,"Oper"]
[null,"Comunicación radios ","USD/mes",100,"Oper"]
[null,"Movilización auxilios ","USD/mes",500,"Oper"]
[null,"Arriendo y Mtto de patios ","USD/mes",4000,"Oper"]
[null,"Otros ","USD/mes",{"$f":"+SUM(D122:D132,D136:D137)*5%","v":447.25},"Oper"]
[null,"Subtotal","USD/mes",{"$f":"SUM(D122:D133)","v":6597.25},"Calc"]
[]
[null,"Medio de pago ","USD/mes",2295,"Oper"]
[null,"transporte valores","USD/mes",500,"Oper"]
[null,"Total ","USD/mes",{"$f":"SUM(D134,SUM(D136:D137))","v":9392.25},"Calc"]
[]
[null,"Gasto medio por bus ","USD/mes",{"$f":"+D138/'Sup fijo'!$D$142","v":187.845},"Calc"]
[]
[null,"Flota promedio empresa ","Veh/Empresa",50,"Sup","* Tamaño medio empresa "]
[]
[null,"Flota administrada por el ente gestor"]
[null,"Intracantonal rural","Veh",46,"SDM"]
[null,"Intracantonal Urbano","Veh",2007,"SDM"]
[null,"Intracantonal Combinado","Veh",268,"SDM"]
[]
[null,"Seguros "]
[null,"Parámetro","Unidad","Valor","Fuente"]
[null,"Prima de seguros","%",{"$f":"I151","v":5.0000000000000001E-3},"Mdo",null,null,{"$f":"3%","v":0.03},5.0000000000000001E-3]
[null,"Superintendencia de Bancos","%",3.5000000000000003E-2,"Mdo"]
[null,"Seguro Campesino","%",5.0000000000000001E-3,"Mdo"]
[]
[null,"Impuestos"]
[null,"Costos de matrícula "]
[null,"BASE IMPONIBLE (AVALUO)",null,"TARIFA",null,"FUENTE"]
[null,"Desde - US ","Hasta  - US ","Fracción Básica (USD)","Sobre la Fracción Excedente (%)"]
[null,0,4000,0,5.0000000000000001E-3,"Mdo"]
[null,4001,8000,20,0.01,"Mdo"]
[null,8001,12000,60,0.02,"Mdo"]
[null,12001,16000,140,0.03,"Mdo"]
[null,16001,20000,260,0.04,"Mdo"]
[null,20001,24000,420,0.05,"Mdo"]
[null,24001,null,620,0.06,"Mdo"]
[null,"Exoneración ",0.8]
[null,"Impuesto rodaje "]
[null,"BASE IMPONIBLE (AVALUO)",null,"TARIFA","FUENTE"]
[null,"Desde - US ","Hasta  - US ","Tarifa (USD)"]
[null,1001,4000,5,"Mdo"]
[null,4001,8000,10,"Mdo"]
[null,8001,12000,15,"Mdo"]
[null,12001,16000,20,"Mdo"]
[null,16001,20000,25,"Mdo"]
[null,20001,30000,30,"Mdo"]
[null,30001,40000,50,"Mdo"]
[null,40001,null,70,"Mdo"]
[null,"Otros Impuestos","Unidad","Valor","Fuente"]
[null,{"$f":"+B31","v":"Intracantonal Rural"}]
[null,"Valor Revisión Anual (una Semestral)","USD/vehículo",{"$f":"35*2","v":70},"Mdo"]
[null,"Valor SPPAT","USD/vehículo",78,"Mdo"]
[null,"Valor permiso de operación","USD/vehículo",25,"Mdo"]
[null,{"$f":"+B35","v":"Intracantonal Urbano"}]
[null,"Valor Revisión Anual (una Semestral)","USD/vehículo",{"$f":"35*2","v":70},"Mdo"]
[null,"Valor SPPAT","USD/vehículo",78,"Mdo"]
[null,"Valor permiso de operación","USD/vehículo",25,"Mdo"]
[null,{"$f":"+B39","v":"Intracantonal Combinado"}]
[null,"Valor Revisión Anual (una Semestral)","USD/vehículo",{"$f":"35*2","v":70},"Mdo"]
[null,"Valor SPPAT","USD/vehículo",78,"Mdo"]
[null,"Valor permiso de operación","USD/vehículo",25,"Mdo"]
[null,{"$f":"+B43","v":"Otro"}]
[null,"Valor Revisión Anual (una Semestral)","USD/vehículo",{"$f":"35*2","v":70},"Mdo"]
[null,"Valor SPPAT","USD/vehículo",78,"Mdo"]
[null,"Valor permiso de operación","USD/vehículo",25,"Mdo"]
[null,"Impuestos Nacionales"]
[null,"Participación Empleados","%",{"$f":"15%","v":0.15},"Mdo"]
[null,"Impuesto a la Renta","%",{"$f":"30%","v":0.3},"Mdo"]
[null,"IVA ","%",0.14000000000000001,"Mdo"]
[]
[null,"Pago de impuestos en escenario sin SITP-Q","-","No","Sup"]
[null,"Corrección mantenimiento para situación actual","%",0.8,"Sup"]
[]
[null,"Financiación"]
[null,"Estructura de Capital","Unidad","Valor","Fuente"]
[null,"Capital ","%",0.4,"Oper"]
[null,"Deuda ","%",{"$f":"100%-D205","v":0.6},"Oper"]
[null,"Tasa interés Efectiva Anual (E.A.)","%",0.14000000000000001,"Mdo"]
[null,"Plazo deuda ","Años",5,"Mdo"]
[null,"Periodo gracia","Años",0,"Mdo"]
[null,"Parámetros Rentabilidad","Unidad","Valor","Fuente"]
[null,"Inflación anual ","%",0.03,"Bench","* Inflación promedio anual "]
[null,"Costo de capital ","%",{"$f":"C223","v":0.26091998725454651},"Bench","* Retorno capital invertido "]
[null,"WACC ","%",{"$f":"((1+C225)/(1+D211)-1)*1","v":0.12928931543865874},"Calc"]
[null,"Depreciación tributaria ","Años",5,"Mdo"]
[null,"Valor salvamento ","%",0.1,"Mdo","* Para efecto tributario"]
[null,"TIR objetivo (real) ","%",{"$f":"ROUND(D213,2)*1+19%*0","v":0.13},"Calc"]
[]
[]
[]
[null,"Análisis de riesgo"]
[null,"Cálculo del WACC"]
[null,null,"Ke ","Kd ","Tax ","Fuente"]
[null,"Capital ",{"$f":"+F273+G273","v":0.26091998725454651},{"$f":"D207","v":0.14000000000000001},{"$f":"D197","v":0.3},"Bench"]
[null,"Peso ",0.4,0.6,null,"Bench"]
[null,"Wacc",{"$f":"+C223*C224+(D223*(1-E223))*D224","v":0.1631679949018186},null,null,"Calc"]
[]
[]
[null,"Country","Africa","Moody's rating","Rating-based Default Spread","Total Equity Risk Premium (based on rating)","Country Risk Premium (based on rating)","CDS Default Spread (net of US)","Total Equity Risk Premium (Based on CDS)","Country Risk Premium (based on CDS)"]
[null,"Abu Dhabi","Middle East","Aa2",5.4999999999999997E-3,6.7663383702496568E-2,7.6633837024965732E-3,8.199999999999999E-3,7.1425408429176704E-2,1.142540842917671E-2]
[null,"Albania","Eastern Europe & Russia","B1",4.99E-2,0.12952779031901437,6.9527790319014376E-2,"NA","NA","NA"]
[null,"Andorra (Principality of)","Western Europe","Baa3",2.4400000000000002E-2,9.399755678925753E-2,3.3997556789257533E-2,"NA","NA","NA"]
[null,"Angola","Africa","Ba2",3.3300000000000003E-2,0.10639830496238835,4.6398304962388351E-2,"NA","NA","NA"]
[null,"Argentina","Central and South America","Caa1",8.3099999999999993E-2,0.17578676103226643,0.11578676103226641,"NA","NA","NA"]
[null,"Armenia","Eastern Europe & Russia","Ba3",3.9899999999999998E-2,0.11559436540538423,5.5594365405384233E-2,"NA","NA","NA"]
[null,"Aruba","Caribbean","Baa1",1.77E-2,8.4662162097125335E-2,2.466216209712534E-2,"NA","NA","NA"]
[null,"Australia","Australia & New Zealand","Aaa",0,0.06,0,3.4000000000000002E-3,6.4737364470634245E-2,4.737364470634246E-3]
[null,"Austria","Western Europe","Aaa",0,0.06,0,1.2000000000000005E-3,6.1672010989635616E-2,1.672010989635617E-3]
[null,"Azerbaijan","Eastern Europe & Russia","Baa3",2.4400000000000002E-2,9.399755678925753E-2,3.3997556789257533E-2,"NA","NA","NA"]
[null,"Bahamas","Caribbean","Baa2",2.1100000000000001E-2,8.9399526567759582E-2,2.9399526567759585E-2,"NA","NA","NA"]
[null,"Bahrain","Middle East","Baa3",2.4400000000000002E-2,9.399755678925753E-2,3.3997556789257533E-2,3.5200000000000002E-2,0.10904565569597807,4.9045655695978074E-2]
[null,"Bangladesh","Asia","Ba3",3.9899999999999998E-2,0.11559436540538423,5.5594365405384233E-2,"NA","NA","NA"]
[null,"Barbados","Caribbean","B3",7.2099999999999997E-2,0.16045999362727326,0.10045999362727327,"NA","NA","NA"]
[null,"Belarus","Eastern Europe & Russia","Caa1",8.3099999999999993E-2,0.17578676103226643,0.11578676103226641,"NA","NA","NA"]
[null,"Belgium","Western Europe","Aa3",6.7000000000000002E-3,6.9335394692132193E-2,9.3353946921321904E-3,3.2000000000000006E-3,6.4458695972361646E-2,4.4586959723616438E-3]
[null,"Belize","Central and South America","Caa2",9.98E-2,0.19905558063802875,0.13905558063802875,"NA","NA","NA"]
[null,"Bermuda","Caribbean","A1",7.7999999999999996E-3,7.0868071432631505E-2,1.0868071432631505E-2,"NA","NA","NA"]
[null,"Bolivia","Central and South America","Ba3",3.9899999999999998E-2,0.11559436540538423,5.5594365405384233E-2,"NA","NA","NA"]
[null,"Bosnia and Herzegovina","Eastern Europe & Russia","B3",7.2099999999999997E-2,0.16045999362727326,0.10045999362727327,"NA","NA","NA"]
[null,"Botswana","Africa","A2",9.4000000000000004E-3,7.3097419418812329E-2,1.3097419418812328E-2,"NA","NA","NA"]
[null,"Brazil","Central and South America","Baa3",2.4400000000000002E-2,9.399755678925753E-2,3.3997556789257533E-2,5.1900000000000002E-2,0.1323144753017404,7.23144753017404E-2]
[null,"Bulgaria","Eastern Europe & Russia","Baa2",2.1100000000000001E-2,8.9399526567759582E-2,2.9399526567759585E-2,1.8099999999999998E-2,8.5219499093670534E-2,2.5219499093670539E-2]
[null,"Burkina Faso","Africa","B3",7.2099999999999997E-2,0.16045999362727326,0.10045999362727327,"NA","NA","NA"]
[null,"Cambodia","Asia","B2",6.0999999999999999E-2,0.14499389197314383,8.4993891973143817E-2,"NA","NA","NA"]
[null,"Cameroon","Africa","B2",6.0999999999999999E-2,0.14499389197314383,8.4993891973143817E-2,"NA","NA","NA"]
[null,"Canada","North America","Aaa",0,0.06,0,"NA","NA","NA"]
[null,"Cayman Islands","Caribbean","Aa3",6.7000000000000002E-3,6.9335394692132193E-2,9.3353946921321904E-3,"NA","NA","NA"]
[null,"Cape Verde","Africa","B2",6.0999999999999999E-2,0.14499389197314383,8.4993891973143817E-2,"NA","NA","NA"]
[null,"Chile","Central and South America","Aa3",6.7000000000000002E-3,6.9335394692132193E-2,9.3353946921321904E-3,1.2699999999999999E-2,7.7695449640310277E-2,1.7695449640310272E-2]
[null,"China","Asia","Aa3",6.7000000000000002E-3,6.9335394692132193E-2,9.3353946921321904E-3,1.2299999999999998E-2,7.7138112643765064E-2,1.7138112643765063E-2]
[null,"Colombia","Central and South America","Baa2",2.1100000000000001E-2,8.9399526567759582E-2,2.9399526567759585E-2,2.63E-2,9.6644907522847254E-2,3.6644907522847256E-2]
[null,"Congo (Democratic Republic of)","Africa","B3",7.2099999999999997E-2,0.16045999362727326,0.10045999362727327,"NA","NA","NA"]
[null,"Congo (Republic of)","Africa","Ba3",3.9899999999999998E-2,0.11559436540538423,5.5594365405384233E-2,"NA","NA","NA"]
[null,"Cook Islands","Australia & New Zealand","B1",4.99E-2,0.12952779031901437,6.9527790319014376E-2,"NA","NA","NA"]
[null,"Costa Rica","Central and South America","Ba1",2.7699999999999999E-2,9.8595587010755464E-2,3.8595587010755474E-2,4.4400000000000002E-2,0.12186440661651779,6.1864406616517799E-2]
[null,"Côte d'Ivoire","Africa","Ba3",3.9899999999999998E-2,0.11559436540538423,5.5594365405384233E-2,"NA","NA","NA"]
[null,"Croatia","Eastern Europe & Russia","Ba1",2.7699999999999999E-2,9.8595587010755464E-2,3.8595587010755474E-2,0.03,0.1018002747408904,4.1800274740890403E-2]
[null,"Cuba","Caribbean","Caa2",9.98E-2,0.19905558063802875,0.13905558063802875,"NA","NA","NA"]
[null,"Curacao","Caribbean","A3",1.3299999999999999E-2,7.8531455135128075E-2,1.8531455135128078E-2,"NA","NA","NA"]
[null,"Cyprus","Western Europe","B1",4.99E-2,0.12952779031901437,6.9527790319014376E-2,2.7099999999999999E-2,9.7759581515937666E-2,3.7759581515937661E-2]
[null,"Czech Republic","Eastern Europe & Russia","A1",7.7999999999999996E-3,7.0868071432631505E-2,1.0868071432631505E-2,5.3999999999999994E-3,6.7524049453360269E-2,7.5240494533602717E-3]
[null,"Denmark","Western Europe","Aaa",0,0.06,0,0,0.06,0]
[null,"Dominican Republic","Caribbean","B1",4.99E-2,0.12952779031901437,6.9527790319014376E-2,"NA","NA","NA"]
[null,"Ecuador","Central and South America","B3",7.2099999999999997E-2,0.16045999362727326,0.10045999362727327,"NA","NA","NA"]
[null,"Egypt","Africa","B3",7.2099999999999997E-2,0.16045999362727326,0.10045999362727327,4.8799999999999996E-2,0.12799511357851506,6.7995113578515051E-2]
[null,"El Salvador","Central and South America","Ba3",3.9899999999999998E-2,0.11559436540538423,5.5594365405384233E-2,"NA","NA","NA"]
[null,"Estonia","Eastern Europe & Russia","A1",7.7999999999999996E-3,7.0868071432631505E-2,1.0868071432631505E-2,4.6000000000000008E-3,6.6409375460269857E-2,6.4093754602698632E-3]
[null,"Ethiopia","Africa","B1",4.99E-2,0.12952779031901437,6.9527790319014376E-2,"NA","NA","NA"]
[null,"Fiji","Asia","B1",4.99E-2,0.12952779031901437,6.9527790319014376E-2,"NA","NA","NA"]
[null,"Finland","Western Europe","Aaa",0,0.06,0,7.000000000000001E-4,6.097533974395411E-2,9.7533974395410956E-4]
[null,"France","Western Europe","Aa2",5.4999999999999997E-3,6.7663383702496568E-2,7.6633837024965732E-3,2.1000000000000003E-3,6.2926019231862321E-2,2.9260192318623286E-3]
[null,"Gabon","Africa","Ba3",3.9899999999999998E-2,0.11559436540538423,5.5594365405384233E-2,"NA","NA","NA"]
[null,"Georgia","Eastern Europe & Russia","Ba3",3.9899999999999998E-2,0.11559436540538423,5.5594365405384233E-2,"NA","NA","NA"]
[null,"Germany","Western Europe","Aaa",0,0.06,0,0,0.06,0]
[null,"Ghana","Africa","B3",7.2099999999999997E-2,0.16045999362727326,0.10045999362727327,"NA","NA","NA"]
[null,"Greece","Western Europe","Caa3",0.1108,0.21438234804302189,0.15438234804302189,"NA","NA","NA"]
[null,"Guatemala","Central and South America","Ba1",2.7699999999999999E-2,9.8595587010755464E-2,3.8595587010755474E-2,"NA","NA","NA"]
[null,"Guernsey (States of)","Western Europe","Aa1",4.4000000000000003E-3,6.6130706961997257E-2,6.1307069619972593E-3,"NA","NA","NA"]
[null,"Honduras","Central and South America","B3",7.2099999999999997E-2,0.16045999362727326,0.10045999362727327,"NA","NA","NA"]
[null,"Hong Kong","Asia","Aa1",4.4000000000000003E-3,6.6130706961997257E-2,6.1307069619972593E-3,3.8999999999999998E-3,6.5434035716315744E-2,5.4340357163157526E-3]
[null,"Hungary","Eastern Europe & Russia","Ba1",2.7699999999999999E-2,9.8595587010755464E-2,3.8595587010755474E-2,1.7599999999999998E-2,8.4522827847989035E-2,2.4522827847989034E-2]
[null,"Iceland","Western Europe","Baa2",2.1100000000000001E-2,8.9399526567759582E-2,2.9399526567759585E-2,4.1000000000000003E-3,6.5712704214588358E-2,5.7127042145883556E-3]
[null,"India","Asia","Baa3",2.4400000000000002E-2,9.399755678925753E-2,3.3997556789257533E-2,1.72E-2,8.3965490851443836E-2,2.3965490851443831E-2]
[null,"Indonesia","Asia","Baa3",2.4400000000000002E-2,9.399755678925753E-2,3.3997556789257533E-2,2.86E-2,9.9849595252982176E-2,3.9849595252982185E-2]
[null,"Ireland","Western Europe","Baa1",1.77E-2,8.4662162097125335E-2,2.466216209712534E-2,4.1000000000000003E-3,6.5712704214588358E-2,5.7127042145883556E-3]
[null,"Isle of Man","Western Europe","Aa1",4.4000000000000003E-3,6.6130706961997257E-2,6.1307069619972593E-3,"NA","NA","NA"]
[null,"Israel","Middle East","A1",7.7999999999999996E-3,7.0868071432631505E-2,1.0868071432631505E-2,8.6999999999999994E-3,7.2122079674858217E-2,1.2122079674858217E-2]
[null,"Italy","Western Europe","Baa2",2.1100000000000001E-2,8.9399526567759582E-2,2.9399526567759585E-2,1.15E-2,7.6023438650674652E-2,1.6023438650674654E-2]
[null,"Jamaica","Caribbean","Caa2",9.98E-2,0.19905558063802875,0.13905558063802875,"NA","NA","NA"]
[null,"Japan","Asia","A1",7.7999999999999996E-3,7.0868071432631505E-2,1.0868071432631505E-2,5.3999999999999994E-3,6.7524049453360269E-2,7.5240494533602717E-3]
[null,"Jersey (States of)","Western Europe","Aa1",4.4000000000000003E-3,6.6130706961997257E-2,6.1307069619972593E-3,"NA","NA","NA"]
[null,"Jordan","Middle East","B1",4.99E-2,0.12952779031901437,6.9527790319014376E-2,"NA","NA","NA"]
[null,"Kazakhstan","Eastern Europe & Russia","Baa2",2.1100000000000001E-2,8.9399526567759582E-2,2.9399526567759585E-2,2.9100000000000001E-2,0.10054626649866369,4.0546266498663691E-2]
[null,"Kenya","Africa","B1",4.99E-2,0.12952779031901437,6.9527790319014376E-2,"NA","NA","NA"]
[null,"Korea","Asia","Aa2",5.4999999999999997E-3,6.7663383702496568E-2,7.6633837024965732E-3,4.000000000000001E-3,6.5573369965452058E-2,5.573369965452055E-3]
[null,"Kuwait","Middle East","Aa2",5.4999999999999997E-3,6.7663383702496568E-2,7.6633837024965732E-3,"NA","NA","NA"]
[null,"Latvia","Eastern Europe & Russia","A3",1.3299999999999999E-2,7.8531455135128075E-2,1.8531455135128078E-2,9.0000000000000011E-3,7.2540082422267116E-2,1.2540082422267123E-2]
[null,"Lebanon","Middle East","B2",6.0999999999999999E-2,0.14499389197314383,8.4993891973143817E-2,4.48E-2,0.122421743613063,6.2421743613063005E-2]
[null,"Liechtenstein","Western Europe","Aaa",0,0.06,0,"NA","NA","NA"]
[null,"Lithuania","Eastern Europe & Russia","A3",1.3299999999999999E-2,7.8531455135128075E-2,1.8531455135128078E-2,9.0000000000000011E-3,7.2540082422267116E-2,1.2540082422267123E-2]
[null,"Luxembourg","Western Europe","Aaa",0,0.06,0,"NA","NA","NA"]
[null,"Macao","Asia","Aa2",5.4999999999999997E-3,6.7663383702496568E-2,7.6633837024965732E-3,"NA","NA","NA"]
[null,"Macedonia","Eastern Europe & Russia","Ba3",3.9899999999999998E-2,0.11559436540538423,5.5594365405384233E-2,"NA","NA","NA"]
[null,"Malaysia","Asia","A3",1.3299999999999999E-2,7.8531455135128075E-2,1.8531455135128078E-2,2.1100000000000001E-2,8.9399526567759582E-2,2.9399526567759585E-2]
[null,"Malta","Western Europe","A3",1.3299999999999999E-2,7.8531455135128075E-2,1.8531455135128078E-2,"NA","NA","NA"]
[null,"Mauritius","Asia","Baa1",1.77E-2,8.4662162097125335E-2,2.466216209712534E-2,"NA","NA","NA"]
[null,"Mexico","Central and South America","A3",1.3299999999999999E-2,7.8531455135128075E-2,1.8531455135128078E-2,1.9099999999999999E-2,8.6612841585033545E-2,2.6612841585033555E-2]
[null,"Moldova","Eastern Europe & Russia","B3",7.2099999999999997E-2,0.16045999362727326,0.10045999362727327,"NA","NA","NA"]
[null,"Mongolia","Asia","B2",6.0999999999999999E-2,0.14499389197314383,8.4993891973143817E-2,"NA","NA","NA"]
[null,"Montenegro","Eastern Europe & Russia","Ba3",3.9899999999999998E-2,0.11559436540538423,5.5594365405384233E-2,"NA","NA","NA"]
[null,"Montserrat","Caribbean","Baa3",2.4400000000000002E-2,9.399755678925753E-2,3.3997556789257533E-2,"NA","NA","NA"]
[null,"Morocco","Africa","Ba1",2.7699999999999999E-2,9.8595587010755464E-2,3.8595587010755474E-2,1.8699999999999998E-2,8.6055504588488346E-2,2.6055504588488348E-2]
[null,"Mozambique","Africa","B2",6.0999999999999999E-2,0.14499389197314383,8.4993891973143817E-2,"NA","NA","NA"]
[null,"Namibia","Africa","Baa3",2.4400000000000002E-2,9.399755678925753E-2,3.3997556789257533E-2,"NA","NA","NA"]
[null,"Netherlands","Western Europe","Aaa",0,0.06,0,0,0.06,0]
[null,"New Zealand","Australia & New Zealand","Aaa",0,0.06,0,3.8000000000000004E-3,6.5294701467179445E-2,5.294701467179452E-3]
[null,"Nicaragua","Central and South America","B2",6.0999999999999999E-2,0.14499389197314383,8.4993891973143817E-2,"NA","NA","NA"]
[null,"Nigeria","Africa","Ba3",3.9899999999999998E-2,0.11559436540538423,5.5594365405384233E-2,"NA","NA","NA"]
[null,"Norway","Western Europe","Aaa",0,0.06,0,0,0.06,0]
[null,"Oman","Middle East","A1",7.7999999999999996E-3,7.0868071432631505E-2,1.0868071432631505E-2,"NA","NA","NA"]
[null,"Pakistan","Asia","B3",7.2099999999999997E-2,0.16045999362727326,0.10045999362727327,5.5300000000000002E-2,0.13705183977237465,7.7051839772374647E-2]
[null,"Panama","Central and South America","Baa2",2.1100000000000001E-2,8.9399526567759582E-2,2.9399526567759585E-2,1.9400000000000001E-2,8.7030844332442459E-2,2.7030844332442461E-2]
[null,"Papua New Guinea","Asia","B1",4.99E-2,0.12952779031901437,6.9527790319014376E-2,"NA","NA","NA"]
[null,"Paraguay","Central and South America","Ba1",2.7699999999999999E-2,9.8595587010755464E-2,3.8595587010755474E-2,"NA","NA","NA"]
[null,"Peru","Central and South America","A3",1.3299999999999999E-2,7.8531455135128075E-2,1.8531455135128078E-2,2.06E-2,8.8702855322078084E-2,2.8702855322078079E-2]
[null,"Philippines","Asia","Baa2",2.1100000000000001E-2,8.9399526567759582E-2,2.9399526567759585E-2,1.3399999999999999E-2,7.8670789384264375E-2,1.8670789384264377E-2]
[null,"Poland","Eastern Europe & Russia","A2",9.4000000000000004E-3,7.3097419418812329E-2,1.3097419418812328E-2,8.3000000000000018E-3,7.1564742678313017E-2,1.1564742678313015E-2]
[null,"Portugal","Western Europe","Ba1",2.7699999999999999E-2,9.8595587010755464E-2,3.8595587010755474E-2,2.0500000000000001E-2,8.856352107294177E-2,2.8563521072941776E-2]
[null,"Qatar","Middle East","Aa2",5.4999999999999997E-3,6.7663383702496568E-2,7.6633837024965732E-3,9.2999999999999992E-3,7.2958085169676029E-2,1.2958085169676024E-2]
[null,"Ras Al Khaimah (Emirate of)","Middle East","A2",9.4000000000000004E-3,7.3097419418812329E-2,1.3097419418812328E-2,"NA","NA","NA"]
[null,"Romania","Eastern Europe & Russia","Baa3",2.4400000000000002E-2,9.399755678925753E-2,3.3997556789257533E-2,1.3499999999999998E-2,7.8810123633400675E-2,1.8810123633400681E-2]
[null,"Russia","Eastern Europe & Russia","Ba1",2.7699999999999999E-2,9.8595587010755464E-2,3.8595587010755474E-2,3.0899999999999997E-2,0.10305428298311711,4.3054282983117115E-2]
[null,"Rwanda","Africa","B1",4.99E-2,0.12952779031901437,6.9527790319014376E-2,"NA","NA","NA"]
[null,"Saudi Arabia","Middle East","Aa3",6.7000000000000002E-3,6.9335394692132193E-2,9.3353946921321904E-3,1.54E-2,8.1457474366990412E-2,2.1457474366990407E-2]
[null,"Senegal","Africa","B1",4.99E-2,0.12952779031901437,6.9527790319014376E-2,"NA","NA","NA"]
[null,"Serbia","Eastern Europe & Russia","B1",4.99E-2,0.12952779031901437,6.9527790319014376E-2,"NA","NA","NA"]
[null,"Sharjah","Middle East","A3",1.3299999999999999E-2,7.8531455135128075E-2,1.8531455135128078E-2,"NA","NA","NA"]
[null,"Singapore","Asia","Aaa",0,0.06,0,"NA","NA","NA"]
[null,"Slovakia","Eastern Europe & Russia","A2",9.4000000000000004E-3,7.3097419418812329E-2,1.3097419418812328E-2,5.5000000000000005E-3,6.7663383702496568E-2,7.663383702496575E-3]
[null,"Slovenia","Eastern Europe & Russia","Baa3",2.4400000000000002E-2,9.399755678925753E-2,3.3997556789257533E-2,1.2899999999999998E-2,7.7974118138582876E-2,1.7974118138582872E-2]
[null,"South Africa","Africa","Baa2",2.1100000000000001E-2,8.9399526567759582E-2,2.9399526567759585E-2,3.49E-2,0.10862765294856916,4.8627652948569168E-2]
[null,"Spain","Western Europe","Baa2",2.1100000000000001E-2,8.9399526567759582E-2,2.9399526567759585E-2,1.0499999999999999E-2,7.463009615931164E-2,1.4630096159311641E-2]
[null,"Sri Lanka","Asia","B1",4.99E-2,0.12952779031901437,6.9527790319014376E-2,"NA","NA","NA"]
[null,"St. Maarten","Caribbean","Baa1",1.77E-2,8.4662162097125335E-2,2.466216209712534E-2,"NA","NA","NA"]
[null,"St. Vincent & the Grenadines","Caribbean","B3",7.2099999999999997E-2,0.16045999362727326,0.10045999362727327,"NA","NA","NA"]
[null,"Suriname","Central and South America","Ba3",3.9899999999999998E-2,0.11559436540538423,5.5594365405384233E-2,"NA","NA","NA"]
[null,"Sweden","Western Europe","Aaa",0,0.06,0,0,0.06,0]
[null,"Switzerland","Western Europe","Aaa",0,0.06,0,2.9999999999999992E-4,6.0418002747408904E-2,4.1800274740890392E-4]
[null,"Taiwan","Asia","Aa3",6.7000000000000002E-3,6.9335394692132193E-2,9.3353946921321904E-3,"NA","NA","NA"]
[null,"Thailand","Asia","Baa1",1.77E-2,8.4662162097125335E-2,2.466216209712534E-2,1.61E-2,8.2432814110944511E-2,2.2432814110944516E-2]
[null,"Trinidad and Tobago","Caribbean","Baa2",2.1100000000000001E-2,8.9399526567759582E-2,2.9399526567759585E-2,"NA","NA","NA"]
[null,"Tunisia","Africa","Ba3",3.9899999999999998E-2,0.11559436540538423,5.5594365405384233E-2,4.19E-2,0.11838105038811025,5.8381050388110263E-2]
[null,"Turkey","Western Europe","Baa3",2.4400000000000002E-2,9.399755678925753E-2,3.3997556789257533E-2,2.8999999999999998E-2,0.10040693224952738,4.0406932249527384E-2]
[null,"Turks and Caicos Islands","Caribbean","Baa1",1.77E-2,8.4662162097125335E-2,2.466216209712534E-2,"NA","NA","NA"]
[null,"Uganda","Africa","B1",4.99E-2,0.12952779031901437,6.9527790319014376E-2,"NA","NA","NA"]
[null,"Ukraine","Eastern Europe & Russia","Caa3",0.1108,0.21438234804302189,0.15438234804302189,"NA","NA","NA"]
[null,"United Arab Emirates","Middle East","Aa2",5.4999999999999997E-3,6.7663383702496568E-2,7.6633837024965732E-3,"NA","NA","NA"]
[null,"United Kingdom","Western Europe","Aa1",4.4000000000000003E-3,6.6130706961997257E-2,6.1307069619972593E-3,2.9999999999999992E-4,6.0418002747408904E-2,4.1800274740890392E-4]
[null,"United States of America","North America","Aaa",0,0.06,0,0,0.06,0]
[null,"Uruguay","Central and South America","Baa2",2.1100000000000001E-2,8.9399526567759582E-2,2.9399526567759585E-2,"NA","NA","NA"]
[null,"Venezuela","Central and South America","Caa3",0.1108,0.21438234804302189,0.15438234804302189,"NA","NA","NA"]
[null,"Vietnam","Asia","B1",4.99E-2,0.12952779031901437,6.9527790319014376E-2,3.1399999999999997E-2,0.10375095422879863,4.3750954228798621E-2]
[null,"Zambia","Africa","B2",6.0999999999999999E-2,0.14499389197314383,8.4993891973143817E-2,"NA","NA","NA"]

{"sheet":"Sup Personal Directo","index":3,"n_rows":113,"n_cols":23,"rows_kept":113,"cut":false,"hidden":false,"merged":[[16,1,17,1],[16,2,17,2],[15,7,15,8],[15,9,15,10],[15,3,15,6],[16,5,16,6],[16,3,16,4]]}
[null,null,null,null,null,null,null,null,null,null,null,null,null,null,null,null,"Actual"]
[null,"Estructura de costos Transporte Convencional",null,null,null,null,null,null,null,null,null,null,null,null,null,null,"Propuesta"]
[null,"SUPUESTOS PERSONAL DIRECTO"]
[]
[]
[null,"Selección de escenario"]
[]
[null,"Selección vinculación personal directo"]
[null,"Conductor","Actual","* Esquema actual o propuesto"]
[null,"Porcentaje personal con prestaciones sociales",0.5,"* Porcentaje del personal actual que tiene prestaciones sociales en escenario actual (en selección de salarios propuestos siempre 100%)"]
[null,"Ayudante","Actual","* Esquema actual o propuesto"]
[null,"Porcentaje personal con prestaciones sociales",0,"* Porcentaje del personal actual que tiene prestaciones sociales en escenario actual (en selección de salarios propuestos siempre 100%)"]
[null,"Jornadas Nocturnas"]
[null,"% de trabajo programado en jornada nocturna",0.23684210526315788]
[]
[null,"Escenarios","Aportes","ACTUAL",null,null,null,"PROPUESTO",null,"SELECCIÓN"]
[null,"Ítem","% ","Conductor ",null,"Ayudante",null,"Conductor ","Ayudante","Conductor ","Ayudante"]
[null,null,null,"Día","+Prestaciones","Día","+Prestaciones","+Prestaciones","+Prestaciones"]
[null,"Remuneración",null,{"$f":"30*4.33*6","v":779.40000000000009},{"$f":"D19","v":779.40000000000009},{"$f":"25*4.33*6","v":649.5},{"$f":"F19","v":649.5},600,{"$f":"+F19*75%*(1-C21-C22-C23-C24)*0+375","v":375},{"$f":"IF($C$9=$Q$1,IF($C$10=100%,E19,E19*$C$10+D19*(1-$C$10)),H19)","v":779.40000000000009},{"$f":"IF($C$11=$Q$1,IF($C$12=100%,G19,G19*$C$12+F19*(1-$C$12)),I19)","v":649.5}]
[null,"Salario Base Cotización IESS",null,null,{"$f":"566","v":566},null,375,{"$f":"+H19","v":600},{"$f":"+I19","v":375},{"$f":"IF($C$9=$Q$1,IF($C$10=100%,E20,E20),H20)","v":566},{"$f":"IF($C$11=$Q$1,IF($C$12=100%,G20,G20),I20)","v":375}]
[null,"Fondo de Reserva",{"$f":"1/12","v":8.3333333333333329E-2},null,{"$f":"+$C21*E$20","v":47.166666666666664},null,{"$f":"+$C21*G$20","v":31.25},{"$f":"+$C21*$H$20","v":50},{"$f":"+$C21*$I$20","v":31.25},{"$f":"IF($C$9=$Q$1,IF($C$10=100%,E21,E21*$C$10+D21*(1-$C$10)),H21)","v":23.583333333333332},{"$f":"IF($C$11=$Q$1,IF($C$12=100%,G21,G21*$C$12+F21*(1-$C$12)),I21)","v":0}]
[null,"Decimo tercero",{"$f":"1/12","v":8.3333333333333329E-2},null,null,null,null,{"$f":"+$C22*$H$20","v":50},{"$f":"+$C22*$I$20","v":31.25},0,0]
[null,"Decimo cuarto",{"$f":"1/12","v":8.3333333333333329E-2},null,null,null,null,{"$f":"+$C23*$C$38","v":30.5},{"$f":"+$C23*$C$38","v":30.5},0,0]
[null,"Vacaciones",{"$f":"1/12*0.5","v":4.1666666666666664E-2},null,{"$f":"$C24*E$20","v":23.583333333333332},null,{"$f":"$C24*G$20","v":15.625},{"$f":"+$C24*$H$20","v":25},{"$f":"+$C24*$I$20","v":15.625},11.791666666666666,0]
[null,"Jornada nocturna (ponderando programación > 7 PM)",{"$f":"25%*$C$14","v":5.921052631578947E-2},null,null,null,{"$f":"$C25*G$20","v":22.203947368421051},{"$f":"+$C25*$H$20","v":35.526315789473685},{"$f":"+$C25*$I$20","v":22.203947368421051},{"$f":"IF($C$9=$Q$1,IF($C$10=100%,E25,E25*$C$10+D25*(1-$C$10)),H25)","v":0},{"$f":"IF($C$11=$Q$1,IF($C$12=100%,G25,G25*$C$12+F25*(1-$C$12)),I25)","v":0}]
[null,"IESS",0.1115,null,{"$f":"$C26*E$20","v":63.109000000000002},null,{"$f":"$C26*G$20","v":41.8125},{"$f":"+$C26*$H$20","v":66.900000000000006},{"$f":"+$C26*$I$20","v":41.8125},31.554500000000001,0]
[null,"Auxilio Alimentación",null,{"$f":"5*4.33*6","v":129.89999999999998},{"$f":"5*4.33*6","v":129.89999999999998},{"$f":"5*4.33*6","v":129.89999999999998},{"$f":"5*4.33*6","v":129.89999999999998},{"$f":"5*4.33*6","v":129.89999999999998},{"$f":"+H27","v":129.89999999999998},129.89999999999998,129.89999999999998]
[]
[null,"Costo unitario total ",null,{"$f":"+D19+SUM(D21:D27)","v":909.30000000000007},1043.1590000000001,779.4,890.29144736842102,987.82631578947371,677.54144736842102,{"$f":"IF($C$9=$Q$1,IF($C$10=100%,E29,E29*$C$10+D29*(1-$C$10)),H29)","v":976.22950000000014},{"$f":"IF($C$11=$Q$1,IF($C$12=100%,G29,G29*$C$12+F29*(1-$C$12)),I29)","v":779.4}]
[null,"Factor salario total ",null,{"$f":"+SUM(D21:D26)/D19","v":0},0.17174621503720811,0,0.17073356022851588,0.42987719298245625,0.46037719298245611,8.5873107518604053E-2,0]
[]
[null,"Número de empleados",null,{"$f":"1+(0.142857142857143)","v":1.142857142857143},{"$f":"+D32","v":1.142857142857143},{"$f":"+E32","v":1.142857142857143},{"$f":"+F32","v":1.142857142857143},2.2000000000000002,2.2000000000000002,{"$f":"IF($C$9=$Q$1,IF($C$10=100%,E32,E32*$C$10+D32*(1-$C$10)),H32)","v":1.142857142857143},{"$f":"IF($C$11=$Q$1,IF($C$12=100%,G32,G32*$C$12+F32*(1-$C$12)),I32)","v":1.142857142857143}]
[null,"Horas de trabajo",null,16,16,16,16,8,8,{"$f":"IF($C$9=$Q$1,IF($C$10=100%,E33,E33*$C$10+D33*(1-$C$10)),H33)","v":16},{"$f":"IF($C$11=$Q$1,IF($C$12=100%,G33,G33*$C$12+F33*(1-$C$12)),I33)","v":16}]
[null,"Remuneración recibida por el empleado",null,{"$f":"+D19+SUM(D21:D25)+D27","v":909.30000000000007},{"$f":"+E19+SUM(E21:E25)+E27","v":980.05000000000007},779.4,848.47894736842102,920.92631578947373,635.72894736842102,{"$f":"IF($C$9=$Q$1,IF($C$10=100%,E34,E34*$C$10+D34*(1-$C$10)),H34)","v":944.67500000000007},{"$f":"IF($C$11=$Q$1,IF($C$12=100%,G34,G34*$C$12+F34*(1-$C$12)),I34)","v":779.4}]
[]
[null,"Aportación Patronal",{"$f":"C26","v":0.1115}]
[null,"Crecimiento salarios real ",0.01,"* Porcentaje de ajuste de salarios por arriba de inflación "]
[null,"Salario básico 2016",366]
[]
[]
[]
[null,"Conductores y ayudantes en escenario seleccionado"]
[null,"Parámetro","Unidad",1,{"$f":"D43+1","v":2},{"$f":"E43+1","v":3},4,5,6,7,8,9,10,11,12,13,14,15,16,17,18,19,20]
[null,"CONDUCTORES"]
[null,"No. Conductor Actual"]
[null,{"$f":"'Sup fijo'!B51","v":"Intracantonal Rural"},"conductores/bus",{"$f":"$D$32","v":1.142857142857143},{"$f":"D46","v":1.142857142857143},1.142857142857143,1.142857142857143,1.142857142857143,1.142857142857143,1.142857142857143,1.142857142857143,1.142857142857143,1.142857142857143,1.142857142857143,1.142857142857143,1.142857142857143,1.142857142857143,1.142857142857143,1.142857142857143,1.142857142857143,1.142857142857143,1.142857142857143,1.142857142857143]
[null,{"$f":"'Sup fijo'!B52","v":"Intracantonal Urbano"},"conductores/bus",{"$f":"$D$32","v":1.142857142857143},{"$f":"D47","v":1.142857142857143},1.142857142857143,1.142857142857143,1.142857142857143,1.142857142857143,1.142857142857143,1.142857142857143,1.142857142857143,1.142857142857143,1.142857142857143,1.142857142857143,1.142857142857143,1.142857142857143,1.142857142857143,1.142857142857143,1.142857142857143,1.142857142857143,1.142857142857143,1.142857142857143]
[null,{"$f":"'Sup fijo'!B53","v":"Intracantonal Combinado"},"conductores/bus",{"$f":"$D$32","v":1.142857142857143},{"$f":"D48","v":1.142857142857143},1.142857142857143,1.142857142857143,1.142857142857143,1.142857142857143,1.142857142857143,1.142857142857143,1.142857142857143,1.142857142857143,1.142857142857143,1.142857142857143,1.142857142857143,1.142857142857143,1.142857142857143,1.142857142857143,1.142857142857143,1.142857142857143,1.142857142857143,1.142857142857143]
[null,{"$f":"'Sup fijo'!B54","v":"Otro"},"conductores/bus",{"$f":"$D$32","v":1.142857142857143},{"$f":"D49","v":1.142857142857143},1.142857142857143,1.142857142857143,1.142857142857143,1.142857142857143,1.142857142857143,1.142857142857143,1.142857142857143,1.142857142857143,1.142857142857143,1.142857142857143,1.142857142857143,1.142857142857143,1.142857142857143,1.142857142857143,1.142857142857143,1.142857142857143,1.142857142857143,1.142857142857143]
[null,"No. Conductor Propuesta"]
[null,{"$f":"B46","v":"Intracantonal Rural"},"conductores/bus",{"$f":"$H$32","v":2.2000000000000002},{"$f":"D51","v":2.2000000000000002},2.2000000000000002,2.2000000000000002,2.2000000000000002,2.2000000000000002,2.2000000000000002,2.2000000000000002,2.2000000000000002,2.2000000000000002,2.2000000000000002,2.2000000000000002,2.2000000000000002,2.2000000000000002,2.2000000000000002,2.2000000000000002,2.2000000000000002,2.2000000000000002,2.2000000000000002,2.2000000000000002]
[null,{"$f":"B47","v":"Intracantonal Urbano"},"conductores/bus",{"$f":"$H$32","v":2.2000000000000002},{"$f":"D52","v":2.2000000000000002},2.2000000000000002,2.2000000000000002,2.2000000000000002,2.2000000000000002,2.2000000000000002,2.2000000000000002,2.2000000000000002,2.2000000000000002,2.2000000000000002,2.2000000000000002,2.2000000000000002,2.2000000000000002,2.2000000000000002,2.2000000000000002,2.2000000000000002,2.2000000000000002,2.2000000000000002,2.2000000000000002]
[null,{"$f":"B48","v":"Intracantonal Combinado"},"conductores/bus",{"$f":"$H$32","v":2.2000000000000002},{"$f":"D53","v":2.2000000000000002},2.2000000000000002,2.2000000000000002,2.2000000000000002,2.2000000000000002,2.2000000000000002,2.2000000000000002,2.2000000000000002,2.2000000000000002,2.2000000000000002,2.2000000000000002,2.2000000000000002,2.2000000000000002,2.2000000000000002,2.2000000000000002,2.2000000000000002,2.2000000000000002,2.2000000000000002,2.2000000000000002]
[null,{"$f":"B49","v":"Otro"},"conductores/bus",{"$f":"$H$32","v":2.2000000000000002},{"$f":"D54","v":2.2000000000000002},2.2000000000000002,2.2000000000000002,2.2000000000000002,2.2000000000000002,2.2000000000000002,2.2000000000000002,2.2000000000000002,2.2000000000000002,2.2000000000000002,2.2000000000000002,2.2000000000000002,2.2000000000000002,2.2000000000000002,2.2000000000000002,2.2000000000000002,2.2000000000000002,2.2000000000000002,2.2000000000000002]
[null,"Salario Actual diario"]
[null,{"$f":"B46","v":"Intracantonal Rural"},"USD/conductor",{"$f":"$E$19","v":779.40000000000009},{"$f":"D56*(E$113/D$113)","v":798.20536320000008},825.51037226434585,835.70918968910792,844.66932933727855,857.13124275458892,880.75938544323321,903.21235325699888,923.69461692716004,943.54275523581089,963.50598966308087,982.3198508717511,1002.3817176622026,1024.0688635832901,1047.1061815525511,1069.9980524851194,1092.9047805675527,1116.1285474210638,1139.8125780022942,1164.0080216474219]
[null,{"$f":"B47","v":"Intracantonal Urbano"},"USD/conductor",{"$f":"$E$19","v":779.40000000000009},{"$f":"D57*(E$113/D$113)","v":798.20536320000008},825.51037226434585,835.70918968910792,844.66932933727855,857.13124275458892,880.75938544323321,903.21235325699888,923.69461692716004,943.54275523581089,963.50598966308087,982.3198508717511,1002.3817176622026,1024.0688635832901,1047.1061815525511,1069.9980524851194,1092.9047805675527,1116.1285474210638,1139.8125780022942,1164.0080216474219]
[null,{"$f":"B48","v":"Intracantonal Combinado"},"USD/conductor",{"$f":"$E$19","v":779.40000000000009},{"$f":"D58*(E$113/D$113)","v":798.20536320000008},825.51037226434585,835.70918968910792,844.66932933727855,857.13124275458892,880.75938544323321,903.21235325699888,923.69461692716004,943.54275523581089,963.50598966308087,982.3198508717511,1002.3817176622026,1024.0688635832901,1047.1061815525511,1069.9980524851194,1092.9047805675527,1116.1285474210638,1139.8125780022942,1164.0080216474219]
[null,{"$f":"B49","v":"Otro"},"USD/conductor",{"$f":"$E$19","v":779.40000000000009},{"$f":"D59*(E$113/D$113)","v":798.20536320000008},825.51037226434585,835.70918968910792,844.66932933727855,857.13124275458892,880.75938544323321,903.21235325699888,923.69461692716004,943.54275523581089,963.50598966308087,982.3198508717511,1002.3817176622026,1024.0688635832901,1047.1061815525511,1069.9980524851194,1092.9047805675527,1116.1285474210638,1139.8125780022942,1164.0080216474219]
[null,"Salario Base cotización IESS esquema actual"]
[null,{"$f":"B56","v":"Intracantonal Rural"},"USD/conductor",{"$f":"$E$20","v":566},{"$f":"D61*(E$113/D$113)","v":579.65644799999995},599.48533577318415,606.891713323114,613.39856351667902,622.44840056337864,639.6071492954452,655.91248645555731,670.78669897456064,685.20040988384517,699.69770355312255,713.36032280396591,727.92924325995205,743.67844083672333,760.40813286982802,777.0322013171384,793.66705902134333,810.53215016720844,827.73148466679334,845.30220714965481]
[null,"Intracantonal Urbano","USD/conductor",{"$f":"$E$20","v":566},{"$f":"D62*(E$113/D$113)","v":579.65644799999995},599.48533577318415,606.891713323114,613.39856351667902,622.44840056337864,639.6071492954452,655.91248645555731,670.78669897456064,685.20040988384517,699.69770355312255,713.36032280396591,727.92924325995205,743.67844083672333,760.40813286982802,777.0322013171384,793.66705902134333,810.53215016720844,827.73148466679334,845.30220714965481]
[null,"Intracantonal Combinado","USD/conductor",{"$f":"$E$20","v":566},{"$f":"D63*(E$113/D$113)","v":579.65644799999995},599.48533577318415,606.891713323114,613.39856351667902,622.44840056337864,639.6071492954452,655.91248645555731,670.78669897456064,685.20040988384517,699.69770355312255,713.36032280396591,727.92924325995205,743.67844083672333,760.40813286982802,777.0322013171384,793.66705902134333,810.53215016720844,827.73148466679334,845.30220714965481]
[null,"Otro","USD/conductor",{"$f":"$E$20","v":566},{"$f":"D64*(E$113/D$113)","v":579.65644799999995},599.48533577318415,606.891713323114,613.39856351667902,622.44840056337864,639.6071492954452,655.91248645555731,670.78669897456064,685.20040988384517,699.69770355312255,713.36032280396591,727.92924325995205,743.67844083672333,760.40813286982802,777.0322013171384,793.66705902134333,810.53215016720844,827.73148466679334,845.30220714965481]
[null,"Salario Base y de cotización IESS propuesto"]
[null,{"$f":"B61","v":"Intracantonal Rural"},"USD/conductor",{"$f":"$H$19","v":600},{"$f":"D66*(E$113/D$113)","v":614.47679999999991},635.49682237440004,643.34810599623381,650.24582704948295,659.83929388344018,678.02878017184992,695.31358988221609,711.08130633345638,726.36085853411134,741.72901436726761,756.21235632929245,771.65644161832358,788.35170406719772,806.08635993267967,823.70904733265525,841.34317210743086,859.22136060128082,877.45387067151216,896.08007825051732]
[null,"Intracantonal Urbano","USD/conductor",{"$f":"$H$19","v":600},{"$f":"D67*(E$113/D$113)","v":614.47679999999991},635.49682237440004,643.34810599623381,650.24582704948295,659.83929388344018,678.02878017184992,695.31358988221609,711.08130633345638,726.36085853411134,741.72901436726761,756.21235632929245,771.65644161832358,788.35170406719772,806.08635993267967,823.70904733265525,841.34317210743086,859.22136060128082,877.45387067151216,896.08007825051732]
[null,"Intracantonal Combinado","USD/conductor",{"$f":"$H$19","v":600},{"$f":"D68*(E$113/D$113)","v":614.47679999999991},635.49682237440004,643.34810599623381,650.24582704948295,659.83929388344018,678.02878017184992,695.31358988221609,711.08130633345638,726.36085853411134,741.72901436726761,756.21235632929245,771.65644161832358,788.35170406719772,806.08635993267967,823.70904733265525,841.34317210743086,859.22136060128082,877.45387067151216,896.08007825051732]
[null,"Otro","USD/conductor",{"$f":"$H$19","v":600},{"$f":"D69*(E$113/D$113)","v":614.47679999999991},635.49682237440004,643.34810599623381,650.24582704948295,659.83929388344018,678.02878017184992,695.31358988221609,711.08130633345638,726.36085853411134,741.72901436726761,756.21235632929245,771.65644161832358,788.35170406719772,806.08635993267967,823.70904733265525,841.34317210743086,859.22136060128082,877.45387067151216,896.08007825051732]
[null,"No. salarios básicos"]
[null,{"$f":"B56","v":"Intracantonal Rural"},"X sal. básicos /cond",{"$f":"+D56/D$113","v":2.0783999999999998},{"$f":"+E56/E$113","v":2.0783999999999998},2.0783999999999998,2.0783999999999998,2.0783999999999994,2.0783999999999998,2.0783999999999998,2.0783999999999998,2.0783999999999998,2.0783999999999994,2.0783999999999994,2.0783999999999998,2.0783999999999994,2.0783999999999994,2.0783999999999989,2.0783999999999989,2.0783999999999989,2.0783999999999989,2.0783999999999989,2.0783999999999989]
[null,{"$f":"B57","v":"Intracantonal Urbano"},"X sal. básicos /cond",{"$f":"+D57/D$113","v":2.0783999999999998},2.0783999999999998,2.0783999999999998,2.0783999999999998,2.0783999999999994,2.0783999999999998,2.0783999999999998,2.0783999999999998,2.0783999999999998,2.0783999999999994,2.0783999999999994,2.0783999999999998,2.0783999999999994,2.0783999999999994,2.0783999999999989,2.0783999999999989,2.0783999999999989,2.0783999999999989,2.0783999999999989,2.0783999999999989]
[null,{"$f":"B58","v":"Intracantonal Combinado"},"X sal. básicos /cond",{"$f":"+D58/D$113","v":2.0783999999999998},2.0783999999999998,2.0783999999999998,2.0783999999999998,2.0783999999999994,2.0783999999999998,2.0783999999999998,2.0783999999999998,2.0783999999999998,2.0783999999999994,2.0783999999999994,2.0783999999999998,2.0783999999999994,2.0783999999999994,2.0783999999999989,2.0783999999999989,2.0783999999999989,2.0783999999999989,2.0783999999999989,2.0783999999999989]
[null,{"$f":"B59","v":"Otro"},"X sal. básicos /cond",{"$f":"+D59/D$113","v":2.0783999999999998},2.0783999999999998,2.0783999999999998,2.0783999999999998,2.0783999999999994,2.0783999999999998,2.0783999999999998,2.0783999999999998,2.0783999999999998,2.0783999999999994,2.0783999999999994,2.0783999999999998,2.0783999999999994,2.0783999999999994,2.0783999999999989,2.0783999999999989,2.0783999999999989,2.0783999999999989,2.0783999999999989,2.0783999999999989]
[null,"AYUDANTES"]
[null,"No. Ayudantes Actual"]
[null,{"$f":"B71","v":"Intracantonal Rural"},"ayudantes/bus",{"$f":"$F$32","v":1.142857142857143},{"$f":"D77","v":1.142857142857143},1.142857142857143,1.142857142857143,1.142857142857143,1.142857142857143,1.142857142857143,1.142857142857143,1.142857142857143,1.142857142857143,1.142857142857143,1.142857142857143,1.142857142857143,1.142857142857143,1.142857142857143,1.142857142857143,1.142857142857143,1.142857142857143,1.142857142857143,1.142857142857143]
[null,{"$f":"B72","v":"Intracantonal Urbano"},"ayudantes/bus",{"$f":"$F$32","v":1.142857142857143},{"$f":"D78","v":1.142857142857143},1.142857142857143,1.142857142857143,1.142857142857143,1.142857142857143,1.142857142857143,1.142857142857143,1.142857142857143,1.142857142857143,1.142857142857143,1.142857142857143,1.142857142857143,1.142857142857143,1.142857142857143,1.142857142857143,1.142857142857143,1.142857142857143,1.142857142857143,1.142857142857143]
[null,{"$f":"B73","v":"Intracantonal Combinado"},"ayudantes/bus",{"$f":"$F$32","v":1.142857142857143},{"$f":"D79","v":1.142857142857143},1.142857142857143,1.142857142857143,1.142857142857143,1.142857142857143,1.142857142857143,1.142857142857143,1.142857142857143,1.142857142857143,1.142857142857143,1.142857142857143,1.142857142857143,1.142857142857143,1.142857142857143,1.142857142857143,1.142857142857143,1.142857142857143,1.142857142857143,1.142857142857143]
[null,{"$f":"B74","v":"Otro"},"ayudantes/bus",{"$f":"$F$32","v":1.142857142857143},{"$f":"D80","v":1.142857142857143},1.142857142857143,1.142857142857143,1.142857142857143,1.142857142857143,1.142857142857143,1.142857142857143,1.142857142857143,1.142857142857143,1.142857142857143,1.142857142857143,1.142857142857143,1.142857142857143,1.142857142857143,1.142857142857143,1.142857142857143,1.142857142857143,1.142857142857143,1.142857142857143]
[null,"No. Ayudantes Propuesta"]
[null,{"$f":"B77","v":"Intracantonal Rural"},"ayudantes/bus",{"$f":"$I$32","v":2.2000000000000002},{"$f":"D82","v":2.2000000000000002},2.2000000000000002,2.2000000000000002,2.2000000000000002,2.2000000000000002,2.2000000000000002,2.2000000000000002,2.2000000000000002,2.2000000000000002,2.2000000000000002,2.2000000000000002,2.2000000000000002,2.2000000000000002,2.2000000000000002,2.2000000000000002,2.2000000000000002,2.2000000000000002,2.2000000000000002,2.2000000000000002]
[null,{"$f":"B78","v":"Intracantonal Urbano"},"ayudantes/bus",{"$f":"$I$32","v":2.2000000000000002},{"$f":"D83","v":2.2000000000000002},2.2000000000000002,2.2000000000000002,2.2000000000000002,2.2000000000000002,2.2000000000000002,2.2000000000000002,2.2000000000000002,2.2000000000000002,2.2000000000000002,2.2000000000000002,2.2000000000000002,2.2000000000000002,2.2000000000000002,2.2000000000000002,2.2000000000000002,2.2000000000000002,2.2000000000000002,2.2000000000000002]
[null,{"$f":"B79","v":"Intracantonal Combinado"},"ayudantes/bus",{"$f":"$I$32","v":2.2000000000000002},{"$f":"D84","v":2.2000000000000002},2.2000000000000002,2.2000000000000002,2.2000000000000002,2.2000000000000002,2.2000000000000002,2.2000000000000002,2.2000000000000002,2.2000000000000002,2.2000000000000002,2.2000000000000002,2.2000000000000002,2.2000000000000002,2.2000000000000002,2.2000000000000002,2.2000000000000002,2.2000000000000002,2.2000000000000002,2.2000000000000002]
[null,{"$f":"B80","v":"Otro"},"ayudantes/bus",{"$f":"$I$32","v":2.2000000000000002},{"$f":"D85","v":2.2000000000000002},2.2000000000000002,2.2000000000000002,2.2000000000000002,2.2000000000000002,2.2000000000000002,2.2000000000000002,2.2000000000000002,2.2000000000000002,2.2000000000000002,2.2000000000000002,2.2000000000000002,2.2000000000000002,2.2000000000000002,2.2000000000000002,2.2000000000000002,2.2000000000000002,2.2000000000000002,2.2000000000000002]
[null,"Salario Actual diario"]
[null,{"$f":"B77","v":"Intracantonal Rural"},"USD/ayudante",{"$f":"$F$19","v":649.5},{"$f":"D87*(E$113/D$113)","v":665.17113599999993},687.92531022028811,696.42432474092323,703.89110778106544,714.27603562882416,733.96615453602772,752.67696104749916,769.74551410596678,786.28562936317587,802.92165805256752,818.59987572645935,835.31809805183559,853.39071965274184,872.58848462712615,891.66504373759972,910.75398380629429,930.10712285088687,949.84381500191228,970.0066847061853]
[null,{"$f":"B78","v":"Intracantonal Urbano"},"USD/ayudante",{"$f":"$F$19","v":649.5},{"$f":"D88*(E$113/D$113)","v":665.17113599999993},687.92531022028811,696.42432474092323,703.89110778106544,714.27603562882416,733.96615453602772,752.67696104749916,769.74551410596678,786.28562936317587,802.92165805256752,818.59987572645935,835.31809805183559,853.39071965274184,872.58848462712615,891.66504373759972,910.75398380629429,930.10712285088687,949.84381500191228,970.0066847061853]
[null,{"$f":"B79","v":"Intracantonal Combinado"},"USD/ayudante",{"$f":"$F$19","v":649.5},{"$f":"D89*(E$113/D$113)","v":665.17113599999993},687.92531022028811,696.42432474092323,703.89110778106544,714.27603562882416,733.96615453602772,752.67696104749916,769.74551410596678,786.28562936317587,802.92165805256752,818.59987572645935,835.31809805183559,853.39071965274184,872.58848462712615,891.66504373759972,910.75398380629429,930.10712285088687,949.84381500191228,970.0066847061853]
[null,{"$f":"B80","v":"Otro"},"USD/ayudante",{"$f":"$F$19","v":649.5},{"$f":"D90*(E$113/D$113)","v":665.17113599999993},687.92531022028811,696.42432474092323,703.89110778106544,714.27603562882416,733.96615453602772,752.67696104749916,769.74551410596678,786.28562936317587,802.92165805256752,818.59987572645935,835.31809805183559,853.39071965274184,872.58848462712615,891.66504373759972,910.75398380629429,930.10712285088687,949.84381500191228,970.0066847061853]
[null,"Salario Base cotización IESS esquema actual"]
[null,{"$f":"B87","v":"Intracantonal Rural"},"USD/ayudante",{"$f":"$G$20","v":375},{"$f":"D92*(E$113/D$113)","v":384.04799999999994},397.18551398400001,402.09256624764612,406.40364190592686,412.39955867715014,423.76798760740627,434.57099367638511,444.42581645841028,453.97553658381969,463.58063397954231,472.63272270580779,482.28527601145225,492.71981504199857,503.80397495792482,514.81815458290953,525.83948256714427,537.01335037580043,548.40866916969503,560.05004890657324]
[null,"Intracantonal Urbano","USD/ayudante",{"$f":"$G$20","v":375},{"$f":"D93*(E$113/D$113)","v":384.04799999999994},397.18551398400001,402.09256624764612,406.40364190592686,412.39955867715014,423.76798760740627,434.57099367638511,444.42581645841028,453.97553658381969,463.58063397954231,472.63272270580779,482.28527601145225,492.71981504199857,503.80397495792482,514.81815458290953,525.83948256714427,537.01335037580043,548.40866916969503,560.05004890657324]
[null,"Intracantonal Combinado","USD/ayudante",{"$f":"$G$20","v":375},{"$f":"D94*(E$113/D$113)","v":384.04799999999994},397.18551398400001,402.09256624764612,406.40364190592686,412.39955867715014,423.76798760740627,434.57099367638511,444.42581645841028,453.97553658381969,463.58063397954231,472.63272270580779,482.28527601145225,492.71981504199857,503.80397495792482,514.81815458290953,525.83948256714427,537.01335037580043,548.40866916969503,560.05004890657324]
[null,"Otro","USD/ayudante",{"$f":"$G$20","v":375},{"$f":"D95*(E$113/D$113)","v":384.04799999999994},397.18551398400001,402.09256624764612,406.40364190592686,412.39955867715014,423.76798760740627,434.57099367638511,444.42581645841028,453.97553658381969,463.58063397954231,472.63272270580779,482.28527601145225,492.71981504199857,503.80397495792482,514.81815458290953,525.83948256714427,537.01335037580043,548.40866916969503,560.05004890657324]
[null,"Salario Base y de cotización IESS propuesto"]
[null,{"$f":"B92","v":"Intracantonal Rural"},"USD/ayudante",{"$f":"$I$20","v":375},{"$f":"D97*(E$113/D$113)","v":384.04799999999994},{"$f":"E97*(F$113/E$113)","v":397.18551398400001},402.09256624764612,406.40364190592686,412.39955867715014,423.76798760740627,434.57099367638511,444.42581645841028,453.97553658381969,463.58063397954231,472.63272270580779,482.28527601145225,492.71981504199857,503.80397495792482,514.81815458290953,525.83948256714427,537.01335037580043,548.40866916969503,560.05004890657324]
[null,"Intracantonal Urbano","USD/ayudante",{"$f":"$I$20","v":375},{"$f":"D98*(E$113/D$113)","v":384.04799999999994},397.18551398400001,402.09256624764612,406.40364190592686,412.39955867715014,423.76798760740627,434.57099367638511,444.42581645841028,453.97553658381969,463.58063397954231,472.63272270580779,482.28527601145225,492.71981504199857,503.80397495792482,514.81815458290953,525.83948256714427,537.01335037580043,548.40866916969503,560.05004890657324]
[null,"Intracantonal Combinado","USD/ayudante",{"$f":"$I$20","v":375},{"$f":"D99*(E$113/D$113)","v":384.04799999999994},397.18551398400001,402.09256624764612,406.40364190592686,412.39955867715014,423.76798760740627,434.57099367638511,444.42581645841028,453.97553658381969,463.58063397954231,472.63272270580779,482.28527601145225,492.71981504199857,503.80397495792482,514.81815458290953,525.83948256714427,537.01335037580043,548.40866916969503,560.05004890657324]
[null,"Otro","USD/ayudante",{"$f":"$I$20","v":375},{"$f":"D100*(E$113/D$113)","v":384.04799999999994},397.18551398400001,402.09256624764612,406.40364190592686,412.39955867715014,423.76798760740627,434.57099367638511,444.42581645841028,453.97553658381969,463.58063397954231,472.63272270580779,482.28527601145225,492.71981504199857,503.80397495792482,514.81815458290953,525.83948256714427,537.01335037580043,548.40866916969503,560.05004890657324]
[null,"No. salarios básicos"]
[null,{"$f":"B87","v":"Intracantonal Rural"},"X sal. básicos /cond",{"$f":"+D87/D$113","v":1.7319999999999995},{"$f":"+E87/E$113","v":1.7319999999999995},1.7319999999999998,1.7319999999999995,1.7319999999999995,1.7319999999999998,1.732,1.7320000000000002,1.732,1.732,1.732,1.732,1.7319999999999998,1.7319999999999998,1.7319999999999998,1.7319999999999998,1.7319999999999995,1.732,1.7319999999999998,1.7319999999999998]
[null,{"$f":"B88","v":"Intracantonal Urbano"},"X sal. básicos /cond",{"$f":"+D88/D$113","v":1.7319999999999995},1.7319999999999995,1.7319999999999998,1.7319999999999995,1.7319999999999995,1.7319999999999998,1.732,1.7320000000000002,1.732,1.732,1.732,1.732,1.7319999999999998,1.7319999999999998,1.7319999999999998,1.7319999999999998,1.7319999999999995,1.732,1.7319999999999998,1.7319999999999998]
[null,{"$f":"B89","v":"Intracantonal Combinado"},"X sal. básicos /cond",{"$f":"+D89/D$113","v":1.7319999999999995},1.7319999999999995,1.7319999999999998,1.7319999999999995,1.7319999999999995,1.7319999999999998,1.732,1.7320000000000002,1.732,1.732,1.732,1.732,1.7319999999999998,1.7319999999999998,1.7319999999999998,1.7319999999999998,1.7319999999999995,1.732,1.7319999999999998,1.7319999999999998]
[null,{"$f":"B90","v":"Otro"},"X sal. básicos /cond",{"$f":"+D90/D$113","v":1.7319999999999995},1.7319999999999995,1.7319999999999998,1.7319999999999995,1.7319999999999995,1.7319999999999998,1.732,1.7320000000000002,1.732,1.732,1.732,1.732,1.7319999999999998,1.7319999999999998,1.7319999999999998,1.7319999999999998,1.7319999999999995,1.732,1.7319999999999998,1.7319999999999998]
[null,"CONDUCTORES Y AYUDANTES"]
[null,"Auxilio Alimentación"]
[null,{"$f":"B102","v":"Intracantonal Rural"},"USD mes / Persona",{"$f":"J27","v":129.89999999999998},{"$f":"D108*E$113/D$113","v":133.03422719999998},{"$f":"E108*F$113/E$113","v":137.58506204405759},139.28486494818463,140.77822155621308,142.85520712576482,146.79323090720553,150.5353922094998,153.94910282119335,157.25712587263516,160.58433161051349,163.71997514529184,167.06361961036708,170.67814393054834,174.51769692542521,178.33300874751993,182.15079676125885,186.02142457017735,189.96876300038244,194.00133694123704]
[null,{"$f":"B103","v":"Intracantonal Urbano"},"USD mes / Persona",{"$f":"D108","v":129.89999999999998},{"$f":"D109*E$113/D$113","v":133.03422719999998},137.58506204405759,139.28486494818463,140.77822155621308,142.85520712576482,146.79323090720553,150.5353922094998,153.94910282119335,157.25712587263516,160.58433161051349,163.71997514529184,167.06361961036708,170.67814393054834,174.51769692542521,178.33300874751993,182.15079676125885,186.02142457017735,189.96876300038244,194.00133694123704]
[null,{"$f":"B104","v":"Intracantonal Combinado"},"USD mes / Persona",{"$f":"D109","v":129.89999999999998},{"$f":"D110*E$113/D$113","v":133.03422719999998},137.58506204405759,139.28486494818463,140.77822155621308,142.85520712576482,146.79323090720553,150.5353922094998,153.94910282119335,157.25712587263516,160.58433161051349,163.71997514529184,167.06361961036708,170.67814393054834,174.51769692542521,178.33300874751993,182.15079676125885,186.02142457017735,189.96876300038244,194.00133694123704]
[null,{"$f":"B105","v":"Otro"},"USD mes / Persona",{"$f":"D110","v":129.89999999999998},{"$f":"D111*E$113/D$113","v":133.03422719999998},137.58506204405759,139.28486494818463,140.77822155621308,142.85520712576482,146.79323090720553,150.5353922094998,153.94910282119335,157.25712587263516,160.58433161051349,163.71997514529184,167.06361961036708,170.67814393054834,174.51769692542521,178.33300874751993,182.15079676125885,186.02142457017735,189.96876300038244,194.00133694123704]
[]
[null,"Salario Básico","USD mes / Persona",{"$f":"'Sup Generales'!D13","v":375.00000000000011},{"$f":"'Sup Generales'!E13","v":384.04800000000006},{"$f":"'Sup Generales'!F13","v":397.18551398400012},{"$f":"'Sup Generales'!G13","v":402.09256624764629},{"$f":"'Sup Generales'!H13","v":406.40364190592703},{"$f":"'Sup Generales'!I13","v":412.39955867715025},{"$f":"'Sup Generales'!J13","v":423.76798760740633},{"$f":"'Sup Generales'!K13","v":434.57099367638517},{"$f":"'Sup Generales'!L13","v":444.4258164584104},{"$f":"'Sup Generales'!M13","v":453.9755365838198},{"$f":"'Sup Generales'!N13","v":463.58063397954248},{"$f":"'Sup Generales'!O13","v":472.63272270580796},{"$f":"'Sup Generales'!P13","v":482.28527601145248},{"$f":"'Sup Generales'!Q13","v":492.7198150419988},{"$f":"'Sup Generales'!R13","v":503.80397495792511},{"$f":"'Sup Generales'!S13","v":514.81815458290987},{"$f":"'Sup Generales'!T13","v":525.83948256714461},{"$f":"'Sup Generales'!U13","v":537.01335037580077},{"$f":"'Sup Generales'!V13","v":548.40866916969537},{"$f":"'Sup Generales'!W13","v":560.05004890657358}]

{"sheet":"Sup Personal Indirecto","index":4,"n_rows":251,"n_cols":23,"rows_kept":251,"cut":false,"hidden":false,"merged":[]}
[]
[null,"Estructura de costos Transporte Convencional"]
[null,"SUPUESTOS PERSONAL INDIRECTO"]
[]
[null,null,"Evolución Planta de personal"]
[null,null,"Evolución Salarios"]
[null,null,"Indicadores Base Personal"]
[null,null,"Factor Prestacional"]
[null,null,"Año",1,{"$f":"D9+1","v":2},{"$f":"E9+1","v":3},4,5,6,7,8,9,10,11,12,13,14,15,16,17,18,19,20]
[]
[null,null,"PLANTA DE PERSONAL"]
[]
[null,null,"Cantidad de personas operador privado",{"$f":"SUM(D14:D45)","v":47},{"$f":"SUM(E14:E45)","v":47},47,47,47,47,47,47,47,47,47,47,47,47,47,47,47,47,47,47]
[null,"a) Personal directivo "]
[null,null,"Presidente ",{"$f":"D155","v":1},{"$f":"D15","v":1},{"$f":"E15","v":1},1,1,1,1,1,1,1,1,1,1,1,1,1,1,1,1,1]
[null,null,"Gerente general ",{"$f":"D156","v":1},{"$f":"D16","v":1},1,1,1,1,1,1,1,1,1,1,1,1,1,1,1,1,1,1]
[null,"b) Personal administrativo "]
[null,null,"Administrativo & Financiero",1,1,1,1,1,1,1,1,1,1,1,1,1,1,1,1,1,1,1,1]
[null,null,"Contador General",1,1,1,1,1,1,1,1,1,1,1,1,1,1,1,1,1,1,1,1]
[null,null,"Asistente de Contabilidad",1,1,1,1,1,1,1,1,1,1,1,1,1,1,1,1,1,1,1,1]
[null,null,"Responsable de RRHH ",1,1,1,1,1,1,1,1,1,1,1,1,1,1,1,1,1,1,1,1]
[null,null,"Secretaria",1,1,1,1,1,1,1,1,1,1,1,1,1,1,1,1,1,1,1,1]
[null,null,"Recaudación General",3,3,3,3,3,3,3,3,3,3,3,3,3,3,3,3,3,3,3,3]
[null,null,"Mensajería",1,1,1,1,1,1,1,1,1,1,1,1,1,1,1,1,1,1,1,1]
[null,"c) Personal de operación "]
[null,null,"Jefe de Operaciones",1,1,1,1,1,1,1,1,1,1,1,1,1,1,1,1,1,1,1,1]
[null,null,"Despachador de Ruta",8,8,8,8,8,8,8,8,8,8,8,8,8,8,8,8,8,8,8,8]
[null,null,"Fiscalizador de Ruta",5,5,5,5,5,5,5,5,5,5,5,5,5,5,5,5,5,5,5,5]
[null,null,"Monitoreo & Control de gestión operativa",3,3,3,3,3,3,3,3,3,3,3,3,3,3,3,3,3,3,3,3]
[null,"d) Personal de mantenimiento"]
[null,null,"Responsable de Flota & Mantenimiento",1,1,1,1,1,1,1,1,1,1,1,1,1,1,1,1,1,{"$f":"T31","v":1},1,1]
[null,null,"Mecánico ",3,{"$f":"D32","v":3},3,3,3,3,3,3,3,3,3,3,3,3,3,3,3,3,3,3]
[null,null,"Eléctrico",2,2,2,2,2,2,2,2,2,2,2,2,2,2,2,2,2,2,2,2]
[null,null,"Vulcanizador",1,1,1,1,1,1,1,1,1,1,1,1,1,1,1,1,1,1,1,1]
[null,null,"Carrocero",1,1,1,1,1,1,1,1,1,1,1,1,1,1,1,1,1,1,1,1]
[null,null,"Ayudante de Mecánico",3,3,3,3,3,3,3,3,3,3,3,3,3,3,3,3,3,3,3,3]
[null,"e) Personal externo "]
[null,null,"Auditoria externa",1,1,1,1,1,1,1,1,1,1,1,1,1,1,1,1,1,1,1,1]
[null,null,"Capacitación Talento Humano",1,1,1,1,1,1,1,1,1,1,1,1,1,1,1,1,1,1,1,1]
[null,null,"Asesor Legal",1,1,1,1,1,1,1,1,1,1,1,1,1,1,1,1,1,1,1,1]
[null,null,"Servicio de Guardianía",1,1,1,1,1,1,1,1,1,1,1,1,1,1,1,1,1,1,1,1]
[null,null,"Comisario",1,1,1,1,1,1,1,1,1,1,1,1,1,1,1,1,1,1,1,1]
[null,null,"Directorio (Se hace provisión para dietas)",1,1,1,1,1,1,1,1,1,1,1,1,1,1,1,1,1,1,1,1]
[null,null,"Limpieza de flota",1,1,1,1,1,1,1,1,1,1,1,1,1,1,1,1,1,1,1,1]
[null,null,"Sistemas & Soporte",1,1,1,1,1,1,1,1,1,1,1,1,1,1,1,1,1,1,1,1]
[]
[null,null,"Cantidad de personas ente gestor",{"$f":"SUM(D48:D79)","v":0},{"$f":"SUM(E48:E79)","v":0},0,0,0,0,0,0,0,0,0,0,0,0,0,0,0,0,0,0]
[null,{"$f":"B118","v":"a) Área 1"}]
[null,null,{"$f":"C119","v":"Cargo 1"},{"$f":"D189","v":0},{"$f":"D49","v":0},{"$f":"E49","v":0},{"$f":"F49","v":0},{"$f":"G49","v":0},{"$f":"H49","v":0},{"$f":"I49","v":0},{"$f":"J49","v":0},{"$f":"K49","v":0},{"$f":"L49","v":0},{"$f":"M49","v":0},{"$f":"N49","v":0},{"$f":"O49","v":0},{"$f":"P49","v":0},{"$f":"Q49","v":0},{"$f":"R49","v":0},{"$f":"S49","v":0},{"$f":"T49","v":0},{"$f":"U49","v":0},{"$f":"V49","v":0}]
[null,null,"Cargo 2",{"$f":"D190","v":0},{"$f":"D50","v":0},0,0,0,0,0,0,0,0,0,0,0,0,0,0,0,0,0,0]
[null,{"$f":"B121","v":"b) Área 2"}]
[null,null,"Cargo 1",0,{"$f":"D52","v":0},{"$f":"E52","v":0},{"$f":"F52","v":0},{"$f":"G52","v":0},{"$f":"H52","v":0},{"$f":"I52","v":0},{"$f":"J52","v":0},{"$f":"K52","v":0},{"$f":"L52","v":0},{"$f":"M52","v":0},{"$f":"N52","v":0},{"$f":"O52","v":0},{"$f":"P52","v":0},{"$f":"Q52","v":0},{"$f":"R52","v":0},{"$f":"S52","v":0},{"$f":"T52","v":0},{"$f":"U52","v":0},{"$f":"V52","v":0}]
[null,null,"Cargo 2",0,0,0,0,0,0,0,0,0,0,0,0,0,0,0,0,0,0,0,0]
[null,null,"Cargo 3",0,0,0,0,0,0,0,0,0,0,0,0,0,0,0,0,0,0,0,0]
[null,null,"Cargo 4",0,0,0,0,0,0,0,0,0,0,0,0,0,0,0,0,0,0,0,0]
[null,null,"Cargo 5",0,0,0,0,0,0,0,0,0,0,0,0,0,0,0,0,0,0,0,0]
[null,null,"Cargo 6",0,0,0,0,0,0,0,0,0,0,0,0,0,0,0,0,0,0,0,0]
[null,null,"Cargo 7",0,0,0,0,0,0,0,0,0,0,0,0,0,0,0,0,0,0,0,0]
[null,{"$f":"B129","v":"c) Área 3"}]
[null,null,"Cargo 1",0,{"$f":"D60","v":0},{"$f":"E60","v":0},{"$f":"F60","v":0},{"$f":"G60","v":0},{"$f":"H60","v":0},{"$f":"I60","v":0},{"$f":"J60","v":0},{"$f":"K60","v":0},{"$f":"L60","v":0},{"$f":"M60","v":0},{"$f":"N60","v":0},{"$f":"O60","v":0},{"$f":"P60","v":0},{"$f":"Q60","v":0},{"$f":"R60","v":0},{"$f":"S60","v":0},{"$f":"T60","v":0},{"$f":"U60","v":0},{"$f":"V60","v":0}]
[null,null,"Cargo 2",0,0,0,0,0,0,0,0,0,0,0,0,0,0,0,0,0,0,0,0]
[null,null,"Cargo 3",0,0,0,0,0,0,0,0,0,0,0,0,0,0,0,0,0,0,0,0]
[null,null,"Cargo 4",0,0,0,0,0,0,0,0,0,0,0,0,0,0,0,0,0,0,0,0]
[null,{"$f":"B134","v":"d) Área 4"}]
[null,null,"Cargo 1",0,{"$f":"D65","v":0},{"$f":"E65","v":0},{"$f":"F65","v":0},{"$f":"G65","v":0},{"$f":"H65","v":0},{"$f":"I65","v":0},{"$f":"J65","v":0},{"$f":"K65","v":0},{"$f":"L65","v":0},{"$f":"M65","v":0},{"$f":"N65","v":0},{"$f":"O65","v":0},{"$f":"P65","v":0},{"$f":"Q65","v":0},{"$f":"R65","v":0},{"$f":"S65","v":0},{"$f":"T65","v":0},{"$f":"U65","v":0},{"$f":"V65","v":0}]
[null,null,"Cargo 2",0,0,0,0,0,0,0,0,0,0,0,0,0,0,0,0,0,0,0,0]
[null,null,"Cargo 3",0,0,0,0,0,0,0,0,0,0,0,0,0,0,0,0,0,0,0,0]
[null,null,"Cargo 4",0,0,0,0,0,0,0,0,0,0,0,0,0,0,0,0,0,0,0,0]
[null,null,"Cargo 5",0,0,0,0,0,0,0,0,0,0,0,0,0,0,0,0,0,0,0,0]
[null,null,"Cargo 6",0,0,0,0,0,0,0,0,0,0,0,0,0,0,0,0,0,0,0,0]
[null,{"$f":"B141","v":"e) Área 5"}]
[null,null,"Cargo 1",0,{"$f":"D72","v":0},{"$f":"E72","v":0},{"$f":"F72","v":0},{"$f":"G72","v":0},{"$f":"H72","v":0},{"$f":"I72","v":0},{"$f":"J72","v":0},{"$f":"K72","v":0},{"$f":"L72","v":0},{"$f":"M72","v":0},{"$f":"N72","v":0},{"$f":"O72","v":0},{"$f":"P72","v":0},{"$f":"Q72","v":0},{"$f":"R72","v":0},{"$f":"S72","v":0},{"$f":"T72","v":0},{"$f":"U72","v":0},{"$f":"V72","v":0}]
[null,null,"Cargo 2",0,0,0,0,0,0,0,0,0,0,0,0,0,0,0,0,0,0,0,0]
[null,null,"Cargo 3",0,0,0,0,0,0,0,0,0,0,0,0,0,0,0,0,0,0,0,0]
[null,null,"Cargo 4",0,0,0,0,0,0,0,0,0,0,0,0,0,0,0,0,0,0,0,0]
[null,null,"Cargo 5",0,0,0,0,0,0,0,0,0,0,0,0,0,0,0,0,0,0,0,0]
[null,null,"Cargo 6",0,0,0,0,0,0,0,0,0,0,0,0,0,0,0,0,0,0,0,0]
[null,null,"Cargo 7",0,0,0,0,0,0,0,0,0,0,0,0,0,0,0,0,0,0,0,0]
[null,null,"Cargo 8",0,0,0,0,0,0,0,0,0,0,0,0,0,0,0,0,0,0,0,0]
[]
[null,null,"SALARIOS"]
[]
[null,null,"Salarios unitarios privado"]
[null,"a) Personal directivo "]
[null,null,"Presidente ",{"$f":"F155","v":2.7322404371584699},{"$f":"D85","v":2.7322404371584699},{"$f":"E85","v":2.7322404371584699},2.7322404371584699,2.7322404371584699,2.7322404371584699,2.7322404371584699,2.7322404371584699,2.7322404371584699,2.7322404371584699,2.7322404371584699,2.7322404371584699,2.7322404371584699,2.7322404371584699,2.7322404371584699,2.7322404371584699,2.7322404371584699,2.7322404371584699,2.7322404371584699,2.7322404371584699]
[null,null,"Gerente general ",{"$f":"F156","v":5.4644808743169397},{"$f":"D86","v":5.4644808743169397},5.4644808743169397,5.4644808743169397,5.4644808743169397,5.4644808743169397,5.4644808743169397,5.4644808743169397,5.4644808743169397,5.4644808743169397,5.4644808743169397,5.4644808743169397,5.4644808743169397,5.4644808743169397,5.4644808743169397,5.4644808743169397,5.4644808743169397,5.4644808743169397,5.4644808743169397,5.4644808743169397]
[null,"b) Personal administrativo "]
[null,null,"Administrativo & Financiero",{"$f":"F158","v":4.0983606557377046},{"$f":"D88","v":4.0983606557377046},4.0983606557377046,4.0983606557377046,4.0983606557377046,4.0983606557377046,4.0983606557377046,4.0983606557377046,4.0983606557377046,4.0983606557377046,4.0983606557377046,4.0983606557377046,4.0983606557377046,4.0983606557377046,4.0983606557377046,4.0983606557377046,4.0983606557377046,4.0983606557377046,4.0983606557377046,4.0983606557377046]
[null,null,"Contador General",2.1857923497267762,{"$f":"D89","v":2.1857923497267762},2.1857923497267762,2.1857923497267762,2.1857923497267762,2.1857923497267762,2.1857923497267762,2.1857923497267762,2.1857923497267762,2.1857923497267762,2.1857923497267762,2.1857923497267762,2.1857923497267762,2.1857923497267762,2.1857923497267762,2.1857923497267762,2.1857923497267762,2.1857923497267762,2.1857923497267762,2.1857923497267762]
[null,null,"Asistente de Contabilidad",1.0245901639344261,{"$f":"D90","v":1.0245901639344261},1.0245901639344261,1.0245901639344261,1.0245901639344261,1.0245901639344261,1.0245901639344261,1.0245901639344261,1.0245901639344261,1.0245901639344261,1.0245901639344261,1.0245901639344261,1.0245901639344261,1.0245901639344261,1.0245901639344261,1.0245901639344261,1.0245901639344261,1.0245901639344261,1.0245901639344261,1.0245901639344261]
[null,null,"Responsable de RRHH ",2.7322404371584699,{"$f":"D91","v":2.7322404371584699},2.7322404371584699,2.7322404371584699,2.7322404371584699,2.7322404371584699,2.7322404371584699,2.7322404371584699,2.7322404371584699,2.7322404371584699,2.7322404371584699,2.7322404371584699,2.7322404371584699,2.7322404371584699,2.7322404371584699,2.7322404371584699,2.7322404371584699,2.7322404371584699,2.7322404371584699,2.7322404371584699]
[null,null,"Secretaria",1.0928961748633881,{"$f":"D92","v":1.0928961748633881},1.0928961748633881,1.0928961748633881,1.0928961748633881,1.0928961748633881,1.0928961748633881,1.0928961748633881,1.0928961748633881,1.0928961748633881,1.0928961748633881,1.0928961748633881,1.0928961748633881,1.0928961748633881,1.0928961748633881,1.0928961748633881,1.0928961748633881,1.0928961748633881,1.0928961748633881,1.0928961748633881]
[null,null,"Recaudación General",1.2295081967213115,{"$f":"D93","v":1.2295081967213115},1.2295081967213115,1.2295081967213115,1.2295081967213115,1.2295081967213115,1.2295081967213115,1.2295081967213115,1.2295081967213115,1.2295081967213115,1.2295081967213115,1.2295081967213115,1.2295081967213115,1.2295081967213115,1.2295081967213115,1.2295081967213115,1.2295081967213115,1.2295081967213115,1.2295081967213115,1.2295081967213115]
[null,null,"Mensajería",1.0245901639344261,{"$f":"D94","v":1.0245901639344261},1.0245901639344261,1.0245901639344261,1.0245901639344261,1.0245901639344261,1.0245901639344261,1.0245901639344261,1.0245901639344261,1.0245901639344261,1.0245901639344261,1.0245901639344261,1.0245901639344261,1.0245901639344261,1.0245901639344261,1.0245901639344261,1.0245901639344261,1.0245901639344261,1.0245901639344261,1.0245901639344261]
[null,"c) Personal de operación "]
[null,null,"Jefe de Operaciones",{"$f":"F166","v":4.0983606557377046},{"$f":"D96","v":4.0983606557377046},4.0983606557377046,4.0983606557377046,4.0983606557377046,4.0983606557377046,4.0983606557377046,4.0983606557377046,4.0983606557377046,4.0983606557377046,4.0983606557377046,4.0983606557377046,4.0983606557377046,4.0983606557377046,4.0983606557377046,4.0983606557377046,4.0983606557377046,4.0983606557377046,4.0983606557377046,4.0983606557377046]
[null,null,"Despachador de Ruta",{"$f":"F167","v":1.0245901639344261},{"$f":"D97","v":1.0245901639344261},1.0245901639344261,1.0245901639344261,1.0245901639344261,1.0245901639344261,1.0245901639344261,1.0245901639344261,1.0245901639344261,1.0245901639344261,1.0245901639344261,1.0245901639344261,1.0245901639344261,1.0245901639344261,1.0245901639344261,1.0245901639344261,1.0245901639344261,1.0245901639344261,1.0245901639344261,1.0245901639344261]
[null,null,"Fiscalizador de Ruta",{"$f":"F168","v":1.2295081967213115},{"$f":"D98","v":1.2295081967213115},1.2295081967213115,1.2295081967213115,1.2295081967213115,1.2295081967213115,1.2295081967213115,1.2295081967213115,1.2295081967213115,1.2295081967213115,1.2295081967213115,1.2295081967213115,1.2295081967213115,1.2295081967213115,1.2295081967213115,1.2295081967213115,1.2295081967213115,1.2295081967213115,1.2295081967213115,1.2295081967213115]
[null,null,"Monitoreo & Control de gestión operativa",{"$f":"F169","v":1.0245901639344261},{"$f":"D99","v":1.0245901639344261},1.0245901639344261,1.0245901639344261,1.0245901639344261,1.0245901639344261,1.0245901639344261,1.0245901639344261,1.0245901639344261,1.0245901639344261,1.0245901639344261,1.0245901639344261,1.0245901639344261,1.0245901639344261,1.0245901639344261,1.0245901639344261,1.0245901639344261,1.0245901639344261,1.0245901639344261,1.0245901639344261]
[null,"d) Personal de mantenimiento"]
[null,null,"Responsable de Flota & Mantenimiento",{"$f":"F171","v":2.7322404371584699},{"$f":"D101","v":2.7322404371584699},2.7322404371584699,2.7322404371584699,2.7322404371584699,2.7322404371584699,2.7322404371584699,2.7322404371584699,2.7322404371584699,2.7322404371584699,2.7322404371584699,2.7322404371584699,2.7322404371584699,2.7322404371584699,2.7322404371584699,2.7322404371584699,2.7322404371584699,2.7322404371584699,2.7322404371584699,2.7322404371584699]
[null,null,"Mecánico ",1.3661202185792349,{"$f":"D102","v":1.3661202185792349},1.3661202185792349,1.3661202185792349,1.3661202185792349,1.3661202185792349,1.3661202185792349,1.3661202185792349,1.3661202185792349,1.3661202185792349,1.3661202185792349,1.3661202185792349,1.3661202185792349,1.3661202185792349,1.3661202185792349,1.3661202185792349,1.3661202185792349,1.3661202185792349,1.3661202185792349,1.3661202185792349]
[null,null,"Eléctrico",1.3661202185792349,{"$f":"D103","v":1.3661202185792349},1.3661202185792349,1.3661202185792349,1.3661202185792349,1.3661202185792349,1.3661202185792349,1.3661202185792349,1.3661202185792349,1.3661202185792349,1.3661202185792349,1.3661202185792349,1.3661202185792349,1.3661202185792349,1.3661202185792349,1.3661202185792349,1.3661202185792349,1.3661202185792349,1.3661202185792349,1.3661202185792349]
[null,null,"Vulcanizador",1.3661202185792349,{"$f":"D104","v":1.3661202185792349},1.3661202185792349,1.3661202185792349,1.3661202185792349,1.3661202185792349,1.3661202185792349,1.3661202185792349,1.3661202185792349,1.3661202185792349,1.3661202185792349,1.3661202185792349,1.3661202185792349,1.3661202185792349,1.3661202185792349,1.3661202185792349,1.3661202185792349,1.3661202185792349,1.3661202185792349,1.3661202185792349]
[null,null,"Carrocero",1.3661202185792349,{"$f":"D105","v":1.3661202185792349},1.3661202185792349,1.3661202185792349,1.3661202185792349,1.3661202185792349,1.3661202185792349,1.3661202185792349,1.3661202185792349,1.3661202185792349,1.3661202185792349,1.3661202185792349,1.3661202185792349,1.3661202185792349,1.3661202185792349,1.3661202185792349,1.3661202185792349,1.3661202185792349,1.3661202185792349,1.3661202185792349]
[null,null,"Ayudante de Mecánico",1.0245901639344261,{"$f":"D106","v":1.0245901639344261},1.0245901639344261,1.0245901639344261,1.0245901639344261,1.0245901639344261,1.0245901639344261,1.0245901639344261,1.0245901639344261,1.0245901639344261,1.0245901639344261,1.0245901639344261,1.0245901639344261,1.0245901639344261,1.0245901639344261,1.0245901639344261,1.0245901639344261,1.0245901639344261,1.0245901639344261,1.0245901639344261]
[null,"e) Personal externo "]
[null,null,"Auditoria externa",{"$f":"F178","v":0.7969034608378871},{"$f":"D108","v":0.7969034608378871},0.7969034608378871,0.7969034608378871,0.7969034608378871,0.7969034608378871,0.7969034608378871,0.7969034608378871,0.7969034608378871,0.7969034608378871,0.7969034608378871,0.7969034608378871,0.7969034608378871,0.7969034608378871,0.7969034608378871,0.7969034608378871,0.7969034608378871,0.7969034608378871,0.7969034608378871,0.7969034608378871]
[null,null,"Capacitación Talento Humano",1.3661202185792349,{"$f":"D109","v":1.3661202185792349},1.3661202185792349,1.3661202185792349,1.3661202185792349,1.3661202185792349,1.3661202185792349,1.3661202185792349,1.3661202185792349,1.3661202185792349,1.3661202185792349,1.3661202185792349,1.3661202185792349,1.3661202185792349,1.3661202185792349,1.3661202185792349,1.3661202185792349,1.3661202185792349,1.3661202185792349,1.3661202185792349]
[null,null,"Asesor Legal",1.3661202185792349,{"$f":"D110","v":1.3661202185792349},1.3661202185792349,1.3661202185792349,1.3661202185792349,1.3661202185792349,1.3661202185792349,1.3661202185792349,1.3661202185792349,1.3661202185792349,1.3661202185792349,1.3661202185792349,1.3661202185792349,1.3661202185792349,1.3661202185792349,1.3661202185792349,1.3661202185792349,1.3661202185792349,1.3661202185792349,1.3661202185792349]
[null,null,"Servicio de Guardianía",6.8306010928961749,{"$f":"D111","v":6.8306010928961749},6.8306010928961749,6.8306010928961749,6.8306010928961749,6.8306010928961749,6.8306010928961749,6.8306010928961749,6.8306010928961749,6.8306010928961749,6.8306010928961749,6.8306010928961749,6.8306010928961749,6.8306010928961749,6.8306010928961749,6.8306010928961749,6.8306010928961749,6.8306010928961749,6.8306010928961749,6.8306010928961749]
[null,null,"Comisario",1.0245901639344261,{"$f":"D112","v":1.0245901639344261},1.0245901639344261,1.0245901639344261,1.0245901639344261,1.0245901639344261,1.0245901639344261,1.0245901639344261,1.0245901639344261,1.0245901639344261,1.0245901639344261,1.0245901639344261,1.0245901639344261,1.0245901639344261,1.0245901639344261,1.0245901639344261,1.0245901639344261,1.0245901639344261,1.0245901639344261,1.0245901639344261]
[null,null,"Directorio (Se hace provisión para dietas)",1.0245901639344261,{"$f":"D113","v":1.0245901639344261},1.0245901639344261,1.0245901639344261,1.0245901639344261,1.0245901639344261,1.0245901639344261,1.0245901639344261,1.0245901639344261,1.0245901639344261,1.0245901639344261,1.0245901639344261,1.0245901639344261,1.0245901639344261,1.0245901639344261,1.0245901639344261,1.0245901639344261,1.0245901639344261,1.0245901639344261,1.0245901639344261]
[null,null,"Limpieza de flota",1.8579234972677596,{"$f":"D114","v":1.8579234972677596},1.8579234972677596,1.8579234972677596,1.8579234972677596,1.8579234972677596,1.8579234972677596,1.8579234972677596,1.8579234972677596,1.8579234972677596,1.8579234972677596,1.8579234972677596,1.8579234972677596,1.8579234972677596,1.8579234972677596,1.8579234972677596,1.8579234972677596,1.8579234972677596,1.8579234972677596,1.8579234972677596]
[null,null,"Sistemas & Soporte",0.54644808743169404,{"$f":"D115","v":0.54644808743169404},0.54644808743169404,0.54644808743169404,0.54644808743169404,0.54644808743169404,0.54644808743169404,0.54644808743169404,0.54644808743169404,0.54644808743169404,0.54644808743169404,0.54644808743169404,0.54644808743169404,0.54644808743169404,0.54644808743169404,0.54644808743169404,0.54644808743169404,0.54644808743169404,0.54644808743169404,0.54644808743169404]
[]
[null,null,"Salarios unitarios ente gestor"]
[null,{"$f":"B188","v":"a) Área 1"}]
[null,null,{"$f":"C189","v":"Cargo 1"},{"$f":"F189","v":0},{"$f":"D119","v":0},{"$f":"E119","v":0},{"$f":"F119","v":0},{"$f":"G119","v":0},{"$f":"H119","v":0},{"$f":"I119","v":0},{"$f":"J119","v":0},{"$f":"K119","v":0},{"$f":"L119","v":0},{"$f":"M119","v":0},{"$f":"N119","v":0},{"$f":"O119","v":0},{"$f":"P119","v":0},{"$f":"Q119","v":0},{"$f":"R119","v":0},{"$f":"S119","v":0},{"$f":"T119","v":0},{"$f":"U119","v":0},{"$f":"V119","v":0}]
[null,null,"Cargo 2",{"$f":"F190","v":0},{"$f":"D120","v":0},0,0,0,0,0,0,0,0,0,0,0,0,0,0,0,0,0,0]
[null,{"$f":"B191","v":"b) Área 2"}]
[null,null,"Cargo 1",{"$f":"F192","v":0},{"$f":"D122","v":0},{"$f":"E122","v":0},{"$f":"F122","v":0},{"$f":"G122","v":0},{"$f":"H122","v":0},{"$f":"I122","v":0},{"$f":"J122","v":0},{"$f":"K122","v":0},{"$f":"L122","v":0},{"$f":"M122","v":0},{"$f":"N122","v":0},{"$f":"O122","v":0},{"$f":"P122","v":0},{"$f":"Q122","v":0},{"$f":"R122","v":0},{"$f":"S122","v":0},{"$f":"T122","v":0},{"$f":"U122","v":0},{"$f":"V122","v":0}]
[null,null,"Cargo 2",0,0,0,0,0,0,0,0,0,0,0,0,0,0,0,0,0,0,0,0]
[null,null,"Cargo 3",0,0,0,0,0,0,0,0,0,0,0,0,0,0,0,0,0,0,0,0]
[null,null,"Cargo 4",0,0,0,0,0,0,0,0,0,0,0,0,0,0,0,0,0,0,0,0]
[null,null,"Cargo 5",0,0,0,0,0,0,0,0,0,0,0,0,0,0,0,0,0,0,0,0]
[null,null,"Cargo 6",0,0,0,0,0,0,0,0,0,0,0,0,0,0,0,0,0,0,0,0]
[null,null,"Cargo 7",0,0,0,0,0,0,0,0,0,0,0,0,0,0,0,0,0,0,0,0]
[null,{"$f":"B199","v":"c) Área 3"}]
[null,null,"Cargo 1",{"$f":"F200","v":0},{"$f":"D130","v":0},{"$f":"E130","v":0},{"$f":"F130","v":0},{"$f":"G130","v":0},{"$f":"H130","v":0},{"$f":"I130","v":0},{"$f":"J130","v":0},{"$f":"K130","v":0},{"$f":"L130","v":0},{"$f":"M130","v":0},{"$f":"N130","v":0},{"$f":"O130","v":0},{"$f":"P130","v":0},{"$f":"Q130","v":0},{"$f":"R130","v":0},{"$f":"S130","v":0},{"$f":"T130","v":0},{"$f":"U130","v":0},{"$f":"V130","v":0}]
[null,null,"Cargo 2",{"$f":"F201","v":0},0,0,0,0,0,0,0,0,0,0,0,0,0,0,0,0,0,0,0]
[null,null,"Cargo 3",{"$f":"F202","v":0},0,0,0,0,0,0,0,0,0,0,0,0,0,0,0,0,0,0,0]
[null,null,"Cargo 4",{"$f":"F203","v":0},0,0,0,0,0,0,0,0,0,0,0,0,0,0,0,0,0,0,0]
[null,{"$f":"B204","v":"d) Área 4"}]
[null,null,"Cargo 1",{"$f":"F205","v":0},{"$f":"D135","v":0},{"$f":"E135","v":0},{"$f":"F135","v":0},{"$f":"G135","v":0},{"$f":"H135","v":0},{"$f":"I135","v":0},{"$f":"J135","v":0},{"$f":"K135","v":0},{"$f":"L135","v":0},{"$f":"M135","v":0},{"$f":"N135","v":0},{"$f":"O135","v":0},{"$f":"P135","v":0},{"$f":"Q135","v":0},{"$f":"R135","v":0},{"$f":"S135","v":0},{"$f":"T135","v":0},{"$f":"U135","v":0},{"$f":"V135","v":0}]
[null,null,"Cargo 2",0,0,0,0,0,0,0,0,0,0,0,0,0,0,0,0,0,0,0,0]
[null,null,"Cargo 3",0,0,0,0,0,0,0,0,0,0,0,0,0,0,0,0,0,0,0,0]
[null,null,"Cargo 4",0,0,0,0,0,0,0,0,0,0,0,0,0,0,0,0,0,0,0,0]
[null,null,"Cargo 5",0,0,0,0,0,0,0,0,0,0,0,0,0,0,0,0,0,0,0,0]
[null,null,"Cargo 6",0,0,0,0,0,0,0,0,0,0,0,0,0,0,0,0,0,0,0,0]
[null,{"$f":"B211","v":"e) Área 5"}]
[null,null,"Cargo 1",{"$f":"F212","v":0},{"$f":"D142","v":0},{"$f":"E142","v":0},{"$f":"F142","v":0},{"$f":"G142","v":0},{"$f":"H142","v":0},{"$f":"I142","v":0},{"$f":"J142","v":0},{"$f":"K142","v":0},{"$f":"L142","v":0},{"$f":"M142","v":0},{"$f":"N142","v":0},{"$f":"O142","v":0},{"$f":"P142","v":0},{"$f":"Q142","v":0},{"$f":"R142","v":0},{"$f":"S142","v":0},{"$f":"T142","v":0},{"$f":"U142","v":0},{"$f":"V142","v":0}]
[null,null,"Cargo 2",0,0,0,0,0,0,0,0,0,0,0,0,0,0,0,0,0,0,0,0]
[null,null,"Cargo 3",0,0,0,0,0,0,0,0,0,0,0,0,0,0,0,0,0,0,0,0]
[null,null,"Cargo 4",0,0,0,0,0,0,0,0,0,0,0,0,0,0,0,0,0,0,0,0]
[null,null,"Cargo 5",0,0,0,0,0,0,0,0,0,0,0,0,0,0,0,0,0,0,0,0]
[null,null,"Cargo 6",0,0,0,0,0,0,0,0,0,0,0,0,0,0,0,0,0,0,0,0]
[null,null,"Cargo 7",0,0,0,0,0,0,0,0,0,0,0,0,0,0,0,0,0,0,0,0]
[null,null,"Cargo 8",0,0,0,0,0,0,0,0,0,0,0,0,0,0,0,0,0,0,0,0]
[]
[null,null,"INDICADORES"]
[]
[null,null,"Operador Privado","Cantidad personas","promedio (USD/mes) ","X Salarios Básicos"]
[null,"a) Personal directivo "]
[null,null,"Presidente ",1,1000,{"$f":"E155/'Sup Personal Directo'!$C$38","v":2.7322404371584699}]
[null,null,"Gerente general ",1,2000,{"$f":"E156/'Sup Personal Directo'!$C$38","v":5.4644808743169397}]
[null,"b) Personal administrativo "]
[null,null,"Administrativo & Financiero",1,1500,{"$f":"E158/'Sup Personal Directo'!$C$38","v":4.0983606557377046}]
[null,null,"Contador General",1,800,{"$f":"E159/'Sup Personal Directo'!$C$38","v":2.1857923497267762}]
[null,null,"Asistente de Contabilidad",1,375,{"$f":"E160/'Sup Personal Directo'!$C$38","v":1.0245901639344261}]
[null,null,"Responsable de RRHH ",1,1000,{"$f":"E161/'Sup Personal Directo'!$C$38","v":2.7322404371584699}]
[null,null,"Secretaria",1,400,{"$f":"E162/'Sup Personal Directo'!$C$38","v":1.0928961748633881}]
[null,null,"Recaudación General",3,450,{"$f":"E163/'Sup Personal Directo'!$C$38","v":1.2295081967213115}]
[null,null,"Mensajería",1,375,{"$f":"E164/'Sup Personal Directo'!$C$38","v":1.0245901639344261}]
[null,"c) Personal de operación "]
[null,null,"Jefe de Operaciones",1,1500,{"$f":"E166/'Sup Personal Directo'!$C$38","v":4.0983606557377046}]
[null,null,"Despachador de Ruta",8,375,{"$f":"E167/'Sup Personal Directo'!$C$38","v":1.0245901639344261}]
[null,null,"Fiscalizador de Ruta",5,450,{"$f":"E168/'Sup Personal Directo'!$C$38","v":1.2295081967213115}]
[null,null,"Monitoreo & Control de gestión operativa",3,375,{"$f":"E169/'Sup Personal Directo'!$C$38","v":1.0245901639344261}]
[null,"d) Personal de mantenimiento"]
[null,null,"Responsable de Flota & Mantenimiento",1,1000,{"$f":"E171/'Sup Personal Directo'!$C$38","v":2.7322404371584699}]
[null,null,"Mecánico ",3,500,{"$f":"E172/'Sup Personal Directo'!$C$38","v":1.3661202185792349}]
[null,null,"Eléctrico",2,500,{"$f":"E173/'Sup Personal Directo'!$C$38","v":1.3661202185792349}]
[null,null,"Vulcanizador",1,500,{"$f":"E174/'Sup Personal Directo'!$C$38","v":1.3661202185792349}]
[null,null,"Carrocero",1,500,{"$f":"E175/'Sup Personal Directo'!$C$38","v":1.3661202185792349}]
[null,null,"Ayudante de Mecánico",3,375,{"$f":"E176/'Sup Personal Directo'!$C$38","v":1.0245901639344261}]
[null,"e) Personal externo "]
[null,null,"Auditoría externa",1,291.66666666666669,{"$f":"E178/'Sup Personal Directo'!$C$38","v":0.7969034608378871}]
[null,null,"Capacitación Talento Humano",1,500,{"$f":"E179/'Sup Personal Directo'!$C$38","v":1.3661202185792349}]
[null,null,"Asesor Legal",1,500,{"$f":"E180/'Sup Personal Directo'!$C$38","v":1.3661202185792349}]
[null,null,"Servicio de Guardianía",1,2500,{"$f":"E181/'Sup Personal Directo'!$C$38","v":6.8306010928961749}]
[null,null,"Comisario",1,375,{"$f":"E182/'Sup Personal Directo'!$C$38","v":1.0245901639344261}]
[null,null,"Directorio (Se hace provisión para dietas)",1,375,{"$f":"E183/'Sup Personal Directo'!$C$38","v":1.0245901639344261}]
[null,null,"Limpieza de flota",1,680,{"$f":"E184/'Sup Personal Directo'!$C$38","v":1.8579234972677596}]
[null,null,"Sistemas & Soporte",1,200,{"$f":"E185/'Sup Personal Directo'!$C$38","v":0.54644808743169404}]
[]
[null,null,"Ente Gestor","Cantidad personas","promedio (USD/mes) ","X Salarios Básicos"]
[null,"a) Área 1"]
[null,null,"Cargo 1",0,0,{"$f":"E189/'Sup Personal Directo'!$C$38","v":0}]
[null,null,"Cargo 2",0,0,{"$f":"E190/'Sup Personal Directo'!$C$38","v":0}]
[null,"b) Área 2"]
[null,null,"Cargo 1",0,0,{"$f":"E192/'Sup Personal Directo'!$C$38","v":0}]
[null,null,"Cargo 2",0,0,{"$f":"E193/'Sup Personal Directo'!$C$38","v":0}]
[null,null,"Cargo 3",0,0,{"$f":"E194/'Sup Personal Directo'!$C$38","v":0}]
[null,null,"Cargo 4",0,0,{"$f":"E195/'Sup Personal Directo'!$C$38","v":0}]
[null,null,"Cargo 5",0,0,{"$f":"E196/'Sup Personal Directo'!$C$38","v":0}]
[null,null,"Cargo 6",0,0,{"$f":"E197/'Sup Personal Directo'!$C$38","v":0}]
[null,null,"Cargo 7",0,0,{"$f":"E198/'Sup Personal Directo'!$C$38","v":0}]
[null,"c) Área 3"]
[null,null,"Cargo 1",0,0,{"$f":"E200/'Sup Personal Directo'!$C$38","v":0}]
[null,null,"Cargo 2",0,0,{"$f":"E201/'Sup Personal Directo'!$C$38","v":0}]
[null,null,"Cargo 3",0,0,{"$f":"E202/'Sup Personal Directo'!$C$38","v":0}]
[null,null,"Cargo 4",0,0,{"$f":"E203/'Sup Personal Directo'!$C$38","v":0}]
[null,"d) Área 4"]
[null,null,"Cargo 1",0,0,{"$f":"E205/'Sup Personal Directo'!$C$38","v":0}]
[null,null,"Cargo 2",0,0,{"$f":"E206/'Sup Personal Directo'!$C$38","v":0}]
[null,null,"Cargo 3",0,0,{"$f":"E207/'Sup Personal Directo'!$C$38","v":0}]
[null,null,"Cargo 4",0,0,{"$f":"E208/'Sup Personal Directo'!$C$38","v":0}]
[null,null,"Cargo 5",0,0,{"$f":"E209/'Sup Personal Directo'!$C$38","v":0}]
[null,null,"Cargo 6",0,0,{"$f":"E210/'Sup Personal Directo'!$C$38","v":0}]
[null,"e) Área 5"]
[null,null,"Cargo 1",0,0,{"$f":"E212/'Sup Personal Directo'!$C$38","v":0}]
[null,null,"Cargo 2",0,0,{"$f":"E213/'Sup Personal Directo'!$C$38","v":0}]
[null,null,"Cargo 3",0,0,{"$f":"E214/'Sup Personal Directo'!$C$38","v":0}]
[null,null,"Cargo 4",0,0,{"$f":"E215/'Sup Personal Directo'!$C$38","v":0}]
[null,null,"Cargo 5",0,0,{"$f":"E216/'Sup Personal Directo'!$C$38","v":0}]
[null,null,"Cargo 6",0,0,{"$f":"E217/'Sup Personal Directo'!$C$38","v":0}]
[null,null,"Cargo 7",0,0,{"$f":"E218/'Sup Personal Directo'!$C$38","v":0}]
[null,null,"Cargo 8",0,0,{"$f":"E219/'Sup Personal Directo'!$C$38","v":0}]
[]
[]
[null,null,"FACTOR PRESTACIONAL"]
[]
[null,null,"Factor Prestacional"]
[null,null,"Parámetro","Valor"]
[null,null,"Aporte Patronal Sector Privado",{"$f":"SUM(D227:D233)","v":0.1115}]
[null,null,"Seguro de invalidez, vejez y muerte",3.1E-2]
[null,null,"Ley orgánica de discapacidades",0]
[null,null,"Seguro de salud",5.7099999999999998E-2]
[null,null,"Seguro de riesgos del trabajo",5.4999999999999997E-3]
[null,null,"Seguro de cesantía",0.01]
[null,null,"Seguro social campesino",3.5000000000000001E-3]
[null,null,"Gastos de administración",4.4000000000000003E-3]
[null,null,"Aporte Patronal Sector Público",{"$f":"SUM(D235:D241)","v":9.1499999999999998E-2}]
[null,null,"Seguro de invalidez, vejez y muerte",1.0999999999999999E-2]
[null,null,"Ley orgánica de discapacidades",0]
[null,null,"Seguro de salud",5.7099999999999998E-2]
[null,null,"Seguro de riesgos del trabajo",5.4999999999999997E-3]
[null,null,"Seguro de cesantía",0.01]
[null,null,"Seguro social campesino",3.5000000000000001E-3]
[null,null,"Gastos de administración",4.4000000000000003E-3]
[null,null,"Décimo tercero",{"$f":"1/12","v":8.3333333333333329E-2}]
[null,null,"Décimo cuarto (% del salario mínimo)",8.3333333333333329E-2]
[null,null,"Fondo de Reserva",8.3333333333333329E-2]
[null,null,"Vacaciones",{"$f":"1/24","v":4.1666666666666664E-2}]
[null,null,"https://www.iess.gob.ec/documents/13718/54965/Tasasdeaportacion.pdf"]
[null,null,"Factor de corrección","Valor"]
[null,null,"Factor",{"$f":"SUM(D249:D251)","v":0.59999999999999987}]
[null,null,"7 días vs 5 días",{"$f":"7/5-1","v":0.39999999999999991}]
[null,null,"Ausencia enfermedad",0.1]
[null,null,"Vacaciones",0.1]

{"sheet":"Actividades Mtto","index":5,"n_rows":261,"n_cols":50,"rows_kept":261,"cut":false,"hidden":false,"merged":[]}
[null,null,null,null,null,null,null,null,null,null,null,"Por Km"]
[null,"Estructura de costos Transporte Convencional",null,null,null,null,null,null,null,null,null,"Personal"]
[null,"OPEX OTROS GASTOS","ACTIVIDADES MANTENIMIENTO"]
[]
[null,null,"Ítem",null,null,null,null,null,null,1,{"$f":"J5+1","v":2},3,4,5,6,7,8,9,10,11,12,13,14,15,16,17,18,19,20,null,1,{"$f":"AE5+1","v":2},3,4,5,6,7,8,9,10,11,12,13,14,15,16,17,18,19,20]
[null,null,"Mano de Obra Mantenimiento","Personal"]
[]
[null,null,{"$f":"'Sup fijo'!B14","v":"Intracantonal Rural"},null,null,null,null,"Mes operación",null,12,12,12,12,12,12,12,12,12,12,12,12,12,12,12,12,12,12,12,12]
[null,null,null,null,null,null,null,"Operación",null,{"$f":"'Sup fijo'!E17","v":70406.000000000015},{"$f":"'Sup fijo'!F17","v":70406.000000000015},{"$f":"'Sup fijo'!G17","v":70406.000000000015},{"$f":"'Sup fijo'!H17","v":70406.000000000015},{"$f":"'Sup fijo'!I17","v":70406.000000000015},{"$f":"'Sup fijo'!J17","v":70406.000000000015},{"$f":"'Sup fijo'!K17","v":70406.000000000015},{"$f":"'Sup fijo'!L17","v":70406.000000000015},{"$f":"'Sup fijo'!M17","v":70406.000000000015},{"$f":"'Sup fijo'!N17","v":70406.000000000015},{"$f":"'Sup fijo'!O17","v":70406.000000000015},{"$f":"'Sup fijo'!P17","v":70406.000000000015},{"$f":"'Sup fijo'!Q17","v":70406.000000000015},{"$f":"'Sup fijo'!R17","v":70406.000000000015},{"$f":"'Sup fijo'!S17","v":70406.000000000015},{"$f":"'Sup fijo'!T17","v":70406.000000000015},{"$f":"'Sup fijo'!U17","v":70406.000000000015},{"$f":"'Sup fijo'!V17","v":70406.000000000015},{"$f":"'Sup fijo'!W17","v":70406.000000000015},{"$f":"'Sup fijo'!X17","v":70406.000000000015}]
[null,null,null,null,null,null,null,"Operación acumulada ",null,{"$f":"+J9","v":70406.000000000015},{"$f":"+J10+K9","v":140812.00000000003},{"$f":"+K10+L9","v":211218.00000000006},281624.00000000006,352030.00000000006,422436.00000000006,492842.00000000006,563248.00000000012,633654.00000000012,704060.00000000012,774466.00000000012,844872.00000000012,915278.00000000012,985684.00000000012,1056090.0000000002,1126496.0000000002,1196902.0000000002,1267308.0000000002,1337714.0000000002,1408120.0000000002,null,"Frecuencia de ejecución labores de mantenimiento "]
[]
[null,"#","Detalle ","Unidades","Cantidad","Intervalo Km ","Precio (sin IVA)","Área",null,1,{"$f":"J12+1","v":2},3,4,5,6,7,8,9,10,11,12,13,14,15,16,17,18,19,20,null,1,{"$f":"AE12+1","v":2},3,4,5,6,7,8,9,10,11,12,13,14,15,16,17,18,19,20]
[null,1,"LLANTAS","UD.",4,46170,449.82857142857148,{"$f":"+'OPEX Mtto'!B11","v":"Neumáticos "},null,{"$f":"+AE13*$E13*$G13*(1+'Sup Generales'!C$10)","v":1842.4978285714287},{"$f":"+AF13*$E13*$G13*(1+'Sup Generales'!D$10)","v":3743.955587657143},{"$f":"+AG13*$E13*$G13*(1+'Sup Generales'!E$10)","v":1920.6492164681144},{"$f":"+AH13*$E13*$G13*(1+'Sup Generales'!F$10)","v":3857.8928421665141},{"$f":"+AI13*$E13*$G13*(1+'Sup Generales'!G$10)","v":1934.1545764201817},{"$f":"+AJ13*$E13*$G13*(1+'Sup Generales'!H$10)","v":3894.2268241643937},{"$f":"+AK13*$E13*$G13*(1+'Sup Generales'!I$10)","v":1984.9093173024776},{"$f":"+AL13*$E13*$G13*(1+'Sup Generales'!J$10)","v":4038.7104950193934},{"$f":"+AM13*$E13*$G13*(1+'Sup Generales'!K$10)","v":2048.7583614509999},{"$f":"+AN13*$E13*$G13*(1+'Sup Generales'!L$10)","v":4152.3444677542011},{"$f":"+AO13*$E13*$G13*(1+'Sup Generales'!M$10)","v":2103.2731655658549},{"$f":"+AP13*$E13*$G13*(1+'Sup Generales'!N$10)","v":4254.648105145824},{"$f":"+AQ13*$E13*$G13*(1+'Sup Generales'!O$10)","v":2153.5419445613165},{"$f":"+AR13*$E13*$G13*(1+'Sup Generales'!P$10)","v":4365.3475220183627},{"$f":"+AS13*$E13*$G13*(1+'Sup Generales'!Q$10)","v":2214.0624025844368},{"$f":"+AT13*$E13*$G13*(1+'Sup Generales'!R$10)","v":4489.0204565206568},{"$f":"+AU13*$E13*$G13*(1+'Sup Generales'!S$10)","v":2274.3662135582845},{"$f":"+AV13*$E13*$G13*(1+'Sup Generales'!T$10)","v":4608.5228945985864},{"$f":"+AW13*$E13*$G13*(1+'Sup Generales'!U$10)","v":2334.4815742153551},{"$f":"+AX13*$E13*$G13*(1+'Sup Generales'!V$10)","v":4730.2320031654208},{"$f":"SUM(J13:AC13)/SUM($J$9:$AC$9)","v":4.4701869016070324E-2},{"$f":"ROUNDDOWN(J$10/$F13,0)","v":1},{"$f":"ROUNDDOWN(K$10/$F13,0)-SUM($AE13:AE13)","v":2},{"$f":"ROUNDDOWN(L$10/$F13,0)-SUM($AE13:AF13)","v":1},{"$f":"ROUNDDOWN(M$10/$F13,0)-SUM($AE13:AG13)","v":2},{"$f":"ROUNDDOWN(N$10/$F13,0)-SUM($AE13:AH13)","v":1},{"$f":"ROUNDDOWN(O$10/$F13,0)-SUM($AE13:AI13)","v":2},{"$f":"ROUNDDOWN(P$10/$F13,0)-SUM($AE13:AJ13)","v":1},{"$f":"ROUNDDOWN(Q$10/$F13,0)-SUM($AE13:AK13)","v":2},{"$f":"ROUNDDOWN(R$10/$F13,0)-SUM($AE13:AL13)","v":1},{"$f":"ROUNDDOWN(S$10/$F13,0)-SUM($AE13:AM13)","v":2},{"$f":"ROUNDDOWN(T$10/$F13,0)-SUM($AE13:AN13)","v":1},{"$f":"ROUNDDOWN(U$10/$F13,0)-SUM($AE13:AO13)","v":2},{"$f":"ROUNDDOWN(V$10/$F13,0)-SUM($AE13:AP13)","v":1},{"$f":"ROUNDDOWN(W$10/$F13,0)-SUM($AE13:AQ13)","v":2},{"$f":"ROUNDDOWN(X$10/$F13,0)-SUM($AE13:AR13)","v":1},{"$f":"ROUNDDOWN(Y$10/$F13,0)-SUM($AE13:AS13)","v":2},{"$f":"ROUNDDOWN(Z$10/$F13,0)-SUM($AE13:AT13)","v":1},{"$f":"ROUNDDOWN(AA$10/$F13,0)-SUM($AE13:AU13)","v":2},{"$f":"ROUNDDOWN(AB$10/$F13,0)-SUM($AE13:AV13)","v":1},{"$f":"ROUNDDOWN(AC$10/$F13,0)-SUM($AE13:AW13)","v":2}]
[null,{"$f":"+B13+1","v":2},"REENCAUCHE DE LLANTAS","UD.",2,46170,275.24799999999999,{"$f":"+H13","v":"Neumáticos "},null,{"$f":"+AE14*$E14*$G14*(1+'Sup Generales'!C$10)","v":563.70790399999998},{"$f":"+AF14*$E14*$G14*(1+'Sup Generales'!D$10)","v":1145.4544609279999},{"$f":"+AG14*$E14*$G14*(1+'Sup Generales'!E$10)","v":587.618138456064},{"$f":"+AH14*$E14*$G14*(1+'Sup Generales'!F$10)","v":1180.3132976283885},{"$f":"+AI14*$E14*$G14*(1+'Sup Generales'!G$10)","v":591.75007176599252},{"$f":"+AJ14*$E14*$G14*(1+'Sup Generales'!H$10)","v":1191.4295944936493},{"$f":"+AK14*$E14*$G14*(1+'Sup Generales'!I$10)","v":607.27836610488214},{"$f":"+AL14*$E14*$G14*(1+'Sup Generales'!J$10)","v":1235.6340358758391},{"$f":"+AM14*$E14*$G14*(1+'Sup Generales'!K$10)","v":626.81283192147055},{"$f":"+AN14*$E14*$G14*(1+'Sup Generales'!L$10)","v":1270.4000842261905},{"$f":"+AO14*$E14*$G14*(1+'Sup Generales'!M$10)","v":643.49150881759601},{"$f":"+AP14*$E14*$G14*(1+'Sup Generales'!N$10)","v":1301.6996429618018},{"$f":"+AQ14*$E14*$G14*(1+'Sup Generales'!O$10)","v":658.87112425309522},{"$f":"+AR14*$E14*$G14*(1+'Sup Generales'!P$10)","v":1335.5678708053181},{"$f":"+AS14*$E14*$G14*(1+'Sup Generales'!Q$10)","v":677.38721692484864},{"$f":"+AT14*$E14*$G14*(1+'Sup Generales'!R$10)","v":1373.4053160433789},{"$f":"+AU14*$E14*$G14*(1+'Sup Generales'!S$10)","v":695.83702693826751},{"$f":"+AV14*$E14*$G14*(1+'Sup Generales'!T$10)","v":1409.9668076485168},{"$f":"+AW14*$E14*$G14*(1+'Sup Generales'!U$10)","v":714.22918101775213},{"$f":"+AX14*$E14*$G14*(1+'Sup Generales'!V$10)","v":1447.2034249318674},{"$f":"SUM(J14:AC14)/SUM($J$9:$AC$9)","v":1.3676432339390761E-2},{"$f":"ROUNDDOWN(J$10/$F14,0)","v":1},{"$f":"ROUNDDOWN(K$10/$F14,0)-SUM($AE14:AE14)","v":2},{"$f":"ROUNDDOWN(L$10/$F14,0)-SUM($AE14:AF14)","v":1},{"$f":"ROUNDDOWN(M$10/$F14,0)-SUM($AE14:AG14)","v":2},{"$f":"ROUNDDOWN(N$10/$F14,0)-SUM($AE14:AH14)","v":1},{"$f":"ROUNDDOWN(O$10/$F14,0)-SUM($AE14:AI14)","v":2},{"$f":"ROUNDDOWN(P$10/$F14,0)-SUM($AE14:AJ14)","v":1},{"$f":"ROUNDDOWN(Q$10/$F14,0)-SUM($AE14:AK14)","v":2},{"$f":"ROUNDDOWN(R$10/$F14,0)-SUM($AE14:AL14)","v":1},{"$f":"ROUNDDOWN(S$10/$F14,0)-SUM($AE14:AM14)","v":2},{"$f":"ROUNDDOWN(T$10/$F14,0)-SUM($AE14:AN14)","v":1},{"$f":"ROUNDDOWN(U$10/$F14,0)-SUM($AE14:AO14)","v":2},{"$f":"ROUNDDOWN(V$10/$F14,0)-SUM($AE14:AP14)","v":1},{"$f":"ROUNDDOWN(W$10/$F14,0)-SUM($AE14:AQ14)","v":2},{"$f":"ROUNDDOWN(X$10/$F14,0)-SUM($AE14:AR14)","v":1},{"$f":"ROUNDDOWN(Y$10/$F14,0)-SUM($AE14:AS14)","v":2},{"$f":"ROUNDDOWN(Z$10/$F14,0)-SUM($AE14:AT14)","v":1},{"$f":"ROUNDDOWN(AA$10/$F14,0)-SUM($AE14:AU14)","v":2},{"$f":"ROUNDDOWN(AB$10/$F14,0)-SUM($AE14:AV14)","v":1},{"$f":"ROUNDDOWN(AC$10/$F14,0)-SUM($AE14:AW14)","v":2}]
[null,{"$f":"+B14+1","v":3},"ACEITE DE MOTOR","GLNS",5,5000,18.081249999999997,{"$f":"+'OPEX Mtto'!B13","v":"Aceites y filtros "},null,{"$f":"+AE15*$E15*$G15*(1+'Sup Generales'!C$10)","v":1296.0639999999999},{"$f":"+AF15*$E15*$G15*(1+'Sup Generales'!D$10)","v":1316.8010239999996},{"$f":"+AG15*$E15*$G15*(1+'Sup Generales'!E$10)","v":1351.0378506239997},{"$f":"+AH15*$E15*$G15*(1+'Sup Generales'!F$10)","v":1356.8743341386958},{"$f":"+AI15*$E15*$G15*(1+'Sup Generales'!G$10)","v":1360.53789484087},{"$f":"+AJ15*$E15*$G15*(1+'Sup Generales'!H$10)","v":1369.6534987363038},{"$f":"+AK15*$E15*$G15*(1+'Sup Generales'!I$10)","v":1396.2401852136491},{"$f":"+AL15*$E15*$G15*(1+'Sup Generales'!J$10)","v":1420.4704064903297},{"$f":"+AM15*$E15*$G15*(1+'Sup Generales'!K$10)","v":1441.1533711463956},{"$f":"+AN15*$E15*$G15*(1+'Sup Generales'!L$10)","v":1460.4370482292661},{"$f":"+AO15*$E15*$G15*(1+'Sup Generales'!M$10)","v":1479.5005941306947},{"$f":"+AP15*$E15*$G15*(1+'Sup Generales'!N$10)","v":1496.4186541330141},{"$f":"+AQ15*$E15*$G15*(1+'Sup Generales'!O$10)","v":1623.0654058432681},{"$f":"+AR15*$E15*$G15*(1+'Sup Generales'!P$10)","v":1535.3531719394016},{"$f":"+AS15*$E15*$G15*(1+'Sup Generales'!Q$10)","v":1557.4328117217369},{"$f":"+AT15*$E15*$G15*(1+'Sup Generales'!R$10)","v":1578.8506555448666},{"$f":"+AU15*$E15*$G15*(1+'Sup Generales'!S$10)","v":1599.8521824553284},{"$f":"+AV15*$E15*$G15*(1+'Sup Generales'!T$10)","v":1620.8813178076061},{"$f":"+AW15*$E15*$G15*(1+'Sup Generales'!U$10)","v":1642.1389920170284},{"$f":"+AX15*$E15*$G15*(1+'Sup Generales'!V$10)","v":1663.6880966378071},2.0997110683500169E-2,14,{"$f":"ROUNDDOWN(K$10/$F15,0)-SUM($AE15:AE15)","v":14},{"$f":"ROUNDDOWN(L$10/$F15,0)-SUM($AE15:AF15)","v":14},{"$f":"ROUNDDOWN(M$10/$F15,0)-SUM($AE15:AG15)","v":14},{"$f":"ROUNDDOWN(N$10/$F15,0)-SUM($AE15:AH15)","v":14},{"$f":"ROUNDDOWN(O$10/$F15,0)-SUM($AE15:AI15)","v":14},{"$f":"ROUNDDOWN(P$10/$F15,0)-SUM($AE15:AJ15)","v":14},{"$f":"ROUNDDOWN(Q$10/$F15,0)-SUM($AE15:AK15)","v":14},{"$f":"ROUNDDOWN(R$10/$F15,0)-SUM($AE15:AL15)","v":14},{"$f":"ROUNDDOWN(S$10/$F15,0)-SUM($AE15:AM15)","v":14},{"$f":"ROUNDDOWN(T$10/$F15,0)-SUM($AE15:AN15)","v":14},{"$f":"ROUNDDOWN(U$10/$F15,0)-SUM($AE15:AO15)","v":14},{"$f":"ROUNDDOWN(V$10/$F15,0)-SUM($AE15:AP15)","v":15},{"$f":"ROUNDDOWN(W$10/$F15,0)-SUM($AE15:AQ15)","v":14},{"$f":"ROUNDDOWN(X$10/$F15,0)-SUM($AE15:AR15)","v":14},{"$f":"ROUNDDOWN(Y$10/$F15,0)-SUM($AE15:AS15)","v":14},{"$f":"ROUNDDOWN(Z$10/$F15,0)-SUM($AE15:AT15)","v":14},{"$f":"ROUNDDOWN(AA$10/$F15,0)-SUM($AE15:AU15)","v":14},{"$f":"ROUNDDOWN(AB$10/$F15,0)-SUM($AE15:AV15)","v":14},{"$f":"ROUNDDOWN(AC$10/$F15,0)-SUM($AE15:AW15)","v":14}]
[null,4,"ACEITE DE CAJA","GLNS",3,30000,18.261428571428571,{"$f":"+H15","v":"Aceites y filtros "},null,{"$f":"+AE16*$E16*$G16*(1+'Sup Generales'!C$10)","v":112.19821714285715},{"$f":"+AF16*$E16*$G16*(1+'Sup Generales'!D$10)","v":113.99338861714286},{"$f":"+AG16*$E16*$G16*(1+'Sup Generales'!E$10)","v":175.43582508178287},{"$f":"+AH16*$E16*$G16*(1+'Sup Generales'!F$10)","v":117.46247189742412},{"$f":"+AI16*$E16*$G16*(1+'Sup Generales'!G$10)","v":117.77962057154717},{"$f":"+AJ16*$E16*$G16*(1+'Sup Generales'!H$10)","v":177.85311604406479},{"$f":"+AK16*$E16*$G16*(1+'Sup Generales'!I$10)","v":120.87031156191678},{"$f":"+AL16*$E16*$G16*(1+'Sup Generales'!J$10)","v":122.96788361717059},{"$f":"+AM16*$E16*$G16*(1+'Sup Generales'!K$10)","v":187.13756288892051},{"$f":"+AN16*$E16*$G16*(1+'Sup Generales'!L$10)","v":126.42773278225502},{"$f":"+AO16*$E16*$G16*(1+'Sup Generales'!M$10)","v":128.07803389590472},{"$f":"+AP16*$E16*$G16*(1+'Sup Generales'!N$10)","v":194.31390551666968},{"$f":"+AQ16*$E16*$G16*(1+'Sup Generales'!O$10)","v":131.13913241867047},{"$f":"+AR16*$E16*$G16*(1+'Sup Generales'!P$10)","v":132.9131035012403},{"$f":"+AS16*$E16*$G16*(1+'Sup Generales'!Q$10)","v":202.23675466061013},{"$f":"+AT16*$E16*$G16*(1+'Sup Generales'!R$10)","v":136.67861208008659},{"$f":"+AU16*$E16*$G16*(1+'Sup Generales'!S$10)","v":138.49668115432328},{"$f":"+AV16*$E16*$G16*(1+'Sup Generales'!T$10)","v":210.47571037176206},{"$f":"+AW16*$E16*$G16*(1+'Sup Generales'!U$10)","v":142.15738358991464},{"$f":"+AX16*$E16*$G16*(1+'Sup Generales'!V$10)","v":144.0228556032383},2.0826622042137755E-3,2,{"$f":"ROUNDDOWN(K$10/$F16,0)-SUM($AE16:AE16)","v":2},{"$f":"ROUNDDOWN(L$10/$F16,0)-SUM($AE16:AF16)","v":3},{"$f":"ROUNDDOWN(M$10/$F16,0)-SUM($AE16:AG16)","v":2},{"$f":"ROUNDDOWN(N$10/$F16,0)-SUM($AE16:AH16)","v":2},{"$f":"ROUNDDOWN(O$10/$F16,0)-SUM($AE16:AI16)","v":3},{"$f":"ROUNDDOWN(P$10/$F16,0)-SUM($AE16:AJ16)","v":2},{"$f":"ROUNDDOWN(Q$10/$F16,0)-SUM($AE16:AK16)","v":2},{"$f":"ROUNDDOWN(R$10/$F16,0)-SUM($AE16:AL16)","v":3},{"$f":"ROUNDDOWN(S$10/$F16,0)-SUM($AE16:AM16)","v":2},{"$f":"ROUNDDOWN(T$10/$F16,0)-SUM($AE16:AN16)","v":2},{"$f":"ROUNDDOWN(U$10/$F16,0)-SUM($AE16:AO16)","v":3},{"$f":"ROUNDDOWN(V$10/$F16,0)-SUM($AE16:AP16)","v":2},{"$f":"ROUNDDOWN(W$10/$F16,0)-SUM($AE16:AQ16)","v":2},{"$f":"ROUNDDOWN(X$10/$F16,0)-SUM($AE16:AR16)","v":3},{"$f":"ROUNDDOWN(Y$10/$F16,0)-SUM($AE16:AS16)","v":2},{"$f":"ROUNDDOWN(Z$10/$F16,0)-SUM($AE16:AT16)","v":2},{"$f":"ROUNDDOWN(AA$10/$F16,0)-SUM($AE16:AU16)","v":3},{"$f":"ROUNDDOWN(AB$10/$F16,0)-SUM($AE16:AV16)","v":2},{"$f":"ROUNDDOWN(AC$10/$F16,0)-SUM($AE16:AW16)","v":2}]
[null,5,"ACEITE DE DIFERENCIAL","GLNS",3,30000,18.594285714285714,"Aceites y filtros ",null,{"$f":"+AE17*$E17*$G17*(1+'Sup Generales'!C$10)","v":114.24329142857142},{"$f":"+AF17*$E17*$G17*(1+'Sup Generales'!D$10)","v":116.07118409142856},{"$f":"+AG17*$E17*$G17*(1+'Sup Generales'!E$10)","v":178.63355231670857},{"$f":"+AH17*$E17*$G17*(1+'Sup Generales'!F$10)","v":119.60349950847785},{"$f":"+AI17*$E17*$G17*(1+'Sup Generales'!G$10)","v":119.92642895715073},{"$f":"+AJ17*$E17*$G17*(1+'Sup Generales'!H$10)","v":181.09490404674546},{"$f":"+AK17*$E17*$G17*(1+'Sup Generales'!I$10)","v":123.07345500194857},{"$f":"+AL17*$E17*$G17*(1+'Sup Generales'!J$10)","v":125.209260201916},{"$f":"+AM17*$E17*$G17*(1+'Sup Generales'!K$10)","v":190.54858159760536},{"$f":"+AN17*$E17*$G17*(1+'Sup Generales'!L$10)","v":128.73217319047416},{"$f":"+AO17*$E17*$G17*(1+'Sup Generales'!M$10)","v":130.41255489236454},{"$f":"+AP17*$E17*$G17*(1+'Sup Generales'!N$10)","v":197.85572981342193},{"$f":"+AQ17*$E17*$G17*(1+'Sup Generales'!O$10)","v":133.52944907779198},{"$f":"+AR17*$E17*$G17*(1+'Sup Generales'!P$10)","v":135.33575492232993},{"$f":"+AS17*$E17*$G17*(1+'Sup Generales'!Q$10)","v":205.92299136841913},{"$f":"+AT17*$E17*$G17*(1+'Sup Generales'!R$10)","v":139.16989868062325},{"$f":"+AU17*$E17*$G17*(1+'Sup Generales'!S$10)","v":141.02110630561464},{"$f":"+AV17*$E17*$G17*(1+'Sup Generales'!T$10)","v":214.31212127034772},{"$f":"+AW17*$E17*$G17*(1+'Sup Generales'!U$10)","v":144.7485335841609},{"$f":"+AX17*$E17*$G17*(1+'Sup Generales'!V$10)","v":146.64800817740354},2.1206235821048655E-3,2,{"$f":"ROUNDDOWN(K$10/$F17,0)-SUM($AE17:AE17)","v":2},{"$f":"ROUNDDOWN(L$10/$F17,0)-SUM($AE17:AF17)","v":3},{"$f":"ROUNDDOWN(M$10/$F17,0)-SUM($AE17:AG17)","v":2},{"$f":"ROUNDDOWN(N$10/$F17,0)-SUM($AE17:AH17)","v":2},{"$f":"ROUNDDOWN(O$10/$F17,0)-SUM($AE17:AI17)","v":3},{"$f":"ROUNDDOWN(P$10/$F17,0)-SUM($AE17:AJ17)","v":2},{"$f":"ROUNDDOWN(Q$10/$F17,0)-SUM($AE17:AK17)","v":2},{"$f":"ROUNDDOWN(R$10/$F17,0)-SUM($AE17:AL17)","v":3},{"$f":"ROUNDDOWN(S$10/$F17,0)-SUM($AE17:AM17)","v":2},{"$f":"ROUNDDOWN(T$10/$F17,0)-SUM($AE17:AN17)","v":2},{"$f":"ROUNDDOWN(U$10/$F17,0)-SUM($AE17:AO17)","v":3},{"$f":"ROUNDDOWN(V$10/$F17,0)-SUM($AE17:AP17)","v":2},{"$f":"ROUNDDOWN(W$10/$F17,0)-SUM($AE17:AQ17)","v":2},{"$f":"ROUNDDOWN(X$10/$F17,0)-SUM($AE17:AR17)","v":3},{"$f":"ROUNDDOWN(Y$10/$F17,0)-SUM($AE17:AS17)","v":2},{"$f":"ROUNDDOWN(Z$10/$F17,0)-SUM($AE17:AT17)","v":2},{"$f":"ROUNDDOWN(AA$10/$F17,0)-SUM($AE17:AU17)","v":3},{"$f":"ROUNDDOWN(AB$10/$F17,0)-SUM($AE17:AV17)","v":2},{"$f":"ROUNDDOWN(AC$10/$F17,0)-SUM($AE17:AW17)","v":2}]
[null,6,"ACEITE HIDRÁULICO","GLN",1,60000,16.008333333333333,"Aceites y filtros ",null,{"$f":"+AE18*$E18*$G18*(1+'Sup Generales'!C$10)","v":16.392533333333333},{"$f":"+AF18*$E18*$G18*(1+'Sup Generales'!D$10)","v":16.654813866666665},{"$f":"+AG18*$E18*$G18*(1+'Sup Generales'!E$10)","v":17.087839027200001},{"$f":"+AH18*$E18*$G18*(1+'Sup Generales'!F$10)","v":17.161658491797507},{"$f":"+AI18*$E18*$G18*(1+'Sup Generales'!G$10)","v":17.207994969725359},{"$f":"+AJ18*$E18*$G18*(1+'Sup Generales'!H$10)","v":34.646577072045034},{"$f":"+AK18*$E18*$G18*(1+'Sup Generales'!I$10)","v":17.659555220617385},{"$f":"+AL18*$E18*$G18*(1+'Sup Generales'!J$10)","v":17.966017486332682},{"$f":"+AM18*$E18*$G18*(1+'Sup Generales'!K$10)","v":18.227614280593397},{"$f":"+AN18*$E18*$G18*(1+'Sup Generales'!L$10)","v":18.47151297646813},{"$f":"+AO18*$E18*$G18*(1+'Sup Generales'!M$10)","v":18.712627467450595},{"$f":"+AP18*$E18*$G18*(1+'Sup Generales'!N$10)","v":37.853211984126155},{"$f":"+AQ18*$E18*$G18*(1+'Sup Generales'!O$10)","v":19.15986416023301},{"$f":"+AR18*$E18*$G18*(1+'Sup Generales'!P$10)","v":19.419047245703691},{"$f":"+AS18*$E18*$G18*(1+'Sup Generales'!Q$10)","v":19.698309096291258},{"$f":"+AT18*$E18*$G18*(1+'Sup Generales'!R$10)","v":19.969200594549665},{"$f":"+AU18*$E18*$G18*(1+'Sup Generales'!S$10)","v":20.234826543523354},{"$f":"+AV18*$E18*$G18*(1+'Sup Generales'!T$10)","v":41.001603364553681},{"$f":"+AW18*$E18*$G18*(1+'Sup Generales'!U$10)","v":20.769667365659057},{"$f":"+AX18*$E18*$G18*(1+'Sup Generales'!V$10)","v":21.042219041964863},3.0490064311907697E-4,1,{"$f":"ROUNDDOWN(K$10/$F18,0)-SUM($AE18:AE18)","v":1},{"$f":"ROUNDDOWN(L$10/$F18,0)-SUM($AE18:AF18)","v":1},{"$f":"ROUNDDOWN(M$10/$F18,0)-SUM($AE18:AG18)","v":1},{"$f":"ROUNDDOWN(N$10/$F18,0)-SUM($AE18:AH18)","v":1},{"$f":"ROUNDDOWN(O$10/$F18,0)-SUM($AE18:AI18)","v":2},{"$f":"ROUNDDOWN(P$10/$F18,0)-SUM($AE18:AJ18)","v":1},{"$f":"ROUNDDOWN(Q$10/$F18,0)-SUM($AE18:AK18)","v":1},{"$f":"ROUNDDOWN(R$10/$F18,0)-SUM($AE18:AL18)","v":1},{"$f":"ROUNDDOWN(S$10/$F18,0)-SUM($AE18:AM18)","v":1},{"$f":"ROUNDDOWN(T$10/$F18,0)-SUM($AE18:AN18)","v":1},{"$f":"ROUNDDOWN(U$10/$F18,0)-SUM($AE18:AO18)","v":2},{"$f":"ROUNDDOWN(V$10/$F18,0)-SUM($AE18:AP18)","v":1},{"$f":"ROUNDDOWN(W$10/$F18,0)-SUM($AE18:AQ18)","v":1},{"$f":"ROUNDDOWN(X$10/$F18,0)-SUM($AE18:AR18)","v":1},{"$f":"ROUNDDOWN(Y$10/$F18,0)-SUM($AE18:AS18)","v":1},{"$f":"ROUNDDOWN(Z$10/$F18,0)-SUM($AE18:AT18)","v":1},{"$f":"ROUNDDOWN(AA$10/$F18,0)-SUM($AE18:AU18)","v":2},{"$f":"ROUNDDOWN(AB$10/$F18,0)-SUM($AE18:AV18)","v":1},{"$f":"ROUNDDOWN(AC$10/$F18,0)-SUM($AE18:AW18)","v":1}]
[null,7,"ENGRASE GENERAL","KG.",1,5000,6.7857142857142856,"Aceites y filtros ",null,{"$f":"+AE19*$E19*$G19*(1+'Sup Generales'!C$10)","v":97.28},{"$f":"+AF19*$E19*$G19*(1+'Sup Generales'!D$10)","v":98.836479999999995},{"$f":"+AG19*$E19*$G19*(1+'Sup Generales'!E$10)","v":101.40622848},{"$f":"+AH19*$E19*$G19*(1+'Sup Generales'!F$10)","v":101.84430338703362},{"$f":"+AI19*$E19*$G19*(1+'Sup Generales'!G$10)","v":102.11928300617861},{"$f":"+AJ19*$E19*$G19*(1+'Sup Generales'!H$10)","v":102.80348220232},{"$f":"+AK19*$E19*$G19*(1+'Sup Generales'!I$10)","v":104.79902629621978},{"$f":"+AL19*$E19*$G19*(1+'Sup Generales'!J$10)","v":106.61769877365569},{"$f":"+AM19*$E19*$G19*(1+'Sup Generales'!K$10)","v":108.17012118623879},{"$f":"+AN19*$E19*$G19*(1+'Sup Generales'!L$10)","v":109.61751584161202},{"$f":"+AO19*$E19*$G19*(1+'Sup Generales'!M$10)","v":111.04838788596396},{"$f":"+AP19*$E19*$G19*(1+'Sup Generales'!N$10)","v":112.31822400287304},{"$f":"+AQ19*$E19*$G19*(1+'Sup Generales'!O$10)","v":121.82407865694373},{"$f":"+AR19*$E19*$G19*(1+'Sup Generales'!P$10)","v":115.24057189017287},{"$f":"+AS19*$E19*$G19*(1+'Sup Generales'!Q$10)","v":116.89782597486744},{"$f":"+AT19*$E19*$G19*(1+'Sup Generales'!R$10)","v":118.50540696401156},{"$f":"+AU19*$E19*$G19*(1+'Sup Generales'!S$10)","v":120.08174002923803},{"$f":"+AV19*$E19*$G19*(1+'Sup Generales'!T$10)","v":121.66014532949296},{"$f":"+AW19*$E19*$G19*(1+'Sup Generales'!U$10)","v":123.25570430427551},{"$f":"+AX19*$E19*$G19*(1+'Sup Generales'!V$10)","v":124.87313746923448},1.5760015919668289E-3,14,{"$f":"ROUNDDOWN(K$10/$F19,0)-SUM($AE19:AE19)","v":14},{"$f":"ROUNDDOWN(L$10/$F19,0)-SUM($AE19:AF19)","v":14},{"$f":"ROUNDDOWN(M$10/$F19,0)-SUM($AE19:AG19)","v":14},{"$f":"ROUNDDOWN(N$10/$F19,0)-SUM($AE19:AH19)","v":14},{"$f":"ROUNDDOWN(O$10/$F19,0)-SUM($AE19:AI19)","v":14},{"$f":"ROUNDDOWN(P$10/$F19,0)-SUM($AE19:AJ19)","v":14},{"$f":"ROUNDDOWN(Q$10/$F19,0)-SUM($AE19:AK19)","v":14},{"$f":"ROUNDDOWN(R$10/$F19,0)-SUM($AE19:AL19)","v":14},{"$f":"ROUNDDOWN(S$10/$F19,0)-SUM($AE19:AM19)","v":14},{"$f":"ROUNDDOWN(T$10/$F19,0)-SUM($AE19:AN19)","v":14},{"$f":"ROUNDDOWN(U$10/$F19,0)-SUM($AE19:AO19)","v":14},{"$f":"ROUNDDOWN(V$10/$F19,0)-SUM($AE19:AP19)","v":15},{"$f":"ROUNDDOWN(W$10/$F19,0)-SUM($AE19:AQ19)","v":14},{"$f":"ROUNDDOWN(X$10/$F19,0)-SUM($AE19:AR19)","v":14},{"$f":"ROUNDDOWN(Y$10/$F19,0)-SUM($AE19:AS19)","v":14},{"$f":"ROUNDDOWN(Z$10/$F19,0)-SUM($AE19:AT19)","v":14},{"$f":"ROUNDDOWN(AA$10/$F19,0)-SUM($AE19:AU19)","v":14},{"$f":"ROUNDDOWN(AB$10/$F19,0)-SUM($AE19:AV19)","v":14},{"$f":"ROUNDDOWN(AC$10/$F19,0)-SUM($AE19:AW19)","v":14}]
[null,8,"FILTRO DE ACEITE DE MOTOR","UND",1,5000,13.37875,"Aceites y filtros ",null,{"$f":"+AE20*$E20*$G20*(1+'Sup Generales'!C$10)","v":191.79776000000001},{"$f":"+AF20*$E20*$G20*(1+'Sup Generales'!D$10)","v":194.86652416000001},{"$f":"+AG20*$E20*$G20*(1+'Sup Generales'!E$10)","v":199.93305378816001},{"$f":"+AH20*$E20*$G20*(1+'Sup Generales'!F$10)","v":200.79676458052489},{"$f":"+AI20*$E20*$G20*(1+'Sup Generales'!G$10)","v":201.33891584489231},{"$f":"+AJ20*$E20*$G20*(1+'Sup Generales'!H$10)","v":202.68788658105308},{"$f":"+AK20*$E20*$G20*(1+'Sup Generales'!I$10)","v":206.62231181944955},{"$f":"+AL20*$E20*$G20*(1+'Sup Generales'!J$10)","v":210.20801604792257},{"$f":"+AM20*$E20*$G20*(1+'Sup Generales'!K$10)","v":213.26878024721572},{"$f":"+AN20*$E20*$G20*(1+'Sup Generales'!L$10)","v":216.12247116761617},{"$f":"+AO20*$E20*$G20*(1+'Sup Generales'!M$10)","v":218.94358602116597},{"$f":"+AP20*$E20*$G20*(1+'Sup Generales'!N$10)","v":221.44720159261186},{"$f":"+AQ20*$E20*$G20*(1+'Sup Generales'!O$10)","v":240.18899465939165},{"$f":"+AR20*$E20*$G20*(1+'Sup Generales'!P$10)","v":227.2089180679906},{"$f":"+AS20*$E20*$G20*(1+'Sup Generales'!Q$10)","v":230.4763689437643},{"$f":"+AT20*$E20*$G20*(1+'Sup Generales'!R$10)","v":233.64588408291343},{"$f":"+AU20*$E20*$G20*(1+'Sup Generales'!S$10)","v":236.75379065080378},{"$f":"+AV20*$E20*$G20*(1+'Sup Generales'!T$10)","v":239.8657828481827},{"$f":"+AW20*$E20*$G20*(1+'Sup Generales'!U$10)","v":243.0115953205428},{"$f":"+AX20*$E20*$G20*(1+'Sup Generales'!V$10)","v":246.20053506138203},3.1072530334670212E-3,14,{"$f":"ROUNDDOWN(K$10/$F20,0)-SUM($AE20:AE20)","v":14},{"$f":"ROUNDDOWN(L$10/$F20,0)-SUM($AE20:AF20)","v":14},{"$f":"ROUNDDOWN(M$10/$F20,0)-SUM($AE20:AG20)","v":14},{"$f":"ROUNDDOWN(N$10/$F20,0)-SUM($AE20:AH20)","v":14},{"$f":"ROUNDDOWN(O$10/$F20,0)-SUM($AE20:AI20)","v":14},{"$f":"ROUNDDOWN(P$10/$F20,0)-SUM($AE20:AJ20)","v":14},{"$f":"ROUNDDOWN(Q$10/$F20,0)-SUM($AE20:AK20)","v":14},{"$f":"ROUNDDOWN(R$10/$F20,0)-SUM($AE20:AL20)","v":14},{"$f":"ROUNDDOWN(S$10/$F20,0)-SUM($AE20:AM20)","v":14},{"$f":"ROUNDDOWN(T$10/$F20,0)-SUM($AE20:AN20)","v":14},{"$f":"ROUNDDOWN(U$10/$F20,0)-SUM($AE20:AO20)","v":14},{"$f":"ROUNDDOWN(V$10/$F20,0)-SUM($AE20:AP20)","v":15},{"$f":"ROUNDDOWN(W$10/$F20,0)-SUM($AE20:AQ20)","v":14},{"$f":"ROUNDDOWN(X$10/$F20,0)-SUM($AE20:AR20)","v":14},{"$f":"ROUNDDOWN(Y$10/$F20,0)-SUM($AE20:AS20)","v":14},{"$f":"ROUNDDOWN(Z$10/$F20,0)-SUM($AE20:AT20)","v":14},{"$f":"ROUNDDOWN(AA$10/$F20,0)-SUM($AE20:AU20)","v":14},{"$f":"ROUNDDOWN(AB$10/$F20,0)-SUM($AE20:AV20)","v":14},{"$f":"ROUNDDOWN(AC$10/$F20,0)-SUM($AE20:AW20)","v":14}]
[null,9,"FILTRO DE AIRE","UND",2,10000,35.441249999999997,"Aceites y filtros ",null,{"$f":"+AE21*$E21*$G21*(1+'Sup Generales'!C$10)","v":508.08575999999994},{"$f":"+AF21*$E21*$G21*(1+'Sup Generales'!D$10)","v":516.21513215999994},{"$f":"+AG21*$E21*$G21*(1+'Sup Generales'!E$10)","v":529.63672559615998},{"$f":"+AH21*$E21*$G21*(1+'Sup Generales'!F$10)","v":531.92475625073541},{"$f":"+AI21*$E21*$G21*(1+'Sup Generales'!G$10)","v":533.36095309261236},{"$f":"+AJ21*$E21*$G21*(1+'Sup Generales'!H$10)","v":536.93447147833285},{"$f":"+AK21*$E21*$G21*(1+'Sup Generales'!I$10)","v":547.35704073781676},{"$f":"+AL21*$E21*$G21*(1+'Sup Generales'!J$10)","v":556.85582350805828},{"$f":"+AM21*$E21*$G21*(1+'Sup Generales'!K$10)","v":564.96400320931571},{"$f":"+AN21*$E21*$G21*(1+'Sup Generales'!L$10)","v":572.52363122633096},{"$f":"+AO21*$E21*$G21*(1+'Sup Generales'!M$10)","v":579.99696295039871},{"$f":"+AP21*$E21*$G21*(1+'Sup Generales'!N$10)","v":586.62921673879509},{"$f":"+AQ21*$E21*$G21*(1+'Sup Generales'!O$10)","v":593.85904212581033},{"$f":"+AR21*$E21*$G21*(1+'Sup Generales'!P$10)","v":601.89240904248686},{"$f":"+AS21*$E21*$G21*(1+'Sup Generales'!Q$10)","v":610.54811629099777},{"$f":"+AT21*$E21*$G21*(1+'Sup Generales'!R$10)","v":618.94438488300875},{"$f":"+AU21*$E21*$G21*(1+'Sup Generales'!S$10)","v":627.17744803533947},{"$f":"+AV21*$E21*$G21*(1+'Sup Generales'!T$10)","v":635.42133430762613},{"$f":"+AW21*$E21*$G21*(1+'Sup Generales'!U$10)","v":643.75481286773322},{"$f":"+AX21*$E21*$G21*(1+'Sup Generales'!V$10)","v":652.20253859622198},8.2012076833634772E-3,7,{"$f":"ROUNDDOWN(K$10/$F21,0)-SUM($AE21:AE21)","v":7},{"$f":"ROUNDDOWN(L$10/$F21,0)-SUM($AE21:AF21)","v":7},{"$f":"ROUNDDOWN(M$10/$F21,0)-SUM($AE21:AG21)","v":7},{"$f":"ROUNDDOWN(N$10/$F21,0)-SUM($AE21:AH21)","v":7},{"$f":"ROUNDDOWN(O$10/$F21,0)-SUM($AE21:AI21)","v":7},{"$f":"ROUNDDOWN(P$10/$F21,0)-SUM($AE21:AJ21)","v":7},{"$f":"ROUNDDOWN(Q$10/$F21,0)-SUM($AE21:AK21)","v":7},{"$f":"ROUNDDOWN(R$10/$F21,0)-SUM($AE21:AL21)","v":7},{"$f":"ROUNDDOWN(S$10/$F21,0)-SUM($AE21:AM21)","v":7},{"$f":"ROUNDDOWN(T$10/$F21,0)-SUM($AE21:AN21)","v":7},{"$f":"ROUNDDOWN(U$10/$F21,0)-SUM($AE21:AO21)","v":7},{"$f":"ROUNDDOWN(V$10/$F21,0)-SUM($AE21:AP21)","v":7},{"$f":"ROUNDDOWN(W$10/$F21,0)-SUM($AE21:AQ21)","v":7},{"$f":"ROUNDDOWN(X$10/$F21,0)-SUM($AE21:AR21)","v":7},{"$f":"ROUNDDOWN(Y$10/$F21,0)-SUM($AE21:AS21)","v":7},{"$f":"ROUNDDOWN(Z$10/$F21,0)-SUM($AE21:AT21)","v":7},{"$f":"ROUNDDOWN(AA$10/$F21,0)-SUM($AE21:AU21)","v":7},{"$f":"ROUNDDOWN(AB$10/$F21,0)-SUM($AE21:AV21)","v":7},{"$f":"ROUNDDOWN(AC$10/$F21,0)-SUM($AE21:AW21)","v":7}]
[null,10,"FILTRO DE COMBUSTIBLE","UD.",1,5000,13.484999999999999,"Aceites y filtros ",null,{"$f":"+AE22*$E22*$G22*(1+'Sup Generales'!C$10)","v":193.32095999999999},{"$f":"+AF22*$E22*$G22*(1+'Sup Generales'!D$10)","v":196.41409535999998},{"$f":"+AG22*$E22*$G22*(1+'Sup Generales'!E$10)","v":201.52086183935998},{"$f":"+AH22*$E22*$G22*(1+'Sup Generales'!F$10)","v":202.39143196250606},{"$f":"+AI22*$E22*$G22*(1+'Sup Generales'!G$10)","v":202.93788882880483},{"$f":"+AJ22*$E22*$G22*(1+'Sup Generales'!H$10)","v":204.29757268395778},{"$f":"+AK22*$E22*$G22*(1+'Sup Generales'!I$10)","v":208.26324394171928},{"$f":"+AL22*$E22*$G22*(1+'Sup Generales'!J$10)","v":211.87742475240481},{"$f":"+AM22*$E22*$G22*(1+'Sup Generales'!K$10)","v":214.96249661842126},{"$f":"+AN22*$E22*$G22*(1+'Sup Generales'!L$10)","v":217.83885069197822},{"$f":"+AO22*$E22*$G22*(1+'Sup Generales'!M$10)","v":220.68236998938039},{"$f":"+AP22*$E22*$G22*(1+'Sup Generales'!N$10)","v":223.20586852107789},{"$f":"+AQ22*$E22*$G22*(1+'Sup Generales'!O$10)","v":242.09650325941482},{"$f":"+AR22*$E22*$G22*(1+'Sup Generales'!P$10)","v":229.01334281206039},{"$f":"+AS22*$E22*$G22*(1+'Sup Generales'!Q$10)","v":232.30674279784446},{"$f":"+AT22*$E22*$G22*(1+'Sup Generales'!R$10)","v":235.50142927090252},{"$f":"+AU22*$E22*$G22*(1+'Sup Generales'!S$10)","v":238.6340178959984},{"$f":"+AV22*$E22*$G22*(1+'Sup Generales'!T$10)","v":241.77072459742078},{"$f":"+AW22*$E22*$G22*(1+'Sup Generales'!U$10)","v":244.94152016425446},{"$f":"+AX22*$E22*$G22*(1+'Sup Generales'!V$10)","v":248.15578550333447},3.131929900499133E-3,14,{"$f":"ROUNDDOWN(K$10/$F22,0)-SUM($AE22:AE22)","v":14},{"$f":"ROUNDDOWN(L$10/$F22,0)-SUM($AE22:AF22)","v":14},{"$f":"ROUNDDOWN(M$10/$F22,0)-SUM($AE22:AG22)","v":14},{"$f":"ROUNDDOWN(N$10/$F22,0)-SUM($AE22:AH22)","v":14},{"$f":"ROUNDDOWN(O$10/$F22,0)-SUM($AE22:AI22)","v":14},{"$f":"ROUNDDOWN(P$10/$F22,0)-SUM($AE22:AJ22)","v":14},{"$f":"ROUNDDOWN(Q$10/$F22,0)-SUM($AE22:AK22)","v":14},{"$f":"ROUNDDOWN(R$10/$F22,0)-SUM($AE22:AL22)","v":14},{"$f":"ROUNDDOWN(S$10/$F22,0)-SUM($AE22:AM22)","v":14},{"$f":"ROUNDDOWN(T$10/$F22,0)-SUM($AE22:AN22)","v":14},{"$f":"ROUNDDOWN(U$10/$F22,0)-SUM($AE22:AO22)","v":14},{"$f":"ROUNDDOWN(V$10/$F22,0)-SUM($AE22:AP22)","v":15},{"$f":"ROUNDDOWN(W$10/$F22,0)-SUM($AE22:AQ22)","v":14},{"$f":"ROUNDDOWN(X$10/$F22,0)-SUM($AE22:AR22)","v":14},{"$f":"ROUNDDOWN(Y$10/$F22,0)-SUM($AE22:AS22)","v":14},{"$f":"ROUNDDOWN(Z$10/$F22,0)-SUM($AE22:AT22)","v":14},{"$f":"ROUNDDOWN(AA$10/$F22,0)-SUM($AE22:AU22)","v":14},{"$f":"ROUNDDOWN(AB$10/$F22,0)-SUM($AE22:AV22)","v":14},{"$f":"ROUNDDOWN(AC$10/$F22,0)-SUM($AE22:AW22)","v":14}]
[null,11,"FILTRO SECADOR DE AIRE","UD.",1,30000,35.874285714285712,"Aceites y filtros ",null,{"$f":"+AE23*$E23*$G23*(1+'Sup Generales'!C$10)","v":73.47053714285714},{"$f":"+AF23*$E23*$G23*(1+'Sup Generales'!D$10)","v":74.646065737142848},{"$f":"+AG23*$E23*$G23*(1+'Sup Generales'!E$10)","v":114.88029516946284},{"$f":"+AH23*$E23*$G23*(1+'Sup Generales'!F$10)","v":76.917718696396634},{"$f":"+AI23*$E23*$G23*(1+'Sup Generales'!G$10)","v":77.125396536876906},{"$f":"+AJ23*$E23*$G23*(1+'Sup Generales'!H$10)","v":116.46320504051094},{"$f":"+AK23*$E23*$G23*(1+'Sup Generales'!I$10)","v":79.149267619569059},{"$f":"+AL23*$E23*$G23*(1+'Sup Generales'!J$10)","v":80.522816589595237},{"$f":"+AM23*$E23*$G23*(1+'Sup Generales'!K$10)","v":122.54292104791706},{"$f":"+AN23*$E23*$G23*(1+'Sup Generales'!L$10)","v":82.788422791415357},{"$f":"+AO23*$E23*$G23*(1+'Sup Generales'!M$10)","v":83.869086213303063},{"$f":"+AP23*$E23*$G23*(1+'Sup Generales'!N$10)","v":127.24219133053296},{"$f":"+AQ23*$E23*$G23*(1+'Sup Generales'!O$10)","v":85.873579318825861},{"$f":"+AR23*$E23*$G23*(1+'Sup Generales'!P$10)","v":87.035225302436729},{"$f":"+AS23*$E23*$G23*(1+'Sup Generales'!Q$10)","v":132.43029500214453},{"$f":"+AT23*$E23*$G23*(1+'Sup Generales'!R$10)","v":89.500985855045343},{"$f":"+AU23*$E23*$G23*(1+'Sup Generales'!S$10)","v":90.691508439525578},{"$f":"+AV23*$E23*$G23*(1+'Sup Generales'!T$10)","v":137.82539411342376},{"$f":"+AW23*$E23*$G23*(1+'Sup Generales'!U$10)","v":93.08863899214937},{"$f":"+AX23*$E23*$G23*(1+'Sup Generales'!V$10)","v":94.310202349696723},1.3637855816896482E-3,2,{"$f":"ROUNDDOWN(K$10/$F23,0)-SUM($AE23:AE23)","v":2},{"$f":"ROUNDDOWN(L$10/$F23,0)-SUM($AE23:AF23)","v":3},{"$f":"ROUNDDOWN(M$10/$F23,0)-SUM($AE23:AG23)","v":2},{"$f":"ROUNDDOWN(N$10/$F23,0)-SUM($AE23:AH23)","v":2},{"$f":"ROUNDDOWN(O$10/$F23,0)-SUM($AE23:AI23)","v":3},{"$f":"ROUNDDOWN(P$10/$F23,0)-SUM($AE23:AJ23)","v":2},{"$f":"ROUNDDOWN(Q$10/$F23,0)-SUM($AE23:AK23)","v":2},{"$f":"ROUNDDOWN(R$10/$F23,0)-SUM($AE23:AL23)","v":3},{"$f":"ROUNDDOWN(S$10/$F23,0)-SUM($AE23:AM23)","v":2},{"$f":"ROUNDDOWN(T$10/$F23,0)-SUM($AE23:AN23)","v":2},{"$f":"ROUNDDOWN(U$10/$F23,0)-SUM($AE23:AO23)","v":3},{"$f":"ROUNDDOWN(V$10/$F23,0)-SUM($AE23:AP23)","v":2},{"$f":"ROUNDDOWN(W$10/$F23,0)-SUM($AE23:AQ23)","v":2},{"$f":"ROUNDDOWN(X$10/$F23,0)-SUM($AE23:AR23)","v":3},{"$f":"ROUNDDOWN(Y$10/$F23,0)-SUM($AE23:AS23)","v":2},{"$f":"ROUNDDOWN(Z$10/$F23,0)-SUM($AE23:AT23)","v":2},{"$f":"ROUNDDOWN(AA$10/$F23,0)-SUM($AE23:AU23)","v":3},{"$f":"ROUNDDOWN(AB$10/$F23,0)-SUM($AE23:AV23)","v":2},{"$f":"ROUNDDOWN(AC$10/$F23,0)-SUM($AE23:AW23)","v":2}]
[null,12,"REFRIGERANTE DE MOTOR","GLNS.",4,30000,3.8400000000000003,"Aceites y filtros ",null,{"$f":"+AE24*$E24*$G24*(1+'Sup Generales'!C$10)","v":31.457280000000004},{"$f":"+AF24*$E24*$G24*(1+'Sup Generales'!D$10)","v":31.960596480000003},{"$f":"+AG24*$E24*$G24*(1+'Sup Generales'!E$10)","v":49.187357982720009},{"$f":"+AH24*$E24*$G24*(1+'Sup Generales'!F$10)","v":32.933231579470238},{"$f":"+AI24*$E24*$G24*(1+'Sup Generales'!G$10)","v":33.022151304734813},{"$f":"+AJ24*$E24*$G24*(1+'Sup Generales'!H$10)","v":49.865099577714801},{"$f":"+AK24*$E24*$G24*(1+'Sup Generales'!I$10)","v":33.888695661261814},{"$f":"+AL24*$E24*$G24*(1+'Sup Generales'!J$10)","v":34.476796908702134},{"$f":"+AM24*$E24*$G24*(1+'Sup Generales'!K$10)","v":52.468201939598778},{"$f":"+AN24*$E24*$G24*(1+'Sup Generales'!L$10)","v":35.446843017413912},{"$f":"+AO24*$E24*$G24*(1+'Sup Generales'!M$10)","v":35.909541851124352},{"$f":"+AP24*$E24*$G24*(1+'Sup Generales'!N$10)","v":54.480250126867261},{"$f":"+AQ24*$E24*$G24*(1+'Sup Generales'!O$10)","v":36.767789297388326},{"$f":"+AR24*$E24*$G24*(1+'Sup Generales'!P$10)","v":37.265161773327485},{"$f":"+AS24*$E24*$G24*(1+'Sup Generales'!Q$10)","v":56.70159811496729},{"$f":"+AT24*$E24*$G24*(1+'Sup Generales'!R$10)","v":38.32090633615195},{"$f":"+AU24*$E24*$G24*(1+'Sup Generales'!S$10)","v":38.830642670507295},{"$f":"+AV24*$E24*$G24*(1+'Sup Generales'!T$10)","v":59.011573650347749},{"$f":"+AW24*$E24*$G24*(1+'Sup Generales'!U$10)","v":39.857002486603619},{"$f":"+AX24*$E24*$G24*(1+'Sup Generales'!V$10)","v":40.380029295314564},5.83920937174542E-4,2,{"$f":"ROUNDDOWN(K$10/$F24,0)-SUM($AE24:AE24)","v":2},{"$f":"ROUNDDOWN(L$10/$F24,0)-SUM($AE24:AF24)","v":3},{"$f":"ROUNDDOWN(M$10/$F24,0)-SUM($AE24:AG24)","v":2},{"$f":"ROUNDDOWN(N$10/$F24,0)-SUM($AE24:AH24)","v":2},{"$f":"ROUNDDOWN(O$10/$F24,0)-SUM($AE24:AI24)","v":3},{"$f":"ROUNDDOWN(P$10/$F24,0)-SUM($AE24:AJ24)","v":2},{"$f":"ROUNDDOWN(Q$10/$F24,0)-SUM($AE24:AK24)","v":2},{"$f":"ROUNDDOWN(R$10/$F24,0)-SUM($AE24:AL24)","v":3},{"$f":"ROUNDDOWN(S$10/$F24,0)-SUM($AE24:AM24)","v":2},{"$f":"ROUNDDOWN(T$10/$F24,0)-SUM($AE24:AN24)","v":2},{"$f":"ROUNDDOWN(U$10/$F24,0)-SUM($AE24:AO24)","v":3},{"$f":"ROUNDDOWN(V$10/$F24,0)-SUM($AE24:AP24)","v":2},{"$f":"ROUNDDOWN(W$10/$F24,0)-SUM($AE24:AQ24)","v":2},{"$f":"ROUNDDOWN(X$10/$F24,0)-SUM($AE24:AR24)","v":3},{"$f":"ROUNDDOWN(Y$10/$F24,0)-SUM($AE24:AS24)","v":2},{"$f":"ROUNDDOWN(Z$10/$F24,0)-SUM($AE24:AT24)","v":2},{"$f":"ROUNDDOWN(AA$10/$F24,0)-SUM($AE24:AU24)","v":3},{"$f":"ROUNDDOWN(AB$10/$F24,0)-SUM($AE24:AV24)","v":2},{"$f":"ROUNDDOWN(AC$10/$F24,0)-SUM($AE24:AW24)","v":2}]
[null,13,"DESCARBONIZACION COMPRESOR AIRE","UD.",1,30000,27.5,"Aceites y filtros ",null,{"$f":"+AE25*$E25*$G25*(1+'Sup Generales'!C$10)","v":56.32},{"$f":"+AF25*$E25*$G25*(1+'Sup Generales'!D$10)","v":57.221119999999999},{"$f":"+AG25*$E25*$G25*(1+'Sup Generales'!E$10)","v":88.063303680000004},{"$f":"+AH25*$E25*$G25*(1+'Sup Generales'!F$10)","v":58.962491434598412},{"$f":"+AI25*$E25*$G25*(1+'Sup Generales'!G$10)","v":59.121690161471825},{"$f":"+AJ25*$E25*$G25*(1+'Sup Generales'!H$10)","v":89.27670822833052},{"$f":"+AK25*$E25*$G25*(1+'Sup Generales'!I$10)","v":60.673120487285139},{"$f":"+AL25*$E25*$G25*(1+'Sup Generales'!J$10)","v":61.726036132116448},{"$f":"+AM25*$E25*$G25*(1+'Sup Generales'!K$10)","v":93.937210503838955},{"$f":"+AN25*$E25*$G25*(1+'Sup Generales'!L$10)","v":63.46277232935433},{"$f":"+AO25*$E25*$G25*(1+'Sup Generales'!M$10)","v":64.291171933979143},{"$f":"+AP25*$E25*$G25*(1+'Sup Generales'!N$10)","v":97.539510318284471},{"$f":"+AQ25*$E25*$G25*(1+'Sup Generales'!O$10)","v":65.827747765506444},{"$f":"+AR25*$E25*$G25*(1+'Sup Generales'!P$10)","v":66.718225831152722},{"$f":"+AS25*$E25*$G25*(1+'Sup Generales'!Q$10)","v":101.51653308343751},{"$f":"+AT25*$E25*$G25*(1+'Sup Generales'!R$10)","v":68.608393505480365},{"$f":"+AU25*$E25*$G25*(1+'Sup Generales'!S$10)","v":69.521007385348341},{"$f":"+AV25*$E25*$G25*(1+'Sup Generales'!T$10)","v":105.65223147034915},{"$f":"+AW25*$E25*$G25*(1+'Sup Generales'!U$10)","v":71.358565649843726},{"$f":"+AX25*$E25*$G25*(1+'Sup Generales'!V$10)","v":72.294974324293648},1.0454313653841085E-3,2,{"$f":"ROUNDDOWN(K$10/$F25,0)-SUM($AE25:AE25)","v":2},{"$f":"ROUNDDOWN(L$10/$F25,0)-SUM($AE25:AF25)","v":3},{"$f":"ROUNDDOWN(M$10/$F25,0)-SUM($AE25:AG25)","v":2},{"$f":"ROUNDDOWN(N$10/$F25,0)-SUM($AE25:AH25)","v":2},{"$f":"ROUNDDOWN(O$10/$F25,0)-SUM($AE25:AI25)","v":3},{"$f":"ROUNDDOWN(P$10/$F25,0)-SUM($AE25:AJ25)","v":2},{"$f":"ROUNDDOWN(Q$10/$F25,0)-SUM($AE25:AK25)","v":2},{"$f":"ROUNDDOWN(R$10/$F25,0)-SUM($AE25:AL25)","v":3},{"$f":"ROUNDDOWN(S$10/$F25,0)-SUM($AE25:AM25)","v":2},{"$f":"ROUNDDOWN(T$10/$F25,0)-SUM($AE25:AN25)","v":2},{"$f":"ROUNDDOWN(U$10/$F25,0)-SUM($AE25:AO25)","v":3},{"$f":"ROUNDDOWN(V$10/$F25,0)-SUM($AE25:AP25)","v":2},{"$f":"ROUNDDOWN(W$10/$F25,0)-SUM($AE25:AQ25)","v":2},{"$f":"ROUNDDOWN(X$10/$F25,0)-SUM($AE25:AR25)","v":3},{"$f":"ROUNDDOWN(Y$10/$F25,0)-SUM($AE25:AS25)","v":2},{"$f":"ROUNDDOWN(Z$10/$F25,0)-SUM($AE25:AT25)","v":2},{"$f":"ROUNDDOWN(AA$10/$F25,0)-SUM($AE25:AU25)","v":3},{"$f":"ROUNDDOWN(AB$10/$F25,0)-SUM($AE25:AV25)","v":2},{"$f":"ROUNDDOWN(AC$10/$F25,0)-SUM($AE25:AW25)","v":2}]
[null,14,"BANDAS","JGO.",1,30000,31.708571428571428,{"$f":"+'OPEX Mtto'!B10","v":"Costo de mantenimiento mecánico"},null,{"$f":"+AE26*$E26*$G26*(1+'Sup Generales'!C$10)","v":64.939154285714281},{"$f":"+AF26*$E26*$G26*(1+'Sup Generales'!D$10)","v":65.978180754285717},{"$f":"+AG26*$E26*$G26*(1+'Sup Generales'!E$10)","v":101.54042018084571},{"$f":"+AH26*$E26*$G26*(1+'Sup Generales'!F$10)","v":67.986049864017986},{"$f":"+AI26*$E26*$G26*(1+'Sup Generales'!G$10)","v":68.169612198650839},{"$f":"+AJ26*$E26*$G26*(1+'Sup Generales'!H$10)","v":102.93952290057268},{"$f":"+AK26*$E26*$G26*(1+'Sup Generales'!I$10)","v":69.958471809650959},{"$f":"+AL26*$E26*$G26*(1+'Sup Generales'!J$10)","v":71.172524570828926},{"$f":"+AM26*$E26*$G26*(1+'Sup Generales'!K$10)","v":108.31326360224463},{"$f":"+AN26*$E26*$G26*(1+'Sup Generales'!L$10)","v":73.175049071290843},{"$f":"+AO26*$E26*$G26*(1+'Sup Generales'!M$10)","v":74.130226090732521},{"$f":"+AP26*$E26*$G26*(1+'Sup Generales'!N$10)","v":112.46685563764375},{"$f":"+AQ26*$E26*$G26*(1+'Sup Generales'!O$10)","v":75.901957891074332},{"$f":"+AR26*$E26*$G26*(1+'Sup Generales'!P$10)","v":76.928713794715108},{"$f":"+AS26*$E26*$G26*(1+'Sup Generales'!Q$10)","v":117.05251783480411},{"$f":"+AT26*$E26*$G26*(1+'Sup Generales'!R$10)","v":79.108150766111294},{"$f":"+AU26*$E26*$G26*(1+'Sup Generales'!S$10)","v":80.160430125983979},{"$f":"+AV26*$E26*$G26*(1+'Sup Generales'!T$10)","v":121.8211392060192},{"$f":"+AW26*$E26*$G26*(1+'Sup Generales'!U$10)","v":82.279206398126291},{"$f":"+AX26*$E26*$G26*(1+'Sup Generales'!V$10)","v":83.358922083221913},1.2054230953800348E-3,2,{"$f":"ROUNDDOWN(K$10/$F26,0)-SUM($AE26:AE26)","v":2},{"$f":"ROUNDDOWN(L$10/$F26,0)-SUM($AE26:AF26)","v":3},{"$f":"ROUNDDOWN(M$10/$F26,0)-SUM($AE26:AG26)","v":2},{"$f":"ROUNDDOWN(N$10/$F26,0)-SUM($AE26:AH26)","v":2},{"$f":"ROUNDDOWN(O$10/$F26,0)-SUM($AE26:AI26)","v":3},{"$f":"ROUNDDOWN(P$10/$F26,0)-SUM($AE26:AJ26)","v":2},{"$f":"ROUNDDOWN(Q$10/$F26,0)-SUM($AE26:AK26)","v":2},{"$f":"ROUNDDOWN(R$10/$F26,0)-SUM($AE26:AL26)","v":3},{"$f":"ROUNDDOWN(S$10/$F26,0)-SUM($AE26:AM26)","v":2},{"$f":"ROUNDDOWN(T$10/$F26,0)-SUM($AE26:AN26)","v":2},{"$f":"ROUNDDOWN(U$10/$F26,0)-SUM($AE26:AO26)","v":3},{"$f":"ROUNDDOWN(V$10/$F26,0)-SUM($AE26:AP26)","v":2},{"$f":"ROUNDDOWN(W$10/$F26,0)-SUM($AE26:AQ26)","v":2},{"$f":"ROUNDDOWN(X$10/$F26,0)-SUM($AE26:AR26)","v":3},{"$f":"ROUNDDOWN(Y$10/$F26,0)-SUM($AE26:AS26)","v":2},{"$f":"ROUNDDOWN(Z$10/$F26,0)-SUM($AE26:AT26)","v":2},{"$f":"ROUNDDOWN(AA$10/$F26,0)-SUM($AE26:AU26)","v":3},{"$f":"ROUNDDOWN(AB$10/$F26,0)-SUM($AE26:AV26)","v":2},{"$f":"ROUNDDOWN(AC$10/$F26,0)-SUM($AE26:AW26)","v":2}]
[null,15,"CAMBIO DE TOBERAS DE INYECTORES","JGO.",1,120000,213.86666666666667,{"$f":"+H26","v":"Costo de mantenimiento mecánico"},null,{"$f":"+AE27*$E27*$G27*(1+'Sup Generales'!C$10)","v":0},{"$f":"+AF27*$E27*$G27*(1+'Sup Generales'!D$10)","v":222.50345813333334},{"$f":"+AG27*$E27*$G27*(1+'Sup Generales'!E$10)","v":0},{"$f":"+AH27*$E27*$G27*(1+'Sup Generales'!F$10)","v":229.27475457235357},{"$f":"+AI27*$E27*$G27*(1+'Sup Generales'!G$10)","v":0},{"$f":"+AJ27*$E27*$G27*(1+'Sup Generales'!H$10)","v":231.43408484564389},{"$f":"+AK27*$E27*$G27*(1+'Sup Generales'!I$10)","v":235.92650972510393},{"$f":"+AL27*$E27*$G27*(1+'Sup Generales'!J$10)","v":0},{"$f":"+AM27*$E27*$G27*(1+'Sup Generales'!K$10)","v":243.51561316873969},{"$f":"+AN27*$E27*$G27*(1+'Sup Generales'!L$10)","v":0},{"$f":"+AO27*$E27*$G27*(1+'Sup Generales'!M$10)","v":249.99524795661222},{"$f":"+AP27*$E27*$G27*(1+'Sup Generales'!N$10)","v":252.85393866752048},{"$f":"+AQ27*$E27*$G27*(1+'Sup Generales'!O$10)","v":0},{"$f":"+AR27*$E27*$G27*(1+'Sup Generales'!P$10)","v":259.4328102622278},{"$f":"+AS27*$E27*$G27*(1+'Sup Generales'!Q$10)","v":0},{"$f":"+AT27*$E27*$G27*(1+'Sup Generales'!R$10)","v":266.7826986249467},{"$f":"+AU27*$E27*$G27*(1+'Sup Generales'!S$10)","v":0},{"$f":"+AV27*$E27*$G27*(1+'Sup Generales'!T$10)","v":273.88473418737783},{"$f":"+AW27*$E27*$G27*(1+'Sup Generales'!U$10)","v":277.47670133902869},{"$f":"+AX27*$E27*$G27*(1+'Sup Generales'!V$10)","v":0},1.9480445924231512E-3,0,{"$f":"ROUNDDOWN(K$10/$F27,0)-SUM($AE27:AE27)","v":1},{"$f":"ROUNDDOWN(L$10/$F27,0)-SUM($AE27:AF27)","v":0},{"$f":"ROUNDDOWN(M$10/$F27,0)-SUM($AE27:AG27)","v":1},{"$f":"ROUNDDOWN(N$10/$F27,0)-SUM($AE27:AH27)","v":0},{"$f":"ROUNDDOWN(O$10/$F27,0)-SUM($AE27:AI27)","v":1},{"$f":"ROUNDDOWN(P$10/$F27,0)-SUM($AE27:AJ27)","v":1},{"$f":"ROUNDDOWN(Q$10/$F27,0)-SUM($AE27:AK27)","v":0},{"$f":"ROUNDDOWN(R$10/$F27,0)-SUM($AE27:AL27)","v":1},{"$f":"ROUNDDOWN(S$10/$F27,0)-SUM($AE27:AM27)","v":0},{"$f":"ROUNDDOWN(T$10/$F27,0)-SUM($AE27:AN27)","v":1},{"$f":"ROUNDDOWN(U$10/$F27,0)-SUM($AE27:AO27)","v":1},{"$f":"ROUNDDOWN(V$10/$F27,0)-SUM($AE27:AP27)","v":0},{"$f":"ROUNDDOWN(W$10/$F27,0)-SUM($AE27:AQ27)","v":1},{"$f":"ROUNDDOWN(X$10/$F27,0)-SUM($AE27:AR27)","v":0},{"$f":"ROUNDDOWN(Y$10/$F27,0)-SUM($AE27:AS27)","v":1},{"$f":"ROUNDDOWN(Z$10/$F27,0)-SUM($AE27:AT27)","v":0},{"$f":"ROUNDDOWN(AA$10/$F27,0)-SUM($AE27:AU27)","v":1},{"$f":"ROUNDDOWN(AB$10/$F27,0)-SUM($AE27:AV27)","v":1},{"$f":"ROUNDDOWN(AC$10/$F27,0)-SUM($AE27:AW27)","v":0}]
[null,16,"CALIBRACIÓN DE LA BOMBA DE INYECCIÓN","UND",1,150000,296.2,{"$f":"+H27","v":"Costo de mantenimiento mecánico"},null,{"$f":"+AE28*$E28*$G28*(1+'Sup Generales'!C$10)","v":0},{"$f":"+AF28*$E28*$G28*(1+'Sup Generales'!D$10)","v":0},{"$f":"+AG28*$E28*$G28*(1+'Sup Generales'!E$10)","v":316.17394606080001},{"$f":"+AH28*$E28*$G28*(1+'Sup Generales'!F$10)","v":0},{"$f":"+AI28*$E28*$G28*(1+'Sup Generales'!G$10)","v":318.39717501505368},{"$f":"+AJ28*$E28*$G28*(1+'Sup Generales'!H$10)","v":0},{"$f":"+AK28*$E28*$G28*(1+'Sup Generales'!I$10)","v":326.75233251516107},{"$f":"+AL28*$E28*$G28*(1+'Sup Generales'!J$10)","v":0},{"$f":"+AM28*$E28*$G28*(1+'Sup Generales'!K$10)","v":337.26305153014664},{"$f":"+AN28*$E28*$G28*(1+'Sup Generales'!L$10)","v":0},{"$f":"+AO28*$E28*$G28*(1+'Sup Generales'!M$10)","v":346.23718412444765},{"$f":"+AP28*$E28*$G28*(1+'Sup Generales'!N$10)","v":0},{"$f":"+AQ28*$E28*$G28*(1+'Sup Generales'!O$10)","v":354.51234342078197},{"$f":"+AR28*$E28*$G28*(1+'Sup Generales'!P$10)","v":0},{"$f":"+AS28*$E28*$G28*(1+'Sup Generales'!Q$10)","v":364.47511635532351},{"$f":"+AT28*$E28*$G28*(1+'Sup Generales'!R$10)","v":0},{"$f":"+AU28*$E28*$G28*(1+'Sup Generales'!S$10)","v":0},{"$f":"+AV28*$E28*$G28*(1+'Sup Generales'!T$10)","v":379.32352680627173},{"$f":"+AW28*$E28*$G28*(1+'Sup Generales'!U$10)","v":0},{"$f":"+AX28*$E28*$G28*(1+'Sup Generales'!V$10)","v":389.34129808828686},2.224580272928637E-3,0,{"$f":"ROUNDDOWN(K$10/$F28,0)-SUM($AE28:AE28)","v":0},{"$f":"ROUNDDOWN(L$10/$F28,0)-SUM($AE28:AF28)","v":1},{"$f":"ROUNDDOWN(M$10/$F28,0)-SUM($AE28:AG28)","v":0},{"$f":"ROUNDDOWN(N$10/$F28,0)-SUM($AE28:AH28)","v":1},{"$f":"ROUNDDOWN(O$10/$F28,0)-SUM($AE28:AI28)","v":0},{"$f":"ROUNDDOWN(P$10/$F28,0)-SUM($AE28:AJ28)","v":1},{"$f":"ROUNDDOWN(Q$10/$F28,0)-SUM($AE28:AK28)","v":0},{"$f":"ROUNDDOWN(R$10/$F28,0)-SUM($AE28:AL28)","v":1},{"$f":"ROUNDDOWN(S$10/$F28,0)-SUM($AE28:AM28)","v":0},{"$f":"ROUNDDOWN(T$10/$F28,0)-SUM($AE28:AN28)","v":1},{"$f":"ROUNDDOWN(U$10/$F28,0)-SUM($AE28:AO28)","v":0},{"$f":"ROUNDDOWN(V$10/$F28,0)-SUM($AE28:AP28)","v":1},{"$f":"ROUNDDOWN(W$10/$F28,0)-SUM($AE28:AQ28)","v":0},{"$f":"ROUNDDOWN(X$10/$F28,0)-SUM($AE28:AR28)","v":1},{"$f":"ROUNDDOWN(Y$10/$F28,0)-SUM($AE28:AS28)","v":0},{"$f":"ROUNDDOWN(Z$10/$F28,0)-SUM($AE28:AT28)","v":0},{"$f":"ROUNDDOWN(AA$10/$F28,0)-SUM($AE28:AU28)","v":1},{"$f":"ROUNDDOWN(AB$10/$F28,0)-SUM($AE28:AV28)","v":0},{"$f":"ROUNDDOWN(AC$10/$F28,0)-SUM($AE28:AW28)","v":1}]
[null,17,"EMBRAGUE","JGO.",1,60000,728.33333333333337,{"$f":"+H28","v":"Costo de mantenimiento mecánico"},null,{"$f":"+AE29*$E29*$G29*(1+'Sup Generales'!C$10)","v":745.81333333333339},{"$f":"+AF29*$E29*$G29*(1+'Sup Generales'!D$10)","v":757.74634666666668},{"$f":"+AG29*$E29*$G29*(1+'Sup Generales'!E$10)","v":777.44775168000001},{"$f":"+AH29*$E29*$G29*(1+'Sup Generales'!F$10)","v":780.80632596725775},{"$f":"+AI29*$E29*$G29*(1+'Sup Generales'!G$10)","v":782.91450304736929},{"$f":"+AJ29*$E29*$G29*(1+'Sup Generales'!H$10)","v":1576.3200604355734},{"$f":"+AK29*$E29*$G29*(1+'Sup Generales'!I$10)","v":803.45920160435173},{"$f":"+AL29*$E29*$G29*(1+'Sup Generales'!J$10)","v":817.40235726469359},{"$f":"+AM29*$E29*$G29*(1+'Sup Generales'!K$10)","v":829.30426242783074},{"$f":"+AN29*$E29*$G29*(1+'Sup Generales'!L$10)","v":840.40095478569219},{"$f":"+AO29*$E29*$G29*(1+'Sup Generales'!M$10)","v":851.37097379239049},{"$f":"+AP29*$E29*$G29*(1+'Sup Generales'!N$10)","v":1722.2127680440533},{"$f":"+AQ29*$E29*$G29*(1+'Sup Generales'!O$10)","v":871.71896283413082},{"$f":"+AR29*$E29*$G29*(1+'Sup Generales'!P$10)","v":883.51105115799214},{"$f":"+AS29*$E29*$G29*(1+'Sup Generales'!Q$10)","v":896.2166658073171},{"$f":"+AT29*$E29*$G29*(1+'Sup Generales'!R$10)","v":908.54145339075524},{"$f":"+AU29*$E29*$G29*(1+'Sup Generales'!S$10)","v":920.6266735574917},{"$f":"+AV29*$E29*$G29*(1+'Sup Generales'!T$10)","v":1865.4555617188921},{"$f":"+AW29*$E29*$G29*(1+'Sup Generales'!U$10)","v":944.96039966611238},{"$f":"+AX29*$E29*$G29*(1+'Sup Generales'!V$10)","v":957.36072059746436},1.3872106303283361E-2,1,{"$f":"ROUNDDOWN(K$10/$F29,0)-SUM($AE29:AE29)","v":1},{"$f":"ROUNDDOWN(L$10/$F29,0)-SUM($AE29:AF29)","v":1},{"$f":"ROUNDDOWN(M$10/$F29,0)-SUM($AE29:AG29)","v":1},{"$f":"ROUNDDOWN(N$10/$F29,0)-SUM($AE29:AH29)","v":1},{"$f":"ROUNDDOWN(O$10/$F29,0)-SUM($AE29:AI29)","v":2},{"$f":"ROUNDDOWN(P$10/$F29,0)-SUM($AE29:AJ29)","v":1},{"$f":"ROUNDDOWN(Q$10/$F29,0)-SUM($AE29:AK29)","v":1},{"$f":"ROUNDDOWN(R$10/$F29,0)-SUM($AE29:AL29)","v":1},{"$f":"ROUNDDOWN(S$10/$F29,0)-SUM($AE29:AM29)","v":1},{"$f":"ROUNDDOWN(T$10/$F29,0)-SUM($AE29:AN29)","v":1},{"$f":"ROUNDDOWN(U$10/$F29,0)-SUM($AE29:AO29)","v":2},{"$f":"ROUNDDOWN(V$10/$F29,0)-SUM($AE29:AP29)","v":1},{"$f":"ROUNDDOWN(W$10/$F29,0)-SUM($AE29:AQ29)","v":1},{"$f":"ROUNDDOWN(X$10/$F29,0)-SUM($AE29:AR29)","v":1},{"$f":"ROUNDDOWN(Y$10/$F29,0)-SUM($AE29:AS29)","v":1},{"$f":"ROUNDDOWN(Z$10/$F29,0)-SUM($AE29:AT29)","v":1},{"$f":"ROUNDDOWN(AA$10/$F29,0)-SUM($AE29:AU29)","v":2},{"$f":"ROUNDDOWN(AB$10/$F29,0)-SUM($AE29:AV29)","v":1},{"$f":"ROUNDDOWN(AC$10/$F29,0)-SUM($AE29:AW29)","v":1}]
[null,18,"BUSTER EMBRAGUE","JGO.",1,30000,175,"Costo de mantenimiento mecánico",null,{"$f":"+AE30*$E30*$G30*(1+'Sup Generales'!C$10)","v":358.40000000000003},{"$f":"+AF30*$E30*$G30*(1+'Sup Generales'!D$10)","v":364.13439999999997},{"$f":"+AG30*$E30*$G30*(1+'Sup Generales'!E$10)","v":560.40284159999999},{"$f":"+AH30*$E30*$G30*(1+'Sup Generales'!F$10)","v":375.21585458380804},{"$f":"+AI30*$E30*$G30*(1+'Sup Generales'!G$10)","v":376.22893739118433},{"$f":"+AJ30*$E30*$G30*(1+'Sup Generales'!H$10)","v":568.12450690755782},{"$f":"+AK30*$E30*$G30*(1+'Sup Generales'!I$10)","v":386.10167582817814},{"$f":"+AL30*$E30*$G30*(1+'Sup Generales'!J$10)","v":392.80204811346829},{"$f":"+AM30*$E30*$G30*(1+'Sup Generales'!K$10)","v":597.78224866079336},{"$f":"+AN30*$E30*$G30*(1+'Sup Generales'!L$10)","v":403.85400573225479},{"$f":"+AO30*$E30*$G30*(1+'Sup Generales'!M$10)","v":409.12563957986725},{"$f":"+AP30*$E30*$G30*(1+'Sup Generales'!N$10)","v":620.70597475271938},{"$f":"+AQ30*$E30*$G30*(1+'Sup Generales'!O$10)","v":418.9038494168592},{"$f":"+AR30*$E30*$G30*(1+'Sup Generales'!P$10)","v":424.57052801642641},{"$f":"+AS30*$E30*$G30*(1+'Sup Generales'!Q$10)","v":646.0143014400569},{"$f":"+AT30*$E30*$G30*(1+'Sup Generales'!R$10)","v":436.59886776214779},{"$f":"+AU30*$E30*$G30*(1+'Sup Generales'!S$10)","v":442.40641063403484},{"$f":"+AV30*$E30*$G30*(1+'Sup Generales'!T$10)","v":672.33238208403998},{"$f":"+AW30*$E30*$G30*(1+'Sup Generales'!U$10)","v":454.09996322627819},{"$f":"+AX30*$E30*$G30*(1+'Sup Generales'!V$10)","v":460.05892751823228},6.6527450524443256E-3,2,{"$f":"ROUNDDOWN(K$10/$F30,0)-SUM($AE30:AE30)","v":2},{"$f":"ROUNDDOWN(L$10/$F30,0)-SUM($AE30:AF30)","v":3},{"$f":"ROUNDDOWN(M$10/$F30,0)-SUM($AE30:AG30)","v":2},{"$f":"ROUNDDOWN(N$10/$F30,0)-SUM($AE30:AH30)","v":2},{"$f":"ROUNDDOWN(O$10/$F30,0)-SUM($AE30:AI30)","v":3},{"$f":"ROUNDDOWN(P$10/$F30,0)-SUM($AE30:AJ30)","v":2},{"$f":"ROUNDDOWN(Q$10/$F30,0)-SUM($AE30:AK30)","v":2},{"$f":"ROUNDDOWN(R$10/$F30,0)-SUM($AE30:AL30)","v":3},{"$f":"ROUNDDOWN(S$10/$F30,0)-SUM($AE30:AM30)","v":2},{"$f":"ROUNDDOWN(T$10/$F30,0)-SUM($AE30:AN30)","v":2},{"$f":"ROUNDDOWN(U$10/$F30,0)-SUM($AE30:AO30)","v":3},{"$f":"ROUNDDOWN(V$10/$F30,0)-SUM($AE30:AP30)","v":2},{"$f":"ROUNDDOWN(W$10/$F30,0)-SUM($AE30:AQ30)","v":2},{"$f":"ROUNDDOWN(X$10/$F30,0)-SUM($AE30:AR30)","v":3},{"$f":"ROUNDDOWN(Y$10/$F30,0)-SUM($AE30:AS30)","v":2},{"$f":"ROUNDDOWN(Z$10/$F30,0)-SUM($AE30:AT30)","v":2},{"$f":"ROUNDDOWN(AA$10/$F30,0)-SUM($AE30:AU30)","v":3},{"$f":"ROUNDDOWN(AB$10/$F30,0)-SUM($AE30:AV30)","v":2},{"$f":"ROUNDDOWN(AC$10/$F30,0)-SUM($AE30:AW30)","v":2}]
[null,19,"SOPORTE DE CARDAN Y CRUCETAS","JGO.",1,30000,176.506,"Costo de mantenimiento mecánico",null,{"$f":"+AE31*$E31*$G31*(1+'Sup Generales'!C$10)","v":361.48428799999999},{"$f":"+AF31*$E31*$G31*(1+'Sup Generales'!D$10)","v":367.26803660799999},{"$f":"+AG31*$E31*$G31*(1+'Sup Generales'!E$10)","v":565.22550833971206},{"$f":"+AH31*$E31*$G31*(1+'Sup Generales'!F$10)","v":378.44485502382645},{"$f":"+AI31*$E31*$G31*(1+'Sup Generales'!G$10)","v":379.46665613239077},{"$f":"+AJ31*$E31*$G31*(1+'Sup Generales'!H$10)","v":573.01362409271667},{"$f":"+AK31*$E31*$G31*(1+'Sup Generales'!I$10)","v":389.42435653559096},{"$f":"+AL31*$E31*$G31*(1+'Sup Generales'!J$10)","v":396.18239031037621},{"$f":"+AM31*$E31*$G31*(1+'Sup Generales'!K$10)","v":602.9265918978399},{"$f":"+AN31*$E31*$G31*(1+'Sup Generales'!L$10)","v":407.32945791872783},{"$f":"+AO31*$E31*$G31*(1+'Sup Generales'!M$10)","v":412.64645794105172},{"$f":"+AP31*$E31*$G31*(1+'Sup Generales'!N$10)","v":626.04759302687717},{"$f":"+AQ31*$E31*$G31*(1+'Sup Generales'!O$10)","v":422.50881625812656},{"$f":"+AR31*$E31*$G31*(1+'Sup Generales'!P$10)","v":428.22426067467063},{"$f":"+AS31*$E31*$G31*(1+'Sup Generales'!Q$10)","v":651.57371594273536},{"$f":"+AT31*$E31*$G31*(1+'Sup Generales'!R$10)","v":440.35611287557521},{"$f":"+AU31*$E31*$G31*(1+'Sup Generales'!S$10)","v":446.21363380211977},{"$f":"+AV31*$E31*$G31*(1+'Sup Generales'!T$10)","v":678.11828246928906},{"$f":"+AW31*$E31*$G31*(1+'Sup Generales'!U$10)","v":458.00781776695692},{"$f":"+AX31*$E31*$G31*(1+'Sup Generales'!V$10)","v":464.01806320304632},6.7099966755813627E-3,2,{"$f":"ROUNDDOWN(K$10/$F31,0)-SUM($AE31:AE31)","v":2},{"$f":"ROUNDDOWN(L$10/$F31,0)-SUM($AE31:AF31)","v":3},{"$f":"ROUNDDOWN(M$10/$F31,0)-SUM($AE31:AG31)","v":2},{"$f":"ROUNDDOWN(N$10/$F31,0)-SUM($AE31:AH31)","v":2},{"$f":"ROUNDDOWN(O$10/$F31,0)-SUM($AE31:AI31)","v":3},{"$f":"ROUNDDOWN(P$10/$F31,0)-SUM($AE31:AJ31)","v":2},{"$f":"ROUNDDOWN(Q$10/$F31,0)-SUM($AE31:AK31)","v":2},{"$f":"ROUNDDOWN(R$10/$F31,0)-SUM($AE31:AL31)","v":3},{"$f":"ROUNDDOWN(S$10/$F31,0)-SUM($AE31:AM31)","v":2},{"$f":"ROUNDDOWN(T$10/$F31,0)-SUM($AE31:AN31)","v":2},{"$f":"ROUNDDOWN(U$10/$F31,0)-SUM($AE31:AO31)","v":3},{"$f":"ROUNDDOWN(V$10/$F31,0)-SUM($AE31:AP31)","v":2},{"$f":"ROUNDDOWN(W$10/$F31,0)-SUM($AE31:AQ31)","v":2},{"$f":"ROUNDDOWN(X$10/$F31,0)-SUM($AE31:AR31)","v":3},{"$f":"ROUNDDOWN(Y$10/$F31,0)-SUM($AE31:AS31)","v":2},{"$f":"ROUNDDOWN(Z$10/$F31,0)-SUM($AE31:AT31)","v":2},{"$f":"ROUNDDOWN(AA$10/$F31,0)-SUM($AE31:AU31)","v":3},{"$f":"ROUNDDOWN(AB$10/$F31,0)-SUM($AE31:AV31)","v":2},{"$f":"ROUNDDOWN(AC$10/$F31,0)-SUM($AE31:AW31)","v":2}]
[null,20,"MANTENIMIENTO SISTEMA NEUMÁTICO","UND",1,30000,137.75,"Costo de mantenimiento mecánico",null,{"$f":"+AE32*$E32*$G32*(1+'Sup Generales'!C$10)","v":282.11200000000002},{"$f":"+AF32*$E32*$G32*(1+'Sup Generales'!D$10)","v":286.62579199999999},{"$f":"+AG32*$E32*$G32*(1+'Sup Generales'!E$10)","v":441.117093888},{"$f":"+AH32*$E32*$G32*(1+'Sup Generales'!F$10)","v":295.34847982239751},{"$f":"+AI32*$E32*$G32*(1+'Sup Generales'!G$10)","v":296.14592071791793},{"$f":"+AJ32*$E32*$G32*(1+'Sup Generales'!H$10)","v":447.19514758009194},{"$f":"+AK32*$E32*$G32*(1+'Sup Generales'!I$10)","v":303.91717625903738},{"$f":"+AL32*$E32*$G32*(1+'Sup Generales'!J$10)","v":309.1913264436015},{"$f":"+AM32*$E32*$G32*(1+'Sup Generales'!K$10)","v":470.54002716013872},{"$f":"+AN32*$E32*$G32*(1+'Sup Generales'!L$10)","v":317.89079594067488},{"$f":"+AO32*$E32*$G32*(1+'Sup Generales'!M$10)","v":322.04032486929549},{"$f":"+AP32*$E32*$G32*(1+'Sup Generales'!N$10)","v":488.58427441249768},{"$f":"+AQ32*$E32*$G32*(1+'Sup Generales'!O$10)","v":329.73717289812771},{"$f":"+AR32*$E32*$G32*(1+'Sup Generales'!P$10)","v":334.19765848150132},{"$f":"+AS32*$E32*$G32*(1+'Sup Generales'!Q$10)","v":508.50554299067335},{"$f":"+AT32*$E32*$G32*(1+'Sup Generales'!R$10)","v":343.66568019563351},{"$f":"+AU32*$E32*$G32*(1+'Sup Generales'!S$10)","v":348.23704608479028},{"$f":"+AV32*$E32*$G32*(1+'Sup Generales'!T$10)","v":529.22163218329433},{"$f":"+AW32*$E32*$G32*(1+'Sup Generales'!U$10)","v":357.44154248239897},{"$f":"+AX32*$E32*$G32*(1+'Sup Generales'!V$10)","v":362.13209866078},5.2366607484240334E-3,2,{"$f":"ROUNDDOWN(K$10/$F32,0)-SUM($AE32:AE32)","v":2},{"$f":"ROUNDDOWN(L$10/$F32,0)-SUM($AE32:AF32)","v":3},{"$f":"ROUNDDOWN(M$10/$F32,0)-SUM($AE32:AG32)","v":2},{"$f":"ROUNDDOWN(N$10/$F32,0)-SUM($AE32:AH32)","v":2},{"$f":"ROUNDDOWN(O$10/$F32,0)-SUM($AE32:AI32)","v":3},{"$f":"ROUNDDOWN(P$10/$F32,0)-SUM($AE32:AJ32)","v":2},{"$f":"ROUNDDOWN(Q$10/$F32,0)-SUM($AE32:AK32)","v":2},{"$f":"ROUNDDOWN(R$10/$F32,0)-SUM($AE32:AL32)","v":3},{"$f":"ROUNDDOWN(S$10/$F32,0)-SUM($AE32:AM32)","v":2},{"$f":"ROUNDDOWN(T$10/$F32,0)-SUM($AE32:AN32)","v":2},{"$f":"ROUNDDOWN(U$10/$F32,0)-SUM($AE32:AO32)","v":3},{"$f":"ROUNDDOWN(V$10/$F32,0)-SUM($AE32:AP32)","v":2},{"$f":"ROUNDDOWN(W$10/$F32,0)-SUM($AE32:AQ32)","v":2},{"$f":"ROUNDDOWN(X$10/$F32,0)-SUM($AE32:AR32)","v":3},{"$f":"ROUNDDOWN(Y$10/$F32,0)-SUM($AE32:AS32)","v":2},{"$f":"ROUNDDOWN(Z$10/$F32,0)-SUM($AE32:AT32)","v":2},{"$f":"ROUNDDOWN(AA$10/$F32,0)-SUM($AE32:AU32)","v":3},{"$f":"ROUNDDOWN(AB$10/$F32,0)-SUM($AE32:AV32)","v":2},{"$f":"ROUNDDOWN(AC$10/$F32,0)-SUM($AE32:AW32)","v":2}]
[null,21,"ZAPATAS (JUEGO FORROS 2) X 4","JGO.",2,20000,74.131666666666675,"Costo de mantenimiento mecánico",null,{"$f":"+AE33*$E33*$G33*(1+'Sup Generales'!C$10)","v":455.46496000000008},{"$f":"+AF33*$E33*$G33*(1+'Sup Generales'!D$10)","v":617.0031991466667},{"$f":"+AG33*$E33*$G33*(1+'Sup Generales'!E$10)","v":474.78396174336007},{"$f":"+AH33*$E33*$G33*(1+'Sup Generales'!F$10)","v":635.78003794412189},{"$f":"+AI33*$E33*$G33*(1+'Sup Generales'!G$10)","v":478.12248303492828},{"$f":"+AJ33*$E33*$G33*(1+'Sup Generales'!H$10)","v":641.76787156168302},{"$f":"+AK33*$E33*$G33*(1+'Sup Generales'!I$10)","v":490.66904111890113},{"$f":"+AL33*$E33*$G33*(1+'Sup Generales'!J$10)","v":665.578754211008},{"$f":"+AM33*$E33*$G33*(1+'Sup Generales'!K$10)","v":506.45250739397011},{"$f":"+AN33*$E33*$G33*(1+'Sup Generales'!L$10)","v":684.30561222723668},{"$f":"+AO33*$E33*$G33*(1+'Sup Generales'!M$10)","v":519.92855208208334},{"$f":"+AP33*$E33*$G33*(1+'Sup Generales'!N$10)","v":701.16523304193549},{"$f":"+AQ33*$E33*$G33*(1+'Sup Generales'!O$10)","v":532.35498052035666},{"$f":"+AR33*$E33*$G33*(1+'Sup Generales'!P$10)","v":719.4084767863859},{"$f":"+AS33*$E33*$G33*(1+'Sup Generales'!Q$10)","v":547.31562121432944},{"$f":"+AT33*$E33*$G33*(1+'Sup Generales'!R$10)","v":739.78975387400283},{"$f":"+AU33*$E33*$G33*(1+'Sup Generales'!S$10)","v":562.22270681689258},{"$f":"+AV33*$E33*$G33*(1+'Sup Generales'!T$10)","v":759.48373391024813},{"$f":"+AW33*$E33*$G33*(1+'Sup Generales'!U$10)","v":577.08320755261809},{"$f":"+AX33*$E33*$G33*(1+'Sup Generales'!V$10)","v":779.54137284127455},8.5846533441908384E-3,3,{"$f":"ROUNDDOWN(K$10/$F33,0)-SUM($AE33:AE33)","v":4},{"$f":"ROUNDDOWN(L$10/$F33,0)-SUM($AE33:AF33)","v":3},{"$f":"ROUNDDOWN(M$10/$F33,0)-SUM($AE33:AG33)","v":4},{"$f":"ROUNDDOWN(N$10/$F33,0)-SUM($AE33:AH33)","v":3},{"$f":"ROUNDDOWN(O$10/$F33,0)-SUM($AE33:AI33)","v":4},{"$f":"ROUNDDOWN(P$10/$F33,0)-SUM($AE33:AJ33)","v":3},{"$f":"ROUNDDOWN(Q$10/$F33,0)-SUM($AE33:AK33)","v":4},{"$f":"ROUNDDOWN(R$10/$F33,0)-SUM($AE33:AL33)","v":3},{"$f":"ROUNDDOWN(S$10/$F33,0)-SUM($AE33:AM33)","v":4},{"$f":"ROUNDDOWN(T$10/$F33,0)-SUM($AE33:AN33)","v":3},{"$f":"ROUNDDOWN(U$10/$F33,0)-SUM($AE33:AO33)","v":4},{"$f":"ROUNDDOWN(V$10/$F33,0)-SUM($AE33:AP33)","v":3},{"$f":"ROUNDDOWN(W$10/$F33,0)-SUM($AE33:AQ33)","v":4},{"$f":"ROUNDDOWN(X$10/$F33,0)-SUM($AE33:AR33)","v":3},{"$f":"ROUNDDOWN(Y$10/$F33,0)-SUM($AE33:AS33)","v":4},{"$f":"ROUNDDOWN(Z$10/$F33,0)-SUM($AE33:AT33)","v":3},{"$f":"ROUNDDOWN(AA$10/$F33,0)-SUM($AE33:AU33)","v":4},{"$f":"ROUNDDOWN(AB$10/$F33,0)-SUM($AE33:AV33)","v":3},{"$f":"ROUNDDOWN(AC$10/$F33,0)-SUM($AE33:AW33)","v":4}]
[null,22,"CAMBIO TAMBORES (JUEGO)","UND",4,180000,151.96125000000001,"Costo de mantenimiento mecánico",null,{"$f":"+AE34*$E34*$G34*(1+'Sup Generales'!C$10)","v":0},{"$f":"+AF34*$E34*$G34*(1+'Sup Generales'!D$10)","v":0},{"$f":"+AG34*$E34*$G34*(1+'Sup Generales'!E$10)","v":648.83441000447999},{"$f":"+AH34*$E34*$G34*(1+'Sup Generales'!F$10)","v":0},{"$f":"+AI34*$E34*$G34*(1+'Sup Generales'!G$10)","v":0},{"$f":"+AJ34*$E34*$G34*(1+'Sup Generales'!H$10)","v":657.77455409757056},{"$f":"+AK34*$E34*$G34*(1+'Sup Generales'!I$10)","v":0},{"$f":"+AL34*$E34*$G34*(1+'Sup Generales'!J$10)","v":682.17931695866048},{"$f":"+AM34*$E34*$G34*(1+'Sup Generales'!K$10)","v":0},{"$f":"+AN34*$E34*$G34*(1+'Sup Generales'!L$10)","v":0},{"$f":"+AO34*$E34*$G34*(1+'Sup Generales'!M$10)","v":710.52849825835551},{"$f":"+AP34*$E34*$G34*(1+'Sup Generales'!N$10)","v":0},{"$f":"+AQ34*$E34*$G34*(1+'Sup Generales'!O$10)","v":727.5103152822594},{"$f":"+AR34*$E34*$G34*(1+'Sup Generales'!P$10)","v":0},{"$f":"+AS34*$E34*$G34*(1+'Sup Generales'!Q$10)","v":0},{"$f":"+AT34*$E34*$G34*(1+'Sup Generales'!R$10)","v":758.24125364252211},{"$f":"+AU34*$E34*$G34*(1+'Sup Generales'!S$10)","v":0},{"$f":"+AV34*$E34*$G34*(1+'Sup Generales'!T$10)","v":778.42643197690154},{"$f":"+AW34*$E34*$G34*(1+'Sup Generales'!U$10)","v":0},{"$f":"+AX34*$E34*$G34*(1+'Sup Generales'!V$10)","v":0},3.5249089425764485E-3,0,{"$f":"ROUNDDOWN(K$10/$F34,0)-SUM($AE34:AE34)","v":0},{"$f":"ROUNDDOWN(L$10/$F34,0)-SUM($AE34:AF34)","v":1},{"$f":"ROUNDDOWN(M$10/$F34,0)-SUM($AE34:AG34)","v":0},{"$f":"ROUNDDOWN(N$10/$F34,0)-SUM($AE34:AH34)","v":0},{"$f":"ROUNDDOWN(O$10/$F34,0)-SUM($AE34:AI34)","v":1},{"$f":"ROUNDDOWN(P$10/$F34,0)-SUM($AE34:AJ34)","v":0},{"$f":"ROUNDDOWN(Q$10/$F34,0)-SUM($AE34:AK34)","v":1},{"$f":"ROUNDDOWN(R$10/$F34,0)-SUM($AE34:AL34)","v":0},{"$f":"ROUNDDOWN(S$10/$F34,0)-SUM($AE34:AM34)","v":0},{"$f":"ROUNDDOWN(T$10/$F34,0)-SUM($AE34:AN34)","v":1},{"$f":"ROUNDDOWN(U$10/$F34,0)-SUM($AE34:AO34)","v":0},{"$f":"ROUNDDOWN(V$10/$F34,0)-SUM($AE34:AP34)","v":1},{"$f":"ROUNDDOWN(W$10/$F34,0)-SUM($AE34:AQ34)","v":0},{"$f":"ROUNDDOWN(X$10/$F34,0)-SUM($AE34:AR34)","v":0},{"$f":"ROUNDDOWN(Y$10/$F34,0)-SUM($AE34:AS34)","v":1},{"$f":"ROUNDDOWN(Z$10/$F34,0)-SUM($AE34:AT34)","v":0},{"$f":"ROUNDDOWN(AA$10/$F34,0)-SUM($AE34:AU34)","v":1},{"$f":"ROUNDDOWN(AB$10/$F34,0)-SUM($AE34:AV34)","v":0},{"$f":"ROUNDDOWN(AC$10/$F34,0)-SUM($AE34:AW34)","v":0}]
[null,23,"RACHES DE FRENO","JGO.",4,180000,90.822000000000003,"Costo de mantenimiento mecánico",null,{"$f":"+AE35*$E35*$G35*(1+'Sup Generales'!C$10)","v":0},{"$f":"+AF35*$E35*$G35*(1+'Sup Generales'!D$10)","v":0},{"$f":"+AG35*$E35*$G35*(1+'Sup Generales'!E$10)","v":387.78595717939203},{"$f":"+AH35*$E35*$G35*(1+'Sup Generales'!F$10)","v":0},{"$f":"+AI35*$E35*$G35*(1+'Sup Generales'!G$10)","v":0},{"$f":"+AJ35*$E35*$G35*(1+'Sup Generales'!H$10)","v":393.12917307701503},{"$f":"+AK35*$E35*$G35*(1+'Sup Generales'!I$10)","v":0},{"$f":"+AL35*$E35*$G35*(1+'Sup Generales'!J$10)","v":407.71505844298764},{"$f":"+AM35*$E35*$G35*(1+'Sup Generales'!K$10)","v":0},{"$f":"+AN35*$E35*$G35*(1+'Sup Generales'!L$10)","v":0},{"$f":"+AO35*$E35*$G35*(1+'Sup Generales'!M$10)","v":424.65838671911661},{"$f":"+AP35*$E35*$G35*(1+'Sup Generales'!N$10)","v":0},{"$f":"+AQ35*$E35*$G35*(1+'Sup Generales'!O$10)","v":434.80783327700556},{"$f":"+AR35*$E35*$G35*(1+'Sup Generales'!P$10)","v":0},{"$f":"+AS35*$E35*$G35*(1+'Sup Generales'!Q$10)","v":0},{"$f":"+AT35*$E35*$G35*(1+'Sup Generales'!R$10)","v":453.17465563307189},{"$f":"+AU35*$E35*$G35*(1+'Sup Generales'!S$10)","v":0},{"$f":"+AV35*$E35*$G35*(1+'Sup Generales'!T$10)","v":465.23864080485095},{"$f":"+AW35*$E35*$G35*(1+'Sup Generales'!U$10)","v":0},{"$f":"+AX35*$E35*$G35*(1+'Sup Generales'!V$10)","v":0},2.1067165476901396E-3,0,{"$f":"ROUNDDOWN(K$10/$F35,0)-SUM($AE35:AE35)","v":0},{"$f":"ROUNDDOWN(L$10/$F35,0)-SUM($AE35:AF35)","v":1},{"$f":"ROUNDDOWN(M$10/$F35,0)-SUM($AE35:AG35)","v":0},{"$f":"ROUNDDOWN(N$10/$F35,0)-SUM($AE35:AH35)","v":0},{"$f":"ROUNDDOWN(O$10/$F35,0)-SUM($AE35:AI35)","v":1},{"$f":"ROUNDDOWN(P$10/$F35,0)-SUM($AE35:AJ35)","v":0},{"$f":"ROUNDDOWN(Q$10/$F35,0)-SUM($AE35:AK35)","v":1},{"$f":"ROUNDDOWN(R$10/$F35,0)-SUM($AE35:AL35)","v":0},{"$f":"ROUNDDOWN(S$10/$F35,0)-SUM($AE35:AM35)","v":0},{"$f":"ROUNDDOWN(T$10/$F35,0)-SUM($AE35:AN35)","v":1},{"$f":"ROUNDDOWN(U$10/$F35,0)-SUM($AE35:AO35)","v":0},{"$f":"ROUNDDOWN(V$10/$F35,0)-SUM($AE35:AP35)","v":1},{"$f":"ROUNDDOWN(W$10/$F35,0)-SUM($AE35:AQ35)","v":0},{"$f":"ROUNDDOWN(X$10/$F35,0)-SUM($AE35:AR35)","v":0},{"$f":"ROUNDDOWN(Y$10/$F35,0)-SUM($AE35:AS35)","v":1},{"$f":"ROUNDDOWN(Z$10/$F35,0)-SUM($AE35:AT35)","v":0},{"$f":"ROUNDDOWN(AA$10/$F35,0)-SUM($AE35:AU35)","v":1},{"$f":"ROUNDDOWN(AB$10/$F35,0)-SUM($AE35:AV35)","v":0},{"$f":"ROUNDDOWN(AC$10/$F35,0)-SUM($AE35:AW35)","v":0}]
[null,24,"BATERÍAS","UND",2,60000,195.05857142857141,{"$f":"+H37","v":"Costo de mantenimiento eléctrico "},null,{"$f":"+AE36*$E36*$G36*(1+'Sup Generales'!C$10)","v":399.47995428571426},{"$f":"+AF36*$E36*$G36*(1+'Sup Generales'!D$10)","v":405.87163355428567},{"$f":"+AG36*$E36*$G36*(1+'Sup Generales'!E$10)","v":416.42429602669711},{"$f":"+AH36*$E36*$G36*(1+'Sup Generales'!F$10)","v":418.22324898553251},{"$f":"+AI36*$E36*$G36*(1+'Sup Generales'!G$10)","v":419.3524517577934},{"$f":"+AJ36*$E36*$G36*(1+'Sup Generales'!H$10)","v":844.32422636914123},{"$f":"+AK36*$E36*$G36*(1+'Sup Generales'!I$10)","v":430.35680750412467},{"$f":"+AL36*$E36*$G36*(1+'Sup Generales'!J$10)","v":437.82517919560058},{"$f":"+AM36*$E36*$G36*(1+'Sup Generales'!K$10)","v":444.20019599669865},{"$f":"+AN36*$E36*$G36*(1+'Sup Generales'!L$10)","v":450.14391670765548},{"$f":"+AO36*$E36*$G36*(1+'Sup Generales'!M$10)","v":456.01978737856854},{"$f":"+AP36*$E36*$G36*(1+'Sup Generales'!N$10)","v":922.46872923767125},{"$f":"+AQ36*$E36*$G36*(1+'Sup Generales'!O$10)","v":466.91877961818255},{"$f":"+AR36*$E36*$G36*(1+'Sup Generales'!P$10)","v":473.23497523176218},{"$f":"+AS36*$E36*$G36*(1+'Sup Generales'!Q$10)","v":480.04048290028192},{"$f":"+AT36*$E36*$G36*(1+'Sup Generales'!R$10)","v":486.64200818866465},{"$f":"+AU36*$E36*$G36*(1+'Sup Generales'!S$10)","v":493.11521399495308},{"$f":"+AV36*$E36*$G36*(1+'Sup Generales'!T$10)","v":999.19385885319082},{"$f":"+AW36*$E36*$G36*(1+'Sup Generales'!U$10)","v":506.14908635819796},{"$f":"+AX36*$E36*$G36*(1+'Sup Generales'!V$10)","v":512.79106956952614},7.4303155283031563E-3,1,{"$f":"ROUNDDOWN(K$10/$F36,0)-SUM($AE36:AE36)","v":1},{"$f":"ROUNDDOWN(L$10/$F36,0)-SUM($AE36:AF36)","v":1},{"$f":"ROUNDDOWN(M$10/$F36,0)-SUM($AE36:AG36)","v":1},{"$f":"ROUNDDOWN(N$10/$F36,0)-SUM($AE36:AH36)","v":1},{"$f":"ROUNDDOWN(O$10/$F36,0)-SUM($AE36:AI36)","v":2},{"$f":"ROUNDDOWN(P$10/$F36,0)-SUM($AE36:AJ36)","v":1},{"$f":"ROUNDDOWN(Q$10/$F36,0)-SUM($AE36:AK36)","v":1},{"$f":"ROUNDDOWN(R$10/$F36,0)-SUM($AE36:AL36)","v":1},{"$f":"ROUNDDOWN(S$10/$F36,0)-SUM($AE36:AM36)","v":1},{"$f":"ROUNDDOWN(T$10/$F36,0)-SUM($AE36:AN36)","v":1},{"$f":"ROUNDDOWN(U$10/$F36,0)-SUM($AE36:AO36)","v":2},{"$f":"ROUNDDOWN(V$10/$F36,0)-SUM($AE36:AP36)","v":1},{"$f":"ROUNDDOWN(W$10/$F36,0)-SUM($AE36:AQ36)","v":1},{"$f":"ROUNDDOWN(X$10/$F36,0)-SUM($AE36:AR36)","v":1},{"$f":"ROUNDDOWN(Y$10/$F36,0)-SUM($AE36:AS36)","v":1},{"$f":"ROUNDDOWN(Z$10/$F36,0)-SUM($AE36:AT36)","v":1},{"$f":"ROUNDDOWN(AA$10/$F36,0)-SUM($AE36:AU36)","v":2},{"$f":"ROUNDDOWN(AB$10/$F36,0)-SUM($AE36:AV36)","v":1},{"$f":"ROUNDDOWN(AC$10/$F36,0)-SUM($AE36:AW36)","v":1}]
[null,25,"SISTEMA ELÉCTRICO","UND",1,5000,153.125,{"$f":"+'OPEX Mtto'!B9","v":"Costo de mantenimiento eléctrico "},null,{"$f":"+AE37*$E37*$G37*(1+'Sup Generales'!C$10)","v":2195.2000000000003},{"$f":"+AF37*$E37*$G37*(1+'Sup Generales'!D$10)","v":2230.3231999999998},{"$f":"+AG37*$E37*$G37*(1+'Sup Generales'!E$10)","v":2288.3116031999998},{"$f":"+AH37*$E37*$G37*(1+'Sup Generales'!F$10)","v":2298.1971093258244},{"$f":"+AI37*$E37*$G37*(1+'Sup Generales'!G$10)","v":2304.4022415210038},{"$f":"+AJ37*$E37*$G37*(1+'Sup Generales'!H$10)","v":2319.8417365391947},{"$f":"+AK37*$E37*$G37*(1+'Sup Generales'!I$10)","v":2364.8727644475912},{"$f":"+AL37*$E37*$G37*(1+'Sup Generales'!J$10)","v":2405.9125446949934},{"$f":"+AM37*$E37*$G37*(1+'Sup Generales'!K$10)","v":2440.9441820315728},{"$f":"+AN37*$E37*$G37*(1+'Sup Generales'!L$10)","v":2473.6057851100609},{"$f":"+AO37*$E37*$G37*(1+'Sup Generales'!M$10)","v":2505.8945424266867},{"$f":"+AP37*$E37*$G37*(1+'Sup Generales'!N$10)","v":2534.5493969069375},{"$f":"+AQ37*$E37*$G37*(1+'Sup Generales'!O$10)","v":2749.0565117981382},{"$f":"+AR37*$E37*$G37*(1+'Sup Generales'!P$10)","v":2600.4944841006118},{"$f":"+AS37*$E37*$G37*(1+'Sup Generales'!Q$10)","v":2637.8917308802324},{"$f":"+AT37*$E37*$G37*(1+'Sup Generales'!R$10)","v":2674.1680650431554},{"$f":"+AU37*$E37*$G37*(1+'Sup Generales'!S$10)","v":2709.7392651334635},{"$f":"+AV37*$E37*$G37*(1+'Sup Generales'!T$10)","v":2745.3572268431635},{"$f":"+AW37*$E37*$G37*(1+'Sup Generales'!U$10)","v":2781.3622747609543},{"$f":"+AX37*$E37*$G37*(1+'Sup Generales'!V$10)","v":2817.8609310491729},3.5563720134514643E-2,14,{"$f":"ROUNDDOWN(K$10/$F37,0)-SUM($AE37:AE37)","v":14},{"$f":"ROUNDDOWN(L$10/$F37,0)-SUM($AE37:AF37)","v":14},{"$f":"ROUNDDOWN(M$10/$F37,0)-SUM($AE37:AG37)","v":14},{"$f":"ROUNDDOWN(N$10/$F37,0)-SUM($AE37:AH37)","v":14},{"$f":"ROUNDDOWN(O$10/$F37,0)-SUM($AE37:AI37)","v":14},{"$f":"ROUNDDOWN(P$10/$F37,0)-SUM($AE37:AJ37)","v":14},{"$f":"ROUNDDOWN(Q$10/$F37,0)-SUM($AE37:AK37)","v":14},{"$f":"ROUNDDOWN(R$10/$F37,0)-SUM($AE37:AL37)","v":14},{"$f":"ROUNDDOWN(S$10/$F37,0)-SUM($AE37:AM37)","v":14},{"$f":"ROUNDDOWN(T$10/$F37,0)-SUM($AE37:AN37)","v":14},{"$f":"ROUNDDOWN(U$10/$F37,0)-SUM($AE37:AO37)","v":14},{"$f":"ROUNDDOWN(V$10/$F37,0)-SUM($AE37:AP37)","v":15},{"$f":"ROUNDDOWN(W$10/$F37,0)-SUM($AE37:AQ37)","v":14},{"$f":"ROUNDDOWN(X$10/$F37,0)-SUM($AE37:AR37)","v":14},{"$f":"ROUNDDOWN(Y$10/$F37,0)-SUM($AE37:AS37)","v":14},{"$f":"ROUNDDOWN(Z$10/$F37,0)-SUM($AE37:AT37)","v":14},{"$f":"ROUNDDOWN(AA$10/$F37,0)-SUM($AE37:AU37)","v":14},{"$f":"ROUNDDOWN(AB$10/$F37,0)-SUM($AE37:AV37)","v":14},{"$f":"ROUNDDOWN(AC$10/$F37,0)-SUM($AE37:AW37)","v":14}]
[null,26,"AMORTIGUADORES","UND",4,60000,96.795000000000002,{"$f":"+H34","v":"Costo de mantenimiento mecánico"},null,{"$f":"+AE38*$E38*$G38*(1+'Sup Generales'!C$10)","v":396.47232000000002},{"$f":"+AF38*$E38*$G38*(1+'Sup Generales'!D$10)","v":402.81587711999998},{"$f":"+AG38*$E38*$G38*(1+'Sup Generales'!E$10)","v":413.28908992511998},{"$f":"+AH38*$E38*$G38*(1+'Sup Generales'!F$10)","v":415.0744987935966},{"$f":"+AI38*$E38*$G38*(1+'Sup Generales'!G$10)","v":416.19519994033931},{"$f":"+AJ38*$E38*$G38*(1+'Sup Generales'!H$10)","v":837.9674155598791},{"$f":"+AK38*$E38*$G38*(1+'Sup Generales'!I$10)","v":427.11670527758292},{"$f":"+AL38*$E38*$G38*(1+'Sup Generales'!J$10)","v":434.52884853877902},{"$f":"+AM38*$E38*$G38*(1+'Sup Generales'!K$10)","v":440.85586864092562},{"$f":"+AN38*$E38*$G38*(1+'Sup Generales'!L$10)","v":446.75483982689832},{"$f":"+AO38*$E38*$G38*(1+'Sup Generales'!M$10)","v":452.58647180723716},{"$f":"+AP38*$E38*$G38*(1+'Sup Generales'!N$10)","v":915.5235783038396},{"$f":"+AQ38*$E38*$G38*(1+'Sup Generales'!O$10)","v":463.40340690634156},{"$f":"+AR38*$E38*$G38*(1+'Sup Generales'!P$10)","v":469.67204867828565},{"$f":"+AS38*$E38*$G38*(1+'Sup Generales'!Q$10)","v":476.42631853630712},{"$f":"+AT38*$E38*$G38*(1+'Sup Generales'!R$10)","v":482.97814177185256},{"$f":"+AU38*$E38*$G38*(1+'Sup Generales'!S$10)","v":489.40261162653036},{"$f":"+AV38*$E38*$G38*(1+'Sup Generales'!T$10)","v":991.67105407732811},{"$f":"+AW38*$E38*$G38*(1+'Sup Generales'!U$10)","v":502.33835360557259},{"$f":"+AX38*$E38*$G38*(1+'Sup Generales'!V$10)","v":508.93033016145478},7.3743736180850112E-3,1,{"$f":"ROUNDDOWN(K$10/$F38,0)-SUM($AE38:AE38)","v":1},{"$f":"ROUNDDOWN(L$10/$F38,0)-SUM($AE38:AF38)","v":1},{"$f":"ROUNDDOWN(M$10/$F38,0)-SUM($AE38:AG38)","v":1},{"$f":"ROUNDDOWN(N$10/$F38,0)-SUM($AE38:AH38)","v":1},{"$f":"ROUNDDOWN(O$10/$F38,0)-SUM($AE38:AI38)","v":2},{"$f":"ROUNDDOWN(P$10/$F38,0)-SUM($AE38:AJ38)","v":1},{"$f":"ROUNDDOWN(Q$10/$F38,0)-SUM($AE38:AK38)","v":1},{"$f":"ROUNDDOWN(R$10/$F38,0)-SUM($AE38:AL38)","v":1},{"$f":"ROUNDDOWN(S$10/$F38,0)-SUM($AE38:AM38)","v":1},{"$f":"ROUNDDOWN(T$10/$F38,0)-SUM($AE38:AN38)","v":1},{"$f":"ROUNDDOWN(U$10/$F38,0)-SUM($AE38:AO38)","v":2},{"$f":"ROUNDDOWN(V$10/$F38,0)-SUM($AE38:AP38)","v":1},{"$f":"ROUNDDOWN(W$10/$F38,0)-SUM($AE38:AQ38)","v":1},{"$f":"ROUNDDOWN(X$10/$F38,0)-SUM($AE38:AR38)","v":1},{"$f":"ROUNDDOWN(Y$10/$F38,0)-SUM($AE38:AS38)","v":1},{"$f":"ROUNDDOWN(Z$10/$F38,0)-SUM($AE38:AT38)","v":1},{"$f":"ROUNDDOWN(AA$10/$F38,0)-SUM($AE38:AU38)","v":2},{"$f":"ROUNDDOWN(AB$10/$F38,0)-SUM($AE38:AV38)","v":1},{"$f":"ROUNDDOWN(AC$10/$F38,0)-SUM($AE38:AW38)","v":1}]
[null,27,"ROTULAS DE DIRECCIÓN","JGO.",4,60000,49.847499999999997,{"$f":"+H38","v":"Costo de mantenimiento mecánico"},null,{"$f":"+AE39*$E39*$G39*(1+'Sup Generales'!C$10)","v":204.17535999999998},{"$f":"+AF39*$E39*$G39*(1+'Sup Generales'!D$10)","v":207.44216575999999},{"$f":"+AG39*$E39*$G39*(1+'Sup Generales'!E$10)","v":212.83566206975999},{"$f":"+AH39*$E39*$G39*(1+'Sup Generales'!F$10)","v":213.75511212990139},{"$f":"+AI39*$E39*$G39*(1+'Sup Generales'!G$10)","v":214.3322509326521},{"$f":"+AJ39*$E39*$G39*(1+'Sup Generales'!H$10)","v":431.53655402780174},{"$f":"+AK39*$E39*$G39*(1+'Sup Generales'!I$10)","v":219.95660898108696},{"$f":"+AL39*$E39*$G39*(1+'Sup Generales'!J$10)","v":223.77371535241269},{"$f":"+AM39*$E39*$G39*(1+'Sup Generales'!K$10)","v":227.03200487709631},{"$f":"+AN39*$E39*$G39*(1+'Sup Generales'!L$10)","v":230.06985772272651},{"$f":"+AO39*$E39*$G39*(1+'Sup Generales'!M$10)","v":233.07303221665634},{"$f":"+AP39*$E39*$G39*(1+'Sup Generales'!N$10)","v":471.47643545121792},{"$f":"+AQ39*$E39*$G39*(1+'Sup Generales'!O$10)","v":238.64353867207871},{"$f":"+AR39*$E39*$G39*(1+'Sup Generales'!P$10)","v":241.87176451770071},{"$f":"+AS39*$E39*$G39*(1+'Sup Generales'!Q$10)","v":245.35007916977702},{"$f":"+AT39*$E39*$G39*(1+'Sup Generales'!R$10)","v":248.72413783741328},{"$f":"+AU39*$E39*$G39*(1+'Sup Generales'!S$10)","v":252.03261204662917},{"$f":"+AV39*$E39*$G39*(1+'Sup Generales'!T$10)","v":510.69087109994945},{"$f":"+AW39*$E39*$G39*(1+'Sup Generales'!U$10)","v":258.69426190767888},{"$f":"+AX39*$E39*$G39*(1+'Sup Generales'!V$10)","v":262.0889987367438},3.7976557562631606E-3,1,{"$f":"ROUNDDOWN(K$10/$F39,0)-SUM($AE39:AE39)","v":1},{"$f":"ROUNDDOWN(L$10/$F39,0)-SUM($AE39:AF39)","v":1},{"$f":"ROUNDDOWN(M$10/$F39,0)-SUM($AE39:AG39)","v":1},{"$f":"ROUNDDOWN(N$10/$F39,0)-SUM($AE39:AH39)","v":1},{"$f":"ROUNDDOWN(O$10/$F39,0)-SUM($AE39:AI39)","v":2},{"$f":"ROUNDDOWN(P$10/$F39,0)-SUM($AE39:AJ39)","v":1},{"$f":"ROUNDDOWN(Q$10/$F39,0)-SUM($AE39:AK39)","v":1},{"$f":"ROUNDDOWN(R$10/$F39,0)-SUM($AE39:AL39)","v":1},{"$f":"ROUNDDOWN(S$10/$F39,0)-SUM($AE39:AM39)","v":1},{"$f":"ROUNDDOWN(T$10/$F39,0)-SUM($AE39:AN39)","v":1},{"$f":"ROUNDDOWN(U$10/$F39,0)-SUM($AE39:AO39)","v":2},{"$f":"ROUNDDOWN(V$10/$F39,0)-SUM($AE39:AP39)","v":1},{"$f":"ROUNDDOWN(W$10/$F39,0)-SUM($AE39:AQ39)","v":1},{"$f":"ROUNDDOWN(X$10/$F39,0)-SUM($AE39:AR39)","v":1},{"$f":"ROUNDDOWN(Y$10/$F39,0)-SUM($AE39:AS39)","v":1},{"$f":"ROUNDDOWN(Z$10/$F39,0)-SUM($AE39:AT39)","v":1},{"$f":"ROUNDDOWN(AA$10/$F39,0)-SUM($AE39:AU39)","v":2},{"$f":"ROUNDDOWN(AB$10/$F39,0)-SUM($AE39:AV39)","v":1},{"$f":"ROUNDDOWN(AC$10/$F39,0)-SUM($AE39:AW39)","v":1}]
[null,28,"PINES Y BOCINES DE DIRECCIÓN","JGO.",1,90000,127.78,{"$f":"+H39","v":"Costo de mantenimiento mecánico"},null,{"$f":"+AE40*$E40*$G40*(1+'Sup Generales'!C$10)","v":0},{"$f":"+AF40*$E40*$G40*(1+'Sup Generales'!D$10)","v":132.94026751999999},{"$f":"+AG40*$E40*$G40*(1+'Sup Generales'!E$10)","v":136.39671447552001},{"$f":"+AH40*$E40*$G40*(1+'Sup Generales'!F$10)","v":136.98594828205427},{"$f":"+AI40*$E40*$G40*(1+'Sup Generales'!G$10)","v":0},{"$f":"+AJ40*$E40*$G40*(1+'Sup Generales'!H$10)","v":138.27609427170998},{"$f":"+AK40*$E40*$G40*(1+'Sup Generales'!I$10)","v":140.96020610664172},{"$f":"+AL40*$E40*$G40*(1+'Sup Generales'!J$10)","v":143.4064163083971},{"$f":"+AM40*$E40*$G40*(1+'Sup Generales'!K$10)","v":145.49450615976414},{"$f":"+AN40*$E40*$G40*(1+'Sup Generales'!L$10)","v":0},{"$f":"+AO40*$E40*$G40*(1+'Sup Generales'!M$10)","v":149.36592635861552},{"$f":"+AP40*$E40*$G40*(1+'Sup Generales'!N$10)","v":151.07392276933805},{"$f":"+AQ40*$E40*$G40*(1+'Sup Generales'!O$10)","v":152.93581108138935},{"$f":"+AR40*$E40*$G40*(1+'Sup Generales'!P$10)","v":0},{"$f":"+AS40*$E40*$G40*(1+'Sup Generales'!Q$10)","v":157.23372845335328},{"$f":"+AT40*$E40*$G40*(1+'Sup Generales'!R$10)","v":159.39600949327786},{"$f":"+AU40*$E40*$G40*(1+'Sup Generales'!S$10)","v":161.51626043090565},{"$f":"+AV40*$E40*$G40*(1+'Sup Generales'!T$10)","v":163.63929863371169},{"$f":"+AW40*$E40*$G40*(1+'Sup Generales'!U$10)","v":0},{"$f":"+AX40*$E40*$G40*(1+'Sup Generales'!V$10)","v":167.96094216651349},1.5890563677180864E-3,0,{"$f":"ROUNDDOWN(K$10/$F40,0)-SUM($AE40:AE40)","v":1},{"$f":"ROUNDDOWN(L$10/$F40,0)-SUM($AE40:AF40)","v":1},{"$f":"ROUNDDOWN(M$10/$F40,0)-SUM($AE40:AG40)","v":1},{"$f":"ROUNDDOWN(N$10/$F40,0)-SUM($AE40:AH40)","v":0},{"$f":"ROUNDDOWN(O$10/$F40,0)-SUM($AE40:AI40)","v":1},{"$f":"ROUNDDOWN(P$10/$F40,0)-SUM($AE40:AJ40)","v":1},{"$f":"ROUNDDOWN(Q$10/$F40,0)-SUM($AE40:AK40)","v":1},{"$f":"ROUNDDOWN(R$10/$F40,0)-SUM($AE40:AL40)","v":1},{"$f":"ROUNDDOWN(S$10/$F40,0)-SUM($AE40:AM40)","v":0},{"$f":"ROUNDDOWN(T$10/$F40,0)-SUM($AE40:AN40)","v":1},{"$f":"ROUNDDOWN(U$10/$F40,0)-SUM($AE40:AO40)","v":1},{"$f":"ROUNDDOWN(V$10/$F40,0)-SUM($AE40:AP40)","v":1},{"$f":"ROUNDDOWN(W$10/$F40,0)-SUM($AE40:AQ40)","v":0},{"$f":"ROUNDDOWN(X$10/$F40,0)-SUM($AE40:AR40)","v":1},{"$f":"ROUNDDOWN(Y$10/$F40,0)-SUM($AE40:AS40)","v":1},{"$f":"ROUNDDOWN(Z$10/$F40,0)-SUM($AE40:AT40)","v":1},{"$f":"ROUNDDOWN(AA$10/$F40,0)-SUM($AE40:AU40)","v":1},{"$f":"ROUNDDOWN(AB$10/$F40,0)-SUM($AE40:AV40)","v":0},{"$f":"ROUNDDOWN(AC$10/$F40,0)-SUM($AE40:AW40)","v":1}]
[null,29,"MANTENIMIENTO DE BALLESTAS","UND",1,30000,67,{"$f":"+H40","v":"Costo de mantenimiento mecánico"},null,{"$f":"+AE41*$E41*$G41*(1+'Sup Generales'!C$10)","v":137.21600000000001},{"$f":"+AF41*$E41*$G41*(1+'Sup Generales'!D$10)","v":139.41145599999999},{"$f":"+AG41*$E41*$G41*(1+'Sup Generales'!E$10)","v":214.554230784},{"$f":"+AH41*$E41*$G41*(1+'Sup Generales'!F$10)","v":143.65407004065796},{"$f":"+AI41*$E41*$G41*(1+'Sup Generales'!G$10)","v":144.04193602976773},{"$f":"+AJ41*$E41*$G41*(1+'Sup Generales'!H$10)","v":217.51052550175072},{"$f":"+AK41*$E41*$G41*(1+'Sup Generales'!I$10)","v":147.82178445993105},{"$f":"+AL41*$E41*$G41*(1+'Sup Generales'!J$10)","v":150.38706984915643},{"$f":"+AM41*$E41*$G41*(1+'Sup Generales'!K$10)","v":228.86520377298945},{"$f":"+AN41*$E41*$G41*(1+'Sup Generales'!L$10)","v":154.61839076606327},{"$f":"+AO41*$E41*$G41*(1+'Sup Generales'!M$10)","v":156.63667343914918},{"$f":"+AP41*$E41*$G41*(1+'Sup Generales'!N$10)","v":237.64171604818401},{"$f":"+AQ41*$E41*$G41*(1+'Sup Generales'!O$10)","v":160.38033091959753},{"$f":"+AR41*$E41*$G41*(1+'Sup Generales'!P$10)","v":162.54985929771752},{"$f":"+AS41*$E41*$G41*(1+'Sup Generales'!Q$10)","v":247.33118969419323},{"$f":"+AT41*$E41*$G41*(1+'Sup Generales'!R$10)","v":167.15499508607945},{"$f":"+AU41*$E41*$G41*(1+'Sup Generales'!S$10)","v":169.37845435703048},{"$f":"+AV41*$E41*$G41*(1+'Sup Generales'!T$10)","v":257.40725485503248},{"$f":"+AW41*$E41*$G41*(1+'Sup Generales'!U$10)","v":173.85541449234651},{"$f":"+AX41*$E41*$G41*(1+'Sup Generales'!V$10)","v":176.1368465355518},2.5470509629358278E-3,2,{"$f":"ROUNDDOWN(K$10/$F41,0)-SUM($AE41:AE41)","v":2},{"$f":"ROUNDDOWN(L$10/$F41,0)-SUM($AE41:AF41)","v":3},{"$f":"ROUNDDOWN(M$10/$F41,0)-SUM($AE41:AG41)","v":2},{"$f":"ROUNDDOWN(N$10/$F41,0)-SUM($AE41:AH41)","v":2},{"$f":"ROUNDDOWN(O$10/$F41,0)-SUM($AE41:AI41)","v":3},{"$f":"ROUNDDOWN(P$10/$F41,0)-SUM($AE41:AJ41)","v":2},{"$f":"ROUNDDOWN(Q$10/$F41,0)-SUM($AE41:AK41)","v":2},{"$f":"ROUNDDOWN(R$10/$F41,0)-SUM($AE41:AL41)","v":3},{"$f":"ROUNDDOWN(S$10/$F41,0)-SUM($AE41:AM41)","v":2},{"$f":"ROUNDDOWN(T$10/$F41,0)-SUM($AE41:AN41)","v":2},{"$f":"ROUNDDOWN(U$10/$F41,0)-SUM($AE41:AO41)","v":3},{"$f":"ROUNDDOWN(V$10/$F41,0)-SUM($AE41:AP41)","v":2},{"$f":"ROUNDDOWN(W$10/$F41,0)-SUM($AE41:AQ41)","v":2},{"$f":"ROUNDDOWN(X$10/$F41,0)-SUM($AE41:AR41)","v":3},{"$f":"ROUNDDOWN(Y$10/$F41,0)-SUM($AE41:AS41)","v":2},{"$f":"ROUNDDOWN(Z$10/$F41,0)-SUM($AE41:AT41)","v":2},{"$f":"ROUNDDOWN(AA$10/$F41,0)-SUM($AE41:AU41)","v":3},{"$f":"ROUNDDOWN(AB$10/$F41,0)-SUM($AE41:AV41)","v":2},{"$f":"ROUNDDOWN(AC$10/$F41,0)-SUM($AE41:AW41)","v":2}]
[null,30,"LAVADO MOTOR/ CHASIS","UND",1,15000,25,{"$f":"+H41","v":"Costo de mantenimiento mecánico"},null,{"$f":"+AE42*$E42*$G42*(1+'Sup Generales'!C$10)","v":102.4},{"$f":"+AF42*$E42*$G42*(1+'Sup Generales'!D$10)","v":130.048},{"$f":"+AG42*$E42*$G42*(1+'Sup Generales'!E$10)","v":133.429248},{"$f":"+AH42*$E42*$G42*(1+'Sup Generales'!F$10)","v":107.20452988108802},{"$f":"+AI42*$E42*$G42*(1+'Sup Generales'!G$10)","v":134.36747763970868},{"$f":"+AJ42*$E42*$G42*(1+'Sup Generales'!H$10)","v":135.26773973989472},{"$f":"+AK42*$E42*$G42*(1+'Sup Generales'!I$10)","v":110.31476452233662},{"$f":"+AL42*$E42*$G42*(1+'Sup Generales'!J$10)","v":140.2864457548101},{"$f":"+AM42*$E42*$G42*(1+'Sup Generales'!K$10)","v":142.32910682399842},{"$f":"+AN42*$E42*$G42*(1+'Sup Generales'!L$10)","v":115.38685878064423},{"$f":"+AO42*$E42*$G42*(1+'Sup Generales'!M$10)","v":146.11629984995258},{"$f":"+AP42*$E42*$G42*(1+'Sup Generales'!N$10)","v":147.78713684588556},{"$f":"+AQ42*$E42*$G42*(1+'Sup Generales'!O$10)","v":149.60851764887829},{"$f":"+AR42*$E42*$G42*(1+'Sup Generales'!P$10)","v":121.30586514755039},{"$f":"+AS42*$E42*$G42*(1+'Sup Generales'!Q$10)","v":153.81292891429925},{"$f":"+AT42*$E42*$G42*(1+'Sup Generales'!R$10)","v":155.92816705790995},{"$f":"+AU42*$E42*$G42*(1+'Sup Generales'!S$10)","v":126.40183160972424},{"$f":"+AV42*$E42*$G42*(1+'Sup Generales'!T$10)","v":160.0791385914381},{"$f":"+AW42*$E42*$G42*(1+'Sup Generales'!U$10)","v":162.17855829509935},{"$f":"+AX42*$E42*$G42*(1+'Sup Generales'!V$10)","v":131.44540786235208},1.9214967637456823E-3,4,{"$f":"ROUNDDOWN(K$10/$F42,0)-SUM($AE42:AE42)","v":5},{"$f":"ROUNDDOWN(L$10/$F42,0)-SUM($AE42:AF42)","v":5},{"$f":"ROUNDDOWN(M$10/$F42,0)-SUM($AE42:AG42)","v":4},{"$f":"ROUNDDOWN(N$10/$F42,0)-SUM($AE42:AH42)","v":5},{"$f":"ROUNDDOWN(O$10/$F42,0)-SUM($AE42:AI42)","v":5},{"$f":"ROUNDDOWN(P$10/$F42,0)-SUM($AE42:AJ42)","v":4},{"$f":"ROUNDDOWN(Q$10/$F42,0)-SUM($AE42:AK42)","v":5},{"$f":"ROUNDDOWN(R$10/$F42,0)-SUM($AE42:AL42)","v":5},{"$f":"ROUNDDOWN(S$10/$F42,0)-SUM($AE42:AM42)","v":4},{"$f":"ROUNDDOWN(T$10/$F42,0)-SUM($AE42:AN42)","v":5},{"$f":"ROUNDDOWN(U$10/$F42,0)-SUM($AE42:AO42)","v":5},{"$f":"ROUNDDOWN(V$10/$F42,0)-SUM($AE42:AP42)","v":5},{"$f":"ROUNDDOWN(W$10/$F42,0)-SUM($AE42:AQ42)","v":4},{"$f":"ROUNDDOWN(X$10/$F42,0)-SUM($AE42:AR42)","v":5},{"$f":"ROUNDDOWN(Y$10/$F42,0)-SUM($AE42:AS42)","v":5},{"$f":"ROUNDDOWN(Z$10/$F42,0)-SUM($AE42:AT42)","v":4},{"$f":"ROUNDDOWN(AA$10/$F42,0)-SUM($AE42:AU42)","v":5},{"$f":"ROUNDDOWN(AB$10/$F42,0)-SUM($AE42:AV42)","v":5},{"$f":"ROUNDDOWN(AC$10/$F42,0)-SUM($AE42:AW42)","v":4}]
[null,31,"ENGRASADO PUNTAS EJES","UND",4,30000,13.333333333333334,{"$f":"+H42","v":"Costo de mantenimiento mecánico"},null,{"$f":"+AE43*$E43*$G43*(1+'Sup Generales'!C$10)","v":109.22666666666667},{"$f":"+AF43*$E43*$G43*(1+'Sup Generales'!D$10)","v":110.97429333333334},{"$f":"+AG43*$E43*$G43*(1+'Sup Generales'!E$10)","v":170.78943744},{"$f":"+AH43*$E43*$G43*(1+'Sup Generales'!F$10)","v":114.35149853982722},{"$f":"+AI43*$E43*$G43*(1+'Sup Generales'!G$10)","v":114.66024758588475},{"$f":"+AJ43*$E43*$G43*(1+'Sup Generales'!H$10)","v":173.14270686706524},{"$f":"+AK43*$E43*$G43*(1+'Sup Generales'!I$10)","v":117.66908215715907},{"$f":"+AL43*$E43*$G43*(1+'Sup Generales'!J$10)","v":119.71110037743797},{"$f":"+AM43*$E43*$G43*(1+'Sup Generales'!K$10)","v":182.18125673471798},{"$f":"+AN43*$E43*$G43*(1+'Sup Generales'!L$10)","v":123.07931603268719},{"$f":"+AO43*$E43*$G43*(1+'Sup Generales'!M$10)","v":124.68590920529287},{"$f":"+AP43*$E43*$G43*(1+'Sup Generales'!N$10)","v":189.16753516273354},{"$f":"+AQ43*$E43*$G43*(1+'Sup Generales'!O$10)","v":127.66593506037614},{"$f":"+AR43*$E43*$G43*(1+'Sup Generales'!P$10)","v":129.39292282405376},{"$f":"+AS43*$E43*$G43*(1+'Sup Generales'!Q$10)","v":196.88054901030307},{"$f":"+AT43*$E43*$G43*(1+'Sup Generales'!R$10)","v":133.05870255608315},{"$f":"+AU43*$E43*$G43*(1+'Sup Generales'!S$10)","v":134.82862038370587},{"$f":"+AV43*$E43*$G43*(1+'Sup Generales'!T$10)","v":204.90129739704076},{"$f":"+AW43*$E43*$G43*(1+'Sup Generales'!U$10)","v":138.39236974515146},{"$f":"+AX43*$E43*$G43*(1+'Sup Generales'!V$10)","v":140.20843505317555},2.027503254078271E-3,2,{"$f":"ROUNDDOWN(K$10/$F43,0)-SUM($AE43:AE43)","v":2},{"$f":"ROUNDDOWN(L$10/$F43,0)-SUM($AE43:AF43)","v":3},{"$f":"ROUNDDOWN(M$10/$F43,0)-SUM($AE43:AG43)","v":2},{"$f":"ROUNDDOWN(N$10/$F43,0)-SUM($AE43:AH43)","v":2},{"$f":"ROUNDDOWN(O$10/$F43,0)-SUM($AE43:AI43)","v":3},{"$f":"ROUNDDOWN(P$10/$F43,0)-SUM($AE43:AJ43)","v":2},{"$f":"ROUNDDOWN(Q$10/$F43,0)-SUM($AE43:AK43)","v":2},{"$f":"ROUNDDOWN(R$10/$F43,0)-SUM($AE43:AL43)","v":3},{"$f":"ROUNDDOWN(S$10/$F43,0)-SUM($AE43:AM43)","v":2},{"$f":"ROUNDDOWN(T$10/$F43,0)-SUM($AE43:AN43)","v":2},{"$f":"ROUNDDOWN(U$10/$F43,0)-SUM($AE43:AO43)","v":3},{"$f":"ROUNDDOWN(V$10/$F43,0)-SUM($AE43:AP43)","v":2},{"$f":"ROUNDDOWN(W$10/$F43,0)-SUM($AE43:AQ43)","v":2},{"$f":"ROUNDDOWN(X$10/$F43,0)-SUM($AE43:AR43)","v":3},{"$f":"ROUNDDOWN(Y$10/$F43,0)-SUM($AE43:AS43)","v":2},{"$f":"ROUNDDOWN(Z$10/$F43,0)-SUM($AE43:AT43)","v":2},{"$f":"ROUNDDOWN(AA$10/$F43,0)-SUM($AE43:AU43)","v":3},{"$f":"ROUNDDOWN(AB$10/$F43,0)-SUM($AE43:AV43)","v":2},{"$f":"ROUNDDOWN(AC$10/$F43,0)-SUM($AE43:AW43)","v":2}]
[null,32,"CAMBIO DE RULIMANES PUNTA DE EJE","UND",8,180000,42.664000000000001,{"$f":"+H41","v":"Costo de mantenimiento mecánico"},null,{"$f":"+AE44*$E44*$G44*(1+'Sup Generales'!C$10)","v":0},{"$f":"+AF44*$E44*$G44*(1+'Sup Generales'!D$10)","v":0},{"$f":"+AG44*$E44*$G44*(1+'Sup Generales'!E$10)","v":364.32802794700802},{"$f":"+AH44*$E44*$G44*(1+'Sup Generales'!F$10)","v":0},{"$f":"+AI44*$E44*$G44*(1+'Sup Generales'!G$10)","v":0},{"$f":"+AJ44*$E44*$G44*(1+'Sup Generales'!H$10)","v":369.34802228882359},{"$f":"+AK44*$E44*$G44*(1+'Sup Generales'!I$10)","v":0},{"$f":"+AL44*$E44*$G44*(1+'Sup Generales'!J$10)","v":383.05157898772603},{"$f":"+AM44*$E44*$G44*(1+'Sup Generales'!K$10)","v":0},{"$f":"+AN44*$E44*$G44*(1+'Sup Generales'!L$10)","v":0},{"$f":"+AO44*$E44*$G44*(1+'Sup Generales'!M$10)","v":398.96997227509615},{"$f":"+AP44*$E44*$G44*(1+'Sup Generales'!N$10)","v":0},{"$f":"+AQ44*$E44*$G44*(1+'Sup Generales'!O$10)","v":408.50545900619159},{"$f":"+AR44*$E44*$G44*(1+'Sup Generales'!P$10)","v":0},{"$f":"+AS44*$E44*$G44*(1+'Sup Generales'!Q$10)","v":0},{"$f":"+AT44*$E44*$G44*(1+'Sup Generales'!R$10)","v":425.76123643895488},{"$f":"+AU44*$E44*$G44*(1+'Sup Generales'!S$10)","v":0},{"$f":"+AV44*$E44*$G44*(1+'Sup Generales'!T$10)","v":437.09544760736736},{"$f":"+AW44*$E44*$G44*(1+'Sup Generales'!U$10)","v":0},{"$f":"+AX44*$E44*$G44*(1+'Sup Generales'!V$10)","v":0},1.9792771529068311E-3,0,{"$f":"ROUNDDOWN(K$10/$F44,0)-SUM($AE44:AE44)","v":0},{"$f":"ROUNDDOWN(L$10/$F44,0)-SUM($AE44:AF44)","v":1},{"$f":"ROUNDDOWN(M$10/$F44,0)-SUM($AE44:AG44)","v":0},{"$f":"ROUNDDOWN(N$10/$F44,0)-SUM($AE44:AH44)","v":0},{"$f":"ROUNDDOWN(O$10/$F44,0)-SUM($AE44:AI44)","v":1},{"$f":"ROUNDDOWN(P$10/$F44,0)-SUM($AE44:AJ44)","v":0},{"$f":"ROUNDDOWN(Q$10/$F44,0)-SUM($AE44:AK44)","v":1},{"$f":"ROUNDDOWN(R$10/$F44,0)-SUM($AE44:AL44)","v":0},{"$f":"ROUNDDOWN(S$10/$F44,0)-SUM($AE44:AM44)","v":0},{"$f":"ROUNDDOWN(T$10/$F44,0)-SUM($AE44:AN44)","v":1},{"$f":"ROUNDDOWN(U$10/$F44,0)-SUM($AE44:AO44)","v":0},{"$f":"ROUNDDOWN(V$10/$F44,0)-SUM($AE44:AP44)","v":1},{"$f":"ROUNDDOWN(W$10/$F44,0)-SUM($AE44:AQ44)","v":0},{"$f":"ROUNDDOWN(X$10/$F44,0)-SUM($AE44:AR44)","v":0},{"$f":"ROUNDDOWN(Y$10/$F44,0)-SUM($AE44:AS44)","v":1},{"$f":"ROUNDDOWN(Z$10/$F44,0)-SUM($AE44:AT44)","v":0},{"$f":"ROUNDDOWN(AA$10/$F44,0)-SUM($AE44:AU44)","v":1},{"$f":"ROUNDDOWN(AB$10/$F44,0)-SUM($AE44:AV44)","v":0},{"$f":"ROUNDDOWN(AC$10/$F44,0)-SUM($AE44:AW44)","v":0}]
[null,33,"MANTENIMINETO DE CARROCERÍA","UND",1,30000,325.71428571428572,{"$f":"+'OPEX Mtto'!B8","v":"Carrocería "},null,{"$f":"+AE45*$E45*$G45*(1+'Sup Generales'!C$10)","v":667.06285714285718},{"$f":"+AF45*$E45*$G45*(1+'Sup Generales'!D$10)","v":677.73586285714282},{"$f":"+AG45*$E45*$G45*(1+'Sup Generales'!E$10)","v":1043.0354929371429},{"$f":"+AH45*$E45*$G45*(1+'Sup Generales'!F$10)","v":698.36093751108763},{"$f":"+AI45*$E45*$G45*(1+'Sup Generales'!G$10)","v":700.24651204236761},{"$f":"+AJ45*$E45*$G45*(1+'Sup Generales'!H$10)","v":1057.407245509577},{"$f":"+AK45*$E45*$G45*(1+'Sup Generales'!I$10)","v":718.62189460264995},{"$f":"+AL45*$E45*$G45*(1+'Sup Generales'!J$10)","v":731.09279159078187},{"$f":"+AM45*$E45*$G45*(1+'Sup Generales'!K$10)","v":1112.6069607727418},{"$f":"+AN45*$E45*$G45*(1+'Sup Generales'!L$10)","v":751.6629657710539},{"$f":"+AO45*$E45*$G45*(1+'Sup Generales'!M$10)","v":761.47465978946718},{"$f":"+AP45*$E45*$G45*(1+'Sup Generales'!N$10)","v":1155.2731611724082},{"$f":"+AQ45*$E45*$G45*(1+'Sup Generales'!O$10)","v":779.67410340443996},{"$f":"+AR45*$E45*$G45*(1+'Sup Generales'!P$10)","v":790.22106438975686},{"$f":"+AS45*$E45*$G45*(1+'Sup Generales'!Q$10)","v":1202.3776385986364},{"$f":"+AT45*$E45*$G45*(1+'Sup Generales'!R$10)","v":812.60850489607924},{"$f":"+AU45*$E45*$G45*(1+'Sup Generales'!S$10)","v":823.41764591477511},{"$f":"+AV45*$E45*$G45*(1+'Sup Generales'!T$10)","v":1251.3614948176419},{"$f":"+AW45*$E45*$G45*(1+'Sup Generales'!U$10)","v":845.18197237217498},{"$f":"+AX45*$E45*$G45*(1+'Sup Generales'!V$10)","v":856.27294264617933},1.2382252015978014E-2,2,{"$f":"ROUNDDOWN(K$10/$F45,0)-SUM($AE45:AE45)","v":2},{"$f":"ROUNDDOWN(L$10/$F45,0)-SUM($AE45:AF45)","v":3},{"$f":"ROUNDDOWN(M$10/$F45,0)-SUM($AE45:AG45)","v":2},{"$f":"ROUNDDOWN(N$10/$F45,0)-SUM($AE45:AH45)","v":2},{"$f":"ROUNDDOWN(O$10/$F45,0)-SUM($AE45:AI45)","v":3},{"$f":"ROUNDDOWN(P$10/$F45,0)-SUM($AE45:AJ45)","v":2},{"$f":"ROUNDDOWN(Q$10/$F45,0)-SUM($AE45:AK45)","v":2},{"$f":"ROUNDDOWN(R$10/$F45,0)-SUM($AE45:AL45)","v":3},{"$f":"ROUNDDOWN(S$10/$F45,0)-SUM($AE45:AM45)","v":2},{"$f":"ROUNDDOWN(T$10/$F45,0)-SUM($AE45:AN45)","v":2},{"$f":"ROUNDDOWN(U$10/$F45,0)-SUM($AE45:AO45)","v":3},{"$f":"ROUNDDOWN(V$10/$F45,0)-SUM($AE45:AP45)","v":2},{"$f":"ROUNDDOWN(W$10/$F45,0)-SUM($AE45:AQ45)","v":2},{"$f":"ROUNDDOWN(X$10/$F45,0)-SUM($AE45:AR45)","v":3},{"$f":"ROUNDDOWN(Y$10/$F45,0)-SUM($AE45:AS45)","v":2},{"$f":"ROUNDDOWN(Z$10/$F45,0)-SUM($AE45:AT45)","v":2},{"$f":"ROUNDDOWN(AA$10/$F45,0)-SUM($AE45:AU45)","v":3},{"$f":"ROUNDDOWN(AB$10/$F45,0)-SUM($AE45:AV45)","v":2},{"$f":"ROUNDDOWN(AC$10/$F45,0)-SUM($AE45:AW45)","v":2}]
[null,34,"REPARACIÓN DE LA BOMBA DE INYECCIÓN","UND",1,240000,1850,{"$f":"+H44","v":"Costo de mantenimiento mecánico"},null,{"$f":"+AE46*$E46*$G46*(1+'Sup Generales'!C$10)","v":0},{"$f":"+AF46*$E46*$G46*(1+'Sup Generales'!D$10)","v":0},{"$f":"+AG46*$E46*$G46*(1+'Sup Generales'!E$10)","v":0},{"$f":"+AH46*$E46*$G46*(1+'Sup Generales'!F$10)","v":1983.2838028001283},{"$f":"+AI46*$E46*$G46*(1+'Sup Generales'!G$10)","v":0},{"$f":"+AJ46*$E46*$G46*(1+'Sup Generales'!H$10)","v":0},{"$f":"+AK46*$E46*$G46*(1+'Sup Generales'!I$10)","v":2040.8231436632275},{"$f":"+AL46*$E46*$G46*(1+'Sup Generales'!J$10)","v":0},{"$f":"+AM46*$E46*$G46*(1+'Sup Generales'!K$10)","v":0},{"$f":"+AN46*$E46*$G46*(1+'Sup Generales'!L$10)","v":0},{"$f":"+AO46*$E46*$G46*(1+'Sup Generales'!M$10)","v":2162.5212377792982},{"$f":"+AP46*$E46*$G46*(1+'Sup Generales'!N$10)","v":0},{"$f":"+AQ46*$E46*$G46*(1+'Sup Generales'!O$10)","v":0},{"$f":"+AR46*$E46*$G46*(1+'Sup Generales'!P$10)","v":2244.1585052296823},{"$f":"+AS46*$E46*$G46*(1+'Sup Generales'!Q$10)","v":0},{"$f":"+AT46*$E46*$G46*(1+'Sup Generales'!R$10)","v":0},{"$f":"+AU46*$E46*$G46*(1+'Sup Generales'!S$10)","v":0},{"$f":"+AV46*$E46*$G46*(1+'Sup Generales'!T$10)","v":2369.1712511532837},{"$f":"+AW46*$E46*$G46*(1+'Sup Generales'!U$10)","v":0},{"$f":"+AX46*$E46*$G46*(1+'Sup Generales'!V$10)","v":0},7.6697710000750074E-3,0,{"$f":"ROUNDDOWN(K$10/$F46,0)-SUM($AE46:AE46)","v":0},{"$f":"ROUNDDOWN(L$10/$F46,0)-SUM($AE46:AF46)","v":0},{"$f":"ROUNDDOWN(M$10/$F46,0)-SUM($AE46:AG46)","v":1},{"$f":"ROUNDDOWN(N$10/$F46,0)-SUM($AE46:AH46)","v":0},{"$f":"ROUNDDOWN(O$10/$F46,0)-SUM($AE46:AI46)","v":0},{"$f":"ROUNDDOWN(P$10/$F46,0)-SUM($AE46:AJ46)","v":1},{"$f":"ROUNDDOWN(Q$10/$F46,0)-SUM($AE46:AK46)","v":0},{"$f":"ROUNDDOWN(R$10/$F46,0)-SUM($AE46:AL46)","v":0},{"$f":"ROUNDDOWN(S$10/$F46,0)-SUM($AE46:AM46)","v":0},{"$f":"ROUNDDOWN(T$10/$F46,0)-SUM($AE46:AN46)","v":1},{"$f":"ROUNDDOWN(U$10/$F46,0)-SUM($AE46:AO46)","v":0},{"$f":"ROUNDDOWN(V$10/$F46,0)-SUM($AE46:AP46)","v":0},{"$f":"ROUNDDOWN(W$10/$F46,0)-SUM($AE46:AQ46)","v":1},{"$f":"ROUNDDOWN(X$10/$F46,0)-SUM($AE46:AR46)","v":0},{"$f":"ROUNDDOWN(Y$10/$F46,0)-SUM($AE46:AS46)","v":0},{"$f":"ROUNDDOWN(Z$10/$F46,0)-SUM($AE46:AT46)","v":0},{"$f":"ROUNDDOWN(AA$10/$F46,0)-SUM($AE46:AU46)","v":1},{"$f":"ROUNDDOWN(AB$10/$F46,0)-SUM($AE46:AV46)","v":0},{"$f":"ROUNDDOWN(AC$10/$F46,0)-SUM($AE46:AW46)","v":0}]
[null,35,"REPARACION COMPRESOR","UND",1,60000,200.11,{"$f":"+H46","v":"Costo de mantenimiento mecánico"},null,{"$f":"+AE47*$E47*$G47*(1+'Sup Generales'!C$10)","v":204.91264000000001},{"$f":"+AF47*$E47*$G47*(1+'Sup Generales'!D$10)","v":208.19124224000001},{"$f":"+AG47*$E47*$G47*(1+'Sup Generales'!E$10)","v":213.60421453824},{"$f":"+AH47*$E47*$G47*(1+'Sup Generales'!F$10)","v":214.52698474504524},{"$f":"+AI47*$E47*$G47*(1+'Sup Generales'!G$10)","v":215.10620760385686},{"$f":"+AJ47*$E47*$G47*(1+'Sup Generales'!H$10)","v":433.09483838960534},{"$f":"+AK47*$E47*$G47*(1+'Sup Generales'!I$10)","v":220.75087528564782},{"$f":"+AL47*$E47*$G47*(1+'Sup Generales'!J$10)","v":224.58176527996042},{"$f":"+AM47*$E47*$G47*(1+'Sup Generales'!K$10)","v":227.8518205324026},{"$f":"+AN47*$E47*$G47*(1+'Sup Generales'!L$10)","v":230.90064310594718},{"$f":"+AO47*$E47*$G47*(1+'Sup Generales'!M$10)","v":233.91466210379212},{"$f":"+AP47*$E47*$G47*(1+'Sup Generales'!N$10)","v":473.1789432676826},{"$f":"+AQ47*$E47*$G47*(1+'Sup Generales'!O$10)","v":239.50528373373629},{"$f":"+AR47*$E47*$G47*(1+'Sup Generales'!P$10)","v":242.74516674676312},{"$f":"+AS47*$E47*$G47*(1+'Sup Generales'!Q$10)","v":246.23604164032341},{"$f":"+AT47*$E47*$G47*(1+'Sup Generales'!R$10)","v":249.62228407966688},{"$f":"+AU47*$E47*$G47*(1+'Sup Generales'!S$10)","v":252.9427052342192},{"$f":"+AV47*$E47*$G47*(1+'Sup Generales'!T$10)","v":512.53498277652284},{"$f":"+AW47*$E47*$G47*(1+'Sup Generales'!U$10)","v":259.6284104034587},{"$f":"+AX47*$E47*$G47*(1+'Sup Generales'!V$10)","v":263.03540567335278},3.8113691428146908E-3,1,{"$f":"ROUNDDOWN(K$10/$F47,0)-SUM($AE47:AE47)","v":1},{"$f":"ROUNDDOWN(L$10/$F47,0)-SUM($AE47:AF47)","v":1},{"$f":"ROUNDDOWN(M$10/$F47,0)-SUM($AE47:AG47)","v":1},{"$f":"ROUNDDOWN(N$10/$F47,0)-SUM($AE47:AH47)","v":1},{"$f":"ROUNDDOWN(O$10/$F47,0)-SUM($AE47:AI47)","v":2},{"$f":"ROUNDDOWN(P$10/$F47,0)-SUM($AE47:AJ47)","v":1},{"$f":"ROUNDDOWN(Q$10/$F47,0)-SUM($AE47:AK47)","v":1},{"$f":"ROUNDDOWN(R$10/$F47,0)-SUM($AE47:AL47)","v":1},{"$f":"ROUNDDOWN(S$10/$F47,0)-SUM($AE47:AM47)","v":1},{"$f":"ROUNDDOWN(T$10/$F47,0)-SUM($AE47:AN47)","v":1},{"$f":"ROUNDDOWN(U$10/$F47,0)-SUM($AE47:AO47)","v":2},{"$f":"ROUNDDOWN(V$10/$F47,0)-SUM($AE47:AP47)","v":1},{"$f":"ROUNDDOWN(W$10/$F47,0)-SUM($AE47:AQ47)","v":1},{"$f":"ROUNDDOWN(X$10/$F47,0)-SUM($AE47:AR47)","v":1},{"$f":"ROUNDDOWN(Y$10/$F47,0)-SUM($AE47:AS47)","v":1},{"$f":"ROUNDDOWN(Z$10/$F47,0)-SUM($AE47:AT47)","v":1},{"$f":"ROUNDDOWN(AA$10/$F47,0)-SUM($AE47:AU47)","v":2},{"$f":"ROUNDDOWN(AB$10/$F47,0)-SUM($AE47:AV47)","v":1},{"$f":"ROUNDDOWN(AC$10/$F47,0)-SUM($AE47:AW47)","v":1}]
[null,36,"CAMBIO DE TURBO","UND",1,60000,542.09500000000003,{"$f":"+H47","v":"Costo de mantenimiento mecánico"},null,{"$f":"+AE48*$E48*$G48*(1+'Sup Generales'!C$10)","v":555.10527999999999},{"$f":"+AF48*$E48*$G48*(1+'Sup Generales'!D$10)","v":563.98696447999998},{"$f":"+AG48*$E48*$G48*(1+'Sup Generales'!E$10)","v":578.65062555648001},{"$f":"+AH48*$E48*$G48*(1+'Sup Generales'!F$10)","v":581.15039625888414},{"$f":"+AI48*$E48*$G48*(1+'Sup Generales'!G$10)","v":582.71950232878305},{"$f":"+AJ48*$E48*$G48*(1+'Sup Generales'!H$10)","v":1173.2474459887717},{"$f":"+AK48*$E48*$G48*(1+'Sup Generales'!I$10)","v":598.01082273736074},{"$f":"+AL48*$E48*$G48*(1+'Sup Generales'!J$10)","v":608.38864649163031},{"$f":"+AM48*$E48*$G48*(1+'Sup Generales'!K$10)","v":617.24717731004341},{"$f":"+AN48*$E48*$G48*(1+'Sup Generales'!L$10)","v":625.50639210693339},{"$f":"+AO48*$E48*$G48*(1+'Sup Generales'!M$10)","v":633.67132453728038},{"$f":"+AP48*$E48*$G48*(1+'Sup Generales'!N$10)","v":1281.8346871755255},{"$f":"+AQ48*$E48*$G48*(1+'Sup Generales'!O$10)","v":648.81623499894943},{"$f":"+AR48*$E48*$G48*(1+'Sup Generales'!P$10)","v":657.59302967161329},{"$f":"+AS48*$E48*$G48*(1+'Sup Generales'!Q$10)","v":667.04975759837646},{"$f":"+AT48*$E48*$G48*(1+'Sup Generales'!R$10)","v":676.22303777006152},{"$f":"+AU48*$E48*$G48*(1+'Sup Generales'!S$10)","v":685.2180090647347},{"$f":"+AV48*$E48*$G48*(1+'Sup Generales'!T$10)","v":1388.4496101556103},{"$f":"+AW48*$E48*$G48*(1+'Sup Generales'!U$10)","v":703.32948447185515},{"$f":"+AX48*$E48*$G48*(1+'Sup Generales'!V$10)","v":712.5589837514176},1.0324942059238068E-2,1,{"$f":"ROUNDDOWN(K$10/$F48,0)-SUM($AE48:AE48)","v":1},{"$f":"ROUNDDOWN(L$10/$F48,0)-SUM($AE48:AF48)","v":1},{"$f":"ROUNDDOWN(M$10/$F48,0)-SUM($AE48:AG48)","v":1},{"$f":"ROUNDDOWN(N$10/$F48,0)-SUM($AE48:AH48)","v":1},{"$f":"ROUNDDOWN(O$10/$F48,0)-SUM($AE48:AI48)","v":2},{"$f":"ROUNDDOWN(P$10/$F48,0)-SUM($AE48:AJ48)","v":1},{"$f":"ROUNDDOWN(Q$10/$F48,0)-SUM($AE48:AK48)","v":1},{"$f":"ROUNDDOWN(R$10/$F48,0)-SUM($AE48:AL48)","v":1},{"$f":"ROUNDDOWN(S$10/$F48,0)-SUM($AE48:AM48)","v":1},{"$f":"ROUNDDOWN(T$10/$F48,0)-SUM($AE48:AN48)","v":1},{"$f":"ROUNDDOWN(U$10/$F48,0)-SUM($AE48:AO48)","v":2},{"$f":"ROUNDDOWN(V$10/$F48,0)-SUM($AE48:AP48)","v":1},{"$f":"ROUNDDOWN(W$10/$F48,0)-SUM($AE48:AQ48)","v":1},{"$f":"ROUNDDOWN(X$10/$F48,0)-SUM($AE48:AR48)","v":1},{"$f":"ROUNDDOWN(Y$10/$F48,0)-SUM($AE48:AS48)","v":1},{"$f":"ROUNDDOWN(Z$10/$F48,0)-SUM($AE48:AT48)","v":1},{"$f":"ROUNDDOWN(AA$10/$F48,0)-SUM($AE48:AU48)","v":2},{"$f":"ROUNDDOWN(AB$10/$F48,0)-SUM($AE48:AV48)","v":1},{"$f":"ROUNDDOWN(AC$10/$F48,0)-SUM($AE48:AW48)","v":1}]
[null,37,"REPARACIÓN DEL MOTOR","UND",1,240000,3903.672,{"$f":"+H48","v":"Costo de mantenimiento mecánico"},null,{"$f":"+AE49*$E49*$G49*(1+'Sup Generales'!C$10)","v":0},{"$f":"+AF49*$E49*$G49*(1+'Sup Generales'!D$10)","v":0},{"$f":"+AG49*$E49*$G49*(1+'Sup Generales'!E$10)","v":0},{"$f":"+AH49*$E49*$G49*(1+'Sup Generales'!F$10)","v":4184.9132156996666},{"$f":"+AI49*$E49*$G49*(1+'Sup Generales'!G$10)","v":0},{"$f":"+AJ49*$E49*$G49*(1+'Sup Generales'!H$10)","v":0},{"$f":"+AK49*$E49*$G49*(1+'Sup Generales'!I$10)","v":4306.326574524388},{"$f":"+AL49*$E49*$G49*(1+'Sup Generales'!J$10)","v":0},{"$f":"+AM49*$E49*$G49*(1+'Sup Generales'!K$10)","v":0},{"$f":"+AN49*$E49*$G49*(1+'Sup Generales'!L$10)","v":0},{"$f":"+AO49*$E49*$G49*(1+'Sup Generales'!M$10)","v":4563.1208677429131},{"$f":"+AP49*$E49*$G49*(1+'Sup Generales'!N$10)","v":0},{"$f":"+AQ49*$E49*$G49*(1+'Sup Generales'!O$10)","v":0},{"$f":"+AR49*$E49*$G49*(1+'Sup Generales'!P$10)","v":4735.3830921226836},{"$f":"+AS49*$E49*$G49*(1+'Sup Generales'!Q$10)","v":0},{"$f":"+AT49*$E49*$G49*(1+'Sup Generales'!R$10)","v":0},{"$f":"+AU49*$E49*$G49*(1+'Sup Generales'!S$10)","v":0},{"$f":"+AV49*$E49*$G49*(1+'Sup Generales'!T$10)","v":4999.171608828131},{"$f":"+AW49*$E49*$G49*(1+'Sup Generales'!U$10)","v":0},{"$f":"+AX49*$E49*$G49*(1+'Sup Generales'!V$10)","v":0},1.6183929891570165E-2,0,{"$f":"ROUNDDOWN(K$10/$F49,0)-SUM($AE49:AE49)","v":0},{"$f":"ROUNDDOWN(L$10/$F49,0)-SUM($AE49:AF49)","v":0},{"$f":"ROUNDDOWN(M$10/$F49,0)-SUM($AE49:AG49)","v":1},{"$f":"ROUNDDOWN(N$10/$F49,0)-SUM($AE49:AH49)","v":0},{"$f":"ROUNDDOWN(O$10/$F49,0)-SUM($AE49:AI49)","v":0},{"$f":"ROUNDDOWN(P$10/$F49,0)-SUM($AE49:AJ49)","v":1},{"$f":"ROUNDDOWN(Q$10/$F49,0)-SUM($AE49:AK49)","v":0},{"$f":"ROUNDDOWN(R$10/$F49,0)-SUM($AE49:AL49)","v":0},{"$f":"ROUNDDOWN(S$10/$F49,0)-SUM($AE49:AM49)","v":0},{"$f":"ROUNDDOWN(T$10/$F49,0)-SUM($AE49:AN49)","v":1},{"$f":"ROUNDDOWN(U$10/$F49,0)-SUM($AE49:AO49)","v":0},{"$f":"ROUNDDOWN(V$10/$F49,0)-SUM($AE49:AP49)","v":0},{"$f":"ROUNDDOWN(W$10/$F49,0)-SUM($AE49:AQ49)","v":1},{"$f":"ROUNDDOWN(X$10/$F49,0)-SUM($AE49:AR49)","v":0},{"$f":"ROUNDDOWN(Y$10/$F49,0)-SUM($AE49:AS49)","v":0},{"$f":"ROUNDDOWN(Z$10/$F49,0)-SUM($AE49:AT49)","v":0},{"$f":"ROUNDDOWN(AA$10/$F49,0)-SUM($AE49:AU49)","v":1},{"$f":"ROUNDDOWN(AB$10/$F49,0)-SUM($AE49:AV49)","v":0},{"$f":"ROUNDDOWN(AC$10/$F49,0)-SUM($AE49:AW49)","v":0}]
[null,38,"REPARACIÓN DE CAJA","UND",1,120000,2209.7959999999998,{"$f":"+H49","v":"Costo de mantenimiento mecánico"},null,{"$f":"+AE50*$E50*$G50*(1+'Sup Generales'!C$10)","v":0},{"$f":"+AF50*$E50*$G50*(1+'Sup Generales'!D$10)","v":2299.0364016639996},{"$f":"+AG50*$E50*$G50*(1+'Sup Generales'!E$10)","v":0},{"$f":"+AH50*$E50*$G50*(1+'Sup Generales'!F$10)","v":2369.0014131310877},{"$f":"+AI50*$E50*$G50*(1+'Sup Generales'!G$10)","v":0},{"$f":"+AJ50*$E50*$G50*(1+'Sup Generales'!H$10)","v":2391.312881650083},{"$f":"+AK50*$E50*$G50*(1+'Sup Generales'!I$10)","v":2437.7312538240135},{"$f":"+AL50*$E50*$G50*(1+'Sup Generales'!J$10)","v":0},{"$f":"+AM50*$E50*$G50*(1+'Sup Generales'!K$10)","v":2516.146327545955},{"$f":"+AN50*$E50*$G50*(1+'Sup Generales'!L$10)","v":0},{"$f":"+AO50*$E50*$G50*(1+'Sup Generales'!M$10)","v":2583.0977195458063},{"$f":"+AP50*$E50*$G50*(1+'Sup Generales'!N$10)","v":2612.6353908279243},{"$f":"+AQ50*$E50*$G50*(1+'Sup Generales'!O$10)","v":0},{"$f":"+AR50*$E50*$G50*(1+'Sup Generales'!P$10)","v":2680.6121557959627},{"$f":"+AS50*$E50*$G50*(1+'Sup Generales'!Q$10)","v":0},{"$f":"+AT50*$E50*$G50*(1+'Sup Generales'!R$10)","v":2756.5555188152089},{"$f":"+AU50*$E50*$G50*(1+'Sup Generales'!S$10)","v":0},{"$f":"+AV50*$E50*$G50*(1+'Sup Generales'!T$10)","v":2829.9379211424443},{"$f":"+AW50*$E50*$G50*(1+'Sup Generales'!U$10)","v":2867.0522352502189},{"$f":"+AX50*$E50*$G50*(1+'Sup Generales'!V$10)","v":0},2.0128340780041973E-2,0,{"$f":"ROUNDDOWN(K$10/$F50,0)-SUM($AE50:AE50)","v":1},{"$f":"ROUNDDOWN(L$10/$F50,0)-SUM($AE50:AF50)","v":0},{"$f":"ROUNDDOWN(M$10/$F50,0)-SUM($AE50:AG50)","v":1},{"$f":"ROUNDDOWN(N$10/$F50,0)-SUM($AE50:AH50)","v":0},{"$f":"ROUNDDOWN(O$10/$F50,0)-SUM($AE50:AI50)","v":1},{"$f":"ROUNDDOWN(P$10/$F50,0)-SUM($AE50:AJ50)","v":1},{"$f":"ROUNDDOWN(Q$10/$F50,0)-SUM($AE50:AK50)","v":0},{"$f":"ROUNDDOWN(R$10/$F50,0)-SUM($AE50:AL50)","v":1},{"$f":"ROUNDDOWN(S$10/$F50,0)-SUM($AE50:AM50)","v":0},{"$f":"ROUNDDOWN(T$10/$F50,0)-SUM($AE50:AN50)","v":1},{"$f":"ROUNDDOWN(U$10/$F50,0)-SUM($AE50:AO50)","v":1},{"$f":"ROUNDDOWN(V$10/$F50,0)-SUM($AE50:AP50)","v":0},{"$f":"ROUNDDOWN(W$10/$F50,0)-SUM($AE50:AQ50)","v":1},{"$f":"ROUNDDOWN(X$10/$F50,0)-SUM($AE50:AR50)","v":0},{"$f":"ROUNDDOWN(Y$10/$F50,0)-SUM($AE50:AS50)","v":1},{"$f":"ROUNDDOWN(Z$10/$F50,0)-SUM($AE50:AT50)","v":0},{"$f":"ROUNDDOWN(AA$10/$F50,0)-SUM($AE50:AU50)","v":1},{"$f":"ROUNDDOWN(AB$10/$F50,0)-SUM($AE50:AV50)","v":1},{"$f":"ROUNDDOWN(AC$10/$F50,0)-SUM($AE50:AW50)","v":0}]
[null,39,"REPARACIÓN DEL DIFERENCIAL","UND",1,120000,1675.3619999999999,{"$f":"+H50","v":"Costo de mantenimiento mecánico"},null,{"$f":"+AE51*$E51*$G51*(1+'Sup Generales'!C$10)","v":0},{"$f":"+AF51*$E51*$G51*(1+'Sup Generales'!D$10)","v":1743.0198190079998},{"$f":"+AG51*$E51*$G51*(1+'Sup Generales'!E$10)","v":0},{"$f":"+AH51*$E51*$G51*(1+'Sup Generales'!F$10)","v":1796.0639559063936},{"$f":"+AI51*$E51*$G51*(1+'Sup Generales'!G$10)","v":0},{"$f":"+AJ51*$E51*$G51*(1+'Sup Generales'!H$10)","v":1812.9794478888759},{"$f":"+AK51*$E51*$G51*(1+'Sup Generales'!I$10)","v":1848.1716451967091},{"$f":"+AL51*$E51*$G51*(1+'Sup Generales'!J$10)","v":0},{"$f":"+AM51*$E51*$G51*(1+'Sup Generales'!K$10)","v":1907.6222165349409},{"$f":"+AN51*$E51*$G51*(1+'Sup Generales'!L$10)","v":0},{"$f":"+AO51*$E51*$G51*(1+'Sup Generales'!M$10)","v":1958.3815707937299},{"$f":"+AP51*$E51*$G51*(1+'Sup Generales'!N$10)","v":1980.7756252831721},{"$f":"+AQ51*$E51*$G51*(1+'Sup Generales'!O$10)","v":0},{"$f":"+AR51*$E51*$G51*(1+'Sup Generales'!P$10)","v":2032.3123684533032},{"$f":"+AS51*$E51*$G51*(1+'Sup Generales'!Q$10)","v":0},{"$f":"+AT51*$E51*$G51*(1+'Sup Generales'!R$10)","v":2089.8890065477926},{"$f":"+AU51*$E51*$G51*(1+'Sup Generales'!S$10)","v":0},{"$f":"+AV51*$E51*$G51*(1+'Sup Generales'!T$10)","v":2145.5240463106311},{"$f":"+AW51*$E51*$G51*(1+'Sup Generales'!U$10)","v":2173.6623502591538},{"$f":"+AX51*$E51*$G51*(1+'Sup Generales'!V$10)","v":0},1.5260348586897919E-2,0,{"$f":"ROUNDDOWN(K$10/$F51,0)-SUM($AE51:AE51)","v":1},{"$f":"ROUNDDOWN(L$10/$F51,0)-SUM($AE51:AF51)","v":0},{"$f":"ROUNDDOWN(M$10/$F51,0)-SUM($AE51:AG51)","v":1},{"$f":"ROUNDDOWN(N$10/$F51,0)-SUM($AE51:AH51)","v":0},{"$f":"ROUNDDOWN(O$10/$F51,0)-SUM($AE51:AI51)","v":1},{"$f":"ROUNDDOWN(P$10/$F51,0)-SUM($AE51:AJ51)","v":1},{"$f":"ROUNDDOWN(Q$10/$F51,0)-SUM($AE51:AK51)","v":0},{"$f":"ROUNDDOWN(R$10/$F51,0)-SUM($AE51:AL51)","v":1},{"$f":"ROUNDDOWN(S$10/$F51,0)-SUM($AE51:AM51)","v":0},{"$f":"ROUNDDOWN(T$10/$F51,0)-SUM($AE51:AN51)","v":1},{"$f":"ROUNDDOWN(U$10/$F51,0)-SUM($AE51:AO51)","v":1},{"$f":"ROUNDDOWN(V$10/$F51,0)-SUM($AE51:AP51)","v":0},{"$f":"ROUNDDOWN(W$10/$F51,0)-SUM($AE51:AQ51)","v":1},{"$f":"ROUNDDOWN(X$10/$F51,0)-SUM($AE51:AR51)","v":0},{"$f":"ROUNDDOWN(Y$10/$F51,0)-SUM($AE51:AS51)","v":1},{"$f":"ROUNDDOWN(Z$10/$F51,0)-SUM($AE51:AT51)","v":0},{"$f":"ROUNDDOWN(AA$10/$F51,0)-SUM($AE51:AU51)","v":1},{"$f":"ROUNDDOWN(AB$10/$F51,0)-SUM($AE51:AV51)","v":1},{"$f":"ROUNDDOWN(AC$10/$F51,0)-SUM($AE51:AW51)","v":0}]
[null,40,"REPARACIÓN DE CARROCERIA","UND",1,600000,4125,{"$f":"+H45","v":"Carrocería "},null,{"$f":"+AE52*$E52*$G52*(1+'Sup Generales'!C$10)","v":0},{"$f":"+AF52*$E52*$G52*(1+'Sup Generales'!D$10)","v":0},{"$f":"+AG52*$E52*$G52*(1+'Sup Generales'!E$10)","v":0},{"$f":"+AH52*$E52*$G52*(1+'Sup Generales'!F$10)","v":0},{"$f":"+AI52*$E52*$G52*(1+'Sup Generales'!G$10)","v":0},{"$f":"+AJ52*$E52*$G52*(1+'Sup Generales'!H$10)","v":0},{"$f":"+AK52*$E52*$G52*(1+'Sup Generales'!I$10)","v":0},{"$f":"+AL52*$E52*$G52*(1+'Sup Generales'!J$10)","v":0},{"$f":"+AM52*$E52*$G52*(1+'Sup Generales'!K$10)","v":4696.8605251919471},{"$f":"+AN52*$E52*$G52*(1+'Sup Generales'!L$10)","v":0},{"$f":"+AO52*$E52*$G52*(1+'Sup Generales'!M$10)","v":0},{"$f":"+AP52*$E52*$G52*(1+'Sup Generales'!N$10)","v":0},{"$f":"+AQ52*$E52*$G52*(1+'Sup Generales'!O$10)","v":0},{"$f":"+AR52*$E52*$G52*(1+'Sup Generales'!P$10)","v":0},{"$f":"+AS52*$E52*$G52*(1+'Sup Generales'!Q$10)","v":0},{"$f":"+AT52*$E52*$G52*(1+'Sup Generales'!R$10)","v":0},{"$f":"+AU52*$E52*$G52*(1+'Sup Generales'!S$10)","v":0},{"$f":"+AV52*$E52*$G52*(1+'Sup Generales'!T$10)","v":5282.6115735174571},{"$f":"+AW52*$E52*$G52*(1+'Sup Generales'!U$10)","v":0},{"$f":"+AX52*$E52*$G52*(1+'Sup Generales'!V$10)","v":0},7.0870892386369075E-3,0,{"$f":"ROUNDDOWN(K$10/$F52,0)-SUM($AE52:AE52)","v":0},{"$f":"ROUNDDOWN(L$10/$F52,0)-SUM($AE52:AF52)","v":0},{"$f":"ROUNDDOWN(M$10/$F52,0)-SUM($AE52:AG52)","v":0},{"$f":"ROUNDDOWN(N$10/$F52,0)-SUM($AE52:AH52)","v":0},{"$f":"ROUNDDOWN(O$10/$F52,0)-SUM($AE52:AI52)","v":0},{"$f":"ROUNDDOWN(P$10/$F52,0)-SUM($AE52:AJ52)","v":0},{"$f":"ROUNDDOWN(Q$10/$F52,0)-SUM($AE52:AK52)","v":0},{"$f":"ROUNDDOWN(R$10/$F52,0)-SUM($AE52:AL52)","v":1},{"$f":"ROUNDDOWN(S$10/$F52,0)-SUM($AE52:AM52)","v":0},{"$f":"ROUNDDOWN(T$10/$F52,0)-SUM($AE52:AN52)","v":0},{"$f":"ROUNDDOWN(U$10/$F52,0)-SUM($AE52:AO52)","v":0},{"$f":"ROUNDDOWN(V$10/$F52,0)-SUM($AE52:AP52)","v":0},{"$f":"ROUNDDOWN(W$10/$F52,0)-SUM($AE52:AQ52)","v":0},{"$f":"ROUNDDOWN(X$10/$F52,0)-SUM($AE52:AR52)","v":0},{"$f":"ROUNDDOWN(Y$10/$F52,0)-SUM($AE52:AS52)","v":0},{"$f":"ROUNDDOWN(Z$10/$F52,0)-SUM($AE52:AT52)","v":0},{"$f":"ROUNDDOWN(AA$10/$F52,0)-SUM($AE52:AU52)","v":1},{"$f":"ROUNDDOWN(AB$10/$F52,0)-SUM($AE52:AV52)","v":0},{"$f":"ROUNDDOWN(AC$10/$F52,0)-SUM($AE52:AW52)","v":0}]
[null,41,"MANO DE OBRA MANTENIMIENTO","UND",1,1,0.03,"Mano de Obra",null,{"$f":"+AE53*$E53*$G53*(1+'Sup Generales'!C$10)","v":2162.8723199999999},{"$f":"+AF53*$E53*$G53*(1+'Sup Generales'!D$10)","v":2197.4782771199998},{"$f":"+AG53*$E53*$G53*(1+'Sup Generales'!E$10)","v":2254.6127123251199},{"$f":"+AH53*$E53*$G53*(1+'Sup Generales'!F$10)","v":2264.3526392423646},{"$f":"+AI53*$E53*$G53*(1+'Sup Generales'!G$10)","v":2270.4663913683189},{"$f":"+AJ53*$E53*$G53*(1+'Sup Generales'!H$10)","v":2285.6785161904868},{"$f":"+AK53*$E53*$G53*(1+'Sup Generales'!I$10)","v":2330.0463932878893},{"$f":"+AL53*$E53*$G53*(1+'Sup Generales'!J$10)","v":2370.4817999551583},{"$f":"+AM53*$E53*$G53*(1+'Sup Generales'!K$10)","v":2404.9975428121033},{"$f":"+AN53*$E53*$G53*(1+'Sup Generales'!L$10)","v":2437.178153793011},{"$f":"+AO53*$E53*$G53*(1+'Sup Generales'!M$10)","v":2468.9914097365827},{"$f":"+AP53*$E53*$G53*(1+'Sup Generales'!N$10)","v":2497.2242776251405},{"$f":"+AQ53*$E53*$G53*(1+'Sup Generales'!O$10)","v":2528.0009504608615},{"$f":"+AR53*$E53*$G53*(1+'Sup Generales'!P$10)","v":2562.1982224735298},{"$f":"+AS53*$E53*$G53*(1+'Sup Generales'!Q$10)","v":2599.0447375536369},{"$f":"+AT53*$E53*$G53*(1+'Sup Generales'!R$10)","v":2634.7868471710094},{"$f":"+AU53*$E53*$G53*(1+'Sup Generales'!S$10)","v":2669.8342068942734},{"$f":"+AV53*$E53*$G53*(1+'Sup Generales'!T$10)","v":2704.9276396005098},{"$f":"+AW53*$E53*$G53*(1+'Sup Generales'!U$10)","v":2740.4024580779437},{"$f":"+AX53*$E53*$G53*(1+'Sup Generales'!V$10)","v":2776.3636157870278},{"$f":"SUM(J53:AC53)/SUM($J$9:$AC$9)","v":3.4911754048997927E-2},70406,{"$f":"ROUNDDOWN(K$10/$F53,0)-SUM($AE53:AE53)","v":70406},{"$f":"ROUNDDOWN(L$10/$F53,0)-SUM($AE53:AF53)","v":70406},{"$f":"ROUNDDOWN(M$10/$F53,0)-SUM($AE53:AG53)","v":70406},{"$f":"ROUNDDOWN(N$10/$F53,0)-SUM($AE53:AH53)","v":70406},{"$f":"ROUNDDOWN(O$10/$F53,0)-SUM($AE53:AI53)","v":70406},{"$f":"ROUNDDOWN(P$10/$F53,0)-SUM($AE53:AJ53)","v":70406},{"$f":"ROUNDDOWN(Q$10/$F53,0)-SUM($AE53:AK53)","v":70406},{"$f":"ROUNDDOWN(R$10/$F53,0)-SUM($AE53:AL53)","v":70406},{"$f":"ROUNDDOWN(S$10/$F53,0)-SUM($AE53:AM53)","v":70406},{"$f":"ROUNDDOWN(T$10/$F53,0)-SUM($AE53:AN53)","v":70406},{"$f":"ROUNDDOWN(U$10/$F53,0)-SUM($AE53:AO53)","v":70406},{"$f":"ROUNDDOWN(V$10/$F53,0)-SUM($AE53:AP53)","v":70406},{"$f":"ROUNDDOWN(W$10/$F53,0)-SUM($AE53:AQ53)","v":70406},{"$f":"ROUNDDOWN(X$10/$F53,0)-SUM($AE53:AR53)","v":70406},{"$f":"ROUNDDOWN(Y$10/$F53,0)-SUM($AE53:AS53)","v":70406},{"$f":"ROUNDDOWN(Z$10/$F53,0)-SUM($AE53:AT53)","v":70406},{"$f":"ROUNDDOWN(AA$10/$F53,0)-SUM($AE53:AU53)","v":70406},{"$f":"ROUNDDOWN(AB$10/$F53,0)-SUM($AE53:AV53)","v":70406},{"$f":"ROUNDDOWN(AC$10/$F53,0)-SUM($AE53:AW53)","v":70406}]
[null,"A1","Filtros y Lubricantes (Híbrido)","UND",1,1,0.158,"Aceites y filtros ",null,{"$f":"+AE54*$E54*$G54*(1+'Sup Generales'!C$10)","v":11391.127552},{"$f":"+AF54*$E54*$G54*(1+'Sup Generales'!D$10)","v":11573.385592831999},{"$f":"+AG54*$E54*$G54*(1+'Sup Generales'!E$10)","v":11874.293618245631},{"$f":"+AH54*$E54*$G54*(1+'Sup Generales'!F$10)","v":11925.590566676454},{"$f":"+AI54*$E54*$G54*(1+'Sup Generales'!G$10)","v":11957.78966120648},{"$f":"+AJ54*$E54*$G54*(1+'Sup Generales'!H$10)","v":12037.906851936563},{"$f":"+AK54*$E54*$G54*(1+'Sup Generales'!I$10)","v":12271.577671316218},{"$f":"+AL54*$E54*$G54*(1+'Sup Generales'!J$10)","v":12484.537479763834},{"$f":"+AM54*$E54*$G54*(1+'Sup Generales'!K$10)","v":12666.320392143745},{"$f":"+AN54*$E54*$G54*(1+'Sup Generales'!L$10)","v":12835.804943309859},{"$f":"+AO54*$E54*$G54*(1+'Sup Generales'!M$10)","v":13003.354757946003},{"$f":"+AP54*$E54*$G54*(1+'Sup Generales'!N$10)","v":13152.047862159074},{"$f":"+AQ54*$E54*$G54*(1+'Sup Generales'!O$10)","v":13314.138339093872},{"$f":"+AR54*$E54*$G54*(1+'Sup Generales'!P$10)","v":13494.243971693924},{"$f":"+AS54*$E54*$G54*(1+'Sup Generales'!Q$10)","v":13688.302284449153},{"$f":"+AT54*$E54*$G54*(1+'Sup Generales'!R$10)","v":13876.544061767316},{"$f":"+AU54*$E54*$G54*(1+'Sup Generales'!S$10)","v":14061.126822976506},{"$f":"+AV54*$E54*$G54*(1+'Sup Generales'!T$10)","v":14245.952235229352},{"$f":"+AW54*$E54*$G54*(1+'Sup Generales'!U$10)","v":14432.786279210502},{"$f":"+AX54*$E54*$G54*(1+'Sup Generales'!V$10)","v":14622.181709811681},{"$f":"SUM(J54:AC54)/SUM($J$9:$AC$9)","v":0.18386857132472245},{"$f":"ROUNDDOWN(J$10/$F54,0)","v":70406},{"$f":"ROUNDDOWN(K$10/$F54,0)-SUM($AE54:AE54)","v":70406},{"$f":"ROUNDDOWN(L$10/$F54,0)-SUM($AE54:AF54)","v":70406},{"$f":"ROUNDDOWN(M$10/$F54,0)-SUM($AE54:AG54)","v":70406},{"$f":"ROUNDDOWN(N$10/$F54,0)-SUM($AE54:AH54)","v":70406},{"$f":"ROUNDDOWN(O$10/$F54,0)-SUM($AE54:AI54)","v":70406},{"$f":"ROUNDDOWN(P$10/$F54,0)-SUM($AE54:AJ54)","v":70406},{"$f":"ROUNDDOWN(Q$10/$F54,0)-SUM($AE54:AK54)","v":70406},{"$f":"ROUNDDOWN(R$10/$F54,0)-SUM($AE54:AL54)","v":70406},{"$f":"ROUNDDOWN(S$10/$F54,0)-SUM($AE54:AM54)","v":70406},{"$f":"ROUNDDOWN(T$10/$F54,0)-SUM($AE54:AN54)","v":70406},{"$f":"ROUNDDOWN(U$10/$F54,0)-SUM($AE54:AO54)","v":70406},{"$f":"ROUNDDOWN(V$10/$F54,0)-SUM($AE54:AP54)","v":70406},{"$f":"ROUNDDOWN(W$10/$F54,0)-SUM($AE54:AQ54)","v":70406},{"$f":"ROUNDDOWN(X$10/$F54,0)-SUM($AE54:AR54)","v":70406},{"$f":"ROUNDDOWN(Y$10/$F54,0)-SUM($AE54:AS54)","v":70406},{"$f":"ROUNDDOWN(Z$10/$F54,0)-SUM($AE54:AT54)","v":70406},{"$f":"ROUNDDOWN(AA$10/$F54,0)-SUM($AE54:AU54)","v":70406},{"$f":"ROUNDDOWN(AB$10/$F54,0)-SUM($AE54:AV54)","v":70406},{"$f":"ROUNDDOWN(AC$10/$F54,0)-SUM($AE54:AW54)","v":70406}]
[null,"A2","Mantenimiento Electrico (Híbrido)","UND",1,1,4.9000000000000002E-2,"Costo de mantenimiento eléctrico ",null,{"$f":"+AE55*$E55*$G55*(1+'Sup Generales'!C$10)","v":3532.6914560000005},{"$f":"+AF55*$E55*$G55*(1+'Sup Generales'!D$10)","v":3589.2145192960002},{"$f":"+AG55*$E55*$G55*(1+'Sup Generales'!E$10)","v":3682.5340967976963},{"$f":"+AH55*$E55*$G55*(1+'Sup Generales'!F$10)","v":3698.4426440958628},{"$f":"+AI55*$E55*$G55*(1+'Sup Generales'!G$10)","v":3708.4284392349214},{"$f":"+AJ55*$E55*$G55*(1+'Sup Generales'!H$10)","v":3733.2749097777951},{"$f":"+AK55*$E55*$G55*(1+'Sup Generales'!I$10)","v":3805.74244237022},{"$f":"+AL55*$E55*$G55*(1+'Sup Generales'!J$10)","v":3871.7869399267593},{"$f":"+AM55*$E55*$G55*(1+'Sup Generales'!K$10)","v":3928.1626532597697},{"$f":"+AN55*$E55*$G55*(1+'Sup Generales'!L$10)","v":3980.7243178619187},{"$f":"+AO55*$E55*$G55*(1+'Sup Generales'!M$10)","v":4032.6859692364187},{"$f":"+AP55*$E55*$G55*(1+'Sup Generales'!N$10)","v":4078.7996534543968},{"$f":"+AQ55*$E55*$G55*(1+'Sup Generales'!O$10)","v":4129.0682190860744},{"$f":"+AR55*$E55*$G55*(1+'Sup Generales'!P$10)","v":4184.9237633734328},{"$f":"+AS55*$E55*$G55*(1+'Sup Generales'!Q$10)","v":4245.1064046709407},{"$f":"+AT55*$E55*$G55*(1+'Sup Generales'!R$10)","v":4303.4851837126489},{"$f":"+AU55*$E55*$G55*(1+'Sup Generales'!S$10)","v":4360.7292045939803},{"$f":"+AV55*$E55*$G55*(1+'Sup Generales'!T$10)","v":4418.048478014166},{"$f":"+AW55*$E55*$G55*(1+'Sup Generales'!U$10)","v":4475.9906815273089},{"$f":"+AX55*$E55*$G55*(1+'Sup Generales'!V$10)","v":4534.7272391188126},5.7022531613363299E-2,70406,{"$f":"ROUNDDOWN(K$10/$F55,0)-SUM($AE55:AE55)","v":70406},{"$f":"ROUNDDOWN(L$10/$F55,0)-SUM($AE55:AF55)","v":70406},{"$f":"ROUNDDOWN(M$10/$F55,0)-SUM($AE55:AG55)","v":70406},{"$f":"ROUNDDOWN(N$10/$F55,0)-SUM($AE55:AH55)","v":70406},{"$f":"ROUNDDOWN(O$10/$F55,0)-SUM($AE55:AI55)","v":70406},{"$f":"ROUNDDOWN(P$10/$F55,0)-SUM($AE55:AJ55)","v":70406},{"$f":"ROUNDDOWN(Q$10/$F55,0)-SUM($AE55:AK55)","v":70406},{"$f":"ROUNDDOWN(R$10/$F55,0)-SUM($AE55:AL55)","v":70406},{"$f":"ROUNDDOWN(S$10/$F55,0)-SUM($AE55:AM55)","v":70406},{"$f":"ROUNDDOWN(T$10/$F55,0)-SUM($AE55:AN55)","v":70406},{"$f":"ROUNDDOWN(U$10/$F55,0)-SUM($AE55:AO55)","v":70406},{"$f":"ROUNDDOWN(V$10/$F55,0)-SUM($AE55:AP55)","v":70406},{"$f":"ROUNDDOWN(W$10/$F55,0)-SUM($AE55:AQ55)","v":70406},{"$f":"ROUNDDOWN(X$10/$F55,0)-SUM($AE55:AR55)","v":70406},{"$f":"ROUNDDOWN(Y$10/$F55,0)-SUM($AE55:AS55)","v":70406},{"$f":"ROUNDDOWN(Z$10/$F55,0)-SUM($AE55:AT55)","v":70406},{"$f":"ROUNDDOWN(AA$10/$F55,0)-SUM($AE55:AU55)","v":70406},{"$f":"ROUNDDOWN(AB$10/$F55,0)-SUM($AE55:AV55)","v":70406},{"$f":"ROUNDDOWN(AC$10/$F55,0)-SUM($AE55:AW55)","v":70406}]
[null,"A3","Manto. Chasis y Motor (Híbrido)","UND",1,1,9.7199999999999995E-2,"Costo de mantenimiento mecánico",null,{"$f":"+AE56*$E56*$G56*(1+'Sup Generales'!C$10)","v":7007.7063167999995},{"$f":"+AF56*$E56*$G56*(1+'Sup Generales'!D$10)","v":7119.8296178687988},{"$f":"+AG56*$E56*$G56*(1+'Sup Generales'!E$10)","v":7304.9451879333883},{"$f":"+AH56*$E56*$G56*(1+'Sup Generales'!F$10)","v":7336.5025511452614},{"$f":"+AI56*$E56*$G56*(1+'Sup Generales'!G$10)","v":7356.3111080333529},{"$f":"+AJ56*$E56*$G56*(1+'Sup Generales'!H$10)","v":7405.5983924571765},{"$f":"+AK56*$E56*$G56*(1+'Sup Generales'!I$10)","v":7549.3503142527616},{"$f":"+AL56*$E56*$G56*(1+'Sup Generales'!J$10)","v":7680.3610318547126},{"$f":"+AM56*$E56*$G56*(1+'Sup Generales'!K$10)","v":7792.192038711215},{"$f":"+AN56*$E56*$G56*(1+'Sup Generales'!L$10)","v":7896.4572182893553},{"$f":"+AO56*$E56*$G56*(1+'Sup Generales'!M$10)","v":7999.5321675465275},{"$f":"+AP56*$E56*$G56*(1+'Sup Generales'!N$10)","v":8091.006659505455},{"$f":"+AQ56*$E56*$G56*(1+'Sup Generales'!O$10)","v":8190.7230794931911},{"$f":"+AR56*$E56*$G56*(1+'Sup Generales'!P$10)","v":8301.5222408142363},{"$f":"+AS56*$E56*$G56*(1+'Sup Generales'!Q$10)","v":8420.9049496737825},{"$f":"+AT56*$E56*$G56*(1+'Sup Generales'!R$10)","v":8536.7093848340701},{"$f":"+AU56*$E56*$G56*(1+'Sup Generales'!S$10)","v":8650.2628303374458},{"$f":"+AV56*$E56*$G56*(1+'Sup Generales'!T$10)","v":8763.9655523056517},{"$f":"+AW56*$E56*$G56*(1+'Sup Generales'!U$10)","v":8878.9039641725376},{"$f":"+AX56*$E56*$G56*(1+'Sup Generales'!V$10)","v":8995.4181151499706},0.11311408311875329,70406,{"$f":"ROUNDDOWN(K$10/$F56,0)-SUM($AE56:AE56)","v":70406},{"$f":"ROUNDDOWN(L$10/$F56,0)-SUM($AE56:AF56)","v":70406},{"$f":"ROUNDDOWN(M$10/$F56,0)-SUM($AE56:AG56)","v":70406},{"$f":"ROUNDDOWN(N$10/$F56,0)-SUM($AE56:AH56)","v":70406},{"$f":"ROUNDDOWN(O$10/$F56,0)-SUM($AE56:AI56)","v":70406},{"$f":"ROUNDDOWN(P$10/$F56,0)-SUM($AE56:AJ56)","v":70406},{"$f":"ROUNDDOWN(Q$10/$F56,0)-SUM($AE56:AK56)","v":70406},{"$f":"ROUNDDOWN(R$10/$F56,0)-SUM($AE56:AL56)","v":70406},{"$f":"ROUNDDOWN(S$10/$F56,0)-SUM($AE56:AM56)","v":70406},{"$f":"ROUNDDOWN(T$10/$F56,0)-SUM($AE56:AN56)","v":70406},{"$f":"ROUNDDOWN(U$10/$F56,0)-SUM($AE56:AO56)","v":70406},{"$f":"ROUNDDOWN(V$10/$F56,0)-SUM($AE56:AP56)","v":70406},{"$f":"ROUNDDOWN(W$10/$F56,0)-SUM($AE56:AQ56)","v":70406},{"$f":"ROUNDDOWN(X$10/$F56,0)-SUM($AE56:AR56)","v":70406},{"$f":"ROUNDDOWN(Y$10/$F56,0)-SUM($AE56:AS56)","v":70406},{"$f":"ROUNDDOWN(Z$10/$F56,0)-SUM($AE56:AT56)","v":70406},{"$f":"ROUNDDOWN(AA$10/$F56,0)-SUM($AE56:AU56)","v":70406},{"$f":"ROUNDDOWN(AB$10/$F56,0)-SUM($AE56:AV56)","v":70406},{"$f":"ROUNDDOWN(AC$10/$F56,0)-SUM($AE56:AW56)","v":70406}]
[null,"A4","Manto. Carroceria (Híbrido)","UND",1,1,1.0800000000000001E-2,"Carrocería ",null,{"$f":"+AE57*$E57*$G57*(1+'Sup Generales'!C$10)","v":778.63403520000008},{"$f":"+AF57*$E57*$G57*(1+'Sup Generales'!D$10)","v":791.09217976320008},{"$f":"+AG57*$E57*$G57*(1+'Sup Generales'!E$10)","v":811.66057643704323},{"$f":"+AH57*$E57*$G57*(1+'Sup Generales'!F$10)","v":815.16695012725143},{"$f":"+AI57*$E57*$G57*(1+'Sup Generales'!G$10)","v":817.36790089259489},{"$f":"+AJ57*$E57*$G57*(1+'Sup Generales'!H$10)","v":822.84426582857532},{"$f":"+AK57*$E57*$G57*(1+'Sup Generales'!I$10)","v":838.81670158364034},{"$f":"+AL57*$E57*$G57*(1+'Sup Generales'!J$10)","v":853.37344798385709},{"$f":"+AM57*$E57*$G57*(1+'Sup Generales'!K$10)","v":865.79911541235731},{"$f":"+AN57*$E57*$G57*(1+'Sup Generales'!L$10)","v":877.3841353654841},{"$f":"+AO57*$E57*$G57*(1+'Sup Generales'!M$10)","v":888.83690750516985},{"$f":"+AP57*$E57*$G57*(1+'Sup Generales'!N$10)","v":899.00073994505067},{"$f":"+AQ57*$E57*$G57*(1+'Sup Generales'!O$10)","v":910.08034216591034},{"$f":"+AR57*$E57*$G57*(1+'Sup Generales'!P$10)","v":922.39136009047081},{"$f":"+AS57*$E57*$G57*(1+'Sup Generales'!Q$10)","v":935.65610551930934},{"$f":"+AT57*$E57*$G57*(1+'Sup Generales'!R$10)","v":948.52326498156356},{"$f":"+AU57*$E57*$G57*(1+'Sup Generales'!S$10)","v":961.1403144819385},{"$f":"+AV57*$E57*$G57*(1+'Sup Generales'!T$10)","v":973.77395025618364},{"$f":"+AW57*$E57*$G57*(1+'Sup Generales'!U$10)","v":986.54488490805977},{"$f":"+AX57*$E57*$G57*(1+'Sup Generales'!V$10)","v":999.49090168333021},1.2568231457639256E-2,70406,{"$f":"ROUNDDOWN(K$10/$F57,0)-SUM($AE57:AE57)","v":70406},{"$f":"ROUNDDOWN(L$10/$F57,0)-SUM($AE57:AF57)","v":70406},{"$f":"ROUNDDOWN(M$10/$F57,0)-SUM($AE57:AG57)","v":70406},{"$f":"ROUNDDOWN(N$10/$F57,0)-SUM($AE57:AH57)","v":70406},{"$f":"ROUNDDOWN(O$10/$F57,0)-SUM($AE57:AI57)","v":70406},{"$f":"ROUNDDOWN(P$10/$F57,0)-SUM($AE57:AJ57)","v":70406},{"$f":"ROUNDDOWN(Q$10/$F57,0)-SUM($AE57:AK57)","v":70406},{"$f":"ROUNDDOWN(R$10/$F57,0)-SUM($AE57:AL57)","v":70406},{"$f":"ROUNDDOWN(S$10/$F57,0)-SUM($AE57:AM57)","v":70406},{"$f":"ROUNDDOWN(T$10/$F57,0)-SUM($AE57:AN57)","v":70406},{"$f":"ROUNDDOWN(U$10/$F57,0)-SUM($AE57:AO57)","v":70406},{"$f":"ROUNDDOWN(V$10/$F57,0)-SUM($AE57:AP57)","v":70406},{"$f":"ROUNDDOWN(W$10/$F57,0)-SUM($AE57:AQ57)","v":70406},{"$f":"ROUNDDOWN(X$10/$F57,0)-SUM($AE57:AR57)","v":70406},{"$f":"ROUNDDOWN(Y$10/$F57,0)-SUM($AE57:AS57)","v":70406},{"$f":"ROUNDDOWN(Z$10/$F57,0)-SUM($AE57:AT57)","v":70406},{"$f":"ROUNDDOWN(AA$10/$F57,0)-SUM($AE57:AU57)","v":70406},{"$f":"ROUNDDOWN(AB$10/$F57,0)-SUM($AE57:AV57)","v":70406},{"$f":"ROUNDDOWN(AC$10/$F57,0)-SUM($AE57:AW57)","v":70406}]
[null,"B1","Filtros y Lubricantes (Eléctrico)","UND",1,1,{"$f":"G54*1.2","v":0.18959999999999999},"Aceites y filtros ",null,{"$f":"+AE58*$E58*$G58*(1+'Sup Generales'!C$10)","v":13669.353062400001},{"$f":"+AF58*$E58*$G58*(1+'Sup Generales'!D$10)","v":13888.062711398399},{"$f":"+AG58*$E58*$G58*(1+'Sup Generales'!E$10)","v":14249.152341894758},{"$f":"+AH58*$E58*$G58*(1+'Sup Generales'!F$10)","v":14310.708680011747},{"$f":"+AI58*$E58*$G58*(1+'Sup Generales'!G$10)","v":14349.347593447777},{"$f":"+AJ58*$E58*$G58*(1+'Sup Generales'!H$10)","v":14445.488222323876},{"$f":"+AK58*$E58*$G58*(1+'Sup Generales'!I$10)","v":14725.893205579463},{"$f":"+AL58*$E58*$G58*(1+'Sup Generales'!J$10)","v":14981.444975716602},{"$f":"+AM58*$E58*$G58*(1+'Sup Generales'!K$10)","v":15199.584470572496},{"$f":"+AN58*$E58*$G58*(1+'Sup Generales'!L$10)","v":15402.965931971832},{"$f":"+AO58*$E58*$G58*(1+'Sup Generales'!M$10)","v":15604.025709535204},{"$f":"+AP58*$E58*$G58*(1+'Sup Generales'!N$10)","v":15782.45743459089},{"$f":"+AQ58*$E58*$G58*(1+'Sup Generales'!O$10)","v":15976.966006912648},{"$f":"+AR58*$E58*$G58*(1+'Sup Generales'!P$10)","v":16193.092766032709},{"$f":"+AS58*$E58*$G58*(1+'Sup Generales'!Q$10)","v":16425.962741338986},{"$f":"+AT58*$E58*$G58*(1+'Sup Generales'!R$10)","v":16651.852874120781},{"$f":"+AU58*$E58*$G58*(1+'Sup Generales'!S$10)","v":16873.352187571811},{"$f":"+AV58*$E58*$G58*(1+'Sup Generales'!T$10)","v":17095.142682275222},{"$f":"+AW58*$E58*$G58*(1+'Sup Generales'!U$10)","v":17319.343535052605},{"$f":"+AX58*$E58*$G58*(1+'Sup Generales'!V$10)","v":17546.618051774018},0.22064228558966692,70406,{"$f":"ROUNDDOWN(K$10/$F58,0)-SUM($AE58:AE58)","v":70406},{"$f":"ROUNDDOWN(L$10/$F58,0)-SUM($AE58:AF58)","v":70406},{"$f":"ROUNDDOWN(M$10/$F58,0)-SUM($AE58:AG58)","v":70406},{"$f":"ROUNDDOWN(N$10/$F58,0)-SUM($AE58:AH58)","v":70406},{"$f":"ROUNDDOWN(O$10/$F58,0)-SUM($AE58:AI58)","v":70406},{"$f":"ROUNDDOWN(P$10/$F58,0)-SUM($AE58:AJ58)","v":70406},{"$f":"ROUNDDOWN(Q$10/$F58,0)-SUM($AE58:AK58)","v":70406},{"$f":"ROUNDDOWN(R$10/$F58,0)-SUM($AE58:AL58)","v":70406},{"$f":"ROUNDDOWN(S$10/$F58,0)-SUM($AE58:AM58)","v":70406},{"$f":"ROUNDDOWN(T$10/$F58,0)-SUM($AE58:AN58)","v":70406},{"$f":"ROUNDDOWN(U$10/$F58,0)-SUM($AE58:AO58)","v":70406},{"$f":"ROUNDDOWN(V$10/$F58,0)-SUM($AE58:AP58)","v":70406},{"$f":"ROUNDDOWN(W$10/$F58,0)-SUM($AE58:AQ58)","v":70406},{"$f":"ROUNDDOWN(X$10/$F58,0)-SUM($AE58:AR58)","v":70406},{"$f":"ROUNDDOWN(Y$10/$F58,0)-SUM($AE58:AS58)","v":70406},{"$f":"ROUNDDOWN(Z$10/$F58,0)-SUM($AE58:AT58)","v":70406},{"$f":"ROUNDDOWN(AA$10/$F58,0)-SUM($AE58:AU58)","v":70406},{"$f":"ROUNDDOWN(AB$10/$F58,0)-SUM($AE58:AV58)","v":70406},{"$f":"ROUNDDOWN(AC$10/$F58,0)-SUM($AE58:AW58)","v":70406}]
[null,"B2","Mantenimiento Electrico (Eléctrico)","UND",1,1,{"$f":"G55*1.2","v":5.8799999999999998E-2},"Costo de mantenimiento eléctrico ",null,{"$f":"+AE59*$E59*$G59*(1+'Sup Generales'!C$10)","v":4239.2297472},{"$f":"+AF59*$E59*$G59*(1+'Sup Generales'!D$10)","v":4307.0574231552},{"$f":"+AG59*$E59*$G59*(1+'Sup Generales'!E$10)","v":4419.0409161572352},{"$f":"+AH59*$E59*$G59*(1+'Sup Generales'!F$10)","v":4438.1311729150357},{"$f":"+AI59*$E59*$G59*(1+'Sup Generales'!G$10)","v":4450.1141270819053},{"$f":"+AJ59*$E59*$G59*(1+'Sup Generales'!H$10)","v":4479.9298917333545},{"$f":"+AK59*$E59*$G59*(1+'Sup Generales'!I$10)","v":4566.8909308442635},{"$f":"+AL59*$E59*$G59*(1+'Sup Generales'!J$10)","v":4646.1443279121113},{"$f":"+AM59*$E59*$G59*(1+'Sup Generales'!K$10)","v":4713.7951839117231},{"$f":"+AN59*$E59*$G59*(1+'Sup Generales'!L$10)","v":4776.8691814343019},{"$f":"+AO59*$E59*$G59*(1+'Sup Generales'!M$10)","v":4839.2231630837023},{"$f":"+AP59*$E59*$G59*(1+'Sup Generales'!N$10)","v":4894.5595841452759},{"$f":"+AQ59*$E59*$G59*(1+'Sup Generales'!O$10)","v":4954.8818629032894},{"$f":"+AR59*$E59*$G59*(1+'Sup Generales'!P$10)","v":5021.9085160481191},{"$f":"+AS59*$E59*$G59*(1+'Sup Generales'!Q$10)","v":5094.1276856051281},{"$f":"+AT59*$E59*$G59*(1+'Sup Generales'!R$10)","v":5164.182220455179},{"$f":"+AU59*$E59*$G59*(1+'Sup Generales'!S$10)","v":5232.8750455127765},{"$f":"+AV59*$E59*$G59*(1+'Sup Generales'!T$10)","v":5301.6581736169992},{"$f":"+AW59*$E59*$G59*(1+'Sup Generales'!U$10)","v":5371.1888178327699},{"$f":"+AX59*$E59*$G59*(1+'Sup Generales'!V$10)","v":5441.6726869425756},6.8427037936035953E-2,70406,{"$f":"ROUNDDOWN(K$10/$F59,0)-SUM($AE59:AE59)","v":70406},{"$f":"ROUNDDOWN(L$10/$F59,0)-SUM($AE59:AF59)","v":70406},{"$f":"ROUNDDOWN(M$10/$F59,0)-SUM($AE59:AG59)","v":70406},{"$f":"ROUNDDOWN(N$10/$F59,0)-SUM($AE59:AH59)","v":70406},{"$f":"ROUNDDOWN(O$10/$F59,0)-SUM($AE59:AI59)","v":70406},{"$f":"ROUNDDOWN(P$10/$F59,0)-SUM($AE59:AJ59)","v":70406},{"$f":"ROUNDDOWN(Q$10/$F59,0)-SUM($AE59:AK59)","v":70406},{"$f":"ROUNDDOWN(R$10/$F59,0)-SUM($AE59:AL59)","v":70406},{"$f":"ROUNDDOWN(S$10/$F59,0)-SUM($AE59:AM59)","v":70406},{"$f":"ROUNDDOWN(T$10/$F59,0)-SUM($AE59:AN59)","v":70406},{"$f":"ROUNDDOWN(U$10/$F59,0)-SUM($AE59:AO59)","v":70406},{"$f":"ROUNDDOWN(V$10/$F59,0)-SUM($AE59:AP59)","v":70406},{"$f":"ROUNDDOWN(W$10/$F59,0)-SUM($AE59:AQ59)","v":70406},{"$f":"ROUNDDOWN(X$10/$F59,0)-SUM($AE59:AR59)","v":70406},{"$f":"ROUNDDOWN(Y$10/$F59,0)-SUM($AE59:AS59)","v":70406},{"$f":"ROUNDDOWN(Z$10/$F59,0)-SUM($AE59:AT59)","v":70406},{"$f":"ROUNDDOWN(AA$10/$F59,0)-SUM($AE59:AU59)","v":70406},{"$f":"ROUNDDOWN(AB$10/$F59,0)-SUM($AE59:AV59)","v":70406},{"$f":"ROUNDDOWN(AC$10/$F59,0)-SUM($AE59:AW59)","v":70406}]
[null,"B3","Manto. Chasis y Motor (Eléctrico)","UND",1,1,{"$f":"G56*1.2","v":0.11663999999999999},"Costo de mantenimiento mecánico",null,{"$f":"+AE60*$E60*$G60*(1+'Sup Generales'!C$10)","v":8409.2475801599994},{"$f":"+AF60*$E60*$G60*(1+'Sup Generales'!D$10)","v":8543.7955414425596},{"$f":"+AG60*$E60*$G60*(1+'Sup Generales'!E$10)","v":8765.9342255200663},{"$f":"+AH60*$E60*$G60*(1+'Sup Generales'!F$10)","v":8803.803061374314},{"$f":"+AI60*$E60*$G60*(1+'Sup Generales'!G$10)","v":8827.5733296400249},{"$f":"+AJ60*$E60*$G60*(1+'Sup Generales'!H$10)","v":8886.7180709486111},{"$f":"+AK60*$E60*$G60*(1+'Sup Generales'!I$10)","v":9059.2203771033146},{"$f":"+AL60*$E60*$G60*(1+'Sup Generales'!J$10)","v":9216.4332382256562},{"$f":"+AM60*$E60*$G60*(1+'Sup Generales'!K$10)","v":9350.6304464534587},{"$f":"+AN60*$E60*$G60*(1+'Sup Generales'!L$10)","v":9475.7486619472274},{"$f":"+AO60*$E60*$G60*(1+'Sup Generales'!M$10)","v":9599.4386010558337},{"$f":"+AP60*$E60*$G60*(1+'Sup Generales'!N$10)","v":9709.2079914065471},{"$f":"+AQ60*$E60*$G60*(1+'Sup Generales'!O$10)","v":9828.8676953918293},{"$f":"+AR60*$E60*$G60*(1+'Sup Generales'!P$10)","v":9961.8266889770839},{"$f":"+AS60*$E60*$G60*(1+'Sup Generales'!Q$10)","v":10105.08593960854},{"$f":"+AT60*$E60*$G60*(1+'Sup Generales'!R$10)","v":10244.051261800885},{"$f":"+AU60*$E60*$G60*(1+'Sup Generales'!S$10)","v":10380.315396404934},{"$f":"+AV60*$E60*$G60*(1+'Sup Generales'!T$10)","v":10516.758662766782},{"$f":"+AW60*$E60*$G60*(1+'Sup Generales'!U$10)","v":10654.684757007044},{"$f":"+AX60*$E60*$G60*(1+'Sup Generales'!V$10)","v":10794.501738179964},0.13573689974250397,70406,{"$f":"ROUNDDOWN(K$10/$F60,0)-SUM($AE60:AE60)","v":70406},{"$f":"ROUNDDOWN(L$10/$F60,0)-SUM($AE60:AF60)","v":70406},{"$f":"ROUNDDOWN(M$10/$F60,0)-SUM($AE60:AG60)","v":70406},{"$f":"ROUNDDOWN(N$10/$F60,0)-SUM($AE60:AH60)","v":70406},{"$f":"ROUNDDOWN(O$10/$F60,0)-SUM($AE60:AI60)","v":70406},{"$f":"ROUNDDOWN(P$10/$F60,0)-SUM($AE60:AJ60)","v":70406},{"$f":"ROUNDDOWN(Q$10/$F60,0)-SUM($AE60:AK60)","v":70406},{"$f":"ROUNDDOWN(R$10/$F60,0)-SUM($AE60:AL60)","v":70406},{"$f":"ROUNDDOWN(S$10/$F60,0)-SUM($AE60:AM60)","v":70406},{"$f":"ROUNDDOWN(T$10/$F60,0)-SUM($AE60:AN60)","v":70406},{"$f":"ROUNDDOWN(U$10/$F60,0)-SUM($AE60:AO60)","v":70406},{"$f":"ROUNDDOWN(V$10/$F60,0)-SUM($AE60:AP60)","v":70406},{"$f":"ROUNDDOWN(W$10/$F60,0)-SUM($AE60:AQ60)","v":70406},{"$f":"ROUNDDOWN(X$10/$F60,0)-SUM($AE60:AR60)","v":70406},{"$f":"ROUNDDOWN(Y$10/$F60,0)-SUM($AE60:AS60)","v":70406},{"$f":"ROUNDDOWN(Z$10/$F60,0)-SUM($AE60:AT60)","v":70406},{"$f":"ROUNDDOWN(AA$10/$F60,0)-SUM($AE60:AU60)","v":70406},{"$f":"ROUNDDOWN(AB$10/$F60,0)-SUM($AE60:AV60)","v":70406},{"$f":"ROUNDDOWN(AC$10/$F60,0)-SUM($AE60:AW60)","v":70406}]
[null,"B4","Manto. Carroceria (Eléctrico)","UND",1,1,1.2960000000000001E-2,"Carrocería ",null,{"$f":"+AE61*$E61*$G61*(1+'Sup Generales'!C$10)","v":934.36084224000001},{"$f":"+AF61*$E61*$G61*(1+'Sup Generales'!D$10)","v":949.31061571583996},{"$f":"+AG61*$E61*$G61*(1+'Sup Generales'!E$10)","v":973.9926917244519},{"$f":"+AH61*$E61*$G61*(1+'Sup Generales'!F$10)","v":978.20034015270164},{"$f":"+AI61*$E61*$G61*(1+'Sup Generales'!G$10)","v":980.84148107111389},{"$f":"+AJ61*$E61*$G61*(1+'Sup Generales'!H$10)","v":987.41311899429036},{"$f":"+AK61*$E61*$G61*(1+'Sup Generales'!I$10)","v":1006.5800419003683},{"$f":"+AL61*$E61*$G61*(1+'Sup Generales'!J$10)","v":1024.0481375806285},{"$f":"+AM61*$E61*$G61*(1+'Sup Generales'!K$10)","v":1038.9589384948288},{"$f":"+AN61*$E61*$G61*(1+'Sup Generales'!L$10)","v":1052.8609624385808},{"$f":"+AO61*$E61*$G61*(1+'Sup Generales'!M$10)","v":1066.6042890062038},{"$f":"+AP61*$E61*$G61*(1+'Sup Generales'!N$10)","v":1078.8008879340607},{"$f":"+AQ61*$E61*$G61*(1+'Sup Generales'!O$10)","v":1092.0964105990925},{"$f":"+AR61*$E61*$G61*(1+'Sup Generales'!P$10)","v":1106.8696321085649},{"$f":"+AS61*$E61*$G61*(1+'Sup Generales'!Q$10)","v":1122.7873266231711},{"$f":"+AT61*$E61*$G61*(1+'Sup Generales'!R$10)","v":1138.2279179778761},{"$f":"+AU61*$E61*$G61*(1+'Sup Generales'!S$10)","v":1153.3683773783262},{"$f":"+AV61*$E61*$G61*(1+'Sup Generales'!T$10)","v":1168.5287403074203},{"$f":"+AW61*$E61*$G61*(1+'Sup Generales'!U$10)","v":1183.8538618896716},{"$f":"+AX61*$E61*$G61*(1+'Sup Generales'!V$10)","v":1199.3890820199963},1.5081877749167107E-2,70406,{"$f":"ROUNDDOWN(K$10/$F61,0)-SUM($AE61:AE61)","v":70406},{"$f":"ROUNDDOWN(L$10/$F61,0)-SUM($AE61:AF61)","v":70406},{"$f":"ROUNDDOWN(M$10/$F61,0)-SUM($AE61:AG61)","v":70406},{"$f":"ROUNDDOWN(N$10/$F61,0)-SUM($AE61:AH61)","v":70406},{"$f":"ROUNDDOWN(O$10/$F61,0)-SUM($AE61:AI61)","v":70406},{"$f":"ROUNDDOWN(P$10/$F61,0)-SUM($AE61:AJ61)","v":70406},{"$f":"ROUNDDOWN(Q$10/$F61,0)-SUM($AE61:AK61)","v":70406},{"$f":"ROUNDDOWN(R$10/$F61,0)-SUM($AE61:AL61)","v":70406},{"$f":"ROUNDDOWN(S$10/$F61,0)-SUM($AE61:AM61)","v":70406},{"$f":"ROUNDDOWN(T$10/$F61,0)-SUM($AE61:AN61)","v":70406},{"$f":"ROUNDDOWN(U$10/$F61,0)-SUM($AE61:AO61)","v":70406},{"$f":"ROUNDDOWN(V$10/$F61,0)-SUM($AE61:AP61)","v":70406},{"$f":"ROUNDDOWN(W$10/$F61,0)-SUM($AE61:AQ61)","v":70406},{"$f":"ROUNDDOWN(X$10/$F61,0)-SUM($AE61:AR61)","v":70406},{"$f":"ROUNDDOWN(Y$10/$F61,0)-SUM($AE61:AS61)","v":70406},{"$f":"ROUNDDOWN(Z$10/$F61,0)-SUM($AE61:AT61)","v":70406},{"$f":"ROUNDDOWN(AA$10/$F61,0)-SUM($AE61:AU61)","v":70406},{"$f":"ROUNDDOWN(AB$10/$F61,0)-SUM($AE61:AV61)","v":70406},{"$f":"ROUNDDOWN(AC$10/$F61,0)-SUM($AE61:AW61)","v":70406}]
[null,"C1","Filtros y Lubricantes (Gas)","UND",1,1,0.158,"Aceites y filtros ",null,{"$f":"+AE62*$E62*$G62*(1+'Sup Generales'!C$10)","v":11391.127552},{"$f":"+AF62*$E62*$G62*(1+'Sup Generales'!D$10)","v":11573.385592831999},{"$f":"+AG62*$E62*$G62*(1+'Sup Generales'!E$10)","v":11874.293618245631},{"$f":"+AH62*$E62*$G62*(1+'Sup Generales'!F$10)","v":11925.590566676454},{"$f":"+AI62*$E62*$G62*(1+'Sup Generales'!G$10)","v":11957.78966120648},{"$f":"+AJ62*$E62*$G62*(1+'Sup Generales'!H$10)","v":12037.906851936563},{"$f":"+AK62*$E62*$G62*(1+'Sup Generales'!I$10)","v":12271.577671316218},{"$f":"+AL62*$E62*$G62*(1+'Sup Generales'!J$10)","v":12484.537479763834},{"$f":"+AM62*$E62*$G62*(1+'Sup Generales'!K$10)","v":12666.320392143745},{"$f":"+AN62*$E62*$G62*(1+'Sup Generales'!L$10)","v":12835.804943309859},{"$f":"+AO62*$E62*$G62*(1+'Sup Generales'!M$10)","v":13003.354757946003},{"$f":"+AP62*$E62*$G62*(1+'Sup Generales'!N$10)","v":13152.047862159074},{"$f":"+AQ62*$E62*$G62*(1+'Sup Generales'!O$10)","v":13314.138339093872},{"$f":"+AR62*$E62*$G62*(1+'Sup Generales'!P$10)","v":13494.243971693924},{"$f":"+AS62*$E62*$G62*(1+'Sup Generales'!Q$10)","v":13688.302284449153},{"$f":"+AT62*$E62*$G62*(1+'Sup Generales'!R$10)","v":13876.544061767316},{"$f":"+AU62*$E62*$G62*(1+'Sup Generales'!S$10)","v":14061.126822976506},{"$f":"+AV62*$E62*$G62*(1+'Sup Generales'!T$10)","v":14245.952235229352},{"$f":"+AW62*$E62*$G62*(1+'Sup Generales'!U$10)","v":14432.786279210502},{"$f":"+AX62*$E62*$G62*(1+'Sup Generales'!V$10)","v":14622.181709811681},0.18386857132472245,70406,{"$f":"ROUNDDOWN(K$10/$F62,0)-SUM($AE62:AE62)","v":70406},{"$f":"ROUNDDOWN(L$10/$F62,0)-SUM($AE62:AF62)","v":70406},{"$f":"ROUNDDOWN(M$10/$F62,0)-SUM($AE62:AG62)","v":70406},{"$f":"ROUNDDOWN(N$10/$F62,0)-SUM($AE62:AH62)","v":70406},{"$f":"ROUNDDOWN(O$10/$F62,0)-SUM($AE62:AI62)","v":70406},{"$f":"ROUNDDOWN(P$10/$F62,0)-SUM($AE62:AJ62)","v":70406},{"$f":"ROUNDDOWN(Q$10/$F62,0)-SUM($AE62:AK62)","v":70406},{"$f":"ROUNDDOWN(R$10/$F62,0)-SUM($AE62:AL62)","v":70406},{"$f":"ROUNDDOWN(S$10/$F62,0)-SUM($AE62:AM62)","v":70406},{"$f":"ROUNDDOWN(T$10/$F62,0)-SUM($AE62:AN62)","v":70406},{"$f":"ROUNDDOWN(U$10/$F62,0)-SUM($AE62:AO62)","v":70406},{"$f":"ROUNDDOWN(V$10/$F62,0)-SUM($AE62:AP62)","v":70406},{"$f":"ROUNDDOWN(W$10/$F62,0)-SUM($AE62:AQ62)","v":70406},{"$f":"ROUNDDOWN(X$10/$F62,0)-SUM($AE62:AR62)","v":70406},{"$f":"ROUNDDOWN(Y$10/$F62,0)-SUM($AE62:AS62)","v":70406},{"$f":"ROUNDDOWN(Z$10/$F62,0)-SUM($AE62:AT62)","v":70406},{"$f":"ROUNDDOWN(AA$10/$F62,0)-SUM($AE62:AU62)","v":70406},{"$f":"ROUNDDOWN(AB$10/$F62,0)-SUM($AE62:AV62)","v":70406},{"$f":"ROUNDDOWN(AC$10/$F62,0)-SUM($AE62:AW62)","v":70406}]
[null,"C2","Mantenimiento Electrico (Gas)","UND",1,1,4.9000000000000002E-2,"Costo de mantenimiento eléctrico ",null,{"$f":"+AE63*$E63*$G63*(1+'Sup Generales'!C$10)","v":3532.6914560000005},{"$f":"+AF63*$E63*$G63*(1+'Sup Generales'!D$10)","v":3589.2145192960002},{"$f":"+AG63*$E63*$G63*(1+'Sup Generales'!E$10)","v":3682.5340967976963},{"$f":"+AH63*$E63*$G63*(1+'Sup Generales'!F$10)","v":3698.4426440958628},{"$f":"+AI63*$E63*$G63*(1+'Sup Generales'!G$10)","v":3708.4284392349214},{"$f":"+AJ63*$E63*$G63*(1+'Sup Generales'!H$10)","v":3733.2749097777951},{"$f":"+AK63*$E63*$G63*(1+'Sup Generales'!I$10)","v":3805.74244237022},{"$f":"+AL63*$E63*$G63*(1+'Sup Generales'!J$10)","v":3871.7869399267593},{"$f":"+AM63*$E63*$G63*(1+'Sup Generales'!K$10)","v":3928.1626532597697},{"$f":"+AN63*$E63*$G63*(1+'Sup Generales'!L$10)","v":3980.7243178619187},{"$f":"+AO63*$E63*$G63*(1+'Sup Generales'!M$10)","v":4032.6859692364187},{"$f":"+AP63*$E63*$G63*(1+'Sup Generales'!N$10)","v":4078.7996534543968},{"$f":"+AQ63*$E63*$G63*(1+'Sup Generales'!O$10)","v":4129.0682190860744},{"$f":"+AR63*$E63*$G63*(1+'Sup Generales'!P$10)","v":4184.9237633734328},{"$f":"+AS63*$E63*$G63*(1+'Sup Generales'!Q$10)","v":4245.1064046709407},{"$f":"+AT63*$E63*$G63*(1+'Sup Generales'!R$10)","v":4303.4851837126489},{"$f":"+AU63*$E63*$G63*(1+'Sup Generales'!S$10)","v":4360.7292045939803},{"$f":"+AV63*$E63*$G63*(1+'Sup Generales'!T$10)","v":4418.048478014166},{"$f":"+AW63*$E63*$G63*(1+'Sup Generales'!U$10)","v":4475.9906815273089},{"$f":"+AX63*$E63*$G63*(1+'Sup Generales'!V$10)","v":4534.7272391188126},5.7022531613363299E-2,70406,{"$f":"ROUNDDOWN(K$10/$F63,0)-SUM($AE63:AE63)","v":70406},{"$f":"ROUNDDOWN(L$10/$F63,0)-SUM($AE63:AF63)","v":70406},{"$f":"ROUNDDOWN(M$10/$F63,0)-SUM($AE63:AG63)","v":70406},{"$f":"ROUNDDOWN(N$10/$F63,0)-SUM($AE63:AH63)","v":70406},{"$f":"ROUNDDOWN(O$10/$F63,0)-SUM($AE63:AI63)","v":70406},{"$f":"ROUNDDOWN(P$10/$F63,0)-SUM($AE63:AJ63)","v":70406},{"$f":"ROUNDDOWN(Q$10/$F63,0)-SUM($AE63:AK63)","v":70406},{"$f":"ROUNDDOWN(R$10/$F63,0)-SUM($AE63:AL63)","v":70406},{"$f":"ROUNDDOWN(S$10/$F63,0)-SUM($AE63:AM63)","v":70406},{"$f":"ROUNDDOWN(T$10/$F63,0)-SUM($AE63:AN63)","v":70406},{"$f":"ROUNDDOWN(U$10/$F63,0)-SUM($AE63:AO63)","v":70406},{"$f":"ROUNDDOWN(V$10/$F63,0)-SUM($AE63:AP63)","v":70406},{"$f":"ROUNDDOWN(W$10/$F63,0)-SUM($AE63:AQ63)","v":70406},{"$f":"ROUNDDOWN(X$10/$F63,0)-SUM($AE63:AR63)","v":70406},{"$f":"ROUNDDOWN(Y$10/$F63,0)-SUM($AE63:AS63)","v":70406},{"$f":"ROUNDDOWN(Z$10/$F63,0)-SUM($AE63:AT63)","v":70406},{"$f":"ROUNDDOWN(AA$10/$F63,0)-SUM($AE63:AU63)","v":70406},{"$f":"ROUNDDOWN(AB$10/$F63,0)-SUM($AE63:AV63)","v":70406},{"$f":"ROUNDDOWN(AC$10/$F63,0)-SUM($AE63:AW63)","v":70406}]
[null,"C3","Manto. Chasis y Motor (Gas)","UND",1,1,9.7199999999999995E-2,"Costo de mantenimiento mecánico",null,{"$f":"+AE64*$E64*$G64*(1+'Sup Generales'!C$10)","v":7007.7063167999995},{"$f":"+AF64*$E64*$G64*(1+'Sup Generales'!D$10)","v":7119.8296178687988},{"$f":"+AG64*$E64*$G64*(1+'Sup Generales'!E$10)","v":7304.9451879333883},{"$f":"+AH64*$E64*$G64*(1+'Sup Generales'!F$10)","v":7336.5025511452614},{"$f":"+AI64*$E64*$G64*(1+'Sup Generales'!G$10)","v":7356.3111080333529},{"$f":"+AJ64*$E64*$G64*(1+'Sup Generales'!H$10)","v":7405.5983924571765},{"$f":"+AK64*$E64*$G64*(1+'Sup Generales'!I$10)","v":7549.3503142527616},{"$f":"+AL64*$E64*$G64*(1+'Sup Generales'!J$10)","v":7680.3610318547126},{"$f":"+AM64*$E64*$G64*(1+'Sup Generales'!K$10)","v":7792.192038711215},{"$f":"+AN64*$E64*$G64*(1+'Sup Generales'!L$10)","v":7896.4572182893553},{"$f":"+AO64*$E64*$G64*(1+'Sup Generales'!M$10)","v":7999.5321675465275},{"$f":"+AP64*$E64*$G64*(1+'Sup Generales'!N$10)","v":8091.006659505455},{"$f":"+AQ64*$E64*$G64*(1+'Sup Generales'!O$10)","v":8190.7230794931911},{"$f":"+AR64*$E64*$G64*(1+'Sup Generales'!P$10)","v":8301.5222408142363},{"$f":"+AS64*$E64*$G64*(1+'Sup Generales'!Q$10)","v":8420.9049496737825},{"$f":"+AT64*$E64*$G64*(1+'Sup Generales'!R$10)","v":8536.7093848340701},{"$f":"+AU64*$E64*$G64*(1+'Sup Generales'!S$10)","v":8650.2628303374458},{"$f":"+AV64*$E64*$G64*(1+'Sup Generales'!T$10)","v":8763.9655523056517},{"$f":"+AW64*$E64*$G64*(1+'Sup Generales'!U$10)","v":8878.9039641725376},{"$f":"+AX64*$E64*$G64*(1+'Sup Generales'!V$10)","v":8995.4181151499706},0.11311408311875329,70406,{"$f":"ROUNDDOWN(K$10/$F64,0)-SUM($AE64:AE64)","v":70406},{"$f":"ROUNDDOWN(L$10/$F64,0)-SUM($AE64:AF64)","v":70406},{"$f":"ROUNDDOWN(M$10/$F64,0)-SUM($AE64:AG64)","v":70406},{"$f":"ROUNDDOWN(N$10/$F64,0)-SUM($AE64:AH64)","v":70406},{"$f":"ROUNDDOWN(O$10/$F64,0)-SUM($AE64:AI64)","v":70406},{"$f":"ROUNDDOWN(P$10/$F64,0)-SUM($AE64:AJ64)","v":70406},{"$f":"ROUNDDOWN(Q$10/$F64,0)-SUM($AE64:AK64)","v":70406},{"$f":"ROUNDDOWN(R$10/$F64,0)-SUM($AE64:AL64)","v":70406},{"$f":"ROUNDDOWN(S$10/$F64,0)-SUM($AE64:AM64)","v":70406},{"$f":"ROUNDDOWN(T$10/$F64,0)-SUM($AE64:AN64)","v":70406},{"$f":"ROUNDDOWN(U$10/$F64,0)-SUM($AE64:AO64)","v":70406},{"$f":"ROUNDDOWN(V$10/$F64,0)-SUM($AE64:AP64)","v":70406},{"$f":"ROUNDDOWN(W$10/$F64,0)-SUM($AE64:AQ64)","v":70406},{"$f":"ROUNDDOWN(X$10/$F64,0)-SUM($AE64:AR64)","v":70406},{"$f":"ROUNDDOWN(Y$10/$F64,0)-SUM($AE64:AS64)","v":70406},{"$f":"ROUNDDOWN(Z$10/$F64,0)-SUM($AE64:AT64)","v":70406},{"$f":"ROUNDDOWN(AA$10/$F64,0)-SUM($AE64:AU64)","v":70406},{"$f":"ROUNDDOWN(AB$10/$F64,0)-SUM($AE64:AV64)","v":70406},{"$f":"ROUNDDOWN(AC$10/$F64,0)-SUM($AE64:AW64)","v":70406}]
[null,"C4","Manto. Carroceria (Gas)","UND",1,1,1.0800000000000001E-2,"Carrocería ",null,{"$f":"+AE65*$E65*$G65*(1+'Sup Generales'!C$10)","v":778.63403520000008},{"$f":"+AF65*$E65*$G65*(1+'Sup Generales'!D$10)","v":791.09217976320008},{"$f":"+AG65*$E65*$G65*(1+'Sup Generales'!E$10)","v":811.66057643704323},{"$f":"+AH65*$E65*$G65*(1+'Sup Generales'!F$10)","v":815.16695012725143},{"$f":"+AI65*$E65*$G65*(1+'Sup Generales'!G$10)","v":817.36790089259489},{"$f":"+AJ65*$E65*$G65*(1+'Sup Generales'!H$10)","v":822.84426582857532},{"$f":"+AK65*$E65*$G65*(1+'Sup Generales'!I$10)","v":838.81670158364034},{"$f":"+AL65*$E65*$G65*(1+'Sup Generales'!J$10)","v":853.37344798385709},{"$f":"+AM65*$E65*$G65*(1+'Sup Generales'!K$10)","v":865.79911541235731},{"$f":"+AN65*$E65*$G65*(1+'Sup Generales'!L$10)","v":877.3841353654841},{"$f":"+AO65*$E65*$G65*(1+'Sup Generales'!M$10)","v":888.83690750516985},{"$f":"+AP65*$E65*$G65*(1+'Sup Generales'!N$10)","v":899.00073994505067},{"$f":"+AQ65*$E65*$G65*(1+'Sup Generales'!O$10)","v":910.08034216591034},{"$f":"+AR65*$E65*$G65*(1+'Sup Generales'!P$10)","v":922.39136009047081},{"$f":"+AS65*$E65*$G65*(1+'Sup Generales'!Q$10)","v":935.65610551930934},{"$f":"+AT65*$E65*$G65*(1+'Sup Generales'!R$10)","v":948.52326498156356},{"$f":"+AU65*$E65*$G65*(1+'Sup Generales'!S$10)","v":961.1403144819385},{"$f":"+AV65*$E65*$G65*(1+'Sup Generales'!T$10)","v":973.77395025618364},{"$f":"+AW65*$E65*$G65*(1+'Sup Generales'!U$10)","v":986.54488490805977},{"$f":"+AX65*$E65*$G65*(1+'Sup Generales'!V$10)","v":999.49090168333021},1.2568231457639256E-2,70406,{"$f":"ROUNDDOWN(K$10/$F65,0)-SUM($AE65:AE65)","v":70406},{"$f":"ROUNDDOWN(L$10/$F65,0)-SUM($AE65:AF65)","v":70406},{"$f":"ROUNDDOWN(M$10/$F65,0)-SUM($AE65:AG65)","v":70406},{"$f":"ROUNDDOWN(N$10/$F65,0)-SUM($AE65:AH65)","v":70406},{"$f":"ROUNDDOWN(O$10/$F65,0)-SUM($AE65:AI65)","v":70406},{"$f":"ROUNDDOWN(P$10/$F65,0)-SUM($AE65:AJ65)","v":70406},{"$f":"ROUNDDOWN(Q$10/$F65,0)-SUM($AE65:AK65)","v":70406},{"$f":"ROUNDDOWN(R$10/$F65,0)-SUM($AE65:AL65)","v":70406},{"$f":"ROUNDDOWN(S$10/$F65,0)-SUM($AE65:AM65)","v":70406},{"$f":"ROUNDDOWN(T$10/$F65,0)-SUM($AE65:AN65)","v":70406},{"$f":"ROUNDDOWN(U$10/$F65,0)-SUM($AE65:AO65)","v":70406},{"$f":"ROUNDDOWN(V$10/$F65,0)-SUM($AE65:AP65)","v":70406},{"$f":"ROUNDDOWN(W$10/$F65,0)-SUM($AE65:AQ65)","v":70406},{"$f":"ROUNDDOWN(X$10/$F65,0)-SUM($AE65:AR65)","v":70406},{"$f":"ROUNDDOWN(Y$10/$F65,0)-SUM($AE65:AS65)","v":70406},{"$f":"ROUNDDOWN(Z$10/$F65,0)-SUM($AE65:AT65)","v":70406},{"$f":"ROUNDDOWN(AA$10/$F65,0)-SUM($AE65:AU65)","v":70406},{"$f":"ROUNDDOWN(AB$10/$F65,0)-SUM($AE65:AV65)","v":70406},{"$f":"ROUNDDOWN(AC$10/$F65,0)-SUM($AE65:AW65)","v":70406}]
[]
[]
[null,null,null,null,null,null,null,"Total ",null,{"$f":"IF('Sup fijo'!$C$90='Sup fijo'!$AR$2,SUM(J13:J52),0)+IF('Sup fijo'!$C$90='Sup fijo'!$AS$2,SUM(J54:J57),0)+IF('Sup fijo'!$C$90='Sup fijo'!$AT$2,SUM(J58:J61),0)+IF('Sup fijo'!$C$90='Sup fijo'!$AU$2,SUM(J62:J65),0)+IF($L$1=$D$6,J53,0)","v":12336.300885333334},{"$f":"IF('Sup fijo'!$C$90='Sup fijo'!$AR$2,SUM(K13:K52),0)+IF('Sup fijo'!$C$90='Sup fijo'!$AS$2,SUM(K54:K57),0)+IF('Sup fijo'!$C$90='Sup fijo'!$AT$2,SUM(K58:K61),0)+IF('Sup fijo'!$C$90='Sup fijo'!$AU$2,SUM(K62:K65),0)+IF($L$1=$D$6,K53,0)","v":19556.147069903232},{"$f":"IF('Sup fijo'!$C$90='Sup fijo'!$AR$2,SUM(L13:L52),0)+IF('Sup fijo'!$C$90='Sup fijo'!$AS$2,SUM(L54:L57),0)+IF('Sup fijo'!$C$90='Sup fijo'!$AT$2,SUM(L58:L61),0)+IF('Sup fijo'!$C$90='Sup fijo'!$AU$2,SUM(L62:L65),0)+IF($L$1=$D$6,L53,0)","v":15974.050782086289},{"$f":"IF('Sup fijo'!$C$90='Sup fijo'!$AR$2,SUM(M13:M52),0)+IF('Sup fijo'!$C$90='Sup fijo'!$AS$2,SUM(M54:M57),0)+IF('Sup fijo'!$C$90='Sup fijo'!$AT$2,SUM(M58:M61),0)+IF('Sup fijo'!$C$90='Sup fijo'!$AU$2,SUM(M62:M65),0)+IF($L$1=$D$6,M53,0)","v":26292.68188153112},{"$f":"IF('Sup fijo'!$C$90='Sup fijo'!$AR$2,SUM(N13:N52),0)+IF('Sup fijo'!$C$90='Sup fijo'!$AS$2,SUM(N54:N57),0)+IF('Sup fijo'!$C$90='Sup fijo'!$AT$2,SUM(N58:N61),0)+IF('Sup fijo'!$C$90='Sup fijo'!$AU$2,SUM(N62:N65),0)+IF($L$1=$D$6,N53,0)","v":13295.252181220689},{"$f":"IF('Sup fijo'!$C$90='Sup fijo'!$AR$2,SUM(O13:O52),0)+IF('Sup fijo'!$C$90='Sup fijo'!$AS$2,SUM(O54:O57),0)+IF('Sup fijo'!$C$90='Sup fijo'!$AT$2,SUM(O58:O61),0)+IF('Sup fijo'!$C$90='Sup fijo'!$AU$2,SUM(O62:O65),0)+IF($L$1=$D$6,O53,0)","v":25678.188366440027},{"$f":"IF('Sup fijo'!$C$90='Sup fijo'!$AR$2,SUM(P13:P52),0)+IF('Sup fijo'!$C$90='Sup fijo'!$AS$2,SUM(P54:P57),0)+IF('Sup fijo'!$C$90='Sup fijo'!$AT$2,SUM(P58:P61),0)+IF('Sup fijo'!$C$90='Sup fijo'!$AU$2,SUM(P62:P65),0)+IF($L$1=$D$6,P53,0)","v":24626.497595655237},{"$f":"IF('Sup fijo'!$C$90='Sup fijo'!$AR$2,SUM(Q13:Q52),0)+IF('Sup fijo'!$C$90='Sup fijo'!$AS$2,SUM(Q54:Q57),0)+IF('Sup fijo'!$C$90='Sup fijo'!$AT$2,SUM(Q58:Q61),0)+IF('Sup fijo'!$C$90='Sup fijo'!$AU$2,SUM(Q62:Q65),0)+IF($L$1=$D$6,Q53,0)","v":17968.412590140739},{"$f":"IF('Sup fijo'!$C$90='Sup fijo'!$AR$2,SUM(R13:R52),0)+IF('Sup fijo'!$C$90='Sup fijo'!$AS$2,SUM(R54:R57),0)+IF('Sup fijo'!$C$90='Sup fijo'!$AT$2,SUM(R58:R61),0)+IF('Sup fijo'!$C$90='Sup fijo'!$AU$2,SUM(R62:R65),0)+IF($L$1=$D$6,R53,0)","v":24909.28697680603},{"$f":"IF('Sup fijo'!$C$90='Sup fijo'!$AR$2,SUM(S13:S52),0)+IF('Sup fijo'!$C$90='Sup fijo'!$AS$2,SUM(S54:S57),0)+IF('Sup fijo'!$C$90='Sup fijo'!$AT$2,SUM(S58:S61),0)+IF('Sup fijo'!$C$90='Sup fijo'!$AU$2,SUM(S62:S65),0)+IF($L$1=$D$6,S53,0)","v":16783.298367831128},{"$f":"IF('Sup fijo'!$C$90='Sup fijo'!$AR$2,SUM(T13:T52),0)+IF('Sup fijo'!$C$90='Sup fijo'!$AS$2,SUM(T54:T57),0)+IF('Sup fijo'!$C$90='Sup fijo'!$AT$2,SUM(T58:T61),0)+IF('Sup fijo'!$C$90='Sup fijo'!$AU$2,SUM(T62:T65),0)+IF($L$1=$D$6,T53,0)","v":27658.401740278674},{"$f":"IF('Sup fijo'!$C$90='Sup fijo'!$AR$2,SUM(U13:U52),0)+IF('Sup fijo'!$C$90='Sup fijo'!$AS$2,SUM(U54:U57),0)+IF('Sup fijo'!$C$90='Sup fijo'!$AT$2,SUM(U58:U61),0)+IF('Sup fijo'!$C$90='Sup fijo'!$AU$2,SUM(U62:U65),0)+IF($L$1=$D$6,U53,0)","v":26503.074608221668},{"$f":"IF('Sup fijo'!$C$90='Sup fijo'!$AR$2,SUM(V13:V52),0)+IF('Sup fijo'!$C$90='Sup fijo'!$AS$2,SUM(V54:V57),0)+IF('Sup fijo'!$C$90='Sup fijo'!$AT$2,SUM(V58:V61),0)+IF('Sup fijo'!$C$90='Sup fijo'!$AU$2,SUM(V62:V65),0)+IF($L$1=$D$6,V53,0)","v":16858.814800044682},{"$f":"IF('Sup fijo'!$C$90='Sup fijo'!$AR$2,SUM(W13:W52),0)+IF('Sup fijo'!$C$90='Sup fijo'!$AS$2,SUM(W54:W57),0)+IF('Sup fijo'!$C$90='Sup fijo'!$AT$2,SUM(W58:W61),0)+IF('Sup fijo'!$C$90='Sup fijo'!$AU$2,SUM(W62:W65),0)+IF($L$1=$D$6,W53,0)","v":29596.131126533357},{"$f":"IF('Sup fijo'!$C$90='Sup fijo'!$AR$2,SUM(X13:X52),0)+IF('Sup fijo'!$C$90='Sup fijo'!$AS$2,SUM(X54:X57),0)+IF('Sup fijo'!$C$90='Sup fijo'!$AT$2,SUM(X58:X61),0)+IF('Sup fijo'!$C$90='Sup fijo'!$AU$2,SUM(X62:X65),0)+IF($L$1=$D$6,X53,0)","v":16799.401893545692},{"$f":"IF('Sup fijo'!$C$90='Sup fijo'!$AR$2,SUM(Y13:Y52),0)+IF('Sup fijo'!$C$90='Sup fijo'!$AS$2,SUM(Y54:Y57),0)+IF('Sup fijo'!$C$90='Sup fijo'!$AT$2,SUM(Y58:Y61),0)+IF('Sup fijo'!$C$90='Sup fijo'!$AU$2,SUM(Y62:Y65),0)+IF($L$1=$D$6,Y53,0)","v":25085.089972708643},{"$f":"IF('Sup fijo'!$C$90='Sup fijo'!$AR$2,SUM(Z13:Z52),0)+IF('Sup fijo'!$C$90='Sup fijo'!$AS$2,SUM(Z54:Z57),0)+IF('Sup fijo'!$C$90='Sup fijo'!$AT$2,SUM(Z58:Z61),0)+IF('Sup fijo'!$C$90='Sup fijo'!$AU$2,SUM(Z62:Z65),0)+IF($L$1=$D$6,Z53,0)","v":15389.358322880089},{"$f":"IF('Sup fijo'!$C$90='Sup fijo'!$AR$2,SUM(AA13:AA52),0)+IF('Sup fijo'!$C$90='Sup fijo'!$AS$2,SUM(AA54:AA57),0)+IF('Sup fijo'!$C$90='Sup fijo'!$AT$2,SUM(AA58:AA61),0)+IF('Sup fijo'!$C$90='Sup fijo'!$AU$2,SUM(AA62:AA65),0)+IF($L$1=$D$6,AA53,0)","v":43418.471643385346},{"$f":"IF('Sup fijo'!$C$90='Sup fijo'!$AR$2,SUM(AB13:AB52),0)+IF('Sup fijo'!$C$90='Sup fijo'!$AS$2,SUM(AB54:AB57),0)+IF('Sup fijo'!$C$90='Sup fijo'!$AT$2,SUM(AB58:AB61),0)+IF('Sup fijo'!$C$90='Sup fijo'!$AU$2,SUM(AB62:AB65),0)+IF($L$1=$D$6,AB53,0)","v":20980.966781928655},{"$f":"IF('Sup fijo'!$C$90='Sup fijo'!$AR$2,SUM(AC13:AC52),0)+IF('Sup fijo'!$C$90='Sup fijo'!$AS$2,SUM(AC54:AC57),0)+IF('Sup fijo'!$C$90='Sup fijo'!$AT$2,SUM(AC58:AC61),0)+IF('Sup fijo'!$C$90='Sup fijo'!$AU$2,SUM(AC62:AC65),0)+IF($L$1=$D$6,AC53,0)","v":19676.355506354932}]
[null,null,null,null,null,null,null,"Costo por km",null,{"$f":"+J68/J9","v":0.17521661343256728},0.2777625070292763,0.2268847936551755,0.37344376731430723,0.18883691988212206,0.36471591009913956,0.34977839382517445,0.25521138241258889,0.35379494612399548,0.23837880816735968,0.39284154390646631,0.37643204568107352,0.2394513933477925,0.42036376340842185,0.23860753193684756,0.35629193495879097,0.21858021081839737,0.61668709546608724,0.29799969863262576,0.27946986771517951]
[]
[]
[]
[null,null,{"$f":"'Sup fijo'!B18","v":"Intracantonal Urbano"},null,null,null,null,"Mes operación",null,12,12,12,12,12,12,12,12,12,12,12,12,12,12,12,12,12,12,12,12]
[null,null,null,null,null,null,null,"Operación",null,{"$f":"'Sup fijo'!E21","v":63826.000000000007},{"$f":"'Sup fijo'!F21","v":63826.000000000007},{"$f":"'Sup fijo'!G21","v":63826.000000000007},{"$f":"'Sup fijo'!H21","v":63826.000000000007},{"$f":"'Sup fijo'!I21","v":63826.000000000007},{"$f":"'Sup fijo'!J21","v":63826.000000000007},{"$f":"'Sup fijo'!K21","v":63826.000000000007},{"$f":"'Sup fijo'!L21","v":63826.000000000007},{"$f":"'Sup fijo'!M21","v":63826.000000000007},{"$f":"'Sup fijo'!N21","v":63826.000000000007},{"$f":"'Sup fijo'!O21","v":63826.000000000007},{"$f":"'Sup fijo'!P21","v":63826.000000000007},{"$f":"'Sup fijo'!Q21","v":63826.000000000007},{"$f":"'Sup fijo'!R21","v":63826.000000000007},{"$f":"'Sup fijo'!S21","v":63826.000000000007},{"$f":"'Sup fijo'!T21","v":63826.000000000007},{"$f":"'Sup fijo'!U21","v":63826.000000000007},{"$f":"'Sup fijo'!V21","v":63826.000000000007},{"$f":"'Sup fijo'!W21","v":63826.000000000007},{"$f":"'Sup fijo'!X21","v":63826.000000000007}]
[null,null,null,null,null,null,null,"Operación acumulada ",null,{"$f":"+J74","v":63826.000000000007},{"$f":"+J75+K74","v":127652.00000000001},191478.00000000003,255304.00000000003,319130.00000000006,382956.00000000006,446782.00000000006,510608.00000000006,574434.00000000012,638260.00000000012,702086.00000000012,765912.00000000012,829738.00000000012,893564.00000000012,957390.00000000012,1021216.0000000001,1085042.0000000002,1148868.0000000002,1212694.0000000002,1276520.0000000002,null,"Frecuencia de ejecución labores de mantenimiento "]
[]
[null,"#","Detalle ","Unidades","Cantidad","Intervalo Km ","Precio (sin IVA)","Area",null,1,{"$f":"J77+1","v":2},3,4,5,6,7,8,9,10,11,12,13,14,15,16,17,18,19,20,null,{"$f":"+AE12","v":1},2,3,4,5,6,7,8,9,10,11,12,13,14,15,16,17,18,19,20]
[null,1,"LLANTAS","UD.",6,46170,449.82857142857148,{"$f":"+H13","v":"Neumáticos "},null,{"$f":"+AE78*$E78*$G78*(1+'Sup Generales'!C$10)","v":2763.7467428571435},{"$f":"+AF78*$E78*$G78*(1+'Sup Generales'!D$10)","v":2807.9666907428577},{"$f":"+AG78*$E78*$G78*(1+'Sup Generales'!E$10)","v":5761.9476494043438},{"$f":"+AH78*$E78*$G78*(1+'Sup Generales'!F$10)","v":2893.4196316248858},{"$f":"+AI78*$E78*$G78*(1+'Sup Generales'!G$10)","v":2901.2318646302729},{"$f":"+AJ78*$E78*$G78*(1+'Sup Generales'!H$10)","v":5841.3402362465904},{"$f":"+AK78*$E78*$G78*(1+'Sup Generales'!I$10)","v":2977.3639759537164},{"$f":"+AL78*$E78*$G78*(1+'Sup Generales'!J$10)","v":6058.0657425290901},{"$f":"+AM78*$E78*$G78*(1+'Sup Generales'!K$10)","v":3073.1375421765001},{"$f":"+AN78*$E78*$G78*(1+'Sup Generales'!L$10)","v":3114.2583508156508},{"$f":"+AO78*$E78*$G78*(1+'Sup Generales'!M$10)","v":6309.8194966975652},{"$f":"+AP78*$E78*$G78*(1+'Sup Generales'!N$10)","v":3190.9860788593683},{"$f":"+AQ78*$E78*$G78*(1+'Sup Generales'!O$10)","v":3230.312916841975},{"$f":"+AR78*$E78*$G78*(1+'Sup Generales'!P$10)","v":6548.0212830275441},{"$f":"+AS78*$E78*$G78*(1+'Sup Generales'!Q$10)","v":3321.0936038766554},{"$f":"+AT78*$E78*$G78*(1+'Sup Generales'!R$10)","v":6733.5306847809861},{"$f":"+AU78*$E78*$G78*(1+'Sup Generales'!S$10)","v":3411.5493203374267},{"$f":"+AV78*$E78*$G78*(1+'Sup Generales'!T$10)","v":3456.3921709489396},{"$f":"+AW78*$E78*$G78*(1+'Sup Generales'!U$10)","v":7003.4447226460652},{"$f":"+AX78*$E78*$G78*(1+'Sup Generales'!V$10)","v":3547.6740023740654},null,{"$f":"ROUNDDOWN(J$75/$F78,0)","v":1},{"$f":"ROUNDDOWN(K$75/$F78,0)-SUM($AE78:AE78)","v":1},{"$f":"ROUNDDOWN(L$75/$F78,0)-SUM($AE78:AF78)","v":2},{"$f":"ROUNDDOWN(M$75/$F78,0)-SUM($AE78:AG78)","v":1},{"$f":"ROUNDDOWN(N$75/$F78,0)-SUM($AE78:AH78)","v":1},{"$f":"ROUNDDOWN(O$75/$F78,0)-SUM($AE78:AI78)","v":2},{"$f":"ROUNDDOWN(P$75/$F78,0)-SUM($AE78:AJ78)","v":1},{"$f":"ROUNDDOWN(Q$75/$F78,0)-SUM($AE78:AK78)","v":2},{"$f":"ROUNDDOWN(R$75/$F78,0)-SUM($AE78:AL78)","v":1},{"$f":"ROUNDDOWN(S$75/$F78,0)-SUM($AE78:AM78)","v":1},{"$f":"ROUNDDOWN(T$75/$F78,0)-SUM($AE78:AN78)","v":2},{"$f":"ROUNDDOWN(U$75/$F78,0)-SUM($AE78:AO78)","v":1},{"$f":"ROUNDDOWN(V$75/$F78,0)-SUM($AE78:AP78)","v":1},{"$f":"ROUNDDOWN(W$75/$F78,0)-SUM($AE78:AQ78)","v":2},{"$f":"ROUNDDOWN(X$75/$F78,0)-SUM($AE78:AR78)","v":1},{"$f":"ROUNDDOWN(Y$75/$F78,0)-SUM($AE78:AS78)","v":2},{"$f":"ROUNDDOWN(Z$75/$F78,0)-SUM($AE78:AT78)","v":1},{"$f":"ROUNDDOWN(AA$75/$F78,0)-SUM($AE78:AU78)","v":1},{"$f":"ROUNDDOWN(AB$75/$F78,0)-SUM($AE78:AV78)","v":2},{"$f":"ROUNDDOWN(AC$75/$F78,0)-SUM($AE78:AW78)","v":1}]
[null,{"$f":"+B78+1","v":2},"REENCAUCHE DE LLANTAS","UD.",4,46170,275.24799999999999,"Neumáticos ",null,{"$f":"+AE79*$E79*$G79*(1+'Sup Generales'!C$10)","v":1127.415808},{"$f":"+AF79*$E79*$G79*(1+'Sup Generales'!D$10)","v":1145.4544609279999},{"$f":"+AG79*$E79*$G79*(1+'Sup Generales'!E$10)","v":2350.472553824256},{"$f":"+AH79*$E79*$G79*(1+'Sup Generales'!F$10)","v":1180.3132976283885},{"$f":"+AI79*$E79*$G79*(1+'Sup Generales'!G$10)","v":1183.500143531985},{"$f":"+AJ79*$E79*$G79*(1+'Sup Generales'!H$10)","v":2382.8591889872987},{"$f":"+AK79*$E79*$G79*(1+'Sup Generales'!I$10)","v":1214.5567322097643},{"$f":"+AL79*$E79*$G79*(1+'Sup Generales'!J$10)","v":2471.2680717516782},{"$f":"+AM79*$E79*$G79*(1+'Sup Generales'!K$10)","v":1253.6256638429411},{"$f":"+AN79*$E79*$G79*(1+'Sup Generales'!L$10)","v":1270.4000842261905},{"$f":"+AO79*$E79*$G79*(1+'Sup Generales'!M$10)","v":2573.9660352703841},{"$f":"+AP79*$E79*$G79*(1+'Sup Generales'!N$10)","v":1301.6996429618018},{"$f":"+AQ79*$E79*$G79*(1+'Sup Generales'!O$10)","v":1317.7422485061904},{"$f":"+AR79*$E79*$G79*(1+'Sup Generales'!P$10)","v":2671.1357416106362},{"$f":"+AS79*$E79*$G79*(1+'Sup Generales'!Q$10)","v":1354.7744338496973},{"$f":"+AT79*$E79*$G79*(1+'Sup Generales'!R$10)","v":2746.8106320867578},{"$f":"+AU79*$E79*$G79*(1+'Sup Generales'!S$10)","v":1391.674053876535},{"$f":"+AV79*$E79*$G79*(1+'Sup Generales'!T$10)","v":1409.9668076485168},{"$f":"+AW79*$E79*$G79*(1+'Sup Generales'!U$10)","v":2856.9167240710085},{"$f":"+AX79*$E79*$G79*(1+'Sup Generales'!V$10)","v":1447.2034249318674},null,1,{"$f":"ROUNDDOWN(K$75/$F79,0)-SUM($AE79:AE79)","v":1},{"$f":"ROUNDDOWN(L$75/$F79,0)-SUM($AE79:AF79)","v":2},{"$f":"ROUNDDOWN(M$75/$F79,0)-SUM($AE79:AG79)","v":1},{"$f":"ROUNDDOWN(N$75/$F79,0)-SUM($AE79:AH79)","v":1},{"$f":"ROUNDDOWN(O$75/$F79,0)-SUM($AE79:AI79)","v":2},{"$f":"ROUNDDOWN(P$75/$F79,0)-SUM($AE79:AJ79)","v":1},{"$f":"ROUNDDOWN(Q$75/$F79,0)-SUM($AE79:AK79)","v":2},{"$f":"ROUNDDOWN(R$75/$F79,0)-SUM($AE79:AL79)","v":1},{"$f":"ROUNDDOWN(S$75/$F79,0)-SUM($AE79:AM79)","v":1},{"$f":"ROUNDDOWN(T$75/$F79,0)-SUM($AE79:AN79)","v":2},{"$f":"ROUNDDOWN(U$75/$F79,0)-SUM($AE79:AO79)","v":1},{"$f":"ROUNDDOWN(V$75/$F79,0)-SUM($AE79:AP79)","v":1},{"$f":"ROUNDDOWN(W$75/$F79,0)-SUM($AE79:AQ79)","v":2},{"$f":"ROUNDDOWN(X$75/$F79,0)-SUM($AE79:AR79)","v":1},{"$f":"ROUNDDOWN(Y$75/$F79,0)-SUM($AE79:AS79)","v":2},{"$f":"ROUNDDOWN(Z$75/$F79,0)-SUM($AE79:AT79)","v":1},{"$f":"ROUNDDOWN(AA$75/$F79,0)-SUM($AE79:AU79)","v":1},{"$f":"ROUNDDOWN(AB$75/$F79,0)-SUM($AE79:AV79)","v":2},{"$f":"ROUNDDOWN(AC$75/$F79,0)-SUM($AE79:AW79)","v":1}]
[null,{"$f":"+B79+1","v":3},"ACEITE DE MOTOR","GLNS",7,5000,18.081249999999997,"Aceites y filtros ",null,{"$f":"+AE80*$E80*$G80*(1+'Sup Generales'!C$10)","v":1555.2767999999999},{"$f":"+AF80*$E80*$G80*(1+'Sup Generales'!D$10)","v":1711.8413311999998},{"$f":"+AG80*$E80*$G80*(1+'Sup Generales'!E$10)","v":1756.3492058111997},{"$f":"+AH80*$E80*$G80*(1+'Sup Generales'!F$10)","v":1763.9366343803044},{"$f":"+AI80*$E80*$G80*(1+'Sup Generales'!G$10)","v":1632.6454738090442},{"$f":"+AJ80*$E80*$G80*(1+'Sup Generales'!H$10)","v":1780.5495483571949},{"$f":"+AK80*$E80*$G80*(1+'Sup Generales'!I$10)","v":1815.1122407777436},{"$f":"+AL80*$E80*$G80*(1+'Sup Generales'!J$10)","v":1846.6115284374284},{"$f":"+AM80*$E80*$G80*(1+'Sup Generales'!K$10)","v":1729.3840453756748},{"$f":"+AN80*$E80*$G80*(1+'Sup Generales'!L$10)","v":1898.5681626980461},{"$f":"+AO80*$E80*$G80*(1+'Sup Generales'!M$10)","v":1923.3507723699031},{"$f":"+AP80*$E80*$G80*(1+'Sup Generales'!N$10)","v":1945.3442503729184},{"$f":"+AQ80*$E80*$G80*(1+'Sup Generales'!O$10)","v":1817.8332545444603},{"$f":"+AR80*$E80*$G80*(1+'Sup Generales'!P$10)","v":1995.9591235212222},{"$f":"+AS80*$E80*$G80*(1+'Sup Generales'!Q$10)","v":2024.6626552382579},{"$f":"+AT80*$E80*$G80*(1+'Sup Generales'!R$10)","v":2052.5058522083268},{"$f":"+AU80*$E80*$G80*(1+'Sup Generales'!S$10)","v":2079.8078371919269},{"$f":"+AV80*$E80*$G80*(1+'Sup Generales'!T$10)","v":1945.0575813691275},{"$f":"+AW80*$E80*$G80*(1+'Sup Generales'!U$10)","v":2134.7806896221368},{"$f":"+AX80*$E80*$G80*(1+'Sup Generales'!V$10)","v":2162.7945256291496},null,12,{"$f":"ROUNDDOWN(K$75/$F80,0)-SUM($AE80:AE80)","v":13},{"$f":"ROUNDDOWN(L$75/$F80,0)-SUM($AE80:AF80)","v":13},{"$f":"ROUNDDOWN(M$75/$F80,0)-SUM($AE80:AG80)","v":13},{"$f":"ROUNDDOWN(N$75/$F80,0)-SUM($AE80:AH80)","v":12},{"$f":"ROUNDDOWN(O$75/$F80,0)-SUM($AE80:AI80)","v":13},{"$f":"ROUNDDOWN(P$75/$F80,0)-SUM($AE80:AJ80)","v":13},{"$f":"ROUNDDOWN(Q$75/$F80,0)-SUM($AE80:AK80)","v":13},{"$f":"ROUNDDOWN(R$75/$F80,0)-SUM($AE80:AL80)","v":12},{"$f":"ROUNDDOWN(S$75/$F80,0)-SUM($AE80:AM80)","v":13},{"$f":"ROUNDDOWN(T$75/$F80,0)-SUM($AE80:AN80)","v":13},{"$f":"ROUNDDOWN(U$75/$F80,0)-SUM($AE80:AO80)","v":13},{"$f":"ROUNDDOWN(V$75/$F80,0)-SUM($AE80:AP80)","v":12},{"$f":"ROUNDDOWN(W$75/$F80,0)-SUM($AE80:AQ80)","v":13},{"$f":"ROUNDDOWN(X$75/$F80,0)-SUM($AE80:AR80)","v":13},{"$f":"ROUNDDOWN(Y$75/$F80,0)-SUM($AE80:AS80)","v":13},{"$f":"ROUNDDOWN(Z$75/$F80,0)-SUM($AE80:AT80)","v":13},{"$f":"ROUNDDOWN(AA$75/$F80,0)-SUM($AE80:AU80)","v":12},{"$f":"ROUNDDOWN(AB$75/$F80,0)-SUM($AE80:AV80)","v":13},{"$f":"ROUNDDOWN(AC$75/$F80,0)-SUM($AE80:AW80)","v":13}]
[null,4,"ACEITE DE CAJA","GLNS",5,30000,18.261428571428571,"Aceites y filtros ",null,{"$f":"+AE81*$E81*$G81*(1+'Sup Generales'!C$10)","v":186.99702857142856},{"$f":"+AF81*$E81*$G81*(1+'Sup Generales'!D$10)","v":189.9889810285714},{"$f":"+AG81*$E81*$G81*(1+'Sup Generales'!E$10)","v":194.92869453531426},{"$f":"+AH81*$E81*$G81*(1+'Sup Generales'!F$10)","v":195.77078649570686},{"$f":"+AI81*$E81*$G81*(1+'Sup Generales'!G$10)","v":196.29936761924526},{"$f":"+AJ81*$E81*$G81*(1+'Sup Generales'!H$10)","v":197.6145733822942},{"$f":"+AK81*$E81*$G81*(1+'Sup Generales'!I$10)","v":201.45051926986127},{"$f":"+AL81*$E81*$G81*(1+'Sup Generales'!J$10)","v":307.41970904292646},{"$f":"+AM81*$E81*$G81*(1+'Sup Generales'!K$10)","v":207.93062543213389},{"$f":"+AN81*$E81*$G81*(1+'Sup Generales'!L$10)","v":210.71288797042502},{"$f":"+AO81*$E81*$G81*(1+'Sup Generales'!M$10)","v":213.46338982650786},{"$f":"+AP81*$E81*$G81*(1+'Sup Generales'!N$10)","v":215.90433946296631},{"$f":"+AQ81*$E81*$G81*(1+'Sup Generales'!O$10)","v":218.5652206977841},{"$f":"+AR81*$E81*$G81*(1+'Sup Generales'!P$10)","v":221.52183916873381},{"$f":"+AS81*$E81*$G81*(1+'Sup Generales'!Q$10)","v":224.7075051784557},{"$f":"+AT81*$E81*$G81*(1+'Sup Generales'!R$10)","v":341.69653020021644},{"$f":"+AU81*$E81*$G81*(1+'Sup Generales'!S$10)","v":230.82780192387213},{"$f":"+AV81*$E81*$G81*(1+'Sup Generales'!T$10)","v":233.86190041306892},{"$f":"+AW81*$E81*$G81*(1+'Sup Generales'!U$10)","v":236.92897264985771},{"$f":"+AX81*$E81*$G81*(1+'Sup Generales'!V$10)","v":240.03809267206378},null,2,{"$f":"ROUNDDOWN(K$75/$F81,0)-SUM($AE81:AE81)","v":2},{"$f":"ROUNDDOWN(L$75/$F81,0)-SUM($AE81:AF81)","v":2},{"$f":"ROUNDDOWN(M$75/$F81,0)-SUM($AE81:AG81)","v":2},{"$f":"ROUNDDOWN(N$75/$F81,0)-SUM($AE81:AH81)","v":2},{"$f":"ROUNDDOWN(O$75/$F81,0)-SUM($AE81:AI81)","v":2},{"$f":"ROUNDDOWN(P$75/$F81,0)-SUM($AE81:AJ81)","v":2},{"$f":"ROUNDDOWN(Q$75/$F81,0)-SUM($AE81:AK81)","v":3},{"$f":"ROUNDDOWN(R$75/$F81,0)-SUM($AE81:AL81)","v":2},{"$f":"ROUNDDOWN(S$75/$F81,0)-SUM($AE81:AM81)","v":2},{"$f":"ROUNDDOWN(T$75/$F81,0)-SUM($AE81:AN81)","v":2},{"$f":"ROUNDDOWN(U$75/$F81,0)-SUM($AE81:AO81)","v":2},{"$f":"ROUNDDOWN(V$75/$F81,0)-SUM($AE81:AP81)","v":2},{"$f":"ROUNDDOWN(W$75/$F81,0)-SUM($AE81:AQ81)","v":2},{"$f":"ROUNDDOWN(X$75/$F81,0)-SUM($AE81:AR81)","v":2},{"$f":"ROUNDDOWN(Y$75/$F81,0)-SUM($AE81:AS81)","v":3},{"$f":"ROUNDDOWN(Z$75/$F81,0)-SUM($AE81:AT81)","v":2},{"$f":"ROUNDDOWN(AA$75/$F81,0)-SUM($AE81:AU81)","v":2},{"$f":"ROUNDDOWN(AB$75/$F81,0)-SUM($AE81:AV81)","v":2},{"$f":"ROUNDDOWN(AC$75/$F81,0)-SUM($AE81:AW81)","v":2}]
[null,5,"ACEITE DE DIFERENCIAL","GLNS",6,30000,18.594285714285714,"Aceites y filtros ",null,{"$f":"+AE82*$E82*$G82*(1+'Sup Generales'!C$10)","v":228.48658285714285},{"$f":"+AF82*$E82*$G82*(1+'Sup Generales'!D$10)","v":232.14236818285713},{"$f":"+AG82*$E82*$G82*(1+'Sup Generales'!E$10)","v":238.1780697556114},{"$f":"+AH82*$E82*$G82*(1+'Sup Generales'!F$10)","v":239.20699901695571},{"$f":"+AI82*$E82*$G82*(1+'Sup Generales'!G$10)","v":239.85285791430147},{"$f":"+AJ82*$E82*$G82*(1+'Sup Generales'!H$10)","v":241.45987206232726},{"$f":"+AK82*$E82*$G82*(1+'Sup Generales'!I$10)","v":246.14691000389715},{"$f":"+AL82*$E82*$G82*(1+'Sup Generales'!J$10)","v":375.627780605748},{"$f":"+AM82*$E82*$G82*(1+'Sup Generales'!K$10)","v":254.06477546347381},{"$f":"+AN82*$E82*$G82*(1+'Sup Generales'!L$10)","v":257.46434638094831},{"$f":"+AO82*$E82*$G82*(1+'Sup Generales'!M$10)","v":260.82510978472908},{"$f":"+AP82*$E82*$G82*(1+'Sup Generales'!N$10)","v":263.8076397512292},{"$f":"+AQ82*$E82*$G82*(1+'Sup Generales'!O$10)","v":267.05889815558396},{"$f":"+AR82*$E82*$G82*(1+'Sup Generales'!P$10)","v":270.67150984465985},{"$f":"+AS82*$E82*$G82*(1+'Sup Generales'!Q$10)","v":274.56398849122547},{"$f":"+AT82*$E82*$G82*(1+'Sup Generales'!R$10)","v":417.50969604186974},{"$f":"+AU82*$E82*$G82*(1+'Sup Generales'!S$10)","v":282.04221261122927},{"$f":"+AV82*$E82*$G82*(1+'Sup Generales'!T$10)","v":285.74949502713025},{"$f":"+AW82*$E82*$G82*(1+'Sup Generales'!U$10)","v":289.49706716832179},{"$f":"+AX82*$E82*$G82*(1+'Sup Generales'!V$10)","v":293.29601635480708},null,2,{"$f":"ROUNDDOWN(K$75/$F82,0)-SUM($AE82:AE82)","v":2},{"$f":"ROUNDDOWN(L$75/$F82,0)-SUM($AE82:AF82)","v":2},{"$f":"ROUNDDOWN(M$75/$F82,0)-SUM($AE82:AG82)","v":2},{"$f":"ROUNDDOWN(N$75/$F82,0)-SUM($AE82:AH82)","v":2},{"$f":"ROUNDDOWN(O$75/$F82,0)-SUM($AE82:AI82)","v":2},{"$f":"ROUNDDOWN(P$75/$F82,0)-SUM($AE82:AJ82)","v":2},{"$f":"ROUNDDOWN(Q$75/$F82,0)-SUM($AE82:AK82)","v":3},{"$f":"ROUNDDOWN(R$75/$F82,0)-SUM($AE82:AL82)","v":2},{"$f":"ROUNDDOWN(S$75/$F82,0)-SUM($AE82:AM82)","v":2},{"$f":"ROUNDDOWN(T$75/$F82,0)-SUM($AE82:AN82)","v":2},{"$f":"ROUNDDOWN(U$75/$F82,0)-SUM($AE82:AO82)","v":2},{"$f":"ROUNDDOWN(V$75/$F82,0)-SUM($AE82:AP82)","v":2},{"$f":"ROUNDDOWN(W$75/$F82,0)-SUM($AE82:AQ82)","v":2},{"$f":"ROUNDDOWN(X$75/$F82,0)-SUM($AE82:AR82)","v":2},{"$f":"ROUNDDOWN(Y$75/$F82,0)-SUM($AE82:AS82)","v":3},{"$f":"ROUNDDOWN(Z$75/$F82,0)-SUM($AE82:AT82)","v":2},{"$f":"ROUNDDOWN(AA$75/$F82,0)-SUM($AE82:AU82)","v":2},{"$f":"ROUNDDOWN(AB$75/$F82,0)-SUM($AE82:AV82)","v":2},{"$f":"ROUNDDOWN(AC$75/$F82,0)-SUM($AE82:AW82)","v":2}]
[null,6,"ACEITE HIDRÁULICO","GLN",2,60000,16.008333333333333,"Aceites y filtros ",null,{"$f":"+AE83*$E83*$G83*(1+'Sup Generales'!C$10)","v":32.785066666666665},{"$f":"+AF83*$E83*$G83*(1+'Sup Generales'!D$10)","v":33.309627733333329},{"$f":"+AG83*$E83*$G83*(1+'Sup Generales'!E$10)","v":34.175678054400002},{"$f":"+AH83*$E83*$G83*(1+'Sup Generales'!F$10)","v":34.323316983595014},{"$f":"+AI83*$E83*$G83*(1+'Sup Generales'!G$10)","v":34.415989939450718},{"$f":"+AJ83*$E83*$G83*(1+'Sup Generales'!H$10)","v":34.646577072045034},{"$f":"+AK83*$E83*$G83*(1+'Sup Generales'!I$10)","v":35.31911044123477},{"$f":"+AL83*$E83*$G83*(1+'Sup Generales'!J$10)","v":35.932034972665363},{"$f":"+AM83*$E83*$G83*(1+'Sup Generales'!K$10)","v":36.455228561186793},{"$f":"+AN83*$E83*$G83*(1+'Sup Generales'!L$10)","v":36.94302595293626},{"$f":"+AO83*$E83*$G83*(1+'Sup Generales'!M$10)","v":37.42525493490119},{"$f":"+AP83*$E83*$G83*(1+'Sup Generales'!N$10)","v":37.853211984126155},{"$f":"+AQ83*$E83*$G83*(1+'Sup Generales'!O$10)","v":38.31972832046602},{"$f":"+AR83*$E83*$G83*(1+'Sup Generales'!P$10)","v":38.838094491407382},{"$f":"+AS83*$E83*$G83*(1+'Sup Generales'!Q$10)","v":39.396618192582515},{"$f":"+AT83*$E83*$G83*(1+'Sup Generales'!R$10)","v":79.876802378198661},{"$f":"+AU83*$E83*$G83*(1+'Sup Generales'!S$10)","v":40.469653087046709},{"$f":"+AV83*$E83*$G83*(1+'Sup Generales'!T$10)","v":41.001603364553681},{"$f":"+AW83*$E83*$G83*(1+'Sup Generales'!U$10)","v":41.539334731318114},{"$f":"+AX83*$E83*$G83*(1+'Sup Generales'!V$10)","v":42.084438083929726},null,1,{"$f":"ROUNDDOWN(K$75/$F83,0)-SUM($AE83:AE83)","v":1},{"$f":"ROUNDDOWN(L$75/$F83,0)-SUM($AE83:AF83)","v":1},{"$f":"ROUNDDOWN(M$75/$F83,0)-SUM($AE83:AG83)","v":1},{"$f":"ROUNDDOWN(N$75/$F83,0)-SUM($AE83:AH83)","v":1},{"$f":"ROUNDDOWN(O$75/$F83,0)-SUM($AE83:AI83)","v":1},{"$f":"ROUNDDOWN(P$75/$F83,0)-SUM($AE83:AJ83)","v":1},{"$f":"ROUNDDOWN(Q$75/$F83,0)-SUM($AE83:AK83)","v":1},{"$f":"ROUNDDOWN(R$75/$F83,0)-SUM($AE83:AL83)","v":1},{"$f":"ROUNDDOWN(S$75/$F83,0)-SUM($AE83:AM83)","v":1},{"$f":"ROUNDDOWN(T$75/$F83,0)-SUM($AE83:AN83)","v":1},{"$f":"ROUNDDOWN(U$75/$F83,0)-SUM($AE83:AO83)","v":1},{"$f":"ROUNDDOWN(V$75/$F83,0)-SUM($AE83:AP83)","v":1},{"$f":"ROUNDDOWN(W$75/$F83,0)-SUM($AE83:AQ83)","v":1},{"$f":"ROUNDDOWN(X$75/$F83,0)-SUM($AE83:AR83)","v":1},{"$f":"ROUNDDOWN(Y$75/$F83,0)-SUM($AE83:AS83)","v":2},{"$f":"ROUNDDOWN(Z$75/$F83,0)-SUM($AE83:AT83)","v":1},{"$f":"ROUNDDOWN(AA$75/$F83,0)-SUM($AE83:AU83)","v":1},{"$f":"ROUNDDOWN(AB$75/$F83,0)-SUM($AE83:AV83)","v":1},{"$f":"ROUNDDOWN(AC$75/$F83,0)-SUM($AE83:AW83)","v":1}]
[null,7,"ENGRASE GENERAL","KG.",1,5000,6.7857142857142856,"Aceites y filtros ",null,{"$f":"+AE84*$E84*$G84*(1+'Sup Generales'!C$10)","v":83.382857142857148},{"$f":"+AF84*$E84*$G84*(1+'Sup Generales'!D$10)","v":91.776731428571424},{"$f":"+AG84*$E84*$G84*(1+'Sup Generales'!E$10)","v":94.162926445714277},{"$f":"+AH84*$E84*$G84*(1+'Sup Generales'!F$10)","v":94.569710287959779},{"$f":"+AI84*$E84*$G84*(1+'Sup Generales'!G$10)","v":87.530814005295952},{"$f":"+AJ84*$E84*$G84*(1+'Sup Generales'!H$10)","v":95.460376330725694},{"$f":"+AK84*$E84*$G84*(1+'Sup Generales'!I$10)","v":97.313381560775511},{"$f":"+AL84*$E84*$G84*(1+'Sup Generales'!J$10)","v":99.002148861251698},{"$f":"+AM84*$E84*$G84*(1+'Sup Generales'!K$10)","v":92.71724673106182},{"$f":"+AN84*$E84*$G84*(1+'Sup Generales'!L$10)","v":101.78769328149687},{"$f":"+AO84*$E84*$G84*(1+'Sup Generales'!M$10)","v":103.11636017982367},{"$f":"+AP84*$E84*$G84*(1+'Sup Generales'!N$10)","v":104.29549371695353},{"$f":"+AQ84*$E84*$G84*(1+'Sup Generales'!O$10)","v":97.459262925554995},{"$f":"+AR84*$E84*$G84*(1+'Sup Generales'!P$10)","v":107.00910246944623},{"$f":"+AS84*$E84*$G84*(1+'Sup Generales'!Q$10)","v":108.54798126237691},{"$f":"+AT84*$E84*$G84*(1+'Sup Generales'!R$10)","v":110.04073503801072},{"$f":"+AU84*$E84*$G84*(1+'Sup Generales'!S$10)","v":111.50447288429245},{"$f":"+AV84*$E84*$G84*(1+'Sup Generales'!T$10)","v":104.28012456813683},{"$f":"+AW84*$E84*$G84*(1+'Sup Generales'!U$10)","v":114.45172542539868},{"$f":"+AX84*$E84*$G84*(1+'Sup Generales'!V$10)","v":115.95362765000344},null,12,{"$f":"ROUNDDOWN(K$75/$F84,0)-SUM($AE84:AE84)","v":13},{"$f":"ROUNDDOWN(L$75/$F84,0)-SUM($AE84:AF84)","v":13},{"$f":"ROUNDDOWN(M$75/$F84,0)-SUM($AE84:AG84)","v":13},{"$f":"ROUNDDOWN(N$75/$F84,0)-SUM($AE84:AH84)","v":12},{"$f":"ROUNDDOWN(O$75/$F84,0)-SUM($AE84:AI84)","v":13},{"$f":"ROUNDDOWN(P$75/$F84,0)-SUM($AE84:AJ84)","v":13},{"$f":"ROUNDDOWN(Q$75/$F84,0)-SUM($AE84:AK84)","v":13},{"$f":"ROUNDDOWN(R$75/$F84,0)-SUM($AE84:AL84)","v":12},{"$f":"ROUNDDOWN(S$75/$F84,0)-SUM($AE84:AM84)","v":13},{"$f":"ROUNDDOWN(T$75/$F84,0)-SUM($AE84:AN84)","v":13},{"$f":"ROUNDDOWN(U$75/$F84,0)-SUM($AE84:AO84)","v":13},{"$f":"ROUNDDOWN(V$75/$F84,0)-SUM($AE84:AP84)","v":12},{"$f":"ROUNDDOWN(W$75/$F84,0)-SUM($AE84:AQ84)","v":13},{"$f":"ROUNDDOWN(X$75/$F84,0)-SUM($AE84:AR84)","v":13},{"$f":"ROUNDDOWN(Y$75/$F84,0)-SUM($AE84:AS84)","v":13},{"$f":"ROUNDDOWN(Z$75/$F84,0)-SUM($AE84:AT84)","v":13},{"$f":"ROUNDDOWN(AA$75/$F84,0)-SUM($AE84:AU84)","v":12},{"$f":"ROUNDDOWN(AB$75/$F84,0)-SUM($AE84:AV84)","v":13},{"$f":"ROUNDDOWN(AC$75/$F84,0)-SUM($AE84:AW84)","v":13}]
[null,8,"FILTRO DE ACEITE DE MOTOR","UND",1,5000,13.37875,"Aceites y filtros ",null,{"$f":"+AE85*$E85*$G85*(1+'Sup Generales'!C$10)","v":164.39808000000002},{"$f":"+AF85*$E85*$G85*(1+'Sup Generales'!D$10)","v":180.94748672},{"$f":"+AG85*$E85*$G85*(1+'Sup Generales'!E$10)","v":185.65212137472002},{"$f":"+AH85*$E85*$G85*(1+'Sup Generales'!F$10)","v":186.45413853905885},{"$f":"+AI85*$E85*$G85*(1+'Sup Generales'!G$10)","v":172.57621358133628},{"$f":"+AJ85*$E85*$G85*(1+'Sup Generales'!H$10)","v":188.21018039669212},{"$f":"+AK85*$E85*$G85*(1+'Sup Generales'!I$10)","v":191.86357526091746},{"$f":"+AL85*$E85*$G85*(1+'Sup Generales'!J$10)","v":195.19315775878525},{"$f":"+AM85*$E85*$G85*(1+'Sup Generales'!K$10)","v":182.80181164047062},{"$f":"+AN85*$E85*$G85*(1+'Sup Generales'!L$10)","v":200.68515179850073},{"$f":"+AO85*$E85*$G85*(1+'Sup Generales'!M$10)","v":203.30475844822556},{"$f":"+AP85*$E85*$G85*(1+'Sup Generales'!N$10)","v":205.62954433599674},{"$f":"+AQ85*$E85*$G85*(1+'Sup Generales'!O$10)","v":192.15119572751334},{"$f":"+AR85*$E85*$G85*(1+'Sup Generales'!P$10)","v":210.97970963456271},{"$f":"+AS85*$E85*$G85*(1+'Sup Generales'!Q$10)","v":214.01377116206686},{"$f":"+AT85*$E85*$G85*(1+'Sup Generales'!R$10)","v":216.9568923627053},{"$f":"+AU85*$E85*$G85*(1+'Sup Generales'!S$10)","v":219.84280560431779},{"$f":"+AV85*$E85*$G85*(1+'Sup Generales'!T$10)","v":205.59924244129945},{"$f":"+AW85*$E85*$G85*(1+'Sup Generales'!U$10)","v":225.65362422621831},{"$f":"+AX85*$E85*$G85*(1+'Sup Generales'!V$10)","v":228.6147825569976},null,12,{"$f":"ROUNDDOWN(K$75/$F85,0)-SUM($AE85:AE85)","v":13},{"$f":"ROUNDDOWN(L$75/$F85,0)-SUM($AE85:AF85)","v":13},{"$f":"ROUNDDOWN(M$75/$F85,0)-SUM($AE85:AG85)","v":13},{"$f":"ROUNDDOWN(N$75/$F85,0)-SUM($AE85:AH85)","v":12},{"$f":"ROUNDDOWN(O$75/$F85,0)-SUM($AE85:AI85)","v":13},{"$f":"ROUNDDOWN(P$75/$F85,0)-SUM($AE85:AJ85)","v":13},{"$f":"ROUNDDOWN(Q$75/$F85,0)-SUM($AE85:AK85)","v":13},{"$f":"ROUNDDOWN(R$75/$F85,0)-SUM($AE85:AL85)","v":12},{"$f":"ROUNDDOWN(S$75/$F85,0)-SUM($AE85:AM85)","v":13},{"$f":"ROUNDDOWN(T$75/$F85,0)-SUM($AE85:AN85)","v":13},{"$f":"ROUNDDOWN(U$75/$F85,0)-SUM($AE85:AO85)","v":13},{"$f":"ROUNDDOWN(V$75/$F85,0)-SUM($AE85:AP85)","v":12},{"$f":"ROUNDDOWN(W$75/$F85,0)-SUM($AE85:AQ85)","v":13},{"$f":"ROUNDDOWN(X$75/$F85,0)-SUM($AE85:AR85)","v":13},{"$f":"ROUNDDOWN(Y$75/$F85,0)-SUM($AE85:AS85)","v":13},{"$f":"ROUNDDOWN(Z$75/$F85,0)-SUM($AE85:AT85)","v":13},{"$f":"ROUNDDOWN(AA$75/$F85,0)-SUM($AE85:AU85)","v":12},{"$f":"ROUNDDOWN(AB$75/$F85,0)-SUM($AE85:AV85)","v":13},{"$f":"ROUNDDOWN(AC$75/$F85,0)-SUM($AE85:AW85)","v":13}]
[null,9,"FILTRO DE AIRE","UND",2,10000,35.441249999999997,"Aceites y filtros ",null,{"$f":"+AE86*$E86*$G86*(1+'Sup Generales'!C$10)","v":435.50207999999998},{"$f":"+AF86*$E86*$G86*(1+'Sup Generales'!D$10)","v":442.47011327999996},{"$f":"+AG86*$E86*$G86*(1+'Sup Generales'!E$10)","v":529.63672559615998},{"$f":"+AH86*$E86*$G86*(1+'Sup Generales'!F$10)","v":455.93550535777325},{"$f":"+AI86*$E86*$G86*(1+'Sup Generales'!G$10)","v":457.1665312222392},{"$f":"+AJ86*$E86*$G86*(1+'Sup Generales'!H$10)","v":536.93447147833285},{"$f":"+AK86*$E86*$G86*(1+'Sup Generales'!I$10)","v":469.16317777527149},{"$f":"+AL86*$E86*$G86*(1+'Sup Generales'!J$10)","v":556.85582350805828},{"$f":"+AM86*$E86*$G86*(1+'Sup Generales'!K$10)","v":484.25485989369918},{"$f":"+AN86*$E86*$G86*(1+'Sup Generales'!L$10)","v":490.73454105114081},{"$f":"+AO86*$E86*$G86*(1+'Sup Generales'!M$10)","v":579.99696295039871},{"$f":"+AP86*$E86*$G86*(1+'Sup Generales'!N$10)","v":502.8250429189672},{"$f":"+AQ86*$E86*$G86*(1+'Sup Generales'!O$10)","v":509.02203610783744},{"$f":"+AR86*$E86*$G86*(1+'Sup Generales'!P$10)","v":601.89240904248686},{"$f":"+AS86*$E86*$G86*(1+'Sup Generales'!Q$10)","v":523.32695682085523},{"$f":"+AT86*$E86*$G86*(1+'Sup Generales'!R$10)","v":618.94438488300875},{"$f":"+AU86*$E86*$G86*(1+'Sup Generales'!S$10)","v":537.58066974457665},{"$f":"+AV86*$E86*$G86*(1+'Sup Generales'!T$10)","v":544.64685797796528},{"$f":"+AW86*$E86*$G86*(1+'Sup Generales'!U$10)","v":643.75481286773322},{"$f":"+AX86*$E86*$G86*(1+'Sup Generales'!V$10)","v":559.03074736819019},null,6,{"$f":"ROUNDDOWN(K$75/$F86,0)-SUM($AE86:AE86)","v":6},{"$f":"ROUNDDOWN(L$75/$F86,0)-SUM($AE86:AF86)","v":7},{"$f":"ROUNDDOWN(M$75/$F86,0)-SUM($AE86:AG86)","v":6},{"$f":"ROUNDDOWN(N$75/$F86,0)-SUM($AE86:AH86)","v":6},{"$f":"ROUNDDOWN(O$75/$F86,0)-SUM($AE86:AI86)","v":7},{"$f":"ROUNDDOWN(P$75/$F86,0)-SUM($AE86:AJ86)","v":6},{"$f":"ROUNDDOWN(Q$75/$F86,0)-SUM($AE86:AK86)","v":7},{"$f":"ROUNDDOWN(R$75/$F86,0)-SUM($AE86:AL86)","v":6},{"$f":"ROUNDDOWN(S$75/$F86,0)-SUM($AE86:AM86)","v":6},{"$f":"ROUNDDOWN(T$75/$F86,0)-SUM($AE86:AN86)","v":7},{"$f":"ROUNDDOWN(U$75/$F86,0)-SUM($AE86:AO86)","v":6},{"$f":"ROUNDDOWN(V$75/$F86,0)-SUM($AE86:AP86)","v":6},{"$f":"ROUNDDOWN(W$75/$F86,0)-SUM($AE86:AQ86)","v":7},{"$f":"ROUNDDOWN(X$75/$F86,0)-SUM($AE86:AR86)","v":6},{"$f":"ROUNDDOWN(Y$75/$F86,0)-SUM($AE86:AS86)","v":7},{"$f":"ROUNDDOWN(Z$75/$F86,0)-SUM($AE86:AT86)","v":6},{"$f":"ROUNDDOWN(AA$75/$F86,0)-SUM($AE86:AU86)","v":6},{"$f":"ROUNDDOWN(AB$75/$F86,0)-SUM($AE86:AV86)","v":7},{"$f":"ROUNDDOWN(AC$75/$F86,0)-SUM($AE86:AW86)","v":6}]
[null,10,"FILTRO DE COMBUSTIBLE","UD.",1,5000,13.484999999999999,"Aceites y filtros ",null,{"$f":"+AE87*$E87*$G87*(1+'Sup Generales'!C$10)","v":165.70367999999999},{"$f":"+AF87*$E87*$G87*(1+'Sup Generales'!D$10)","v":182.38451712},{"$f":"+AG87*$E87*$G87*(1+'Sup Generales'!E$10)","v":187.12651456512},{"$f":"+AH87*$E87*$G87*(1+'Sup Generales'!F$10)","v":187.93490110804134},{"$f":"+AI87*$E87*$G87*(1+'Sup Generales'!G$10)","v":173.94676185326128},{"$f":"+AJ87*$E87*$G87*(1+'Sup Generales'!H$10)","v":189.70488892081798},{"$f":"+AK87*$E87*$G87*(1+'Sup Generales'!I$10)","v":193.38729794588221},{"$f":"+AL87*$E87*$G87*(1+'Sup Generales'!J$10)","v":196.74332298437591},{"$f":"+AM87*$E87*$G87*(1+'Sup Generales'!K$10)","v":184.25356853007537},{"$f":"+AN87*$E87*$G87*(1+'Sup Generales'!L$10)","v":202.27893278540839},{"$f":"+AO87*$E87*$G87*(1+'Sup Generales'!M$10)","v":204.9193435615675},{"$f":"+AP87*$E87*$G87*(1+'Sup Generales'!N$10)","v":207.26259219814378},{"$f":"+AQ87*$E87*$G87*(1+'Sup Generales'!O$10)","v":193.67720260753185},{"$f":"+AR87*$E87*$G87*(1+'Sup Generales'!P$10)","v":212.65524689691324},{"$f":"+AS87*$E87*$G87*(1+'Sup Generales'!Q$10)","v":215.71340402656986},{"$f":"+AT87*$E87*$G87*(1+'Sup Generales'!R$10)","v":218.67989860869523},{"$f":"+AU87*$E87*$G87*(1+'Sup Generales'!S$10)","v":221.58873090342709},{"$f":"+AV87*$E87*$G87*(1+'Sup Generales'!T$10)","v":207.2320496549321},{"$f":"+AW87*$E87*$G87*(1+'Sup Generales'!U$10)","v":227.44569729537915},{"$f":"+AX87*$E87*$G87*(1+'Sup Generales'!V$10)","v":230.43037225309632},null,12,{"$f":"ROUNDDOWN(K$75/$F87,0)-SUM($AE87:AE87)","v":13},{"$f":"ROUNDDOWN(L$75/$F87,0)-SUM($AE87:AF87)","v":13},{"$f":"ROUNDDOWN(M$75/$F87,0)-SUM($AE87:AG87)","v":13},{"$f":"ROUNDDOWN(N$75/$F87,0)-SUM($AE87:AH87)","v":12},{"$f":"ROUNDDOWN(O$75/$F87,0)-SUM($AE87:AI87)","v":13},{"$f":"ROUNDDOWN(P$75/$F87,0)-SUM($AE87:AJ87)","v":13},{"$f":"ROUNDDOWN(Q$75/$F87,0)-SUM($AE87:AK87)","v":13},{"$f":"ROUNDDOWN(R$75/$F87,0)-SUM($AE87:AL87)","v":12},{"$f":"ROUNDDOWN(S$75/$F87,0)-SUM($AE87:AM87)","v":13},{"$f":"ROUNDDOWN(T$75/$F87,0)-SUM($AE87:AN87)","v":13},{"$f":"ROUNDDOWN(U$75/$F87,0)-SUM($AE87:AO87)","v":13},{"$f":"ROUNDDOWN(V$75/$F87,0)-SUM($AE87:AP87)","v":12},{"$f":"ROUNDDOWN(W$75/$F87,0)-SUM($AE87:AQ87)","v":13},{"$f":"ROUNDDOWN(X$75/$F87,0)-SUM($AE87:AR87)","v":13},{"$f":"ROUNDDOWN(Y$75/$F87,0)-SUM($AE87:AS87)","v":13},{"$f":"ROUNDDOWN(Z$75/$F87,0)-SUM($AE87:AT87)","v":13},{"$f":"ROUNDDOWN(AA$75/$F87,0)-SUM($AE87:AU87)","v":12},{"$f":"ROUNDDOWN(AB$75/$F87,0)-SUM($AE87:AV87)","v":13},{"$f":"ROUNDDOWN(AC$75/$F87,0)-SUM($AE87:AW87)","v":13}]
[null,11,"FILTRO SECADOR DE AIRE","UD.",1,30000,35.874285714285712,"Aceites y filtros ",null,{"$f":"+AE88*$E88*$G88*(1+'Sup Generales'!C$10)","v":73.47053714285714},{"$f":"+AF88*$E88*$G88*(1+'Sup Generales'!D$10)","v":74.646065737142848},{"$f":"+AG88*$E88*$G88*(1+'Sup Generales'!E$10)","v":76.58686344630857},{"$f":"+AH88*$E88*$G88*(1+'Sup Generales'!F$10)","v":76.917718696396634},{"$f":"+AI88*$E88*$G88*(1+'Sup Generales'!G$10)","v":77.125396536876906},{"$f":"+AJ88*$E88*$G88*(1+'Sup Generales'!H$10)","v":77.642136693673976},{"$f":"+AK88*$E88*$G88*(1+'Sup Generales'!I$10)","v":79.149267619569059},{"$f":"+AL88*$E88*$G88*(1+'Sup Generales'!J$10)","v":120.78422488439284},{"$f":"+AM88*$E88*$G88*(1+'Sup Generales'!K$10)","v":81.695280698611384},{"$f":"+AN88*$E88*$G88*(1+'Sup Generales'!L$10)","v":82.788422791415357},{"$f":"+AO88*$E88*$G88*(1+'Sup Generales'!M$10)","v":83.869086213303063},{"$f":"+AP88*$E88*$G88*(1+'Sup Generales'!N$10)","v":84.828127553688645},{"$f":"+AQ88*$E88*$G88*(1+'Sup Generales'!O$10)","v":85.873579318825861},{"$f":"+AR88*$E88*$G88*(1+'Sup Generales'!P$10)","v":87.035225302436729},{"$f":"+AS88*$E88*$G88*(1+'Sup Generales'!Q$10)","v":88.286863334763041},{"$f":"+AT88*$E88*$G88*(1+'Sup Generales'!R$10)","v":134.251478782568},{"$f":"+AU88*$E88*$G88*(1+'Sup Generales'!S$10)","v":90.691508439525578},{"$f":"+AV88*$E88*$G88*(1+'Sup Generales'!T$10)","v":91.883596075615841},{"$f":"+AW88*$E88*$G88*(1+'Sup Generales'!U$10)","v":93.08863899214937},{"$f":"+AX88*$E88*$G88*(1+'Sup Generales'!V$10)","v":94.310202349696723},null,2,{"$f":"ROUNDDOWN(K$75/$F88,0)-SUM($AE88:AE88)","v":2},{"$f":"ROUNDDOWN(L$75/$F88,0)-SUM($AE88:AF88)","v":2},{"$f":"ROUNDDOWN(M$75/$F88,0)-SUM($AE88:AG88)","v":2},{"$f":"ROUNDDOWN(N$75/$F88,0)-SUM($AE88:AH88)","v":2},{"$f":"ROUNDDOWN(O$75/$F88,0)-SUM($AE88:AI88)","v":2},{"$f":"ROUNDDOWN(P$75/$F88,0)-SUM($AE88:AJ88)","v":2},{"$f":"ROUNDDOWN(Q$75/$F88,0)-SUM($AE88:AK88)","v":3},{"$f":"ROUNDDOWN(R$75/$F88,0)-SUM($AE88:AL88)","v":2},{"$f":"ROUNDDOWN(S$75/$F88,0)-SUM($AE88:AM88)","v":2},{"$f":"ROUNDDOWN(T$75/$F88,0)-SUM($AE88:AN88)","v":2},{"$f":"ROUNDDOWN(U$75/$F88,0)-SUM($AE88:AO88)","v":2},{"$f":"ROUNDDOWN(V$75/$F88,0)-SUM($AE88:AP88)","v":2},{"$f":"ROUNDDOWN(W$75/$F88,0)-SUM($AE88:AQ88)","v":2},{"$f":"ROUNDDOWN(X$75/$F88,0)-SUM($AE88:AR88)","v":2},{"$f":"ROUNDDOWN(Y$75/$F88,0)-SUM($AE88:AS88)","v":3},{"$f":"ROUNDDOWN(Z$75/$F88,0)-SUM($AE88:AT88)","v":2},{"$f":"ROUNDDOWN(AA$75/$F88,0)-SUM($AE88:AU88)","v":2},{"$f":"ROUNDDOWN(AB$75/$F88,0)-SUM($AE88:AV88)","v":2},{"$f":"ROUNDDOWN(AC$75/$F88,0)-SUM($AE88:AW88)","v":2}]
[null,12,"REFRIGERANTE DE MOTOR","GLNS.",4,30000,3.8400000000000003,"Aceites y filtros ",null,{"$f":"+AE89*$E89*$G89*(1+'Sup Generales'!C$10)","v":31.457280000000004},{"$f":"+AF89*$E89*$G89*(1+'Sup Generales'!D$10)","v":31.960596480000003},{"$f":"+AG89*$E89*$G89*(1+'Sup Generales'!E$10)","v":32.791571988480001},{"$f":"+AH89*$E89*$G89*(1+'Sup Generales'!F$10)","v":32.933231579470238},{"$f":"+AI89*$E89*$G89*(1+'Sup Generales'!G$10)","v":33.022151304734813},{"$f":"+AJ89*$E89*$G89*(1+'Sup Generales'!H$10)","v":33.243399718476532},{"$f":"+AK89*$E89*$G89*(1+'Sup Generales'!I$10)","v":33.888695661261814},{"$f":"+AL89*$E89*$G89*(1+'Sup Generales'!J$10)","v":51.715195363053205},{"$f":"+AM89*$E89*$G89*(1+'Sup Generales'!K$10)","v":34.97880129306585},{"$f":"+AN89*$E89*$G89*(1+'Sup Generales'!L$10)","v":35.446843017413912},{"$f":"+AO89*$E89*$G89*(1+'Sup Generales'!M$10)","v":35.909541851124352},{"$f":"+AP89*$E89*$G89*(1+'Sup Generales'!N$10)","v":36.320166751244841},{"$f":"+AQ89*$E89*$G89*(1+'Sup Generales'!O$10)","v":36.767789297388326},{"$f":"+AR89*$E89*$G89*(1+'Sup Generales'!P$10)","v":37.265161773327485},{"$f":"+AS89*$E89*$G89*(1+'Sup Generales'!Q$10)","v":37.801065409978193},{"$f":"+AT89*$E89*$G89*(1+'Sup Generales'!R$10)","v":57.481359504227925},{"$f":"+AU89*$E89*$G89*(1+'Sup Generales'!S$10)","v":38.830642670507295},{"$f":"+AV89*$E89*$G89*(1+'Sup Generales'!T$10)","v":39.341049100231828},{"$f":"+AW89*$E89*$G89*(1+'Sup Generales'!U$10)","v":39.857002486603619},{"$f":"+AX89*$E89*$G89*(1+'Sup Generales'!V$10)","v":40.380029295314564},null,2,{"$f":"ROUNDDOWN(K$75/$F89,0)-SUM($AE89:AE89)","v":2},{"$f":"ROUNDDOWN(L$75/$F89,0)-SUM($AE89:AF89)","v":2},{"$f":"ROUNDDOWN(M$75/$F89,0)-SUM($AE89:AG89)","v":2},{"$f":"ROUNDDOWN(N$75/$F89,0)-SUM($AE89:AH89)","v":2},{"$f":"ROUNDDOWN(O$75/$F89,0)-SUM($AE89:AI89)","v":2},{"$f":"ROUNDDOWN(P$75/$F89,0)-SUM($AE89:AJ89)","v":2},{"$f":"ROUNDDOWN(Q$75/$F89,0)-SUM($AE89:AK89)","v":3},{"$f":"ROUNDDOWN(R$75/$F89,0)-SUM($AE89:AL89)","v":2},{"$f":"ROUNDDOWN(S$75/$F89,0)-SUM($AE89:AM89)","v":2},{"$f":"ROUNDDOWN(T$75/$F89,0)-SUM($AE89:AN89)","v":2},{"$f":"ROUNDDOWN(U$75/$F89,0)-SUM($AE89:AO89)","v":2},{"$f":"ROUNDDOWN(V$75/$F89,0)-SUM($AE89:AP89)","v":2},{"$f":"ROUNDDOWN(W$75/$F89,0)-SUM($AE89:AQ89)","v":2},{"$f":"ROUNDDOWN(X$75/$F89,0)-SUM($AE89:AR89)","v":2},{"$f":"ROUNDDOWN(Y$75/$F89,0)-SUM($AE89:AS89)","v":3},{"$f":"ROUNDDOWN(Z$75/$F89,0)-SUM($AE89:AT89)","v":2},{"$f":"ROUNDDOWN(AA$75/$F89,0)-SUM($AE89:AU89)","v":2},{"$f":"ROUNDDOWN(AB$75/$F89,0)-SUM($AE89:AV89)","v":2},{"$f":"ROUNDDOWN(AC$75/$F89,0)-SUM($AE89:AW89)","v":2}]
[null,13,"DESCARBONIZACION COMPRESOR AIRE","UD.",1,30000,27.5,"Aceites y filtros ",null,{"$f":"+AE90*$E90*$G90*(1+'Sup Generales'!C$10)","v":56.32},{"$f":"+AF90*$E90*$G90*(1+'Sup Generales'!D$10)","v":57.221119999999999},{"$f":"+AG90*$E90*$G90*(1+'Sup Generales'!E$10)","v":58.708869120000003},{"$f":"+AH90*$E90*$G90*(1+'Sup Generales'!F$10)","v":58.962491434598412},{"$f":"+AI90*$E90*$G90*(1+'Sup Generales'!G$10)","v":59.121690161471825},{"$f":"+AJ90*$E90*$G90*(1+'Sup Generales'!H$10)","v":59.51780548555368},{"$f":"+AK90*$E90*$G90*(1+'Sup Generales'!I$10)","v":60.673120487285139},{"$f":"+AL90*$E90*$G90*(1+'Sup Generales'!J$10)","v":92.589054198174679},{"$f":"+AM90*$E90*$G90*(1+'Sup Generales'!K$10)","v":62.624807002559301},{"$f":"+AN90*$E90*$G90*(1+'Sup Generales'!L$10)","v":63.46277232935433},{"$f":"+AO90*$E90*$G90*(1+'Sup Generales'!M$10)","v":64.291171933979143},{"$f":"+AP90*$E90*$G90*(1+'Sup Generales'!N$10)","v":65.026340212189652},{"$f":"+AQ90*$E90*$G90*(1+'Sup Generales'!O$10)","v":65.827747765506444},{"$f":"+AR90*$E90*$G90*(1+'Sup Generales'!P$10)","v":66.718225831152722},{"$f":"+AS90*$E90*$G90*(1+'Sup Generales'!Q$10)","v":67.677688722291677},{"$f":"+AT90*$E90*$G90*(1+'Sup Generales'!R$10)","v":102.91259025822056},{"$f":"+AU90*$E90*$G90*(1+'Sup Generales'!S$10)","v":69.521007385348341},{"$f":"+AV90*$E90*$G90*(1+'Sup Generales'!T$10)","v":70.434820980232772},{"$f":"+AW90*$E90*$G90*(1+'Sup Generales'!U$10)","v":71.358565649843726},{"$f":"+AX90*$E90*$G90*(1+'Sup Generales'!V$10)","v":72.294974324293648},null,2,{"$f":"ROUNDDOWN(K$75/$F90,0)-SUM($AE90:AE90)","v":2},{"$f":"ROUNDDOWN(L$75/$F90,0)-SUM($AE90:AF90)","v":2},{"$f":"ROUNDDOWN(M$75/$F90,0)-SUM($AE90:AG90)","v":2},{"$f":"ROUNDDOWN(N$75/$F90,0)-SUM($AE90:AH90)","v":2},{"$f":"ROUNDDOWN(O$75/$F90,0)-SUM($AE90:AI90)","v":2},{"$f":"ROUNDDOWN(P$75/$F90,0)-SUM($AE90:AJ90)","v":2},{"$f":"ROUNDDOWN(Q$75/$F90,0)-SUM($AE90:AK90)","v":3},{"$f":"ROUNDDOWN(R$75/$F90,0)-SUM($AE90:AL90)","v":2},{"$f":"ROUNDDOWN(S$75/$F90,0)-SUM($AE90:AM90)","v":2},{"$f":"ROUNDDOWN(T$75/$F90,0)-SUM($AE90:AN90)","v":2},{"$f":"ROUNDDOWN(U$75/$F90,0)-SUM($AE90:AO90)","v":2},{"$f":"ROUNDDOWN(V$75/$F90,0)-SUM($AE90:AP90)","v":2},{"$f":"ROUNDDOWN(W$75/$F90,0)-SUM($AE90:AQ90)","v":2},{"$f":"ROUNDDOWN(X$75/$F90,0)-SUM($AE90:AR90)","v":2},{"$f":"ROUNDDOWN(Y$75/$F90,0)-SUM($AE90:AS90)","v":3},{"$f":"ROUNDDOWN(Z$75/$F90,0)-SUM($AE90:AT90)","v":2},{"$f":"ROUNDDOWN(AA$75/$F90,0)-SUM($AE90:AU90)","v":2},{"$f":"ROUNDDOWN(AB$75/$F90,0)-SUM($AE90:AV90)","v":2},{"$f":"ROUNDDOWN(AC$75/$F90,0)-SUM($AE90:AW90)","v":2}]
[null,14,"BANDAS","JGO.",1,30000,31.708571428571428,"Costo de mantenimiento mecánico",null,{"$f":"+AE91*$E91*$G91*(1+'Sup Generales'!C$10)","v":64.939154285714281},{"$f":"+AF91*$E91*$G91*(1+'Sup Generales'!D$10)","v":65.978180754285717},{"$f":"+AG91*$E91*$G91*(1+'Sup Generales'!E$10)","v":67.693613453897143},{"$f":"+AH91*$E91*$G91*(1+'Sup Generales'!F$10)","v":67.986049864017986},{"$f":"+AI91*$E91*$G91*(1+'Sup Generales'!G$10)","v":68.169612198650839},{"$f":"+AJ91*$E91*$G91*(1+'Sup Generales'!H$10)","v":68.626348600381789},{"$f":"+AK91*$E91*$G91*(1+'Sup Generales'!I$10)","v":69.958471809650959},{"$f":"+AL91*$E91*$G91*(1+'Sup Generales'!J$10)","v":106.75878685624338},{"$f":"+AM91*$E91*$G91*(1+'Sup Generales'!K$10)","v":72.208842401496426},{"$f":"+AN91*$E91*$G91*(1+'Sup Generales'!L$10)","v":73.175049071290843},{"$f":"+AO91*$E91*$G91*(1+'Sup Generales'!M$10)","v":74.130226090732521},{"$f":"+AP91*$E91*$G91*(1+'Sup Generales'!N$10)","v":74.977903758429164},{"$f":"+AQ91*$E91*$G91*(1+'Sup Generales'!O$10)","v":75.901957891074332},{"$f":"+AR91*$E91*$G91*(1+'Sup Generales'!P$10)","v":76.928713794715108},{"$f":"+AS91*$E91*$G91*(1+'Sup Generales'!Q$10)","v":78.035011889869409},{"$f":"+AT91*$E91*$G91*(1+'Sup Generales'!R$10)","v":118.66222614916693},{"$f":"+AU91*$E91*$G91*(1+'Sup Generales'!S$10)","v":80.160430125983979},{"$f":"+AV91*$E91*$G91*(1+'Sup Generales'!T$10)","v":81.214092804012807},{"$f":"+AW91*$E91*$G91*(1+'Sup Generales'!U$10)","v":82.279206398126291},{"$f":"+AX91*$E91*$G91*(1+'Sup Generales'!V$10)","v":83.358922083221913},null,2,{"$f":"ROUNDDOWN(K$75/$F91,0)-SUM($AE91:AE91)","v":2},{"$f":"ROUNDDOWN(L$75/$F91,0)-SUM($AE91:AF91)","v":2},{"$f":"ROUNDDOWN(M$75/$F91,0)-SUM($AE91:AG91)","v":2},{"$f":"ROUNDDOWN(N$75/$F91,0)-SUM($AE91:AH91)","v":2},{"$f":"ROUNDDOWN(O$75/$F91,0)-SUM($AE91:AI91)","v":2},{"$f":"ROUNDDOWN(P$75/$F91,0)-SUM($AE91:AJ91)","v":2},{"$f":"ROUNDDOWN(Q$75/$F91,0)-SUM($AE91:AK91)","v":3},{"$f":"ROUNDDOWN(R$75/$F91,0)-SUM($AE91:AL91)","v":2},{"$f":"ROUNDDOWN(S$75/$F91,0)-SUM($AE91:AM91)","v":2},{"$f":"ROUNDDOWN(T$75/$F91,0)-SUM($AE91:AN91)","v":2},{"$f":"ROUNDDOWN(U$75/$F91,0)-SUM($AE91:AO91)","v":2},{"$f":"ROUNDDOWN(V$75/$F91,0)-SUM($AE91:AP91)","v":2},{"$f":"ROUNDDOWN(W$75/$F91,0)-SUM($AE91:AQ91)","v":2},{"$f":"ROUNDDOWN(X$75/$F91,0)-SUM($AE91:AR91)","v":2},{"$f":"ROUNDDOWN(Y$75/$F91,0)-SUM($AE91:AS91)","v":3},{"$f":"ROUNDDOWN(Z$75/$F91,0)-SUM($AE91:AT91)","v":2},{"$f":"ROUNDDOWN(AA$75/$F91,0)-SUM($AE91:AU91)","v":2},{"$f":"ROUNDDOWN(AB$75/$F91,0)-SUM($AE91:AV91)","v":2},{"$f":"ROUNDDOWN(AC$75/$F91,0)-SUM($AE91:AW91)","v":2}]
[null,15,"CAMBIO DE TOBERAS DE INYECTORES","JGO.",1,120000,213.86666666666667,"Costo de mantenimiento mecánico",null,{"$f":"+AE92*$E92*$G92*(1+'Sup Generales'!C$10)","v":0},{"$f":"+AF92*$E92*$G92*(1+'Sup Generales'!D$10)","v":222.50345813333334},{"$f":"+AG92*$E92*$G92*(1+'Sup Generales'!E$10)","v":0},{"$f":"+AH92*$E92*$G92*(1+'Sup Generales'!F$10)","v":229.27475457235357},{"$f":"+AI92*$E92*$G92*(1+'Sup Generales'!G$10)","v":0},{"$f":"+AJ92*$E92*$G92*(1+'Sup Generales'!H$10)","v":231.43408484564389},{"$f":"+AK92*$E92*$G92*(1+'Sup Generales'!I$10)","v":0},{"$f":"+AL92*$E92*$G92*(1+'Sup Generales'!J$10)","v":240.02075625676312},{"$f":"+AM92*$E92*$G92*(1+'Sup Generales'!K$10)","v":0},{"$f":"+AN92*$E92*$G92*(1+'Sup Generales'!L$10)","v":246.77402864553781},{"$f":"+AO92*$E92*$G92*(1+'Sup Generales'!M$10)","v":0},{"$f":"+AP92*$E92*$G92*(1+'Sup Generales'!N$10)","v":252.85393866752048},{"$f":"+AQ92*$E92*$G92*(1+'Sup Generales'!O$10)","v":0},{"$f":"+AR92*$E92*$G92*(1+'Sup Generales'!P$10)","v":259.4328102622278},{"$f":"+AS92*$E92*$G92*(1+'Sup Generales'!Q$10)","v":0},{"$f":"+AT92*$E92*$G92*(1+'Sup Generales'!R$10)","v":266.7826986249467},{"$f":"+AU92*$E92*$G92*(1+'Sup Generales'!S$10)","v":270.33138386933024},{"$f":"+AV92*$E92*$G92*(1+'Sup Generales'!T$10)","v":0},{"$f":"+AW92*$E92*$G92*(1+'Sup Generales'!U$10)","v":277.47670133902869},{"$f":"+AX92*$E92*$G92*(1+'Sup Generales'!V$10)","v":0},null,0,{"$f":"ROUNDDOWN(K$75/$F92,0)-SUM($AE92:AE92)","v":1},{"$f":"ROUNDDOWN(L$75/$F92,0)-SUM($AE92:AF92)","v":0},{"$f":"ROUNDDOWN(M$75/$F92,0)-SUM($AE92:AG92)","v":1},{"$f":"ROUNDDOWN(N$75/$F92,0)-SUM($AE92:AH92)","v":0},{"$f":"ROUNDDOWN(O$75/$F92,0)-SUM($AE92:AI92)","v":1},{"$f":"ROUNDDOWN(P$75/$F92,0)-SUM($AE92:AJ92)","v":0},{"$f":"ROUNDDOWN(Q$75/$F92,0)-SUM($AE92:AK92)","v":1},{"$f":"ROUNDDOWN(R$75/$F92,0)-SUM($AE92:AL92)","v":0},{"$f":"ROUNDDOWN(S$75/$F92,0)-SUM($AE92:AM92)","v":1},{"$f":"ROUNDDOWN(T$75/$F92,0)-SUM($AE92:AN92)","v":0},{"$f":"ROUNDDOWN(U$75/$F92,0)-SUM($AE92:AO92)","v":1},{"$f":"ROUNDDOWN(V$75/$F92,0)-SUM($AE92:AP92)","v":0},{"$f":"ROUNDDOWN(W$75/$F92,0)-SUM($AE92:AQ92)","v":1},{"$f":"ROUNDDOWN(X$75/$F92,0)-SUM($AE92:AR92)","v":0},{"$f":"ROUNDDOWN(Y$75/$F92,0)-SUM($AE92:AS92)","v":1},{"$f":"ROUNDDOWN(Z$75/$F92,0)-SUM($AE92:AT92)","v":1},{"$f":"ROUNDDOWN(AA$75/$F92,0)-SUM($AE92:AU92)","v":0},{"$f":"ROUNDDOWN(AB$75/$F92,0)-SUM($AE92:AV92)","v":1},{"$f":"ROUNDDOWN(AC$75/$F92,0)-SUM($AE92:AW92)","v":0}]
[null,16,"CALIBRACIÓN DE LA BOMBA DE INYECCIÓN","UND",1,150000,296.2,"Costo de mantenimiento mecánico",null,{"$f":"+AE93*$E93*$G93*(1+'Sup Generales'!C$10)","v":0},{"$f":"+AF93*$E93*$G93*(1+'Sup Generales'!D$10)","v":0},{"$f":"+AG93*$E93*$G93*(1+'Sup Generales'!E$10)","v":316.17394606080001},{"$f":"+AH93*$E93*$G93*(1+'Sup Generales'!F$10)","v":0},{"$f":"+AI93*$E93*$G93*(1+'Sup Generales'!G$10)","v":318.39717501505368},{"$f":"+AJ93*$E93*$G93*(1+'Sup Generales'!H$10)","v":0},{"$f":"+AK93*$E93*$G93*(1+'Sup Generales'!I$10)","v":0},{"$f":"+AL93*$E93*$G93*(1+'Sup Generales'!J$10)","v":332.42276186059803},{"$f":"+AM93*$E93*$G93*(1+'Sup Generales'!K$10)","v":0},{"$f":"+AN93*$E93*$G93*(1+'Sup Generales'!L$10)","v":341.77587570826819},{"$f":"+AO93*$E93*$G93*(1+'Sup Generales'!M$10)","v":0},{"$f":"+AP93*$E93*$G93*(1+'Sup Generales'!N$10)","v":350.19639947001042},{"$f":"+AQ93*$E93*$G93*(1+'Sup Generales'!O$10)","v":0},{"$f":"+AR93*$E93*$G93*(1+'Sup Generales'!P$10)","v":0},{"$f":"+AS93*$E93*$G93*(1+'Sup Generales'!Q$10)","v":364.47511635532351},{"$f":"+AT93*$E93*$G93*(1+'Sup Generales'!R$10)","v":0},{"$f":"+AU93*$E93*$G93*(1+'Sup Generales'!S$10)","v":374.4022252280032},{"$f":"+AV93*$E93*$G93*(1+'Sup Generales'!T$10)","v":0},{"$f":"+AW93*$E93*$G93*(1+'Sup Generales'!U$10)","v":384.29831173606743},{"$f":"+AX93*$E93*$G93*(1+'Sup Generales'!V$10)","v":0},null,0,{"$f":"ROUNDDOWN(K$75/$F93,0)-SUM($AE93:AE93)","v":0},{"$f":"ROUNDDOWN(L$75/$F93,0)-SUM($AE93:AF93)","v":1},{"$f":"ROUNDDOWN(M$75/$F93,0)-SUM($AE93:AG93)","v":0},{"$f":"ROUNDDOWN(N$75/$F93,0)-SUM($AE93:AH93)","v":1},{"$f":"ROUNDDOWN(O$75/$F93,0)-SUM($AE93:AI93)","v":0},{"$f":"ROUNDDOWN(P$75/$F93,0)-SUM($AE93:AJ93)","v":0},{"$f":"ROUNDDOWN(Q$75/$F93,0)-SUM($AE93:AK93)","v":1},{"$f":"ROUNDDOWN(R$75/$F93,0)-SUM($AE93:AL93)","v":0},{"$f":"ROUNDDOWN(S$75/$F93,0)-SUM($AE93:AM93)","v":1},{"$f":"ROUNDDOWN(T$75/$F93,0)-SUM($AE93:AN93)","v":0},{"$f":"ROUNDDOWN(U$75/$F93,0)-SUM($AE93:AO93)","v":1},{"$f":"ROUNDDOWN(V$75/$F93,0)-SUM($AE93:AP93)","v":0},{"$f":"ROUNDDOWN(W$75/$F93,0)-SUM($AE93:AQ93)","v":0},{"$f":"ROUNDDOWN(X$75/$F93,0)-SUM($AE93:AR93)","v":1},{"$f":"ROUNDDOWN(Y$75/$F93,0)-SUM($AE93:AS93)","v":0},{"$f":"ROUNDDOWN(Z$75/$F93,0)-SUM($AE93:AT93)","v":1},{"$f":"ROUNDDOWN(AA$75/$F93,0)-SUM($AE93:AU93)","v":0},{"$f":"ROUNDDOWN(AB$75/$F93,0)-SUM($AE93:AV93)","v":1},{"$f":"ROUNDDOWN(AC$75/$F93,0)-SUM($AE93:AW93)","v":0}]
[null,17,"EMBRAGUE","JGO.",1,60000,728.33333333333337,"Costo de mantenimiento mecánico",null,{"$f":"+AE94*$E94*$G94*(1+'Sup Generales'!C$10)","v":745.81333333333339},{"$f":"+AF94*$E94*$G94*(1+'Sup Generales'!D$10)","v":757.74634666666668},{"$f":"+AG94*$E94*$G94*(1+'Sup Generales'!E$10)","v":777.44775168000001},{"$f":"+AH94*$E94*$G94*(1+'Sup Generales'!F$10)","v":780.80632596725775},{"$f":"+AI94*$E94*$G94*(1+'Sup Generales'!G$10)","v":782.91450304736929},{"$f":"+AJ94*$E94*$G94*(1+'Sup Generales'!H$10)","v":788.1600302177867},{"$f":"+AK94*$E94*$G94*(1+'Sup Generales'!I$10)","v":803.45920160435173},{"$f":"+AL94*$E94*$G94*(1+'Sup Generales'!J$10)","v":817.40235726469359},{"$f":"+AM94*$E94*$G94*(1+'Sup Generales'!K$10)","v":829.30426242783074},{"$f":"+AN94*$E94*$G94*(1+'Sup Generales'!L$10)","v":840.40095478569219},{"$f":"+AO94*$E94*$G94*(1+'Sup Generales'!M$10)","v":851.37097379239049},{"$f":"+AP94*$E94*$G94*(1+'Sup Generales'!N$10)","v":861.10638402202665},{"$f":"+AQ94*$E94*$G94*(1+'Sup Generales'!O$10)","v":871.71896283413082},{"$f":"+AR94*$E94*$G94*(1+'Sup Generales'!P$10)","v":883.51105115799214},{"$f":"+AS94*$E94*$G94*(1+'Sup Generales'!Q$10)","v":896.2166658073171},{"$f":"+AT94*$E94*$G94*(1+'Sup Generales'!R$10)","v":1817.0829067815105},{"$f":"+AU94*$E94*$G94*(1+'Sup Generales'!S$10)","v":920.6266735574917},{"$f":"+AV94*$E94*$G94*(1+'Sup Generales'!T$10)","v":932.72778085944606},{"$f":"+AW94*$E94*$G94*(1+'Sup Generales'!U$10)","v":944.96039966611238},{"$f":"+AX94*$E94*$G94*(1+'Sup Generales'!V$10)","v":957.36072059746436},null,1,{"$f":"ROUNDDOWN(K$75/$F94,0)-SUM($AE94:AE94)","v":1},{"$f":"ROUNDDOWN(L$75/$F94,0)-SUM($AE94:AF94)","v":1},{"$f":"ROUNDDOWN(M$75/$F94,0)-SUM($AE94:AG94)","v":1},{"$f":"ROUNDDOWN(N$75/$F94,0)-SUM($AE94:AH94)","v":1},{"$f":"ROUNDDOWN(O$75/$F94,0)-SUM($AE94:AI94)","v":1},{"$f":"ROUNDDOWN(P$75/$F94,0)-SUM($AE94:AJ94)","v":1},{"$f":"ROUNDDOWN(Q$75/$F94,0)-SUM($AE94:AK94)","v":1},{"$f":"ROUNDDOWN(R$75/$F94,0)-SUM($AE94:AL94)","v":1},{"$f":"ROUNDDOWN(S$75/$F94,0)-SUM($AE94:AM94)","v":1},{"$f":"ROUNDDOWN(T$75/$F94,0)-SUM($AE94:AN94)","v":1},{"$f":"ROUNDDOWN(U$75/$F94,0)-SUM($AE94:AO94)","v":1},{"$f":"ROUNDDOWN(V$75/$F94,0)-SUM($AE94:AP94)","v":1},{"$f":"ROUNDDOWN(W$75/$F94,0)-SUM($AE94:AQ94)","v":1},{"$f":"ROUNDDOWN(X$75/$F94,0)-SUM($AE94:AR94)","v":1},{"$f":"ROUNDDOWN(Y$75/$F94,0)-SUM($AE94:AS94)","v":2},{"$f":"ROUNDDOWN(Z$75/$F94,0)-SUM($AE94:AT94)","v":1},{"$f":"ROUNDDOWN(AA$75/$F94,0)-SUM($AE94:AU94)","v":1},{"$f":"ROUNDDOWN(AB$75/$F94,0)-SUM($AE94:AV94)","v":1},{"$f":"ROUNDDOWN(AC$75/$F94,0)-SUM($AE94:AW94)","v":1}]
[null,18,"BUSTER EMBRAGUE","JGO.",1,30000,175,"Costo de mantenimiento mecánico",null,{"$f":"+AE95*$E95*$G95*(1+'Sup Generales'!C$10)","v":358.40000000000003},{"$f":"+AF95*$E95*$G95*(1+'Sup Generales'!D$10)","v":364.13439999999997},{"$f":"+AG95*$E95*$G95*(1+'Sup Generales'!E$10)","v":373.60189439999999},{"$f":"+AH95*$E95*$G95*(1+'Sup Generales'!F$10)","v":375.21585458380804},{"$f":"+AI95*$E95*$G95*(1+'Sup Generales'!G$10)","v":376.22893739118433},{"$f":"+AJ95*$E95*$G95*(1+'Sup Generales'!H$10)","v":378.74967127170521},{"$f":"+AK95*$E95*$G95*(1+'Sup Generales'!I$10)","v":386.10167582817814},{"$f":"+AL95*$E95*$G95*(1+'Sup Generales'!J$10)","v":589.20307217020252},{"$f":"+AM95*$E95*$G95*(1+'Sup Generales'!K$10)","v":398.52149910719555},{"$f":"+AN95*$E95*$G95*(1+'Sup Generales'!L$10)","v":403.85400573225479},{"$f":"+AO95*$E95*$G95*(1+'Sup Generales'!M$10)","v":409.12563957986725},{"$f":"+AP95*$E95*$G95*(1+'Sup Generales'!N$10)","v":413.80398316847959},{"$f":"+AQ95*$E95*$G95*(1+'Sup Generales'!O$10)","v":418.9038494168592},{"$f":"+AR95*$E95*$G95*(1+'Sup Generales'!P$10)","v":424.57052801642641},{"$f":"+AS95*$E95*$G95*(1+'Sup Generales'!Q$10)","v":430.67620096003793},{"$f":"+AT95*$E95*$G95*(1+'Sup Generales'!R$10)","v":654.89830164322177},{"$f":"+AU95*$E95*$G95*(1+'Sup Generales'!S$10)","v":442.40641063403484},{"$f":"+AV95*$E95*$G95*(1+'Sup Generales'!T$10)","v":448.22158805602669},{"$f":"+AW95*$E95*$G95*(1+'Sup Generales'!U$10)","v":454.09996322627819},{"$f":"+AX95*$E95*$G95*(1+'Sup Generales'!V$10)","v":460.05892751823228},null,2,{"$f":"ROUNDDOWN(K$75/$F95,0)-SUM($AE95:AE95)","v":2},{"$f":"ROUNDDOWN(L$75/$F95,0)-SUM($AE95:AF95)","v":2},{"$f":"ROUNDDOWN(M$75/$F95,0)-SUM($AE95:AG95)","v":2},{"$f":"ROUNDDOWN(N$75/$F95,0)-SUM($AE95:AH95)","v":2},{"$f":"ROUNDDOWN(O$75/$F95,0)-SUM($AE95:AI95)","v":2},{"$f":"ROUNDDOWN(P$75/$F95,0)-SUM($AE95:AJ95)","v":2},{"$f":"ROUNDDOWN(Q$75/$F95,0)-SUM($AE95:AK95)","v":3},{"$f":"ROUNDDOWN(R$75/$F95,0)-SUM($AE95:AL95)","v":2},{"$f":"ROUNDDOWN(S$75/$F95,0)-SUM($AE95:AM95)","v":2},{"$f":"ROUNDDOWN(T$75/$F95,0)-SUM($AE95:AN95)","v":2},{"$f":"ROUNDDOWN(U$75/$F95,0)-SUM($AE95:AO95)","v":2},{"$f":"ROUNDDOWN(V$75/$F95,0)-SUM($AE95:AP95)","v":2},{"$f":"ROUNDDOWN(W$75/$F95,0)-SUM($AE95:AQ95)","v":2},{"$f":"ROUNDDOWN(X$75/$F95,0)-SUM($AE95:AR95)","v":2},{"$f":"ROUNDDOWN(Y$75/$F95,0)-SUM($AE95:AS95)","v":3},{"$f":"ROUNDDOWN(Z$75/$F95,0)-SUM($AE95:AT95)","v":2},{"$f":"ROUNDDOWN(AA$75/$F95,0)-SUM($AE95:AU95)","v":2},{"$f":"ROUNDDOWN(AB$75/$F95,0)-SUM($AE95:AV95)","v":2},{"$f":"ROUNDDOWN(AC$75/$F95,0)-SUM($AE95:AW95)","v":2}]
[null,19,"SOPORTE DE CARDAN Y CRUCETAS","JGO.",1,30000,176.506,"Costo de mantenimiento mecánico",null,{"$f":"+AE96*$E96*$G96*(1+'Sup Generales'!C$10)","v":361.48428799999999},{"$f":"+AF96*$E96*$G96*(1+'Sup Generales'!D$10)","v":367.26803660799999},{"$f":"+AG96*$E96*$G96*(1+'Sup Generales'!E$10)","v":376.81700555980802},{"$f":"+AH96*$E96*$G96*(1+'Sup Generales'!F$10)","v":378.44485502382645},{"$f":"+AI96*$E96*$G96*(1+'Sup Generales'!G$10)","v":379.46665613239077},{"$f":"+AJ96*$E96*$G96*(1+'Sup Generales'!H$10)","v":382.00908272847772},{"$f":"+AK96*$E96*$G96*(1+'Sup Generales'!I$10)","v":389.42435653559096},{"$f":"+AL96*$E96*$G96*(1+'Sup Generales'!J$10)","v":594.27358546556434},{"$f":"+AM96*$E96*$G96*(1+'Sup Generales'!K$10)","v":401.9510612652266},{"$f":"+AN96*$E96*$G96*(1+'Sup Generales'!L$10)","v":407.32945791872783},{"$f":"+AO96*$E96*$G96*(1+'Sup Generales'!M$10)","v":412.64645794105172},{"$f":"+AP96*$E96*$G96*(1+'Sup Generales'!N$10)","v":417.36506201791804},{"$f":"+AQ96*$E96*$G96*(1+'Sup Generales'!O$10)","v":422.50881625812656},{"$f":"+AR96*$E96*$G96*(1+'Sup Generales'!P$10)","v":428.22426067467063},{"$f":"+AS96*$E96*$G96*(1+'Sup Generales'!Q$10)","v":434.38247729515689},{"$f":"+AT96*$E96*$G96*(1+'Sup Generales'!R$10)","v":660.5341693133629},{"$f":"+AU96*$E96*$G96*(1+'Sup Generales'!S$10)","v":446.21363380211977},{"$f":"+AV96*$E96*$G96*(1+'Sup Generales'!T$10)","v":452.078854979526},{"$f":"+AW96*$E96*$G96*(1+'Sup Generales'!U$10)","v":458.00781776695692},{"$f":"+AX96*$E96*$G96*(1+'Sup Generales'!V$10)","v":464.01806320304632},null,2,{"$f":"ROUNDDOWN(K$75/$F96,0)-SUM($AE96:AE96)","v":2},{"$f":"ROUNDDOWN(L$75/$F96,0)-SUM($AE96:AF96)","v":2},{"$f":"ROUNDDOWN(M$75/$F96,0)-SUM($AE96:AG96)","v":2},{"$f":"ROUNDDOWN(N$75/$F96,0)-SUM($AE96:AH96)","v":2},{"$f":"ROUNDDOWN(O$75/$F96,0)-SUM($AE96:AI96)","v":2},{"$f":"ROUNDDOWN(P$75/$F96,0)-SUM($AE96:AJ96)","v":2},{"$f":"ROUNDDOWN(Q$75/$F96,0)-SUM($AE96:AK96)","v":3},{"$f":"ROUNDDOWN(R$75/$F96,0)-SUM($AE96:AL96)","v":2},{"$f":"ROUNDDOWN(S$75/$F96,0)-SUM($AE96:AM96)","v":2},{"$f":"ROUNDDOWN(T$75/$F96,0)-SUM($AE96:AN96)","v":2},{"$f":"ROUNDDOWN(U$75/$F96,0)-SUM($AE96:AO96)","v":2},{"$f":"ROUNDDOWN(V$75/$F96,0)-SUM($AE96:AP96)","v":2},{"$f":"ROUNDDOWN(W$75/$F96,0)-SUM($AE96:AQ96)","v":2},{"$f":"ROUNDDOWN(X$75/$F96,0)-SUM($AE96:AR96)","v":2},{"$f":"ROUNDDOWN(Y$75/$F96,0)-SUM($AE96:AS96)","v":3},{"$f":"ROUNDDOWN(Z$75/$F96,0)-SUM($AE96:AT96)","v":2},{"$f":"ROUNDDOWN(AA$75/$F96,0)-SUM($AE96:AU96)","v":2},{"$f":"ROUNDDOWN(AB$75/$F96,0)-SUM($AE96:AV96)","v":2},{"$f":"ROUNDDOWN(AC$75/$F96,0)-SUM($AE96:AW96)","v":2}]
[null,20,"MANTENIMIENTO SISTEMA NEUMÁTICO","UND",1,30000,137.75,"Costo de mantenimiento mecánico",null,{"$f":"+AE97*$E97*$G97*(1+'Sup Generales'!C$10)","v":282.11200000000002},{"$f":"+AF97*$E97*$G97*(1+'Sup Generales'!D$10)","v":286.62579199999999},{"$f":"+AG97*$E97*$G97*(1+'Sup Generales'!E$10)","v":294.07806259199998},{"$f":"+AH97*$E97*$G97*(1+'Sup Generales'!F$10)","v":295.34847982239751},{"$f":"+AI97*$E97*$G97*(1+'Sup Generales'!G$10)","v":296.14592071791793},{"$f":"+AJ97*$E97*$G97*(1+'Sup Generales'!H$10)","v":298.13009838672798},{"$f":"+AK97*$E97*$G97*(1+'Sup Generales'!I$10)","v":303.91717625903738},{"$f":"+AL97*$E97*$G97*(1+'Sup Generales'!J$10)","v":463.78698966540225},{"$f":"+AM97*$E97*$G97*(1+'Sup Generales'!K$10)","v":313.6933514400925},{"$f":"+AN97*$E97*$G97*(1+'Sup Generales'!L$10)","v":317.89079594067488},{"$f":"+AO97*$E97*$G97*(1+'Sup Generales'!M$10)","v":322.04032486929549},{"$f":"+AP97*$E97*$G97*(1+'Sup Generales'!N$10)","v":325.72284960833179},{"$f":"+AQ97*$E97*$G97*(1+'Sup Generales'!O$10)","v":329.73717289812771},{"$f":"+AR97*$E97*$G97*(1+'Sup Generales'!P$10)","v":334.19765848150132},{"$f":"+AS97*$E97*$G97*(1+'Sup Generales'!Q$10)","v":339.00369532711557},{"$f":"+AT97*$E97*$G97*(1+'Sup Generales'!R$10)","v":515.49852029345027},{"$f":"+AU97*$E97*$G97*(1+'Sup Generales'!S$10)","v":348.23704608479028},{"$f":"+AV97*$E97*$G97*(1+'Sup Generales'!T$10)","v":352.81442145552955},{"$f":"+AW97*$E97*$G97*(1+'Sup Generales'!U$10)","v":357.44154248239897},{"$f":"+AX97*$E97*$G97*(1+'Sup Generales'!V$10)","v":362.13209866078},null,2,{"$f":"ROUNDDOWN(K$75/$F97,0)-SUM($AE97:AE97)","v":2},{"$f":"ROUNDDOWN(L$75/$F97,0)-SUM($AE97:AF97)","v":2},{"$f":"ROUNDDOWN(M$75/$F97,0)-SUM($AE97:AG97)","v":2},{"$f":"ROUNDDOWN(N$75/$F97,0)-SUM($AE97:AH97)","v":2},{"$f":"ROUNDDOWN(O$75/$F97,0)-SUM($AE97:AI97)","v":2},{"$f":"ROUNDDOWN(P$75/$F97,0)-SUM($AE97:AJ97)","v":2},{"$f":"ROUNDDOWN(Q$75/$F97,0)-SUM($AE97:AK97)","v":3},{"$f":"ROUNDDOWN(R$75/$F97,0)-SUM($AE97:AL97)","v":2},{"$f":"ROUNDDOWN(S$75/$F97,0)-SUM($AE97:AM97)","v":2},{"$f":"ROUNDDOWN(T$75/$F97,0)-SUM($AE97:AN97)","v":2},{"$f":"ROUNDDOWN(U$75/$F97,0)-SUM($AE97:AO97)","v":2},{"$f":"ROUNDDOWN(V$75/$F97,0)-SUM($AE97:AP97)","v":2},{"$f":"ROUNDDOWN(W$75/$F97,0)-SUM($AE97:AQ97)","v":2},{"$f":"ROUNDDOWN(X$75/$F97,0)-SUM($AE97:AR97)","v":2},{"$f":"ROUNDDOWN(Y$75/$F97,0)-SUM($AE97:AS97)","v":3},{"$f":"ROUNDDOWN(Z$75/$F97,0)-SUM($AE97:AT97)","v":2},{"$f":"ROUNDDOWN(AA$75/$F97,0)-SUM($AE97:AU97)","v":2},{"$f":"ROUNDDOWN(AB$75/$F97,0)-SUM($AE97:AV97)","v":2},{"$f":"ROUNDDOWN(AC$75/$F97,0)-SUM($AE97:AW97)","v":2}]
[null,21,"ZAPATAS (JUEGO FORROS 2) X 4","JGO.",2,20000,74.131666666666675,"Costo de mantenimiento mecánico",null,{"$f":"+AE98*$E98*$G98*(1+'Sup Generales'!C$10)","v":455.46496000000008},{"$f":"+AF98*$E98*$G98*(1+'Sup Generales'!D$10)","v":462.75239936000008},{"$f":"+AG98*$E98*$G98*(1+'Sup Generales'!E$10)","v":474.78396174336007},{"$f":"+AH98*$E98*$G98*(1+'Sup Generales'!F$10)","v":476.83502845809147},{"$f":"+AI98*$E98*$G98*(1+'Sup Generales'!G$10)","v":478.12248303492828},{"$f":"+AJ98*$E98*$G98*(1+'Sup Generales'!H$10)","v":641.76787156168302},{"$f":"+AK98*$E98*$G98*(1+'Sup Generales'!I$10)","v":490.66904111890113},{"$f":"+AL98*$E98*$G98*(1+'Sup Generales'!J$10)","v":499.18406565825603},{"$f":"+AM98*$E98*$G98*(1+'Sup Generales'!K$10)","v":506.45250739397011},{"$f":"+AN98*$E98*$G98*(1+'Sup Generales'!L$10)","v":513.22920917042757},{"$f":"+AO98*$E98*$G98*(1+'Sup Generales'!M$10)","v":693.23806944277783},{"$f":"+AP98*$E98*$G98*(1+'Sup Generales'!N$10)","v":525.87392478145159},{"$f":"+AQ98*$E98*$G98*(1+'Sup Generales'!O$10)","v":532.35498052035666},{"$f":"+AR98*$E98*$G98*(1+'Sup Generales'!P$10)","v":539.55635758978951},{"$f":"+AS98*$E98*$G98*(1+'Sup Generales'!Q$10)","v":547.31562121432944},{"$f":"+AT98*$E98*$G98*(1+'Sup Generales'!R$10)","v":739.78975387400283},{"$f":"+AU98*$E98*$G98*(1+'Sup Generales'!S$10)","v":562.22270681689258},{"$f":"+AV98*$E98*$G98*(1+'Sup Generales'!T$10)","v":569.61280043268607},{"$f":"+AW98*$E98*$G98*(1+'Sup Generales'!U$10)","v":577.08320755261809},{"$f":"+AX98*$E98*$G98*(1+'Sup Generales'!V$10)","v":584.65602963095591},null,3,{"$f":"ROUNDDOWN(K$75/$F98,0)-SUM($AE98:AE98)","v":3},{"$f":"ROUNDDOWN(L$75/$F98,0)-SUM($AE98:AF98)","v":3},{"$f":"ROUNDDOWN(M$75/$F98,0)-SUM($AE98:AG98)","v":3},{"$f":"ROUNDDOWN(N$75/$F98,0)-SUM($AE98:AH98)","v":3},{"$f":"ROUNDDOWN(O$75/$F98,0)-SUM($AE98:AI98)","v":4},{"$f":"ROUNDDOWN(P$75/$F98,0)-SUM($AE98:AJ98)","v":3},{"$f":"ROUNDDOWN(Q$75/$F98,0)-SUM($AE98:AK98)","v":3},{"$f":"ROUNDDOWN(R$75/$F98,0)-SUM($AE98:AL98)","v":3},{"$f":"ROUNDDOWN(S$75/$F98,0)-SUM($AE98:AM98)","v":3},{"$f":"ROUNDDOWN(T$75/$F98,0)-SUM($AE98:AN98)","v":4},{"$f":"ROUNDDOWN(U$75/$F98,0)-SUM($AE98:AO98)","v":3},{"$f":"ROUNDDOWN(V$75/$F98,0)-SUM($AE98:AP98)","v":3},{"$f":"ROUNDDOWN(W$75/$F98,0)-SUM($AE98:AQ98)","v":3},{"$f":"ROUNDDOWN(X$75/$F98,0)-SUM($AE98:AR98)","v":3},{"$f":"ROUNDDOWN(Y$75/$F98,0)-SUM($AE98:AS98)","v":4},{"$f":"ROUNDDOWN(Z$75/$F98,0)-SUM($AE98:AT98)","v":3},{"$f":"ROUNDDOWN(AA$75/$F98,0)-SUM($AE98:AU98)","v":3},{"$f":"ROUNDDOWN(AB$75/$F98,0)-SUM($AE98:AV98)","v":3},{"$f":"ROUNDDOWN(AC$75/$F98,0)-SUM($AE98:AW98)","v":3}]
[null,22,"CAMBIO TAMBORES (JUEGO)","UND",4,180000,151.96125000000001,"Costo de mantenimiento mecánico",null,{"$f":"+AE99*$E99*$G99*(1+'Sup Generales'!C$10)","v":0},{"$f":"+AF99*$E99*$G99*(1+'Sup Generales'!D$10)","v":0},{"$f":"+AG99*$E99*$G99*(1+'Sup Generales'!E$10)","v":648.83441000447999},{"$f":"+AH99*$E99*$G99*(1+'Sup Generales'!F$10)","v":0},{"$f":"+AI99*$E99*$G99*(1+'Sup Generales'!G$10)","v":0},{"$f":"+AJ99*$E99*$G99*(1+'Sup Generales'!H$10)","v":657.77455409757056},{"$f":"+AK99*$E99*$G99*(1+'Sup Generales'!I$10)","v":0},{"$f":"+AL99*$E99*$G99*(1+'Sup Generales'!J$10)","v":0},{"$f":"+AM99*$E99*$G99*(1+'Sup Generales'!K$10)","v":692.11228749946656},{"$f":"+AN99*$E99*$G99*(1+'Sup Generales'!L$10)","v":0},{"$f":"+AO99*$E99*$G99*(1+'Sup Generales'!M$10)","v":0},{"$f":"+AP99*$E99*$G99*(1+'Sup Generales'!N$10)","v":718.65337756869849},{"$f":"+AQ99*$E99*$G99*(1+'Sup Generales'!O$10)","v":0},{"$f":"+AR99*$E99*$G99*(1+'Sup Generales'!P$10)","v":0},{"$f":"+AS99*$E99*$G99*(1+'Sup Generales'!Q$10)","v":747.95535820729788},{"$f":"+AT99*$E99*$G99*(1+'Sup Generales'!R$10)","v":0},{"$f":"+AU99*$E99*$G99*(1+'Sup Generales'!S$10)","v":768.32721334812834},{"$f":"+AV99*$E99*$G99*(1+'Sup Generales'!T$10)","v":0},{"$f":"+AW99*$E99*$G99*(1+'Sup Generales'!U$10)","v":0},{"$f":"+AX99*$E99*$G99*(1+'Sup Generales'!V$10)","v":798.98433942091401},null,0,{"$f":"ROUNDDOWN(K$75/$F99,0)-SUM($AE99:AE99)","v":0},{"$f":"ROUNDDOWN(L$75/$F99,0)-SUM($AE99:AF99)","v":1},{"$f":"ROUNDDOWN(M$75/$F99,0)-SUM($AE99:AG99)","v":0},{"$f":"ROUNDDOWN(N$75/$F99,0)-SUM($AE99:AH99)","v":0},{"$f":"ROUNDDOWN(O$75/$F99,0)-SUM($AE99:AI99)","v":1},{"$f":"ROUNDDOWN(P$75/$F99,0)-SUM($AE99:AJ99)","v":0},{"$f":"ROUNDDOWN(Q$75/$F99,0)-SUM($AE99:AK99)","v":0},{"$f":"ROUNDDOWN(R$75/$F99,0)-SUM($AE99:AL99)","v":1},{"$f":"ROUNDDOWN(S$75/$F99,0)-SUM($AE99:AM99)","v":0},{"$f":"ROUNDDOWN(T$75/$F99,0)-SUM($AE99:AN99)","v":0},{"$f":"ROUNDDOWN(U$75/$F99,0)-SUM($AE99:AO99)","v":1},{"$f":"ROUNDDOWN(V$75/$F99,0)-SUM($AE99:AP99)","v":0},{"$f":"ROUNDDOWN(W$75/$F99,0)-SUM($AE99:AQ99)","v":0},{"$f":"ROUNDDOWN(X$75/$F99,0)-SUM($AE99:AR99)","v":1},{"$f":"ROUNDDOWN(Y$75/$F99,0)-SUM($AE99:AS99)","v":0},{"$f":"ROUNDDOWN(Z$75/$F99,0)-SUM($AE99:AT99)","v":1},{"$f":"ROUNDDOWN(AA$75/$F99,0)-SUM($AE99:AU99)","v":0},{"$f":"ROUNDDOWN(AB$75/$F99,0)-SUM($AE99:AV99)","v":0},{"$f":"ROUNDDOWN(AC$75/$F99,0)-SUM($AE99:AW99)","v":1}]
[null,23,"RACHES DE FRENO","JGO.",4,180000,90.822000000000003,"Costo de mantenimiento mecánico",null,{"$f":"+AE100*$E100*$G100*(1+'Sup Generales'!C$10)","v":0},{"$f":"+AF100*$E100*$G100*(1+'Sup Generales'!D$10)","v":0},{"$f":"+AG100*$E100*$G100*(1+'Sup Generales'!E$10)","v":387.78595717939203},{"$f":"+AH100*$E100*$G100*(1+'Sup Generales'!F$10)","v":0},{"$f":"+AI100*$E100*$G100*(1+'Sup Generales'!G$10)","v":0},{"$f":"+AJ100*$E100*$G100*(1+'Sup Generales'!H$10)","v":393.12917307701503},{"$f":"+AK100*$E100*$G100*(1+'Sup Generales'!I$10)","v":0},{"$f":"+AL100*$E100*$G100*(1+'Sup Generales'!J$10)","v":0},{"$f":"+AM100*$E100*$G100*(1+'Sup Generales'!K$10)","v":413.65165247901388},{"$f":"+AN100*$E100*$G100*(1+'Sup Generales'!L$10)","v":0},{"$f":"+AO100*$E100*$G100*(1+'Sup Generales'!M$10)","v":0},{"$f":"+AP100*$E100*$G100*(1+'Sup Generales'!N$10)","v":429.51434696374463},{"$f":"+AQ100*$E100*$G100*(1+'Sup Generales'!O$10)","v":0},{"$f":"+AR100*$E100*$G100*(1+'Sup Generales'!P$10)","v":0},{"$f":"+AS100*$E100*$G100*(1+'Sup Generales'!Q$10)","v":447.0271305553436},{"$f":"+AT100*$E100*$G100*(1+'Sup Generales'!R$10)","v":0},{"$f":"+AU100*$E100*$G100*(1+'Sup Generales'!S$10)","v":459.20268601833504},{"$f":"+AV100*$E100*$G100*(1+'Sup Generales'!T$10)","v":0},{"$f":"+AW100*$E100*$G100*(1+'Sup Generales'!U$10)","v":0},{"$f":"+AX100*$E100*$G100*(1+'Sup Generales'!V$10)","v":477.52539331498167},null,0,{"$f":"ROUNDDOWN(K$75/$F100,0)-SUM($AE100:AE100)","v":0},{"$f":"ROUNDDOWN(L$75/$F100,0)-SUM($AE100:AF100)","v":1},{"$f":"ROUNDDOWN(M$75/$F100,0)-SUM($AE100:AG100)","v":0},{"$f":"ROUNDDOWN(N$75/$F100,0)-SUM($AE100:AH100)","v":0},{"$f":"ROUNDDOWN(O$75/$F100,0)-SUM($AE100:AI100)","v":1},{"$f":"ROUNDDOWN(P$75/$F100,0)-SUM($AE100:AJ100)","v":0},{"$f":"ROUNDDOWN(Q$75/$F100,0)-SUM($AE100:AK100)","v":0},{"$f":"ROUNDDOWN(R$75/$F100,0)-SUM($AE100:AL100)","v":1},{"$f":"ROUNDDOWN(S$75/$F100,0)-SUM($AE100:AM100)","v":0},{"$f":"ROUNDDOWN(T$75/$F100,0)-SUM($AE100:AN100)","v":0},{"$f":"ROUNDDOWN(U$75/$F100,0)-SUM($AE100:AO100)","v":1},{"$f":"ROUNDDOWN(V$75/$F100,0)-SUM($AE100:AP100)","v":0},{"$f":"ROUNDDOWN(W$75/$F100,0)-SUM($AE100:AQ100)","v":0},{"$f":"ROUNDDOWN(X$75/$F100,0)-SUM($AE100:AR100)","v":1},{"$f":"ROUNDDOWN(Y$75/$F100,0)-SUM($AE100:AS100)","v":0},{"$f":"ROUNDDOWN(Z$75/$F100,0)-SUM($AE100:AT100)","v":1},{"$f":"ROUNDDOWN(AA$75/$F100,0)-SUM($AE100:AU100)","v":0},{"$f":"ROUNDDOWN(AB$75/$F100,0)-SUM($AE100:AV100)","v":0},{"$f":"ROUNDDOWN(AC$75/$F100,0)-SUM($AE100:AW100)","v":1}]
[null,24,"BATERÍAS","UND",2,60000,195.05857142857141,"Costo de mantenimiento eléctrico ",null,{"$f":"+AE101*$E101*$G101*(1+'Sup Generales'!C$10)","v":399.47995428571426},{"$f":"+AF101*$E101*$G101*(1+'Sup Generales'!D$10)","v":405.87163355428567},{"$f":"+AG101*$E101*$G101*(1+'Sup Generales'!E$10)","v":416.42429602669711},{"$f":"+AH101*$E101*$G101*(1+'Sup Generales'!F$10)","v":418.22324898553251},{"$f":"+AI101*$E101*$G101*(1+'Sup Generales'!G$10)","v":419.3524517577934},{"$f":"+AJ101*$E101*$G101*(1+'Sup Generales'!H$10)","v":422.16211318457061},{"$f":"+AK101*$E101*$G101*(1+'Sup Generales'!I$10)","v":430.35680750412467},{"$f":"+AL101*$E101*$G101*(1+'Sup Generales'!J$10)","v":437.82517919560058},{"$f":"+AM101*$E101*$G101*(1+'Sup Generales'!K$10)","v":444.20019599669865},{"$f":"+AN101*$E101*$G101*(1+'Sup Generales'!L$10)","v":450.14391670765548},{"$f":"+AO101*$E101*$G101*(1+'Sup Generales'!M$10)","v":456.01978737856854},{"$f":"+AP101*$E101*$G101*(1+'Sup Generales'!N$10)","v":461.23436461883563},{"$f":"+AQ101*$E101*$G101*(1+'Sup Generales'!O$10)","v":466.91877961818255},{"$f":"+AR101*$E101*$G101*(1+'Sup Generales'!P$10)","v":473.23497523176218},{"$f":"+AS101*$E101*$G101*(1+'Sup Generales'!Q$10)","v":480.04048290028192},{"$f":"+AT101*$E101*$G101*(1+'Sup Generales'!R$10)","v":973.28401637732929},{"$f":"+AU101*$E101*$G101*(1+'Sup Generales'!S$10)","v":493.11521399495308},{"$f":"+AV101*$E101*$G101*(1+'Sup Generales'!T$10)","v":499.59692942659541},{"$f":"+AW101*$E101*$G101*(1+'Sup Generales'!U$10)","v":506.14908635819796},{"$f":"+AX101*$E101*$G101*(1+'Sup Generales'!V$10)","v":512.79106956952614},null,1,{"$f":"ROUNDDOWN(K$75/$F101,0)-SUM($AE101:AE101)","v":1},{"$f":"ROUNDDOWN(L$75/$F101,0)-SUM($AE101:AF101)","v":1},{"$f":"ROUNDDOWN(M$75/$F101,0)-SUM($AE101:AG101)","v":1},{"$f":"ROUNDDOWN(N$75/$F101,0)-SUM($AE101:AH101)","v":1},{"$f":"ROUNDDOWN(O$75/$F101,0)-SUM($AE101:AI101)","v":1},{"$f":"ROUNDDOWN(P$75/$F101,0)-SUM($AE101:AJ101)","v":1},{"$f":"ROUNDDOWN(Q$75/$F101,0)-SUM($AE101:AK101)","v":1},{"$f":"ROUNDDOWN(R$75/$F101,0)-SUM($AE101:AL101)","v":1},{"$f":"ROUNDDOWN(S$75/$F101,0)-SUM($AE101:AM101)","v":1},{"$f":"ROUNDDOWN(T$75/$F101,0)-SUM($AE101:AN101)","v":1},{"$f":"ROUNDDOWN(U$75/$F101,0)-SUM($AE101:AO101)","v":1},{"$f":"ROUNDDOWN(V$75/$F101,0)-SUM($AE101:AP101)","v":1},{"$f":"ROUNDDOWN(W$75/$F101,0)-SUM($AE101:AQ101)","v":1},{"$f":"ROUNDDOWN(X$75/$F101,0)-SUM($AE101:AR101)","v":1},{"$f":"ROUNDDOWN(Y$75/$F101,0)-SUM($AE101:AS101)","v":2},{"$f":"ROUNDDOWN(Z$75/$F101,0)-SUM($AE101:AT101)","v":1},{"$f":"ROUNDDOWN(AA$75/$F101,0)-SUM($AE101:AU101)","v":1},{"$f":"ROUNDDOWN(AB$75/$F101,0)-SUM($AE101:AV101)","v":1},{"$f":"ROUNDDOWN(AC$75/$F101,0)-SUM($AE101:AW101)","v":1}]
[null,25,"SISTEMA ELÉCTRICO","UND",1,5000,153.125,"Costo de mantenimiento eléctrico ",null,{"$f":"+AE102*$E102*$G102*(1+'Sup Generales'!C$10)","v":1881.6000000000001},{"$f":"+AF102*$E102*$G102*(1+'Sup Generales'!D$10)","v":2071.0144},{"$f":"+AG102*$E102*$G102*(1+'Sup Generales'!E$10)","v":2124.8607744000001},{"$f":"+AH102*$E102*$G102*(1+'Sup Generales'!F$10)","v":2134.0401729454084},{"$f":"+AI102*$E102*$G102*(1+'Sup Generales'!G$10)","v":1975.2019213037177},{"$f":"+AJ102*$E102*$G102*(1+'Sup Generales'!H$10)","v":2154.1387553578234},{"$f":"+AK102*$E102*$G102*(1+'Sup Generales'!I$10)","v":2195.9532812727634},{"$f":"+AL102*$E102*$G102*(1+'Sup Generales'!J$10)","v":2234.0616486453509},{"$f":"+AM102*$E102*$G102*(1+'Sup Generales'!K$10)","v":2092.2378703127765},{"$f":"+AN102*$E102*$G102*(1+'Sup Generales'!L$10)","v":2296.9196576021991},{"$f":"+AO102*$E102*$G102*(1+'Sup Generales'!M$10)","v":2326.9020751104949},{"$f":"+AP102*$E102*$G102*(1+'Sup Generales'!N$10)","v":2353.5101542707275},{"$f":"+AQ102*$E102*$G102*(1+'Sup Generales'!O$10)","v":2199.2452094385108},{"$f":"+AR102*$E102*$G102*(1+'Sup Generales'!P$10)","v":2414.7448780934251},{"$f":"+AS102*$E102*$G102*(1+'Sup Generales'!Q$10)","v":2449.4708929602157},{"$f":"+AT102*$E102*$G102*(1+'Sup Generales'!R$10)","v":2483.1560603972157},{"$f":"+AU102*$E102*$G102*(1+'Sup Generales'!S$10)","v":2516.1864604810735},{"$f":"+AV102*$E102*$G102*(1+'Sup Generales'!T$10)","v":2353.1633372941401},{"$f":"+AW102*$E102*$G102*(1+'Sup Generales'!U$10)","v":2582.6935408494573},{"$f":"+AX102*$E102*$G102*(1+'Sup Generales'!V$10)","v":2616.5851502599462},null,12,{"$f":"ROUNDDOWN(K$75/$F102,0)-SUM($AE102:AE102)","v":13},{"$f":"ROUNDDOWN(L$75/$F102,0)-SUM($AE102:AF102)","v":13},{"$f":"ROUNDDOWN(M$75/$F102,0)-SUM($AE102:AG102)","v":13},{"$f":"ROUNDDOWN(N$75/$F102,0)-SUM($AE102:AH102)","v":12},{"$f":"ROUNDDOWN(O$75/$F102,0)-SUM($AE102:AI102)","v":13},{"$f":"ROUNDDOWN(P$75/$F102,0)-SUM($AE102:AJ102)","v":13},{"$f":"ROUNDDOWN(Q$75/$F102,0)-SUM($AE102:AK102)","v":13},{"$f":"ROUNDDOWN(R$75/$F102,0)-SUM($AE102:AL102)","v":12},{"$f":"ROUNDDOWN(S$75/$F102,0)-SUM($AE102:AM102)","v":13},{"$f":"ROUNDDOWN(T$75/$F102,0)-SUM($AE102:AN102)","v":13},{"$f":"ROUNDDOWN(U$75/$F102,0)-SUM($AE102:AO102)","v":13},{"$f":"ROUNDDOWN(V$75/$F102,0)-SUM($AE102:AP102)","v":12},{"$f":"ROUNDDOWN(W$75/$F102,0)-SUM($AE102:AQ102)","v":13},{"$f":"ROUNDDOWN(X$75/$F102,0)-SUM($AE102:AR102)","v":13},{"$f":"ROUNDDOWN(Y$75/$F102,0)-SUM($AE102:AS102)","v":13},{"$f":"ROUNDDOWN(Z$75/$F102,0)-SUM($AE102:AT102)","v":13},{"$f":"ROUNDDOWN(AA$75/$F102,0)-SUM($AE102:AU102)","v":12},{"$f":"ROUNDDOWN(AB$75/$F102,0)-SUM($AE102:AV102)","v":13},{"$f":"ROUNDDOWN(AC$75/$F102,0)-SUM($AE102:AW102)","v":13}]
[null,26,"AMORTIGUADORES","UND",4,60000,96.795000000000002,"Costo de mantenimiento mecánico",null,{"$f":"+AE103*$E103*$G103*(1+'Sup Generales'!C$10)","v":396.47232000000002},{"$f":"+AF103*$E103*$G103*(1+'Sup Generales'!D$10)","v":402.81587711999998},{"$f":"+AG103*$E103*$G103*(1+'Sup Generales'!E$10)","v":413.28908992511998},{"$f":"+AH103*$E103*$G103*(1+'Sup Generales'!F$10)","v":415.0744987935966},{"$f":"+AI103*$E103*$G103*(1+'Sup Generales'!G$10)","v":416.19519994033931},{"$f":"+AJ103*$E103*$G103*(1+'Sup Generales'!H$10)","v":418.98370777993955},{"$f":"+AK103*$E103*$G103*(1+'Sup Generales'!I$10)","v":427.11670527758292},{"$f":"+AL103*$E103*$G103*(1+'Sup Generales'!J$10)","v":434.52884853877902},{"$f":"+AM103*$E103*$G103*(1+'Sup Generales'!K$10)","v":440.85586864092562},{"$f":"+AN103*$E103*$G103*(1+'Sup Generales'!L$10)","v":446.75483982689832},{"$f":"+AO103*$E103*$G103*(1+'Sup Generales'!M$10)","v":452.58647180723716},{"$f":"+AP103*$E103*$G103*(1+'Sup Generales'!N$10)","v":457.7617891519198},{"$f":"+AQ103*$E103*$G103*(1+'Sup Generales'!O$10)","v":463.40340690634156},{"$f":"+AR103*$E103*$G103*(1+'Sup Generales'!P$10)","v":469.67204867828565},{"$f":"+AS103*$E103*$G103*(1+'Sup Generales'!Q$10)","v":476.42631853630712},{"$f":"+AT103*$E103*$G103*(1+'Sup Generales'!R$10)","v":965.95628354370513},{"$f":"+AU103*$E103*$G103*(1+'Sup Generales'!S$10)","v":489.40261162653036},{"$f":"+AV103*$E103*$G103*(1+'Sup Generales'!T$10)","v":495.83552703866405},{"$f":"+AW103*$E103*$G103*(1+'Sup Generales'!U$10)","v":502.33835360557259},{"$f":"+AX103*$E103*$G103*(1+'Sup Generales'!V$10)","v":508.93033016145478},null,1,{"$f":"ROUNDDOWN(K$75/$F103,0)-SUM($AE103:AE103)","v":1},{"$f":"ROUNDDOWN(L$75/$F103,0)-SUM($AE103:AF103)","v":1},{"$f":"ROUNDDOWN(M$75/$F103,0)-SUM($AE103:AG103)","v":1},{"$f":"ROUNDDOWN(N$75/$F103,0)-SUM($AE103:AH103)","v":1},{"$f":"ROUNDDOWN(O$75/$F103,0)-SUM($AE103:AI103)","v":1},{"$f":"ROUNDDOWN(P$75/$F103,0)-SUM($AE103:AJ103)","v":1},{"$f":"ROUNDDOWN(Q$75/$F103,0)-SUM($AE103:AK103)","v":1},{"$f":"ROUNDDOWN(R$75/$F103,0)-SUM($AE103:AL103)","v":1},{"$f":"ROUNDDOWN(S$75/$F103,0)-SUM($AE103:AM103)","v":1},{"$f":"ROUNDDOWN(T$75/$F103,0)-SUM($AE103:AN103)","v":1},{"$f":"ROUNDDOWN(U$75/$F103,0)-SUM($AE103:AO103)","v":1},{"$f":"ROUNDDOWN(V$75/$F103,0)-SUM($AE103:AP103)","v":1},{"$f":"ROUNDDOWN(W$75/$F103,0)-SUM($AE103:AQ103)","v":1},{"$f":"ROUNDDOWN(X$75/$F103,0)-SUM($AE103:AR103)","v":1},{"$f":"ROUNDDOWN(Y$75/$F103,0)-SUM($AE103:AS103)","v":2},{"$f":"ROUNDDOWN(Z$75/$F103,0)-SUM($AE103:AT103)","v":1},{"$f":"ROUNDDOWN(AA$75/$F103,0)-SUM($AE103:AU103)","v":1},{"$f":"ROUNDDOWN(AB$75/$F103,0)-SUM($AE103:AV103)","v":1},{"$f":"ROUNDDOWN(AC$75/$F103,0)-SUM($AE103:AW103)","v":1}]
[null,27,"ROTULAS DE DIRECCIÓN","JGO.",4,60000,49.847499999999997,"Costo de mantenimiento mecánico",null,{"$f":"+AE104*$E104*$G104*(1+'Sup Generales'!C$10)","v":204.17535999999998},{"$f":"+AF104*$E104*$G104*(1+'Sup Generales'!D$10)","v":207.44216575999999},{"$f":"+AG104*$E104*$G104*(1+'Sup Generales'!E$10)","v":212.83566206975999},{"$f":"+AH104*$E104*$G104*(1+'Sup Generales'!F$10)","v":213.75511212990139},{"$f":"+AI104*$E104*$G104*(1+'Sup Generales'!G$10)","v":214.3322509326521},{"$f":"+AJ104*$E104*$G104*(1+'Sup Generales'!H$10)","v":215.76827701390087},{"$f":"+AK104*$E104*$G104*(1+'Sup Generales'!I$10)","v":219.95660898108696},{"$f":"+AL104*$E104*$G104*(1+'Sup Generales'!J$10)","v":223.77371535241269},{"$f":"+AM104*$E104*$G104*(1+'Sup Generales'!K$10)","v":227.03200487709631},{"$f":"+AN104*$E104*$G104*(1+'Sup Generales'!L$10)","v":230.06985772272651},{"$f":"+AO104*$E104*$G104*(1+'Sup Generales'!M$10)","v":233.07303221665634},{"$f":"+AP104*$E104*$G104*(1+'Sup Generales'!N$10)","v":235.73821772560896},{"$f":"+AQ104*$E104*$G104*(1+'Sup Generales'!O$10)","v":238.64353867207871},{"$f":"+AR104*$E104*$G104*(1+'Sup Generales'!P$10)","v":241.87176451770071},{"$f":"+AS104*$E104*$G104*(1+'Sup Generales'!Q$10)","v":245.35007916977702},{"$f":"+AT104*$E104*$G104*(1+'Sup Generales'!R$10)","v":497.44827567482656},{"$f":"+AU104*$E104*$G104*(1+'Sup Generales'!S$10)","v":252.03261204662917},{"$f":"+AV104*$E104*$G104*(1+'Sup Generales'!T$10)","v":255.34543554997472},{"$f":"+AW104*$E104*$G104*(1+'Sup Generales'!U$10)","v":258.69426190767888},{"$f":"+AX104*$E104*$G104*(1+'Sup Generales'!V$10)","v":262.0889987367438},null,1,{"$f":"ROUNDDOWN(K$75/$F104,0)-SUM($AE104:AE104)","v":1},{"$f":"ROUNDDOWN(L$75/$F104,0)-SUM($AE104:AF104)","v":1},{"$f":"ROUNDDOWN(M$75/$F104,0)-SUM($AE104:AG104)","v":1},{"$f":"ROUNDDOWN(N$75/$F104,0)-SUM($AE104:AH104)","v":1},{"$f":"ROUNDDOWN(O$75/$F104,0)-SUM($AE104:AI104)","v":1},{"$f":"ROUNDDOWN(P$75/$F104,0)-SUM($AE104:AJ104)","v":1},{"$f":"ROUNDDOWN(Q$75/$F104,0)-SUM($AE104:AK104)","v":1},{"$f":"ROUNDDOWN(R$75/$F104,0)-SUM($AE104:AL104)","v":1},{"$f":"ROUNDDOWN(S$75/$F104,0)-SUM($AE104:AM104)","v":1},{"$f":"ROUNDDOWN(T$75/$F104,0)-SUM($AE104:AN104)","v":1},{"$f":"ROUNDDOWN(U$75/$F104,0)-SUM($AE104:AO104)","v":1},{"$f":"ROUNDDOWN(V$75/$F104,0)-SUM($AE104:AP104)","v":1},{"$f":"ROUNDDOWN(W$75/$F104,0)-SUM($AE104:AQ104)","v":1},{"$f":"ROUNDDOWN(X$75/$F104,0)-SUM($AE104:AR104)","v":1},{"$f":"ROUNDDOWN(Y$75/$F104,0)-SUM($AE104:AS104)","v":2},{"$f":"ROUNDDOWN(Z$75/$F104,0)-SUM($AE104:AT104)","v":1},{"$f":"ROUNDDOWN(AA$75/$F104,0)-SUM($AE104:AU104)","v":1},{"$f":"ROUNDDOWN(AB$75/$F104,0)-SUM($AE104:AV104)","v":1},{"$f":"ROUNDDOWN(AC$75/$F104,0)-SUM($AE104:AW104)","v":1}]
[null,28,"PINES Y BOCINES DE DIRECCIÓN","JGO.",1,90000,127.78,"Costo de mantenimiento mecánico",null,{"$f":"+AE105*$E105*$G105*(1+'Sup Generales'!C$10)","v":0},{"$f":"+AF105*$E105*$G105*(1+'Sup Generales'!D$10)","v":132.94026751999999},{"$f":"+AG105*$E105*$G105*(1+'Sup Generales'!E$10)","v":136.39671447552001},{"$f":"+AH105*$E105*$G105*(1+'Sup Generales'!F$10)","v":0},{"$f":"+AI105*$E105*$G105*(1+'Sup Generales'!G$10)","v":137.35581034241582},{"$f":"+AJ105*$E105*$G105*(1+'Sup Generales'!H$10)","v":138.27609427170998},{"$f":"+AK105*$E105*$G105*(1+'Sup Generales'!I$10)","v":0},{"$f":"+AL105*$E105*$G105*(1+'Sup Generales'!J$10)","v":143.4064163083971},{"$f":"+AM105*$E105*$G105*(1+'Sup Generales'!K$10)","v":145.49450615976414},{"$f":"+AN105*$E105*$G105*(1+'Sup Generales'!L$10)","v":147.44132814990721},{"$f":"+AO105*$E105*$G105*(1+'Sup Generales'!M$10)","v":0},{"$f":"+AP105*$E105*$G105*(1+'Sup Generales'!N$10)","v":151.07392276933805},{"$f":"+AQ105*$E105*$G105*(1+'Sup Generales'!O$10)","v":152.93581108138935},{"$f":"+AR105*$E105*$G105*(1+'Sup Generales'!P$10)","v":0},{"$f":"+AS105*$E105*$G105*(1+'Sup Generales'!Q$10)","v":157.23372845335328},{"$f":"+AT105*$E105*$G105*(1+'Sup Generales'!R$10)","v":159.39600949327786},{"$f":"+AU105*$E105*$G105*(1+'Sup Generales'!S$10)","v":161.51626043090565},{"$f":"+AV105*$E105*$G105*(1+'Sup Generales'!T$10)","v":0},{"$f":"+AW105*$E105*$G105*(1+'Sup Generales'!U$10)","v":165.78540943158237},{"$f":"+AX105*$E105*$G105*(1+'Sup Generales'!V$10)","v":167.96094216651349},null,0,{"$f":"ROUNDDOWN(K$75/$F105,0)-SUM($AE105:AE105)","v":1},{"$f":"ROUNDDOWN(L$75/$F105,0)-SUM($AE105:AF105)","v":1},{"$f":"ROUNDDOWN(M$75/$F105,0)-SUM($AE105:AG105)","v":0},{"$f":"ROUNDDOWN(N$75/$F105,0)-SUM($AE105:AH105)","v":1},{"$f":"ROUNDDOWN(O$75/$F105,0)-SUM($AE105:AI105)","v":1},{"$f":"ROUNDDOWN(P$75/$F105,0)-SUM($AE105:AJ105)","v":0},{"$f":"ROUNDDOWN(Q$75/$F105,0)-SUM($AE105:AK105)","v":1},{"$f":"ROUNDDOWN(R$75/$F105,0)-SUM($AE105:AL105)","v":1},{"$f":"ROUNDDOWN(S$75/$F105,0)-SUM($AE105:AM105)","v":1},{"$f":"ROUNDDOWN(T$75/$F105,0)-SUM($AE105:AN105)","v":0},{"$f":"ROUNDDOWN(U$75/$F105,0)-SUM($AE105:AO105)","v":1},{"$f":"ROUNDDOWN(V$75/$F105,0)-SUM($AE105:AP105)","v":1},{"$f":"ROUNDDOWN(W$75/$F105,0)-SUM($AE105:AQ105)","v":0},{"$f":"ROUNDDOWN(X$75/$F105,0)-SUM($AE105:AR105)","v":1},{"$f":"ROUNDDOWN(Y$75/$F105,0)-SUM($AE105:AS105)","v":1},{"$f":"ROUNDDOWN(Z$75/$F105,0)-SUM($AE105:AT105)","v":1},{"$f":"ROUNDDOWN(AA$75/$F105,0)-SUM($AE105:AU105)","v":0},{"$f":"ROUNDDOWN(AB$75/$F105,0)-SUM($AE105:AV105)","v":1},{"$f":"ROUNDDOWN(AC$75/$F105,0)-SUM($AE105:AW105)","v":1}]
[null,29,"MANTENIMIENTO DE BALLESTAS","UND",1,30000,67,"Costo de mantenimiento mecánico",null,{"$f":"+AE106*$E106*$G106*(1+'Sup Generales'!C$10)","v":137.21600000000001},{"$f":"+AF106*$E106*$G106*(1+'Sup Generales'!D$10)","v":139.41145599999999},{"$f":"+AG106*$E106*$G106*(1+'Sup Generales'!E$10)","v":143.036153856},{"$f":"+AH106*$E106*$G106*(1+'Sup Generales'!F$10)","v":143.65407004065796},{"$f":"+AI106*$E106*$G106*(1+'Sup Generales'!G$10)","v":144.04193602976773},{"$f":"+AJ106*$E106*$G106*(1+'Sup Generales'!H$10)","v":145.00701700116716},{"$f":"+AK106*$E106*$G106*(1+'Sup Generales'!I$10)","v":147.82178445993105},{"$f":"+AL106*$E106*$G106*(1+'Sup Generales'!J$10)","v":225.58060477373465},{"$f":"+AM106*$E106*$G106*(1+'Sup Generales'!K$10)","v":152.57680251532631},{"$f":"+AN106*$E106*$G106*(1+'Sup Generales'!L$10)","v":154.61839076606327},{"$f":"+AO106*$E106*$G106*(1+'Sup Generales'!M$10)","v":156.63667343914918},{"$f":"+AP106*$E106*$G106*(1+'Sup Generales'!N$10)","v":158.42781069878933},{"$f":"+AQ106*$E106*$G106*(1+'Sup Generales'!O$10)","v":160.38033091959753},{"$f":"+AR106*$E106*$G106*(1+'Sup Generales'!P$10)","v":162.54985929771752},{"$f":"+AS106*$E106*$G106*(1+'Sup Generales'!Q$10)","v":164.88745979612881},{"$f":"+AT106*$E106*$G106*(1+'Sup Generales'!R$10)","v":250.73249262911918},{"$f":"+AU106*$E106*$G106*(1+'Sup Generales'!S$10)","v":169.37845435703048},{"$f":"+AV106*$E106*$G106*(1+'Sup Generales'!T$10)","v":171.60483657002163},{"$f":"+AW106*$E106*$G106*(1+'Sup Generales'!U$10)","v":173.85541449234651},{"$f":"+AX106*$E106*$G106*(1+'Sup Generales'!V$10)","v":176.1368465355518},null,2,{"$f":"ROUNDDOWN(K$75/$F106,0)-SUM($AE106:AE106)","v":2},{"$f":"ROUNDDOWN(L$75/$F106,0)-SUM($AE106:AF106)","v":2},{"$f":"ROUNDDOWN(M$75/$F106,0)-SUM($AE106:AG106)","v":2},{"$f":"ROUNDDOWN(N$75/$F106,0)-SUM($AE106:AH106)","v":2},{"$f":"ROUNDDOWN(O$75/$F106,0)-SUM($AE106:AI106)","v":2},{"$f":"ROUNDDOWN(P$75/$F106,0)-SUM($AE106:AJ106)","v":2},{"$f":"ROUNDDOWN(Q$75/$F106,0)-SUM($AE106:AK106)","v":3},{"$f":"ROUNDDOWN(R$75/$F106,0)-SUM($AE106:AL106)","v":2},{"$f":"ROUNDDOWN(S$75/$F106,0)-SUM($AE106:AM106)","v":2},{"$f":"ROUNDDOWN(T$75/$F106,0)-SUM($AE106:AN106)","v":2},{"$f":"ROUNDDOWN(U$75/$F106,0)-SUM($AE106:AO106)","v":2},{"$f":"ROUNDDOWN(V$75/$F106,0)-SUM($AE106:AP106)","v":2},{"$f":"ROUNDDOWN(W$75/$F106,0)-SUM($AE106:AQ106)","v":2},{"$f":"ROUNDDOWN(X$75/$F106,0)-SUM($AE106:AR106)","v":2},{"$f":"ROUNDDOWN(Y$75/$F106,0)-SUM($AE106:AS106)","v":3},{"$f":"ROUNDDOWN(Z$75/$F106,0)-SUM($AE106:AT106)","v":2},{"$f":"ROUNDDOWN(AA$75/$F106,0)-SUM($AE106:AU106)","v":2},{"$f":"ROUNDDOWN(AB$75/$F106,0)-SUM($AE106:AV106)","v":2},{"$f":"ROUNDDOWN(AC$75/$F106,0)-SUM($AE106:AW106)","v":2}]
[null,30,"LAVADO MOTOR/ CHASIS","UND",1,15000,25,"Costo de mantenimiento mecánico",null,{"$f":"+AE107*$E107*$G107*(1+'Sup Generales'!C$10)","v":102.4},{"$f":"+AF107*$E107*$G107*(1+'Sup Generales'!D$10)","v":104.0384},{"$f":"+AG107*$E107*$G107*(1+'Sup Generales'!E$10)","v":106.7433984},{"$f":"+AH107*$E107*$G107*(1+'Sup Generales'!F$10)","v":134.00566235136003},{"$f":"+AI107*$E107*$G107*(1+'Sup Generales'!G$10)","v":107.49398211176695},{"$f":"+AJ107*$E107*$G107*(1+'Sup Generales'!H$10)","v":108.21419179191578},{"$f":"+AK107*$E107*$G107*(1+'Sup Generales'!I$10)","v":110.31476452233662},{"$f":"+AL107*$E107*$G107*(1+'Sup Generales'!J$10)","v":140.2864457548101},{"$f":"+AM107*$E107*$G107*(1+'Sup Generales'!K$10)","v":113.86328545919872},{"$f":"+AN107*$E107*$G107*(1+'Sup Generales'!L$10)","v":115.38685878064423},{"$f":"+AO107*$E107*$G107*(1+'Sup Generales'!M$10)","v":116.89303987996207},{"$f":"+AP107*$E107*$G107*(1+'Sup Generales'!N$10)","v":147.78713684588556},{"$f":"+AQ107*$E107*$G107*(1+'Sup Generales'!O$10)","v":119.68681411910262},{"$f":"+AR107*$E107*$G107*(1+'Sup Generales'!P$10)","v":121.30586514755039},{"$f":"+AS107*$E107*$G107*(1+'Sup Generales'!Q$10)","v":123.0503431314394},{"$f":"+AT107*$E107*$G107*(1+'Sup Generales'!R$10)","v":155.92816705790995},{"$f":"+AU107*$E107*$G107*(1+'Sup Generales'!S$10)","v":126.40183160972424},{"$f":"+AV107*$E107*$G107*(1+'Sup Generales'!T$10)","v":128.06331087315047},{"$f":"+AW107*$E107*$G107*(1+'Sup Generales'!U$10)","v":129.74284663607949},{"$f":"+AX107*$E107*$G107*(1+'Sup Generales'!V$10)","v":164.30675982794011},null,4,{"$f":"ROUNDDOWN(K$75/$F107,0)-SUM($AE107:AE107)","v":4},{"$f":"ROUNDDOWN(L$75/$F107,0)-SUM($AE107:AF107)","v":4},{"$f":"ROUNDDOWN(M$75/$F107,0)-SUM($AE107:AG107)","v":5},{"$f":"ROUNDDOWN(N$75/$F107,0)-SUM($AE107:AH107)","v":4},{"$f":"ROUNDDOWN(O$75/$F107,0)-SUM($AE107:AI107)","v":4},{"$f":"ROUNDDOWN(P$75/$F107,0)-SUM($AE107:AJ107)","v":4},{"$f":"ROUNDDOWN(Q$75/$F107,0)-SUM($AE107:AK107)","v":5},{"$f":"ROUNDDOWN(R$75/$F107,0)-SUM($AE107:AL107)","v":4},{"$f":"ROUNDDOWN(S$75/$F107,0)-SUM($AE107:AM107)","v":4},{"$f":"ROUNDDOWN(T$75/$F107,0)-SUM($AE107:AN107)","v":4},{"$f":"ROUNDDOWN(U$75/$F107,0)-SUM($AE107:AO107)","v":5},{"$f":"ROUNDDOWN(V$75/$F107,0)-SUM($AE107:AP107)","v":4},{"$f":"ROUNDDOWN(W$75/$F107,0)-SUM($AE107:AQ107)","v":4},{"$f":"ROUNDDOWN(X$75/$F107,0)-SUM($AE107:AR107)","v":4},{"$f":"ROUNDDOWN(Y$75/$F107,0)-SUM($AE107:AS107)","v":5},{"$f":"ROUNDDOWN(Z$75/$F107,0)-SUM($AE107:AT107)","v":4},{"$f":"ROUNDDOWN(AA$75/$F107,0)-SUM($AE107:AU107)","v":4},{"$f":"ROUNDDOWN(AB$75/$F107,0)-SUM($AE107:AV107)","v":4},{"$f":"ROUNDDOWN(AC$75/$F107,0)-SUM($AE107:AW107)","v":5}]
[null,31,"ENGRASADO PUNTAS EJES","UND",4,30000,13.333333333333334,"Costo de mantenimiento mecánico",null,{"$f":"+AE108*$E108*$G108*(1+'Sup Generales'!C$10)","v":109.22666666666667},{"$f":"+AF108*$E108*$G108*(1+'Sup Generales'!D$10)","v":110.97429333333334},{"$f":"+AG108*$E108*$G108*(1+'Sup Generales'!E$10)","v":113.85962496},{"$f":"+AH108*$E108*$G108*(1+'Sup Generales'!F$10)","v":114.35149853982722},{"$f":"+AI108*$E108*$G108*(1+'Sup Generales'!G$10)","v":114.66024758588475},{"$f":"+AJ108*$E108*$G108*(1+'Sup Generales'!H$10)","v":115.42847124471017},{"$f":"+AK108*$E108*$G108*(1+'Sup Generales'!I$10)","v":117.66908215715907},{"$f":"+AL108*$E108*$G108*(1+'Sup Generales'!J$10)","v":179.56665056615694},{"$f":"+AM108*$E108*$G108*(1+'Sup Generales'!K$10)","v":121.45417115647865},{"$f":"+AN108*$E108*$G108*(1+'Sup Generales'!L$10)","v":123.07931603268719},{"$f":"+AO108*$E108*$G108*(1+'Sup Generales'!M$10)","v":124.68590920529287},{"$f":"+AP108*$E108*$G108*(1+'Sup Generales'!N$10)","v":126.11169010848903},{"$f":"+AQ108*$E108*$G108*(1+'Sup Generales'!O$10)","v":127.66593506037614},{"$f":"+AR108*$E108*$G108*(1+'Sup Generales'!P$10)","v":129.39292282405376},{"$f":"+AS108*$E108*$G108*(1+'Sup Generales'!Q$10)","v":131.25369934020205},{"$f":"+AT108*$E108*$G108*(1+'Sup Generales'!R$10)","v":199.58805383412471},{"$f":"+AU108*$E108*$G108*(1+'Sup Generales'!S$10)","v":134.82862038370587},{"$f":"+AV108*$E108*$G108*(1+'Sup Generales'!T$10)","v":136.60086493136052},{"$f":"+AW108*$E108*$G108*(1+'Sup Generales'!U$10)","v":138.39236974515146},{"$f":"+AX108*$E108*$G108*(1+'Sup Generales'!V$10)","v":140.20843505317555},null,2,{"$f":"ROUNDDOWN(K$75/$F108,0)-SUM($AE108:AE108)","v":2},{"$f":"ROUNDDOWN(L$75/$F108,0)-SUM($AE108:AF108)","v":2},{"$f":"ROUNDDOWN(M$75/$F108,0)-SUM($AE108:AG108)","v":2},{"$f":"ROUNDDOWN(N$75/$F108,0)-SUM($AE108:AH108)","v":2},{"$f":"ROUNDDOWN(O$75/$F108,0)-SUM($AE108:AI108)","v":2},{"$f":"ROUNDDOWN(P$75/$F108,0)-SUM($AE108:AJ108)","v":2},{"$f":"ROUNDDOWN(Q$75/$F108,0)-SUM($AE108:AK108)","v":3},{"$f":"ROUNDDOWN(R$75/$F108,0)-SUM($AE108:AL108)","v":2},{"$f":"ROUNDDOWN(S$75/$F108,0)-SUM($AE108:AM108)","v":2},{"$f":"ROUNDDOWN(T$75/$F108,0)-SUM($AE108:AN108)","v":2},{"$f":"ROUNDDOWN(U$75/$F108,0)-SUM($AE108:AO108)","v":2},{"$f":"ROUNDDOWN(V$75/$F108,0)-SUM($AE108:AP108)","v":2},{"$f":"ROUNDDOWN(W$75/$F108,0)-SUM($AE108:AQ108)","v":2},{"$f":"ROUNDDOWN(X$75/$F108,0)-SUM($AE108:AR108)","v":2},{"$f":"ROUNDDOWN(Y$75/$F108,0)-SUM($AE108:AS108)","v":3},{"$f":"ROUNDDOWN(Z$75/$F108,0)-SUM($AE108:AT108)","v":2},{"$f":"ROUNDDOWN(AA$75/$F108,0)-SUM($AE108:AU108)","v":2},{"$f":"ROUNDDOWN(AB$75/$F108,0)-SUM($AE108:AV108)","v":2},{"$f":"ROUNDDOWN(AC$75/$F108,0)-SUM($AE108:AW108)","v":2}]
[null,32,"CAMBIO DE RULIMANES PUNTA DE EJE","UND",8,180000,42.664000000000001,"Costo de mantenimiento mecánico",null,{"$f":"+AE109*$E109*$G109*(1+'Sup Generales'!C$10)","v":0},{"$f":"+AF109*$E109*$G109*(1+'Sup Generales'!D$10)","v":0},{"$f":"+AG109*$E109*$G109*(1+'Sup Generales'!E$10)","v":364.32802794700802},{"$f":"+AH109*$E109*$G109*(1+'Sup Generales'!F$10)","v":0},{"$f":"+AI109*$E109*$G109*(1+'Sup Generales'!G$10)","v":0},{"$f":"+AJ109*$E109*$G109*(1+'Sup Generales'!H$10)","v":369.34802228882359},{"$f":"+AK109*$E109*$G109*(1+'Sup Generales'!I$10)","v":0},{"$f":"+AL109*$E109*$G109*(1+'Sup Generales'!J$10)","v":0},{"$f":"+AM109*$E109*$G109*(1+'Sup Generales'!K$10)","v":388.62905686650038},{"$f":"+AN109*$E109*$G109*(1+'Sup Generales'!L$10)","v":0},{"$f":"+AO109*$E109*$G109*(1+'Sup Generales'!M$10)","v":0},{"$f":"+AP109*$E109*$G109*(1+'Sup Generales'!N$10)","v":403.53218600914317},{"$f":"+AQ109*$E109*$G109*(1+'Sup Generales'!O$10)","v":0},{"$f":"+AR109*$E109*$G109*(1+'Sup Generales'!P$10)","v":0},{"$f":"+AS109*$E109*$G109*(1+'Sup Generales'!Q$10)","v":419.98558714877851},{"$f":"+AT109*$E109*$G109*(1+'Sup Generales'!R$10)","v":0},{"$f":"+AU109*$E109*$G109*(1+'Sup Generales'!S$10)","v":431.42461950378203},{"$f":"+AV109*$E109*$G109*(1+'Sup Generales'!T$10)","v":0},{"$f":"+AW109*$E109*$G109*(1+'Sup Generales'!U$10)","v":0},{"$f":"+AX109*$E109*$G109*(1+'Sup Generales'!V$10)","v":448.63895048315118},null,0,{"$f":"ROUNDDOWN(K$75/$F109,0)-SUM($AE109:AE109)","v":0},{"$f":"ROUNDDOWN(L$75/$F109,0)-SUM($AE109:AF109)","v":1},{"$f":"ROUNDDOWN(M$75/$F109,0)-SUM($AE109:AG109)","v":0},{"$f":"ROUNDDOWN(N$75/$F109,0)-SUM($AE109:AH109)","v":0},{"$f":"ROUNDDOWN(O$75/$F109,0)-SUM($AE109:AI109)","v":1},{"$f":"ROUNDDOWN(P$75/$F109,0)-SUM($AE109:AJ109)","v":0},{"$f":"ROUNDDOWN(Q$75/$F109,0)-SUM($AE109:AK109)","v":0},{"$f":"ROUNDDOWN(R$75/$F109,0)-SUM($AE109:AL109)","v":1},{"$f":"ROUNDDOWN(S$75/$F109,0)-SUM($AE109:AM109)","v":0},{"$f":"ROUNDDOWN(T$75/$F109,0)-SUM($AE109:AN109)","v":0},{"$f":"ROUNDDOWN(U$75/$F109,0)-SUM($AE109:AO109)","v":1},{"$f":"ROUNDDOWN(V$75/$F109,0)-SUM($AE109:AP109)","v":0},{"$f":"ROUNDDOWN(W$75/$F109,0)-SUM($AE109:AQ109)","v":0},{"$f":"ROUNDDOWN(X$75/$F109,0)-SUM($AE109:AR109)","v":1},{"$f":"ROUNDDOWN(Y$75/$F109,0)-SUM($AE109:AS109)","v":0},{"$f":"ROUNDDOWN(Z$75/$F109,0)-SUM($AE109:AT109)","v":1},{"$f":"ROUNDDOWN(AA$75/$F109,0)-SUM($AE109:AU109)","v":0},{"$f":"ROUNDDOWN(AB$75/$F109,0)-SUM($AE109:AV109)","v":0},{"$f":"ROUNDDOWN(AC$75/$F109,0)-SUM($AE109:AW109)","v":1}]
[null,33,"MANTENIMINETO DE CARROCERÍA","UND",1,30000,325.71428571428572,"Carrocería ",null,{"$f":"+AE110*$E110*$G110*(1+'Sup Generales'!C$10)","v":667.06285714285718},{"$f":"+AF110*$E110*$G110*(1+'Sup Generales'!D$10)","v":677.73586285714282},{"$f":"+AG110*$E110*$G110*(1+'Sup Generales'!E$10)","v":695.35699529142858},{"$f":"+AH110*$E110*$G110*(1+'Sup Generales'!F$10)","v":698.36093751108763},{"$f":"+AI110*$E110*$G110*(1+'Sup Generales'!G$10)","v":700.24651204236761},{"$f":"+AJ110*$E110*$G110*(1+'Sup Generales'!H$10)","v":704.93816367305135},{"$f":"+AK110*$E110*$G110*(1+'Sup Generales'!I$10)","v":718.62189460264995},{"$f":"+AL110*$E110*$G110*(1+'Sup Generales'!J$10)","v":1096.6391873861728},{"$f":"+AM110*$E110*$G110*(1+'Sup Generales'!K$10)","v":741.73797384849456},{"$f":"+AN110*$E110*$G110*(1+'Sup Generales'!L$10)","v":751.6629657710539},{"$f":"+AO110*$E110*$G110*(1+'Sup Generales'!M$10)","v":761.47465978946718},{"$f":"+AP110*$E110*$G110*(1+'Sup Generales'!N$10)","v":770.18210744827229},{"$f":"+AQ110*$E110*$G110*(1+'Sup Generales'!O$10)","v":779.67410340443996},{"$f":"+AR110*$E110*$G110*(1+'Sup Generales'!P$10)","v":790.22106438975686},{"$f":"+AS110*$E110*$G110*(1+'Sup Generales'!Q$10)","v":801.58509239909108},{"$f":"+AT110*$E110*$G110*(1+'Sup Generales'!R$10)","v":1218.9127573441187},{"$f":"+AU110*$E110*$G110*(1+'Sup Generales'!S$10)","v":823.41764591477511},{"$f":"+AV110*$E110*$G110*(1+'Sup Generales'!T$10)","v":834.24099654509462},{"$f":"+AW110*$E110*$G110*(1+'Sup Generales'!U$10)","v":845.18197237217498},{"$f":"+AX110*$E110*$G110*(1+'Sup Generales'!V$10)","v":856.27294264617933},null,2,{"$f":"ROUNDDOWN(K$75/$F110,0)-SUM($AE110:AE110)","v":2},{"$f":"ROUNDDOWN(L$75/$F110,0)-SUM($AE110:AF110)","v":2},{"$f":"ROUNDDOWN(M$75/$F110,0)-SUM($AE110:AG110)","v":2},{"$f":"ROUNDDOWN(N$75/$F110,0)-SUM($AE110:AH110)","v":2},{"$f":"ROUNDDOWN(O$75/$F110,0)-SUM($AE110:AI110)","v":2},{"$f":"ROUNDDOWN(P$75/$F110,0)-SUM($AE110:AJ110)","v":2},{"$f":"ROUNDDOWN(Q$75/$F110,0)-SUM($AE110:AK110)","v":3},{"$f":"ROUNDDOWN(R$75/$F110,0)-SUM($AE110:AL110)","v":2},{"$f":"ROUNDDOWN(S$75/$F110,0)-SUM($AE110:AM110)","v":2},{"$f":"ROUNDDOWN(T$75/$F110,0)-SUM($AE110:AN110)","v":2},{"$f":"ROUNDDOWN(U$75/$F110,0)-SUM($AE110:AO110)","v":2},{"$f":"ROUNDDOWN(V$75/$F110,0)-SUM($AE110:AP110)","v":2},{"$f":"ROUNDDOWN(W$75/$F110,0)-SUM($AE110:AQ110)","v":2},{"$f":"ROUNDDOWN(X$75/$F110,0)-SUM($AE110:AR110)","v":2},{"$f":"ROUNDDOWN(Y$75/$F110,0)-SUM($AE110:AS110)","v":3},{"$f":"ROUNDDOWN(Z$75/$F110,0)-SUM($AE110:AT110)","v":2},{"$f":"ROUNDDOWN(AA$75/$F110,0)-SUM($AE110:AU110)","v":2},{"$f":"ROUNDDOWN(AB$75/$F110,0)-SUM($AE110:AV110)","v":2},{"$f":"ROUNDDOWN(AC$75/$F110,0)-SUM($AE110:AW110)","v":2}]
[null,34,"REPARACIÓN DE LA BOMBA DE INYECCIÓN","UND",1,240000,1850,"Costo de mantenimiento mecánico",null,{"$f":"+AE111*$E111*$G111*(1+'Sup Generales'!C$10)","v":0},{"$f":"+AF111*$E111*$G111*(1+'Sup Generales'!D$10)","v":0},{"$f":"+AG111*$E111*$G111*(1+'Sup Generales'!E$10)","v":0},{"$f":"+AH111*$E111*$G111*(1+'Sup Generales'!F$10)","v":1983.2838028001283},{"$f":"+AI111*$E111*$G111*(1+'Sup Generales'!G$10)","v":0},{"$f":"+AJ111*$E111*$G111*(1+'Sup Generales'!H$10)","v":0},{"$f":"+AK111*$E111*$G111*(1+'Sup Generales'!I$10)","v":0},{"$f":"+AL111*$E111*$G111*(1+'Sup Generales'!J$10)","v":2076.2393971711895},{"$f":"+AM111*$E111*$G111*(1+'Sup Generales'!K$10)","v":0},{"$f":"+AN111*$E111*$G111*(1+'Sup Generales'!L$10)","v":0},{"$f":"+AO111*$E111*$G111*(1+'Sup Generales'!M$10)","v":0},{"$f":"+AP111*$E111*$G111*(1+'Sup Generales'!N$10)","v":2187.2496253191066},{"$f":"+AQ111*$E111*$G111*(1+'Sup Generales'!O$10)","v":0},{"$f":"+AR111*$E111*$G111*(1+'Sup Generales'!P$10)","v":0},{"$f":"+AS111*$E111*$G111*(1+'Sup Generales'!Q$10)","v":0},{"$f":"+AT111*$E111*$G111*(1+'Sup Generales'!R$10)","v":2307.736872457067},{"$f":"+AU111*$E111*$G111*(1+'Sup Generales'!S$10)","v":0},{"$f":"+AV111*$E111*$G111*(1+'Sup Generales'!T$10)","v":0},{"$f":"+AW111*$E111*$G111*(1+'Sup Generales'!U$10)","v":2400.2426627674704},{"$f":"+AX111*$E111*$G111*(1+'Sup Generales'!V$10)","v":0},null,0,{"$f":"ROUNDDOWN(K$75/$F111,0)-SUM($AE111:AE111)","v":0},{"$f":"ROUNDDOWN(L$75/$F111,0)-SUM($AE111:AF111)","v":0},{"$f":"ROUNDDOWN(M$75/$F111,0)-SUM($AE111:AG111)","v":1},{"$f":"ROUNDDOWN(N$75/$F111,0)-SUM($AE111:AH111)","v":0},{"$f":"ROUNDDOWN(O$75/$F111,0)-SUM($AE111:AI111)","v":0},{"$f":"ROUNDDOWN(P$75/$F111,0)-SUM($AE111:AJ111)","v":0},{"$f":"ROUNDDOWN(Q$75/$F111,0)-SUM($AE111:AK111)","v":1},{"$f":"ROUNDDOWN(R$75/$F111,0)-SUM($AE111:AL111)","v":0},{"$f":"ROUNDDOWN(S$75/$F111,0)-SUM($AE111:AM111)","v":0},{"$f":"ROUNDDOWN(T$75/$F111,0)-SUM($AE111:AN111)","v":0},{"$f":"ROUNDDOWN(U$75/$F111,0)-SUM($AE111:AO111)","v":1},{"$f":"ROUNDDOWN(V$75/$F111,0)-SUM($AE111:AP111)","v":0},{"$f":"ROUNDDOWN(W$75/$F111,0)-SUM($AE111:AQ111)","v":0},{"$f":"ROUNDDOWN(X$75/$F111,0)-SUM($AE111:AR111)","v":0},{"$f":"ROUNDDOWN(Y$75/$F111,0)-SUM($AE111:AS111)","v":1},{"$f":"ROUNDDOWN(Z$75/$F111,0)-SUM($AE111:AT111)","v":0},{"$f":"ROUNDDOWN(AA$75/$F111,0)-SUM($AE111:AU111)","v":0},{"$f":"ROUNDDOWN(AB$75/$F111,0)-SUM($AE111:AV111)","v":1},{"$f":"ROUNDDOWN(AC$75/$F111,0)-SUM($AE111:AW111)","v":0}]
[null,35,"REPARACION COMPRESOR","UND",1,60000,200.11,"Costo de mantenimiento mecánico",null,{"$f":"+AE112*$E112*$G112*(1+'Sup Generales'!C$10)","v":204.91264000000001},{"$f":"+AF112*$E112*$G112*(1+'Sup Generales'!D$10)","v":208.19124224000001},{"$f":"+AG112*$E112*$G112*(1+'Sup Generales'!E$10)","v":213.60421453824},{"$f":"+AH112*$E112*$G112*(1+'Sup Generales'!F$10)","v":214.52698474504524},{"$f":"+AI112*$E112*$G112*(1+'Sup Generales'!G$10)","v":215.10620760385686},{"$f":"+AJ112*$E112*$G112*(1+'Sup Generales'!H$10)","v":216.54741919480267},{"$f":"+AK112*$E112*$G112*(1+'Sup Generales'!I$10)","v":220.75087528564782},{"$f":"+AL112*$E112*$G112*(1+'Sup Generales'!J$10)","v":224.58176527996042},{"$f":"+AM112*$E112*$G112*(1+'Sup Generales'!K$10)","v":227.8518205324026},{"$f":"+AN112*$E112*$G112*(1+'Sup Generales'!L$10)","v":230.90064310594718},{"$f":"+AO112*$E112*$G112*(1+'Sup Generales'!M$10)","v":233.91466210379212},{"$f":"+AP112*$E112*$G112*(1+'Sup Generales'!N$10)","v":236.5894716338413},{"$f":"+AQ112*$E112*$G112*(1+'Sup Generales'!O$10)","v":239.50528373373629},{"$f":"+AR112*$E112*$G112*(1+'Sup Generales'!P$10)","v":242.74516674676312},{"$f":"+AS112*$E112*$G112*(1+'Sup Generales'!Q$10)","v":246.23604164032341},{"$f":"+AT112*$E112*$G112*(1+'Sup Generales'!R$10)","v":499.24456815933377},{"$f":"+AU112*$E112*$G112*(1+'Sup Generales'!S$10)","v":252.9427052342192},{"$f":"+AV112*$E112*$G112*(1+'Sup Generales'!T$10)","v":256.26749138826142},{"$f":"+AW112*$E112*$G112*(1+'Sup Generales'!U$10)","v":259.6284104034587},{"$f":"+AX112*$E112*$G112*(1+'Sup Generales'!V$10)","v":263.03540567335278},null,1,{"$f":"ROUNDDOWN(K$75/$F112,0)-SUM($AE112:AE112)","v":1},{"$f":"ROUNDDOWN(L$75/$F112,0)-SUM($AE112:AF112)","v":1},{"$f":"ROUNDDOWN(M$75/$F112,0)-SUM($AE112:AG112)","v":1},{"$f":"ROUNDDOWN(N$75/$F112,0)-SUM($AE112:AH112)","v":1},{"$f":"ROUNDDOWN(O$75/$F112,0)-SUM($AE112:AI112)","v":1},{"$f":"ROUNDDOWN(P$75/$F112,0)-SUM($AE112:AJ112)","v":1},{"$f":"ROUNDDOWN(Q$75/$F112,0)-SUM($AE112:AK112)","v":1},{"$f":"ROUNDDOWN(R$75/$F112,0)-SUM($AE112:AL112)","v":1},{"$f":"ROUNDDOWN(S$75/$F112,0)-SUM($AE112:AM112)","v":1},{"$f":"ROUNDDOWN(T$75/$F112,0)-SUM($AE112:AN112)","v":1},{"$f":"ROUNDDOWN(U$75/$F112,0)-SUM($AE112:AO112)","v":1},{"$f":"ROUNDDOWN(V$75/$F112,0)-SUM($AE112:AP112)","v":1},{"$f":"ROUNDDOWN(W$75/$F112,0)-SUM($AE112:AQ112)","v":1},{"$f":"ROUNDDOWN(X$75/$F112,0)-SUM($AE112:AR112)","v":1},{"$f":"ROUNDDOWN(Y$75/$F112,0)-SUM($AE112:AS112)","v":2},{"$f":"ROUNDDOWN(Z$75/$F112,0)-SUM($AE112:AT112)","v":1},{"$f":"ROUNDDOWN(AA$75/$F112,0)-SUM($AE112:AU112)","v":1},{"$f":"ROUNDDOWN(AB$75/$F112,0)-SUM($AE112:AV112)","v":1},{"$f":"ROUNDDOWN(AC$75/$F112,0)-SUM($AE112:AW112)","v":1}]
[null,36,"CAMBIO DE TURBO","UND",1,60000,542.09500000000003,"Costo de mantenimiento mecánico",null,{"$f":"+AE113*$E113*$G113*(1+'Sup Generales'!C$10)","v":555.10527999999999},{"$f":"+AF113*$E113*$G113*(1+'Sup Generales'!D$10)","v":563.98696447999998},{"$f":"+AG113*$E113*$G113*(1+'Sup Generales'!E$10)","v":578.65062555648001},{"$f":"+AH113*$E113*$G113*(1+'Sup Generales'!F$10)","v":581.15039625888414},{"$f":"+AI113*$E113*$G113*(1+'Sup Generales'!G$10)","v":582.71950232878305},{"$f":"+AJ113*$E113*$G113*(1+'Sup Generales'!H$10)","v":586.62372299438584},{"$f":"+AK113*$E113*$G113*(1+'Sup Generales'!I$10)","v":598.01082273736074},{"$f":"+AL113*$E113*$G113*(1+'Sup Generales'!J$10)","v":608.38864649163031},{"$f":"+AM113*$E113*$G113*(1+'Sup Generales'!K$10)","v":617.24717731004341},{"$f":"+AN113*$E113*$G113*(1+'Sup Generales'!L$10)","v":625.50639210693339},{"$f":"+AO113*$E113*$G113*(1+'Sup Generales'!M$10)","v":633.67132453728038},{"$f":"+AP113*$E113*$G113*(1+'Sup Generales'!N$10)","v":640.91734358776273},{"$f":"+AQ113*$E113*$G113*(1+'Sup Generales'!O$10)","v":648.81623499894943},{"$f":"+AR113*$E113*$G113*(1+'Sup Generales'!P$10)","v":657.59302967161329},{"$f":"+AS113*$E113*$G113*(1+'Sup Generales'!Q$10)","v":667.04975759837646},{"$f":"+AT113*$E113*$G113*(1+'Sup Generales'!R$10)","v":1352.446075540123},{"$f":"+AU113*$E113*$G113*(1+'Sup Generales'!S$10)","v":685.2180090647347},{"$f":"+AV113*$E113*$G113*(1+'Sup Generales'!T$10)","v":694.22480507780517},{"$f":"+AW113*$E113*$G113*(1+'Sup Generales'!U$10)","v":703.32948447185515},{"$f":"+AX113*$E113*$G113*(1+'Sup Generales'!V$10)","v":712.5589837514176},null,1,{"$f":"ROUNDDOWN(K$75/$F113,0)-SUM($AE113:AE113)","v":1},{"$f":"ROUNDDOWN(L$75/$F113,0)-SUM($AE113:AF113)","v":1},{"$f":"ROUNDDOWN(M$75/$F113,0)-SUM($AE113:AG113)","v":1},{"$f":"ROUNDDOWN(N$75/$F113,0)-SUM($AE113:AH113)","v":1},{"$f":"ROUNDDOWN(O$75/$F113,0)-SUM($AE113:AI113)","v":1},{"$f":"ROUNDDOWN(P$75/$F113,0)-SUM($AE113:AJ113)","v":1},{"$f":"ROUNDDOWN(Q$75/$F113,0)-SUM($AE113:AK113)","v":1},{"$f":"ROUNDDOWN(R$75/$F113,0)-SUM($AE113:AL113)","v":1},{"$f":"ROUNDDOWN(S$75/$F113,0)-SUM($AE113:AM113)","v":1},{"$f":"ROUNDDOWN(T$75/$F113,0)-SUM($AE113:AN113)","v":1},{"$f":"ROUNDDOWN(U$75/$F113,0)-SUM($AE113:AO113)","v":1},{"$f":"ROUNDDOWN(V$75/$F113,0)-SUM($AE113:AP113)","v":1},{"$f":"ROUNDDOWN(W$75/$F113,0)-SUM($AE113:AQ113)","v":1},{"$f":"ROUNDDOWN(X$75/$F113,0)-SUM($AE113:AR113)","v":1},{"$f":"ROUNDDOWN(Y$75/$F113,0)-SUM($AE113:AS113)","v":2},{"$f":"ROUNDDOWN(Z$75/$F113,0)-SUM($AE113:AT113)","v":1},{"$f":"ROUNDDOWN(AA$75/$F113,0)-SUM($AE113:AU113)","v":1},{"$f":"ROUNDDOWN(AB$75/$F113,0)-SUM($AE113:AV113)","v":1},{"$f":"ROUNDDOWN(AC$75/$F113,0)-SUM($AE113:AW113)","v":1}]
[null,37,"REPARACIÓN DEL MOTOR","UND",1,240000,3903.672,"Costo de mantenimiento mecánico",null,{"$f":"+AE114*$E114*$G114*(1+'Sup Generales'!C$10)","v":0},{"$f":"+AF114*$E114*$G114*(1+'Sup Generales'!D$10)","v":0},{"$f":"+AG114*$E114*$G114*(1+'Sup Generales'!E$10)","v":0},{"$f":"+AH114*$E114*$G114*(1+'Sup Generales'!F$10)","v":4184.9132156996666},{"$f":"+AI114*$E114*$G114*(1+'Sup Generales'!G$10)","v":0},{"$f":"+AJ114*$E114*$G114*(1+'Sup Generales'!H$10)","v":0},{"$f":"+AK114*$E114*$G114*(1+'Sup Generales'!I$10)","v":0},{"$f":"+AL114*$E114*$G114*(1+'Sup Generales'!J$10)","v":4381.0581621805686},{"$f":"+AM114*$E114*$G114*(1+'Sup Generales'!K$10)","v":0},{"$f":"+AN114*$E114*$G114*(1+'Sup Generales'!L$10)","v":0},{"$f":"+AO114*$E114*$G114*(1+'Sup Generales'!M$10)","v":0},{"$f":"+AP114*$E114*$G114*(1+'Sup Generales'!N$10)","v":4615.3000645236143},{"$f":"+AQ114*$E114*$G114*(1+'Sup Generales'!O$10)","v":0},{"$f":"+AR114*$E114*$G114*(1+'Sup Generales'!P$10)","v":0},{"$f":"+AS114*$E114*$G114*(1+'Sup Generales'!Q$10)","v":0},{"$f":"+AT114*$E114*$G114*(1+'Sup Generales'!R$10)","v":4869.5393580422833},{"$f":"+AU114*$E114*$G114*(1+'Sup Generales'!S$10)","v":0},{"$f":"+AV114*$E114*$G114*(1+'Sup Generales'!T$10)","v":0},{"$f":"+AW114*$E114*$G114*(1+'Sup Generales'!U$10)","v":5064.7351761355767},{"$f":"+AX114*$E114*$G114*(1+'Sup Generales'!V$10)","v":0},null,0,{"$f":"ROUNDDOWN(K$75/$F114,0)-SUM($AE114:AE114)","v":0},{"$f":"ROUNDDOWN(L$75/$F114,0)-SUM($AE114:AF114)","v":0},{"$f":"ROUNDDOWN(M$75/$F114,0)-SUM($AE114:AG114)","v":1},{"$f":"ROUNDDOWN(N$75/$F114,0)-SUM($AE114:AH114)","v":0},{"$f":"ROUNDDOWN(O$75/$F114,0)-SUM($AE114:AI114)","v":0},{"$f":"ROUNDDOWN(P$75/$F114,0)-SUM($AE114:AJ114)","v":0},{"$f":"ROUNDDOWN(Q$75/$F114,0)-SUM($AE114:AK114)","v":1},{"$f":"ROUNDDOWN(R$75/$F114,0)-SUM($AE114:AL114)","v":0},{"$f":"ROUNDDOWN(S$75/$F114,0)-SUM($AE114:AM114)","v":0},{"$f":"ROUNDDOWN(T$75/$F114,0)-SUM($AE114:AN114)","v":0},{"$f":"ROUNDDOWN(U$75/$F114,0)-SUM($AE114:AO114)","v":1},{"$f":"ROUNDDOWN(V$75/$F114,0)-SUM($AE114:AP114)","v":0},{"$f":"ROUNDDOWN(W$75/$F114,0)-SUM($AE114:AQ114)","v":0},{"$f":"ROUNDDOWN(X$75/$F114,0)-SUM($AE114:AR114)","v":0},{"$f":"ROUNDDOWN(Y$75/$F114,0)-SUM($AE114:AS114)","v":1},{"$f":"ROUNDDOWN(Z$75/$F114,0)-SUM($AE114:AT114)","v":0},{"$f":"ROUNDDOWN(AA$75/$F114,0)-SUM($AE114:AU114)","v":0},{"$f":"ROUNDDOWN(AB$75/$F114,0)-SUM($AE114:AV114)","v":1},{"$f":"ROUNDDOWN(AC$75/$F114,0)-SUM($AE114:AW114)","v":0}]
[null,38,"REPARACIÓN DE CAJA","UND",1,120000,2209.7959999999998,"Costo de mantenimiento mecánico",null,{"$f":"+AE115*$E115*$G115*(1+'Sup Generales'!C$10)","v":0},{"$f":"+AF115*$E115*$G115*(1+'Sup Generales'!D$10)","v":2299.0364016639996},{"$f":"+AG115*$E115*$G115*(1+'Sup Generales'!E$10)","v":0},{"$f":"+AH115*$E115*$G115*(1+'Sup Generales'!F$10)","v":2369.0014131310877},{"$f":"+AI115*$E115*$G115*(1+'Sup Generales'!G$10)","v":0},{"$f":"+AJ115*$E115*$G115*(1+'Sup Generales'!H$10)","v":2391.312881650083},{"$f":"+AK115*$E115*$G115*(1+'Sup Generales'!I$10)","v":0},{"$f":"+AL115*$E115*$G115*(1+'Sup Generales'!J$10)","v":2480.0354134655709},{"$f":"+AM115*$E115*$G115*(1+'Sup Generales'!K$10)","v":0},{"$f":"+AN115*$E115*$G115*(1+'Sup Generales'!L$10)","v":2549.8141898603249},{"$f":"+AO115*$E115*$G115*(1+'Sup Generales'!M$10)","v":0},{"$f":"+AP115*$E115*$G115*(1+'Sup Generales'!N$10)","v":2612.6353908279243},{"$f":"+AQ115*$E115*$G115*(1+'Sup Generales'!O$10)","v":0},{"$f":"+AR115*$E115*$G115*(1+'Sup Generales'!P$10)","v":2680.6121557959627},{"$f":"+AS115*$E115*$G115*(1+'Sup Generales'!Q$10)","v":0},{"$f":"+AT115*$E115*$G115*(1+'Sup Generales'!R$10)","v":2756.5555188152089},{"$f":"+AU115*$E115*$G115*(1+'Sup Generales'!S$10)","v":2793.2226188384216},{"$f":"+AV115*$E115*$G115*(1+'Sup Generales'!T$10)","v":0},{"$f":"+AW115*$E115*$G115*(1+'Sup Generales'!U$10)","v":2867.0522352502189},{"$f":"+AX115*$E115*$G115*(1+'Sup Generales'!V$10)","v":0},null,0,{"$f":"ROUNDDOWN(K$75/$F115,0)-SUM($AE115:AE115)","v":1},{"$f":"ROUNDDOWN(L$75/$F115,0)-SUM($AE115:AF115)","v":0},{"$f":"ROUNDDOWN(M$75/$F115,0)-SUM($AE115:AG115)","v":1},{"$f":"ROUNDDOWN(N$75/$F115,0)-SUM($AE115:AH115)","v":0},{"$f":"ROUNDDOWN(O$75/$F115,0)-SUM($AE115:AI115)","v":1},{"$f":"ROUNDDOWN(P$75/$F115,0)-SUM($AE115:AJ115)","v":0},{"$f":"ROUNDDOWN(Q$75/$F115,0)-SUM($AE115:AK115)","v":1},{"$f":"ROUNDDOWN(R$75/$F115,0)-SUM($AE115:AL115)","v":0},{"$f":"ROUNDDOWN(S$75/$F115,0)-SUM($AE115:AM115)","v":1},{"$f":"ROUNDDOWN(T$75/$F115,0)-SUM($AE115:AN115)","v":0},{"$f":"ROUNDDOWN(U$75/$F115,0)-SUM($AE115:AO115)","v":1},{"$f":"ROUNDDOWN(V$75/$F115,0)-SUM($AE115:AP115)","v":0},{"$f":"ROUNDDOWN(W$75/$F115,0)-SUM($AE115:AQ115)","v":1},{"$f":"ROUNDDOWN(X$75/$F115,0)-SUM($AE115:AR115)","v":0},{"$f":"ROUNDDOWN(Y$75/$F115,0)-SUM($AE115:AS115)","v":1},{"$f":"ROUNDDOWN(Z$75/$F115,0)-SUM($AE115:AT115)","v":1},{"$f":"ROUNDDOWN(AA$75/$F115,0)-SUM($AE115:AU115)","v":0},{"$f":"ROUNDDOWN(AB$75/$F115,0)-SUM($AE115:AV115)","v":1},{"$f":"ROUNDDOWN(AC$75/$F115,0)-SUM($AE115:AW115)","v":0}]
[null,39,"REPARACIÓN DEL DIFERENCIAL","UND",1,120000,1675.3619999999999,"Costo de mantenimiento mecánico",null,{"$f":"+AE116*$E116*$G116*(1+'Sup Generales'!C$10)","v":0},{"$f":"+AF116*$E116*$G116*(1+'Sup Generales'!D$10)","v":1743.0198190079998},{"$f":"+AG116*$E116*$G116*(1+'Sup Generales'!E$10)","v":0},{"$f":"+AH116*$E116*$G116*(1+'Sup Generales'!F$10)","v":1796.0639559063936},{"$f":"+AI116*$E116*$G116*(1+'Sup Generales'!G$10)","v":0},{"$f":"+AJ116*$E116*$G116*(1+'Sup Generales'!H$10)","v":1812.9794478888759},{"$f":"+AK116*$E116*$G116*(1+'Sup Generales'!I$10)","v":0},{"$f":"+AL116*$E116*$G116*(1+'Sup Generales'!J$10)","v":1880.2446426613612},{"$f":"+AM116*$E116*$G116*(1+'Sup Generales'!K$10)","v":0},{"$f":"+AN116*$E116*$G116*(1+'Sup Generales'!L$10)","v":1933.1475850045765},{"$f":"+AO116*$E116*$G116*(1+'Sup Generales'!M$10)","v":0},{"$f":"+AP116*$E116*$G116*(1+'Sup Generales'!N$10)","v":1980.7756252831721},{"$f":"+AQ116*$E116*$G116*(1+'Sup Generales'!O$10)","v":0},{"$f":"+AR116*$E116*$G116*(1+'Sup Generales'!P$10)","v":2032.3123684533032},{"$f":"+AS116*$E116*$G116*(1+'Sup Generales'!Q$10)","v":0},{"$f":"+AT116*$E116*$G116*(1+'Sup Generales'!R$10)","v":2089.8890065477926},{"$f":"+AU116*$E116*$G116*(1+'Sup Generales'!S$10)","v":2117.6882540933079},{"$f":"+AV116*$E116*$G116*(1+'Sup Generales'!T$10)","v":0},{"$f":"+AW116*$E116*$G116*(1+'Sup Generales'!U$10)","v":2173.6623502591538},{"$f":"+AX116*$E116*$G116*(1+'Sup Generales'!V$10)","v":0},null,0,{"$f":"ROUNDDOWN(K$75/$F116,0)-SUM($AE116:AE116)","v":1},{"$f":"ROUNDDOWN(L$75/$F116,0)-SUM($AE116:AF116)","v":0},{"$f":"ROUNDDOWN(M$75/$F116,0)-SUM($AE116:AG116)","v":1},{"$f":"ROUNDDOWN(N$75/$F116,0)-SUM($AE116:AH116)","v":0},{"$f":"ROUNDDOWN(O$75/$F116,0)-SUM($AE116:AI116)","v":1},{"$f":"ROUNDDOWN(P$75/$F116,0)-SUM($AE116:AJ116)","v":0},{"$f":"ROUNDDOWN(Q$75/$F116,0)-SUM($AE116:AK116)","v":1},{"$f":"ROUNDDOWN(R$75/$F116,0)-SUM($AE116:AL116)","v":0},{"$f":"ROUNDDOWN(S$75/$F116,0)-SUM($AE116:AM116)","v":1},{"$f":"ROUNDDOWN(T$75/$F116,0)-SUM($AE116:AN116)","v":0},{"$f":"ROUNDDOWN(U$75/$F116,0)-SUM($AE116:AO116)","v":1},{"$f":"ROUNDDOWN(V$75/$F116,0)-SUM($AE116:AP116)","v":0},{"$f":"ROUNDDOWN(W$75/$F116,0)-SUM($AE116:AQ116)","v":1},{"$f":"ROUNDDOWN(X$75/$F116,0)-SUM($AE116:AR116)","v":0},{"$f":"ROUNDDOWN(Y$75/$F116,0)-SUM($AE116:AS116)","v":1},{"$f":"ROUNDDOWN(Z$75/$F116,0)-SUM($AE116:AT116)","v":1},{"$f":"ROUNDDOWN(AA$75/$F116,0)-SUM($AE116:AU116)","v":0},{"$f":"ROUNDDOWN(AB$75/$F116,0)-SUM($AE116:AV116)","v":1},{"$f":"ROUNDDOWN(AC$75/$F116,0)-SUM($AE116:AW116)","v":0}]
[null,40,"REPARACIÓN DE CARROCERIA","UND",1,600000,4125,"Carrocería ",null,{"$f":"+AE117*$E117*$G117*(1+'Sup Generales'!C$10)","v":0},{"$f":"+AF117*$E117*$G117*(1+'Sup Generales'!D$10)","v":0},{"$f":"+AG117*$E117*$G117*(1+'Sup Generales'!E$10)","v":0},{"$f":"+AH117*$E117*$G117*(1+'Sup Generales'!F$10)","v":0},{"$f":"+AI117*$E117*$G117*(1+'Sup Generales'!G$10)","v":0},{"$f":"+AJ117*$E117*$G117*(1+'Sup Generales'!H$10)","v":0},{"$f":"+AK117*$E117*$G117*(1+'Sup Generales'!I$10)","v":0},{"$f":"+AL117*$E117*$G117*(1+'Sup Generales'!J$10)","v":0},{"$f":"+AM117*$E117*$G117*(1+'Sup Generales'!K$10)","v":0},{"$f":"+AN117*$E117*$G117*(1+'Sup Generales'!L$10)","v":4759.7079247015745},{"$f":"+AO117*$E117*$G117*(1+'Sup Generales'!M$10)","v":0},{"$f":"+AP117*$E117*$G117*(1+'Sup Generales'!N$10)","v":0},{"$f":"+AQ117*$E117*$G117*(1+'Sup Generales'!O$10)","v":0},{"$f":"+AR117*$E117*$G117*(1+'Sup Generales'!P$10)","v":0},{"$f":"+AS117*$E117*$G117*(1+'Sup Generales'!Q$10)","v":0},{"$f":"+AT117*$E117*$G117*(1+'Sup Generales'!R$10)","v":0},{"$f":"+AU117*$E117*$G117*(1+'Sup Generales'!S$10)","v":0},{"$f":"+AV117*$E117*$G117*(1+'Sup Generales'!T$10)","v":0},{"$f":"+AW117*$E117*$G117*(1+'Sup Generales'!U$10)","v":5351.8924237382789},{"$f":"+AX117*$E117*$G117*(1+'Sup Generales'!V$10)","v":0},null,0,{"$f":"ROUNDDOWN(K$75/$F117,0)-SUM($AE117:AE117)","v":0},{"$f":"ROUNDDOWN(L$75/$F117,0)-SUM($AE117:AF117)","v":0},{"$f":"ROUNDDOWN(M$75/$F117,0)-SUM($AE117:AG117)","v":0},{"$f":"ROUNDDOWN(N$75/$F117,0)-SUM($AE117:AH117)","v":0},{"$f":"ROUNDDOWN(O$75/$F117,0)-SUM($AE117:AI117)","v":0},{"$f":"ROUNDDOWN(P$75/$F117,0)-SUM($AE117:AJ117)","v":0},{"$f":"ROUNDDOWN(Q$75/$F117,0)-SUM($AE117:AK117)","v":0},{"$f":"ROUNDDOWN(R$75/$F117,0)-SUM($AE117:AL117)","v":0},{"$f":"ROUNDDOWN(S$75/$F117,0)-SUM($AE117:AM117)","v":1},{"$f":"ROUNDDOWN(T$75/$F117,0)-SUM($AE117:AN117)","v":0},{"$f":"ROUNDDOWN(U$75/$F117,0)-SUM($AE117:AO117)","v":0},{"$f":"ROUNDDOWN(V$75/$F117,0)-SUM($AE117:AP117)","v":0},{"$f":"ROUNDDOWN(W$75/$F117,0)-SUM($AE117:AQ117)","v":0},{"$f":"ROUNDDOWN(X$75/$F117,0)-SUM($AE117:AR117)","v":0},{"$f":"ROUNDDOWN(Y$75/$F117,0)-SUM($AE117:AS117)","v":0},{"$f":"ROUNDDOWN(Z$75/$F117,0)-SUM($AE117:AT117)","v":0},{"$f":"ROUNDDOWN(AA$75/$F117,0)-SUM($AE117:AU117)","v":0},{"$f":"ROUNDDOWN(AB$75/$F117,0)-SUM($AE117:AV117)","v":1},{"$f":"ROUNDDOWN(AC$75/$F117,0)-SUM($AE117:AW117)","v":0}]
[null,41,"MANO DE OBRA MANTENIMIENTO","UND",1,1,0.03,"Mano de Obra",null,{"$f":"+AE118*$E118*$G118*(1+'Sup Generales'!C$10)","v":2162.8723199999999},{"$f":"+AF118*$E118*$G118*(1+'Sup Generales'!D$10)","v":2197.4782771199998},{"$f":"+AG118*$E118*$G118*(1+'Sup Generales'!E$10)","v":2254.6127123251199},{"$f":"+AH118*$E118*$G118*(1+'Sup Generales'!F$10)","v":2264.3526392423646},{"$f":"+AI118*$E118*$G118*(1+'Sup Generales'!G$10)","v":2270.4663913683189},{"$f":"+AJ118*$E118*$G118*(1+'Sup Generales'!H$10)","v":2285.6785161904868},{"$f":"+AK118*$E118*$G118*(1+'Sup Generales'!I$10)","v":2330.0463932878893},{"$f":"+AL118*$E118*$G118*(1+'Sup Generales'!J$10)","v":2370.4817999551583},{"$f":"+AM118*$E118*$G118*(1+'Sup Generales'!K$10)","v":2404.9975428121033},{"$f":"+AN118*$E118*$G118*(1+'Sup Generales'!L$10)","v":2437.178153793011},{"$f":"+AO118*$E118*$G118*(1+'Sup Generales'!M$10)","v":2468.9914097365827},{"$f":"+AP118*$E118*$G118*(1+'Sup Generales'!N$10)","v":2497.2242776251405},{"$f":"+AQ118*$E118*$G118*(1+'Sup Generales'!O$10)","v":2528.0009504608615},{"$f":"+AR118*$E118*$G118*(1+'Sup Generales'!P$10)","v":2562.1982224735298},{"$f":"+AS118*$E118*$G118*(1+'Sup Generales'!Q$10)","v":2599.0447375536369},{"$f":"+AT118*$E118*$G118*(1+'Sup Generales'!R$10)","v":2634.7868471710094},{"$f":"+AU118*$E118*$G118*(1+'Sup Generales'!S$10)","v":2669.8342068942734},{"$f":"+AV118*$E118*$G118*(1+'Sup Generales'!T$10)","v":2704.9276396005098},{"$f":"+AW118*$E118*$G118*(1+'Sup Generales'!U$10)","v":2740.4024580779437},{"$f":"+AX118*$E118*$G118*(1+'Sup Generales'!V$10)","v":2776.3636157870278},{"$f":"SUM(J118:AC118)/SUM($J$9:$AC$9)","v":3.4911754048997927E-2},{"$f":"ROUNDDOWN(J$10/$F118,0)","v":70406},{"$f":"ROUNDDOWN(K$10/$F118,0)-SUM($AE118:AE118)","v":70406},{"$f":"ROUNDDOWN(L$10/$F118,0)-SUM($AE118:AF118)","v":70406},{"$f":"ROUNDDOWN(M$10/$F118,0)-SUM($AE118:AG118)","v":70406},{"$f":"ROUNDDOWN(N$10/$F118,0)-SUM($AE118:AH118)","v":70406},{"$f":"ROUNDDOWN(O$10/$F118,0)-SUM($AE118:AI118)","v":70406},{"$f":"ROUNDDOWN(P$10/$F118,0)-SUM($AE118:AJ118)","v":70406},{"$f":"ROUNDDOWN(Q$10/$F118,0)-SUM($AE118:AK118)","v":70406},{"$f":"ROUNDDOWN(R$10/$F118,0)-SUM($AE118:AL118)","v":70406},{"$f":"ROUNDDOWN(S$10/$F118,0)-SUM($AE118:AM118)","v":70406},{"$f":"ROUNDDOWN(T$10/$F118,0)-SUM($AE118:AN118)","v":70406},{"$f":"ROUNDDOWN(U$10/$F118,0)-SUM($AE118:AO118)","v":70406},{"$f":"ROUNDDOWN(V$10/$F118,0)-SUM($AE118:AP118)","v":70406},{"$f":"ROUNDDOWN(W$10/$F118,0)-SUM($AE118:AQ118)","v":70406},{"$f":"ROUNDDOWN(X$10/$F118,0)-SUM($AE118:AR118)","v":70406},{"$f":"ROUNDDOWN(Y$10/$F118,0)-SUM($AE118:AS118)","v":70406},{"$f":"ROUNDDOWN(Z$10/$F118,0)-SUM($AE118:AT118)","v":70406},{"$f":"ROUNDDOWN(AA$10/$F118,0)-SUM($AE118:AU118)","v":70406},{"$f":"ROUNDDOWN(AB$10/$F118,0)-SUM($AE118:AV118)","v":70406},{"$f":"ROUNDDOWN(AC$10/$F118,0)-SUM($AE118:AW118)","v":70406}]
[null,"A1","Filtros y Lubricantes (Híbrido)","UND",1,1,0.158,"Aceites y filtros ",null,{"$f":"+AE119*$E119*$G119*(1+'Sup Generales'!C$10)","v":10326.536192},{"$f":"+AF119*$E119*$G119*(1+'Sup Generales'!D$10)","v":10491.760771072},{"$f":"+AG119*$E119*$G119*(1+'Sup Generales'!E$10)","v":10764.546551119873},{"$f":"+AH119*$E119*$G119*(1+'Sup Generales'!F$10)","v":10811.049392220712},{"$f":"+AI119*$E119*$G119*(1+'Sup Generales'!G$10)","v":10840.239225579708},{"$f":"+AJ119*$E119*$G119*(1+'Sup Generales'!H$10)","v":10912.868828391091},{"$f":"+AK119*$E119*$G119*(1+'Sup Generales'!I$10)","v":11124.701253436198},{"$f":"+AL119*$E119*$G119*(1+'Sup Generales'!J$10)","v":11317.758276047589},{"$f":"+AM119*$E119*$G119*(1+'Sup Generales'!K$10)","v":11482.552131195733},{"$f":"+AN119*$E119*$G119*(1+'Sup Generales'!L$10)","v":11636.19700468277},{"$f":"+AO119*$E119*$G119*(1+'Sup Generales'!M$10)","v":11788.087958137965},{"$f":"+AP119*$E119*$G119*(1+'Sup Generales'!N$10)","v":11922.884510555423},{"$f":"+AQ119*$E119*$G119*(1+'Sup Generales'!O$10)","v":12069.826344786034},{"$f":"+AR119*$E119*$G119*(1+'Sup Generales'!P$10)","v":12233.099675273932},{"$f":"+AS119*$E119*$G119*(1+'Sup Generales'!Q$10)","v":12409.021697117458},{"$f":"+AT119*$E119*$G119*(1+'Sup Generales'!R$10)","v":12579.670784966633},{"$f":"+AU119*$E119*$G119*(1+'Sup Generales'!S$10)","v":12747.00282082917},{"$f":"+AV119*$E119*$G119*(1+'Sup Generales'!T$10)","v":12914.554830067729},{"$f":"+AW119*$E119*$G119*(1+'Sup Generales'!U$10)","v":13083.927748443166},{"$f":"+AX119*$E119*$G119*(1+'Sup Generales'!V$10)","v":13255.622671511524},null,{"$f":"ROUNDDOWN(J$75/$F119,0)","v":63826},{"$f":"ROUNDDOWN(K$75/$F119,0)-SUM($AE119:AE119)","v":63826},{"$f":"ROUNDDOWN(L$75/$F119,0)-SUM($AE119:AF119)","v":63826},{"$f":"ROUNDDOWN(M$75/$F119,0)-SUM($AE119:AG119)","v":63826},{"$f":"ROUNDDOWN(N$75/$F119,0)-SUM($AE119:AH119)","v":63826},{"$f":"ROUNDDOWN(O$75/$F119,0)-SUM($AE119:AI119)","v":63826},{"$f":"ROUNDDOWN(P$75/$F119,0)-SUM($AE119:AJ119)","v":63826},{"$f":"ROUNDDOWN(Q$75/$F119,0)-SUM($AE119:AK119)","v":63826},{"$f":"ROUNDDOWN(R$75/$F119,0)-SUM($AE119:AL119)","v":63826},{"$f":"ROUNDDOWN(S$75/$F119,0)-SUM($AE119:AM119)","v":63826},{"$f":"ROUNDDOWN(T$75/$F119,0)-SUM($AE119:AN119)","v":63826},{"$f":"ROUNDDOWN(U$75/$F119,0)-SUM($AE119:AO119)","v":63826},{"$f":"ROUNDDOWN(V$75/$F119,0)-SUM($AE119:AP119)","v":63826},{"$f":"ROUNDDOWN(W$75/$F119,0)-SUM($AE119:AQ119)","v":63826},{"$f":"ROUNDDOWN(X$75/$F119,0)-SUM($AE119:AR119)","v":63826},{"$f":"ROUNDDOWN(Y$75/$F119,0)-SUM($AE119:AS119)","v":63826},{"$f":"ROUNDDOWN(Z$75/$F119,0)-SUM($AE119:AT119)","v":63826},{"$f":"ROUNDDOWN(AA$75/$F119,0)-SUM($AE119:AU119)","v":63826},{"$f":"ROUNDDOWN(AB$75/$F119,0)-SUM($AE119:AV119)","v":63826},{"$f":"ROUNDDOWN(AC$75/$F119,0)-SUM($AE119:AW119)","v":63826}]
[null,"A2","Mantenimiento Electrico (Híbrido)","UND",1,1,4.9000000000000002E-2,"Costo de mantenimiento eléctrico ",null,{"$f":"+AE120*$E120*$G120*(1+'Sup Generales'!C$10)","v":3202.5333760000003},{"$f":"+AF120*$E120*$G120*(1+'Sup Generales'!D$10)","v":3253.7739100160002},{"$f":"+AG120*$E120*$G120*(1+'Sup Generales'!E$10)","v":3338.3720316764161},{"$f":"+AH120*$E120*$G120*(1+'Sup Generales'!F$10)","v":3352.793798853259},{"$f":"+AI120*$E120*$G120*(1+'Sup Generales'!G$10)","v":3361.8463421101624},{"$f":"+AJ120*$E120*$G120*(1+'Sup Generales'!H$10)","v":3384.3707126023005},{"$f":"+AK120*$E120*$G120*(1+'Sup Generales'!I$10)","v":3450.0655785973022},{"$f":"+AL120*$E120*$G120*(1+'Sup Generales'!J$10)","v":3509.9376932046321},{"$f":"+AM120*$E120*$G120*(1+'Sup Generales'!K$10)","v":3561.0446482822208},{"$f":"+AN120*$E120*$G120*(1+'Sup Generales'!L$10)","v":3608.6940077813656},{"$f":"+AO120*$E120*$G120*(1+'Sup Generales'!M$10)","v":3655.7994300554451},{"$f":"+AP120*$E120*$G120*(1+'Sup Generales'!N$10)","v":3697.603424159593},{"$f":"+AQ120*$E120*$G120*(1+'Sup Generales'!O$10)","v":3743.1739930032636},{"$f":"+AR120*$E120*$G120*(1+'Sup Generales'!P$10)","v":3793.8093929647002},{"$f":"+AS120*$E120*$G120*(1+'Sup Generales'!Q$10)","v":3848.3674883465537},{"$f":"+AT120*$E120*$G120*(1+'Sup Generales'!R$10)","v":3901.2903067301586},{"$f":"+AU120*$E120*$G120*(1+'Sup Generales'!S$10)","v":3953.1844191179075},{"$f":"+AV120*$E120*$G120*(1+'Sup Generales'!T$10)","v":4005.1467510969546},{"$f":"+AW120*$E120*$G120*(1+'Sup Generales'!U$10)","v":4057.673795403261},{"$f":"+AX120*$E120*$G120*(1+'Sup Generales'!V$10)","v":4110.9209550890173},null,63826,{"$f":"ROUNDDOWN(K$75/$F120,0)-SUM($AE120:AE120)","v":63826},{"$f":"ROUNDDOWN(L$75/$F120,0)-SUM($AE120:AF120)","v":63826},{"$f":"ROUNDDOWN(M$75/$F120,0)-SUM($AE120:AG120)","v":63826},{"$f":"ROUNDDOWN(N$75/$F120,0)-SUM($AE120:AH120)","v":63826},{"$f":"ROUNDDOWN(O$75/$F120,0)-SUM($AE120:AI120)","v":63826},{"$f":"ROUNDDOWN(P$75/$F120,0)-SUM($AE120:AJ120)","v":63826},{"$f":"ROUNDDOWN(Q$75/$F120,0)-SUM($AE120:AK120)","v":63826},{"$f":"ROUNDDOWN(R$75/$F120,0)-SUM($AE120:AL120)","v":63826},{"$f":"ROUNDDOWN(S$75/$F120,0)-SUM($AE120:AM120)","v":63826},{"$f":"ROUNDDOWN(T$75/$F120,0)-SUM($AE120:AN120)","v":63826},{"$f":"ROUNDDOWN(U$75/$F120,0)-SUM($AE120:AO120)","v":63826},{"$f":"ROUNDDOWN(V$75/$F120,0)-SUM($AE120:AP120)","v":63826},{"$f":"ROUNDDOWN(W$75/$F120,0)-SUM($AE120:AQ120)","v":63826},{"$f":"ROUNDDOWN(X$75/$F120,0)-SUM($AE120:AR120)","v":63826},{"$f":"ROUNDDOWN(Y$75/$F120,0)-SUM($AE120:AS120)","v":63826},{"$f":"ROUNDDOWN(Z$75/$F120,0)-SUM($AE120:AT120)","v":63826},{"$f":"ROUNDDOWN(AA$75/$F120,0)-SUM($AE120:AU120)","v":63826},{"$f":"ROUNDDOWN(AB$75/$F120,0)-SUM($AE120:AV120)","v":63826},{"$f":"ROUNDDOWN(AC$75/$F120,0)-SUM($AE120:AW120)","v":63826}]
[null,"A3","Manto. Chasis y Motor (Híbrido)","UND",1,1,9.7199999999999995E-2,"Costo de mantenimiento mecánico",null,{"$f":"+AE121*$E121*$G121*(1+'Sup Generales'!C$10)","v":6352.7804927999996},{"$f":"+AF121*$E121*$G121*(1+'Sup Generales'!D$10)","v":6454.4249806847993},{"$f":"+AG121*$E121*$G121*(1+'Sup Generales'!E$10)","v":6622.2400301826037},{"$f":"+AH121*$E121*$G121*(1+'Sup Generales'!F$10)","v":6650.8481071129936},{"$f":"+AI121*$E121*$G121*(1+'Sup Generales'!G$10)","v":6668.8053970021983},{"$f":"+AJ121*$E121*$G121*(1+'Sup Generales'!H$10)","v":6713.486393162113},{"$f":"+AK121*$E121*$G121*(1+'Sup Generales'!I$10)","v":6843.8035559113814},{"$f":"+AL121*$E121*$G121*(1+'Sup Generales'!J$10)","v":6962.5702812140853},{"$f":"+AM121*$E121*$G121*(1+'Sup Generales'!K$10)","v":7063.9497921026905},{"$f":"+AN121*$E121*$G121*(1+'Sup Generales'!L$10)","v":7158.4705623744621},{"$f":"+AO121*$E121*$G121*(1+'Sup Generales'!M$10)","v":7251.9123388038615},{"$f":"+AP121*$E121*$G121*(1+'Sup Generales'!N$10)","v":7334.8378128227023},{"$f":"+AQ121*$E121*$G121*(1+'Sup Generales'!O$10)","v":7425.2349412227995},{"$f":"+AR121*$E121*$G121*(1+'Sup Generales'!P$10)","v":7525.6790407381395},{"$f":"+AS121*$E121*$G121*(1+'Sup Generales'!Q$10)","v":7633.9044870874477},{"$f":"+AT121*$E121*$G121*(1+'Sup Generales'!R$10)","v":7738.8860778402313},{"$f":"+AU121*$E121*$G121*(1+'Sup Generales'!S$10)","v":7841.8270518012359},{"$f":"+AV121*$E121*$G121*(1+'Sup Generales'!T$10)","v":7944.9033511555899},{"$f":"+AW121*$E121*$G121*(1+'Sup Generales'!U$10)","v":8049.0998553713653},{"$f":"+AX121*$E121*$G121*(1+'Sup Generales'!V$10)","v":8154.7248333602538},null,63826,{"$f":"ROUNDDOWN(K$75/$F121,0)-SUM($AE121:AE121)","v":63826},{"$f":"ROUNDDOWN(L$75/$F121,0)-SUM($AE121:AF121)","v":63826},{"$f":"ROUNDDOWN(M$75/$F121,0)-SUM($AE121:AG121)","v":63826},{"$f":"ROUNDDOWN(N$75/$F121,0)-SUM($AE121:AH121)","v":63826},{"$f":"ROUNDDOWN(O$75/$F121,0)-SUM($AE121:AI121)","v":63826},{"$f":"ROUNDDOWN(P$75/$F121,0)-SUM($AE121:AJ121)","v":63826},{"$f":"ROUNDDOWN(Q$75/$F121,0)-SUM($AE121:AK121)","v":63826},{"$f":"ROUNDDOWN(R$75/$F121,0)-SUM($AE121:AL121)","v":63826},{"$f":"ROUNDDOWN(S$75/$F121,0)-SUM($AE121:AM121)","v":63826},{"$f":"ROUNDDOWN(T$75/$F121,0)-SUM($AE121:AN121)","v":63826},{"$f":"ROUNDDOWN(U$75/$F121,0)-SUM($AE121:AO121)","v":63826},{"$f":"ROUNDDOWN(V$75/$F121,0)-SUM($AE121:AP121)","v":63826},{"$f":"ROUNDDOWN(W$75/$F121,0)-SUM($AE121:AQ121)","v":63826},{"$f":"ROUNDDOWN(X$75/$F121,0)-SUM($AE121:AR121)","v":63826},{"$f":"ROUNDDOWN(Y$75/$F121,0)-SUM($AE121:AS121)","v":63826},{"$f":"ROUNDDOWN(Z$75/$F121,0)-SUM($AE121:AT121)","v":63826},{"$f":"ROUNDDOWN(AA$75/$F121,0)-SUM($AE121:AU121)","v":63826},{"$f":"ROUNDDOWN(AB$75/$F121,0)-SUM($AE121:AV121)","v":63826},{"$f":"ROUNDDOWN(AC$75/$F121,0)-SUM($AE121:AW121)","v":63826}]
[null,"A4","Manto. Carroceria (Híbrido)","UND",1,1,1.0800000000000001E-2,"Carrocería ",null,{"$f":"+AE122*$E122*$G122*(1+'Sup Generales'!C$10)","v":705.86449920000007},{"$f":"+AF122*$E122*$G122*(1+'Sup Generales'!D$10)","v":717.15833118720002},{"$f":"+AG122*$E122*$G122*(1+'Sup Generales'!E$10)","v":735.80444779806726},{"$f":"+AH122*$E122*$G122*(1+'Sup Generales'!F$10)","v":738.9831230125551},{"$f":"+AI122*$E122*$G122*(1+'Sup Generales'!G$10)","v":740.97837744468893},{"$f":"+AJ122*$E122*$G122*(1+'Sup Generales'!H$10)","v":745.94293257356833},{"$f":"+AK122*$E122*$G122*(1+'Sup Generales'!I$10)","v":760.42261732348697},{"$f":"+AL122*$E122*$G122*(1+'Sup Generales'!J$10)","v":773.61892013489853},{"$f":"+AM122*$E122*$G122*(1+'Sup Generales'!K$10)","v":784.88331023363241},{"$f":"+AN122*$E122*$G122*(1+'Sup Generales'!L$10)","v":795.38561804160713},{"$f":"+AO122*$E122*$G122*(1+'Sup Generales'!M$10)","v":805.76803764487363},{"$f":"+AP122*$E122*$G122*(1+'Sup Generales'!N$10)","v":814.98197920252267},{"$f":"+AQ122*$E122*$G122*(1+'Sup Generales'!O$10)","v":825.02610458031131},{"$f":"+AR122*$E122*$G122*(1+'Sup Generales'!P$10)","v":836.18656008201572},{"$f":"+AS122*$E122*$G122*(1+'Sup Generales'!Q$10)","v":848.21160967638332},{"$f":"+AT122*$E122*$G122*(1+'Sup Generales'!R$10)","v":859.87623087113707},{"$f":"+AU122*$E122*$G122*(1+'Sup Generales'!S$10)","v":871.31411686680417},{"$f":"+AV122*$E122*$G122*(1+'Sup Generales'!T$10)","v":882.76703901728797},{"$f":"+AW122*$E122*$G122*(1+'Sup Generales'!U$10)","v":894.3444283745963},{"$f":"+AX122*$E122*$G122*(1+'Sup Generales'!V$10)","v":906.08053704002839},null,63826,{"$f":"ROUNDDOWN(K$75/$F122,0)-SUM($AE122:AE122)","v":63826},{"$f":"ROUNDDOWN(L$75/$F122,0)-SUM($AE122:AF122)","v":63826},{"$f":"ROUNDDOWN(M$75/$F122,0)-SUM($AE122:AG122)","v":63826},{"$f":"ROUNDDOWN(N$75/$F122,0)-SUM($AE122:AH122)","v":63826},{"$f":"ROUNDDOWN(O$75/$F122,0)-SUM($AE122:AI122)","v":63826},{"$f":"ROUNDDOWN(P$75/$F122,0)-SUM($AE122:AJ122)","v":63826},{"$f":"ROUNDDOWN(Q$75/$F122,0)-SUM($AE122:AK122)","v":63826},{"$f":"ROUNDDOWN(R$75/$F122,0)-SUM($AE122:AL122)","v":63826},{"$f":"ROUNDDOWN(S$75/$F122,0)-SUM($AE122:AM122)","v":63826},{"$f":"ROUNDDOWN(T$75/$F122,0)-SUM($AE122:AN122)","v":63826},{"$f":"ROUNDDOWN(U$75/$F122,0)-SUM($AE122:AO122)","v":63826},{"$f":"ROUNDDOWN(V$75/$F122,0)-SUM($AE122:AP122)","v":63826},{"$f":"ROUNDDOWN(W$75/$F122,0)-SUM($AE122:AQ122)","v":63826},{"$f":"ROUNDDOWN(X$75/$F122,0)-SUM($AE122:AR122)","v":63826},{"$f":"ROUNDDOWN(Y$75/$F122,0)-SUM($AE122:AS122)","v":63826},{"$f":"ROUNDDOWN(Z$75/$F122,0)-SUM($AE122:AT122)","v":63826},{"$f":"ROUNDDOWN(AA$75/$F122,0)-SUM($AE122:AU122)","v":63826},{"$f":"ROUNDDOWN(AB$75/$F122,0)-SUM($AE122:AV122)","v":63826},{"$f":"ROUNDDOWN(AC$75/$F122,0)-SUM($AE122:AW122)","v":63826}]
[null,"B1","Filtros y Lubricantes (Eléctrico)","UND",1,1,{"$f":"G119*1.2","v":0.18959999999999999},"Aceites y filtros ",null,{"$f":"+AE123*$E123*$G123*(1+'Sup Generales'!C$10)","v":12391.843430399998},{"$f":"+AF123*$E123*$G123*(1+'Sup Generales'!D$10)","v":12590.112925286399},{"$f":"+AG123*$E123*$G123*(1+'Sup Generales'!E$10)","v":12917.455861343846},{"$f":"+AH123*$E123*$G123*(1+'Sup Generales'!F$10)","v":12973.259270664854},{"$f":"+AI123*$E123*$G123*(1+'Sup Generales'!G$10)","v":13008.287070695647},{"$f":"+AJ123*$E123*$G123*(1+'Sup Generales'!H$10)","v":13095.442594069307},{"$f":"+AK123*$E123*$G123*(1+'Sup Generales'!I$10)","v":13349.641504123436},{"$f":"+AL123*$E123*$G123*(1+'Sup Generales'!J$10)","v":13581.309931257105},{"$f":"+AM123*$E123*$G123*(1+'Sup Generales'!K$10)","v":13779.062557434878},{"$f":"+AN123*$E123*$G123*(1+'Sup Generales'!L$10)","v":13963.436405619323},{"$f":"+AO123*$E123*$G123*(1+'Sup Generales'!M$10)","v":14145.705549765556},{"$f":"+AP123*$E123*$G123*(1+'Sup Generales'!N$10)","v":14307.461412666506},{"$f":"+AQ123*$E123*$G123*(1+'Sup Generales'!O$10)","v":14483.791613743238},{"$f":"+AR123*$E123*$G123*(1+'Sup Generales'!P$10)","v":14679.719610328717},{"$f":"+AS123*$E123*$G123*(1+'Sup Generales'!Q$10)","v":14890.826036540948},{"$f":"+AT123*$E123*$G123*(1+'Sup Generales'!R$10)","v":15095.604941959959},{"$f":"+AU123*$E123*$G123*(1+'Sup Generales'!S$10)","v":15296.403384995003},{"$f":"+AV123*$E123*$G123*(1+'Sup Generales'!T$10)","v":15497.465796081275},{"$f":"+AW123*$E123*$G123*(1+'Sup Generales'!U$10)","v":15700.713298131799},{"$f":"+AX123*$E123*$G123*(1+'Sup Generales'!V$10)","v":15906.747205813828},null,63826,{"$f":"ROUNDDOWN(K$75/$F123,0)-SUM($AE123:AE123)","v":63826},{"$f":"ROUNDDOWN(L$75/$F123,0)-SUM($AE123:AF123)","v":63826},{"$f":"ROUNDDOWN(M$75/$F123,0)-SUM($AE123:AG123)","v":63826},{"$f":"ROUNDDOWN(N$75/$F123,0)-SUM($AE123:AH123)","v":63826},{"$f":"ROUNDDOWN(O$75/$F123,0)-SUM($AE123:AI123)","v":63826},{"$f":"ROUNDDOWN(P$75/$F123,0)-SUM($AE123:AJ123)","v":63826},{"$f":"ROUNDDOWN(Q$75/$F123,0)-SUM($AE123:AK123)","v":63826},{"$f":"ROUNDDOWN(R$75/$F123,0)-SUM($AE123:AL123)","v":63826},{"$f":"ROUNDDOWN(S$75/$F123,0)-SUM($AE123:AM123)","v":63826},{"$f":"ROUNDDOWN(T$75/$F123,0)-SUM($AE123:AN123)","v":63826},{"$f":"ROUNDDOWN(U$75/$F123,0)-SUM($AE123:AO123)","v":63826},{"$f":"ROUNDDOWN(V$75/$F123,0)-SUM($AE123:AP123)","v":63826},{"$f":"ROUNDDOWN(W$75/$F123,0)-SUM($AE123:AQ123)","v":63826},{"$f":"ROUNDDOWN(X$75/$F123,0)-SUM($AE123:AR123)","v":63826},{"$f":"ROUNDDOWN(Y$75/$F123,0)-SUM($AE123:AS123)","v":63826},{"$f":"ROUNDDOWN(Z$75/$F123,0)-SUM($AE123:AT123)","v":63826},{"$f":"ROUNDDOWN(AA$75/$F123,0)-SUM($AE123:AU123)","v":63826},{"$f":"ROUNDDOWN(AB$75/$F123,0)-SUM($AE123:AV123)","v":63826},{"$f":"ROUNDDOWN(AC$75/$F123,0)-SUM($AE123:AW123)","v":63826}]
[null,"B2","Mantenimiento Electrico (Eléctrico)","UND",1,1,{"$f":"G120*1.2","v":5.8799999999999998E-2},"Costo de mantenimiento eléctrico ",null,{"$f":"+AE124*$E124*$G124*(1+'Sup Generales'!C$10)","v":3843.0400512000001},{"$f":"+AF124*$E124*$G124*(1+'Sup Generales'!D$10)","v":3904.5286920192002},{"$f":"+AG124*$E124*$G124*(1+'Sup Generales'!E$10)","v":4006.0464380116991},{"$f":"+AH124*$E124*$G124*(1+'Sup Generales'!F$10)","v":4023.3525586239107},{"$f":"+AI124*$E124*$G124*(1+'Sup Generales'!G$10)","v":4034.2156105321947},{"$f":"+AJ124*$E124*$G124*(1+'Sup Generales'!H$10)","v":4061.2448551227603},{"$f":"+AK124*$E124*$G124*(1+'Sup Generales'!I$10)","v":4140.0786943167623},{"$f":"+AL124*$E124*$G124*(1+'Sup Generales'!J$10)","v":4211.9252318455583},{"$f":"+AM124*$E124*$G124*(1+'Sup Generales'!K$10)","v":4273.2535779386653},{"$f":"+AN124*$E124*$G124*(1+'Sup Generales'!L$10)","v":4330.4328093376389},{"$f":"+AO124*$E124*$G124*(1+'Sup Generales'!M$10)","v":4386.9593160665336},{"$f":"+AP124*$E124*$G124*(1+'Sup Generales'!N$10)","v":4437.124108991512},{"$f":"+AQ124*$E124*$G124*(1+'Sup Generales'!O$10)","v":4491.8087916039167},{"$f":"+AR124*$E124*$G124*(1+'Sup Generales'!P$10)","v":4552.5712715576401},{"$f":"+AS124*$E124*$G124*(1+'Sup Generales'!Q$10)","v":4618.0409860158643},{"$f":"+AT124*$E124*$G124*(1+'Sup Generales'!R$10)","v":4681.5483680761899},{"$f":"+AU124*$E124*$G124*(1+'Sup Generales'!S$10)","v":4743.8213029414892},{"$f":"+AV124*$E124*$G124*(1+'Sup Generales'!T$10)","v":4806.176101316345},{"$f":"+AW124*$E124*$G124*(1+'Sup Generales'!U$10)","v":4869.2085544839128},{"$f":"+AX124*$E124*$G124*(1+'Sup Generales'!V$10)","v":4933.1051461068209},null,63826,{"$f":"ROUNDDOWN(K$75/$F124,0)-SUM($AE124:AE124)","v":63826},{"$f":"ROUNDDOWN(L$75/$F124,0)-SUM($AE124:AF124)","v":63826},{"$f":"ROUNDDOWN(M$75/$F124,0)-SUM($AE124:AG124)","v":63826},{"$f":"ROUNDDOWN(N$75/$F124,0)-SUM($AE124:AH124)","v":63826},{"$f":"ROUNDDOWN(O$75/$F124,0)-SUM($AE124:AI124)","v":63826},{"$f":"ROUNDDOWN(P$75/$F124,0)-SUM($AE124:AJ124)","v":63826},{"$f":"ROUNDDOWN(Q$75/$F124,0)-SUM($AE124:AK124)","v":63826},{"$f":"ROUNDDOWN(R$75/$F124,0)-SUM($AE124:AL124)","v":63826},{"$f":"ROUNDDOWN(S$75/$F124,0)-SUM($AE124:AM124)","v":63826},{"$f":"ROUNDDOWN(T$75/$F124,0)-SUM($AE124:AN124)","v":63826},{"$f":"ROUNDDOWN(U$75/$F124,0)-SUM($AE124:AO124)","v":63826},{"$f":"ROUNDDOWN(V$75/$F124,0)-SUM($AE124:AP124)","v":63826},{"$f":"ROUNDDOWN(W$75/$F124,0)-SUM($AE124:AQ124)","v":63826},{"$f":"ROUNDDOWN(X$75/$F124,0)-SUM($AE124:AR124)","v":63826},{"$f":"ROUNDDOWN(Y$75/$F124,0)-SUM($AE124:AS124)","v":63826},{"$f":"ROUNDDOWN(Z$75/$F124,0)-SUM($AE124:AT124)","v":63826},{"$f":"ROUNDDOWN(AA$75/$F124,0)-SUM($AE124:AU124)","v":63826},{"$f":"ROUNDDOWN(AB$75/$F124,0)-SUM($AE124:AV124)","v":63826},{"$f":"ROUNDDOWN(AC$75/$F124,0)-SUM($AE124:AW124)","v":63826}]
[null,"B3","Manto. Chasis y Motor (Eléctrico)","UND",1,1,{"$f":"G121*1.2","v":0.11663999999999999},"Costo de mantenimiento mecánico",null,{"$f":"+AE125*$E125*$G125*(1+'Sup Generales'!C$10)","v":7623.3365913600001},{"$f":"+AF125*$E125*$G125*(1+'Sup Generales'!D$10)","v":7745.3099768217598},{"$f":"+AG125*$E125*$G125*(1+'Sup Generales'!E$10)","v":7946.6880362191259},{"$f":"+AH125*$E125*$G125*(1+'Sup Generales'!F$10)","v":7981.017728535594},{"$f":"+AI125*$E125*$G125*(1+'Sup Generales'!G$10)","v":8002.5664764026396},{"$f":"+AJ125*$E125*$G125*(1+'Sup Generales'!H$10)","v":8056.1836717945362},{"$f":"+AK125*$E125*$G125*(1+'Sup Generales'!I$10)","v":8212.5642670936595},{"$f":"+AL125*$E125*$G125*(1+'Sup Generales'!J$10)","v":8355.0843374569031},{"$f":"+AM125*$E125*$G125*(1+'Sup Generales'!K$10)","v":8476.7397505232293},{"$f":"+AN125*$E125*$G125*(1+'Sup Generales'!L$10)","v":8590.1646748493567},{"$f":"+AO125*$E125*$G125*(1+'Sup Generales'!M$10)","v":8702.2948065646342},{"$f":"+AP125*$E125*$G125*(1+'Sup Generales'!N$10)","v":8801.8053753872427},{"$f":"+AQ125*$E125*$G125*(1+'Sup Generales'!O$10)","v":8910.2819294673609},{"$f":"+AR125*$E125*$G125*(1+'Sup Generales'!P$10)","v":9030.8148488857678},{"$f":"+AS125*$E125*$G125*(1+'Sup Generales'!Q$10)","v":9160.6853845049391},{"$f":"+AT125*$E125*$G125*(1+'Sup Generales'!R$10)","v":9286.6632934082791},{"$f":"+AU125*$E125*$G125*(1+'Sup Generales'!S$10)","v":9410.1924621614835},{"$f":"+AV125*$E125*$G125*(1+'Sup Generales'!T$10)","v":9533.8840213867097},{"$f":"+AW125*$E125*$G125*(1+'Sup Generales'!U$10)","v":9658.919826445639},{"$f":"+AX125*$E125*$G125*(1+'Sup Generales'!V$10)","v":9785.6698000323049},null,63826,{"$f":"ROUNDDOWN(K$75/$F125,0)-SUM($AE125:AE125)","v":63826},{"$f":"ROUNDDOWN(L$75/$F125,0)-SUM($AE125:AF125)","v":63826},{"$f":"ROUNDDOWN(M$75/$F125,0)-SUM($AE125:AG125)","v":63826},{"$f":"ROUNDDOWN(N$75/$F125,0)-SUM($AE125:AH125)","v":63826},{"$f":"ROUNDDOWN(O$75/$F125,0)-SUM($AE125:AI125)","v":63826},{"$f":"ROUNDDOWN(P$75/$F125,0)-SUM($AE125:AJ125)","v":63826},{"$f":"ROUNDDOWN(Q$75/$F125,0)-SUM($AE125:AK125)","v":63826},{"$f":"ROUNDDOWN(R$75/$F125,0)-SUM($AE125:AL125)","v":63826},{"$f":"ROUNDDOWN(S$75/$F125,0)-SUM($AE125:AM125)","v":63826},{"$f":"ROUNDDOWN(T$75/$F125,0)-SUM($AE125:AN125)","v":63826},{"$f":"ROUNDDOWN(U$75/$F125,0)-SUM($AE125:AO125)","v":63826},{"$f":"ROUNDDOWN(V$75/$F125,0)-SUM($AE125:AP125)","v":63826},{"$f":"ROUNDDOWN(W$75/$F125,0)-SUM($AE125:AQ125)","v":63826},{"$f":"ROUNDDOWN(X$75/$F125,0)-SUM($AE125:AR125)","v":63826},{"$f":"ROUNDDOWN(Y$75/$F125,0)-SUM($AE125:AS125)","v":63826},{"$f":"ROUNDDOWN(Z$75/$F125,0)-SUM($AE125:AT125)","v":63826},{"$f":"ROUNDDOWN(AA$75/$F125,0)-SUM($AE125:AU125)","v":63826},{"$f":"ROUNDDOWN(AB$75/$F125,0)-SUM($AE125:AV125)","v":63826},{"$f":"ROUNDDOWN(AC$75/$F125,0)-SUM($AE125:AW125)","v":63826}]
[null,"B4","Manto. Carroceria (Eléctrico)","UND",1,1,1.2960000000000001E-2,"Carrocería ",null,{"$f":"+AE126*$E126*$G126*(1+'Sup Generales'!C$10)","v":847.03739904000008},{"$f":"+AF126*$E126*$G126*(1+'Sup Generales'!D$10)","v":860.58999742464005},{"$f":"+AG126*$E126*$G126*(1+'Sup Generales'!E$10)","v":882.96533735768071},{"$f":"+AH126*$E126*$G126*(1+'Sup Generales'!F$10)","v":886.77974761506607},{"$f":"+AI126*$E126*$G126*(1+'Sup Generales'!G$10)","v":889.17405293362663},{"$f":"+AJ126*$E126*$G126*(1+'Sup Generales'!H$10)","v":895.13151908828183},{"$f":"+AK126*$E126*$G126*(1+'Sup Generales'!I$10)","v":912.50714078818442},{"$f":"+AL126*$E126*$G126*(1+'Sup Generales'!J$10)","v":928.34270416187826},{"$f":"+AM126*$E126*$G126*(1+'Sup Generales'!K$10)","v":941.85997228035887},{"$f":"+AN126*$E126*$G126*(1+'Sup Generales'!L$10)","v":954.46274164992849},{"$f":"+AO126*$E126*$G126*(1+'Sup Generales'!M$10)","v":966.92164517384833},{"$f":"+AP126*$E126*$G126*(1+'Sup Generales'!N$10)","v":977.97837504302709},{"$f":"+AQ126*$E126*$G126*(1+'Sup Generales'!O$10)","v":990.03132549637348},{"$f":"+AR126*$E126*$G126*(1+'Sup Generales'!P$10)","v":1003.4238720984188},{"$f":"+AS126*$E126*$G126*(1+'Sup Generales'!Q$10)","v":1017.8539316116598},{"$f":"+AT126*$E126*$G126*(1+'Sup Generales'!R$10)","v":1031.8514770453644},{"$f":"+AU126*$E126*$G126*(1+'Sup Generales'!S$10)","v":1045.576940240165},{"$f":"+AV126*$E126*$G126*(1+'Sup Generales'!T$10)","v":1059.3204468207455},{"$f":"+AW126*$E126*$G126*(1+'Sup Generales'!U$10)","v":1073.2133140495155},{"$f":"+AX126*$E126*$G126*(1+'Sup Generales'!V$10)","v":1087.2966444480339},null,63826,{"$f":"ROUNDDOWN(K$75/$F126,0)-SUM($AE126:AE126)","v":63826},{"$f":"ROUNDDOWN(L$75/$F126,0)-SUM($AE126:AF126)","v":63826},{"$f":"ROUNDDOWN(M$75/$F126,0)-SUM($AE126:AG126)","v":63826},{"$f":"ROUNDDOWN(N$75/$F126,0)-SUM($AE126:AH126)","v":63826},{"$f":"ROUNDDOWN(O$75/$F126,0)-SUM($AE126:AI126)","v":63826},{"$f":"ROUNDDOWN(P$75/$F126,0)-SUM($AE126:AJ126)","v":63826},{"$f":"ROUNDDOWN(Q$75/$F126,0)-SUM($AE126:AK126)","v":63826},{"$f":"ROUNDDOWN(R$75/$F126,0)-SUM($AE126:AL126)","v":63826},{"$f":"ROUNDDOWN(S$75/$F126,0)-SUM($AE126:AM126)","v":63826},{"$f":"ROUNDDOWN(T$75/$F126,0)-SUM($AE126:AN126)","v":63826},{"$f":"ROUNDDOWN(U$75/$F126,0)-SUM($AE126:AO126)","v":63826},{"$f":"ROUNDDOWN(V$75/$F126,0)-SUM($AE126:AP126)","v":63826},{"$f":"ROUNDDOWN(W$75/$F126,0)-SUM($AE126:AQ126)","v":63826},{"$f":"ROUNDDOWN(X$75/$F126,0)-SUM($AE126:AR126)","v":63826},{"$f":"ROUNDDOWN(Y$75/$F126,0)-SUM($AE126:AS126)","v":63826},{"$f":"ROUNDDOWN(Z$75/$F126,0)-SUM($AE126:AT126)","v":63826},{"$f":"ROUNDDOWN(AA$75/$F126,0)-SUM($AE126:AU126)","v":63826},{"$f":"ROUNDDOWN(AB$75/$F126,0)-SUM($AE126:AV126)","v":63826},{"$f":"ROUNDDOWN(AC$75/$F126,0)-SUM($AE126:AW126)","v":63826}]
[null,"C1","Filtros y Lubricantes (Gas)","UND",1,1,0.158,"Aceites y filtros ",null,{"$f":"+AE127*$E127*$G127*(1+'Sup Generales'!C$10)","v":10326.536192},{"$f":"+AF127*$E127*$G127*(1+'Sup Generales'!D$10)","v":10491.760771072},{"$f":"+AG127*$E127*$G127*(1+'Sup Generales'!E$10)","v":10764.546551119873},{"$f":"+AH127*$E127*$G127*(1+'Sup Generales'!F$10)","v":10811.049392220712},{"$f":"+AI127*$E127*$G127*(1+'Sup Generales'!G$10)","v":10840.239225579708},{"$f":"+AJ127*$E127*$G127*(1+'Sup Generales'!H$10)","v":10912.868828391091},{"$f":"+AK127*$E127*$G127*(1+'Sup Generales'!I$10)","v":11124.701253436198},{"$f":"+AL127*$E127*$G127*(1+'Sup Generales'!J$10)","v":11317.758276047589},{"$f":"+AM127*$E127*$G127*(1+'Sup Generales'!K$10)","v":11482.552131195733},{"$f":"+AN127*$E127*$G127*(1+'Sup Generales'!L$10)","v":11636.19700468277},{"$f":"+AO127*$E127*$G127*(1+'Sup Generales'!M$10)","v":11788.087958137965},{"$f":"+AP127*$E127*$G127*(1+'Sup Generales'!N$10)","v":11922.884510555423},{"$f":"+AQ127*$E127*$G127*(1+'Sup Generales'!O$10)","v":12069.826344786034},{"$f":"+AR127*$E127*$G127*(1+'Sup Generales'!P$10)","v":12233.099675273932},{"$f":"+AS127*$E127*$G127*(1+'Sup Generales'!Q$10)","v":12409.021697117458},{"$f":"+AT127*$E127*$G127*(1+'Sup Generales'!R$10)","v":12579.670784966633},{"$f":"+AU127*$E127*$G127*(1+'Sup Generales'!S$10)","v":12747.00282082917},{"$f":"+AV127*$E127*$G127*(1+'Sup Generales'!T$10)","v":12914.554830067729},{"$f":"+AW127*$E127*$G127*(1+'Sup Generales'!U$10)","v":13083.927748443166},{"$f":"+AX127*$E127*$G127*(1+'Sup Generales'!V$10)","v":13255.622671511524},null,63826,{"$f":"ROUNDDOWN(K$75/$F127,0)-SUM($AE127:AE127)","v":63826},{"$f":"ROUNDDOWN(L$75/$F127,0)-SUM($AE127:AF127)","v":63826},{"$f":"ROUNDDOWN(M$75/$F127,0)-SUM($AE127:AG127)","v":63826},{"$f":"ROUNDDOWN(N$75/$F127,0)-SUM($AE127:AH127)","v":63826},{"$f":"ROUNDDOWN(O$75/$F127,0)-SUM($AE127:AI127)","v":63826},{"$f":"ROUNDDOWN(P$75/$F127,0)-SUM($AE127:AJ127)","v":63826},{"$f":"ROUNDDOWN(Q$75/$F127,0)-SUM($AE127:AK127)","v":63826},{"$f":"ROUNDDOWN(R$75/$F127,0)-SUM($AE127:AL127)","v":63826},{"$f":"ROUNDDOWN(S$75/$F127,0)-SUM($AE127:AM127)","v":63826},{"$f":"ROUNDDOWN(T$75/$F127,0)-SUM($AE127:AN127)","v":63826},{"$f":"ROUNDDOWN(U$75/$F127,0)-SUM($AE127:AO127)","v":63826},{"$f":"ROUNDDOWN(V$75/$F127,0)-SUM($AE127:AP127)","v":63826},{"$f":"ROUNDDOWN(W$75/$F127,0)-SUM($AE127:AQ127)","v":63826},{"$f":"ROUNDDOWN(X$75/$F127,0)-SUM($AE127:AR127)","v":63826},{"$f":"ROUNDDOWN(Y$75/$F127,0)-SUM($AE127:AS127)","v":63826},{"$f":"ROUNDDOWN(Z$75/$F127,0)-SUM($AE127:AT127)","v":63826},{"$f":"ROUNDDOWN(AA$75/$F127,0)-SUM($AE127:AU127)","v":63826},{"$f":"ROUNDDOWN(AB$75/$F127,0)-SUM($AE127:AV127)","v":63826},{"$f":"ROUNDDOWN(AC$75/$F127,0)-SUM($AE127:AW127)","v":63826}]
[null,"C2","Mantenimiento Electrico (Gas)","UND",1,1,4.9000000000000002E-2,"Costo de mantenimiento eléctrico ",null,{"$f":"+AE128*$E128*$G128*(1+'Sup Generales'!C$10)","v":3202.5333760000003},{"$f":"+AF128*$E128*$G128*(1+'Sup Generales'!D$10)","v":3253.7739100160002},{"$f":"+AG128*$E128*$G128*(1+'Sup Generales'!E$10)","v":3338.3720316764161},{"$f":"+AH128*$E128*$G128*(1+'Sup Generales'!F$10)","v":3352.793798853259},{"$f":"+AI128*$E128*$G128*(1+'Sup Generales'!G$10)","v":3361.8463421101624},{"$f":"+AJ128*$E128*$G128*(1+'Sup Generales'!H$10)","v":3384.3707126023005},{"$f":"+AK128*$E128*$G128*(1+'Sup Generales'!I$10)","v":3450.0655785973022},{"$f":"+AL128*$E128*$G128*(1+'Sup Generales'!J$10)","v":3509.9376932046321},{"$f":"+AM128*$E128*$G128*(1+'Sup Generales'!K$10)","v":3561.0446482822208},{"$f":"+AN128*$E128*$G128*(1+'Sup Generales'!L$10)","v":3608.6940077813656},{"$f":"+AO128*$E128*$G128*(1+'Sup Generales'!M$10)","v":3655.7994300554451},{"$f":"+AP128*$E128*$G128*(1+'Sup Generales'!N$10)","v":3697.603424159593},{"$f":"+AQ128*$E128*$G128*(1+'Sup Generales'!O$10)","v":3743.1739930032636},{"$f":"+AR128*$E128*$G128*(1+'Sup Generales'!P$10)","v":3793.8093929647002},{"$f":"+AS128*$E128*$G128*(1+'Sup Generales'!Q$10)","v":3848.3674883465537},{"$f":"+AT128*$E128*$G128*(1+'Sup Generales'!R$10)","v":3901.2903067301586},{"$f":"+AU128*$E128*$G128*(1+'Sup Generales'!S$10)","v":3953.1844191179075},{"$f":"+AV128*$E128*$G128*(1+'Sup Generales'!T$10)","v":4005.1467510969546},{"$f":"+AW128*$E128*$G128*(1+'Sup Generales'!U$10)","v":4057.673795403261},{"$f":"+AX128*$E128*$G128*(1+'Sup Generales'!V$10)","v":4110.9209550890173},null,63826,{"$f":"ROUNDDOWN(K$75/$F128,0)-SUM($AE128:AE128)","v":63826},{"$f":"ROUNDDOWN(L$75/$F128,0)-SUM($AE128:AF128)","v":63826},{"$f":"ROUNDDOWN(M$75/$F128,0)-SUM($AE128:AG128)","v":63826},{"$f":"ROUNDDOWN(N$75/$F128,0)-SUM($AE128:AH128)","v":63826},{"$f":"ROUNDDOWN(O$75/$F128,0)-SUM($AE128:AI128)","v":63826},{"$f":"ROUNDDOWN(P$75/$F128,0)-SUM($AE128:AJ128)","v":63826},{"$f":"ROUNDDOWN(Q$75/$F128,0)-SUM($AE128:AK128)","v":63826},{"$f":"ROUNDDOWN(R$75/$F128,0)-SUM($AE128:AL128)","v":63826},{"$f":"ROUNDDOWN(S$75/$F128,0)-SUM($AE128:AM128)","v":63826},{"$f":"ROUNDDOWN(T$75/$F128,0)-SUM($AE128:AN128)","v":63826},{"$f":"ROUNDDOWN(U$75/$F128,0)-SUM($AE128:AO128)","v":63826},{"$f":"ROUNDDOWN(V$75/$F128,0)-SUM($AE128:AP128)","v":63826},{"$f":"ROUNDDOWN(W$75/$F128,0)-SUM($AE128:AQ128)","v":63826},{"$f":"ROUNDDOWN(X$75/$F128,0)-SUM($AE128:AR128)","v":63826},{"$f":"ROUNDDOWN(Y$75/$F128,0)-SUM($AE128:AS128)","v":63826},{"$f":"ROUNDDOWN(Z$75/$F128,0)-SUM($AE128:AT128)","v":63826},{"$f":"ROUNDDOWN(AA$75/$F128,0)-SUM($AE128:AU128)","v":63826},{"$f":"ROUNDDOWN(AB$75/$F128,0)-SUM($AE128:AV128)","v":63826},{"$f":"ROUNDDOWN(AC$75/$F128,0)-SUM($AE128:AW128)","v":63826}]
[null,"C3","Manto. Chasis y Motor (Gas)","UND",1,1,9.7199999999999995E-2,"Costo de mantenimiento mecánico",null,{"$f":"+AE129*$E129*$G129*(1+'Sup Generales'!C$10)","v":6352.7804927999996},{"$f":"+AF129*$E129*$G129*(1+'Sup Generales'!D$10)","v":6454.4249806847993},{"$f":"+AG129*$E129*$G129*(1+'Sup Generales'!E$10)","v":6622.2400301826037},{"$f":"+AH129*$E129*$G129*(1+'Sup Generales'!F$10)","v":6650.8481071129936},{"$f":"+AI129*$E129*$G129*(1+'Sup Generales'!G$10)","v":6668.8053970021983},{"$f":"+AJ129*$E129*$G129*(1+'Sup Generales'!H$10)","v":6713.486393162113},{"$f":"+AK129*$E129*$G129*(1+'Sup Generales'!I$10)","v":6843.8035559113814},{"$f":"+AL129*$E129*$G129*(1+'Sup Generales'!J$10)","v":6962.5702812140853},{"$f":"+AM129*$E129*$G129*(1+'Sup Generales'!K$10)","v":7063.9497921026905},{"$f":"+AN129*$E129*$G129*(1+'Sup Generales'!L$10)","v":7158.4705623744621},{"$f":"+AO129*$E129*$G129*(1+'Sup Generales'!M$10)","v":7251.9123388038615},{"$f":"+AP129*$E129*$G129*(1+'Sup Generales'!N$10)","v":7334.8378128227023},{"$f":"+AQ129*$E129*$G129*(1+'Sup Generales'!O$10)","v":7425.2349412227995},{"$f":"+AR129*$E129*$G129*(1+'Sup Generales'!P$10)","v":7525.6790407381395},{"$f":"+AS129*$E129*$G129*(1+'Sup Generales'!Q$10)","v":7633.9044870874477},{"$f":"+AT129*$E129*$G129*(1+'Sup Generales'!R$10)","v":7738.8860778402313},{"$f":"+AU129*$E129*$G129*(1+'Sup Generales'!S$10)","v":7841.8270518012359},{"$f":"+AV129*$E129*$G129*(1+'Sup Generales'!T$10)","v":7944.9033511555899},{"$f":"+AW129*$E129*$G129*(1+'Sup Generales'!U$10)","v":8049.0998553713653},{"$f":"+AX129*$E129*$G129*(1+'Sup Generales'!V$10)","v":8154.7248333602538},null,63826,{"$f":"ROUNDDOWN(K$75/$F129,0)-SUM($AE129:AE129)","v":63826},{"$f":"ROUNDDOWN(L$75/$F129,0)-SUM($AE129:AF129)","v":63826},{"$f":"ROUNDDOWN(M$75/$F129,0)-SUM($AE129:AG129)","v":63826},{"$f":"ROUNDDOWN(N$75/$F129,0)-SUM($AE129:AH129)","v":63826},{"$f":"ROUNDDOWN(O$75/$F129,0)-SUM($AE129:AI129)","v":63826},{"$f":"ROUNDDOWN(P$75/$F129,0)-SUM($AE129:AJ129)","v":63826},{"$f":"ROUNDDOWN(Q$75/$F129,0)-SUM($AE129:AK129)","v":63826},{"$f":"ROUNDDOWN(R$75/$F129,0)-SUM($AE129:AL129)","v":63826},{"$f":"ROUNDDOWN(S$75/$F129,0)-SUM($AE129:AM129)","v":63826},{"$f":"ROUNDDOWN(T$75/$F129,0)-SUM($AE129:AN129)","v":63826},{"$f":"ROUNDDOWN(U$75/$F129,0)-SUM($AE129:AO129)","v":63826},{"$f":"ROUNDDOWN(V$75/$F129,0)-SUM($AE129:AP129)","v":63826},{"$f":"ROUNDDOWN(W$75/$F129,0)-SUM($AE129:AQ129)","v":63826},{"$f":"ROUNDDOWN(X$75/$F129,0)-SUM($AE129:AR129)","v":63826},{"$f":"ROUNDDOWN(Y$75/$F129,0)-SUM($AE129:AS129)","v":63826},{"$f":"ROUNDDOWN(Z$75/$F129,0)-SUM($AE129:AT129)","v":63826},{"$f":"ROUNDDOWN(AA$75/$F129,0)-SUM($AE129:AU129)","v":63826},{"$f":"ROUNDDOWN(AB$75/$F129,0)-SUM($AE129:AV129)","v":63826},{"$f":"ROUNDDOWN(AC$75/$F129,0)-SUM($AE129:AW129)","v":63826}]
[null,"C4","Manto. Carroceria (Gas)","UND",1,1,1.0800000000000001E-2,"Carrocería ",null,{"$f":"+AE130*$E130*$G130*(1+'Sup Generales'!C$10)","v":705.86449920000007},{"$f":"+AF130*$E130*$G130*(1+'Sup Generales'!D$10)","v":717.15833118720002},{"$f":"+AG130*$E130*$G130*(1+'Sup Generales'!E$10)","v":735.80444779806726},{"$f":"+AH130*$E130*$G130*(1+'Sup Generales'!F$10)","v":738.9831230125551},{"$f":"+AI130*$E130*$G130*(1+'Sup Generales'!G$10)","v":740.97837744468893},{"$f":"+AJ130*$E130*$G130*(1+'Sup Generales'!H$10)","v":745.94293257356833},{"$f":"+AK130*$E130*$G130*(1+'Sup Generales'!I$10)","v":760.42261732348697},{"$f":"+AL130*$E130*$G130*(1+'Sup Generales'!J$10)","v":773.61892013489853},{"$f":"+AM130*$E130*$G130*(1+'Sup Generales'!K$10)","v":784.88331023363241},{"$f":"+AN130*$E130*$G130*(1+'Sup Generales'!L$10)","v":795.38561804160713},{"$f":"+AO130*$E130*$G130*(1+'Sup Generales'!M$10)","v":805.76803764487363},{"$f":"+AP130*$E130*$G130*(1+'Sup Generales'!N$10)","v":814.98197920252267},{"$f":"+AQ130*$E130*$G130*(1+'Sup Generales'!O$10)","v":825.02610458031131},{"$f":"+AR130*$E130*$G130*(1+'Sup Generales'!P$10)","v":836.18656008201572},{"$f":"+AS130*$E130*$G130*(1+'Sup Generales'!Q$10)","v":848.21160967638332},{"$f":"+AT130*$E130*$G130*(1+'Sup Generales'!R$10)","v":859.87623087113707},{"$f":"+AU130*$E130*$G130*(1+'Sup Generales'!S$10)","v":871.31411686680417},{"$f":"+AV130*$E130*$G130*(1+'Sup Generales'!T$10)","v":882.76703901728797},{"$f":"+AW130*$E130*$G130*(1+'Sup Generales'!U$10)","v":894.3444283745963},{"$f":"+AX130*$E130*$G130*(1+'Sup Generales'!V$10)","v":906.08053704002839},null,63826,{"$f":"ROUNDDOWN(K$75/$F130,0)-SUM($AE130:AE130)","v":63826},{"$f":"ROUNDDOWN(L$75/$F130,0)-SUM($AE130:AF130)","v":63826},{"$f":"ROUNDDOWN(M$75/$F130,0)-SUM($AE130:AG130)","v":63826},{"$f":"ROUNDDOWN(N$75/$F130,0)-SUM($AE130:AH130)","v":63826},{"$f":"ROUNDDOWN(O$75/$F130,0)-SUM($AE130:AI130)","v":63826},{"$f":"ROUNDDOWN(P$75/$F130,0)-SUM($AE130:AJ130)","v":63826},{"$f":"ROUNDDOWN(Q$75/$F130,0)-SUM($AE130:AK130)","v":63826},{"$f":"ROUNDDOWN(R$75/$F130,0)-SUM($AE130:AL130)","v":63826},{"$f":"ROUNDDOWN(S$75/$F130,0)-SUM($AE130:AM130)","v":63826},{"$f":"ROUNDDOWN(T$75/$F130,0)-SUM($AE130:AN130)","v":63826},{"$f":"ROUNDDOWN(U$75/$F130,0)-SUM($AE130:AO130)","v":63826},{"$f":"ROUNDDOWN(V$75/$F130,0)-SUM($AE130:AP130)","v":63826},{"$f":"ROUNDDOWN(W$75/$F130,0)-SUM($AE130:AQ130)","v":63826},{"$f":"ROUNDDOWN(X$75/$F130,0)-SUM($AE130:AR130)","v":63826},{"$f":"ROUNDDOWN(Y$75/$F130,0)-SUM($AE130:AS130)","v":63826},{"$f":"ROUNDDOWN(Z$75/$F130,0)-SUM($AE130:AT130)","v":63826},{"$f":"ROUNDDOWN(AA$75/$F130,0)-SUM($AE130:AU130)","v":63826},{"$f":"ROUNDDOWN(AB$75/$F130,0)-SUM($AE130:AV130)","v":63826},{"$f":"ROUNDDOWN(AC$75/$F130,0)-SUM($AE130:AW130)","v":63826}]
[]
[null,null,null,null,null,null,null,"Total ",null,{"$f":"IF('Sup fijo'!$C$91='Sup fijo'!$AR$2,SUM(J78:J117),0)+IF('Sup fijo'!$C$91='Sup fijo'!$AS$2,SUM(J119:J122),0)+IF('Sup fijo'!$C$91='Sup fijo'!$AT$2,SUM(J123:J126),0)+IF('Sup fijo'!$C$91='Sup fijo'!$AU$2,SUM(J127:J130),0)+IF($L$1=$D$6,J118,0)","v":13830.80735695238},{"$f":"IF('Sup fijo'!$C$91='Sup fijo'!$AR$2,SUM(K78:K117),0)+IF('Sup fijo'!$C$91='Sup fijo'!$AS$2,SUM(K119:K122),0)+IF('Sup fijo'!$C$91='Sup fijo'!$AT$2,SUM(K123:K126),0)+IF('Sup fijo'!$C$91='Sup fijo'!$AU$2,SUM(K127:K130),0)+IF($L$1=$D$6,K118,0)","v":18775.597487640382},{"$f":"IF('Sup fijo'!$C$91='Sup fijo'!$AR$2,SUM(L78:L117),0)+IF('Sup fijo'!$C$91='Sup fijo'!$AS$2,SUM(L119:L122),0)+IF('Sup fijo'!$C$91='Sup fijo'!$AT$2,SUM(L123:L126),0)+IF('Sup fijo'!$C$91='Sup fijo'!$AU$2,SUM(L127:L130),0)+IF($L$1=$D$6,L118,0)","v":20737.319624041622},{"$f":"IF('Sup fijo'!$C$91='Sup fijo'!$AR$2,SUM(M78:M117),0)+IF('Sup fijo'!$C$91='Sup fijo'!$AS$2,SUM(M119:M122),0)+IF('Sup fijo'!$C$91='Sup fijo'!$AT$2,SUM(M123:M126),0)+IF('Sup fijo'!$C$91='Sup fijo'!$AU$2,SUM(M127:M130),0)+IF($L$1=$D$6,M118,0)","v":25404.994681263463},{"$f":"IF('Sup fijo'!$C$91='Sup fijo'!$AR$2,SUM(N78:N117),0)+IF('Sup fijo'!$C$91='Sup fijo'!$AS$2,SUM(N119:N122),0)+IF('Sup fijo'!$C$91='Sup fijo'!$AT$2,SUM(N123:N126),0)+IF('Sup fijo'!$C$91='Sup fijo'!$AU$2,SUM(N127:N130),0)+IF($L$1=$D$6,N118,0)","v":14974.586565626356},{"$f":"IF('Sup fijo'!$C$91='Sup fijo'!$AR$2,SUM(O78:O117),0)+IF('Sup fijo'!$C$91='Sup fijo'!$AS$2,SUM(O119:O122),0)+IF('Sup fijo'!$C$91='Sup fijo'!$AT$2,SUM(O123:O126),0)+IF('Sup fijo'!$C$91='Sup fijo'!$AU$2,SUM(O127:O130),0)+IF($L$1=$D$6,O118,0)","v":25298.692455254772},{"$f":"IF('Sup fijo'!$C$91='Sup fijo'!$AR$2,SUM(P78:P117),0)+IF('Sup fijo'!$C$91='Sup fijo'!$AS$2,SUM(P119:P122),0)+IF('Sup fijo'!$C$91='Sup fijo'!$AT$2,SUM(P123:P126),0)+IF('Sup fijo'!$C$91='Sup fijo'!$AU$2,SUM(P127:P130),0)+IF($L$1=$D$6,P118,0)","v":15245.490554923532},{"$f":"IF('Sup fijo'!$C$91='Sup fijo'!$AR$2,SUM(Q78:Q117),0)+IF('Sup fijo'!$C$91='Sup fijo'!$AS$2,SUM(Q119:Q122),0)+IF('Sup fijo'!$C$91='Sup fijo'!$AT$2,SUM(Q123:Q126),0)+IF('Sup fijo'!$C$91='Sup fijo'!$AU$2,SUM(Q127:Q130),0)+IF($L$1=$D$6,Q118,0)","v":32817.076893867044},{"$f":"IF('Sup fijo'!$C$91='Sup fijo'!$AR$2,SUM(R78:R117),0)+IF('Sup fijo'!$C$91='Sup fijo'!$AS$2,SUM(R119:R122),0)+IF('Sup fijo'!$C$91='Sup fijo'!$AT$2,SUM(R123:R126),0)+IF('Sup fijo'!$C$91='Sup fijo'!$AU$2,SUM(R127:R130),0)+IF($L$1=$D$6,R118,0)","v":17019.00045433145},{"$f":"IF('Sup fijo'!$C$91='Sup fijo'!$AR$2,SUM(S78:S117),0)+IF('Sup fijo'!$C$91='Sup fijo'!$AS$2,SUM(S119:S122),0)+IF('Sup fijo'!$C$91='Sup fijo'!$AT$2,SUM(S123:S126),0)+IF('Sup fijo'!$C$91='Sup fijo'!$AU$2,SUM(S127:S130),0)+IF($L$1=$D$6,S118,0)","v":25925.114458210996},{"$f":"IF('Sup fijo'!$C$91='Sup fijo'!$AR$2,SUM(T78:T117),0)+IF('Sup fijo'!$C$91='Sup fijo'!$AS$2,SUM(T119:T122),0)+IF('Sup fijo'!$C$91='Sup fijo'!$AT$2,SUM(T123:T126),0)+IF('Sup fijo'!$C$91='Sup fijo'!$AU$2,SUM(T127:T130),0)+IF($L$1=$D$6,T118,0)","v":20852.666611206423},{"$f":"IF('Sup fijo'!$C$91='Sup fijo'!$AR$2,SUM(U78:U117),0)+IF('Sup fijo'!$C$91='Sup fijo'!$AS$2,SUM(U119:U122),0)+IF('Sup fijo'!$C$91='Sup fijo'!$AT$2,SUM(U123:U126),0)+IF('Sup fijo'!$C$91='Sup fijo'!$AU$2,SUM(U127:U130),0)+IF($L$1=$D$6,U118,0)","v":30070.677541928635},{"$f":"IF('Sup fijo'!$C$91='Sup fijo'!$AR$2,SUM(V78:V117),0)+IF('Sup fijo'!$C$91='Sup fijo'!$AS$2,SUM(V119:V122),0)+IF('Sup fijo'!$C$91='Sup fijo'!$AT$2,SUM(V123:V126),0)+IF('Sup fijo'!$C$91='Sup fijo'!$AU$2,SUM(V127:V130),0)+IF($L$1=$D$6,V118,0)","v":16318.612268588},{"$f":"IF('Sup fijo'!$C$91='Sup fijo'!$AR$2,SUM(W78:W117),0)+IF('Sup fijo'!$C$91='Sup fijo'!$AS$2,SUM(W119:W122),0)+IF('Sup fijo'!$C$91='Sup fijo'!$AT$2,SUM(W123:W126),0)+IF('Sup fijo'!$C$91='Sup fijo'!$AU$2,SUM(W127:W130),0)+IF($L$1=$D$6,W118,0)","v":26432.380151439749},{"$f":"IF('Sup fijo'!$C$91='Sup fijo'!$AR$2,SUM(X78:X117),0)+IF('Sup fijo'!$C$91='Sup fijo'!$AS$2,SUM(X119:X122),0)+IF('Sup fijo'!$C$91='Sup fijo'!$AT$2,SUM(X123:X126),0)+IF('Sup fijo'!$C$91='Sup fijo'!$AU$2,SUM(X127:X130),0)+IF($L$1=$D$6,X118,0)","v":19142.223296251843},{"$f":"IF('Sup fijo'!$C$91='Sup fijo'!$AR$2,SUM(Y78:Y117),0)+IF('Sup fijo'!$C$91='Sup fijo'!$AS$2,SUM(Y119:Y122),0)+IF('Sup fijo'!$C$91='Sup fijo'!$AT$2,SUM(Y123:Y126),0)+IF('Sup fijo'!$C$91='Sup fijo'!$AU$2,SUM(Y127:Y130),0)+IF($L$1=$D$6,Y118,0)","v":39384.25962972689},{"$f":"IF('Sup fijo'!$C$91='Sup fijo'!$AR$2,SUM(Z78:Z117),0)+IF('Sup fijo'!$C$91='Sup fijo'!$AS$2,SUM(Z119:Z122),0)+IF('Sup fijo'!$C$91='Sup fijo'!$AT$2,SUM(Z123:Z126),0)+IF('Sup fijo'!$C$91='Sup fijo'!$AU$2,SUM(Z127:Z130),0)+IF($L$1=$D$6,Z118,0)","v":24844.837043724932},{"$f":"IF('Sup fijo'!$C$91='Sup fijo'!$AR$2,SUM(AA78:AA117),0)+IF('Sup fijo'!$C$91='Sup fijo'!$AS$2,SUM(AA119:AA122),0)+IF('Sup fijo'!$C$91='Sup fijo'!$AT$2,SUM(AA123:AA126),0)+IF('Sup fijo'!$C$91='Sup fijo'!$AU$2,SUM(AA127:AA130),0)+IF($L$1=$D$6,AA118,0)","v":17297.060372852044},{"$f":"IF('Sup fijo'!$C$91='Sup fijo'!$AR$2,SUM(AB78:AB117),0)+IF('Sup fijo'!$C$91='Sup fijo'!$AS$2,SUM(AB119:AB122),0)+IF('Sup fijo'!$C$91='Sup fijo'!$AT$2,SUM(AB123:AB126),0)+IF('Sup fijo'!$C$91='Sup fijo'!$AU$2,SUM(AB127:AB130),0)+IF($L$1=$D$6,AB118,0)","v":41637.740726423879},{"$f":"IF('Sup fijo'!$C$91='Sup fijo'!$AR$2,SUM(AC78:AC117),0)+IF('Sup fijo'!$C$91='Sup fijo'!$AS$2,SUM(AC119:AC122),0)+IF('Sup fijo'!$C$91='Sup fijo'!$AT$2,SUM(AC123:AC126),0)+IF('Sup fijo'!$C$91='Sup fijo'!$AU$2,SUM(AC127:AC130),0)+IF($L$1=$D$6,AC118,0)","v":20091.714545138024}]
[null,null,null,null,null,null,null,"Costo por km",null,{"$f":"+J132/J74","v":0.21669550585893491},{"$f":"+K132/K74","v":0.29416848130292322},0.32490395174445552,0.39803520009499982,0.23461577673089892,0.39636969973450897,0.23886019106513851,0.51416471177681577,0.26664682816299701,0.40618422677609428,0.32671116177116566,0.47113523551418907,0.2556734288313226,0.41413186086296722,0.29991262645711531,0.61705667956204191,0.38925887637835566,0.27100335870729864,0.6523633116037959,0.31478887201356848]
[]
[]
[]
[null,null,{"$f":"'Sup fijo'!B22","v":"Intracantonal Combinado"},null,null,null,null,"Mes operación",null,12,12,12,12,12,12,12,12,12,12,12,12,12,12,12,12,12,12,12,12]
[null,null,null,null,null,null,null,"Operación",null,{"$f":"'Sup fijo'!E25","v":112518.00000000003},{"$f":"'Sup fijo'!F25","v":112518.00000000003},{"$f":"'Sup fijo'!G25","v":112518.00000000003},{"$f":"'Sup fijo'!H25","v":112518.00000000003},{"$f":"'Sup fijo'!I25","v":112518.00000000003},{"$f":"'Sup fijo'!J25","v":112518.00000000003},{"$f":"'Sup fijo'!K25","v":112518.00000000003},{"$f":"'Sup fijo'!L25","v":112518.00000000003},{"$f":"'Sup fijo'!M25","v":112518.00000000003},{"$f":"'Sup fijo'!N25","v":112518.00000000003},{"$f":"'Sup fijo'!O25","v":112518.00000000003},{"$f":"'Sup fijo'!P25","v":112518.00000000003},{"$f":"'Sup fijo'!Q25","v":112518.00000000003},{"$f":"'Sup fijo'!R25","v":112518.00000000003},{"$f":"'Sup fijo'!S25","v":112518.00000000003},{"$f":"'Sup fijo'!T25","v":112518.00000000003},{"$f":"'Sup fijo'!U25","v":112518.00000000003},{"$f":"'Sup fijo'!V25","v":112518.00000000003},{"$f":"'Sup fijo'!W25","v":112518.00000000003},{"$f":"'Sup fijo'!X25","v":112518.00000000003}]
[null,null,null,null,null,null,null,"Operación acumulada ",null,{"$f":"+J138","v":112518.00000000003},{"$f":"+J139+K138","v":225036.00000000006},337554.00000000012,450072.00000000012,562590.00000000012,675108.00000000012,787626.00000000012,900144.00000000012,1012662.0000000001,1125180.0000000002,1237698.0000000002,1350216.0000000002,1462734.0000000002,1575252.0000000002,1687770.0000000002,1800288.0000000002,1912806.0000000002,2025324.0000000002,2137842.0000000005,2250360.0000000005,null,"Frecuencia de ejecución labores de mantenimiento "]
[]
[null,"#","Detalle ","Unidades","Cantidad","Intervalo Km ","Precio (sin IVA)","Area",null,1,{"$f":"J141+1","v":2},3,4,5,6,7,8,9,10,11,12,13,14,15,16,17,18,19,20,null,{"$f":"+AE77","v":1},{"$f":"+AF77","v":2},3,4,5,6,7,8,9,10,11,12,13,14,15,16,17,18,19,20]
[null,1,"LLANTAS","UD.",8,46170,449.82857142857148,{"$f":"+H78","v":"Neumáticos "},null,{"$f":"+AE142*$E142*$G142*(1+'Sup Generales'!C$10)","v":7369.9913142857149},{"$f":"+AF142*$E142*$G142*(1+'Sup Generales'!D$10)","v":7487.9111753142861},{"$f":"+AG142*$E142*$G142*(1+'Sup Generales'!E$10)","v":11523.895298808688},{"$f":"+AH142*$E142*$G142*(1+'Sup Generales'!F$10)","v":7715.7856843330283},{"$f":"+AI142*$E142*$G142*(1+'Sup Generales'!G$10)","v":11604.927458521091},{"$f":"+AJ142*$E142*$G142*(1+'Sup Generales'!H$10)","v":7788.4536483287875},{"$f":"+AK142*$E142*$G142*(1+'Sup Generales'!I$10)","v":11909.455903814865},{"$f":"+AL142*$E142*$G142*(1+'Sup Generales'!J$10)","v":8077.4209900387868},{"$f":"+AM142*$E142*$G142*(1+'Sup Generales'!K$10)","v":8195.0334458039997},{"$f":"+AN142*$E142*$G142*(1+'Sup Generales'!L$10)","v":12457.033403262603},{"$f":"+AO142*$E142*$G142*(1+'Sup Generales'!M$10)","v":8413.0926622634197},{"$f":"+AP142*$E142*$G142*(1+'Sup Generales'!N$10)","v":12763.944315437473},{"$f":"+AQ142*$E142*$G142*(1+'Sup Generales'!O$10)","v":8614.1677782452662},{"$f":"+AR142*$E142*$G142*(1+'Sup Generales'!P$10)","v":13096.042566055088},{"$f":"+AS142*$E142*$G142*(1+'Sup Generales'!Q$10)","v":8856.2496103377471},{"$f":"+AT142*$E142*$G142*(1+'Sup Generales'!R$10)","v":8978.0409130413136},{"$f":"+AU142*$E142*$G142*(1+'Sup Generales'!S$10)","v":13646.197281349707},{"$f":"+AV142*$E142*$G142*(1+'Sup Generales'!T$10)","v":9217.0457891971728},{"$f":"+AW142*$E142*$G142*(1+'Sup Generales'!U$10)","v":14006.88944529213},{"$f":"+AX142*$E142*$G142*(1+'Sup Generales'!V$10)","v":9460.4640063308416},null,{"$f":"ROUNDDOWN(J$139/$F142,0)","v":2},{"$f":"ROUNDDOWN(K$139/$F142,0)-SUM($AE142:AE142)","v":2},{"$f":"ROUNDDOWN(L$139/$F142,0)-SUM($AE142:AF142)","v":3},{"$f":"ROUNDDOWN(M$139/$F142,0)-SUM($AE142:AG142)","v":2},{"$f":"ROUNDDOWN(N$139/$F142,0)-SUM($AE142:AH142)","v":3},{"$f":"ROUNDDOWN(O$139/$F142,0)-SUM($AE142:AI142)","v":2},{"$f":"ROUNDDOWN(P$139/$F142,0)-SUM($AE142:AJ142)","v":3},{"$f":"ROUNDDOWN(Q$139/$F142,0)-SUM($AE142:AK142)","v":2},{"$f":"ROUNDDOWN(R$139/$F142,0)-SUM($AE142:AL142)","v":2},{"$f":"ROUNDDOWN(S$139/$F142,0)-SUM($AE142:AM142)","v":3},{"$f":"ROUNDDOWN(T$139/$F142,0)-SUM($AE142:AN142)","v":2},{"$f":"ROUNDDOWN(U$139/$F142,0)-SUM($AE142:AO142)","v":3},{"$f":"ROUNDDOWN(V$139/$F142,0)-SUM($AE142:AP142)","v":2},{"$f":"ROUNDDOWN(W$139/$F142,0)-SUM($AE142:AQ142)","v":3},{"$f":"ROUNDDOWN(X$139/$F142,0)-SUM($AE142:AR142)","v":2},{"$f":"ROUNDDOWN(Y$139/$F142,0)-SUM($AE142:AS142)","v":2},{"$f":"ROUNDDOWN(Z$139/$F142,0)-SUM($AE142:AT142)","v":3},{"$f":"ROUNDDOWN(AA$139/$F142,0)-SUM($AE142:AU142)","v":2},{"$f":"ROUNDDOWN(AB$139/$F142,0)-SUM($AE142:AV142)","v":3},{"$f":"ROUNDDOWN(AC$139/$F142,0)-SUM($AE142:AW142)","v":2}]
[null,{"$f":"+B142+1","v":2},"REENCAUCHE DE LLANTAS","UD.",4,46170,275.24799999999999,"Neumáticos ",null,{"$f":"+AE143*$E143*$G143*(1+'Sup Generales'!C$10)","v":2254.8316159999999},{"$f":"+AF143*$E143*$G143*(1+'Sup Generales'!D$10)","v":2290.9089218559998},{"$f":"+AG143*$E143*$G143*(1+'Sup Generales'!E$10)","v":3525.7088307363838},{"$f":"+AH143*$E143*$G143*(1+'Sup Generales'!F$10)","v":2360.6265952567769},{"$f":"+AI143*$E143*$G143*(1+'Sup Generales'!G$10)","v":3550.5004305959551},{"$f":"+AJ143*$E143*$G143*(1+'Sup Generales'!H$10)","v":2382.8591889872987},{"$f":"+AK143*$E143*$G143*(1+'Sup Generales'!I$10)","v":3643.6701966292926},{"$f":"+AL143*$E143*$G143*(1+'Sup Generales'!J$10)","v":2471.2680717516782},{"$f":"+AM143*$E143*$G143*(1+'Sup Generales'!K$10)","v":2507.2513276858822},{"$f":"+AN143*$E143*$G143*(1+'Sup Generales'!L$10)","v":3811.2002526785714},{"$f":"+AO143*$E143*$G143*(1+'Sup Generales'!M$10)","v":2573.9660352703841},{"$f":"+AP143*$E143*$G143*(1+'Sup Generales'!N$10)","v":3905.0989288854053},{"$f":"+AQ143*$E143*$G143*(1+'Sup Generales'!O$10)","v":2635.4844970123809},{"$f":"+AR143*$E143*$G143*(1+'Sup Generales'!P$10)","v":4006.7036124159536},{"$f":"+AS143*$E143*$G143*(1+'Sup Generales'!Q$10)","v":2709.5488676993946},{"$f":"+AT143*$E143*$G143*(1+'Sup Generales'!R$10)","v":2746.8106320867578},{"$f":"+AU143*$E143*$G143*(1+'Sup Generales'!S$10)","v":4175.0221616296049},{"$f":"+AV143*$E143*$G143*(1+'Sup Generales'!T$10)","v":2819.9336152970336},{"$f":"+AW143*$E143*$G143*(1+'Sup Generales'!U$10)","v":4285.3750861065128},{"$f":"+AX143*$E143*$G143*(1+'Sup Generales'!V$10)","v":2894.4068498637348},null,2,{"$f":"ROUNDDOWN(K$139/$F143,0)-SUM($AE143:AE143)","v":2},{"$f":"ROUNDDOWN(L$139/$F143,0)-SUM($AE143:AF143)","v":3},{"$f":"ROUNDDOWN(M$139/$F143,0)-SUM($AE143:AG143)","v":2},{"$f":"ROUNDDOWN(N$139/$F143,0)-SUM($AE143:AH143)","v":3},{"$f":"ROUNDDOWN(O$139/$F143,0)-SUM($AE143:AI143)","v":2},{"$f":"ROUNDDOWN(P$139/$F143,0)-SUM($AE143:AJ143)","v":3},{"$f":"ROUNDDOWN(Q$139/$F143,0)-SUM($AE143:AK143)","v":2},{"$f":"ROUNDDOWN(R$139/$F143,0)-SUM($AE143:AL143)","v":2},{"$f":"ROUNDDOWN(S$139/$F143,0)-SUM($AE143:AM143)","v":3},{"$f":"ROUNDDOWN(T$139/$F143,0)-SUM($AE143:AN143)","v":2},{"$f":"ROUNDDOWN(U$139/$F143,0)-SUM($AE143:AO143)","v":3},{"$f":"ROUNDDOWN(V$139/$F143,0)-SUM($AE143:AP143)","v":2},{"$f":"ROUNDDOWN(W$139/$F143,0)-SUM($AE143:AQ143)","v":3},{"$f":"ROUNDDOWN(X$139/$F143,0)-SUM($AE143:AR143)","v":2},{"$f":"ROUNDDOWN(Y$139/$F143,0)-SUM($AE143:AS143)","v":2},{"$f":"ROUNDDOWN(Z$139/$F143,0)-SUM($AE143:AT143)","v":3},{"$f":"ROUNDDOWN(AA$139/$F143,0)-SUM($AE143:AU143)","v":2},{"$f":"ROUNDDOWN(AB$139/$F143,0)-SUM($AE143:AV143)","v":3},{"$f":"ROUNDDOWN(AC$139/$F143,0)-SUM($AE143:AW143)","v":2}]
[null,{"$f":"+B143+1","v":3},"ACEITE DE MOTOR","GLNS",7,5000,18.081249999999997,"Aceites y filtros ",null,{"$f":"+AE144*$E144*$G144*(1+'Sup Generales'!C$10)","v":2851.3407999999995},{"$f":"+AF144*$E144*$G144*(1+'Sup Generales'!D$10)","v":3028.6423551999997},{"$f":"+AG144*$E144*$G144*(1+'Sup Generales'!E$10)","v":2972.2832713727994},{"$f":"+AH144*$E144*$G144*(1+'Sup Generales'!F$10)","v":3120.8109685190002},{"$f":"+AI144*$E144*$G144*(1+'Sup Generales'!G$10)","v":2993.183368649914},{"$f":"+AJ144*$E144*$G144*(1+'Sup Generales'!H$10)","v":3150.2030470934992},{"$f":"+AK144*$E144*$G144*(1+'Sup Generales'!I$10)","v":3071.7284074700278},{"$f":"+AL144*$E144*$G144*(1+'Sup Generales'!J$10)","v":3267.0819349277581},{"$f":"+AM144*$E144*$G144*(1+'Sup Generales'!K$10)","v":3170.5374165220701},{"$f":"+AN144*$E144*$G144*(1+'Sup Generales'!L$10)","v":3359.0052109273124},{"$f":"+AO144*$E144*$G144*(1+'Sup Generales'!M$10)","v":3254.901307087528},{"$f":"+AP144*$E144*$G144*(1+'Sup Generales'!N$10)","v":3441.7629045059325},{"$f":"+AQ144*$E144*$G144*(1+'Sup Generales'!O$10)","v":3332.6942999981766},{"$f":"+AR144*$E144*$G144*(1+'Sup Generales'!P$10)","v":3531.3122954606242},{"$f":"+AS144*$E144*$G144*(1+'Sup Generales'!Q$10)","v":3426.3521857878209},{"$f":"+AT144*$E144*$G144*(1+'Sup Generales'!R$10)","v":3631.3565077531939},{"$f":"+AU144*$E144*$G144*(1+'Sup Generales'!S$10)","v":3519.6748014017221},{"$f":"+AV144*$E144*$G144*(1+'Sup Generales'!T$10)","v":3728.0270309574948},{"$f":"+AW144*$E144*$G144*(1+'Sup Generales'!U$10)","v":3612.7057824374619},{"$f":"+AX144*$E144*$G144*(1+'Sup Generales'!V$10)","v":3826.4826222669567},null,22,{"$f":"ROUNDDOWN(K$139/$F144,0)-SUM($AE144:AE144)","v":23},{"$f":"ROUNDDOWN(L$139/$F144,0)-SUM($AE144:AF144)","v":22},{"$f":"ROUNDDOWN(M$139/$F144,0)-SUM($AE144:AG144)","v":23},{"$f":"ROUNDDOWN(N$139/$F144,0)-SUM($AE144:AH144)","v":22},{"$f":"ROUNDDOWN(O$139/$F144,0)-SUM($AE144:AI144)","v":23},{"$f":"ROUNDDOWN(P$139/$F144,0)-SUM($AE144:AJ144)","v":22},{"$f":"ROUNDDOWN(Q$139/$F144,0)-SUM($AE144:AK144)","v":23},{"$f":"ROUNDDOWN(R$139/$F144,0)-SUM($AE144:AL144)","v":22},{"$f":"ROUNDDOWN(S$139/$F144,0)-SUM($AE144:AM144)","v":23},{"$f":"ROUNDDOWN(T$139/$F144,0)-SUM($AE144:AN144)","v":22},{"$f":"ROUNDDOWN(U$139/$F144,0)-SUM($AE144:AO144)","v":23},{"$f":"ROUNDDOWN(V$139/$F144,0)-SUM($AE144:AP144)","v":22},{"$f":"ROUNDDOWN(W$139/$F144,0)-SUM($AE144:AQ144)","v":23},{"$f":"ROUNDDOWN(X$139/$F144,0)-SUM($AE144:AR144)","v":22},{"$f":"ROUNDDOWN(Y$139/$F144,0)-SUM($AE144:AS144)","v":23},{"$f":"ROUNDDOWN(Z$139/$F144,0)-SUM($AE144:AT144)","v":22},{"$f":"ROUNDDOWN(AA$139/$F144,0)-SUM($AE144:AU144)","v":23},{"$f":"ROUNDDOWN(AB$139/$F144,0)-SUM($AE144:AV144)","v":22},{"$f":"ROUNDDOWN(AC$139/$F144,0)-SUM($AE144:AW144)","v":23}]
[null,4,"ACEITE DE CAJA","GLNS",5,30000,18.261428571428571,"Aceites y filtros ",null,{"$f":"+AE145*$E145*$G145*(1+'Sup Generales'!C$10)","v":280.49554285714288},{"$f":"+AF145*$E145*$G145*(1+'Sup Generales'!D$10)","v":379.9779620571428},{"$f":"+AG145*$E145*$G145*(1+'Sup Generales'!E$10)","v":389.85738907062853},{"$f":"+AH145*$E145*$G145*(1+'Sup Generales'!F$10)","v":391.54157299141372},{"$f":"+AI145*$E145*$G145*(1+'Sup Generales'!G$10)","v":294.4490514288679},{"$f":"+AJ145*$E145*$G145*(1+'Sup Generales'!H$10)","v":395.22914676458839},{"$f":"+AK145*$E145*$G145*(1+'Sup Generales'!I$10)","v":402.90103853972255},{"$f":"+AL145*$E145*$G145*(1+'Sup Generales'!J$10)","v":409.89294539056857},{"$f":"+AM145*$E145*$G145*(1+'Sup Generales'!K$10)","v":311.89593814820086},{"$f":"+AN145*$E145*$G145*(1+'Sup Generales'!L$10)","v":421.42577594085003},{"$f":"+AO145*$E145*$G145*(1+'Sup Generales'!M$10)","v":426.92677965301573},{"$f":"+AP145*$E145*$G145*(1+'Sup Generales'!N$10)","v":431.80867892593261},{"$f":"+AQ145*$E145*$G145*(1+'Sup Generales'!O$10)","v":327.84783104667616},{"$f":"+AR145*$E145*$G145*(1+'Sup Generales'!P$10)","v":443.04367833746761},{"$f":"+AS145*$E145*$G145*(1+'Sup Generales'!Q$10)","v":449.41501035691141},{"$f":"+AT145*$E145*$G145*(1+'Sup Generales'!R$10)","v":455.59537360028855},{"$f":"+AU145*$E145*$G145*(1+'Sup Generales'!S$10)","v":346.24170288580825},{"$f":"+AV145*$E145*$G145*(1+'Sup Generales'!T$10)","v":467.72380082613785},{"$f":"+AW145*$E145*$G145*(1+'Sup Generales'!U$10)","v":473.85794529971542},{"$f":"+AX145*$E145*$G145*(1+'Sup Generales'!V$10)","v":480.07618534412757},null,3,{"$f":"ROUNDDOWN(K$139/$F145,0)-SUM($AE145:AE145)","v":4},{"$f":"ROUNDDOWN(L$139/$F145,0)-SUM($AE145:AF145)","v":4},{"$f":"ROUNDDOWN(M$139/$F145,0)-SUM($AE145:AG145)","v":4},{"$f":"ROUNDDOWN(N$139/$F145,0)-SUM($AE145:AH145)","v":3},{"$f":"ROUNDDOWN(O$139/$F145,0)-SUM($AE145:AI145)","v":4},{"$f":"ROUNDDOWN(P$139/$F145,0)-SUM($AE145:AJ145)","v":4},{"$f":"ROUNDDOWN(Q$139/$F145,0)-SUM($AE145:AK145)","v":4},{"$f":"ROUNDDOWN(R$139/$F145,0)-SUM($AE145:AL145)","v":3},{"$f":"ROUNDDOWN(S$139/$F145,0)-SUM($AE145:AM145)","v":4},{"$f":"ROUNDDOWN(T$139/$F145,0)-SUM($AE145:AN145)","v":4},{"$f":"ROUNDDOWN(U$139/$F145,0)-SUM($AE145:AO145)","v":4},{"$f":"ROUNDDOWN(V$139/$F145,0)-SUM($AE145:AP145)","v":3},{"$f":"ROUNDDOWN(W$139/$F145,0)-SUM($AE145:AQ145)","v":4},{"$f":"ROUNDDOWN(X$139/$F145,0)-SUM($AE145:AR145)","v":4},{"$f":"ROUNDDOWN(Y$139/$F145,0)-SUM($AE145:AS145)","v":4},{"$f":"ROUNDDOWN(Z$139/$F145,0)-SUM($AE145:AT145)","v":3},{"$f":"ROUNDDOWN(AA$139/$F145,0)-SUM($AE145:AU145)","v":4},{"$f":"ROUNDDOWN(AB$139/$F145,0)-SUM($AE145:AV145)","v":4},{"$f":"ROUNDDOWN(AC$139/$F145,0)-SUM($AE145:AW145)","v":4}]
[null,5,"ACEITE DE DIFERENCIAL","GLNS",6,30000,18.594285714285714,"Aceites y filtros ",null,{"$f":"+AE146*$E146*$G146*(1+'Sup Generales'!C$10)","v":342.72987428571429},{"$f":"+AF146*$E146*$G146*(1+'Sup Generales'!D$10)","v":464.28473636571425},{"$f":"+AG146*$E146*$G146*(1+'Sup Generales'!E$10)","v":476.35613951122281},{"$f":"+AH146*$E146*$G146*(1+'Sup Generales'!F$10)","v":478.41399803391141},{"$f":"+AI146*$E146*$G146*(1+'Sup Generales'!G$10)","v":359.7792868714522},{"$f":"+AJ146*$E146*$G146*(1+'Sup Generales'!H$10)","v":482.91974412465453},{"$f":"+AK146*$E146*$G146*(1+'Sup Generales'!I$10)","v":492.2938200077943},{"$f":"+AL146*$E146*$G146*(1+'Sup Generales'!J$10)","v":500.83704080766398},{"$f":"+AM146*$E146*$G146*(1+'Sup Generales'!K$10)","v":381.09716319521073},{"$f":"+AN146*$E146*$G146*(1+'Sup Generales'!L$10)","v":514.92869276189663},{"$f":"+AO146*$E146*$G146*(1+'Sup Generales'!M$10)","v":521.65021956945816},{"$f":"+AP146*$E146*$G146*(1+'Sup Generales'!N$10)","v":527.61527950245841},{"$f":"+AQ146*$E146*$G146*(1+'Sup Generales'!O$10)","v":400.58834723337594},{"$f":"+AR146*$E146*$G146*(1+'Sup Generales'!P$10)","v":541.3430196893197},{"$f":"+AS146*$E146*$G146*(1+'Sup Generales'!Q$10)","v":549.12797698245095},{"$f":"+AT146*$E146*$G146*(1+'Sup Generales'!R$10)","v":556.67959472249299},{"$f":"+AU146*$E146*$G146*(1+'Sup Generales'!S$10)","v":423.06331891684391},{"$f":"+AV146*$E146*$G146*(1+'Sup Generales'!T$10)","v":571.4989900542605},{"$f":"+AW146*$E146*$G146*(1+'Sup Generales'!U$10)","v":578.99413433664358},{"$f":"+AX146*$E146*$G146*(1+'Sup Generales'!V$10)","v":586.59203270961416},null,3,{"$f":"ROUNDDOWN(K$139/$F146,0)-SUM($AE146:AE146)","v":4},{"$f":"ROUNDDOWN(L$139/$F146,0)-SUM($AE146:AF146)","v":4},{"$f":"ROUNDDOWN(M$139/$F146,0)-SUM($AE146:AG146)","v":4},{"$f":"ROUNDDOWN(N$139/$F146,0)-SUM($AE146:AH146)","v":3},{"$f":"ROUNDDOWN(O$139/$F146,0)-SUM($AE146:AI146)","v":4},{"$f":"ROUNDDOWN(P$139/$F146,0)-SUM($AE146:AJ146)","v":4},{"$f":"ROUNDDOWN(Q$139/$F146,0)-SUM($AE146:AK146)","v":4},{"$f":"ROUNDDOWN(R$139/$F146,0)-SUM($AE146:AL146)","v":3},{"$f":"ROUNDDOWN(S$139/$F146,0)-SUM($AE146:AM146)","v":4},{"$f":"ROUNDDOWN(T$139/$F146,0)-SUM($AE146:AN146)","v":4},{"$f":"ROUNDDOWN(U$139/$F146,0)-SUM($AE146:AO146)","v":4},{"$f":"ROUNDDOWN(V$139/$F146,0)-SUM($AE146:AP146)","v":3},{"$f":"ROUNDDOWN(W$139/$F146,0)-SUM($AE146:AQ146)","v":4},{"$f":"ROUNDDOWN(X$139/$F146,0)-SUM($AE146:AR146)","v":4},{"$f":"ROUNDDOWN(Y$139/$F146,0)-SUM($AE146:AS146)","v":4},{"$f":"ROUNDDOWN(Z$139/$F146,0)-SUM($AE146:AT146)","v":3},{"$f":"ROUNDDOWN(AA$139/$F146,0)-SUM($AE146:AU146)","v":4},{"$f":"ROUNDDOWN(AB$139/$F146,0)-SUM($AE146:AV146)","v":4},{"$f":"ROUNDDOWN(AC$139/$F146,0)-SUM($AE146:AW146)","v":4}]
[null,6,"ACEITE HIDRÁULICO","GLN",2,60000,16.008333333333333,"Aceites y filtros ",null,{"$f":"+AE147*$E147*$G147*(1+'Sup Generales'!C$10)","v":32.785066666666665},{"$f":"+AF147*$E147*$G147*(1+'Sup Generales'!D$10)","v":66.619255466666658},{"$f":"+AG147*$E147*$G147*(1+'Sup Generales'!E$10)","v":68.351356108800005},{"$f":"+AH147*$E147*$G147*(1+'Sup Generales'!F$10)","v":68.646633967190027},{"$f":"+AI147*$E147*$G147*(1+'Sup Generales'!G$10)","v":68.831979878901436},{"$f":"+AJ147*$E147*$G147*(1+'Sup Generales'!H$10)","v":69.293154144090067},{"$f":"+AK147*$E147*$G147*(1+'Sup Generales'!I$10)","v":70.63822088246954},{"$f":"+AL147*$E147*$G147*(1+'Sup Generales'!J$10)","v":71.864069945330726},{"$f":"+AM147*$E147*$G147*(1+'Sup Generales'!K$10)","v":36.455228561186793},{"$f":"+AN147*$E147*$G147*(1+'Sup Generales'!L$10)","v":73.88605190587252},{"$f":"+AO147*$E147*$G147*(1+'Sup Generales'!M$10)","v":74.85050986980238},{"$f":"+AP147*$E147*$G147*(1+'Sup Generales'!N$10)","v":75.706423968252309},{"$f":"+AQ147*$E147*$G147*(1+'Sup Generales'!O$10)","v":76.639456640932039},{"$f":"+AR147*$E147*$G147*(1+'Sup Generales'!P$10)","v":77.676188982814764},{"$f":"+AS147*$E147*$G147*(1+'Sup Generales'!Q$10)","v":78.793236385165031},{"$f":"+AT147*$E147*$G147*(1+'Sup Generales'!R$10)","v":79.876802378198661},{"$f":"+AU147*$E147*$G147*(1+'Sup Generales'!S$10)","v":40.469653087046709},{"$f":"+AV147*$E147*$G147*(1+'Sup Generales'!T$10)","v":82.003206729107362},{"$f":"+AW147*$E147*$G147*(1+'Sup Generales'!U$10)","v":83.078669462636228},{"$f":"+AX147*$E147*$G147*(1+'Sup Generales'!V$10)","v":84.168876167859452},null,1,{"$f":"ROUNDDOWN(K$139/$F147,0)-SUM($AE147:AE147)","v":2},{"$f":"ROUNDDOWN(L$139/$F147,0)-SUM($AE147:AF147)","v":2},{"$f":"ROUNDDOWN(M$139/$F147,0)-SUM($AE147:AG147)","v":2},{"$f":"ROUNDDOWN(N$139/$F147,0)-SUM($AE147:AH147)","v":2},{"$f":"ROUNDDOWN(O$139/$F147,0)-SUM($AE147:AI147)","v":2},{"$f":"ROUNDDOWN(P$139/$F147,0)-SUM($AE147:AJ147)","v":2},{"$f":"ROUNDDOWN(Q$139/$F147,0)-SUM($AE147:AK147)","v":2},{"$f":"ROUNDDOWN(R$139/$F147,0)-SUM($AE147:AL147)","v":1},{"$f":"ROUNDDOWN(S$139/$F147,0)-SUM($AE147:AM147)","v":2},{"$f":"ROUNDDOWN(T$139/$F147,0)-SUM($AE147:AN147)","v":2},{"$f":"ROUNDDOWN(U$139/$F147,0)-SUM($AE147:AO147)","v":2},{"$f":"ROUNDDOWN(V$139/$F147,0)-SUM($AE147:AP147)","v":2},{"$f":"ROUNDDOWN(W$139/$F147,0)-SUM($AE147:AQ147)","v":2},{"$f":"ROUNDDOWN(X$139/$F147,0)-SUM($AE147:AR147)","v":2},{"$f":"ROUNDDOWN(Y$139/$F147,0)-SUM($AE147:AS147)","v":2},{"$f":"ROUNDDOWN(Z$139/$F147,0)-SUM($AE147:AT147)","v":1},{"$f":"ROUNDDOWN(AA$139/$F147,0)-SUM($AE147:AU147)","v":2},{"$f":"ROUNDDOWN(AB$139/$F147,0)-SUM($AE147:AV147)","v":2},{"$f":"ROUNDDOWN(AC$139/$F147,0)-SUM($AE147:AW147)","v":2}]
[null,7,"ENGRASE GENERAL","KG.",1,5000,6.7857142857142856,"Aceites y filtros ",null,{"$f":"+AE148*$E148*$G148*(1+'Sup Generales'!C$10)","v":152.86857142857141},{"$f":"+AF148*$E148*$G148*(1+'Sup Generales'!D$10)","v":162.37421714285713},{"$f":"+AG148*$E148*$G148*(1+'Sup Generales'!E$10)","v":159.35264475428571},{"$f":"+AH148*$E148*$G148*(1+'Sup Generales'!F$10)","v":167.31564127869808},{"$f":"+AI148*$E148*$G148*(1+'Sup Generales'!G$10)","v":160.47315900970924},{"$f":"+AJ148*$E148*$G148*(1+'Sup Generales'!H$10)","v":168.89143504666853},{"$f":"+AK148*$E148*$G148*(1+'Sup Generales'!I$10)","v":164.68418417977395},{"$f":"+AL148*$E148*$G148*(1+'Sup Generales'!J$10)","v":175.15764798529148},{"$f":"+AM148*$E148*$G148*(1+'Sup Generales'!K$10)","v":169.98161900694666},{"$f":"+AN148*$E148*$G148*(1+'Sup Generales'!L$10)","v":180.08591888264829},{"$f":"+AO148*$E148*$G148*(1+'Sup Generales'!M$10)","v":174.50460953508622},{"$f":"+AP148*$E148*$G148*(1+'Sup Generales'!N$10)","v":184.52279657614852},{"$f":"+AQ148*$E148*$G148*(1+'Sup Generales'!O$10)","v":178.67531536351748},{"$f":"+AR148*$E148*$G148*(1+'Sup Generales'!P$10)","v":189.32379667671256},{"$f":"+AS148*$E148*$G148*(1+'Sup Generales'!Q$10)","v":183.69658367479167},{"$f":"+AT148*$E148*$G148*(1+'Sup Generales'!R$10)","v":194.68745429801896},{"$f":"+AU148*$E148*$G148*(1+'Sup Generales'!S$10)","v":188.69987718880262},{"$f":"+AV148*$E148*$G148*(1+'Sup Generales'!T$10)","v":199.87023875559555},{"$f":"+AW148*$E148*$G148*(1+'Sup Generales'!U$10)","v":193.68753533529008},{"$f":"+AX148*$E148*$G148*(1+'Sup Generales'!V$10)","v":205.14872584231375},null,22,{"$f":"ROUNDDOWN(K$139/$F148,0)-SUM($AE148:AE148)","v":23},{"$f":"ROUNDDOWN(L$139/$F148,0)-SUM($AE148:AF148)","v":22},{"$f":"ROUNDDOWN(M$139/$F148,0)-SUM($AE148:AG148)","v":23},{"$f":"ROUNDDOWN(N$139/$F148,0)-SUM($AE148:AH148)","v":22},{"$f":"ROUNDDOWN(O$139/$F148,0)-SUM($AE148:AI148)","v":23},{"$f":"ROUNDDOWN(P$139/$F148,0)-SUM($AE148:AJ148)","v":22},{"$f":"ROUNDDOWN(Q$139/$F148,0)-SUM($AE148:AK148)","v":23},{"$f":"ROUNDDOWN(R$139/$F148,0)-SUM($AE148:AL148)","v":22},{"$f":"ROUNDDOWN(S$139/$F148,0)-SUM($AE148:AM148)","v":23},{"$f":"ROUNDDOWN(T$139/$F148,0)-SUM($AE148:AN148)","v":22},{"$f":"ROUNDDOWN(U$139/$F148,0)-SUM($AE148:AO148)","v":23},{"$f":"ROUNDDOWN(V$139/$F148,0)-SUM($AE148:AP148)","v":22},{"$f":"ROUNDDOWN(W$139/$F148,0)-SUM($AE148:AQ148)","v":23},{"$f":"ROUNDDOWN(X$139/$F148,0)-SUM($AE148:AR148)","v":22},{"$f":"ROUNDDOWN(Y$139/$F148,0)-SUM($AE148:AS148)","v":23},{"$f":"ROUNDDOWN(Z$139/$F148,0)-SUM($AE148:AT148)","v":22},{"$f":"ROUNDDOWN(AA$139/$F148,0)-SUM($AE148:AU148)","v":23},{"$f":"ROUNDDOWN(AB$139/$F148,0)-SUM($AE148:AV148)","v":22},{"$f":"ROUNDDOWN(AC$139/$F148,0)-SUM($AE148:AW148)","v":23}]
[null,8,"FILTRO DE ACEITE DE MOTOR","UND",1,5000,13.37875,"Aceites y filtros ",null,{"$f":"+AE149*$E149*$G149*(1+'Sup Generales'!C$10)","v":301.39648},{"$f":"+AF149*$E149*$G149*(1+'Sup Generales'!D$10)","v":320.13786112000003},{"$f":"+AG149*$E149*$G149*(1+'Sup Generales'!E$10)","v":314.18051309568},{"$f":"+AH149*$E149*$G149*(1+'Sup Generales'!F$10)","v":329.88039895371946},{"$f":"+AI149*$E149*$G149*(1+'Sup Generales'!G$10)","v":316.38972489911646},{"$f":"+AJ149*$E149*$G149*(1+'Sup Generales'!H$10)","v":332.98724224030144},{"$f":"+AK149*$E149*$G149*(1+'Sup Generales'!I$10)","v":324.69220428770637},{"$f":"+AL149*$E149*$G149*(1+'Sup Generales'!J$10)","v":345.3417406501585},{"$f":"+AM149*$E149*$G149*(1+'Sup Generales'!K$10)","v":335.13665467419605},{"$f":"+AN149*$E149*$G149*(1+'Sup Generales'!L$10)","v":355.05834548965515},{"$f":"+AO149*$E149*$G149*(1+'Sup Generales'!M$10)","v":344.05420660468934},{"$f":"+AP149*$E149*$G149*(1+'Sup Generales'!N$10)","v":363.80611690214806},{"$f":"+AQ149*$E149*$G149*(1+'Sup Generales'!O$10)","v":352.27719216710773},{"$f":"+AR149*$E149*$G149*(1+'Sup Generales'!P$10)","v":373.27179396884168},{"$f":"+AS149*$E149*$G149*(1+'Sup Generales'!Q$10)","v":362.1771511973439},{"$f":"+AT149*$E149*$G149*(1+'Sup Generales'!R$10)","v":383.84680956478633},{"$f":"+AU149*$E149*$G149*(1+'Sup Generales'!S$10)","v":372.04167102269162},{"$f":"+AV149*$E149*$G149*(1+'Sup Generales'!T$10)","v":394.06521467915729},{"$f":"+AW149*$E149*$G149*(1+'Sup Generales'!U$10)","v":381.87536407513863},{"$f":"+AX149*$E149*$G149*(1+'Sup Generales'!V$10)","v":404.47230760084187},null,22,{"$f":"ROUNDDOWN(K$139/$F149,0)-SUM($AE149:AE149)","v":23},{"$f":"ROUNDDOWN(L$139/$F149,0)-SUM($AE149:AF149)","v":22},{"$f":"ROUNDDOWN(M$139/$F149,0)-SUM($AE149:AG149)","v":23},{"$f":"ROUNDDOWN(N$139/$F149,0)-SUM($AE149:AH149)","v":22},{"$f":"ROUNDDOWN(O$139/$F149,0)-SUM($AE149:AI149)","v":23},{"$f":"ROUNDDOWN(P$139/$F149,0)-SUM($AE149:AJ149)","v":22},{"$f":"ROUNDDOWN(Q$139/$F149,0)-SUM($AE149:AK149)","v":23},{"$f":"ROUNDDOWN(R$139/$F149,0)-SUM($AE149:AL149)","v":22},{"$f":"ROUNDDOWN(S$139/$F149,0)-SUM($AE149:AM149)","v":23},{"$f":"ROUNDDOWN(T$139/$F149,0)-SUM($AE149:AN149)","v":22},{"$f":"ROUNDDOWN(U$139/$F149,0)-SUM($AE149:AO149)","v":23},{"$f":"ROUNDDOWN(V$139/$F149,0)-SUM($AE149:AP149)","v":22},{"$f":"ROUNDDOWN(W$139/$F149,0)-SUM($AE149:AQ149)","v":23},{"$f":"ROUNDDOWN(X$139/$F149,0)-SUM($AE149:AR149)","v":22},{"$f":"ROUNDDOWN(Y$139/$F149,0)-SUM($AE149:AS149)","v":23},{"$f":"ROUNDDOWN(Z$139/$F149,0)-SUM($AE149:AT149)","v":22},{"$f":"ROUNDDOWN(AA$139/$F149,0)-SUM($AE149:AU149)","v":23},{"$f":"ROUNDDOWN(AB$139/$F149,0)-SUM($AE149:AV149)","v":22},{"$f":"ROUNDDOWN(AC$139/$F149,0)-SUM($AE149:AW149)","v":23}]
[null,9,"FILTRO DE AIRE","UND",2,10000,35.441249999999997,"Aceites y filtros ",null,{"$f":"+AE150*$E150*$G150*(1+'Sup Generales'!C$10)","v":798.42048},{"$f":"+AF150*$E150*$G150*(1+'Sup Generales'!D$10)","v":811.19520767999995},{"$f":"+AG150*$E150*$G150*(1+'Sup Generales'!E$10)","v":832.28628307967995},{"$f":"+AH150*$E150*$G150*(1+'Sup Generales'!F$10)","v":911.8710107155465},{"$f":"+AI150*$E150*$G150*(1+'Sup Generales'!G$10)","v":838.13864057410524},{"$f":"+AJ150*$E150*$G150*(1+'Sup Generales'!H$10)","v":843.75416946595169},{"$f":"+AK150*$E150*$G150*(1+'Sup Generales'!I$10)","v":860.13249258799772},{"$f":"+AL150*$E150*$G150*(1+'Sup Generales'!J$10)","v":954.60998315667143},{"$f":"+AM150*$E150*$G150*(1+'Sup Generales'!K$10)","v":887.80057647178194},{"$f":"+AN150*$E150*$G150*(1+'Sup Generales'!L$10)","v":899.67999192709158},{"$f":"+AO150*$E150*$G150*(1+'Sup Generales'!M$10)","v":911.4237989220552},{"$f":"+AP150*$E150*$G150*(1+'Sup Generales'!N$10)","v":1005.6500858379344},{"$f":"+AQ150*$E150*$G150*(1+'Sup Generales'!O$10)","v":933.20706619770203},{"$f":"+AR150*$E150*$G150*(1+'Sup Generales'!P$10)","v":945.83092849533648},{"$f":"+AS150*$E150*$G150*(1+'Sup Generales'!Q$10)","v":959.43275417156792},{"$f":"+AT150*$E150*$G150*(1+'Sup Generales'!R$10)","v":1061.0475169423007},{"$f":"+AU150*$E150*$G150*(1+'Sup Generales'!S$10)","v":985.56456119839061},{"$f":"+AV150*$E150*$G150*(1+'Sup Generales'!T$10)","v":998.51923962626972},{"$f":"+AW150*$E150*$G150*(1+'Sup Generales'!U$10)","v":1011.6147059350095},{"$f":"+AX150*$E150*$G150*(1+'Sup Generales'!V$10)","v":1118.0614947363804},null,11,{"$f":"ROUNDDOWN(K$139/$F150,0)-SUM($AE150:AE150)","v":11},{"$f":"ROUNDDOWN(L$139/$F150,0)-SUM($AE150:AF150)","v":11},{"$f":"ROUNDDOWN(M$139/$F150,0)-SUM($AE150:AG150)","v":12},{"$f":"ROUNDDOWN(N$139/$F150,0)-SUM($AE150:AH150)","v":11},{"$f":"ROUNDDOWN(O$139/$F150,0)-SUM($AE150:AI150)","v":11},{"$f":"ROUNDDOWN(P$139/$F150,0)-SUM($AE150:AJ150)","v":11},{"$f":"ROUNDDOWN(Q$139/$F150,0)-SUM($AE150:AK150)","v":12},{"$f":"ROUNDDOWN(R$139/$F150,0)-SUM($AE150:AL150)","v":11},{"$f":"ROUNDDOWN(S$139/$F150,0)-SUM($AE150:AM150)","v":11},{"$f":"ROUNDDOWN(T$139/$F150,0)-SUM($AE150:AN150)","v":11},{"$f":"ROUNDDOWN(U$139/$F150,0)-SUM($AE150:AO150)","v":12},{"$f":"ROUNDDOWN(V$139/$F150,0)-SUM($AE150:AP150)","v":11},{"$f":"ROUNDDOWN(W$139/$F150,0)-SUM($AE150:AQ150)","v":11},{"$f":"ROUNDDOWN(X$139/$F150,0)-SUM($AE150:AR150)","v":11},{"$f":"ROUNDDOWN(Y$139/$F150,0)-SUM($AE150:AS150)","v":12},{"$f":"ROUNDDOWN(Z$139/$F150,0)-SUM($AE150:AT150)","v":11},{"$f":"ROUNDDOWN(AA$139/$F150,0)-SUM($AE150:AU150)","v":11},{"$f":"ROUNDDOWN(AB$139/$F150,0)-SUM($AE150:AV150)","v":11},{"$f":"ROUNDDOWN(AC$139/$F150,0)-SUM($AE150:AW150)","v":12}]
[null,10,"FILTRO DE COMBUSTIBLE","UD.",1,5000,13.484999999999999,"Aceites y filtros ",null,{"$f":"+AE151*$E151*$G151*(1+'Sup Generales'!C$10)","v":303.79007999999999},{"$f":"+AF151*$E151*$G151*(1+'Sup Generales'!D$10)","v":322.68029951999995},{"$f":"+AG151*$E151*$G151*(1+'Sup Generales'!E$10)","v":316.67564003327993},{"$f":"+AH151*$E151*$G151*(1+'Sup Generales'!F$10)","v":332.50020965268851},{"$f":"+AI151*$E151*$G151*(1+'Sup Generales'!G$10)","v":318.90239673097898},{"$f":"+AJ151*$E151*$G151*(1+'Sup Generales'!H$10)","v":335.63172655221638},{"$f":"+AK151*$E151*$G151*(1+'Sup Generales'!I$10)","v":327.27081190841602},{"$f":"+AL151*$E151*$G151*(1+'Sup Generales'!J$10)","v":348.08434066466504},{"$f":"+AM151*$E151*$G151*(1+'Sup Generales'!K$10)","v":337.7982089718048},{"$f":"+AN151*$E151*$G151*(1+'Sup Generales'!L$10)","v":357.87811185110706},{"$f":"+AO151*$E151*$G151*(1+'Sup Generales'!M$10)","v":346.78658141188345},{"$f":"+AP151*$E151*$G151*(1+'Sup Generales'!N$10)","v":366.69535542748508},{"$f":"+AQ151*$E151*$G151*(1+'Sup Generales'!O$10)","v":355.07487144714173},{"$f":"+AR151*$E151*$G151*(1+'Sup Generales'!P$10)","v":376.23620604838487},{"$f":"+AS151*$E151*$G151*(1+'Sup Generales'!Q$10)","v":365.05345296804126},{"$f":"+AT151*$E151*$G151*(1+'Sup Generales'!R$10)","v":386.8952052307684},{"$f":"+AU151*$E151*$G151*(1+'Sup Generales'!S$10)","v":374.99631383656885},{"$f":"+AV151*$E151*$G151*(1+'Sup Generales'!T$10)","v":397.19476183861985},{"$f":"+AW151*$E151*$G151*(1+'Sup Generales'!U$10)","v":384.90810311525695},{"$f":"+AX151*$E151*$G151*(1+'Sup Generales'!V$10)","v":407.68450475547809},null,22,{"$f":"ROUNDDOWN(K$139/$F151,0)-SUM($AE151:AE151)","v":23},{"$f":"ROUNDDOWN(L$139/$F151,0)-SUM($AE151:AF151)","v":22},{"$f":"ROUNDDOWN(M$139/$F151,0)-SUM($AE151:AG151)","v":23},{"$f":"ROUNDDOWN(N$139/$F151,0)-SUM($AE151:AH151)","v":22},{"$f":"ROUNDDOWN(O$139/$F151,0)-SUM($AE151:AI151)","v":23},{"$f":"ROUNDDOWN(P$139/$F151,0)-SUM($AE151:AJ151)","v":22},{"$f":"ROUNDDOWN(Q$139/$F151,0)-SUM($AE151:AK151)","v":23},{"$f":"ROUNDDOWN(R$139/$F151,0)-SUM($AE151:AL151)","v":22},{"$f":"ROUNDDOWN(S$139/$F151,0)-SUM($AE151:AM151)","v":23},{"$f":"ROUNDDOWN(T$139/$F151,0)-SUM($AE151:AN151)","v":22},{"$f":"ROUNDDOWN(U$139/$F151,0)-SUM($AE151:AO151)","v":23},{"$f":"ROUNDDOWN(V$139/$F151,0)-SUM($AE151:AP151)","v":22},{"$f":"ROUNDDOWN(W$139/$F151,0)-SUM($AE151:AQ151)","v":23},{"$f":"ROUNDDOWN(X$139/$F151,0)-SUM($AE151:AR151)","v":22},{"$f":"ROUNDDOWN(Y$139/$F151,0)-SUM($AE151:AS151)","v":23},{"$f":"ROUNDDOWN(Z$139/$F151,0)-SUM($AE151:AT151)","v":22},{"$f":"ROUNDDOWN(AA$139/$F151,0)-SUM($AE151:AU151)","v":23},{"$f":"ROUNDDOWN(AB$139/$F151,0)-SUM($AE151:AV151)","v":22},{"$f":"ROUNDDOWN(AC$139/$F151,0)-SUM($AE151:AW151)","v":23}]
[null,11,"FILTRO SECADOR DE AIRE","UD.",1,30000,35.874285714285712,"Aceites y filtros ",null,{"$f":"+AE152*$E152*$G152*(1+'Sup Generales'!C$10)","v":110.2058057142857},{"$f":"+AF152*$E152*$G152*(1+'Sup Generales'!D$10)","v":149.2921314742857},{"$f":"+AG152*$E152*$G152*(1+'Sup Generales'!E$10)","v":153.17372689261714},{"$f":"+AH152*$E152*$G152*(1+'Sup Generales'!F$10)","v":153.83543739279327},{"$f":"+AI152*$E152*$G152*(1+'Sup Generales'!G$10)","v":115.68809480531534},{"$f":"+AJ152*$E152*$G152*(1+'Sup Generales'!H$10)","v":155.28427338734795},{"$f":"+AK152*$E152*$G152*(1+'Sup Generales'!I$10)","v":158.29853523913812},{"$f":"+AL152*$E152*$G152*(1+'Sup Generales'!J$10)","v":161.04563317919047},{"$f":"+AM152*$E152*$G152*(1+'Sup Generales'!K$10)","v":122.54292104791706},{"$f":"+AN152*$E152*$G152*(1+'Sup Generales'!L$10)","v":165.57684558283071},{"$f":"+AO152*$E152*$G152*(1+'Sup Generales'!M$10)","v":167.73817242660613},{"$f":"+AP152*$E152*$G152*(1+'Sup Generales'!N$10)","v":169.65625510737729},{"$f":"+AQ152*$E152*$G152*(1+'Sup Generales'!O$10)","v":128.81036897823878},{"$f":"+AR152*$E152*$G152*(1+'Sup Generales'!P$10)","v":174.07045060487346},{"$f":"+AS152*$E152*$G152*(1+'Sup Generales'!Q$10)","v":176.57372666952608},{"$f":"+AT152*$E152*$G152*(1+'Sup Generales'!R$10)","v":179.00197171009069},{"$f":"+AU152*$E152*$G152*(1+'Sup Generales'!S$10)","v":136.03726265928836},{"$f":"+AV152*$E152*$G152*(1+'Sup Generales'!T$10)","v":183.76719215123168},{"$f":"+AW152*$E152*$G152*(1+'Sup Generales'!U$10)","v":186.17727798429874},{"$f":"+AX152*$E152*$G152*(1+'Sup Generales'!V$10)","v":188.62040469939345},null,3,{"$f":"ROUNDDOWN(K$139/$F152,0)-SUM($AE152:AE152)","v":4},{"$f":"ROUNDDOWN(L$139/$F152,0)-SUM($AE152:AF152)","v":4},{"$f":"ROUNDDOWN(M$139/$F152,0)-SUM($AE152:AG152)","v":4},{"$f":"ROUNDDOWN(N$139/$F152,0)-SUM($AE152:AH152)","v":3},{"$f":"ROUNDDOWN(O$139/$F152,0)-SUM($AE152:AI152)","v":4},{"$f":"ROUNDDOWN(P$139/$F152,0)-SUM($AE152:AJ152)","v":4},{"$f":"ROUNDDOWN(Q$139/$F152,0)-SUM($AE152:AK152)","v":4},{"$f":"ROUNDDOWN(R$139/$F152,0)-SUM($AE152:AL152)","v":3},{"$f":"ROUNDDOWN(S$139/$F152,0)-SUM($AE152:AM152)","v":4},{"$f":"ROUNDDOWN(T$139/$F152,0)-SUM($AE152:AN152)","v":4},{"$f":"ROUNDDOWN(U$139/$F152,0)-SUM($AE152:AO152)","v":4},{"$f":"ROUNDDOWN(V$139/$F152,0)-SUM($AE152:AP152)","v":3},{"$f":"ROUNDDOWN(W$139/$F152,0)-SUM($AE152:AQ152)","v":4},{"$f":"ROUNDDOWN(X$139/$F152,0)-SUM($AE152:AR152)","v":4},{"$f":"ROUNDDOWN(Y$139/$F152,0)-SUM($AE152:AS152)","v":4},{"$f":"ROUNDDOWN(Z$139/$F152,0)-SUM($AE152:AT152)","v":3},{"$f":"ROUNDDOWN(AA$139/$F152,0)-SUM($AE152:AU152)","v":4},{"$f":"ROUNDDOWN(AB$139/$F152,0)-SUM($AE152:AV152)","v":4},{"$f":"ROUNDDOWN(AC$139/$F152,0)-SUM($AE152:AW152)","v":4}]
[null,12,"REFRIGERANTE DE MOTOR","GLNS.",4,30000,3.8400000000000003,"Aceites y filtros ",null,{"$f":"+AE153*$E153*$G153*(1+'Sup Generales'!C$10)","v":47.185920000000003},{"$f":"+AF153*$E153*$G153*(1+'Sup Generales'!D$10)","v":63.921192960000006},{"$f":"+AG153*$E153*$G153*(1+'Sup Generales'!E$10)","v":65.583143976960002},{"$f":"+AH153*$E153*$G153*(1+'Sup Generales'!F$10)","v":65.866463158940476},{"$f":"+AI153*$E153*$G153*(1+'Sup Generales'!G$10)","v":49.533226957102215},{"$f":"+AJ153*$E153*$G153*(1+'Sup Generales'!H$10)","v":66.486799436953063},{"$f":"+AK153*$E153*$G153*(1+'Sup Generales'!I$10)","v":67.777391322523627},{"$f":"+AL153*$E153*$G153*(1+'Sup Generales'!J$10)","v":68.953593817404268},{"$f":"+AM153*$E153*$G153*(1+'Sup Generales'!K$10)","v":52.468201939598778},{"$f":"+AN153*$E153*$G153*(1+'Sup Generales'!L$10)","v":70.893686034827823},{"$f":"+AO153*$E153*$G153*(1+'Sup Generales'!M$10)","v":71.819083702248705},{"$f":"+AP153*$E153*$G153*(1+'Sup Generales'!N$10)","v":72.640333502489682},{"$f":"+AQ153*$E153*$G153*(1+'Sup Generales'!O$10)","v":55.151683946082493},{"$f":"+AR153*$E153*$G153*(1+'Sup Generales'!P$10)","v":74.530323546654969},{"$f":"+AS153*$E153*$G153*(1+'Sup Generales'!Q$10)","v":75.602130819956386},{"$f":"+AT153*$E153*$G153*(1+'Sup Generales'!R$10)","v":76.641812672303899},{"$f":"+AU153*$E153*$G153*(1+'Sup Generales'!S$10)","v":58.245964005760939},{"$f":"+AV153*$E153*$G153*(1+'Sup Generales'!T$10)","v":78.682098200463656},{"$f":"+AW153*$E153*$G153*(1+'Sup Generales'!U$10)","v":79.714004973207238},{"$f":"+AX153*$E153*$G153*(1+'Sup Generales'!V$10)","v":80.760058590629129},null,3,{"$f":"ROUNDDOWN(K$139/$F153,0)-SUM($AE153:AE153)","v":4},{"$f":"ROUNDDOWN(L$139/$F153,0)-SUM($AE153:AF153)","v":4},{"$f":"ROUNDDOWN(M$139/$F153,0)-SUM($AE153:AG153)","v":4},{"$f":"ROUNDDOWN(N$139/$F153,0)-SUM($AE153:AH153)","v":3},{"$f":"ROUNDDOWN(O$139/$F153,0)-SUM($AE153:AI153)","v":4},{"$f":"ROUNDDOWN(P$139/$F153,0)-SUM($AE153:AJ153)","v":4},{"$f":"ROUNDDOWN(Q$139/$F153,0)-SUM($AE153:AK153)","v":4},{"$f":"ROUNDDOWN(R$139/$F153,0)-SUM($AE153:AL153)","v":3},{"$f":"ROUNDDOWN(S$139/$F153,0)-SUM($AE153:AM153)","v":4},{"$f":"ROUNDDOWN(T$139/$F153,0)-SUM($AE153:AN153)","v":4},{"$f":"ROUNDDOWN(U$139/$F153,0)-SUM($AE153:AO153)","v":4},{"$f":"ROUNDDOWN(V$139/$F153,0)-SUM($AE153:AP153)","v":3},{"$f":"ROUNDDOWN(W$139/$F153,0)-SUM($AE153:AQ153)","v":4},{"$f":"ROUNDDOWN(X$139/$F153,0)-SUM($AE153:AR153)","v":4},{"$f":"ROUNDDOWN(Y$139/$F153,0)-SUM($AE153:AS153)","v":4},{"$f":"ROUNDDOWN(Z$139/$F153,0)-SUM($AE153:AT153)","v":3},{"$f":"ROUNDDOWN(AA$139/$F153,0)-SUM($AE153:AU153)","v":4},{"$f":"ROUNDDOWN(AB$139/$F153,0)-SUM($AE153:AV153)","v":4},{"$f":"ROUNDDOWN(AC$139/$F153,0)-SUM($AE153:AW153)","v":4}]
[null,13,"DESCARBONIZACION COMPRESOR AIRE","UD.",1,30000,27.5,"Aceites y filtros ",null,{"$f":"+AE154*$E154*$G154*(1+'Sup Generales'!C$10)","v":84.48},{"$f":"+AF154*$E154*$G154*(1+'Sup Generales'!D$10)","v":114.44224},{"$f":"+AG154*$E154*$G154*(1+'Sup Generales'!E$10)","v":117.41773824000001},{"$f":"+AH154*$E154*$G154*(1+'Sup Generales'!F$10)","v":117.92498286919682},{"$f":"+AI154*$E154*$G154*(1+'Sup Generales'!G$10)","v":88.682535242207734},{"$f":"+AJ154*$E154*$G154*(1+'Sup Generales'!H$10)","v":119.03561097110736},{"$f":"+AK154*$E154*$G154*(1+'Sup Generales'!I$10)","v":121.34624097457028},{"$f":"+AL154*$E154*$G154*(1+'Sup Generales'!J$10)","v":123.4520722642329},{"$f":"+AM154*$E154*$G154*(1+'Sup Generales'!K$10)","v":93.937210503838955},{"$f":"+AN154*$E154*$G154*(1+'Sup Generales'!L$10)","v":126.92554465870866},{"$f":"+AO154*$E154*$G154*(1+'Sup Generales'!M$10)","v":128.58234386795829},{"$f":"+AP154*$E154*$G154*(1+'Sup Generales'!N$10)","v":130.0526804243793},{"$f":"+AQ154*$E154*$G154*(1+'Sup Generales'!O$10)","v":98.741621648259667},{"$f":"+AR154*$E154*$G154*(1+'Sup Generales'!P$10)","v":133.43645166230544},{"$f":"+AS154*$E154*$G154*(1+'Sup Generales'!Q$10)","v":135.35537744458335},{"$f":"+AT154*$E154*$G154*(1+'Sup Generales'!R$10)","v":137.21678701096073},{"$f":"+AU154*$E154*$G154*(1+'Sup Generales'!S$10)","v":104.2815110780225},{"$f":"+AV154*$E154*$G154*(1+'Sup Generales'!T$10)","v":140.86964196046554},{"$f":"+AW154*$E154*$G154*(1+'Sup Generales'!U$10)","v":142.71713129968745},{"$f":"+AX154*$E154*$G154*(1+'Sup Generales'!V$10)","v":144.5899486485873},null,3,{"$f":"ROUNDDOWN(K$139/$F154,0)-SUM($AE154:AE154)","v":4},{"$f":"ROUNDDOWN(L$139/$F154,0)-SUM($AE154:AF154)","v":4},{"$f":"ROUNDDOWN(M$139/$F154,0)-SUM($AE154:AG154)","v":4},{"$f":"ROUNDDOWN(N$139/$F154,0)-SUM($AE154:AH154)","v":3},{"$f":"ROUNDDOWN(O$139/$F154,0)-SUM($AE154:AI154)","v":4},{"$f":"ROUNDDOWN(P$139/$F154,0)-SUM($AE154:AJ154)","v":4},{"$f":"ROUNDDOWN(Q$139/$F154,0)-SUM($AE154:AK154)","v":4},{"$f":"ROUNDDOWN(R$139/$F154,0)-SUM($AE154:AL154)","v":3},{"$f":"ROUNDDOWN(S$139/$F154,0)-SUM($AE154:AM154)","v":4},{"$f":"ROUNDDOWN(T$139/$F154,0)-SUM($AE154:AN154)","v":4},{"$f":"ROUNDDOWN(U$139/$F154,0)-SUM($AE154:AO154)","v":4},{"$f":"ROUNDDOWN(V$139/$F154,0)-SUM($AE154:AP154)","v":3},{"$f":"ROUNDDOWN(W$139/$F154,0)-SUM($AE154:AQ154)","v":4},{"$f":"ROUNDDOWN(X$139/$F154,0)-SUM($AE154:AR154)","v":4},{"$f":"ROUNDDOWN(Y$139/$F154,0)-SUM($AE154:AS154)","v":4},{"$f":"ROUNDDOWN(Z$139/$F154,0)-SUM($AE154:AT154)","v":3},{"$f":"ROUNDDOWN(AA$139/$F154,0)-SUM($AE154:AU154)","v":4},{"$f":"ROUNDDOWN(AB$139/$F154,0)-SUM($AE154:AV154)","v":4},{"$f":"ROUNDDOWN(AC$139/$F154,0)-SUM($AE154:AW154)","v":4}]
[null,14,"BANDAS","JGO.",1,30000,31.708571428571428,"Costo de mantenimiento mecánico",null,{"$f":"+AE155*$E155*$G155*(1+'Sup Generales'!C$10)","v":97.408731428571429},{"$f":"+AF155*$E155*$G155*(1+'Sup Generales'!D$10)","v":131.95636150857143},{"$f":"+AG155*$E155*$G155*(1+'Sup Generales'!E$10)","v":135.38722690779429},{"$f":"+AH155*$E155*$G155*(1+'Sup Generales'!F$10)","v":135.97209972803597},{"$f":"+AI155*$E155*$G155*(1+'Sup Generales'!G$10)","v":102.25441829797624},{"$f":"+AJ155*$E155*$G155*(1+'Sup Generales'!H$10)","v":137.25269720076358},{"$f":"+AK155*$E155*$G155*(1+'Sup Generales'!I$10)","v":139.91694361930192},{"$f":"+AL155*$E155*$G155*(1+'Sup Generales'!J$10)","v":142.34504914165785},{"$f":"+AM155*$E155*$G155*(1+'Sup Generales'!K$10)","v":108.31326360224463},{"$f":"+AN155*$E155*$G155*(1+'Sup Generales'!L$10)","v":146.35009814258169},{"$f":"+AO155*$E155*$G155*(1+'Sup Generales'!M$10)","v":148.26045218146504},{"$f":"+AP155*$E155*$G155*(1+'Sup Generales'!N$10)","v":149.95580751685833},{"$f":"+AQ155*$E155*$G155*(1+'Sup Generales'!O$10)","v":113.85293683661151},{"$f":"+AR155*$E155*$G155*(1+'Sup Generales'!P$10)","v":153.85742758943022},{"$f":"+AS155*$E155*$G155*(1+'Sup Generales'!Q$10)","v":156.07002377973882},{"$f":"+AT155*$E155*$G155*(1+'Sup Generales'!R$10)","v":158.21630153222259},{"$f":"+AU155*$E155*$G155*(1+'Sup Generales'!S$10)","v":120.24064518897596},{"$f":"+AV155*$E155*$G155*(1+'Sup Generales'!T$10)","v":162.42818560802561},{"$f":"+AW155*$E155*$G155*(1+'Sup Generales'!U$10)","v":164.55841279625258},{"$f":"+AX155*$E155*$G155*(1+'Sup Generales'!V$10)","v":166.71784416644383},null,3,{"$f":"ROUNDDOWN(K$139/$F155,0)-SUM($AE155:AE155)","v":4},{"$f":"ROUNDDOWN(L$139/$F155,0)-SUM($AE155:AF155)","v":4},{"$f":"ROUNDDOWN(M$139/$F155,0)-SUM($AE155:AG155)","v":4},{"$f":"ROUNDDOWN(N$139/$F155,0)-SUM($AE155:AH155)","v":3},{"$f":"ROUNDDOWN(O$139/$F155,0)-SUM($AE155:AI155)","v":4},{"$f":"ROUNDDOWN(P$139/$F155,0)-SUM($AE155:AJ155)","v":4},{"$f":"ROUNDDOWN(Q$139/$F155,0)-SUM($AE155:AK155)","v":4},{"$f":"ROUNDDOWN(R$139/$F155,0)-SUM($AE155:AL155)","v":3},{"$f":"ROUNDDOWN(S$139/$F155,0)-SUM($AE155:AM155)","v":4},{"$f":"ROUNDDOWN(T$139/$F155,0)-SUM($AE155:AN155)","v":4},{"$f":"ROUNDDOWN(U$139/$F155,0)-SUM($AE155:AO155)","v":4},{"$f":"ROUNDDOWN(V$139/$F155,0)-SUM($AE155:AP155)","v":3},{"$f":"ROUNDDOWN(W$139/$F155,0)-SUM($AE155:AQ155)","v":4},{"$f":"ROUNDDOWN(X$139/$F155,0)-SUM($AE155:AR155)","v":4},{"$f":"ROUNDDOWN(Y$139/$F155,0)-SUM($AE155:AS155)","v":4},{"$f":"ROUNDDOWN(Z$139/$F155,0)-SUM($AE155:AT155)","v":3},{"$f":"ROUNDDOWN(AA$139/$F155,0)-SUM($AE155:AU155)","v":4},{"$f":"ROUNDDOWN(AB$139/$F155,0)-SUM($AE155:AV155)","v":4},{"$f":"ROUNDDOWN(AC$139/$F155,0)-SUM($AE155:AW155)","v":4}]
[null,15,"CAMBIO DE TOBERAS DE INYECTORES","JGO.",1,120000,213.86666666666667,"Costo de mantenimiento mecánico",null,{"$f":"+AE156*$E156*$G156*(1+'Sup Generales'!C$10)","v":0},{"$f":"+AF156*$E156*$G156*(1+'Sup Generales'!D$10)","v":222.50345813333334},{"$f":"+AG156*$E156*$G156*(1+'Sup Generales'!E$10)","v":228.2885480448},{"$f":"+AH156*$E156*$G156*(1+'Sup Generales'!F$10)","v":229.27475457235357},{"$f":"+AI156*$E156*$G156*(1+'Sup Generales'!G$10)","v":229.89379640969892},{"$f":"+AJ156*$E156*$G156*(1+'Sup Generales'!H$10)","v":231.43408484564389},{"$f":"+AK156*$E156*$G156*(1+'Sup Generales'!I$10)","v":235.92650972510393},{"$f":"+AL156*$E156*$G156*(1+'Sup Generales'!J$10)","v":240.02075625676312},{"$f":"+AM156*$E156*$G156*(1+'Sup Generales'!K$10)","v":243.51561316873969},{"$f":"+AN156*$E156*$G156*(1+'Sup Generales'!L$10)","v":246.77402864553781},{"$f":"+AO156*$E156*$G156*(1+'Sup Generales'!M$10)","v":249.99524795661222},{"$f":"+AP156*$E156*$G156*(1+'Sup Generales'!N$10)","v":252.85393866752048},{"$f":"+AQ156*$E156*$G156*(1+'Sup Generales'!O$10)","v":255.97019979605415},{"$f":"+AR156*$E156*$G156*(1+'Sup Generales'!P$10)","v":259.4328102622278},{"$f":"+AS156*$E156*$G156*(1+'Sup Generales'!Q$10)","v":263.16366717710508},{"$f":"+AT156*$E156*$G156*(1+'Sup Generales'!R$10)","v":266.7826986249467},{"$f":"+AU156*$E156*$G156*(1+'Sup Generales'!S$10)","v":0},{"$f":"+AV156*$E156*$G156*(1+'Sup Generales'!T$10)","v":273.88473418737783},{"$f":"+AW156*$E156*$G156*(1+'Sup Generales'!U$10)","v":277.47670133902869},{"$f":"+AX156*$E156*$G156*(1+'Sup Generales'!V$10)","v":281.11791228161701},null,0,{"$f":"ROUNDDOWN(K$139/$F156,0)-SUM($AE156:AE156)","v":1},{"$f":"ROUNDDOWN(L$139/$F156,0)-SUM($AE156:AF156)","v":1},{"$f":"ROUNDDOWN(M$139/$F156,0)-SUM($AE156:AG156)","v":1},{"$f":"ROUNDDOWN(N$139/$F156,0)-SUM($AE156:AH156)","v":1},{"$f":"ROUNDDOWN(O$139/$F156,0)-SUM($AE156:AI156)","v":1},{"$f":"ROUNDDOWN(P$139/$F156,0)-SUM($AE156:AJ156)","v":1},{"$f":"ROUNDDOWN(Q$139/$F156,0)-SUM($AE156:AK156)","v":1},{"$f":"ROUNDDOWN(R$139/$F156,0)-SUM($AE156:AL156)","v":1},{"$f":"ROUNDDOWN(S$139/$F156,0)-SUM($AE156:AM156)","v":1},{"$f":"ROUNDDOWN(T$139/$F156,0)-SUM($AE156:AN156)","v":1},{"$f":"ROUNDDOWN(U$139/$F156,0)-SUM($AE156:AO156)","v":1},{"$f":"ROUNDDOWN(V$139/$F156,0)-SUM($AE156:AP156)","v":1},{"$f":"ROUNDDOWN(W$139/$F156,0)-SUM($AE156:AQ156)","v":1},{"$f":"ROUNDDOWN(X$139/$F156,0)-SUM($AE156:AR156)","v":1},{"$f":"ROUNDDOWN(Y$139/$F156,0)-SUM($AE156:AS156)","v":1},{"$f":"ROUNDDOWN(Z$139/$F156,0)-SUM($AE156:AT156)","v":0},{"$f":"ROUNDDOWN(AA$139/$F156,0)-SUM($AE156:AU156)","v":1},{"$f":"ROUNDDOWN(AB$139/$F156,0)-SUM($AE156:AV156)","v":1},{"$f":"ROUNDDOWN(AC$139/$F156,0)-SUM($AE156:AW156)","v":1}]
[null,16,"CALIBRACIÓN DE LA BOMBA DE INYECCIÓN","UND",1,150000,296.2,"Costo de mantenimiento mecánico",null,{"$f":"+AE157*$E157*$G157*(1+'Sup Generales'!C$10)","v":0},{"$f":"+AF157*$E157*$G157*(1+'Sup Generales'!D$10)","v":308.16174079999996},{"$f":"+AG157*$E157*$G157*(1+'Sup Generales'!E$10)","v":316.17394606080001},{"$f":"+AH157*$E157*$G157*(1+'Sup Generales'!F$10)","v":317.53981750778269},{"$f":"+AI157*$E157*$G157*(1+'Sup Generales'!G$10)","v":0},{"$f":"+AJ157*$E157*$G157*(1+'Sup Generales'!H$10)","v":320.53043608765455},{"$f":"+AK157*$E157*$G157*(1+'Sup Generales'!I$10)","v":326.75233251516107},{"$f":"+AL157*$E157*$G157*(1+'Sup Generales'!J$10)","v":332.42276186059803},{"$f":"+AM157*$E157*$G157*(1+'Sup Generales'!K$10)","v":0},{"$f":"+AN157*$E157*$G157*(1+'Sup Generales'!L$10)","v":341.77587570826819},{"$f":"+AO157*$E157*$G157*(1+'Sup Generales'!M$10)","v":346.23718412444765},{"$f":"+AP157*$E157*$G157*(1+'Sup Generales'!N$10)","v":350.19639947001042},{"$f":"+AQ157*$E157*$G157*(1+'Sup Generales'!O$10)","v":0},{"$f":"+AR157*$E157*$G157*(1+'Sup Generales'!P$10)","v":359.30797256704426},{"$f":"+AS157*$E157*$G157*(1+'Sup Generales'!Q$10)","v":364.47511635532351},{"$f":"+AT157*$E157*$G157*(1+'Sup Generales'!R$10)","v":369.48738466042334},{"$f":"+AU157*$E157*$G157*(1+'Sup Generales'!S$10)","v":0},{"$f":"+AV157*$E157*$G157*(1+'Sup Generales'!T$10)","v":379.32352680627173},{"$f":"+AW157*$E157*$G157*(1+'Sup Generales'!U$10)","v":384.29831173606743},{"$f":"+AX157*$E157*$G157*(1+'Sup Generales'!V$10)","v":389.34129808828686},null,0,{"$f":"ROUNDDOWN(K$139/$F157,0)-SUM($AE157:AE157)","v":1},{"$f":"ROUNDDOWN(L$139/$F157,0)-SUM($AE157:AF157)","v":1},{"$f":"ROUNDDOWN(M$139/$F157,0)-SUM($AE157:AG157)","v":1},{"$f":"ROUNDDOWN(N$139/$F157,0)-SUM($AE157:AH157)","v":0},{"$f":"ROUNDDOWN(O$139/$F157,0)-SUM($AE157:AI157)","v":1},{"$f":"ROUNDDOWN(P$139/$F157,0)-SUM($AE157:AJ157)","v":1},{"$f":"ROUNDDOWN(Q$139/$F157,0)-SUM($AE157:AK157)","v":1},{"$f":"ROUNDDOWN(R$139/$F157,0)-SUM($AE157:AL157)","v":0},{"$f":"ROUNDDOWN(S$139/$F157,0)-SUM($AE157:AM157)","v":1},{"$f":"ROUNDDOWN(T$139/$F157,0)-SUM($AE157:AN157)","v":1},{"$f":"ROUNDDOWN(U$139/$F157,0)-SUM($AE157:AO157)","v":1},{"$f":"ROUNDDOWN(V$139/$F157,0)-SUM($AE157:AP157)","v":0},{"$f":"ROUNDDOWN(W$139/$F157,0)-SUM($AE157:AQ157)","v":1},{"$f":"ROUNDDOWN(X$139/$F157,0)-SUM($AE157:AR157)","v":1},{"$f":"ROUNDDOWN(Y$139/$F157,0)-SUM($AE157:AS157)","v":1},{"$f":"ROUNDDOWN(Z$139/$F157,0)-SUM($AE157:AT157)","v":0},{"$f":"ROUNDDOWN(AA$139/$F157,0)-SUM($AE157:AU157)","v":1},{"$f":"ROUNDDOWN(AB$139/$F157,0)-SUM($AE157:AV157)","v":1},{"$f":"ROUNDDOWN(AC$139/$F157,0)-SUM($AE157:AW157)","v":1}]
[null,17,"EMBRAGUE","JGO.",1,60000,728.33333333333337,"Costo de mantenimiento mecánico",null,{"$f":"+AE158*$E158*$G158*(1+'Sup Generales'!C$10)","v":745.81333333333339},{"$f":"+AF158*$E158*$G158*(1+'Sup Generales'!D$10)","v":1515.4926933333334},{"$f":"+AG158*$E158*$G158*(1+'Sup Generales'!E$10)","v":1554.89550336},{"$f":"+AH158*$E158*$G158*(1+'Sup Generales'!F$10)","v":1561.6126519345155},{"$f":"+AI158*$E158*$G158*(1+'Sup Generales'!G$10)","v":1565.8290060947386},{"$f":"+AJ158*$E158*$G158*(1+'Sup Generales'!H$10)","v":1576.3200604355734},{"$f":"+AK158*$E158*$G158*(1+'Sup Generales'!I$10)","v":1606.9184032087035},{"$f":"+AL158*$E158*$G158*(1+'Sup Generales'!J$10)","v":1634.8047145293872},{"$f":"+AM158*$E158*$G158*(1+'Sup Generales'!K$10)","v":829.30426242783074},{"$f":"+AN158*$E158*$G158*(1+'Sup Generales'!L$10)","v":1680.8019095713844},{"$f":"+AO158*$E158*$G158*(1+'Sup Generales'!M$10)","v":1702.741947584781},{"$f":"+AP158*$E158*$G158*(1+'Sup Generales'!N$10)","v":1722.2127680440533},{"$f":"+AQ158*$E158*$G158*(1+'Sup Generales'!O$10)","v":1743.4379256682616},{"$f":"+AR158*$E158*$G158*(1+'Sup Generales'!P$10)","v":1767.0221023159843},{"$f":"+AS158*$E158*$G158*(1+'Sup Generales'!Q$10)","v":1792.4333316146342},{"$f":"+AT158*$E158*$G158*(1+'Sup Generales'!R$10)","v":1817.0829067815105},{"$f":"+AU158*$E158*$G158*(1+'Sup Generales'!S$10)","v":920.6266735574917},{"$f":"+AV158*$E158*$G158*(1+'Sup Generales'!T$10)","v":1865.4555617188921},{"$f":"+AW158*$E158*$G158*(1+'Sup Generales'!U$10)","v":1889.9207993322248},{"$f":"+AX158*$E158*$G158*(1+'Sup Generales'!V$10)","v":1914.7214411949287},null,1,{"$f":"ROUNDDOWN(K$139/$F158,0)-SUM($AE158:AE158)","v":2},{"$f":"ROUNDDOWN(L$139/$F158,0)-SUM($AE158:AF158)","v":2},{"$f":"ROUNDDOWN(M$139/$F158,0)-SUM($AE158:AG158)","v":2},{"$f":"ROUNDDOWN(N$139/$F158,0)-SUM($AE158:AH158)","v":2},{"$f":"ROUNDDOWN(O$139/$F158,0)-SUM($AE158:AI158)","v":2},{"$f":"ROUNDDOWN(P$139/$F158,0)-SUM($AE158:AJ158)","v":2},{"$f":"ROUNDDOWN(Q$139/$F158,0)-SUM($AE158:AK158)","v":2},{"$f":"ROUNDDOWN(R$139/$F158,0)-SUM($AE158:AL158)","v":1},{"$f":"ROUNDDOWN(S$139/$F158,0)-SUM($AE158:AM158)","v":2},{"$f":"ROUNDDOWN(T$139/$F158,0)-SUM($AE158:AN158)","v":2},{"$f":"ROUNDDOWN(U$139/$F158,0)-SUM($AE158:AO158)","v":2},{"$f":"ROUNDDOWN(V$139/$F158,0)-SUM($AE158:AP158)","v":2},{"$f":"ROUNDDOWN(W$139/$F158,0)-SUM($AE158:AQ158)","v":2},{"$f":"ROUNDDOWN(X$139/$F158,0)-SUM($AE158:AR158)","v":2},{"$f":"ROUNDDOWN(Y$139/$F158,0)-SUM($AE158:AS158)","v":2},{"$f":"ROUNDDOWN(Z$139/$F158,0)-SUM($AE158:AT158)","v":1},{"$f":"ROUNDDOWN(AA$139/$F158,0)-SUM($AE158:AU158)","v":2},{"$f":"ROUNDDOWN(AB$139/$F158,0)-SUM($AE158:AV158)","v":2},{"$f":"ROUNDDOWN(AC$139/$F158,0)-SUM($AE158:AW158)","v":2}]
[null,18,"BUSTER EMBRAGUE","JGO.",1,30000,175,"Costo de mantenimiento mecánico",null,{"$f":"+AE159*$E159*$G159*(1+'Sup Generales'!C$10)","v":537.6},{"$f":"+AF159*$E159*$G159*(1+'Sup Generales'!D$10)","v":728.26879999999994},{"$f":"+AG159*$E159*$G159*(1+'Sup Generales'!E$10)","v":747.20378879999998},{"$f":"+AH159*$E159*$G159*(1+'Sup Generales'!F$10)","v":750.43170916761608},{"$f":"+AI159*$E159*$G159*(1+'Sup Generales'!G$10)","v":564.34340608677644},{"$f":"+AJ159*$E159*$G159*(1+'Sup Generales'!H$10)","v":757.49934254341042},{"$f":"+AK159*$E159*$G159*(1+'Sup Generales'!I$10)","v":772.20335165635629},{"$f":"+AL159*$E159*$G159*(1+'Sup Generales'!J$10)","v":785.60409622693658},{"$f":"+AM159*$E159*$G159*(1+'Sup Generales'!K$10)","v":597.78224866079336},{"$f":"+AN159*$E159*$G159*(1+'Sup Generales'!L$10)","v":807.70801146450958},{"$f":"+AO159*$E159*$G159*(1+'Sup Generales'!M$10)","v":818.25127915973451},{"$f":"+AP159*$E159*$G159*(1+'Sup Generales'!N$10)","v":827.60796633695918},{"$f":"+AQ159*$E159*$G159*(1+'Sup Generales'!O$10)","v":628.3557741252888},{"$f":"+AR159*$E159*$G159*(1+'Sup Generales'!P$10)","v":849.14105603285282},{"$f":"+AS159*$E159*$G159*(1+'Sup Generales'!Q$10)","v":861.35240192007586},{"$f":"+AT159*$E159*$G159*(1+'Sup Generales'!R$10)","v":873.19773552429558},{"$f":"+AU159*$E159*$G159*(1+'Sup Generales'!S$10)","v":663.60961595105232},{"$f":"+AV159*$E159*$G159*(1+'Sup Generales'!T$10)","v":896.44317611205338},{"$f":"+AW159*$E159*$G159*(1+'Sup Generales'!U$10)","v":908.19992645255638},{"$f":"+AX159*$E159*$G159*(1+'Sup Generales'!V$10)","v":920.11785503646456},null,3,{"$f":"ROUNDDOWN(K$139/$F159,0)-SUM($AE159:AE159)","v":4},{"$f":"ROUNDDOWN(L$139/$F159,0)-SUM($AE159:AF159)","v":4},{"$f":"ROUNDDOWN(M$139/$F159,0)-SUM($AE159:AG159)","v":4},{"$f":"ROUNDDOWN(N$139/$F159,0)-SUM($AE159:AH159)","v":3},{"$f":"ROUNDDOWN(O$139/$F159,0)-SUM($AE159:AI159)","v":4},{"$f":"ROUNDDOWN(P$139/$F159,0)-SUM($AE159:AJ159)","v":4},{"$f":"ROUNDDOWN(Q$139/$F159,0)-SUM($AE159:AK159)","v":4},{"$f":"ROUNDDOWN(R$139/$F159,0)-SUM($AE159:AL159)","v":3},{"$f":"ROUNDDOWN(S$139/$F159,0)-SUM($AE159:AM159)","v":4},{"$f":"ROUNDDOWN(T$139/$F159,0)-SUM($AE159:AN159)","v":4},{"$f":"ROUNDDOWN(U$139/$F159,0)-SUM($AE159:AO159)","v":4},{"$f":"ROUNDDOWN(V$139/$F159,0)-SUM($AE159:AP159)","v":3},{"$f":"ROUNDDOWN(W$139/$F159,0)-SUM($AE159:AQ159)","v":4},{"$f":"ROUNDDOWN(X$139/$F159,0)-SUM($AE159:AR159)","v":4},{"$f":"ROUNDDOWN(Y$139/$F159,0)-SUM($AE159:AS159)","v":4},{"$f":"ROUNDDOWN(Z$139/$F159,0)-SUM($AE159:AT159)","v":3},{"$f":"ROUNDDOWN(AA$139/$F159,0)-SUM($AE159:AU159)","v":4},{"$f":"ROUNDDOWN(AB$139/$F159,0)-SUM($AE159:AV159)","v":4},{"$f":"ROUNDDOWN(AC$139/$F159,0)-SUM($AE159:AW159)","v":4}]
[null,19,"SOPORTE DE CARDAN Y CRUCETAS","JGO.",1,30000,176.506,"Costo de mantenimiento mecánico",null,{"$f":"+AE160*$E160*$G160*(1+'Sup Generales'!C$10)","v":542.22643200000005},{"$f":"+AF160*$E160*$G160*(1+'Sup Generales'!D$10)","v":734.53607321599998},{"$f":"+AG160*$E160*$G160*(1+'Sup Generales'!E$10)","v":753.63401111961605},{"$f":"+AH160*$E160*$G160*(1+'Sup Generales'!F$10)","v":756.8897100476529},{"$f":"+AI160*$E160*$G160*(1+'Sup Generales'!G$10)","v":569.19998419858621},{"$f":"+AJ160*$E160*$G160*(1+'Sup Generales'!H$10)","v":764.01816545695544},{"$f":"+AK160*$E160*$G160*(1+'Sup Generales'!I$10)","v":778.84871307118192},{"$f":"+AL160*$E160*$G160*(1+'Sup Generales'!J$10)","v":792.36478062075241},{"$f":"+AM160*$E160*$G160*(1+'Sup Generales'!K$10)","v":602.9265918978399},{"$f":"+AN160*$E160*$G160*(1+'Sup Generales'!L$10)","v":814.65891583745565},{"$f":"+AO160*$E160*$G160*(1+'Sup Generales'!M$10)","v":825.29291588210344},{"$f":"+AP160*$E160*$G160*(1+'Sup Generales'!N$10)","v":834.73012403583607},{"$f":"+AQ160*$E160*$G160*(1+'Sup Generales'!O$10)","v":633.76322438718989},{"$f":"+AR160*$E160*$G160*(1+'Sup Generales'!P$10)","v":856.44852134934126},{"$f":"+AS160*$E160*$G160*(1+'Sup Generales'!Q$10)","v":868.76495459031378},{"$f":"+AT160*$E160*$G160*(1+'Sup Generales'!R$10)","v":880.71222575115041},{"$f":"+AU160*$E160*$G160*(1+'Sup Generales'!S$10)","v":669.32045070317963},{"$f":"+AV160*$E160*$G160*(1+'Sup Generales'!T$10)","v":904.157709959052},{"$f":"+AW160*$E160*$G160*(1+'Sup Generales'!U$10)","v":916.01563553391384},{"$f":"+AX160*$E160*$G160*(1+'Sup Generales'!V$10)","v":928.03612640609265},null,3,{"$f":"ROUNDDOWN(K$139/$F160,0)-SUM($AE160:AE160)","v":4},{"$f":"ROUNDDOWN(L$139/$F160,0)-SUM($AE160:AF160)","v":4},{"$f":"ROUNDDOWN(M$139/$F160,0)-SUM($AE160:AG160)","v":4},{"$f":"ROUNDDOWN(N$139/$F160,0)-SUM($AE160:AH160)","v":3},{"$f":"ROUNDDOWN(O$139/$F160,0)-SUM($AE160:AI160)","v":4},{"$f":"ROUNDDOWN(P$139/$F160,0)-SUM($AE160:AJ160)","v":4},{"$f":"ROUNDDOWN(Q$139/$F160,0)-SUM($AE160:AK160)","v":4},{"$f":"ROUNDDOWN(R$139/$F160,0)-SUM($AE160:AL160)","v":3},{"$f":"ROUNDDOWN(S$139/$F160,0)-SUM($AE160:AM160)","v":4},{"$f":"ROUNDDOWN(T$139/$F160,0)-SUM($AE160:AN160)","v":4},{"$f":"ROUNDDOWN(U$139/$F160,0)-SUM($AE160:AO160)","v":4},{"$f":"ROUNDDOWN(V$139/$F160,0)-SUM($AE160:AP160)","v":3},{"$f":"ROUNDDOWN(W$139/$F160,0)-SUM($AE160:AQ160)","v":4},{"$f":"ROUNDDOWN(X$139/$F160,0)-SUM($AE160:AR160)","v":4},{"$f":"ROUNDDOWN(Y$139/$F160,0)-SUM($AE160:AS160)","v":4},{"$f":"ROUNDDOWN(Z$139/$F160,0)-SUM($AE160:AT160)","v":3},{"$f":"ROUNDDOWN(AA$139/$F160,0)-SUM($AE160:AU160)","v":4},{"$f":"ROUNDDOWN(AB$139/$F160,0)-SUM($AE160:AV160)","v":4},{"$f":"ROUNDDOWN(AC$139/$F160,0)-SUM($AE160:AW160)","v":4}]
[null,20,"MANTENIMIENTO SISTEMA NEUMÁTICO","UND",1,30000,137.75,"Costo de mantenimiento mecánico",null,{"$f":"+AE161*$E161*$G161*(1+'Sup Generales'!C$10)","v":423.16800000000001},{"$f":"+AF161*$E161*$G161*(1+'Sup Generales'!D$10)","v":573.25158399999998},{"$f":"+AG161*$E161*$G161*(1+'Sup Generales'!E$10)","v":588.15612518399996},{"$f":"+AH161*$E161*$G161*(1+'Sup Generales'!F$10)","v":590.69695964479502},{"$f":"+AI161*$E161*$G161*(1+'Sup Generales'!G$10)","v":444.21888107687693},{"$f":"+AJ161*$E161*$G161*(1+'Sup Generales'!H$10)","v":596.26019677345596},{"$f":"+AK161*$E161*$G161*(1+'Sup Generales'!I$10)","v":607.83435251807475},{"$f":"+AL161*$E161*$G161*(1+'Sup Generales'!J$10)","v":618.38265288720299},{"$f":"+AM161*$E161*$G161*(1+'Sup Generales'!K$10)","v":470.54002716013872},{"$f":"+AN161*$E161*$G161*(1+'Sup Generales'!L$10)","v":635.78159188134975},{"$f":"+AO161*$E161*$G161*(1+'Sup Generales'!M$10)","v":644.08064973859098},{"$f":"+AP161*$E161*$G161*(1+'Sup Generales'!N$10)","v":651.44569921666357},{"$f":"+AQ161*$E161*$G161*(1+'Sup Generales'!O$10)","v":494.60575934719162},{"$f":"+AR161*$E161*$G161*(1+'Sup Generales'!P$10)","v":668.39531696300264},{"$f":"+AS161*$E161*$G161*(1+'Sup Generales'!Q$10)","v":678.00739065423113},{"$f":"+AT161*$E161*$G161*(1+'Sup Generales'!R$10)","v":687.33136039126703},{"$f":"+AU161*$E161*$G161*(1+'Sup Generales'!S$10)","v":522.3555691271855},{"$f":"+AV161*$E161*$G161*(1+'Sup Generales'!T$10)","v":705.62884291105911},{"$f":"+AW161*$E161*$G161*(1+'Sup Generales'!U$10)","v":714.88308496479794},{"$f":"+AX161*$E161*$G161*(1+'Sup Generales'!V$10)","v":724.26419732156},null,3,{"$f":"ROUNDDOWN(K$139/$F161,0)-SUM($AE161:AE161)","v":4},{"$f":"ROUNDDOWN(L$139/$F161,0)-SUM($AE161:AF161)","v":4},{"$f":"ROUNDDOWN(M$139/$F161,0)-SUM($AE161:AG161)","v":4},{"$f":"ROUNDDOWN(N$139/$F161,0)-SUM($AE161:AH161)","v":3},{"$f":"ROUNDDOWN(O$139/$F161,0)-SUM($AE161:AI161)","v":4},{"$f":"ROUNDDOWN(P$139/$F161,0)-SUM($AE161:AJ161)","v":4},{"$f":"ROUNDDOWN(Q$139/$F161,0)-SUM($AE161:AK161)","v":4},{"$f":"ROUNDDOWN(R$139/$F161,0)-SUM($AE161:AL161)","v":3},{"$f":"ROUNDDOWN(S$139/$F161,0)-SUM($AE161:AM161)","v":4},{"$f":"ROUNDDOWN(T$139/$F161,0)-SUM($AE161:AN161)","v":4},{"$f":"ROUNDDOWN(U$139/$F161,0)-SUM($AE161:AO161)","v":4},{"$f":"ROUNDDOWN(V$139/$F161,0)-SUM($AE161:AP161)","v":3},{"$f":"ROUNDDOWN(W$139/$F161,0)-SUM($AE161:AQ161)","v":4},{"$f":"ROUNDDOWN(X$139/$F161,0)-SUM($AE161:AR161)","v":4},{"$f":"ROUNDDOWN(Y$139/$F161,0)-SUM($AE161:AS161)","v":4},{"$f":"ROUNDDOWN(Z$139/$F161,0)-SUM($AE161:AT161)","v":3},{"$f":"ROUNDDOWN(AA$139/$F161,0)-SUM($AE161:AU161)","v":4},{"$f":"ROUNDDOWN(AB$139/$F161,0)-SUM($AE161:AV161)","v":4},{"$f":"ROUNDDOWN(AC$139/$F161,0)-SUM($AE161:AW161)","v":4}]
[null,21,"ZAPATAS (JUEGO FORROS 2) X 4","JGO.",4,20000,74.131666666666675,"Costo de mantenimiento mecánico",null,{"$f":"+AE162*$E162*$G162*(1+'Sup Generales'!C$10)","v":1518.2165333333335},{"$f":"+AF162*$E162*$G162*(1+'Sup Generales'!D$10)","v":1851.0095974400003},{"$f":"+AG162*$E162*$G162*(1+'Sup Generales'!E$10)","v":1582.6132058112},{"$f":"+AH162*$E162*$G162*(1+'Sup Generales'!F$10)","v":1907.3401138323659},{"$f":"+AI162*$E162*$G162*(1+'Sup Generales'!G$10)","v":1912.4899321397131},{"$f":"+AJ162*$E162*$G162*(1+'Sup Generales'!H$10)","v":1604.4196789042076},{"$f":"+AK162*$E162*$G162*(1+'Sup Generales'!I$10)","v":1962.6761644756045},{"$f":"+AL162*$E162*$G162*(1+'Sup Generales'!J$10)","v":1996.7362626330241},{"$f":"+AM162*$E162*$G162*(1+'Sup Generales'!K$10)","v":1688.1750246465667},{"$f":"+AN162*$E162*$G162*(1+'Sup Generales'!L$10)","v":2052.9168366817103},{"$f":"+AO162*$E162*$G162*(1+'Sup Generales'!M$10)","v":1733.0951736069444},{"$f":"+AP162*$E162*$G162*(1+'Sup Generales'!N$10)","v":2103.4956991258064},{"$f":"+AQ162*$E162*$G162*(1+'Sup Generales'!O$10)","v":2129.4199220814266},{"$f":"+AR162*$E162*$G162*(1+'Sup Generales'!P$10)","v":1798.5211919659648},{"$f":"+AS162*$E162*$G162*(1+'Sup Generales'!Q$10)","v":2189.2624848573178},{"$f":"+AT162*$E162*$G162*(1+'Sup Generales'!R$10)","v":2219.3692616220087},{"$f":"+AU162*$E162*$G162*(1+'Sup Generales'!S$10)","v":1874.0756893896416},{"$f":"+AV162*$E162*$G162*(1+'Sup Generales'!T$10)","v":2278.4512017307443},{"$f":"+AW162*$E162*$G162*(1+'Sup Generales'!U$10)","v":1923.6106918420601},{"$f":"+AX162*$E162*$G162*(1+'Sup Generales'!V$10)","v":2338.6241185238237},null,5,{"$f":"ROUNDDOWN(K$139/$F162,0)-SUM($AE162:AE162)","v":6},{"$f":"ROUNDDOWN(L$139/$F162,0)-SUM($AE162:AF162)","v":5},{"$f":"ROUNDDOWN(M$139/$F162,0)-SUM($AE162:AG162)","v":6},{"$f":"ROUNDDOWN(N$139/$F162,0)-SUM($AE162:AH162)","v":6},{"$f":"ROUNDDOWN(O$139/$F162,0)-SUM($AE162:AI162)","v":5},{"$f":"ROUNDDOWN(P$139/$F162,0)-SUM($AE162:AJ162)","v":6},{"$f":"ROUNDDOWN(Q$139/$F162,0)-SUM($AE162:AK162)","v":6},{"$f":"ROUNDDOWN(R$139/$F162,0)-SUM($AE162:AL162)","v":5},{"$f":"ROUNDDOWN(S$139/$F162,0)-SUM($AE162:AM162)","v":6},{"$f":"ROUNDDOWN(T$139/$F162,0)-SUM($AE162:AN162)","v":5},{"$f":"ROUNDDOWN(U$139/$F162,0)-SUM($AE162:AO162)","v":6},{"$f":"ROUNDDOWN(V$139/$F162,0)-SUM($AE162:AP162)","v":6},{"$f":"ROUNDDOWN(W$139/$F162,0)-SUM($AE162:AQ162)","v":5},{"$f":"ROUNDDOWN(X$139/$F162,0)-SUM($AE162:AR162)","v":6},{"$f":"ROUNDDOWN(Y$139/$F162,0)-SUM($AE162:AS162)","v":6},{"$f":"ROUNDDOWN(Z$139/$F162,0)-SUM($AE162:AT162)","v":5},{"$f":"ROUNDDOWN(AA$139/$F162,0)-SUM($AE162:AU162)","v":6},{"$f":"ROUNDDOWN(AB$139/$F162,0)-SUM($AE162:AV162)","v":5},{"$f":"ROUNDDOWN(AC$139/$F162,0)-SUM($AE162:AW162)","v":6}]
[null,22,"CAMBIO TAMBORES (JUEGO)","UND",4,180000,151.96125000000001,"Costo de mantenimiento mecánico",null,{"$f":"+AE163*$E163*$G163*(1+'Sup Generales'!C$10)","v":0},{"$f":"+AF163*$E163*$G163*(1+'Sup Generales'!D$10)","v":632.39221248000001},{"$f":"+AG163*$E163*$G163*(1+'Sup Generales'!E$10)","v":0},{"$f":"+AH163*$E163*$G163*(1+'Sup Generales'!F$10)","v":651.63737465569955},{"$f":"+AI163*$E163*$G163*(1+'Sup Generales'!G$10)","v":653.39679556726981},{"$f":"+AJ163*$E163*$G163*(1+'Sup Generales'!H$10)","v":0},{"$f":"+AK163*$E163*$G163*(1+'Sup Generales'!I$10)","v":670.54278041079704},{"$f":"+AL163*$E163*$G163*(1+'Sup Generales'!J$10)","v":682.17931695866048},{"$f":"+AM163*$E163*$G163*(1+'Sup Generales'!K$10)","v":0},{"$f":"+AN163*$E163*$G163*(1+'Sup Generales'!L$10)","v":701.37325175520698},{"$f":"+AO163*$E163*$G163*(1+'Sup Generales'!M$10)","v":0},{"$f":"+AP163*$E163*$G163*(1+'Sup Generales'!N$10)","v":718.65337756869849},{"$f":"+AQ163*$E163*$G163*(1+'Sup Generales'!O$10)","v":727.5103152822594},{"$f":"+AR163*$E163*$G163*(1+'Sup Generales'!P$10)","v":0},{"$f":"+AS163*$E163*$G163*(1+'Sup Generales'!Q$10)","v":747.95535820729788},{"$f":"+AT163*$E163*$G163*(1+'Sup Generales'!R$10)","v":758.24125364252211},{"$f":"+AU163*$E163*$G163*(1+'Sup Generales'!S$10)","v":0},{"$f":"+AV163*$E163*$G163*(1+'Sup Generales'!T$10)","v":778.42643197690154},{"$f":"+AW163*$E163*$G163*(1+'Sup Generales'!U$10)","v":0},{"$f":"+AX163*$E163*$G163*(1+'Sup Generales'!V$10)","v":798.98433942091401},null,0,{"$f":"ROUNDDOWN(K$139/$F163,0)-SUM($AE163:AE163)","v":1},{"$f":"ROUNDDOWN(L$139/$F163,0)-SUM($AE163:AF163)","v":0},{"$f":"ROUNDDOWN(M$139/$F163,0)-SUM($AE163:AG163)","v":1},{"$f":"ROUNDDOWN(N$139/$F163,0)-SUM($AE163:AH163)","v":1},{"$f":"ROUNDDOWN(O$139/$F163,0)-SUM($AE163:AI163)","v":0},{"$f":"ROUNDDOWN(P$139/$F163,0)-SUM($AE163:AJ163)","v":1},{"$f":"ROUNDDOWN(Q$139/$F163,0)-SUM($AE163:AK163)","v":1},{"$f":"ROUNDDOWN(R$139/$F163,0)-SUM($AE163:AL163)","v":0},{"$f":"ROUNDDOWN(S$139/$F163,0)-SUM($AE163:AM163)","v":1},{"$f":"ROUNDDOWN(T$139/$F163,0)-SUM($AE163:AN163)","v":0},{"$f":"ROUNDDOWN(U$139/$F163,0)-SUM($AE163:AO163)","v":1},{"$f":"ROUNDDOWN(V$139/$F163,0)-SUM($AE163:AP163)","v":1},{"$f":"ROUNDDOWN(W$139/$F163,0)-SUM($AE163:AQ163)","v":0},{"$f":"ROUNDDOWN(X$139/$F163,0)-SUM($AE163:AR163)","v":1},{"$f":"ROUNDDOWN(Y$139/$F163,0)-SUM($AE163:AS163)","v":1},{"$f":"ROUNDDOWN(Z$139/$F163,0)-SUM($AE163:AT163)","v":0},{"$f":"ROUNDDOWN(AA$139/$F163,0)-SUM($AE163:AU163)","v":1},{"$f":"ROUNDDOWN(AB$139/$F163,0)-SUM($AE163:AV163)","v":0},{"$f":"ROUNDDOWN(AC$139/$F163,0)-SUM($AE163:AW163)","v":1}]
[null,23,"RACHES DE FRENO","JGO.",4,180000,90.822000000000003,"Costo de mantenimiento mecánico",null,{"$f":"+AE164*$E164*$G164*(1+'Sup Generales'!C$10)","v":0},{"$f":"+AF164*$E164*$G164*(1+'Sup Generales'!D$10)","v":377.959022592},{"$f":"+AG164*$E164*$G164*(1+'Sup Generales'!E$10)","v":0},{"$f":"+AH164*$E164*$G164*(1+'Sup Generales'!F$10)","v":389.46119251440706},{"$f":"+AI164*$E164*$G164*(1+'Sup Generales'!G$10)","v":390.51273773419592},{"$f":"+AJ164*$E164*$G164*(1+'Sup Generales'!H$10)","v":0},{"$f":"+AK164*$E164*$G164*(1+'Sup Generales'!I$10)","v":400.76030173790627},{"$f":"+AL164*$E164*$G164*(1+'Sup Generales'!J$10)","v":407.71505844298764},{"$f":"+AM164*$E164*$G164*(1+'Sup Generales'!K$10)","v":0},{"$f":"+AN164*$E164*$G164*(1+'Sup Generales'!L$10)","v":419.1866115270268},{"$f":"+AO164*$E164*$G164*(1+'Sup Generales'!M$10)","v":0},{"$f":"+AP164*$E164*$G164*(1+'Sup Generales'!N$10)","v":429.51434696374463},{"$f":"+AQ164*$E164*$G164*(1+'Sup Generales'!O$10)","v":434.80783327700556},{"$f":"+AR164*$E164*$G164*(1+'Sup Generales'!P$10)","v":0},{"$f":"+AS164*$E164*$G164*(1+'Sup Generales'!Q$10)","v":447.0271305553436},{"$f":"+AT164*$E164*$G164*(1+'Sup Generales'!R$10)","v":453.17465563307189},{"$f":"+AU164*$E164*$G164*(1+'Sup Generales'!S$10)","v":0},{"$f":"+AV164*$E164*$G164*(1+'Sup Generales'!T$10)","v":465.23864080485095},{"$f":"+AW164*$E164*$G164*(1+'Sup Generales'!U$10)","v":0},{"$f":"+AX164*$E164*$G164*(1+'Sup Generales'!V$10)","v":477.52539331498167},null,0,{"$f":"ROUNDDOWN(K$139/$F164,0)-SUM($AE164:AE164)","v":1},{"$f":"ROUNDDOWN(L$139/$F164,0)-SUM($AE164:AF164)","v":0},{"$f":"ROUNDDOWN(M$139/$F164,0)-SUM($AE164:AG164)","v":1},{"$f":"ROUNDDOWN(N$139/$F164,0)-SUM($AE164:AH164)","v":1},{"$f":"ROUNDDOWN(O$139/$F164,0)-SUM($AE164:AI164)","v":0},{"$f":"ROUNDDOWN(P$139/$F164,0)-SUM($AE164:AJ164)","v":1},{"$f":"ROUNDDOWN(Q$139/$F164,0)-SUM($AE164:AK164)","v":1},{"$f":"ROUNDDOWN(R$139/$F164,0)-SUM($AE164:AL164)","v":0},{"$f":"ROUNDDOWN(S$139/$F164,0)-SUM($AE164:AM164)","v":1},{"$f":"ROUNDDOWN(T$139/$F164,0)-SUM($AE164:AN164)","v":0},{"$f":"ROUNDDOWN(U$139/$F164,0)-SUM($AE164:AO164)","v":1},{"$f":"ROUNDDOWN(V$139/$F164,0)-SUM($AE164:AP164)","v":1},{"$f":"ROUNDDOWN(W$139/$F164,0)-SUM($AE164:AQ164)","v":0},{"$f":"ROUNDDOWN(X$139/$F164,0)-SUM($AE164:AR164)","v":1},{"$f":"ROUNDDOWN(Y$139/$F164,0)-SUM($AE164:AS164)","v":1},{"$f":"ROUNDDOWN(Z$139/$F164,0)-SUM($AE164:AT164)","v":0},{"$f":"ROUNDDOWN(AA$139/$F164,0)-SUM($AE164:AU164)","v":1},{"$f":"ROUNDDOWN(AB$139/$F164,0)-SUM($AE164:AV164)","v":0},{"$f":"ROUNDDOWN(AC$139/$F164,0)-SUM($AE164:AW164)","v":1}]
[null,24,"BATERÍAS","UND",2,60000,195.05857142857141,"Costo de mantenimiento eléctrico ",null,{"$f":"+AE165*$E165*$G165*(1+'Sup Generales'!C$10)","v":399.47995428571426},{"$f":"+AF165*$E165*$G165*(1+'Sup Generales'!D$10)","v":811.74326710857133},{"$f":"+AG165*$E165*$G165*(1+'Sup Generales'!E$10)","v":832.84859205339421},{"$f":"+AH165*$E165*$G165*(1+'Sup Generales'!F$10)","v":836.44649797106501},{"$f":"+AI165*$E165*$G165*(1+'Sup Generales'!G$10)","v":838.70490351558681},{"$f":"+AJ165*$E165*$G165*(1+'Sup Generales'!H$10)","v":844.32422636914123},{"$f":"+AK165*$E165*$G165*(1+'Sup Generales'!I$10)","v":860.71361500824935},{"$f":"+AL165*$E165*$G165*(1+'Sup Generales'!J$10)","v":875.65035839120117},{"$f":"+AM165*$E165*$G165*(1+'Sup Generales'!K$10)","v":444.20019599669865},{"$f":"+AN165*$E165*$G165*(1+'Sup Generales'!L$10)","v":900.28783341531096},{"$f":"+AO165*$E165*$G165*(1+'Sup Generales'!M$10)","v":912.03957475713707},{"$f":"+AP165*$E165*$G165*(1+'Sup Generales'!N$10)","v":922.46872923767125},{"$f":"+AQ165*$E165*$G165*(1+'Sup Generales'!O$10)","v":933.83755923636511},{"$f":"+AR165*$E165*$G165*(1+'Sup Generales'!P$10)","v":946.46995046352436},{"$f":"+AS165*$E165*$G165*(1+'Sup Generales'!Q$10)","v":960.08096580056383},{"$f":"+AT165*$E165*$G165*(1+'Sup Generales'!R$10)","v":973.28401637732929},{"$f":"+AU165*$E165*$G165*(1+'Sup Generales'!S$10)","v":493.11521399495308},{"$f":"+AV165*$E165*$G165*(1+'Sup Generales'!T$10)","v":999.19385885319082},{"$f":"+AW165*$E165*$G165*(1+'Sup Generales'!U$10)","v":1012.2981727163959},{"$f":"+AX165*$E165*$G165*(1+'Sup Generales'!V$10)","v":1025.5821391390523},null,1,{"$f":"ROUNDDOWN(K$139/$F165,0)-SUM($AE165:AE165)","v":2},{"$f":"ROUNDDOWN(L$139/$F165,0)-SUM($AE165:AF165)","v":2},{"$f":"ROUNDDOWN(M$139/$F165,0)-SUM($AE165:AG165)","v":2},{"$f":"ROUNDDOWN(N$139/$F165,0)-SUM($AE165:AH165)","v":2},{"$f":"ROUNDDOWN(O$139/$F165,0)-SUM($AE165:AI165)","v":2},{"$f":"ROUNDDOWN(P$139/$F165,0)-SUM($AE165:AJ165)","v":2},{"$f":"ROUNDDOWN(Q$139/$F165,0)-SUM($AE165:AK165)","v":2},{"$f":"ROUNDDOWN(R$139/$F165,0)-SUM($AE165:AL165)","v":1},{"$f":"ROUNDDOWN(S$139/$F165,0)-SUM($AE165:AM165)","v":2},{"$f":"ROUNDDOWN(T$139/$F165,0)-SUM($AE165:AN165)","v":2},{"$f":"ROUNDDOWN(U$139/$F165,0)-SUM($AE165:AO165)","v":2},{"$f":"ROUNDDOWN(V$139/$F165,0)-SUM($AE165:AP165)","v":2},{"$f":"ROUNDDOWN(W$139/$F165,0)-SUM($AE165:AQ165)","v":2},{"$f":"ROUNDDOWN(X$139/$F165,0)-SUM($AE165:AR165)","v":2},{"$f":"ROUNDDOWN(Y$139/$F165,0)-SUM($AE165:AS165)","v":2},{"$f":"ROUNDDOWN(Z$139/$F165,0)-SUM($AE165:AT165)","v":1},{"$f":"ROUNDDOWN(AA$139/$F165,0)-SUM($AE165:AU165)","v":2},{"$f":"ROUNDDOWN(AB$139/$F165,0)-SUM($AE165:AV165)","v":2},{"$f":"ROUNDDOWN(AC$139/$F165,0)-SUM($AE165:AW165)","v":2}]
[null,25,"SISTEMA ELÉCTRICO","UND",1,5000,153.125,"Costo de mantenimiento eléctrico ",null,{"$f":"+AE166*$E166*$G166*(1+'Sup Generales'!C$10)","v":3449.6},{"$f":"+AF166*$E166*$G166*(1+'Sup Generales'!D$10)","v":3664.1023999999998},{"$f":"+AG166*$E166*$G166*(1+'Sup Generales'!E$10)","v":3595.9182335999999},{"$f":"+AH166*$E166*$G166*(1+'Sup Generales'!F$10)","v":3775.6095367495686},{"$f":"+AI166*$E166*$G166*(1+'Sup Generales'!G$10)","v":3621.2035223901489},{"$f":"+AJ166*$E166*$G166*(1+'Sup Generales'!H$10)","v":3811.1685671715341},{"$f":"+AK166*$E166*$G166*(1+'Sup Generales'!I$10)","v":3716.228629846215},{"$f":"+AL166*$E166*$G166*(1+'Sup Generales'!J$10)","v":3952.5706091417751},{"$f":"+AM166*$E166*$G166*(1+'Sup Generales'!K$10)","v":3835.7694289067572},{"$f":"+AN166*$E166*$G166*(1+'Sup Generales'!L$10)","v":4063.7809326808142},{"$f":"+AO166*$E166*$G166*(1+'Sup Generales'!M$10)","v":3937.8342809562223},{"$f":"+AP166*$E166*$G166*(1+'Sup Generales'!N$10)","v":4163.9025806328264},{"$f":"+AQ166*$E166*$G166*(1+'Sup Generales'!O$10)","v":4031.9495506372696},{"$f":"+AR166*$E166*$G166*(1+'Sup Generales'!P$10)","v":4272.2409381652906},{"$f":"+AS166*$E166*$G166*(1+'Sup Generales'!Q$10)","v":4145.2584342403652},{"$f":"+AT166*$E166*$G166*(1+'Sup Generales'!R$10)","v":4393.2761068566124},{"$f":"+AU166*$E166*$G166*(1+'Sup Generales'!S$10)","v":4258.161702352586},{"$f":"+AV166*$E166*$G166*(1+'Sup Generales'!T$10)","v":4510.2297298137682},{"$f":"+AW166*$E166*$G166*(1+'Sup Generales'!U$10)","v":4370.7121460529279},{"$f":"+AX166*$E166*$G166*(1+'Sup Generales'!V$10)","v":4629.3429581522123},null,22,{"$f":"ROUNDDOWN(K$139/$F166,0)-SUM($AE166:AE166)","v":23},{"$f":"ROUNDDOWN(L$139/$F166,0)-SUM($AE166:AF166)","v":22},{"$f":"ROUNDDOWN(M$139/$F166,0)-SUM($AE166:AG166)","v":23},{"$f":"ROUNDDOWN(N$139/$F166,0)-SUM($AE166:AH166)","v":22},{"$f":"ROUNDDOWN(O$139/$F166,0)-SUM($AE166:AI166)","v":23},{"$f":"ROUNDDOWN(P$139/$F166,0)-SUM($AE166:AJ166)","v":22},{"$f":"ROUNDDOWN(Q$139/$F166,0)-SUM($AE166:AK166)","v":23},{"$f":"ROUNDDOWN(R$139/$F166,0)-SUM($AE166:AL166)","v":22},{"$f":"ROUNDDOWN(S$139/$F166,0)-SUM($AE166:AM166)","v":23},{"$f":"ROUNDDOWN(T$139/$F166,0)-SUM($AE166:AN166)","v":22},{"$f":"ROUNDDOWN(U$139/$F166,0)-SUM($AE166:AO166)","v":23},{"$f":"ROUNDDOWN(V$139/$F166,0)-SUM($AE166:AP166)","v":22},{"$f":"ROUNDDOWN(W$139/$F166,0)-SUM($AE166:AQ166)","v":23},{"$f":"ROUNDDOWN(X$139/$F166,0)-SUM($AE166:AR166)","v":22},{"$f":"ROUNDDOWN(Y$139/$F166,0)-SUM($AE166:AS166)","v":23},{"$f":"ROUNDDOWN(Z$139/$F166,0)-SUM($AE166:AT166)","v":22},{"$f":"ROUNDDOWN(AA$139/$F166,0)-SUM($AE166:AU166)","v":23},{"$f":"ROUNDDOWN(AB$139/$F166,0)-SUM($AE166:AV166)","v":22},{"$f":"ROUNDDOWN(AC$139/$F166,0)-SUM($AE166:AW166)","v":23}]
[null,26,"AMORTIGUADORES","UND",4,60000,96.795000000000002,"Costo de mantenimiento mecánico",null,{"$f":"+AE167*$E167*$G167*(1+'Sup Generales'!C$10)","v":396.47232000000002},{"$f":"+AF167*$E167*$G167*(1+'Sup Generales'!D$10)","v":805.63175423999996},{"$f":"+AG167*$E167*$G167*(1+'Sup Generales'!E$10)","v":826.57817985023996},{"$f":"+AH167*$E167*$G167*(1+'Sup Generales'!F$10)","v":830.14899758719321},{"$f":"+AI167*$E167*$G167*(1+'Sup Generales'!G$10)","v":832.39039988067861},{"$f":"+AJ167*$E167*$G167*(1+'Sup Generales'!H$10)","v":837.9674155598791},{"$f":"+AK167*$E167*$G167*(1+'Sup Generales'!I$10)","v":854.23341055516585},{"$f":"+AL167*$E167*$G167*(1+'Sup Generales'!J$10)","v":869.05769707755803},{"$f":"+AM167*$E167*$G167*(1+'Sup Generales'!K$10)","v":440.85586864092562},{"$f":"+AN167*$E167*$G167*(1+'Sup Generales'!L$10)","v":893.50967965379664},{"$f":"+AO167*$E167*$G167*(1+'Sup Generales'!M$10)","v":905.17294361447432},{"$f":"+AP167*$E167*$G167*(1+'Sup Generales'!N$10)","v":915.5235783038396},{"$f":"+AQ167*$E167*$G167*(1+'Sup Generales'!O$10)","v":926.80681381268312},{"$f":"+AR167*$E167*$G167*(1+'Sup Generales'!P$10)","v":939.3440973565713},{"$f":"+AS167*$E167*$G167*(1+'Sup Generales'!Q$10)","v":952.85263707261424},{"$f":"+AT167*$E167*$G167*(1+'Sup Generales'!R$10)","v":965.95628354370513},{"$f":"+AU167*$E167*$G167*(1+'Sup Generales'!S$10)","v":489.40261162653036},{"$f":"+AV167*$E167*$G167*(1+'Sup Generales'!T$10)","v":991.67105407732811},{"$f":"+AW167*$E167*$G167*(1+'Sup Generales'!U$10)","v":1004.6767072111452},{"$f":"+AX167*$E167*$G167*(1+'Sup Generales'!V$10)","v":1017.8606603229096},null,1,{"$f":"ROUNDDOWN(K$139/$F167,0)-SUM($AE167:AE167)","v":2},{"$f":"ROUNDDOWN(L$139/$F167,0)-SUM($AE167:AF167)","v":2},{"$f":"ROUNDDOWN(M$139/$F167,0)-SUM($AE167:AG167)","v":2},{"$f":"ROUNDDOWN(N$139/$F167,0)-SUM($AE167:AH167)","v":2},{"$f":"ROUNDDOWN(O$139/$F167,0)-SUM($AE167:AI167)","v":2},{"$f":"ROUNDDOWN(P$139/$F167,0)-SUM($AE167:AJ167)","v":2},{"$f":"ROUNDDOWN(Q$139/$F167,0)-SUM($AE167:AK167)","v":2},{"$f":"ROUNDDOWN(R$139/$F167,0)-SUM($AE167:AL167)","v":1},{"$f":"ROUNDDOWN(S$139/$F167,0)-SUM($AE167:AM167)","v":2},{"$f":"ROUNDDOWN(T$139/$F167,0)-SUM($AE167:AN167)","v":2},{"$f":"ROUNDDOWN(U$139/$F167,0)-SUM($AE167:AO167)","v":2},{"$f":"ROUNDDOWN(V$139/$F167,0)-SUM($AE167:AP167)","v":2},{"$f":"ROUNDDOWN(W$139/$F167,0)-SUM($AE167:AQ167)","v":2},{"$f":"ROUNDDOWN(X$139/$F167,0)-SUM($AE167:AR167)","v":2},{"$f":"ROUNDDOWN(Y$139/$F167,0)-SUM($AE167:AS167)","v":2},{"$f":"ROUNDDOWN(Z$139/$F167,0)-SUM($AE167:AT167)","v":1},{"$f":"ROUNDDOWN(AA$139/$F167,0)-SUM($AE167:AU167)","v":2},{"$f":"ROUNDDOWN(AB$139/$F167,0)-SUM($AE167:AV167)","v":2},{"$f":"ROUNDDOWN(AC$139/$F167,0)-SUM($AE167:AW167)","v":2}]
[null,27,"ROTULAS DE DIRECCIÓN","JGO.",4,60000,49.847499999999997,"Costo de mantenimiento mecánico",null,{"$f":"+AE168*$E168*$G168*(1+'Sup Generales'!C$10)","v":204.17535999999998},{"$f":"+AF168*$E168*$G168*(1+'Sup Generales'!D$10)","v":414.88433151999999},{"$f":"+AG168*$E168*$G168*(1+'Sup Generales'!E$10)","v":425.67132413951998},{"$f":"+AH168*$E168*$G168*(1+'Sup Generales'!F$10)","v":427.51022425980278},{"$f":"+AI168*$E168*$G168*(1+'Sup Generales'!G$10)","v":428.6645018653042},{"$f":"+AJ168*$E168*$G168*(1+'Sup Generales'!H$10)","v":431.53655402780174},{"$f":"+AK168*$E168*$G168*(1+'Sup Generales'!I$10)","v":439.91321796217392},{"$f":"+AL168*$E168*$G168*(1+'Sup Generales'!J$10)","v":447.54743070482539},{"$f":"+AM168*$E168*$G168*(1+'Sup Generales'!K$10)","v":227.03200487709631},{"$f":"+AN168*$E168*$G168*(1+'Sup Generales'!L$10)","v":460.13971544545302},{"$f":"+AO168*$E168*$G168*(1+'Sup Generales'!M$10)","v":466.14606443331269},{"$f":"+AP168*$E168*$G168*(1+'Sup Generales'!N$10)","v":471.47643545121792},{"$f":"+AQ168*$E168*$G168*(1+'Sup Generales'!O$10)","v":477.28707734415741},{"$f":"+AR168*$E168*$G168*(1+'Sup Generales'!P$10)","v":483.74352903540142},{"$f":"+AS168*$E168*$G168*(1+'Sup Generales'!Q$10)","v":490.70015833955404},{"$f":"+AT168*$E168*$G168*(1+'Sup Generales'!R$10)","v":497.44827567482656},{"$f":"+AU168*$E168*$G168*(1+'Sup Generales'!S$10)","v":252.03261204662917},{"$f":"+AV168*$E168*$G168*(1+'Sup Generales'!T$10)","v":510.69087109994945},{"$f":"+AW168*$E168*$G168*(1+'Sup Generales'!U$10)","v":517.38852381535776},{"$f":"+AX168*$E168*$G168*(1+'Sup Generales'!V$10)","v":524.17799747348761},null,1,{"$f":"ROUNDDOWN(K$139/$F168,0)-SUM($AE168:AE168)","v":2},{"$f":"ROUNDDOWN(L$139/$F168,0)-SUM($AE168:AF168)","v":2},{"$f":"ROUNDDOWN(M$139/$F168,0)-SUM($AE168:AG168)","v":2},{"$f":"ROUNDDOWN(N$139/$F168,0)-SUM($AE168:AH168)","v":2},{"$f":"ROUNDDOWN(O$139/$F168,0)-SUM($AE168:AI168)","v":2},{"$f":"ROUNDDOWN(P$139/$F168,0)-SUM($AE168:AJ168)","v":2},{"$f":"ROUNDDOWN(Q$139/$F168,0)-SUM($AE168:AK168)","v":2},{"$f":"ROUNDDOWN(R$139/$F168,0)-SUM($AE168:AL168)","v":1},{"$f":"ROUNDDOWN(S$139/$F168,0)-SUM($AE168:AM168)","v":2},{"$f":"ROUNDDOWN(T$139/$F168,0)-SUM($AE168:AN168)","v":2},{"$f":"ROUNDDOWN(U$139/$F168,0)-SUM($AE168:AO168)","v":2},{"$f":"ROUNDDOWN(V$139/$F168,0)-SUM($AE168:AP168)","v":2},{"$f":"ROUNDDOWN(W$139/$F168,0)-SUM($AE168:AQ168)","v":2},{"$f":"ROUNDDOWN(X$139/$F168,0)-SUM($AE168:AR168)","v":2},{"$f":"ROUNDDOWN(Y$139/$F168,0)-SUM($AE168:AS168)","v":2},{"$f":"ROUNDDOWN(Z$139/$F168,0)-SUM($AE168:AT168)","v":1},{"$f":"ROUNDDOWN(AA$139/$F168,0)-SUM($AE168:AU168)","v":2},{"$f":"ROUNDDOWN(AB$139/$F168,0)-SUM($AE168:AV168)","v":2},{"$f":"ROUNDDOWN(AC$139/$F168,0)-SUM($AE168:AW168)","v":2}]
[null,28,"PINES Y BOCINES DE DIRECCIÓN","JGO.",1,90000,127.78,"Costo de mantenimiento mecánico",null,{"$f":"+AE169*$E169*$G169*(1+'Sup Generales'!C$10)","v":130.84672},{"$f":"+AF169*$E169*$G169*(1+'Sup Generales'!D$10)","v":132.94026751999999},{"$f":"+AG169*$E169*$G169*(1+'Sup Generales'!E$10)","v":136.39671447552001},{"$f":"+AH169*$E169*$G169*(1+'Sup Generales'!F$10)","v":273.97189656410853},{"$f":"+AI169*$E169*$G169*(1+'Sup Generales'!G$10)","v":137.35581034241582},{"$f":"+AJ169*$E169*$G169*(1+'Sup Generales'!H$10)","v":138.27609427170998},{"$f":"+AK169*$E169*$G169*(1+'Sup Generales'!I$10)","v":140.96020610664172},{"$f":"+AL169*$E169*$G169*(1+'Sup Generales'!J$10)","v":286.8128326167942},{"$f":"+AM169*$E169*$G169*(1+'Sup Generales'!K$10)","v":145.49450615976414},{"$f":"+AN169*$E169*$G169*(1+'Sup Generales'!L$10)","v":147.44132814990721},{"$f":"+AO169*$E169*$G169*(1+'Sup Generales'!M$10)","v":149.36592635861552},{"$f":"+AP169*$E169*$G169*(1+'Sup Generales'!N$10)","v":302.14784553867611},{"$f":"+AQ169*$E169*$G169*(1+'Sup Generales'!O$10)","v":152.93581108138935},{"$f":"+AR169*$E169*$G169*(1+'Sup Generales'!P$10)","v":155.0046344855399},{"$f":"+AS169*$E169*$G169*(1+'Sup Generales'!Q$10)","v":157.23372845335328},{"$f":"+AT169*$E169*$G169*(1+'Sup Generales'!R$10)","v":318.79201898655572},{"$f":"+AU169*$E169*$G169*(1+'Sup Generales'!S$10)","v":161.51626043090565},{"$f":"+AV169*$E169*$G169*(1+'Sup Generales'!T$10)","v":163.63929863371169},{"$f":"+AW169*$E169*$G169*(1+'Sup Generales'!U$10)","v":165.78540943158237},{"$f":"+AX169*$E169*$G169*(1+'Sup Generales'!V$10)","v":335.92188433302698},null,1,{"$f":"ROUNDDOWN(K$139/$F169,0)-SUM($AE169:AE169)","v":1},{"$f":"ROUNDDOWN(L$139/$F169,0)-SUM($AE169:AF169)","v":1},{"$f":"ROUNDDOWN(M$139/$F169,0)-SUM($AE169:AG169)","v":2},{"$f":"ROUNDDOWN(N$139/$F169,0)-SUM($AE169:AH169)","v":1},{"$f":"ROUNDDOWN(O$139/$F169,0)-SUM($AE169:AI169)","v":1},{"$f":"ROUNDDOWN(P$139/$F169,0)-SUM($AE169:AJ169)","v":1},{"$f":"ROUNDDOWN(Q$139/$F169,0)-SUM($AE169:AK169)","v":2},{"$f":"ROUNDDOWN(R$139/$F169,0)-SUM($AE169:AL169)","v":1},{"$f":"ROUNDDOWN(S$139/$F169,0)-SUM($AE169:AM169)","v":1},{"$f":"ROUNDDOWN(T$139/$F169,0)-SUM($AE169:AN169)","v":1},{"$f":"ROUNDDOWN(U$139/$F169,0)-SUM($AE169:AO169)","v":2},{"$f":"ROUNDDOWN(V$139/$F169,0)-SUM($AE169:AP169)","v":1},{"$f":"ROUNDDOWN(W$139/$F169,0)-SUM($AE169:AQ169)","v":1},{"$f":"ROUNDDOWN(X$139/$F169,0)-SUM($AE169:AR169)","v":1},{"$f":"ROUNDDOWN(Y$139/$F169,0)-SUM($AE169:AS169)","v":2},{"$f":"ROUNDDOWN(Z$139/$F169,0)-SUM($AE169:AT169)","v":1},{"$f":"ROUNDDOWN(AA$139/$F169,0)-SUM($AE169:AU169)","v":1},{"$f":"ROUNDDOWN(AB$139/$F169,0)-SUM($AE169:AV169)","v":1},{"$f":"ROUNDDOWN(AC$139/$F169,0)-SUM($AE169:AW169)","v":2}]
[null,29,"MANTENIMIENTO DE BALLESTAS","UND",1,30000,67,"Costo de mantenimiento mecánico",null,{"$f":"+AE170*$E170*$G170*(1+'Sup Generales'!C$10)","v":205.82400000000001},{"$f":"+AF170*$E170*$G170*(1+'Sup Generales'!D$10)","v":278.82291199999997},{"$f":"+AG170*$E170*$G170*(1+'Sup Generales'!E$10)","v":286.072307712},{"$f":"+AH170*$E170*$G170*(1+'Sup Generales'!F$10)","v":287.30814008131591},{"$f":"+AI170*$E170*$G170*(1+'Sup Generales'!G$10)","v":216.06290404465156},{"$f":"+AJ170*$E170*$G170*(1+'Sup Generales'!H$10)","v":290.01403400233431},{"$f":"+AK170*$E170*$G170*(1+'Sup Generales'!I$10)","v":295.6435689198621},{"$f":"+AL170*$E170*$G170*(1+'Sup Generales'!J$10)","v":300.77413969831287},{"$f":"+AM170*$E170*$G170*(1+'Sup Generales'!K$10)","v":228.86520377298945},{"$f":"+AN170*$E170*$G170*(1+'Sup Generales'!L$10)","v":309.23678153212654},{"$f":"+AO170*$E170*$G170*(1+'Sup Generales'!M$10)","v":313.27334687829836},{"$f":"+AP170*$E170*$G170*(1+'Sup Generales'!N$10)","v":316.85562139757866},{"$f":"+AQ170*$E170*$G170*(1+'Sup Generales'!O$10)","v":240.57049637939627},{"$f":"+AR170*$E170*$G170*(1+'Sup Generales'!P$10)","v":325.09971859543504},{"$f":"+AS170*$E170*$G170*(1+'Sup Generales'!Q$10)","v":329.77491959225762},{"$f":"+AT170*$E170*$G170*(1+'Sup Generales'!R$10)","v":334.3099901721589},{"$f":"+AU170*$E170*$G170*(1+'Sup Generales'!S$10)","v":254.06768153554574},{"$f":"+AV170*$E170*$G170*(1+'Sup Generales'!T$10)","v":343.20967314004326},{"$f":"+AW170*$E170*$G170*(1+'Sup Generales'!U$10)","v":347.71082898469302},{"$f":"+AX170*$E170*$G170*(1+'Sup Generales'!V$10)","v":352.27369307110359},null,3,{"$f":"ROUNDDOWN(K$139/$F170,0)-SUM($AE170:AE170)","v":4},{"$f":"ROUNDDOWN(L$139/$F170,0)-SUM($AE170:AF170)","v":4},{"$f":"ROUNDDOWN(M$139/$F170,0)-SUM($AE170:AG170)","v":4},{"$f":"ROUNDDOWN(N$139/$F170,0)-SUM($AE170:AH170)","v":3},{"$f":"ROUNDDOWN(O$139/$F170,0)-SUM($AE170:AI170)","v":4},{"$f":"ROUNDDOWN(P$139/$F170,0)-SUM($AE170:AJ170)","v":4},{"$f":"ROUNDDOWN(Q$139/$F170,0)-SUM($AE170:AK170)","v":4},{"$f":"ROUNDDOWN(R$139/$F170,0)-SUM($AE170:AL170)","v":3},{"$f":"ROUNDDOWN(S$139/$F170,0)-SUM($AE170:AM170)","v":4},{"$f":"ROUNDDOWN(T$139/$F170,0)-SUM($AE170:AN170)","v":4},{"$f":"ROUNDDOWN(U$139/$F170,0)-SUM($AE170:AO170)","v":4},{"$f":"ROUNDDOWN(V$139/$F170,0)-SUM($AE170:AP170)","v":3},{"$f":"ROUNDDOWN(W$139/$F170,0)-SUM($AE170:AQ170)","v":4},{"$f":"ROUNDDOWN(X$139/$F170,0)-SUM($AE170:AR170)","v":4},{"$f":"ROUNDDOWN(Y$139/$F170,0)-SUM($AE170:AS170)","v":4},{"$f":"ROUNDDOWN(Z$139/$F170,0)-SUM($AE170:AT170)","v":3},{"$f":"ROUNDDOWN(AA$139/$F170,0)-SUM($AE170:AU170)","v":4},{"$f":"ROUNDDOWN(AB$139/$F170,0)-SUM($AE170:AV170)","v":4},{"$f":"ROUNDDOWN(AC$139/$F170,0)-SUM($AE170:AW170)","v":4}]
[null,30,"LAVADO MOTOR/ CHASIS","UND",1,15000,25,"Costo de mantenimiento mecánico",null,{"$f":"+AE171*$E171*$G171*(1+'Sup Generales'!C$10)","v":179.20000000000002},{"$f":"+AF171*$E171*$G171*(1+'Sup Generales'!D$10)","v":208.07679999999999},{"$f":"+AG171*$E171*$G171*(1+'Sup Generales'!E$10)","v":186.8009472},{"$f":"+AH171*$E171*$G171*(1+'Sup Generales'!F$10)","v":214.40905976217604},{"$f":"+AI171*$E171*$G171*(1+'Sup Generales'!G$10)","v":188.11446869559217},{"$f":"+AJ171*$E171*$G171*(1+'Sup Generales'!H$10)","v":216.42838358383156},{"$f":"+AK171*$E171*$G171*(1+'Sup Generales'!I$10)","v":193.05083791408907},{"$f":"+AL171*$E171*$G171*(1+'Sup Generales'!J$10)","v":224.45831320769619},{"$f":"+AM171*$E171*$G171*(1+'Sup Generales'!K$10)","v":199.26074955359778},{"$f":"+AN171*$E171*$G171*(1+'Sup Generales'!L$10)","v":230.77371756128846},{"$f":"+AO171*$E171*$G171*(1+'Sup Generales'!M$10)","v":204.56281978993363},{"$f":"+AP171*$E171*$G171*(1+'Sup Generales'!N$10)","v":236.4594189534169},{"$f":"+AQ171*$E171*$G171*(1+'Sup Generales'!O$10)","v":209.4519247084296},{"$f":"+AR171*$E171*$G171*(1+'Sup Generales'!P$10)","v":242.61173029510078},{"$f":"+AS171*$E171*$G171*(1+'Sup Generales'!Q$10)","v":215.33810048001897},{"$f":"+AT171*$E171*$G171*(1+'Sup Generales'!R$10)","v":249.48506729265588},{"$f":"+AU171*$E171*$G171*(1+'Sup Generales'!S$10)","v":221.20320531701742},{"$f":"+AV171*$E171*$G171*(1+'Sup Generales'!T$10)","v":256.12662174630094},{"$f":"+AW171*$E171*$G171*(1+'Sup Generales'!U$10)","v":227.0499816131391},{"$f":"+AX171*$E171*$G171*(1+'Sup Generales'!V$10)","v":262.89081572470417},null,7,{"$f":"ROUNDDOWN(K$139/$F171,0)-SUM($AE171:AE171)","v":8},{"$f":"ROUNDDOWN(L$139/$F171,0)-SUM($AE171:AF171)","v":7},{"$f":"ROUNDDOWN(M$139/$F171,0)-SUM($AE171:AG171)","v":8},{"$f":"ROUNDDOWN(N$139/$F171,0)-SUM($AE171:AH171)","v":7},{"$f":"ROUNDDOWN(O$139/$F171,0)-SUM($AE171:AI171)","v":8},{"$f":"ROUNDDOWN(P$139/$F171,0)-SUM($AE171:AJ171)","v":7},{"$f":"ROUNDDOWN(Q$139/$F171,0)-SUM($AE171:AK171)","v":8},{"$f":"ROUNDDOWN(R$139/$F171,0)-SUM($AE171:AL171)","v":7},{"$f":"ROUNDDOWN(S$139/$F171,0)-SUM($AE171:AM171)","v":8},{"$f":"ROUNDDOWN(T$139/$F171,0)-SUM($AE171:AN171)","v":7},{"$f":"ROUNDDOWN(U$139/$F171,0)-SUM($AE171:AO171)","v":8},{"$f":"ROUNDDOWN(V$139/$F171,0)-SUM($AE171:AP171)","v":7},{"$f":"ROUNDDOWN(W$139/$F171,0)-SUM($AE171:AQ171)","v":8},{"$f":"ROUNDDOWN(X$139/$F171,0)-SUM($AE171:AR171)","v":7},{"$f":"ROUNDDOWN(Y$139/$F171,0)-SUM($AE171:AS171)","v":8},{"$f":"ROUNDDOWN(Z$139/$F171,0)-SUM($AE171:AT171)","v":7},{"$f":"ROUNDDOWN(AA$139/$F171,0)-SUM($AE171:AU171)","v":8},{"$f":"ROUNDDOWN(AB$139/$F171,0)-SUM($AE171:AV171)","v":7},{"$f":"ROUNDDOWN(AC$139/$F171,0)-SUM($AE171:AW171)","v":8}]
[null,31,"ENGRASADO PUNTAS EJES","UND",4,30000,13.333333333333334,"Costo de mantenimiento mecánico",null,{"$f":"+AE172*$E172*$G172*(1+'Sup Generales'!C$10)","v":163.84},{"$f":"+AF172*$E172*$G172*(1+'Sup Generales'!D$10)","v":221.94858666666667},{"$f":"+AG172*$E172*$G172*(1+'Sup Generales'!E$10)","v":227.71924992000001},{"$f":"+AH172*$E172*$G172*(1+'Sup Generales'!F$10)","v":228.70299707965444},{"$f":"+AI172*$E172*$G172*(1+'Sup Generales'!G$10)","v":171.99037137882712},{"$f":"+AJ172*$E172*$G172*(1+'Sup Generales'!H$10)","v":230.85694248942033},{"$f":"+AK172*$E172*$G172*(1+'Sup Generales'!I$10)","v":235.33816431431813},{"$f":"+AL172*$E172*$G172*(1+'Sup Generales'!J$10)","v":239.42220075487594},{"$f":"+AM172*$E172*$G172*(1+'Sup Generales'!K$10)","v":182.18125673471798},{"$f":"+AN172*$E172*$G172*(1+'Sup Generales'!L$10)","v":246.15863206537438},{"$f":"+AO172*$E172*$G172*(1+'Sup Generales'!M$10)","v":249.37181841058575},{"$f":"+AP172*$E172*$G172*(1+'Sup Generales'!N$10)","v":252.22338021697806},{"$f":"+AQ172*$E172*$G172*(1+'Sup Generales'!O$10)","v":191.4989025905642},{"$f":"+AR172*$E172*$G172*(1+'Sup Generales'!P$10)","v":258.78584564810751},{"$f":"+AS172*$E172*$G172*(1+'Sup Generales'!Q$10)","v":262.50739868040409},{"$f":"+AT172*$E172*$G172*(1+'Sup Generales'!R$10)","v":266.1174051121663},{"$f":"+AU172*$E172*$G172*(1+'Sup Generales'!S$10)","v":202.2429305755588},{"$f":"+AV172*$E172*$G172*(1+'Sup Generales'!T$10)","v":273.20172986272104},{"$f":"+AW172*$E172*$G172*(1+'Sup Generales'!U$10)","v":276.78473949030291},{"$f":"+AX172*$E172*$G172*(1+'Sup Generales'!V$10)","v":280.4168701063511},null,3,{"$f":"ROUNDDOWN(K$139/$F172,0)-SUM($AE172:AE172)","v":4},{"$f":"ROUNDDOWN(L$139/$F172,0)-SUM($AE172:AF172)","v":4},{"$f":"ROUNDDOWN(M$139/$F172,0)-SUM($AE172:AG172)","v":4},{"$f":"ROUNDDOWN(N$139/$F172,0)-SUM($AE172:AH172)","v":3},{"$f":"ROUNDDOWN(O$139/$F172,0)-SUM($AE172:AI172)","v":4},{"$f":"ROUNDDOWN(P$139/$F172,0)-SUM($AE172:AJ172)","v":4},{"$f":"ROUNDDOWN(Q$139/$F172,0)-SUM($AE172:AK172)","v":4},{"$f":"ROUNDDOWN(R$139/$F172,0)-SUM($AE172:AL172)","v":3},{"$f":"ROUNDDOWN(S$139/$F172,0)-SUM($AE172:AM172)","v":4},{"$f":"ROUNDDOWN(T$139/$F172,0)-SUM($AE172:AN172)","v":4},{"$f":"ROUNDDOWN(U$139/$F172,0)-SUM($AE172:AO172)","v":4},{"$f":"ROUNDDOWN(V$139/$F172,0)-SUM($AE172:AP172)","v":3},{"$f":"ROUNDDOWN(W$139/$F172,0)-SUM($AE172:AQ172)","v":4},{"$f":"ROUNDDOWN(X$139/$F172,0)-SUM($AE172:AR172)","v":4},{"$f":"ROUNDDOWN(Y$139/$F172,0)-SUM($AE172:AS172)","v":4},{"$f":"ROUNDDOWN(Z$139/$F172,0)-SUM($AE172:AT172)","v":3},{"$f":"ROUNDDOWN(AA$139/$F172,0)-SUM($AE172:AU172)","v":4},{"$f":"ROUNDDOWN(AB$139/$F172,0)-SUM($AE172:AV172)","v":4},{"$f":"ROUNDDOWN(AC$139/$F172,0)-SUM($AE172:AW172)","v":4}]
[null,32,"CAMBIO DE RULIMANES PUNTA DE EJE","UND",8,180000,42.664000000000001,"Costo de mantenimiento mecánico",null,{"$f":"+AE173*$E173*$G173*(1+'Sup Generales'!C$10)","v":0},{"$f":"+AF173*$E173*$G173*(1+'Sup Generales'!D$10)","v":355.095543808},{"$f":"+AG173*$E173*$G173*(1+'Sup Generales'!E$10)","v":0},{"$f":"+AH173*$E173*$G173*(1+'Sup Generales'!F$10)","v":365.90192502773914},{"$f":"+AI173*$E173*$G173*(1+'Sup Generales'!G$10)","v":366.88986022531401},{"$f":"+AJ173*$E173*$G173*(1+'Sup Generales'!H$10)","v":0},{"$f":"+AK173*$E173*$G173*(1+'Sup Generales'!I$10)","v":376.51752908647757},{"$f":"+AL173*$E173*$G173*(1+'Sup Generales'!J$10)","v":383.05157898772603},{"$f":"+AM173*$E173*$G173*(1+'Sup Generales'!K$10)","v":0},{"$f":"+AN173*$E173*$G173*(1+'Sup Generales'!L$10)","v":393.82919544139247},{"$f":"+AO173*$E173*$G173*(1+'Sup Generales'!M$10)","v":0},{"$f":"+AP173*$E173*$G173*(1+'Sup Generales'!N$10)","v":403.53218600914317},{"$f":"+AQ173*$E173*$G173*(1+'Sup Generales'!O$10)","v":408.50545900619159},{"$f":"+AR173*$E173*$G173*(1+'Sup Generales'!P$10)","v":0},{"$f":"+AS173*$E173*$G173*(1+'Sup Generales'!Q$10)","v":419.98558714877851},{"$f":"+AT173*$E173*$G173*(1+'Sup Generales'!R$10)","v":425.76123643895488},{"$f":"+AU173*$E173*$G173*(1+'Sup Generales'!S$10)","v":0},{"$f":"+AV173*$E173*$G173*(1+'Sup Generales'!T$10)","v":437.09544760736736},{"$f":"+AW173*$E173*$G173*(1+'Sup Generales'!U$10)","v":0},{"$f":"+AX173*$E173*$G173*(1+'Sup Generales'!V$10)","v":448.63895048315118},null,0,{"$f":"ROUNDDOWN(K$139/$F173,0)-SUM($AE173:AE173)","v":1},{"$f":"ROUNDDOWN(L$139/$F173,0)-SUM($AE173:AF173)","v":0},{"$f":"ROUNDDOWN(M$139/$F173,0)-SUM($AE173:AG173)","v":1},{"$f":"ROUNDDOWN(N$139/$F173,0)-SUM($AE173:AH173)","v":1},{"$f":"ROUNDDOWN(O$139/$F173,0)-SUM($AE173:AI173)","v":0},{"$f":"ROUNDDOWN(P$139/$F173,0)-SUM($AE173:AJ173)","v":1},{"$f":"ROUNDDOWN(Q$139/$F173,0)-SUM($AE173:AK173)","v":1},{"$f":"ROUNDDOWN(R$139/$F173,0)-SUM($AE173:AL173)","v":0},{"$f":"ROUNDDOWN(S$139/$F173,0)-SUM($AE173:AM173)","v":1},{"$f":"ROUNDDOWN(T$139/$F173,0)-SUM($AE173:AN173)","v":0},{"$f":"ROUNDDOWN(U$139/$F173,0)-SUM($AE173:AO173)","v":1},{"$f":"ROUNDDOWN(V$139/$F173,0)-SUM($AE173:AP173)","v":1},{"$f":"ROUNDDOWN(W$139/$F173,0)-SUM($AE173:AQ173)","v":0},{"$f":"ROUNDDOWN(X$139/$F173,0)-SUM($AE173:AR173)","v":1},{"$f":"ROUNDDOWN(Y$139/$F173,0)-SUM($AE173:AS173)","v":1},{"$f":"ROUNDDOWN(Z$139/$F173,0)-SUM($AE173:AT173)","v":0},{"$f":"ROUNDDOWN(AA$139/$F173,0)-SUM($AE173:AU173)","v":1},{"$f":"ROUNDDOWN(AB$139/$F173,0)-SUM($AE173:AV173)","v":0},{"$f":"ROUNDDOWN(AC$139/$F173,0)-SUM($AE173:AW173)","v":1}]
[null,33,"MANTENIMINETO DE CARROCERÍA","UND",1,30000,325.71428571428572,"Carrocería ",null,{"$f":"+AE174*$E174*$G174*(1+'Sup Generales'!C$10)","v":1000.5942857142857},{"$f":"+AF174*$E174*$G174*(1+'Sup Generales'!D$10)","v":1355.4717257142856},{"$f":"+AG174*$E174*$G174*(1+'Sup Generales'!E$10)","v":1390.7139905828572},{"$f":"+AH174*$E174*$G174*(1+'Sup Generales'!F$10)","v":1396.7218750221753},{"$f":"+AI174*$E174*$G174*(1+'Sup Generales'!G$10)","v":1050.3697680635514},{"$f":"+AJ174*$E174*$G174*(1+'Sup Generales'!H$10)","v":1409.8763273461027},{"$f":"+AK174*$E174*$G174*(1+'Sup Generales'!I$10)","v":1437.2437892052999},{"$f":"+AL174*$E174*$G174*(1+'Sup Generales'!J$10)","v":1462.1855831815637},{"$f":"+AM174*$E174*$G174*(1+'Sup Generales'!K$10)","v":1112.6069607727418},{"$f":"+AN174*$E174*$G174*(1+'Sup Generales'!L$10)","v":1503.3259315421078},{"$f":"+AO174*$E174*$G174*(1+'Sup Generales'!M$10)","v":1522.9493195789344},{"$f":"+AP174*$E174*$G174*(1+'Sup Generales'!N$10)","v":1540.3642148965446},{"$f":"+AQ174*$E174*$G174*(1+'Sup Generales'!O$10)","v":1169.51115510666},{"$f":"+AR174*$E174*$G174*(1+'Sup Generales'!P$10)","v":1580.4421287795137},{"$f":"+AS174*$E174*$G174*(1+'Sup Generales'!Q$10)","v":1603.1701847981822},{"$f":"+AT174*$E174*$G174*(1+'Sup Generales'!R$10)","v":1625.2170097921585},{"$f":"+AU174*$E174*$G174*(1+'Sup Generales'!S$10)","v":1235.1264688721626},{"$f":"+AV174*$E174*$G174*(1+'Sup Generales'!T$10)","v":1668.4819930901892},{"$f":"+AW174*$E174*$G174*(1+'Sup Generales'!U$10)","v":1690.36394474435},{"$f":"+AX174*$E174*$G174*(1+'Sup Generales'!V$10)","v":1712.5458852923587},null,3,{"$f":"ROUNDDOWN(K$139/$F174,0)-SUM($AE174:AE174)","v":4},{"$f":"ROUNDDOWN(L$139/$F174,0)-SUM($AE174:AF174)","v":4},{"$f":"ROUNDDOWN(M$139/$F174,0)-SUM($AE174:AG174)","v":4},{"$f":"ROUNDDOWN(N$139/$F174,0)-SUM($AE174:AH174)","v":3},{"$f":"ROUNDDOWN(O$139/$F174,0)-SUM($AE174:AI174)","v":4},{"$f":"ROUNDDOWN(P$139/$F174,0)-SUM($AE174:AJ174)","v":4},{"$f":"ROUNDDOWN(Q$139/$F174,0)-SUM($AE174:AK174)","v":4},{"$f":"ROUNDDOWN(R$139/$F174,0)-SUM($AE174:AL174)","v":3},{"$f":"ROUNDDOWN(S$139/$F174,0)-SUM($AE174:AM174)","v":4},{"$f":"ROUNDDOWN(T$139/$F174,0)-SUM($AE174:AN174)","v":4},{"$f":"ROUNDDOWN(U$139/$F174,0)-SUM($AE174:AO174)","v":4},{"$f":"ROUNDDOWN(V$139/$F174,0)-SUM($AE174:AP174)","v":3},{"$f":"ROUNDDOWN(W$139/$F174,0)-SUM($AE174:AQ174)","v":4},{"$f":"ROUNDDOWN(X$139/$F174,0)-SUM($AE174:AR174)","v":4},{"$f":"ROUNDDOWN(Y$139/$F174,0)-SUM($AE174:AS174)","v":4},{"$f":"ROUNDDOWN(Z$139/$F174,0)-SUM($AE174:AT174)","v":3},{"$f":"ROUNDDOWN(AA$139/$F174,0)-SUM($AE174:AU174)","v":4},{"$f":"ROUNDDOWN(AB$139/$F174,0)-SUM($AE174:AV174)","v":4},{"$f":"ROUNDDOWN(AC$139/$F174,0)-SUM($AE174:AW174)","v":4}]
[null,34,"REPARACIÓN DE LA BOMBA DE INYECCIÓN","UND",1,240000,1850,"Costo de mantenimiento mecánico",null,{"$f":"+AE175*$E175*$G175*(1+'Sup Generales'!C$10)","v":0},{"$f":"+AF175*$E175*$G175*(1+'Sup Generales'!D$10)","v":0},{"$f":"+AG175*$E175*$G175*(1+'Sup Generales'!E$10)","v":1974.7528703999999},{"$f":"+AH175*$E175*$G175*(1+'Sup Generales'!F$10)","v":0},{"$f":"+AI175*$E175*$G175*(1+'Sup Generales'!G$10)","v":1988.6386690676886},{"$f":"+AJ175*$E175*$G175*(1+'Sup Generales'!H$10)","v":0},{"$f":"+AK175*$E175*$G175*(1+'Sup Generales'!I$10)","v":2040.8231436632275},{"$f":"+AL175*$E175*$G175*(1+'Sup Generales'!J$10)","v":0},{"$f":"+AM175*$E175*$G175*(1+'Sup Generales'!K$10)","v":2106.4707809951765},{"$f":"+AN175*$E175*$G175*(1+'Sup Generales'!L$10)","v":0},{"$f":"+AO175*$E175*$G175*(1+'Sup Generales'!M$10)","v":2162.5212377792982},{"$f":"+AP175*$E175*$G175*(1+'Sup Generales'!N$10)","v":0},{"$f":"+AQ175*$E175*$G175*(1+'Sup Generales'!O$10)","v":2214.2060612033983},{"$f":"+AR175*$E175*$G175*(1+'Sup Generales'!P$10)","v":0},{"$f":"+AS175*$E175*$G175*(1+'Sup Generales'!Q$10)","v":2276.4313479316293},{"$f":"+AT175*$E175*$G175*(1+'Sup Generales'!R$10)","v":0},{"$f":"+AU175*$E175*$G175*(1+'Sup Generales'!S$10)","v":0},{"$f":"+AV175*$E175*$G175*(1+'Sup Generales'!T$10)","v":2369.1712511532837},{"$f":"+AW175*$E175*$G175*(1+'Sup Generales'!U$10)","v":0},{"$f":"+AX175*$E175*$G175*(1+'Sup Generales'!V$10)","v":2431.7400454535136},null,0,{"$f":"ROUNDDOWN(K$139/$F175,0)-SUM($AE175:AE175)","v":0},{"$f":"ROUNDDOWN(L$139/$F175,0)-SUM($AE175:AF175)","v":1},{"$f":"ROUNDDOWN(M$139/$F175,0)-SUM($AE175:AG175)","v":0},{"$f":"ROUNDDOWN(N$139/$F175,0)-SUM($AE175:AH175)","v":1},{"$f":"ROUNDDOWN(O$139/$F175,0)-SUM($AE175:AI175)","v":0},{"$f":"ROUNDDOWN(P$139/$F175,0)-SUM($AE175:AJ175)","v":1},{"$f":"ROUNDDOWN(Q$139/$F175,0)-SUM($AE175:AK175)","v":0},{"$f":"ROUNDDOWN(R$139/$F175,0)-SUM($AE175:AL175)","v":1},{"$f":"ROUNDDOWN(S$139/$F175,0)-SUM($AE175:AM175)","v":0},{"$f":"ROUNDDOWN(T$139/$F175,0)-SUM($AE175:AN175)","v":1},{"$f":"ROUNDDOWN(U$139/$F175,0)-SUM($AE175:AO175)","v":0},{"$f":"ROUNDDOWN(V$139/$F175,0)-SUM($AE175:AP175)","v":1},{"$f":"ROUNDDOWN(W$139/$F175,0)-SUM($AE175:AQ175)","v":0},{"$f":"ROUNDDOWN(X$139/$F175,0)-SUM($AE175:AR175)","v":1},{"$f":"ROUNDDOWN(Y$139/$F175,0)-SUM($AE175:AS175)","v":0},{"$f":"ROUNDDOWN(Z$139/$F175,0)-SUM($AE175:AT175)","v":0},{"$f":"ROUNDDOWN(AA$139/$F175,0)-SUM($AE175:AU175)","v":1},{"$f":"ROUNDDOWN(AB$139/$F175,0)-SUM($AE175:AV175)","v":0},{"$f":"ROUNDDOWN(AC$139/$F175,0)-SUM($AE175:AW175)","v":1}]
[null,35,"REPARACION COMPRESOR","UND",1,60000,200.11,"Costo de mantenimiento mecánico",null,{"$f":"+AE176*$E176*$G176*(1+'Sup Generales'!C$10)","v":204.91264000000001},{"$f":"+AF176*$E176*$G176*(1+'Sup Generales'!D$10)","v":416.38248448000002},{"$f":"+AG176*$E176*$G176*(1+'Sup Generales'!E$10)","v":427.20842907648},{"$f":"+AH176*$E176*$G176*(1+'Sup Generales'!F$10)","v":429.05396949009048},{"$f":"+AI176*$E176*$G176*(1+'Sup Generales'!G$10)","v":430.21241520771372},{"$f":"+AJ176*$E176*$G176*(1+'Sup Generales'!H$10)","v":433.09483838960534},{"$f":"+AK176*$E176*$G176*(1+'Sup Generales'!I$10)","v":441.50175057129564},{"$f":"+AL176*$E176*$G176*(1+'Sup Generales'!J$10)","v":449.16353055992084},{"$f":"+AM176*$E176*$G176*(1+'Sup Generales'!K$10)","v":227.8518205324026},{"$f":"+AN176*$E176*$G176*(1+'Sup Generales'!L$10)","v":461.80128621189436},{"$f":"+AO176*$E176*$G176*(1+'Sup Generales'!M$10)","v":467.82932420758425},{"$f":"+AP176*$E176*$G176*(1+'Sup Generales'!N$10)","v":473.1789432676826},{"$f":"+AQ176*$E176*$G176*(1+'Sup Generales'!O$10)","v":479.01056746747258},{"$f":"+AR176*$E176*$G176*(1+'Sup Generales'!P$10)","v":485.49033349352624},{"$f":"+AS176*$E176*$G176*(1+'Sup Generales'!Q$10)","v":492.47208328064681},{"$f":"+AT176*$E176*$G176*(1+'Sup Generales'!R$10)","v":499.24456815933377},{"$f":"+AU176*$E176*$G176*(1+'Sup Generales'!S$10)","v":252.9427052342192},{"$f":"+AV176*$E176*$G176*(1+'Sup Generales'!T$10)","v":512.53498277652284},{"$f":"+AW176*$E176*$G176*(1+'Sup Generales'!U$10)","v":519.2568208069174},{"$f":"+AX176*$E176*$G176*(1+'Sup Generales'!V$10)","v":526.07081134670557},null,1,{"$f":"ROUNDDOWN(K$139/$F176,0)-SUM($AE176:AE176)","v":2},{"$f":"ROUNDDOWN(L$139/$F176,0)-SUM($AE176:AF176)","v":2},{"$f":"ROUNDDOWN(M$139/$F176,0)-SUM($AE176:AG176)","v":2},{"$f":"ROUNDDOWN(N$139/$F176,0)-SUM($AE176:AH176)","v":2},{"$f":"ROUNDDOWN(O$139/$F176,0)-SUM($AE176:AI176)","v":2},{"$f":"ROUNDDOWN(P$139/$F176,0)-SUM($AE176:AJ176)","v":2},{"$f":"ROUNDDOWN(Q$139/$F176,0)-SUM($AE176:AK176)","v":2},{"$f":"ROUNDDOWN(R$139/$F176,0)-SUM($AE176:AL176)","v":1},{"$f":"ROUNDDOWN(S$139/$F176,0)-SUM($AE176:AM176)","v":2},{"$f":"ROUNDDOWN(T$139/$F176,0)-SUM($AE176:AN176)","v":2},{"$f":"ROUNDDOWN(U$139/$F176,0)-SUM($AE176:AO176)","v":2},{"$f":"ROUNDDOWN(V$139/$F176,0)-SUM($AE176:AP176)","v":2},{"$f":"ROUNDDOWN(W$139/$F176,0)-SUM($AE176:AQ176)","v":2},{"$f":"ROUNDDOWN(X$139/$F176,0)-SUM($AE176:AR176)","v":2},{"$f":"ROUNDDOWN(Y$139/$F176,0)-SUM($AE176:AS176)","v":2},{"$f":"ROUNDDOWN(Z$139/$F176,0)-SUM($AE176:AT176)","v":1},{"$f":"ROUNDDOWN(AA$139/$F176,0)-SUM($AE176:AU176)","v":2},{"$f":"ROUNDDOWN(AB$139/$F176,0)-SUM($AE176:AV176)","v":2},{"$f":"ROUNDDOWN(AC$139/$F176,0)-SUM($AE176:AW176)","v":2}]
[null,36,"CAMBIO DE TURBO","UND",1,60000,542.09500000000003,"Costo de mantenimiento mecánico",null,{"$f":"+AE177*$E177*$G177*(1+'Sup Generales'!C$10)","v":555.10527999999999},{"$f":"+AF177*$E177*$G177*(1+'Sup Generales'!D$10)","v":1127.97392896},{"$f":"+AG177*$E177*$G177*(1+'Sup Generales'!E$10)","v":1157.30125111296},{"$f":"+AH177*$E177*$G177*(1+'Sup Generales'!F$10)","v":1162.3007925177683},{"$f":"+AI177*$E177*$G177*(1+'Sup Generales'!G$10)","v":1165.4390046575661},{"$f":"+AJ177*$E177*$G177*(1+'Sup Generales'!H$10)","v":1173.2474459887717},{"$f":"+AK177*$E177*$G177*(1+'Sup Generales'!I$10)","v":1196.0216454747215},{"$f":"+AL177*$E177*$G177*(1+'Sup Generales'!J$10)","v":1216.7772929832606},{"$f":"+AM177*$E177*$G177*(1+'Sup Generales'!K$10)","v":617.24717731004341},{"$f":"+AN177*$E177*$G177*(1+'Sup Generales'!L$10)","v":1251.0127842138668},{"$f":"+AO177*$E177*$G177*(1+'Sup Generales'!M$10)","v":1267.3426490745608},{"$f":"+AP177*$E177*$G177*(1+'Sup Generales'!N$10)","v":1281.8346871755255},{"$f":"+AQ177*$E177*$G177*(1+'Sup Generales'!O$10)","v":1297.6324699978989},{"$f":"+AR177*$E177*$G177*(1+'Sup Generales'!P$10)","v":1315.1860593432266},{"$f":"+AS177*$E177*$G177*(1+'Sup Generales'!Q$10)","v":1334.0995151967529},{"$f":"+AT177*$E177*$G177*(1+'Sup Generales'!R$10)","v":1352.446075540123},{"$f":"+AU177*$E177*$G177*(1+'Sup Generales'!S$10)","v":685.2180090647347},{"$f":"+AV177*$E177*$G177*(1+'Sup Generales'!T$10)","v":1388.4496101556103},{"$f":"+AW177*$E177*$G177*(1+'Sup Generales'!U$10)","v":1406.6589689437103},{"$f":"+AX177*$E177*$G177*(1+'Sup Generales'!V$10)","v":1425.1179675028352},null,1,{"$f":"ROUNDDOWN(K$139/$F177,0)-SUM($AE177:AE177)","v":2},{"$f":"ROUNDDOWN(L$139/$F177,0)-SUM($AE177:AF177)","v":2},{"$f":"ROUNDDOWN(M$139/$F177,0)-SUM($AE177:AG177)","v":2},{"$f":"ROUNDDOWN(N$139/$F177,0)-SUM($AE177:AH177)","v":2},{"$f":"ROUNDDOWN(O$139/$F177,0)-SUM($AE177:AI177)","v":2},{"$f":"ROUNDDOWN(P$139/$F177,0)-SUM($AE177:AJ177)","v":2},{"$f":"ROUNDDOWN(Q$139/$F177,0)-SUM($AE177:AK177)","v":2},{"$f":"ROUNDDOWN(R$139/$F177,0)-SUM($AE177:AL177)","v":1},{"$f":"ROUNDDOWN(S$139/$F177,0)-SUM($AE177:AM177)","v":2},{"$f":"ROUNDDOWN(T$139/$F177,0)-SUM($AE177:AN177)","v":2},{"$f":"ROUNDDOWN(U$139/$F177,0)-SUM($AE177:AO177)","v":2},{"$f":"ROUNDDOWN(V$139/$F177,0)-SUM($AE177:AP177)","v":2},{"$f":"ROUNDDOWN(W$139/$F177,0)-SUM($AE177:AQ177)","v":2},{"$f":"ROUNDDOWN(X$139/$F177,0)-SUM($AE177:AR177)","v":2},{"$f":"ROUNDDOWN(Y$139/$F177,0)-SUM($AE177:AS177)","v":2},{"$f":"ROUNDDOWN(Z$139/$F177,0)-SUM($AE177:AT177)","v":1},{"$f":"ROUNDDOWN(AA$139/$F177,0)-SUM($AE177:AU177)","v":2},{"$f":"ROUNDDOWN(AB$139/$F177,0)-SUM($AE177:AV177)","v":2},{"$f":"ROUNDDOWN(AC$139/$F177,0)-SUM($AE177:AW177)","v":2}]
[null,37,"REPARACIÓN DEL MOTOR","UND",1,240000,3903.672,"Costo de mantenimiento mecánico",null,{"$f":"+AE178*$E178*$G178*(1+'Sup Generales'!C$10)","v":0},{"$f":"+AF178*$E178*$G178*(1+'Sup Generales'!D$10)","v":0},{"$f":"+AG178*$E178*$G178*(1+'Sup Generales'!E$10)","v":4166.9121551892476},{"$f":"+AH178*$E178*$G178*(1+'Sup Generales'!F$10)","v":0},{"$f":"+AI178*$E178*$G178*(1+'Sup Generales'!G$10)","v":4196.2124813820556},{"$f":"+AJ178*$E178*$G178*(1+'Sup Generales'!H$10)","v":0},{"$f":"+AK178*$E178*$G178*(1+'Sup Generales'!I$10)","v":4306.326574524388},{"$f":"+AL178*$E178*$G178*(1+'Sup Generales'!J$10)","v":0},{"$f":"+AM178*$E178*$G178*(1+'Sup Generales'!K$10)","v":4444.8491927508121},{"$f":"+AN178*$E178*$G178*(1+'Sup Generales'!L$10)","v":0},{"$f":"+AO178*$E178*$G178*(1+'Sup Generales'!M$10)","v":4563.1208677429131},{"$f":"+AP178*$E178*$G178*(1+'Sup Generales'!N$10)","v":0},{"$f":"+AQ178*$E178*$G178*(1+'Sup Generales'!O$10)","v":4672.180650459456},{"$f":"+AR178*$E178*$G178*(1+'Sup Generales'!P$10)","v":0},{"$f":"+AS178*$E178*$G178*(1+'Sup Generales'!Q$10)","v":4803.4817907259239},{"$f":"+AT178*$E178*$G178*(1+'Sup Generales'!R$10)","v":0},{"$f":"+AU178*$E178*$G178*(1+'Sup Generales'!S$10)","v":0},{"$f":"+AV178*$E178*$G178*(1+'Sup Generales'!T$10)","v":4999.171608828131},{"$f":"+AW178*$E178*$G178*(1+'Sup Generales'!U$10)","v":0},{"$f":"+AX178*$E178*$G178*(1+'Sup Generales'!V$10)","v":5131.1975820084372},null,0,{"$f":"ROUNDDOWN(K$139/$F178,0)-SUM($AE178:AE178)","v":0},{"$f":"ROUNDDOWN(L$139/$F178,0)-SUM($AE178:AF178)","v":1},{"$f":"ROUNDDOWN(M$139/$F178,0)-SUM($AE178:AG178)","v":0},{"$f":"ROUNDDOWN(N$139/$F178,0)-SUM($AE178:AH178)","v":1},{"$f":"ROUNDDOWN(O$139/$F178,0)-SUM($AE178:AI178)","v":0},{"$f":"ROUNDDOWN(P$139/$F178,0)-SUM($AE178:AJ178)","v":1},{"$f":"ROUNDDOWN(Q$139/$F178,0)-SUM($AE178:AK178)","v":0},{"$f":"ROUNDDOWN(R$139/$F178,0)-SUM($AE178:AL178)","v":1},{"$f":"ROUNDDOWN(S$139/$F178,0)-SUM($AE178:AM178)","v":0},{"$f":"ROUNDDOWN(T$139/$F178,0)-SUM($AE178:AN178)","v":1},{"$f":"ROUNDDOWN(U$139/$F178,0)-SUM($AE178:AO178)","v":0},{"$f":"ROUNDDOWN(V$139/$F178,0)-SUM($AE178:AP178)","v":1},{"$f":"ROUNDDOWN(W$139/$F178,0)-SUM($AE178:AQ178)","v":0},{"$f":"ROUNDDOWN(X$139/$F178,0)-SUM($AE178:AR178)","v":1},{"$f":"ROUNDDOWN(Y$139/$F178,0)-SUM($AE178:AS178)","v":0},{"$f":"ROUNDDOWN(Z$139/$F178,0)-SUM($AE178:AT178)","v":0},{"$f":"ROUNDDOWN(AA$139/$F178,0)-SUM($AE178:AU178)","v":1},{"$f":"ROUNDDOWN(AB$139/$F178,0)-SUM($AE178:AV178)","v":0},{"$f":"ROUNDDOWN(AC$139/$F178,0)-SUM($AE178:AW178)","v":1}]
[null,38,"REPARACIÓN DE CAJA","UND",1,120000,2209.7959999999998,"Costo de mantenimiento mecánico",null,{"$f":"+AE179*$E179*$G179*(1+'Sup Generales'!C$10)","v":0},{"$f":"+AF179*$E179*$G179*(1+'Sup Generales'!D$10)","v":2299.0364016639996},{"$f":"+AG179*$E179*$G179*(1+'Sup Generales'!E$10)","v":2358.8113481072637},{"$f":"+AH179*$E179*$G179*(1+'Sup Generales'!F$10)","v":2369.0014131310877},{"$f":"+AI179*$E179*$G179*(1+'Sup Generales'!G$10)","v":2375.3977169465415},{"$f":"+AJ179*$E179*$G179*(1+'Sup Generales'!H$10)","v":2391.312881650083},{"$f":"+AK179*$E179*$G179*(1+'Sup Generales'!I$10)","v":2437.7312538240135},{"$f":"+AL179*$E179*$G179*(1+'Sup Generales'!J$10)","v":2480.0354134655709},{"$f":"+AM179*$E179*$G179*(1+'Sup Generales'!K$10)","v":2516.146327545955},{"$f":"+AN179*$E179*$G179*(1+'Sup Generales'!L$10)","v":2549.8141898603249},{"$f":"+AO179*$E179*$G179*(1+'Sup Generales'!M$10)","v":2583.0977195458063},{"$f":"+AP179*$E179*$G179*(1+'Sup Generales'!N$10)","v":2612.6353908279243},{"$f":"+AQ179*$E179*$G179*(1+'Sup Generales'!O$10)","v":2644.8344309313647},{"$f":"+AR179*$E179*$G179*(1+'Sup Generales'!P$10)","v":2680.6121557959627},{"$f":"+AS179*$E179*$G179*(1+'Sup Generales'!Q$10)","v":2719.1615605048228},{"$f":"+AT179*$E179*$G179*(1+'Sup Generales'!R$10)","v":2756.5555188152089},{"$f":"+AU179*$E179*$G179*(1+'Sup Generales'!S$10)","v":0},{"$f":"+AV179*$E179*$G179*(1+'Sup Generales'!T$10)","v":2829.9379211424443},{"$f":"+AW179*$E179*$G179*(1+'Sup Generales'!U$10)","v":2867.0522352502189},{"$f":"+AX179*$E179*$G179*(1+'Sup Generales'!V$10)","v":2904.6753651259414},null,0,{"$f":"ROUNDDOWN(K$139/$F179,0)-SUM($AE179:AE179)","v":1},{"$f":"ROUNDDOWN(L$139/$F179,0)-SUM($AE179:AF179)","v":1},{"$f":"ROUNDDOWN(M$139/$F179,0)-SUM($AE179:AG179)","v":1},{"$f":"ROUNDDOWN(N$139/$F179,0)-SUM($AE179:AH179)","v":1},{"$f":"ROUNDDOWN(O$139/$F179,0)-SUM($AE179:AI179)","v":1},{"$f":"ROUNDDOWN(P$139/$F179,0)-SUM($AE179:AJ179)","v":1},{"$f":"ROUNDDOWN(Q$139/$F179,0)-SUM($AE179:AK179)","v":1},{"$f":"ROUNDDOWN(R$139/$F179,0)-SUM($AE179:AL179)","v":1},{"$f":"ROUNDDOWN(S$139/$F179,0)-SUM($AE179:AM179)","v":1},{"$f":"ROUNDDOWN(T$139/$F179,0)-SUM($AE179:AN179)","v":1},{"$f":"ROUNDDOWN(U$139/$F179,0)-SUM($AE179:AO179)","v":1},{"$f":"ROUNDDOWN(V$139/$F179,0)-SUM($AE179:AP179)","v":1},{"$f":"ROUNDDOWN(W$139/$F179,0)-SUM($AE179:AQ179)","v":1},{"$f":"ROUNDDOWN(X$139/$F179,0)-SUM($AE179:AR179)","v":1},{"$f":"ROUNDDOWN(Y$139/$F179,0)-SUM($AE179:AS179)","v":1},{"$f":"ROUNDDOWN(Z$139/$F179,0)-SUM($AE179:AT179)","v":0},{"$f":"ROUNDDOWN(AA$139/$F179,0)-SUM($AE179:AU179)","v":1},{"$f":"ROUNDDOWN(AB$139/$F179,0)-SUM($AE179:AV179)","v":1},{"$f":"ROUNDDOWN(AC$139/$F179,0)-SUM($AE179:AW179)","v":1}]
[null,39,"REPARACIÓN DEL DIFERENCIAL","UND",1,120000,1675.3619999999999,"Costo de mantenimiento mecánico",null,{"$f":"+AE180*$E180*$G180*(1+'Sup Generales'!C$10)","v":0},{"$f":"+AF180*$E180*$G180*(1+'Sup Generales'!D$10)","v":1743.0198190079998},{"$f":"+AG180*$E180*$G180*(1+'Sup Generales'!E$10)","v":1788.3383343022078},{"$f":"+AH180*$E180*$G180*(1+'Sup Generales'!F$10)","v":1796.0639559063936},{"$f":"+AI180*$E180*$G180*(1+'Sup Generales'!G$10)","v":1800.9133285873409},{"$f":"+AJ180*$E180*$G180*(1+'Sup Generales'!H$10)","v":1812.9794478888759},{"$f":"+AK180*$E180*$G180*(1+'Sup Generales'!I$10)","v":1848.1716451967091},{"$f":"+AL180*$E180*$G180*(1+'Sup Generales'!J$10)","v":1880.2446426613612},{"$f":"+AM180*$E180*$G180*(1+'Sup Generales'!K$10)","v":1907.6222165349409},{"$f":"+AN180*$E180*$G180*(1+'Sup Generales'!L$10)","v":1933.1475850045765},{"$f":"+AO180*$E180*$G180*(1+'Sup Generales'!M$10)","v":1958.3815707937299},{"$f":"+AP180*$E180*$G180*(1+'Sup Generales'!N$10)","v":1980.7756252831721},{"$f":"+AQ180*$E180*$G180*(1+'Sup Generales'!O$10)","v":2005.18740276208},{"$f":"+AR180*$E180*$G180*(1+'Sup Generales'!P$10)","v":2032.3123684533032},{"$f":"+AS180*$E180*$G180*(1+'Sup Generales'!Q$10)","v":2061.5386896937457},{"$f":"+AT180*$E180*$G180*(1+'Sup Generales'!R$10)","v":2089.8890065477926},{"$f":"+AU180*$E180*$G180*(1+'Sup Generales'!S$10)","v":0},{"$f":"+AV180*$E180*$G180*(1+'Sup Generales'!T$10)","v":2145.5240463106311},{"$f":"+AW180*$E180*$G180*(1+'Sup Generales'!U$10)","v":2173.6623502591538},{"$f":"+AX180*$E180*$G180*(1+'Sup Generales'!V$10)","v":2202.186414070859},null,0,{"$f":"ROUNDDOWN(K$139/$F180,0)-SUM($AE180:AE180)","v":1},{"$f":"ROUNDDOWN(L$139/$F180,0)-SUM($AE180:AF180)","v":1},{"$f":"ROUNDDOWN(M$139/$F180,0)-SUM($AE180:AG180)","v":1},{"$f":"ROUNDDOWN(N$139/$F180,0)-SUM($AE180:AH180)","v":1},{"$f":"ROUNDDOWN(O$139/$F180,0)-SUM($AE180:AI180)","v":1},{"$f":"ROUNDDOWN(P$139/$F180,0)-SUM($AE180:AJ180)","v":1},{"$f":"ROUNDDOWN(Q$139/$F180,0)-SUM($AE180:AK180)","v":1},{"$f":"ROUNDDOWN(R$139/$F180,0)-SUM($AE180:AL180)","v":1},{"$f":"ROUNDDOWN(S$139/$F180,0)-SUM($AE180:AM180)","v":1},{"$f":"ROUNDDOWN(T$139/$F180,0)-SUM($AE180:AN180)","v":1},{"$f":"ROUNDDOWN(U$139/$F180,0)-SUM($AE180:AO180)","v":1},{"$f":"ROUNDDOWN(V$139/$F180,0)-SUM($AE180:AP180)","v":1},{"$f":"ROUNDDOWN(W$139/$F180,0)-SUM($AE180:AQ180)","v":1},{"$f":"ROUNDDOWN(X$139/$F180,0)-SUM($AE180:AR180)","v":1},{"$f":"ROUNDDOWN(Y$139/$F180,0)-SUM($AE180:AS180)","v":1},{"$f":"ROUNDDOWN(Z$139/$F180,0)-SUM($AE180:AT180)","v":0},{"$f":"ROUNDDOWN(AA$139/$F180,0)-SUM($AE180:AU180)","v":1},{"$f":"ROUNDDOWN(AB$139/$F180,0)-SUM($AE180:AV180)","v":1},{"$f":"ROUNDDOWN(AC$139/$F180,0)-SUM($AE180:AW180)","v":1}]
[null,40,"REPARACIÓN DE CARROCERIA","UND",1,600000,4125,"Carrocería ",null,{"$f":"+AE181*$E181*$G181*(1+'Sup Generales'!C$10)","v":0},{"$f":"+AF181*$E181*$G181*(1+'Sup Generales'!D$10)","v":0},{"$f":"+AG181*$E181*$G181*(1+'Sup Generales'!E$10)","v":0},{"$f":"+AH181*$E181*$G181*(1+'Sup Generales'!F$10)","v":0},{"$f":"+AI181*$E181*$G181*(1+'Sup Generales'!G$10)","v":0},{"$f":"+AJ181*$E181*$G181*(1+'Sup Generales'!H$10)","v":4463.8354114165259},{"$f":"+AK181*$E181*$G181*(1+'Sup Generales'!I$10)","v":0},{"$f":"+AL181*$E181*$G181*(1+'Sup Generales'!J$10)","v":0},{"$f":"+AM181*$E181*$G181*(1+'Sup Generales'!K$10)","v":0},{"$f":"+AN181*$E181*$G181*(1+'Sup Generales'!L$10)","v":0},{"$f":"+AO181*$E181*$G181*(1+'Sup Generales'!M$10)","v":4821.8378950484357},{"$f":"+AP181*$E181*$G181*(1+'Sup Generales'!N$10)","v":0},{"$f":"+AQ181*$E181*$G181*(1+'Sup Generales'!O$10)","v":0},{"$f":"+AR181*$E181*$G181*(1+'Sup Generales'!P$10)","v":0},{"$f":"+AS181*$E181*$G181*(1+'Sup Generales'!Q$10)","v":0},{"$f":"+AT181*$E181*$G181*(1+'Sup Generales'!R$10)","v":5145.6295129110276},{"$f":"+AU181*$E181*$G181*(1+'Sup Generales'!S$10)","v":0},{"$f":"+AV181*$E181*$G181*(1+'Sup Generales'!T$10)","v":0},{"$f":"+AW181*$E181*$G181*(1+'Sup Generales'!U$10)","v":0},{"$f":"+AX181*$E181*$G181*(1+'Sup Generales'!V$10)","v":0},null,0,{"$f":"ROUNDDOWN(K$139/$F181,0)-SUM($AE181:AE181)","v":0},{"$f":"ROUNDDOWN(L$139/$F181,0)-SUM($AE181:AF181)","v":0},{"$f":"ROUNDDOWN(M$139/$F181,0)-SUM($AE181:AG181)","v":0},{"$f":"ROUNDDOWN(N$139/$F181,0)-SUM($AE181:AH181)","v":0},{"$f":"ROUNDDOWN(O$139/$F181,0)-SUM($AE181:AI181)","v":1},{"$f":"ROUNDDOWN(P$139/$F181,0)-SUM($AE181:AJ181)","v":0},{"$f":"ROUNDDOWN(Q$139/$F181,0)-SUM($AE181:AK181)","v":0},{"$f":"ROUNDDOWN(R$139/$F181,0)-SUM($AE181:AL181)","v":0},{"$f":"ROUNDDOWN(S$139/$F181,0)-SUM($AE181:AM181)","v":0},{"$f":"ROUNDDOWN(T$139/$F181,0)-SUM($AE181:AN181)","v":1},{"$f":"ROUNDDOWN(U$139/$F181,0)-SUM($AE181:AO181)","v":0},{"$f":"ROUNDDOWN(V$139/$F181,0)-SUM($AE181:AP181)","v":0},{"$f":"ROUNDDOWN(W$139/$F181,0)-SUM($AE181:AQ181)","v":0},{"$f":"ROUNDDOWN(X$139/$F181,0)-SUM($AE181:AR181)","v":0},{"$f":"ROUNDDOWN(Y$139/$F181,0)-SUM($AE181:AS181)","v":1},{"$f":"ROUNDDOWN(Z$139/$F181,0)-SUM($AE181:AT181)","v":0},{"$f":"ROUNDDOWN(AA$139/$F181,0)-SUM($AE181:AU181)","v":0},{"$f":"ROUNDDOWN(AB$139/$F181,0)-SUM($AE181:AV181)","v":0},{"$f":"ROUNDDOWN(AC$139/$F181,0)-SUM($AE181:AW181)","v":0}]
[null,41,"MANO DE OBRA MANTENIMIENTO","UND",1,1,0.03,"Mano de Obra",null,{"$f":"+AE182*$E182*$G182*(1+'Sup Generales'!C$10)","v":2162.8723199999999},{"$f":"+AF182*$E182*$G182*(1+'Sup Generales'!D$10)","v":2197.4782771199998},{"$f":"+AG182*$E182*$G182*(1+'Sup Generales'!E$10)","v":2254.6127123251199},{"$f":"+AH182*$E182*$G182*(1+'Sup Generales'!F$10)","v":2264.3526392423646},{"$f":"+AI182*$E182*$G182*(1+'Sup Generales'!G$10)","v":2270.4663913683189},{"$f":"+AJ182*$E182*$G182*(1+'Sup Generales'!H$10)","v":2285.6785161904868},{"$f":"+AK182*$E182*$G182*(1+'Sup Generales'!I$10)","v":2330.0463932878893},{"$f":"+AL182*$E182*$G182*(1+'Sup Generales'!J$10)","v":2370.4817999551583},{"$f":"+AM182*$E182*$G182*(1+'Sup Generales'!K$10)","v":2404.9975428121033},{"$f":"+AN182*$E182*$G182*(1+'Sup Generales'!L$10)","v":2437.178153793011},{"$f":"+AO182*$E182*$G182*(1+'Sup Generales'!M$10)","v":2468.9914097365827},{"$f":"+AP182*$E182*$G182*(1+'Sup Generales'!N$10)","v":2497.2242776251405},{"$f":"+AQ182*$E182*$G182*(1+'Sup Generales'!O$10)","v":2528.0009504608615},{"$f":"+AR182*$E182*$G182*(1+'Sup Generales'!P$10)","v":2562.1982224735298},{"$f":"+AS182*$E182*$G182*(1+'Sup Generales'!Q$10)","v":2599.0447375536369},{"$f":"+AT182*$E182*$G182*(1+'Sup Generales'!R$10)","v":2634.7868471710094},{"$f":"+AU182*$E182*$G182*(1+'Sup Generales'!S$10)","v":2669.8342068942734},{"$f":"+AV182*$E182*$G182*(1+'Sup Generales'!T$10)","v":2704.9276396005098},{"$f":"+AW182*$E182*$G182*(1+'Sup Generales'!U$10)","v":2740.4024580779437},{"$f":"+AX182*$E182*$G182*(1+'Sup Generales'!V$10)","v":2776.3636157870278},{"$f":"SUM(J182:AC182)/SUM($J$9:$AC$9)","v":3.4911754048997927E-2},{"$f":"ROUNDDOWN(J$10/$F182,0)","v":70406},{"$f":"ROUNDDOWN(K$10/$F182,0)-SUM($AE182:AE182)","v":70406},{"$f":"ROUNDDOWN(L$10/$F182,0)-SUM($AE182:AF182)","v":70406},{"$f":"ROUNDDOWN(M$10/$F182,0)-SUM($AE182:AG182)","v":70406},{"$f":"ROUNDDOWN(N$10/$F182,0)-SUM($AE182:AH182)","v":70406},{"$f":"ROUNDDOWN(O$10/$F182,0)-SUM($AE182:AI182)","v":70406},{"$f":"ROUNDDOWN(P$10/$F182,0)-SUM($AE182:AJ182)","v":70406},{"$f":"ROUNDDOWN(Q$10/$F182,0)-SUM($AE182:AK182)","v":70406},{"$f":"ROUNDDOWN(R$10/$F182,0)-SUM($AE182:AL182)","v":70406},{"$f":"ROUNDDOWN(S$10/$F182,0)-SUM($AE182:AM182)","v":70406},{"$f":"ROUNDDOWN(T$10/$F182,0)-SUM($AE182:AN182)","v":70406},{"$f":"ROUNDDOWN(U$10/$F182,0)-SUM($AE182:AO182)","v":70406},{"$f":"ROUNDDOWN(V$10/$F182,0)-SUM($AE182:AP182)","v":70406},{"$f":"ROUNDDOWN(W$10/$F182,0)-SUM($AE182:AQ182)","v":70406},{"$f":"ROUNDDOWN(X$10/$F182,0)-SUM($AE182:AR182)","v":70406},{"$f":"ROUNDDOWN(Y$10/$F182,0)-SUM($AE182:AS182)","v":70406},{"$f":"ROUNDDOWN(Z$10/$F182,0)-SUM($AE182:AT182)","v":70406},{"$f":"ROUNDDOWN(AA$10/$F182,0)-SUM($AE182:AU182)","v":70406},{"$f":"ROUNDDOWN(AB$10/$F182,0)-SUM($AE182:AV182)","v":70406},{"$f":"ROUNDDOWN(AC$10/$F182,0)-SUM($AE182:AW182)","v":70406}]
[null,"A1","Filtros y Lubricantes (Híbrido)","UND",1,1,0.158,"Aceites y filtros ",null,{"$f":"+AE183*$E183*$G183*(1+'Sup Generales'!C$10)","v":18204.512256000002},{"$f":"+AF183*$E183*$G183*(1+'Sup Generales'!D$10)","v":18495.784452095999},{"$f":"+AG183*$E183*$G183*(1+'Sup Generales'!E$10)","v":18976.674847850496},{"$f":"+AH183*$E183*$G183*(1+'Sup Generales'!F$10)","v":19058.654083193214},{"$f":"+AI183*$E183*$G183*(1+'Sup Generales'!G$10)","v":19110.112449217835},{"$f":"+AJ183*$E183*$G183*(1+'Sup Generales'!H$10)","v":19238.150202627592},{"$f":"+AK183*$E183*$G183*(1+'Sup Generales'!I$10)","v":19611.586745748351},{"$f":"+AL183*$E183*$G183*(1+'Sup Generales'!J$10)","v":19951.924383547812},{"$f":"+AM183*$E183*$G183*(1+'Sup Generales'!K$10)","v":20242.437262211035},{"$f":"+AN183*$E183*$G183*(1+'Sup Generales'!L$10)","v":20513.295750523233},{"$f":"+AO183*$E183*$G183*(1+'Sup Generales'!M$10)","v":20781.062276717446},{"$f":"+AP183*$E183*$G183*(1+'Sup Generales'!N$10)","v":21018.693312422445},{"$f":"+AQ183*$E183*$G183*(1+'Sup Generales'!O$10)","v":21277.735102664039},{"$f":"+AR183*$E183*$G183*(1+'Sup Generales'!P$10)","v":21565.567468781879},{"$f":"+AS183*$E183*$G183*(1+'Sup Generales'!Q$10)","v":21875.698043372013},{"$f":"+AT183*$E183*$G183*(1+'Sup Generales'!R$10)","v":22176.533033291696},{"$f":"+AU183*$E183*$G183*(1+'Sup Generales'!S$10)","v":22471.520436719467},{"$f":"+AV183*$E183*$G183*(1+'Sup Generales'!T$10)","v":22766.89562826373},{"$f":"+AW183*$E183*$G183*(1+'Sup Generales'!U$10)","v":23065.480876121459},{"$f":"+AX183*$E183*$G183*(1+'Sup Generales'!V$10)","v":23368.159554932688},null,{"$f":"ROUNDDOWN(J$139/$F183,0)","v":112518},{"$f":"ROUNDDOWN(K$139/$F183,0)-SUM($AE183:AE183)","v":112518},{"$f":"ROUNDDOWN(L$139/$F183,0)-SUM($AE183:AF183)","v":112518},{"$f":"ROUNDDOWN(M$139/$F183,0)-SUM($AE183:AG183)","v":112518},{"$f":"ROUNDDOWN(N$139/$F183,0)-SUM($AE183:AH183)","v":112518},{"$f":"ROUNDDOWN(O$139/$F183,0)-SUM($AE183:AI183)","v":112518},{"$f":"ROUNDDOWN(P$139/$F183,0)-SUM($AE183:AJ183)","v":112518},{"$f":"ROUNDDOWN(Q$139/$F183,0)-SUM($AE183:AK183)","v":112518},{"$f":"ROUNDDOWN(R$139/$F183,0)-SUM($AE183:AL183)","v":112518},{"$f":"ROUNDDOWN(S$139/$F183,0)-SUM($AE183:AM183)","v":112518},{"$f":"ROUNDDOWN(T$139/$F183,0)-SUM($AE183:AN183)","v":112518},{"$f":"ROUNDDOWN(U$139/$F183,0)-SUM($AE183:AO183)","v":112518},{"$f":"ROUNDDOWN(V$139/$F183,0)-SUM($AE183:AP183)","v":112518},{"$f":"ROUNDDOWN(W$139/$F183,0)-SUM($AE183:AQ183)","v":112518},{"$f":"ROUNDDOWN(X$139/$F183,0)-SUM($AE183:AR183)","v":112518},{"$f":"ROUNDDOWN(Y$139/$F183,0)-SUM($AE183:AS183)","v":112518},{"$f":"ROUNDDOWN(Z$139/$F183,0)-SUM($AE183:AT183)","v":112518},{"$f":"ROUNDDOWN(AA$139/$F183,0)-SUM($AE183:AU183)","v":112518},{"$f":"ROUNDDOWN(AB$139/$F183,0)-SUM($AE183:AV183)","v":112518},{"$f":"ROUNDDOWN(AC$139/$F183,0)-SUM($AE183:AW183)","v":112518}]
[null,"A2","Mantenimiento Electrico (Híbrido)","UND",1,1,4.9000000000000002E-2,"Costo de mantenimiento eléctrico ",null,{"$f":"+AE184*$E184*$G184*(1+'Sup Generales'!C$10)","v":5645.7031680000009},{"$f":"+AF184*$E184*$G184*(1+'Sup Generales'!D$10)","v":5736.0344186880002},{"$f":"+AG184*$E184*$G184*(1+'Sup Generales'!E$10)","v":5885.1713135738883},{"$f":"+AH184*$E184*$G184*(1+'Sup Generales'!F$10)","v":5910.5952536485283},{"$f":"+AI184*$E184*$G184*(1+'Sup Generales'!G$10)","v":5926.5538608333791},{"$f":"+AJ184*$E184*$G184*(1+'Sup Generales'!H$10)","v":5966.2617717009625},{"$f":"+AK184*$E184*$G184*(1+'Sup Generales'!I$10)","v":6082.0743705168934},{"$f":"+AL184*$E184*$G184*(1+'Sup Generales'!J$10)","v":6187.6221189483722},{"$f":"+AM184*$E184*$G184*(1+'Sup Generales'!K$10)","v":6277.7178851160807},{"$f":"+AN184*$E184*$G184*(1+'Sup Generales'!L$10)","v":6361.7183023774587},{"$f":"+AO184*$E184*$G184*(1+'Sup Generales'!M$10)","v":6444.7598199946506},{"$f":"+AP184*$E184*$G184*(1+'Sup Generales'!N$10)","v":6518.4555209411392},{"$f":"+AQ184*$E184*$G184*(1+'Sup Generales'!O$10)","v":6598.7912660160637},{"$f":"+AR184*$E184*$G184*(1+'Sup Generales'!P$10)","v":6688.0557339893176},{"$f":"+AS184*$E184*$G184*(1+'Sup Generales'!Q$10)","v":6784.2354691470173},{"$f":"+AT184*$E184*$G184*(1+'Sup Generales'!R$10)","v":6877.5323964005893},{"$f":"+AU184*$E184*$G184*(1+'Sup Generales'!S$10)","v":6969.0158316408479},{"$f":"+AV184*$E184*$G184*(1+'Sup Generales'!T$10)","v":7060.6195302843225},{"$f":"+AW184*$E184*$G184*(1+'Sup Generales'!U$10)","v":7153.2187527212127},{"$f":"+AX184*$E184*$G184*(1+'Sup Generales'!V$10)","v":7247.0874569095049},null,112518,{"$f":"ROUNDDOWN(K$139/$F184,0)-SUM($AE184:AE184)","v":112518},{"$f":"ROUNDDOWN(L$139/$F184,0)-SUM($AE184:AF184)","v":112518},{"$f":"ROUNDDOWN(M$139/$F184,0)-SUM($AE184:AG184)","v":112518},{"$f":"ROUNDDOWN(N$139/$F184,0)-SUM($AE184:AH184)","v":112518},{"$f":"ROUNDDOWN(O$139/$F184,0)-SUM($AE184:AI184)","v":112518},{"$f":"ROUNDDOWN(P$139/$F184,0)-SUM($AE184:AJ184)","v":112518},{"$f":"ROUNDDOWN(Q$139/$F184,0)-SUM($AE184:AK184)","v":112518},{"$f":"ROUNDDOWN(R$139/$F184,0)-SUM($AE184:AL184)","v":112518},{"$f":"ROUNDDOWN(S$139/$F184,0)-SUM($AE184:AM184)","v":112518},{"$f":"ROUNDDOWN(T$139/$F184,0)-SUM($AE184:AN184)","v":112518},{"$f":"ROUNDDOWN(U$139/$F184,0)-SUM($AE184:AO184)","v":112518},{"$f":"ROUNDDOWN(V$139/$F184,0)-SUM($AE184:AP184)","v":112518},{"$f":"ROUNDDOWN(W$139/$F184,0)-SUM($AE184:AQ184)","v":112518},{"$f":"ROUNDDOWN(X$139/$F184,0)-SUM($AE184:AR184)","v":112518},{"$f":"ROUNDDOWN(Y$139/$F184,0)-SUM($AE184:AS184)","v":112518},{"$f":"ROUNDDOWN(Z$139/$F184,0)-SUM($AE184:AT184)","v":112518},{"$f":"ROUNDDOWN(AA$139/$F184,0)-SUM($AE184:AU184)","v":112518},{"$f":"ROUNDDOWN(AB$139/$F184,0)-SUM($AE184:AV184)","v":112518},{"$f":"ROUNDDOWN(AC$139/$F184,0)-SUM($AE184:AW184)","v":112518}]
[null,"A3","Manto. Chasis y Motor (Híbrido)","UND",1,1,9.7199999999999995E-2,"Costo de mantenimiento mecánico",null,{"$f":"+AE185*$E185*$G185*(1+'Sup Generales'!C$10)","v":11199.231590399999},{"$f":"+AF185*$E185*$G185*(1+'Sup Generales'!D$10)","v":11378.419295846399},{"$f":"+AG185*$E185*$G185*(1+'Sup Generales'!E$10)","v":11674.258197538406},{"$f":"+AH185*$E185*$G185*(1+'Sup Generales'!F$10)","v":11724.690992951773},{"$f":"+AI185*$E185*$G185*(1+'Sup Generales'!G$10)","v":11756.347658632743},{"$f":"+AJ185*$E185*$G185*(1+'Sup Generales'!H$10)","v":11835.115187945581},{"$f":"+AK185*$E185*$G185*(1+'Sup Generales'!I$10)","v":12064.849567637591},{"$f":"+AL185*$E185*$G185*(1+'Sup Generales'!J$10)","v":12274.221835954728},{"$f":"+AM185*$E185*$G185*(1+'Sup Generales'!K$10)","v":12452.942417005774},{"$f":"+AN185*$E185*$G185*(1+'Sup Generales'!L$10)","v":12619.571816144671},{"$f":"+AO185*$E185*$G185*(1+'Sup Generales'!M$10)","v":12784.29907149959},{"$f":"+AP185*$E185*$G185*(1+'Sup Generales'!N$10)","v":12930.487278275074},{"$f":"+AQ185*$E185*$G185*(1+'Sup Generales'!O$10)","v":13089.8471644237},{"$f":"+AR185*$E185*$G185*(1+'Sup Generales'!P$10)","v":13266.918721301256},{"$f":"+AS185*$E185*$G185*(1+'Sup Generales'!Q$10)","v":13457.707910226327},{"$f":"+AT185*$E185*$G185*(1+'Sup Generales'!R$10)","v":13642.778549594635},{"$f":"+AU185*$E185*$G185*(1+'Sup Generales'!S$10)","v":13824.251812969189},{"$f":"+AV185*$E185*$G185*(1+'Sup Generales'!T$10)","v":14005.963639666041},{"$f":"+AW185*$E185*$G185*(1+'Sup Generales'!U$10)","v":14189.650260500037},{"$f":"+AX185*$E185*$G185*(1+'Sup Generales'!V$10)","v":14375.855118604159},null,112518,{"$f":"ROUNDDOWN(K$139/$F185,0)-SUM($AE185:AE185)","v":112518},{"$f":"ROUNDDOWN(L$139/$F185,0)-SUM($AE185:AF185)","v":112518},{"$f":"ROUNDDOWN(M$139/$F185,0)-SUM($AE185:AG185)","v":112518},{"$f":"ROUNDDOWN(N$139/$F185,0)-SUM($AE185:AH185)","v":112518},{"$f":"ROUNDDOWN(O$139/$F185,0)-SUM($AE185:AI185)","v":112518},{"$f":"ROUNDDOWN(P$139/$F185,0)-SUM($AE185:AJ185)","v":112518},{"$f":"ROUNDDOWN(Q$139/$F185,0)-SUM($AE185:AK185)","v":112518},{"$f":"ROUNDDOWN(R$139/$F185,0)-SUM($AE185:AL185)","v":112518},{"$f":"ROUNDDOWN(S$139/$F185,0)-SUM($AE185:AM185)","v":112518},{"$f":"ROUNDDOWN(T$139/$F185,0)-SUM($AE185:AN185)","v":112518},{"$f":"ROUNDDOWN(U$139/$F185,0)-SUM($AE185:AO185)","v":112518},{"$f":"ROUNDDOWN(V$139/$F185,0)-SUM($AE185:AP185)","v":112518},{"$f":"ROUNDDOWN(W$139/$F185,0)-SUM($AE185:AQ185)","v":112518},{"$f":"ROUNDDOWN(X$139/$F185,0)-SUM($AE185:AR185)","v":112518},{"$f":"ROUNDDOWN(Y$139/$F185,0)-SUM($AE185:AS185)","v":112518},{"$f":"ROUNDDOWN(Z$139/$F185,0)-SUM($AE185:AT185)","v":112518},{"$f":"ROUNDDOWN(AA$139/$F185,0)-SUM($AE185:AU185)","v":112518},{"$f":"ROUNDDOWN(AB$139/$F185,0)-SUM($AE185:AV185)","v":112518},{"$f":"ROUNDDOWN(AC$139/$F185,0)-SUM($AE185:AW185)","v":112518}]
[null,"A4","Manto. Carroceria (Híbrido)","UND",1,1,1.0800000000000001E-2,"Carrocería ",null,{"$f":"+AE186*$E186*$G186*(1+'Sup Generales'!C$10)","v":1244.3590656000001},{"$f":"+AF186*$E186*$G186*(1+'Sup Generales'!D$10)","v":1264.2688106496},{"$f":"+AG186*$E186*$G186*(1+'Sup Generales'!E$10)","v":1297.1397997264896},{"$f":"+AH186*$E186*$G186*(1+'Sup Generales'!F$10)","v":1302.7434436613084},{"$f":"+AI186*$E186*$G186*(1+'Sup Generales'!G$10)","v":1306.2608509591937},{"$f":"+AJ186*$E186*$G186*(1+'Sup Generales'!H$10)","v":1315.0127986606203},{"$f":"+AK186*$E186*$G186*(1+'Sup Generales'!I$10)","v":1340.5388408486215},{"$f":"+AL186*$E186*$G186*(1+'Sup Generales'!J$10)","v":1363.8024262171923},{"$f":"+AM186*$E186*$G186*(1+'Sup Generales'!K$10)","v":1383.6602685561973},{"$f":"+AN186*$E186*$G186*(1+'Sup Generales'!L$10)","v":1402.1746462382971},{"$f":"+AO186*$E186*$G186*(1+'Sup Generales'!M$10)","v":1420.4776746110658},{"$f":"+AP186*$E186*$G186*(1+'Sup Generales'!N$10)","v":1436.7208086972305},{"$f":"+AQ186*$E186*$G186*(1+'Sup Generales'!O$10)","v":1454.4274627137445},{"$f":"+AR186*$E186*$G186*(1+'Sup Generales'!P$10)","v":1474.1020801445843},{"$f":"+AS186*$E186*$G186*(1+'Sup Generales'!Q$10)","v":1495.3008789140365},{"$f":"+AT186*$E186*$G186*(1+'Sup Generales'!R$10)","v":1515.8642832882931},{"$f":"+AU186*$E186*$G186*(1+'Sup Generales'!S$10)","v":1536.0279792187989},{"$f":"+AV186*$E186*$G186*(1+'Sup Generales'!T$10)","v":1556.2181821851159},{"$f":"+AW186*$E186*$G186*(1+'Sup Generales'!U$10)","v":1576.6278067222265},{"$f":"+AX186*$E186*$G186*(1+'Sup Generales'!V$10)","v":1597.3172354004623},null,112518,{"$f":"ROUNDDOWN(K$139/$F186,0)-SUM($AE186:AE186)","v":112518},{"$f":"ROUNDDOWN(L$139/$F186,0)-SUM($AE186:AF186)","v":112518},{"$f":"ROUNDDOWN(M$139/$F186,0)-SUM($AE186:AG186)","v":112518},{"$f":"ROUNDDOWN(N$139/$F186,0)-SUM($AE186:AH186)","v":112518},{"$f":"ROUNDDOWN(O$139/$F186,0)-SUM($AE186:AI186)","v":112518},{"$f":"ROUNDDOWN(P$139/$F186,0)-SUM($AE186:AJ186)","v":112518},{"$f":"ROUNDDOWN(Q$139/$F186,0)-SUM($AE186:AK186)","v":112518},{"$f":"ROUNDDOWN(R$139/$F186,0)-SUM($AE186:AL186)","v":112518},{"$f":"ROUNDDOWN(S$139/$F186,0)-SUM($AE186:AM186)","v":112518},{"$f":"ROUNDDOWN(T$139/$F186,0)-SUM($AE186:AN186)","v":112518},{"$f":"ROUNDDOWN(U$139/$F186,0)-SUM($AE186:AO186)","v":112518},{"$f":"ROUNDDOWN(V$139/$F186,0)-SUM($AE186:AP186)","v":112518},{"$f":"ROUNDDOWN(W$139/$F186,0)-SUM($AE186:AQ186)","v":112518},{"$f":"ROUNDDOWN(X$139/$F186,0)-SUM($AE186:AR186)","v":112518},{"$f":"ROUNDDOWN(Y$139/$F186,0)-SUM($AE186:AS186)","v":112518},{"$f":"ROUNDDOWN(Z$139/$F186,0)-SUM($AE186:AT186)","v":112518},{"$f":"ROUNDDOWN(AA$139/$F186,0)-SUM($AE186:AU186)","v":112518},{"$f":"ROUNDDOWN(AB$139/$F186,0)-SUM($AE186:AV186)","v":112518},{"$f":"ROUNDDOWN(AC$139/$F186,0)-SUM($AE186:AW186)","v":112518}]
[null,"B1","Filtros y Lubricantes (Eléctrico)","UND",1,1,{"$f":"G183*1.2","v":0.18959999999999999},"Aceites y filtros ",null,{"$f":"+AE187*$E187*$G187*(1+'Sup Generales'!C$10)","v":21845.414707199998},{"$f":"+AF187*$E187*$G187*(1+'Sup Generales'!D$10)","v":22194.941342515198},{"$f":"+AG187*$E187*$G187*(1+'Sup Generales'!E$10)","v":22772.009817420592},{"$f":"+AH187*$E187*$G187*(1+'Sup Generales'!F$10)","v":22870.384899831854},{"$f":"+AI187*$E187*$G187*(1+'Sup Generales'!G$10)","v":22932.134939061398},{"$f":"+AJ187*$E187*$G187*(1+'Sup Generales'!H$10)","v":23085.780243153109},{"$f":"+AK187*$E187*$G187*(1+'Sup Generales'!I$10)","v":23533.904094898018},{"$f":"+AL187*$E187*$G187*(1+'Sup Generales'!J$10)","v":23942.309260257371},{"$f":"+AM187*$E187*$G187*(1+'Sup Generales'!K$10)","v":24290.924714653236},{"$f":"+AN187*$E187*$G187*(1+'Sup Generales'!L$10)","v":24615.954900627879},{"$f":"+AO187*$E187*$G187*(1+'Sup Generales'!M$10)","v":24937.274732060931},{"$f":"+AP187*$E187*$G187*(1+'Sup Generales'!N$10)","v":25222.431974906933},{"$f":"+AQ187*$E187*$G187*(1+'Sup Generales'!O$10)","v":25533.282123196845},{"$f":"+AR187*$E187*$G187*(1+'Sup Generales'!P$10)","v":25878.680962538252},{"$f":"+AS187*$E187*$G187*(1+'Sup Generales'!Q$10)","v":26250.837652046415},{"$f":"+AT187*$E187*$G187*(1+'Sup Generales'!R$10)","v":26611.839639950031},{"$f":"+AU187*$E187*$G187*(1+'Sup Generales'!S$10)","v":26965.824524063355},{"$f":"+AV187*$E187*$G187*(1+'Sup Generales'!T$10)","v":27320.274753916474},{"$f":"+AW187*$E187*$G187*(1+'Sup Generales'!U$10)","v":27678.57705134575},{"$f":"+AX187*$E187*$G187*(1+'Sup Generales'!V$10)","v":28041.791465919225},null,112518,{"$f":"ROUNDDOWN(K$139/$F187,0)-SUM($AE187:AE187)","v":112518},{"$f":"ROUNDDOWN(L$139/$F187,0)-SUM($AE187:AF187)","v":112518},{"$f":"ROUNDDOWN(M$139/$F187,0)-SUM($AE187:AG187)","v":112518},{"$f":"ROUNDDOWN(N$139/$F187,0)-SUM($AE187:AH187)","v":112518},{"$f":"ROUNDDOWN(O$139/$F187,0)-SUM($AE187:AI187)","v":112518},{"$f":"ROUNDDOWN(P$139/$F187,0)-SUM($AE187:AJ187)","v":112518},{"$f":"ROUNDDOWN(Q$139/$F187,0)-SUM($AE187:AK187)","v":112518},{"$f":"ROUNDDOWN(R$139/$F187,0)-SUM($AE187:AL187)","v":112518},{"$f":"ROUNDDOWN(S$139/$F187,0)-SUM($AE187:AM187)","v":112518},{"$f":"ROUNDDOWN(T$139/$F187,0)-SUM($AE187:AN187)","v":112518},{"$f":"ROUNDDOWN(U$139/$F187,0)-SUM($AE187:AO187)","v":112518},{"$f":"ROUNDDOWN(V$139/$F187,0)-SUM($AE187:AP187)","v":112518},{"$f":"ROUNDDOWN(W$139/$F187,0)-SUM($AE187:AQ187)","v":112518},{"$f":"ROUNDDOWN(X$139/$F187,0)-SUM($AE187:AR187)","v":112518},{"$f":"ROUNDDOWN(Y$139/$F187,0)-SUM($AE187:AS187)","v":112518},{"$f":"ROUNDDOWN(Z$139/$F187,0)-SUM($AE187:AT187)","v":112518},{"$f":"ROUNDDOWN(AA$139/$F187,0)-SUM($AE187:AU187)","v":112518},{"$f":"ROUNDDOWN(AB$139/$F187,0)-SUM($AE187:AV187)","v":112518},{"$f":"ROUNDDOWN(AC$139/$F187,0)-SUM($AE187:AW187)","v":112518}]
[null,"B2","Mantenimiento Electrico (Eléctrico)","UND",1,1,{"$f":"G184*1.2","v":5.8799999999999998E-2},"Costo de mantenimiento eléctrico ",null,{"$f":"+AE188*$E188*$G188*(1+'Sup Generales'!C$10)","v":6774.8438016},{"$f":"+AF188*$E188*$G188*(1+'Sup Generales'!D$10)","v":6883.2413024255993},{"$f":"+AG188*$E188*$G188*(1+'Sup Generales'!E$10)","v":7062.2055762886657},{"$f":"+AH188*$E188*$G188*(1+'Sup Generales'!F$10)","v":7092.7143043782335},{"$f":"+AI188*$E188*$G188*(1+'Sup Generales'!G$10)","v":7111.8646330000547},{"$f":"+AJ188*$E188*$G188*(1+'Sup Generales'!H$10)","v":7159.5141260411547},{"$f":"+AK188*$E188*$G188*(1+'Sup Generales'!I$10)","v":7298.4892446202712},{"$f":"+AL188*$E188*$G188*(1+'Sup Generales'!J$10)","v":7425.1465427380463},{"$f":"+AM188*$E188*$G188*(1+'Sup Generales'!K$10)","v":7533.2614621392959},{"$f":"+AN188*$E188*$G188*(1+'Sup Generales'!L$10)","v":7634.0619628529503},{"$f":"+AO188*$E188*$G188*(1+'Sup Generales'!M$10)","v":7733.71178399358},{"$f":"+AP188*$E188*$G188*(1+'Sup Generales'!N$10)","v":7822.1466251293659},{"$f":"+AQ188*$E188*$G188*(1+'Sup Generales'!O$10)","v":7918.5495192192748},{"$f":"+AR188*$E188*$G188*(1+'Sup Generales'!P$10)","v":8025.6668807871802},{"$f":"+AS188*$E188*$G188*(1+'Sup Generales'!Q$10)","v":8141.0825629764204},{"$f":"+AT188*$E188*$G188*(1+'Sup Generales'!R$10)","v":8253.038875680706},{"$f":"+AU188*$E188*$G188*(1+'Sup Generales'!S$10)","v":8362.818997969016},{"$f":"+AV188*$E188*$G188*(1+'Sup Generales'!T$10)","v":8472.7434363411849},{"$f":"+AW188*$E188*$G188*(1+'Sup Generales'!U$10)","v":8583.8625032654545},{"$f":"+AX188*$E188*$G188*(1+'Sup Generales'!V$10)","v":8696.5049482914055},null,112518,{"$f":"ROUNDDOWN(K$139/$F188,0)-SUM($AE188:AE188)","v":112518},{"$f":"ROUNDDOWN(L$139/$F188,0)-SUM($AE188:AF188)","v":112518},{"$f":"ROUNDDOWN(M$139/$F188,0)-SUM($AE188:AG188)","v":112518},{"$f":"ROUNDDOWN(N$139/$F188,0)-SUM($AE188:AH188)","v":112518},{"$f":"ROUNDDOWN(O$139/$F188,0)-SUM($AE188:AI188)","v":112518},{"$f":"ROUNDDOWN(P$139/$F188,0)-SUM($AE188:AJ188)","v":112518},{"$f":"ROUNDDOWN(Q$139/$F188,0)-SUM($AE188:AK188)","v":112518},{"$f":"ROUNDDOWN(R$139/$F188,0)-SUM($AE188:AL188)","v":112518},{"$f":"ROUNDDOWN(S$139/$F188,0)-SUM($AE188:AM188)","v":112518},{"$f":"ROUNDDOWN(T$139/$F188,0)-SUM($AE188:AN188)","v":112518},{"$f":"ROUNDDOWN(U$139/$F188,0)-SUM($AE188:AO188)","v":112518},{"$f":"ROUNDDOWN(V$139/$F188,0)-SUM($AE188:AP188)","v":112518},{"$f":"ROUNDDOWN(W$139/$F188,0)-SUM($AE188:AQ188)","v":112518},{"$f":"ROUNDDOWN(X$139/$F188,0)-SUM($AE188:AR188)","v":112518},{"$f":"ROUNDDOWN(Y$139/$F188,0)-SUM($AE188:AS188)","v":112518},{"$f":"ROUNDDOWN(Z$139/$F188,0)-SUM($AE188:AT188)","v":112518},{"$f":"ROUNDDOWN(AA$139/$F188,0)-SUM($AE188:AU188)","v":112518},{"$f":"ROUNDDOWN(AB$139/$F188,0)-SUM($AE188:AV188)","v":112518},{"$f":"ROUNDDOWN(AC$139/$F188,0)-SUM($AE188:AW188)","v":112518}]
[null,"B3","Manto. Chasis y Motor (Eléctrico)","UND",1,1,{"$f":"G185*1.2","v":0.11663999999999999},"Costo de mantenimiento mecánico",null,{"$f":"+AE189*$E189*$G189*(1+'Sup Generales'!C$10)","v":13439.07790848},{"$f":"+AF189*$E189*$G189*(1+'Sup Generales'!D$10)","v":13654.103155015679},{"$f":"+AG189*$E189*$G189*(1+'Sup Generales'!E$10)","v":14009.109837046088},{"$f":"+AH189*$E189*$G189*(1+'Sup Generales'!F$10)","v":14069.629191542128},{"$f":"+AI189*$E189*$G189*(1+'Sup Generales'!G$10)","v":14107.617190359291},{"$f":"+AJ189*$E189*$G189*(1+'Sup Generales'!H$10)","v":14202.138225534698},{"$f":"+AK189*$E189*$G189*(1+'Sup Generales'!I$10)","v":14477.81948116511},{"$f":"+AL189*$E189*$G189*(1+'Sup Generales'!J$10)","v":14729.066203145676},{"$f":"+AM189*$E189*$G189*(1+'Sup Generales'!K$10)","v":14943.53090040693},{"$f":"+AN189*$E189*$G189*(1+'Sup Generales'!L$10)","v":15143.486179373607},{"$f":"+AO189*$E189*$G189*(1+'Sup Generales'!M$10)","v":15341.15888579951},{"$f":"+AP189*$E189*$G189*(1+'Sup Generales'!N$10)","v":15516.584733930089},{"$f":"+AQ189*$E189*$G189*(1+'Sup Generales'!O$10)","v":15707.81659730844},{"$f":"+AR189*$E189*$G189*(1+'Sup Generales'!P$10)","v":15920.302465561508},{"$f":"+AS189*$E189*$G189*(1+'Sup Generales'!Q$10)","v":16149.249492271592},{"$f":"+AT189*$E189*$G189*(1+'Sup Generales'!R$10)","v":16371.334259513564},{"$f":"+AU189*$E189*$G189*(1+'Sup Generales'!S$10)","v":16589.102175563028},{"$f":"+AV189*$E189*$G189*(1+'Sup Generales'!T$10)","v":16807.156367599251},{"$f":"+AW189*$E189*$G189*(1+'Sup Generales'!U$10)","v":17027.580312600043},{"$f":"+AX189*$E189*$G189*(1+'Sup Generales'!V$10)","v":17251.02614232499},null,112518,{"$f":"ROUNDDOWN(K$139/$F189,0)-SUM($AE189:AE189)","v":112518},{"$f":"ROUNDDOWN(L$139/$F189,0)-SUM($AE189:AF189)","v":112518},{"$f":"ROUNDDOWN(M$139/$F189,0)-SUM($AE189:AG189)","v":112518},{"$f":"ROUNDDOWN(N$139/$F189,0)-SUM($AE189:AH189)","v":112518},{"$f":"ROUNDDOWN(O$139/$F189,0)-SUM($AE189:AI189)","v":112518},{"$f":"ROUNDDOWN(P$139/$F189,0)-SUM($AE189:AJ189)","v":112518},{"$f":"ROUNDDOWN(Q$139/$F189,0)-SUM($AE189:AK189)","v":112518},{"$f":"ROUNDDOWN(R$139/$F189,0)-SUM($AE189:AL189)","v":112518},{"$f":"ROUNDDOWN(S$139/$F189,0)-SUM($AE189:AM189)","v":112518},{"$f":"ROUNDDOWN(T$139/$F189,0)-SUM($AE189:AN189)","v":112518},{"$f":"ROUNDDOWN(U$139/$F189,0)-SUM($AE189:AO189)","v":112518},{"$f":"ROUNDDOWN(V$139/$F189,0)-SUM($AE189:AP189)","v":112518},{"$f":"ROUNDDOWN(W$139/$F189,0)-SUM($AE189:AQ189)","v":112518},{"$f":"ROUNDDOWN(X$139/$F189,0)-SUM($AE189:AR189)","v":112518},{"$f":"ROUNDDOWN(Y$139/$F189,0)-SUM($AE189:AS189)","v":112518},{"$f":"ROUNDDOWN(Z$139/$F189,0)-SUM($AE189:AT189)","v":112518},{"$f":"ROUNDDOWN(AA$139/$F189,0)-SUM($AE189:AU189)","v":112518},{"$f":"ROUNDDOWN(AB$139/$F189,0)-SUM($AE189:AV189)","v":112518},{"$f":"ROUNDDOWN(AC$139/$F189,0)-SUM($AE189:AW189)","v":112518}]
[null,"B4","Manto. Carroceria (Eléctrico)","UND",1,1,1.2960000000000001E-2,"Carrocería ",null,{"$f":"+AE190*$E190*$G190*(1+'Sup Generales'!C$10)","v":1493.2308787200002},{"$f":"+AF190*$E190*$G190*(1+'Sup Generales'!D$10)","v":1517.1225727795202},{"$f":"+AG190*$E190*$G190*(1+'Sup Generales'!E$10)","v":1556.5677596717876},{"$f":"+AH190*$E190*$G190*(1+'Sup Generales'!F$10)","v":1563.29213239357},{"$f":"+AI190*$E190*$G190*(1+'Sup Generales'!G$10)","v":1567.5130211510327},{"$f":"+AJ190*$E190*$G190*(1+'Sup Generales'!H$10)","v":1578.0153583927445},{"$f":"+AK190*$E190*$G190*(1+'Sup Generales'!I$10)","v":1608.6466090183458},{"$f":"+AL190*$E190*$G190*(1+'Sup Generales'!J$10)","v":1636.5629114606309},{"$f":"+AM190*$E190*$G190*(1+'Sup Generales'!K$10)","v":1660.3923222674368},{"$f":"+AN190*$E190*$G190*(1+'Sup Generales'!L$10)","v":1682.6095754859566},{"$f":"+AO190*$E190*$G190*(1+'Sup Generales'!M$10)","v":1704.5732095332792},{"$f":"+AP190*$E190*$G190*(1+'Sup Generales'!N$10)","v":1724.0649704366767},{"$f":"+AQ190*$E190*$G190*(1+'Sup Generales'!O$10)","v":1745.3129552564935},{"$f":"+AR190*$E190*$G190*(1+'Sup Generales'!P$10)","v":1768.9224961735013},{"$f":"+AS190*$E190*$G190*(1+'Sup Generales'!Q$10)","v":1794.3610546968439},{"$f":"+AT190*$E190*$G190*(1+'Sup Generales'!R$10)","v":1819.0371399459518},{"$f":"+AU190*$E190*$G190*(1+'Sup Generales'!S$10)","v":1843.2335750625589},{"$f":"+AV190*$E190*$G190*(1+'Sup Generales'!T$10)","v":1867.4618186221392},{"$f":"+AW190*$E190*$G190*(1+'Sup Generales'!U$10)","v":1891.9533680666718},{"$f":"+AX190*$E190*$G190*(1+'Sup Generales'!V$10)","v":1916.7806824805548},null,112518,{"$f":"ROUNDDOWN(K$139/$F190,0)-SUM($AE190:AE190)","v":112518},{"$f":"ROUNDDOWN(L$139/$F190,0)-SUM($AE190:AF190)","v":112518},{"$f":"ROUNDDOWN(M$139/$F190,0)-SUM($AE190:AG190)","v":112518},{"$f":"ROUNDDOWN(N$139/$F190,0)-SUM($AE190:AH190)","v":112518},{"$f":"ROUNDDOWN(O$139/$F190,0)-SUM($AE190:AI190)","v":112518},{"$f":"ROUNDDOWN(P$139/$F190,0)-SUM($AE190:AJ190)","v":112518},{"$f":"ROUNDDOWN(Q$139/$F190,0)-SUM($AE190:AK190)","v":112518},{"$f":"ROUNDDOWN(R$139/$F190,0)-SUM($AE190:AL190)","v":112518},{"$f":"ROUNDDOWN(S$139/$F190,0)-SUM($AE190:AM190)","v":112518},{"$f":"ROUNDDOWN(T$139/$F190,0)-SUM($AE190:AN190)","v":112518},{"$f":"ROUNDDOWN(U$139/$F190,0)-SUM($AE190:AO190)","v":112518},{"$f":"ROUNDDOWN(V$139/$F190,0)-SUM($AE190:AP190)","v":112518},{"$f":"ROUNDDOWN(W$139/$F190,0)-SUM($AE190:AQ190)","v":112518},{"$f":"ROUNDDOWN(X$139/$F190,0)-SUM($AE190:AR190)","v":112518},{"$f":"ROUNDDOWN(Y$139/$F190,0)-SUM($AE190:AS190)","v":112518},{"$f":"ROUNDDOWN(Z$139/$F190,0)-SUM($AE190:AT190)","v":112518},{"$f":"ROUNDDOWN(AA$139/$F190,0)-SUM($AE190:AU190)","v":112518},{"$f":"ROUNDDOWN(AB$139/$F190,0)-SUM($AE190:AV190)","v":112518},{"$f":"ROUNDDOWN(AC$139/$F190,0)-SUM($AE190:AW190)","v":112518}]
[null,"C1","Filtros y Lubricantes (Gas)","UND",1,1,0.158,"Aceites y filtros ",null,{"$f":"+AE191*$E191*$G191*(1+'Sup Generales'!C$10)","v":18204.512256000002},{"$f":"+AF191*$E191*$G191*(1+'Sup Generales'!D$10)","v":18495.784452095999},{"$f":"+AG191*$E191*$G191*(1+'Sup Generales'!E$10)","v":18976.674847850496},{"$f":"+AH191*$E191*$G191*(1+'Sup Generales'!F$10)","v":19058.654083193214},{"$f":"+AI191*$E191*$G191*(1+'Sup Generales'!G$10)","v":19110.112449217835},{"$f":"+AJ191*$E191*$G191*(1+'Sup Generales'!H$10)","v":19238.150202627592},{"$f":"+AK191*$E191*$G191*(1+'Sup Generales'!I$10)","v":19611.586745748351},{"$f":"+AL191*$E191*$G191*(1+'Sup Generales'!J$10)","v":19951.924383547812},{"$f":"+AM191*$E191*$G191*(1+'Sup Generales'!K$10)","v":20242.437262211035},{"$f":"+AN191*$E191*$G191*(1+'Sup Generales'!L$10)","v":20513.295750523233},{"$f":"+AO191*$E191*$G191*(1+'Sup Generales'!M$10)","v":20781.062276717446},{"$f":"+AP191*$E191*$G191*(1+'Sup Generales'!N$10)","v":21018.693312422445},{"$f":"+AQ191*$E191*$G191*(1+'Sup Generales'!O$10)","v":21277.735102664039},{"$f":"+AR191*$E191*$G191*(1+'Sup Generales'!P$10)","v":21565.567468781879},{"$f":"+AS191*$E191*$G191*(1+'Sup Generales'!Q$10)","v":21875.698043372013},{"$f":"+AT191*$E191*$G191*(1+'Sup Generales'!R$10)","v":22176.533033291696},{"$f":"+AU191*$E191*$G191*(1+'Sup Generales'!S$10)","v":22471.520436719467},{"$f":"+AV191*$E191*$G191*(1+'Sup Generales'!T$10)","v":22766.89562826373},{"$f":"+AW191*$E191*$G191*(1+'Sup Generales'!U$10)","v":23065.480876121459},{"$f":"+AX191*$E191*$G191*(1+'Sup Generales'!V$10)","v":23368.159554932688},null,112518,{"$f":"ROUNDDOWN(K$139/$F191,0)-SUM($AE191:AE191)","v":112518},{"$f":"ROUNDDOWN(L$139/$F191,0)-SUM($AE191:AF191)","v":112518},{"$f":"ROUNDDOWN(M$139/$F191,0)-SUM($AE191:AG191)","v":112518},{"$f":"ROUNDDOWN(N$139/$F191,0)-SUM($AE191:AH191)","v":112518},{"$f":"ROUNDDOWN(O$139/$F191,0)-SUM($AE191:AI191)","v":112518},{"$f":"ROUNDDOWN(P$139/$F191,0)-SUM($AE191:AJ191)","v":112518},{"$f":"ROUNDDOWN(Q$139/$F191,0)-SUM($AE191:AK191)","v":112518},{"$f":"ROUNDDOWN(R$139/$F191,0)-SUM($AE191:AL191)","v":112518},{"$f":"ROUNDDOWN(S$139/$F191,0)-SUM($AE191:AM191)","v":112518},{"$f":"ROUNDDOWN(T$139/$F191,0)-SUM($AE191:AN191)","v":112518},{"$f":"ROUNDDOWN(U$139/$F191,0)-SUM($AE191:AO191)","v":112518},{"$f":"ROUNDDOWN(V$139/$F191,0)-SUM($AE191:AP191)","v":112518},{"$f":"ROUNDDOWN(W$139/$F191,0)-SUM($AE191:AQ191)","v":112518},{"$f":"ROUNDDOWN(X$139/$F191,0)-SUM($AE191:AR191)","v":112518},{"$f":"ROUNDDOWN(Y$139/$F191,0)-SUM($AE191:AS191)","v":112518},{"$f":"ROUNDDOWN(Z$139/$F191,0)-SUM($AE191:AT191)","v":112518},{"$f":"ROUNDDOWN(AA$139/$F191,0)-SUM($AE191:AU191)","v":112518},{"$f":"ROUNDDOWN(AB$139/$F191,0)-SUM($AE191:AV191)","v":112518},{"$f":"ROUNDDOWN(AC$139/$F191,0)-SUM($AE191:AW191)","v":112518}]
[null,"C2","Mantenimiento Electrico (Gas)","UND",1,1,4.9000000000000002E-2,"Costo de mantenimiento eléctrico ",null,{"$f":"+AE192*$E192*$G192*(1+'Sup Generales'!C$10)","v":5645.7031680000009},{"$f":"+AF192*$E192*$G192*(1+'Sup Generales'!D$10)","v":5736.0344186880002},{"$f":"+AG192*$E192*$G192*(1+'Sup Generales'!E$10)","v":5885.1713135738883},{"$f":"+AH192*$E192*$G192*(1+'Sup Generales'!F$10)","v":5910.5952536485283},{"$f":"+AI192*$E192*$G192*(1+'Sup Generales'!G$10)","v":5926.5538608333791},{"$f":"+AJ192*$E192*$G192*(1+'Sup Generales'!H$10)","v":5966.2617717009625},{"$f":"+AK192*$E192*$G192*(1+'Sup Generales'!I$10)","v":6082.0743705168934},{"$f":"+AL192*$E192*$G192*(1+'Sup Generales'!J$10)","v":6187.6221189483722},{"$f":"+AM192*$E192*$G192*(1+'Sup Generales'!K$10)","v":6277.7178851160807},{"$f":"+AN192*$E192*$G192*(1+'Sup Generales'!L$10)","v":6361.7183023774587},{"$f":"+AO192*$E192*$G192*(1+'Sup Generales'!M$10)","v":6444.7598199946506},{"$f":"+AP192*$E192*$G192*(1+'Sup Generales'!N$10)","v":6518.4555209411392},{"$f":"+AQ192*$E192*$G192*(1+'Sup Generales'!O$10)","v":6598.7912660160637},{"$f":"+AR192*$E192*$G192*(1+'Sup Generales'!P$10)","v":6688.0557339893176},{"$f":"+AS192*$E192*$G192*(1+'Sup Generales'!Q$10)","v":6784.2354691470173},{"$f":"+AT192*$E192*$G192*(1+'Sup Generales'!R$10)","v":6877.5323964005893},{"$f":"+AU192*$E192*$G192*(1+'Sup Generales'!S$10)","v":6969.0158316408479},{"$f":"+AV192*$E192*$G192*(1+'Sup Generales'!T$10)","v":7060.6195302843225},{"$f":"+AW192*$E192*$G192*(1+'Sup Generales'!U$10)","v":7153.2187527212127},{"$f":"+AX192*$E192*$G192*(1+'Sup Generales'!V$10)","v":7247.0874569095049},null,112518,{"$f":"ROUNDDOWN(K$139/$F192,0)-SUM($AE192:AE192)","v":112518},{"$f":"ROUNDDOWN(L$139/$F192,0)-SUM($AE192:AF192)","v":112518},{"$f":"ROUNDDOWN(M$139/$F192,0)-SUM($AE192:AG192)","v":112518},{"$f":"ROUNDDOWN(N$139/$F192,0)-SUM($AE192:AH192)","v":112518},{"$f":"ROUNDDOWN(O$139/$F192,0)-SUM($AE192:AI192)","v":112518},{"$f":"ROUNDDOWN(P$139/$F192,0)-SUM($AE192:AJ192)","v":112518},{"$f":"ROUNDDOWN(Q$139/$F192,0)-SUM($AE192:AK192)","v":112518},{"$f":"ROUNDDOWN(R$139/$F192,0)-SUM($AE192:AL192)","v":112518},{"$f":"ROUNDDOWN(S$139/$F192,0)-SUM($AE192:AM192)","v":112518},{"$f":"ROUNDDOWN(T$139/$F192,0)-SUM($AE192:AN192)","v":112518},{"$f":"ROUNDDOWN(U$139/$F192,0)-SUM($AE192:AO192)","v":112518},{"$f":"ROUNDDOWN(V$139/$F192,0)-SUM($AE192:AP192)","v":112518},{"$f":"ROUNDDOWN(W$139/$F192,0)-SUM($AE192:AQ192)","v":112518},{"$f":"ROUNDDOWN(X$139/$F192,0)-SUM($AE192:AR192)","v":112518},{"$f":"ROUNDDOWN(Y$139/$F192,0)-SUM($AE192:AS192)","v":112518},{"$f":"ROUNDDOWN(Z$139/$F192,0)-SUM($AE192:AT192)","v":112518},{"$f":"ROUNDDOWN(AA$139/$F192,0)-SUM($AE192:AU192)","v":112518},{"$f":"ROUNDDOWN(AB$139/$F192,0)-SUM($AE192:AV192)","v":112518},{"$f":"ROUNDDOWN(AC$139/$F192,0)-SUM($AE192:AW192)","v":112518}]
[null,"C3","Manto. Chasis y Motor (Gas)","UND",1,1,9.7199999999999995E-2,"Costo de mantenimiento mecánico",null,{"$f":"+AE193*$E193*$G193*(1+'Sup Generales'!C$10)","v":11199.231590399999},{"$f":"+AF193*$E193*$G193*(1+'Sup Generales'!D$10)","v":11378.419295846399},{"$f":"+AG193*$E193*$G193*(1+'Sup Generales'!E$10)","v":11674.258197538406},{"$f":"+AH193*$E193*$G193*(1+'Sup Generales'!F$10)","v":11724.690992951773},{"$f":"+AI193*$E193*$G193*(1+'Sup Generales'!G$10)","v":11756.347658632743},{"$f":"+AJ193*$E193*$G193*(1+'Sup Generales'!H$10)","v":11835.115187945581},{"$f":"+AK193*$E193*$G193*(1+'Sup Generales'!I$10)","v":12064.849567637591},{"$f":"+AL193*$E193*$G193*(1+'Sup Generales'!J$10)","v":12274.221835954728},{"$f":"+AM193*$E193*$G193*(1+'Sup Generales'!K$10)","v":12452.942417005774},{"$f":"+AN193*$E193*$G193*(1+'Sup Generales'!L$10)","v":12619.571816144671},{"$f":"+AO193*$E193*$G193*(1+'Sup Generales'!M$10)","v":12784.29907149959},{"$f":"+AP193*$E193*$G193*(1+'Sup Generales'!N$10)","v":12930.487278275074},{"$f":"+AQ193*$E193*$G193*(1+'Sup Generales'!O$10)","v":13089.8471644237},{"$f":"+AR193*$E193*$G193*(1+'Sup Generales'!P$10)","v":13266.918721301256},{"$f":"+AS193*$E193*$G193*(1+'Sup Generales'!Q$10)","v":13457.707910226327},{"$f":"+AT193*$E193*$G193*(1+'Sup Generales'!R$10)","v":13642.778549594635},{"$f":"+AU193*$E193*$G193*(1+'Sup Generales'!S$10)","v":13824.251812969189},{"$f":"+AV193*$E193*$G193*(1+'Sup Generales'!T$10)","v":14005.963639666041},{"$f":"+AW193*$E193*$G193*(1+'Sup Generales'!U$10)","v":14189.650260500037},{"$f":"+AX193*$E193*$G193*(1+'Sup Generales'!V$10)","v":14375.855118604159},null,112518,{"$f":"ROUNDDOWN(K$139/$F193,0)-SUM($AE193:AE193)","v":112518},{"$f":"ROUNDDOWN(L$139/$F193,0)-SUM($AE193:AF193)","v":112518},{"$f":"ROUNDDOWN(M$139/$F193,0)-SUM($AE193:AG193)","v":112518},{"$f":"ROUNDDOWN(N$139/$F193,0)-SUM($AE193:AH193)","v":112518},{"$f":"ROUNDDOWN(O$139/$F193,0)-SUM($AE193:AI193)","v":112518},{"$f":"ROUNDDOWN(P$139/$F193,0)-SUM($AE193:AJ193)","v":112518},{"$f":"ROUNDDOWN(Q$139/$F193,0)-SUM($AE193:AK193)","v":112518},{"$f":"ROUNDDOWN(R$139/$F193,0)-SUM($AE193:AL193)","v":112518},{"$f":"ROUNDDOWN(S$139/$F193,0)-SUM($AE193:AM193)","v":112518},{"$f":"ROUNDDOWN(T$139/$F193,0)-SUM($AE193:AN193)","v":112518},{"$f":"ROUNDDOWN(U$139/$F193,0)-SUM($AE193:AO193)","v":112518},{"$f":"ROUNDDOWN(V$139/$F193,0)-SUM($AE193:AP193)","v":112518},{"$f":"ROUNDDOWN(W$139/$F193,0)-SUM($AE193:AQ193)","v":112518},{"$f":"ROUNDDOWN(X$139/$F193,0)-SUM($AE193:AR193)","v":112518},{"$f":"ROUNDDOWN(Y$139/$F193,0)-SUM($AE193:AS193)","v":112518},{"$f":"ROUNDDOWN(Z$139/$F193,0)-SUM($AE193:AT193)","v":112518},{"$f":"ROUNDDOWN(AA$139/$F193,0)-SUM($AE193:AU193)","v":112518},{"$f":"ROUNDDOWN(AB$139/$F193,0)-SUM($AE193:AV193)","v":112518},{"$f":"ROUNDDOWN(AC$139/$F193,0)-SUM($AE193:AW193)","v":112518}]
[null,"C4","Manto. Carroceria (Gas)","UND",1,1,1.0800000000000001E-2,"Carrocería ",null,{"$f":"+AE194*$E194*$G194*(1+'Sup Generales'!C$10)","v":1244.3590656000001},{"$f":"+AF194*$E194*$G194*(1+'Sup Generales'!D$10)","v":1264.2688106496},{"$f":"+AG194*$E194*$G194*(1+'Sup Generales'!E$10)","v":1297.1397997264896},{"$f":"+AH194*$E194*$G194*(1+'Sup Generales'!F$10)","v":1302.7434436613084},{"$f":"+AI194*$E194*$G194*(1+'Sup Generales'!G$10)","v":1306.2608509591937},{"$f":"+AJ194*$E194*$G194*(1+'Sup Generales'!H$10)","v":1315.0127986606203},{"$f":"+AK194*$E194*$G194*(1+'Sup Generales'!I$10)","v":1340.5388408486215},{"$f":"+AL194*$E194*$G194*(1+'Sup Generales'!J$10)","v":1363.8024262171923},{"$f":"+AM194*$E194*$G194*(1+'Sup Generales'!K$10)","v":1383.6602685561973},{"$f":"+AN194*$E194*$G194*(1+'Sup Generales'!L$10)","v":1402.1746462382971},{"$f":"+AO194*$E194*$G194*(1+'Sup Generales'!M$10)","v":1420.4776746110658},{"$f":"+AP194*$E194*$G194*(1+'Sup Generales'!N$10)","v":1436.7208086972305},{"$f":"+AQ194*$E194*$G194*(1+'Sup Generales'!O$10)","v":1454.4274627137445},{"$f":"+AR194*$E194*$G194*(1+'Sup Generales'!P$10)","v":1474.1020801445843},{"$f":"+AS194*$E194*$G194*(1+'Sup Generales'!Q$10)","v":1495.3008789140365},{"$f":"+AT194*$E194*$G194*(1+'Sup Generales'!R$10)","v":1515.8642832882931},{"$f":"+AU194*$E194*$G194*(1+'Sup Generales'!S$10)","v":1536.0279792187989},{"$f":"+AV194*$E194*$G194*(1+'Sup Generales'!T$10)","v":1556.2181821851159},{"$f":"+AW194*$E194*$G194*(1+'Sup Generales'!U$10)","v":1576.6278067222265},{"$f":"+AX194*$E194*$G194*(1+'Sup Generales'!V$10)","v":1597.3172354004623},null,112518,{"$f":"ROUNDDOWN(K$139/$F194,0)-SUM($AE194:AE194)","v":112518},{"$f":"ROUNDDOWN(L$139/$F194,0)-SUM($AE194:AF194)","v":112518},{"$f":"ROUNDDOWN(M$139/$F194,0)-SUM($AE194:AG194)","v":112518},{"$f":"ROUNDDOWN(N$139/$F194,0)-SUM($AE194:AH194)","v":112518},{"$f":"ROUNDDOWN(O$139/$F194,0)-SUM($AE194:AI194)","v":112518},{"$f":"ROUNDDOWN(P$139/$F194,0)-SUM($AE194:AJ194)","v":112518},{"$f":"ROUNDDOWN(Q$139/$F194,0)-SUM($AE194:AK194)","v":112518},{"$f":"ROUNDDOWN(R$139/$F194,0)-SUM($AE194:AL194)","v":112518},{"$f":"ROUNDDOWN(S$139/$F194,0)-SUM($AE194:AM194)","v":112518},{"$f":"ROUNDDOWN(T$139/$F194,0)-SUM($AE194:AN194)","v":112518},{"$f":"ROUNDDOWN(U$139/$F194,0)-SUM($AE194:AO194)","v":112518},{"$f":"ROUNDDOWN(V$139/$F194,0)-SUM($AE194:AP194)","v":112518},{"$f":"ROUNDDOWN(W$139/$F194,0)-SUM($AE194:AQ194)","v":112518},{"$f":"ROUNDDOWN(X$139/$F194,0)-SUM($AE194:AR194)","v":112518},{"$f":"ROUNDDOWN(Y$139/$F194,0)-SUM($AE194:AS194)","v":112518},{"$f":"ROUNDDOWN(Z$139/$F194,0)-SUM($AE194:AT194)","v":112518},{"$f":"ROUNDDOWN(AA$139/$F194,0)-SUM($AE194:AU194)","v":112518},{"$f":"ROUNDDOWN(AB$139/$F194,0)-SUM($AE194:AV194)","v":112518},{"$f":"ROUNDDOWN(AC$139/$F194,0)-SUM($AE194:AW194)","v":112518}]
[]
[null,null,null,null,null,null,null,"Total ",null,{"$f":"IF('Sup fijo'!$C$92='Sup fijo'!$AR$2,SUM(J142:J181),0)+IF('Sup fijo'!$C$92='Sup fijo'!$AS$2,SUM(J183:J186),0)+IF('Sup fijo'!$C$92='Sup fijo'!$AT$2,SUM(J187:J190),0)+IF('Sup fijo'!$C$92='Sup fijo'!$AU$2,SUM(J191:J194),0)+IF($L$1=$D$6,J182,0)","v":25685.005141333339},{"$f":"IF('Sup fijo'!$C$92='Sup fijo'!$AR$2,SUM(K142:K181),0)+IF('Sup fijo'!$C$92='Sup fijo'!$AS$2,SUM(K183:K186),0)+IF('Sup fijo'!$C$92='Sup fijo'!$AT$2,SUM(K187:K190),0)+IF('Sup fijo'!$C$92='Sup fijo'!$AU$2,SUM(K191:K194),0)+IF($L$1=$D$6,K182,0)","v":36573.049322349711},{"$f":"IF('Sup fijo'!$C$92='Sup fijo'!$AR$2,SUM(L142:L181),0)+IF('Sup fijo'!$C$92='Sup fijo'!$AS$2,SUM(L183:L186),0)+IF('Sup fijo'!$C$92='Sup fijo'!$AT$2,SUM(L187:L190),0)+IF('Sup fijo'!$C$92='Sup fijo'!$AU$2,SUM(L191:L194),0)+IF($L$1=$D$6,L182,0)","v":46603.518258690929},{"$f":"IF('Sup fijo'!$C$92='Sup fijo'!$AR$2,SUM(M142:M181),0)+IF('Sup fijo'!$C$92='Sup fijo'!$AS$2,SUM(M183:M186),0)+IF('Sup fijo'!$C$92='Sup fijo'!$AT$2,SUM(M187:M190),0)+IF('Sup fijo'!$C$92='Sup fijo'!$AU$2,SUM(M191:M194),0)+IF($L$1=$D$6,M182,0)","v":37899.027261878269},{"$f":"IF('Sup fijo'!$C$92='Sup fijo'!$AR$2,SUM(N142:N181),0)+IF('Sup fijo'!$C$92='Sup fijo'!$AS$2,SUM(N183:N186),0)+IF('Sup fijo'!$C$92='Sup fijo'!$AT$2,SUM(N187:N190),0)+IF('Sup fijo'!$C$92='Sup fijo'!$AU$2,SUM(N191:N194),0)+IF($L$1=$D$6,N182,0)","v":47000.178438021539},{"$f":"IF('Sup fijo'!$C$92='Sup fijo'!$AR$2,SUM(O142:O181),0)+IF('Sup fijo'!$C$92='Sup fijo'!$AS$2,SUM(O183:O186),0)+IF('Sup fijo'!$C$92='Sup fijo'!$AT$2,SUM(O187:O190),0)+IF('Sup fijo'!$C$92='Sup fijo'!$AU$2,SUM(O191:O194),0)+IF($L$1=$D$6,O182,0)","v":40763.682418946752},{"$f":"IF('Sup fijo'!$C$92='Sup fijo'!$AR$2,SUM(P142:P181),0)+IF('Sup fijo'!$C$92='Sup fijo'!$AS$2,SUM(P183:P186),0)+IF('Sup fijo'!$C$92='Sup fijo'!$AT$2,SUM(P187:P190),0)+IF('Sup fijo'!$C$92='Sup fijo'!$AU$2,SUM(P191:P194),0)+IF($L$1=$D$6,P182,0)","v":49937.688282955329},{"$f":"IF('Sup fijo'!$C$92='Sup fijo'!$AR$2,SUM(Q142:Q181),0)+IF('Sup fijo'!$C$92='Sup fijo'!$AS$2,SUM(Q183:Q186),0)+IF('Sup fijo'!$C$92='Sup fijo'!$AT$2,SUM(Q187:Q190),0)+IF('Sup fijo'!$C$92='Sup fijo'!$AU$2,SUM(Q191:Q194),0)+IF($L$1=$D$6,Q182,0)","v":39675.337137569797},{"$f":"IF('Sup fijo'!$C$92='Sup fijo'!$AR$2,SUM(R142:R181),0)+IF('Sup fijo'!$C$92='Sup fijo'!$AS$2,SUM(R183:R186),0)+IF('Sup fijo'!$C$92='Sup fijo'!$AT$2,SUM(R187:R190),0)+IF('Sup fijo'!$C$92='Sup fijo'!$AU$2,SUM(R191:R194),0)+IF($L$1=$D$6,R182,0)","v":39778.946635181412},{"$f":"IF('Sup fijo'!$C$92='Sup fijo'!$AR$2,SUM(S142:S181),0)+IF('Sup fijo'!$C$92='Sup fijo'!$AS$2,SUM(S183:S186),0)+IF('Sup fijo'!$C$92='Sup fijo'!$AT$2,SUM(S187:S190),0)+IF('Sup fijo'!$C$92='Sup fijo'!$AU$2,SUM(S191:S194),0)+IF($L$1=$D$6,S182,0)","v":45985.164555897245},{"$f":"IF('Sup fijo'!$C$92='Sup fijo'!$AR$2,SUM(T142:T181),0)+IF('Sup fijo'!$C$92='Sup fijo'!$AS$2,SUM(T183:T186),0)+IF('Sup fijo'!$C$92='Sup fijo'!$AT$2,SUM(T187:T190),0)+IF('Sup fijo'!$C$92='Sup fijo'!$AU$2,SUM(T191:T194),0)+IF($L$1=$D$6,T182,0)","v":50363.098519388652},{"$f":"IF('Sup fijo'!$C$92='Sup fijo'!$AR$2,SUM(U142:U181),0)+IF('Sup fijo'!$C$92='Sup fijo'!$AS$2,SUM(U183:U186),0)+IF('Sup fijo'!$C$92='Sup fijo'!$AT$2,SUM(U187:U190),0)+IF('Sup fijo'!$C$92='Sup fijo'!$AU$2,SUM(U191:U194),0)+IF($L$1=$D$6,U182,0)","v":47353.004919141757},{"$f":"IF('Sup fijo'!$C$92='Sup fijo'!$AR$2,SUM(V142:V181),0)+IF('Sup fijo'!$C$92='Sup fijo'!$AS$2,SUM(V183:V186),0)+IF('Sup fijo'!$C$92='Sup fijo'!$AT$2,SUM(V187:V190),0)+IF('Sup fijo'!$C$92='Sup fijo'!$AU$2,SUM(V191:V194),0)+IF($L$1=$D$6,V182,0)","v":46706.490553450923},{"$f":"IF('Sup fijo'!$C$92='Sup fijo'!$AR$2,SUM(W142:W181),0)+IF('Sup fijo'!$C$92='Sup fijo'!$AS$2,SUM(W183:W186),0)+IF('Sup fijo'!$C$92='Sup fijo'!$AT$2,SUM(W187:W190),0)+IF('Sup fijo'!$C$92='Sup fijo'!$AU$2,SUM(W191:W194),0)+IF($L$1=$D$6,W182,0)","v":46392.291200900741},{"$f":"IF('Sup fijo'!$C$92='Sup fijo'!$AR$2,SUM(X142:X181),0)+IF('Sup fijo'!$C$92='Sup fijo'!$AS$2,SUM(X183:X186),0)+IF('Sup fijo'!$C$92='Sup fijo'!$AT$2,SUM(X187:X190),0)+IF('Sup fijo'!$C$92='Sup fijo'!$AU$2,SUM(X191:X194),0)+IF($L$1=$D$6,X182,0)","v":49919.977026146298},{"$f":"IF('Sup fijo'!$C$92='Sup fijo'!$AR$2,SUM(Y142:Y181),0)+IF('Sup fijo'!$C$92='Sup fijo'!$AS$2,SUM(Y183:Y186),0)+IF('Sup fijo'!$C$92='Sup fijo'!$AT$2,SUM(Y187:Y190),0)+IF('Sup fijo'!$C$92='Sup fijo'!$AU$2,SUM(Y191:Y194),0)+IF($L$1=$D$6,Y182,0)","v":49244.705257395493},{"$f":"IF('Sup fijo'!$C$92='Sup fijo'!$AR$2,SUM(Z142:Z181),0)+IF('Sup fijo'!$C$92='Sup fijo'!$AS$2,SUM(Z183:Z186),0)+IF('Sup fijo'!$C$92='Sup fijo'!$AT$2,SUM(Z187:Z190),0)+IF('Sup fijo'!$C$92='Sup fijo'!$AU$2,SUM(Z191:Z194),0)+IF($L$1=$D$6,Z182,0)","v":37645.794125228633},{"$f":"IF('Sup fijo'!$C$92='Sup fijo'!$AR$2,SUM(AA142:AA181),0)+IF('Sup fijo'!$C$92='Sup fijo'!$AS$2,SUM(AA183:AA186),0)+IF('Sup fijo'!$C$92='Sup fijo'!$AT$2,SUM(AA187:AA190),0)+IF('Sup fijo'!$C$92='Sup fijo'!$AU$2,SUM(AA191:AA194),0)+IF($L$1=$D$6,AA182,0)","v":52386.968530379418},{"$f":"IF('Sup fijo'!$C$92='Sup fijo'!$AR$2,SUM(AB142:AB181),0)+IF('Sup fijo'!$C$92='Sup fijo'!$AS$2,SUM(AB183:AB186),0)+IF('Sup fijo'!$C$92='Sup fijo'!$AT$2,SUM(AB187:AB190),0)+IF('Sup fijo'!$C$92='Sup fijo'!$AU$2,SUM(AB191:AB194),0)+IF($L$1=$D$6,AB182,0)","v":49179.959578969785},{"$f":"IF('Sup fijo'!$C$92='Sup fijo'!$AR$2,SUM(AC142:AC181),0)+IF('Sup fijo'!$C$92='Sup fijo'!$AS$2,SUM(AC183:AC186),0)+IF('Sup fijo'!$C$92='Sup fijo'!$AT$2,SUM(AC187:AC190),0)+IF('Sup fijo'!$C$92='Sup fijo'!$AU$2,SUM(AC191:AC194),0)+IF($L$1=$D$6,AC182,0)","v":54031.618582918527}]
[null,null,null,null,null,null,null,"Costo Km ",null,{"$f":"+J196/J138","v":0.22827463287059255},0.3250417650718081,0.41418722567669986,0.33682635011178885,0.41771252988874247,0.36228587798349365,0.44381955138693646,0.35261324532581262,0.35353407130575909,0.40869162761422378,0.4476003707796854,0.4208482635590905,0.41510238853739767,0.4123099521934333,0.44366214317839175,0.43766068768904071,0.33457574899330439,0.46558744850050127,0.43708526261549063,0.4802042213949636]
[]
[]
[]
[null,null,{"$f":"'Sup fijo'!B26","v":"Otro"},null,null,null,null,"Mes operación",null,12,12,12,12,12,12,12,12,12,12,12,12,12,12,12,12,12,12,12,12]
[null,null,null,null,null,null,null,"Operación",null,{"$f":"'Sup fijo'!E29","v":65800},{"$f":"'Sup fijo'!F29","v":65800},{"$f":"'Sup fijo'!G29","v":65800},{"$f":"'Sup fijo'!H29","v":65800},{"$f":"'Sup fijo'!I29","v":65800},{"$f":"'Sup fijo'!J29","v":65800},{"$f":"'Sup fijo'!K29","v":65800},{"$f":"'Sup fijo'!L29","v":65800},{"$f":"'Sup fijo'!M29","v":65800},{"$f":"'Sup fijo'!N29","v":65800},{"$f":"'Sup fijo'!O29","v":65800},{"$f":"'Sup fijo'!P29","v":65800},{"$f":"'Sup fijo'!Q29","v":65800},{"$f":"'Sup fijo'!R29","v":65800},{"$f":"'Sup fijo'!S29","v":65800},{"$f":"'Sup fijo'!T29","v":65800},{"$f":"'Sup fijo'!U29","v":65800},{"$f":"'Sup fijo'!V29","v":65800},{"$f":"'Sup fijo'!W29","v":65800},{"$f":"'Sup fijo'!X29","v":65800}]
[null,null,null,null,null,null,null,"Operación acumulada ",null,{"$f":"+J202","v":65800},{"$f":"+J203+K202","v":131600},197400,263200,329000,394800,460600,526400,592200,658000,723800,789600,855400,921200,987000,1052800,1118600,1184400,1250200,1316000,null,"Frecuencia de ejecución labores de mantenimiento "]
[]
[null,"#","Detalle ","Unidades","Cantidad","Intervalo Km ","Precio (sin IVA)","Area",null,1,{"$f":"J205+1","v":2},3,4,5,6,7,8,9,10,11,12,13,14,15,16,17,18,19,20,null,{"$f":"+AE141","v":1},{"$f":"+AF141","v":2},3,4,5,6,7,8,9,10,11,12,13,14,15,16,17,18,19,20]
[null,1,"LLANTAS","UD.",10,46170,449.82857142857148,{"$f":"+H142","v":"Neumáticos "},null,{"$f":"+AE206*$E206*$G206*(1+'Sup Generales'!C$10)","v":4606.2445714285723},{"$f":"+AF206*$E206*$G206*(1+'Sup Generales'!D$10)","v":4679.9444845714288},{"$f":"+AG206*$E206*$G206*(1+'Sup Generales'!E$10)","v":9603.2460823405727},{"$f":"+AH206*$E206*$G206*(1+'Sup Generales'!F$10)","v":4822.3660527081429},{"$f":"+AI206*$E206*$G206*(1+'Sup Generales'!G$10)","v":9670.7728821009077},{"$f":"+AJ206*$E206*$G206*(1+'Sup Generales'!H$10)","v":4867.7835302054918},{"$f":"+AK206*$E206*$G206*(1+'Sup Generales'!I$10)","v":4962.2732932561939},{"$f":"+AL206*$E206*$G206*(1+'Sup Generales'!J$10)","v":10096.776237548484},{"$f":"+AM206*$E206*$G206*(1+'Sup Generales'!K$10)","v":5121.8959036275},{"$f":"+AN206*$E206*$G206*(1+'Sup Generales'!L$10)","v":10380.861169385502},{"$f":"+AO206*$E206*$G206*(1+'Sup Generales'!M$10)","v":5258.1829139146366},{"$f":"+AP206*$E206*$G206*(1+'Sup Generales'!N$10)","v":10636.620262864561},{"$f":"+AQ206*$E206*$G206*(1+'Sup Generales'!O$10)","v":5383.8548614032907},{"$f":"+AR206*$E206*$G206*(1+'Sup Generales'!P$10)","v":5456.684402522953},{"$f":"+AS206*$E206*$G206*(1+'Sup Generales'!Q$10)","v":11070.312012922184},{"$f":"+AT206*$E206*$G206*(1+'Sup Generales'!R$10)","v":5611.2755706508215},{"$f":"+AU206*$E206*$G206*(1+'Sup Generales'!S$10)","v":11371.831067791421},{"$f":"+AV206*$E206*$G206*(1+'Sup Generales'!T$10)","v":5760.6536182482323},{"$f":"+AW206*$E206*$G206*(1+'Sup Generales'!U$10)","v":11672.407871076775},{"$f":"+AX206*$E206*$G206*(1+'Sup Generales'!V$10)","v":5912.7900039567749},null,{"$f":"ROUNDDOWN(J$203/$F206,0)","v":1},{"$f":"ROUNDDOWN(K$203/$F206,0)-SUM($AE206:AE206)","v":1},{"$f":"ROUNDDOWN(L$203/$F206,0)-SUM($AE206:AF206)","v":2},{"$f":"ROUNDDOWN(M$203/$F206,0)-SUM($AE206:AG206)","v":1},{"$f":"ROUNDDOWN(N$203/$F206,0)-SUM($AE206:AH206)","v":2},{"$f":"ROUNDDOWN(O$203/$F206,0)-SUM($AE206:AI206)","v":1},{"$f":"ROUNDDOWN(P$203/$F206,0)-SUM($AE206:AJ206)","v":1},{"$f":"ROUNDDOWN(Q$203/$F206,0)-SUM($AE206:AK206)","v":2},{"$f":"ROUNDDOWN(R$203/$F206,0)-SUM($AE206:AL206)","v":1},{"$f":"ROUNDDOWN(S$203/$F206,0)-SUM($AE206:AM206)","v":2},{"$f":"ROUNDDOWN(T$203/$F206,0)-SUM($AE206:AN206)","v":1},{"$f":"ROUNDDOWN(U$203/$F206,0)-SUM($AE206:AO206)","v":2},{"$f":"ROUNDDOWN(V$203/$F206,0)-SUM($AE206:AP206)","v":1},{"$f":"ROUNDDOWN(W$203/$F206,0)-SUM($AE206:AQ206)","v":1},{"$f":"ROUNDDOWN(X$203/$F206,0)-SUM($AE206:AR206)","v":2},{"$f":"ROUNDDOWN(Y$203/$F206,0)-SUM($AE206:AS206)","v":1},{"$f":"ROUNDDOWN(Z$203/$F206,0)-SUM($AE206:AT206)","v":2},{"$f":"ROUNDDOWN(AA$203/$F206,0)-SUM($AE206:AU206)","v":1},{"$f":"ROUNDDOWN(AB$203/$F206,0)-SUM($AE206:AV206)","v":2},{"$f":"ROUNDDOWN(AC$203/$F206,0)-SUM($AE206:AW206)","v":1}]
[null,{"$f":"+B206+1","v":2},"REENCAUCHE DE LLANTAS","UD.",6,46170,275.24799999999999,"Neumáticos ",null,{"$f":"+AE207*$E207*$G207*(1+'Sup Generales'!C$10)","v":1691.1237119999998},{"$f":"+AF207*$E207*$G207*(1+'Sup Generales'!D$10)","v":1718.1816913919997},{"$f":"+AG207*$E207*$G207*(1+'Sup Generales'!E$10)","v":3525.7088307363838},{"$f":"+AH207*$E207*$G207*(1+'Sup Generales'!F$10)","v":1770.4699464425828},{"$f":"+AI207*$E207*$G207*(1+'Sup Generales'!G$10)","v":3550.5004305959551},{"$f":"+AJ207*$E207*$G207*(1+'Sup Generales'!H$10)","v":1787.144391740474},{"$f":"+AK207*$E207*$G207*(1+'Sup Generales'!I$10)","v":1821.8350983146463},{"$f":"+AL207*$E207*$G207*(1+'Sup Generales'!J$10)","v":3706.9021076275171},{"$f":"+AM207*$E207*$G207*(1+'Sup Generales'!K$10)","v":1880.4384957644118},{"$f":"+AN207*$E207*$G207*(1+'Sup Generales'!L$10)","v":3811.2002526785714},{"$f":"+AO207*$E207*$G207*(1+'Sup Generales'!M$10)","v":1930.4745264527878},{"$f":"+AP207*$E207*$G207*(1+'Sup Generales'!N$10)","v":3905.0989288854053},{"$f":"+AQ207*$E207*$G207*(1+'Sup Generales'!O$10)","v":1976.6133727592853},{"$f":"+AR207*$E207*$G207*(1+'Sup Generales'!P$10)","v":2003.3518062079768},{"$f":"+AS207*$E207*$G207*(1+'Sup Generales'!Q$10)","v":4064.3233015490919},{"$f":"+AT207*$E207*$G207*(1+'Sup Generales'!R$10)","v":2060.1079740650684},{"$f":"+AU207*$E207*$G207*(1+'Sup Generales'!S$10)","v":4175.0221616296049},{"$f":"+AV207*$E207*$G207*(1+'Sup Generales'!T$10)","v":2114.9502114727752},{"$f":"+AW207*$E207*$G207*(1+'Sup Generales'!U$10)","v":4285.3750861065128},{"$f":"+AX207*$E207*$G207*(1+'Sup Generales'!V$10)","v":2170.805137397801},null,1,{"$f":"ROUNDDOWN(K$203/$F207,0)-SUM($AE207:AE207)","v":1},{"$f":"ROUNDDOWN(L$203/$F207,0)-SUM($AE207:AF207)","v":2},{"$f":"ROUNDDOWN(M$203/$F207,0)-SUM($AE207:AG207)","v":1},{"$f":"ROUNDDOWN(N$203/$F207,0)-SUM($AE207:AH207)","v":2},{"$f":"ROUNDDOWN(O$203/$F207,0)-SUM($AE207:AI207)","v":1},{"$f":"ROUNDDOWN(P$203/$F207,0)-SUM($AE207:AJ207)","v":1},{"$f":"ROUNDDOWN(Q$203/$F207,0)-SUM($AE207:AK207)","v":2},{"$f":"ROUNDDOWN(R$203/$F207,0)-SUM($AE207:AL207)","v":1},{"$f":"ROUNDDOWN(S$203/$F207,0)-SUM($AE207:AM207)","v":2},{"$f":"ROUNDDOWN(T$203/$F207,0)-SUM($AE207:AN207)","v":1},{"$f":"ROUNDDOWN(U$203/$F207,0)-SUM($AE207:AO207)","v":2},{"$f":"ROUNDDOWN(V$203/$F207,0)-SUM($AE207:AP207)","v":1},{"$f":"ROUNDDOWN(W$203/$F207,0)-SUM($AE207:AQ207)","v":1},{"$f":"ROUNDDOWN(X$203/$F207,0)-SUM($AE207:AR207)","v":2},{"$f":"ROUNDDOWN(Y$203/$F207,0)-SUM($AE207:AS207)","v":1},{"$f":"ROUNDDOWN(Z$203/$F207,0)-SUM($AE207:AT207)","v":2},{"$f":"ROUNDDOWN(AA$203/$F207,0)-SUM($AE207:AU207)","v":1},{"$f":"ROUNDDOWN(AB$203/$F207,0)-SUM($AE207:AV207)","v":2},{"$f":"ROUNDDOWN(AC$203/$F207,0)-SUM($AE207:AW207)","v":1}]
[null,{"$f":"+B207+1","v":3},"ACEITE DE MOTOR","GLNS",9,5000,18.081249999999997,"Aceites y filtros ",null,{"$f":"+AE208*$E208*$G208*(1+'Sup Generales'!C$10)","v":2166.2783999999997},{"$f":"+AF208*$E208*$G208*(1+'Sup Generales'!D$10)","v":2200.9388543999994},{"$f":"+AG208*$E208*$G208*(1+'Sup Generales'!E$10)","v":2258.1632646143994},{"$f":"+AH208*$E208*$G208*(1+'Sup Generales'!F$10)","v":2267.9185299175342},{"$f":"+AI208*$E208*$G208*(1+'Sup Generales'!G$10)","v":2274.0419099483111},{"$f":"+AJ208*$E208*$G208*(1+'Sup Generales'!H$10)","v":2289.2779907449649},{"$f":"+AK208*$E208*$G208*(1+'Sup Generales'!I$10)","v":2513.2323333845684},{"$f":"+AL208*$E208*$G208*(1+'Sup Generales'!J$10)","v":2374.2148222766937},{"$f":"+AM208*$E208*$G208*(1+'Sup Generales'!K$10)","v":2408.7849203446895},{"$f":"+AN208*$E208*$G208*(1+'Sup Generales'!L$10)","v":2441.0162091832017},{"$f":"+AO208*$E208*$G208*(1+'Sup Generales'!M$10)","v":2472.8795644755896},{"$f":"+AP208*$E208*$G208*(1+'Sup Generales'!N$10)","v":2501.1568933366088},{"$f":"+AQ208*$E208*$G208*(1+'Sup Generales'!O$10)","v":2726.7498818166905},{"$f":"+AR208*$E208*$G208*(1+'Sup Generales'!P$10)","v":2566.2331588129996},{"$f":"+AS208*$E208*$G208*(1+'Sup Generales'!Q$10)","v":2603.1376995920459},{"$f":"+AT208*$E208*$G208*(1+'Sup Generales'!R$10)","v":2638.9360956964201},{"$f":"+AU208*$E208*$G208*(1+'Sup Generales'!S$10)","v":2674.0386478181913},{"$f":"+AV208*$E208*$G208*(1+'Sup Generales'!T$10)","v":2709.1873454784272},{"$f":"+AW208*$E208*$G208*(1+'Sup Generales'!U$10)","v":2955.8501856306511},{"$f":"+AX208*$E208*$G208*(1+'Sup Generales'!V$10)","v":2780.735818666049},null,13,{"$f":"ROUNDDOWN(K$203/$F208,0)-SUM($AE208:AE208)","v":13},{"$f":"ROUNDDOWN(L$203/$F208,0)-SUM($AE208:AF208)","v":13},{"$f":"ROUNDDOWN(M$203/$F208,0)-SUM($AE208:AG208)","v":13},{"$f":"ROUNDDOWN(N$203/$F208,0)-SUM($AE208:AH208)","v":13},{"$f":"ROUNDDOWN(O$203/$F208,0)-SUM($AE208:AI208)","v":13},{"$f":"ROUNDDOWN(P$203/$F208,0)-SUM($AE208:AJ208)","v":14},{"$f":"ROUNDDOWN(Q$203/$F208,0)-SUM($AE208:AK208)","v":13},{"$f":"ROUNDDOWN(R$203/$F208,0)-SUM($AE208:AL208)","v":13},{"$f":"ROUNDDOWN(S$203/$F208,0)-SUM($AE208:AM208)","v":13},{"$f":"ROUNDDOWN(T$203/$F208,0)-SUM($AE208:AN208)","v":13},{"$f":"ROUNDDOWN(U$203/$F208,0)-SUM($AE208:AO208)","v":13},{"$f":"ROUNDDOWN(V$203/$F208,0)-SUM($AE208:AP208)","v":14},{"$f":"ROUNDDOWN(W$203/$F208,0)-SUM($AE208:AQ208)","v":13},{"$f":"ROUNDDOWN(X$203/$F208,0)-SUM($AE208:AR208)","v":13},{"$f":"ROUNDDOWN(Y$203/$F208,0)-SUM($AE208:AS208)","v":13},{"$f":"ROUNDDOWN(Z$203/$F208,0)-SUM($AE208:AT208)","v":13},{"$f":"ROUNDDOWN(AA$203/$F208,0)-SUM($AE208:AU208)","v":13},{"$f":"ROUNDDOWN(AB$203/$F208,0)-SUM($AE208:AV208)","v":14},{"$f":"ROUNDDOWN(AC$203/$F208,0)-SUM($AE208:AW208)","v":13}]
[null,4,"ACEITE DE CAJA","GLNS",7,30000,18.261428571428571,"Aceites y filtros ",null,{"$f":"+AE209*$E209*$G209*(1+'Sup Generales'!C$10)","v":261.79584},{"$f":"+AF209*$E209*$G209*(1+'Sup Generales'!D$10)","v":265.98457343999996},{"$f":"+AG209*$E209*$G209*(1+'Sup Generales'!E$10)","v":272.90017234943997},{"$f":"+AH209*$E209*$G209*(1+'Sup Generales'!F$10)","v":274.07910109398961},{"$f":"+AI209*$E209*$G209*(1+'Sup Generales'!G$10)","v":274.81911466694339},{"$f":"+AJ209*$E209*$G209*(1+'Sup Generales'!H$10)","v":414.99060410281783},{"$f":"+AK209*$E209*$G209*(1+'Sup Generales'!I$10)","v":282.03072697780578},{"$f":"+AL209*$E209*$G209*(1+'Sup Generales'!J$10)","v":286.925061773398},{"$f":"+AM209*$E209*$G209*(1+'Sup Generales'!K$10)","v":291.10287560498745},{"$f":"+AN209*$E209*$G209*(1+'Sup Generales'!L$10)","v":294.99804315859501},{"$f":"+AO209*$E209*$G209*(1+'Sup Generales'!M$10)","v":448.27311863566655},{"$f":"+AP209*$E209*$G209*(1+'Sup Generales'!N$10)","v":302.26607524815284},{"$f":"+AQ209*$E209*$G209*(1+'Sup Generales'!O$10)","v":305.99130897689776},{"$f":"+AR209*$E209*$G209*(1+'Sup Generales'!P$10)","v":310.13057483622731},{"$f":"+AS209*$E209*$G209*(1+'Sup Generales'!Q$10)","v":314.59050724983797},{"$f":"+AT209*$E209*$G209*(1+'Sup Generales'!R$10)","v":478.37514228030307},{"$f":"+AU209*$E209*$G209*(1+'Sup Generales'!S$10)","v":323.158922693421},{"$f":"+AV209*$E209*$G209*(1+'Sup Generales'!T$10)","v":327.40666057829651},{"$f":"+AW209*$E209*$G209*(1+'Sup Generales'!U$10)","v":331.70056170980081},{"$f":"+AX209*$E209*$G209*(1+'Sup Generales'!V$10)","v":336.05332974088935},null,2,{"$f":"ROUNDDOWN(K$203/$F209,0)-SUM($AE209:AE209)","v":2},{"$f":"ROUNDDOWN(L$203/$F209,0)-SUM($AE209:AF209)","v":2},{"$f":"ROUNDDOWN(M$203/$F209,0)-SUM($AE209:AG209)","v":2},{"$f":"ROUNDDOWN(N$203/$F209,0)-SUM($AE209:AH209)","v":2},{"$f":"ROUNDDOWN(O$203/$F209,0)-SUM($AE209:AI209)","v":3},{"$f":"ROUNDDOWN(P$203/$F209,0)-SUM($AE209:AJ209)","v":2},{"$f":"ROUNDDOWN(Q$203/$F209,0)-SUM($AE209:AK209)","v":2},{"$f":"ROUNDDOWN(R$203/$F209,0)-SUM($AE209:AL209)","v":2},{"$f":"ROUNDDOWN(S$203/$F209,0)-SUM($AE209:AM209)","v":2},{"$f":"ROUNDDOWN(T$203/$F209,0)-SUM($AE209:AN209)","v":3},{"$f":"ROUNDDOWN(U$203/$F209,0)-SUM($AE209:AO209)","v":2},{"$f":"ROUNDDOWN(V$203/$F209,0)-SUM($AE209:AP209)","v":2},{"$f":"ROUNDDOWN(W$203/$F209,0)-SUM($AE209:AQ209)","v":2},{"$f":"ROUNDDOWN(X$203/$F209,0)-SUM($AE209:AR209)","v":2},{"$f":"ROUNDDOWN(Y$203/$F209,0)-SUM($AE209:AS209)","v":3},{"$f":"ROUNDDOWN(Z$203/$F209,0)-SUM($AE209:AT209)","v":2},{"$f":"ROUNDDOWN(AA$203/$F209,0)-SUM($AE209:AU209)","v":2},{"$f":"ROUNDDOWN(AB$203/$F209,0)-SUM($AE209:AV209)","v":2},{"$f":"ROUNDDOWN(AC$203/$F209,0)-SUM($AE209:AW209)","v":2}]
[null,5,"ACEITE DE DIFERENCIAL","GLNS",6,30000,18.594285714285714,"Aceites y filtros ",null,{"$f":"+AE210*$E210*$G210*(1+'Sup Generales'!C$10)","v":228.48658285714285},{"$f":"+AF210*$E210*$G210*(1+'Sup Generales'!D$10)","v":232.14236818285713},{"$f":"+AG210*$E210*$G210*(1+'Sup Generales'!E$10)","v":238.1780697556114},{"$f":"+AH210*$E210*$G210*(1+'Sup Generales'!F$10)","v":239.20699901695571},{"$f":"+AI210*$E210*$G210*(1+'Sup Generales'!G$10)","v":239.85285791430147},{"$f":"+AJ210*$E210*$G210*(1+'Sup Generales'!H$10)","v":362.18980809349091},{"$f":"+AK210*$E210*$G210*(1+'Sup Generales'!I$10)","v":246.14691000389715},{"$f":"+AL210*$E210*$G210*(1+'Sup Generales'!J$10)","v":250.41852040383199},{"$f":"+AM210*$E210*$G210*(1+'Sup Generales'!K$10)","v":254.06477546347381},{"$f":"+AN210*$E210*$G210*(1+'Sup Generales'!L$10)","v":257.46434638094831},{"$f":"+AO210*$E210*$G210*(1+'Sup Generales'!M$10)","v":391.23766467709362},{"$f":"+AP210*$E210*$G210*(1+'Sup Generales'!N$10)","v":263.8076397512292},{"$f":"+AQ210*$E210*$G210*(1+'Sup Generales'!O$10)","v":267.05889815558396},{"$f":"+AR210*$E210*$G210*(1+'Sup Generales'!P$10)","v":270.67150984465985},{"$f":"+AS210*$E210*$G210*(1+'Sup Generales'!Q$10)","v":274.56398849122547},{"$f":"+AT210*$E210*$G210*(1+'Sup Generales'!R$10)","v":417.50969604186974},{"$f":"+AU210*$E210*$G210*(1+'Sup Generales'!S$10)","v":282.04221261122927},{"$f":"+AV210*$E210*$G210*(1+'Sup Generales'!T$10)","v":285.74949502713025},{"$f":"+AW210*$E210*$G210*(1+'Sup Generales'!U$10)","v":289.49706716832179},{"$f":"+AX210*$E210*$G210*(1+'Sup Generales'!V$10)","v":293.29601635480708},null,2,{"$f":"ROUNDDOWN(K$203/$F210,0)-SUM($AE210:AE210)","v":2},{"$f":"ROUNDDOWN(L$203/$F210,0)-SUM($AE210:AF210)","v":2},{"$f":"ROUNDDOWN(M$203/$F210,0)-SUM($AE210:AG210)","v":2},{"$f":"ROUNDDOWN(N$203/$F210,0)-SUM($AE210:AH210)","v":2},{"$f":"ROUNDDOWN(O$203/$F210,0)-SUM($AE210:AI210)","v":3},{"$f":"ROUNDDOWN(P$203/$F210,0)-SUM($AE210:AJ210)","v":2},{"$f":"ROUNDDOWN(Q$203/$F210,0)-SUM($AE210:AK210)","v":2},{"$f":"ROUNDDOWN(R$203/$F210,0)-SUM($AE210:AL210)","v":2},{"$f":"ROUNDDOWN(S$203/$F210,0)-SUM($AE210:AM210)","v":2},{"$f":"ROUNDDOWN(T$203/$F210,0)-SUM($AE210:AN210)","v":3},{"$f":"ROUNDDOWN(U$203/$F210,0)-SUM($AE210:AO210)","v":2},{"$f":"ROUNDDOWN(V$203/$F210,0)-SUM($AE210:AP210)","v":2},{"$f":"ROUNDDOWN(W$203/$F210,0)-SUM($AE210:AQ210)","v":2},{"$f":"ROUNDDOWN(X$203/$F210,0)-SUM($AE210:AR210)","v":2},{"$f":"ROUNDDOWN(Y$203/$F210,0)-SUM($AE210:AS210)","v":3},{"$f":"ROUNDDOWN(Z$203/$F210,0)-SUM($AE210:AT210)","v":2},{"$f":"ROUNDDOWN(AA$203/$F210,0)-SUM($AE210:AU210)","v":2},{"$f":"ROUNDDOWN(AB$203/$F210,0)-SUM($AE210:AV210)","v":2},{"$f":"ROUNDDOWN(AC$203/$F210,0)-SUM($AE210:AW210)","v":2}]
[null,6,"ACEITE HIDRÁULICO","GLN",2,60000,16.008333333333333,"Aceites y filtros ",null,{"$f":"+AE211*$E211*$G211*(1+'Sup Generales'!C$10)","v":32.785066666666665},{"$f":"+AF211*$E211*$G211*(1+'Sup Generales'!D$10)","v":33.309627733333329},{"$f":"+AG211*$E211*$G211*(1+'Sup Generales'!E$10)","v":34.175678054400002},{"$f":"+AH211*$E211*$G211*(1+'Sup Generales'!F$10)","v":34.323316983595014},{"$f":"+AI211*$E211*$G211*(1+'Sup Generales'!G$10)","v":34.415989939450718},{"$f":"+AJ211*$E211*$G211*(1+'Sup Generales'!H$10)","v":34.646577072045034},{"$f":"+AK211*$E211*$G211*(1+'Sup Generales'!I$10)","v":35.31911044123477},{"$f":"+AL211*$E211*$G211*(1+'Sup Generales'!J$10)","v":35.932034972665363},{"$f":"+AM211*$E211*$G211*(1+'Sup Generales'!K$10)","v":36.455228561186793},{"$f":"+AN211*$E211*$G211*(1+'Sup Generales'!L$10)","v":36.94302595293626},{"$f":"+AO211*$E211*$G211*(1+'Sup Generales'!M$10)","v":74.85050986980238},{"$f":"+AP211*$E211*$G211*(1+'Sup Generales'!N$10)","v":37.853211984126155},{"$f":"+AQ211*$E211*$G211*(1+'Sup Generales'!O$10)","v":38.31972832046602},{"$f":"+AR211*$E211*$G211*(1+'Sup Generales'!P$10)","v":38.838094491407382},{"$f":"+AS211*$E211*$G211*(1+'Sup Generales'!Q$10)","v":39.396618192582515},{"$f":"+AT211*$E211*$G211*(1+'Sup Generales'!R$10)","v":39.938401189099331},{"$f":"+AU211*$E211*$G211*(1+'Sup Generales'!S$10)","v":40.469653087046709},{"$f":"+AV211*$E211*$G211*(1+'Sup Generales'!T$10)","v":41.001603364553681},{"$f":"+AW211*$E211*$G211*(1+'Sup Generales'!U$10)","v":41.539334731318114},{"$f":"+AX211*$E211*$G211*(1+'Sup Generales'!V$10)","v":42.084438083929726},null,1,{"$f":"ROUNDDOWN(K$203/$F211,0)-SUM($AE211:AE211)","v":1},{"$f":"ROUNDDOWN(L$203/$F211,0)-SUM($AE211:AF211)","v":1},{"$f":"ROUNDDOWN(M$203/$F211,0)-SUM($AE211:AG211)","v":1},{"$f":"ROUNDDOWN(N$203/$F211,0)-SUM($AE211:AH211)","v":1},{"$f":"ROUNDDOWN(O$203/$F211,0)-SUM($AE211:AI211)","v":1},{"$f":"ROUNDDOWN(P$203/$F211,0)-SUM($AE211:AJ211)","v":1},{"$f":"ROUNDDOWN(Q$203/$F211,0)-SUM($AE211:AK211)","v":1},{"$f":"ROUNDDOWN(R$203/$F211,0)-SUM($AE211:AL211)","v":1},{"$f":"ROUNDDOWN(S$203/$F211,0)-SUM($AE211:AM211)","v":1},{"$f":"ROUNDDOWN(T$203/$F211,0)-SUM($AE211:AN211)","v":2},{"$f":"ROUNDDOWN(U$203/$F211,0)-SUM($AE211:AO211)","v":1},{"$f":"ROUNDDOWN(V$203/$F211,0)-SUM($AE211:AP211)","v":1},{"$f":"ROUNDDOWN(W$203/$F211,0)-SUM($AE211:AQ211)","v":1},{"$f":"ROUNDDOWN(X$203/$F211,0)-SUM($AE211:AR211)","v":1},{"$f":"ROUNDDOWN(Y$203/$F211,0)-SUM($AE211:AS211)","v":1},{"$f":"ROUNDDOWN(Z$203/$F211,0)-SUM($AE211:AT211)","v":1},{"$f":"ROUNDDOWN(AA$203/$F211,0)-SUM($AE211:AU211)","v":1},{"$f":"ROUNDDOWN(AB$203/$F211,0)-SUM($AE211:AV211)","v":1},{"$f":"ROUNDDOWN(AC$203/$F211,0)-SUM($AE211:AW211)","v":1}]
[null,7,"ENGRASE GENERAL","KG.",1,5000,6.7857142857142856,"Aceites y filtros ",null,{"$f":"+AE212*$E212*$G212*(1+'Sup Generales'!C$10)","v":90.33142857142856},{"$f":"+AF212*$E212*$G212*(1+'Sup Generales'!D$10)","v":91.776731428571424},{"$f":"+AG212*$E212*$G212*(1+'Sup Generales'!E$10)","v":94.162926445714277},{"$f":"+AH212*$E212*$G212*(1+'Sup Generales'!F$10)","v":94.569710287959779},{"$f":"+AI212*$E212*$G212*(1+'Sup Generales'!G$10)","v":94.825048505737271},{"$f":"+AJ212*$E212*$G212*(1+'Sup Generales'!H$10)","v":95.460376330725694},{"$f":"+AK212*$E212*$G212*(1+'Sup Generales'!I$10)","v":104.79902629621978},{"$f":"+AL212*$E212*$G212*(1+'Sup Generales'!J$10)","v":99.002148861251698},{"$f":"+AM212*$E212*$G212*(1+'Sup Generales'!K$10)","v":100.4436839586503},{"$f":"+AN212*$E212*$G212*(1+'Sup Generales'!L$10)","v":101.78769328149687},{"$f":"+AO212*$E212*$G212*(1+'Sup Generales'!M$10)","v":103.11636017982367},{"$f":"+AP212*$E212*$G212*(1+'Sup Generales'!N$10)","v":104.29549371695353},{"$f":"+AQ212*$E212*$G212*(1+'Sup Generales'!O$10)","v":113.70247341314749},{"$f":"+AR212*$E212*$G212*(1+'Sup Generales'!P$10)","v":107.00910246944623},{"$f":"+AS212*$E212*$G212*(1+'Sup Generales'!Q$10)","v":108.54798126237691},{"$f":"+AT212*$E212*$G212*(1+'Sup Generales'!R$10)","v":110.04073503801072},{"$f":"+AU212*$E212*$G212*(1+'Sup Generales'!S$10)","v":111.50447288429245},{"$f":"+AV212*$E212*$G212*(1+'Sup Generales'!T$10)","v":112.97013494881489},{"$f":"+AW212*$E212*$G212*(1+'Sup Generales'!U$10)","v":123.25570430427551},{"$f":"+AX212*$E212*$G212*(1+'Sup Generales'!V$10)","v":115.95362765000344},null,13,{"$f":"ROUNDDOWN(K$203/$F212,0)-SUM($AE212:AE212)","v":13},{"$f":"ROUNDDOWN(L$203/$F212,0)-SUM($AE212:AF212)","v":13},{"$f":"ROUNDDOWN(M$203/$F212,0)-SUM($AE212:AG212)","v":13},{"$f":"ROUNDDOWN(N$203/$F212,0)-SUM($AE212:AH212)","v":13},{"$f":"ROUNDDOWN(O$203/$F212,0)-SUM($AE212:AI212)","v":13},{"$f":"ROUNDDOWN(P$203/$F212,0)-SUM($AE212:AJ212)","v":14},{"$f":"ROUNDDOWN(Q$203/$F212,0)-SUM($AE212:AK212)","v":13},{"$f":"ROUNDDOWN(R$203/$F212,0)-SUM($AE212:AL212)","v":13},{"$f":"ROUNDDOWN(S$203/$F212,0)-SUM($AE212:AM212)","v":13},{"$f":"ROUNDDOWN(T$203/$F212,0)-SUM($AE212:AN212)","v":13},{"$f":"ROUNDDOWN(U$203/$F212,0)-SUM($AE212:AO212)","v":13},{"$f":"ROUNDDOWN(V$203/$F212,0)-SUM($AE212:AP212)","v":14},{"$f":"ROUNDDOWN(W$203/$F212,0)-SUM($AE212:AQ212)","v":13},{"$f":"ROUNDDOWN(X$203/$F212,0)-SUM($AE212:AR212)","v":13},{"$f":"ROUNDDOWN(Y$203/$F212,0)-SUM($AE212:AS212)","v":13},{"$f":"ROUNDDOWN(Z$203/$F212,0)-SUM($AE212:AT212)","v":13},{"$f":"ROUNDDOWN(AA$203/$F212,0)-SUM($AE212:AU212)","v":13},{"$f":"ROUNDDOWN(AB$203/$F212,0)-SUM($AE212:AV212)","v":14},{"$f":"ROUNDDOWN(AC$203/$F212,0)-SUM($AE212:AW212)","v":13}]
[null,8,"FILTRO DE ACEITE DE MOTOR","UND",1,5000,13.37875,"Aceites y filtros ",null,{"$f":"+AE213*$E213*$G213*(1+'Sup Generales'!C$10)","v":178.09792000000002},{"$f":"+AF213*$E213*$G213*(1+'Sup Generales'!D$10)","v":180.94748672},{"$f":"+AG213*$E213*$G213*(1+'Sup Generales'!E$10)","v":185.65212137472002},{"$f":"+AH213*$E213*$G213*(1+'Sup Generales'!F$10)","v":186.45413853905885},{"$f":"+AI213*$E213*$G213*(1+'Sup Generales'!G$10)","v":186.95756471311429},{"$f":"+AJ213*$E213*$G213*(1+'Sup Generales'!H$10)","v":188.21018039669212},{"$f":"+AK213*$E213*$G213*(1+'Sup Generales'!I$10)","v":206.62231181944955},{"$f":"+AL213*$E213*$G213*(1+'Sup Generales'!J$10)","v":195.19315775878525},{"$f":"+AM213*$E213*$G213*(1+'Sup Generales'!K$10)","v":198.03529594384315},{"$f":"+AN213*$E213*$G213*(1+'Sup Generales'!L$10)","v":200.68515179850073},{"$f":"+AO213*$E213*$G213*(1+'Sup Generales'!M$10)","v":203.30475844822556},{"$f":"+AP213*$E213*$G213*(1+'Sup Generales'!N$10)","v":205.62954433599674},{"$f":"+AQ213*$E213*$G213*(1+'Sup Generales'!O$10)","v":224.17639501543221},{"$f":"+AR213*$E213*$G213*(1+'Sup Generales'!P$10)","v":210.97970963456271},{"$f":"+AS213*$E213*$G213*(1+'Sup Generales'!Q$10)","v":214.01377116206686},{"$f":"+AT213*$E213*$G213*(1+'Sup Generales'!R$10)","v":216.9568923627053},{"$f":"+AU213*$E213*$G213*(1+'Sup Generales'!S$10)","v":219.84280560431779},{"$f":"+AV213*$E213*$G213*(1+'Sup Generales'!T$10)","v":222.73251264474106},{"$f":"+AW213*$E213*$G213*(1+'Sup Generales'!U$10)","v":243.0115953205428},{"$f":"+AX213*$E213*$G213*(1+'Sup Generales'!V$10)","v":228.6147825569976},null,13,{"$f":"ROUNDDOWN(K$203/$F213,0)-SUM($AE213:AE213)","v":13},{"$f":"ROUNDDOWN(L$203/$F213,0)-SUM($AE213:AF213)","v":13},{"$f":"ROUNDDOWN(M$203/$F213,0)-SUM($AE213:AG213)","v":13},{"$f":"ROUNDDOWN(N$203/$F213,0)-SUM($AE213:AH213)","v":13},{"$f":"ROUNDDOWN(O$203/$F213,0)-SUM($AE213:AI213)","v":13},{"$f":"ROUNDDOWN(P$203/$F213,0)-SUM($AE213:AJ213)","v":14},{"$f":"ROUNDDOWN(Q$203/$F213,0)-SUM($AE213:AK213)","v":13},{"$f":"ROUNDDOWN(R$203/$F213,0)-SUM($AE213:AL213)","v":13},{"$f":"ROUNDDOWN(S$203/$F213,0)-SUM($AE213:AM213)","v":13},{"$f":"ROUNDDOWN(T$203/$F213,0)-SUM($AE213:AN213)","v":13},{"$f":"ROUNDDOWN(U$203/$F213,0)-SUM($AE213:AO213)","v":13},{"$f":"ROUNDDOWN(V$203/$F213,0)-SUM($AE213:AP213)","v":14},{"$f":"ROUNDDOWN(W$203/$F213,0)-SUM($AE213:AQ213)","v":13},{"$f":"ROUNDDOWN(X$203/$F213,0)-SUM($AE213:AR213)","v":13},{"$f":"ROUNDDOWN(Y$203/$F213,0)-SUM($AE213:AS213)","v":13},{"$f":"ROUNDDOWN(Z$203/$F213,0)-SUM($AE213:AT213)","v":13},{"$f":"ROUNDDOWN(AA$203/$F213,0)-SUM($AE213:AU213)","v":13},{"$f":"ROUNDDOWN(AB$203/$F213,0)-SUM($AE213:AV213)","v":14},{"$f":"ROUNDDOWN(AC$203/$F213,0)-SUM($AE213:AW213)","v":13}]
[null,9,"FILTRO DE AIRE","UND",2,10000,35.441249999999997,"Aceites y filtros ",null,{"$f":"+AE214*$E214*$G214*(1+'Sup Generales'!C$10)","v":435.50207999999998},{"$f":"+AF214*$E214*$G214*(1+'Sup Generales'!D$10)","v":516.21513215999994},{"$f":"+AG214*$E214*$G214*(1+'Sup Generales'!E$10)","v":453.97433622527996},{"$f":"+AH214*$E214*$G214*(1+'Sup Generales'!F$10)","v":531.92475625073541},{"$f":"+AI214*$E214*$G214*(1+'Sup Generales'!G$10)","v":457.1665312222392},{"$f":"+AJ214*$E214*$G214*(1+'Sup Generales'!H$10)","v":536.93447147833285},{"$f":"+AK214*$E214*$G214*(1+'Sup Generales'!I$10)","v":547.35704073781676},{"$f":"+AL214*$E214*$G214*(1+'Sup Generales'!J$10)","v":477.30499157833572},{"$f":"+AM214*$E214*$G214*(1+'Sup Generales'!K$10)","v":564.96400320931571},{"$f":"+AN214*$E214*$G214*(1+'Sup Generales'!L$10)","v":490.73454105114081},{"$f":"+AO214*$E214*$G214*(1+'Sup Generales'!M$10)","v":579.99696295039871},{"$f":"+AP214*$E214*$G214*(1+'Sup Generales'!N$10)","v":502.8250429189672},{"$f":"+AQ214*$E214*$G214*(1+'Sup Generales'!O$10)","v":593.85904212581033},{"$f":"+AR214*$E214*$G214*(1+'Sup Generales'!P$10)","v":601.89240904248686},{"$f":"+AS214*$E214*$G214*(1+'Sup Generales'!Q$10)","v":523.32695682085523},{"$f":"+AT214*$E214*$G214*(1+'Sup Generales'!R$10)","v":618.94438488300875},{"$f":"+AU214*$E214*$G214*(1+'Sup Generales'!S$10)","v":537.58066974457665},{"$f":"+AV214*$E214*$G214*(1+'Sup Generales'!T$10)","v":635.42133430762613},{"$f":"+AW214*$E214*$G214*(1+'Sup Generales'!U$10)","v":643.75481286773322},{"$f":"+AX214*$E214*$G214*(1+'Sup Generales'!V$10)","v":559.03074736819019},null,6,{"$f":"ROUNDDOWN(K$203/$F214,0)-SUM($AE214:AE214)","v":7},{"$f":"ROUNDDOWN(L$203/$F214,0)-SUM($AE214:AF214)","v":6},{"$f":"ROUNDDOWN(M$203/$F214,0)-SUM($AE214:AG214)","v":7},{"$f":"ROUNDDOWN(N$203/$F214,0)-SUM($AE214:AH214)","v":6},{"$f":"ROUNDDOWN(O$203/$F214,0)-SUM($AE214:AI214)","v":7},{"$f":"ROUNDDOWN(P$203/$F214,0)-SUM($AE214:AJ214)","v":7},{"$f":"ROUNDDOWN(Q$203/$F214,0)-SUM($AE214:AK214)","v":6},{"$f":"ROUNDDOWN(R$203/$F214,0)-SUM($AE214:AL214)","v":7},{"$f":"ROUNDDOWN(S$203/$F214,0)-SUM($AE214:AM214)","v":6},{"$f":"ROUNDDOWN(T$203/$F214,0)-SUM($AE214:AN214)","v":7},{"$f":"ROUNDDOWN(U$203/$F214,0)-SUM($AE214:AO214)","v":6},{"$f":"ROUNDDOWN(V$203/$F214,0)-SUM($AE214:AP214)","v":7},{"$f":"ROUNDDOWN(W$203/$F214,0)-SUM($AE214:AQ214)","v":7},{"$f":"ROUNDDOWN(X$203/$F214,0)-SUM($AE214:AR214)","v":6},{"$f":"ROUNDDOWN(Y$203/$F214,0)-SUM($AE214:AS214)","v":7},{"$f":"ROUNDDOWN(Z$203/$F214,0)-SUM($AE214:AT214)","v":6},{"$f":"ROUNDDOWN(AA$203/$F214,0)-SUM($AE214:AU214)","v":7},{"$f":"ROUNDDOWN(AB$203/$F214,0)-SUM($AE214:AV214)","v":7},{"$f":"ROUNDDOWN(AC$203/$F214,0)-SUM($AE214:AW214)","v":6}]
[null,10,"FILTRO DE COMBUSTIBLE","UD.",1,5000,13.484999999999999,"Aceites y filtros ",null,{"$f":"+AE215*$E215*$G215*(1+'Sup Generales'!C$10)","v":179.51232000000002},{"$f":"+AF215*$E215*$G215*(1+'Sup Generales'!D$10)","v":182.38451712},{"$f":"+AG215*$E215*$G215*(1+'Sup Generales'!E$10)","v":187.12651456512},{"$f":"+AH215*$E215*$G215*(1+'Sup Generales'!F$10)","v":187.93490110804134},{"$f":"+AI215*$E215*$G215*(1+'Sup Generales'!G$10)","v":188.44232534103307},{"$f":"+AJ215*$E215*$G215*(1+'Sup Generales'!H$10)","v":189.70488892081798},{"$f":"+AK215*$E215*$G215*(1+'Sup Generales'!I$10)","v":208.26324394171928},{"$f":"+AL215*$E215*$G215*(1+'Sup Generales'!J$10)","v":196.74332298437591},{"$f":"+AM215*$E215*$G215*(1+'Sup Generales'!K$10)","v":199.60803257424834},{"$f":"+AN215*$E215*$G215*(1+'Sup Generales'!L$10)","v":202.27893278540839},{"$f":"+AO215*$E215*$G215*(1+'Sup Generales'!M$10)","v":204.9193435615675},{"$f":"+AP215*$E215*$G215*(1+'Sup Generales'!N$10)","v":207.26259219814378},{"$f":"+AQ215*$E215*$G215*(1+'Sup Generales'!O$10)","v":225.95673637545383},{"$f":"+AR215*$E215*$G215*(1+'Sup Generales'!P$10)","v":212.65524689691324},{"$f":"+AS215*$E215*$G215*(1+'Sup Generales'!Q$10)","v":215.71340402656986},{"$f":"+AT215*$E215*$G215*(1+'Sup Generales'!R$10)","v":218.67989860869523},{"$f":"+AU215*$E215*$G215*(1+'Sup Generales'!S$10)","v":221.58873090342709},{"$f":"+AV215*$E215*$G215*(1+'Sup Generales'!T$10)","v":224.50138712617647},{"$f":"+AW215*$E215*$G215*(1+'Sup Generales'!U$10)","v":244.94152016425446},{"$f":"+AX215*$E215*$G215*(1+'Sup Generales'!V$10)","v":230.43037225309632},null,13,{"$f":"ROUNDDOWN(K$203/$F215,0)-SUM($AE215:AE215)","v":13},{"$f":"ROUNDDOWN(L$203/$F215,0)-SUM($AE215:AF215)","v":13},{"$f":"ROUNDDOWN(M$203/$F215,0)-SUM($AE215:AG215)","v":13},{"$f":"ROUNDDOWN(N$203/$F215,0)-SUM($AE215:AH215)","v":13},{"$f":"ROUNDDOWN(O$203/$F215,0)-SUM($AE215:AI215)","v":13},{"$f":"ROUNDDOWN(P$203/$F215,0)-SUM($AE215:AJ215)","v":14},{"$f":"ROUNDDOWN(Q$203/$F215,0)-SUM($AE215:AK215)","v":13},{"$f":"ROUNDDOWN(R$203/$F215,0)-SUM($AE215:AL215)","v":13},{"$f":"ROUNDDOWN(S$203/$F215,0)-SUM($AE215:AM215)","v":13},{"$f":"ROUNDDOWN(T$203/$F215,0)-SUM($AE215:AN215)","v":13},{"$f":"ROUNDDOWN(U$203/$F215,0)-SUM($AE215:AO215)","v":13},{"$f":"ROUNDDOWN(V$203/$F215,0)-SUM($AE215:AP215)","v":14},{"$f":"ROUNDDOWN(W$203/$F215,0)-SUM($AE215:AQ215)","v":13},{"$f":"ROUNDDOWN(X$203/$F215,0)-SUM($AE215:AR215)","v":13},{"$f":"ROUNDDOWN(Y$203/$F215,0)-SUM($AE215:AS215)","v":13},{"$f":"ROUNDDOWN(Z$203/$F215,0)-SUM($AE215:AT215)","v":13},{"$f":"ROUNDDOWN(AA$203/$F215,0)-SUM($AE215:AU215)","v":13},{"$f":"ROUNDDOWN(AB$203/$F215,0)-SUM($AE215:AV215)","v":14},{"$f":"ROUNDDOWN(AC$203/$F215,0)-SUM($AE215:AW215)","v":13}]
[null,11,"FILTRO SECADOR DE AIRE","UD.",1,30000,35.874285714285712,"Aceites y filtros ",null,{"$f":"+AE216*$E216*$G216*(1+'Sup Generales'!C$10)","v":73.47053714285714},{"$f":"+AF216*$E216*$G216*(1+'Sup Generales'!D$10)","v":74.646065737142848},{"$f":"+AG216*$E216*$G216*(1+'Sup Generales'!E$10)","v":76.58686344630857},{"$f":"+AH216*$E216*$G216*(1+'Sup Generales'!F$10)","v":76.917718696396634},{"$f":"+AI216*$E216*$G216*(1+'Sup Generales'!G$10)","v":77.125396536876906},{"$f":"+AJ216*$E216*$G216*(1+'Sup Generales'!H$10)","v":116.46320504051094},{"$f":"+AK216*$E216*$G216*(1+'Sup Generales'!I$10)","v":79.149267619569059},{"$f":"+AL216*$E216*$G216*(1+'Sup Generales'!J$10)","v":80.522816589595237},{"$f":"+AM216*$E216*$G216*(1+'Sup Generales'!K$10)","v":81.695280698611384},{"$f":"+AN216*$E216*$G216*(1+'Sup Generales'!L$10)","v":82.788422791415357},{"$f":"+AO216*$E216*$G216*(1+'Sup Generales'!M$10)","v":125.8036293199546},{"$f":"+AP216*$E216*$G216*(1+'Sup Generales'!N$10)","v":84.828127553688645},{"$f":"+AQ216*$E216*$G216*(1+'Sup Generales'!O$10)","v":85.873579318825861},{"$f":"+AR216*$E216*$G216*(1+'Sup Generales'!P$10)","v":87.035225302436729},{"$f":"+AS216*$E216*$G216*(1+'Sup Generales'!Q$10)","v":88.286863334763041},{"$f":"+AT216*$E216*$G216*(1+'Sup Generales'!R$10)","v":134.251478782568},{"$f":"+AU216*$E216*$G216*(1+'Sup Generales'!S$10)","v":90.691508439525578},{"$f":"+AV216*$E216*$G216*(1+'Sup Generales'!T$10)","v":91.883596075615841},{"$f":"+AW216*$E216*$G216*(1+'Sup Generales'!U$10)","v":93.08863899214937},{"$f":"+AX216*$E216*$G216*(1+'Sup Generales'!V$10)","v":94.310202349696723},null,2,{"$f":"ROUNDDOWN(K$203/$F216,0)-SUM($AE216:AE216)","v":2},{"$f":"ROUNDDOWN(L$203/$F216,0)-SUM($AE216:AF216)","v":2},{"$f":"ROUNDDOWN(M$203/$F216,0)-SUM($AE216:AG216)","v":2},{"$f":"ROUNDDOWN(N$203/$F216,0)-SUM($AE216:AH216)","v":2},{"$f":"ROUNDDOWN(O$203/$F216,0)-SUM($AE216:AI216)","v":3},{"$f":"ROUNDDOWN(P$203/$F216,0)-SUM($AE216:AJ216)","v":2},{"$f":"ROUNDDOWN(Q$203/$F216,0)-SUM($AE216:AK216)","v":2},{"$f":"ROUNDDOWN(R$203/$F216,0)-SUM($AE216:AL216)","v":2},{"$f":"ROUNDDOWN(S$203/$F216,0)-SUM($AE216:AM216)","v":2},{"$f":"ROUNDDOWN(T$203/$F216,0)-SUM($AE216:AN216)","v":3},{"$f":"ROUNDDOWN(U$203/$F216,0)-SUM($AE216:AO216)","v":2},{"$f":"ROUNDDOWN(V$203/$F216,0)-SUM($AE216:AP216)","v":2},{"$f":"ROUNDDOWN(W$203/$F216,0)-SUM($AE216:AQ216)","v":2},{"$f":"ROUNDDOWN(X$203/$F216,0)-SUM($AE216:AR216)","v":2},{"$f":"ROUNDDOWN(Y$203/$F216,0)-SUM($AE216:AS216)","v":3},{"$f":"ROUNDDOWN(Z$203/$F216,0)-SUM($AE216:AT216)","v":2},{"$f":"ROUNDDOWN(AA$203/$F216,0)-SUM($AE216:AU216)","v":2},{"$f":"ROUNDDOWN(AB$203/$F216,0)-SUM($AE216:AV216)","v":2},{"$f":"ROUNDDOWN(AC$203/$F216,0)-SUM($AE216:AW216)","v":2}]
[null,12,"REFRIGERANTE DE MOTOR","GLNS.",4,30000,3.8400000000000003,"Aceites y filtros ",null,{"$f":"+AE217*$E217*$G217*(1+'Sup Generales'!C$10)","v":31.457280000000004},{"$f":"+AF217*$E217*$G217*(1+'Sup Generales'!D$10)","v":31.960596480000003},{"$f":"+AG217*$E217*$G217*(1+'Sup Generales'!E$10)","v":32.791571988480001},{"$f":"+AH217*$E217*$G217*(1+'Sup Generales'!F$10)","v":32.933231579470238},{"$f":"+AI217*$E217*$G217*(1+'Sup Generales'!G$10)","v":33.022151304734813},{"$f":"+AJ217*$E217*$G217*(1+'Sup Generales'!H$10)","v":49.865099577714801},{"$f":"+AK217*$E217*$G217*(1+'Sup Generales'!I$10)","v":33.888695661261814},{"$f":"+AL217*$E217*$G217*(1+'Sup Generales'!J$10)","v":34.476796908702134},{"$f":"+AM217*$E217*$G217*(1+'Sup Generales'!K$10)","v":34.97880129306585},{"$f":"+AN217*$E217*$G217*(1+'Sup Generales'!L$10)","v":35.446843017413912},{"$f":"+AO217*$E217*$G217*(1+'Sup Generales'!M$10)","v":53.864312776686525},{"$f":"+AP217*$E217*$G217*(1+'Sup Generales'!N$10)","v":36.320166751244841},{"$f":"+AQ217*$E217*$G217*(1+'Sup Generales'!O$10)","v":36.767789297388326},{"$f":"+AR217*$E217*$G217*(1+'Sup Generales'!P$10)","v":37.265161773327485},{"$f":"+AS217*$E217*$G217*(1+'Sup Generales'!Q$10)","v":37.801065409978193},{"$f":"+AT217*$E217*$G217*(1+'Sup Generales'!R$10)","v":57.481359504227925},{"$f":"+AU217*$E217*$G217*(1+'Sup Generales'!S$10)","v":38.830642670507295},{"$f":"+AV217*$E217*$G217*(1+'Sup Generales'!T$10)","v":39.341049100231828},{"$f":"+AW217*$E217*$G217*(1+'Sup Generales'!U$10)","v":39.857002486603619},{"$f":"+AX217*$E217*$G217*(1+'Sup Generales'!V$10)","v":40.380029295314564},null,2,{"$f":"ROUNDDOWN(K$203/$F217,0)-SUM($AE217:AE217)","v":2},{"$f":"ROUNDDOWN(L$203/$F217,0)-SUM($AE217:AF217)","v":2},{"$f":"ROUNDDOWN(M$203/$F217,0)-SUM($AE217:AG217)","v":2},{"$f":"ROUNDDOWN(N$203/$F217,0)-SUM($AE217:AH217)","v":2},{"$f":"ROUNDDOWN(O$203/$F217,0)-SUM($AE217:AI217)","v":3},{"$f":"ROUNDDOWN(P$203/$F217,0)-SUM($AE217:AJ217)","v":2},{"$f":"ROUNDDOWN(Q$203/$F217,0)-SUM($AE217:AK217)","v":2},{"$f":"ROUNDDOWN(R$203/$F217,0)-SUM($AE217:AL217)","v":2},{"$f":"ROUNDDOWN(S$203/$F217,0)-SUM($AE217:AM217)","v":2},{"$f":"ROUNDDOWN(T$203/$F217,0)-SUM($AE217:AN217)","v":3},{"$f":"ROUNDDOWN(U$203/$F217,0)-SUM($AE217:AO217)","v":2},{"$f":"ROUNDDOWN(V$203/$F217,0)-SUM($AE217:AP217)","v":2},{"$f":"ROUNDDOWN(W$203/$F217,0)-SUM($AE217:AQ217)","v":2},{"$f":"ROUNDDOWN(X$203/$F217,0)-SUM($AE217:AR217)","v":2},{"$f":"ROUNDDOWN(Y$203/$F217,0)-SUM($AE217:AS217)","v":3},{"$f":"ROUNDDOWN(Z$203/$F217,0)-SUM($AE217:AT217)","v":2},{"$f":"ROUNDDOWN(AA$203/$F217,0)-SUM($AE217:AU217)","v":2},{"$f":"ROUNDDOWN(AB$203/$F217,0)-SUM($AE217:AV217)","v":2},{"$f":"ROUNDDOWN(AC$203/$F217,0)-SUM($AE217:AW217)","v":2}]
[null,13,"DESCARBONIZACION COMPRESOR AIRE","UD.",1,30000,27.5,"Aceites y filtros ",null,{"$f":"+AE218*$E218*$G218*(1+'Sup Generales'!C$10)","v":56.32},{"$f":"+AF218*$E218*$G218*(1+'Sup Generales'!D$10)","v":57.221119999999999},{"$f":"+AG218*$E218*$G218*(1+'Sup Generales'!E$10)","v":58.708869120000003},{"$f":"+AH218*$E218*$G218*(1+'Sup Generales'!F$10)","v":58.962491434598412},{"$f":"+AI218*$E218*$G218*(1+'Sup Generales'!G$10)","v":59.121690161471825},{"$f":"+AJ218*$E218*$G218*(1+'Sup Generales'!H$10)","v":89.27670822833052},{"$f":"+AK218*$E218*$G218*(1+'Sup Generales'!I$10)","v":60.673120487285139},{"$f":"+AL218*$E218*$G218*(1+'Sup Generales'!J$10)","v":61.726036132116448},{"$f":"+AM218*$E218*$G218*(1+'Sup Generales'!K$10)","v":62.624807002559301},{"$f":"+AN218*$E218*$G218*(1+'Sup Generales'!L$10)","v":63.46277232935433},{"$f":"+AO218*$E218*$G218*(1+'Sup Generales'!M$10)","v":96.436757900968701},{"$f":"+AP218*$E218*$G218*(1+'Sup Generales'!N$10)","v":65.026340212189652},{"$f":"+AQ218*$E218*$G218*(1+'Sup Generales'!O$10)","v":65.827747765506444},{"$f":"+AR218*$E218*$G218*(1+'Sup Generales'!P$10)","v":66.718225831152722},{"$f":"+AS218*$E218*$G218*(1+'Sup Generales'!Q$10)","v":67.677688722291677},{"$f":"+AT218*$E218*$G218*(1+'Sup Generales'!R$10)","v":102.91259025822056},{"$f":"+AU218*$E218*$G218*(1+'Sup Generales'!S$10)","v":69.521007385348341},{"$f":"+AV218*$E218*$G218*(1+'Sup Generales'!T$10)","v":70.434820980232772},{"$f":"+AW218*$E218*$G218*(1+'Sup Generales'!U$10)","v":71.358565649843726},{"$f":"+AX218*$E218*$G218*(1+'Sup Generales'!V$10)","v":72.294974324293648},null,2,{"$f":"ROUNDDOWN(K$203/$F218,0)-SUM($AE218:AE218)","v":2},{"$f":"ROUNDDOWN(L$203/$F218,0)-SUM($AE218:AF218)","v":2},{"$f":"ROUNDDOWN(M$203/$F218,0)-SUM($AE218:AG218)","v":2},{"$f":"ROUNDDOWN(N$203/$F218,0)-SUM($AE218:AH218)","v":2},{"$f":"ROUNDDOWN(O$203/$F218,0)-SUM($AE218:AI218)","v":3},{"$f":"ROUNDDOWN(P$203/$F218,0)-SUM($AE218:AJ218)","v":2},{"$f":"ROUNDDOWN(Q$203/$F218,0)-SUM($AE218:AK218)","v":2},{"$f":"ROUNDDOWN(R$203/$F218,0)-SUM($AE218:AL218)","v":2},{"$f":"ROUNDDOWN(S$203/$F218,0)-SUM($AE218:AM218)","v":2},{"$f":"ROUNDDOWN(T$203/$F218,0)-SUM($AE218:AN218)","v":3},{"$f":"ROUNDDOWN(U$203/$F218,0)-SUM($AE218:AO218)","v":2},{"$f":"ROUNDDOWN(V$203/$F218,0)-SUM($AE218:AP218)","v":2},{"$f":"ROUNDDOWN(W$203/$F218,0)-SUM($AE218:AQ218)","v":2},{"$f":"ROUNDDOWN(X$203/$F218,0)-SUM($AE218:AR218)","v":2},{"$f":"ROUNDDOWN(Y$203/$F218,0)-SUM($AE218:AS218)","v":3},{"$f":"ROUNDDOWN(Z$203/$F218,0)-SUM($AE218:AT218)","v":2},{"$f":"ROUNDDOWN(AA$203/$F218,0)-SUM($AE218:AU218)","v":2},{"$f":"ROUNDDOWN(AB$203/$F218,0)-SUM($AE218:AV218)","v":2},{"$f":"ROUNDDOWN(AC$203/$F218,0)-SUM($AE218:AW218)","v":2}]
[null,14,"BANDAS","JGO.",2,30000,31.708571428571428,"Costo de mantenimiento mecánico",null,{"$f":"+AE219*$E219*$G219*(1+'Sup Generales'!C$10)","v":129.87830857142856},{"$f":"+AF219*$E219*$G219*(1+'Sup Generales'!D$10)","v":131.95636150857143},{"$f":"+AG219*$E219*$G219*(1+'Sup Generales'!E$10)","v":135.38722690779429},{"$f":"+AH219*$E219*$G219*(1+'Sup Generales'!F$10)","v":135.97209972803597},{"$f":"+AI219*$E219*$G219*(1+'Sup Generales'!G$10)","v":136.33922439730168},{"$f":"+AJ219*$E219*$G219*(1+'Sup Generales'!H$10)","v":205.87904580114537},{"$f":"+AK219*$E219*$G219*(1+'Sup Generales'!I$10)","v":139.91694361930192},{"$f":"+AL219*$E219*$G219*(1+'Sup Generales'!J$10)","v":142.34504914165785},{"$f":"+AM219*$E219*$G219*(1+'Sup Generales'!K$10)","v":144.41768480299285},{"$f":"+AN219*$E219*$G219*(1+'Sup Generales'!L$10)","v":146.35009814258169},{"$f":"+AO219*$E219*$G219*(1+'Sup Generales'!M$10)","v":222.39067827219753},{"$f":"+AP219*$E219*$G219*(1+'Sup Generales'!N$10)","v":149.95580751685833},{"$f":"+AQ219*$E219*$G219*(1+'Sup Generales'!O$10)","v":151.80391578214866},{"$f":"+AR219*$E219*$G219*(1+'Sup Generales'!P$10)","v":153.85742758943022},{"$f":"+AS219*$E219*$G219*(1+'Sup Generales'!Q$10)","v":156.07002377973882},{"$f":"+AT219*$E219*$G219*(1+'Sup Generales'!R$10)","v":237.32445229833385},{"$f":"+AU219*$E219*$G219*(1+'Sup Generales'!S$10)","v":160.32086025196796},{"$f":"+AV219*$E219*$G219*(1+'Sup Generales'!T$10)","v":162.42818560802561},{"$f":"+AW219*$E219*$G219*(1+'Sup Generales'!U$10)","v":164.55841279625258},{"$f":"+AX219*$E219*$G219*(1+'Sup Generales'!V$10)","v":166.71784416644383},null,2,{"$f":"ROUNDDOWN(K$203/$F219,0)-SUM($AE219:AE219)","v":2},{"$f":"ROUNDDOWN(L$203/$F219,0)-SUM($AE219:AF219)","v":2},{"$f":"ROUNDDOWN(M$203/$F219,0)-SUM($AE219:AG219)","v":2},{"$f":"ROUNDDOWN(N$203/$F219,0)-SUM($AE219:AH219)","v":2},{"$f":"ROUNDDOWN(O$203/$F219,0)-SUM($AE219:AI219)","v":3},{"$f":"ROUNDDOWN(P$203/$F219,0)-SUM($AE219:AJ219)","v":2},{"$f":"ROUNDDOWN(Q$203/$F219,0)-SUM($AE219:AK219)","v":2},{"$f":"ROUNDDOWN(R$203/$F219,0)-SUM($AE219:AL219)","v":2},{"$f":"ROUNDDOWN(S$203/$F219,0)-SUM($AE219:AM219)","v":2},{"$f":"ROUNDDOWN(T$203/$F219,0)-SUM($AE219:AN219)","v":3},{"$f":"ROUNDDOWN(U$203/$F219,0)-SUM($AE219:AO219)","v":2},{"$f":"ROUNDDOWN(V$203/$F219,0)-SUM($AE219:AP219)","v":2},{"$f":"ROUNDDOWN(W$203/$F219,0)-SUM($AE219:AQ219)","v":2},{"$f":"ROUNDDOWN(X$203/$F219,0)-SUM($AE219:AR219)","v":2},{"$f":"ROUNDDOWN(Y$203/$F219,0)-SUM($AE219:AS219)","v":3},{"$f":"ROUNDDOWN(Z$203/$F219,0)-SUM($AE219:AT219)","v":2},{"$f":"ROUNDDOWN(AA$203/$F219,0)-SUM($AE219:AU219)","v":2},{"$f":"ROUNDDOWN(AB$203/$F219,0)-SUM($AE219:AV219)","v":2},{"$f":"ROUNDDOWN(AC$203/$F219,0)-SUM($AE219:AW219)","v":2}]
[null,15,"CAMBIO DE TOBERAS DE INYECTORES","JGO.",1,120000,213.86666666666667,"Costo de mantenimiento mecánico",null,{"$f":"+AE220*$E220*$G220*(1+'Sup Generales'!C$10)","v":0},{"$f":"+AF220*$E220*$G220*(1+'Sup Generales'!D$10)","v":222.50345813333334},{"$f":"+AG220*$E220*$G220*(1+'Sup Generales'!E$10)","v":0},{"$f":"+AH220*$E220*$G220*(1+'Sup Generales'!F$10)","v":229.27475457235357},{"$f":"+AI220*$E220*$G220*(1+'Sup Generales'!G$10)","v":0},{"$f":"+AJ220*$E220*$G220*(1+'Sup Generales'!H$10)","v":231.43408484564389},{"$f":"+AK220*$E220*$G220*(1+'Sup Generales'!I$10)","v":0},{"$f":"+AL220*$E220*$G220*(1+'Sup Generales'!J$10)","v":240.02075625676312},{"$f":"+AM220*$E220*$G220*(1+'Sup Generales'!K$10)","v":0},{"$f":"+AN220*$E220*$G220*(1+'Sup Generales'!L$10)","v":246.77402864553781},{"$f":"+AO220*$E220*$G220*(1+'Sup Generales'!M$10)","v":249.99524795661222},{"$f":"+AP220*$E220*$G220*(1+'Sup Generales'!N$10)","v":0},{"$f":"+AQ220*$E220*$G220*(1+'Sup Generales'!O$10)","v":255.97019979605415},{"$f":"+AR220*$E220*$G220*(1+'Sup Generales'!P$10)","v":0},{"$f":"+AS220*$E220*$G220*(1+'Sup Generales'!Q$10)","v":263.16366717710508},{"$f":"+AT220*$E220*$G220*(1+'Sup Generales'!R$10)","v":0},{"$f":"+AU220*$E220*$G220*(1+'Sup Generales'!S$10)","v":270.33138386933024},{"$f":"+AV220*$E220*$G220*(1+'Sup Generales'!T$10)","v":0},{"$f":"+AW220*$E220*$G220*(1+'Sup Generales'!U$10)","v":277.47670133902869},{"$f":"+AX220*$E220*$G220*(1+'Sup Generales'!V$10)","v":0},null,0,{"$f":"ROUNDDOWN(K$203/$F220,0)-SUM($AE220:AE220)","v":1},{"$f":"ROUNDDOWN(L$203/$F220,0)-SUM($AE220:AF220)","v":0},{"$f":"ROUNDDOWN(M$203/$F220,0)-SUM($AE220:AG220)","v":1},{"$f":"ROUNDDOWN(N$203/$F220,0)-SUM($AE220:AH220)","v":0},{"$f":"ROUNDDOWN(O$203/$F220,0)-SUM($AE220:AI220)","v":1},{"$f":"ROUNDDOWN(P$203/$F220,0)-SUM($AE220:AJ220)","v":0},{"$f":"ROUNDDOWN(Q$203/$F220,0)-SUM($AE220:AK220)","v":1},{"$f":"ROUNDDOWN(R$203/$F220,0)-SUM($AE220:AL220)","v":0},{"$f":"ROUNDDOWN(S$203/$F220,0)-SUM($AE220:AM220)","v":1},{"$f":"ROUNDDOWN(T$203/$F220,0)-SUM($AE220:AN220)","v":1},{"$f":"ROUNDDOWN(U$203/$F220,0)-SUM($AE220:AO220)","v":0},{"$f":"ROUNDDOWN(V$203/$F220,0)-SUM($AE220:AP220)","v":1},{"$f":"ROUNDDOWN(W$203/$F220,0)-SUM($AE220:AQ220)","v":0},{"$f":"ROUNDDOWN(X$203/$F220,0)-SUM($AE220:AR220)","v":1},{"$f":"ROUNDDOWN(Y$203/$F220,0)-SUM($AE220:AS220)","v":0},{"$f":"ROUNDDOWN(Z$203/$F220,0)-SUM($AE220:AT220)","v":1},{"$f":"ROUNDDOWN(AA$203/$F220,0)-SUM($AE220:AU220)","v":0},{"$f":"ROUNDDOWN(AB$203/$F220,0)-SUM($AE220:AV220)","v":1},{"$f":"ROUNDDOWN(AC$203/$F220,0)-SUM($AE220:AW220)","v":0}]
[null,16,"CALIBRACIÓN DE LA BOMBA DE INYECCIÓN","UND",1,150000,296.2,"Costo de mantenimiento mecánico",null,{"$f":"+AE221*$E221*$G221*(1+'Sup Generales'!C$10)","v":0},{"$f":"+AF221*$E221*$G221*(1+'Sup Generales'!D$10)","v":0},{"$f":"+AG221*$E221*$G221*(1+'Sup Generales'!E$10)","v":316.17394606080001},{"$f":"+AH221*$E221*$G221*(1+'Sup Generales'!F$10)","v":0},{"$f":"+AI221*$E221*$G221*(1+'Sup Generales'!G$10)","v":318.39717501505368},{"$f":"+AJ221*$E221*$G221*(1+'Sup Generales'!H$10)","v":0},{"$f":"+AK221*$E221*$G221*(1+'Sup Generales'!I$10)","v":326.75233251516107},{"$f":"+AL221*$E221*$G221*(1+'Sup Generales'!J$10)","v":0},{"$f":"+AM221*$E221*$G221*(1+'Sup Generales'!K$10)","v":0},{"$f":"+AN221*$E221*$G221*(1+'Sup Generales'!L$10)","v":341.77587570826819},{"$f":"+AO221*$E221*$G221*(1+'Sup Generales'!M$10)","v":0},{"$f":"+AP221*$E221*$G221*(1+'Sup Generales'!N$10)","v":350.19639947001042},{"$f":"+AQ221*$E221*$G221*(1+'Sup Generales'!O$10)","v":0},{"$f":"+AR221*$E221*$G221*(1+'Sup Generales'!P$10)","v":359.30797256704426},{"$f":"+AS221*$E221*$G221*(1+'Sup Generales'!Q$10)","v":0},{"$f":"+AT221*$E221*$G221*(1+'Sup Generales'!R$10)","v":369.48738466042334},{"$f":"+AU221*$E221*$G221*(1+'Sup Generales'!S$10)","v":0},{"$f":"+AV221*$E221*$G221*(1+'Sup Generales'!T$10)","v":0},{"$f":"+AW221*$E221*$G221*(1+'Sup Generales'!U$10)","v":384.29831173606743},{"$f":"+AX221*$E221*$G221*(1+'Sup Generales'!V$10)","v":0},null,0,{"$f":"ROUNDDOWN(K$203/$F221,0)-SUM($AE221:AE221)","v":0},{"$f":"ROUNDDOWN(L$203/$F221,0)-SUM($AE221:AF221)","v":1},{"$f":"ROUNDDOWN(M$203/$F221,0)-SUM($AE221:AG221)","v":0},{"$f":"ROUNDDOWN(N$203/$F221,0)-SUM($AE221:AH221)","v":1},{"$f":"ROUNDDOWN(O$203/$F221,0)-SUM($AE221:AI221)","v":0},{"$f":"ROUNDDOWN(P$203/$F221,0)-SUM($AE221:AJ221)","v":1},{"$f":"ROUNDDOWN(Q$203/$F221,0)-SUM($AE221:AK221)","v":0},{"$f":"ROUNDDOWN(R$203/$F221,0)-SUM($AE221:AL221)","v":0},{"$f":"ROUNDDOWN(S$203/$F221,0)-SUM($AE221:AM221)","v":1},{"$f":"ROUNDDOWN(T$203/$F221,0)-SUM($AE221:AN221)","v":0},{"$f":"ROUNDDOWN(U$203/$F221,0)-SUM($AE221:AO221)","v":1},{"$f":"ROUNDDOWN(V$203/$F221,0)-SUM($AE221:AP221)","v":0},{"$f":"ROUNDDOWN(W$203/$F221,0)-SUM($AE221:AQ221)","v":1},{"$f":"ROUNDDOWN(X$203/$F221,0)-SUM($AE221:AR221)","v":0},{"$f":"ROUNDDOWN(Y$203/$F221,0)-SUM($AE221:AS221)","v":1},{"$f":"ROUNDDOWN(Z$203/$F221,0)-SUM($AE221:AT221)","v":0},{"$f":"ROUNDDOWN(AA$203/$F221,0)-SUM($AE221:AU221)","v":0},{"$f":"ROUNDDOWN(AB$203/$F221,0)-SUM($AE221:AV221)","v":1},{"$f":"ROUNDDOWN(AC$203/$F221,0)-SUM($AE221:AW221)","v":0}]
[null,17,"EMBRAGUE","JGO.",1,60000,728.33333333333337,"Costo de mantenimiento mecánico",null,{"$f":"+AE222*$E222*$G222*(1+'Sup Generales'!C$10)","v":745.81333333333339},{"$f":"+AF222*$E222*$G222*(1+'Sup Generales'!D$10)","v":757.74634666666668},{"$f":"+AG222*$E222*$G222*(1+'Sup Generales'!E$10)","v":777.44775168000001},{"$f":"+AH222*$E222*$G222*(1+'Sup Generales'!F$10)","v":780.80632596725775},{"$f":"+AI222*$E222*$G222*(1+'Sup Generales'!G$10)","v":782.91450304736929},{"$f":"+AJ222*$E222*$G222*(1+'Sup Generales'!H$10)","v":788.1600302177867},{"$f":"+AK222*$E222*$G222*(1+'Sup Generales'!I$10)","v":803.45920160435173},{"$f":"+AL222*$E222*$G222*(1+'Sup Generales'!J$10)","v":817.40235726469359},{"$f":"+AM222*$E222*$G222*(1+'Sup Generales'!K$10)","v":829.30426242783074},{"$f":"+AN222*$E222*$G222*(1+'Sup Generales'!L$10)","v":840.40095478569219},{"$f":"+AO222*$E222*$G222*(1+'Sup Generales'!M$10)","v":1702.741947584781},{"$f":"+AP222*$E222*$G222*(1+'Sup Generales'!N$10)","v":861.10638402202665},{"$f":"+AQ222*$E222*$G222*(1+'Sup Generales'!O$10)","v":871.71896283413082},{"$f":"+AR222*$E222*$G222*(1+'Sup Generales'!P$10)","v":883.51105115799214},{"$f":"+AS222*$E222*$G222*(1+'Sup Generales'!Q$10)","v":896.2166658073171},{"$f":"+AT222*$E222*$G222*(1+'Sup Generales'!R$10)","v":908.54145339075524},{"$f":"+AU222*$E222*$G222*(1+'Sup Generales'!S$10)","v":920.6266735574917},{"$f":"+AV222*$E222*$G222*(1+'Sup Generales'!T$10)","v":932.72778085944606},{"$f":"+AW222*$E222*$G222*(1+'Sup Generales'!U$10)","v":944.96039966611238},{"$f":"+AX222*$E222*$G222*(1+'Sup Generales'!V$10)","v":957.36072059746436},null,1,{"$f":"ROUNDDOWN(K$203/$F222,0)-SUM($AE222:AE222)","v":1},{"$f":"ROUNDDOWN(L$203/$F222,0)-SUM($AE222:AF222)","v":1},{"$f":"ROUNDDOWN(M$203/$F222,0)-SUM($AE222:AG222)","v":1},{"$f":"ROUNDDOWN(N$203/$F222,0)-SUM($AE222:AH222)","v":1},{"$f":"ROUNDDOWN(O$203/$F222,0)-SUM($AE222:AI222)","v":1},{"$f":"ROUNDDOWN(P$203/$F222,0)-SUM($AE222:AJ222)","v":1},{"$f":"ROUNDDOWN(Q$203/$F222,0)-SUM($AE222:AK222)","v":1},{"$f":"ROUNDDOWN(R$203/$F222,0)-SUM($AE222:AL222)","v":1},{"$f":"ROUNDDOWN(S$203/$F222,0)-SUM($AE222:AM222)","v":1},{"$f":"ROUNDDOWN(T$203/$F222,0)-SUM($AE222:AN222)","v":2},{"$f":"ROUNDDOWN(U$203/$F222,0)-SUM($AE222:AO222)","v":1},{"$f":"ROUNDDOWN(V$203/$F222,0)-SUM($AE222:AP222)","v":1},{"$f":"ROUNDDOWN(W$203/$F222,0)-SUM($AE222:AQ222)","v":1},{"$f":"ROUNDDOWN(X$203/$F222,0)-SUM($AE222:AR222)","v":1},{"$f":"ROUNDDOWN(Y$203/$F222,0)-SUM($AE222:AS222)","v":1},{"$f":"ROUNDDOWN(Z$203/$F222,0)-SUM($AE222:AT222)","v":1},{"$f":"ROUNDDOWN(AA$203/$F222,0)-SUM($AE222:AU222)","v":1},{"$f":"ROUNDDOWN(AB$203/$F222,0)-SUM($AE222:AV222)","v":1},{"$f":"ROUNDDOWN(AC$203/$F222,0)-SUM($AE222:AW222)","v":1}]
[null,18,"BUSTER EMBRAGUE","JGO.",1,30000,175,"Costo de mantenimiento mecánico",null,{"$f":"+AE223*$E223*$G223*(1+'Sup Generales'!C$10)","v":358.40000000000003},{"$f":"+AF223*$E223*$G223*(1+'Sup Generales'!D$10)","v":364.13439999999997},{"$f":"+AG223*$E223*$G223*(1+'Sup Generales'!E$10)","v":373.60189439999999},{"$f":"+AH223*$E223*$G223*(1+'Sup Generales'!F$10)","v":375.21585458380804},{"$f":"+AI223*$E223*$G223*(1+'Sup Generales'!G$10)","v":376.22893739118433},{"$f":"+AJ223*$E223*$G223*(1+'Sup Generales'!H$10)","v":568.12450690755782},{"$f":"+AK223*$E223*$G223*(1+'Sup Generales'!I$10)","v":386.10167582817814},{"$f":"+AL223*$E223*$G223*(1+'Sup Generales'!J$10)","v":392.80204811346829},{"$f":"+AM223*$E223*$G223*(1+'Sup Generales'!K$10)","v":398.52149910719555},{"$f":"+AN223*$E223*$G223*(1+'Sup Generales'!L$10)","v":403.85400573225479},{"$f":"+AO223*$E223*$G223*(1+'Sup Generales'!M$10)","v":613.68845936980085},{"$f":"+AP223*$E223*$G223*(1+'Sup Generales'!N$10)","v":413.80398316847959},{"$f":"+AQ223*$E223*$G223*(1+'Sup Generales'!O$10)","v":418.9038494168592},{"$f":"+AR223*$E223*$G223*(1+'Sup Generales'!P$10)","v":424.57052801642641},{"$f":"+AS223*$E223*$G223*(1+'Sup Generales'!Q$10)","v":430.67620096003793},{"$f":"+AT223*$E223*$G223*(1+'Sup Generales'!R$10)","v":654.89830164322177},{"$f":"+AU223*$E223*$G223*(1+'Sup Generales'!S$10)","v":442.40641063403484},{"$f":"+AV223*$E223*$G223*(1+'Sup Generales'!T$10)","v":448.22158805602669},{"$f":"+AW223*$E223*$G223*(1+'Sup Generales'!U$10)","v":454.09996322627819},{"$f":"+AX223*$E223*$G223*(1+'Sup Generales'!V$10)","v":460.05892751823228},null,2,{"$f":"ROUNDDOWN(K$203/$F223,0)-SUM($AE223:AE223)","v":2},{"$f":"ROUNDDOWN(L$203/$F223,0)-SUM($AE223:AF223)","v":2},{"$f":"ROUNDDOWN(M$203/$F223,0)-SUM($AE223:AG223)","v":2},{"$f":"ROUNDDOWN(N$203/$F223,0)-SUM($AE223:AH223)","v":2},{"$f":"ROUNDDOWN(O$203/$F223,0)-SUM($AE223:AI223)","v":3},{"$f":"ROUNDDOWN(P$203/$F223,0)-SUM($AE223:AJ223)","v":2},{"$f":"ROUNDDOWN(Q$203/$F223,0)-SUM($AE223:AK223)","v":2},{"$f":"ROUNDDOWN(R$203/$F223,0)-SUM($AE223:AL223)","v":2},{"$f":"ROUNDDOWN(S$203/$F223,0)-SUM($AE223:AM223)","v":2},{"$f":"ROUNDDOWN(T$203/$F223,0)-SUM($AE223:AN223)","v":3},{"$f":"ROUNDDOWN(U$203/$F223,0)-SUM($AE223:AO223)","v":2},{"$f":"ROUNDDOWN(V$203/$F223,0)-SUM($AE223:AP223)","v":2},{"$f":"ROUNDDOWN(W$203/$F223,0)-SUM($AE223:AQ223)","v":2},{"$f":"ROUNDDOWN(X$203/$F223,0)-SUM($AE223:AR223)","v":2},{"$f":"ROUNDDOWN(Y$203/$F223,0)-SUM($AE223:AS223)","v":3},{"$f":"ROUNDDOWN(Z$203/$F223,0)-SUM($AE223:AT223)","v":2},{"$f":"ROUNDDOWN(AA$203/$F223,0)-SUM($AE223:AU223)","v":2},{"$f":"ROUNDDOWN(AB$203/$F223,0)-SUM($AE223:AV223)","v":2},{"$f":"ROUNDDOWN(AC$203/$F223,0)-SUM($AE223:AW223)","v":2}]
[null,19,"SOPORTE DE CARDAN Y CRUCETAS","JGO.",1,30000,176.506,"Costo de mantenimiento mecánico",null,{"$f":"+AE224*$E224*$G224*(1+'Sup Generales'!C$10)","v":361.48428799999999},{"$f":"+AF224*$E224*$G224*(1+'Sup Generales'!D$10)","v":367.26803660799999},{"$f":"+AG224*$E224*$G224*(1+'Sup Generales'!E$10)","v":376.81700555980802},{"$f":"+AH224*$E224*$G224*(1+'Sup Generales'!F$10)","v":378.44485502382645},{"$f":"+AI224*$E224*$G224*(1+'Sup Generales'!G$10)","v":379.46665613239077},{"$f":"+AJ224*$E224*$G224*(1+'Sup Generales'!H$10)","v":573.01362409271667},{"$f":"+AK224*$E224*$G224*(1+'Sup Generales'!I$10)","v":389.42435653559096},{"$f":"+AL224*$E224*$G224*(1+'Sup Generales'!J$10)","v":396.18239031037621},{"$f":"+AM224*$E224*$G224*(1+'Sup Generales'!K$10)","v":401.9510612652266},{"$f":"+AN224*$E224*$G224*(1+'Sup Generales'!L$10)","v":407.32945791872783},{"$f":"+AO224*$E224*$G224*(1+'Sup Generales'!M$10)","v":618.96968691157758},{"$f":"+AP224*$E224*$G224*(1+'Sup Generales'!N$10)","v":417.36506201791804},{"$f":"+AQ224*$E224*$G224*(1+'Sup Generales'!O$10)","v":422.50881625812656},{"$f":"+AR224*$E224*$G224*(1+'Sup Generales'!P$10)","v":428.22426067467063},{"$f":"+AS224*$E224*$G224*(1+'Sup Generales'!Q$10)","v":434.38247729515689},{"$f":"+AT224*$E224*$G224*(1+'Sup Generales'!R$10)","v":660.5341693133629},{"$f":"+AU224*$E224*$G224*(1+'Sup Generales'!S$10)","v":446.21363380211977},{"$f":"+AV224*$E224*$G224*(1+'Sup Generales'!T$10)","v":452.078854979526},{"$f":"+AW224*$E224*$G224*(1+'Sup Generales'!U$10)","v":458.00781776695692},{"$f":"+AX224*$E224*$G224*(1+'Sup Generales'!V$10)","v":464.01806320304632},null,2,{"$f":"ROUNDDOWN(K$203/$F224,0)-SUM($AE224:AE224)","v":2},{"$f":"ROUNDDOWN(L$203/$F224,0)-SUM($AE224:AF224)","v":2},{"$f":"ROUNDDOWN(M$203/$F224,0)-SUM($AE224:AG224)","v":2},{"$f":"ROUNDDOWN(N$203/$F224,0)-SUM($AE224:AH224)","v":2},{"$f":"ROUNDDOWN(O$203/$F224,0)-SUM($AE224:AI224)","v":3},{"$f":"ROUNDDOWN(P$203/$F224,0)-SUM($AE224:AJ224)","v":2},{"$f":"ROUNDDOWN(Q$203/$F224,0)-SUM($AE224:AK224)","v":2},{"$f":"ROUNDDOWN(R$203/$F224,0)-SUM($AE224:AL224)","v":2},{"$f":"ROUNDDOWN(S$203/$F224,0)-SUM($AE224:AM224)","v":2},{"$f":"ROUNDDOWN(T$203/$F224,0)-SUM($AE224:AN224)","v":3},{"$f":"ROUNDDOWN(U$203/$F224,0)-SUM($AE224:AO224)","v":2},{"$f":"ROUNDDOWN(V$203/$F224,0)-SUM($AE224:AP224)","v":2},{"$f":"ROUNDDOWN(W$203/$F224,0)-SUM($AE224:AQ224)","v":2},{"$f":"ROUNDDOWN(X$203/$F224,0)-SUM($AE224:AR224)","v":2},{"$f":"ROUNDDOWN(Y$203/$F224,0)-SUM($AE224:AS224)","v":3},{"$f":"ROUNDDOWN(Z$203/$F224,0)-SUM($AE224:AT224)","v":2},{"$f":"ROUNDDOWN(AA$203/$F224,0)-SUM($AE224:AU224)","v":2},{"$f":"ROUNDDOWN(AB$203/$F224,0)-SUM($AE224:AV224)","v":2},{"$f":"ROUNDDOWN(AC$203/$F224,0)-SUM($AE224:AW224)","v":2}]
[null,20,"MANTENIMIENTO SISTEMA NEUMÁTICO","UND",1,30000,137.75,"Costo de mantenimiento mecánico",null,{"$f":"+AE225*$E225*$G225*(1+'Sup Generales'!C$10)","v":282.11200000000002},{"$f":"+AF225*$E225*$G225*(1+'Sup Generales'!D$10)","v":286.62579199999999},{"$f":"+AG225*$E225*$G225*(1+'Sup Generales'!E$10)","v":294.07806259199998},{"$f":"+AH225*$E225*$G225*(1+'Sup Generales'!F$10)","v":295.34847982239751},{"$f":"+AI225*$E225*$G225*(1+'Sup Generales'!G$10)","v":296.14592071791793},{"$f":"+AJ225*$E225*$G225*(1+'Sup Generales'!H$10)","v":447.19514758009194},{"$f":"+AK225*$E225*$G225*(1+'Sup Generales'!I$10)","v":303.91717625903738},{"$f":"+AL225*$E225*$G225*(1+'Sup Generales'!J$10)","v":309.1913264436015},{"$f":"+AM225*$E225*$G225*(1+'Sup Generales'!K$10)","v":313.6933514400925},{"$f":"+AN225*$E225*$G225*(1+'Sup Generales'!L$10)","v":317.89079594067488},{"$f":"+AO225*$E225*$G225*(1+'Sup Generales'!M$10)","v":483.06048730394326},{"$f":"+AP225*$E225*$G225*(1+'Sup Generales'!N$10)","v":325.72284960833179},{"$f":"+AQ225*$E225*$G225*(1+'Sup Generales'!O$10)","v":329.73717289812771},{"$f":"+AR225*$E225*$G225*(1+'Sup Generales'!P$10)","v":334.19765848150132},{"$f":"+AS225*$E225*$G225*(1+'Sup Generales'!Q$10)","v":339.00369532711557},{"$f":"+AT225*$E225*$G225*(1+'Sup Generales'!R$10)","v":515.49852029345027},{"$f":"+AU225*$E225*$G225*(1+'Sup Generales'!S$10)","v":348.23704608479028},{"$f":"+AV225*$E225*$G225*(1+'Sup Generales'!T$10)","v":352.81442145552955},{"$f":"+AW225*$E225*$G225*(1+'Sup Generales'!U$10)","v":357.44154248239897},{"$f":"+AX225*$E225*$G225*(1+'Sup Generales'!V$10)","v":362.13209866078},null,2,{"$f":"ROUNDDOWN(K$203/$F225,0)-SUM($AE225:AE225)","v":2},{"$f":"ROUNDDOWN(L$203/$F225,0)-SUM($AE225:AF225)","v":2},{"$f":"ROUNDDOWN(M$203/$F225,0)-SUM($AE225:AG225)","v":2},{"$f":"ROUNDDOWN(N$203/$F225,0)-SUM($AE225:AH225)","v":2},{"$f":"ROUNDDOWN(O$203/$F225,0)-SUM($AE225:AI225)","v":3},{"$f":"ROUNDDOWN(P$203/$F225,0)-SUM($AE225:AJ225)","v":2},{"$f":"ROUNDDOWN(Q$203/$F225,0)-SUM($AE225:AK225)","v":2},{"$f":"ROUNDDOWN(R$203/$F225,0)-SUM($AE225:AL225)","v":2},{"$f":"ROUNDDOWN(S$203/$F225,0)-SUM($AE225:AM225)","v":2},{"$f":"ROUNDDOWN(T$203/$F225,0)-SUM($AE225:AN225)","v":3},{"$f":"ROUNDDOWN(U$203/$F225,0)-SUM($AE225:AO225)","v":2},{"$f":"ROUNDDOWN(V$203/$F225,0)-SUM($AE225:AP225)","v":2},{"$f":"ROUNDDOWN(W$203/$F225,0)-SUM($AE225:AQ225)","v":2},{"$f":"ROUNDDOWN(X$203/$F225,0)-SUM($AE225:AR225)","v":2},{"$f":"ROUNDDOWN(Y$203/$F225,0)-SUM($AE225:AS225)","v":3},{"$f":"ROUNDDOWN(Z$203/$F225,0)-SUM($AE225:AT225)","v":2},{"$f":"ROUNDDOWN(AA$203/$F225,0)-SUM($AE225:AU225)","v":2},{"$f":"ROUNDDOWN(AB$203/$F225,0)-SUM($AE225:AV225)","v":2},{"$f":"ROUNDDOWN(AC$203/$F225,0)-SUM($AE225:AW225)","v":2}]
[null,21,"ZAPATAS (JUEGO FORROS 2) X 4","JGO.",8,20000,74.131666666666675,"Costo de mantenimiento mecánico",null,{"$f":"+AE226*$E226*$G226*(1+'Sup Generales'!C$10)","v":1821.8598400000003},{"$f":"+AF226*$E226*$G226*(1+'Sup Generales'!D$10)","v":1851.0095974400003},{"$f":"+AG226*$E226*$G226*(1+'Sup Generales'!E$10)","v":1899.1358469734403},{"$f":"+AH226*$E226*$G226*(1+'Sup Generales'!F$10)","v":2543.1201517764875},{"$f":"+AI226*$E226*$G226*(1+'Sup Generales'!G$10)","v":1912.4899321397131},{"$f":"+AJ226*$E226*$G226*(1+'Sup Generales'!H$10)","v":1925.3036146850491},{"$f":"+AK226*$E226*$G226*(1+'Sup Generales'!I$10)","v":2616.9015526341391},{"$f":"+AL226*$E226*$G226*(1+'Sup Generales'!J$10)","v":1996.7362626330241},{"$f":"+AM226*$E226*$G226*(1+'Sup Generales'!K$10)","v":2025.8100295758804},{"$f":"+AN226*$E226*$G226*(1+'Sup Generales'!L$10)","v":2052.9168366817103},{"$f":"+AO226*$E226*$G226*(1+'Sup Generales'!M$10)","v":2772.9522777711113},{"$f":"+AP226*$E226*$G226*(1+'Sup Generales'!N$10)","v":2103.4956991258064},{"$f":"+AQ226*$E226*$G226*(1+'Sup Generales'!O$10)","v":2129.4199220814266},{"$f":"+AR226*$E226*$G226*(1+'Sup Generales'!P$10)","v":2877.6339071455436},{"$f":"+AS226*$E226*$G226*(1+'Sup Generales'!Q$10)","v":2189.2624848573178},{"$f":"+AT226*$E226*$G226*(1+'Sup Generales'!R$10)","v":2219.3692616220087},{"$f":"+AU226*$E226*$G226*(1+'Sup Generales'!S$10)","v":2248.8908272675703},{"$f":"+AV226*$E226*$G226*(1+'Sup Generales'!T$10)","v":3037.9349356409925},{"$f":"+AW226*$E226*$G226*(1+'Sup Generales'!U$10)","v":2308.3328302104724},{"$f":"+AX226*$E226*$G226*(1+'Sup Generales'!V$10)","v":2338.6241185238237},null,3,{"$f":"ROUNDDOWN(K$203/$F226,0)-SUM($AE226:AE226)","v":3},{"$f":"ROUNDDOWN(L$203/$F226,0)-SUM($AE226:AF226)","v":3},{"$f":"ROUNDDOWN(M$203/$F226,0)-SUM($AE226:AG226)","v":4},{"$f":"ROUNDDOWN(N$203/$F226,0)-SUM($AE226:AH226)","v":3},{"$f":"ROUNDDOWN(O$203/$F226,0)-SUM($AE226:AI226)","v":3},{"$f":"ROUNDDOWN(P$203/$F226,0)-SUM($AE226:AJ226)","v":4},{"$f":"ROUNDDOWN(Q$203/$F226,0)-SUM($AE226:AK226)","v":3},{"$f":"ROUNDDOWN(R$203/$F226,0)-SUM($AE226:AL226)","v":3},{"$f":"ROUNDDOWN(S$203/$F226,0)-SUM($AE226:AM226)","v":3},{"$f":"ROUNDDOWN(T$203/$F226,0)-SUM($AE226:AN226)","v":4},{"$f":"ROUNDDOWN(U$203/$F226,0)-SUM($AE226:AO226)","v":3},{"$f":"ROUNDDOWN(V$203/$F226,0)-SUM($AE226:AP226)","v":3},{"$f":"ROUNDDOWN(W$203/$F226,0)-SUM($AE226:AQ226)","v":4},{"$f":"ROUNDDOWN(X$203/$F226,0)-SUM($AE226:AR226)","v":3},{"$f":"ROUNDDOWN(Y$203/$F226,0)-SUM($AE226:AS226)","v":3},{"$f":"ROUNDDOWN(Z$203/$F226,0)-SUM($AE226:AT226)","v":3},{"$f":"ROUNDDOWN(AA$203/$F226,0)-SUM($AE226:AU226)","v":4},{"$f":"ROUNDDOWN(AB$203/$F226,0)-SUM($AE226:AV226)","v":3},{"$f":"ROUNDDOWN(AC$203/$F226,0)-SUM($AE226:AW226)","v":3}]
[null,22,"CAMBIO TAMBORES (JUEGO)","UND",4,180000,151.96125000000001,"Costo de mantenimiento mecánico",null,{"$f":"+AE227*$E227*$G227*(1+'Sup Generales'!C$10)","v":0},{"$f":"+AF227*$E227*$G227*(1+'Sup Generales'!D$10)","v":0},{"$f":"+AG227*$E227*$G227*(1+'Sup Generales'!E$10)","v":648.83441000447999},{"$f":"+AH227*$E227*$G227*(1+'Sup Generales'!F$10)","v":0},{"$f":"+AI227*$E227*$G227*(1+'Sup Generales'!G$10)","v":0},{"$f":"+AJ227*$E227*$G227*(1+'Sup Generales'!H$10)","v":657.77455409757056},{"$f":"+AK227*$E227*$G227*(1+'Sup Generales'!I$10)","v":0},{"$f":"+AL227*$E227*$G227*(1+'Sup Generales'!J$10)","v":0},{"$f":"+AM227*$E227*$G227*(1+'Sup Generales'!K$10)","v":692.11228749946656},{"$f":"+AN227*$E227*$G227*(1+'Sup Generales'!L$10)","v":0},{"$f":"+AO227*$E227*$G227*(1+'Sup Generales'!M$10)","v":710.52849825835551},{"$f":"+AP227*$E227*$G227*(1+'Sup Generales'!N$10)","v":0},{"$f":"+AQ227*$E227*$G227*(1+'Sup Generales'!O$10)","v":0},{"$f":"+AR227*$E227*$G227*(1+'Sup Generales'!P$10)","v":737.35163600612771},{"$f":"+AS227*$E227*$G227*(1+'Sup Generales'!Q$10)","v":0},{"$f":"+AT227*$E227*$G227*(1+'Sup Generales'!R$10)","v":0},{"$f":"+AU227*$E227*$G227*(1+'Sup Generales'!S$10)","v":768.32721334812834},{"$f":"+AV227*$E227*$G227*(1+'Sup Generales'!T$10)","v":0},{"$f":"+AW227*$E227*$G227*(1+'Sup Generales'!U$10)","v":0},{"$f":"+AX227*$E227*$G227*(1+'Sup Generales'!V$10)","v":798.98433942091401},null,0,{"$f":"ROUNDDOWN(K$203/$F227,0)-SUM($AE227:AE227)","v":0},{"$f":"ROUNDDOWN(L$203/$F227,0)-SUM($AE227:AF227)","v":1},{"$f":"ROUNDDOWN(M$203/$F227,0)-SUM($AE227:AG227)","v":0},{"$f":"ROUNDDOWN(N$203/$F227,0)-SUM($AE227:AH227)","v":0},{"$f":"ROUNDDOWN(O$203/$F227,0)-SUM($AE227:AI227)","v":1},{"$f":"ROUNDDOWN(P$203/$F227,0)-SUM($AE227:AJ227)","v":0},{"$f":"ROUNDDOWN(Q$203/$F227,0)-SUM($AE227:AK227)","v":0},{"$f":"ROUNDDOWN(R$203/$F227,0)-SUM($AE227:AL227)","v":1},{"$f":"ROUNDDOWN(S$203/$F227,0)-SUM($AE227:AM227)","v":0},{"$f":"ROUNDDOWN(T$203/$F227,0)-SUM($AE227:AN227)","v":1},{"$f":"ROUNDDOWN(U$203/$F227,0)-SUM($AE227:AO227)","v":0},{"$f":"ROUNDDOWN(V$203/$F227,0)-SUM($AE227:AP227)","v":0},{"$f":"ROUNDDOWN(W$203/$F227,0)-SUM($AE227:AQ227)","v":1},{"$f":"ROUNDDOWN(X$203/$F227,0)-SUM($AE227:AR227)","v":0},{"$f":"ROUNDDOWN(Y$203/$F227,0)-SUM($AE227:AS227)","v":0},{"$f":"ROUNDDOWN(Z$203/$F227,0)-SUM($AE227:AT227)","v":1},{"$f":"ROUNDDOWN(AA$203/$F227,0)-SUM($AE227:AU227)","v":0},{"$f":"ROUNDDOWN(AB$203/$F227,0)-SUM($AE227:AV227)","v":0},{"$f":"ROUNDDOWN(AC$203/$F227,0)-SUM($AE227:AW227)","v":1}]
[null,23,"RACHES DE FRENO","JGO.",4,180000,90.822000000000003,"Costo de mantenimiento mecánico",null,{"$f":"+AE228*$E228*$G228*(1+'Sup Generales'!C$10)","v":0},{"$f":"+AF228*$E228*$G228*(1+'Sup Generales'!D$10)","v":0},{"$f":"+AG228*$E228*$G228*(1+'Sup Generales'!E$10)","v":387.78595717939203},{"$f":"+AH228*$E228*$G228*(1+'Sup Generales'!F$10)","v":0},{"$f":"+AI228*$E228*$G228*(1+'Sup Generales'!G$10)","v":0},{"$f":"+AJ228*$E228*$G228*(1+'Sup Generales'!H$10)","v":393.12917307701503},{"$f":"+AK228*$E228*$G228*(1+'Sup Generales'!I$10)","v":0},{"$f":"+AL228*$E228*$G228*(1+'Sup Generales'!J$10)","v":0},{"$f":"+AM228*$E228*$G228*(1+'Sup Generales'!K$10)","v":413.65165247901388},{"$f":"+AN228*$E228*$G228*(1+'Sup Generales'!L$10)","v":0},{"$f":"+AO228*$E228*$G228*(1+'Sup Generales'!M$10)","v":424.65838671911661},{"$f":"+AP228*$E228*$G228*(1+'Sup Generales'!N$10)","v":0},{"$f":"+AQ228*$E228*$G228*(1+'Sup Generales'!O$10)","v":0},{"$f":"+AR228*$E228*$G228*(1+'Sup Generales'!P$10)","v":440.68965137723291},{"$f":"+AS228*$E228*$G228*(1+'Sup Generales'!Q$10)","v":0},{"$f":"+AT228*$E228*$G228*(1+'Sup Generales'!R$10)","v":0},{"$f":"+AU228*$E228*$G228*(1+'Sup Generales'!S$10)","v":459.20268601833504},{"$f":"+AV228*$E228*$G228*(1+'Sup Generales'!T$10)","v":0},{"$f":"+AW228*$E228*$G228*(1+'Sup Generales'!U$10)","v":0},{"$f":"+AX228*$E228*$G228*(1+'Sup Generales'!V$10)","v":477.52539331498167},null,0,{"$f":"ROUNDDOWN(K$203/$F228,0)-SUM($AE228:AE228)","v":0},{"$f":"ROUNDDOWN(L$203/$F228,0)-SUM($AE228:AF228)","v":1},{"$f":"ROUNDDOWN(M$203/$F228,0)-SUM($AE228:AG228)","v":0},{"$f":"ROUNDDOWN(N$203/$F228,0)-SUM($AE228:AH228)","v":0},{"$f":"ROUNDDOWN(O$203/$F228,0)-SUM($AE228:AI228)","v":1},{"$f":"ROUNDDOWN(P$203/$F228,0)-SUM($AE228:AJ228)","v":0},{"$f":"ROUNDDOWN(Q$203/$F228,0)-SUM($AE228:AK228)","v":0},{"$f":"ROUNDDOWN(R$203/$F228,0)-SUM($AE228:AL228)","v":1},{"$f":"ROUNDDOWN(S$203/$F228,0)-SUM($AE228:AM228)","v":0},{"$f":"ROUNDDOWN(T$203/$F228,0)-SUM($AE228:AN228)","v":1},{"$f":"ROUNDDOWN(U$203/$F228,0)-SUM($AE228:AO228)","v":0},{"$f":"ROUNDDOWN(V$203/$F228,0)-SUM($AE228:AP228)","v":0},{"$f":"ROUNDDOWN(W$203/$F228,0)-SUM($AE228:AQ228)","v":1},{"$f":"ROUNDDOWN(X$203/$F228,0)-SUM($AE228:AR228)","v":0},{"$f":"ROUNDDOWN(Y$203/$F228,0)-SUM($AE228:AS228)","v":0},{"$f":"ROUNDDOWN(Z$203/$F228,0)-SUM($AE228:AT228)","v":1},{"$f":"ROUNDDOWN(AA$203/$F228,0)-SUM($AE228:AU228)","v":0},{"$f":"ROUNDDOWN(AB$203/$F228,0)-SUM($AE228:AV228)","v":0},{"$f":"ROUNDDOWN(AC$203/$F228,0)-SUM($AE228:AW228)","v":1}]
[null,24,"BATERÍAS","UND",2,60000,195.05857142857141,"Costo de mantenimiento eléctrico ",null,{"$f":"+AE229*$E229*$G229*(1+'Sup Generales'!C$10)","v":399.47995428571426},{"$f":"+AF229*$E229*$G229*(1+'Sup Generales'!D$10)","v":405.87163355428567},{"$f":"+AG229*$E229*$G229*(1+'Sup Generales'!E$10)","v":416.42429602669711},{"$f":"+AH229*$E229*$G229*(1+'Sup Generales'!F$10)","v":418.22324898553251},{"$f":"+AI229*$E229*$G229*(1+'Sup Generales'!G$10)","v":419.3524517577934},{"$f":"+AJ229*$E229*$G229*(1+'Sup Generales'!H$10)","v":422.16211318457061},{"$f":"+AK229*$E229*$G229*(1+'Sup Generales'!I$10)","v":430.35680750412467},{"$f":"+AL229*$E229*$G229*(1+'Sup Generales'!J$10)","v":437.82517919560058},{"$f":"+AM229*$E229*$G229*(1+'Sup Generales'!K$10)","v":444.20019599669865},{"$f":"+AN229*$E229*$G229*(1+'Sup Generales'!L$10)","v":450.14391670765548},{"$f":"+AO229*$E229*$G229*(1+'Sup Generales'!M$10)","v":912.03957475713707},{"$f":"+AP229*$E229*$G229*(1+'Sup Generales'!N$10)","v":461.23436461883563},{"$f":"+AQ229*$E229*$G229*(1+'Sup Generales'!O$10)","v":466.91877961818255},{"$f":"+AR229*$E229*$G229*(1+'Sup Generales'!P$10)","v":473.23497523176218},{"$f":"+AS229*$E229*$G229*(1+'Sup Generales'!Q$10)","v":480.04048290028192},{"$f":"+AT229*$E229*$G229*(1+'Sup Generales'!R$10)","v":486.64200818866465},{"$f":"+AU229*$E229*$G229*(1+'Sup Generales'!S$10)","v":493.11521399495308},{"$f":"+AV229*$E229*$G229*(1+'Sup Generales'!T$10)","v":499.59692942659541},{"$f":"+AW229*$E229*$G229*(1+'Sup Generales'!U$10)","v":506.14908635819796},{"$f":"+AX229*$E229*$G229*(1+'Sup Generales'!V$10)","v":512.79106956952614},null,1,{"$f":"ROUNDDOWN(K$203/$F229,0)-SUM($AE229:AE229)","v":1},{"$f":"ROUNDDOWN(L$203/$F229,0)-SUM($AE229:AF229)","v":1},{"$f":"ROUNDDOWN(M$203/$F229,0)-SUM($AE229:AG229)","v":1},{"$f":"ROUNDDOWN(N$203/$F229,0)-SUM($AE229:AH229)","v":1},{"$f":"ROUNDDOWN(O$203/$F229,0)-SUM($AE229:AI229)","v":1},{"$f":"ROUNDDOWN(P$203/$F229,0)-SUM($AE229:AJ229)","v":1},{"$f":"ROUNDDOWN(Q$203/$F229,0)-SUM($AE229:AK229)","v":1},{"$f":"ROUNDDOWN(R$203/$F229,0)-SUM($AE229:AL229)","v":1},{"$f":"ROUNDDOWN(S$203/$F229,0)-SUM($AE229:AM229)","v":1},{"$f":"ROUNDDOWN(T$203/$F229,0)-SUM($AE229:AN229)","v":2},{"$f":"ROUNDDOWN(U$203/$F229,0)-SUM($AE229:AO229)","v":1},{"$f":"ROUNDDOWN(V$203/$F229,0)-SUM($AE229:AP229)","v":1},{"$f":"ROUNDDOWN(W$203/$F229,0)-SUM($AE229:AQ229)","v":1},{"$f":"ROUNDDOWN(X$203/$F229,0)-SUM($AE229:AR229)","v":1},{"$f":"ROUNDDOWN(Y$203/$F229,0)-SUM($AE229:AS229)","v":1},{"$f":"ROUNDDOWN(Z$203/$F229,0)-SUM($AE229:AT229)","v":1},{"$f":"ROUNDDOWN(AA$203/$F229,0)-SUM($AE229:AU229)","v":1},{"$f":"ROUNDDOWN(AB$203/$F229,0)-SUM($AE229:AV229)","v":1},{"$f":"ROUNDDOWN(AC$203/$F229,0)-SUM($AE229:AW229)","v":1}]
[null,25,"SISTEMA ELÉCTRICO","UND",1,5000,153.125,"Costo de mantenimiento eléctrico ",null,{"$f":"+AE230*$E230*$G230*(1+'Sup Generales'!C$10)","v":2038.4},{"$f":"+AF230*$E230*$G230*(1+'Sup Generales'!D$10)","v":2071.0144},{"$f":"+AG230*$E230*$G230*(1+'Sup Generales'!E$10)","v":2124.8607744000001},{"$f":"+AH230*$E230*$G230*(1+'Sup Generales'!F$10)","v":2134.0401729454084},{"$f":"+AI230*$E230*$G230*(1+'Sup Generales'!G$10)","v":2139.8020814123611},{"$f":"+AJ230*$E230*$G230*(1+'Sup Generales'!H$10)","v":2154.1387553578234},{"$f":"+AK230*$E230*$G230*(1+'Sup Generales'!I$10)","v":2364.8727644475912},{"$f":"+AL230*$E230*$G230*(1+'Sup Generales'!J$10)","v":2234.0616486453509},{"$f":"+AM230*$E230*$G230*(1+'Sup Generales'!K$10)","v":2266.5910261721747},{"$f":"+AN230*$E230*$G230*(1+'Sup Generales'!L$10)","v":2296.9196576021991},{"$f":"+AO230*$E230*$G230*(1+'Sup Generales'!M$10)","v":2326.9020751104949},{"$f":"+AP230*$E230*$G230*(1+'Sup Generales'!N$10)","v":2353.5101542707275},{"$f":"+AQ230*$E230*$G230*(1+'Sup Generales'!O$10)","v":2565.7860776782627},{"$f":"+AR230*$E230*$G230*(1+'Sup Generales'!P$10)","v":2414.7448780934251},{"$f":"+AS230*$E230*$G230*(1+'Sup Generales'!Q$10)","v":2449.4708929602157},{"$f":"+AT230*$E230*$G230*(1+'Sup Generales'!R$10)","v":2483.1560603972157},{"$f":"+AU230*$E230*$G230*(1+'Sup Generales'!S$10)","v":2516.1864604810735},{"$f":"+AV230*$E230*$G230*(1+'Sup Generales'!T$10)","v":2549.2602820686516},{"$f":"+AW230*$E230*$G230*(1+'Sup Generales'!U$10)","v":2781.3622747609543},{"$f":"+AX230*$E230*$G230*(1+'Sup Generales'!V$10)","v":2616.5851502599462},null,13,{"$f":"ROUNDDOWN(K$203/$F230,0)-SUM($AE230:AE230)","v":13},{"$f":"ROUNDDOWN(L$203/$F230,0)-SUM($AE230:AF230)","v":13},{"$f":"ROUNDDOWN(M$203/$F230,0)-SUM($AE230:AG230)","v":13},{"$f":"ROUNDDOWN(N$203/$F230,0)-SUM($AE230:AH230)","v":13},{"$f":"ROUNDDOWN(O$203/$F230,0)-SUM($AE230:AI230)","v":13},{"$f":"ROUNDDOWN(P$203/$F230,0)-SUM($AE230:AJ230)","v":14},{"$f":"ROUNDDOWN(Q$203/$F230,0)-SUM($AE230:AK230)","v":13},{"$f":"ROUNDDOWN(R$203/$F230,0)-SUM($AE230:AL230)","v":13},{"$f":"ROUNDDOWN(S$203/$F230,0)-SUM($AE230:AM230)","v":13},{"$f":"ROUNDDOWN(T$203/$F230,0)-SUM($AE230:AN230)","v":13},{"$f":"ROUNDDOWN(U$203/$F230,0)-SUM($AE230:AO230)","v":13},{"$f":"ROUNDDOWN(V$203/$F230,0)-SUM($AE230:AP230)","v":14},{"$f":"ROUNDDOWN(W$203/$F230,0)-SUM($AE230:AQ230)","v":13},{"$f":"ROUNDDOWN(X$203/$F230,0)-SUM($AE230:AR230)","v":13},{"$f":"ROUNDDOWN(Y$203/$F230,0)-SUM($AE230:AS230)","v":13},{"$f":"ROUNDDOWN(Z$203/$F230,0)-SUM($AE230:AT230)","v":13},{"$f":"ROUNDDOWN(AA$203/$F230,0)-SUM($AE230:AU230)","v":13},{"$f":"ROUNDDOWN(AB$203/$F230,0)-SUM($AE230:AV230)","v":14},{"$f":"ROUNDDOWN(AC$203/$F230,0)-SUM($AE230:AW230)","v":13}]
[null,26,"AMORTIGUADORES","UND",8,60000,96.795000000000002,"Costo de mantenimiento mecánico",null,{"$f":"+AE231*$E231*$G231*(1+'Sup Generales'!C$10)","v":792.94464000000005},{"$f":"+AF231*$E231*$G231*(1+'Sup Generales'!D$10)","v":805.63175423999996},{"$f":"+AG231*$E231*$G231*(1+'Sup Generales'!E$10)","v":826.57817985023996},{"$f":"+AH231*$E231*$G231*(1+'Sup Generales'!F$10)","v":830.14899758719321},{"$f":"+AI231*$E231*$G231*(1+'Sup Generales'!G$10)","v":832.39039988067861},{"$f":"+AJ231*$E231*$G231*(1+'Sup Generales'!H$10)","v":837.9674155598791},{"$f":"+AK231*$E231*$G231*(1+'Sup Generales'!I$10)","v":854.23341055516585},{"$f":"+AL231*$E231*$G231*(1+'Sup Generales'!J$10)","v":869.05769707755803},{"$f":"+AM231*$E231*$G231*(1+'Sup Generales'!K$10)","v":881.71173728185124},{"$f":"+AN231*$E231*$G231*(1+'Sup Generales'!L$10)","v":893.50967965379664},{"$f":"+AO231*$E231*$G231*(1+'Sup Generales'!M$10)","v":1810.3458872289486},{"$f":"+AP231*$E231*$G231*(1+'Sup Generales'!N$10)","v":915.5235783038396},{"$f":"+AQ231*$E231*$G231*(1+'Sup Generales'!O$10)","v":926.80681381268312},{"$f":"+AR231*$E231*$G231*(1+'Sup Generales'!P$10)","v":939.3440973565713},{"$f":"+AS231*$E231*$G231*(1+'Sup Generales'!Q$10)","v":952.85263707261424},{"$f":"+AT231*$E231*$G231*(1+'Sup Generales'!R$10)","v":965.95628354370513},{"$f":"+AU231*$E231*$G231*(1+'Sup Generales'!S$10)","v":978.80522325306072},{"$f":"+AV231*$E231*$G231*(1+'Sup Generales'!T$10)","v":991.67105407732811},{"$f":"+AW231*$E231*$G231*(1+'Sup Generales'!U$10)","v":1004.6767072111452},{"$f":"+AX231*$E231*$G231*(1+'Sup Generales'!V$10)","v":1017.8606603229096},null,1,{"$f":"ROUNDDOWN(K$203/$F231,0)-SUM($AE231:AE231)","v":1},{"$f":"ROUNDDOWN(L$203/$F231,0)-SUM($AE231:AF231)","v":1},{"$f":"ROUNDDOWN(M$203/$F231,0)-SUM($AE231:AG231)","v":1},{"$f":"ROUNDDOWN(N$203/$F231,0)-SUM($AE231:AH231)","v":1},{"$f":"ROUNDDOWN(O$203/$F231,0)-SUM($AE231:AI231)","v":1},{"$f":"ROUNDDOWN(P$203/$F231,0)-SUM($AE231:AJ231)","v":1},{"$f":"ROUNDDOWN(Q$203/$F231,0)-SUM($AE231:AK231)","v":1},{"$f":"ROUNDDOWN(R$203/$F231,0)-SUM($AE231:AL231)","v":1},{"$f":"ROUNDDOWN(S$203/$F231,0)-SUM($AE231:AM231)","v":1},{"$f":"ROUNDDOWN(T$203/$F231,0)-SUM($AE231:AN231)","v":2},{"$f":"ROUNDDOWN(U$203/$F231,0)-SUM($AE231:AO231)","v":1},{"$f":"ROUNDDOWN(V$203/$F231,0)-SUM($AE231:AP231)","v":1},{"$f":"ROUNDDOWN(W$203/$F231,0)-SUM($AE231:AQ231)","v":1},{"$f":"ROUNDDOWN(X$203/$F231,0)-SUM($AE231:AR231)","v":1},{"$f":"ROUNDDOWN(Y$203/$F231,0)-SUM($AE231:AS231)","v":1},{"$f":"ROUNDDOWN(Z$203/$F231,0)-SUM($AE231:AT231)","v":1},{"$f":"ROUNDDOWN(AA$203/$F231,0)-SUM($AE231:AU231)","v":1},{"$f":"ROUNDDOWN(AB$203/$F231,0)-SUM($AE231:AV231)","v":1},{"$f":"ROUNDDOWN(AC$203/$F231,0)-SUM($AE231:AW231)","v":1}]
[null,27,"ROTULAS DE DIRECCIÓN","JGO.",4,60000,49.847499999999997,"Costo de mantenimiento mecánico",null,{"$f":"+AE232*$E232*$G232*(1+'Sup Generales'!C$10)","v":204.17535999999998},{"$f":"+AF232*$E232*$G232*(1+'Sup Generales'!D$10)","v":207.44216575999999},{"$f":"+AG232*$E232*$G232*(1+'Sup Generales'!E$10)","v":212.83566206975999},{"$f":"+AH232*$E232*$G232*(1+'Sup Generales'!F$10)","v":213.75511212990139},{"$f":"+AI232*$E232*$G232*(1+'Sup Generales'!G$10)","v":214.3322509326521},{"$f":"+AJ232*$E232*$G232*(1+'Sup Generales'!H$10)","v":215.76827701390087},{"$f":"+AK232*$E232*$G232*(1+'Sup Generales'!I$10)","v":219.95660898108696},{"$f":"+AL232*$E232*$G232*(1+'Sup Generales'!J$10)","v":223.77371535241269},{"$f":"+AM232*$E232*$G232*(1+'Sup Generales'!K$10)","v":227.03200487709631},{"$f":"+AN232*$E232*$G232*(1+'Sup Generales'!L$10)","v":230.06985772272651},{"$f":"+AO232*$E232*$G232*(1+'Sup Generales'!M$10)","v":466.14606443331269},{"$f":"+AP232*$E232*$G232*(1+'Sup Generales'!N$10)","v":235.73821772560896},{"$f":"+AQ232*$E232*$G232*(1+'Sup Generales'!O$10)","v":238.64353867207871},{"$f":"+AR232*$E232*$G232*(1+'Sup Generales'!P$10)","v":241.87176451770071},{"$f":"+AS232*$E232*$G232*(1+'Sup Generales'!Q$10)","v":245.35007916977702},{"$f":"+AT232*$E232*$G232*(1+'Sup Generales'!R$10)","v":248.72413783741328},{"$f":"+AU232*$E232*$G232*(1+'Sup Generales'!S$10)","v":252.03261204662917},{"$f":"+AV232*$E232*$G232*(1+'Sup Generales'!T$10)","v":255.34543554997472},{"$f":"+AW232*$E232*$G232*(1+'Sup Generales'!U$10)","v":258.69426190767888},{"$f":"+AX232*$E232*$G232*(1+'Sup Generales'!V$10)","v":262.0889987367438},null,1,{"$f":"ROUNDDOWN(K$203/$F232,0)-SUM($AE232:AE232)","v":1},{"$f":"ROUNDDOWN(L$203/$F232,0)-SUM($AE232:AF232)","v":1},{"$f":"ROUNDDOWN(M$203/$F232,0)-SUM($AE232:AG232)","v":1},{"$f":"ROUNDDOWN(N$203/$F232,0)-SUM($AE232:AH232)","v":1},{"$f":"ROUNDDOWN(O$203/$F232,0)-SUM($AE232:AI232)","v":1},{"$f":"ROUNDDOWN(P$203/$F232,0)-SUM($AE232:AJ232)","v":1},{"$f":"ROUNDDOWN(Q$203/$F232,0)-SUM($AE232:AK232)","v":1},{"$f":"ROUNDDOWN(R$203/$F232,0)-SUM($AE232:AL232)","v":1},{"$f":"ROUNDDOWN(S$203/$F232,0)-SUM($AE232:AM232)","v":1},{"$f":"ROUNDDOWN(T$203/$F232,0)-SUM($AE232:AN232)","v":2},{"$f":"ROUNDDOWN(U$203/$F232,0)-SUM($AE232:AO232)","v":1},{"$f":"ROUNDDOWN(V$203/$F232,0)-SUM($AE232:AP232)","v":1},{"$f":"ROUNDDOWN(W$203/$F232,0)-SUM($AE232:AQ232)","v":1},{"$f":"ROUNDDOWN(X$203/$F232,0)-SUM($AE232:AR232)","v":1},{"$f":"ROUNDDOWN(Y$203/$F232,0)-SUM($AE232:AS232)","v":1},{"$f":"ROUNDDOWN(Z$203/$F232,0)-SUM($AE232:AT232)","v":1},{"$f":"ROUNDDOWN(AA$203/$F232,0)-SUM($AE232:AU232)","v":1},{"$f":"ROUNDDOWN(AB$203/$F232,0)-SUM($AE232:AV232)","v":1},{"$f":"ROUNDDOWN(AC$203/$F232,0)-SUM($AE232:AW232)","v":1}]
[null,28,"PINES Y BOCINES DE DIRECCIÓN","JGO.",1,90000,127.78,"Costo de mantenimiento mecánico",null,{"$f":"+AE233*$E233*$G233*(1+'Sup Generales'!C$10)","v":0},{"$f":"+AF233*$E233*$G233*(1+'Sup Generales'!D$10)","v":132.94026751999999},{"$f":"+AG233*$E233*$G233*(1+'Sup Generales'!E$10)","v":136.39671447552001},{"$f":"+AH233*$E233*$G233*(1+'Sup Generales'!F$10)","v":0},{"$f":"+AI233*$E233*$G233*(1+'Sup Generales'!G$10)","v":137.35581034241582},{"$f":"+AJ233*$E233*$G233*(1+'Sup Generales'!H$10)","v":138.27609427170998},{"$f":"+AK233*$E233*$G233*(1+'Sup Generales'!I$10)","v":140.96020610664172},{"$f":"+AL233*$E233*$G233*(1+'Sup Generales'!J$10)","v":0},{"$f":"+AM233*$E233*$G233*(1+'Sup Generales'!K$10)","v":145.49450615976414},{"$f":"+AN233*$E233*$G233*(1+'Sup Generales'!L$10)","v":147.44132814990721},{"$f":"+AO233*$E233*$G233*(1+'Sup Generales'!M$10)","v":149.36592635861552},{"$f":"+AP233*$E233*$G233*(1+'Sup Generales'!N$10)","v":0},{"$f":"+AQ233*$E233*$G233*(1+'Sup Generales'!O$10)","v":152.93581108138935},{"$f":"+AR233*$E233*$G233*(1+'Sup Generales'!P$10)","v":155.0046344855399},{"$f":"+AS233*$E233*$G233*(1+'Sup Generales'!Q$10)","v":0},{"$f":"+AT233*$E233*$G233*(1+'Sup Generales'!R$10)","v":159.39600949327786},{"$f":"+AU233*$E233*$G233*(1+'Sup Generales'!S$10)","v":161.51626043090565},{"$f":"+AV233*$E233*$G233*(1+'Sup Generales'!T$10)","v":163.63929863371169},{"$f":"+AW233*$E233*$G233*(1+'Sup Generales'!U$10)","v":0},{"$f":"+AX233*$E233*$G233*(1+'Sup Generales'!V$10)","v":167.96094216651349},null,0,{"$f":"ROUNDDOWN(K$203/$F233,0)-SUM($AE233:AE233)","v":1},{"$f":"ROUNDDOWN(L$203/$F233,0)-SUM($AE233:AF233)","v":1},{"$f":"ROUNDDOWN(M$203/$F233,0)-SUM($AE233:AG233)","v":0},{"$f":"ROUNDDOWN(N$203/$F233,0)-SUM($AE233:AH233)","v":1},{"$f":"ROUNDDOWN(O$203/$F233,0)-SUM($AE233:AI233)","v":1},{"$f":"ROUNDDOWN(P$203/$F233,0)-SUM($AE233:AJ233)","v":1},{"$f":"ROUNDDOWN(Q$203/$F233,0)-SUM($AE233:AK233)","v":0},{"$f":"ROUNDDOWN(R$203/$F233,0)-SUM($AE233:AL233)","v":1},{"$f":"ROUNDDOWN(S$203/$F233,0)-SUM($AE233:AM233)","v":1},{"$f":"ROUNDDOWN(T$203/$F233,0)-SUM($AE233:AN233)","v":1},{"$f":"ROUNDDOWN(U$203/$F233,0)-SUM($AE233:AO233)","v":0},{"$f":"ROUNDDOWN(V$203/$F233,0)-SUM($AE233:AP233)","v":1},{"$f":"ROUNDDOWN(W$203/$F233,0)-SUM($AE233:AQ233)","v":1},{"$f":"ROUNDDOWN(X$203/$F233,0)-SUM($AE233:AR233)","v":0},{"$f":"ROUNDDOWN(Y$203/$F233,0)-SUM($AE233:AS233)","v":1},{"$f":"ROUNDDOWN(Z$203/$F233,0)-SUM($AE233:AT233)","v":1},{"$f":"ROUNDDOWN(AA$203/$F233,0)-SUM($AE233:AU233)","v":1},{"$f":"ROUNDDOWN(AB$203/$F233,0)-SUM($AE233:AV233)","v":0},{"$f":"ROUNDDOWN(AC$203/$F233,0)-SUM($AE233:AW233)","v":1}]
[null,29,"MANTENIMIENTO DE BALLESTAS","UND",1,30000,67,"Costo de mantenimiento mecánico",null,{"$f":"+AE234*$E234*$G234*(1+'Sup Generales'!C$10)","v":137.21600000000001},{"$f":"+AF234*$E234*$G234*(1+'Sup Generales'!D$10)","v":139.41145599999999},{"$f":"+AG234*$E234*$G234*(1+'Sup Generales'!E$10)","v":143.036153856},{"$f":"+AH234*$E234*$G234*(1+'Sup Generales'!F$10)","v":143.65407004065796},{"$f":"+AI234*$E234*$G234*(1+'Sup Generales'!G$10)","v":144.04193602976773},{"$f":"+AJ234*$E234*$G234*(1+'Sup Generales'!H$10)","v":217.51052550175072},{"$f":"+AK234*$E234*$G234*(1+'Sup Generales'!I$10)","v":147.82178445993105},{"$f":"+AL234*$E234*$G234*(1+'Sup Generales'!J$10)","v":150.38706984915643},{"$f":"+AM234*$E234*$G234*(1+'Sup Generales'!K$10)","v":152.57680251532631},{"$f":"+AN234*$E234*$G234*(1+'Sup Generales'!L$10)","v":154.61839076606327},{"$f":"+AO234*$E234*$G234*(1+'Sup Generales'!M$10)","v":234.95501015872375},{"$f":"+AP234*$E234*$G234*(1+'Sup Generales'!N$10)","v":158.42781069878933},{"$f":"+AQ234*$E234*$G234*(1+'Sup Generales'!O$10)","v":160.38033091959753},{"$f":"+AR234*$E234*$G234*(1+'Sup Generales'!P$10)","v":162.54985929771752},{"$f":"+AS234*$E234*$G234*(1+'Sup Generales'!Q$10)","v":164.88745979612881},{"$f":"+AT234*$E234*$G234*(1+'Sup Generales'!R$10)","v":250.73249262911918},{"$f":"+AU234*$E234*$G234*(1+'Sup Generales'!S$10)","v":169.37845435703048},{"$f":"+AV234*$E234*$G234*(1+'Sup Generales'!T$10)","v":171.60483657002163},{"$f":"+AW234*$E234*$G234*(1+'Sup Generales'!U$10)","v":173.85541449234651},{"$f":"+AX234*$E234*$G234*(1+'Sup Generales'!V$10)","v":176.1368465355518},null,2,{"$f":"ROUNDDOWN(K$203/$F234,0)-SUM($AE234:AE234)","v":2},{"$f":"ROUNDDOWN(L$203/$F234,0)-SUM($AE234:AF234)","v":2},{"$f":"ROUNDDOWN(M$203/$F234,0)-SUM($AE234:AG234)","v":2},{"$f":"ROUNDDOWN(N$203/$F234,0)-SUM($AE234:AH234)","v":2},{"$f":"ROUNDDOWN(O$203/$F234,0)-SUM($AE234:AI234)","v":3},{"$f":"ROUNDDOWN(P$203/$F234,0)-SUM($AE234:AJ234)","v":2},{"$f":"ROUNDDOWN(Q$203/$F234,0)-SUM($AE234:AK234)","v":2},{"$f":"ROUNDDOWN(R$203/$F234,0)-SUM($AE234:AL234)","v":2},{"$f":"ROUNDDOWN(S$203/$F234,0)-SUM($AE234:AM234)","v":2},{"$f":"ROUNDDOWN(T$203/$F234,0)-SUM($AE234:AN234)","v":3},{"$f":"ROUNDDOWN(U$203/$F234,0)-SUM($AE234:AO234)","v":2},{"$f":"ROUNDDOWN(V$203/$F234,0)-SUM($AE234:AP234)","v":2},{"$f":"ROUNDDOWN(W$203/$F234,0)-SUM($AE234:AQ234)","v":2},{"$f":"ROUNDDOWN(X$203/$F234,0)-SUM($AE234:AR234)","v":2},{"$f":"ROUNDDOWN(Y$203/$F234,0)-SUM($AE234:AS234)","v":3},{"$f":"ROUNDDOWN(Z$203/$F234,0)-SUM($AE234:AT234)","v":2},{"$f":"ROUNDDOWN(AA$203/$F234,0)-SUM($AE234:AU234)","v":2},{"$f":"ROUNDDOWN(AB$203/$F234,0)-SUM($AE234:AV234)","v":2},{"$f":"ROUNDDOWN(AC$203/$F234,0)-SUM($AE234:AW234)","v":2}]
[null,30,"LAVADO MOTOR/ CHASIS","UND",1,15000,25,"Costo de mantenimiento mecánico",null,{"$f":"+AE235*$E235*$G235*(1+'Sup Generales'!C$10)","v":102.4},{"$f":"+AF235*$E235*$G235*(1+'Sup Generales'!D$10)","v":104.0384},{"$f":"+AG235*$E235*$G235*(1+'Sup Generales'!E$10)","v":133.429248},{"$f":"+AH235*$E235*$G235*(1+'Sup Generales'!F$10)","v":107.20452988108802},{"$f":"+AI235*$E235*$G235*(1+'Sup Generales'!G$10)","v":107.49398211176695},{"$f":"+AJ235*$E235*$G235*(1+'Sup Generales'!H$10)","v":135.26773973989472},{"$f":"+AK235*$E235*$G235*(1+'Sup Generales'!I$10)","v":110.31476452233662},{"$f":"+AL235*$E235*$G235*(1+'Sup Generales'!J$10)","v":140.2864457548101},{"$f":"+AM235*$E235*$G235*(1+'Sup Generales'!K$10)","v":113.86328545919872},{"$f":"+AN235*$E235*$G235*(1+'Sup Generales'!L$10)","v":115.38685878064423},{"$f":"+AO235*$E235*$G235*(1+'Sup Generales'!M$10)","v":146.11629984995258},{"$f":"+AP235*$E235*$G235*(1+'Sup Generales'!N$10)","v":118.22970947670845},{"$f":"+AQ235*$E235*$G235*(1+'Sup Generales'!O$10)","v":149.60851764887829},{"$f":"+AR235*$E235*$G235*(1+'Sup Generales'!P$10)","v":121.30586514755039},{"$f":"+AS235*$E235*$G235*(1+'Sup Generales'!Q$10)","v":123.0503431314394},{"$f":"+AT235*$E235*$G235*(1+'Sup Generales'!R$10)","v":155.92816705790995},{"$f":"+AU235*$E235*$G235*(1+'Sup Generales'!S$10)","v":126.40183160972424},{"$f":"+AV235*$E235*$G235*(1+'Sup Generales'!T$10)","v":128.06331087315047},{"$f":"+AW235*$E235*$G235*(1+'Sup Generales'!U$10)","v":162.17855829509935},{"$f":"+AX235*$E235*$G235*(1+'Sup Generales'!V$10)","v":131.44540786235208},null,4,{"$f":"ROUNDDOWN(K$203/$F235,0)-SUM($AE235:AE235)","v":4},{"$f":"ROUNDDOWN(L$203/$F235,0)-SUM($AE235:AF235)","v":5},{"$f":"ROUNDDOWN(M$203/$F235,0)-SUM($AE235:AG235)","v":4},{"$f":"ROUNDDOWN(N$203/$F235,0)-SUM($AE235:AH235)","v":4},{"$f":"ROUNDDOWN(O$203/$F235,0)-SUM($AE235:AI235)","v":5},{"$f":"ROUNDDOWN(P$203/$F235,0)-SUM($AE235:AJ235)","v":4},{"$f":"ROUNDDOWN(Q$203/$F235,0)-SUM($AE235:AK235)","v":5},{"$f":"ROUNDDOWN(R$203/$F235,0)-SUM($AE235:AL235)","v":4},{"$f":"ROUNDDOWN(S$203/$F235,0)-SUM($AE235:AM235)","v":4},{"$f":"ROUNDDOWN(T$203/$F235,0)-SUM($AE235:AN235)","v":5},{"$f":"ROUNDDOWN(U$203/$F235,0)-SUM($AE235:AO235)","v":4},{"$f":"ROUNDDOWN(V$203/$F235,0)-SUM($AE235:AP235)","v":5},{"$f":"ROUNDDOWN(W$203/$F235,0)-SUM($AE235:AQ235)","v":4},{"$f":"ROUNDDOWN(X$203/$F235,0)-SUM($AE235:AR235)","v":4},{"$f":"ROUNDDOWN(Y$203/$F235,0)-SUM($AE235:AS235)","v":5},{"$f":"ROUNDDOWN(Z$203/$F235,0)-SUM($AE235:AT235)","v":4},{"$f":"ROUNDDOWN(AA$203/$F235,0)-SUM($AE235:AU235)","v":4},{"$f":"ROUNDDOWN(AB$203/$F235,0)-SUM($AE235:AV235)","v":5},{"$f":"ROUNDDOWN(AC$203/$F235,0)-SUM($AE235:AW235)","v":4}]
[null,31,"ENGRASADO PUNTAS EJES","UND",4,30000,13.333333333333334,"Costo de mantenimiento mecánico",null,{"$f":"+AE236*$E236*$G236*(1+'Sup Generales'!C$10)","v":109.22666666666667},{"$f":"+AF236*$E236*$G236*(1+'Sup Generales'!D$10)","v":110.97429333333334},{"$f":"+AG236*$E236*$G236*(1+'Sup Generales'!E$10)","v":113.85962496},{"$f":"+AH236*$E236*$G236*(1+'Sup Generales'!F$10)","v":114.35149853982722},{"$f":"+AI236*$E236*$G236*(1+'Sup Generales'!G$10)","v":114.66024758588475},{"$f":"+AJ236*$E236*$G236*(1+'Sup Generales'!H$10)","v":173.14270686706524},{"$f":"+AK236*$E236*$G236*(1+'Sup Generales'!I$10)","v":117.66908215715907},{"$f":"+AL236*$E236*$G236*(1+'Sup Generales'!J$10)","v":119.71110037743797},{"$f":"+AM236*$E236*$G236*(1+'Sup Generales'!K$10)","v":121.45417115647865},{"$f":"+AN236*$E236*$G236*(1+'Sup Generales'!L$10)","v":123.07931603268719},{"$f":"+AO236*$E236*$G236*(1+'Sup Generales'!M$10)","v":187.0288638079393},{"$f":"+AP236*$E236*$G236*(1+'Sup Generales'!N$10)","v":126.11169010848903},{"$f":"+AQ236*$E236*$G236*(1+'Sup Generales'!O$10)","v":127.66593506037614},{"$f":"+AR236*$E236*$G236*(1+'Sup Generales'!P$10)","v":129.39292282405376},{"$f":"+AS236*$E236*$G236*(1+'Sup Generales'!Q$10)","v":131.25369934020205},{"$f":"+AT236*$E236*$G236*(1+'Sup Generales'!R$10)","v":199.58805383412471},{"$f":"+AU236*$E236*$G236*(1+'Sup Generales'!S$10)","v":134.82862038370587},{"$f":"+AV236*$E236*$G236*(1+'Sup Generales'!T$10)","v":136.60086493136052},{"$f":"+AW236*$E236*$G236*(1+'Sup Generales'!U$10)","v":138.39236974515146},{"$f":"+AX236*$E236*$G236*(1+'Sup Generales'!V$10)","v":140.20843505317555},null,2,{"$f":"ROUNDDOWN(K$203/$F236,0)-SUM($AE236:AE236)","v":2},{"$f":"ROUNDDOWN(L$203/$F236,0)-SUM($AE236:AF236)","v":2},{"$f":"ROUNDDOWN(M$203/$F236,0)-SUM($AE236:AG236)","v":2},{"$f":"ROUNDDOWN(N$203/$F236,0)-SUM($AE236:AH236)","v":2},{"$f":"ROUNDDOWN(O$203/$F236,0)-SUM($AE236:AI236)","v":3},{"$f":"ROUNDDOWN(P$203/$F236,0)-SUM($AE236:AJ236)","v":2},{"$f":"ROUNDDOWN(Q$203/$F236,0)-SUM($AE236:AK236)","v":2},{"$f":"ROUNDDOWN(R$203/$F236,0)-SUM($AE236:AL236)","v":2},{"$f":"ROUNDDOWN(S$203/$F236,0)-SUM($AE236:AM236)","v":2},{"$f":"ROUNDDOWN(T$203/$F236,0)-SUM($AE236:AN236)","v":3},{"$f":"ROUNDDOWN(U$203/$F236,0)-SUM($AE236:AO236)","v":2},{"$f":"ROUNDDOWN(V$203/$F236,0)-SUM($AE236:AP236)","v":2},{"$f":"ROUNDDOWN(W$203/$F236,0)-SUM($AE236:AQ236)","v":2},{"$f":"ROUNDDOWN(X$203/$F236,0)-SUM($AE236:AR236)","v":2},{"$f":"ROUNDDOWN(Y$203/$F236,0)-SUM($AE236:AS236)","v":3},{"$f":"ROUNDDOWN(Z$203/$F236,0)-SUM($AE236:AT236)","v":2},{"$f":"ROUNDDOWN(AA$203/$F236,0)-SUM($AE236:AU236)","v":2},{"$f":"ROUNDDOWN(AB$203/$F236,0)-SUM($AE236:AV236)","v":2},{"$f":"ROUNDDOWN(AC$203/$F236,0)-SUM($AE236:AW236)","v":2}]
[null,32,"CAMBIO DE RULIMANES PUNTA DE EJE","UND",8,180000,42.664000000000001,"Costo de mantenimiento mecánico",null,{"$f":"+AE237*$E237*$G237*(1+'Sup Generales'!C$10)","v":0},{"$f":"+AF237*$E237*$G237*(1+'Sup Generales'!D$10)","v":0},{"$f":"+AG237*$E237*$G237*(1+'Sup Generales'!E$10)","v":364.32802794700802},{"$f":"+AH237*$E237*$G237*(1+'Sup Generales'!F$10)","v":0},{"$f":"+AI237*$E237*$G237*(1+'Sup Generales'!G$10)","v":0},{"$f":"+AJ237*$E237*$G237*(1+'Sup Generales'!H$10)","v":369.34802228882359},{"$f":"+AK237*$E237*$G237*(1+'Sup Generales'!I$10)","v":0},{"$f":"+AL237*$E237*$G237*(1+'Sup Generales'!J$10)","v":0},{"$f":"+AM237*$E237*$G237*(1+'Sup Generales'!K$10)","v":388.62905686650038},{"$f":"+AN237*$E237*$G237*(1+'Sup Generales'!L$10)","v":0},{"$f":"+AO237*$E237*$G237*(1+'Sup Generales'!M$10)","v":398.96997227509615},{"$f":"+AP237*$E237*$G237*(1+'Sup Generales'!N$10)","v":0},{"$f":"+AQ237*$E237*$G237*(1+'Sup Generales'!O$10)","v":0},{"$f":"+AR237*$E237*$G237*(1+'Sup Generales'!P$10)","v":414.03147445240722},{"$f":"+AS237*$E237*$G237*(1+'Sup Generales'!Q$10)","v":0},{"$f":"+AT237*$E237*$G237*(1+'Sup Generales'!R$10)","v":0},{"$f":"+AU237*$E237*$G237*(1+'Sup Generales'!S$10)","v":431.42461950378203},{"$f":"+AV237*$E237*$G237*(1+'Sup Generales'!T$10)","v":0},{"$f":"+AW237*$E237*$G237*(1+'Sup Generales'!U$10)","v":0},{"$f":"+AX237*$E237*$G237*(1+'Sup Generales'!V$10)","v":448.63895048315118},null,0,{"$f":"ROUNDDOWN(K$203/$F237,0)-SUM($AE237:AE237)","v":0},{"$f":"ROUNDDOWN(L$203/$F237,0)-SUM($AE237:AF237)","v":1},{"$f":"ROUNDDOWN(M$203/$F237,0)-SUM($AE237:AG237)","v":0},{"$f":"ROUNDDOWN(N$203/$F237,0)-SUM($AE237:AH237)","v":0},{"$f":"ROUNDDOWN(O$203/$F237,0)-SUM($AE237:AI237)","v":1},{"$f":"ROUNDDOWN(P$203/$F237,0)-SUM($AE237:AJ237)","v":0},{"$f":"ROUNDDOWN(Q$203/$F237,0)-SUM($AE237:AK237)","v":0},{"$f":"ROUNDDOWN(R$203/$F237,0)-SUM($AE237:AL237)","v":1},{"$f":"ROUNDDOWN(S$203/$F237,0)-SUM($AE237:AM237)","v":0},{"$f":"ROUNDDOWN(T$203/$F237,0)-SUM($AE237:AN237)","v":1},{"$f":"ROUNDDOWN(U$203/$F237,0)-SUM($AE237:AO237)","v":0},{"$f":"ROUNDDOWN(V$203/$F237,0)-SUM($AE237:AP237)","v":0},{"$f":"ROUNDDOWN(W$203/$F237,0)-SUM($AE237:AQ237)","v":1},{"$f":"ROUNDDOWN(X$203/$F237,0)-SUM($AE237:AR237)","v":0},{"$f":"ROUNDDOWN(Y$203/$F237,0)-SUM($AE237:AS237)","v":0},{"$f":"ROUNDDOWN(Z$203/$F237,0)-SUM($AE237:AT237)","v":1},{"$f":"ROUNDDOWN(AA$203/$F237,0)-SUM($AE237:AU237)","v":0},{"$f":"ROUNDDOWN(AB$203/$F237,0)-SUM($AE237:AV237)","v":0},{"$f":"ROUNDDOWN(AC$203/$F237,0)-SUM($AE237:AW237)","v":1}]
[null,33,"MANTENIMINETO DE CARROCERÍA","UND",1,30000,325.71428571428572,"Carrocería ",null,{"$f":"+AE238*$E238*$G238*(1+'Sup Generales'!C$10)","v":667.06285714285718},{"$f":"+AF238*$E238*$G238*(1+'Sup Generales'!D$10)","v":677.73586285714282},{"$f":"+AG238*$E238*$G238*(1+'Sup Generales'!E$10)","v":695.35699529142858},{"$f":"+AH238*$E238*$G238*(1+'Sup Generales'!F$10)","v":698.36093751108763},{"$f":"+AI238*$E238*$G238*(1+'Sup Generales'!G$10)","v":700.24651204236761},{"$f":"+AJ238*$E238*$G238*(1+'Sup Generales'!H$10)","v":1057.407245509577},{"$f":"+AK238*$E238*$G238*(1+'Sup Generales'!I$10)","v":718.62189460264995},{"$f":"+AL238*$E238*$G238*(1+'Sup Generales'!J$10)","v":731.09279159078187},{"$f":"+AM238*$E238*$G238*(1+'Sup Generales'!K$10)","v":741.73797384849456},{"$f":"+AN238*$E238*$G238*(1+'Sup Generales'!L$10)","v":751.6629657710539},{"$f":"+AO238*$E238*$G238*(1+'Sup Generales'!M$10)","v":1142.2119896842007},{"$f":"+AP238*$E238*$G238*(1+'Sup Generales'!N$10)","v":770.18210744827229},{"$f":"+AQ238*$E238*$G238*(1+'Sup Generales'!O$10)","v":779.67410340443996},{"$f":"+AR238*$E238*$G238*(1+'Sup Generales'!P$10)","v":790.22106438975686},{"$f":"+AS238*$E238*$G238*(1+'Sup Generales'!Q$10)","v":801.58509239909108},{"$f":"+AT238*$E238*$G238*(1+'Sup Generales'!R$10)","v":1218.9127573441187},{"$f":"+AU238*$E238*$G238*(1+'Sup Generales'!S$10)","v":823.41764591477511},{"$f":"+AV238*$E238*$G238*(1+'Sup Generales'!T$10)","v":834.24099654509462},{"$f":"+AW238*$E238*$G238*(1+'Sup Generales'!U$10)","v":845.18197237217498},{"$f":"+AX238*$E238*$G238*(1+'Sup Generales'!V$10)","v":856.27294264617933},null,2,{"$f":"ROUNDDOWN(K$203/$F238,0)-SUM($AE238:AE238)","v":2},{"$f":"ROUNDDOWN(L$203/$F238,0)-SUM($AE238:AF238)","v":2},{"$f":"ROUNDDOWN(M$203/$F238,0)-SUM($AE238:AG238)","v":2},{"$f":"ROUNDDOWN(N$203/$F238,0)-SUM($AE238:AH238)","v":2},{"$f":"ROUNDDOWN(O$203/$F238,0)-SUM($AE238:AI238)","v":3},{"$f":"ROUNDDOWN(P$203/$F238,0)-SUM($AE238:AJ238)","v":2},{"$f":"ROUNDDOWN(Q$203/$F238,0)-SUM($AE238:AK238)","v":2},{"$f":"ROUNDDOWN(R$203/$F238,0)-SUM($AE238:AL238)","v":2},{"$f":"ROUNDDOWN(S$203/$F238,0)-SUM($AE238:AM238)","v":2},{"$f":"ROUNDDOWN(T$203/$F238,0)-SUM($AE238:AN238)","v":3},{"$f":"ROUNDDOWN(U$203/$F238,0)-SUM($AE238:AO238)","v":2},{"$f":"ROUNDDOWN(V$203/$F238,0)-SUM($AE238:AP238)","v":2},{"$f":"ROUNDDOWN(W$203/$F238,0)-SUM($AE238:AQ238)","v":2},{"$f":"ROUNDDOWN(X$203/$F238,0)-SUM($AE238:AR238)","v":2},{"$f":"ROUNDDOWN(Y$203/$F238,0)-SUM($AE238:AS238)","v":3},{"$f":"ROUNDDOWN(Z$203/$F238,0)-SUM($AE238:AT238)","v":2},{"$f":"ROUNDDOWN(AA$203/$F238,0)-SUM($AE238:AU238)","v":2},{"$f":"ROUNDDOWN(AB$203/$F238,0)-SUM($AE238:AV238)","v":2},{"$f":"ROUNDDOWN(AC$203/$F238,0)-SUM($AE238:AW238)","v":2}]
[null,34,"REPARACIÓN DE LA BOMBA DE INYECCIÓN","UND",1,240000,1850,"Costo de mantenimiento mecánico",null,{"$f":"+AE239*$E239*$G239*(1+'Sup Generales'!C$10)","v":0},{"$f":"+AF239*$E239*$G239*(1+'Sup Generales'!D$10)","v":0},{"$f":"+AG239*$E239*$G239*(1+'Sup Generales'!E$10)","v":0},{"$f":"+AH239*$E239*$G239*(1+'Sup Generales'!F$10)","v":1983.2838028001283},{"$f":"+AI239*$E239*$G239*(1+'Sup Generales'!G$10)","v":0},{"$f":"+AJ239*$E239*$G239*(1+'Sup Generales'!H$10)","v":0},{"$f":"+AK239*$E239*$G239*(1+'Sup Generales'!I$10)","v":0},{"$f":"+AL239*$E239*$G239*(1+'Sup Generales'!J$10)","v":2076.2393971711895},{"$f":"+AM239*$E239*$G239*(1+'Sup Generales'!K$10)","v":0},{"$f":"+AN239*$E239*$G239*(1+'Sup Generales'!L$10)","v":0},{"$f":"+AO239*$E239*$G239*(1+'Sup Generales'!M$10)","v":2162.5212377792982},{"$f":"+AP239*$E239*$G239*(1+'Sup Generales'!N$10)","v":0},{"$f":"+AQ239*$E239*$G239*(1+'Sup Generales'!O$10)","v":0},{"$f":"+AR239*$E239*$G239*(1+'Sup Generales'!P$10)","v":0},{"$f":"+AS239*$E239*$G239*(1+'Sup Generales'!Q$10)","v":2276.4313479316293},{"$f":"+AT239*$E239*$G239*(1+'Sup Generales'!R$10)","v":0},{"$f":"+AU239*$E239*$G239*(1+'Sup Generales'!S$10)","v":0},{"$f":"+AV239*$E239*$G239*(1+'Sup Generales'!T$10)","v":0},{"$f":"+AW239*$E239*$G239*(1+'Sup Generales'!U$10)","v":2400.2426627674704},{"$f":"+AX239*$E239*$G239*(1+'Sup Generales'!V$10)","v":0},null,0,{"$f":"ROUNDDOWN(K$203/$F239,0)-SUM($AE239:AE239)","v":0},{"$f":"ROUNDDOWN(L$203/$F239,0)-SUM($AE239:AF239)","v":0},{"$f":"ROUNDDOWN(M$203/$F239,0)-SUM($AE239:AG239)","v":1},{"$f":"ROUNDDOWN(N$203/$F239,0)-SUM($AE239:AH239)","v":0},{"$f":"ROUNDDOWN(O$203/$F239,0)-SUM($AE239:AI239)","v":0},{"$f":"ROUNDDOWN(P$203/$F239,0)-SUM($AE239:AJ239)","v":0},{"$f":"ROUNDDOWN(Q$203/$F239,0)-SUM($AE239:AK239)","v":1},{"$f":"ROUNDDOWN(R$203/$F239,0)-SUM($AE239:AL239)","v":0},{"$f":"ROUNDDOWN(S$203/$F239,0)-SUM($AE239:AM239)","v":0},{"$f":"ROUNDDOWN(T$203/$F239,0)-SUM($AE239:AN239)","v":1},{"$f":"ROUNDDOWN(U$203/$F239,0)-SUM($AE239:AO239)","v":0},{"$f":"ROUNDDOWN(V$203/$F239,0)-SUM($AE239:AP239)","v":0},{"$f":"ROUNDDOWN(W$203/$F239,0)-SUM($AE239:AQ239)","v":0},{"$f":"ROUNDDOWN(X$203/$F239,0)-SUM($AE239:AR239)","v":1},{"$f":"ROUNDDOWN(Y$203/$F239,0)-SUM($AE239:AS239)","v":0},{"$f":"ROUNDDOWN(Z$203/$F239,0)-SUM($AE239:AT239)","v":0},{"$f":"ROUNDDOWN(AA$203/$F239,0)-SUM($AE239:AU239)","v":0},{"$f":"ROUNDDOWN(AB$203/$F239,0)-SUM($AE239:AV239)","v":1},{"$f":"ROUNDDOWN(AC$203/$F239,0)-SUM($AE239:AW239)","v":0}]
[null,35,"REPARACION COMPRESOR","UND",2,60000,200.11,"Costo de mantenimiento mecánico",null,{"$f":"+AE240*$E240*$G240*(1+'Sup Generales'!C$10)","v":409.82528000000002},{"$f":"+AF240*$E240*$G240*(1+'Sup Generales'!D$10)","v":416.38248448000002},{"$f":"+AG240*$E240*$G240*(1+'Sup Generales'!E$10)","v":427.20842907648},{"$f":"+AH240*$E240*$G240*(1+'Sup Generales'!F$10)","v":429.05396949009048},{"$f":"+AI240*$E240*$G240*(1+'Sup Generales'!G$10)","v":430.21241520771372},{"$f":"+AJ240*$E240*$G240*(1+'Sup Generales'!H$10)","v":433.09483838960534},{"$f":"+AK240*$E240*$G240*(1+'Sup Generales'!I$10)","v":441.50175057129564},{"$f":"+AL240*$E240*$G240*(1+'Sup Generales'!J$10)","v":449.16353055992084},{"$f":"+AM240*$E240*$G240*(1+'Sup Generales'!K$10)","v":455.7036410648052},{"$f":"+AN240*$E240*$G240*(1+'Sup Generales'!L$10)","v":461.80128621189436},{"$f":"+AO240*$E240*$G240*(1+'Sup Generales'!M$10)","v":935.6586484151685},{"$f":"+AP240*$E240*$G240*(1+'Sup Generales'!N$10)","v":473.1789432676826},{"$f":"+AQ240*$E240*$G240*(1+'Sup Generales'!O$10)","v":479.01056746747258},{"$f":"+AR240*$E240*$G240*(1+'Sup Generales'!P$10)","v":485.49033349352624},{"$f":"+AS240*$E240*$G240*(1+'Sup Generales'!Q$10)","v":492.47208328064681},{"$f":"+AT240*$E240*$G240*(1+'Sup Generales'!R$10)","v":499.24456815933377},{"$f":"+AU240*$E240*$G240*(1+'Sup Generales'!S$10)","v":505.88541046843841},{"$f":"+AV240*$E240*$G240*(1+'Sup Generales'!T$10)","v":512.53498277652284},{"$f":"+AW240*$E240*$G240*(1+'Sup Generales'!U$10)","v":519.2568208069174},{"$f":"+AX240*$E240*$G240*(1+'Sup Generales'!V$10)","v":526.07081134670557},null,1,{"$f":"ROUNDDOWN(K$203/$F240,0)-SUM($AE240:AE240)","v":1},{"$f":"ROUNDDOWN(L$203/$F240,0)-SUM($AE240:AF240)","v":1},{"$f":"ROUNDDOWN(M$203/$F240,0)-SUM($AE240:AG240)","v":1},{"$f":"ROUNDDOWN(N$203/$F240,0)-SUM($AE240:AH240)","v":1},{"$f":"ROUNDDOWN(O$203/$F240,0)-SUM($AE240:AI240)","v":1},{"$f":"ROUNDDOWN(P$203/$F240,0)-SUM($AE240:AJ240)","v":1},{"$f":"ROUNDDOWN(Q$203/$F240,0)-SUM($AE240:AK240)","v":1},{"$f":"ROUNDDOWN(R$203/$F240,0)-SUM($AE240:AL240)","v":1},{"$f":"ROUNDDOWN(S$203/$F240,0)-SUM($AE240:AM240)","v":1},{"$f":"ROUNDDOWN(T$203/$F240,0)-SUM($AE240:AN240)","v":2},{"$f":"ROUNDDOWN(U$203/$F240,0)-SUM($AE240:AO240)","v":1},{"$f":"ROUNDDOWN(V$203/$F240,0)-SUM($AE240:AP240)","v":1},{"$f":"ROUNDDOWN(W$203/$F240,0)-SUM($AE240:AQ240)","v":1},{"$f":"ROUNDDOWN(X$203/$F240,0)-SUM($AE240:AR240)","v":1},{"$f":"ROUNDDOWN(Y$203/$F240,0)-SUM($AE240:AS240)","v":1},{"$f":"ROUNDDOWN(Z$203/$F240,0)-SUM($AE240:AT240)","v":1},{"$f":"ROUNDDOWN(AA$203/$F240,0)-SUM($AE240:AU240)","v":1},{"$f":"ROUNDDOWN(AB$203/$F240,0)-SUM($AE240:AV240)","v":1},{"$f":"ROUNDDOWN(AC$203/$F240,0)-SUM($AE240:AW240)","v":1}]
[null,36,"CAMBIO DE TURBO","UND",1,60000,542.09500000000003,"Costo de mantenimiento mecánico",null,{"$f":"+AE241*$E241*$G241*(1+'Sup Generales'!C$10)","v":555.10527999999999},{"$f":"+AF241*$E241*$G241*(1+'Sup Generales'!D$10)","v":563.98696447999998},{"$f":"+AG241*$E241*$G241*(1+'Sup Generales'!E$10)","v":578.65062555648001},{"$f":"+AH241*$E241*$G241*(1+'Sup Generales'!F$10)","v":581.15039625888414},{"$f":"+AI241*$E241*$G241*(1+'Sup Generales'!G$10)","v":582.71950232878305},{"$f":"+AJ241*$E241*$G241*(1+'Sup Generales'!H$10)","v":586.62372299438584},{"$f":"+AK241*$E241*$G241*(1+'Sup Generales'!I$10)","v":598.01082273736074},{"$f":"+AL241*$E241*$G241*(1+'Sup Generales'!J$10)","v":608.38864649163031},{"$f":"+AM241*$E241*$G241*(1+'Sup Generales'!K$10)","v":617.24717731004341},{"$f":"+AN241*$E241*$G241*(1+'Sup Generales'!L$10)","v":625.50639210693339},{"$f":"+AO241*$E241*$G241*(1+'Sup Generales'!M$10)","v":1267.3426490745608},{"$f":"+AP241*$E241*$G241*(1+'Sup Generales'!N$10)","v":640.91734358776273},{"$f":"+AQ241*$E241*$G241*(1+'Sup Generales'!O$10)","v":648.81623499894943},{"$f":"+AR241*$E241*$G241*(1+'Sup Generales'!P$10)","v":657.59302967161329},{"$f":"+AS241*$E241*$G241*(1+'Sup Generales'!Q$10)","v":667.04975759837646},{"$f":"+AT241*$E241*$G241*(1+'Sup Generales'!R$10)","v":676.22303777006152},{"$f":"+AU241*$E241*$G241*(1+'Sup Generales'!S$10)","v":685.2180090647347},{"$f":"+AV241*$E241*$G241*(1+'Sup Generales'!T$10)","v":694.22480507780517},{"$f":"+AW241*$E241*$G241*(1+'Sup Generales'!U$10)","v":703.32948447185515},{"$f":"+AX241*$E241*$G241*(1+'Sup Generales'!V$10)","v":712.5589837514176},null,1,{"$f":"ROUNDDOWN(K$203/$F241,0)-SUM($AE241:AE241)","v":1},{"$f":"ROUNDDOWN(L$203/$F241,0)-SUM($AE241:AF241)","v":1},{"$f":"ROUNDDOWN(M$203/$F241,0)-SUM($AE241:AG241)","v":1},{"$f":"ROUNDDOWN(N$203/$F241,0)-SUM($AE241:AH241)","v":1},{"$f":"ROUNDDOWN(O$203/$F241,0)-SUM($AE241:AI241)","v":1},{"$f":"ROUNDDOWN(P$203/$F241,0)-SUM($AE241:AJ241)","v":1},{"$f":"ROUNDDOWN(Q$203/$F241,0)-SUM($AE241:AK241)","v":1},{"$f":"ROUNDDOWN(R$203/$F241,0)-SUM($AE241:AL241)","v":1},{"$f":"ROUNDDOWN(S$203/$F241,0)-SUM($AE241:AM241)","v":1},{"$f":"ROUNDDOWN(T$203/$F241,0)-SUM($AE241:AN241)","v":2},{"$f":"ROUNDDOWN(U$203/$F241,0)-SUM($AE241:AO241)","v":1},{"$f":"ROUNDDOWN(V$203/$F241,0)-SUM($AE241:AP241)","v":1},{"$f":"ROUNDDOWN(W$203/$F241,0)-SUM($AE241:AQ241)","v":1},{"$f":"ROUNDDOWN(X$203/$F241,0)-SUM($AE241:AR241)","v":1},{"$f":"ROUNDDOWN(Y$203/$F241,0)-SUM($AE241:AS241)","v":1},{"$f":"ROUNDDOWN(Z$203/$F241,0)-SUM($AE241:AT241)","v":1},{"$f":"ROUNDDOWN(AA$203/$F241,0)-SUM($AE241:AU241)","v":1},{"$f":"ROUNDDOWN(AB$203/$F241,0)-SUM($AE241:AV241)","v":1},{"$f":"ROUNDDOWN(AC$203/$F241,0)-SUM($AE241:AW241)","v":1}]
[null,37,"REPARACIÓN DEL MOTOR","UND",1,240000,3903.672,"Costo de mantenimiento mecánico",null,{"$f":"+AE242*$E242*$G242*(1+'Sup Generales'!C$10)","v":0},{"$f":"+AF242*$E242*$G242*(1+'Sup Generales'!D$10)","v":0},{"$f":"+AG242*$E242*$G242*(1+'Sup Generales'!E$10)","v":0},{"$f":"+AH242*$E242*$G242*(1+'Sup Generales'!F$10)","v":4184.9132156996666},{"$f":"+AI242*$E242*$G242*(1+'Sup Generales'!G$10)","v":0},{"$f":"+AJ242*$E242*$G242*(1+'Sup Generales'!H$10)","v":0},{"$f":"+AK242*$E242*$G242*(1+'Sup Generales'!I$10)","v":0},{"$f":"+AL242*$E242*$G242*(1+'Sup Generales'!J$10)","v":4381.0581621805686},{"$f":"+AM242*$E242*$G242*(1+'Sup Generales'!K$10)","v":0},{"$f":"+AN242*$E242*$G242*(1+'Sup Generales'!L$10)","v":0},{"$f":"+AO242*$E242*$G242*(1+'Sup Generales'!M$10)","v":4563.1208677429131},{"$f":"+AP242*$E242*$G242*(1+'Sup Generales'!N$10)","v":0},{"$f":"+AQ242*$E242*$G242*(1+'Sup Generales'!O$10)","v":0},{"$f":"+AR242*$E242*$G242*(1+'Sup Generales'!P$10)","v":0},{"$f":"+AS242*$E242*$G242*(1+'Sup Generales'!Q$10)","v":4803.4817907259239},{"$f":"+AT242*$E242*$G242*(1+'Sup Generales'!R$10)","v":0},{"$f":"+AU242*$E242*$G242*(1+'Sup Generales'!S$10)","v":0},{"$f":"+AV242*$E242*$G242*(1+'Sup Generales'!T$10)","v":0},{"$f":"+AW242*$E242*$G242*(1+'Sup Generales'!U$10)","v":5064.7351761355767},{"$f":"+AX242*$E242*$G242*(1+'Sup Generales'!V$10)","v":0},null,0,{"$f":"ROUNDDOWN(K$203/$F242,0)-SUM($AE242:AE242)","v":0},{"$f":"ROUNDDOWN(L$203/$F242,0)-SUM($AE242:AF242)","v":0},{"$f":"ROUNDDOWN(M$203/$F242,0)-SUM($AE242:AG242)","v":1},{"$f":"ROUNDDOWN(N$203/$F242,0)-SUM($AE242:AH242)","v":0},{"$f":"ROUNDDOWN(O$203/$F242,0)-SUM($AE242:AI242)","v":0},{"$f":"ROUNDDOWN(P$203/$F242,0)-SUM($AE242:AJ242)","v":0},{"$f":"ROUNDDOWN(Q$203/$F242,0)-SUM($AE242:AK242)","v":1},{"$f":"ROUNDDOWN(R$203/$F242,0)-SUM($AE242:AL242)","v":0},{"$f":"ROUNDDOWN(S$203/$F242,0)-SUM($AE242:AM242)","v":0},{"$f":"ROUNDDOWN(T$203/$F242,0)-SUM($AE242:AN242)","v":1},{"$f":"ROUNDDOWN(U$203/$F242,0)-SUM($AE242:AO242)","v":0},{"$f":"ROUNDDOWN(V$203/$F242,0)-SUM($AE242:AP242)","v":0},{"$f":"ROUNDDOWN(W$203/$F242,0)-SUM($AE242:AQ242)","v":0},{"$f":"ROUNDDOWN(X$203/$F242,0)-SUM($AE242:AR242)","v":1},{"$f":"ROUNDDOWN(Y$203/$F242,0)-SUM($AE242:AS242)","v":0},{"$f":"ROUNDDOWN(Z$203/$F242,0)-SUM($AE242:AT242)","v":0},{"$f":"ROUNDDOWN(AA$203/$F242,0)-SUM($AE242:AU242)","v":0},{"$f":"ROUNDDOWN(AB$203/$F242,0)-SUM($AE242:AV242)","v":1},{"$f":"ROUNDDOWN(AC$203/$F242,0)-SUM($AE242:AW242)","v":0}]
[null,38,"REPARACIÓN DE CAJA","UND",1,120000,2209.7959999999998,"Costo de mantenimiento mecánico",null,{"$f":"+AE243*$E243*$G243*(1+'Sup Generales'!C$10)","v":0},{"$f":"+AF243*$E243*$G243*(1+'Sup Generales'!D$10)","v":2299.0364016639996},{"$f":"+AG243*$E243*$G243*(1+'Sup Generales'!E$10)","v":0},{"$f":"+AH243*$E243*$G243*(1+'Sup Generales'!F$10)","v":2369.0014131310877},{"$f":"+AI243*$E243*$G243*(1+'Sup Generales'!G$10)","v":0},{"$f":"+AJ243*$E243*$G243*(1+'Sup Generales'!H$10)","v":2391.312881650083},{"$f":"+AK243*$E243*$G243*(1+'Sup Generales'!I$10)","v":0},{"$f":"+AL243*$E243*$G243*(1+'Sup Generales'!J$10)","v":2480.0354134655709},{"$f":"+AM243*$E243*$G243*(1+'Sup Generales'!K$10)","v":0},{"$f":"+AN243*$E243*$G243*(1+'Sup Generales'!L$10)","v":2549.8141898603249},{"$f":"+AO243*$E243*$G243*(1+'Sup Generales'!M$10)","v":2583.0977195458063},{"$f":"+AP243*$E243*$G243*(1+'Sup Generales'!N$10)","v":0},{"$f":"+AQ243*$E243*$G243*(1+'Sup Generales'!O$10)","v":2644.8344309313647},{"$f":"+AR243*$E243*$G243*(1+'Sup Generales'!P$10)","v":0},{"$f":"+AS243*$E243*$G243*(1+'Sup Generales'!Q$10)","v":2719.1615605048228},{"$f":"+AT243*$E243*$G243*(1+'Sup Generales'!R$10)","v":0},{"$f":"+AU243*$E243*$G243*(1+'Sup Generales'!S$10)","v":2793.2226188384216},{"$f":"+AV243*$E243*$G243*(1+'Sup Generales'!T$10)","v":0},{"$f":"+AW243*$E243*$G243*(1+'Sup Generales'!U$10)","v":2867.0522352502189},{"$f":"+AX243*$E243*$G243*(1+'Sup Generales'!V$10)","v":0},null,0,{"$f":"ROUNDDOWN(K$203/$F243,0)-SUM($AE243:AE243)","v":1},{"$f":"ROUNDDOWN(L$203/$F243,0)-SUM($AE243:AF243)","v":0},{"$f":"ROUNDDOWN(M$203/$F243,0)-SUM($AE243:AG243)","v":1},{"$f":"ROUNDDOWN(N$203/$F243,0)-SUM($AE243:AH243)","v":0},{"$f":"ROUNDDOWN(O$203/$F243,0)-SUM($AE243:AI243)","v":1},{"$f":"ROUNDDOWN(P$203/$F243,0)-SUM($AE243:AJ243)","v":0},{"$f":"ROUNDDOWN(Q$203/$F243,0)-SUM($AE243:AK243)","v":1},{"$f":"ROUNDDOWN(R$203/$F243,0)-SUM($AE243:AL243)","v":0},{"$f":"ROUNDDOWN(S$203/$F243,0)-SUM($AE243:AM243)","v":1},{"$f":"ROUNDDOWN(T$203/$F243,0)-SUM($AE243:AN243)","v":1},{"$f":"ROUNDDOWN(U$203/$F243,0)-SUM($AE243:AO243)","v":0},{"$f":"ROUNDDOWN(V$203/$F243,0)-SUM($AE243:AP243)","v":1},{"$f":"ROUNDDOWN(W$203/$F243,0)-SUM($AE243:AQ243)","v":0},{"$f":"ROUNDDOWN(X$203/$F243,0)-SUM($AE243:AR243)","v":1},{"$f":"ROUNDDOWN(Y$203/$F243,0)-SUM($AE243:AS243)","v":0},{"$f":"ROUNDDOWN(Z$203/$F243,0)-SUM($AE243:AT243)","v":1},{"$f":"ROUNDDOWN(AA$203/$F243,0)-SUM($AE243:AU243)","v":0},{"$f":"ROUNDDOWN(AB$203/$F243,0)-SUM($AE243:AV243)","v":1},{"$f":"ROUNDDOWN(AC$203/$F243,0)-SUM($AE243:AW243)","v":0}]
[null,39,"REPARACIÓN DEL DIFERENCIAL","UND",1,120000,1675.3619999999999,"Costo de mantenimiento mecánico",null,{"$f":"+AE244*$E244*$G244*(1+'Sup Generales'!C$10)","v":0},{"$f":"+AF244*$E244*$G244*(1+'Sup Generales'!D$10)","v":1743.0198190079998},{"$f":"+AG244*$E244*$G244*(1+'Sup Generales'!E$10)","v":0},{"$f":"+AH244*$E244*$G244*(1+'Sup Generales'!F$10)","v":1796.0639559063936},{"$f":"+AI244*$E244*$G244*(1+'Sup Generales'!G$10)","v":0},{"$f":"+AJ244*$E244*$G244*(1+'Sup Generales'!H$10)","v":1812.9794478888759},{"$f":"+AK244*$E244*$G244*(1+'Sup Generales'!I$10)","v":0},{"$f":"+AL244*$E244*$G244*(1+'Sup Generales'!J$10)","v":1880.2446426613612},{"$f":"+AM244*$E244*$G244*(1+'Sup Generales'!K$10)","v":0},{"$f":"+AN244*$E244*$G244*(1+'Sup Generales'!L$10)","v":1933.1475850045765},{"$f":"+AO244*$E244*$G244*(1+'Sup Generales'!M$10)","v":1958.3815707937299},{"$f":"+AP244*$E244*$G244*(1+'Sup Generales'!N$10)","v":0},{"$f":"+AQ244*$E244*$G244*(1+'Sup Generales'!O$10)","v":2005.18740276208},{"$f":"+AR244*$E244*$G244*(1+'Sup Generales'!P$10)","v":0},{"$f":"+AS244*$E244*$G244*(1+'Sup Generales'!Q$10)","v":2061.5386896937457},{"$f":"+AT244*$E244*$G244*(1+'Sup Generales'!R$10)","v":0},{"$f":"+AU244*$E244*$G244*(1+'Sup Generales'!S$10)","v":2117.6882540933079},{"$f":"+AV244*$E244*$G244*(1+'Sup Generales'!T$10)","v":0},{"$f":"+AW244*$E244*$G244*(1+'Sup Generales'!U$10)","v":2173.6623502591538},{"$f":"+AX244*$E244*$G244*(1+'Sup Generales'!V$10)","v":0},null,0,{"$f":"ROUNDDOWN(K$203/$F244,0)-SUM($AE244:AE244)","v":1},{"$f":"ROUNDDOWN(L$203/$F244,0)-SUM($AE244:AF244)","v":0},{"$f":"ROUNDDOWN(M$203/$F244,0)-SUM($AE244:AG244)","v":1},{"$f":"ROUNDDOWN(N$203/$F244,0)-SUM($AE244:AH244)","v":0},{"$f":"ROUNDDOWN(O$203/$F244,0)-SUM($AE244:AI244)","v":1},{"$f":"ROUNDDOWN(P$203/$F244,0)-SUM($AE244:AJ244)","v":0},{"$f":"ROUNDDOWN(Q$203/$F244,0)-SUM($AE244:AK244)","v":1},{"$f":"ROUNDDOWN(R$203/$F244,0)-SUM($AE244:AL244)","v":0},{"$f":"ROUNDDOWN(S$203/$F244,0)-SUM($AE244:AM244)","v":1},{"$f":"ROUNDDOWN(T$203/$F244,0)-SUM($AE244:AN244)","v":1},{"$f":"ROUNDDOWN(U$203/$F244,0)-SUM($AE244:AO244)","v":0},{"$f":"ROUNDDOWN(V$203/$F244,0)-SUM($AE244:AP244)","v":1},{"$f":"ROUNDDOWN(W$203/$F244,0)-SUM($AE244:AQ244)","v":0},{"$f":"ROUNDDOWN(X$203/$F244,0)-SUM($AE244:AR244)","v":1},{"$f":"ROUNDDOWN(Y$203/$F244,0)-SUM($AE244:AS244)","v":0},{"$f":"ROUNDDOWN(Z$203/$F244,0)-SUM($AE244:AT244)","v":1},{"$f":"ROUNDDOWN(AA$203/$F244,0)-SUM($AE244:AU244)","v":0},{"$f":"ROUNDDOWN(AB$203/$F244,0)-SUM($AE244:AV244)","v":1},{"$f":"ROUNDDOWN(AC$203/$F244,0)-SUM($AE244:AW244)","v":0}]
[null,40,"REPARACIÓN DE CARROCERIA","UND",1,600000,4125,"Carrocería ",null,{"$f":"+AE245*$E245*$G245*(1+'Sup Generales'!C$10)","v":0},{"$f":"+AF245*$E245*$G245*(1+'Sup Generales'!D$10)","v":0},{"$f":"+AG245*$E245*$G245*(1+'Sup Generales'!E$10)","v":0},{"$f":"+AH245*$E245*$G245*(1+'Sup Generales'!F$10)","v":0},{"$f":"+AI245*$E245*$G245*(1+'Sup Generales'!G$10)","v":0},{"$f":"+AJ245*$E245*$G245*(1+'Sup Generales'!H$10)","v":0},{"$f":"+AK245*$E245*$G245*(1+'Sup Generales'!I$10)","v":0},{"$f":"+AL245*$E245*$G245*(1+'Sup Generales'!J$10)","v":0},{"$f":"+AM245*$E245*$G245*(1+'Sup Generales'!K$10)","v":0},{"$f":"+AN245*$E245*$G245*(1+'Sup Generales'!L$10)","v":4759.7079247015745},{"$f":"+AO245*$E245*$G245*(1+'Sup Generales'!M$10)","v":0},{"$f":"+AP245*$E245*$G245*(1+'Sup Generales'!N$10)","v":0},{"$f":"+AQ245*$E245*$G245*(1+'Sup Generales'!O$10)","v":0},{"$f":"+AR245*$E245*$G245*(1+'Sup Generales'!P$10)","v":0},{"$f":"+AS245*$E245*$G245*(1+'Sup Generales'!Q$10)","v":0},{"$f":"+AT245*$E245*$G245*(1+'Sup Generales'!R$10)","v":0},{"$f":"+AU245*$E245*$G245*(1+'Sup Generales'!S$10)","v":0},{"$f":"+AV245*$E245*$G245*(1+'Sup Generales'!T$10)","v":0},{"$f":"+AW245*$E245*$G245*(1+'Sup Generales'!U$10)","v":5351.8924237382789},{"$f":"+AX245*$E245*$G245*(1+'Sup Generales'!V$10)","v":0},null,0,{"$f":"ROUNDDOWN(K$203/$F245,0)-SUM($AE245:AE245)","v":0},{"$f":"ROUNDDOWN(L$203/$F245,0)-SUM($AE245:AF245)","v":0},{"$f":"ROUNDDOWN(M$203/$F245,0)-SUM($AE245:AG245)","v":0},{"$f":"ROUNDDOWN(N$203/$F245,0)-SUM($AE245:AH245)","v":0},{"$f":"ROUNDDOWN(O$203/$F245,0)-SUM($AE245:AI245)","v":0},{"$f":"ROUNDDOWN(P$203/$F245,0)-SUM($AE245:AJ245)","v":0},{"$f":"ROUNDDOWN(Q$203/$F245,0)-SUM($AE245:AK245)","v":0},{"$f":"ROUNDDOWN(R$203/$F245,0)-SUM($AE245:AL245)","v":0},{"$f":"ROUNDDOWN(S$203/$F245,0)-SUM($AE245:AM245)","v":1},{"$f":"ROUNDDOWN(T$203/$F245,0)-SUM($AE245:AN245)","v":0},{"$f":"ROUNDDOWN(U$203/$F245,0)-SUM($AE245:AO245)","v":0},{"$f":"ROUNDDOWN(V$203/$F245,0)-SUM($AE245:AP245)","v":0},{"$f":"ROUNDDOWN(W$203/$F245,0)-SUM($AE245:AQ245)","v":0},{"$f":"ROUNDDOWN(X$203/$F245,0)-SUM($AE245:AR245)","v":0},{"$f":"ROUNDDOWN(Y$203/$F245,0)-SUM($AE245:AS245)","v":0},{"$f":"ROUNDDOWN(Z$203/$F245,0)-SUM($AE245:AT245)","v":0},{"$f":"ROUNDDOWN(AA$203/$F245,0)-SUM($AE245:AU245)","v":0},{"$f":"ROUNDDOWN(AB$203/$F245,0)-SUM($AE245:AV245)","v":1},{"$f":"ROUNDDOWN(AC$203/$F245,0)-SUM($AE245:AW245)","v":0}]
[null,41,"MANO DE OBRA MANTENIMIENTO","UND",1,1,0.03,"Mano de Obra",null,{"$f":"+AE246*$E246*$G246*(1+'Sup Generales'!C$10)","v":2162.8723199999999},{"$f":"+AF246*$E246*$G246*(1+'Sup Generales'!D$10)","v":2197.4782771199998},{"$f":"+AG246*$E246*$G246*(1+'Sup Generales'!E$10)","v":2254.6127123251199},{"$f":"+AH246*$E246*$G246*(1+'Sup Generales'!F$10)","v":2264.3526392423646},{"$f":"+AI246*$E246*$G246*(1+'Sup Generales'!G$10)","v":2270.4663913683189},{"$f":"+AJ246*$E246*$G246*(1+'Sup Generales'!H$10)","v":2285.6785161904868},{"$f":"+AK246*$E246*$G246*(1+'Sup Generales'!I$10)","v":2330.0463932878893},{"$f":"+AL246*$E246*$G246*(1+'Sup Generales'!J$10)","v":2370.4817999551583},{"$f":"+AM246*$E246*$G246*(1+'Sup Generales'!K$10)","v":2404.9975428121033},{"$f":"+AN246*$E246*$G246*(1+'Sup Generales'!L$10)","v":2437.178153793011},{"$f":"+AO246*$E246*$G246*(1+'Sup Generales'!M$10)","v":2468.9914097365827},{"$f":"+AP246*$E246*$G246*(1+'Sup Generales'!N$10)","v":2497.2242776251405},{"$f":"+AQ246*$E246*$G246*(1+'Sup Generales'!O$10)","v":2528.0009504608615},{"$f":"+AR246*$E246*$G246*(1+'Sup Generales'!P$10)","v":2562.1982224735298},{"$f":"+AS246*$E246*$G246*(1+'Sup Generales'!Q$10)","v":2599.0447375536369},{"$f":"+AT246*$E246*$G246*(1+'Sup Generales'!R$10)","v":2634.7868471710094},{"$f":"+AU246*$E246*$G246*(1+'Sup Generales'!S$10)","v":2669.8342068942734},{"$f":"+AV246*$E246*$G246*(1+'Sup Generales'!T$10)","v":2704.9276396005098},{"$f":"+AW246*$E246*$G246*(1+'Sup Generales'!U$10)","v":2740.4024580779437},{"$f":"+AX246*$E246*$G246*(1+'Sup Generales'!V$10)","v":2776.3636157870278},{"$f":"SUM(J246:AC246)/SUM($J$9:$AC$9)","v":3.4911754048997927E-2},{"$f":"ROUNDDOWN(J$10/$F246,0)","v":70406},{"$f":"ROUNDDOWN(K$10/$F246,0)-SUM($AE246:AE246)","v":70406},{"$f":"ROUNDDOWN(L$10/$F246,0)-SUM($AE246:AF246)","v":70406},{"$f":"ROUNDDOWN(M$10/$F246,0)-SUM($AE246:AG246)","v":70406},{"$f":"ROUNDDOWN(N$10/$F246,0)-SUM($AE246:AH246)","v":70406},{"$f":"ROUNDDOWN(O$10/$F246,0)-SUM($AE246:AI246)","v":70406},{"$f":"ROUNDDOWN(P$10/$F246,0)-SUM($AE246:AJ246)","v":70406},{"$f":"ROUNDDOWN(Q$10/$F246,0)-SUM($AE246:AK246)","v":70406},{"$f":"ROUNDDOWN(R$10/$F246,0)-SUM($AE246:AL246)","v":70406},{"$f":"ROUNDDOWN(S$10/$F246,0)-SUM($AE246:AM246)","v":70406},{"$f":"ROUNDDOWN(T$10/$F246,0)-SUM($AE246:AN246)","v":70406},{"$f":"ROUNDDOWN(U$10/$F246,0)-SUM($AE246:AO246)","v":70406},{"$f":"ROUNDDOWN(V$10/$F246,0)-SUM($AE246:AP246)","v":70406},{"$f":"ROUNDDOWN(W$10/$F246,0)-SUM($AE246:AQ246)","v":70406},{"$f":"ROUNDDOWN(X$10/$F246,0)-SUM($AE246:AR246)","v":70406},{"$f":"ROUNDDOWN(Y$10/$F246,0)-SUM($AE246:AS246)","v":70406},{"$f":"ROUNDDOWN(Z$10/$F246,0)-SUM($AE246:AT246)","v":70406},{"$f":"ROUNDDOWN(AA$10/$F246,0)-SUM($AE246:AU246)","v":70406},{"$f":"ROUNDDOWN(AB$10/$F246,0)-SUM($AE246:AV246)","v":70406},{"$f":"ROUNDDOWN(AC$10/$F246,0)-SUM($AE246:AW246)","v":70406}]
[null,"A1","Filtros y Lubricantes (Híbrido)","UND",1,1,0.158,"Aceites y filtros ",null,{"$f":"+AE247*$E247*$G247*(1+'Sup Generales'!C$10)","v":10645.9136},{"$f":"+AF247*$E247*$G247*(1+'Sup Generales'!D$10)","v":10816.248217599999},{"$f":"+AG247*$E247*$G247*(1+'Sup Generales'!E$10)","v":11097.470671257599},{"$f":"+AH247*$E247*$G247*(1+'Sup Generales'!F$10)","v":11145.411744557434},{"$f":"+AI247*$E247*$G247*(1+'Sup Generales'!G$10)","v":11175.504356267738},{"$f":"+AJ247*$E247*$G247*(1+'Sup Generales'!H$10)","v":11250.380235454732},{"$f":"+AK247*$E247*$G247*(1+'Sup Generales'!I$10)","v":11468.764178800204},{"$f":"+AL247*$E247*$G247*(1+'Sup Generales'!J$10)","v":11667.792037162462},{"$f":"+AM247*$E247*$G247*(1+'Sup Generales'!K$10)","v":11837.682609480136},{"$f":"+AN247*$E247*$G247*(1+'Sup Generales'!L$10)","v":11996.079386270896},{"$f":"+AO247*$E247*$G247*(1+'Sup Generales'!M$10)","v":12152.667998080376},{"$f":"+AP247*$E247*$G247*(1+'Sup Generales'!N$10)","v":12291.633516036518},{"$f":"+AQ247*$E247*$G247*(1+'Sup Generales'!O$10)","v":12443.119943078385},{"$f":"+AR247*$E247*$G247*(1+'Sup Generales'!P$10)","v":12611.442964199929},{"$f":"+AS247*$E247*$G247*(1+'Sup Generales'!Q$10)","v":12792.805873316966},{"$f":"+AT247*$E247*$G247*(1+'Sup Generales'!R$10)","v":12968.732768006837},{"$f":"+AU247*$E247*$G247*(1+'Sup Generales'!S$10)","v":13141.240021473372},{"$f":"+AV247*$E247*$G247*(1+'Sup Generales'!T$10)","v":13313.974051616216},{"$f":"+AW247*$E247*$G247*(1+'Sup Generales'!U$10)","v":13488.585307673367},{"$f":"+AX247*$E247*$G247*(1+'Sup Generales'!V$10)","v":13665.59038300157},null,{"$f":"ROUNDDOWN(J$203/$F247,0)","v":65800},{"$f":"ROUNDDOWN(K$203/$F247,0)-SUM($AE247:AE247)","v":65800},{"$f":"ROUNDDOWN(L$203/$F247,0)-SUM($AE247:AF247)","v":65800},{"$f":"ROUNDDOWN(M$203/$F247,0)-SUM($AE247:AG247)","v":65800},{"$f":"ROUNDDOWN(N$203/$F247,0)-SUM($AE247:AH247)","v":65800},{"$f":"ROUNDDOWN(O$203/$F247,0)-SUM($AE247:AI247)","v":65800},{"$f":"ROUNDDOWN(P$203/$F247,0)-SUM($AE247:AJ247)","v":65800},{"$f":"ROUNDDOWN(Q$203/$F247,0)-SUM($AE247:AK247)","v":65800},{"$f":"ROUNDDOWN(R$203/$F247,0)-SUM($AE247:AL247)","v":65800},{"$f":"ROUNDDOWN(S$203/$F247,0)-SUM($AE247:AM247)","v":65800},{"$f":"ROUNDDOWN(T$203/$F247,0)-SUM($AE247:AN247)","v":65800},{"$f":"ROUNDDOWN(U$203/$F247,0)-SUM($AE247:AO247)","v":65800},{"$f":"ROUNDDOWN(V$203/$F247,0)-SUM($AE247:AP247)","v":65800},{"$f":"ROUNDDOWN(W$203/$F247,0)-SUM($AE247:AQ247)","v":65800},{"$f":"ROUNDDOWN(X$203/$F247,0)-SUM($AE247:AR247)","v":65800},{"$f":"ROUNDDOWN(Y$203/$F247,0)-SUM($AE247:AS247)","v":65800},{"$f":"ROUNDDOWN(Z$203/$F247,0)-SUM($AE247:AT247)","v":65800},{"$f":"ROUNDDOWN(AA$203/$F247,0)-SUM($AE247:AU247)","v":65800},{"$f":"ROUNDDOWN(AB$203/$F247,0)-SUM($AE247:AV247)","v":65800},{"$f":"ROUNDDOWN(AC$203/$F247,0)-SUM($AE247:AW247)","v":65800}]
[null,"A2","Mantenimiento Electrico (Híbrido)","UND",1,1,4.9000000000000002E-2,"Costo de mantenimiento eléctrico ",null,{"$f":"+AE248*$E248*$G248*(1+'Sup Generales'!C$10)","v":3301.5808000000002},{"$f":"+AF248*$E248*$G248*(1+'Sup Generales'!D$10)","v":3354.4060928000004},{"$f":"+AG248*$E248*$G248*(1+'Sup Generales'!E$10)","v":3441.6206512128001},{"$f":"+AH248*$E248*$G248*(1+'Sup Generales'!F$10)","v":3456.4884524260401},{"$f":"+AI248*$E248*$G248*(1+'Sup Generales'!G$10)","v":3465.8209712475905},{"$f":"+AJ248*$E248*$G248*(1+'Sup Generales'!H$10)","v":3489.0419717549489},{"$f":"+AK248*$E248*$G248*(1+'Sup Generales'!I$10)","v":3556.7686377291775},{"$f":"+AL248*$E248*$G248*(1+'Sup Generales'!J$10)","v":3618.4924672212705},{"$f":"+AM248*$E248*$G248*(1+'Sup Generales'!K$10)","v":3671.1800497754857},{"$f":"+AN248*$E248*$G248*(1+'Sup Generales'!L$10)","v":3720.3031008055318},{"$f":"+AO248*$E248*$G248*(1+'Sup Generales'!M$10)","v":3768.8653918097375},{"$f":"+AP248*$E248*$G248*(1+'Sup Generales'!N$10)","v":3811.9622929480342},{"$f":"+AQ248*$E248*$G248*(1+'Sup Generales'!O$10)","v":3858.942260828107},{"$f":"+AR248*$E248*$G248*(1+'Sup Generales'!P$10)","v":3911.1437040873202},{"$f":"+AS248*$E248*$G248*(1+'Sup Generales'!Q$10)","v":3967.3891632438699},{"$f":"+AT248*$E248*$G248*(1+'Sup Generales'!R$10)","v":4021.9487698249059},{"$f":"+AU248*$E248*$G248*(1+'Sup Generales'!S$10)","v":4075.4478547607296},{"$f":"+AV248*$E248*$G248*(1+'Sup Generales'!T$10)","v":4129.0172691721182},{"$f":"+AW248*$E248*$G248*(1+'Sup Generales'!U$10)","v":4183.1688612404751},{"$f":"+AX248*$E248*$G248*(1+'Sup Generales'!V$10)","v":4238.0628402979564},null,65800,{"$f":"ROUNDDOWN(K$203/$F248,0)-SUM($AE248:AE248)","v":65800},{"$f":"ROUNDDOWN(L$203/$F248,0)-SUM($AE248:AF248)","v":65800},{"$f":"ROUNDDOWN(M$203/$F248,0)-SUM($AE248:AG248)","v":65800},{"$f":"ROUNDDOWN(N$203/$F248,0)-SUM($AE248:AH248)","v":65800},{"$f":"ROUNDDOWN(O$203/$F248,0)-SUM($AE248:AI248)","v":65800},{"$f":"ROUNDDOWN(P$203/$F248,0)-SUM($AE248:AJ248)","v":65800},{"$f":"ROUNDDOWN(Q$203/$F248,0)-SUM($AE248:AK248)","v":65800},{"$f":"ROUNDDOWN(R$203/$F248,0)-SUM($AE248:AL248)","v":65800},{"$f":"ROUNDDOWN(S$203/$F248,0)-SUM($AE248:AM248)","v":65800},{"$f":"ROUNDDOWN(T$203/$F248,0)-SUM($AE248:AN248)","v":65800},{"$f":"ROUNDDOWN(U$203/$F248,0)-SUM($AE248:AO248)","v":65800},{"$f":"ROUNDDOWN(V$203/$F248,0)-SUM($AE248:AP248)","v":65800},{"$f":"ROUNDDOWN(W$203/$F248,0)-SUM($AE248:AQ248)","v":65800},{"$f":"ROUNDDOWN(X$203/$F248,0)-SUM($AE248:AR248)","v":65800},{"$f":"ROUNDDOWN(Y$203/$F248,0)-SUM($AE248:AS248)","v":65800},{"$f":"ROUNDDOWN(Z$203/$F248,0)-SUM($AE248:AT248)","v":65800},{"$f":"ROUNDDOWN(AA$203/$F248,0)-SUM($AE248:AU248)","v":65800},{"$f":"ROUNDDOWN(AB$203/$F248,0)-SUM($AE248:AV248)","v":65800},{"$f":"ROUNDDOWN(AC$203/$F248,0)-SUM($AE248:AW248)","v":65800}]
[null,"A3","Manto. Chasis y Motor (Híbrido)","UND",1,1,9.7199999999999995E-2,"Costo de mantenimiento mecánico",null,{"$f":"+AE249*$E249*$G249*(1+'Sup Generales'!C$10)","v":6549.2582399999992},{"$f":"+AF249*$E249*$G249*(1+'Sup Generales'!D$10)","v":6654.0463718399988},{"$f":"+AG249*$E249*$G249*(1+'Sup Generales'!E$10)","v":6827.0515775078393},{"$f":"+AH249*$E249*$G249*(1+'Sup Generales'!F$10)","v":6856.5444403226738},{"$f":"+AI249*$E249*$G249*(1+'Sup Generales'!G$10)","v":6875.0571103115453},{"$f":"+AJ249*$E249*$G249*(1+'Sup Generales'!H$10)","v":6921.119992950632},{"$f":"+AK249*$E249*$G249*(1+'Sup Generales'!I$10)","v":7055.4675834137961},{"$f":"+AL249*$E249*$G249*(1+'Sup Generales'!J$10)","v":7177.9075064062736},{"$f":"+AM249*$E249*$G249*(1+'Sup Generales'!K$10)","v":7282.4224660852478},{"$f":"+AN249*$E249*$G249*(1+'Sup Generales'!L$10)","v":7379.8665591489307},{"$f":"+AO249*$E249*$G249*(1+'Sup Generales'!M$10)","v":7476.1982874266614},{"$f":"+AP249*$E249*$G249*(1+'Sup Generales'!N$10)","v":7561.6884668275279},{"$f":"+AQ249*$E249*$G249*(1+'Sup Generales'!O$10)","v":7654.8813827039176},{"$f":"+AR249*$E249*$G249*(1+'Sup Generales'!P$10)","v":7758.4320007609685},{"$f":"+AS249*$E249*$G249*(1+'Sup Generales'!Q$10)","v":7870.0046258633483},{"$f":"+AT249*$E249*$G249*(1+'Sup Generales'!R$10)","v":7978.2330699383838},{"$f":"+AU249*$E249*$G249*(1+'Sup Generales'!S$10)","v":8084.3577853620982},{"$f":"+AV249*$E249*$G249*(1+'Sup Generales'!T$10)","v":8190.6220115006081},{"$f":"+AW249*$E249*$G249*(1+'Sup Generales'!U$10)","v":8298.0410880117161},{"$f":"+AX249*$E249*$G249*(1+'Sup Generales'!V$10)","v":8406.9328178971682},null,65800,{"$f":"ROUNDDOWN(K$203/$F249,0)-SUM($AE249:AE249)","v":65800},{"$f":"ROUNDDOWN(L$203/$F249,0)-SUM($AE249:AF249)","v":65800},{"$f":"ROUNDDOWN(M$203/$F249,0)-SUM($AE249:AG249)","v":65800},{"$f":"ROUNDDOWN(N$203/$F249,0)-SUM($AE249:AH249)","v":65800},{"$f":"ROUNDDOWN(O$203/$F249,0)-SUM($AE249:AI249)","v":65800},{"$f":"ROUNDDOWN(P$203/$F249,0)-SUM($AE249:AJ249)","v":65800},{"$f":"ROUNDDOWN(Q$203/$F249,0)-SUM($AE249:AK249)","v":65800},{"$f":"ROUNDDOWN(R$203/$F249,0)-SUM($AE249:AL249)","v":65800},{"$f":"ROUNDDOWN(S$203/$F249,0)-SUM($AE249:AM249)","v":65800},{"$f":"ROUNDDOWN(T$203/$F249,0)-SUM($AE249:AN249)","v":65800},{"$f":"ROUNDDOWN(U$203/$F249,0)-SUM($AE249:AO249)","v":65800},{"$f":"ROUNDDOWN(V$203/$F249,0)-SUM($AE249:AP249)","v":65800},{"$f":"ROUNDDOWN(W$203/$F249,0)-SUM($AE249:AQ249)","v":65800},{"$f":"ROUNDDOWN(X$203/$F249,0)-SUM($AE249:AR249)","v":65800},{"$f":"ROUNDDOWN(Y$203/$F249,0)-SUM($AE249:AS249)","v":65800},{"$f":"ROUNDDOWN(Z$203/$F249,0)-SUM($AE249:AT249)","v":65800},{"$f":"ROUNDDOWN(AA$203/$F249,0)-SUM($AE249:AU249)","v":65800},{"$f":"ROUNDDOWN(AB$203/$F249,0)-SUM($AE249:AV249)","v":65800},{"$f":"ROUNDDOWN(AC$203/$F249,0)-SUM($AE249:AW249)","v":65800}]
[null,"A4","Manto. Carroceria (Híbrido)","UND",1,1,1.0800000000000001E-2,"Carrocería ",null,{"$f":"+AE250*$E250*$G250*(1+'Sup Generales'!C$10)","v":727.69536000000005},{"$f":"+AF250*$E250*$G250*(1+'Sup Generales'!D$10)","v":739.33848575999991},{"$f":"+AG250*$E250*$G250*(1+'Sup Generales'!E$10)","v":758.56128638975997},{"$f":"+AH250*$E250*$G250*(1+'Sup Generales'!F$10)","v":761.83827114696385},{"$f":"+AI250*$E250*$G250*(1+'Sup Generales'!G$10)","v":763.8952344790606},{"$f":"+AJ250*$E250*$G250*(1+'Sup Generales'!H$10)","v":769.01333255007034},{"$f":"+AK250*$E250*$G250*(1+'Sup Generales'!I$10)","v":783.94084260153295},{"$f":"+AL250*$E250*$G250*(1+'Sup Generales'!J$10)","v":797.54527848958605},{"$f":"+AM250*$E250*$G250*(1+'Sup Generales'!K$10)","v":809.15805178724986},{"$f":"+AN250*$E250*$G250*(1+'Sup Generales'!L$10)","v":819.98517323877013},{"$f":"+AO250*$E250*$G250*(1+'Sup Generales'!M$10)","v":830.6886986029624},{"$f":"+AP250*$E250*$G250*(1+'Sup Generales'!N$10)","v":840.18760742528093},{"$f":"+AQ250*$E250*$G250*(1+'Sup Generales'!O$10)","v":850.54237585599083},{"$f":"+AR250*$E250*$G250*(1+'Sup Generales'!P$10)","v":862.04800008455209},{"$f":"+AS250*$E250*$G250*(1+'Sup Generales'!Q$10)","v":874.44495842926096},{"$f":"+AT250*$E250*$G250*(1+'Sup Generales'!R$10)","v":886.47034110426489},{"$f":"+AU250*$E250*$G250*(1+'Sup Generales'!S$10)","v":898.26197615134436},{"$f":"+AV250*$E250*$G250*(1+'Sup Generales'!T$10)","v":910.06911238895657},{"$f":"+AW250*$E250*$G250*(1+'Sup Generales'!U$10)","v":922.00456533463523},{"$f":"+AX250*$E250*$G250*(1+'Sup Generales'!V$10)","v":934.10364643301887},null,65800,{"$f":"ROUNDDOWN(K$203/$F250,0)-SUM($AE250:AE250)","v":65800},{"$f":"ROUNDDOWN(L$203/$F250,0)-SUM($AE250:AF250)","v":65800},{"$f":"ROUNDDOWN(M$203/$F250,0)-SUM($AE250:AG250)","v":65800},{"$f":"ROUNDDOWN(N$203/$F250,0)-SUM($AE250:AH250)","v":65800},{"$f":"ROUNDDOWN(O$203/$F250,0)-SUM($AE250:AI250)","v":65800},{"$f":"ROUNDDOWN(P$203/$F250,0)-SUM($AE250:AJ250)","v":65800},{"$f":"ROUNDDOWN(Q$203/$F250,0)-SUM($AE250:AK250)","v":65800},{"$f":"ROUNDDOWN(R$203/$F250,0)-SUM($AE250:AL250)","v":65800},{"$f":"ROUNDDOWN(S$203/$F250,0)-SUM($AE250:AM250)","v":65800},{"$f":"ROUNDDOWN(T$203/$F250,0)-SUM($AE250:AN250)","v":65800},{"$f":"ROUNDDOWN(U$203/$F250,0)-SUM($AE250:AO250)","v":65800},{"$f":"ROUNDDOWN(V$203/$F250,0)-SUM($AE250:AP250)","v":65800},{"$f":"ROUNDDOWN(W$203/$F250,0)-SUM($AE250:AQ250)","v":65800},{"$f":"ROUNDDOWN(X$203/$F250,0)-SUM($AE250:AR250)","v":65800},{"$f":"ROUNDDOWN(Y$203/$F250,0)-SUM($AE250:AS250)","v":65800},{"$f":"ROUNDDOWN(Z$203/$F250,0)-SUM($AE250:AT250)","v":65800},{"$f":"ROUNDDOWN(AA$203/$F250,0)-SUM($AE250:AU250)","v":65800},{"$f":"ROUNDDOWN(AB$203/$F250,0)-SUM($AE250:AV250)","v":65800},{"$f":"ROUNDDOWN(AC$203/$F250,0)-SUM($AE250:AW250)","v":65800}]
[null,"B1","Filtros y Lubricantes (Eléctrico)","UND",1,1,{"$f":"G247*1.2","v":0.18959999999999999},"Aceites y filtros ",null,{"$f":"+AE251*$E251*$G251*(1+'Sup Generales'!C$10)","v":12775.096320000001},{"$f":"+AF251*$E251*$G251*(1+'Sup Generales'!D$10)","v":12979.49786112},{"$f":"+AG251*$E251*$G251*(1+'Sup Generales'!E$10)","v":13316.96480550912},{"$f":"+AH251*$E251*$G251*(1+'Sup Generales'!F$10)","v":13374.494093468922},{"$f":"+AI251*$E251*$G251*(1+'Sup Generales'!G$10)","v":13410.605227521288},{"$f":"+AJ251*$E251*$G251*(1+'Sup Generales'!H$10)","v":13500.45628254568},{"$f":"+AK251*$E251*$G251*(1+'Sup Generales'!I$10)","v":13762.517014560246},{"$f":"+AL251*$E251*$G251*(1+'Sup Generales'!J$10)","v":14001.350444594957},{"$f":"+AM251*$E251*$G251*(1+'Sup Generales'!K$10)","v":14205.219131376163},{"$f":"+AN251*$E251*$G251*(1+'Sup Generales'!L$10)","v":14395.295263525077},{"$f":"+AO251*$E251*$G251*(1+'Sup Generales'!M$10)","v":14583.201597696452},{"$f":"+AP251*$E251*$G251*(1+'Sup Generales'!N$10)","v":14749.960219243821},{"$f":"+AQ251*$E251*$G251*(1+'Sup Generales'!O$10)","v":14931.743931694064},{"$f":"+AR251*$E251*$G251*(1+'Sup Generales'!P$10)","v":15133.731557039915},{"$f":"+AS251*$E251*$G251*(1+'Sup Generales'!Q$10)","v":15351.36704798036},{"$f":"+AT251*$E251*$G251*(1+'Sup Generales'!R$10)","v":15562.479321608207},{"$f":"+AU251*$E251*$G251*(1+'Sup Generales'!S$10)","v":15769.488025768047},{"$f":"+AV251*$E251*$G251*(1+'Sup Generales'!T$10)","v":15976.768861939461},{"$f":"+AW251*$E251*$G251*(1+'Sup Generales'!U$10)","v":16186.302369208042},{"$f":"+AX251*$E251*$G251*(1+'Sup Generales'!V$10)","v":16398.708459601887},null,65800,{"$f":"ROUNDDOWN(K$203/$F251,0)-SUM($AE251:AE251)","v":65800},{"$f":"ROUNDDOWN(L$203/$F251,0)-SUM($AE251:AF251)","v":65800},{"$f":"ROUNDDOWN(M$203/$F251,0)-SUM($AE251:AG251)","v":65800},{"$f":"ROUNDDOWN(N$203/$F251,0)-SUM($AE251:AH251)","v":65800},{"$f":"ROUNDDOWN(O$203/$F251,0)-SUM($AE251:AI251)","v":65800},{"$f":"ROUNDDOWN(P$203/$F251,0)-SUM($AE251:AJ251)","v":65800},{"$f":"ROUNDDOWN(Q$203/$F251,0)-SUM($AE251:AK251)","v":65800},{"$f":"ROUNDDOWN(R$203/$F251,0)-SUM($AE251:AL251)","v":65800},{"$f":"ROUNDDOWN(S$203/$F251,0)-SUM($AE251:AM251)","v":65800},{"$f":"ROUNDDOWN(T$203/$F251,0)-SUM($AE251:AN251)","v":65800},{"$f":"ROUNDDOWN(U$203/$F251,0)-SUM($AE251:AO251)","v":65800},{"$f":"ROUNDDOWN(V$203/$F251,0)-SUM($AE251:AP251)","v":65800},{"$f":"ROUNDDOWN(W$203/$F251,0)-SUM($AE251:AQ251)","v":65800},{"$f":"ROUNDDOWN(X$203/$F251,0)-SUM($AE251:AR251)","v":65800},{"$f":"ROUNDDOWN(Y$203/$F251,0)-SUM($AE251:AS251)","v":65800},{"$f":"ROUNDDOWN(Z$203/$F251,0)-SUM($AE251:AT251)","v":65800},{"$f":"ROUNDDOWN(AA$203/$F251,0)-SUM($AE251:AU251)","v":65800},{"$f":"ROUNDDOWN(AB$203/$F251,0)-SUM($AE251:AV251)","v":65800},{"$f":"ROUNDDOWN(AC$203/$F251,0)-SUM($AE251:AW251)","v":65800}]
[null,"B2","Mantenimiento Electrico (Eléctrico)","UND",1,1,{"$f":"G248*1.2","v":5.8799999999999998E-2},"Costo de mantenimiento eléctrico ",null,{"$f":"+AE252*$E252*$G252*(1+'Sup Generales'!C$10)","v":3961.89696},{"$f":"+AF252*$E252*$G252*(1+'Sup Generales'!D$10)","v":4025.2873113599999},{"$f":"+AG252*$E252*$G252*(1+'Sup Generales'!E$10)","v":4129.9447814553596},{"$f":"+AH252*$E252*$G252*(1+'Sup Generales'!F$10)","v":4147.7861429112481},{"$f":"+AI252*$E252*$G252*(1+'Sup Generales'!G$10)","v":4158.985165497108},{"$f":"+AJ252*$E252*$G252*(1+'Sup Generales'!H$10)","v":4186.8503661059385},{"$f":"+AK252*$E252*$G252*(1+'Sup Generales'!I$10)","v":4268.1223652750123},{"$f":"+AL252*$E252*$G252*(1+'Sup Generales'!J$10)","v":4342.1909606655245},{"$f":"+AM252*$E252*$G252*(1+'Sup Generales'!K$10)","v":4405.4160597305827},{"$f":"+AN252*$E252*$G252*(1+'Sup Generales'!L$10)","v":4464.3637209666376},{"$f":"+AO252*$E252*$G252*(1+'Sup Generales'!M$10)","v":4522.6384701716843},{"$f":"+AP252*$E252*$G252*(1+'Sup Generales'!N$10)","v":4574.3547515376404},{"$f":"+AQ252*$E252*$G252*(1+'Sup Generales'!O$10)","v":4630.730712993728},{"$f":"+AR252*$E252*$G252*(1+'Sup Generales'!P$10)","v":4693.3724449047841},{"$f":"+AS252*$E252*$G252*(1+'Sup Generales'!Q$10)","v":4760.866995892643},{"$f":"+AT252*$E252*$G252*(1+'Sup Generales'!R$10)","v":4826.3385237898865},{"$f":"+AU252*$E252*$G252*(1+'Sup Generales'!S$10)","v":4890.5374257128751},{"$f":"+AV252*$E252*$G252*(1+'Sup Generales'!T$10)","v":4954.8207230065418},{"$f":"+AW252*$E252*$G252*(1+'Sup Generales'!U$10)","v":5019.8026334885699},{"$f":"+AX252*$E252*$G252*(1+'Sup Generales'!V$10)","v":5085.675408357547},null,65800,{"$f":"ROUNDDOWN(K$203/$F252,0)-SUM($AE252:AE252)","v":65800},{"$f":"ROUNDDOWN(L$203/$F252,0)-SUM($AE252:AF252)","v":65800},{"$f":"ROUNDDOWN(M$203/$F252,0)-SUM($AE252:AG252)","v":65800},{"$f":"ROUNDDOWN(N$203/$F252,0)-SUM($AE252:AH252)","v":65800},{"$f":"ROUNDDOWN(O$203/$F252,0)-SUM($AE252:AI252)","v":65800},{"$f":"ROUNDDOWN(P$203/$F252,0)-SUM($AE252:AJ252)","v":65800},{"$f":"ROUNDDOWN(Q$203/$F252,0)-SUM($AE252:AK252)","v":65800},{"$f":"ROUNDDOWN(R$203/$F252,0)-SUM($AE252:AL252)","v":65800},{"$f":"ROUNDDOWN(S$203/$F252,0)-SUM($AE252:AM252)","v":65800},{"$f":"ROUNDDOWN(T$203/$F252,0)-SUM($AE252:AN252)","v":65800},{"$f":"ROUNDDOWN(U$203/$F252,0)-SUM($AE252:AO252)","v":65800},{"$f":"ROUNDDOWN(V$203/$F252,0)-SUM($AE252:AP252)","v":65800},{"$f":"ROUNDDOWN(W$203/$F252,0)-SUM($AE252:AQ252)","v":65800},{"$f":"ROUNDDOWN(X$203/$F252,0)-SUM($AE252:AR252)","v":65800},{"$f":"ROUNDDOWN(Y$203/$F252,0)-SUM($AE252:AS252)","v":65800},{"$f":"ROUNDDOWN(Z$203/$F252,0)-SUM($AE252:AT252)","v":65800},{"$f":"ROUNDDOWN(AA$203/$F252,0)-SUM($AE252:AU252)","v":65800},{"$f":"ROUNDDOWN(AB$203/$F252,0)-SUM($AE252:AV252)","v":65800},{"$f":"ROUNDDOWN(AC$203/$F252,0)-SUM($AE252:AW252)","v":65800}]
[null,"B3","Manto. Chasis y Motor (Eléctrico)","UND",1,1,{"$f":"G249*1.2","v":0.11663999999999999},"Costo de mantenimiento mecánico",null,{"$f":"+AE253*$E253*$G253*(1+'Sup Generales'!C$10)","v":7859.109887999999},{"$f":"+AF253*$E253*$G253*(1+'Sup Generales'!D$10)","v":7984.8556462079987},{"$f":"+AG253*$E253*$G253*(1+'Sup Generales'!E$10)","v":8192.4618930094075},{"$f":"+AH253*$E253*$G253*(1+'Sup Generales'!F$10)","v":8227.8533283872093},{"$f":"+AI253*$E253*$G253*(1+'Sup Generales'!G$10)","v":8250.0685323738544},{"$f":"+AJ253*$E253*$G253*(1+'Sup Generales'!H$10)","v":8305.343991540758},{"$f":"+AK253*$E253*$G253*(1+'Sup Generales'!I$10)","v":8466.5611000965546},{"$f":"+AL253*$E253*$G253*(1+'Sup Generales'!J$10)","v":8613.489007687529},{"$f":"+AM253*$E253*$G253*(1+'Sup Generales'!K$10)","v":8738.9069593022978},{"$f":"+AN253*$E253*$G253*(1+'Sup Generales'!L$10)","v":8855.8398709787161},{"$f":"+AO253*$E253*$G253*(1+'Sup Generales'!M$10)","v":8971.4379449119933},{"$f":"+AP253*$E253*$G253*(1+'Sup Generales'!N$10)","v":9074.0261601930342},{"$f":"+AQ253*$E253*$G253*(1+'Sup Generales'!O$10)","v":9185.8576592447007},{"$f":"+AR253*$E253*$G253*(1+'Sup Generales'!P$10)","v":9310.118400913163},{"$f":"+AS253*$E253*$G253*(1+'Sup Generales'!Q$10)","v":9444.005551036018},{"$f":"+AT253*$E253*$G253*(1+'Sup Generales'!R$10)","v":9573.8796839260594},{"$f":"+AU253*$E253*$G253*(1+'Sup Generales'!S$10)","v":9701.2293424345189},{"$f":"+AV253*$E253*$G253*(1+'Sup Generales'!T$10)","v":9828.7464138007308},{"$f":"+AW253*$E253*$G253*(1+'Sup Generales'!U$10)","v":9957.6493056140607},{"$f":"+AX253*$E253*$G253*(1+'Sup Generales'!V$10)","v":10088.319381476602},null,65800,{"$f":"ROUNDDOWN(K$203/$F253,0)-SUM($AE253:AE253)","v":65800},{"$f":"ROUNDDOWN(L$203/$F253,0)-SUM($AE253:AF253)","v":65800},{"$f":"ROUNDDOWN(M$203/$F253,0)-SUM($AE253:AG253)","v":65800},{"$f":"ROUNDDOWN(N$203/$F253,0)-SUM($AE253:AH253)","v":65800},{"$f":"ROUNDDOWN(O$203/$F253,0)-SUM($AE253:AI253)","v":65800},{"$f":"ROUNDDOWN(P$203/$F253,0)-SUM($AE253:AJ253)","v":65800},{"$f":"ROUNDDOWN(Q$203/$F253,0)-SUM($AE253:AK253)","v":65800},{"$f":"ROUNDDOWN(R$203/$F253,0)-SUM($AE253:AL253)","v":65800},{"$f":"ROUNDDOWN(S$203/$F253,0)-SUM($AE253:AM253)","v":65800},{"$f":"ROUNDDOWN(T$203/$F253,0)-SUM($AE253:AN253)","v":65800},{"$f":"ROUNDDOWN(U$203/$F253,0)-SUM($AE253:AO253)","v":65800},{"$f":"ROUNDDOWN(V$203/$F253,0)-SUM($AE253:AP253)","v":65800},{"$f":"ROUNDDOWN(W$203/$F253,0)-SUM($AE253:AQ253)","v":65800},{"$f":"ROUNDDOWN(X$203/$F253,0)-SUM($AE253:AR253)","v":65800},{"$f":"ROUNDDOWN(Y$203/$F253,0)-SUM($AE253:AS253)","v":65800},{"$f":"ROUNDDOWN(Z$203/$F253,0)-SUM($AE253:AT253)","v":65800},{"$f":"ROUNDDOWN(AA$203/$F253,0)-SUM($AE253:AU253)","v":65800},{"$f":"ROUNDDOWN(AB$203/$F253,0)-SUM($AE253:AV253)","v":65800},{"$f":"ROUNDDOWN(AC$203/$F253,0)-SUM($AE253:AW253)","v":65800}]
[null,"B4","Manto. Carroceria (Eléctrico)","UND",1,1,1.2960000000000001E-2,"Carrocería ",null,{"$f":"+AE254*$E254*$G254*(1+'Sup Generales'!C$10)","v":873.23443200000008},{"$f":"+AF254*$E254*$G254*(1+'Sup Generales'!D$10)","v":887.20618291200003},{"$f":"+AG254*$E254*$G254*(1+'Sup Generales'!E$10)","v":910.27354366771203},{"$f":"+AH254*$E254*$G254*(1+'Sup Generales'!F$10)","v":914.20592537635673},{"$f":"+AI254*$E254*$G254*(1+'Sup Generales'!G$10)","v":916.67428137487286},{"$f":"+AJ254*$E254*$G254*(1+'Sup Generales'!H$10)","v":922.81599906008444},{"$f":"+AK254*$E254*$G254*(1+'Sup Generales'!I$10)","v":940.72901112183956},{"$f":"+AL254*$E254*$G254*(1+'Sup Generales'!J$10)","v":957.05433418750329},{"$f":"+AM254*$E254*$G254*(1+'Sup Generales'!K$10)","v":970.98966214469988},{"$f":"+AN254*$E254*$G254*(1+'Sup Generales'!L$10)","v":983.98220788652418},{"$f":"+AO254*$E254*$G254*(1+'Sup Generales'!M$10)","v":996.82643832355495},{"$f":"+AP254*$E254*$G254*(1+'Sup Generales'!N$10)","v":1008.2251289103372},{"$f":"+AQ254*$E254*$G254*(1+'Sup Generales'!O$10)","v":1020.6508510271891},{"$f":"+AR254*$E254*$G254*(1+'Sup Generales'!P$10)","v":1034.4576001014625},{"$f":"+AS254*$E254*$G254*(1+'Sup Generales'!Q$10)","v":1049.3339501151133},{"$f":"+AT254*$E254*$G254*(1+'Sup Generales'!R$10)","v":1063.7644093251179},{"$f":"+AU254*$E254*$G254*(1+'Sup Generales'!S$10)","v":1077.9143713816134},{"$f":"+AV254*$E254*$G254*(1+'Sup Generales'!T$10)","v":1092.082934866748},{"$f":"+AW254*$E254*$G254*(1+'Sup Generales'!U$10)","v":1106.4054784015623},{"$f":"+AX254*$E254*$G254*(1+'Sup Generales'!V$10)","v":1120.9243757196227},null,65800,{"$f":"ROUNDDOWN(K$203/$F254,0)-SUM($AE254:AE254)","v":65800},{"$f":"ROUNDDOWN(L$203/$F254,0)-SUM($AE254:AF254)","v":65800},{"$f":"ROUNDDOWN(M$203/$F254,0)-SUM($AE254:AG254)","v":65800},{"$f":"ROUNDDOWN(N$203/$F254,0)-SUM($AE254:AH254)","v":65800},{"$f":"ROUNDDOWN(O$203/$F254,0)-SUM($AE254:AI254)","v":65800},{"$f":"ROUNDDOWN(P$203/$F254,0)-SUM($AE254:AJ254)","v":65800},{"$f":"ROUNDDOWN(Q$203/$F254,0)-SUM($AE254:AK254)","v":65800},{"$f":"ROUNDDOWN(R$203/$F254,0)-SUM($AE254:AL254)","v":65800},{"$f":"ROUNDDOWN(S$203/$F254,0)-SUM($AE254:AM254)","v":65800},{"$f":"ROUNDDOWN(T$203/$F254,0)-SUM($AE254:AN254)","v":65800},{"$f":"ROUNDDOWN(U$203/$F254,0)-SUM($AE254:AO254)","v":65800},{"$f":"ROUNDDOWN(V$203/$F254,0)-SUM($AE254:AP254)","v":65800},{"$f":"ROUNDDOWN(W$203/$F254,0)-SUM($AE254:AQ254)","v":65800},{"$f":"ROUNDDOWN(X$203/$F254,0)-SUM($AE254:AR254)","v":65800},{"$f":"ROUNDDOWN(Y$203/$F254,0)-SUM($AE254:AS254)","v":65800},{"$f":"ROUNDDOWN(Z$203/$F254,0)-SUM($AE254:AT254)","v":65800},{"$f":"ROUNDDOWN(AA$203/$F254,0)-SUM($AE254:AU254)","v":65800},{"$f":"ROUNDDOWN(AB$203/$F254,0)-SUM($AE254:AV254)","v":65800},{"$f":"ROUNDDOWN(AC$203/$F254,0)-SUM($AE254:AW254)","v":65800}]
[null,"C1","Filtros y Lubricantes (Gas)","UND",1,1,0.158,"Aceites y filtros ",null,{"$f":"+AE255*$E255*$G255*(1+'Sup Generales'!C$10)","v":10645.9136},{"$f":"+AF255*$E255*$G255*(1+'Sup Generales'!D$10)","v":10816.248217599999},{"$f":"+AG255*$E255*$G255*(1+'Sup Generales'!E$10)","v":11097.470671257599},{"$f":"+AH255*$E255*$G255*(1+'Sup Generales'!F$10)","v":11145.411744557434},{"$f":"+AI255*$E255*$G255*(1+'Sup Generales'!G$10)","v":11175.504356267738},{"$f":"+AJ255*$E255*$G255*(1+'Sup Generales'!H$10)","v":11250.380235454732},{"$f":"+AK255*$E255*$G255*(1+'Sup Generales'!I$10)","v":11468.764178800204},{"$f":"+AL255*$E255*$G255*(1+'Sup Generales'!J$10)","v":11667.792037162462},{"$f":"+AM255*$E255*$G255*(1+'Sup Generales'!K$10)","v":11837.682609480136},{"$f":"+AN255*$E255*$G255*(1+'Sup Generales'!L$10)","v":11996.079386270896},{"$f":"+AO255*$E255*$G255*(1+'Sup Generales'!M$10)","v":12152.667998080376},{"$f":"+AP255*$E255*$G255*(1+'Sup Generales'!N$10)","v":12291.633516036518},{"$f":"+AQ255*$E255*$G255*(1+'Sup Generales'!O$10)","v":12443.119943078385},{"$f":"+AR255*$E255*$G255*(1+'Sup Generales'!P$10)","v":12611.442964199929},{"$f":"+AS255*$E255*$G255*(1+'Sup Generales'!Q$10)","v":12792.805873316966},{"$f":"+AT255*$E255*$G255*(1+'Sup Generales'!R$10)","v":12968.732768006837},{"$f":"+AU255*$E255*$G255*(1+'Sup Generales'!S$10)","v":13141.240021473372},{"$f":"+AV255*$E255*$G255*(1+'Sup Generales'!T$10)","v":13313.974051616216},{"$f":"+AW255*$E255*$G255*(1+'Sup Generales'!U$10)","v":13488.585307673367},{"$f":"+AX255*$E255*$G255*(1+'Sup Generales'!V$10)","v":13665.59038300157},null,65800,{"$f":"ROUNDDOWN(K$203/$F255,0)-SUM($AE255:AE255)","v":65800},{"$f":"ROUNDDOWN(L$203/$F255,0)-SUM($AE255:AF255)","v":65800},{"$f":"ROUNDDOWN(M$203/$F255,0)-SUM($AE255:AG255)","v":65800},{"$f":"ROUNDDOWN(N$203/$F255,0)-SUM($AE255:AH255)","v":65800},{"$f":"ROUNDDOWN(O$203/$F255,0)-SUM($AE255:AI255)","v":65800},{"$f":"ROUNDDOWN(P$203/$F255,0)-SUM($AE255:AJ255)","v":65800},{"$f":"ROUNDDOWN(Q$203/$F255,0)-SUM($AE255:AK255)","v":65800},{"$f":"ROUNDDOWN(R$203/$F255,0)-SUM($AE255:AL255)","v":65800},{"$f":"ROUNDDOWN(S$203/$F255,0)-SUM($AE255:AM255)","v":65800},{"$f":"ROUNDDOWN(T$203/$F255,0)-SUM($AE255:AN255)","v":65800},{"$f":"ROUNDDOWN(U$203/$F255,0)-SUM($AE255:AO255)","v":65800},{"$f":"ROUNDDOWN(V$203/$F255,0)-SUM($AE255:AP255)","v":65800},{"$f":"ROUNDDOWN(W$203/$F255,0)-SUM($AE255:AQ255)","v":65800},{"$f":"ROUNDDOWN(X$203/$F255,0)-SUM($AE255:AR255)","v":65800},{"$f":"ROUNDDOWN(Y$203/$F255,0)-SUM($AE255:AS255)","v":65800},{"$f":"ROUNDDOWN(Z$203/$F255,0)-SUM($AE255:AT255)","v":65800},{"$f":"ROUNDDOWN(AA$203/$F255,0)-SUM($AE255:AU255)","v":65800},{"$f":"ROUNDDOWN(AB$203/$F255,0)-SUM($AE255:AV255)","v":65800},{"$f":"ROUNDDOWN(AC$203/$F255,0)-SUM($AE255:AW255)","v":65800}]
[null,"C2","Mantenimiento Electrico (Gas)","UND",1,1,4.9000000000000002E-2,"Costo de mantenimiento eléctrico ",null,{"$f":"+AE256*$E256*$G256*(1+'Sup Generales'!C$10)","v":3301.5808000000002},{"$f":"+AF256*$E256*$G256*(1+'Sup Generales'!D$10)","v":3354.4060928000004},{"$f":"+AG256*$E256*$G256*(1+'Sup Generales'!E$10)","v":3441.6206512128001},{"$f":"+AH256*$E256*$G256*(1+'Sup Generales'!F$10)","v":3456.4884524260401},{"$f":"+AI256*$E256*$G256*(1+'Sup Generales'!G$10)","v":3465.8209712475905},{"$f":"+AJ256*$E256*$G256*(1+'Sup Generales'!H$10)","v":3489.0419717549489},{"$f":"+AK256*$E256*$G256*(1+'Sup Generales'!I$10)","v":3556.7686377291775},{"$f":"+AL256*$E256*$G256*(1+'Sup Generales'!J$10)","v":3618.4924672212705},{"$f":"+AM256*$E256*$G256*(1+'Sup Generales'!K$10)","v":3671.1800497754857},{"$f":"+AN256*$E256*$G256*(1+'Sup Generales'!L$10)","v":3720.3031008055318},{"$f":"+AO256*$E256*$G256*(1+'Sup Generales'!M$10)","v":3768.8653918097375},{"$f":"+AP256*$E256*$G256*(1+'Sup Generales'!N$10)","v":3811.9622929480342},{"$f":"+AQ256*$E256*$G256*(1+'Sup Generales'!O$10)","v":3858.942260828107},{"$f":"+AR256*$E256*$G256*(1+'Sup Generales'!P$10)","v":3911.1437040873202},{"$f":"+AS256*$E256*$G256*(1+'Sup Generales'!Q$10)","v":3967.3891632438699},{"$f":"+AT256*$E256*$G256*(1+'Sup Generales'!R$10)","v":4021.9487698249059},{"$f":"+AU256*$E256*$G256*(1+'Sup Generales'!S$10)","v":4075.4478547607296},{"$f":"+AV256*$E256*$G256*(1+'Sup Generales'!T$10)","v":4129.0172691721182},{"$f":"+AW256*$E256*$G256*(1+'Sup Generales'!U$10)","v":4183.1688612404751},{"$f":"+AX256*$E256*$G256*(1+'Sup Generales'!V$10)","v":4238.0628402979564},null,65800,{"$f":"ROUNDDOWN(K$203/$F256,0)-SUM($AE256:AE256)","v":65800},{"$f":"ROUNDDOWN(L$203/$F256,0)-SUM($AE256:AF256)","v":65800},{"$f":"ROUNDDOWN(M$203/$F256,0)-SUM($AE256:AG256)","v":65800},{"$f":"ROUNDDOWN(N$203/$F256,0)-SUM($AE256:AH256)","v":65800},{"$f":"ROUNDDOWN(O$203/$F256,0)-SUM($AE256:AI256)","v":65800},{"$f":"ROUNDDOWN(P$203/$F256,0)-SUM($AE256:AJ256)","v":65800},{"$f":"ROUNDDOWN(Q$203/$F256,0)-SUM($AE256:AK256)","v":65800},{"$f":"ROUNDDOWN(R$203/$F256,0)-SUM($AE256:AL256)","v":65800},{"$f":"ROUNDDOWN(S$203/$F256,0)-SUM($AE256:AM256)","v":65800},{"$f":"ROUNDDOWN(T$203/$F256,0)-SUM($AE256:AN256)","v":65800},{"$f":"ROUNDDOWN(U$203/$F256,0)-SUM($AE256:AO256)","v":65800},{"$f":"ROUNDDOWN(V$203/$F256,0)-SUM($AE256:AP256)","v":65800},{"$f":"ROUNDDOWN(W$203/$F256,0)-SUM($AE256:AQ256)","v":65800},{"$f":"ROUNDDOWN(X$203/$F256,0)-SUM($AE256:AR256)","v":65800},{"$f":"ROUNDDOWN(Y$203/$F256,0)-SUM($AE256:AS256)","v":65800},{"$f":"ROUNDDOWN(Z$203/$F256,0)-SUM($AE256:AT256)","v":65800},{"$f":"ROUNDDOWN(AA$203/$F256,0)-SUM($AE256:AU256)","v":65800},{"$f":"ROUNDDOWN(AB$203/$F256,0)-SUM($AE256:AV256)","v":65800},{"$f":"ROUNDDOWN(AC$203/$F256,0)-SUM($AE256:AW256)","v":65800}]
[null,"C3","Manto. Chasis y Motor (Gas)","UND",1,1,9.7199999999999995E-2,"Costo de mantenimiento mecánico",null,{"$f":"+AE257*$E257*$G257*(1+'Sup Generales'!C$10)","v":6549.2582399999992},{"$f":"+AF257*$E257*$G257*(1+'Sup Generales'!D$10)","v":6654.0463718399988},{"$f":"+AG257*$E257*$G257*(1+'Sup Generales'!E$10)","v":6827.0515775078393},{"$f":"+AH257*$E257*$G257*(1+'Sup Generales'!F$10)","v":6856.5444403226738},{"$f":"+AI257*$E257*$G257*(1+'Sup Generales'!G$10)","v":6875.0571103115453},{"$f":"+AJ257*$E257*$G257*(1+'Sup Generales'!H$10)","v":6921.119992950632},{"$f":"+AK257*$E257*$G257*(1+'Sup Generales'!I$10)","v":7055.4675834137961},{"$f":"+AL257*$E257*$G257*(1+'Sup Generales'!J$10)","v":7177.9075064062736},{"$f":"+AM257*$E257*$G257*(1+'Sup Generales'!K$10)","v":7282.4224660852478},{"$f":"+AN257*$E257*$G257*(1+'Sup Generales'!L$10)","v":7379.8665591489307},{"$f":"+AO257*$E257*$G257*(1+'Sup Generales'!M$10)","v":7476.1982874266614},{"$f":"+AP257*$E257*$G257*(1+'Sup Generales'!N$10)","v":7561.6884668275279},{"$f":"+AQ257*$E257*$G257*(1+'Sup Generales'!O$10)","v":7654.8813827039176},{"$f":"+AR257*$E257*$G257*(1+'Sup Generales'!P$10)","v":7758.4320007609685},{"$f":"+AS257*$E257*$G257*(1+'Sup Generales'!Q$10)","v":7870.0046258633483},{"$f":"+AT257*$E257*$G257*(1+'Sup Generales'!R$10)","v":7978.2330699383838},{"$f":"+AU257*$E257*$G257*(1+'Sup Generales'!S$10)","v":8084.3577853620982},{"$f":"+AV257*$E257*$G257*(1+'Sup Generales'!T$10)","v":8190.6220115006081},{"$f":"+AW257*$E257*$G257*(1+'Sup Generales'!U$10)","v":8298.0410880117161},{"$f":"+AX257*$E257*$G257*(1+'Sup Generales'!V$10)","v":8406.9328178971682},null,65800,{"$f":"ROUNDDOWN(K$203/$F257,0)-SUM($AE257:AE257)","v":65800},{"$f":"ROUNDDOWN(L$203/$F257,0)-SUM($AE257:AF257)","v":65800},{"$f":"ROUNDDOWN(M$203/$F257,0)-SUM($AE257:AG257)","v":65800},{"$f":"ROUNDDOWN(N$203/$F257,0)-SUM($AE257:AH257)","v":65800},{"$f":"ROUNDDOWN(O$203/$F257,0)-SUM($AE257:AI257)","v":65800},{"$f":"ROUNDDOWN(P$203/$F257,0)-SUM($AE257:AJ257)","v":65800},{"$f":"ROUNDDOWN(Q$203/$F257,0)-SUM($AE257:AK257)","v":65800},{"$f":"ROUNDDOWN(R$203/$F257,0)-SUM($AE257:AL257)","v":65800},{"$f":"ROUNDDOWN(S$203/$F257,0)-SUM($AE257:AM257)","v":65800},{"$f":"ROUNDDOWN(T$203/$F257,0)-SUM($AE257:AN257)","v":65800},{"$f":"ROUNDDOWN(U$203/$F257,0)-SUM($AE257:AO257)","v":65800},{"$f":"ROUNDDOWN(V$203/$F257,0)-SUM($AE257:AP257)","v":65800},{"$f":"ROUNDDOWN(W$203/$F257,0)-SUM($AE257:AQ257)","v":65800},{"$f":"ROUNDDOWN(X$203/$F257,0)-SUM($AE257:AR257)","v":65800},{"$f":"ROUNDDOWN(Y$203/$F257,0)-SUM($AE257:AS257)","v":65800},{"$f":"ROUNDDOWN(Z$203/$F257,0)-SUM($AE257:AT257)","v":65800},{"$f":"ROUNDDOWN(AA$203/$F257,0)-SUM($AE257:AU257)","v":65800},{"$f":"ROUNDDOWN(AB$203/$F257,0)-SUM($AE257:AV257)","v":65800},{"$f":"ROUNDDOWN(AC$203/$F257,0)-SUM($AE257:AW257)","v":65800}]
[null,"C4","Manto. Carroceria (Gas)","UND",1,1,1.0800000000000001E-2,"Carrocería ",null,{"$f":"+AE258*$E258*$G258*(1+'Sup Generales'!C$10)","v":727.69536000000005},{"$f":"+AF258*$E258*$G258*(1+'Sup Generales'!D$10)","v":739.33848575999991},{"$f":"+AG258*$E258*$G258*(1+'Sup Generales'!E$10)","v":758.56128638975997},{"$f":"+AH258*$E258*$G258*(1+'Sup Generales'!F$10)","v":761.83827114696385},{"$f":"+AI258*$E258*$G258*(1+'Sup Generales'!G$10)","v":763.8952344790606},{"$f":"+AJ258*$E258*$G258*(1+'Sup Generales'!H$10)","v":769.01333255007034},{"$f":"+AK258*$E258*$G258*(1+'Sup Generales'!I$10)","v":783.94084260153295},{"$f":"+AL258*$E258*$G258*(1+'Sup Generales'!J$10)","v":797.54527848958605},{"$f":"+AM258*$E258*$G258*(1+'Sup Generales'!K$10)","v":809.15805178724986},{"$f":"+AN258*$E258*$G258*(1+'Sup Generales'!L$10)","v":819.98517323877013},{"$f":"+AO258*$E258*$G258*(1+'Sup Generales'!M$10)","v":830.6886986029624},{"$f":"+AP258*$E258*$G258*(1+'Sup Generales'!N$10)","v":840.18760742528093},{"$f":"+AQ258*$E258*$G258*(1+'Sup Generales'!O$10)","v":850.54237585599083},{"$f":"+AR258*$E258*$G258*(1+'Sup Generales'!P$10)","v":862.04800008455209},{"$f":"+AS258*$E258*$G258*(1+'Sup Generales'!Q$10)","v":874.44495842926096},{"$f":"+AT258*$E258*$G258*(1+'Sup Generales'!R$10)","v":886.47034110426489},{"$f":"+AU258*$E258*$G258*(1+'Sup Generales'!S$10)","v":898.26197615134436},{"$f":"+AV258*$E258*$G258*(1+'Sup Generales'!T$10)","v":910.06911238895657},{"$f":"+AW258*$E258*$G258*(1+'Sup Generales'!U$10)","v":922.00456533463523},{"$f":"+AX258*$E258*$G258*(1+'Sup Generales'!V$10)","v":934.10364643301887},null,65800,{"$f":"ROUNDDOWN(K$203/$F258,0)-SUM($AE258:AE258)","v":65800},{"$f":"ROUNDDOWN(L$203/$F258,0)-SUM($AE258:AF258)","v":65800},{"$f":"ROUNDDOWN(M$203/$F258,0)-SUM($AE258:AG258)","v":65800},{"$f":"ROUNDDOWN(N$203/$F258,0)-SUM($AE258:AH258)","v":65800},{"$f":"ROUNDDOWN(O$203/$F258,0)-SUM($AE258:AI258)","v":65800},{"$f":"ROUNDDOWN(P$203/$F258,0)-SUM($AE258:AJ258)","v":65800},{"$f":"ROUNDDOWN(Q$203/$F258,0)-SUM($AE258:AK258)","v":65800},{"$f":"ROUNDDOWN(R$203/$F258,0)-SUM($AE258:AL258)","v":65800},{"$f":"ROUNDDOWN(S$203/$F258,0)-SUM($AE258:AM258)","v":65800},{"$f":"ROUNDDOWN(T$203/$F258,0)-SUM($AE258:AN258)","v":65800},{"$f":"ROUNDDOWN(U$203/$F258,0)-SUM($AE258:AO258)","v":65800},{"$f":"ROUNDDOWN(V$203/$F258,0)-SUM($AE258:AP258)","v":65800},{"$f":"ROUNDDOWN(W$203/$F258,0)-SUM($AE258:AQ258)","v":65800},{"$f":"ROUNDDOWN(X$203/$F258,0)-SUM($AE258:AR258)","v":65800},{"$f":"ROUNDDOWN(Y$203/$F258,0)-SUM($AE258:AS258)","v":65800},{"$f":"ROUNDDOWN(Z$203/$F258,0)-SUM($AE258:AT258)","v":65800},{"$f":"ROUNDDOWN(AA$203/$F258,0)-SUM($AE258:AU258)","v":65800},{"$f":"ROUNDDOWN(AB$203/$F258,0)-SUM($AE258:AV258)","v":65800},{"$f":"ROUNDDOWN(AC$203/$F258,0)-SUM($AE258:AW258)","v":65800}]
[]
[null,null,null,null,null,null,null,"Total ",null,{"$f":"IF('Sup fijo'!$C$93='Sup fijo'!$AR$2,SUM(J206:J245),0)+IF('Sup fijo'!$C$93='Sup fijo'!$AS$2,SUM(J247:J250),0)+IF('Sup fijo'!$C$93='Sup fijo'!$AT$2,SUM(J251:J254),0)+IF('Sup fijo'!$C$93='Sup fijo'!$AU$2,SUM(J255:J258),0)+IF($L$1=$D$6,J246,0)","v":19146.789546666671},{"$f":"IF('Sup fijo'!$C$93='Sup fijo'!$AR$2,SUM(K206:K245),0)+IF('Sup fijo'!$C$93='Sup fijo'!$AS$2,SUM(K247:K250),0)+IF('Sup fijo'!$C$93='Sup fijo'!$AT$2,SUM(K251:K254),0)+IF('Sup fijo'!$C$93='Sup fijo'!$AU$2,SUM(K255:K258),0)+IF($L$1=$D$6,K246,0)","v":23924.383144618663},{"$f":"IF('Sup fijo'!$C$93='Sup fijo'!$AR$2,SUM(L206:L245),0)+IF('Sup fijo'!$C$93='Sup fijo'!$AS$2,SUM(L247:L250),0)+IF('Sup fijo'!$C$93='Sup fijo'!$AT$2,SUM(L251:L254),0)+IF('Sup fijo'!$C$93='Sup fijo'!$AU$2,SUM(L255:L258),0)+IF($L$1=$D$6,L246,0)","v":28403.60213388376},{"$f":"IF('Sup fijo'!$C$93='Sup fijo'!$AR$2,SUM(M206:M245),0)+IF('Sup fijo'!$C$93='Sup fijo'!$AS$2,SUM(M247:M250),0)+IF('Sup fijo'!$C$93='Sup fijo'!$AT$2,SUM(M251:M254),0)+IF('Sup fijo'!$C$93='Sup fijo'!$AU$2,SUM(M255:M258),0)+IF($L$1=$D$6,M246,0)","v":31319.448736440179},{"$f":"IF('Sup fijo'!$C$93='Sup fijo'!$AR$2,SUM(N206:N245),0)+IF('Sup fijo'!$C$93='Sup fijo'!$AS$2,SUM(N247:N250),0)+IF('Sup fijo'!$C$93='Sup fijo'!$AT$2,SUM(N251:N254),0)+IF('Sup fijo'!$C$93='Sup fijo'!$AU$2,SUM(N255:N258),0)+IF($L$1=$D$6,N246,0)","v":27165.653831424192},{"$f":"IF('Sup fijo'!$C$93='Sup fijo'!$AR$2,SUM(O206:O245),0)+IF('Sup fijo'!$C$93='Sup fijo'!$AS$2,SUM(O247:O250),0)+IF('Sup fijo'!$C$93='Sup fijo'!$AT$2,SUM(O251:O254),0)+IF('Sup fijo'!$C$93='Sup fijo'!$AU$2,SUM(O255:O258),0)+IF($L$1=$D$6,O246,0)","v":27756.961399454936},{"$f":"IF('Sup fijo'!$C$93='Sup fijo'!$AR$2,SUM(P206:P245),0)+IF('Sup fijo'!$C$93='Sup fijo'!$AS$2,SUM(P247:P250),0)+IF('Sup fijo'!$C$93='Sup fijo'!$AT$2,SUM(P251:P254),0)+IF('Sup fijo'!$C$93='Sup fijo'!$AU$2,SUM(P255:P258),0)+IF($L$1=$D$6,P246,0)","v":22212.383314582778},{"$f":"IF('Sup fijo'!$C$93='Sup fijo'!$AR$2,SUM(Q206:Q245),0)+IF('Sup fijo'!$C$93='Sup fijo'!$AS$2,SUM(Q247:Q250),0)+IF('Sup fijo'!$C$93='Sup fijo'!$AT$2,SUM(Q251:Q254),0)+IF('Sup fijo'!$C$93='Sup fijo'!$AU$2,SUM(Q255:Q258),0)+IF($L$1=$D$6,Q246,0)","v":38972.143685952688},{"$f":"IF('Sup fijo'!$C$93='Sup fijo'!$AR$2,SUM(R206:R245),0)+IF('Sup fijo'!$C$93='Sup fijo'!$AS$2,SUM(R247:R250),0)+IF('Sup fijo'!$C$93='Sup fijo'!$AT$2,SUM(R251:R254),0)+IF('Sup fijo'!$C$93='Sup fijo'!$AU$2,SUM(R255:R258),0)+IF($L$1=$D$6,R246,0)","v":23010.795511352673},{"$f":"IF('Sup fijo'!$C$93='Sup fijo'!$AR$2,SUM(S206:S245),0)+IF('Sup fijo'!$C$93='Sup fijo'!$AS$2,SUM(S247:S250),0)+IF('Sup fijo'!$C$93='Sup fijo'!$AT$2,SUM(S251:S254),0)+IF('Sup fijo'!$C$93='Sup fijo'!$AU$2,SUM(S255:S258),0)+IF($L$1=$D$6,S246,0)","v":38649.768806421969},{"$f":"IF('Sup fijo'!$C$93='Sup fijo'!$AR$2,SUM(T206:T245),0)+IF('Sup fijo'!$C$93='Sup fijo'!$AS$2,SUM(T247:T250),0)+IF('Sup fijo'!$C$93='Sup fijo'!$AT$2,SUM(T251:T254),0)+IF('Sup fijo'!$C$93='Sup fijo'!$AU$2,SUM(T255:T258),0)+IF($L$1=$D$6,T246,0)","v":40986.530450326602},{"$f":"IF('Sup fijo'!$C$93='Sup fijo'!$AR$2,SUM(U206:U245),0)+IF('Sup fijo'!$C$93='Sup fijo'!$AS$2,SUM(U247:U250),0)+IF('Sup fijo'!$C$93='Sup fijo'!$AT$2,SUM(U251:U254),0)+IF('Sup fijo'!$C$93='Sup fijo'!$AU$2,SUM(U255:U258),0)+IF($L$1=$D$6,U246,0)","v":29727.690424193413},{"$f":"IF('Sup fijo'!$C$93='Sup fijo'!$AR$2,SUM(V206:V245),0)+IF('Sup fijo'!$C$93='Sup fijo'!$AS$2,SUM(V247:V250),0)+IF('Sup fijo'!$C$93='Sup fijo'!$AT$2,SUM(V251:V254),0)+IF('Sup fijo'!$C$93='Sup fijo'!$AU$2,SUM(V255:V258),0)+IF($L$1=$D$6,V246,0)","v":27971.083197866417},{"$f":"IF('Sup fijo'!$C$93='Sup fijo'!$AR$2,SUM(W206:W245),0)+IF('Sup fijo'!$C$93='Sup fijo'!$AS$2,SUM(W247:W250),0)+IF('Sup fijo'!$C$93='Sup fijo'!$AT$2,SUM(W251:W254),0)+IF('Sup fijo'!$C$93='Sup fijo'!$AU$2,SUM(W255:W258),0)+IF($L$1=$D$6,W246,0)","v":25593.593619644143},{"$f":"IF('Sup fijo'!$C$93='Sup fijo'!$AR$2,SUM(X206:X245),0)+IF('Sup fijo'!$C$93='Sup fijo'!$AS$2,SUM(X247:X250),0)+IF('Sup fijo'!$C$93='Sup fijo'!$AT$2,SUM(X251:X254),0)+IF('Sup fijo'!$C$93='Sup fijo'!$AU$2,SUM(X255:X258),0)+IF($L$1=$D$6,X246,0)","v":42699.092990444566},{"$f":"IF('Sup fijo'!$C$93='Sup fijo'!$AR$2,SUM(Y206:Y245),0)+IF('Sup fijo'!$C$93='Sup fijo'!$AS$2,SUM(Y247:Y250),0)+IF('Sup fijo'!$C$93='Sup fijo'!$AT$2,SUM(Y251:Y254),0)+IF('Sup fijo'!$C$93='Sup fijo'!$AU$2,SUM(Y255:Y258),0)+IF($L$1=$D$6,Y246,0)","v":25615.567338837522},{"$f":"IF('Sup fijo'!$C$93='Sup fijo'!$AR$2,SUM(Z206:Z245),0)+IF('Sup fijo'!$C$93='Sup fijo'!$AS$2,SUM(Z247:Z250),0)+IF('Sup fijo'!$C$93='Sup fijo'!$AT$2,SUM(Z251:Z254),0)+IF('Sup fijo'!$C$93='Sup fijo'!$AU$2,SUM(Z255:Z258),0)+IF($L$1=$D$6,Z246,0)","v":38409.800472537208},{"$f":"IF('Sup fijo'!$C$93='Sup fijo'!$AR$2,SUM(AA206:AA245),0)+IF('Sup fijo'!$C$93='Sup fijo'!$AS$2,SUM(AA247:AA250),0)+IF('Sup fijo'!$C$93='Sup fijo'!$AT$2,SUM(AA251:AA254),0)+IF('Sup fijo'!$C$93='Sup fijo'!$AU$2,SUM(AA255:AA258),0)+IF($L$1=$D$6,AA246,0)","v":24959.222332482612},{"$f":"IF('Sup fijo'!$C$93='Sup fijo'!$AR$2,SUM(AB206:AB245),0)+IF('Sup fijo'!$C$93='Sup fijo'!$AS$2,SUM(AB247:AB250),0)+IF('Sup fijo'!$C$93='Sup fijo'!$AT$2,SUM(AB251:AB254),0)+IF('Sup fijo'!$C$93='Sup fijo'!$AU$2,SUM(AB255:AB258),0)+IF($L$1=$D$6,AB246,0)","v":51335.475724004573},{"$f":"IF('Sup fijo'!$C$93='Sup fijo'!$AR$2,SUM(AC206:AC245),0)+IF('Sup fijo'!$C$93='Sup fijo'!$AS$2,SUM(AC247:AC250),0)+IF('Sup fijo'!$C$93='Sup fijo'!$AT$2,SUM(AC251:AC254),0)+IF('Sup fijo'!$C$93='Sup fijo'!$AU$2,SUM(AC255:AC258),0)+IF($L$1=$D$6,AC246,0)","v":26470.820184137698}]
[null,null,null,null,null,null,null,"Costo Km ",null,{"$f":"+J260/J202","v":0.29098464356636278},0.36359244900636267,0.43166568592528509,0.47597946407963798,0.41285188193653788,0.42183831914065251,0.33757421450733704,0.59228181893545118,0.34970813847040538,0.58738250465686881,0.6228955995490365,0.45178860827041661,0.42509244981559907,0.38896038935629396,0.64892238587301776,0.3892943364564973,0.58373556949144689,0.37931948833560203,0.78017440310037345,0.40229210006288296]

{"sheet":"CAPEX Vehículo","index":6,"n_rows":65,"n_cols":23,"rows_kept":65,"cut":false,"hidden":false,"merged":[]}
[]
[null,"Estructura de costos Transporte Convencional"]
[null,"CAPEX VEHÍCULO"]
[]
[null,"Ítem",0,{"$f":"C5+1","v":1},{"$f":"D5+1","v":2},3,4,5,6,7,8,9,10,11,12,13,14,15,16,17,18,19,20]
[]
[null,{"$f":"C52","v":"Intracantonal Rural"}]
[null,"Financiación (USD)"]
[null,"Saldo Inicial Capital ",{"$f":"C$55","v":54000},{"$f":"+C9-C10","v":54000},{"$f":"+D9-D10","v":45830.688489483655},36517.673367495023,25900.836128427978,13797.641675891547,1.6370904631912708E-11,1.6370904631912708E-11,1.6370904631912708E-11,1.6370904631912708E-11,1.6370904631912708E-11,1.6370904631912708E-11,1.6370904631912708E-11,1.6370904631912708E-11,1.6370904631912708E-11,1.6370904631912708E-11,1.6370904631912708E-11,1.6370904631912708E-11,1.6370904631912708E-11,1.6370904631912708E-11,1.6370904631912708E-11]
[null,"Pago capital ",null,{"$f":"IF(D$5<=$C$56,PPMT($C$58,D$5,$C$56,-$C9),0)","v":8169.311510516347},9313.0151219886357,10616.837239067045,12103.194452536431,13797.641675891531,0,0,0,0,0,0,0,0,0,0,0,0,0,0,0]
[null,"Saldo Final Capital ",null,{"$f":"D9-D10","v":45830.688489483655},{"$f":"E9-E10","v":36517.673367495023},25900.836128427978,13797.641675891547,1.6370904631912708E-11,1.6370904631912708E-11,1.6370904631912708E-11,1.6370904631912708E-11,1.6370904631912708E-11,1.6370904631912708E-11,1.6370904631912708E-11,1.6370904631912708E-11,1.6370904631912708E-11,1.6370904631912708E-11,1.6370904631912708E-11,1.6370904631912708E-11,1.6370904631912708E-11,1.6370904631912708E-11,1.6370904631912708E-11,1.6370904631912708E-11]
[null,"Pago intereses ",null,{"$f":"IF(D9=0,0,D9*$C$58)","v":7560.0000000000009},6416.2963885277122,5112.4742714493041,3626.1170579799173,1931.6698346248168,2.2919266484677796E-12,2.2919266484677796E-12,2.2919266484677796E-12,2.2919266484677796E-12,2.2919266484677796E-12,2.2919266484677796E-12,2.2919266484677796E-12,2.2919266484677796E-12,2.2919266484677796E-12,2.2919266484677796E-12,2.2919266484677796E-12,2.2919266484677796E-12,2.2919266484677796E-12,2.2919266484677796E-12,2.2919266484677796E-12]
[null,"Depreciación vehículo (USD)"]
[null,"Valor en libros ",{"$f":"+C$53+C15","v":90000},{"$f":"+C14-D15","v":84000},{"$f":"+D14-E15","v":78000},72000,66000,60000,54000,48000,42000,36000,30000,24000,18000,18000,18000,18000,18000,18000,18000,18000,18000]
[null,"Depreciación vehículo",null,{"$f":"IF(D$5<=$C$62,$C$65,0)","v":6000},6000,6000,6000,6000,6000,6000,6000,6000,6000,6000,6000,0,0,0,0,0,0,0,0]
[]
[]
[null,{"$f":"D61","v":"Intracantonal Urbano"}]
[null,"Financiación (USD)"]
[null,"Saldo Inicial Capital ",{"$f":"D$55","v":73200},{"$f":"+C20-C21","v":73200},{"$f":"+D20-D21","v":62126.044396855621},49501.735009271026,35110.022307424588,18703.469827319648,0,0,0,0,0,0,0,0,0,0,0,0,0,0,0]
[null,"Pago capital ",null,{"$f":"IF(D$5<=$D$56,PPMT($D$58,D$5,$D$56,-$C20),0)","v":11073.955603144383},{"$f":"IF(E$5<=$C$56,PPMT($C$58,E$5,$C$56,-$C20),0)","v":12624.309387584593},14391.71270184644,16406.55248010494,18703.46982731963,0,0,0,0,0,0,0,0,0,0,0,0,0,0,0]
[null,"Saldo Final Capital ",null,{"$f":"D20-D21","v":62126.044396855621},{"$f":"E20-E21","v":49501.735009271026},{"$f":"F20-F21","v":35110.022307424588},{"$f":"G20-G21","v":18703.469827319648},{"$f":"H20-H21","v":0},{"$f":"I20-I21","v":0},{"$f":"J20-J21","v":0},{"$f":"K20-K21","v":0},{"$f":"L20-L21","v":0},{"$f":"M20-M21","v":0},{"$f":"N20-N21","v":0},{"$f":"O20-O21","v":0},{"$f":"P20-P21","v":0},{"$f":"Q20-Q21","v":0},{"$f":"R20-R21","v":0},{"$f":"S20-S21","v":0},{"$f":"T20-T21","v":0},{"$f":"U20-U21","v":0},{"$f":"V20-V21","v":0},{"$f":"W20-W21","v":0}]
[null,"Pago intereses ",null,{"$f":"IF(D20=0,0,D20*$D$58)","v":10248.000000000002},8697.6462155597874,6930.2429012979446,4915.403123039443,2618.4857758247508,0,0,0,0,0,0,0,0,0,0,0,0,0,0,0]
[null,"Depreciación vehículo (USD)"]
[null,"Valor en libros ",{"$f":"+D$53+C26","v":122000},{"$f":"+C25-D26","v":113866.66666666667},{"$f":"+D25-E26","v":105733.33333333334},97600.000000000015,89466.666666666686,81333.333333333358,73200.000000000029,65066.666666666693,56933.333333333358,48800.000000000022,40666.666666666686,32533.333333333354,24400.000000000022,24400.000000000022,24400.000000000022,24400.000000000022,24400.000000000022,24400.000000000022,24400.000000000022,24400.000000000022,24400.000000000022]
[null,"Depreciación vehículo",null,{"$f":"IF(D$5<=$D$62,$D$65,0)","v":8133.333333333333},8133.333333333333,8133.333333333333,8133.333333333333,8133.333333333333,8133.333333333333,8133.333333333333,8133.333333333333,8133.333333333333,8133.333333333333,8133.333333333333,8133.333333333333,0,0,0,0,0,0,0,0]
[]
[]
[null,{"$f":"E52","v":"Intracantonal Combinado"}]
[null,"Financiación (USD)"]
[null,"Saldo Inicial Capital ",{"$f":"E$55","v":73200},{"$f":"+C31-C32","v":73200},{"$f":"+D31-D32","v":62126.044396855621},49501.735009271026,35110.022307424588,18703.469827319648,0,0,0,0,0,0,0,0,0,0,0,0,0,0,0]
[null,"Pago capital ",null,{"$f":"IF(D$5<=$E$56,PPMT($E$58,D$5,$E$56,-$C31),0)","v":11073.955603144383},12624.309387584593,14391.71270184644,16406.55248010494,18703.46982731963,0,0,0,0,0,0,0,0,0,0,0,0,0,0,0]
[null,"Saldo Final Capital ",null,{"$f":"D31-D32","v":62126.044396855621},{"$f":"E31-E32","v":49501.735009271026},{"$f":"F31-F32","v":35110.022307424588},{"$f":"G31-G32","v":18703.469827319648},{"$f":"H31-H32","v":0},{"$f":"I31-I32","v":0},{"$f":"J31-J32","v":0},{"$f":"K31-K32","v":0},{"$f":"L31-L32","v":0},{"$f":"M31-M32","v":0},{"$f":"N31-N32","v":0},{"$f":"O31-O32","v":0},{"$f":"P31-P32","v":0},{"$f":"Q31-Q32","v":0},{"$f":"R31-R32","v":0},{"$f":"S31-S32","v":0},{"$f":"T31-T32","v":0},{"$f":"U31-U32","v":0},{"$f":"V31-V32","v":0},{"$f":"W31-W32","v":0}]
[null,"Pago intereses ",null,{"$f":"IF(D31=0,0,D31*$E$58)","v":10248.000000000002},8697.6462155597874,6930.2429012979446,4915.403123039443,2618.4857758247508,0,0,0,0,0,0,0,0,0,0,0,0,0,0,0]
[null,"Depreciación vehículo (USD)"]
[null,"Valor en libros ",{"$f":"+E$53+C37","v":122000},{"$f":"+C36-D37","v":113866.66666666667},{"$f":"+D36-E37","v":105733.33333333334},97600.000000000015,89466.666666666686,81333.333333333358,73200.000000000029,65066.666666666693,56933.333333333358,48800.000000000022,40666.666666666686,32533.333333333354,24400.000000000022,24400.000000000022,24400.000000000022,24400.000000000022,24400.000000000022,24400.000000000022,24400.000000000022,24400.000000000022,24400.000000000022]
[null,"Depreciación vehículo",null,{"$f":"IF(D$5<=$E$62,$E$65,0)","v":8133.333333333333},8133.333333333333,8133.333333333333,8133.333333333333,8133.333333333333,8133.333333333333,8133.333333333333,8133.333333333333,8133.333333333333,8133.333333333333,8133.333333333333,8133.333333333333,0,0,0,0,0,0,0,0]
[]
[]
[null,{"$f":"F52","v":"Otro"}]
[null,"Financiación (USD)"]
[null,"Saldo Inicial Capital ",{"$f":"F$55","v":123647.148},{"$f":"+C42-C43","v":123647.148},{"$f":"+D42-D43","v":104941.36893705706},83616.780805302114,59306.750335101475,31593.31559907275,0,0,0,0,0,0,0,0,0,0,0,0,0,0,0]
[null,"Pago capital ",null,{"$f":"IF(D$5<=$F$56,PPMT($F$58,D$5,$F$56,-$C42),0)","v":18705.779062942933},21324.588131754943,24310.030470200636,27713.434736028725,31593.315599072746,0,0,0,0,0,0,0,0,0,0,0,0,0,0,0]
[null,"Saldo Final Capital ",null,{"$f":"D42-D43","v":104941.36893705706},{"$f":"E42-E43","v":83616.780805302114},{"$f":"F42-F43","v":59306.750335101475},{"$f":"G42-G43","v":31593.31559907275},{"$f":"H42-H43","v":0},{"$f":"I42-I43","v":0},{"$f":"J42-J43","v":0},{"$f":"K42-K43","v":0},{"$f":"L42-L43","v":0},{"$f":"M42-M43","v":0},{"$f":"N42-N43","v":0},{"$f":"O42-O43","v":0},{"$f":"P42-P43","v":0},{"$f":"Q42-Q43","v":0},{"$f":"R42-R43","v":0},{"$f":"S42-S43","v":0},{"$f":"T42-T43","v":0},{"$f":"U42-U43","v":0},{"$f":"V42-V43","v":0},{"$f":"W42-W43","v":0}]
[null,"Pago intereses ",null,{"$f":"IF(D42=0,0,D42*$F$58)","v":17310.600720000002},14691.79165118799,11706.349312742297,8302.9450469142066,4423.0641838701858,0,0,0,0,0,0,0,0,0,0,0,0,0,0,0]
[null,"Depreciación vehículo (USD)"]
[null,"Valor en libros ",{"$f":"+F$53+C48","v":206078.58000000002},{"$f":"+C47-D48","v":192340.008},{"$f":"+D47-E48","v":178601.43599999999},164862.86399999997,151124.29199999996,137385.71999999994,123647.14799999994,109908.57599999994,96170.003999999943,82431.431999999942,68692.859999999942,54954.287999999942,41215.715999999942,41215.715999999942,41215.715999999942,41215.715999999942,41215.715999999942,41215.715999999942,41215.715999999942,41215.715999999942,41215.715999999942]
[null,"Depreciación vehículo",null,{"$f":"IF(D$5<=$F$62,$F$65,0)","v":13738.572000000002},13738.572000000002,13738.572000000002,13738.572000000002,13738.572000000002,13738.572000000002,13738.572000000002,13738.572000000002,13738.572000000002,13738.572000000002,13738.572000000002,13738.572000000002,0,0,0,0,0,0,0,0]
[]
[]
[]
[null,"Estructura de Capital por Tipología de Vehículo",{"$f":"'Sup fijo'!$B14","v":"Intracantonal Rural"},{"$f":"'Sup fijo'!$B18","v":"Intracantonal Urbano"},{"$f":"'Sup fijo'!$B22","v":"Intracantonal Combinado"},{"$f":"'Sup fijo'!$B26","v":"Otro"}]
[null,"Valor vehículo (USD)",{"$f":"'Sup fijo'!$F51","v":90000},{"$f":"'Sup fijo'!$F52","v":122000},{"$f":"'Sup fijo'!$F53","v":122000},{"$f":"'Sup fijo'!$F54","v":206078.58000000002}]
[null,"Capital @ ",{"$f":"+C53*'Sup fijo'!D205","v":36000},{"$f":"+D53*'Sup fijo'!$D$205","v":48800},{"$f":"+E53*'Sup fijo'!$D$205","v":48800},{"$f":"+F53*'Sup fijo'!$D$205","v":82431.432000000015}]
[null,"Deuda @ ",{"$f":"+C53-C54","v":54000},{"$f":"+D53-D54","v":73200},{"$f":"+E53-E54","v":73200},{"$f":"+F53-F54","v":123647.148}]
[null,"Deuda plazo ",{"$f":"+'Sup fijo'!D208","v":5},{"$f":"+'Sup fijo'!D208","v":5},{"$f":"+'Sup fijo'!$D$208","v":5},{"$f":"+'Sup fijo'!$D$208","v":5}]
[null,"Periodo gracia ",{"$f":"+'Sup fijo'!D209","v":0},{"$f":"+'Sup fijo'!D209","v":0},{"$f":"+'Sup fijo'!$D$209","v":0},{"$f":"+'Sup fijo'!$D$209","v":0}]
[null,"Interés",{"$f":"+'Sup fijo'!D207","v":0.14000000000000001},{"$f":"+'Sup fijo'!D207","v":0.14000000000000001},{"$f":"+'Sup fijo'!$D$207","v":0.14000000000000001},{"$f":"+'Sup fijo'!$D$207","v":0.14000000000000001}]
[]
[]
[null,"Parámetros valor contable flota",{"$f":"C52","v":"Intracantonal Rural"},{"$f":"D52","v":"Intracantonal Urbano"},"Intracantonal Combinado","Otro"]
[null,"Depreciación  ",{"$f":"+'Sup fijo'!G51","v":12},{"$f":"+'Sup fijo'!G52","v":12},{"$f":"+'Sup fijo'!G53","v":12},{"$f":"+'Sup fijo'!G54","v":12}]
[null,"Valor de registro vehículo ",{"$f":"+C53","v":90000},{"$f":"+D53","v":122000},{"$f":"+E53","v":122000},{"$f":"+F53","v":206078.58000000002}]
[null,"Valor salvamento ",{"$f":"+'Sup fijo'!$I$51","v":0.2},{"$f":"+'Sup fijo'!I52","v":0.2},{"$f":"+'Sup fijo'!I53","v":0.2},{"$f":"+'Sup fijo'!I54","v":0.2}]
[null,"Depreciación anual ",{"$f":"+(C53*(1-C64))/C62","v":6000},{"$f":"+(D53*(1-D64))/D62","v":8133.333333333333},{"$f":"+(E53*(1-E64))/E62","v":8133.333333333333},{"$f":"+(F53*(1-F64))/F62","v":13738.572000000002}]

{"sheet":"OPEX Combustible ","index":7,"n_rows":73,"n_cols":27,"rows_kept":73,"cut":false,"hidden":false,"merged":[]}
[]
[null,"Estructura de costos Transporte Convencional"]
[null,"OPEX COMBUSTIBLE"]
[]
[null,null,null,null,null,null,"Año",1,{"$f":"H5+1","v":2},{"$f":"I5+1","v":3},4,5,6,7,8,9,10,11,12,13,14,15,16,17,18,19,20]
[]
[]
[null,{"$f":"+'Sup Personal Directo'!B46","v":"Intracantonal Rural"}]
[null,null,"Tecnología",{"$f":"'Sup fijo'!E89","v":"Rendimiento"},"Urea ",null,"Ajuste consumo",1,1,1,{"$f":"+J9*(1+'Sup fijo'!$D$104)","v":1.0049999999999999},{"$f":"+K9*(1+'Sup fijo'!$D$104)","v":1.0100249999999997},{"$f":"+L9*(1+'Sup fijo'!$D$104)","v":1.0150751249999996},{"$f":"+M9*(1+'Sup fijo'!$D$104)","v":1.0201505006249996},{"$f":"+N9*(1+'Sup fijo'!$D$104)","v":1.0252512531281244},{"$f":"+O9*(1+'Sup fijo'!$D$104)","v":1.0303775093937648},{"$f":"+P9*(1+'Sup fijo'!$D$104)","v":1.0355293969407335},{"$f":"+Q9*(1+'Sup fijo'!$D$104)","v":1.0407070439254371},{"$f":"+R9*(1+'Sup fijo'!$D$104)","v":1.0459105791450642},{"$f":"+S9*(1+'Sup fijo'!$D$104)","v":1.0511401320407894},{"$f":"+T9*(1+'Sup fijo'!$D$104)","v":1.0563958327009932},{"$f":"+U9*(1+'Sup fijo'!$D$104)","v":1.0616778118644981},{"$f":"+V9*(1+'Sup fijo'!$D$104)","v":1.0669862009238205},{"$f":"+W9*(1+'Sup fijo'!$D$104)","v":1.0723211319284394},{"$f":"+X9*(1+'Sup fijo'!$D$104)","v":1.0776827375880815},{"$f":"+Y9*(1+'Sup fijo'!$D$104)","v":1.0830711512760218},{"$f":"+Z9*(1+'Sup fijo'!$D$104)","v":1.0884865070324019}]
[null,"Datos vehículo ",{"$f":"+'Sup fijo'!D90","v":"Euro III"},{"$f":"+'Sup fijo'!E90","v":9.7357477693177721},{"$f":"IF(OR(C10='Sup fijo'!$D$96,C10='Sup fijo'!$E$96,C10='Sup fijo'!$F$96),+'Sup fijo'!$D$103,0)","v":0},null,"Consumo año ",{"$f":"'Sup fijo'!E17/$D10*IF($C17='Sup fijo'!$AR$2,H9,1)","v":7231.6992662735838},{"$f":"'Sup fijo'!F17/$D10*IF($C17='Sup fijo'!$AR$2,I9,1)","v":7231.6992662735838},{"$f":"'Sup fijo'!G17/$D10*IF($C17='Sup fijo'!$AR$2,J9,1)","v":7231.6992662735838},{"$f":"'Sup fijo'!H17/$D10*IF($C17='Sup fijo'!$AR$2,K9,1)","v":7267.8577626049509},{"$f":"'Sup fijo'!I17/$D10*IF($C17='Sup fijo'!$AR$2,L9,1)","v":7304.1970514179748},{"$f":"'Sup fijo'!J17/$D10*IF($C17='Sup fijo'!$AR$2,M9,1)","v":7340.7180366750636},{"$f":"'Sup fijo'!K17/$D10*IF($C17='Sup fijo'!$AR$2,N9,1)","v":7377.4216268584387},{"$f":"'Sup fijo'!L17/$D10*IF($C17='Sup fijo'!$AR$2,O9,1)","v":7414.3087349927291},{"$f":"'Sup fijo'!M17/$D10*IF($C17='Sup fijo'!$AR$2,P9,1)","v":7451.3802786676915},{"$f":"'Sup fijo'!N17/$D10*IF($C17='Sup fijo'!$AR$2,Q9,1)","v":7488.6371800610295},{"$f":"'Sup fijo'!O17/$D10*IF($C17='Sup fijo'!$AR$2,R9,1)","v":7526.0803659613339},{"$f":"'Sup fijo'!P17/$D10*IF($C17='Sup fijo'!$AR$2,S9,1)","v":7563.7107677911399},{"$f":"'Sup fijo'!Q17/$D10*IF($C17='Sup fijo'!$AR$2,T9,1)","v":7601.5293216300943},{"$f":"'Sup fijo'!R17/$D10*IF($C17='Sup fijo'!$AR$2,U9,1)","v":7639.5369682382443},{"$f":"'Sup fijo'!S17/$D10*IF($C17='Sup fijo'!$AR$2,V9,1)","v":7677.7346530794348},{"$f":"'Sup fijo'!T17/$D10*IF($C17='Sup fijo'!$AR$2,W9,1)","v":7716.1233263448312},{"$f":"'Sup fijo'!U17/$D10*IF($C17='Sup fijo'!$AR$2,X9,1)","v":7754.7039429765537},{"$f":"'Sup fijo'!V17/$D10*IF($C17='Sup fijo'!$AR$2,Y9,1)","v":7793.4774626914368},{"$f":"'Sup fijo'!W17/$D10*IF($C17='Sup fijo'!$AR$2,Z9,1)","v":7832.4448500048929},{"$f":"'Sup fijo'!X17/$D10*IF($C17='Sup fijo'!$AR$2,AA9,1)","v":7871.6070742549173}]
[null,{"$f":"IF(OR('Sup fijo'!$AS$2='Sup fijo'!C90,'Sup fijo'!$AR$2='Sup fijo'!C90,'Sup fijo'!$AS$2='Sup fijo'!C90),\"USD/Galón\",IF('Sup fijo'!C90='Sup fijo'!$AT$2,\"USD/kw\",\"USD/m3\"))","v":"USD/Galón"},{"$f":"VLOOKUP(B11,'Sup fijo'!$C$107:$D$110,2,FALSE)","v":1.04},"* Con Iva",null,null,"Consumo urea ",{"$f":"H10*$E10","v":0},{"$f":"I10*$E10","v":0},0,0,0,0,0,0,0,0,0,0,0,0,0,0,0,0,0,0]
[null,"Costo urea - US/Litro",{"$f":"'Sup fijo'!$D$108","v":0.66901408450704225},"* Con Iva",null,null,{"$f":"\"Precio \"&$C$17&\" año\"","v":"Precio Diésel año"},{"$f":"IF($C11='Sup Generales'!$C$21,'Sup Generales'!D$21,'Sup Generales'!D$23)","v":1.162012841671185},{"$f":"IF($C11='Sup Generales'!$C$21,'Sup Generales'!E$21,'Sup Generales'!E$23)","v":1.1922251755546358},{"$f":"IF($C11='Sup Generales'!$C$21,'Sup Generales'!F$21,'Sup Generales'!F$23)","v":1.1973755883130319},{"$f":"IF($C11='Sup Generales'!$C$21,'Sup Generales'!G$21,'Sup Generales'!G$23)","v":1.200608502401477},{"$f":"IF($C11='Sup Generales'!$C$21,'Sup Generales'!H$21,'Sup Generales'!H$23)","v":1.2086525793675669},{"$f":"IF($C11='Sup Generales'!$C$21,'Sup Generales'!I$21,'Sup Generales'!I$23)","v":1.2321140367488157},{"$f":"IF($C11='Sup Generales'!$C$21,'Sup Generales'!J$21,'Sup Generales'!J$23)","v":1.2534960282318639},{"$f":"IF($C11='Sup Generales'!$C$21,'Sup Generales'!K$21,'Sup Generales'!K$23)","v":1.2717477383202818},{"$f":"IF($C11='Sup Generales'!$C$21,'Sup Generales'!L$21,'Sup Generales'!L$23)","v":1.2887646452003116},{"$f":"IF($C11='Sup Generales'!$C$21,'Sup Generales'!M$21,'Sup Generales'!M$23)","v":1.3055872970220403},{"$f":"IF($C11='Sup Generales'!$C$21,'Sup Generales'!N$21,'Sup Generales'!N$23)","v":1.3205166619151063},{"$f":"IF($C11='Sup Generales'!$C$21,'Sup Generales'!O$21,'Sup Generales'!O$23)","v":1.3367911750383445},{"$f":"IF($C11='Sup Generales'!$C$21,'Sup Generales'!P$21,'Sup Generales'!P$23)","v":1.3548744797256258},{"$f":"IF($C11='Sup Generales'!$C$21,'Sup Generales'!Q$21,'Sup Generales'!Q$23)","v":1.3743586876651144},{"$f":"IF($C11='Sup Generales'!$C$21,'Sup Generales'!R$21,'Sup Generales'!R$23)","v":1.3932588928667962},{"$f":"IF($C11='Sup Generales'!$C$21,'Sup Generales'!S$21,'Sup Generales'!S$23)","v":1.4117917186467519},{"$f":"IF($C11='Sup Generales'!$C$21,'Sup Generales'!T$21,'Sup Generales'!T$23)","v":1.4303489075334674},{"$f":"IF($C11='Sup Generales'!$C$21,'Sup Generales'!U$21,'Sup Generales'!U$23)","v":1.44910777084326},{"$f":"IF($C11='Sup Generales'!$C$21,'Sup Generales'!V$21,'Sup Generales'!V$23)","v":1.4681238073130654},{"$f":"IF($C11='Sup Generales'!$C$21,'Sup Generales'!W$21,'Sup Generales'!W$23)","v":1.4876990844565181}]
[null,null,null,null,null,null,{"$f":"\"Precio \"&$D$17&\" año\"","v":"Precio Urea  año"},{"$f":"C12*H12/C11","v":0.74750284370776388},{"$f":"H13*I12/H12","v":0.76693791764416563},{"$f":"I13*J12/I12","v":0.77025108944838849},0.77233076738989903,0.77750538353141141,0.79259773490748564,0.80635240169303257,0.81809341238100441,0.82904009543627832,0.83986181755886924,0.84946562081483667,0.85993473475516469,0.87156741314961017,0.88410126847363113,0.8962594448967065,0.90818129246642343,0.9201188124030294,0.93218606602186938,0.94441875470436865,0.95701119327850204]
[null,"Operación mes ",{"$f":"+'Sup fijo'!E16","v":5867.1666666666679},null,null,null,"Costo año USD",{"$f":"+SUMPRODUCT(H10:H11,H12:H13)","v":8403.3274145139912},{"$f":"+SUMPRODUCT(I10:I11,I12:I13)","v":8621.813927291354},8659.060163457254,8725.8518240280791,8828.2366064053112,9044.6017328025537,9247.568707858909,9429.1303649353122,9603.0754610897675,9777.0695742946336,9938.3145221640825,10111.101804925696,10299.118084762664,10499.464002037041,10697.072082474489,10893.559012190661,11091.932313081987,11293.588753077975,11498.998753758795,11710.582637570491]
[null,"Operación año ",{"$f":"+'Sup fijo'!E17","v":70406.000000000015}]
[]
[null,null,{"$f":"IF(OR('Sup fijo'!$AS$2='Sup fijo'!C90,'Sup fijo'!$AR$2='Sup fijo'!C90,'Sup fijo'!$AS$2='Sup fijo'!C90),\"Diésel\",IF('Sup fijo'!C90='Sup fijo'!$AT$2,\"Electricidad\",\"Gas\"))","v":"Diésel"},{"$f":"+E26","v":"Urea "}]
[null,{"$f":"IF(OR('Sup fijo'!$AS$2='Sup fijo'!C90,'Sup fijo'!$AR$2='Sup fijo'!C90,'Sup fijo'!$AS$2='Sup fijo'!C90),\"Galones mes\",IF('Sup fijo'!C90='Sup fijo'!$AT$2,\"kw mes\",\"m3 mes\"))","v":"Galones mes"},{"$f":"+C14/D10","v":602.64160552279861},{"$f":"(+C14/D10)*$E$10","v":0}]
[null,{"$f":"IF(OR('Sup fijo'!$AS$2='Sup fijo'!C90,'Sup fijo'!$AR$2='Sup fijo'!C90,'Sup fijo'!$AS$2='Sup fijo'!C90),\"Galones año\",IF('Sup fijo'!C90='Sup fijo'!$AT$2,\"kw año\",\"m3 año\"))","v":"Galones año"},{"$f":"+C15/D10","v":7231.6992662735838},{"$f":"(+C15/D10)*$E$10","v":0}]
[null,null,{"$f":"C17","v":"Diésel"},{"$f":"+D17","v":"Urea "},"Total "]
[null,"Costo mes - USD",{"$f":"+C18*C11","v":626.7472697437106},{"$f":"+D18*C12","v":0},{"$f":"+D21+C21","v":626.7472697437106}]
[null,"Costo año -USD",{"$f":"+C19*C11","v":7520.9672369245272},{"$f":"+D19*C12","v":0},{"$f":"+D22+C22","v":7520.9672369245272}]
[]
[]
[null,{"$f":"+'OPEX Personal Directo'!B14","v":"Intracantonal Urbano"}]
[null,null,{"$f":"+C9","v":"Tecnología"},{"$f":"D9","v":"Rendimiento"},"Urea ",null,"Ajuste consumo",1,1,1,{"$f":"+J26*(1+'Sup fijo'!$D$104)","v":1.0049999999999999},{"$f":"+K26*(1+'Sup fijo'!$D$104)","v":1.0100249999999997},{"$f":"+L26*(1+'Sup fijo'!$D$104)","v":1.0150751249999996},{"$f":"+M26*(1+'Sup fijo'!$D$104)","v":1.0201505006249996},{"$f":"+N26*(1+'Sup fijo'!$D$104)","v":1.0252512531281244},{"$f":"+O26*(1+'Sup fijo'!$D$104)","v":1.0303775093937648},{"$f":"+P26*(1+'Sup fijo'!$D$104)","v":1.0355293969407335},{"$f":"+Q26*(1+'Sup fijo'!$D$104)","v":1.0407070439254371},{"$f":"+R26*(1+'Sup fijo'!$D$104)","v":1.0459105791450642},{"$f":"+S26*(1+'Sup fijo'!$D$104)","v":1.0511401320407894},{"$f":"+T26*(1+'Sup fijo'!$D$104)","v":1.0563958327009932},{"$f":"+U26*(1+'Sup fijo'!$D$104)","v":1.0616778118644981},{"$f":"+V26*(1+'Sup fijo'!$D$104)","v":1.0669862009238205},{"$f":"+W26*(1+'Sup fijo'!$D$104)","v":1.0723211319284394},{"$f":"+X26*(1+'Sup fijo'!$D$104)","v":1.0776827375880815},{"$f":"+Y26*(1+'Sup fijo'!$D$104)","v":1.0830711512760218},{"$f":"+Z26*(1+'Sup fijo'!$D$104)","v":1.0884865070324019}]
[null,"Datos vehículo ",{"$f":"+'Sup fijo'!D91","v":"Euro III"},{"$f":"+'Sup fijo'!E91","v":8.1475007815265261},{"$f":"IF(OR(C27='Sup fijo'!$D$96,C27='Sup fijo'!$E$96,C27='Sup fijo'!$F$96),+'Sup fijo'!$D$103,0)","v":0},null,"Consumo año ",{"$f":"'Sup fijo'!E21/$D27*IF($C34='Sup fijo'!$AR$2,H26,1)","v":7833.813301953619},{"$f":"'Sup fijo'!F21/$D27*IF($C34='Sup fijo'!$AR$2,I26,1)","v":7833.813301953619},{"$f":"'Sup fijo'!G21/$D27*IF($C34='Sup fijo'!$AR$2,J26,1)","v":7833.813301953619},{"$f":"'Sup fijo'!H21/$D27*IF($C34='Sup fijo'!$AR$2,K26,1)","v":7872.9823684633866},{"$f":"'Sup fijo'!I21/$D27*IF($C34='Sup fijo'!$AR$2,L26,1)","v":7912.347280305702},{"$f":"'Sup fijo'!J21/$D27*IF($C34='Sup fijo'!$AR$2,M26,1)","v":7951.90901670723},{"$f":"'Sup fijo'!K21/$D27*IF($C34='Sup fijo'!$AR$2,N26,1)","v":7991.6685617907651},{"$f":"'Sup fijo'!L21/$D27*IF($C34='Sup fijo'!$AR$2,O26,1)","v":8031.6269045997178},{"$f":"'Sup fijo'!M21/$D27*IF($C34='Sup fijo'!$AR$2,P26,1)","v":8071.7850391227148},{"$f":"'Sup fijo'!N21/$D27*IF($C34='Sup fijo'!$AR$2,Q26,1)","v":8112.1439643183276},{"$f":"'Sup fijo'!O21/$D27*IF($C34='Sup fijo'!$AR$2,R26,1)","v":8152.7046841399188},{"$f":"'Sup fijo'!P21/$D27*IF($C34='Sup fijo'!$AR$2,S26,1)","v":8193.4682075606179},{"$f":"'Sup fijo'!Q21/$D27*IF($C34='Sup fijo'!$AR$2,T26,1)","v":8234.4355485984197},{"$f":"'Sup fijo'!R21/$D27*IF($C34='Sup fijo'!$AR$2,U26,1)","v":8275.6077263414099},{"$f":"'Sup fijo'!S21/$D27*IF($C34='Sup fijo'!$AR$2,V26,1)","v":8316.9857649731166},{"$f":"'Sup fijo'!T21/$D27*IF($C34='Sup fijo'!$AR$2,W26,1)","v":8358.5706937979812},{"$f":"'Sup fijo'!U21/$D27*IF($C34='Sup fijo'!$AR$2,X26,1)","v":8400.3635472669703},{"$f":"'Sup fijo'!V21/$D27*IF($C34='Sup fijo'!$AR$2,Y26,1)","v":8442.3653650033048},{"$f":"'Sup fijo'!W21/$D27*IF($C34='Sup fijo'!$AR$2,Z26,1)","v":8484.5771918283208},{"$f":"'Sup fijo'!X21/$D27*IF($C34='Sup fijo'!$AR$2,AA26,1)","v":8527.0000777874611}]
[null,{"$f":"IF(OR('Sup fijo'!$AS$2='Sup fijo'!C91,'Sup fijo'!$AR$2='Sup fijo'!C91,'Sup fijo'!$AS$2='Sup fijo'!C91),\"USD/Galón\",IF('Sup fijo'!C91='Sup fijo'!$AT$2,\"USD/kw\",\"USD/m3\"))","v":"USD/Galón"},{"$f":"VLOOKUP(B28,'Sup fijo'!$C$107:$D$110,2,FALSE)","v":1.04},"* Con Iva",null,null,"Consumo urea ",{"$f":"H27*$E27","v":0},{"$f":"I27*$E27","v":0},0,0,0,0,0,0,0,0,0,0,0,0,0,0,0,0,0,0]
[null,"Costo urea - US/Litro",{"$f":"C12","v":0.66901408450704225},"* Con Iva",null,null,{"$f":"\"Precio \"&$C$17&\" año\"","v":"Precio Diésel año"},{"$f":"IF($C28='Sup Generales'!$C$21,'Sup Generales'!D$21,'Sup Generales'!D$23)","v":1.162012841671185},{"$f":"IF($C28='Sup Generales'!$C$21,'Sup Generales'!E$21,'Sup Generales'!E$23)","v":1.1922251755546358},{"$f":"IF($C28='Sup Generales'!$C$21,'Sup Generales'!F$21,'Sup Generales'!F$23)","v":1.1973755883130319},{"$f":"IF($C28='Sup Generales'!$C$21,'Sup Generales'!G$21,'Sup Generales'!G$23)","v":1.200608502401477},{"$f":"IF($C28='Sup Generales'!$C$21,'Sup Generales'!H$21,'Sup Generales'!H$23)","v":1.2086525793675669},{"$f":"IF($C28='Sup Generales'!$C$21,'Sup Generales'!I$21,'Sup Generales'!I$23)","v":1.2321140367488157},{"$f":"IF($C28='Sup Generales'!$C$21,'Sup Generales'!J$21,'Sup Generales'!J$23)","v":1.2534960282318639},{"$f":"IF($C28='Sup Generales'!$C$21,'Sup Generales'!K$21,'Sup Generales'!K$23)","v":1.2717477383202818},{"$f":"IF($C28='Sup Generales'!$C$21,'Sup Generales'!L$21,'Sup Generales'!L$23)","v":1.2887646452003116},{"$f":"IF($C28='Sup Generales'!$C$21,'Sup Generales'!M$21,'Sup Generales'!M$23)","v":1.3055872970220403},{"$f":"IF($C28='Sup Generales'!$C$21,'Sup Generales'!N$21,'Sup Generales'!N$23)","v":1.3205166619151063},{"$f":"IF($C28='Sup Generales'!$C$21,'Sup Generales'!O$21,'Sup Generales'!O$23)","v":1.3367911750383445},{"$f":"IF($C28='Sup Generales'!$C$21,'Sup Generales'!P$21,'Sup Generales'!P$23)","v":1.3548744797256258},{"$f":"IF($C28='Sup Generales'!$C$21,'Sup Generales'!Q$21,'Sup Generales'!Q$23)","v":1.3743586876651144},{"$f":"IF($C28='Sup Generales'!$C$21,'Sup Generales'!R$21,'Sup Generales'!R$23)","v":1.3932588928667962},{"$f":"IF($C28='Sup Generales'!$C$21,'Sup Generales'!S$21,'Sup Generales'!S$23)","v":1.4117917186467519},{"$f":"IF($C28='Sup Generales'!$C$21,'Sup Generales'!T$21,'Sup Generales'!T$23)","v":1.4303489075334674},{"$f":"IF($C28='Sup Generales'!$C$21,'Sup Generales'!U$21,'Sup Generales'!U$23)","v":1.44910777084326},{"$f":"IF($C28='Sup Generales'!$C$21,'Sup Generales'!V$21,'Sup Generales'!V$23)","v":1.4681238073130654},{"$f":"IF($C28='Sup Generales'!$C$21,'Sup Generales'!W$21,'Sup Generales'!W$23)","v":1.4876990844565181}]
[null,null,null,null,null,null,{"$f":"\"Precio \"&$D$17&\" año\"","v":"Precio Urea  año"},{"$f":"C29*H29/C28","v":0.74750284370776388},{"$f":"H30*I29/H29","v":0.76693791764416563},{"$f":"I30*J29/I29","v":0.77025108944838849},{"$f":"J30*K29/J29","v":0.77233076738989903},{"$f":"K30*L29/K29","v":0.77750538353141141},{"$f":"L30*M29/L29","v":0.79259773490748564},{"$f":"M30*N29/M29","v":0.80635240169303257},{"$f":"N30*O29/N29","v":0.81809341238100441},{"$f":"O30*P29/O29","v":0.82904009543627832},{"$f":"P30*Q29/P29","v":0.83986181755886924},{"$f":"Q30*R29/Q29","v":0.84946562081483667},{"$f":"R30*S29/R29","v":0.85993473475516469},{"$f":"S30*T29/S29","v":0.87156741314961017},{"$f":"T30*U29/T29","v":0.88410126847363113},{"$f":"U30*V29/U29","v":0.8962594448967065},{"$f":"V30*W29/V29","v":0.90818129246642343},{"$f":"W30*X29/W29","v":0.9201188124030294},{"$f":"X30*Y29/X29","v":0.93218606602186938},{"$f":"Y30*Z29/Y29","v":0.94441875470436865},{"$f":"Z30*AA29/Z29","v":0.95701119327850204}]
[null,"Operación mes ",{"$f":"+'Sup fijo'!E20","v":5318.8333333333339},null,null,null,"Costo año USD",{"$f":"+SUMPRODUCT(H27:H28,H29:H30)","v":9102.9916561246537},{"$f":"+SUMPRODUCT(I27:I28,I29:I30)","v":9339.6694391838937},{"$f":"+SUMPRODUCT(J27:J28,J29:J30)","v":9380.0168111611692},{"$f":"+SUMPRODUCT(K27:K28,K29:K30)","v":9452.3695708340601},{"$f":"+SUMPRODUCT(L27:L28,L29:L30)","v":9563.27894919344},{"$f":"+SUMPRODUCT(M27:M28,M29:M30)","v":9797.6587184344517},{"$f":"+SUMPRODUCT(N27:N28,N29:N30)","v":10017.524801150175},{"$f":"+SUMPRODUCT(O27:O28,O29:O30)","v":10214.203350957017},{"$f":"+SUMPRODUCT(P27:P28,P29:P30)","v":10402.631182078168},{"$f":"+SUMPRODUCT(Q27:Q28,Q29:Q30)","v":10591.112111428025},{"$f":"+SUMPRODUCT(R27:R28,R29:R30)","v":10765.782375080096},{"$f":"+SUMPRODUCT(S27:S28,S29:S30)","v":10952.955992824278},{"$f":"+SUMPRODUCT(T27:T28,T29:T30)","v":11156.626579741482},{"$f":"+SUMPRODUCT(U27:U28,U29:U30)","v":11373.653374405862},{"$f":"+SUMPRODUCT(V27:V28,V29:V30)","v":11587.714378895349},{"$f":"+SUMPRODUCT(W27:W28,W29:W30)","v":11800.560885227425},{"$f":"+SUMPRODUCT(X27:X28,X29:X30)","v":12015.450822717274},{"$f":"+SUMPRODUCT(Y27:Y28,Y29:Y30)","v":12233.897254724285},{"$f":"+SUMPRODUCT(Z27:Z28,Z29:Z30)","v":12456.40977030859},{"$f":"+SUMPRODUCT(AA27:AA28,AA29:AA30)","v":12685.610208885064}]
[null,"Operación año ",{"$f":"+'Sup fijo'!E21","v":63826.000000000007}]
[]
[null,null,{"$f":"IF(OR('Sup fijo'!$AS$2='Sup fijo'!C91,'Sup fijo'!$AR$2='Sup fijo'!C91,'Sup fijo'!$AS$2='Sup fijo'!C91),\"Diésel\",IF('Sup fijo'!C91='Sup fijo'!$AT$2,\"Electricidad\",\"Gas\"))","v":"Diésel"},{"$f":"+D17","v":"Urea "}]
[null,{"$f":"IF(OR('Sup fijo'!$AS$2='Sup fijo'!C91,'Sup fijo'!$AR$2='Sup fijo'!C91,'Sup fijo'!$AS$2='Sup fijo'!C91),\"Galones mes\",IF('Sup fijo'!C91='Sup fijo'!$AT$2,\"kw mes\",\"m3 mes\"))","v":"Galones mes"},{"$f":"+C31/D27","v":652.81777516280158},{"$f":"(+C31/D27)*$E$27","v":0}]
[null,{"$f":"IF(OR('Sup fijo'!$AS$2='Sup fijo'!C91,'Sup fijo'!$AR$2='Sup fijo'!C91,'Sup fijo'!$AS$2='Sup fijo'!C91),\"Galones año\",IF('Sup fijo'!C91='Sup fijo'!$AT$2,\"kw año\",\"m3 año\"))","v":"Galones año"},{"$f":"+C32/D27","v":7833.813301953619},{"$f":"(+C32/D27)*$E$27","v":0}]
[null,null,{"$f":"C34","v":"Diésel"},{"$f":"+D34","v":"Urea "},"Total "]
[null,"Costo mes - USD",{"$f":"+C35*C28","v":678.93048616931367},{"$f":"+D35*C29","v":0},{"$f":"+D38+C38","v":678.93048616931367}]
[null,"Costo año -USD",{"$f":"+C36*C28","v":8147.1658340317645},{"$f":"+D36*C29","v":0},{"$f":"+D39+C39","v":8147.1658340317645}]
[]
[]
[null,{"$f":"+'OPEX Personal Directo'!B21","v":"Intracantonal Combinado"}]
[null,null,{"$f":"+C26","v":"Tecnología"},{"$f":"D26","v":"Rendimiento"},"Urea ",null,"Ajuste consumo",1,1,1,{"$f":"+J43*(1+'Sup fijo'!$D$104)","v":1.0049999999999999},{"$f":"+K43*(1+'Sup fijo'!$D$104)","v":1.0100249999999997},{"$f":"+L43*(1+'Sup fijo'!$D$104)","v":1.0150751249999996},{"$f":"+M43*(1+'Sup fijo'!$D$104)","v":1.0201505006249996},{"$f":"+N43*(1+'Sup fijo'!$D$104)","v":1.0252512531281244},{"$f":"+O43*(1+'Sup fijo'!$D$104)","v":1.0303775093937648},{"$f":"+P43*(1+'Sup fijo'!$D$104)","v":1.0355293969407335},{"$f":"+Q43*(1+'Sup fijo'!$D$104)","v":1.0407070439254371},{"$f":"+R43*(1+'Sup fijo'!$D$104)","v":1.0459105791450642},{"$f":"+S43*(1+'Sup fijo'!$D$104)","v":1.0511401320407894},{"$f":"+T43*(1+'Sup fijo'!$D$104)","v":1.0563958327009932},{"$f":"+U43*(1+'Sup fijo'!$D$104)","v":1.0616778118644981},{"$f":"+V43*(1+'Sup fijo'!$D$104)","v":1.0669862009238205},{"$f":"+W43*(1+'Sup fijo'!$D$104)","v":1.0723211319284394},{"$f":"+X43*(1+'Sup fijo'!$D$104)","v":1.0776827375880815},{"$f":"+Y43*(1+'Sup fijo'!$D$104)","v":1.0830711512760218},{"$f":"+Z43*(1+'Sup fijo'!$D$104)","v":1.0884865070324019}]
[null,"Datos vehículo ",{"$f":"+'Sup fijo'!D92","v":"Euro III"},{"$f":"+'Sup fijo'!E92","v":8.7662983092374027},{"$f":"IF(OR(C44='Sup fijo'!$D$96,C44='Sup fijo'!$E$96,C44='Sup fijo'!$F$96),+'Sup fijo'!$D$103,0)","v":0},null,"Consumo año ",{"$f":"'Sup fijo'!E25/$D44*IF($C51='Sup fijo'!$AR$2,H43,1)","v":12835.292164474402},{"$f":"'Sup fijo'!F25/$D44*IF($C51='Sup fijo'!$AR$2,I43,1)","v":12835.292164474402},{"$f":"'Sup fijo'!G25/$D44*IF($C51='Sup fijo'!$AR$2,J43,1)","v":12835.292164474402},{"$f":"'Sup fijo'!H25/$D44*IF($C51='Sup fijo'!$AR$2,K43,1)","v":12899.468625296773},{"$f":"'Sup fijo'!I25/$D44*IF($C51='Sup fijo'!$AR$2,L43,1)","v":12963.965968423254},{"$f":"'Sup fijo'!J25/$D44*IF($C51='Sup fijo'!$AR$2,M43,1)","v":13028.78579826537},{"$f":"'Sup fijo'!K25/$D44*IF($C51='Sup fijo'!$AR$2,N43,1)","v":13093.929727256695},{"$f":"'Sup fijo'!L25/$D44*IF($C51='Sup fijo'!$AR$2,O43,1)","v":13159.399375892977},{"$f":"'Sup fijo'!M25/$D44*IF($C51='Sup fijo'!$AR$2,P43,1)","v":13225.19637277244},{"$f":"'Sup fijo'!N25/$D44*IF($C51='Sup fijo'!$AR$2,Q43,1)","v":13291.322354636301},{"$f":"'Sup fijo'!O25/$D44*IF($C51='Sup fijo'!$AR$2,R43,1)","v":13357.77896640948},{"$f":"'Sup fijo'!P25/$D44*IF($C51='Sup fijo'!$AR$2,S43,1)","v":13424.567861241527},{"$f":"'Sup fijo'!Q25/$D44*IF($C51='Sup fijo'!$AR$2,T43,1)","v":13491.690700547731},{"$f":"'Sup fijo'!R25/$D44*IF($C51='Sup fijo'!$AR$2,U43,1)","v":13559.14915405047},{"$f":"'Sup fijo'!S25/$D44*IF($C51='Sup fijo'!$AR$2,V43,1)","v":13626.944899820721},{"$f":"'Sup fijo'!T25/$D44*IF($C51='Sup fijo'!$AR$2,W43,1)","v":13695.079624319822},{"$f":"'Sup fijo'!U25/$D44*IF($C51='Sup fijo'!$AR$2,X43,1)","v":13763.55502244142},{"$f":"'Sup fijo'!V25/$D44*IF($C51='Sup fijo'!$AR$2,Y43,1)","v":13832.372797553626},{"$f":"'Sup fijo'!W25/$D44*IF($C51='Sup fijo'!$AR$2,Z43,1)","v":13901.534661541393},{"$f":"'Sup fijo'!X25/$D44*IF($C51='Sup fijo'!$AR$2,AA43,1)","v":13971.042334849099}]
[null,{"$f":"IF(OR('Sup fijo'!$AS$2='Sup fijo'!C92,'Sup fijo'!$AR$2='Sup fijo'!C92,'Sup fijo'!$AS$2='Sup fijo'!C92),\"USD/Galón\",IF('Sup fijo'!C92='Sup fijo'!$AT$2,\"USD/kw\",\"USD/m3\"))","v":"USD/Galón"},{"$f":"VLOOKUP(B45,'Sup fijo'!$C$107:$D$110,2,FALSE)","v":1.04},"* Con Iva",null,null,"Consumo urea ",{"$f":"H44*$E44","v":0},{"$f":"I44*$E44","v":0},0,0,0,0,0,0,0,0,0,0,0,0,0,0,0,0,0,0]
[null,"Costo urea - US/Litro",{"$f":"C29","v":0.66901408450704225},"* Con Iva",null,null,{"$f":"\"Precio \"&$C$17&\" año\"","v":"Precio Diésel año"},{"$f":"IF($C45='Sup Generales'!$C$21,'Sup Generales'!D$21,'Sup Generales'!D$23)","v":1.162012841671185},{"$f":"IF($C45='Sup Generales'!$C$21,'Sup Generales'!E$21,'Sup Generales'!E$23)","v":1.1922251755546358},{"$f":"IF($C45='Sup Generales'!$C$21,'Sup Generales'!F$21,'Sup Generales'!F$23)","v":1.1973755883130319},{"$f":"IF($C45='Sup Generales'!$C$21,'Sup Generales'!G$21,'Sup Generales'!G$23)","v":1.200608502401477},{"$f":"IF($C45='Sup Generales'!$C$21,'Sup Generales'!H$21,'Sup Generales'!H$23)","v":1.2086525793675669},{"$f":"IF($C45='Sup Generales'!$C$21,'Sup Generales'!I$21,'Sup Generales'!I$23)","v":1.2321140367488157},{"$f":"IF($C45='Sup Generales'!$C$21,'Sup Generales'!J$21,'Sup Generales'!J$23)","v":1.2534960282318639},{"$f":"IF($C45='Sup Generales'!$C$21,'Sup Generales'!K$21,'Sup Generales'!K$23)","v":1.2717477383202818},{"$f":"IF($C45='Sup Generales'!$C$21,'Sup Generales'!L$21,'Sup Generales'!L$23)","v":1.2887646452003116},{"$f":"IF($C45='Sup Generales'!$C$21,'Sup Generales'!M$21,'Sup Generales'!M$23)","v":1.3055872970220403},{"$f":"IF($C45='Sup Generales'!$C$21,'Sup Generales'!N$21,'Sup Generales'!N$23)","v":1.3205166619151063},{"$f":"IF($C45='Sup Generales'!$C$21,'Sup Generales'!O$21,'Sup Generales'!O$23)","v":1.3367911750383445},{"$f":"IF($C45='Sup Generales'!$C$21,'Sup Generales'!P$21,'Sup Generales'!P$23)","v":1.3548744797256258},{"$f":"IF($C45='Sup Generales'!$C$21,'Sup Generales'!Q$21,'Sup Generales'!Q$23)","v":1.3743586876651144},{"$f":"IF($C45='Sup Generales'!$C$21,'Sup Generales'!R$21,'Sup Generales'!R$23)","v":1.3932588928667962},{"$f":"IF($C45='Sup Generales'!$C$21,'Sup Generales'!S$21,'Sup Generales'!S$23)","v":1.4117917186467519},{"$f":"IF($C45='Sup Generales'!$C$21,'Sup Generales'!T$21,'Sup Generales'!T$23)","v":1.4303489075334674},{"$f":"IF($C45='Sup Generales'!$C$21,'Sup Generales'!U$21,'Sup Generales'!U$23)","v":1.44910777084326},{"$f":"IF($C45='Sup Generales'!$C$21,'Sup Generales'!V$21,'Sup Generales'!V$23)","v":1.4681238073130654},{"$f":"IF($C45='Sup Generales'!$C$21,'Sup Generales'!W$21,'Sup Generales'!W$23)","v":1.4876990844565181}]
[null,null,null,null,null,null,{"$f":"\"Precio \"&$D$17&\" año\"","v":"Precio Urea  año"},{"$f":"C46*H46/C45","v":0.74750284370776388},{"$f":"H47*I46/H46","v":0.76693791764416563},{"$f":"I47*J46/I46","v":0.77025108944838849},{"$f":"J47*K46/J46","v":0.77233076738989903},{"$f":"K47*L46/K46","v":0.77750538353141141},{"$f":"L47*M46/L46","v":0.79259773490748564},{"$f":"M47*N46/M46","v":0.80635240169303257},{"$f":"N47*O46/N46","v":0.81809341238100441},{"$f":"O47*P46/O46","v":0.82904009543627832},{"$f":"P47*Q46/P46","v":0.83986181755886924},{"$f":"Q47*R46/Q46","v":0.84946562081483667},{"$f":"R47*S46/R46","v":0.85993473475516469},{"$f":"S47*T46/S46","v":0.87156741314961017},{"$f":"T47*U46/T46","v":0.88410126847363113},{"$f":"U47*V46/U46","v":0.8962594448967065},{"$f":"V47*W46/V46","v":0.90818129246642343},{"$f":"W47*X46/W46","v":0.9201188124030294},{"$f":"X47*Y46/X46","v":0.93218606602186938},{"$f":"Y47*Z46/Y46","v":0.94441875470436865},{"$f":"Z47*AA46/Z46","v":0.95701119327850204}]
[null,"Operación mes ",{"$f":"+'Sup fijo'!E24","v":9376.5000000000018},null,null,null,"Costo año USD",{"$f":"+SUMPRODUCT(H44:H45,H46:H47)","v":14914.774321720795},{"$f":"+SUMPRODUCT(I44:I45,I46:I47)","v":15302.558454085536},{"$f":"+SUMPRODUCT(J44:J45,J46:J47)","v":15368.665506607185},{"$f":"+SUMPRODUCT(K44:K45,K46:K47)","v":15487.211707992397},{"$f":"+SUMPRODUCT(L44:L45,L46:L47)","v":15668.930906568123},{"$f":"+SUMPRODUCT(M44:M45,M46:M47)","v":16052.949863836386},{"$f":"+SUMPRODUCT(N44:N45,N46:N47)","v":16413.188907063399},{"$f":"+SUMPRODUCT(O44:O45,O46:O47)","v":16735.43639394522},{"$f":"+SUMPRODUCT(P44:P45,P46:P47)","v":17044.165511060521},{"$f":"+SUMPRODUCT(Q44:Q45,Q46:Q47)","v":17352.981626838227},{"$f":"+SUMPRODUCT(R44:R45,R46:R47)","v":17639.169691322866},{"$f":"+SUMPRODUCT(S44:S45,S46:S47)","v":17945.843845611056},{"$f":"+SUMPRODUCT(T44:T45,T46:T47)","v":18279.547418523671},{"$f":"+SUMPRODUCT(U44:U45,U46:U47)","v":18635.134437216351},{"$f":"+SUMPRODUCT(V44:V45,V46:V47)","v":18985.86216428105},{"$f":"+SUMPRODUCT(W44:W45,W46:W47)","v":19334.599999822596},{"$f":"+SUMPRODUCT(X44:X45,X46:X47)","v":19686.685890125853},{"$f":"+SUMPRODUCT(Y44:Y45,Y46:Y47)","v":20044.598910135883},{"$f":"+SUMPRODUCT(Z44:Z45,Z46:Z47)","v":20409.173994796696},{"$f":"+SUMPRODUCT(AA44:AA45,AA46:AA47)","v":20784.706890458259}]
[null,"Operación año ",{"$f":"+'Sup fijo'!E25","v":112518.00000000003}]
[]
[null,null,{"$f":"IF(OR('Sup fijo'!$AS$2='Sup fijo'!C92,'Sup fijo'!$AR$2='Sup fijo'!C92,'Sup fijo'!$AS$2='Sup fijo'!C92),\"Diésel\",IF('Sup fijo'!C92='Sup fijo'!$AT$2,\"Electricidad\",\"Gas\"))","v":"Diésel"},{"$f":"+D34","v":"Urea "}]
[null,{"$f":"IF(OR('Sup fijo'!$AS$2='Sup fijo'!C92,'Sup fijo'!$AR$2='Sup fijo'!C92,'Sup fijo'!$AS$2='Sup fijo'!C92),\"Galones mes\",IF('Sup fijo'!C92='Sup fijo'!$AT$2,\"kw mes\",\"m3 mes\"))","v":"Galones mes"},{"$f":"+C48/D44","v":1069.6076803728668},{"$f":"(+C48/D44)*$E$44","v":0}]
[null,{"$f":"IF(OR('Sup fijo'!$AS$2='Sup fijo'!C92,'Sup fijo'!$AR$2='Sup fijo'!C92,'Sup fijo'!$AS$2='Sup fijo'!C92),\"Galones año\",IF('Sup fijo'!C92='Sup fijo'!$AT$2,\"kw año\",\"m3 año\"))","v":"Galones año"},{"$f":"+C49/D44","v":12835.292164474402},{"$f":"(+C49/D44)*$E$44","v":0}]
[null,null,{"$f":"C51","v":"Diésel"},{"$f":"+D51","v":"Urea "},"Total "]
[null,"Costo mes - USD",{"$f":"+C52*C45","v":1112.3919875877814},{"$f":"+D52*C46","v":0},{"$f":"+D55+C55","v":1112.3919875877814}]
[null,"Costo año -USD",{"$f":"+C53*C45","v":13348.703851053378},{"$f":"+D53*C46","v":0},{"$f":"+D56+C56","v":13348.703851053378}]
[]
[]
[null,{"$f":"+'OPEX Personal Directo'!B28","v":"Otro"}]
[null,null,{"$f":"+C43","v":"Tecnología"},{"$f":"D43","v":"Rendimiento"},"Urea ",null,"Ajuste consumo",1,1,1,{"$f":"+J60*(1+'Sup fijo'!$D$104)","v":1.0049999999999999},{"$f":"+K60*(1+'Sup fijo'!$D$104)","v":1.0100249999999997},{"$f":"+L60*(1+'Sup fijo'!$D$104)","v":1.0150751249999996},{"$f":"+M60*(1+'Sup fijo'!$D$104)","v":1.0201505006249996},{"$f":"+N60*(1+'Sup fijo'!$D$104)","v":1.0252512531281244},{"$f":"+O60*(1+'Sup fijo'!$D$104)","v":1.0303775093937648},{"$f":"+P60*(1+'Sup fijo'!$D$104)","v":1.0355293969407335},{"$f":"+Q60*(1+'Sup fijo'!$D$104)","v":1.0407070439254371},{"$f":"+R60*(1+'Sup fijo'!$D$104)","v":1.0459105791450642},{"$f":"+S60*(1+'Sup fijo'!$D$104)","v":1.0511401320407894},{"$f":"+T60*(1+'Sup fijo'!$D$104)","v":1.0563958327009932},{"$f":"+U60*(1+'Sup fijo'!$D$104)","v":1.0616778118644981},{"$f":"+V60*(1+'Sup fijo'!$D$104)","v":1.0669862009238205},{"$f":"+W60*(1+'Sup fijo'!$D$104)","v":1.0723211319284394},{"$f":"+X60*(1+'Sup fijo'!$D$104)","v":1.0776827375880815},{"$f":"+Y60*(1+'Sup fijo'!$D$104)","v":1.0830711512760218},{"$f":"+Z60*(1+'Sup fijo'!$D$104)","v":1.0884865070324019}]
[null,"Datos vehículo ",{"$f":"+'Sup fijo'!D93","v":"Euro III"},{"$f":"+'Sup fijo'!E93","v":5.4261760000000008},{"$f":"IF(OR(C61='Sup fijo'!$D$96,C61='Sup fijo'!$E$96,C61='Sup fijo'!$F$96),+'Sup fijo'!$D$103,0)","v":0},null,"Consumo año ",{"$f":"'Sup fijo'!E29/$D61*IF($C68='Sup fijo'!$AR$2,H60,1)","v":12126.403566710698},{"$f":"'Sup fijo'!F29/$D61*IF($C68='Sup fijo'!$AR$2,I60,1)","v":12126.403566710698},{"$f":"'Sup fijo'!G29/$D61*IF($C68='Sup fijo'!$AR$2,J60,1)","v":12126.403566710698},{"$f":"'Sup fijo'!H29/$D61*IF($C68='Sup fijo'!$AR$2,K60,1)","v":12187.03558454425},{"$f":"'Sup fijo'!I29/$D61*IF($C68='Sup fijo'!$AR$2,L60,1)","v":12247.97076246697},{"$f":"'Sup fijo'!J29/$D61*IF($C68='Sup fijo'!$AR$2,M60,1)","v":12309.210616279302},{"$f":"'Sup fijo'!K29/$D61*IF($C68='Sup fijo'!$AR$2,N60,1)","v":12370.756669360699},{"$f":"'Sup fijo'!L29/$D61*IF($C68='Sup fijo'!$AR$2,O60,1)","v":12432.6104527075},{"$f":"'Sup fijo'!M29/$D61*IF($C68='Sup fijo'!$AR$2,P60,1)","v":12494.773504971035},{"$f":"'Sup fijo'!N29/$D61*IF($C68='Sup fijo'!$AR$2,Q60,1)","v":12557.247372495889},{"$f":"'Sup fijo'!O29/$D61*IF($C68='Sup fijo'!$AR$2,R60,1)","v":12620.033609358368},{"$f":"'Sup fijo'!P29/$D61*IF($C68='Sup fijo'!$AR$2,S60,1)","v":12683.133777405159},{"$f":"'Sup fijo'!Q29/$D61*IF($C68='Sup fijo'!$AR$2,T60,1)","v":12746.549446292183},{"$f":"'Sup fijo'!R29/$D61*IF($C68='Sup fijo'!$AR$2,U60,1)","v":12810.282193523642},{"$f":"'Sup fijo'!S29/$D61*IF($C68='Sup fijo'!$AR$2,V60,1)","v":12874.333604491259},{"$f":"'Sup fijo'!T29/$D61*IF($C68='Sup fijo'!$AR$2,W60,1)","v":12938.705272513715},{"$f":"'Sup fijo'!U29/$D61*IF($C68='Sup fijo'!$AR$2,X60,1)","v":13003.39879887628},{"$f":"'Sup fijo'!V29/$D61*IF($C68='Sup fijo'!$AR$2,Y60,1)","v":13068.415792870661},{"$f":"'Sup fijo'!W29/$D61*IF($C68='Sup fijo'!$AR$2,Z60,1)","v":13133.757871835014},{"$f":"'Sup fijo'!X29/$D61*IF($C68='Sup fijo'!$AR$2,AA60,1)","v":13199.426661194188}]
[null,{"$f":"IF(OR('Sup fijo'!$AS$2='Sup fijo'!C93,'Sup fijo'!$AR$2='Sup fijo'!C93,'Sup fijo'!$AS$2='Sup fijo'!C93),\"USD/Galón\",IF('Sup fijo'!C93='Sup fijo'!$AT$2,\"USD/kw\",\"USD/m3\"))","v":"USD/Galón"},{"$f":"VLOOKUP(B62,'Sup fijo'!$C$107:$D$110,2,FALSE)","v":1.04},"* Con Iva",null,null,"Consumo urea ",{"$f":"H61*$E61","v":0},{"$f":"I61*$E61","v":0},0,0,0,0,0,0,0,0,0,0,0,0,0,0,0,0,0,0]
[null,"Costo urea - US/Litro",{"$f":"C46","v":0.66901408450704225},"* Con Iva",null,null,{"$f":"\"Precio \"&$C$17&\" año\"","v":"Precio Diésel año"},{"$f":"IF($C62='Sup Generales'!$C$21,'Sup Generales'!D$21,'Sup Generales'!D$23)","v":1.162012841671185},{"$f":"IF($C62='Sup Generales'!$C$21,'Sup Generales'!E$21,'Sup Generales'!E$23)","v":1.1922251755546358},{"$f":"IF($C62='Sup Generales'!$C$21,'Sup Generales'!F$21,'Sup Generales'!F$23)","v":1.1973755883130319},{"$f":"IF($C62='Sup Generales'!$C$21,'Sup Generales'!G$21,'Sup Generales'!G$23)","v":1.200608502401477},{"$f":"IF($C62='Sup Generales'!$C$21,'Sup Generales'!H$21,'Sup Generales'!H$23)","v":1.2086525793675669},{"$f":"IF($C62='Sup Generales'!$C$21,'Sup Generales'!I$21,'Sup Generales'!I$23)","v":1.2321140367488157},{"$f":"IF($C62='Sup Generales'!$C$21,'Sup Generales'!J$21,'Sup Generales'!J$23)","v":1.2534960282318639},{"$f":"IF($C62='Sup Generales'!$C$21,'Sup Generales'!K$21,'Sup Generales'!K$23)","v":1.2717477383202818},{"$f":"IF($C62='Sup Generales'!$C$21,'Sup Generales'!L$21,'Sup Generales'!L$23)","v":1.2887646452003116},{"$f":"IF($C62='Sup Generales'!$C$21,'Sup Generales'!M$21,'Sup Generales'!M$23)","v":1.3055872970220403},{"$f":"IF($C62='Sup Generales'!$C$21,'Sup Generales'!N$21,'Sup Generales'!N$23)","v":1.3205166619151063},{"$f":"IF($C62='Sup Generales'!$C$21,'Sup Generales'!O$21,'Sup Generales'!O$23)","v":1.3367911750383445},{"$f":"IF($C62='Sup Generales'!$C$21,'Sup Generales'!P$21,'Sup Generales'!P$23)","v":1.3548744797256258},{"$f":"IF($C62='Sup Generales'!$C$21,'Sup Generales'!Q$21,'Sup Generales'!Q$23)","v":1.3743586876651144},{"$f":"IF($C62='Sup Generales'!$C$21,'Sup Generales'!R$21,'Sup Generales'!R$23)","v":1.3932588928667962},{"$f":"IF($C62='Sup Generales'!$C$21,'Sup Generales'!S$21,'Sup Generales'!S$23)","v":1.4117917186467519},{"$f":"IF($C62='Sup Generales'!$C$21,'Sup Generales'!T$21,'Sup Generales'!T$23)","v":1.4303489075334674},{"$f":"IF($C62='Sup Generales'!$C$21,'Sup Generales'!U$21,'Sup Generales'!U$23)","v":1.44910777084326},{"$f":"IF($C62='Sup Generales'!$C$21,'Sup Generales'!V$21,'Sup Generales'!V$23)","v":1.4681238073130654},{"$f":"IF($C62='Sup Generales'!$C$21,'Sup Generales'!W$21,'Sup Generales'!W$23)","v":1.4876990844565181}]
[null,null,null,null,null,null,{"$f":"\"Precio \"&$D$17&\" año\"","v":"Precio Urea  año"},{"$f":"C63*H63/C62","v":0.74750284370776388},{"$f":"H64*I63/H63","v":0.76693791764416563},{"$f":"I64*J63/I63","v":0.77025108944838849},{"$f":"J64*K63/J63","v":0.77233076738989903},{"$f":"K64*L63/K63","v":0.77750538353141141},{"$f":"L64*M63/L63","v":0.79259773490748564},{"$f":"M64*N63/M63","v":0.80635240169303257},{"$f":"N64*O63/N63","v":0.81809341238100441},{"$f":"O64*P63/O63","v":0.82904009543627832},{"$f":"P64*Q63/P63","v":0.83986181755886924},{"$f":"Q64*R63/Q63","v":0.84946562081483667},{"$f":"R64*S63/R63","v":0.85993473475516469},{"$f":"S64*T63/S63","v":0.87156741314961017},{"$f":"T64*U63/T63","v":0.88410126847363113},{"$f":"U64*V63/U63","v":0.8962594448967065},{"$f":"V64*W63/V63","v":0.90818129246642343},{"$f":"W64*X63/W63","v":0.9201188124030294},{"$f":"X64*Y63/X63","v":0.93218606602186938},{"$f":"Y64*Z63/Y63","v":0.94441875470436865},{"$f":"Z64*AA63/Z63","v":0.95701119327850204}]
[null,"Operación mes ",{"$f":"+'Sup fijo'!E28","v":5483.3333333333339},null,null,null,"Costo año USD",{"$f":"+SUMPRODUCT(H61:H62,H63:H64)","v":14091.036667805092},{"$f":"+SUMPRODUCT(I61:I62,I63:I64)","v":14457.403621168023},{"$f":"+SUMPRODUCT(J61:J62,J63:J64)","v":14519.85960481147},{"$f":"+SUMPRODUCT(K61:K62,K63:K64)","v":14631.85854187318},{"$f":"+SUMPRODUCT(L61:L62,L63:L64)","v":14803.541454074248},{"$f":"+SUMPRODUCT(M61:M62,M63:M64)","v":15166.35118161527},{"$f":"+SUMPRODUCT(N61:N62,N63:N64)","v":15506.694351266477},{"$f":"+SUMPRODUCT(O61:O62,O63:O64)","v":15811.144224647858},{"$f":"+SUMPRODUCT(P61:P62,P63:P64)","v":16102.822342992251},{"$f":"+SUMPRODUCT(Q61:Q62,Q63:Q64)","v":16394.582655094026},{"$f":"+SUMPRODUCT(R61:R62,R63:R64)","v":16664.964655086362},{"$f":"+SUMPRODUCT(S61:S62,S63:S64)","v":16954.701305465958},{"$f":"+SUMPRODUCT(T61:T62,T63:T64)","v":17269.974549342085},{"$f":"+SUMPRODUCT(U61:U62,U63:U64)","v":17605.922624110935},{"$f":"+SUMPRODUCT(V61:V62,V63:V64)","v":17937.27978419128},{"$f":"+SUMPRODUCT(W61:W62,W63:W64)","v":18266.756953745928},{"$f":"+SUMPRODUCT(X61:X62,X63:X64)","v":18599.39726619469},{"$f":"+SUMPRODUCT(Y61:Y62,Y63:Y64)","v":18937.542878059659},{"$f":"+SUMPRODUCT(Z61:Z62,Z63:Z64)","v":19281.982611126365},{"$f":"+SUMPRODUCT(AA61:AA62,AA63:AA64)","v":19636.77495920955}]
[null,"Operación año ",{"$f":"+'Sup fijo'!E29","v":65800}]
[]
[null,null,{"$f":"IF(OR('Sup fijo'!$AS$2='Sup fijo'!C93,'Sup fijo'!$AR$2='Sup fijo'!C93,'Sup fijo'!$AS$2='Sup fijo'!C93),\"Diésel\",IF('Sup fijo'!C93='Sup fijo'!$AT$2,\"Electricidad\",\"Gas\"))","v":"Diésel"},{"$f":"+D51","v":"Urea "}]
[null,{"$f":"IF(OR('Sup fijo'!$AS$2='Sup fijo'!C93,'Sup fijo'!$AR$2='Sup fijo'!C93,'Sup fijo'!$AS$2='Sup fijo'!C93),\"Galones mes\",IF('Sup fijo'!C93='Sup fijo'!$AT$2,\"kw mes\",\"m3 mes\"))","v":"Galones mes"},{"$f":"+C65/D61","v":1010.533630559225},{"$f":"(+C65/D61)*$E$61","v":0}]
[null,{"$f":"IF(OR('Sup fijo'!$AS$2='Sup fijo'!C93,'Sup fijo'!$AR$2='Sup fijo'!C93,'Sup fijo'!$AS$2='Sup fijo'!C93),\"Galones año\",IF('Sup fijo'!C93='Sup fijo'!$AT$2,\"kw año\",\"m3 año\"))","v":"Galones año"},{"$f":"+C66/D61","v":12126.403566710698},{"$f":"(+C66/D61)*$E$61","v":0}]
[null,null,{"$f":"C68","v":"Diésel"},{"$f":"+D68","v":"Urea "},"Total "]
[null,"Costo mes - USD",{"$f":"+C69*C62","v":1050.9549757815939},{"$f":"+D69*C63","v":0},{"$f":"+D72+C72","v":1050.9549757815939}]
[null,"Costo año -USD",{"$f":"+C70*C62","v":12611.459709379127},{"$f":"+D70*C63","v":0},{"$f":"+D73+C73","v":12611.459709379127}]

{"sheet":"OPEX Mtto","index":8,"n_rows":45,"n_cols":22,"rows_kept":45,"cut":false,"hidden":false,"merged":[]}
[]
[null,"Estructura de costos Transporte Convencional"]
[null,"OPEX MANTENIMIENTO"]
[]
[null,"Ítem",1,{"$f":"C5+1","v":2},3,4,5,6,7,8,9,10,11,12,13,14,15,16,17,18,19,20]
[]
[null,{"$f":"'Sup fijo'!B14","v":"Intracantonal Rural"}]
[null,"Carrocería ",{"$f":"+SUMIF('Actividades Mtto'!$H$13:$AC$52,'OPEX Mtto'!$B8,'Actividades Mtto'!J$13:J$52)*IF(C$5>'Sup fijo'!$H$51,0,1)","v":667.06285714285718},{"$f":"+SUMIF('Actividades Mtto'!$H$13:$AC$52,'OPEX Mtto'!$B8,'Actividades Mtto'!K$13:K$52)*IF(D$5>'Sup fijo'!$H$51,0,1)","v":677.73586285714282},{"$f":"+SUMIF('Actividades Mtto'!$H$13:$AC$52,'OPEX Mtto'!$B8,'Actividades Mtto'!L$13:L$52)*IF(E$5>'Sup fijo'!$H$51,0,1)","v":1043.0354929371429},{"$f":"+SUMIF('Actividades Mtto'!$H$13:$AC$52,'OPEX Mtto'!$B8,'Actividades Mtto'!M$13:M$52)*IF(F$5>'Sup fijo'!$H$51,0,1)","v":698.36093751108763},{"$f":"+SUMIF('Actividades Mtto'!$H$13:$AC$52,'OPEX Mtto'!$B8,'Actividades Mtto'!N$13:N$52)*IF(G$5>'Sup fijo'!$H$51,0,1)","v":700.24651204236761},{"$f":"+SUMIF('Actividades Mtto'!$H$13:$AC$52,'OPEX Mtto'!$B8,'Actividades Mtto'!O$13:O$52)*IF(H$5>'Sup fijo'!$H$51,0,1)","v":1057.407245509577},{"$f":"+SUMIF('Actividades Mtto'!$H$13:$AC$52,'OPEX Mtto'!$B8,'Actividades Mtto'!P$13:P$52)*IF(I$5>'Sup fijo'!$H$51,0,1)","v":718.62189460264995},{"$f":"+SUMIF('Actividades Mtto'!$H$13:$AC$52,'OPEX Mtto'!$B8,'Actividades Mtto'!Q$13:Q$52)*IF(J$5>'Sup fijo'!$H$51,0,1)","v":731.09279159078187},{"$f":"+SUMIF('Actividades Mtto'!$H$13:$AC$52,'OPEX Mtto'!$B8,'Actividades Mtto'!R$13:R$52)*IF(K$5>'Sup fijo'!$H$51,0,1)","v":5809.4674859646893},{"$f":"+SUMIF('Actividades Mtto'!$H$13:$AC$52,'OPEX Mtto'!$B8,'Actividades Mtto'!S$13:S$52)*IF(L$5>'Sup fijo'!$H$51,0,1)","v":751.6629657710539},{"$f":"+SUMIF('Actividades Mtto'!$H$13:$AC$52,'OPEX Mtto'!$B8,'Actividades Mtto'!T$13:T$52)*IF(M$5>'Sup fijo'!$H$51,0,1)","v":761.47465978946718},{"$f":"+SUMIF('Actividades Mtto'!$H$13:$AC$52,'OPEX Mtto'!$B8,'Actividades Mtto'!U$13:U$52)*IF(N$5>'Sup fijo'!$H$51,0,1)","v":1155.2731611724082},{"$f":"+SUMIF('Actividades Mtto'!$H$13:$AC$52,'OPEX Mtto'!$B8,'Actividades Mtto'!V$13:V$52)*IF(O$5>'Sup fijo'!$H$51,0,1)","v":0},{"$f":"+SUMIF('Actividades Mtto'!$H$13:$AC$52,'OPEX Mtto'!$B8,'Actividades Mtto'!W$13:W$52)*IF(P$5>'Sup fijo'!$H$51,0,1)","v":0},{"$f":"+SUMIF('Actividades Mtto'!$H$13:$AC$52,'OPEX Mtto'!$B8,'Actividades Mtto'!X$13:X$52)*IF(Q$5>'Sup fijo'!$H$51,0,1)","v":0},{"$f":"+SUMIF('Actividades Mtto'!$H$13:$AC$52,'OPEX Mtto'!$B8,'Actividades Mtto'!Y$13:Y$52)*IF(R$5>'Sup fijo'!$H$51,0,1)","v":0},{"$f":"+SUMIF('Actividades Mtto'!$H$13:$AC$52,'OPEX Mtto'!$B8,'Actividades Mtto'!Z$13:Z$52)*IF(S$5>'Sup fijo'!$H$51,0,1)","v":0},{"$f":"+SUMIF('Actividades Mtto'!$H$13:$AC$52,'OPEX Mtto'!$B8,'Actividades Mtto'!AA$13:AA$52)*IF(T$5>'Sup fijo'!$H$51,0,1)","v":0},{"$f":"+SUMIF('Actividades Mtto'!$H$13:$AC$52,'OPEX Mtto'!$B8,'Actividades Mtto'!AB$13:AB$52)*IF(U$5>'Sup fijo'!$H$51,0,1)","v":0},{"$f":"+SUMIF('Actividades Mtto'!$H$13:$AC$52,'OPEX Mtto'!$B8,'Actividades Mtto'!AC$13:AC$52)*IF(V$5>'Sup fijo'!$H$51,0,1)","v":0}]
[null,"Costo de mantenimiento eléctrico ",{"$f":"+SUMIF('Actividades Mtto'!$H$13:$AC$52,'OPEX Mtto'!$B9,'Actividades Mtto'!J$13:J$52)*IF(C$5>'Sup fijo'!$H$51,0,1)","v":2594.6799542857143},{"$f":"+SUMIF('Actividades Mtto'!$H$13:$AC$52,'OPEX Mtto'!$B9,'Actividades Mtto'!K$13:K$52)*IF(D$5>'Sup fijo'!$H$51,0,1)","v":2636.1948335542857},{"$f":"+SUMIF('Actividades Mtto'!$H$13:$AC$52,'OPEX Mtto'!$B9,'Actividades Mtto'!L$13:L$52)*IF(E$5>'Sup fijo'!$H$51,0,1)","v":2704.7358992266968},{"$f":"+SUMIF('Actividades Mtto'!$H$13:$AC$52,'OPEX Mtto'!$B9,'Actividades Mtto'!M$13:M$52)*IF(F$5>'Sup fijo'!$H$51,0,1)","v":2716.4203583113567},{"$f":"+SUMIF('Actividades Mtto'!$H$13:$AC$52,'OPEX Mtto'!$B9,'Actividades Mtto'!N$13:N$52)*IF(G$5>'Sup fijo'!$H$51,0,1)","v":2723.7546932787973},{"$f":"+SUMIF('Actividades Mtto'!$H$13:$AC$52,'OPEX Mtto'!$B9,'Actividades Mtto'!O$13:O$52)*IF(H$5>'Sup fijo'!$H$51,0,1)","v":3164.165962908336},{"$f":"+SUMIF('Actividades Mtto'!$H$13:$AC$52,'OPEX Mtto'!$B9,'Actividades Mtto'!P$13:P$52)*IF(I$5>'Sup fijo'!$H$51,0,1)","v":2795.229571951716},{"$f":"+SUMIF('Actividades Mtto'!$H$13:$AC$52,'OPEX Mtto'!$B9,'Actividades Mtto'!Q$13:Q$52)*IF(J$5>'Sup fijo'!$H$51,0,1)","v":2843.7377238905938},{"$f":"+SUMIF('Actividades Mtto'!$H$13:$AC$52,'OPEX Mtto'!$B9,'Actividades Mtto'!R$13:R$52)*IF(K$5>'Sup fijo'!$H$51,0,1)","v":2885.1443780282716},{"$f":"+SUMIF('Actividades Mtto'!$H$13:$AC$52,'OPEX Mtto'!$B9,'Actividades Mtto'!S$13:S$52)*IF(L$5>'Sup fijo'!$H$51,0,1)","v":2923.7497018177164},{"$f":"+SUMIF('Actividades Mtto'!$H$13:$AC$52,'OPEX Mtto'!$B9,'Actividades Mtto'!T$13:T$52)*IF(M$5>'Sup fijo'!$H$51,0,1)","v":2961.9143298052554},{"$f":"+SUMIF('Actividades Mtto'!$H$13:$AC$52,'OPEX Mtto'!$B9,'Actividades Mtto'!U$13:U$52)*IF(N$5>'Sup fijo'!$H$51,0,1)","v":3457.0181261446087},{"$f":"+SUMIF('Actividades Mtto'!$H$13:$AC$52,'OPEX Mtto'!$B9,'Actividades Mtto'!V$13:V$52)*IF(O$5>'Sup fijo'!$H$51,0,1)","v":0},{"$f":"+SUMIF('Actividades Mtto'!$H$13:$AC$52,'OPEX Mtto'!$B9,'Actividades Mtto'!W$13:W$52)*IF(P$5>'Sup fijo'!$H$51,0,1)","v":0},{"$f":"+SUMIF('Actividades Mtto'!$H$13:$AC$52,'OPEX Mtto'!$B9,'Actividades Mtto'!X$13:X$52)*IF(Q$5>'Sup fijo'!$H$51,0,1)","v":0},{"$f":"+SUMIF('Actividades Mtto'!$H$13:$AC$52,'OPEX Mtto'!$B9,'Actividades Mtto'!Y$13:Y$52)*IF(R$5>'Sup fijo'!$H$51,0,1)","v":0},{"$f":"+SUMIF('Actividades Mtto'!$H$13:$AC$52,'OPEX Mtto'!$B9,'Actividades Mtto'!Z$13:Z$52)*IF(S$5>'Sup fijo'!$H$51,0,1)","v":0},{"$f":"+SUMIF('Actividades Mtto'!$H$13:$AC$52,'OPEX Mtto'!$B9,'Actividades Mtto'!AA$13:AA$52)*IF(T$5>'Sup fijo'!$H$51,0,1)","v":0},{"$f":"+SUMIF('Actividades Mtto'!$H$13:$AC$52,'OPEX Mtto'!$B9,'Actividades Mtto'!AB$13:AB$52)*IF(U$5>'Sup fijo'!$H$51,0,1)","v":0},{"$f":"+SUMIF('Actividades Mtto'!$H$13:$AC$52,'OPEX Mtto'!$B9,'Actividades Mtto'!AC$13:AC$52)*IF(V$5>'Sup fijo'!$H$51,0,1)","v":0}]
[null,"Costo de mantenimiento mecánico",{"$f":"+SUMIF('Actividades Mtto'!$H$13:$AC$52,'OPEX Mtto'!$B10,'Actividades Mtto'!J$13:J$52)*IF(C$5>'Sup fijo'!$H$51,0,1)","v":3977.7220022857146},{"$f":"+SUMIF('Actividades Mtto'!$H$13:$AC$52,'OPEX Mtto'!$B10,'Actividades Mtto'!K$13:K$52)*IF(D$5>'Sup fijo'!$H$51,0,1)","v":8619.1259004342846},{"$f":"+SUMIF('Actividades Mtto'!$H$13:$AC$52,'OPEX Mtto'!$B10,'Actividades Mtto'!L$13:L$52)*IF(E$5>'Sup fijo'!$H$51,0,1)","v":6711.1891414127176},{"$f":"+SUMIF('Actividades Mtto'!$H$13:$AC$52,'OPEX Mtto'!$B10,'Actividades Mtto'!M$13:M$52)*IF(F$5>'Sup fijo'!$H$51,0,1)","v":15022.821783986114},{"$f":"+SUMIF('Actividades Mtto'!$H$13:$AC$52,'OPEX Mtto'!$B10,'Actividades Mtto'!N$13:N$52)*IF(G$5>'Sup fijo'!$H$51,0,1)","v":4520.8681095984884},{"$f":"+SUMIF('Actividades Mtto'!$H$13:$AC$52,'OPEX Mtto'!$B10,'Actividades Mtto'!O$13:O$52)*IF(H$5>'Sup fijo'!$H$51,0,1)","v":13305.382217672686},{"$f":"+SUMIF('Actividades Mtto'!$H$13:$AC$52,'OPEX Mtto'!$B10,'Actividades Mtto'!P$13:P$52)*IF(I$5>'Sup fijo'!$H$51,0,1)","v":15621.86223213206},{"$f":"+SUMIF('Actividades Mtto'!$H$13:$AC$52,'OPEX Mtto'!$B10,'Actividades Mtto'!Q$13:Q$52)*IF(J$5>'Sup fijo'!$H$51,0,1)","v":6170.3393632559355},{"$f":"+SUMIF('Actividades Mtto'!$H$13:$AC$52,'OPEX Mtto'!$B10,'Actividades Mtto'!R$13:R$52)*IF(K$5>'Sup fijo'!$H$51,0,1)","v":10331.723054774538},{"$f":"+SUMIF('Actividades Mtto'!$H$13:$AC$52,'OPEX Mtto'!$B10,'Actividades Mtto'!S$13:S$52)*IF(L$5>'Sup fijo'!$H$51,0,1)","v":4653.2721740177767},{"$f":"+SUMIF('Actividades Mtto'!$H$13:$AC$52,'OPEX Mtto'!$B10,'Actividades Mtto'!T$13:T$52)*IF(M$5>'Sup fijo'!$H$51,0,1)","v":18116.803159068771},{"$f":"+SUMIF('Actividades Mtto'!$H$13:$AC$52,'OPEX Mtto'!$B10,'Actividades Mtto'!U$13:U$52)*IF(N$5>'Sup fijo'!$H$51,0,1)","v":12985.131608718748},{"$f":"+SUMIF('Actividades Mtto'!$H$13:$AC$52,'OPEX Mtto'!$B10,'Actividades Mtto'!V$13:V$52)*IF(O$5>'Sup fijo'!$H$51,0,1)","v":0},{"$f":"+SUMIF('Actividades Mtto'!$H$13:$AC$52,'OPEX Mtto'!$B10,'Actividades Mtto'!W$13:W$52)*IF(P$5>'Sup fijo'!$H$51,0,1)","v":0},{"$f":"+SUMIF('Actividades Mtto'!$H$13:$AC$52,'OPEX Mtto'!$B10,'Actividades Mtto'!X$13:X$52)*IF(Q$5>'Sup fijo'!$H$51,0,1)","v":0},{"$f":"+SUMIF('Actividades Mtto'!$H$13:$AC$52,'OPEX Mtto'!$B10,'Actividades Mtto'!Y$13:Y$52)*IF(R$5>'Sup fijo'!$H$51,0,1)","v":0},{"$f":"+SUMIF('Actividades Mtto'!$H$13:$AC$52,'OPEX Mtto'!$B10,'Actividades Mtto'!Z$13:Z$52)*IF(S$5>'Sup fijo'!$H$51,0,1)","v":0},{"$f":"+SUMIF('Actividades Mtto'!$H$13:$AC$52,'OPEX Mtto'!$B10,'Actividades Mtto'!AA$13:AA$52)*IF(T$5>'Sup fijo'!$H$51,0,1)","v":0},{"$f":"+SUMIF('Actividades Mtto'!$H$13:$AC$52,'OPEX Mtto'!$B10,'Actividades Mtto'!AB$13:AB$52)*IF(U$5>'Sup fijo'!$H$51,0,1)","v":0},{"$f":"+SUMIF('Actividades Mtto'!$H$13:$AC$52,'OPEX Mtto'!$B10,'Actividades Mtto'!AC$13:AC$52)*IF(V$5>'Sup fijo'!$H$51,0,1)","v":0}]
[null,"Neumáticos ",{"$f":"+SUMIF('Actividades Mtto'!$H$13:$AC$52,'OPEX Mtto'!$B11,'Actividades Mtto'!J$13:J$52)*IF(C$5>'Sup fijo'!$H$51,0,1)","v":2406.2057325714286},{"$f":"+SUMIF('Actividades Mtto'!$H$13:$AC$52,'OPEX Mtto'!$B11,'Actividades Mtto'!K$13:K$52)*IF(D$5>'Sup fijo'!$H$51,0,1)","v":4889.4100485851432},{"$f":"+SUMIF('Actividades Mtto'!$H$13:$AC$52,'OPEX Mtto'!$B11,'Actividades Mtto'!L$13:L$52)*IF(E$5>'Sup fijo'!$H$51,0,1)","v":2508.2673549241786},{"$f":"+SUMIF('Actividades Mtto'!$H$13:$AC$52,'OPEX Mtto'!$B11,'Actividades Mtto'!M$13:M$52)*IF(F$5>'Sup fijo'!$H$51,0,1)","v":5038.2061397949028},{"$f":"+SUMIF('Actividades Mtto'!$H$13:$AC$52,'OPEX Mtto'!$B11,'Actividades Mtto'!N$13:N$52)*IF(G$5>'Sup fijo'!$H$51,0,1)","v":2525.9046481861742},{"$f":"+SUMIF('Actividades Mtto'!$H$13:$AC$52,'OPEX Mtto'!$B11,'Actividades Mtto'!O$13:O$52)*IF(H$5>'Sup fijo'!$H$51,0,1)","v":5085.6564186580435},{"$f":"+SUMIF('Actividades Mtto'!$H$13:$AC$52,'OPEX Mtto'!$B11,'Actividades Mtto'!P$13:P$52)*IF(I$5>'Sup fijo'!$H$51,0,1)","v":2592.1876834073596},{"$f":"+SUMIF('Actividades Mtto'!$H$13:$AC$52,'OPEX Mtto'!$B11,'Actividades Mtto'!Q$13:Q$52)*IF(J$5>'Sup fijo'!$H$51,0,1)","v":5274.3445308952323},{"$f":"+SUMIF('Actividades Mtto'!$H$13:$AC$52,'OPEX Mtto'!$B11,'Actividades Mtto'!R$13:R$52)*IF(K$5>'Sup fijo'!$H$51,0,1)","v":2675.5711933724706},{"$f":"+SUMIF('Actividades Mtto'!$H$13:$AC$52,'OPEX Mtto'!$B11,'Actividades Mtto'!S$13:S$52)*IF(L$5>'Sup fijo'!$H$51,0,1)","v":5422.7445519803914},{"$f":"+SUMIF('Actividades Mtto'!$H$13:$AC$52,'OPEX Mtto'!$B11,'Actividades Mtto'!T$13:T$52)*IF(M$5>'Sup fijo'!$H$51,0,1)","v":2746.7646743834512},{"$f":"+SUMIF('Actividades Mtto'!$H$13:$AC$52,'OPEX Mtto'!$B11,'Actividades Mtto'!U$13:U$52)*IF(N$5>'Sup fijo'!$H$51,0,1)","v":5556.3477481076261},{"$f":"+SUMIF('Actividades Mtto'!$H$13:$AC$52,'OPEX Mtto'!$B11,'Actividades Mtto'!V$13:V$52)*IF(O$5>'Sup fijo'!$H$51,0,1)","v":0},{"$f":"+SUMIF('Actividades Mtto'!$H$13:$AC$52,'OPEX Mtto'!$B11,'Actividades Mtto'!W$13:W$52)*IF(P$5>'Sup fijo'!$H$51,0,1)","v":0},{"$f":"+SUMIF('Actividades Mtto'!$H$13:$AC$52,'OPEX Mtto'!$B11,'Actividades Mtto'!X$13:X$52)*IF(Q$5>'Sup fijo'!$H$51,0,1)","v":0},{"$f":"+SUMIF('Actividades Mtto'!$H$13:$AC$52,'OPEX Mtto'!$B11,'Actividades Mtto'!Y$13:Y$52)*IF(R$5>'Sup fijo'!$H$51,0,1)","v":0},{"$f":"+SUMIF('Actividades Mtto'!$H$13:$AC$52,'OPEX Mtto'!$B11,'Actividades Mtto'!Z$13:Z$52)*IF(S$5>'Sup fijo'!$H$51,0,1)","v":0},{"$f":"+SUMIF('Actividades Mtto'!$H$13:$AC$52,'OPEX Mtto'!$B11,'Actividades Mtto'!AA$13:AA$52)*IF(T$5>'Sup fijo'!$H$51,0,1)","v":0},{"$f":"+SUMIF('Actividades Mtto'!$H$13:$AC$52,'OPEX Mtto'!$B11,'Actividades Mtto'!AB$13:AB$52)*IF(U$5>'Sup fijo'!$H$51,0,1)","v":0},{"$f":"+SUMIF('Actividades Mtto'!$H$13:$AC$52,'OPEX Mtto'!$B11,'Actividades Mtto'!AC$13:AC$52)*IF(V$5>'Sup fijo'!$H$51,0,1)","v":0}]
[null,"Mano de Obra",{"$f":"+SUMIF('Actividades Mtto'!$H$13:$AC$52,'OPEX Mtto'!$B12,'Actividades Mtto'!J$13:J$52)","v":0},{"$f":"+SUMIF('Actividades Mtto'!$H$13:$AC$52,'OPEX Mtto'!$B12,'Actividades Mtto'!K$13:K$52)","v":0},{"$f":"+SUMIF('Actividades Mtto'!$H$13:$AC$52,'OPEX Mtto'!$B12,'Actividades Mtto'!L$13:L$52)","v":0},{"$f":"+SUMIF('Actividades Mtto'!$H$13:$AC$52,'OPEX Mtto'!$B12,'Actividades Mtto'!M$13:M$52)","v":0},{"$f":"+SUMIF('Actividades Mtto'!$H$13:$AC$52,'OPEX Mtto'!$B12,'Actividades Mtto'!N$13:N$52)","v":0},{"$f":"+SUMIF('Actividades Mtto'!$H$13:$AC$52,'OPEX Mtto'!$B12,'Actividades Mtto'!O$13:O$52)","v":0},{"$f":"+SUMIF('Actividades Mtto'!$H$13:$AC$52,'OPEX Mtto'!$B12,'Actividades Mtto'!P$13:P$52)","v":0},{"$f":"+SUMIF('Actividades Mtto'!$H$13:$AC$52,'OPEX Mtto'!$B12,'Actividades Mtto'!Q$13:Q$52)","v":0},{"$f":"+SUMIF('Actividades Mtto'!$H$13:$AC$52,'OPEX Mtto'!$B12,'Actividades Mtto'!R$13:R$52)","v":0},{"$f":"+SUMIF('Actividades Mtto'!$H$13:$AC$52,'OPEX Mtto'!$B12,'Actividades Mtto'!S$13:S$52)","v":0},{"$f":"+SUMIF('Actividades Mtto'!$H$13:$AC$52,'OPEX Mtto'!$B12,'Actividades Mtto'!T$13:T$52)","v":0},{"$f":"+SUMIF('Actividades Mtto'!$H$13:$AC$52,'OPEX Mtto'!$B12,'Actividades Mtto'!U$13:U$52)","v":0},{"$f":"+SUMIF('Actividades Mtto'!$H$13:$AC$52,'OPEX Mtto'!$B12,'Actividades Mtto'!V$13:V$52)","v":0},{"$f":"+SUMIF('Actividades Mtto'!$H$13:$AC$52,'OPEX Mtto'!$B12,'Actividades Mtto'!W$13:W$52)","v":0},{"$f":"+SUMIF('Actividades Mtto'!$H$13:$AC$52,'OPEX Mtto'!$B12,'Actividades Mtto'!X$13:X$52)","v":0},{"$f":"+SUMIF('Actividades Mtto'!$H$13:$AC$52,'OPEX Mtto'!$B12,'Actividades Mtto'!Y$13:Y$52)","v":0},{"$f":"+SUMIF('Actividades Mtto'!$H$13:$AC$52,'OPEX Mtto'!$B12,'Actividades Mtto'!Z$13:Z$52)","v":0},{"$f":"+SUMIF('Actividades Mtto'!$H$13:$AC$52,'OPEX Mtto'!$B12,'Actividades Mtto'!AA$13:AA$52)","v":0},{"$f":"+SUMIF('Actividades Mtto'!$H$13:$AC$52,'OPEX Mtto'!$B12,'Actividades Mtto'!AB$13:AB$52)","v":0},{"$f":"+SUMIF('Actividades Mtto'!$H$13:$AC$52,'OPEX Mtto'!$B12,'Actividades Mtto'!AC$13:AC$52)","v":0}]
[null,"Aceites y filtros ",{"$f":"+SUMIF('Actividades Mtto'!$H$13:$AC$52,'OPEX Mtto'!$B13,'Actividades Mtto'!J$13:J$52)*IF(C$5>'Sup fijo'!$H$51,0,1)","v":2690.6303390476191},{"$f":"+SUMIF('Actividades Mtto'!$H$13:$AC$52,'OPEX Mtto'!$B13,'Actividades Mtto'!K$13:K$52)*IF(D$5>'Sup fijo'!$H$51,0,1)","v":2733.6804244723803},{"$f":"+SUMIF('Actividades Mtto'!$H$13:$AC$52,'OPEX Mtto'!$B13,'Actividades Mtto'!L$13:L$52)*IF(E$5>'Sup fijo'!$H$51,0,1)","v":3006.8228935855541},{"$f":"+SUMIF('Actividades Mtto'!$H$13:$AC$52,'OPEX Mtto'!$B13,'Actividades Mtto'!M$13:M$52)*IF(F$5>'Sup fijo'!$H$51,0,1)","v":2816.8726619276608},{"$f":"+SUMIF('Actividades Mtto'!$H$13:$AC$52,'OPEX Mtto'!$B13,'Actividades Mtto'!N$13:N$52)*IF(G$5>'Sup fijo'!$H$51,0,1)","v":2824.4782181148648},{"$f":"+SUMIF('Actividades Mtto'!$H$13:$AC$52,'OPEX Mtto'!$B13,'Actividades Mtto'!O$13:O$52)*IF(H$5>'Sup fijo'!$H$51,0,1)","v":3065.5765216913787},{"$f":"+SUMIF('Actividades Mtto'!$H$13:$AC$52,'OPEX Mtto'!$B13,'Actividades Mtto'!P$13:P$52)*IF(I$5>'Sup fijo'!$H$51,0,1)","v":2898.5962135614536},{"$f":"+SUMIF('Actividades Mtto'!$H$13:$AC$52,'OPEX Mtto'!$B13,'Actividades Mtto'!Q$13:Q$52)*IF(J$5>'Sup fijo'!$H$51,0,1)","v":2948.898180508204},{"$f":"+SUMIF('Actividades Mtto'!$H$13:$AC$52,'OPEX Mtto'!$B13,'Actividades Mtto'!R$13:R$52)*IF(K$5>'Sup fijo'!$H$51,0,1)","v":3207.3808646660605},{"$f":"+SUMIF('Actividades Mtto'!$H$13:$AC$52,'OPEX Mtto'!$B13,'Actividades Mtto'!S$13:S$52)*IF(L$5>'Sup fijo'!$H$51,0,1)","v":3031.8689742441848},{"$f":"+SUMIF('Actividades Mtto'!$H$13:$AC$52,'OPEX Mtto'!$B13,'Actividades Mtto'!T$13:T$52)*IF(M$5>'Sup fijo'!$H$51,0,1)","v":3071.4449172317304},{"$f":"+SUMIF('Actividades Mtto'!$H$13:$AC$52,'OPEX Mtto'!$B13,'Actividades Mtto'!U$13:U$52)*IF(N$5>'Sup fijo'!$H$51,0,1)","v":3349.303964078274},{"$f":"+SUMIF('Actividades Mtto'!$H$13:$AC$52,'OPEX Mtto'!$B13,'Actividades Mtto'!V$13:V$52)*IF(O$5>'Sup fijo'!$H$51,0,1)","v":0},{"$f":"+SUMIF('Actividades Mtto'!$H$13:$AC$52,'OPEX Mtto'!$B13,'Actividades Mtto'!W$13:W$52)*IF(P$5>'Sup fijo'!$H$51,0,1)","v":0},{"$f":"+SUMIF('Actividades Mtto'!$H$13:$AC$52,'OPEX Mtto'!$B13,'Actividades Mtto'!X$13:X$52)*IF(Q$5>'Sup fijo'!$H$51,0,1)","v":0},{"$f":"+SUMIF('Actividades Mtto'!$H$13:$AC$52,'OPEX Mtto'!$B13,'Actividades Mtto'!Y$13:Y$52)*IF(R$5>'Sup fijo'!$H$51,0,1)","v":0},{"$f":"+SUMIF('Actividades Mtto'!$H$13:$AC$52,'OPEX Mtto'!$B13,'Actividades Mtto'!Z$13:Z$52)*IF(S$5>'Sup fijo'!$H$51,0,1)","v":0},{"$f":"+SUMIF('Actividades Mtto'!$H$13:$AC$52,'OPEX Mtto'!$B13,'Actividades Mtto'!AA$13:AA$52)*IF(T$5>'Sup fijo'!$H$51,0,1)","v":0},{"$f":"+SUMIF('Actividades Mtto'!$H$13:$AC$52,'OPEX Mtto'!$B13,'Actividades Mtto'!AB$13:AB$52)*IF(U$5>'Sup fijo'!$H$51,0,1)","v":0},{"$f":"+SUMIF('Actividades Mtto'!$H$13:$AC$52,'OPEX Mtto'!$B13,'Actividades Mtto'!AC$13:AC$52)*IF(V$5>'Sup fijo'!$H$51,0,1)","v":0}]
[null,"Total (USD) Mantenimiento Preventivo y Correctivo Completo",{"$f":"+SUM(C8:C13)","v":12336.300885333332},{"$f":"+SUM(D8:D13)","v":19556.147069903232},15974.050782086291,26292.681881531124,13295.252181220694,25678.188366440023,24626.497595655241,17968.412590140746,24909.28697680603,16783.298367831125,27658.401740278674,26503.074608221665,0,0,0,0,0,0,0,0]
[null,"Total (USD) Mantenimiento Preventivo  Básico y Correctivo Completo",{"$f":"C14*'Sup fijo'!$D$201","v":9869.0407082666661},{"$f":"D14*'Sup fijo'!$D$201","v":15644.917655922587},{"$f":"E14*'Sup fijo'!$D$201","v":12779.240625669034},{"$f":"F14*'Sup fijo'!$D$201","v":21034.1455052249},{"$f":"G14*'Sup fijo'!$D$201","v":10636.201744976555},{"$f":"H14*'Sup fijo'!$D$201","v":20542.550693152021},{"$f":"I14*'Sup fijo'!$D$201","v":19701.198076524193},{"$f":"J14*'Sup fijo'!$D$201","v":14374.730072112598},{"$f":"K14*'Sup fijo'!$D$201","v":19927.429581444827},{"$f":"L14*'Sup fijo'!$D$201","v":13426.638694264901},{"$f":"M14*'Sup fijo'!$D$201","v":22126.721392222942},{"$f":"N14*'Sup fijo'!$D$201","v":21202.459686577335},{"$f":"O14*'Sup fijo'!$D$201","v":0},{"$f":"P14*'Sup fijo'!$D$201","v":0},{"$f":"Q14*'Sup fijo'!$D$201","v":0},{"$f":"R14*'Sup fijo'!$D$201","v":0},{"$f":"S14*'Sup fijo'!$D$201","v":0},{"$f":"T14*'Sup fijo'!$D$201","v":0},{"$f":"U14*'Sup fijo'!$D$201","v":0},{"$f":"V14*'Sup fijo'!$D$201","v":0}]
[]
[null,{"$f":"'Sup fijo'!B18","v":"Intracantonal Urbano"}]
[null,"Carrocería ",{"$f":"+SUMIF('Actividades Mtto'!$H$78:$AC$117,'OPEX Mtto'!$B18,'Actividades Mtto'!J$78:J$117)*IF(C$5>'Sup fijo'!$H$52,0,1)","v":667.06285714285718},{"$f":"+SUMIF('Actividades Mtto'!$H$78:$AC$117,'OPEX Mtto'!$B18,'Actividades Mtto'!K$78:K$117)*IF(D$5>'Sup fijo'!$H$52,0,1)","v":677.73586285714282},{"$f":"+SUMIF('Actividades Mtto'!$H$78:$AC$117,'OPEX Mtto'!$B18,'Actividades Mtto'!L$78:L$117)*IF(E$5>'Sup fijo'!$H$52,0,1)","v":695.35699529142858},{"$f":"+SUMIF('Actividades Mtto'!$H$78:$AC$117,'OPEX Mtto'!$B18,'Actividades Mtto'!M$78:M$117)*IF(F$5>'Sup fijo'!$H$52,0,1)","v":698.36093751108763},{"$f":"+SUMIF('Actividades Mtto'!$H$78:$AC$117,'OPEX Mtto'!$B18,'Actividades Mtto'!N$78:N$117)*IF(G$5>'Sup fijo'!$H$52,0,1)","v":700.24651204236761},{"$f":"+SUMIF('Actividades Mtto'!$H$78:$AC$117,'OPEX Mtto'!$B18,'Actividades Mtto'!O$78:O$117)*IF(H$5>'Sup fijo'!$H$52,0,1)","v":704.93816367305135},{"$f":"+SUMIF('Actividades Mtto'!$H$78:$AC$117,'OPEX Mtto'!$B18,'Actividades Mtto'!P$78:P$117)*IF(I$5>'Sup fijo'!$H$52,0,1)","v":718.62189460264995},{"$f":"+SUMIF('Actividades Mtto'!$H$78:$AC$117,'OPEX Mtto'!$B18,'Actividades Mtto'!Q$78:Q$117)*IF(J$5>'Sup fijo'!$H$52,0,1)","v":1096.6391873861728},{"$f":"+SUMIF('Actividades Mtto'!$H$78:$AC$117,'OPEX Mtto'!$B18,'Actividades Mtto'!R$78:R$117)*IF(K$5>'Sup fijo'!$H$52,0,1)","v":741.73797384849456},{"$f":"+SUMIF('Actividades Mtto'!$H$78:$AC$117,'OPEX Mtto'!$B18,'Actividades Mtto'!S$78:S$117)*IF(L$5>'Sup fijo'!$H$52,0,1)","v":5511.3708904726282},{"$f":"+SUMIF('Actividades Mtto'!$H$78:$AC$117,'OPEX Mtto'!$B18,'Actividades Mtto'!T$78:T$117)*IF(M$5>'Sup fijo'!$H$52,0,1)","v":761.47465978946718},{"$f":"+SUMIF('Actividades Mtto'!$H$78:$AC$117,'OPEX Mtto'!$B18,'Actividades Mtto'!U$78:U$117)*IF(N$5>'Sup fijo'!$H$52,0,1)","v":770.18210744827229},{"$f":"+SUMIF('Actividades Mtto'!$H$78:$AC$117,'OPEX Mtto'!$B18,'Actividades Mtto'!V$78:V$117)*IF(O$5>'Sup fijo'!$H$52,0,1)","v":0},{"$f":"+SUMIF('Actividades Mtto'!$H$78:$AC$117,'OPEX Mtto'!$B18,'Actividades Mtto'!W$78:W$117)*IF(P$5>'Sup fijo'!$H$52,0,1)","v":0},{"$f":"+SUMIF('Actividades Mtto'!$H$78:$AC$117,'OPEX Mtto'!$B18,'Actividades Mtto'!X$78:X$117)*IF(Q$5>'Sup fijo'!$H$52,0,1)","v":0},{"$f":"+SUMIF('Actividades Mtto'!$H$78:$AC$117,'OPEX Mtto'!$B18,'Actividades Mtto'!Y$78:Y$117)*IF(R$5>'Sup fijo'!$H$52,0,1)","v":0},{"$f":"+SUMIF('Actividades Mtto'!$H$78:$AC$117,'OPEX Mtto'!$B18,'Actividades Mtto'!Z$78:Z$117)*IF(S$5>'Sup fijo'!$H$52,0,1)","v":0},{"$f":"+SUMIF('Actividades Mtto'!$H$78:$AC$117,'OPEX Mtto'!$B18,'Actividades Mtto'!AA$78:AA$117)*IF(T$5>'Sup fijo'!$H$52,0,1)","v":0},{"$f":"+SUMIF('Actividades Mtto'!$H$78:$AC$117,'OPEX Mtto'!$B18,'Actividades Mtto'!AB$78:AB$117)*IF(U$5>'Sup fijo'!$H$52,0,1)","v":0},{"$f":"+SUMIF('Actividades Mtto'!$H$78:$AC$117,'OPEX Mtto'!$B18,'Actividades Mtto'!AC$78:AC$117)*IF(V$5>'Sup fijo'!$H$52,0,1)","v":0}]
[null,"Costo de mantenimiento eléctrico ",{"$f":"+SUMIF('Actividades Mtto'!$H$78:$AC$117,'OPEX Mtto'!$B19,'Actividades Mtto'!J$78:J$117)*IF(C$5>'Sup fijo'!$H$52,0,1)","v":2281.0799542857144},{"$f":"+SUMIF('Actividades Mtto'!$H$78:$AC$117,'OPEX Mtto'!$B19,'Actividades Mtto'!K$78:K$117)*IF(D$5>'Sup fijo'!$H$52,0,1)","v":2476.8860335542859},{"$f":"+SUMIF('Actividades Mtto'!$H$78:$AC$117,'OPEX Mtto'!$B19,'Actividades Mtto'!L$78:L$117)*IF(E$5>'Sup fijo'!$H$52,0,1)","v":2541.2850704266971},{"$f":"+SUMIF('Actividades Mtto'!$H$78:$AC$117,'OPEX Mtto'!$B19,'Actividades Mtto'!M$78:M$117)*IF(F$5>'Sup fijo'!$H$52,0,1)","v":2552.2634219309407},{"$f":"+SUMIF('Actividades Mtto'!$H$78:$AC$117,'OPEX Mtto'!$B19,'Actividades Mtto'!N$78:N$117)*IF(G$5>'Sup fijo'!$H$52,0,1)","v":2394.5543730615109},{"$f":"+SUMIF('Actividades Mtto'!$H$78:$AC$117,'OPEX Mtto'!$B19,'Actividades Mtto'!O$78:O$117)*IF(H$5>'Sup fijo'!$H$52,0,1)","v":2576.3008685423938},{"$f":"+SUMIF('Actividades Mtto'!$H$78:$AC$117,'OPEX Mtto'!$B19,'Actividades Mtto'!P$78:P$117)*IF(I$5>'Sup fijo'!$H$52,0,1)","v":2626.3100887768883},{"$f":"+SUMIF('Actividades Mtto'!$H$78:$AC$117,'OPEX Mtto'!$B19,'Actividades Mtto'!Q$78:Q$117)*IF(J$5>'Sup fijo'!$H$52,0,1)","v":2671.8868278409514},{"$f":"+SUMIF('Actividades Mtto'!$H$78:$AC$117,'OPEX Mtto'!$B19,'Actividades Mtto'!R$78:R$117)*IF(K$5>'Sup fijo'!$H$52,0,1)","v":2536.4380663094753},{"$f":"+SUMIF('Actividades Mtto'!$H$78:$AC$117,'OPEX Mtto'!$B19,'Actividades Mtto'!S$78:S$117)*IF(L$5>'Sup fijo'!$H$52,0,1)","v":2747.0635743098546},{"$f":"+SUMIF('Actividades Mtto'!$H$78:$AC$117,'OPEX Mtto'!$B19,'Actividades Mtto'!T$78:T$117)*IF(M$5>'Sup fijo'!$H$52,0,1)","v":2782.9218624890636},{"$f":"+SUMIF('Actividades Mtto'!$H$78:$AC$117,'OPEX Mtto'!$B19,'Actividades Mtto'!U$78:U$117)*IF(N$5>'Sup fijo'!$H$52,0,1)","v":2814.7445188895631},{"$f":"+SUMIF('Actividades Mtto'!$H$78:$AC$117,'OPEX Mtto'!$B19,'Actividades Mtto'!V$78:V$117)*IF(O$5>'Sup fijo'!$H$52,0,1)","v":0},{"$f":"+SUMIF('Actividades Mtto'!$H$78:$AC$117,'OPEX Mtto'!$B19,'Actividades Mtto'!W$78:W$117)*IF(P$5>'Sup fijo'!$H$52,0,1)","v":0},{"$f":"+SUMIF('Actividades Mtto'!$H$78:$AC$117,'OPEX Mtto'!$B19,'Actividades Mtto'!X$78:X$117)*IF(Q$5>'Sup fijo'!$H$52,0,1)","v":0},{"$f":"+SUMIF('Actividades Mtto'!$H$78:$AC$117,'OPEX Mtto'!$B19,'Actividades Mtto'!Y$78:Y$117)*IF(R$5>'Sup fijo'!$H$52,0,1)","v":0},{"$f":"+SUMIF('Actividades Mtto'!$H$78:$AC$117,'OPEX Mtto'!$B19,'Actividades Mtto'!Z$78:Z$117)*IF(S$5>'Sup fijo'!$H$52,0,1)","v":0},{"$f":"+SUMIF('Actividades Mtto'!$H$78:$AC$117,'OPEX Mtto'!$B19,'Actividades Mtto'!AA$78:AA$117)*IF(T$5>'Sup fijo'!$H$52,0,1)","v":0},{"$f":"+SUMIF('Actividades Mtto'!$H$78:$AC$117,'OPEX Mtto'!$B19,'Actividades Mtto'!AB$78:AB$117)*IF(U$5>'Sup fijo'!$H$52,0,1)","v":0},{"$f":"+SUMIF('Actividades Mtto'!$H$78:$AC$117,'OPEX Mtto'!$B19,'Actividades Mtto'!AC$78:AC$117)*IF(V$5>'Sup fijo'!$H$52,0,1)","v":0}]
[null,"Costo de mantenimiento mecánico",{"$f":"+SUMIF('Actividades Mtto'!$H$78:$AC$117,'OPEX Mtto'!$B20,'Actividades Mtto'!J$78:J$117)*IF(C$5>'Sup fijo'!$H$52,0,1)","v":3977.7220022857146},{"$f":"+SUMIF('Actividades Mtto'!$H$78:$AC$117,'OPEX Mtto'!$B20,'Actividades Mtto'!K$78:K$117)*IF(D$5>'Sup fijo'!$H$52,0,1)","v":8438.8655006476183},{"$f":"+SUMIF('Actividades Mtto'!$H$78:$AC$117,'OPEX Mtto'!$B20,'Actividades Mtto'!L$78:L$117)*IF(E$5>'Sup fijo'!$H$52,0,1)","v":5999.9601144018643},{"$f":"+SUMIF('Actividades Mtto'!$H$78:$AC$117,'OPEX Mtto'!$B20,'Actividades Mtto'!M$78:M$117)*IF(F$5>'Sup fijo'!$H$52,0,1)","v":14753.691958688301},{"$f":"+SUMIF('Actividades Mtto'!$H$78:$AC$117,'OPEX Mtto'!$B20,'Actividades Mtto'!N$78:N$117)*IF(G$5>'Sup fijo'!$H$52,0,1)","v":4631.3504244129617},{"$f":"+SUMIF('Actividades Mtto'!$H$78:$AC$117,'OPEX Mtto'!$B20,'Actividades Mtto'!O$78:O$117)*IF(H$5>'Sup fijo'!$H$52,0,1)","v":10358.270167907305},{"$f":"+SUMIF('Actividades Mtto'!$H$78:$AC$117,'OPEX Mtto'!$B20,'Actividades Mtto'!P$78:P$117)*IF(I$5>'Sup fijo'!$H$52,0,1)","v":4285.1705665768168},{"$f":"+SUMIF('Actividades Mtto'!$H$78:$AC$117,'OPEX Mtto'!$B20,'Actividades Mtto'!Q$78:Q$117)*IF(J$5>'Sup fijo'!$H$52,0,1)","v":16640.743083742294},{"$f":"+SUMIF('Actividades Mtto'!$H$78:$AC$117,'OPEX Mtto'!$B20,'Actividades Mtto'!R$78:R$117)*IF(K$5>'Sup fijo'!$H$52,0,1)","v":6062.900157532029},{"$f":"+SUMIF('Actividades Mtto'!$H$78:$AC$117,'OPEX Mtto'!$B20,'Actividades Mtto'!S$78:S$117)*IF(L$5>'Sup fijo'!$H$52,0,1)","v":9701.1487783295834},{"$f":"+SUMIF('Actividades Mtto'!$H$78:$AC$117,'OPEX Mtto'!$B20,'Actividades Mtto'!T$78:T$117)*IF(M$5>'Sup fijo'!$H$52,0,1)","v":4714.0128049054856},{"$f":"+SUMIF('Actividades Mtto'!$H$78:$AC$117,'OPEX Mtto'!$B20,'Actividades Mtto'!U$78:U$117)*IF(N$5>'Sup fijo'!$H$52,0,1)","v":18323.968444511203},{"$f":"+SUMIF('Actividades Mtto'!$H$78:$AC$117,'OPEX Mtto'!$B20,'Actividades Mtto'!V$78:V$117)*IF(O$5>'Sup fijo'!$H$52,0,1)","v":0},{"$f":"+SUMIF('Actividades Mtto'!$H$78:$AC$117,'OPEX Mtto'!$B20,'Actividades Mtto'!W$78:W$117)*IF(P$5>'Sup fijo'!$H$52,0,1)","v":0},{"$f":"+SUMIF('Actividades Mtto'!$H$78:$AC$117,'OPEX Mtto'!$B20,'Actividades Mtto'!X$78:X$117)*IF(Q$5>'Sup fijo'!$H$52,0,1)","v":0},{"$f":"+SUMIF('Actividades Mtto'!$H$78:$AC$117,'OPEX Mtto'!$B20,'Actividades Mtto'!Y$78:Y$117)*IF(R$5>'Sup fijo'!$H$52,0,1)","v":0},{"$f":"+SUMIF('Actividades Mtto'!$H$78:$AC$117,'OPEX Mtto'!$B20,'Actividades Mtto'!Z$78:Z$117)*IF(S$5>'Sup fijo'!$H$52,0,1)","v":0},{"$f":"+SUMIF('Actividades Mtto'!$H$78:$AC$117,'OPEX Mtto'!$B20,'Actividades Mtto'!AA$78:AA$117)*IF(T$5>'Sup fijo'!$H$52,0,1)","v":0},{"$f":"+SUMIF('Actividades Mtto'!$H$78:$AC$117,'OPEX Mtto'!$B20,'Actividades Mtto'!AB$78:AB$117)*IF(U$5>'Sup fijo'!$H$52,0,1)","v":0},{"$f":"+SUMIF('Actividades Mtto'!$H$78:$AC$117,'OPEX Mtto'!$B20,'Actividades Mtto'!AC$78:AC$117)*IF(V$5>'Sup fijo'!$H$52,0,1)","v":0}]
[null,"Neumáticos ",{"$f":"+SUMIF('Actividades Mtto'!$H$78:$AC$117,'OPEX Mtto'!$B21,'Actividades Mtto'!J$78:J$117)*IF(C$5>'Sup fijo'!$H$52,0,1)","v":3891.1625508571433},{"$f":"+SUMIF('Actividades Mtto'!$H$78:$AC$117,'OPEX Mtto'!$B21,'Actividades Mtto'!K$78:K$117)*IF(D$5>'Sup fijo'!$H$52,0,1)","v":3953.4211516708574},{"$f":"+SUMIF('Actividades Mtto'!$H$78:$AC$117,'OPEX Mtto'!$B21,'Actividades Mtto'!L$78:L$117)*IF(E$5>'Sup fijo'!$H$52,0,1)","v":8112.4202032285993},{"$f":"+SUMIF('Actividades Mtto'!$H$78:$AC$117,'OPEX Mtto'!$B21,'Actividades Mtto'!M$78:M$117)*IF(F$5>'Sup fijo'!$H$52,0,1)","v":4073.7329292532741},{"$f":"+SUMIF('Actividades Mtto'!$H$78:$AC$117,'OPEX Mtto'!$B21,'Actividades Mtto'!N$78:N$117)*IF(G$5>'Sup fijo'!$H$52,0,1)","v":4084.7320081622579},{"$f":"+SUMIF('Actividades Mtto'!$H$78:$AC$117,'OPEX Mtto'!$B21,'Actividades Mtto'!O$78:O$117)*IF(H$5>'Sup fijo'!$H$52,0,1)","v":8224.1994252338882},{"$f":"+SUMIF('Actividades Mtto'!$H$78:$AC$117,'OPEX Mtto'!$B21,'Actividades Mtto'!P$78:P$117)*IF(I$5>'Sup fijo'!$H$52,0,1)","v":4191.9207081634804},{"$f":"+SUMIF('Actividades Mtto'!$H$78:$AC$117,'OPEX Mtto'!$B21,'Actividades Mtto'!Q$78:Q$117)*IF(J$5>'Sup fijo'!$H$52,0,1)","v":8529.3338142807679},{"$f":"+SUMIF('Actividades Mtto'!$H$78:$AC$117,'OPEX Mtto'!$B21,'Actividades Mtto'!R$78:R$117)*IF(K$5>'Sup fijo'!$H$52,0,1)","v":4326.763206019441},{"$f":"+SUMIF('Actividades Mtto'!$H$78:$AC$117,'OPEX Mtto'!$B21,'Actividades Mtto'!S$78:S$117)*IF(L$5>'Sup fijo'!$H$52,0,1)","v":4384.6584350418416},{"$f":"+SUMIF('Actividades Mtto'!$H$78:$AC$117,'OPEX Mtto'!$B21,'Actividades Mtto'!T$78:T$117)*IF(M$5>'Sup fijo'!$H$52,0,1)","v":8883.7855319679493},{"$f":"+SUMIF('Actividades Mtto'!$H$78:$AC$117,'OPEX Mtto'!$B21,'Actividades Mtto'!U$78:U$117)*IF(N$5>'Sup fijo'!$H$52,0,1)","v":4492.6857218211699},{"$f":"+SUMIF('Actividades Mtto'!$H$78:$AC$117,'OPEX Mtto'!$B21,'Actividades Mtto'!V$78:V$117)*IF(O$5>'Sup fijo'!$H$52,0,1)","v":0},{"$f":"+SUMIF('Actividades Mtto'!$H$78:$AC$117,'OPEX Mtto'!$B21,'Actividades Mtto'!W$78:W$117)*IF(P$5>'Sup fijo'!$H$52,0,1)","v":0},{"$f":"+SUMIF('Actividades Mtto'!$H$78:$AC$117,'OPEX Mtto'!$B21,'Actividades Mtto'!X$78:X$117)*IF(Q$5>'Sup fijo'!$H$52,0,1)","v":0},{"$f":"+SUMIF('Actividades Mtto'!$H$78:$AC$117,'OPEX Mtto'!$B21,'Actividades Mtto'!Y$78:Y$117)*IF(R$5>'Sup fijo'!$H$52,0,1)","v":0},{"$f":"+SUMIF('Actividades Mtto'!$H$78:$AC$117,'OPEX Mtto'!$B21,'Actividades Mtto'!Z$78:Z$117)*IF(S$5>'Sup fijo'!$H$52,0,1)","v":0},{"$f":"+SUMIF('Actividades Mtto'!$H$78:$AC$117,'OPEX Mtto'!$B21,'Actividades Mtto'!AA$78:AA$117)*IF(T$5>'Sup fijo'!$H$52,0,1)","v":0},{"$f":"+SUMIF('Actividades Mtto'!$H$78:$AC$117,'OPEX Mtto'!$B21,'Actividades Mtto'!AB$78:AB$117)*IF(U$5>'Sup fijo'!$H$52,0,1)","v":0},{"$f":"+SUMIF('Actividades Mtto'!$H$78:$AC$117,'OPEX Mtto'!$B21,'Actividades Mtto'!AC$78:AC$117)*IF(V$5>'Sup fijo'!$H$52,0,1)","v":0}]
[null,"Mano de Obra",{"$f":"+SUMIF('Actividades Mtto'!$H$78:$AC$117,'OPEX Mtto'!$B22,'Actividades Mtto'!J$78:J$117)*IF(C$5>'Sup fijo'!$H$52,0,1)","v":0},{"$f":"+SUMIF('Actividades Mtto'!$H$78:$AC$117,'OPEX Mtto'!$B22,'Actividades Mtto'!K$78:K$117)*IF(D$5>'Sup fijo'!$H$52,0,1)","v":0},{"$f":"+SUMIF('Actividades Mtto'!$H$78:$AC$117,'OPEX Mtto'!$B22,'Actividades Mtto'!L$78:L$117)*IF(E$5>'Sup fijo'!$H$52,0,1)","v":0},{"$f":"+SUMIF('Actividades Mtto'!$H$78:$AC$117,'OPEX Mtto'!$B22,'Actividades Mtto'!M$78:M$117)*IF(F$5>'Sup fijo'!$H$52,0,1)","v":0},{"$f":"+SUMIF('Actividades Mtto'!$H$78:$AC$117,'OPEX Mtto'!$B22,'Actividades Mtto'!N$78:N$117)*IF(G$5>'Sup fijo'!$H$52,0,1)","v":0},{"$f":"+SUMIF('Actividades Mtto'!$H$78:$AC$117,'OPEX Mtto'!$B22,'Actividades Mtto'!O$78:O$117)*IF(H$5>'Sup fijo'!$H$52,0,1)","v":0},{"$f":"+SUMIF('Actividades Mtto'!$H$78:$AC$117,'OPEX Mtto'!$B22,'Actividades Mtto'!P$78:P$117)*IF(I$5>'Sup fijo'!$H$52,0,1)","v":0},{"$f":"+SUMIF('Actividades Mtto'!$H$78:$AC$117,'OPEX Mtto'!$B22,'Actividades Mtto'!Q$78:Q$117)*IF(J$5>'Sup fijo'!$H$52,0,1)","v":0},{"$f":"+SUMIF('Actividades Mtto'!$H$78:$AC$117,'OPEX Mtto'!$B22,'Actividades Mtto'!R$78:R$117)*IF(K$5>'Sup fijo'!$H$52,0,1)","v":0},{"$f":"+SUMIF('Actividades Mtto'!$H$78:$AC$117,'OPEX Mtto'!$B22,'Actividades Mtto'!S$78:S$117)*IF(L$5>'Sup fijo'!$H$52,0,1)","v":0},{"$f":"+SUMIF('Actividades Mtto'!$H$78:$AC$117,'OPEX Mtto'!$B22,'Actividades Mtto'!T$78:T$117)*IF(M$5>'Sup fijo'!$H$52,0,1)","v":0},{"$f":"+SUMIF('Actividades Mtto'!$H$78:$AC$117,'OPEX Mtto'!$B22,'Actividades Mtto'!U$78:U$117)*IF(N$5>'Sup fijo'!$H$52,0,1)","v":0},{"$f":"+SUMIF('Actividades Mtto'!$H$78:$AC$117,'OPEX Mtto'!$B22,'Actividades Mtto'!V$78:V$117)*IF(O$5>'Sup fijo'!$H$52,0,1)","v":0},{"$f":"+SUMIF('Actividades Mtto'!$H$78:$AC$117,'OPEX Mtto'!$B22,'Actividades Mtto'!W$78:W$117)*IF(P$5>'Sup fijo'!$H$52,0,1)","v":0},{"$f":"+SUMIF('Actividades Mtto'!$H$78:$AC$117,'OPEX Mtto'!$B22,'Actividades Mtto'!X$78:X$117)*IF(Q$5>'Sup fijo'!$H$52,0,1)","v":0},{"$f":"+SUMIF('Actividades Mtto'!$H$78:$AC$117,'OPEX Mtto'!$B22,'Actividades Mtto'!Y$78:Y$117)*IF(R$5>'Sup fijo'!$H$52,0,1)","v":0},{"$f":"+SUMIF('Actividades Mtto'!$H$78:$AC$117,'OPEX Mtto'!$B22,'Actividades Mtto'!Z$78:Z$117)*IF(S$5>'Sup fijo'!$H$52,0,1)","v":0},{"$f":"+SUMIF('Actividades Mtto'!$H$78:$AC$117,'OPEX Mtto'!$B22,'Actividades Mtto'!AA$78:AA$117)*IF(T$5>'Sup fijo'!$H$52,0,1)","v":0},{"$f":"+SUMIF('Actividades Mtto'!$H$78:$AC$117,'OPEX Mtto'!$B22,'Actividades Mtto'!AB$78:AB$117)*IF(U$5>'Sup fijo'!$H$52,0,1)","v":0},{"$f":"+SUMIF('Actividades Mtto'!$H$78:$AC$117,'OPEX Mtto'!$B22,'Actividades Mtto'!AC$78:AC$117)*IF(V$5>'Sup fijo'!$H$52,0,1)","v":0}]
[null,"Aceites y filtros ",{"$f":"+SUMIF('Actividades Mtto'!$H$78:$AC$117,'OPEX Mtto'!$B23,'Actividades Mtto'!J$78:J$117)*IF(C$5>'Sup fijo'!$H$52,0,1)","v":3013.7799923809521},{"$f":"+SUMIF('Actividades Mtto'!$H$78:$AC$117,'OPEX Mtto'!$B23,'Actividades Mtto'!K$78:K$117)*IF(D$5>'Sup fijo'!$H$52,0,1)","v":3228.6889389104758},{"$f":"+SUMIF('Actividades Mtto'!$H$78:$AC$117,'OPEX Mtto'!$B23,'Actividades Mtto'!L$78:L$117)*IF(E$5>'Sup fijo'!$H$52,0,1)","v":3388.2972406930285},{"$f":"+SUMIF('Actividades Mtto'!$H$78:$AC$117,'OPEX Mtto'!$B23,'Actividades Mtto'!M$78:M$117)*IF(F$5>'Sup fijo'!$H$52,0,1)","v":3326.945433879861},{"$f":"+SUMIF('Actividades Mtto'!$H$78:$AC$117,'OPEX Mtto'!$B23,'Actividades Mtto'!N$78:N$117)*IF(G$5>'Sup fijo'!$H$52,0,1)","v":3163.7032479472573},{"$f":"+SUMIF('Actividades Mtto'!$H$78:$AC$117,'OPEX Mtto'!$B23,'Actividades Mtto'!O$78:O$117)*IF(H$5>'Sup fijo'!$H$52,0,1)","v":3434.9838298981344},{"$f":"+SUMIF('Actividades Mtto'!$H$78:$AC$117,'OPEX Mtto'!$B23,'Actividades Mtto'!P$78:P$117)*IF(I$5>'Sup fijo'!$H$52,0,1)","v":3423.4672968036998},{"$f":"+SUMIF('Actividades Mtto'!$H$78:$AC$117,'OPEX Mtto'!$B23,'Actividades Mtto'!Q$78:Q$117)*IF(J$5>'Sup fijo'!$H$52,0,1)","v":3878.4739806168595},{"$f":"+SUMIF('Actividades Mtto'!$H$78:$AC$117,'OPEX Mtto'!$B23,'Actividades Mtto'!R$78:R$117)*IF(K$5>'Sup fijo'!$H$52,0,1)","v":3351.1610506220131},{"$f":"+SUMIF('Actividades Mtto'!$H$78:$AC$117,'OPEX Mtto'!$B23,'Actividades Mtto'!S$78:S$117)*IF(L$5>'Sup fijo'!$H$52,0,1)","v":3580.8727800570859},{"$f":"+SUMIF('Actividades Mtto'!$H$78:$AC$117,'OPEX Mtto'!$B23,'Actividades Mtto'!T$78:T$117)*IF(M$5>'Sup fijo'!$H$52,0,1)","v":3710.4717520544627},{"$f":"+SUMIF('Actividades Mtto'!$H$78:$AC$117,'OPEX Mtto'!$B23,'Actividades Mtto'!U$78:U$117)*IF(N$5>'Sup fijo'!$H$52,0,1)","v":3669.0967492584241},{"$f":"+SUMIF('Actividades Mtto'!$H$78:$AC$117,'OPEX Mtto'!$B23,'Actividades Mtto'!V$78:V$117)*IF(O$5>'Sup fijo'!$H$52,0,1)","v":0},{"$f":"+SUMIF('Actividades Mtto'!$H$78:$AC$117,'OPEX Mtto'!$B23,'Actividades Mtto'!W$78:W$117)*IF(P$5>'Sup fijo'!$H$52,0,1)","v":0},{"$f":"+SUMIF('Actividades Mtto'!$H$78:$AC$117,'OPEX Mtto'!$B23,'Actividades Mtto'!X$78:X$117)*IF(Q$5>'Sup fijo'!$H$52,0,1)","v":0},{"$f":"+SUMIF('Actividades Mtto'!$H$78:$AC$117,'OPEX Mtto'!$B23,'Actividades Mtto'!Y$78:Y$117)*IF(R$5>'Sup fijo'!$H$52,0,1)","v":0},{"$f":"+SUMIF('Actividades Mtto'!$H$78:$AC$117,'OPEX Mtto'!$B23,'Actividades Mtto'!Z$78:Z$117)*IF(S$5>'Sup fijo'!$H$52,0,1)","v":0},{"$f":"+SUMIF('Actividades Mtto'!$H$78:$AC$117,'OPEX Mtto'!$B23,'Actividades Mtto'!AA$78:AA$117)*IF(T$5>'Sup fijo'!$H$52,0,1)","v":0},{"$f":"+SUMIF('Actividades Mtto'!$H$78:$AC$117,'OPEX Mtto'!$B23,'Actividades Mtto'!AB$78:AB$117)*IF(U$5>'Sup fijo'!$H$52,0,1)","v":0},{"$f":"+SUMIF('Actividades Mtto'!$H$78:$AC$117,'OPEX Mtto'!$B23,'Actividades Mtto'!AC$78:AC$117)*IF(V$5>'Sup fijo'!$H$52,0,1)","v":0}]
[null,"Total (USD) Mantenimiento Preventivo y Correctivo Completo",{"$f":"+SUM(C18:C23)","v":13830.807356952382},{"$f":"+SUM(D18:D23)","v":18775.597487640382},20737.319624041615,25404.994681263466,14974.586565626356,25298.692455254772,15245.490554923535,32817.076893867044,17019.000454331454,25925.114458210992,20852.66661120643,30070.677541928631,0,0,0,0,0,0,0,0]
[null,"Total (USD) Mantenimiento Preventivo  Básico y Correctivo Completo",{"$f":"C24*'Sup fijo'!$D$201","v":11064.645885561906},{"$f":"D24*'Sup fijo'!$D$201","v":15020.477990112306},{"$f":"E24*'Sup fijo'!$D$201","v":16589.855699233292},{"$f":"F24*'Sup fijo'!$D$201","v":20323.995745010776},{"$f":"G24*'Sup fijo'!$D$201","v":11979.669252501086},{"$f":"H24*'Sup fijo'!$D$201","v":20238.953964203818},{"$f":"I24*'Sup fijo'!$D$201","v":12196.392443938828},{"$f":"J24*'Sup fijo'!$D$201","v":26253.661515093638},{"$f":"K24*'Sup fijo'!$D$201","v":13615.200363465163},{"$f":"L24*'Sup fijo'!$D$201","v":20740.091566568793},{"$f":"M24*'Sup fijo'!$D$201","v":16682.133288965146},{"$f":"N24*'Sup fijo'!$D$201","v":24056.542033542908},{"$f":"O24*'Sup fijo'!$D$201","v":0},{"$f":"P24*'Sup fijo'!$D$201","v":0},{"$f":"Q24*'Sup fijo'!$D$201","v":0},{"$f":"R24*'Sup fijo'!$D$201","v":0},{"$f":"S24*'Sup fijo'!$D$201","v":0},{"$f":"T24*'Sup fijo'!$D$201","v":0},{"$f":"U24*'Sup fijo'!$D$201","v":0},{"$f":"V24*'Sup fijo'!$D$201","v":0}]
[]
[null,{"$f":"'Sup fijo'!B22","v":"Intracantonal Combinado"}]
[null,"Carrocería ",{"$f":"+SUMIF('Actividades Mtto'!$H$142:$AC$181,'OPEX Mtto'!$B28,'Actividades Mtto'!J$142:J$181)*IF(C$5>'Sup fijo'!$H$53,0,1)","v":1000.5942857142857},{"$f":"+SUMIF('Actividades Mtto'!$H$142:$AC$181,'OPEX Mtto'!$B28,'Actividades Mtto'!K$142:K$181)*IF(D$5>'Sup fijo'!$H$53,0,1)","v":1355.4717257142856},{"$f":"+SUMIF('Actividades Mtto'!$H$142:$AC$181,'OPEX Mtto'!$B28,'Actividades Mtto'!L$142:L$181)*IF(E$5>'Sup fijo'!$H$53,0,1)","v":1390.7139905828572},{"$f":"+SUMIF('Actividades Mtto'!$H$142:$AC$181,'OPEX Mtto'!$B28,'Actividades Mtto'!M$142:M$181)*IF(F$5>'Sup fijo'!$H$53,0,1)","v":1396.7218750221753},{"$f":"+SUMIF('Actividades Mtto'!$H$142:$AC$181,'OPEX Mtto'!$B28,'Actividades Mtto'!N$142:N$181)*IF(G$5>'Sup fijo'!$H$53,0,1)","v":1050.3697680635514},{"$f":"+SUMIF('Actividades Mtto'!$H$142:$AC$181,'OPEX Mtto'!$B28,'Actividades Mtto'!O$142:O$181)*IF(H$5>'Sup fijo'!$H$53,0,1)","v":5873.7117387626286},{"$f":"+SUMIF('Actividades Mtto'!$H$142:$AC$181,'OPEX Mtto'!$B28,'Actividades Mtto'!P$142:P$181)*IF(I$5>'Sup fijo'!$H$53,0,1)","v":1437.2437892052999},{"$f":"+SUMIF('Actividades Mtto'!$H$142:$AC$181,'OPEX Mtto'!$B28,'Actividades Mtto'!Q$142:Q$181)*IF(J$5>'Sup fijo'!$H$53,0,1)","v":1462.1855831815637},{"$f":"+SUMIF('Actividades Mtto'!$H$142:$AC$181,'OPEX Mtto'!$B28,'Actividades Mtto'!R$142:R$181)*IF(K$5>'Sup fijo'!$H$53,0,1)","v":1112.6069607727418},{"$f":"+SUMIF('Actividades Mtto'!$H$142:$AC$181,'OPEX Mtto'!$B28,'Actividades Mtto'!S$142:S$181)*IF(L$5>'Sup fijo'!$H$53,0,1)","v":1503.3259315421078},{"$f":"+SUMIF('Actividades Mtto'!$H$142:$AC$181,'OPEX Mtto'!$B28,'Actividades Mtto'!T$142:T$181)*IF(M$5>'Sup fijo'!$H$53,0,1)","v":6344.7872146273703},{"$f":"+SUMIF('Actividades Mtto'!$H$142:$AC$181,'OPEX Mtto'!$B28,'Actividades Mtto'!U$142:U$181)*IF(N$5>'Sup fijo'!$H$53,0,1)","v":1540.3642148965446},{"$f":"+SUMIF('Actividades Mtto'!$H$142:$AC$181,'OPEX Mtto'!$B28,'Actividades Mtto'!V$142:V$181)*IF(O$5>'Sup fijo'!$H$53,0,1)","v":0},{"$f":"+SUMIF('Actividades Mtto'!$H$142:$AC$181,'OPEX Mtto'!$B28,'Actividades Mtto'!W$142:W$181)*IF(P$5>'Sup fijo'!$H$53,0,1)","v":0},{"$f":"+SUMIF('Actividades Mtto'!$H$142:$AC$181,'OPEX Mtto'!$B28,'Actividades Mtto'!X$142:X$181)*IF(Q$5>'Sup fijo'!$H$53,0,1)","v":0},{"$f":"+SUMIF('Actividades Mtto'!$H$142:$AC$181,'OPEX Mtto'!$B28,'Actividades Mtto'!Y$142:Y$181)*IF(R$5>'Sup fijo'!$H$53,0,1)","v":0},{"$f":"+SUMIF('Actividades Mtto'!$H$142:$AC$181,'OPEX Mtto'!$B28,'Actividades Mtto'!Z$142:Z$181)*IF(S$5>'Sup fijo'!$H$53,0,1)","v":0},{"$f":"+SUMIF('Actividades Mtto'!$H$142:$AC$181,'OPEX Mtto'!$B28,'Actividades Mtto'!AA$142:AA$181)*IF(T$5>'Sup fijo'!$H$53,0,1)","v":0},{"$f":"+SUMIF('Actividades Mtto'!$H$142:$AC$181,'OPEX Mtto'!$B28,'Actividades Mtto'!AB$142:AB$181)*IF(U$5>'Sup fijo'!$H$53,0,1)","v":0},{"$f":"+SUMIF('Actividades Mtto'!$H$142:$AC$181,'OPEX Mtto'!$B28,'Actividades Mtto'!AC$142:AC$181)*IF(V$5>'Sup fijo'!$H$53,0,1)","v":0}]
[null,"Costo de mantenimiento eléctrico ",{"$f":"+SUMIF('Actividades Mtto'!$H$142:$AC$181,'OPEX Mtto'!$B29,'Actividades Mtto'!J$142:J$181)*IF(C$5>'Sup fijo'!$H$53,0,1)","v":3849.0799542857139},{"$f":"+SUMIF('Actividades Mtto'!$H$142:$AC$181,'OPEX Mtto'!$B29,'Actividades Mtto'!K$142:K$181)*IF(D$5>'Sup fijo'!$H$53,0,1)","v":4475.8456671085714},{"$f":"+SUMIF('Actividades Mtto'!$H$142:$AC$181,'OPEX Mtto'!$B29,'Actividades Mtto'!L$142:L$181)*IF(E$5>'Sup fijo'!$H$53,0,1)","v":4428.7668256533943},{"$f":"+SUMIF('Actividades Mtto'!$H$142:$AC$181,'OPEX Mtto'!$B29,'Actividades Mtto'!M$142:M$181)*IF(F$5>'Sup fijo'!$H$53,0,1)","v":4612.0560347206338},{"$f":"+SUMIF('Actividades Mtto'!$H$142:$AC$181,'OPEX Mtto'!$B29,'Actividades Mtto'!N$142:N$181)*IF(G$5>'Sup fijo'!$H$53,0,1)","v":4459.9084259057354},{"$f":"+SUMIF('Actividades Mtto'!$H$142:$AC$181,'OPEX Mtto'!$B29,'Actividades Mtto'!O$142:O$181)*IF(H$5>'Sup fijo'!$H$53,0,1)","v":4655.4927935406749},{"$f":"+SUMIF('Actividades Mtto'!$H$142:$AC$181,'OPEX Mtto'!$B29,'Actividades Mtto'!P$142:P$181)*IF(I$5>'Sup fijo'!$H$53,0,1)","v":4576.9422448544647},{"$f":"+SUMIF('Actividades Mtto'!$H$142:$AC$181,'OPEX Mtto'!$B29,'Actividades Mtto'!Q$142:Q$181)*IF(J$5>'Sup fijo'!$H$53,0,1)","v":4828.2209675329759},{"$f":"+SUMIF('Actividades Mtto'!$H$142:$AC$181,'OPEX Mtto'!$B29,'Actividades Mtto'!R$142:R$181)*IF(K$5>'Sup fijo'!$H$53,0,1)","v":4279.969624903456},{"$f":"+SUMIF('Actividades Mtto'!$H$142:$AC$181,'OPEX Mtto'!$B29,'Actividades Mtto'!S$142:S$181)*IF(L$5>'Sup fijo'!$H$53,0,1)","v":4964.0687660961248},{"$f":"+SUMIF('Actividades Mtto'!$H$142:$AC$181,'OPEX Mtto'!$B29,'Actividades Mtto'!T$142:T$181)*IF(M$5>'Sup fijo'!$H$53,0,1)","v":4849.8738557133593},{"$f":"+SUMIF('Actividades Mtto'!$H$142:$AC$181,'OPEX Mtto'!$B29,'Actividades Mtto'!U$142:U$181)*IF(N$5>'Sup fijo'!$H$53,0,1)","v":5086.3713098704975},{"$f":"+SUMIF('Actividades Mtto'!$H$142:$AC$181,'OPEX Mtto'!$B29,'Actividades Mtto'!V$142:V$181)*IF(O$5>'Sup fijo'!$H$53,0,1)","v":0},{"$f":"+SUMIF('Actividades Mtto'!$H$142:$AC$181,'OPEX Mtto'!$B29,'Actividades Mtto'!W$142:W$181)*IF(P$5>'Sup fijo'!$H$53,0,1)","v":0},{"$f":"+SUMIF('Actividades Mtto'!$H$142:$AC$181,'OPEX Mtto'!$B29,'Actividades Mtto'!X$142:X$181)*IF(Q$5>'Sup fijo'!$H$53,0,1)","v":0},{"$f":"+SUMIF('Actividades Mtto'!$H$142:$AC$181,'OPEX Mtto'!$B29,'Actividades Mtto'!Y$142:Y$181)*IF(R$5>'Sup fijo'!$H$53,0,1)","v":0},{"$f":"+SUMIF('Actividades Mtto'!$H$142:$AC$181,'OPEX Mtto'!$B29,'Actividades Mtto'!Z$142:Z$181)*IF(S$5>'Sup fijo'!$H$53,0,1)","v":0},{"$f":"+SUMIF('Actividades Mtto'!$H$142:$AC$181,'OPEX Mtto'!$B29,'Actividades Mtto'!AA$142:AA$181)*IF(T$5>'Sup fijo'!$H$53,0,1)","v":0},{"$f":"+SUMIF('Actividades Mtto'!$H$142:$AC$181,'OPEX Mtto'!$B29,'Actividades Mtto'!AB$142:AB$181)*IF(U$5>'Sup fijo'!$H$53,0,1)","v":0},{"$f":"+SUMIF('Actividades Mtto'!$H$142:$AC$181,'OPEX Mtto'!$B29,'Actividades Mtto'!AC$142:AC$181)*IF(V$5>'Sup fijo'!$H$53,0,1)","v":0}]
[null,"Costo de mantenimiento mecánico",{"$f":"+SUMIF('Actividades Mtto'!$H$142:$AC$181,'OPEX Mtto'!$B30,'Actividades Mtto'!J$142:J$181)*IF(C$5>'Sup fijo'!$H$53,0,1)","v":5904.8093500952382},{"$f":"+SUMIF('Actividades Mtto'!$H$142:$AC$181,'OPEX Mtto'!$B30,'Actividades Mtto'!K$142:K$181)*IF(D$5>'Sup fijo'!$H$53,0,1)","v":15079.344373369904},{"$f":"+SUMIF('Actividades Mtto'!$H$142:$AC$181,'OPEX Mtto'!$B30,'Actividades Mtto'!L$142:L$181)*IF(E$5>'Sup fijo'!$H$53,0,1)","v":19868.915466773647},{"$f":"+SUMIF('Actividades Mtto'!$H$142:$AC$181,'OPEX Mtto'!$B30,'Actividades Mtto'!M$142:M$181)*IF(F$5>'Sup fijo'!$H$53,0,1)","v":15675.229755012551},{"$f":"+SUMIF('Actividades Mtto'!$H$142:$AC$181,'OPEX Mtto'!$B30,'Actividades Mtto'!N$142:N$181)*IF(G$5>'Sup fijo'!$H$53,0,1)","v":20730.420889887522},{"$f":"+SUMIF('Actividades Mtto'!$H$142:$AC$181,'OPEX Mtto'!$B30,'Actividades Mtto'!O$142:O$181)*IF(H$5>'Sup fijo'!$H$53,0,1)","v":13943.448700099976},{"$f":"+SUMIF('Actividades Mtto'!$H$142:$AC$181,'OPEX Mtto'!$B30,'Actividades Mtto'!P$142:P$181)*IF(I$5>'Sup fijo'!$H$53,0,1)","v":22308.612801051273},{"$f":"+SUMIF('Actividades Mtto'!$H$142:$AC$181,'OPEX Mtto'!$B30,'Actividades Mtto'!Q$142:Q$181)*IF(J$5>'Sup fijo'!$H$53,0,1)","v":16409.920522275872},{"$f":"+SUMIF('Actividades Mtto'!$H$142:$AC$181,'OPEX Mtto'!$B30,'Actividades Mtto'!R$142:R$181)*IF(K$5>'Sup fijo'!$H$53,0,1)","v":17784.434136972577},{"$f":"+SUMIF('Actividades Mtto'!$H$142:$AC$181,'OPEX Mtto'!$B30,'Actividades Mtto'!S$142:S$181)*IF(L$5>'Sup fijo'!$H$53,0,1)","v":16724.192026355035},{"$f":"+SUMIF('Actividades Mtto'!$H$142:$AC$181,'OPEX Mtto'!$B30,'Actividades Mtto'!T$142:T$181)*IF(M$5>'Sup fijo'!$H$53,0,1)","v":21758.141138863793},{"$f":"+SUMIF('Actividades Mtto'!$H$142:$AC$181,'OPEX Mtto'!$B30,'Actividades Mtto'!U$142:U$181)*IF(N$5>'Sup fijo'!$H$53,0,1)","v":17287.309239371301},{"$f":"+SUMIF('Actividades Mtto'!$H$142:$AC$181,'OPEX Mtto'!$B30,'Actividades Mtto'!V$142:V$181)*IF(O$5>'Sup fijo'!$H$53,0,1)","v":0},{"$f":"+SUMIF('Actividades Mtto'!$H$142:$AC$181,'OPEX Mtto'!$B30,'Actividades Mtto'!W$142:W$181)*IF(P$5>'Sup fijo'!$H$53,0,1)","v":0},{"$f":"+SUMIF('Actividades Mtto'!$H$142:$AC$181,'OPEX Mtto'!$B30,'Actividades Mtto'!X$142:X$181)*IF(Q$5>'Sup fijo'!$H$53,0,1)","v":0},{"$f":"+SUMIF('Actividades Mtto'!$H$142:$AC$181,'OPEX Mtto'!$B30,'Actividades Mtto'!Y$142:Y$181)*IF(R$5>'Sup fijo'!$H$53,0,1)","v":0},{"$f":"+SUMIF('Actividades Mtto'!$H$142:$AC$181,'OPEX Mtto'!$B30,'Actividades Mtto'!Z$142:Z$181)*IF(S$5>'Sup fijo'!$H$53,0,1)","v":0},{"$f":"+SUMIF('Actividades Mtto'!$H$142:$AC$181,'OPEX Mtto'!$B30,'Actividades Mtto'!AA$142:AA$181)*IF(T$5>'Sup fijo'!$H$53,0,1)","v":0},{"$f":"+SUMIF('Actividades Mtto'!$H$142:$AC$181,'OPEX Mtto'!$B30,'Actividades Mtto'!AB$142:AB$181)*IF(U$5>'Sup fijo'!$H$53,0,1)","v":0},{"$f":"+SUMIF('Actividades Mtto'!$H$142:$AC$181,'OPEX Mtto'!$B30,'Actividades Mtto'!AC$142:AC$181)*IF(V$5>'Sup fijo'!$H$53,0,1)","v":0}]
[null,"Neumáticos ",{"$f":"+SUMIF('Actividades Mtto'!$H$142:$AC$181,'OPEX Mtto'!$B31,'Actividades Mtto'!J$142:J$181)*IF(C$5>'Sup fijo'!$H$53,0,1)","v":9624.8229302857144},{"$f":"+SUMIF('Actividades Mtto'!$H$142:$AC$181,'OPEX Mtto'!$B31,'Actividades Mtto'!K$142:K$181)*IF(D$5>'Sup fijo'!$H$53,0,1)","v":9778.8200971702863},{"$f":"+SUMIF('Actividades Mtto'!$H$142:$AC$181,'OPEX Mtto'!$B31,'Actividades Mtto'!L$142:L$181)*IF(E$5>'Sup fijo'!$H$53,0,1)","v":15049.60412954507},{"$f":"+SUMIF('Actividades Mtto'!$H$142:$AC$181,'OPEX Mtto'!$B31,'Actividades Mtto'!M$142:M$181)*IF(F$5>'Sup fijo'!$H$53,0,1)","v":10076.412279589806},{"$f":"+SUMIF('Actividades Mtto'!$H$142:$AC$181,'OPEX Mtto'!$B31,'Actividades Mtto'!N$142:N$181)*IF(G$5>'Sup fijo'!$H$53,0,1)","v":15155.427889117047},{"$f":"+SUMIF('Actividades Mtto'!$H$142:$AC$181,'OPEX Mtto'!$B31,'Actividades Mtto'!O$142:O$181)*IF(H$5>'Sup fijo'!$H$53,0,1)","v":10171.312837316087},{"$f":"+SUMIF('Actividades Mtto'!$H$142:$AC$181,'OPEX Mtto'!$B31,'Actividades Mtto'!P$142:P$181)*IF(I$5>'Sup fijo'!$H$53,0,1)","v":15553.126100444159},{"$f":"+SUMIF('Actividades Mtto'!$H$142:$AC$181,'OPEX Mtto'!$B31,'Actividades Mtto'!Q$142:Q$181)*IF(J$5>'Sup fijo'!$H$53,0,1)","v":10548.689061790465},{"$f":"+SUMIF('Actividades Mtto'!$H$142:$AC$181,'OPEX Mtto'!$B31,'Actividades Mtto'!R$142:R$181)*IF(K$5>'Sup fijo'!$H$53,0,1)","v":10702.284773489882},{"$f":"+SUMIF('Actividades Mtto'!$H$142:$AC$181,'OPEX Mtto'!$B31,'Actividades Mtto'!S$142:S$181)*IF(L$5>'Sup fijo'!$H$53,0,1)","v":16268.233655941174},{"$f":"+SUMIF('Actividades Mtto'!$H$142:$AC$181,'OPEX Mtto'!$B31,'Actividades Mtto'!T$142:T$181)*IF(M$5>'Sup fijo'!$H$53,0,1)","v":10987.058697533805},{"$f":"+SUMIF('Actividades Mtto'!$H$142:$AC$181,'OPEX Mtto'!$B31,'Actividades Mtto'!U$142:U$181)*IF(N$5>'Sup fijo'!$H$53,0,1)","v":16669.043244322878},{"$f":"+SUMIF('Actividades Mtto'!$H$142:$AC$181,'OPEX Mtto'!$B31,'Actividades Mtto'!V$142:V$181)*IF(O$5>'Sup fijo'!$H$53,0,1)","v":0},{"$f":"+SUMIF('Actividades Mtto'!$H$142:$AC$181,'OPEX Mtto'!$B31,'Actividades Mtto'!W$142:W$181)*IF(P$5>'Sup fijo'!$H$53,0,1)","v":0},{"$f":"+SUMIF('Actividades Mtto'!$H$142:$AC$181,'OPEX Mtto'!$B31,'Actividades Mtto'!X$142:X$181)*IF(Q$5>'Sup fijo'!$H$53,0,1)","v":0},{"$f":"+SUMIF('Actividades Mtto'!$H$142:$AC$181,'OPEX Mtto'!$B31,'Actividades Mtto'!Y$142:Y$181)*IF(R$5>'Sup fijo'!$H$53,0,1)","v":0},{"$f":"+SUMIF('Actividades Mtto'!$H$142:$AC$181,'OPEX Mtto'!$B31,'Actividades Mtto'!Z$142:Z$181)*IF(S$5>'Sup fijo'!$H$53,0,1)","v":0},{"$f":"+SUMIF('Actividades Mtto'!$H$142:$AC$181,'OPEX Mtto'!$B31,'Actividades Mtto'!AA$142:AA$181)*IF(T$5>'Sup fijo'!$H$53,0,1)","v":0},{"$f":"+SUMIF('Actividades Mtto'!$H$142:$AC$181,'OPEX Mtto'!$B31,'Actividades Mtto'!AB$142:AB$181)*IF(U$5>'Sup fijo'!$H$53,0,1)","v":0},{"$f":"+SUMIF('Actividades Mtto'!$H$142:$AC$181,'OPEX Mtto'!$B31,'Actividades Mtto'!AC$142:AC$181)*IF(V$5>'Sup fijo'!$H$53,0,1)","v":0}]
[null,"Mano de Obra",{"$f":"+SUMIF('Actividades Mtto'!$H$142:$AC$181,'OPEX Mtto'!$B32,'Actividades Mtto'!J$142:J$181)*IF(C$5>'Sup fijo'!$H$53,0,1)","v":0},{"$f":"+SUMIF('Actividades Mtto'!$H$142:$AC$181,'OPEX Mtto'!$B32,'Actividades Mtto'!K$142:K$181)*IF(D$5>'Sup fijo'!$H$53,0,1)","v":0},{"$f":"+SUMIF('Actividades Mtto'!$H$142:$AC$181,'OPEX Mtto'!$B32,'Actividades Mtto'!L$142:L$181)*IF(E$5>'Sup fijo'!$H$53,0,1)","v":0},{"$f":"+SUMIF('Actividades Mtto'!$H$142:$AC$181,'OPEX Mtto'!$B32,'Actividades Mtto'!M$142:M$181)*IF(F$5>'Sup fijo'!$H$53,0,1)","v":0},{"$f":"+SUMIF('Actividades Mtto'!$H$142:$AC$181,'OPEX Mtto'!$B32,'Actividades Mtto'!N$142:N$181)*IF(G$5>'Sup fijo'!$H$53,0,1)","v":0},{"$f":"+SUMIF('Actividades Mtto'!$H$142:$AC$181,'OPEX Mtto'!$B32,'Actividades Mtto'!O$142:O$181)*IF(H$5>'Sup fijo'!$H$53,0,1)","v":0},{"$f":"+SUMIF('Actividades Mtto'!$H$142:$AC$181,'OPEX Mtto'!$B32,'Actividades Mtto'!P$142:P$181)*IF(I$5>'Sup fijo'!$H$53,0,1)","v":0},{"$f":"+SUMIF('Actividades Mtto'!$H$142:$AC$181,'OPEX Mtto'!$B32,'Actividades Mtto'!Q$142:Q$181)*IF(J$5>'Sup fijo'!$H$53,0,1)","v":0},{"$f":"+SUMIF('Actividades Mtto'!$H$142:$AC$181,'OPEX Mtto'!$B32,'Actividades Mtto'!R$142:R$181)*IF(K$5>'Sup fijo'!$H$53,0,1)","v":0},{"$f":"+SUMIF('Actividades Mtto'!$H$142:$AC$181,'OPEX Mtto'!$B32,'Actividades Mtto'!S$142:S$181)*IF(L$5>'Sup fijo'!$H$53,0,1)","v":0},{"$f":"+SUMIF('Actividades Mtto'!$H$142:$AC$181,'OPEX Mtto'!$B32,'Actividades Mtto'!T$142:T$181)*IF(M$5>'Sup fijo'!$H$53,0,1)","v":0},{"$f":"+SUMIF('Actividades Mtto'!$H$142:$AC$181,'OPEX Mtto'!$B32,'Actividades Mtto'!U$142:U$181)*IF(N$5>'Sup fijo'!$H$53,0,1)","v":0},{"$f":"+SUMIF('Actividades Mtto'!$H$142:$AC$181,'OPEX Mtto'!$B32,'Actividades Mtto'!V$142:V$181)*IF(O$5>'Sup fijo'!$H$53,0,1)","v":0},{"$f":"+SUMIF('Actividades Mtto'!$H$142:$AC$181,'OPEX Mtto'!$B32,'Actividades Mtto'!W$142:W$181)*IF(P$5>'Sup fijo'!$H$53,0,1)","v":0},{"$f":"+SUMIF('Actividades Mtto'!$H$142:$AC$181,'OPEX Mtto'!$B32,'Actividades Mtto'!X$142:X$181)*IF(Q$5>'Sup fijo'!$H$53,0,1)","v":0},{"$f":"+SUMIF('Actividades Mtto'!$H$142:$AC$181,'OPEX Mtto'!$B32,'Actividades Mtto'!Y$142:Y$181)*IF(R$5>'Sup fijo'!$H$53,0,1)","v":0},{"$f":"+SUMIF('Actividades Mtto'!$H$142:$AC$181,'OPEX Mtto'!$B32,'Actividades Mtto'!Z$142:Z$181)*IF(S$5>'Sup fijo'!$H$53,0,1)","v":0},{"$f":"+SUMIF('Actividades Mtto'!$H$142:$AC$181,'OPEX Mtto'!$B32,'Actividades Mtto'!AA$142:AA$181)*IF(T$5>'Sup fijo'!$H$53,0,1)","v":0},{"$f":"+SUMIF('Actividades Mtto'!$H$142:$AC$181,'OPEX Mtto'!$B32,'Actividades Mtto'!AB$142:AB$181)*IF(U$5>'Sup fijo'!$H$53,0,1)","v":0},{"$f":"+SUMIF('Actividades Mtto'!$H$142:$AC$181,'OPEX Mtto'!$B32,'Actividades Mtto'!AC$142:AC$181)*IF(V$5>'Sup fijo'!$H$53,0,1)","v":0}]
[null,"Aceites y filtros ",{"$f":"+SUMIF('Actividades Mtto'!$H$142:$AC$181,'OPEX Mtto'!$B33,'Actividades Mtto'!J$142:J$181)*IF(C$5>'Sup fijo'!$H$53,0,1)","v":5305.6986209523802},{"$f":"+SUMIF('Actividades Mtto'!$H$142:$AC$181,'OPEX Mtto'!$B33,'Actividades Mtto'!K$142:K$181)*IF(D$5>'Sup fijo'!$H$53,0,1)","v":5883.5674589866649},{"$f":"+SUMIF('Actividades Mtto'!$H$142:$AC$181,'OPEX Mtto'!$B33,'Actividades Mtto'!L$142:L$181)*IF(E$5>'Sup fijo'!$H$53,0,1)","v":5865.5178461359537},{"$f":"+SUMIF('Actividades Mtto'!$H$142:$AC$181,'OPEX Mtto'!$B33,'Actividades Mtto'!M$142:M$181)*IF(F$5>'Sup fijo'!$H$53,0,1)","v":6138.6073175330994},{"$f":"+SUMIF('Actividades Mtto'!$H$142:$AC$181,'OPEX Mtto'!$B33,'Actividades Mtto'!N$142:N$181)*IF(G$5>'Sup fijo'!$H$53,0,1)","v":5604.0514650476689},{"$f":"+SUMIF('Actividades Mtto'!$H$142:$AC$181,'OPEX Mtto'!$B33,'Actividades Mtto'!O$142:O$181)*IF(H$5>'Sup fijo'!$H$53,0,1)","v":6119.7163492273785},{"$f":"+SUMIF('Actividades Mtto'!$H$142:$AC$181,'OPEX Mtto'!$B33,'Actividades Mtto'!P$142:P$181)*IF(I$5>'Sup fijo'!$H$53,0,1)","v":6061.7633474001414},{"$f":"+SUMIF('Actividades Mtto'!$H$142:$AC$181,'OPEX Mtto'!$B33,'Actividades Mtto'!Q$142:Q$181)*IF(J$5>'Sup fijo'!$H$53,0,1)","v":6426.3210027889354},{"$f":"+SUMIF('Actividades Mtto'!$H$142:$AC$181,'OPEX Mtto'!$B33,'Actividades Mtto'!R$142:R$181)*IF(K$5>'Sup fijo'!$H$53,0,1)","v":5899.6511390427531},{"$f":"+SUMIF('Actividades Mtto'!$H$142:$AC$181,'OPEX Mtto'!$B33,'Actividades Mtto'!S$142:S$181)*IF(L$5>'Sup fijo'!$H$53,0,1)","v":6525.3441759628004},{"$f":"+SUMIF('Actividades Mtto'!$H$142:$AC$181,'OPEX Mtto'!$B33,'Actividades Mtto'!T$142:T$181)*IF(M$5>'Sup fijo'!$H$53,0,1)","v":6423.2376126503314},{"$f":"+SUMIF('Actividades Mtto'!$H$142:$AC$181,'OPEX Mtto'!$B33,'Actividades Mtto'!U$142:U$181)*IF(N$5>'Sup fijo'!$H$53,0,1)","v":6769.9169106805384},{"$f":"+SUMIF('Actividades Mtto'!$H$142:$AC$181,'OPEX Mtto'!$B33,'Actividades Mtto'!V$142:V$181)*IF(O$5>'Sup fijo'!$H$53,0,1)","v":0},{"$f":"+SUMIF('Actividades Mtto'!$H$142:$AC$181,'OPEX Mtto'!$B33,'Actividades Mtto'!W$142:W$181)*IF(P$5>'Sup fijo'!$H$53,0,1)","v":0},{"$f":"+SUMIF('Actividades Mtto'!$H$142:$AC$181,'OPEX Mtto'!$B33,'Actividades Mtto'!X$142:X$181)*IF(Q$5>'Sup fijo'!$H$53,0,1)","v":0},{"$f":"+SUMIF('Actividades Mtto'!$H$142:$AC$181,'OPEX Mtto'!$B33,'Actividades Mtto'!Y$142:Y$181)*IF(R$5>'Sup fijo'!$H$53,0,1)","v":0},{"$f":"+SUMIF('Actividades Mtto'!$H$142:$AC$181,'OPEX Mtto'!$B33,'Actividades Mtto'!Z$142:Z$181)*IF(S$5>'Sup fijo'!$H$53,0,1)","v":0},{"$f":"+SUMIF('Actividades Mtto'!$H$142:$AC$181,'OPEX Mtto'!$B33,'Actividades Mtto'!AA$142:AA$181)*IF(T$5>'Sup fijo'!$H$53,0,1)","v":0},{"$f":"+SUMIF('Actividades Mtto'!$H$142:$AC$181,'OPEX Mtto'!$B33,'Actividades Mtto'!AB$142:AB$181)*IF(U$5>'Sup fijo'!$H$53,0,1)","v":0},{"$f":"+SUMIF('Actividades Mtto'!$H$142:$AC$181,'OPEX Mtto'!$B33,'Actividades Mtto'!AC$142:AC$181)*IF(V$5>'Sup fijo'!$H$53,0,1)","v":0}]
[null,"Total (USD) Mantenimiento Preventivo y Correctivo Completo",{"$f":"+SUM(C28:C33)","v":25685.005141333335},36573.049322349711,46603.518258690921,37899.027261878262,47000.178438021525,40763.682418946744,49937.688282955343,39675.337137569812,39778.946635181412,45985.164555897238,50363.098519388652,47353.004919141764,0,0,0,0,0,0,0,0]
[null,"Total (USD) Mantenimiento Preventivo  Básico y Correctivo Completo",{"$f":"C34*'Sup fijo'!$D$201","v":20548.004113066669},{"$f":"D34*'Sup fijo'!$D$201","v":29258.439457879769},{"$f":"E34*'Sup fijo'!$D$201","v":37282.814606952736},{"$f":"F34*'Sup fijo'!$D$201","v":30319.221809502611},{"$f":"G34*'Sup fijo'!$D$201","v":37600.142750417224},{"$f":"H34*'Sup fijo'!$D$201","v":32610.945935157397},{"$f":"I34*'Sup fijo'!$D$201","v":39950.15062636428},{"$f":"J34*'Sup fijo'!$D$201","v":31740.269710055851},{"$f":"K34*'Sup fijo'!$D$201","v":31823.157308145132},{"$f":"L34*'Sup fijo'!$D$201","v":36788.131644717789},{"$f":"M34*'Sup fijo'!$D$201","v":40290.478815510927},{"$f":"N34*'Sup fijo'!$D$201","v":37882.403935313414},{"$f":"O34*'Sup fijo'!$D$201","v":0},{"$f":"P34*'Sup fijo'!$D$201","v":0},{"$f":"Q34*'Sup fijo'!$D$201","v":0},{"$f":"R34*'Sup fijo'!$D$201","v":0},{"$f":"S34*'Sup fijo'!$D$201","v":0},{"$f":"T34*'Sup fijo'!$D$201","v":0},{"$f":"U34*'Sup fijo'!$D$201","v":0},{"$f":"V34*'Sup fijo'!$D$201","v":0}]
[]
[null,{"$f":"'Sup fijo'!B26","v":"Otro"}]
[null,"Carrocería ",{"$f":"+SUMIF('Actividades Mtto'!$H$206:$AC$245,'OPEX Mtto'!$B38,'Actividades Mtto'!J$206:J$245)*IF(C$5>'Sup fijo'!$H$54,0,1)","v":667.06285714285718},{"$f":"+SUMIF('Actividades Mtto'!$H$206:$AC$245,'OPEX Mtto'!$B38,'Actividades Mtto'!K$206:K$245)*IF(D$5>'Sup fijo'!$H$54,0,1)","v":677.73586285714282},{"$f":"+SUMIF('Actividades Mtto'!$H$206:$AC$245,'OPEX Mtto'!$B38,'Actividades Mtto'!L$206:L$245)*IF(E$5>'Sup fijo'!$H$54,0,1)","v":695.35699529142858},{"$f":"+SUMIF('Actividades Mtto'!$H$206:$AC$245,'OPEX Mtto'!$B38,'Actividades Mtto'!M$206:M$245)*IF(F$5>'Sup fijo'!$H$54,0,1)","v":698.36093751108763},{"$f":"+SUMIF('Actividades Mtto'!$H$206:$AC$245,'OPEX Mtto'!$B38,'Actividades Mtto'!N$206:N$245)*IF(G$5>'Sup fijo'!$H$54,0,1)","v":700.24651204236761},{"$f":"+SUMIF('Actividades Mtto'!$H$206:$AC$245,'OPEX Mtto'!$B38,'Actividades Mtto'!O$206:O$245)*IF(H$5>'Sup fijo'!$H$54,0,1)","v":1057.407245509577},{"$f":"+SUMIF('Actividades Mtto'!$H$206:$AC$245,'OPEX Mtto'!$B38,'Actividades Mtto'!P$206:P$245)*IF(I$5>'Sup fijo'!$H$54,0,1)","v":718.62189460264995},{"$f":"+SUMIF('Actividades Mtto'!$H$206:$AC$245,'OPEX Mtto'!$B38,'Actividades Mtto'!Q$206:Q$245)*IF(J$5>'Sup fijo'!$H$54,0,1)","v":731.09279159078187},{"$f":"+SUMIF('Actividades Mtto'!$H$206:$AC$245,'OPEX Mtto'!$B38,'Actividades Mtto'!R$206:R$245)*IF(K$5>'Sup fijo'!$H$54,0,1)","v":741.73797384849456},{"$f":"+SUMIF('Actividades Mtto'!$H$206:$AC$245,'OPEX Mtto'!$B38,'Actividades Mtto'!S$206:S$245)*IF(L$5>'Sup fijo'!$H$54,0,1)","v":5511.3708904726282},{"$f":"+SUMIF('Actividades Mtto'!$H$206:$AC$245,'OPEX Mtto'!$B38,'Actividades Mtto'!T$206:T$245)*IF(M$5>'Sup fijo'!$H$54,0,1)","v":1142.2119896842007},{"$f":"+SUMIF('Actividades Mtto'!$H$206:$AC$245,'OPEX Mtto'!$B38,'Actividades Mtto'!U$206:U$245)*IF(N$5>'Sup fijo'!$H$54,0,1)","v":770.18210744827229},{"$f":"+SUMIF('Actividades Mtto'!$H$206:$AC$245,'OPEX Mtto'!$B38,'Actividades Mtto'!V$206:V$245)*IF(O$5>'Sup fijo'!$H$54,0,1)","v":0},{"$f":"+SUMIF('Actividades Mtto'!$H$206:$AC$245,'OPEX Mtto'!$B38,'Actividades Mtto'!W$206:W$245)*IF(P$5>'Sup fijo'!$H$54,0,1)","v":0},{"$f":"+SUMIF('Actividades Mtto'!$H$206:$AC$245,'OPEX Mtto'!$B38,'Actividades Mtto'!X$206:X$245)*IF(Q$5>'Sup fijo'!$H$54,0,1)","v":0},{"$f":"+SUMIF('Actividades Mtto'!$H$206:$AC$245,'OPEX Mtto'!$B38,'Actividades Mtto'!Y$206:Y$245)*IF(R$5>'Sup fijo'!$H$54,0,1)","v":0},{"$f":"+SUMIF('Actividades Mtto'!$H$206:$AC$245,'OPEX Mtto'!$B38,'Actividades Mtto'!Z$206:Z$245)*IF(S$5>'Sup fijo'!$H$54,0,1)","v":0},{"$f":"+SUMIF('Actividades Mtto'!$H$206:$AC$245,'OPEX Mtto'!$B38,'Actividades Mtto'!AA$206:AA$245)*IF(T$5>'Sup fijo'!$H$54,0,1)","v":0},{"$f":"+SUMIF('Actividades Mtto'!$H$206:$AC$245,'OPEX Mtto'!$B38,'Actividades Mtto'!AB$206:AB$245)*IF(U$5>'Sup fijo'!$H$54,0,1)","v":0},{"$f":"+SUMIF('Actividades Mtto'!$H$206:$AC$245,'OPEX Mtto'!$B38,'Actividades Mtto'!AC$206:AC$245)*IF(V$5>'Sup fijo'!$H$54,0,1)","v":0}]
[null,"Costo de mantenimiento eléctrico ",{"$f":"+SUMIF('Actividades Mtto'!$H$206:$AC$245,'OPEX Mtto'!$B39,'Actividades Mtto'!J$206:J$245)*IF(C$5>'Sup fijo'!$H$54,0,1)","v":2437.8799542857141},{"$f":"+SUMIF('Actividades Mtto'!$H$206:$AC$245,'OPEX Mtto'!$B39,'Actividades Mtto'!K$206:K$245)*IF(D$5>'Sup fijo'!$H$54,0,1)","v":2476.8860335542859},{"$f":"+SUMIF('Actividades Mtto'!$H$206:$AC$245,'OPEX Mtto'!$B39,'Actividades Mtto'!L$206:L$245)*IF(E$5>'Sup fijo'!$H$54,0,1)","v":2541.2850704266971},{"$f":"+SUMIF('Actividades Mtto'!$H$206:$AC$245,'OPEX Mtto'!$B39,'Actividades Mtto'!M$206:M$245)*IF(F$5>'Sup fijo'!$H$54,0,1)","v":2552.2634219309407},{"$f":"+SUMIF('Actividades Mtto'!$H$206:$AC$245,'OPEX Mtto'!$B39,'Actividades Mtto'!N$206:N$245)*IF(G$5>'Sup fijo'!$H$54,0,1)","v":2559.1545331701545},{"$f":"+SUMIF('Actividades Mtto'!$H$206:$AC$245,'OPEX Mtto'!$B39,'Actividades Mtto'!O$206:O$245)*IF(H$5>'Sup fijo'!$H$54,0,1)","v":2576.3008685423938},{"$f":"+SUMIF('Actividades Mtto'!$H$206:$AC$245,'OPEX Mtto'!$B39,'Actividades Mtto'!P$206:P$245)*IF(I$5>'Sup fijo'!$H$54,0,1)","v":2795.229571951716},{"$f":"+SUMIF('Actividades Mtto'!$H$206:$AC$245,'OPEX Mtto'!$B39,'Actividades Mtto'!Q$206:Q$245)*IF(J$5>'Sup fijo'!$H$54,0,1)","v":2671.8868278409514},{"$f":"+SUMIF('Actividades Mtto'!$H$206:$AC$245,'OPEX Mtto'!$B39,'Actividades Mtto'!R$206:R$245)*IF(K$5>'Sup fijo'!$H$54,0,1)","v":2710.7912221688734},{"$f":"+SUMIF('Actividades Mtto'!$H$206:$AC$245,'OPEX Mtto'!$B39,'Actividades Mtto'!S$206:S$245)*IF(L$5>'Sup fijo'!$H$54,0,1)","v":2747.0635743098546},{"$f":"+SUMIF('Actividades Mtto'!$H$206:$AC$245,'OPEX Mtto'!$B39,'Actividades Mtto'!T$206:T$245)*IF(M$5>'Sup fijo'!$H$54,0,1)","v":3238.9416498676319},{"$f":"+SUMIF('Actividades Mtto'!$H$206:$AC$245,'OPEX Mtto'!$B39,'Actividades Mtto'!U$206:U$245)*IF(N$5>'Sup fijo'!$H$54,0,1)","v":2814.7445188895631},{"$f":"+SUMIF('Actividades Mtto'!$H$206:$AC$245,'OPEX Mtto'!$B39,'Actividades Mtto'!V$206:V$245)*IF(O$5>'Sup fijo'!$H$54,0,1)","v":0},{"$f":"+SUMIF('Actividades Mtto'!$H$206:$AC$245,'OPEX Mtto'!$B39,'Actividades Mtto'!W$206:W$245)*IF(P$5>'Sup fijo'!$H$54,0,1)","v":0},{"$f":"+SUMIF('Actividades Mtto'!$H$206:$AC$245,'OPEX Mtto'!$B39,'Actividades Mtto'!X$206:X$245)*IF(Q$5>'Sup fijo'!$H$54,0,1)","v":0},{"$f":"+SUMIF('Actividades Mtto'!$H$206:$AC$245,'OPEX Mtto'!$B39,'Actividades Mtto'!Y$206:Y$245)*IF(R$5>'Sup fijo'!$H$54,0,1)","v":0},{"$f":"+SUMIF('Actividades Mtto'!$H$206:$AC$245,'OPEX Mtto'!$B39,'Actividades Mtto'!Z$206:Z$245)*IF(S$5>'Sup fijo'!$H$54,0,1)","v":0},{"$f":"+SUMIF('Actividades Mtto'!$H$206:$AC$245,'OPEX Mtto'!$B39,'Actividades Mtto'!AA$206:AA$245)*IF(T$5>'Sup fijo'!$H$54,0,1)","v":0},{"$f":"+SUMIF('Actividades Mtto'!$H$206:$AC$245,'OPEX Mtto'!$B39,'Actividades Mtto'!AB$206:AB$245)*IF(U$5>'Sup fijo'!$H$54,0,1)","v":0},{"$f":"+SUMIF('Actividades Mtto'!$H$206:$AC$245,'OPEX Mtto'!$B39,'Actividades Mtto'!AC$206:AC$245)*IF(V$5>'Sup fijo'!$H$54,0,1)","v":0}]
[null,"Costo de mantenimiento mecánico",{"$f":"+SUMIF('Actividades Mtto'!$H$206:$AC$245,'OPEX Mtto'!$B40,'Actividades Mtto'!J$206:J$245)*IF(C$5>'Sup fijo'!$H$54,0,1)","v":6010.4409965714285},{"$f":"+SUMIF('Actividades Mtto'!$H$206:$AC$245,'OPEX Mtto'!$B40,'Actividades Mtto'!K$206:K$245)*IF(D$5>'Sup fijo'!$H$54,0,1)","v":10504.107998841904},{"$f":"+SUMIF('Actividades Mtto'!$H$206:$AC$245,'OPEX Mtto'!$B40,'Actividades Mtto'!L$206:L$245)*IF(E$5>'Sup fijo'!$H$54,0,1)","v":8145.584767149202},{"$f":"+SUMIF('Actividades Mtto'!$H$206:$AC$245,'OPEX Mtto'!$B40,'Actividades Mtto'!M$206:M$245)*IF(F$5>'Sup fijo'!$H$54,0,1)","v":17490.763482939088},{"$f":"+SUMIF('Actividades Mtto'!$H$206:$AC$245,'OPEX Mtto'!$B40,'Actividades Mtto'!N$206:N$245)*IF(G$5>'Sup fijo'!$H$54,0,1)","v":6765.1888932605925},{"$f":"+SUMIF('Actividades Mtto'!$H$206:$AC$245,'OPEX Mtto'!$B40,'Actividades Mtto'!O$206:O$245)*IF(H$5>'Sup fijo'!$H$54,0,1)","v":13101.30545347055},{"$f":"+SUMIF('Actividades Mtto'!$H$206:$AC$245,'OPEX Mtto'!$B40,'Actividades Mtto'!P$206:P$245)*IF(I$5>'Sup fijo'!$H$54,0,1)","v":7596.9416690867383},{"$f":"+SUMIF('Actividades Mtto'!$H$206:$AC$245,'OPEX Mtto'!$B40,'Actividades Mtto'!Q$206:Q$245)*IF(J$5>'Sup fijo'!$H$54,0,1)","v":17673.026011105201},{"$f":"+SUMIF('Actividades Mtto'!$H$206:$AC$245,'OPEX Mtto'!$B40,'Actividades Mtto'!R$206:R$245)*IF(K$5>'Sup fijo'!$H$54,0,1)","v":8323.1742112887659},{"$f":"+SUMIF('Actividades Mtto'!$H$206:$AC$245,'OPEX Mtto'!$B40,'Actividades Mtto'!S$206:S$245)*IF(L$5>'Sup fijo'!$H$54,0,1)","v":11991.666937845002},{"$f":"+SUMIF('Actividades Mtto'!$H$206:$AC$245,'OPEX Mtto'!$B40,'Actividades Mtto'!T$206:T$245)*IF(M$5>'Sup fijo'!$H$54,0,1)","v":24662.036387611559},{"$f":"+SUMIF('Actividades Mtto'!$H$206:$AC$245,'OPEX Mtto'!$B40,'Actividades Mtto'!U$206:U$245)*IF(N$5>'Sup fijo'!$H$54,0,1)","v":7289.773478098311},{"$f":"+SUMIF('Actividades Mtto'!$H$206:$AC$245,'OPEX Mtto'!$B40,'Actividades Mtto'!V$206:V$245)*IF(O$5>'Sup fijo'!$H$54,0,1)","v":0},{"$f":"+SUMIF('Actividades Mtto'!$H$206:$AC$245,'OPEX Mtto'!$B40,'Actividades Mtto'!W$206:W$245)*IF(P$5>'Sup fijo'!$H$54,0,1)","v":0},{"$f":"+SUMIF('Actividades Mtto'!$H$206:$AC$245,'OPEX Mtto'!$B40,'Actividades Mtto'!X$206:X$245)*IF(Q$5>'Sup fijo'!$H$54,0,1)","v":0},{"$f":"+SUMIF('Actividades Mtto'!$H$206:$AC$245,'OPEX Mtto'!$B40,'Actividades Mtto'!Y$206:Y$245)*IF(R$5>'Sup fijo'!$H$54,0,1)","v":0},{"$f":"+SUMIF('Actividades Mtto'!$H$206:$AC$245,'OPEX Mtto'!$B40,'Actividades Mtto'!Z$206:Z$245)*IF(S$5>'Sup fijo'!$H$54,0,1)","v":0},{"$f":"+SUMIF('Actividades Mtto'!$H$206:$AC$245,'OPEX Mtto'!$B40,'Actividades Mtto'!AA$206:AA$245)*IF(T$5>'Sup fijo'!$H$54,0,1)","v":0},{"$f":"+SUMIF('Actividades Mtto'!$H$206:$AC$245,'OPEX Mtto'!$B40,'Actividades Mtto'!AB$206:AB$245)*IF(U$5>'Sup fijo'!$H$54,0,1)","v":0},{"$f":"+SUMIF('Actividades Mtto'!$H$206:$AC$245,'OPEX Mtto'!$B40,'Actividades Mtto'!AC$206:AC$245)*IF(V$5>'Sup fijo'!$H$54,0,1)","v":0}]
[null,"Neumáticos ",{"$f":"+SUMIF('Actividades Mtto'!$H$206:$AC$245,'OPEX Mtto'!$B41,'Actividades Mtto'!J$206:J$245)*IF(C$5>'Sup fijo'!$H$54,0,1)","v":6297.3682834285719},{"$f":"+SUMIF('Actividades Mtto'!$H$206:$AC$245,'OPEX Mtto'!$B41,'Actividades Mtto'!K$206:K$245)*IF(D$5>'Sup fijo'!$H$54,0,1)","v":6398.126175963429},{"$f":"+SUMIF('Actividades Mtto'!$H$206:$AC$245,'OPEX Mtto'!$B41,'Actividades Mtto'!L$206:L$245)*IF(E$5>'Sup fijo'!$H$54,0,1)","v":13128.954913076956},{"$f":"+SUMIF('Actividades Mtto'!$H$206:$AC$245,'OPEX Mtto'!$B41,'Actividades Mtto'!M$206:M$245)*IF(F$5>'Sup fijo'!$H$54,0,1)","v":6592.8359991507259},{"$f":"+SUMIF('Actividades Mtto'!$H$206:$AC$245,'OPEX Mtto'!$B41,'Actividades Mtto'!N$206:N$245)*IF(G$5>'Sup fijo'!$H$54,0,1)","v":13221.273312696863},{"$f":"+SUMIF('Actividades Mtto'!$H$206:$AC$245,'OPEX Mtto'!$B41,'Actividades Mtto'!O$206:O$245)*IF(H$5>'Sup fijo'!$H$54,0,1)","v":6654.9279219459659},{"$f":"+SUMIF('Actividades Mtto'!$H$206:$AC$245,'OPEX Mtto'!$B41,'Actividades Mtto'!P$206:P$245)*IF(I$5>'Sup fijo'!$H$54,0,1)","v":6784.1083915708405},{"$f":"+SUMIF('Actividades Mtto'!$H$206:$AC$245,'OPEX Mtto'!$B41,'Actividades Mtto'!Q$206:Q$245)*IF(J$5>'Sup fijo'!$H$54,0,1)","v":13803.678345176},{"$f":"+SUMIF('Actividades Mtto'!$H$206:$AC$245,'OPEX Mtto'!$B41,'Actividades Mtto'!R$206:R$245)*IF(K$5>'Sup fijo'!$H$54,0,1)","v":7002.3343993919116},{"$f":"+SUMIF('Actividades Mtto'!$H$206:$AC$245,'OPEX Mtto'!$B41,'Actividades Mtto'!S$206:S$245)*IF(L$5>'Sup fijo'!$H$54,0,1)","v":14192.061422064073},{"$f":"+SUMIF('Actividades Mtto'!$H$206:$AC$245,'OPEX Mtto'!$B41,'Actividades Mtto'!T$206:T$245)*IF(M$5>'Sup fijo'!$H$54,0,1)","v":7188.657440367424},{"$f":"+SUMIF('Actividades Mtto'!$H$206:$AC$245,'OPEX Mtto'!$B41,'Actividades Mtto'!U$206:U$245)*IF(N$5>'Sup fijo'!$H$54,0,1)","v":14541.719191749966},{"$f":"+SUMIF('Actividades Mtto'!$H$206:$AC$245,'OPEX Mtto'!$B41,'Actividades Mtto'!V$206:V$245)*IF(O$5>'Sup fijo'!$H$54,0,1)","v":0},{"$f":"+SUMIF('Actividades Mtto'!$H$206:$AC$245,'OPEX Mtto'!$B41,'Actividades Mtto'!W$206:W$245)*IF(P$5>'Sup fijo'!$H$54,0,1)","v":0},{"$f":"+SUMIF('Actividades Mtto'!$H$206:$AC$245,'OPEX Mtto'!$B41,'Actividades Mtto'!X$206:X$245)*IF(Q$5>'Sup fijo'!$H$54,0,1)","v":0},{"$f":"+SUMIF('Actividades Mtto'!$H$206:$AC$245,'OPEX Mtto'!$B41,'Actividades Mtto'!Y$206:Y$245)*IF(R$5>'Sup fijo'!$H$54,0,1)","v":0},{"$f":"+SUMIF('Actividades Mtto'!$H$206:$AC$245,'OPEX Mtto'!$B41,'Actividades Mtto'!Z$206:Z$245)*IF(S$5>'Sup fijo'!$H$54,0,1)","v":0},{"$f":"+SUMIF('Actividades Mtto'!$H$206:$AC$245,'OPEX Mtto'!$B41,'Actividades Mtto'!AA$206:AA$245)*IF(T$5>'Sup fijo'!$H$54,0,1)","v":0},{"$f":"+SUMIF('Actividades Mtto'!$H$206:$AC$245,'OPEX Mtto'!$B41,'Actividades Mtto'!AB$206:AB$245)*IF(U$5>'Sup fijo'!$H$54,0,1)","v":0},{"$f":"+SUMIF('Actividades Mtto'!$H$206:$AC$245,'OPEX Mtto'!$B41,'Actividades Mtto'!AC$206:AC$245)*IF(V$5>'Sup fijo'!$H$54,0,1)","v":0}]
[null,"Mano de Obra",{"$f":"+SUMIF('Actividades Mtto'!$H$206:$AC$245,'OPEX Mtto'!$B42,'Actividades Mtto'!J$206:J$245)*IF(C$5>'Sup fijo'!$H$54,0,1)","v":0},{"$f":"+SUMIF('Actividades Mtto'!$H$206:$AC$245,'OPEX Mtto'!$B42,'Actividades Mtto'!K$206:K$245)*IF(D$5>'Sup fijo'!$H$54,0,1)","v":0},{"$f":"+SUMIF('Actividades Mtto'!$H$206:$AC$245,'OPEX Mtto'!$B42,'Actividades Mtto'!L$206:L$245)*IF(E$5>'Sup fijo'!$H$54,0,1)","v":0},{"$f":"+SUMIF('Actividades Mtto'!$H$206:$AC$245,'OPEX Mtto'!$B42,'Actividades Mtto'!M$206:M$245)*IF(F$5>'Sup fijo'!$H$54,0,1)","v":0},{"$f":"+SUMIF('Actividades Mtto'!$H$206:$AC$245,'OPEX Mtto'!$B42,'Actividades Mtto'!N$206:N$245)*IF(G$5>'Sup fijo'!$H$54,0,1)","v":0},{"$f":"+SUMIF('Actividades Mtto'!$H$206:$AC$245,'OPEX Mtto'!$B42,'Actividades Mtto'!O$206:O$245)*IF(H$5>'Sup fijo'!$H$54,0,1)","v":0},{"$f":"+SUMIF('Actividades Mtto'!$H$206:$AC$245,'OPEX Mtto'!$B42,'Actividades Mtto'!P$206:P$245)*IF(I$5>'Sup fijo'!$H$54,0,1)","v":0},{"$f":"+SUMIF('Actividades Mtto'!$H$206:$AC$245,'OPEX Mtto'!$B42,'Actividades Mtto'!Q$206:Q$245)*IF(J$5>'Sup fijo'!$H$54,0,1)","v":0},{"$f":"+SUMIF('Actividades Mtto'!$H$206:$AC$245,'OPEX Mtto'!$B42,'Actividades Mtto'!R$206:R$245)*IF(K$5>'Sup fijo'!$H$54,0,1)","v":0},{"$f":"+SUMIF('Actividades Mtto'!$H$206:$AC$245,'OPEX Mtto'!$B42,'Actividades Mtto'!S$206:S$245)*IF(L$5>'Sup fijo'!$H$54,0,1)","v":0},{"$f":"+SUMIF('Actividades Mtto'!$H$206:$AC$245,'OPEX Mtto'!$B42,'Actividades Mtto'!T$206:T$245)*IF(M$5>'Sup fijo'!$H$54,0,1)","v":0},{"$f":"+SUMIF('Actividades Mtto'!$H$206:$AC$245,'OPEX Mtto'!$B42,'Actividades Mtto'!U$206:U$245)*IF(N$5>'Sup fijo'!$H$54,0,1)","v":0},{"$f":"+SUMIF('Actividades Mtto'!$H$206:$AC$245,'OPEX Mtto'!$B42,'Actividades Mtto'!V$206:V$245)*IF(O$5>'Sup fijo'!$H$54,0,1)","v":0},{"$f":"+SUMIF('Actividades Mtto'!$H$206:$AC$245,'OPEX Mtto'!$B42,'Actividades Mtto'!W$206:W$245)*IF(P$5>'Sup fijo'!$H$54,0,1)","v":0},{"$f":"+SUMIF('Actividades Mtto'!$H$206:$AC$245,'OPEX Mtto'!$B42,'Actividades Mtto'!X$206:X$245)*IF(Q$5>'Sup fijo'!$H$54,0,1)","v":0},{"$f":"+SUMIF('Actividades Mtto'!$H$206:$AC$245,'OPEX Mtto'!$B42,'Actividades Mtto'!Y$206:Y$245)*IF(R$5>'Sup fijo'!$H$54,0,1)","v":0},{"$f":"+SUMIF('Actividades Mtto'!$H$206:$AC$245,'OPEX Mtto'!$B42,'Actividades Mtto'!Z$206:Z$245)*IF(S$5>'Sup fijo'!$H$54,0,1)","v":0},{"$f":"+SUMIF('Actividades Mtto'!$H$206:$AC$245,'OPEX Mtto'!$B42,'Actividades Mtto'!AA$206:AA$245)*IF(T$5>'Sup fijo'!$H$54,0,1)","v":0},{"$f":"+SUMIF('Actividades Mtto'!$H$206:$AC$245,'OPEX Mtto'!$B42,'Actividades Mtto'!AB$206:AB$245)*IF(U$5>'Sup fijo'!$H$54,0,1)","v":0},{"$f":"+SUMIF('Actividades Mtto'!$H$206:$AC$245,'OPEX Mtto'!$B42,'Actividades Mtto'!AC$206:AC$245)*IF(V$5>'Sup fijo'!$H$54,0,1)","v":0}]
[null,"Aceites y filtros ",{"$f":"+SUMIF('Actividades Mtto'!$H$206:$AC$245,'OPEX Mtto'!$B43,'Actividades Mtto'!J$206:J$245)*IF(C$5>'Sup fijo'!$H$54,0,1)","v":3734.0374552380954},{"$f":"+SUMIF('Actividades Mtto'!$H$206:$AC$245,'OPEX Mtto'!$B43,'Actividades Mtto'!K$206:K$245)*IF(D$5>'Sup fijo'!$H$54,0,1)","v":3867.5270734019041},{"$f":"+SUMIF('Actividades Mtto'!$H$206:$AC$245,'OPEX Mtto'!$B43,'Actividades Mtto'!L$206:L$245)*IF(E$5>'Sup fijo'!$H$54,0,1)","v":3892.4203879394736},{"$f":"+SUMIF('Actividades Mtto'!$H$206:$AC$245,'OPEX Mtto'!$B43,'Actividades Mtto'!M$206:M$245)*IF(F$5>'Sup fijo'!$H$54,0,1)","v":3985.2248949083355},{"$f":"+SUMIF('Actividades Mtto'!$H$206:$AC$245,'OPEX Mtto'!$B43,'Actividades Mtto'!N$206:N$245)*IF(G$5>'Sup fijo'!$H$54,0,1)","v":3919.7905802542141},{"$f":"+SUMIF('Actividades Mtto'!$H$206:$AC$245,'OPEX Mtto'!$B43,'Actividades Mtto'!O$206:O$245)*IF(H$5>'Sup fijo'!$H$54,0,1)","v":4367.019909986444},{"$f":"+SUMIF('Actividades Mtto'!$H$206:$AC$245,'OPEX Mtto'!$B43,'Actividades Mtto'!P$206:P$245)*IF(I$5>'Sup fijo'!$H$54,0,1)","v":4317.4817873708271},{"$f":"+SUMIF('Actividades Mtto'!$H$206:$AC$245,'OPEX Mtto'!$B43,'Actividades Mtto'!Q$206:Q$245)*IF(J$5>'Sup fijo'!$H$54,0,1)","v":4092.4597102397511},{"$f":"+SUMIF('Actividades Mtto'!$H$206:$AC$245,'OPEX Mtto'!$B43,'Actividades Mtto'!R$206:R$245)*IF(K$5>'Sup fijo'!$H$54,0,1)","v":4232.7577046546312},{"$f":"+SUMIF('Actividades Mtto'!$H$206:$AC$245,'OPEX Mtto'!$B43,'Actividades Mtto'!S$206:S$245)*IF(L$5>'Sup fijo'!$H$54,0,1)","v":4207.6059817304113},{"$f":"+SUMIF('Actividades Mtto'!$H$206:$AC$245,'OPEX Mtto'!$B43,'Actividades Mtto'!T$206:T$245)*IF(M$5>'Sup fijo'!$H$54,0,1)","v":4754.6829827957763},{"$f":"+SUMIF('Actividades Mtto'!$H$206:$AC$245,'OPEX Mtto'!$B43,'Actividades Mtto'!U$206:U$245)*IF(N$5>'Sup fijo'!$H$54,0,1)","v":4311.2711280073008},{"$f":"+SUMIF('Actividades Mtto'!$H$206:$AC$245,'OPEX Mtto'!$B43,'Actividades Mtto'!V$206:V$245)*IF(O$5>'Sup fijo'!$H$54,0,1)","v":0},{"$f":"+SUMIF('Actividades Mtto'!$H$206:$AC$245,'OPEX Mtto'!$B43,'Actividades Mtto'!W$206:W$245)*IF(P$5>'Sup fijo'!$H$54,0,1)","v":0},{"$f":"+SUMIF('Actividades Mtto'!$H$206:$AC$245,'OPEX Mtto'!$B43,'Actividades Mtto'!X$206:X$245)*IF(Q$5>'Sup fijo'!$H$54,0,1)","v":0},{"$f":"+SUMIF('Actividades Mtto'!$H$206:$AC$245,'OPEX Mtto'!$B43,'Actividades Mtto'!Y$206:Y$245)*IF(R$5>'Sup fijo'!$H$54,0,1)","v":0},{"$f":"+SUMIF('Actividades Mtto'!$H$206:$AC$245,'OPEX Mtto'!$B43,'Actividades Mtto'!Z$206:Z$245)*IF(S$5>'Sup fijo'!$H$54,0,1)","v":0},{"$f":"+SUMIF('Actividades Mtto'!$H$206:$AC$245,'OPEX Mtto'!$B43,'Actividades Mtto'!AA$206:AA$245)*IF(T$5>'Sup fijo'!$H$54,0,1)","v":0},{"$f":"+SUMIF('Actividades Mtto'!$H$206:$AC$245,'OPEX Mtto'!$B43,'Actividades Mtto'!AB$206:AB$245)*IF(U$5>'Sup fijo'!$H$54,0,1)","v":0},{"$f":"+SUMIF('Actividades Mtto'!$H$206:$AC$245,'OPEX Mtto'!$B43,'Actividades Mtto'!AC$206:AC$245)*IF(V$5>'Sup fijo'!$H$54,0,1)","v":0}]
[null,"Total (USD) Mantenimiento Preventivo y Correctivo Completo",{"$f":"+SUM(C38:C43)","v":19146.789546666667},{"$f":"+SUM(D38:D43)","v":23924.383144618663},28403.602133883756,31319.448736440179,27165.653831424192,27756.961399454933,22212.38331458277,38972.143685952688,23010.795511352677,38649.768806421969,40986.530450326594,29727.690424193413,0,0,0,0,0,0,0,0]
[null,"Total (USD) Mantenimiento Preventivo  Básico y Correctivo Completo",{"$f":"C44*'Sup fijo'!$D$201","v":15317.431637333335},{"$f":"D44*'Sup fijo'!$D$201","v":19139.506515694931},{"$f":"E44*'Sup fijo'!$D$201","v":22722.881707107008},{"$f":"F44*'Sup fijo'!$D$201","v":25055.558989152145},{"$f":"G44*'Sup fijo'!$D$201","v":21732.523065139354},{"$f":"H44*'Sup fijo'!$D$201","v":22205.569119563948},{"$f":"I44*'Sup fijo'!$D$201","v":17769.906651666217},{"$f":"J44*'Sup fijo'!$D$201","v":31177.71494876215},{"$f":"K44*'Sup fijo'!$D$201","v":18408.636409082141},{"$f":"L44*'Sup fijo'!$D$201","v":30919.815045137577},{"$f":"M44*'Sup fijo'!$D$201","v":32789.22436026128},{"$f":"N44*'Sup fijo'!$D$201","v":23782.152339354732},{"$f":"O44*'Sup fijo'!$D$201","v":0},{"$f":"P44*'Sup fijo'!$D$201","v":0},{"$f":"Q44*'Sup fijo'!$D$201","v":0},{"$f":"R44*'Sup fijo'!$D$201","v":0},{"$f":"S44*'Sup fijo'!$D$201","v":0},{"$f":"T44*'Sup fijo'!$D$201","v":0},{"$f":"U44*'Sup fijo'!$D$201","v":0},{"$f":"V44*'Sup fijo'!$D$201","v":0}]

{"sheet":"OPEX Personal Directo","index":9,"n_rows":33,"n_cols":22,"rows_kept":33,"cut":false,"hidden":false,"merged":[]}
[]
[null,"Estructura de costos Transporte Convencional"]
[null,"OPEX PERSONAL DIRECTO"]
[]
[null,"Año",1,{"$f":"C5+1","v":2},{"$f":"D5+1","v":3},4,5,6,7,8,9,10,11,12,13,14,15,16,17,18,19,20]
[]
[null,{"$f":"+'Sup Personal Directo'!B46","v":"Intracantonal Rural"}]
[null,"Costo año Sin SITP-Q (USD)",{"$f":"+C10*12","v":24077.204571428578},24658.139363328002,25501.644994668735,25816.706597854063,26093.502999313612,26478.476105164289,27208.396075856344,27902.012574814184,28534.750132515506,29147.898306007155,29764.602025807988,30345.7993379707,0,0,0,0,0,0,0,0]
[null,"Costo año Con SITP-Q (USD)",{"$f":"C10*12","v":24077.204571428578},{"$f":"D11*12","v":13711.322953728},{"$f":"E11*12","v":14180.359889329133},{"$f":"F11*12","v":14355.551996403441},14509.466482688078,14723.533347387063,15129.410218349147,15515.100301575339,15866.938243228735,16207.88337705889,16550.805596142873,16873.984240300964,17218.600735379099,17591.135768815286,17986.863636889146,18380.093061097934,18773.577696796605,19172.508325693903,19579.345221456344,19994.967011439167]
[null,"Costo mes",{"$f":"SUM(C11,C12)*IF(C$5>'Sup fijo'!$H$51,0,1)","v":2006.4337142857148},{"$f":"SUM(D11,D12)*IF(D$5>'Sup fijo'!$H$51,0,1)","v":2054.8449469440002},{"$f":"SUM(E11,E12)*IF(E$5>'Sup fijo'!$H$51,0,1)","v":2125.1370828890613},{"$f":"SUM(F11,F12)*IF(F$5>'Sup fijo'!$H$51,0,1)","v":2151.3922164878386},{"$f":"SUM(G11,G12)*IF(G$5>'Sup fijo'!$H$51,0,1)","v":2174.4585832761345},{"$f":"SUM(H11,H12)*IF(H$5>'Sup fijo'!$H$51,0,1)","v":2206.5396754303574},{"$f":"SUM(I11,I12)*IF(I$5>'Sup fijo'!$H$51,0,1)","v":2267.3663396546954},{"$f":"SUM(J11,J12)*IF(J$5>'Sup fijo'!$H$51,0,1)","v":2325.1677145678486},{"$f":"SUM(K11,K12)*IF(K$5>'Sup fijo'!$H$51,0,1)","v":2377.8958443762922},{"$f":"SUM(L11,L12)*IF(L$5>'Sup fijo'!$H$51,0,1)","v":2428.9915255005963},{"$f":"SUM(M11,M12)*IF(M$5>'Sup fijo'!$H$51,0,1)","v":2480.3835021506657},{"$f":"SUM(N11,N12)*IF(N$5>'Sup fijo'!$H$51,0,1)","v":2528.8166114975584},{"$f":"SUM(O11,O12)*IF(O$5>'Sup fijo'!$H$51,0,1)","v":0},{"$f":"SUM(P11,P12)*IF(P$5>'Sup fijo'!$H$51,0,1)","v":0},{"$f":"SUM(Q11,Q12)*IF(Q$5>'Sup fijo'!$H$51,0,1)","v":0},{"$f":"SUM(R11,R12)*IF(R$5>'Sup fijo'!$H$51,0,1)","v":0},{"$f":"SUM(S11,S12)*IF(S$5>'Sup fijo'!$H$51,0,1)","v":0},{"$f":"SUM(T11,T12)*IF(T$5>'Sup fijo'!$H$51,0,1)","v":0},{"$f":"SUM(U11,U12)*IF(U$5>'Sup fijo'!$H$51,0,1)","v":0},{"$f":"SUM(V11,V12)*IF(V$5>'Sup fijo'!$H$51,0,1)","v":0}]
[null,"Conductores",{"$f":"IF('Sup Personal Directo'!$C$9='Sup Personal Directo'!$Q$1,IF('Sup Personal Directo'!$C$10=100%,('Sup Personal Directo'!D$61*(SUM('Sup Personal Directo'!$C$21,'Sup Personal Directo'!$C$24:$C$26))+'Sup Personal Directo'!D$108+'Sup Personal Directo'!D$56)*'Sup Personal Directo'!D$46,('Sup Personal Directo'!D$61*(SUM('Sup Personal Directo'!$C$21,'Sup Personal Directo'!$C$24,'Sup Personal Directo'!$C$26))+'Sup Personal Directo'!D$108+'Sup Personal Directo'!D$56)*'Sup Personal Directo'!D$46*'Sup Personal Directo'!$C$10+('Sup Personal Directo'!D$56+'Sup Personal Directo'!D$108)*'Sup Personal Directo'!D$46*(1-'Sup Personal Directo'!$C$10)),('Sup Personal Directo'!D$66*(SUM('Sup Personal Directo'!$C$21:$C$22,'Sup Personal Directo'!$C$24:$C$26))+'Sup Personal Directo'!D$108+'Sup Personal Directo'!D$113/12+'Sup Personal Directo'!D$66)*'Sup Personal Directo'!D$51)","v":1115.6908571428576},{"$f":"IF('Sup Personal Directo'!$C$9='Sup Personal Directo'!$Q$1,IF('Sup Personal Directo'!$C$10=100%,('Sup Personal Directo'!E$61*(SUM('Sup Personal Directo'!$C$21,'Sup Personal Directo'!$C$24:$C$26))+'Sup Personal Directo'!E$108+'Sup Personal Directo'!E$56)*'Sup Personal Directo'!E$46,('Sup Personal Directo'!E$61*(SUM('Sup Personal Directo'!$C$21,'Sup Personal Directo'!$C$24,'Sup Personal Directo'!$C$26))+'Sup Personal Directo'!E$108+'Sup Personal Directo'!E$56)*'Sup Personal Directo'!E$46*'Sup Personal Directo'!$C$10+('Sup Personal Directo'!E$56+'Sup Personal Directo'!E$108)*'Sup Personal Directo'!E$46*(1-'Sup Personal Directo'!$C$10)),('Sup Personal Directo'!E$66*(SUM('Sup Personal Directo'!$C$21:$C$22,'Sup Personal Directo'!$C$24:$C$26))+'Sup Personal Directo'!E$108+'Sup Personal Directo'!E$113/12+'Sup Personal Directo'!E$66)*'Sup Personal Directo'!E$51)","v":1142.610246144},{"$f":"IF('Sup Personal Directo'!$C$9='Sup Personal Directo'!$Q$1,IF('Sup Personal Directo'!$C$10=100%,('Sup Personal Directo'!F$61*(SUM('Sup Personal Directo'!$C$21,'Sup Personal Directo'!$C$24:$C$26))+'Sup Personal Directo'!F$108+'Sup Personal Directo'!F$56)*'Sup Personal Directo'!F$46,('Sup Personal Directo'!F$61*(SUM('Sup Personal Directo'!$C$21,'Sup Personal Directo'!$C$24,'Sup Personal Directo'!$C$26))+'Sup Personal Directo'!F$108+'Sup Personal Directo'!F$56)*'Sup Personal Directo'!F$46*'Sup Personal Directo'!$C$10+('Sup Personal Directo'!F$56+'Sup Personal Directo'!F$108)*'Sup Personal Directo'!F$46*(1-'Sup Personal Directo'!$C$10)),('Sup Personal Directo'!F$66*(SUM('Sup Personal Directo'!$C$21:$C$22,'Sup Personal Directo'!$C$24:$C$26))+'Sup Personal Directo'!F$108+'Sup Personal Directo'!F$113/12+'Sup Personal Directo'!F$66)*'Sup Personal Directo'!F$51)","v":1181.6966574440944},{"$f":"IF('Sup Personal Directo'!$C$9='Sup Personal Directo'!$Q$1,IF('Sup Personal Directo'!$C$10=100%,('Sup Personal Directo'!G$61*(SUM('Sup Personal Directo'!$C$21,'Sup Personal Directo'!$C$24:$C$26))+'Sup Personal Directo'!G$108+'Sup Personal Directo'!G$56)*'Sup Personal Directo'!G$46,('Sup Personal Directo'!G$61*(SUM('Sup Personal Directo'!$C$21,'Sup Personal Directo'!$C$24,'Sup Personal Directo'!$C$26))+'Sup Personal Directo'!G$108+'Sup Personal Directo'!G$56)*'Sup Personal Directo'!G$46*'Sup Personal Directo'!$C$10+('Sup Personal Directo'!G$56+'Sup Personal Directo'!G$108)*'Sup Personal Directo'!G$46*(1-'Sup Personal Directo'!$C$10)),('Sup Personal Directo'!G$66*(SUM('Sup Personal Directo'!$C$21:$C$22,'Sup Personal Directo'!$C$24:$C$26))+'Sup Personal Directo'!G$108+'Sup Personal Directo'!G$113/12+'Sup Personal Directo'!G$66)*'Sup Personal Directo'!G$51)","v":1196.2959997002868},{"$f":"IF('Sup Personal Directo'!$C$9='Sup Personal Directo'!$Q$1,IF('Sup Personal Directo'!$C$10=100%,('Sup Personal Directo'!H$61*(SUM('Sup Personal Directo'!$C$21,'Sup Personal Directo'!$C$24:$C$26))+'Sup Personal Directo'!H$108+'Sup Personal Directo'!H$56)*'Sup Personal Directo'!H$46,('Sup Personal Directo'!H$61*(SUM('Sup Personal Directo'!$C$21,'Sup Personal Directo'!$C$24,'Sup Personal Directo'!$C$26))+'Sup Personal Directo'!H$108+'Sup Personal Directo'!H$56)*'Sup Personal Directo'!H$46*'Sup Personal Directo'!$C$10+('Sup Personal Directo'!H$56+'Sup Personal Directo'!H$108)*'Sup Personal Directo'!H$46*(1-'Sup Personal Directo'!$C$10)),('Sup Personal Directo'!H$66*(SUM('Sup Personal Directo'!$C$21:$C$22,'Sup Personal Directo'!$C$24:$C$26))+'Sup Personal Directo'!H$108+'Sup Personal Directo'!H$113/12+'Sup Personal Directo'!H$66)*'Sup Personal Directo'!H$51)","v":1209.1222068906732},{"$f":"IF('Sup Personal Directo'!$C$9='Sup Personal Directo'!$Q$1,IF('Sup Personal Directo'!$C$10=100%,('Sup Personal Directo'!I$61*(SUM('Sup Personal Directo'!$C$21,'Sup Personal Directo'!$C$24:$C$26))+'Sup Personal Directo'!I$108+'Sup Personal Directo'!I$56)*'Sup Personal Directo'!I$46,('Sup Personal Directo'!I$61*(SUM('Sup Personal Directo'!$C$21,'Sup Personal Directo'!$C$24,'Sup Personal Directo'!$C$26))+'Sup Personal Directo'!I$108+'Sup Personal Directo'!I$56)*'Sup Personal Directo'!I$46*'Sup Personal Directo'!$C$10+('Sup Personal Directo'!I$56+'Sup Personal Directo'!I$108)*'Sup Personal Directo'!I$46*(1-'Sup Personal Directo'!$C$10)),('Sup Personal Directo'!I$66*(SUM('Sup Personal Directo'!$C$21:$C$22,'Sup Personal Directo'!$C$24:$C$26))+'Sup Personal Directo'!I$108+'Sup Personal Directo'!I$113/12+'Sup Personal Directo'!I$66)*'Sup Personal Directo'!I$51)","v":1226.9611122822553},{"$f":"IF('Sup Personal Directo'!$C$9='Sup Personal Directo'!$Q$1,IF('Sup Personal Directo'!$C$10=100%,('Sup Personal Directo'!J$61*(SUM('Sup Personal Directo'!$C$21,'Sup Personal Directo'!$C$24:$C$26))+'Sup Personal Directo'!J$108+'Sup Personal Directo'!J$56)*'Sup Personal Directo'!J$46,('Sup Personal Directo'!J$61*(SUM('Sup Personal Directo'!$C$21,'Sup Personal Directo'!$C$24,'Sup Personal Directo'!$C$26))+'Sup Personal Directo'!J$108+'Sup Personal Directo'!J$56)*'Sup Personal Directo'!J$46*'Sup Personal Directo'!$C$10+('Sup Personal Directo'!J$56+'Sup Personal Directo'!J$108)*'Sup Personal Directo'!J$46*(1-'Sup Personal Directo'!$C$10)),('Sup Personal Directo'!J$66*(SUM('Sup Personal Directo'!$C$21:$C$22,'Sup Personal Directo'!$C$24:$C$26))+'Sup Personal Directo'!J$108+'Sup Personal Directo'!J$113/12+'Sup Personal Directo'!J$66)*'Sup Personal Directo'!J$51)","v":1260.7841848624289},{"$f":"IF('Sup Personal Directo'!$C$9='Sup Personal Directo'!$Q$1,IF('Sup Personal Directo'!$C$10=100%,('Sup Personal Directo'!K$61*(SUM('Sup Personal Directo'!$C$21,'Sup Personal Directo'!$C$24:$C$26))+'Sup Personal Directo'!K$108+'Sup Personal Directo'!K$56)*'Sup Personal Directo'!K$46,('Sup Personal Directo'!K$61*(SUM('Sup Personal Directo'!$C$21,'Sup Personal Directo'!$C$24,'Sup Personal Directo'!$C$26))+'Sup Personal Directo'!K$108+'Sup Personal Directo'!K$56)*'Sup Personal Directo'!K$46*'Sup Personal Directo'!$C$10+('Sup Personal Directo'!K$56+'Sup Personal Directo'!K$108)*'Sup Personal Directo'!K$46*(1-'Sup Personal Directo'!$C$10)),('Sup Personal Directo'!K$66*(SUM('Sup Personal Directo'!$C$21:$C$22,'Sup Personal Directo'!$C$24:$C$26))+'Sup Personal Directo'!K$108+'Sup Personal Directo'!K$113/12+'Sup Personal Directo'!K$66)*'Sup Personal Directo'!K$51)","v":1292.9250251312783},{"$f":"IF('Sup Personal Directo'!$C$9='Sup Personal Directo'!$Q$1,IF('Sup Personal Directo'!$C$10=100%,('Sup Personal Directo'!L$61*(SUM('Sup Personal Directo'!$C$21,'Sup Personal Directo'!$C$24:$C$26))+'Sup Personal Directo'!L$108+'Sup Personal Directo'!L$56)*'Sup Personal Directo'!L$46,('Sup Personal Directo'!L$61*(SUM('Sup Personal Directo'!$C$21,'Sup Personal Directo'!$C$24,'Sup Personal Directo'!$C$26))+'Sup Personal Directo'!L$108+'Sup Personal Directo'!L$56)*'Sup Personal Directo'!L$46*'Sup Personal Directo'!$C$10+('Sup Personal Directo'!L$56+'Sup Personal Directo'!L$108)*'Sup Personal Directo'!L$46*(1-'Sup Personal Directo'!$C$10)),('Sup Personal Directo'!L$66*(SUM('Sup Personal Directo'!$C$21:$C$22,'Sup Personal Directo'!$C$24:$C$26))+'Sup Personal Directo'!L$108+'Sup Personal Directo'!L$113/12+'Sup Personal Directo'!L$66)*'Sup Personal Directo'!L$51)","v":1322.2448536023946},{"$f":"IF('Sup Personal Directo'!$C$9='Sup Personal Directo'!$Q$1,IF('Sup Personal Directo'!$C$10=100%,('Sup Personal Directo'!M$61*(SUM('Sup Personal Directo'!$C$21,'Sup Personal Directo'!$C$24:$C$26))+'Sup Personal Directo'!M$108+'Sup Personal Directo'!M$56)*'Sup Personal Directo'!M$46,('Sup Personal Directo'!M$61*(SUM('Sup Personal Directo'!$C$21,'Sup Personal Directo'!$C$24,'Sup Personal Directo'!$C$26))+'Sup Personal Directo'!M$108+'Sup Personal Directo'!M$56)*'Sup Personal Directo'!M$46*'Sup Personal Directo'!$C$10+('Sup Personal Directo'!M$56+'Sup Personal Directo'!M$108)*'Sup Personal Directo'!M$46*(1-'Sup Personal Directo'!$C$10)),('Sup Personal Directo'!M$66*(SUM('Sup Personal Directo'!$C$21:$C$22,'Sup Personal Directo'!$C$24:$C$26))+'Sup Personal Directo'!M$108+'Sup Personal Directo'!M$113/12+'Sup Personal Directo'!M$66)*'Sup Personal Directo'!M$51)","v":1350.6569480882408},{"$f":"IF('Sup Personal Directo'!$C$9='Sup Personal Directo'!$Q$1,IF('Sup Personal Directo'!$C$10=100%,('Sup Personal Directo'!N$61*(SUM('Sup Personal Directo'!$C$21,'Sup Personal Directo'!$C$24:$C$26))+'Sup Personal Directo'!N$108+'Sup Personal Directo'!N$56)*'Sup Personal Directo'!N$46,('Sup Personal Directo'!N$61*(SUM('Sup Personal Directo'!$C$21,'Sup Personal Directo'!$C$24,'Sup Personal Directo'!$C$26))+'Sup Personal Directo'!N$108+'Sup Personal Directo'!N$56)*'Sup Personal Directo'!N$46*'Sup Personal Directo'!$C$10+('Sup Personal Directo'!N$56+'Sup Personal Directo'!N$108)*'Sup Personal Directo'!N$46*(1-'Sup Personal Directo'!$C$10)),('Sup Personal Directo'!N$66*(SUM('Sup Personal Directo'!$C$21:$C$22,'Sup Personal Directo'!$C$24:$C$26))+'Sup Personal Directo'!N$108+'Sup Personal Directo'!N$113/12+'Sup Personal Directo'!N$66)*'Sup Personal Directo'!N$51)","v":1379.2337996785727},{"$f":"IF('Sup Personal Directo'!$C$9='Sup Personal Directo'!$Q$1,IF('Sup Personal Directo'!$C$10=100%,('Sup Personal Directo'!O$61*(SUM('Sup Personal Directo'!$C$21,'Sup Personal Directo'!$C$24:$C$26))+'Sup Personal Directo'!O$108+'Sup Personal Directo'!O$56)*'Sup Personal Directo'!O$46,('Sup Personal Directo'!O$61*(SUM('Sup Personal Directo'!$C$21,'Sup Personal Directo'!$C$24,'Sup Personal Directo'!$C$26))+'Sup Personal Directo'!O$108+'Sup Personal Directo'!O$56)*'Sup Personal Directo'!O$46*'Sup Personal Directo'!$C$10+('Sup Personal Directo'!O$56+'Sup Personal Directo'!O$108)*'Sup Personal Directo'!O$46*(1-'Sup Personal Directo'!$C$10)),('Sup Personal Directo'!O$66*(SUM('Sup Personal Directo'!$C$21:$C$22,'Sup Personal Directo'!$C$24:$C$26))+'Sup Personal Directo'!O$108+'Sup Personal Directo'!O$113/12+'Sup Personal Directo'!O$66)*'Sup Personal Directo'!O$51)","v":1406.1653533584138},{"$f":"IF('Sup Personal Directo'!$C$9='Sup Personal Directo'!$Q$1,IF('Sup Personal Directo'!$C$10=100%,('Sup Personal Directo'!P$61*(SUM('Sup Personal Directo'!$C$21,'Sup Personal Directo'!$C$24:$C$26))+'Sup Personal Directo'!P$108+'Sup Personal Directo'!P$56)*'Sup Personal Directo'!P$46,('Sup Personal Directo'!P$61*(SUM('Sup Personal Directo'!$C$21,'Sup Personal Directo'!$C$24,'Sup Personal Directo'!$C$26))+'Sup Personal Directo'!P$108+'Sup Personal Directo'!P$56)*'Sup Personal Directo'!P$46*'Sup Personal Directo'!$C$10+('Sup Personal Directo'!P$56+'Sup Personal Directo'!P$108)*'Sup Personal Directo'!P$46*(1-'Sup Personal Directo'!$C$10)),('Sup Personal Directo'!P$66*(SUM('Sup Personal Directo'!$C$21:$C$22,'Sup Personal Directo'!$C$24:$C$26))+'Sup Personal Directo'!P$108+'Sup Personal Directo'!P$113/12+'Sup Personal Directo'!P$66)*'Sup Personal Directo'!P$51)","v":1434.8833946149248},{"$f":"IF('Sup Personal Directo'!$C$9='Sup Personal Directo'!$Q$1,IF('Sup Personal Directo'!$C$10=100%,('Sup Personal Directo'!Q$61*(SUM('Sup Personal Directo'!$C$21,'Sup Personal Directo'!$C$24:$C$26))+'Sup Personal Directo'!Q$108+'Sup Personal Directo'!Q$56)*'Sup Personal Directo'!Q$46,('Sup Personal Directo'!Q$61*(SUM('Sup Personal Directo'!$C$21,'Sup Personal Directo'!$C$24,'Sup Personal Directo'!$C$26))+'Sup Personal Directo'!Q$108+'Sup Personal Directo'!Q$56)*'Sup Personal Directo'!Q$46*'Sup Personal Directo'!$C$10+('Sup Personal Directo'!Q$56+'Sup Personal Directo'!Q$108)*'Sup Personal Directo'!Q$46*(1-'Sup Personal Directo'!$C$10)),('Sup Personal Directo'!Q$66*(SUM('Sup Personal Directo'!$C$21:$C$22,'Sup Personal Directo'!$C$24:$C$26))+'Sup Personal Directo'!Q$108+'Sup Personal Directo'!Q$113/12+'Sup Personal Directo'!Q$66)*'Sup Personal Directo'!Q$51)","v":1465.927980734607},{"$f":"IF('Sup Personal Directo'!$C$9='Sup Personal Directo'!$Q$1,IF('Sup Personal Directo'!$C$10=100%,('Sup Personal Directo'!R$61*(SUM('Sup Personal Directo'!$C$21,'Sup Personal Directo'!$C$24:$C$26))+'Sup Personal Directo'!R$108+'Sup Personal Directo'!R$56)*'Sup Personal Directo'!R$46,('Sup Personal Directo'!R$61*(SUM('Sup Personal Directo'!$C$21,'Sup Personal Directo'!$C$24,'Sup Personal Directo'!$C$26))+'Sup Personal Directo'!R$108+'Sup Personal Directo'!R$56)*'Sup Personal Directo'!R$46*'Sup Personal Directo'!$C$10+('Sup Personal Directo'!R$56+'Sup Personal Directo'!R$108)*'Sup Personal Directo'!R$46*(1-'Sup Personal Directo'!$C$10)),('Sup Personal Directo'!R$66*(SUM('Sup Personal Directo'!$C$21:$C$22,'Sup Personal Directo'!$C$24:$C$26))+'Sup Personal Directo'!R$108+'Sup Personal Directo'!R$113/12+'Sup Personal Directo'!R$66)*'Sup Personal Directo'!R$51)","v":1498.9053030740956},{"$f":"IF('Sup Personal Directo'!$C$9='Sup Personal Directo'!$Q$1,IF('Sup Personal Directo'!$C$10=100%,('Sup Personal Directo'!S$61*(SUM('Sup Personal Directo'!$C$21,'Sup Personal Directo'!$C$24:$C$26))+'Sup Personal Directo'!S$108+'Sup Personal Directo'!S$56)*'Sup Personal Directo'!S$46,('Sup Personal Directo'!S$61*(SUM('Sup Personal Directo'!$C$21,'Sup Personal Directo'!$C$24,'Sup Personal Directo'!$C$26))+'Sup Personal Directo'!S$108+'Sup Personal Directo'!S$56)*'Sup Personal Directo'!S$46*'Sup Personal Directo'!$C$10+('Sup Personal Directo'!S$56+'Sup Personal Directo'!S$108)*'Sup Personal Directo'!S$46*(1-'Sup Personal Directo'!$C$10)),('Sup Personal Directo'!S$66*(SUM('Sup Personal Directo'!$C$21:$C$22,'Sup Personal Directo'!$C$24:$C$26))+'Sup Personal Directo'!S$108+'Sup Personal Directo'!S$113/12+'Sup Personal Directo'!S$66)*'Sup Personal Directo'!S$51)","v":1531.6744217581613},{"$f":"IF('Sup Personal Directo'!$C$9='Sup Personal Directo'!$Q$1,IF('Sup Personal Directo'!$C$10=100%,('Sup Personal Directo'!T$61*(SUM('Sup Personal Directo'!$C$21,'Sup Personal Directo'!$C$24:$C$26))+'Sup Personal Directo'!T$108+'Sup Personal Directo'!T$56)*'Sup Personal Directo'!T$46,('Sup Personal Directo'!T$61*(SUM('Sup Personal Directo'!$C$21,'Sup Personal Directo'!$C$24,'Sup Personal Directo'!$C$26))+'Sup Personal Directo'!T$108+'Sup Personal Directo'!T$56)*'Sup Personal Directo'!T$46*'Sup Personal Directo'!$C$10+('Sup Personal Directo'!T$56+'Sup Personal Directo'!T$108)*'Sup Personal Directo'!T$46*(1-'Sup Personal Directo'!$C$10)),('Sup Personal Directo'!T$66*(SUM('Sup Personal Directo'!$C$21:$C$22,'Sup Personal Directo'!$C$24:$C$26))+'Sup Personal Directo'!T$108+'Sup Personal Directo'!T$113/12+'Sup Personal Directo'!T$66)*'Sup Personal Directo'!T$51)","v":1564.4648080663837},{"$f":"IF('Sup Personal Directo'!$C$9='Sup Personal Directo'!$Q$1,IF('Sup Personal Directo'!$C$10=100%,('Sup Personal Directo'!U$61*(SUM('Sup Personal Directo'!$C$21,'Sup Personal Directo'!$C$24:$C$26))+'Sup Personal Directo'!U$108+'Sup Personal Directo'!U$56)*'Sup Personal Directo'!U$46,('Sup Personal Directo'!U$61*(SUM('Sup Personal Directo'!$C$21,'Sup Personal Directo'!$C$24,'Sup Personal Directo'!$C$26))+'Sup Personal Directo'!U$108+'Sup Personal Directo'!U$56)*'Sup Personal Directo'!U$46*'Sup Personal Directo'!$C$10+('Sup Personal Directo'!U$56+'Sup Personal Directo'!U$108)*'Sup Personal Directo'!U$46*(1-'Sup Personal Directo'!$C$10)),('Sup Personal Directo'!U$66*(SUM('Sup Personal Directo'!$C$21:$C$22,'Sup Personal Directo'!$C$24:$C$26))+'Sup Personal Directo'!U$108+'Sup Personal Directo'!U$113/12+'Sup Personal Directo'!U$66)*'Sup Personal Directo'!U$51)","v":1597.7090271411585},{"$f":"IF('Sup Personal Directo'!$C$9='Sup Personal Directo'!$Q$1,IF('Sup Personal Directo'!$C$10=100%,('Sup Personal Directo'!V$61*(SUM('Sup Personal Directo'!$C$21,'Sup Personal Directo'!$C$24:$C$26))+'Sup Personal Directo'!V$108+'Sup Personal Directo'!V$56)*'Sup Personal Directo'!V$46,('Sup Personal Directo'!V$61*(SUM('Sup Personal Directo'!$C$21,'Sup Personal Directo'!$C$24,'Sup Personal Directo'!$C$26))+'Sup Personal Directo'!V$108+'Sup Personal Directo'!V$56)*'Sup Personal Directo'!V$46*'Sup Personal Directo'!$C$10+('Sup Personal Directo'!V$56+'Sup Personal Directo'!V$108)*'Sup Personal Directo'!V$46*(1-'Sup Personal Directo'!$C$10)),('Sup Personal Directo'!V$66*(SUM('Sup Personal Directo'!$C$21:$C$22,'Sup Personal Directo'!$C$24:$C$26))+'Sup Personal Directo'!V$108+'Sup Personal Directo'!V$113/12+'Sup Personal Directo'!V$66)*'Sup Personal Directo'!V$51)","v":1631.6121017880287},{"$f":"IF('Sup Personal Directo'!$C$9='Sup Personal Directo'!$Q$1,IF('Sup Personal Directo'!$C$10=100%,('Sup Personal Directo'!W$61*(SUM('Sup Personal Directo'!$C$21,'Sup Personal Directo'!$C$24:$C$26))+'Sup Personal Directo'!W$108+'Sup Personal Directo'!W$56)*'Sup Personal Directo'!W$46,('Sup Personal Directo'!W$61*(SUM('Sup Personal Directo'!$C$21,'Sup Personal Directo'!$C$24,'Sup Personal Directo'!$C$26))+'Sup Personal Directo'!W$108+'Sup Personal Directo'!W$56)*'Sup Personal Directo'!W$46*'Sup Personal Directo'!$C$10+('Sup Personal Directo'!W$56+'Sup Personal Directo'!W$108)*'Sup Personal Directo'!W$46*(1-'Sup Personal Directo'!$C$10)),('Sup Personal Directo'!W$66*(SUM('Sup Personal Directo'!$C$21:$C$22,'Sup Personal Directo'!$C$24:$C$26))+'Sup Personal Directo'!W$108+'Sup Personal Directo'!W$113/12+'Sup Personal Directo'!W$66)*'Sup Personal Directo'!W$51)","v":1666.2472509532638}]
[null,"Ayudantes",{"$f":"IF('Sup Personal Directo'!$C$11='Sup Personal Directo'!$Q$1,IF('Sup Personal Directo'!$C$12=100%,('Sup Personal Directo'!D$92*(SUM('Sup Personal Directo'!$C$21,'Sup Personal Directo'!$C$24:$C$26))+'Sup Personal Directo'!D$108+'Sup Personal Directo'!D$87)*'Sup Personal Directo'!D$77,('Sup Personal Directo'!D$92*(SUM('Sup Personal Directo'!$C$21,'Sup Personal Directo'!$C$24,'Sup Personal Directo'!$C$26))+'Sup Personal Directo'!D$108+'Sup Personal Directo'!D$87)*'Sup Personal Directo'!D$77*'Sup Personal Directo'!$C$12+('Sup Personal Directo'!D$87+'Sup Personal Directo'!D$108)*'Sup Personal Directo'!D$77*(1-'Sup Personal Directo'!$C$12)),('Sup Personal Directo'!D$92*(SUM('Sup Personal Directo'!$C$21:$C$22,'Sup Personal Directo'!$C$24:$C$26))+'Sup Personal Directo'!D$108+'Sup Personal Directo'!D$113/12+'Sup Personal Directo'!D$97)*'Sup Personal Directo'!D$82)","v":890.74285714285725},{"$f":"IF('Sup Personal Directo'!$C$11='Sup Personal Directo'!$Q$1,IF('Sup Personal Directo'!$C$12=100%,('Sup Personal Directo'!E$92*(SUM('Sup Personal Directo'!$C$21,'Sup Personal Directo'!$C$24:$C$26))+'Sup Personal Directo'!E$108+'Sup Personal Directo'!E$87)*'Sup Personal Directo'!E$77,('Sup Personal Directo'!E$92*(SUM('Sup Personal Directo'!$C$21,'Sup Personal Directo'!$C$24,'Sup Personal Directo'!$C$26))+'Sup Personal Directo'!E$108+'Sup Personal Directo'!E$87)*'Sup Personal Directo'!E$77*'Sup Personal Directo'!$C$12+('Sup Personal Directo'!E$87+'Sup Personal Directo'!E$108)*'Sup Personal Directo'!E$77*(1-'Sup Personal Directo'!$C$12)),('Sup Personal Directo'!E$92*(SUM('Sup Personal Directo'!$C$21:$C$22,'Sup Personal Directo'!$C$24:$C$26))+'Sup Personal Directo'!E$108+'Sup Personal Directo'!E$113/12+'Sup Personal Directo'!E$97)*'Sup Personal Directo'!E$82)","v":912.23470080000004},{"$f":"IF('Sup Personal Directo'!$C$11='Sup Personal Directo'!$Q$1,IF('Sup Personal Directo'!$C$12=100%,('Sup Personal Directo'!F$92*(SUM('Sup Personal Directo'!$C$21,'Sup Personal Directo'!$C$24:$C$26))+'Sup Personal Directo'!F$108+'Sup Personal Directo'!F$87)*'Sup Personal Directo'!F$77,('Sup Personal Directo'!F$92*(SUM('Sup Personal Directo'!$C$21,'Sup Personal Directo'!$C$24,'Sup Personal Directo'!$C$26))+'Sup Personal Directo'!F$108+'Sup Personal Directo'!F$87)*'Sup Personal Directo'!F$77*'Sup Personal Directo'!$C$12+('Sup Personal Directo'!F$87+'Sup Personal Directo'!F$108)*'Sup Personal Directo'!F$77*(1-'Sup Personal Directo'!$C$12)),('Sup Personal Directo'!F$92*(SUM('Sup Personal Directo'!$C$21:$C$22,'Sup Personal Directo'!$C$24:$C$26))+'Sup Personal Directo'!F$108+'Sup Personal Directo'!F$113/12+'Sup Personal Directo'!F$97)*'Sup Personal Directo'!F$82)","v":943.44042544496665},{"$f":"IF('Sup Personal Directo'!$C$11='Sup Personal Directo'!$Q$1,IF('Sup Personal Directo'!$C$12=100%,('Sup Personal Directo'!G$92*(SUM('Sup Personal Directo'!$C$21,'Sup Personal Directo'!$C$24:$C$26))+'Sup Personal Directo'!G$108+'Sup Personal Directo'!G$87)*'Sup Personal Directo'!G$77,('Sup Personal Directo'!G$92*(SUM('Sup Personal Directo'!$C$21,'Sup Personal Directo'!$C$24,'Sup Personal Directo'!$C$26))+'Sup Personal Directo'!G$108+'Sup Personal Directo'!G$87)*'Sup Personal Directo'!G$77*'Sup Personal Directo'!$C$12+('Sup Personal Directo'!G$87+'Sup Personal Directo'!G$108)*'Sup Personal Directo'!G$77*(1-'Sup Personal Directo'!$C$12)),('Sup Personal Directo'!G$92*(SUM('Sup Personal Directo'!$C$21:$C$22,'Sup Personal Directo'!$C$24:$C$26))+'Sup Personal Directo'!G$108+'Sup Personal Directo'!G$113/12+'Sup Personal Directo'!G$97)*'Sup Personal Directo'!G$82)","v":955.09621678755207},{"$f":"IF('Sup Personal Directo'!$C$11='Sup Personal Directo'!$Q$1,IF('Sup Personal Directo'!$C$12=100%,('Sup Personal Directo'!H$92*(SUM('Sup Personal Directo'!$C$21,'Sup Personal Directo'!$C$24:$C$26))+'Sup Personal Directo'!H$108+'Sup Personal Directo'!H$87)*'Sup Personal Directo'!H$77,('Sup Personal Directo'!H$92*(SUM('Sup Personal Directo'!$C$21,'Sup Personal Directo'!$C$24,'Sup Personal Directo'!$C$26))+'Sup Personal Directo'!H$108+'Sup Personal Directo'!H$87)*'Sup Personal Directo'!H$77*'Sup Personal Directo'!$C$12+('Sup Personal Directo'!H$87+'Sup Personal Directo'!H$108)*'Sup Personal Directo'!H$77*(1-'Sup Personal Directo'!$C$12)),('Sup Personal Directo'!H$92*(SUM('Sup Personal Directo'!$C$21:$C$22,'Sup Personal Directo'!$C$24:$C$26))+'Sup Personal Directo'!H$108+'Sup Personal Directo'!H$113/12+'Sup Personal Directo'!H$97)*'Sup Personal Directo'!H$82)","v":965.33637638546134},{"$f":"IF('Sup Personal Directo'!$C$11='Sup Personal Directo'!$Q$1,IF('Sup Personal Directo'!$C$12=100%,('Sup Personal Directo'!I$92*(SUM('Sup Personal Directo'!$C$21,'Sup Personal Directo'!$C$24:$C$26))+'Sup Personal Directo'!I$108+'Sup Personal Directo'!I$87)*'Sup Personal Directo'!I$77,('Sup Personal Directo'!I$92*(SUM('Sup Personal Directo'!$C$21,'Sup Personal Directo'!$C$24,'Sup Personal Directo'!$C$26))+'Sup Personal Directo'!I$108+'Sup Personal Directo'!I$87)*'Sup Personal Directo'!I$77*'Sup Personal Directo'!$C$12+('Sup Personal Directo'!I$87+'Sup Personal Directo'!I$108)*'Sup Personal Directo'!I$77*(1-'Sup Personal Directo'!$C$12)),('Sup Personal Directo'!I$92*(SUM('Sup Personal Directo'!$C$21:$C$22,'Sup Personal Directo'!$C$24:$C$26))+'Sup Personal Directo'!I$108+'Sup Personal Directo'!I$113/12+'Sup Personal Directo'!I$97)*'Sup Personal Directo'!I$82)","v":979.57856314810192},{"$f":"IF('Sup Personal Directo'!$C$11='Sup Personal Directo'!$Q$1,IF('Sup Personal Directo'!$C$12=100%,('Sup Personal Directo'!J$92*(SUM('Sup Personal Directo'!$C$21,'Sup Personal Directo'!$C$24:$C$26))+'Sup Personal Directo'!J$108+'Sup Personal Directo'!J$87)*'Sup Personal Directo'!J$77,('Sup Personal Directo'!J$92*(SUM('Sup Personal Directo'!$C$21,'Sup Personal Directo'!$C$24,'Sup Personal Directo'!$C$26))+'Sup Personal Directo'!J$108+'Sup Personal Directo'!J$87)*'Sup Personal Directo'!J$77*'Sup Personal Directo'!$C$12+('Sup Personal Directo'!J$87+'Sup Personal Directo'!J$108)*'Sup Personal Directo'!J$77*(1-'Sup Personal Directo'!$C$12)),('Sup Personal Directo'!J$92*(SUM('Sup Personal Directo'!$C$21:$C$22,'Sup Personal Directo'!$C$24:$C$26))+'Sup Personal Directo'!J$108+'Sup Personal Directo'!J$113/12+'Sup Personal Directo'!J$97)*'Sup Personal Directo'!J$82)","v":1006.5821547922667},{"$f":"IF('Sup Personal Directo'!$C$11='Sup Personal Directo'!$Q$1,IF('Sup Personal Directo'!$C$12=100%,('Sup Personal Directo'!K$92*(SUM('Sup Personal Directo'!$C$21,'Sup Personal Directo'!$C$24:$C$26))+'Sup Personal Directo'!K$108+'Sup Personal Directo'!K$87)*'Sup Personal Directo'!K$77,('Sup Personal Directo'!K$92*(SUM('Sup Personal Directo'!$C$21,'Sup Personal Directo'!$C$24,'Sup Personal Directo'!$C$26))+'Sup Personal Directo'!K$108+'Sup Personal Directo'!K$87)*'Sup Personal Directo'!K$77*'Sup Personal Directo'!$C$12+('Sup Personal Directo'!K$87+'Sup Personal Directo'!K$108)*'Sup Personal Directo'!K$77*(1-'Sup Personal Directo'!$C$12)),('Sup Personal Directo'!K$92*(SUM('Sup Personal Directo'!$C$21:$C$22,'Sup Personal Directo'!$C$24:$C$26))+'Sup Personal Directo'!K$108+'Sup Personal Directo'!K$113/12+'Sup Personal Directo'!K$97)*'Sup Personal Directo'!K$82)","v":1032.2426894365703},{"$f":"IF('Sup Personal Directo'!$C$11='Sup Personal Directo'!$Q$1,IF('Sup Personal Directo'!$C$12=100%,('Sup Personal Directo'!L$92*(SUM('Sup Personal Directo'!$C$21,'Sup Personal Directo'!$C$24:$C$26))+'Sup Personal Directo'!L$108+'Sup Personal Directo'!L$87)*'Sup Personal Directo'!L$77,('Sup Personal Directo'!L$92*(SUM('Sup Personal Directo'!$C$21,'Sup Personal Directo'!$C$24,'Sup Personal Directo'!$C$26))+'Sup Personal Directo'!L$108+'Sup Personal Directo'!L$87)*'Sup Personal Directo'!L$77*'Sup Personal Directo'!$C$12+('Sup Personal Directo'!L$87+'Sup Personal Directo'!L$108)*'Sup Personal Directo'!L$77*(1-'Sup Personal Directo'!$C$12)),('Sup Personal Directo'!L$92*(SUM('Sup Personal Directo'!$C$21:$C$22,'Sup Personal Directo'!$C$24:$C$26))+'Sup Personal Directo'!L$108+'Sup Personal Directo'!L$113/12+'Sup Personal Directo'!L$97)*'Sup Personal Directo'!L$82)","v":1055.6509907738975},{"$f":"IF('Sup Personal Directo'!$C$11='Sup Personal Directo'!$Q$1,IF('Sup Personal Directo'!$C$12=100%,('Sup Personal Directo'!M$92*(SUM('Sup Personal Directo'!$C$21,'Sup Personal Directo'!$C$24:$C$26))+'Sup Personal Directo'!M$108+'Sup Personal Directo'!M$87)*'Sup Personal Directo'!M$77,('Sup Personal Directo'!M$92*(SUM('Sup Personal Directo'!$C$21,'Sup Personal Directo'!$C$24,'Sup Personal Directo'!$C$26))+'Sup Personal Directo'!M$108+'Sup Personal Directo'!M$87)*'Sup Personal Directo'!M$77*'Sup Personal Directo'!$C$12+('Sup Personal Directo'!M$87+'Sup Personal Directo'!M$108)*'Sup Personal Directo'!M$77*(1-'Sup Personal Directo'!$C$12)),('Sup Personal Directo'!M$92*(SUM('Sup Personal Directo'!$C$21:$C$22,'Sup Personal Directo'!$C$24:$C$26))+'Sup Personal Directo'!M$108+'Sup Personal Directo'!M$113/12+'Sup Personal Directo'!M$97)*'Sup Personal Directo'!M$82)","v":1078.3345774123557},{"$f":"IF('Sup Personal Directo'!$C$11='Sup Personal Directo'!$Q$1,IF('Sup Personal Directo'!$C$12=100%,('Sup Personal Directo'!N$92*(SUM('Sup Personal Directo'!$C$21,'Sup Personal Directo'!$C$24:$C$26))+'Sup Personal Directo'!N$108+'Sup Personal Directo'!N$87)*'Sup Personal Directo'!N$77,('Sup Personal Directo'!N$92*(SUM('Sup Personal Directo'!$C$21,'Sup Personal Directo'!$C$24,'Sup Personal Directo'!$C$26))+'Sup Personal Directo'!N$108+'Sup Personal Directo'!N$87)*'Sup Personal Directo'!N$77*'Sup Personal Directo'!$C$12+('Sup Personal Directo'!N$87+'Sup Personal Directo'!N$108)*'Sup Personal Directo'!N$77*(1-'Sup Personal Directo'!$C$12)),('Sup Personal Directo'!N$92*(SUM('Sup Personal Directo'!$C$21:$C$22,'Sup Personal Directo'!$C$24:$C$26))+'Sup Personal Directo'!N$108+'Sup Personal Directo'!N$113/12+'Sup Personal Directo'!N$97)*'Sup Personal Directo'!N$82)","v":1101.1497024720927},{"$f":"IF('Sup Personal Directo'!$C$11='Sup Personal Directo'!$Q$1,IF('Sup Personal Directo'!$C$12=100%,('Sup Personal Directo'!O$92*(SUM('Sup Personal Directo'!$C$21,'Sup Personal Directo'!$C$24:$C$26))+'Sup Personal Directo'!O$108+'Sup Personal Directo'!O$87)*'Sup Personal Directo'!O$77,('Sup Personal Directo'!O$92*(SUM('Sup Personal Directo'!$C$21,'Sup Personal Directo'!$C$24,'Sup Personal Directo'!$C$26))+'Sup Personal Directo'!O$108+'Sup Personal Directo'!O$87)*'Sup Personal Directo'!O$77*'Sup Personal Directo'!$C$12+('Sup Personal Directo'!O$87+'Sup Personal Directo'!O$108)*'Sup Personal Directo'!O$77*(1-'Sup Personal Directo'!$C$12)),('Sup Personal Directo'!O$92*(SUM('Sup Personal Directo'!$C$21:$C$22,'Sup Personal Directo'!$C$24:$C$26))+'Sup Personal Directo'!O$108+'Sup Personal Directo'!O$113/12+'Sup Personal Directo'!O$97)*'Sup Personal Directo'!O$82)","v":1122.6512581391444},{"$f":"IF('Sup Personal Directo'!$C$11='Sup Personal Directo'!$Q$1,IF('Sup Personal Directo'!$C$12=100%,('Sup Personal Directo'!P$92*(SUM('Sup Personal Directo'!$C$21,'Sup Personal Directo'!$C$24:$C$26))+'Sup Personal Directo'!P$108+'Sup Personal Directo'!P$87)*'Sup Personal Directo'!P$77,('Sup Personal Directo'!P$92*(SUM('Sup Personal Directo'!$C$21,'Sup Personal Directo'!$C$24,'Sup Personal Directo'!$C$26))+'Sup Personal Directo'!P$108+'Sup Personal Directo'!P$87)*'Sup Personal Directo'!P$77*'Sup Personal Directo'!$C$12+('Sup Personal Directo'!P$87+'Sup Personal Directo'!P$108)*'Sup Personal Directo'!P$77*(1-'Sup Personal Directo'!$C$12)),('Sup Personal Directo'!P$92*(SUM('Sup Personal Directo'!$C$21:$C$22,'Sup Personal Directo'!$C$24:$C$26))+'Sup Personal Directo'!P$108+'Sup Personal Directo'!P$113/12+'Sup Personal Directo'!P$97)*'Sup Personal Directo'!P$82)","v":1145.5791058996604},{"$f":"IF('Sup Personal Directo'!$C$11='Sup Personal Directo'!$Q$1,IF('Sup Personal Directo'!$C$12=100%,('Sup Personal Directo'!Q$92*(SUM('Sup Personal Directo'!$C$21,'Sup Personal Directo'!$C$24:$C$26))+'Sup Personal Directo'!Q$108+'Sup Personal Directo'!Q$87)*'Sup Personal Directo'!Q$77,('Sup Personal Directo'!Q$92*(SUM('Sup Personal Directo'!$C$21,'Sup Personal Directo'!$C$24,'Sup Personal Directo'!$C$26))+'Sup Personal Directo'!Q$108+'Sup Personal Directo'!Q$87)*'Sup Personal Directo'!Q$77*'Sup Personal Directo'!$C$12+('Sup Personal Directo'!Q$87+'Sup Personal Directo'!Q$108)*'Sup Personal Directo'!Q$77*(1-'Sup Personal Directo'!$C$12)),('Sup Personal Directo'!Q$92*(SUM('Sup Personal Directo'!$C$21:$C$22,'Sup Personal Directo'!$C$24:$C$26))+'Sup Personal Directo'!Q$108+'Sup Personal Directo'!Q$113/12+'Sup Personal Directo'!Q$97)*'Sup Personal Directo'!Q$82)","v":1170.3644155237605},{"$f":"IF('Sup Personal Directo'!$C$11='Sup Personal Directo'!$Q$1,IF('Sup Personal Directo'!$C$12=100%,('Sup Personal Directo'!R$92*(SUM('Sup Personal Directo'!$C$21,'Sup Personal Directo'!$C$24:$C$26))+'Sup Personal Directo'!R$108+'Sup Personal Directo'!R$87)*'Sup Personal Directo'!R$77,('Sup Personal Directo'!R$92*(SUM('Sup Personal Directo'!$C$21,'Sup Personal Directo'!$C$24,'Sup Personal Directo'!$C$26))+'Sup Personal Directo'!R$108+'Sup Personal Directo'!R$87)*'Sup Personal Directo'!R$77*'Sup Personal Directo'!$C$12+('Sup Personal Directo'!R$87+'Sup Personal Directo'!R$108)*'Sup Personal Directo'!R$77*(1-'Sup Personal Directo'!$C$12)),('Sup Personal Directo'!R$92*(SUM('Sup Personal Directo'!$C$21:$C$22,'Sup Personal Directo'!$C$24:$C$26))+'Sup Personal Directo'!R$108+'Sup Personal Directo'!R$113/12+'Sup Personal Directo'!R$97)*'Sup Personal Directo'!R$82)","v":1196.6927789172016},{"$f":"IF('Sup Personal Directo'!$C$11='Sup Personal Directo'!$Q$1,IF('Sup Personal Directo'!$C$12=100%,('Sup Personal Directo'!S$92*(SUM('Sup Personal Directo'!$C$21,'Sup Personal Directo'!$C$24:$C$26))+'Sup Personal Directo'!S$108+'Sup Personal Directo'!S$87)*'Sup Personal Directo'!S$77,('Sup Personal Directo'!S$92*(SUM('Sup Personal Directo'!$C$21,'Sup Personal Directo'!$C$24,'Sup Personal Directo'!$C$26))+'Sup Personal Directo'!S$108+'Sup Personal Directo'!S$87)*'Sup Personal Directo'!S$77*'Sup Personal Directo'!$C$12+('Sup Personal Directo'!S$87+'Sup Personal Directo'!S$108)*'Sup Personal Directo'!S$77*(1-'Sup Personal Directo'!$C$12)),('Sup Personal Directo'!S$92*(SUM('Sup Personal Directo'!$C$21:$C$22,'Sup Personal Directo'!$C$24:$C$26))+'Sup Personal Directo'!S$108+'Sup Personal Directo'!S$113/12+'Sup Personal Directo'!S$97)*'Sup Personal Directo'!S$82)","v":1222.8549171258512},{"$f":"IF('Sup Personal Directo'!$C$11='Sup Personal Directo'!$Q$1,IF('Sup Personal Directo'!$C$12=100%,('Sup Personal Directo'!T$92*(SUM('Sup Personal Directo'!$C$21,'Sup Personal Directo'!$C$24:$C$26))+'Sup Personal Directo'!T$108+'Sup Personal Directo'!T$87)*'Sup Personal Directo'!T$77,('Sup Personal Directo'!T$92*(SUM('Sup Personal Directo'!$C$21,'Sup Personal Directo'!$C$24,'Sup Personal Directo'!$C$26))+'Sup Personal Directo'!T$108+'Sup Personal Directo'!T$87)*'Sup Personal Directo'!T$77*'Sup Personal Directo'!$C$12+('Sup Personal Directo'!T$87+'Sup Personal Directo'!T$108)*'Sup Personal Directo'!T$77*(1-'Sup Personal Directo'!$C$12)),('Sup Personal Directo'!T$92*(SUM('Sup Personal Directo'!$C$21:$C$22,'Sup Personal Directo'!$C$24:$C$26))+'Sup Personal Directo'!T$108+'Sup Personal Directo'!T$113/12+'Sup Personal Directo'!T$97)*'Sup Personal Directo'!T$82)","v":1249.0340349343467},{"$f":"IF('Sup Personal Directo'!$C$11='Sup Personal Directo'!$Q$1,IF('Sup Personal Directo'!$C$12=100%,('Sup Personal Directo'!U$92*(SUM('Sup Personal Directo'!$C$21,'Sup Personal Directo'!$C$24:$C$26))+'Sup Personal Directo'!U$108+'Sup Personal Directo'!U$87)*'Sup Personal Directo'!U$77,('Sup Personal Directo'!U$92*(SUM('Sup Personal Directo'!$C$21,'Sup Personal Directo'!$C$24,'Sup Personal Directo'!$C$26))+'Sup Personal Directo'!U$108+'Sup Personal Directo'!U$87)*'Sup Personal Directo'!U$77*'Sup Personal Directo'!$C$12+('Sup Personal Directo'!U$87+'Sup Personal Directo'!U$108)*'Sup Personal Directo'!U$77*(1-'Sup Personal Directo'!$C$12)),('Sup Personal Directo'!U$92*(SUM('Sup Personal Directo'!$C$21:$C$22,'Sup Personal Directo'!$C$24:$C$26))+'Sup Personal Directo'!U$108+'Sup Personal Directo'!U$113/12+'Sup Personal Directo'!U$97)*'Sup Personal Directo'!U$82)","v":1275.5754827669307},{"$f":"IF('Sup Personal Directo'!$C$11='Sup Personal Directo'!$Q$1,IF('Sup Personal Directo'!$C$12=100%,('Sup Personal Directo'!V$92*(SUM('Sup Personal Directo'!$C$21,'Sup Personal Directo'!$C$24:$C$26))+'Sup Personal Directo'!V$108+'Sup Personal Directo'!V$87)*'Sup Personal Directo'!V$77,('Sup Personal Directo'!V$92*(SUM('Sup Personal Directo'!$C$21,'Sup Personal Directo'!$C$24,'Sup Personal Directo'!$C$26))+'Sup Personal Directo'!V$108+'Sup Personal Directo'!V$87)*'Sup Personal Directo'!V$77*'Sup Personal Directo'!$C$12+('Sup Personal Directo'!V$87+'Sup Personal Directo'!V$108)*'Sup Personal Directo'!V$77*(1-'Sup Personal Directo'!$C$12)),('Sup Personal Directo'!V$92*(SUM('Sup Personal Directo'!$C$21:$C$22,'Sup Personal Directo'!$C$24:$C$26))+'Sup Personal Directo'!V$108+'Sup Personal Directo'!V$113/12+'Sup Personal Directo'!V$97)*'Sup Personal Directo'!V$82)","v":1302.642946288337},{"$f":"IF('Sup Personal Directo'!$C$11='Sup Personal Directo'!$Q$1,IF('Sup Personal Directo'!$C$12=100%,('Sup Personal Directo'!W$92*(SUM('Sup Personal Directo'!$C$21,'Sup Personal Directo'!$C$24:$C$26))+'Sup Personal Directo'!W$108+'Sup Personal Directo'!W$87)*'Sup Personal Directo'!W$77,('Sup Personal Directo'!W$92*(SUM('Sup Personal Directo'!$C$21,'Sup Personal Directo'!$C$24,'Sup Personal Directo'!$C$26))+'Sup Personal Directo'!W$108+'Sup Personal Directo'!W$87)*'Sup Personal Directo'!W$77*'Sup Personal Directo'!$C$12+('Sup Personal Directo'!W$87+'Sup Personal Directo'!W$108)*'Sup Personal Directo'!W$77*(1-'Sup Personal Directo'!$C$12)),('Sup Personal Directo'!W$92*(SUM('Sup Personal Directo'!$C$21:$C$22,'Sup Personal Directo'!$C$24:$C$26))+'Sup Personal Directo'!W$108+'Sup Personal Directo'!W$113/12+'Sup Personal Directo'!W$97)*'Sup Personal Directo'!W$82)","v":1330.2948818827685}]
[]
[null,{"$f":"+'Sup Personal Directo'!B47","v":"Intracantonal Urbano"}]
[null,"Costo año Sin SITP-Q (USD)",{"$f":"+C17*12","v":24077.204571428578},24658.139363328002,25501.644994668735,25816.706597854063,26093.502999313612,26478.476105164289,27208.396075856344,27902.012574814184,28534.750132515506,29147.898306007155,29764.602025807988,30345.7993379707,0,0,0,0,0,0,0,0]
[null,"Costo año Con SITP-Q (USD)",{"$f":"C17*12","v":24077.204571428578},{"$f":"D18*12","v":13711.322953728},{"$f":"E18*12","v":14180.359889329133},{"$f":"F18*12","v":14355.551996403441},14509.466482688078,14723.533347387063,15129.410218349147,15515.100301575339,15866.938243228735,16207.88337705889,16550.805596142873,16873.984240300964,17218.600735379099,17591.135768815286,17986.863636889146,18380.093061097934,18773.577696796605,19172.508325693903,19579.345221456344,19994.967011439167]
[null,"Costo mes",{"$f":"SUM(C18,C19)*IF(C$5>'Sup fijo'!$H$52,0,1)","v":2006.4337142857148},{"$f":"SUM(D18,D19)*IF(D$5>'Sup fijo'!$H$52,0,1)","v":2054.8449469440002},{"$f":"SUM(E18,E19)*IF(E$5>'Sup fijo'!$H$52,0,1)","v":2125.1370828890613},{"$f":"SUM(F18,F19)*IF(F$5>'Sup fijo'!$H$52,0,1)","v":2151.3922164878386},{"$f":"SUM(G18,G19)*IF(G$5>'Sup fijo'!$H$52,0,1)","v":2174.4585832761345},{"$f":"SUM(H18,H19)*IF(H$5>'Sup fijo'!$H$52,0,1)","v":2206.5396754303574},{"$f":"SUM(I18,I19)*IF(I$5>'Sup fijo'!$H$52,0,1)","v":2267.3663396546954},{"$f":"SUM(J18,J19)*IF(J$5>'Sup fijo'!$H$52,0,1)","v":2325.1677145678486},{"$f":"SUM(K18,K19)*IF(K$5>'Sup fijo'!$H$52,0,1)","v":2377.8958443762922},{"$f":"SUM(L18,L19)*IF(L$5>'Sup fijo'!$H$52,0,1)","v":2428.9915255005963},{"$f":"SUM(M18,M19)*IF(M$5>'Sup fijo'!$H$52,0,1)","v":2480.3835021506657},{"$f":"SUM(N18,N19)*IF(N$5>'Sup fijo'!$H$52,0,1)","v":2528.8166114975584},{"$f":"SUM(O18,O19)*IF(O$5>'Sup fijo'!$H$52,0,1)","v":0},{"$f":"SUM(P18,P19)*IF(P$5>'Sup fijo'!$H$52,0,1)","v":0},{"$f":"SUM(Q18,Q19)*IF(Q$5>'Sup fijo'!$H$52,0,1)","v":0},{"$f":"SUM(R18,R19)*IF(R$5>'Sup fijo'!$H$52,0,1)","v":0},{"$f":"SUM(S18,S19)*IF(S$5>'Sup fijo'!$H$52,0,1)","v":0},{"$f":"SUM(T18,T19)*IF(T$5>'Sup fijo'!$H$52,0,1)","v":0},{"$f":"SUM(U18,U19)*IF(U$5>'Sup fijo'!$H$52,0,1)","v":0},{"$f":"SUM(V18,V19)*IF(V$5>'Sup fijo'!$H$52,0,1)","v":0}]
[null,"Conductores",{"$f":"IF('Sup Personal Directo'!$C$9='Sup Personal Directo'!$Q$1,IF('Sup Personal Directo'!$C$10=100%,('Sup Personal Directo'!D$62*(SUM('Sup Personal Directo'!$C$21,'Sup Personal Directo'!$C$24:$C$26))+'Sup Personal Directo'!D$109+'Sup Personal Directo'!D$57)*'Sup Personal Directo'!D$47,('Sup Personal Directo'!D$62*(SUM('Sup Personal Directo'!$C$21,'Sup Personal Directo'!$C$24,'Sup Personal Directo'!$C$26))+'Sup Personal Directo'!D$109+'Sup Personal Directo'!D$57)*'Sup Personal Directo'!D$47*'Sup Personal Directo'!$C$10+('Sup Personal Directo'!D$57+'Sup Personal Directo'!D$109)*'Sup Personal Directo'!D$47*(1-'Sup Personal Directo'!$C$10)),('Sup Personal Directo'!D$67*(SUM('Sup Personal Directo'!$C$21:$C$22,'Sup Personal Directo'!$C$24:$C$26))+'Sup Personal Directo'!D$109+'Sup Personal Directo'!D$113/12+'Sup Personal Directo'!D$67)*'Sup Personal Directo'!D$52)","v":1115.6908571428576},{"$f":"IF('Sup Personal Directo'!$C$9='Sup Personal Directo'!$Q$1,IF('Sup Personal Directo'!$C$10=100%,('Sup Personal Directo'!E$62*(SUM('Sup Personal Directo'!$C$21,'Sup Personal Directo'!$C$24:$C$26))+'Sup Personal Directo'!E$109+'Sup Personal Directo'!E$57)*'Sup Personal Directo'!E$47,('Sup Personal Directo'!E$62*(SUM('Sup Personal Directo'!$C$21,'Sup Personal Directo'!$C$24,'Sup Personal Directo'!$C$26))+'Sup Personal Directo'!E$109+'Sup Personal Directo'!E$57)*'Sup Personal Directo'!E$47*'Sup Personal Directo'!$C$10+('Sup Personal Directo'!E$57+'Sup Personal Directo'!E$109)*'Sup Personal Directo'!E$47*(1-'Sup Personal Directo'!$C$10)),('Sup Personal Directo'!E$67*(SUM('Sup Personal Directo'!$C$21:$C$22,'Sup Personal Directo'!$C$24:$C$26))+'Sup Personal Directo'!E$109+'Sup Personal Directo'!E$113/12+'Sup Personal Directo'!E$67)*'Sup Personal Directo'!E$52)","v":1142.610246144},{"$f":"IF('Sup Personal Directo'!$C$9='Sup Personal Directo'!$Q$1,IF('Sup Personal Directo'!$C$10=100%,('Sup Personal Directo'!F$62*(SUM('Sup Personal Directo'!$C$21,'Sup Personal Directo'!$C$24:$C$26))+'Sup Personal Directo'!F$109+'Sup Personal Directo'!F$57)*'Sup Personal Directo'!F$47,('Sup Personal Directo'!F$62*(SUM('Sup Personal Directo'!$C$21,'Sup Personal Directo'!$C$24,'Sup Personal Directo'!$C$26))+'Sup Personal Directo'!F$109+'Sup Personal Directo'!F$57)*'Sup Personal Directo'!F$47*'Sup Personal Directo'!$C$10+('Sup Personal Directo'!F$57+'Sup Personal Directo'!F$109)*'Sup Personal Directo'!F$47*(1-'Sup Personal Directo'!$C$10)),('Sup Personal Directo'!F$67*(SUM('Sup Personal Directo'!$C$21:$C$22,'Sup Personal Directo'!$C$24:$C$26))+'Sup Personal Directo'!F$109+'Sup Personal Directo'!F$113/12+'Sup Personal Directo'!F$67)*'Sup Personal Directo'!F$52)","v":1181.6966574440944},{"$f":"IF('Sup Personal Directo'!$C$9='Sup Personal Directo'!$Q$1,IF('Sup Personal Directo'!$C$10=100%,('Sup Personal Directo'!G$62*(SUM('Sup Personal Directo'!$C$21,'Sup Personal Directo'!$C$24:$C$26))+'Sup Personal Directo'!G$109+'Sup Personal Directo'!G$57)*'Sup Personal Directo'!G$47,('Sup Personal Directo'!G$62*(SUM('Sup Personal Directo'!$C$21,'Sup Personal Directo'!$C$24,'Sup Personal Directo'!$C$26))+'Sup Personal Directo'!G$109+'Sup Personal Directo'!G$57)*'Sup Personal Directo'!G$47*'Sup Personal Directo'!$C$10+('Sup Personal Directo'!G$57+'Sup Personal Directo'!G$109)*'Sup Personal Directo'!G$47*(1-'Sup Personal Directo'!$C$10)),('Sup Personal Directo'!G$67*(SUM('Sup Personal Directo'!$C$21:$C$22,'Sup Personal Directo'!$C$24:$C$26))+'Sup Personal Directo'!G$109+'Sup Personal Directo'!G$113/12+'Sup Personal Directo'!G$67)*'Sup Personal Directo'!G$52)","v":1196.2959997002868},{"$f":"IF('Sup Personal Directo'!$C$9='Sup Personal Directo'!$Q$1,IF('Sup Personal Directo'!$C$10=100%,('Sup Personal Directo'!H$62*(SUM('Sup Personal Directo'!$C$21,'Sup Personal Directo'!$C$24:$C$26))+'Sup Personal Directo'!H$109+'Sup Personal Directo'!H$57)*'Sup Personal Directo'!H$47,('Sup Personal Directo'!H$62*(SUM('Sup Personal Directo'!$C$21,'Sup Personal Directo'!$C$24,'Sup Personal Directo'!$C$26))+'Sup Personal Directo'!H$109+'Sup Personal Directo'!H$57)*'Sup Personal Directo'!H$47*'Sup Personal Directo'!$C$10+('Sup Personal Directo'!H$57+'Sup Personal Directo'!H$109)*'Sup Personal Directo'!H$47*(1-'Sup Personal Directo'!$C$10)),('Sup Personal Directo'!H$67*(SUM('Sup Personal Directo'!$C$21:$C$22,'Sup Personal Directo'!$C$24:$C$26))+'Sup Personal Directo'!H$109+'Sup Personal Directo'!H$113/12+'Sup Personal Directo'!H$67)*'Sup Personal Directo'!H$52)","v":1209.1222068906732},{"$f":"IF('Sup Personal Directo'!$C$9='Sup Personal Directo'!$Q$1,IF('Sup Personal Directo'!$C$10=100%,('Sup Personal Directo'!I$62*(SUM('Sup Personal Directo'!$C$21,'Sup Personal Directo'!$C$24:$C$26))+'Sup Personal Directo'!I$109+'Sup Personal Directo'!I$57)*'Sup Personal Directo'!I$47,('Sup Personal Directo'!I$62*(SUM('Sup Personal Directo'!$C$21,'Sup Personal Directo'!$C$24,'Sup Personal Directo'!$C$26))+'Sup Personal Directo'!I$109+'Sup Personal Directo'!I$57)*'Sup Personal Directo'!I$47*'Sup Personal Directo'!$C$10+('Sup Personal Directo'!I$57+'Sup Personal Directo'!I$109)*'Sup Personal Directo'!I$47*(1-'Sup Personal Directo'!$C$10)),('Sup Personal Directo'!I$67*(SUM('Sup Personal Directo'!$C$21:$C$22,'Sup Personal Directo'!$C$24:$C$26))+'Sup Personal Directo'!I$109+'Sup Personal Directo'!I$113/12+'Sup Personal Directo'!I$67)*'Sup Personal Directo'!I$52)","v":1226.9611122822553},{"$f":"IF('Sup Personal Directo'!$C$9='Sup Personal Directo'!$Q$1,IF('Sup Personal Directo'!$C$10=100%,('Sup Personal Directo'!J$62*(SUM('Sup Personal Directo'!$C$21,'Sup Personal Directo'!$C$24:$C$26))+'Sup Personal Directo'!J$109+'Sup Personal Directo'!J$57)*'Sup Personal Directo'!J$47,('Sup Personal Directo'!J$62*(SUM('Sup Personal Directo'!$C$21,'Sup Personal Directo'!$C$24,'Sup Personal Directo'!$C$26))+'Sup Personal Directo'!J$109+'Sup Personal Directo'!J$57)*'Sup Personal Directo'!J$47*'Sup Personal Directo'!$C$10+('Sup Personal Directo'!J$57+'Sup Personal Directo'!J$109)*'Sup Personal Directo'!J$47*(1-'Sup Personal Directo'!$C$10)),('Sup Personal Directo'!J$67*(SUM('Sup Personal Directo'!$C$21:$C$22,'Sup Personal Directo'!$C$24:$C$26))+'Sup Personal Directo'!J$109+'Sup Personal Directo'!J$113/12+'Sup Personal Directo'!J$67)*'Sup Personal Directo'!J$52)","v":1260.7841848624289},{"$f":"IF('Sup Personal Directo'!$C$9='Sup Personal Directo'!$Q$1,IF('Sup Personal Directo'!$C$10=100%,('Sup Personal Directo'!K$62*(SUM('Sup Personal Directo'!$C$21,'Sup Personal Directo'!$C$24:$C$26))+'Sup Personal Directo'!K$109+'Sup Personal Directo'!K$57)*'Sup Personal Directo'!K$47,('Sup Personal Directo'!K$62*(SUM('Sup Personal Directo'!$C$21,'Sup Personal Directo'!$C$24,'Sup Personal Directo'!$C$26))+'Sup Personal Directo'!K$109+'Sup Personal Directo'!K$57)*'Sup Personal Directo'!K$47*'Sup Personal Directo'!$C$10+('Sup Personal Directo'!K$57+'Sup Personal Directo'!K$109)*'Sup Personal Directo'!K$47*(1-'Sup Personal Directo'!$C$10)),('Sup Personal Directo'!K$67*(SUM('Sup Personal Directo'!$C$21:$C$22,'Sup Personal Directo'!$C$24:$C$26))+'Sup Personal Directo'!K$109+'Sup Personal Directo'!K$113/12+'Sup Personal Directo'!K$67)*'Sup Personal Directo'!K$52)","v":1292.9250251312783},{"$f":"IF('Sup Personal Directo'!$C$9='Sup Personal Directo'!$Q$1,IF('Sup Personal Directo'!$C$10=100%,('Sup Personal Directo'!L$62*(SUM('Sup Personal Directo'!$C$21,'Sup Personal Directo'!$C$24:$C$26))+'Sup Personal Directo'!L$109+'Sup Personal Directo'!L$57)*'Sup Personal Directo'!L$47,('Sup Personal Directo'!L$62*(SUM('Sup Personal Directo'!$C$21,'Sup Personal Directo'!$C$24,'Sup Personal Directo'!$C$26))+'Sup Personal Directo'!L$109+'Sup Personal Directo'!L$57)*'Sup Personal Directo'!L$47*'Sup Personal Directo'!$C$10+('Sup Personal Directo'!L$57+'Sup Personal Directo'!L$109)*'Sup Personal Directo'!L$47*(1-'Sup Personal Directo'!$C$10)),('Sup Personal Directo'!L$67*(SUM('Sup Personal Directo'!$C$21:$C$22,'Sup Personal Directo'!$C$24:$C$26))+'Sup Personal Directo'!L$109+'Sup Personal Directo'!L$113/12+'Sup Personal Directo'!L$67)*'Sup Personal Directo'!L$52)","v":1322.2448536023946},{"$f":"IF('Sup Personal Directo'!$C$9='Sup Personal Directo'!$Q$1,IF('Sup Personal Directo'!$C$10=100%,('Sup Personal Directo'!M$62*(SUM('Sup Personal Directo'!$C$21,'Sup Personal Directo'!$C$24:$C$26))+'Sup Personal Directo'!M$109+'Sup Personal Directo'!M$57)*'Sup Personal Directo'!M$47,('Sup Personal Directo'!M$62*(SUM('Sup Personal Directo'!$C$21,'Sup Personal Directo'!$C$24,'Sup Personal Directo'!$C$26))+'Sup Personal Directo'!M$109+'Sup Personal Directo'!M$57)*'Sup Personal Directo'!M$47*'Sup Personal Directo'!$C$10+('Sup Personal Directo'!M$57+'Sup Personal Directo'!M$109)*'Sup Personal Directo'!M$47*(1-'Sup Personal Directo'!$C$10)),('Sup Personal Directo'!M$67*(SUM('Sup Personal Directo'!$C$21:$C$22,'Sup Personal Directo'!$C$24:$C$26))+'Sup Personal Directo'!M$109+'Sup Personal Directo'!M$113/12+'Sup Personal Directo'!M$67)*'Sup Personal Directo'!M$52)","v":1350.6569480882408},{"$f":"IF('Sup Personal Directo'!$C$9='Sup Personal Directo'!$Q$1,IF('Sup Personal Directo'!$C$10=100%,('Sup Personal Directo'!N$62*(SUM('Sup Personal Directo'!$C$21,'Sup Personal Directo'!$C$24:$C$26))+'Sup Personal Directo'!N$109+'Sup Personal Directo'!N$57)*'Sup Personal Directo'!N$47,('Sup Personal Directo'!N$62*(SUM('Sup Personal Directo'!$C$21,'Sup Personal Directo'!$C$24,'Sup Personal Directo'!$C$26))+'Sup Personal Directo'!N$109+'Sup Personal Directo'!N$57)*'Sup Personal Directo'!N$47*'Sup Personal Directo'!$C$10+('Sup Personal Directo'!N$57+'Sup Personal Directo'!N$109)*'Sup Personal Directo'!N$47*(1-'Sup Personal Directo'!$C$10)),('Sup Personal Directo'!N$67*(SUM('Sup Personal Directo'!$C$21:$C$22,'Sup Personal Directo'!$C$24:$C$26))+'Sup Personal Directo'!N$109+'Sup Personal Directo'!N$113/12+'Sup Personal Directo'!N$67)*'Sup Personal Directo'!N$52)","v":1379.2337996785727},{"$f":"IF('Sup Personal Directo'!$C$9='Sup Personal Directo'!$Q$1,IF('Sup Personal Directo'!$C$10=100%,('Sup Personal Directo'!O$62*(SUM('Sup Personal Directo'!$C$21,'Sup Personal Directo'!$C$24:$C$26))+'Sup Personal Directo'!O$109+'Sup Personal Directo'!O$57)*'Sup Personal Directo'!O$47,('Sup Personal Directo'!O$62*(SUM('Sup Personal Directo'!$C$21,'Sup Personal Directo'!$C$24,'Sup Personal Directo'!$C$26))+'Sup Personal Directo'!O$109+'Sup Personal Directo'!O$57)*'Sup Personal Directo'!O$47*'Sup Personal Directo'!$C$10+('Sup Personal Directo'!O$57+'Sup Personal Directo'!O$109)*'Sup Personal Directo'!O$47*(1-'Sup Personal Directo'!$C$10)),('Sup Personal Directo'!O$67*(SUM('Sup Personal Directo'!$C$21:$C$22,'Sup Personal Directo'!$C$24:$C$26))+'Sup Personal Directo'!O$109+'Sup Personal Directo'!O$113/12+'Sup Personal Directo'!O$67)*'Sup Personal Directo'!O$52)","v":1406.1653533584138},{"$f":"IF('Sup Personal Directo'!$C$9='Sup Personal Directo'!$Q$1,IF('Sup Personal Directo'!$C$10=100%,('Sup Personal Directo'!P$62*(SUM('Sup Personal Directo'!$C$21,'Sup Personal Directo'!$C$24:$C$26))+'Sup Personal Directo'!P$109+'Sup Personal Directo'!P$57)*'Sup Personal Directo'!P$47,('Sup Personal Directo'!P$62*(SUM('Sup Personal Directo'!$C$21,'Sup Personal Directo'!$C$24,'Sup Personal Directo'!$C$26))+'Sup Personal Directo'!P$109+'Sup Personal Directo'!P$57)*'Sup Personal Directo'!P$47*'Sup Personal Directo'!$C$10+('Sup Personal Directo'!P$57+'Sup Personal Directo'!P$109)*'Sup Personal Directo'!P$47*(1-'Sup Personal Directo'!$C$10)),('Sup Personal Directo'!P$67*(SUM('Sup Personal Directo'!$C$21:$C$22,'Sup Personal Directo'!$C$24:$C$26))+'Sup Personal Directo'!P$109+'Sup Personal Directo'!P$113/12+'Sup Personal Directo'!P$67)*'Sup Personal Directo'!P$52)","v":1434.8833946149248},{"$f":"IF('Sup Personal Directo'!$C$9='Sup Personal Directo'!$Q$1,IF('Sup Personal Directo'!$C$10=100%,('Sup Personal Directo'!Q$62*(SUM('Sup Personal Directo'!$C$21,'Sup Personal Directo'!$C$24:$C$26))+'Sup Personal Directo'!Q$109+'Sup Personal Directo'!Q$57)*'Sup Personal Directo'!Q$47,('Sup Personal Directo'!Q$62*(SUM('Sup Personal Directo'!$C$21,'Sup Personal Directo'!$C$24,'Sup Personal Directo'!$C$26))+'Sup Personal Directo'!Q$109+'Sup Personal Directo'!Q$57)*'Sup Personal Directo'!Q$47*'Sup Personal Directo'!$C$10+('Sup Personal Directo'!Q$57+'Sup Personal Directo'!Q$109)*'Sup Personal Directo'!Q$47*(1-'Sup Personal Directo'!$C$10)),('Sup Personal Directo'!Q$67*(SUM('Sup Personal Directo'!$C$21:$C$22,'Sup Personal Directo'!$C$24:$C$26))+'Sup Personal Directo'!Q$109+'Sup Personal Directo'!Q$113/12+'Sup Personal Directo'!Q$67)*'Sup Personal Directo'!Q$52)","v":1465.927980734607},{"$f":"IF('Sup Personal Directo'!$C$9='Sup Personal Directo'!$Q$1,IF('Sup Personal Directo'!$C$10=100%,('Sup Personal Directo'!R$62*(SUM('Sup Personal Directo'!$C$21,'Sup Personal Directo'!$C$24:$C$26))+'Sup Personal Directo'!R$109+'Sup Personal Directo'!R$57)*'Sup Personal Directo'!R$47,('Sup Personal Directo'!R$62*(SUM('Sup Personal Directo'!$C$21,'Sup Personal Directo'!$C$24,'Sup Personal Directo'!$C$26))+'Sup Personal Directo'!R$109+'Sup Personal Directo'!R$57)*'Sup Personal Directo'!R$47*'Sup Personal Directo'!$C$10+('Sup Personal Directo'!R$57+'Sup Personal Directo'!R$109)*'Sup Personal Directo'!R$47*(1-'Sup Personal Directo'!$C$10)),('Sup Personal Directo'!R$67*(SUM('Sup Personal Directo'!$C$21:$C$22,'Sup Personal Directo'!$C$24:$C$26))+'Sup Personal Directo'!R$109+'Sup Personal Directo'!R$113/12+'Sup Personal Directo'!R$67)*'Sup Personal Directo'!R$52)","v":1498.9053030740956},{"$f":"IF('Sup Personal Directo'!$C$9='Sup Personal Directo'!$Q$1,IF('Sup Personal Directo'!$C$10=100%,('Sup Personal Directo'!S$62*(SUM('Sup Personal Directo'!$C$21,'Sup Personal Directo'!$C$24:$C$26))+'Sup Personal Directo'!S$109+'Sup Personal Directo'!S$57)*'Sup Personal Directo'!S$47,('Sup Personal Directo'!S$62*(SUM('Sup Personal Directo'!$C$21,'Sup Personal Directo'!$C$24,'Sup Personal Directo'!$C$26))+'Sup Personal Directo'!S$109+'Sup Personal Directo'!S$57)*'Sup Personal Directo'!S$47*'Sup Personal Directo'!$C$10+('Sup Personal Directo'!S$57+'Sup Personal Directo'!S$109)*'Sup Personal Directo'!S$47*(1-'Sup Personal Directo'!$C$10)),('Sup Personal Directo'!S$67*(SUM('Sup Personal Directo'!$C$21:$C$22,'Sup Personal Directo'!$C$24:$C$26))+'Sup Personal Directo'!S$109+'Sup Personal Directo'!S$113/12+'Sup Personal Directo'!S$67)*'Sup Personal Directo'!S$52)","v":1531.6744217581613},{"$f":"IF('Sup Personal Directo'!$C$9='Sup Personal Directo'!$Q$1,IF('Sup Personal Directo'!$C$10=100%,('Sup Personal Directo'!T$62*(SUM('Sup Personal Directo'!$C$21,'Sup Personal Directo'!$C$24:$C$26))+'Sup Personal Directo'!T$109+'Sup Personal Directo'!T$57)*'Sup Personal Directo'!T$47,('Sup Personal Directo'!T$62*(SUM('Sup Personal Directo'!$C$21,'Sup Personal Directo'!$C$24,'Sup Personal Directo'!$C$26))+'Sup Personal Directo'!T$109+'Sup Personal Directo'!T$57)*'Sup Personal Directo'!T$47*'Sup Personal Directo'!$C$10+('Sup Personal Directo'!T$57+'Sup Personal Directo'!T$109)*'Sup Personal Directo'!T$47*(1-'Sup Personal Directo'!$C$10)),('Sup Personal Directo'!T$67*(SUM('Sup Personal Directo'!$C$21:$C$22,'Sup Personal Directo'!$C$24:$C$26))+'Sup Personal Directo'!T$109+'Sup Personal Directo'!T$113/12+'Sup Personal Directo'!T$67)*'Sup Personal Directo'!T$52)","v":1564.4648080663837},{"$f":"IF('Sup Personal Directo'!$C$9='Sup Personal Directo'!$Q$1,IF('Sup Personal Directo'!$C$10=100%,('Sup Personal Directo'!U$62*(SUM('Sup Personal Directo'!$C$21,'Sup Personal Directo'!$C$24:$C$26))+'Sup Personal Directo'!U$109+'Sup Personal Directo'!U$57)*'Sup Personal Directo'!U$47,('Sup Personal Directo'!U$62*(SUM('Sup Personal Directo'!$C$21,'Sup Personal Directo'!$C$24,'Sup Personal Directo'!$C$26))+'Sup Personal Directo'!U$109+'Sup Personal Directo'!U$57)*'Sup Personal Directo'!U$47*'Sup Personal Directo'!$C$10+('Sup Personal Directo'!U$57+'Sup Personal Directo'!U$109)*'Sup Personal Directo'!U$47*(1-'Sup Personal Directo'!$C$10)),('Sup Personal Directo'!U$67*(SUM('Sup Personal Directo'!$C$21:$C$22,'Sup Personal Directo'!$C$24:$C$26))+'Sup Personal Directo'!U$109+'Sup Personal Directo'!U$113/12+'Sup Personal Directo'!U$67)*'Sup Personal Directo'!U$52)","v":1597.7090271411585},{"$f":"IF('Sup Personal Directo'!$C$9='Sup Personal Directo'!$Q$1,IF('Sup Personal Directo'!$C$10=100%,('Sup Personal Directo'!V$62*(SUM('Sup Personal Directo'!$C$21,'Sup Personal Directo'!$C$24:$C$26))+'Sup Personal Directo'!V$109+'Sup Personal Directo'!V$57)*'Sup Personal Directo'!V$47,('Sup Personal Directo'!V$62*(SUM('Sup Personal Directo'!$C$21,'Sup Personal Directo'!$C$24,'Sup Personal Directo'!$C$26))+'Sup Personal Directo'!V$109+'Sup Personal Directo'!V$57)*'Sup Personal Directo'!V$47*'Sup Personal Directo'!$C$10+('Sup Personal Directo'!V$57+'Sup Personal Directo'!V$109)*'Sup Personal Directo'!V$47*(1-'Sup Personal Directo'!$C$10)),('Sup Personal Directo'!V$67*(SUM('Sup Personal Directo'!$C$21:$C$22,'Sup Personal Directo'!$C$24:$C$26))+'Sup Personal Directo'!V$109+'Sup Personal Directo'!V$113/12+'Sup Personal Directo'!V$67)*'Sup Personal Directo'!V$52)","v":1631.6121017880287},{"$f":"IF('Sup Personal Directo'!$C$9='Sup Personal Directo'!$Q$1,IF('Sup Personal Directo'!$C$10=100%,('Sup Personal Directo'!W$62*(SUM('Sup Personal Directo'!$C$21,'Sup Personal Directo'!$C$24:$C$26))+'Sup Personal Directo'!W$109+'Sup Personal Directo'!W$57)*'Sup Personal Directo'!W$47,('Sup Personal Directo'!W$62*(SUM('Sup Personal Directo'!$C$21,'Sup Personal Directo'!$C$24,'Sup Personal Directo'!$C$26))+'Sup Personal Directo'!W$109+'Sup Personal Directo'!W$57)*'Sup Personal Directo'!W$47*'Sup Personal Directo'!$C$10+('Sup Personal Directo'!W$57+'Sup Personal Directo'!W$109)*'Sup Personal Directo'!W$47*(1-'Sup Personal Directo'!$C$10)),('Sup Personal Directo'!W$67*(SUM('Sup Personal Directo'!$C$21:$C$22,'Sup Personal Directo'!$C$24:$C$26))+'Sup Personal Directo'!W$109+'Sup Personal Directo'!W$113/12+'Sup Personal Directo'!W$67)*'Sup Personal Directo'!W$52)","v":1666.2472509532638}]
[null,"Ayudantes",{"$f":"IF('Sup Personal Directo'!$C$11='Sup Personal Directo'!$Q$1,IF('Sup Personal Directo'!$C$12=100%,('Sup Personal Directo'!D$93*(SUM('Sup Personal Directo'!$C$21,'Sup Personal Directo'!$C$24:$C$26))+'Sup Personal Directo'!D$109+'Sup Personal Directo'!D$88)*'Sup Personal Directo'!D$78,('Sup Personal Directo'!D$93*(SUM('Sup Personal Directo'!$C$21,'Sup Personal Directo'!$C$24,'Sup Personal Directo'!$C$24))+'Sup Personal Directo'!D$109+'Sup Personal Directo'!D$88)*'Sup Personal Directo'!D$78*'Sup Personal Directo'!$C$12+('Sup Personal Directo'!D$88+'Sup Personal Directo'!D$109)*'Sup Personal Directo'!D$78*(1-'Sup Personal Directo'!$C$12)),('Sup Personal Directo'!D$98*(SUM('Sup Personal Directo'!$C$21:$C$22,'Sup Personal Directo'!$C$24:$C$26))+'Sup Personal Directo'!D$109+'Sup Personal Directo'!D$113/12+'Sup Personal Directo'!D$98)*'Sup Personal Directo'!D$83)","v":890.74285714285725},{"$f":"IF('Sup Personal Directo'!$C$11='Sup Personal Directo'!$Q$1,IF('Sup Personal Directo'!$C$12=100%,('Sup Personal Directo'!E$93*(SUM('Sup Personal Directo'!$C$21,'Sup Personal Directo'!$C$24:$C$26))+'Sup Personal Directo'!E$109+'Sup Personal Directo'!E$88)*'Sup Personal Directo'!E$78,('Sup Personal Directo'!E$93*(SUM('Sup Personal Directo'!$C$21,'Sup Personal Directo'!$C$24,'Sup Personal Directo'!$C$24))+'Sup Personal Directo'!E$109+'Sup Personal Directo'!E$88)*'Sup Personal Directo'!E$78*'Sup Personal Directo'!$C$12+('Sup Personal Directo'!E$88+'Sup Personal Directo'!E$109)*'Sup Personal Directo'!E$78*(1-'Sup Personal Directo'!$C$12)),('Sup Personal Directo'!E$98*(SUM('Sup Personal Directo'!$C$21:$C$22,'Sup Personal Directo'!$C$24:$C$26))+'Sup Personal Directo'!E$109+'Sup Personal Directo'!E$113/12+'Sup Personal Directo'!E$98)*'Sup Personal Directo'!E$83)","v":912.23470080000004},{"$f":"IF('Sup Personal Directo'!$C$11='Sup Personal Directo'!$Q$1,IF('Sup Personal Directo'!$C$12=100%,('Sup Personal Directo'!F$93*(SUM('Sup Personal Directo'!$C$21,'Sup Personal Directo'!$C$24:$C$26))+'Sup Personal Directo'!F$109+'Sup Personal Directo'!F$88)*'Sup Personal Directo'!F$78,('Sup Personal Directo'!F$93*(SUM('Sup Personal Directo'!$C$21,'Sup Personal Directo'!$C$24,'Sup Personal Directo'!$C$24))+'Sup Personal Directo'!F$109+'Sup Personal Directo'!F$88)*'Sup Personal Directo'!F$78*'Sup Personal Directo'!$C$12+('Sup Personal Directo'!F$88+'Sup Personal Directo'!F$109)*'Sup Personal Directo'!F$78*(1-'Sup Personal Directo'!$C$12)),('Sup Personal Directo'!F$98*(SUM('Sup Personal Directo'!$C$21:$C$22,'Sup Personal Directo'!$C$24:$C$26))+'Sup Personal Directo'!F$109+'Sup Personal Directo'!F$113/12+'Sup Personal Directo'!F$98)*'Sup Personal Directo'!F$83)","v":943.44042544496665},{"$f":"IF('Sup Personal Directo'!$C$11='Sup Personal Directo'!$Q$1,IF('Sup Personal Directo'!$C$12=100%,('Sup Personal Directo'!G$93*(SUM('Sup Personal Directo'!$C$21,'Sup Personal Directo'!$C$24:$C$26))+'Sup Personal Directo'!G$109+'Sup Personal Directo'!G$88)*'Sup Personal Directo'!G$78,('Sup Personal Directo'!G$93*(SUM('Sup Personal Directo'!$C$21,'Sup Personal Directo'!$C$24,'Sup Personal Directo'!$C$24))+'Sup Personal Directo'!G$109+'Sup Personal Directo'!G$88)*'Sup Personal Directo'!G$78*'Sup Personal Directo'!$C$12+('Sup Personal Directo'!G$88+'Sup Personal Directo'!G$109)*'Sup Personal Directo'!G$78*(1-'Sup Personal Directo'!$C$12)),('Sup Personal Directo'!G$98*(SUM('Sup Personal Directo'!$C$21:$C$22,'Sup Personal Directo'!$C$24:$C$26))+'Sup Personal Directo'!G$109+'Sup Personal Directo'!G$113/12+'Sup Personal Directo'!G$98)*'Sup Personal Directo'!G$83)","v":955.09621678755207},{"$f":"IF('Sup Personal Directo'!$C$11='Sup Personal Directo'!$Q$1,IF('Sup Personal Directo'!$C$12=100%,('Sup Personal Directo'!H$93*(SUM('Sup Personal Directo'!$C$21,'Sup Personal Directo'!$C$24:$C$26))+'Sup Personal Directo'!H$109+'Sup Personal Directo'!H$88)*'Sup Personal Directo'!H$78,('Sup Personal Directo'!H$93*(SUM('Sup Personal Directo'!$C$21,'Sup Personal Directo'!$C$24,'Sup Personal Directo'!$C$24))+'Sup Personal Directo'!H$109+'Sup Personal Directo'!H$88)*'Sup Personal Directo'!H$78*'Sup Personal Directo'!$C$12+('Sup Personal Directo'!H$88+'Sup Personal Directo'!H$109)*'Sup Personal Directo'!H$78*(1-'Sup Personal Directo'!$C$12)),('Sup Personal Directo'!H$98*(SUM('Sup Personal Directo'!$C$21:$C$22,'Sup Personal Directo'!$C$24:$C$26))+'Sup Personal Directo'!H$109+'Sup Personal Directo'!H$113/12+'Sup Personal Directo'!H$98)*'Sup Personal Directo'!H$83)","v":965.33637638546134},{"$f":"IF('Sup Personal Directo'!$C$11='Sup Personal Directo'!$Q$1,IF('Sup Personal Directo'!$C$12=100%,('Sup Personal Directo'!I$93*(SUM('Sup Personal Directo'!$C$21,'Sup Personal Directo'!$C$24:$C$26))+'Sup Personal Directo'!I$109+'Sup Personal Directo'!I$88)*'Sup Personal Directo'!I$78,('Sup Personal Directo'!I$93*(SUM('Sup Personal Directo'!$C$21,'Sup Personal Directo'!$C$24,'Sup Personal Directo'!$C$24))+'Sup Personal Directo'!I$109+'Sup Personal Directo'!I$88)*'Sup Personal Directo'!I$78*'Sup Personal Directo'!$C$12+('Sup Personal Directo'!I$88+'Sup Personal Directo'!I$109)*'Sup Personal Directo'!I$78*(1-'Sup Personal Directo'!$C$12)),('Sup Personal Directo'!I$98*(SUM('Sup Personal Directo'!$C$21:$C$22,'Sup Personal Directo'!$C$24:$C$26))+'Sup Personal Directo'!I$109+'Sup Personal Directo'!I$113/12+'Sup Personal Directo'!I$98)*'Sup Personal Directo'!I$83)","v":979.57856314810192},{"$f":"IF('Sup Personal Directo'!$C$11='Sup Personal Directo'!$Q$1,IF('Sup Personal Directo'!$C$12=100%,('Sup Personal Directo'!J$93*(SUM('Sup Personal Directo'!$C$21,'Sup Personal Directo'!$C$24:$C$26))+'Sup Personal Directo'!J$109+'Sup Personal Directo'!J$88)*'Sup Personal Directo'!J$78,('Sup Personal Directo'!J$93*(SUM('Sup Personal Directo'!$C$21,'Sup Personal Directo'!$C$24,'Sup Personal Directo'!$C$24))+'Sup Personal Directo'!J$109+'Sup Personal Directo'!J$88)*'Sup Personal Directo'!J$78*'Sup Personal Directo'!$C$12+('Sup Personal Directo'!J$88+'Sup Personal Directo'!J$109)*'Sup Personal Directo'!J$78*(1-'Sup Personal Directo'!$C$12)),('Sup Personal Directo'!J$98*(SUM('Sup Personal Directo'!$C$21:$C$22,'Sup Personal Directo'!$C$24:$C$26))+'Sup Personal Directo'!J$109+'Sup Personal Directo'!J$113/12+'Sup Personal Directo'!J$98)*'Sup Personal Directo'!J$83)","v":1006.5821547922667},{"$f":"IF('Sup Personal Directo'!$C$11='Sup Personal Directo'!$Q$1,IF('Sup Personal Directo'!$C$12=100%,('Sup Personal Directo'!K$93*(SUM('Sup Personal Directo'!$C$21,'Sup Personal Directo'!$C$24:$C$26))+'Sup Personal Directo'!K$109+'Sup Personal Directo'!K$88)*'Sup Personal Directo'!K$78,('Sup Personal Directo'!K$93*(SUM('Sup Personal Directo'!$C$21,'Sup Personal Directo'!$C$24,'Sup Personal Directo'!$C$24))+'Sup Personal Directo'!K$109+'Sup Personal Directo'!K$88)*'Sup Personal Directo'!K$78*'Sup Personal Directo'!$C$12+('Sup Personal Directo'!K$88+'Sup Personal Directo'!K$109)*'Sup Personal Directo'!K$78*(1-'Sup Personal Directo'!$C$12)),('Sup Personal Directo'!K$98*(SUM('Sup Personal Directo'!$C$21:$C$22,'Sup Personal Directo'!$C$24:$C$26))+'Sup Personal Directo'!K$109+'Sup Personal Directo'!K$113/12+'Sup Personal Directo'!K$98)*'Sup Personal Directo'!K$83)","v":1032.2426894365703},{"$f":"IF('Sup Personal Directo'!$C$11='Sup Personal Directo'!$Q$1,IF('Sup Personal Directo'!$C$12=100%,('Sup Personal Directo'!L$93*(SUM('Sup Personal Directo'!$C$21,'Sup Personal Directo'!$C$24:$C$26))+'Sup Personal Directo'!L$109+'Sup Personal Directo'!L$88)*'Sup Personal Directo'!L$78,('Sup Personal Directo'!L$93*(SUM('Sup Personal Directo'!$C$21,'Sup Personal Directo'!$C$24,'Sup Personal Directo'!$C$24))+'Sup Personal Directo'!L$109+'Sup Personal Directo'!L$88)*'Sup Personal Directo'!L$78*'Sup Personal Directo'!$C$12+('Sup Personal Directo'!L$88+'Sup Personal Directo'!L$109)*'Sup Personal Directo'!L$78*(1-'Sup Personal Directo'!$C$12)),('Sup Personal Directo'!L$98*(SUM('Sup Personal Directo'!$C$21:$C$22,'Sup Personal Directo'!$C$24:$C$26))+'Sup Personal Directo'!L$109+'Sup Personal Directo'!L$113/12+'Sup Personal Directo'!L$98)*'Sup Personal Directo'!L$83)","v":1055.6509907738975},{"$f":"IF('Sup Personal Directo'!$C$11='Sup Personal Directo'!$Q$1,IF('Sup Personal Directo'!$C$12=100%,('Sup Personal Directo'!M$93*(SUM('Sup Personal Directo'!$C$21,'Sup Personal Directo'!$C$24:$C$26))+'Sup Personal Directo'!M$109+'Sup Personal Directo'!M$88)*'Sup Personal Directo'!M$78,('Sup Personal Directo'!M$93*(SUM('Sup Personal Directo'!$C$21,'Sup Personal Directo'!$C$24,'Sup Personal Directo'!$C$24))+'Sup Personal Directo'!M$109+'Sup Personal Directo'!M$88)*'Sup Personal Directo'!M$78*'Sup Personal Directo'!$C$12+('Sup Personal Directo'!M$88+'Sup Personal Directo'!M$109)*'Sup Personal Directo'!M$78*(1-'Sup Personal Directo'!$C$12)),('Sup Personal Directo'!M$98*(SUM('Sup Personal Directo'!$C$21:$C$22,'Sup Personal Directo'!$C$24:$C$26))+'Sup Personal Directo'!M$109+'Sup Personal Directo'!M$113/12+'Sup Personal Directo'!M$98)*'Sup Personal Directo'!M$83)","v":1078.3345774123557},{"$f":"IF('Sup Personal Directo'!$C$11='Sup Personal Directo'!$Q$1,IF('Sup Personal Directo'!$C$12=100%,('Sup Personal Directo'!N$93*(SUM('Sup Personal Directo'!$C$21,'Sup Personal Directo'!$C$24:$C$26))+'Sup Personal Directo'!N$109+'Sup Personal Directo'!N$88)*'Sup Personal Directo'!N$78,('Sup Personal Directo'!N$93*(SUM('Sup Personal Directo'!$C$21,'Sup Personal Directo'!$C$24,'Sup Personal Directo'!$C$24))+'Sup Personal Directo'!N$109+'Sup Personal Directo'!N$88)*'Sup Personal Directo'!N$78*'Sup Personal Directo'!$C$12+('Sup Personal Directo'!N$88+'Sup Personal Directo'!N$109)*'Sup Personal Directo'!N$78*(1-'Sup Personal Directo'!$C$12)),('Sup Personal Directo'!N$98*(SUM('Sup Personal Directo'!$C$21:$C$22,'Sup Personal Directo'!$C$24:$C$26))+'Sup Personal Directo'!N$109+'Sup Personal Directo'!N$113/12+'Sup Personal Directo'!N$98)*'Sup Personal Directo'!N$83)","v":1101.1497024720927},{"$f":"IF('Sup Personal Directo'!$C$11='Sup Personal Directo'!$Q$1,IF('Sup Personal Directo'!$C$12=100%,('Sup Personal Directo'!O$93*(SUM('Sup Personal Directo'!$C$21,'Sup Personal Directo'!$C$24:$C$26))+'Sup Personal Directo'!O$109+'Sup Personal Directo'!O$88)*'Sup Personal Directo'!O$78,('Sup Personal Directo'!O$93*(SUM('Sup Personal Directo'!$C$21,'Sup Personal Directo'!$C$24,'Sup Personal Directo'!$C$24))+'Sup Personal Directo'!O$109+'Sup Personal Directo'!O$88)*'Sup Personal Directo'!O$78*'Sup Personal Directo'!$C$12+('Sup Personal Directo'!O$88+'Sup Personal Directo'!O$109)*'Sup Personal Directo'!O$78*(1-'Sup Personal Directo'!$C$12)),('Sup Personal Directo'!O$98*(SUM('Sup Personal Directo'!$C$21:$C$22,'Sup Personal Directo'!$C$24:$C$26))+'Sup Personal Directo'!O$109+'Sup Personal Directo'!O$113/12+'Sup Personal Directo'!O$98)*'Sup Personal Directo'!O$83)","v":1122.6512581391444},{"$f":"IF('Sup Personal Directo'!$C$11='Sup Personal Directo'!$Q$1,IF('Sup Personal Directo'!$C$12=100%,('Sup Personal Directo'!P$93*(SUM('Sup Personal Directo'!$C$21,'Sup Personal Directo'!$C$24:$C$26))+'Sup Personal Directo'!P$109+'Sup Personal Directo'!P$88)*'Sup Personal Directo'!P$78,('Sup Personal Directo'!P$93*(SUM('Sup Personal Directo'!$C$21,'Sup Personal Directo'!$C$24,'Sup Personal Directo'!$C$24))+'Sup Personal Directo'!P$109+'Sup Personal Directo'!P$88)*'Sup Personal Directo'!P$78*'Sup Personal Directo'!$C$12+('Sup Personal Directo'!P$88+'Sup Personal Directo'!P$109)*'Sup Personal Directo'!P$78*(1-'Sup Personal Directo'!$C$12)),('Sup Personal Directo'!P$98*(SUM('Sup Personal Directo'!$C$21:$C$22,'Sup Personal Directo'!$C$24:$C$26))+'Sup Personal Directo'!P$109+'Sup Personal Directo'!P$113/12+'Sup Personal Directo'!P$98)*'Sup Personal Directo'!P$83)","v":1145.5791058996604},{"$f":"IF('Sup Personal Directo'!$C$11='Sup Personal Directo'!$Q$1,IF('Sup Personal Directo'!$C$12=100%,('Sup Personal Directo'!Q$93*(SUM('Sup Personal Directo'!$C$21,'Sup Personal Directo'!$C$24:$C$26))+'Sup Personal Directo'!Q$109+'Sup Personal Directo'!Q$88)*'Sup Personal Directo'!Q$78,('Sup Personal Directo'!Q$93*(SUM('Sup Personal Directo'!$C$21,'Sup Personal Directo'!$C$24,'Sup Personal Directo'!$C$24))+'Sup Personal Directo'!Q$109+'Sup Personal Directo'!Q$88)*'Sup Personal Directo'!Q$78*'Sup Personal Directo'!$C$12+('Sup Personal Directo'!Q$88+'Sup Personal Directo'!Q$109)*'Sup Personal Directo'!Q$78*(1-'Sup Personal Directo'!$C$12)),('Sup Personal Directo'!Q$98*(SUM('Sup Personal Directo'!$C$21:$C$22,'Sup Personal Directo'!$C$24:$C$26))+'Sup Personal Directo'!Q$109+'Sup Personal Directo'!Q$113/12+'Sup Personal Directo'!Q$98)*'Sup Personal Directo'!Q$83)","v":1170.3644155237605},{"$f":"IF('Sup Personal Directo'!$C$11='Sup Personal Directo'!$Q$1,IF('Sup Personal Directo'!$C$12=100%,('Sup Personal Directo'!R$93*(SUM('Sup Personal Directo'!$C$21,'Sup Personal Directo'!$C$24:$C$26))+'Sup Personal Directo'!R$109+'Sup Personal Directo'!R$88)*'Sup Personal Directo'!R$78,('Sup Personal Directo'!R$93*(SUM('Sup Personal Directo'!$C$21,'Sup Personal Directo'!$C$24,'Sup Personal Directo'!$C$24))+'Sup Personal Directo'!R$109+'Sup Personal Directo'!R$88)*'Sup Personal Directo'!R$78*'Sup Personal Directo'!$C$12+('Sup Personal Directo'!R$88+'Sup Personal Directo'!R$109)*'Sup Personal Directo'!R$78*(1-'Sup Personal Directo'!$C$12)),('Sup Personal Directo'!R$98*(SUM('Sup Personal Directo'!$C$21:$C$22,'Sup Personal Directo'!$C$24:$C$26))+'Sup Personal Directo'!R$109+'Sup Personal Directo'!R$113/12+'Sup Personal Directo'!R$98)*'Sup Personal Directo'!R$83)","v":1196.6927789172016},{"$f":"IF('Sup Personal Directo'!$C$11='Sup Personal Directo'!$Q$1,IF('Sup Personal Directo'!$C$12=100%,('Sup Personal Directo'!S$93*(SUM('Sup Personal Directo'!$C$21,'Sup Personal Directo'!$C$24:$C$26))+'Sup Personal Directo'!S$109+'Sup Personal Directo'!S$88)*'Sup Personal Directo'!S$78,('Sup Personal Directo'!S$93*(SUM('Sup Personal Directo'!$C$21,'Sup Personal Directo'!$C$24,'Sup Personal Directo'!$C$24))+'Sup Personal Directo'!S$109+'Sup Personal Directo'!S$88)*'Sup Personal Directo'!S$78*'Sup Personal Directo'!$C$12+('Sup Personal Directo'!S$88+'Sup Personal Directo'!S$109)*'Sup Personal Directo'!S$78*(1-'Sup Personal Directo'!$C$12)),('Sup Personal Directo'!S$98*(SUM('Sup Personal Directo'!$C$21:$C$22,'Sup Personal Directo'!$C$24:$C$26))+'Sup Personal Directo'!S$109+'Sup Personal Directo'!S$113/12+'Sup Personal Directo'!S$98)*'Sup Personal Directo'!S$83)","v":1222.8549171258512},{"$f":"IF('Sup Personal Directo'!$C$11='Sup Personal Directo'!$Q$1,IF('Sup Personal Directo'!$C$12=100%,('Sup Personal Directo'!T$93*(SUM('Sup Personal Directo'!$C$21,'Sup Personal Directo'!$C$24:$C$26))+'Sup Personal Directo'!T$109+'Sup Personal Directo'!T$88)*'Sup Personal Directo'!T$78,('Sup Personal Directo'!T$93*(SUM('Sup Personal Directo'!$C$21,'Sup Personal Directo'!$C$24,'Sup Personal Directo'!$C$24))+'Sup Personal Directo'!T$109+'Sup Personal Directo'!T$88)*'Sup Personal Directo'!T$78*'Sup Personal Directo'!$C$12+('Sup Personal Directo'!T$88+'Sup Personal Directo'!T$109)*'Sup Personal Directo'!T$78*(1-'Sup Personal Directo'!$C$12)),('Sup Personal Directo'!T$98*(SUM('Sup Personal Directo'!$C$21:$C$22,'Sup Personal Directo'!$C$24:$C$26))+'Sup Personal Directo'!T$109+'Sup Personal Directo'!T$113/12+'Sup Personal Directo'!T$98)*'Sup Personal Directo'!T$83)","v":1249.0340349343467},{"$f":"IF('Sup Personal Directo'!$C$11='Sup Personal Directo'!$Q$1,IF('Sup Personal Directo'!$C$12=100%,('Sup Personal Directo'!U$93*(SUM('Sup Personal Directo'!$C$21,'Sup Personal Directo'!$C$24:$C$26))+'Sup Personal Directo'!U$109+'Sup Personal Directo'!U$88)*'Sup Personal Directo'!U$78,('Sup Personal Directo'!U$93*(SUM('Sup Personal Directo'!$C$21,'Sup Personal Directo'!$C$24,'Sup Personal Directo'!$C$24))+'Sup Personal Directo'!U$109+'Sup Personal Directo'!U$88)*'Sup Personal Directo'!U$78*'Sup Personal Directo'!$C$12+('Sup Personal Directo'!U$88+'Sup Personal Directo'!U$109)*'Sup Personal Directo'!U$78*(1-'Sup Personal Directo'!$C$12)),('Sup Personal Directo'!U$98*(SUM('Sup Personal Directo'!$C$21:$C$22,'Sup Personal Directo'!$C$24:$C$26))+'Sup Personal Directo'!U$109+'Sup Personal Directo'!U$113/12+'Sup Personal Directo'!U$98)*'Sup Personal Directo'!U$83)","v":1275.5754827669307},{"$f":"IF('Sup Personal Directo'!$C$11='Sup Personal Directo'!$Q$1,IF('Sup Personal Directo'!$C$12=100%,('Sup Personal Directo'!V$93*(SUM('Sup Personal Directo'!$C$21,'Sup Personal Directo'!$C$24:$C$26))+'Sup Personal Directo'!V$109+'Sup Personal Directo'!V$88)*'Sup Personal Directo'!V$78,('Sup Personal Directo'!V$93*(SUM('Sup Personal Directo'!$C$21,'Sup Personal Directo'!$C$24,'Sup Personal Directo'!$C$24))+'Sup Personal Directo'!V$109+'Sup Personal Directo'!V$88)*'Sup Personal Directo'!V$78*'Sup Personal Directo'!$C$12+('Sup Personal Directo'!V$88+'Sup Personal Directo'!V$109)*'Sup Personal Directo'!V$78*(1-'Sup Personal Directo'!$C$12)),('Sup Personal Directo'!V$98*(SUM('Sup Personal Directo'!$C$21:$C$22,'Sup Personal Directo'!$C$24:$C$26))+'Sup Personal Directo'!V$109+'Sup Personal Directo'!V$113/12+'Sup Personal Directo'!V$98)*'Sup Personal Directo'!V$83)","v":1302.642946288337},{"$f":"IF('Sup Personal Directo'!$C$11='Sup Personal Directo'!$Q$1,IF('Sup Personal Directo'!$C$12=100%,('Sup Personal Directo'!W$93*(SUM('Sup Personal Directo'!$C$21,'Sup Personal Directo'!$C$24:$C$26))+'Sup Personal Directo'!W$109+'Sup Personal Directo'!W$88)*'Sup Personal Directo'!W$78,('Sup Personal Directo'!W$93*(SUM('Sup Personal Directo'!$C$21,'Sup Personal Directo'!$C$24,'Sup Personal Directo'!$C$24))+'Sup Personal Directo'!W$109+'Sup Personal Directo'!W$88)*'Sup Personal Directo'!W$78*'Sup Personal Directo'!$C$12+('Sup Personal Directo'!W$88+'Sup Personal Directo'!W$109)*'Sup Personal Directo'!W$78*(1-'Sup Personal Directo'!$C$12)),('Sup Personal Directo'!W$98*(SUM('Sup Personal Directo'!$C$21:$C$22,'Sup Personal Directo'!$C$24:$C$26))+'Sup Personal Directo'!W$109+'Sup Personal Directo'!W$113/12+'Sup Personal Directo'!W$98)*'Sup Personal Directo'!W$83)","v":1330.2948818827685}]
[]
[null,{"$f":"+'Sup Personal Directo'!$B$48","v":"Intracantonal Combinado"}]
[null,"Costo año Sin SITP-Q (USD)",{"$f":"+C24*12","v":24077.204571428578},24658.139363328002,25501.644994668735,25816.706597854063,26093.502999313612,26478.476105164289,27208.396075856344,27902.012574814184,28534.750132515506,29147.898306007155,29764.602025807988,30345.7993379707,0,0,0,0,0,0,0,0]
[null,"Costo año Con SITP-Q (USD)",{"$f":"C24*12","v":24077.204571428578},{"$f":"D25*12","v":13711.322953728},{"$f":"E25*12","v":14180.359889329133},{"$f":"F25*12","v":14355.551996403441},14509.466482688078,14723.533347387063,15129.410218349147,15515.100301575339,15866.938243228735,16207.88337705889,16550.805596142873,16873.984240300964,17218.600735379099,17591.135768815286,17986.863636889146,18380.093061097934,18773.577696796605,19172.508325693903,19579.345221456344,19994.967011439167]
[null,"Costo mes",{"$f":"SUM(C25,C26)*IF(C$5>'Sup fijo'!$H$53,0,1)","v":2006.4337142857148},{"$f":"SUM(D25,D26)*IF(D$5>'Sup fijo'!$H$53,0,1)","v":2054.8449469440002},{"$f":"SUM(E25,E26)*IF(E$5>'Sup fijo'!$H$53,0,1)","v":2125.1370828890613},{"$f":"SUM(F25,F26)*IF(F$5>'Sup fijo'!$H$53,0,1)","v":2151.3922164878386},{"$f":"SUM(G25,G26)*IF(G$5>'Sup fijo'!$H$53,0,1)","v":2174.4585832761345},{"$f":"SUM(H25,H26)*IF(H$5>'Sup fijo'!$H$53,0,1)","v":2206.5396754303574},{"$f":"SUM(I25,I26)*IF(I$5>'Sup fijo'!$H$53,0,1)","v":2267.3663396546954},{"$f":"SUM(J25,J26)*IF(J$5>'Sup fijo'!$H$53,0,1)","v":2325.1677145678486},{"$f":"SUM(K25,K26)*IF(K$5>'Sup fijo'!$H$53,0,1)","v":2377.8958443762922},{"$f":"SUM(L25,L26)*IF(L$5>'Sup fijo'!$H$53,0,1)","v":2428.9915255005963},{"$f":"SUM(M25,M26)*IF(M$5>'Sup fijo'!$H$53,0,1)","v":2480.3835021506657},{"$f":"SUM(N25,N26)*IF(N$5>'Sup fijo'!$H$53,0,1)","v":2528.8166114975584},{"$f":"SUM(O25,O26)*IF(O$5>'Sup fijo'!$H$53,0,1)","v":0},{"$f":"SUM(P25,P26)*IF(P$5>'Sup fijo'!$H$53,0,1)","v":0},{"$f":"SUM(Q25,Q26)*IF(Q$5>'Sup fijo'!$H$53,0,1)","v":0},{"$f":"SUM(R25,R26)*IF(R$5>'Sup fijo'!$H$53,0,1)","v":0},{"$f":"SUM(S25,S26)*IF(S$5>'Sup fijo'!$H$53,0,1)","v":0},{"$f":"SUM(T25,T26)*IF(T$5>'Sup fijo'!$H$53,0,1)","v":0},{"$f":"SUM(U25,U26)*IF(U$5>'Sup fijo'!$H$53,0,1)","v":0},{"$f":"SUM(V25,V26)*IF(V$5>'Sup fijo'!$H$53,0,1)","v":0}]
[null,"Conductores",{"$f":"IF('Sup Personal Directo'!$C$9='Sup Personal Directo'!$Q$1,IF('Sup Personal Directo'!$C$10=100%,('Sup Personal Directo'!D$63*(SUM('Sup Personal Directo'!$C$21,'Sup Personal Directo'!$C$24:$C$26))+'Sup Personal Directo'!D$110+'Sup Personal Directo'!D$58)*'Sup Personal Directo'!D$48,('Sup Personal Directo'!D$63*(SUM('Sup Personal Directo'!$C$21,'Sup Personal Directo'!$C$24,'Sup Personal Directo'!$C$26))+'Sup Personal Directo'!D$110+'Sup Personal Directo'!D$58)*'Sup Personal Directo'!D$48*'Sup Personal Directo'!$C$10+('Sup Personal Directo'!D$58+'Sup Personal Directo'!D$110)*'Sup Personal Directo'!D$48*(1-'Sup Personal Directo'!$C$10)),('Sup Personal Directo'!D$68*(SUM('Sup Personal Directo'!$C$21:$C$22,'Sup Personal Directo'!$C$24:$C$26))+'Sup Personal Directo'!D$110+'Sup Personal Directo'!D$113/12+'Sup Personal Directo'!D$68)*'Sup Personal Directo'!D$53)","v":1115.6908571428576},{"$f":"IF('Sup Personal Directo'!$C$9='Sup Personal Directo'!$Q$1,IF('Sup Personal Directo'!$C$10=100%,('Sup Personal Directo'!E$63*(SUM('Sup Personal Directo'!$C$21,'Sup Personal Directo'!$C$24:$C$26))+'Sup Personal Directo'!E$110+'Sup Personal Directo'!E$58)*'Sup Personal Directo'!E$48,('Sup Personal Directo'!E$63*(SUM('Sup Personal Directo'!$C$21,'Sup Personal Directo'!$C$24,'Sup Personal Directo'!$C$26))+'Sup Personal Directo'!E$110+'Sup Personal Directo'!E$58)*'Sup Personal Directo'!E$48*'Sup Personal Directo'!$C$10+('Sup Personal Directo'!E$58+'Sup Personal Directo'!E$110)*'Sup Personal Directo'!E$48*(1-'Sup Personal Directo'!$C$10)),('Sup Personal Directo'!E$68*(SUM('Sup Personal Directo'!$C$21:$C$22,'Sup Personal Directo'!$C$24:$C$26))+'Sup Personal Directo'!E$110+'Sup Personal Directo'!E$113/12+'Sup Personal Directo'!E$68)*'Sup Personal Directo'!E$53)","v":1142.610246144},{"$f":"IF('Sup Personal Directo'!$C$9='Sup Personal Directo'!$Q$1,IF('Sup Personal Directo'!$C$10=100%,('Sup Personal Directo'!F$63*(SUM('Sup Personal Directo'!$C$21,'Sup Personal Directo'!$C$24:$C$26))+'Sup Personal Directo'!F$110+'Sup Personal Directo'!F$58)*'Sup Personal Directo'!F$48,('Sup Personal Directo'!F$63*(SUM('Sup Personal Directo'!$C$21,'Sup Personal Directo'!$C$24,'Sup Personal Directo'!$C$26))+'Sup Personal Directo'!F$110+'Sup Personal Directo'!F$58)*'Sup Personal Directo'!F$48*'Sup Personal Directo'!$C$10+('Sup Personal Directo'!F$58+'Sup Personal Directo'!F$110)*'Sup Personal Directo'!F$48*(1-'Sup Personal Directo'!$C$10)),('Sup Personal Directo'!F$68*(SUM('Sup Personal Directo'!$C$21:$C$22,'Sup Personal Directo'!$C$24:$C$26))+'Sup Personal Directo'!F$110+'Sup Personal Directo'!F$113/12+'Sup Personal Directo'!F$68)*'Sup Personal Directo'!F$53)","v":1181.6966574440944},{"$f":"IF('Sup Personal Directo'!$C$9='Sup Personal Directo'!$Q$1,IF('Sup Personal Directo'!$C$10=100%,('Sup Personal Directo'!G$63*(SUM('Sup Personal Directo'!$C$21,'Sup Personal Directo'!$C$24:$C$26))+'Sup Personal Directo'!G$110+'Sup Personal Directo'!G$58)*'Sup Personal Directo'!G$48,('Sup Personal Directo'!G$63*(SUM('Sup Personal Directo'!$C$21,'Sup Personal Directo'!$C$24,'Sup Personal Directo'!$C$26))+'Sup Personal Directo'!G$110+'Sup Personal Directo'!G$58)*'Sup Personal Directo'!G$48*'Sup Personal Directo'!$C$10+('Sup Personal Directo'!G$58+'Sup Personal Directo'!G$110)*'Sup Personal Directo'!G$48*(1-'Sup Personal Directo'!$C$10)),('Sup Personal Directo'!G$68*(SUM('Sup Personal Directo'!$C$21:$C$22,'Sup Personal Directo'!$C$24:$C$26))+'Sup Personal Directo'!G$110+'Sup Personal Directo'!G$113/12+'Sup Personal Directo'!G$68)*'Sup Personal Directo'!G$53)","v":1196.2959997002868},{"$f":"IF('Sup Personal Directo'!$C$9='Sup Personal Directo'!$Q$1,IF('Sup Personal Directo'!$C$10=100%,('Sup Personal Directo'!H$63*(SUM('Sup Personal Directo'!$C$21,'Sup Personal Directo'!$C$24:$C$26))+'Sup Personal Directo'!H$110+'Sup Personal Directo'!H$58)*'Sup Personal Directo'!H$48,('Sup Personal Directo'!H$63*(SUM('Sup Personal Directo'!$C$21,'Sup Personal Directo'!$C$24,'Sup Personal Directo'!$C$26))+'Sup Personal Directo'!H$110+'Sup Personal Directo'!H$58)*'Sup Personal Directo'!H$48*'Sup Personal Directo'!$C$10+('Sup Personal Directo'!H$58+'Sup Personal Directo'!H$110)*'Sup Personal Directo'!H$48*(1-'Sup Personal Directo'!$C$10)),('Sup Personal Directo'!H$68*(SUM('Sup Personal Directo'!$C$21:$C$22,'Sup Personal Directo'!$C$24:$C$26))+'Sup Personal Directo'!H$110+'Sup Personal Directo'!H$113/12+'Sup Personal Directo'!H$68)*'Sup Personal Directo'!H$53)","v":1209.1222068906732},{"$f":"IF('Sup Personal Directo'!$C$9='Sup Personal Directo'!$Q$1,IF('Sup Personal Directo'!$C$10=100%,('Sup Personal Directo'!I$63*(SUM('Sup Personal Directo'!$C$21,'Sup Personal Directo'!$C$24:$C$26))+'Sup Personal Directo'!I$110+'Sup Personal Directo'!I$58)*'Sup Personal Directo'!I$48,('Sup Personal Directo'!I$63*(SUM('Sup Personal Directo'!$C$21,'Sup Personal Directo'!$C$24,'Sup Personal Directo'!$C$26))+'Sup Personal Directo'!I$110+'Sup Personal Directo'!I$58)*'Sup Personal Directo'!I$48*'Sup Personal Directo'!$C$10+('Sup Personal Directo'!I$58+'Sup Personal Directo'!I$110)*'Sup Personal Directo'!I$48*(1-'Sup Personal Directo'!$C$10)),('Sup Personal Directo'!I$68*(SUM('Sup Personal Directo'!$C$21:$C$22,'Sup Personal Directo'!$C$24:$C$26))+'Sup Personal Directo'!I$110+'Sup Personal Directo'!I$113/12+'Sup Personal Directo'!I$68)*'Sup Personal Directo'!I$53)","v":1226.9611122822553},{"$f":"IF('Sup Personal Directo'!$C$9='Sup Personal Directo'!$Q$1,IF('Sup Personal Directo'!$C$10=100%,('Sup Personal Directo'!J$63*(SUM('Sup Personal Directo'!$C$21,'Sup Personal Directo'!$C$24:$C$26))+'Sup Personal Directo'!J$110+'Sup Personal Directo'!J$58)*'Sup Personal Directo'!J$48,('Sup Personal Directo'!J$63*(SUM('Sup Personal Directo'!$C$21,'Sup Personal Directo'!$C$24,'Sup Personal Directo'!$C$26))+'Sup Personal Directo'!J$110+'Sup Personal Directo'!J$58)*'Sup Personal Directo'!J$48*'Sup Personal Directo'!$C$10+('Sup Personal Directo'!J$58+'Sup Personal Directo'!J$110)*'Sup Personal Directo'!J$48*(1-'Sup Personal Directo'!$C$10)),('Sup Personal Directo'!J$68*(SUM('Sup Personal Directo'!$C$21:$C$22,'Sup Personal Directo'!$C$24:$C$26))+'Sup Personal Directo'!J$110+'Sup Personal Directo'!J$113/12+'Sup Personal Directo'!J$68)*'Sup Personal Directo'!J$53)","v":1260.7841848624289},{"$f":"IF('Sup Personal Directo'!$C$9='Sup Personal Directo'!$Q$1,IF('Sup Personal Directo'!$C$10=100%,('Sup Personal Directo'!K$63*(SUM('Sup Personal Directo'!$C$21,'Sup Personal Directo'!$C$24:$C$26))+'Sup Personal Directo'!K$110+'Sup Personal Directo'!K$58)*'Sup Personal Directo'!K$48,('Sup Personal Directo'!K$63*(SUM('Sup Personal Directo'!$C$21,'Sup Personal Directo'!$C$24,'Sup Personal Directo'!$C$26))+'Sup Personal Directo'!K$110+'Sup Personal Directo'!K$58)*'Sup Personal Directo'!K$48*'Sup Personal Directo'!$C$10+('Sup Personal Directo'!K$58+'Sup Personal Directo'!K$110)*'Sup Personal Directo'!K$48*(1-'Sup Personal Directo'!$C$10)),('Sup Personal Directo'!K$68*(SUM('Sup Personal Directo'!$C$21:$C$22,'Sup Personal Directo'!$C$24:$C$26))+'Sup Personal Directo'!K$110+'Sup Personal Directo'!K$113/12+'Sup Personal Directo'!K$68)*'Sup Personal Directo'!K$53)","v":1292.9250251312783},{"$f":"IF('Sup Personal Directo'!$C$9='Sup Personal Directo'!$Q$1,IF('Sup Personal Directo'!$C$10=100%,('Sup Personal Directo'!L$63*(SUM('Sup Personal Directo'!$C$21,'Sup Personal Directo'!$C$24:$C$26))+'Sup Personal Directo'!L$110+'Sup Personal Directo'!L$58)*'Sup Personal Directo'!L$48,('Sup Personal Directo'!L$63*(SUM('Sup Personal Directo'!$C$21,'Sup Personal Directo'!$C$24,'Sup Personal Directo'!$C$26))+'Sup Personal Directo'!L$110+'Sup Personal Directo'!L$58)*'Sup Personal Directo'!L$48*'Sup Personal Directo'!$C$10+('Sup Personal Directo'!L$58+'Sup Personal Directo'!L$110)*'Sup Personal Directo'!L$48*(1-'Sup Personal Directo'!$C$10)),('Sup Personal Directo'!L$68*(SUM('Sup Personal Directo'!$C$21:$C$22,'Sup Personal Directo'!$C$24:$C$26))+'Sup Personal Directo'!L$110+'Sup Personal Directo'!L$113/12+'Sup Personal Directo'!L$68)*'Sup Personal Directo'!L$53)","v":1322.2448536023946},{"$f":"IF('Sup Personal Directo'!$C$9='Sup Personal Directo'!$Q$1,IF('Sup Personal Directo'!$C$10=100%,('Sup Personal Directo'!M$63*(SUM('Sup Personal Directo'!$C$21,'Sup Personal Directo'!$C$24:$C$26))+'Sup Personal Directo'!M$110+'Sup Personal Directo'!M$58)*'Sup Personal Directo'!M$48,('Sup Personal Directo'!M$63*(SUM('Sup Personal Directo'!$C$21,'Sup Personal Directo'!$C$24,'Sup Personal Directo'!$C$26))+'Sup Personal Directo'!M$110+'Sup Personal Directo'!M$58)*'Sup Personal Directo'!M$48*'Sup Personal Directo'!$C$10+('Sup Personal Directo'!M$58+'Sup Personal Directo'!M$110)*'Sup Personal Directo'!M$48*(1-'Sup Personal Directo'!$C$10)),('Sup Personal Directo'!M$68*(SUM('Sup Personal Directo'!$C$21:$C$22,'Sup Personal Directo'!$C$24:$C$26))+'Sup Personal Directo'!M$110+'Sup Personal Directo'!M$113/12+'Sup Personal Directo'!M$68)*'Sup Personal Directo'!M$53)","v":1350.6569480882408},{"$f":"IF('Sup Personal Directo'!$C$9='Sup Personal Directo'!$Q$1,IF('Sup Personal Directo'!$C$10=100%,('Sup Personal Directo'!N$63*(SUM('Sup Personal Directo'!$C$21,'Sup Personal Directo'!$C$24:$C$26))+'Sup Personal Directo'!N$110+'Sup Personal Directo'!N$58)*'Sup Personal Directo'!N$48,('Sup Personal Directo'!N$63*(SUM('Sup Personal Directo'!$C$21,'Sup Personal Directo'!$C$24,'Sup Personal Directo'!$C$26))+'Sup Personal Directo'!N$110+'Sup Personal Directo'!N$58)*'Sup Personal Directo'!N$48*'Sup Personal Directo'!$C$10+('Sup Personal Directo'!N$58+'Sup Personal Directo'!N$110)*'Sup Personal Directo'!N$48*(1-'Sup Personal Directo'!$C$10)),('Sup Personal Directo'!N$68*(SUM('Sup Personal Directo'!$C$21:$C$22,'Sup Personal Directo'!$C$24:$C$26))+'Sup Personal Directo'!N$110+'Sup Personal Directo'!N$113/12+'Sup Personal Directo'!N$68)*'Sup Personal Directo'!N$53)","v":1379.2337996785727},{"$f":"IF('Sup Personal Directo'!$C$9='Sup Personal Directo'!$Q$1,IF('Sup Personal Directo'!$C$10=100%,('Sup Personal Directo'!O$63*(SUM('Sup Personal Directo'!$C$21,'Sup Personal Directo'!$C$24:$C$26))+'Sup Personal Directo'!O$110+'Sup Personal Directo'!O$58)*'Sup Personal Directo'!O$48,('Sup Personal Directo'!O$63*(SUM('Sup Personal Directo'!$C$21,'Sup Personal Directo'!$C$24,'Sup Personal Directo'!$C$26))+'Sup Personal Directo'!O$110+'Sup Personal Directo'!O$58)*'Sup Personal Directo'!O$48*'Sup Personal Directo'!$C$10+('Sup Personal Directo'!O$58+'Sup Personal Directo'!O$110)*'Sup Personal Directo'!O$48*(1-'Sup Personal Directo'!$C$10)),('Sup Personal Directo'!O$68*(SUM('Sup Personal Directo'!$C$21:$C$22,'Sup Personal Directo'!$C$24:$C$26))+'Sup Personal Directo'!O$110+'Sup Personal Directo'!O$113/12+'Sup Personal Directo'!O$68)*'Sup Personal Directo'!O$53)","v":1406.1653533584138},{"$f":"IF('Sup Personal Directo'!$C$9='Sup Personal Directo'!$Q$1,IF('Sup Personal Directo'!$C$10=100%,('Sup Personal Directo'!P$63*(SUM('Sup Personal Directo'!$C$21,'Sup Personal Directo'!$C$24:$C$26))+'Sup Personal Directo'!P$110+'Sup Personal Directo'!P$58)*'Sup Personal Directo'!P$48,('Sup Personal Directo'!P$63*(SUM('Sup Personal Directo'!$C$21,'Sup Personal Directo'!$C$24,'Sup Personal Directo'!$C$26))+'Sup Personal Directo'!P$110+'Sup Personal Directo'!P$58)*'Sup Personal Directo'!P$48*'Sup Personal Directo'!$C$10+('Sup Personal Directo'!P$58+'Sup Personal Directo'!P$110)*'Sup Personal Directo'!P$48*(1-'Sup Personal Directo'!$C$10)),('Sup Personal Directo'!P$68*(SUM('Sup Personal Directo'!$C$21:$C$22,'Sup Personal Directo'!$C$24:$C$26))+'Sup Personal Directo'!P$110+'Sup Personal Directo'!P$113/12+'Sup Personal Directo'!P$68)*'Sup Personal Directo'!P$53)","v":1434.8833946149248},{"$f":"IF('Sup Personal Directo'!$C$9='Sup Personal Directo'!$Q$1,IF('Sup Personal Directo'!$C$10=100%,('Sup Personal Directo'!Q$63*(SUM('Sup Personal Directo'!$C$21,'Sup Personal Directo'!$C$24:$C$26))+'Sup Personal Directo'!Q$110+'Sup Personal Directo'!Q$58)*'Sup Personal Directo'!Q$48,('Sup Personal Directo'!Q$63*(SUM('Sup Personal Directo'!$C$21,'Sup Personal Directo'!$C$24,'Sup Personal Directo'!$C$26))+'Sup Personal Directo'!Q$110+'Sup Personal Directo'!Q$58)*'Sup Personal Directo'!Q$48*'Sup Personal Directo'!$C$10+('Sup Personal Directo'!Q$58+'Sup Personal Directo'!Q$110)*'Sup Personal Directo'!Q$48*(1-'Sup Personal Directo'!$C$10)),('Sup Personal Directo'!Q$68*(SUM('Sup Personal Directo'!$C$21:$C$22,'Sup Personal Directo'!$C$24:$C$26))+'Sup Personal Directo'!Q$110+'Sup Personal Directo'!Q$113/12+'Sup Personal Directo'!Q$68)*'Sup Personal Directo'!Q$53)","v":1465.927980734607},{"$f":"IF('Sup Personal Directo'!$C$9='Sup Personal Directo'!$Q$1,IF('Sup Personal Directo'!$C$10=100%,('Sup Personal Directo'!R$63*(SUM('Sup Personal Directo'!$C$21,'Sup Personal Directo'!$C$24:$C$26))+'Sup Personal Directo'!R$110+'Sup Personal Directo'!R$58)*'Sup Personal Directo'!R$48,('Sup Personal Directo'!R$63*(SUM('Sup Personal Directo'!$C$21,'Sup Personal Directo'!$C$24,'Sup Personal Directo'!$C$26))+'Sup Personal Directo'!R$110+'Sup Personal Directo'!R$58)*'Sup Personal Directo'!R$48*'Sup Personal Directo'!$C$10+('Sup Personal Directo'!R$58+'Sup Personal Directo'!R$110)*'Sup Personal Directo'!R$48*(1-'Sup Personal Directo'!$C$10)),('Sup Personal Directo'!R$68*(SUM('Sup Personal Directo'!$C$21:$C$22,'Sup Personal Directo'!$C$24:$C$26))+'Sup Personal Directo'!R$110+'Sup Personal Directo'!R$113/12+'Sup Personal Directo'!R$68)*'Sup Personal Directo'!R$53)","v":1498.9053030740956},{"$f":"IF('Sup Personal Directo'!$C$9='Sup Personal Directo'!$Q$1,IF('Sup Personal Directo'!$C$10=100%,('Sup Personal Directo'!S$63*(SUM('Sup Personal Directo'!$C$21,'Sup Personal Directo'!$C$24:$C$26))+'Sup Personal Directo'!S$110+'Sup Personal Directo'!S$58)*'Sup Personal Directo'!S$48,('Sup Personal Directo'!S$63*(SUM('Sup Personal Directo'!$C$21,'Sup Personal Directo'!$C$24,'Sup Personal Directo'!$C$26))+'Sup Personal Directo'!S$110+'Sup Personal Directo'!S$58)*'Sup Personal Directo'!S$48*'Sup Personal Directo'!$C$10+('Sup Personal Directo'!S$58+'Sup Personal Directo'!S$110)*'Sup Personal Directo'!S$48*(1-'Sup Personal Directo'!$C$10)),('Sup Personal Directo'!S$68*(SUM('Sup Personal Directo'!$C$21:$C$22,'Sup Personal Directo'!$C$24:$C$26))+'Sup Personal Directo'!S$110+'Sup Personal Directo'!S$113/12+'Sup Personal Directo'!S$68)*'Sup Personal Directo'!S$53)","v":1531.6744217581613},{"$f":"IF('Sup Personal Directo'!$C$9='Sup Personal Directo'!$Q$1,IF('Sup Personal Directo'!$C$10=100%,('Sup Personal Directo'!T$63*(SUM('Sup Personal Directo'!$C$21,'Sup Personal Directo'!$C$24:$C$26))+'Sup Personal Directo'!T$110+'Sup Personal Directo'!T$58)*'Sup Personal Directo'!T$48,('Sup Personal Directo'!T$63*(SUM('Sup Personal Directo'!$C$21,'Sup Personal Directo'!$C$24,'Sup Personal Directo'!$C$26))+'Sup Personal Directo'!T$110+'Sup Personal Directo'!T$58)*'Sup Personal Directo'!T$48*'Sup Personal Directo'!$C$10+('Sup Personal Directo'!T$58+'Sup Personal Directo'!T$110)*'Sup Personal Directo'!T$48*(1-'Sup Personal Directo'!$C$10)),('Sup Personal Directo'!T$68*(SUM('Sup Personal Directo'!$C$21:$C$22,'Sup Personal Directo'!$C$24:$C$26))+'Sup Personal Directo'!T$110+'Sup Personal Directo'!T$113/12+'Sup Personal Directo'!T$68)*'Sup Personal Directo'!T$53)","v":1564.4648080663837},{"$f":"IF('Sup Personal Directo'!$C$9='Sup Personal Directo'!$Q$1,IF('Sup Personal Directo'!$C$10=100%,('Sup Personal Directo'!U$63*(SUM('Sup Personal Directo'!$C$21,'Sup Personal Directo'!$C$24:$C$26))+'Sup Personal Directo'!U$110+'Sup Personal Directo'!U$58)*'Sup Personal Directo'!U$48,('Sup Personal Directo'!U$63*(SUM('Sup Personal Directo'!$C$21,'Sup Personal Directo'!$C$24,'Sup Personal Directo'!$C$26))+'Sup Personal Directo'!U$110+'Sup Personal Directo'!U$58)*'Sup Personal Directo'!U$48*'Sup Personal Directo'!$C$10+('Sup Personal Directo'!U$58+'Sup Personal Directo'!U$110)*'Sup Personal Directo'!U$48*(1-'Sup Personal Directo'!$C$10)),('Sup Personal Directo'!U$68*(SUM('Sup Personal Directo'!$C$21:$C$22,'Sup Personal Directo'!$C$24:$C$26))+'Sup Personal Directo'!U$110+'Sup Personal Directo'!U$113/12+'Sup Personal Directo'!U$68)*'Sup Personal Directo'!U$53)","v":1597.7090271411585},{"$f":"IF('Sup Personal Directo'!$C$9='Sup Personal Directo'!$Q$1,IF('Sup Personal Directo'!$C$10=100%,('Sup Personal Directo'!V$63*(SUM('Sup Personal Directo'!$C$21,'Sup Personal Directo'!$C$24:$C$26))+'Sup Personal Directo'!V$110+'Sup Personal Directo'!V$58)*'Sup Personal Directo'!V$48,('Sup Personal Directo'!V$63*(SUM('Sup Personal Directo'!$C$21,'Sup Personal Directo'!$C$24,'Sup Personal Directo'!$C$26))+'Sup Personal Directo'!V$110+'Sup Personal Directo'!V$58)*'Sup Personal Directo'!V$48*'Sup Personal Directo'!$C$10+('Sup Personal Directo'!V$58+'Sup Personal Directo'!V$110)*'Sup Personal Directo'!V$48*(1-'Sup Personal Directo'!$C$10)),('Sup Personal Directo'!V$68*(SUM('Sup Personal Directo'!$C$21:$C$22,'Sup Personal Directo'!$C$24:$C$26))+'Sup Personal Directo'!V$110+'Sup Personal Directo'!V$113/12+'Sup Personal Directo'!V$68)*'Sup Personal Directo'!V$53)","v":1631.6121017880287},{"$f":"IF('Sup Personal Directo'!$C$9='Sup Personal Directo'!$Q$1,IF('Sup Personal Directo'!$C$10=100%,('Sup Personal Directo'!W$63*(SUM('Sup Personal Directo'!$C$21,'Sup Personal Directo'!$C$24:$C$26))+'Sup Personal Directo'!W$110+'Sup Personal Directo'!W$58)*'Sup Personal Directo'!W$48,('Sup Personal Directo'!W$63*(SUM('Sup Personal Directo'!$C$21,'Sup Personal Directo'!$C$24,'Sup Personal Directo'!$C$26))+'Sup Personal Directo'!W$110+'Sup Personal Directo'!W$58)*'Sup Personal Directo'!W$48*'Sup Personal Directo'!$C$10+('Sup Personal Directo'!W$58+'Sup Personal Directo'!W$110)*'Sup Personal Directo'!W$48*(1-'Sup Personal Directo'!$C$10)),('Sup Personal Directo'!W$68*(SUM('Sup Personal Directo'!$C$21:$C$22,'Sup Personal Directo'!$C$24:$C$26))+'Sup Personal Directo'!W$110+'Sup Personal Directo'!W$113/12+'Sup Personal Directo'!W$68)*'Sup Personal Directo'!W$53)","v":1666.2472509532638}]
[null,"Ayudantes",{"$f":"IF('Sup Personal Directo'!$C$11='Sup Personal Directo'!$Q$1,IF('Sup Personal Directo'!$C$12=100%,('Sup Personal Directo'!D$94*(SUM('Sup Personal Directo'!$C$21,'Sup Personal Directo'!$C$24:$C$26))+'Sup Personal Directo'!D$110+'Sup Personal Directo'!D$89)*'Sup Personal Directo'!D$79,('Sup Personal Directo'!D$94*(SUM('Sup Personal Directo'!$C$21,'Sup Personal Directo'!$C$24,'Sup Personal Directo'!$C$26))+'Sup Personal Directo'!D$110+'Sup Personal Directo'!D$89)*'Sup Personal Directo'!D$79*'Sup Personal Directo'!$C$12+('Sup Personal Directo'!D$89+'Sup Personal Directo'!D$110)*'Sup Personal Directo'!D$79*(1-'Sup Personal Directo'!$C$12)),('Sup Personal Directo'!D$99*(SUM('Sup Personal Directo'!$C$21:$C$22,'Sup Personal Directo'!$C$24:$C$26))+'Sup Personal Directo'!D$110+'Sup Personal Directo'!D$113/12+'Sup Personal Directo'!D$99)*'Sup Personal Directo'!D$84)","v":890.74285714285725},{"$f":"IF('Sup Personal Directo'!$C$11='Sup Personal Directo'!$Q$1,IF('Sup Personal Directo'!$C$12=100%,('Sup Personal Directo'!E$94*(SUM('Sup Personal Directo'!$C$21,'Sup Personal Directo'!$C$24:$C$26))+'Sup Personal Directo'!E$110+'Sup Personal Directo'!E$89)*'Sup Personal Directo'!E$79,('Sup Personal Directo'!E$94*(SUM('Sup Personal Directo'!$C$21,'Sup Personal Directo'!$C$24,'Sup Personal Directo'!$C$26))+'Sup Personal Directo'!E$110+'Sup Personal Directo'!E$89)*'Sup Personal Directo'!E$79*'Sup Personal Directo'!$C$12+('Sup Personal Directo'!E$89+'Sup Personal Directo'!E$110)*'Sup Personal Directo'!E$79*(1-'Sup Personal Directo'!$C$12)),('Sup Personal Directo'!E$99*(SUM('Sup Personal Directo'!$C$21:$C$22,'Sup Personal Directo'!$C$24:$C$26))+'Sup Personal Directo'!E$110+'Sup Personal Directo'!E$113/12+'Sup Personal Directo'!E$99)*'Sup Personal Directo'!E$84)","v":912.23470080000004},{"$f":"IF('Sup Personal Directo'!$C$11='Sup Personal Directo'!$Q$1,IF('Sup Personal Directo'!$C$12=100%,('Sup Personal Directo'!F$94*(SUM('Sup Personal Directo'!$C$21,'Sup Personal Directo'!$C$24:$C$26))+'Sup Personal Directo'!F$110+'Sup Personal Directo'!F$89)*'Sup Personal Directo'!F$79,('Sup Personal Directo'!F$94*(SUM('Sup Personal Directo'!$C$21,'Sup Personal Directo'!$C$24,'Sup Personal Directo'!$C$26))+'Sup Personal Directo'!F$110+'Sup Personal Directo'!F$89)*'Sup Personal Directo'!F$79*'Sup Personal Directo'!$C$12+('Sup Personal Directo'!F$89+'Sup Personal Directo'!F$110)*'Sup Personal Directo'!F$79*(1-'Sup Personal Directo'!$C$12)),('Sup Personal Directo'!F$99*(SUM('Sup Personal Directo'!$C$21:$C$22,'Sup Personal Directo'!$C$24:$C$26))+'Sup Personal Directo'!F$110+'Sup Personal Directo'!F$113/12+'Sup Personal Directo'!F$99)*'Sup Personal Directo'!F$84)","v":943.44042544496665},{"$f":"IF('Sup Personal Directo'!$C$11='Sup Personal Directo'!$Q$1,IF('Sup Personal Directo'!$C$12=100%,('Sup Personal Directo'!G$94*(SUM('Sup Personal Directo'!$C$21,'Sup Personal Directo'!$C$24:$C$26))+'Sup Personal Directo'!G$110+'Sup Personal Directo'!G$89)*'Sup Personal Directo'!G$79,('Sup Personal Directo'!G$94*(SUM('Sup Personal Directo'!$C$21,'Sup Personal Directo'!$C$24,'Sup Personal Directo'!$C$26))+'Sup Personal Directo'!G$110+'Sup Personal Directo'!G$89)*'Sup Personal Directo'!G$79*'Sup Personal Directo'!$C$12+('Sup Personal Directo'!G$89+'Sup Personal Directo'!G$110)*'Sup Personal Directo'!G$79*(1-'Sup Personal Directo'!$C$12)),('Sup Personal Directo'!G$99*(SUM('Sup Personal Directo'!$C$21:$C$22,'Sup Personal Directo'!$C$24:$C$26))+'Sup Personal Directo'!G$110+'Sup Personal Directo'!G$113/12+'Sup Personal Directo'!G$99)*'Sup Personal Directo'!G$84)","v":955.09621678755207},{"$f":"IF('Sup Personal Directo'!$C$11='Sup Personal Directo'!$Q$1,IF('Sup Personal Directo'!$C$12=100%,('Sup Personal Directo'!H$94*(SUM('Sup Personal Directo'!$C$21,'Sup Personal Directo'!$C$24:$C$26))+'Sup Personal Directo'!H$110+'Sup Personal Directo'!H$89)*'Sup Personal Directo'!H$79,('Sup Personal Directo'!H$94*(SUM('Sup Personal Directo'!$C$21,'Sup Personal Directo'!$C$24,'Sup Personal Directo'!$C$26))+'Sup Personal Directo'!H$110+'Sup Personal Directo'!H$89)*'Sup Personal Directo'!H$79*'Sup Personal Directo'!$C$12+('Sup Personal Directo'!H$89+'Sup Personal Directo'!H$110)*'Sup Personal Directo'!H$79*(1-'Sup Personal Directo'!$C$12)),('Sup Personal Directo'!H$99*(SUM('Sup Personal Directo'!$C$21:$C$22,'Sup Personal Directo'!$C$24:$C$26))+'Sup Personal Directo'!H$110+'Sup Personal Directo'!H$113/12+'Sup Personal Directo'!H$99)*'Sup Personal Directo'!H$84)","v":965.33637638546134},{"$f":"IF('Sup Personal Directo'!$C$11='Sup Personal Directo'!$Q$1,IF('Sup Personal Directo'!$C$12=100%,('Sup Personal Directo'!I$94*(SUM('Sup Personal Directo'!$C$21,'Sup Personal Directo'!$C$24:$C$26))+'Sup Personal Directo'!I$110+'Sup Personal Directo'!I$89)*'Sup Personal Directo'!I$79,('Sup Personal Directo'!I$94*(SUM('Sup Personal Directo'!$C$21,'Sup Personal Directo'!$C$24,'Sup Personal Directo'!$C$26))+'Sup Personal Directo'!I$110+'Sup Personal Directo'!I$89)*'Sup Personal Directo'!I$79*'Sup Personal Directo'!$C$12+('Sup Personal Directo'!I$89+'Sup Personal Directo'!I$110)*'Sup Personal Directo'!I$79*(1-'Sup Personal Directo'!$C$12)),('Sup Personal Directo'!I$99*(SUM('Sup Personal Directo'!$C$21:$C$22,'Sup Personal Directo'!$C$24:$C$26))+'Sup Personal Directo'!I$110+'Sup Personal Directo'!I$113/12+'Sup Personal Directo'!I$99)*'Sup Personal Directo'!I$84)","v":979.57856314810192},{"$f":"IF('Sup Personal Directo'!$C$11='Sup Personal Directo'!$Q$1,IF('Sup Personal Directo'!$C$12=100%,('Sup Personal Directo'!J$94*(SUM('Sup Personal Directo'!$C$21,'Sup Personal Directo'!$C$24:$C$26))+'Sup Personal Directo'!J$110+'Sup Personal Directo'!J$89)*'Sup Personal Directo'!J$79,('Sup Personal Directo'!J$94*(SUM('Sup Personal Directo'!$C$21,'Sup Personal Directo'!$C$24,'Sup Personal Directo'!$C$26))+'Sup Personal Directo'!J$110+'Sup Personal Directo'!J$89)*'Sup Personal Directo'!J$79*'Sup Personal Directo'!$C$12+('Sup Personal Directo'!J$89+'Sup Personal Directo'!J$110)*'Sup Personal Directo'!J$79*(1-'Sup Personal Directo'!$C$12)),('Sup Personal Directo'!J$99*(SUM('Sup Personal Directo'!$C$21:$C$22,'Sup Personal Directo'!$C$24:$C$26))+'Sup Personal Directo'!J$110+'Sup Personal Directo'!J$113/12+'Sup Personal Directo'!J$99)*'Sup Personal Directo'!J$84)","v":1006.5821547922667},{"$f":"IF('Sup Personal Directo'!$C$11='Sup Personal Directo'!$Q$1,IF('Sup Personal Directo'!$C$12=100%,('Sup Personal Directo'!K$94*(SUM('Sup Personal Directo'!$C$21,'Sup Personal Directo'!$C$24:$C$26))+'Sup Personal Directo'!K$110+'Sup Personal Directo'!K$89)*'Sup Personal Directo'!K$79,('Sup Personal Directo'!K$94*(SUM('Sup Personal Directo'!$C$21,'Sup Personal Directo'!$C$24,'Sup Personal Directo'!$C$26))+'Sup Personal Directo'!K$110+'Sup Personal Directo'!K$89)*'Sup Personal Directo'!K$79*'Sup Personal Directo'!$C$12+('Sup Personal Directo'!K$89+'Sup Personal Directo'!K$110)*'Sup Personal Directo'!K$79*(1-'Sup Personal Directo'!$C$12)),('Sup Personal Directo'!K$99*(SUM('Sup Personal Directo'!$C$21:$C$22,'Sup Personal Directo'!$C$24:$C$26))+'Sup Personal Directo'!K$110+'Sup Personal Directo'!K$113/12+'Sup Personal Directo'!K$99)*'Sup Personal Directo'!K$84)","v":1032.2426894365703},{"$f":"IF('Sup Personal Directo'!$C$11='Sup Personal Directo'!$Q$1,IF('Sup Personal Directo'!$C$12=100%,('Sup Personal Directo'!L$94*(SUM('Sup Personal Directo'!$C$21,'Sup Personal Directo'!$C$24:$C$26))+'Sup Personal Directo'!L$110+'Sup Personal Directo'!L$89)*'Sup Personal Directo'!L$79,('Sup Personal Directo'!L$94*(SUM('Sup Personal Directo'!$C$21,'Sup Personal Directo'!$C$24,'Sup Personal Directo'!$C$26))+'Sup Personal Directo'!L$110+'Sup Personal Directo'!L$89)*'Sup Personal Directo'!L$79*'Sup Personal Directo'!$C$12+('Sup Personal Directo'!L$89+'Sup Personal Directo'!L$110)*'Sup Personal Directo'!L$79*(1-'Sup Personal Directo'!$C$12)),('Sup Personal Directo'!L$99*(SUM('Sup Personal Directo'!$C$21:$C$22,'Sup Personal Directo'!$C$24:$C$26))+'Sup Personal Directo'!L$110+'Sup Personal Directo'!L$113/12+'Sup Personal Directo'!L$99)*'Sup Personal Directo'!L$84)","v":1055.6509907738975},{"$f":"IF('Sup Personal Directo'!$C$11='Sup Personal Directo'!$Q$1,IF('Sup Personal Directo'!$C$12=100%,('Sup Personal Directo'!M$94*(SUM('Sup Personal Directo'!$C$21,'Sup Personal Directo'!$C$24:$C$26))+'Sup Personal Directo'!M$110+'Sup Personal Directo'!M$89)*'Sup Personal Directo'!M$79,('Sup Personal Directo'!M$94*(SUM('Sup Personal Directo'!$C$21,'Sup Personal Directo'!$C$24,'Sup Personal Directo'!$C$26))+'Sup Personal Directo'!M$110+'Sup Personal Directo'!M$89)*'Sup Personal Directo'!M$79*'Sup Personal Directo'!$C$12+('Sup Personal Directo'!M$89+'Sup Personal Directo'!M$110)*'Sup Personal Directo'!M$79*(1-'Sup Personal Directo'!$C$12)),('Sup Personal Directo'!M$99*(SUM('Sup Personal Directo'!$C$21:$C$22,'Sup Personal Directo'!$C$24:$C$26))+'Sup Personal Directo'!M$110+'Sup Personal Directo'!M$113/12+'Sup Personal Directo'!M$99)*'Sup Personal Directo'!M$84)","v":1078.3345774123557},{"$f":"IF('Sup Personal Directo'!$C$11='Sup Personal Directo'!$Q$1,IF('Sup Personal Directo'!$C$12=100%,('Sup Personal Directo'!N$94*(SUM('Sup Personal Directo'!$C$21,'Sup Personal Directo'!$C$24:$C$26))+'Sup Personal Directo'!N$110+'Sup Personal Directo'!N$89)*'Sup Personal Directo'!N$79,('Sup Personal Directo'!N$94*(SUM('Sup Personal Directo'!$C$21,'Sup Personal Directo'!$C$24,'Sup Personal Directo'!$C$26))+'Sup Personal Directo'!N$110+'Sup Personal Directo'!N$89)*'Sup Personal Directo'!N$79*'Sup Personal Directo'!$C$12+('Sup Personal Directo'!N$89+'Sup Personal Directo'!N$110)*'Sup Personal Directo'!N$79*(1-'Sup Personal Directo'!$C$12)),('Sup Personal Directo'!N$99*(SUM('Sup Personal Directo'!$C$21:$C$22,'Sup Personal Directo'!$C$24:$C$26))+'Sup Personal Directo'!N$110+'Sup Personal Directo'!N$113/12+'Sup Personal Directo'!N$99)*'Sup Personal Directo'!N$84)","v":1101.1497024720927},{"$f":"IF('Sup Personal Directo'!$C$11='Sup Personal Directo'!$Q$1,IF('Sup Personal Directo'!$C$12=100%,('Sup Personal Directo'!O$94*(SUM('Sup Personal Directo'!$C$21,'Sup Personal Directo'!$C$24:$C$26))+'Sup Personal Directo'!O$110+'Sup Personal Directo'!O$89)*'Sup Personal Directo'!O$79,('Sup Personal Directo'!O$94*(SUM('Sup Personal Directo'!$C$21,'Sup Personal Directo'!$C$24,'Sup Personal Directo'!$C$26))+'Sup Personal Directo'!O$110+'Sup Personal Directo'!O$89)*'Sup Personal Directo'!O$79*'Sup Personal Directo'!$C$12+('Sup Personal Directo'!O$89+'Sup Personal Directo'!O$110)*'Sup Personal Directo'!O$79*(1-'Sup Personal Directo'!$C$12)),('Sup Personal Directo'!O$99*(SUM('Sup Personal Directo'!$C$21:$C$22,'Sup Personal Directo'!$C$24:$C$26))+'Sup Personal Directo'!O$110+'Sup Personal Directo'!O$113/12+'Sup Personal Directo'!O$99)*'Sup Personal Directo'!O$84)","v":1122.6512581391444},{"$f":"IF('Sup Personal Directo'!$C$11='Sup Personal Directo'!$Q$1,IF('Sup Personal Directo'!$C$12=100%,('Sup Personal Directo'!P$94*(SUM('Sup Personal Directo'!$C$21,'Sup Personal Directo'!$C$24:$C$26))+'Sup Personal Directo'!P$110+'Sup Personal Directo'!P$89)*'Sup Personal Directo'!P$79,('Sup Personal Directo'!P$94*(SUM('Sup Personal Directo'!$C$21,'Sup Personal Directo'!$C$24,'Sup Personal Directo'!$C$26))+'Sup Personal Directo'!P$110+'Sup Personal Directo'!P$89)*'Sup Personal Directo'!P$79*'Sup Personal Directo'!$C$12+('Sup Personal Directo'!P$89+'Sup Personal Directo'!P$110)*'Sup Personal Directo'!P$79*(1-'Sup Personal Directo'!$C$12)),('Sup Personal Directo'!P$99*(SUM('Sup Personal Directo'!$C$21:$C$22,'Sup Personal Directo'!$C$24:$C$26))+'Sup Personal Directo'!P$110+'Sup Personal Directo'!P$113/12+'Sup Personal Directo'!P$99)*'Sup Personal Directo'!P$84)","v":1145.5791058996604},{"$f":"IF('Sup Personal Directo'!$C$11='Sup Personal Directo'!$Q$1,IF('Sup Personal Directo'!$C$12=100%,('Sup Personal Directo'!Q$94*(SUM('Sup Personal Directo'!$C$21,'Sup Personal Directo'!$C$24:$C$26))+'Sup Personal Directo'!Q$110+'Sup Personal Directo'!Q$89)*'Sup Personal Directo'!Q$79,('Sup Personal Directo'!Q$94*(SUM('Sup Personal Directo'!$C$21,'Sup Personal Directo'!$C$24,'Sup Personal Directo'!$C$26))+'Sup Personal Directo'!Q$110+'Sup Personal Directo'!Q$89)*'Sup Personal Directo'!Q$79*'Sup Personal Directo'!$C$12+('Sup Personal Directo'!Q$89+'Sup Personal Directo'!Q$110)*'Sup Personal Directo'!Q$79*(1-'Sup Personal Directo'!$C$12)),('Sup Personal Directo'!Q$99*(SUM('Sup Personal Directo'!$C$21:$C$22,'Sup Personal Directo'!$C$24:$C$26))+'Sup Personal Directo'!Q$110+'Sup Personal Directo'!Q$113/12+'Sup Personal Directo'!Q$99)*'Sup Personal Directo'!Q$84)","v":1170.3644155237605},{"$f":"IF('Sup Personal Directo'!$C$11='Sup Personal Directo'!$Q$1,IF('Sup Personal Directo'!$C$12=100%,('Sup Personal Directo'!R$94*(SUM('Sup Personal Directo'!$C$21,'Sup Personal Directo'!$C$24:$C$26))+'Sup Personal Directo'!R$110+'Sup Personal Directo'!R$89)*'Sup Personal Directo'!R$79,('Sup Personal Directo'!R$94*(SUM('Sup Personal Directo'!$C$21,'Sup Personal Directo'!$C$24,'Sup Personal Directo'!$C$26))+'Sup Personal Directo'!R$110+'Sup Personal Directo'!R$89)*'Sup Personal Directo'!R$79*'Sup Personal Directo'!$C$12+('Sup Personal Directo'!R$89+'Sup Personal Directo'!R$110)*'Sup Personal Directo'!R$79*(1-'Sup Personal Directo'!$C$12)),('Sup Personal Directo'!R$99*(SUM('Sup Personal Directo'!$C$21:$C$22,'Sup Personal Directo'!$C$24:$C$26))+'Sup Personal Directo'!R$110+'Sup Personal Directo'!R$113/12+'Sup Personal Directo'!R$99)*'Sup Personal Directo'!R$84)","v":1196.6927789172016},{"$f":"IF('Sup Personal Directo'!$C$11='Sup Personal Directo'!$Q$1,IF('Sup Personal Directo'!$C$12=100%,('Sup Personal Directo'!S$94*(SUM('Sup Personal Directo'!$C$21,'Sup Personal Directo'!$C$24:$C$26))+'Sup Personal Directo'!S$110+'Sup Personal Directo'!S$89)*'Sup Personal Directo'!S$79,('Sup Personal Directo'!S$94*(SUM('Sup Personal Directo'!$C$21,'Sup Personal Directo'!$C$24,'Sup Personal Directo'!$C$26))+'Sup Personal Directo'!S$110+'Sup Personal Directo'!S$89)*'Sup Personal Directo'!S$79*'Sup Personal Directo'!$C$12+('Sup Personal Directo'!S$89+'Sup Personal Directo'!S$110)*'Sup Personal Directo'!S$79*(1-'Sup Personal Directo'!$C$12)),('Sup Personal Directo'!S$99*(SUM('Sup Personal Directo'!$C$21:$C$22,'Sup Personal Directo'!$C$24:$C$26))+'Sup Personal Directo'!S$110+'Sup Personal Directo'!S$113/12+'Sup Personal Directo'!S$99)*'Sup Personal Directo'!S$84)","v":1222.8549171258512},{"$f":"IF('Sup Personal Directo'!$C$11='Sup Personal Directo'!$Q$1,IF('Sup Personal Directo'!$C$12=100%,('Sup Personal Directo'!T$94*(SUM('Sup Personal Directo'!$C$21,'Sup Personal Directo'!$C$24:$C$26))+'Sup Personal Directo'!T$110+'Sup Personal Directo'!T$89)*'Sup Personal Directo'!T$79,('Sup Personal Directo'!T$94*(SUM('Sup Personal Directo'!$C$21,'Sup Personal Directo'!$C$24,'Sup Personal Directo'!$C$26))+'Sup Personal Directo'!T$110+'Sup Personal Directo'!T$89)*'Sup Personal Directo'!T$79*'Sup Personal Directo'!$C$12+('Sup Personal Directo'!T$89+'Sup Personal Directo'!T$110)*'Sup Personal Directo'!T$79*(1-'Sup Personal Directo'!$C$12)),('Sup Personal Directo'!T$99*(SUM('Sup Personal Directo'!$C$21:$C$22,'Sup Personal Directo'!$C$24:$C$26))+'Sup Personal Directo'!T$110+'Sup Personal Directo'!T$113/12+'Sup Personal Directo'!T$99)*'Sup Personal Directo'!T$84)","v":1249.0340349343467},{"$f":"IF('Sup Personal Directo'!$C$11='Sup Personal Directo'!$Q$1,IF('Sup Personal Directo'!$C$12=100%,('Sup Personal Directo'!U$94*(SUM('Sup Personal Directo'!$C$21,'Sup Personal Directo'!$C$24:$C$26))+'Sup Personal Directo'!U$110+'Sup Personal Directo'!U$89)*'Sup Personal Directo'!U$79,('Sup Personal Directo'!U$94*(SUM('Sup Personal Directo'!$C$21,'Sup Personal Directo'!$C$24,'Sup Personal Directo'!$C$26))+'Sup Personal Directo'!U$110+'Sup Personal Directo'!U$89)*'Sup Personal Directo'!U$79*'Sup Personal Directo'!$C$12+('Sup Personal Directo'!U$89+'Sup Personal Directo'!U$110)*'Sup Personal Directo'!U$79*(1-'Sup Personal Directo'!$C$12)),('Sup Personal Directo'!U$99*(SUM('Sup Personal Directo'!$C$21:$C$22,'Sup Personal Directo'!$C$24:$C$26))+'Sup Personal Directo'!U$110+'Sup Personal Directo'!U$113/12+'Sup Personal Directo'!U$99)*'Sup Personal Directo'!U$84)","v":1275.5754827669307},{"$f":"IF('Sup Personal Directo'!$C$11='Sup Personal Directo'!$Q$1,IF('Sup Personal Directo'!$C$12=100%,('Sup Personal Directo'!V$94*(SUM('Sup Personal Directo'!$C$21,'Sup Personal Directo'!$C$24:$C$26))+'Sup Personal Directo'!V$110+'Sup Personal Directo'!V$89)*'Sup Personal Directo'!V$79,('Sup Personal Directo'!V$94*(SUM('Sup Personal Directo'!$C$21,'Sup Personal Directo'!$C$24,'Sup Personal Directo'!$C$26))+'Sup Personal Directo'!V$110+'Sup Personal Directo'!V$89)*'Sup Personal Directo'!V$79*'Sup Personal Directo'!$C$12+('Sup Personal Directo'!V$89+'Sup Personal Directo'!V$110)*'Sup Personal Directo'!V$79*(1-'Sup Personal Directo'!$C$12)),('Sup Personal Directo'!V$99*(SUM('Sup Personal Directo'!$C$21:$C$22,'Sup Personal Directo'!$C$24:$C$26))+'Sup Personal Directo'!V$110+'Sup Personal Directo'!V$113/12+'Sup Personal Directo'!V$99)*'Sup Personal Directo'!V$84)","v":1302.642946288337},{"$f":"IF('Sup Personal Directo'!$C$11='Sup Personal Directo'!$Q$1,IF('Sup Personal Directo'!$C$12=100%,('Sup Personal Directo'!W$94*(SUM('Sup Personal Directo'!$C$21,'Sup Personal Directo'!$C$24:$C$26))+'Sup Personal Directo'!W$110+'Sup Personal Directo'!W$89)*'Sup Personal Directo'!W$79,('Sup Personal Directo'!W$94*(SUM('Sup Personal Directo'!$C$21,'Sup Personal Directo'!$C$24,'Sup Personal Directo'!$C$26))+'Sup Personal Directo'!W$110+'Sup Personal Directo'!W$89)*'Sup Personal Directo'!W$79*'Sup Personal Directo'!$C$12+('Sup Personal Directo'!W$89+'Sup Personal Directo'!W$110)*'Sup Personal Directo'!W$79*(1-'Sup Personal Directo'!$C$12)),('Sup Personal Directo'!W$99*(SUM('Sup Personal Directo'!$C$21:$C$22,'Sup Personal Directo'!$C$24:$C$26))+'Sup Personal Directo'!W$110+'Sup Personal Directo'!W$113/12+'Sup Personal Directo'!W$99)*'Sup Personal Directo'!W$84)","v":1330.2948818827685}]
[]
[null,{"$f":"+'Sup Personal Directo'!$B$49","v":"Otro"}]
[null,"Costo año Sin SITP-Q (USD)",{"$f":"+C31*12","v":24077.204571428578},24658.139363328002,25501.644994668735,25816.706597854063,26093.502999313612,26478.476105164289,27208.396075856344,27902.012574814184,28534.750132515506,29147.898306007155,29764.602025807988,30345.7993379707,0,0,0,0,0,0,0,0]
[null,"Costo año Con SITP-Q (USD)",{"$f":"C31*12","v":24077.204571428578},{"$f":"D32*12","v":13711.322953728},{"$f":"E32*12","v":14180.359889329133},{"$f":"F32*12","v":14355.551996403441},14509.466482688078,14723.533347387063,15129.410218349147,15515.100301575339,15866.938243228735,16207.88337705889,16550.805596142873,16873.984240300964,17218.600735379099,17591.135768815286,17986.863636889146,18380.093061097934,18773.577696796605,19172.508325693903,19579.345221456344,19994.967011439167]
[null,"Costo mes",{"$f":"SUM(C32,C33)*IF(C$5>'Sup fijo'!$H$54,0,1)","v":2006.4337142857148},{"$f":"SUM(D32,D33)*IF(D$5>'Sup fijo'!$H$54,0,1)","v":2054.8449469440002},{"$f":"SUM(E32,E33)*IF(E$5>'Sup fijo'!$H$54,0,1)","v":2125.1370828890613},{"$f":"SUM(F32,F33)*IF(F$5>'Sup fijo'!$H$54,0,1)","v":2151.3922164878386},{"$f":"SUM(G32,G33)*IF(G$5>'Sup fijo'!$H$54,0,1)","v":2174.4585832761345},{"$f":"SUM(H32,H33)*IF(H$5>'Sup fijo'!$H$54,0,1)","v":2206.5396754303574},{"$f":"SUM(I32,I33)*IF(I$5>'Sup fijo'!$H$54,0,1)","v":2267.3663396546954},{"$f":"SUM(J32,J33)*IF(J$5>'Sup fijo'!$H$54,0,1)","v":2325.1677145678486},{"$f":"SUM(K32,K33)*IF(K$5>'Sup fijo'!$H$54,0,1)","v":2377.8958443762922},{"$f":"SUM(L32,L33)*IF(L$5>'Sup fijo'!$H$54,0,1)","v":2428.9915255005963},{"$f":"SUM(M32,M33)*IF(M$5>'Sup fijo'!$H$54,0,1)","v":2480.3835021506657},{"$f":"SUM(N32,N33)*IF(N$5>'Sup fijo'!$H$54,0,1)","v":2528.8166114975584},{"$f":"SUM(O32,O33)*IF(O$5>'Sup fijo'!$H$54,0,1)","v":0},{"$f":"SUM(P32,P33)*IF(P$5>'Sup fijo'!$H$54,0,1)","v":0},{"$f":"SUM(Q32,Q33)*IF(Q$5>'Sup fijo'!$H$54,0,1)","v":0},{"$f":"SUM(R32,R33)*IF(R$5>'Sup fijo'!$H$54,0,1)","v":0},{"$f":"SUM(S32,S33)*IF(S$5>'Sup fijo'!$H$54,0,1)","v":0},{"$f":"SUM(T32,T33)*IF(T$5>'Sup fijo'!$H$54,0,1)","v":0},{"$f":"SUM(U32,U33)*IF(U$5>'Sup fijo'!$H$54,0,1)","v":0},{"$f":"SUM(V32,V33)*IF(V$5>'Sup fijo'!$H$54,0,1)","v":0}]
[null,"Conductores",{"$f":"IF('Sup Personal Directo'!$C$9='Sup Personal Directo'!$Q$1,IF('Sup Personal Directo'!$C$10=100%,('Sup Personal Directo'!D$64*(SUM('Sup Personal Directo'!$C$21,'Sup Personal Directo'!$C$24:C$26))+'Sup Personal Directo'!D$111+'Sup Personal Directo'!D$59)*'Sup Personal Directo'!D$49,('Sup Personal Directo'!D$64*(SUM('Sup Personal Directo'!$C$21,'Sup Personal Directo'!$C$24,'Sup Personal Directo'!$C$26))+'Sup Personal Directo'!D$111+'Sup Personal Directo'!D$59)*'Sup Personal Directo'!D$49*'Sup Personal Directo'!$C$10+('Sup Personal Directo'!D$59+'Sup Personal Directo'!D$111)*'Sup Personal Directo'!D$49*(1-'Sup Personal Directo'!$C$10)),('Sup Personal Directo'!D$69*(SUM('Sup Personal Directo'!$C$21:$C$22,'Sup Personal Directo'!$C$24:$C$26))+'Sup Personal Directo'!D$111+'Sup Personal Directo'!D$113/12+'Sup Personal Directo'!D$69)*'Sup Personal Directo'!D$54)","v":1115.6908571428576},{"$f":"IF('Sup Personal Directo'!$C$9='Sup Personal Directo'!$Q$1,IF('Sup Personal Directo'!$C$10=100%,('Sup Personal Directo'!E$64*(SUM('Sup Personal Directo'!$C$21,'Sup Personal Directo'!$C$24:D$26))+'Sup Personal Directo'!E$111+'Sup Personal Directo'!E$59)*'Sup Personal Directo'!E$49,('Sup Personal Directo'!E$64*(SUM('Sup Personal Directo'!$C$21,'Sup Personal Directo'!$C$24,'Sup Personal Directo'!$C$26))+'Sup Personal Directo'!E$111+'Sup Personal Directo'!E$59)*'Sup Personal Directo'!E$49*'Sup Personal Directo'!$C$10+('Sup Personal Directo'!E$59+'Sup Personal Directo'!E$111)*'Sup Personal Directo'!E$49*(1-'Sup Personal Directo'!$C$10)),('Sup Personal Directo'!E$69*(SUM('Sup Personal Directo'!$C$21:$C$22,'Sup Personal Directo'!$C$24:$C$26))+'Sup Personal Directo'!E$111+'Sup Personal Directo'!E$113/12+'Sup Personal Directo'!E$69)*'Sup Personal Directo'!E$54)","v":1142.610246144},{"$f":"IF('Sup Personal Directo'!$C$9='Sup Personal Directo'!$Q$1,IF('Sup Personal Directo'!$C$10=100%,('Sup Personal Directo'!F$64*(SUM('Sup Personal Directo'!$C$21,'Sup Personal Directo'!$C$24:E$26))+'Sup Personal Directo'!F$111+'Sup Personal Directo'!F$59)*'Sup Personal Directo'!F$49,('Sup Personal Directo'!F$64*(SUM('Sup Personal Directo'!$C$21,'Sup Personal Directo'!$C$24,'Sup Personal Directo'!$C$26))+'Sup Personal Directo'!F$111+'Sup Personal Directo'!F$59)*'Sup Personal Directo'!F$49*'Sup Personal Directo'!$C$10+('Sup Personal Directo'!F$59+'Sup Personal Directo'!F$111)*'Sup Personal Directo'!F$49*(1-'Sup Personal Directo'!$C$10)),('Sup Personal Directo'!F$69*(SUM('Sup Personal Directo'!$C$21:$C$22,'Sup Personal Directo'!$C$24:$C$26))+'Sup Personal Directo'!F$111+'Sup Personal Directo'!F$113/12+'Sup Personal Directo'!F$69)*'Sup Personal Directo'!F$54)","v":1181.6966574440944},{"$f":"IF('Sup Personal Directo'!$C$9='Sup Personal Directo'!$Q$1,IF('Sup Personal Directo'!$C$10=100%,('Sup Personal Directo'!G$64*(SUM('Sup Personal Directo'!$C$21,'Sup Personal Directo'!$C$24:F$26))+'Sup Personal Directo'!G$111+'Sup Personal Directo'!G$59)*'Sup Personal Directo'!G$49,('Sup Personal Directo'!G$64*(SUM('Sup Personal Directo'!$C$21,'Sup Personal Directo'!$C$24,'Sup Personal Directo'!$C$26))+'Sup Personal Directo'!G$111+'Sup Personal Directo'!G$59)*'Sup Personal Directo'!G$49*'Sup Personal Directo'!$C$10+('Sup Personal Directo'!G$59+'Sup Personal Directo'!G$111)*'Sup Personal Directo'!G$49*(1-'Sup Personal Directo'!$C$10)),('Sup Personal Directo'!G$69*(SUM('Sup Personal Directo'!$C$21:$C$22,'Sup Personal Directo'!$C$24:$C$26))+'Sup Personal Directo'!G$111+'Sup Personal Directo'!G$113/12+'Sup Personal Directo'!G$69)*'Sup Personal Directo'!G$54)","v":1196.2959997002868},{"$f":"IF('Sup Personal Directo'!$C$9='Sup Personal Directo'!$Q$1,IF('Sup Personal Directo'!$C$10=100%,('Sup Personal Directo'!H$64*(SUM('Sup Personal Directo'!$C$21,'Sup Personal Directo'!$C$24:G$26))+'Sup Personal Directo'!H$111+'Sup Personal Directo'!H$59)*'Sup Personal Directo'!H$49,('Sup Personal Directo'!H$64*(SUM('Sup Personal Directo'!$C$21,'Sup Personal Directo'!$C$24,'Sup Personal Directo'!$C$26))+'Sup Personal Directo'!H$111+'Sup Personal Directo'!H$59)*'Sup Personal Directo'!H$49*'Sup Personal Directo'!$C$10+('Sup Personal Directo'!H$59+'Sup Personal Directo'!H$111)*'Sup Personal Directo'!H$49*(1-'Sup Personal Directo'!$C$10)),('Sup Personal Directo'!H$69*(SUM('Sup Personal Directo'!$C$21:$C$22,'Sup Personal Directo'!$C$24:$C$26))+'Sup Personal Directo'!H$111+'Sup Personal Directo'!H$113/12+'Sup Personal Directo'!H$69)*'Sup Personal Directo'!H$54)","v":1209.1222068906732},{"$f":"IF('Sup Personal Directo'!$C$9='Sup Personal Directo'!$Q$1,IF('Sup Personal Directo'!$C$10=100%,('Sup Personal Directo'!I$64*(SUM('Sup Personal Directo'!$C$21,'Sup Personal Directo'!$C$24:H$26))+'Sup Personal Directo'!I$111+'Sup Personal Directo'!I$59)*'Sup Personal Directo'!I$49,('Sup Personal Directo'!I$64*(SUM('Sup Personal Directo'!$C$21,'Sup Personal Directo'!$C$24,'Sup Personal Directo'!$C$26))+'Sup Personal Directo'!I$111+'Sup Personal Directo'!I$59)*'Sup Personal Directo'!I$49*'Sup Personal Directo'!$C$10+('Sup Personal Directo'!I$59+'Sup Personal Directo'!I$111)*'Sup Personal Directo'!I$49*(1-'Sup Personal Directo'!$C$10)),('Sup Personal Directo'!I$69*(SUM('Sup Personal Directo'!$C$21:$C$22,'Sup Personal Directo'!$C$24:$C$26))+'Sup Personal Directo'!I$111+'Sup Personal Directo'!I$113/12+'Sup Personal Directo'!I$69)*'Sup Personal Directo'!I$54)","v":1226.9611122822553},{"$f":"IF('Sup Personal Directo'!$C$9='Sup Personal Directo'!$Q$1,IF('Sup Personal Directo'!$C$10=100%,('Sup Personal Directo'!J$64*(SUM('Sup Personal Directo'!$C$21,'Sup Personal Directo'!$C$24:I$26))+'Sup Personal Directo'!J$111+'Sup Personal Directo'!J$59)*'Sup Personal Directo'!J$49,('Sup Personal Directo'!J$64*(SUM('Sup Personal Directo'!$C$21,'Sup Personal Directo'!$C$24,'Sup Personal Directo'!$C$26))+'Sup Personal Directo'!J$111+'Sup Personal Directo'!J$59)*'Sup Personal Directo'!J$49*'Sup Personal Directo'!$C$10+('Sup Personal Directo'!J$59+'Sup Personal Directo'!J$111)*'Sup Personal Directo'!J$49*(1-'Sup Personal Directo'!$C$10)),('Sup Personal Directo'!J$69*(SUM('Sup Personal Directo'!$C$21:$C$22,'Sup Personal Directo'!$C$24:$C$26))+'Sup Personal Directo'!J$111+'Sup Personal Directo'!J$113/12+'Sup Personal Directo'!J$69)*'Sup Personal Directo'!J$54)","v":1260.7841848624289},{"$f":"IF('Sup Personal Directo'!$C$9='Sup Personal Directo'!$Q$1,IF('Sup Personal Directo'!$C$10=100%,('Sup Personal Directo'!K$64*(SUM('Sup Personal Directo'!$C$21,'Sup Personal Directo'!$C$24:J$26))+'Sup Personal Directo'!K$111+'Sup Personal Directo'!K$59)*'Sup Personal Directo'!K$49,('Sup Personal Directo'!K$64*(SUM('Sup Personal Directo'!$C$21,'Sup Personal Directo'!$C$24,'Sup Personal Directo'!$C$26))+'Sup Personal Directo'!K$111+'Sup Personal Directo'!K$59)*'Sup Personal Directo'!K$49*'Sup Personal Directo'!$C$10+('Sup Personal Directo'!K$59+'Sup Personal Directo'!K$111)*'Sup Personal Directo'!K$49*(1-'Sup Personal Directo'!$C$10)),('Sup Personal Directo'!K$69*(SUM('Sup Personal Directo'!$C$21:$C$22,'Sup Personal Directo'!$C$24:$C$26))+'Sup Personal Directo'!K$111+'Sup Personal Directo'!K$113/12+'Sup Personal Directo'!K$69)*'Sup Personal Directo'!K$54)","v":1292.9250251312783},{"$f":"IF('Sup Personal Directo'!$C$9='Sup Personal Directo'!$Q$1,IF('Sup Personal Directo'!$C$10=100%,('Sup Personal Directo'!L$64*(SUM('Sup Personal Directo'!$C$21,'Sup Personal Directo'!$C$24:K$26))+'Sup Personal Directo'!L$111+'Sup Personal Directo'!L$59)*'Sup Personal Directo'!L$49,('Sup Personal Directo'!L$64*(SUM('Sup Personal Directo'!$C$21,'Sup Personal Directo'!$C$24,'Sup Personal Directo'!$C$26))+'Sup Personal Directo'!L$111+'Sup Personal Directo'!L$59)*'Sup Personal Directo'!L$49*'Sup Personal Directo'!$C$10+('Sup Personal Directo'!L$59+'Sup Personal Directo'!L$111)*'Sup Personal Directo'!L$49*(1-'Sup Personal Directo'!$C$10)),('Sup Personal Directo'!L$69*(SUM('Sup Personal Directo'!$C$21:$C$22,'Sup Personal Directo'!$C$24:$C$26))+'Sup Personal Directo'!L$111+'Sup Personal Directo'!L$113/12+'Sup Personal Directo'!L$69)*'Sup Personal Directo'!L$54)","v":1322.2448536023946},{"$f":"IF('Sup Personal Directo'!$C$9='Sup Personal Directo'!$Q$1,IF('Sup Personal Directo'!$C$10=100%,('Sup Personal Directo'!M$64*(SUM('Sup Personal Directo'!$C$21,'Sup Personal Directo'!$C$24:L$26))+'Sup Personal Directo'!M$111+'Sup Personal Directo'!M$59)*'Sup Personal Directo'!M$49,('Sup Personal Directo'!M$64*(SUM('Sup Personal Directo'!$C$21,'Sup Personal Directo'!$C$24,'Sup Personal Directo'!$C$26))+'Sup Personal Directo'!M$111+'Sup Personal Directo'!M$59)*'Sup Personal Directo'!M$49*'Sup Personal Directo'!$C$10+('Sup Personal Directo'!M$59+'Sup Personal Directo'!M$111)*'Sup Personal Directo'!M$49*(1-'Sup Personal Directo'!$C$10)),('Sup Personal Directo'!M$69*(SUM('Sup Personal Directo'!$C$21:$C$22,'Sup Personal Directo'!$C$24:$C$26))+'Sup Personal Directo'!M$111+'Sup Personal Directo'!M$113/12+'Sup Personal Directo'!M$69)*'Sup Personal Directo'!M$54)","v":1350.6569480882408},{"$f":"IF('Sup Personal Directo'!$C$9='Sup Personal Directo'!$Q$1,IF('Sup Personal Directo'!$C$10=100%,('Sup Personal Directo'!N$64*(SUM('Sup Personal Directo'!$C$21,'Sup Personal Directo'!$C$24:M$26))+'Sup Personal Directo'!N$111+'Sup Personal Directo'!N$59)*'Sup Personal Directo'!N$49,('Sup Personal Directo'!N$64*(SUM('Sup Personal Directo'!$C$21,'Sup Personal Directo'!$C$24,'Sup Personal Directo'!$C$26))+'Sup Personal Directo'!N$111+'Sup Personal Directo'!N$59)*'Sup Personal Directo'!N$49*'Sup Personal Directo'!$C$10+('Sup Personal Directo'!N$59+'Sup Personal Directo'!N$111)*'Sup Personal Directo'!N$49*(1-'Sup Personal Directo'!$C$10)),('Sup Personal Directo'!N$69*(SUM('Sup Personal Directo'!$C$21:$C$22,'Sup Personal Directo'!$C$24:$C$26))+'Sup Personal Directo'!N$111+'Sup Personal Directo'!N$113/12+'Sup Personal Directo'!N$69)*'Sup Personal Directo'!N$54)","v":1379.2337996785727},{"$f":"IF('Sup Personal Directo'!$C$9='Sup Personal Directo'!$Q$1,IF('Sup Personal Directo'!$C$10=100%,('Sup Personal Directo'!O$64*(SUM('Sup Personal Directo'!$C$21,'Sup Personal Directo'!$C$24:N$26))+'Sup Personal Directo'!O$111+'Sup Personal Directo'!O$59)*'Sup Personal Directo'!O$49,('Sup Personal Directo'!O$64*(SUM('Sup Personal Directo'!$C$21,'Sup Personal Directo'!$C$24,'Sup Personal Directo'!$C$26))+'Sup Personal Directo'!O$111+'Sup Personal Directo'!O$59)*'Sup Personal Directo'!O$49*'Sup Personal Directo'!$C$10+('Sup Personal Directo'!O$59+'Sup Personal Directo'!O$111)*'Sup Personal Directo'!O$49*(1-'Sup Personal Directo'!$C$10)),('Sup Personal Directo'!O$69*(SUM('Sup Personal Directo'!$C$21:$C$22,'Sup Personal Directo'!$C$24:$C$26))+'Sup Personal Directo'!O$111+'Sup Personal Directo'!O$113/12+'Sup Personal Directo'!O$69)*'Sup Personal Directo'!O$54)","v":1406.1653533584138},{"$f":"IF('Sup Personal Directo'!$C$9='Sup Personal Directo'!$Q$1,IF('Sup Personal Directo'!$C$10=100%,('Sup Personal Directo'!P$64*(SUM('Sup Personal Directo'!$C$21,'Sup Personal Directo'!$C$24:O$26))+'Sup Personal Directo'!P$111+'Sup Personal Directo'!P$59)*'Sup Personal Directo'!P$49,('Sup Personal Directo'!P$64*(SUM('Sup Personal Directo'!$C$21,'Sup Personal Directo'!$C$24,'Sup Personal Directo'!$C$26))+'Sup Personal Directo'!P$111+'Sup Personal Directo'!P$59)*'Sup Personal Directo'!P$49*'Sup Personal Directo'!$C$10+('Sup Personal Directo'!P$59+'Sup Personal Directo'!P$111)*'Sup Personal Directo'!P$49*(1-'Sup Personal Directo'!$C$10)),('Sup Personal Directo'!P$69*(SUM('Sup Personal Directo'!$C$21:$C$22,'Sup Personal Directo'!$C$24:$C$26))+'Sup Personal Directo'!P$111+'Sup Personal Directo'!P$113/12+'Sup Personal Directo'!P$69)*'Sup Personal Directo'!P$54)","v":1434.8833946149248},{"$f":"IF('Sup Personal Directo'!$C$9='Sup Personal Directo'!$Q$1,IF('Sup Personal Directo'!$C$10=100%,('Sup Personal Directo'!Q$64*(SUM('Sup Personal Directo'!$C$21,'Sup Personal Directo'!$C$24:P$26))+'Sup Personal Directo'!Q$111+'Sup Personal Directo'!Q$59)*'Sup Personal Directo'!Q$49,('Sup Personal Directo'!Q$64*(SUM('Sup Personal Directo'!$C$21,'Sup Personal Directo'!$C$24,'Sup Personal Directo'!$C$26))+'Sup Personal Directo'!Q$111+'Sup Personal Directo'!Q$59)*'Sup Personal Directo'!Q$49*'Sup Personal Directo'!$C$10+('Sup Personal Directo'!Q$59+'Sup Personal Directo'!Q$111)*'Sup Personal Directo'!Q$49*(1-'Sup Personal Directo'!$C$10)),('Sup Personal Directo'!Q$69*(SUM('Sup Personal Directo'!$C$21:$C$22,'Sup Personal Directo'!$C$24:$C$26))+'Sup Personal Directo'!Q$111+'Sup Personal Directo'!Q$113/12+'Sup Personal Directo'!Q$69)*'Sup Personal Directo'!Q$54)","v":1465.927980734607},{"$f":"IF('Sup Personal Directo'!$C$9='Sup Personal Directo'!$Q$1,IF('Sup Personal Directo'!$C$10=100%,('Sup Personal Directo'!R$64*(SUM('Sup Personal Directo'!$C$21,'Sup Personal Directo'!$C$24:Q$26))+'Sup Personal Directo'!R$111+'Sup Personal Directo'!R$59)*'Sup Personal Directo'!R$49,('Sup Personal Directo'!R$64*(SUM('Sup Personal Directo'!$C$21,'Sup Personal Directo'!$C$24,'Sup Personal Directo'!$C$26))+'Sup Personal Directo'!R$111+'Sup Personal Directo'!R$59)*'Sup Personal Directo'!R$49*'Sup Personal Directo'!$C$10+('Sup Personal Directo'!R$59+'Sup Personal Directo'!R$111)*'Sup Personal Directo'!R$49*(1-'Sup Personal Directo'!$C$10)),('Sup Personal Directo'!R$69*(SUM('Sup Personal Directo'!$C$21:$C$22,'Sup Personal Directo'!$C$24:$C$26))+'Sup Personal Directo'!R$111+'Sup Personal Directo'!R$113/12+'Sup Personal Directo'!R$69)*'Sup Personal Directo'!R$54)","v":1498.9053030740956},{"$f":"IF('Sup Personal Directo'!$C$9='Sup Personal Directo'!$Q$1,IF('Sup Personal Directo'!$C$10=100%,('Sup Personal Directo'!S$64*(SUM('Sup Personal Directo'!$C$21,'Sup Personal Directo'!$C$24:R$26))+'Sup Personal Directo'!S$111+'Sup Personal Directo'!S$59)*'Sup Personal Directo'!S$49,('Sup Personal Directo'!S$64*(SUM('Sup Personal Directo'!$C$21,'Sup Personal Directo'!$C$24,'Sup Personal Directo'!$C$26))+'Sup Personal Directo'!S$111+'Sup Personal Directo'!S$59)*'Sup Personal Directo'!S$49*'Sup Personal Directo'!$C$10+('Sup Personal Directo'!S$59+'Sup Personal Directo'!S$111)*'Sup Personal Directo'!S$49*(1-'Sup Personal Directo'!$C$10)),('Sup Personal Directo'!S$69*(SUM('Sup Personal Directo'!$C$21:$C$22,'Sup Personal Directo'!$C$24:$C$26))+'Sup Personal Directo'!S$111+'Sup Personal Directo'!S$113/12+'Sup Personal Directo'!S$69)*'Sup Personal Directo'!S$54)","v":1531.6744217581613},{"$f":"IF('Sup Personal Directo'!$C$9='Sup Personal Directo'!$Q$1,IF('Sup Personal Directo'!$C$10=100%,('Sup Personal Directo'!T$64*(SUM('Sup Personal Directo'!$C$21,'Sup Personal Directo'!$C$24:S$26))+'Sup Personal Directo'!T$111+'Sup Personal Directo'!T$59)*'Sup Personal Directo'!T$49,('Sup Personal Directo'!T$64*(SUM('Sup Personal Directo'!$C$21,'Sup Personal Directo'!$C$24,'Sup Personal Directo'!$C$26))+'Sup Personal Directo'!T$111+'Sup Personal Directo'!T$59)*'Sup Personal Directo'!T$49*'Sup Personal Directo'!$C$10+('Sup Personal Directo'!T$59+'Sup Personal Directo'!T$111)*'Sup Personal Directo'!T$49*(1-'Sup Personal Directo'!$C$10)),('Sup Personal Directo'!T$69*(SUM('Sup Personal Directo'!$C$21:$C$22,'Sup Personal Directo'!$C$24:$C$26))+'Sup Personal Directo'!T$111+'Sup Personal Directo'!T$113/12+'Sup Personal Directo'!T$69)*'Sup Personal Directo'!T$54)","v":1564.4648080663837},{"$f":"IF('Sup Personal Directo'!$C$9='Sup Personal Directo'!$Q$1,IF('Sup Personal Directo'!$C$10=100%,('Sup Personal Directo'!U$64*(SUM('Sup Personal Directo'!$C$21,'Sup Personal Directo'!$C$24:T$26))+'Sup Personal Directo'!U$111+'Sup Personal Directo'!U$59)*'Sup Personal Directo'!U$49,('Sup Personal Directo'!U$64*(SUM('Sup Personal Directo'!$C$21,'Sup Personal Directo'!$C$24,'Sup Personal Directo'!$C$26))+'Sup Personal Directo'!U$111+'Sup Personal Directo'!U$59)*'Sup Personal Directo'!U$49*'Sup Personal Directo'!$C$10+('Sup Personal Directo'!U$59+'Sup Personal Directo'!U$111)*'Sup Personal Directo'!U$49*(1-'Sup Personal Directo'!$C$10)),('Sup Personal Directo'!U$69*(SUM('Sup Personal Directo'!$C$21:$C$22,'Sup Personal Directo'!$C$24:$C$26))+'Sup Personal Directo'!U$111+'Sup Personal Directo'!U$113/12+'Sup Personal Directo'!U$69)*'Sup Personal Directo'!U$54)","v":1597.7090271411585},{"$f":"IF('Sup Personal Directo'!$C$9='Sup Personal Directo'!$Q$1,IF('Sup Personal Directo'!$C$10=100%,('Sup Personal Directo'!V$64*(SUM('Sup Personal Directo'!$C$21,'Sup Personal Directo'!$C$24:U$26))+'Sup Personal Directo'!V$111+'Sup Personal Directo'!V$59)*'Sup Personal Directo'!V$49,('Sup Personal Directo'!V$64*(SUM('Sup Personal Directo'!$C$21,'Sup Personal Directo'!$C$24,'Sup Personal Directo'!$C$26))+'Sup Personal Directo'!V$111+'Sup Personal Directo'!V$59)*'Sup Personal Directo'!V$49*'Sup Personal Directo'!$C$10+('Sup Personal Directo'!V$59+'Sup Personal Directo'!V$111)*'Sup Personal Directo'!V$49*(1-'Sup Personal Directo'!$C$10)),('Sup Personal Directo'!V$69*(SUM('Sup Personal Directo'!$C$21:$C$22,'Sup Personal Directo'!$C$24:$C$26))+'Sup Personal Directo'!V$111+'Sup Personal Directo'!V$113/12+'Sup Personal Directo'!V$69)*'Sup Personal Directo'!V$54)","v":1631.6121017880287},{"$f":"IF('Sup Personal Directo'!$C$9='Sup Personal Directo'!$Q$1,IF('Sup Personal Directo'!$C$10=100%,('Sup Personal Directo'!W$64*(SUM('Sup Personal Directo'!$C$21,'Sup Personal Directo'!$C$24:V$26))+'Sup Personal Directo'!W$111+'Sup Personal Directo'!W$59)*'Sup Personal Directo'!W$49,('Sup Personal Directo'!W$64*(SUM('Sup Personal Directo'!$C$21,'Sup Personal Directo'!$C$24,'Sup Personal Directo'!$C$26))+'Sup Personal Directo'!W$111+'Sup Personal Directo'!W$59)*'Sup Personal Directo'!W$49*'Sup Personal Directo'!$C$10+('Sup Personal Directo'!W$59+'Sup Personal Directo'!W$111)*'Sup Personal Directo'!W$49*(1-'Sup Personal Directo'!$C$10)),('Sup Personal Directo'!W$69*(SUM('Sup Personal Directo'!$C$21:$C$22,'Sup Personal Directo'!$C$24:$C$26))+'Sup Personal Directo'!W$111+'Sup Personal Directo'!W$113/12+'Sup Personal Directo'!W$69)*'Sup Personal Directo'!W$54)","v":1666.2472509532638}]
[null,"Ayudantes",{"$f":"IF('Sup Personal Directo'!$C$11='Sup Personal Directo'!$Q$1,IF('Sup Personal Directo'!$C$12=100%,('Sup Personal Directo'!D$95*(SUM('Sup Personal Directo'!$C$21,'Sup Personal Directo'!$C$24:$C$26))+'Sup Personal Directo'!D$111+'Sup Personal Directo'!D$90)*'Sup Personal Directo'!D$80,('Sup Personal Directo'!D$95*(SUM('Sup Personal Directo'!$C$21,'Sup Personal Directo'!$C$24,'Sup Personal Directo'!$C$26))+'Sup Personal Directo'!D$111+'Sup Personal Directo'!D$90)*'Sup Personal Directo'!D$80*'Sup Personal Directo'!$C$12+('Sup Personal Directo'!D$90+'Sup Personal Directo'!D$111)*'Sup Personal Directo'!D$80*(1-'Sup Personal Directo'!$C$12)),('Sup Personal Directo'!D$100*(SUM('Sup Personal Directo'!$C$21:$C$22,'Sup Personal Directo'!$C$24:$C$26))+'Sup Personal Directo'!D$111+'Sup Personal Directo'!D$113/12+'Sup Personal Directo'!D$100)*'Sup Personal Directo'!D$85)","v":890.74285714285725},{"$f":"IF('Sup Personal Directo'!$C$11='Sup Personal Directo'!$Q$1,IF('Sup Personal Directo'!$C$12=100%,('Sup Personal Directo'!E$95*(SUM('Sup Personal Directo'!$C$21,'Sup Personal Directo'!$C$24:$C$26))+'Sup Personal Directo'!E$111+'Sup Personal Directo'!E$90)*'Sup Personal Directo'!E$80,('Sup Personal Directo'!E$95*(SUM('Sup Personal Directo'!$C$21,'Sup Personal Directo'!$C$24,'Sup Personal Directo'!$C$26))+'Sup Personal Directo'!E$111+'Sup Personal Directo'!E$90)*'Sup Personal Directo'!E$80*'Sup Personal Directo'!$C$12+('Sup Personal Directo'!E$90+'Sup Personal Directo'!E$111)*'Sup Personal Directo'!E$80*(1-'Sup Personal Directo'!$C$12)),('Sup Personal Directo'!E$100*(SUM('Sup Personal Directo'!$C$21:$C$22,'Sup Personal Directo'!$C$24:$C$26))+'Sup Personal Directo'!E$111+'Sup Personal Directo'!E$113/12+'Sup Personal Directo'!E$100)*'Sup Personal Directo'!E$85)","v":912.23470080000004},{"$f":"IF('Sup Personal Directo'!$C$11='Sup Personal Directo'!$Q$1,IF('Sup Personal Directo'!$C$12=100%,('Sup Personal Directo'!F$95*(SUM('Sup Personal Directo'!$C$21,'Sup Personal Directo'!$C$24:$C$26))+'Sup Personal Directo'!F$111+'Sup Personal Directo'!F$90)*'Sup Personal Directo'!F$80,('Sup Personal Directo'!F$95*(SUM('Sup Personal Directo'!$C$21,'Sup Personal Directo'!$C$24,'Sup Personal Directo'!$C$26))+'Sup Personal Directo'!F$111+'Sup Personal Directo'!F$90)*'Sup Personal Directo'!F$80*'Sup Personal Directo'!$C$12+('Sup Personal Directo'!F$90+'Sup Personal Directo'!F$111)*'Sup Personal Directo'!F$80*(1-'Sup Personal Directo'!$C$12)),('Sup Personal Directo'!F$100*(SUM('Sup Personal Directo'!$C$21:$C$22,'Sup Personal Directo'!$C$24:$C$26))+'Sup Personal Directo'!F$111+'Sup Personal Directo'!F$113/12+'Sup Personal Directo'!F$100)*'Sup Personal Directo'!F$85)","v":943.44042544496665},{"$f":"IF('Sup Personal Directo'!$C$11='Sup Personal Directo'!$Q$1,IF('Sup Personal Directo'!$C$12=100%,('Sup Personal Directo'!G$95*(SUM('Sup Personal Directo'!$C$21,'Sup Personal Directo'!$C$24:$C$26))+'Sup Personal Directo'!G$111+'Sup Personal Directo'!G$90)*'Sup Personal Directo'!G$80,('Sup Personal Directo'!G$95*(SUM('Sup Personal Directo'!$C$21,'Sup Personal Directo'!$C$24,'Sup Personal Directo'!$C$26))+'Sup Personal Directo'!G$111+'Sup Personal Directo'!G$90)*'Sup Personal Directo'!G$80*'Sup Personal Directo'!$C$12+('Sup Personal Directo'!G$90+'Sup Personal Directo'!G$111)*'Sup Personal Directo'!G$80*(1-'Sup Personal Directo'!$C$12)),('Sup Personal Directo'!G$100*(SUM('Sup Personal Directo'!$C$21:$C$22,'Sup Personal Directo'!$C$24:$C$26))+'Sup Personal Directo'!G$111+'Sup Personal Directo'!G$113/12+'Sup Personal Directo'!G$100)*'Sup Personal Directo'!G$85)","v":955.09621678755207},{"$f":"IF('Sup Personal Directo'!$C$11='Sup Personal Directo'!$Q$1,IF('Sup Personal Directo'!$C$12=100%,('Sup Personal Directo'!H$95*(SUM('Sup Personal Directo'!$C$21,'Sup Personal Directo'!$C$24:$C$26))+'Sup Personal Directo'!H$111+'Sup Personal Directo'!H$90)*'Sup Personal Directo'!H$80,('Sup Personal Directo'!H$95*(SUM('Sup Personal Directo'!$C$21,'Sup Personal Directo'!$C$24,'Sup Personal Directo'!$C$26))+'Sup Personal Directo'!H$111+'Sup Personal Directo'!H$90)*'Sup Personal Directo'!H$80*'Sup Personal Directo'!$C$12+('Sup Personal Directo'!H$90+'Sup Personal Directo'!H$111)*'Sup Personal Directo'!H$80*(1-'Sup Personal Directo'!$C$12)),('Sup Personal Directo'!H$100*(SUM('Sup Personal Directo'!$C$21:$C$22,'Sup Personal Directo'!$C$24:$C$26))+'Sup Personal Directo'!H$111+'Sup Personal Directo'!H$113/12+'Sup Personal Directo'!H$100)*'Sup Personal Directo'!H$85)","v":965.33637638546134},{"$f":"IF('Sup Personal Directo'!$C$11='Sup Personal Directo'!$Q$1,IF('Sup Personal Directo'!$C$12=100%,('Sup Personal Directo'!I$95*(SUM('Sup Personal Directo'!$C$21,'Sup Personal Directo'!$C$24:$C$26))+'Sup Personal Directo'!I$111+'Sup Personal Directo'!I$90)*'Sup Personal Directo'!I$80,('Sup Personal Directo'!I$95*(SUM('Sup Personal Directo'!$C$21,'Sup Personal Directo'!$C$24,'Sup Personal Directo'!$C$26))+'Sup Personal Directo'!I$111+'Sup Personal Directo'!I$90)*'Sup Personal Directo'!I$80*'Sup Personal Directo'!$C$12+('Sup Personal Directo'!I$90+'Sup Personal Directo'!I$111)*'Sup Personal Directo'!I$80*(1-'Sup Personal Directo'!$C$12)),('Sup Personal Directo'!I$100*(SUM('Sup Personal Directo'!$C$21:$C$22,'Sup Personal Directo'!$C$24:$C$26))+'Sup Personal Directo'!I$111+'Sup Personal Directo'!I$113/12+'Sup Personal Directo'!I$100)*'Sup Personal Directo'!I$85)","v":979.57856314810192},{"$f":"IF('Sup Personal Directo'!$C$11='Sup Personal Directo'!$Q$1,IF('Sup Personal Directo'!$C$12=100%,('Sup Personal Directo'!J$95*(SUM('Sup Personal Directo'!$C$21,'Sup Personal Directo'!$C$24:$C$26))+'Sup Personal Directo'!J$111+'Sup Personal Directo'!J$90)*'Sup Personal Directo'!J$80,('Sup Personal Directo'!J$95*(SUM('Sup Personal Directo'!$C$21,'Sup Personal Directo'!$C$24,'Sup Personal Directo'!$C$26))+'Sup Personal Directo'!J$111+'Sup Personal Directo'!J$90)*'Sup Personal Directo'!J$80*'Sup Personal Directo'!$C$12+('Sup Personal Directo'!J$90+'Sup Personal Directo'!J$111)*'Sup Personal Directo'!J$80*(1-'Sup Personal Directo'!$C$12)),('Sup Personal Directo'!J$100*(SUM('Sup Personal Directo'!$C$21:$C$22,'Sup Personal Directo'!$C$24:$C$26))+'Sup Personal Directo'!J$111+'Sup Personal Directo'!J$113/12+'Sup Personal Directo'!J$100)*'Sup Personal Directo'!J$85)","v":1006.5821547922667},{"$f":"IF('Sup Personal Directo'!$C$11='Sup Personal Directo'!$Q$1,IF('Sup Personal Directo'!$C$12=100%,('Sup Personal Directo'!K$95*(SUM('Sup Personal Directo'!$C$21,'Sup Personal Directo'!$C$24:$C$26))+'Sup Personal Directo'!K$111+'Sup Personal Directo'!K$90)*'Sup Personal Directo'!K$80,('Sup Personal Directo'!K$95*(SUM('Sup Personal Directo'!$C$21,'Sup Personal Directo'!$C$24,'Sup Personal Directo'!$C$26))+'Sup Personal Directo'!K$111+'Sup Personal Directo'!K$90)*'Sup Personal Directo'!K$80*'Sup Personal Directo'!$C$12+('Sup Personal Directo'!K$90+'Sup Personal Directo'!K$111)*'Sup Personal Directo'!K$80*(1-'Sup Personal Directo'!$C$12)),('Sup Personal Directo'!K$100*(SUM('Sup Personal Directo'!$C$21:$C$22,'Sup Personal Directo'!$C$24:$C$26))+'Sup Personal Directo'!K$111+'Sup Personal Directo'!K$113/12+'Sup Personal Directo'!K$100)*'Sup Personal Directo'!K$85)","v":1032.2426894365703},{"$f":"IF('Sup Personal Directo'!$C$11='Sup Personal Directo'!$Q$1,IF('Sup Personal Directo'!$C$12=100%,('Sup Personal Directo'!L$95*(SUM('Sup Personal Directo'!$C$21,'Sup Personal Directo'!$C$24:$C$26))+'Sup Personal Directo'!L$111+'Sup Personal Directo'!L$90)*'Sup Personal Directo'!L$80,('Sup Personal Directo'!L$95*(SUM('Sup Personal Directo'!$C$21,'Sup Personal Directo'!$C$24,'Sup Personal Directo'!$C$26))+'Sup Personal Directo'!L$111+'Sup Personal Directo'!L$90)*'Sup Personal Directo'!L$80*'Sup Personal Directo'!$C$12+('Sup Personal Directo'!L$90+'Sup Personal Directo'!L$111)*'Sup Personal Directo'!L$80*(1-'Sup Personal Directo'!$C$12)),('Sup Personal Directo'!L$100*(SUM('Sup Personal Directo'!$C$21:$C$22,'Sup Personal Directo'!$C$24:$C$26))+'Sup Personal Directo'!L$111+'Sup Personal Directo'!L$113/12+'Sup Personal Directo'!L$100)*'Sup Personal Directo'!L$85)","v":1055.6509907738975},{"$f":"IF('Sup Personal Directo'!$C$11='Sup Personal Directo'!$Q$1,IF('Sup Personal Directo'!$C$12=100%,('Sup Personal Directo'!M$95*(SUM('Sup Personal Directo'!$C$21,'Sup Personal Directo'!$C$24:$C$26))+'Sup Personal Directo'!M$111+'Sup Personal Directo'!M$90)*'Sup Personal Directo'!M$80,('Sup Personal Directo'!M$95*(SUM('Sup Personal Directo'!$C$21,'Sup Personal Directo'!$C$24,'Sup Personal Directo'!$C$26))+'Sup Personal Directo'!M$111+'Sup Personal Directo'!M$90)*'Sup Personal Directo'!M$80*'Sup Personal Directo'!$C$12+('Sup Personal Directo'!M$90+'Sup Personal Directo'!M$111)*'Sup Personal Directo'!M$80*(1-'Sup Personal Directo'!$C$12)),('Sup Personal Directo'!M$100*(SUM('Sup Personal Directo'!$C$21:$C$22,'Sup Personal Directo'!$C$24:$C$26))+'Sup Personal Directo'!M$111+'Sup Personal Directo'!M$113/12+'Sup Personal Directo'!M$100)*'Sup Personal Directo'!M$85)","v":1078.3345774123557},{"$f":"IF('Sup Personal Directo'!$C$11='Sup Personal Directo'!$Q$1,IF('Sup Personal Directo'!$C$12=100%,('Sup Personal Directo'!N$95*(SUM('Sup Personal Directo'!$C$21,'Sup Personal Directo'!$C$24:$C$26))+'Sup Personal Directo'!N$111+'Sup Personal Directo'!N$90)*'Sup Personal Directo'!N$80,('Sup Personal Directo'!N$95*(SUM('Sup Personal Directo'!$C$21,'Sup Personal Directo'!$C$24,'Sup Personal Directo'!$C$26))+'Sup Personal Directo'!N$111+'Sup Personal Directo'!N$90)*'Sup Personal Directo'!N$80*'Sup Personal Directo'!$C$12+('Sup Personal Directo'!N$90+'Sup Personal Directo'!N$111)*'Sup Personal Directo'!N$80*(1-'Sup Personal Directo'!$C$12)),('Sup Personal Directo'!N$100*(SUM('Sup Personal Directo'!$C$21:$C$22,'Sup Personal Directo'!$C$24:$C$26))+'Sup Personal Directo'!N$111+'Sup Personal Directo'!N$113/12+'Sup Personal Directo'!N$100)*'Sup Personal Directo'!N$85)","v":1101.1497024720927},{"$f":"IF('Sup Personal Directo'!$C$11='Sup Personal Directo'!$Q$1,IF('Sup Personal Directo'!$C$12=100%,('Sup Personal Directo'!O$95*(SUM('Sup Personal Directo'!$C$21,'Sup Personal Directo'!$C$24:$C$26))+'Sup Personal Directo'!O$111+'Sup Personal Directo'!O$90)*'Sup Personal Directo'!O$80,('Sup Personal Directo'!O$95*(SUM('Sup Personal Directo'!$C$21,'Sup Personal Directo'!$C$24,'Sup Personal Directo'!$C$26))+'Sup Personal Directo'!O$111+'Sup Personal Directo'!O$90)*'Sup Personal Directo'!O$80*'Sup Personal Directo'!$C$12+('Sup Personal Directo'!O$90+'Sup Personal Directo'!O$111)*'Sup Personal Directo'!O$80*(1-'Sup Personal Directo'!$C$12)),('Sup Personal Directo'!O$100*(SUM('Sup Personal Directo'!$C$21:$C$22,'Sup Personal Directo'!$C$24:$C$26))+'Sup Personal Directo'!O$111+'Sup Personal Directo'!O$113/12+'Sup Personal Directo'!O$100)*'Sup Personal Directo'!O$85)","v":1122.6512581391444},{"$f":"IF('Sup Personal Directo'!$C$11='Sup Personal Directo'!$Q$1,IF('Sup Personal Directo'!$C$12=100%,('Sup Personal Directo'!P$95*(SUM('Sup Personal Directo'!$C$21,'Sup Personal Directo'!$C$24:$C$26))+'Sup Personal Directo'!P$111+'Sup Personal Directo'!P$90)*'Sup Personal Directo'!P$80,('Sup Personal Directo'!P$95*(SUM('Sup Personal Directo'!$C$21,'Sup Personal Directo'!$C$24,'Sup Personal Directo'!$C$26))+'Sup Personal Directo'!P$111+'Sup Personal Directo'!P$90)*'Sup Personal Directo'!P$80*'Sup Personal Directo'!$C$12+('Sup Personal Directo'!P$90+'Sup Personal Directo'!P$111)*'Sup Personal Directo'!P$80*(1-'Sup Personal Directo'!$C$12)),('Sup Personal Directo'!P$100*(SUM('Sup Personal Directo'!$C$21:$C$22,'Sup Personal Directo'!$C$24:$C$26))+'Sup Personal Directo'!P$111+'Sup Personal Directo'!P$113/12+'Sup Personal Directo'!P$100)*'Sup Personal Directo'!P$85)","v":1145.5791058996604},{"$f":"IF('Sup Personal Directo'!$C$11='Sup Personal Directo'!$Q$1,IF('Sup Personal Directo'!$C$12=100%,('Sup Personal Directo'!Q$95*(SUM('Sup Personal Directo'!$C$21,'Sup Personal Directo'!$C$24:$C$26))+'Sup Personal Directo'!Q$111+'Sup Personal Directo'!Q$90)*'Sup Personal Directo'!Q$80,('Sup Personal Directo'!Q$95*(SUM('Sup Personal Directo'!$C$21,'Sup Personal Directo'!$C$24,'Sup Personal Directo'!$C$26))+'Sup Personal Directo'!Q$111+'Sup Personal Directo'!Q$90)*'Sup Personal Directo'!Q$80*'Sup Personal Directo'!$C$12+('Sup Personal Directo'!Q$90+'Sup Personal Directo'!Q$111)*'Sup Personal Directo'!Q$80*(1-'Sup Personal Directo'!$C$12)),('Sup Personal Directo'!Q$100*(SUM('Sup Personal Directo'!$C$21:$C$22,'Sup Personal Directo'!$C$24:$C$26))+'Sup Personal Directo'!Q$111+'Sup Personal Directo'!Q$113/12+'Sup Personal Directo'!Q$100)*'Sup Personal Directo'!Q$85)","v":1170.3644155237605},{"$f":"IF('Sup Personal Directo'!$C$11='Sup Personal Directo'!$Q$1,IF('Sup Personal Directo'!$C$12=100%,('Sup Personal Directo'!R$95*(SUM('Sup Personal Directo'!$C$21,'Sup Personal Directo'!$C$24:$C$26))+'Sup Personal Directo'!R$111+'Sup Personal Directo'!R$90)*'Sup Personal Directo'!R$80,('Sup Personal Directo'!R$95*(SUM('Sup Personal Directo'!$C$21,'Sup Personal Directo'!$C$24,'Sup Personal Directo'!$C$26))+'Sup Personal Directo'!R$111+'Sup Personal Directo'!R$90)*'Sup Personal Directo'!R$80*'Sup Personal Directo'!$C$12+('Sup Personal Directo'!R$90+'Sup Personal Directo'!R$111)*'Sup Personal Directo'!R$80*(1-'Sup Personal Directo'!$C$12)),('Sup Personal Directo'!R$100*(SUM('Sup Personal Directo'!$C$21:$C$22,'Sup Personal Directo'!$C$24:$C$26))+'Sup Personal Directo'!R$111+'Sup Personal Directo'!R$113/12+'Sup Personal Directo'!R$100)*'Sup Personal Directo'!R$85)","v":1196.6927789172016},{"$f":"IF('Sup Personal Directo'!$C$11='Sup Personal Directo'!$Q$1,IF('Sup Personal Directo'!$C$12=100%,('Sup Personal Directo'!S$95*(SUM('Sup Personal Directo'!$C$21,'Sup Personal Directo'!$C$24:$C$26))+'Sup Personal Directo'!S$111+'Sup Personal Directo'!S$90)*'Sup Personal Directo'!S$80,('Sup Personal Directo'!S$95*(SUM('Sup Personal Directo'!$C$21,'Sup Personal Directo'!$C$24,'Sup Personal Directo'!$C$26))+'Sup Personal Directo'!S$111+'Sup Personal Directo'!S$90)*'Sup Personal Directo'!S$80*'Sup Personal Directo'!$C$12+('Sup Personal Directo'!S$90+'Sup Personal Directo'!S$111)*'Sup Personal Directo'!S$80*(1-'Sup Personal Directo'!$C$12)),('Sup Personal Directo'!S$100*(SUM('Sup Personal Directo'!$C$21:$C$22,'Sup Personal Directo'!$C$24:$C$26))+'Sup Personal Directo'!S$111+'Sup Personal Directo'!S$113/12+'Sup Personal Directo'!S$100)*'Sup Personal Directo'!S$85)","v":1222.8549171258512},{"$f":"IF('Sup Personal Directo'!$C$11='Sup Personal Directo'!$Q$1,IF('Sup Personal Directo'!$C$12=100%,('Sup Personal Directo'!T$95*(SUM('Sup Personal Directo'!$C$21,'Sup Personal Directo'!$C$24:$C$26))+'Sup Personal Directo'!T$111+'Sup Personal Directo'!T$90)*'Sup Personal Directo'!T$80,('Sup Personal Directo'!T$95*(SUM('Sup Personal Directo'!$C$21,'Sup Personal Directo'!$C$24,'Sup Personal Directo'!$C$26))+'Sup Personal Directo'!T$111+'Sup Personal Directo'!T$90)*'Sup Personal Directo'!T$80*'Sup Personal Directo'!$C$12+('Sup Personal Directo'!T$90+'Sup Personal Directo'!T$111)*'Sup Personal Directo'!T$80*(1-'Sup Personal Directo'!$C$12)),('Sup Personal Directo'!T$100*(SUM('Sup Personal Directo'!$C$21:$C$22,'Sup Personal Directo'!$C$24:$C$26))+'Sup Personal Directo'!T$111+'Sup Personal Directo'!T$113/12+'Sup Personal Directo'!T$100)*'Sup Personal Directo'!T$85)","v":1249.0340349343467},{"$f":"IF('Sup Personal Directo'!$C$11='Sup Personal Directo'!$Q$1,IF('Sup Personal Directo'!$C$12=100%,('Sup Personal Directo'!U$95*(SUM('Sup Personal Directo'!$C$21,'Sup Personal Directo'!$C$24:$C$26))+'Sup Personal Directo'!U$111+'Sup Personal Directo'!U$90)*'Sup Personal Directo'!U$80,('Sup Personal Directo'!U$95*(SUM('Sup Personal Directo'!$C$21,'Sup Personal Directo'!$C$24,'Sup Personal Directo'!$C$26))+'Sup Personal Directo'!U$111+'Sup Personal Directo'!U$90)*'Sup Personal Directo'!U$80*'Sup Personal Directo'!$C$12+('Sup Personal Directo'!U$90+'Sup Personal Directo'!U$111)*'Sup Personal Directo'!U$80*(1-'Sup Personal Directo'!$C$12)),('Sup Personal Directo'!U$100*(SUM('Sup Personal Directo'!$C$21:$C$22,'Sup Personal Directo'!$C$24:$C$26))+'Sup Personal Directo'!U$111+'Sup Personal Directo'!U$113/12+'Sup Personal Directo'!U$100)*'Sup Personal Directo'!U$85)","v":1275.5754827669307},{"$f":"IF('Sup Personal Directo'!$C$11='Sup Personal Directo'!$Q$1,IF('Sup Personal Directo'!$C$12=100%,('Sup Personal Directo'!V$95*(SUM('Sup Personal Directo'!$C$21,'Sup Personal Directo'!$C$24:$C$26))+'Sup Personal Directo'!V$111+'Sup Personal Directo'!V$90)*'Sup Personal Directo'!V$80,('Sup Personal Directo'!V$95*(SUM('Sup Personal Directo'!$C$21,'Sup Personal Directo'!$C$24,'Sup Personal Directo'!$C$26))+'Sup Personal Directo'!V$111+'Sup Personal Directo'!V$90)*'Sup Personal Directo'!V$80*'Sup Personal Directo'!$C$12+('Sup Personal Directo'!V$90+'Sup Personal Directo'!V$111)*'Sup Personal Directo'!V$80*(1-'Sup Personal Directo'!$C$12)),('Sup Personal Directo'!V$100*(SUM('Sup Personal Directo'!$C$21:$C$22,'Sup Personal Directo'!$C$24:$C$26))+'Sup Personal Directo'!V$111+'Sup Personal Directo'!V$113/12+'Sup Personal Directo'!V$100)*'Sup Personal Directo'!V$85)","v":1302.642946288337},{"$f":"IF('Sup Personal Directo'!$C$11='Sup Personal Directo'!$Q$1,IF('Sup Personal Directo'!$C$12=100%,('Sup Personal Directo'!W$95*(SUM('Sup Personal Directo'!$C$21,'Sup Personal Directo'!$C$24:$C$26))+'Sup Personal Directo'!W$111+'Sup Personal Directo'!W$90)*'Sup Personal Directo'!W$80,('Sup Personal Directo'!W$95*(SUM('Sup Personal Directo'!$C$21,'Sup Personal Directo'!$C$24,'Sup Personal Directo'!$C$26))+'Sup Personal Directo'!W$111+'Sup Personal Directo'!W$90)*'Sup Personal Directo'!W$80*'Sup Personal Directo'!$C$12+('Sup Personal Directo'!W$90+'Sup Personal Directo'!W$111)*'Sup Personal Directo'!W$80*(1-'Sup Personal Directo'!$C$12)),('Sup Personal Directo'!W$100*(SUM('Sup Personal Directo'!$C$21:$C$22,'Sup Personal Directo'!$C$24:$C$26))+'Sup Personal Directo'!W$111+'Sup Personal Directo'!W$113/12+'Sup Personal Directo'!W$100)*'Sup Personal Directo'!W$85)","v":1330.2948818827685}]

{"sheet":"OPEX Personal Indirecto","index":10,"n_rows":86,"n_cols":23,"rows_kept":86,"cut":false,"hidden":false,"merged":[]}
[]
[null,"Estructura de costos Transporte Convencional"]
[null,"OPEX PERSONAL INDIRECTO"]
[]
[null,null,"Año",1,{"$f":"D5+1","v":2},{"$f":"E5+1","v":3},4,5,6,7,8,9,10,11,12,13,14,15,16,17,18,19,20]
[]
[null,null,"Opex personal Privado"]
[null,null,"Opex personal Privado indirecto por bus sin SITP-Q (USD)",{"$f":"D10/'Sup fijo'!$D$142","v":9349.5441939890716},{"$f":"E10/'Sup fijo'!$D$142","v":9575.1299963016409},{"$f":"F10/'Sup fijo'!$D$142","v":9902.6760432151295},{"$f":"G10/'Sup fijo'!$D$142","v":10025.019248551593},{"$f":"H10/'Sup fijo'!$D$142","v":10132.503494926863},{"$f":"I10/'Sup fijo'!$D$142","v":10281.994398489616},{"$f":"J10/'Sup fijo'!$D$142","v":10565.433408355357},{"$f":"K10/'Sup fijo'!$D$142","v":10834.775228808285},{"$f":"L10/'Sup fijo'!$D$142","v":11080.476831806887},{"$f":"M10/'Sup fijo'!$D$142","v":11318.571579414205},{"$f":"N10/'Sup fijo'!$D$142","v":11558.046999651217},{"$f":"O10/'Sup fijo'!$D$142","v":11783.734742568889},{"$f":"P10/'Sup fijo'!$D$142","v":12024.393339144786},{"$f":"Q10/'Sup fijo'!$D$142","v":12284.548495971439},{"$f":"R10/'Sup fijo'!$D$142","v":12560.900077270624},{"$f":"S10/'Sup fijo'!$D$142","v":12835.506901708828},{"$f":"T10/'Sup fijo'!$D$142","v":13110.291949882303},{"$f":"U10/'Sup fijo'!$D$142","v":13388.880138935165},{"$f":"V10/'Sup fijo'!$D$142","v":13672.989570050129},{"$f":"W10/'Sup fijo'!$D$142","v":13963.233821594004}]
[null,null,"Opex personal privado indirecto por bus con SITP-Q (USD)",{"$f":"(D10-IF(COUNTA($D$5:D$5)>=2,D30,0))/'Sup fijo'!$D$142","v":9349.5441939890716},{"$f":"(E10-IF(COUNTA($D$5:E$5)>=2,E30,0))/'Sup fijo'!$D$142","v":9103.3742473180355},{"$f":"(F10-IF(COUNTA($D$5:F$5)>=2,F30,0))/'Sup fijo'!$D$142","v":9414.7824735702925},{"$f":"(G10-IF(COUNTA($D$5:G$5)>=2,G30,0))/'Sup fijo'!$D$142","v":9531.0979685269631},{"$f":"(H10-IF(COUNTA($D$5:H$5)>=2,H30,0))/'Sup fijo'!$D$142","v":9633.286588506322},{"$f":"(I10-IF(COUNTA($D$5:I$5)>=2,I30,0))/'Sup fijo'!$D$142","v":9775.4122455185097},{"$f":"(J10-IF(COUNTA($D$5:J$5)>=2,J30,0))/'Sup fijo'!$D$142","v":10044.886538201084},{"$f":"(K10-IF(COUNTA($D$5:K$5)>=2,K30,0))/'Sup fijo'!$D$142","v":10300.958193936724},{"$f":"(L10-IF(COUNTA($D$5:L$5)>=2,L30,0))/'Sup fijo'!$D$142","v":10534.554358806146},{"$f":"(M10-IF(COUNTA($D$5:M$5)>=2,M30,0))/'Sup fijo'!$D$142","v":10760.918449385317},{"$f":"(N10-IF(COUNTA($D$5:N$5)>=2,N30,0))/'Sup fijo'!$D$142","v":10988.595188426279},{"$f":"(O10-IF(COUNTA($D$5:O$5)>=2,O30,0))/'Sup fijo'!$D$142","v":11203.163553305467},{"$f":"(P10-IF(COUNTA($D$5:P$5)>=2,P30,0))/'Sup fijo'!$D$142","v":11431.965174934718},{"$f":"(Q10-IF(COUNTA($D$5:Q$5)>=2,Q30,0))/'Sup fijo'!$D$142","v":11679.302783497471},{"$f":"(R10-IF(COUNTA($D$5:R$5)>=2,R30,0))/'Sup fijo'!$D$142","v":11942.038837146487},{"$f":"(S10-IF(COUNTA($D$5:S$5)>=2,S30,0))/'Sup fijo'!$D$142","v":12203.11609611781},{"$f":"(T10-IF(COUNTA($D$5:T$5)>=2,T30,0))/'Sup fijo'!$D$142","v":12464.362797943964},{"$f":"(U10-IF(COUNTA($D$5:U$5)>=2,U30,0))/'Sup fijo'!$D$142","v":12729.225264230097},{"$f":"(V10-IF(COUNTA($D$5:V$5)>=2,V30,0))/'Sup fijo'!$D$142","v":12999.336947270547},{"$f":"(W10-IF(COUNTA($D$5:W$5)>=2,W30,0))/'Sup fijo'!$D$142","v":13275.281195124846}]
[null,null,"Opex personal privado indirecto (USD)",{"$f":"SUM(D21:D52)","v":467477.20969945361},{"$f":"SUM(E21:E52)","v":478756.49981508206},495133.80216075649,501250.96242757962,506625.17474634317,514099.71992448083,528271.67041776783,541738.76144041424,554023.84159034432,565928.57897071028,577902.34998256085,589186.73712844448,601219.66695723927,614227.42479857197,628045.00386353116,641775.34508544137,655514.59749411512,669444.00694675825,683649.47850250651,698161.69107970013]
[]
[null,null,"Opex personal Público"]
[null,null,"Opex personal público indirecto por bus sin SITP-Q (USD)",{"$f":"D15/SUM('Sup fijo'!$D$145:$D$147)","v":0},{"$f":"E15/SUM('Sup fijo'!$D$145:$D$147)","v":0},{"$f":"F15/SUM('Sup fijo'!$D$145:$D$147)","v":0},{"$f":"G15/SUM('Sup fijo'!$D$145:$D$147)","v":0},{"$f":"H15/SUM('Sup fijo'!$D$145:$D$147)","v":0},{"$f":"I15/SUM('Sup fijo'!$D$145:$D$147)","v":0},{"$f":"J15/SUM('Sup fijo'!$D$145:$D$147)","v":0},{"$f":"K15/SUM('Sup fijo'!$D$145:$D$147)","v":0},{"$f":"L15/SUM('Sup fijo'!$D$145:$D$147)","v":0},{"$f":"M15/SUM('Sup fijo'!$D$145:$D$147)","v":0},{"$f":"N15/SUM('Sup fijo'!$D$145:$D$147)","v":0},{"$f":"O15/SUM('Sup fijo'!$D$145:$D$147)","v":0},{"$f":"P15/SUM('Sup fijo'!$D$145:$D$147)","v":0},{"$f":"Q15/SUM('Sup fijo'!$D$145:$D$147)","v":0},{"$f":"R15/SUM('Sup fijo'!$D$145:$D$147)","v":0},{"$f":"S15/SUM('Sup fijo'!$D$145:$D$147)","v":0},{"$f":"T15/SUM('Sup fijo'!$D$145:$D$147)","v":0},{"$f":"U15/SUM('Sup fijo'!$D$145:$D$147)","v":0},{"$f":"V15/SUM('Sup fijo'!$D$145:$D$147)","v":0},{"$f":"W15/SUM('Sup fijo'!$D$145:$D$147)","v":0}]
[null,null,"Opex personal público indirecto por bus con SITP-Q (USD)",{"$f":"D13","v":0},{"$f":"E13","v":0},0,0,0,0,0,0,0,0,0,0,0,0,0,0,0,0,0,0]
[null,null,"Opex personal público indirecto (USD)",{"$f":"SUM(D55:D86)","v":0},{"$f":"SUM(E55:E86)","v":0},0,0,0,0,0,0,0,0,0,0,0,0,0,0,0,0,0,0]
[]
[]
[]
[]
[null,null,"OPERADOR PRIVADO"]
[null,"a) Personal directivo "]
[null,null,"Presidente ",{"$f":"(('Sup Personal Indirecto'!D85*(1+SUM('Sup Personal Indirecto'!$D$226,'Sup Personal Indirecto'!$D$242,'Sup Personal Indirecto'!$D$244,'Sup Personal Indirecto'!$D$245)))*12+'Sup Personal Indirecto'!$D$243*12)*'Sup Personal Indirecto'!D15*'Sup Personal Directo'!D$113","v":16602.459016393444},{"$f":"(('Sup Personal Indirecto'!E85*(1+SUM('Sup Personal Indirecto'!$D$226,'Sup Personal Indirecto'!$D$242,'Sup Personal Indirecto'!$D$244,'Sup Personal Indirecto'!$D$245)))*12+'Sup Personal Indirecto'!$D$243*12)*'Sup Personal Indirecto'!E15*'Sup Personal Directo'!E$113","v":17003.043147540986},{"$f":"(('Sup Personal Indirecto'!F85*(1+SUM('Sup Personal Indirecto'!$D$226,'Sup Personal Indirecto'!$D$242,'Sup Personal Indirecto'!$D$244,'Sup Personal Indirecto'!$D$245)))*12+'Sup Personal Indirecto'!$D$243*12)*'Sup Personal Indirecto'!F15*'Sup Personal Directo'!F$113","v":17584.68324753207},{"$f":"(('Sup Personal Indirecto'!G85*(1+SUM('Sup Personal Indirecto'!$D$226,'Sup Personal Indirecto'!$D$242,'Sup Personal Indirecto'!$D$244,'Sup Personal Indirecto'!$D$245)))*12+'Sup Personal Indirecto'!$D$243*12)*'Sup Personal Indirecto'!G15*'Sup Personal Directo'!G$113","v":17801.9342717947},{"$f":"(('Sup Personal Indirecto'!H85*(1+SUM('Sup Personal Indirecto'!$D$226,'Sup Personal Indirecto'!$D$242,'Sup Personal Indirecto'!$D$244,'Sup Personal Indirecto'!$D$245)))*12+'Sup Personal Indirecto'!$D$243*12)*'Sup Personal Indirecto'!H15*'Sup Personal Directo'!H$113","v":17992.799490283171},{"$f":"(('Sup Personal Indirecto'!I85*(1+SUM('Sup Personal Indirecto'!$D$226,'Sup Personal Indirecto'!$D$242,'Sup Personal Indirecto'!$D$244,'Sup Personal Indirecto'!$D$245)))*12+'Sup Personal Indirecto'!$D$243*12)*'Sup Personal Indirecto'!I15*'Sup Personal Directo'!I$113","v":18258.258056843009},{"$f":"(('Sup Personal Indirecto'!J85*(1+SUM('Sup Personal Indirecto'!$D$226,'Sup Personal Indirecto'!$D$242,'Sup Personal Indirecto'!$D$244,'Sup Personal Indirecto'!$D$245)))*12+'Sup Personal Indirecto'!$D$243*12)*'Sup Personal Indirecto'!J15*'Sup Personal Directo'!J$113","v":18761.575057897298},{"$f":"(('Sup Personal Indirecto'!K85*(1+SUM('Sup Personal Indirecto'!$D$226,'Sup Personal Indirecto'!$D$242,'Sup Personal Indirecto'!$D$244,'Sup Personal Indirecto'!$D$245)))*12+'Sup Personal Indirecto'!$D$243*12)*'Sup Personal Indirecto'!K15*'Sup Personal Directo'!K$113","v":19239.858965934822},{"$f":"(('Sup Personal Indirecto'!L85*(1+SUM('Sup Personal Indirecto'!$D$226,'Sup Personal Indirecto'!$D$242,'Sup Personal Indirecto'!$D$244,'Sup Personal Indirecto'!$D$245)))*12+'Sup Personal Indirecto'!$D$243*12)*'Sup Personal Indirecto'!L15*'Sup Personal Directo'!L$113","v":19676.163742874538},{"$f":"(('Sup Personal Indirecto'!M85*(1+SUM('Sup Personal Indirecto'!$D$226,'Sup Personal Indirecto'!$D$242,'Sup Personal Indirecto'!$D$244,'Sup Personal Indirecto'!$D$245)))*12+'Sup Personal Indirecto'!$D$243*12)*'Sup Personal Indirecto'!M15*'Sup Personal Directo'!M$113","v":20098.960641541573},{"$f":"(('Sup Personal Indirecto'!N85*(1+SUM('Sup Personal Indirecto'!$D$226,'Sup Personal Indirecto'!$D$242,'Sup Personal Indirecto'!$D$244,'Sup Personal Indirecto'!$D$245)))*12+'Sup Personal Indirecto'!$D$243*12)*'Sup Personal Indirecto'!N15*'Sup Personal Directo'!N$113","v":20524.209270504114},{"$f":"(('Sup Personal Indirecto'!O85*(1+SUM('Sup Personal Indirecto'!$D$226,'Sup Personal Indirecto'!$D$242,'Sup Personal Indirecto'!$D$244,'Sup Personal Indirecto'!$D$245)))*12+'Sup Personal Indirecto'!$D$243*12)*'Sup Personal Indirecto'!O15*'Sup Personal Directo'!O$113","v":20924.974422745661},{"$f":"(('Sup Personal Indirecto'!P85*(1+SUM('Sup Personal Indirecto'!$D$226,'Sup Personal Indirecto'!$D$242,'Sup Personal Indirecto'!$D$244,'Sup Personal Indirecto'!$D$245)))*12+'Sup Personal Indirecto'!$D$243*12)*'Sup Personal Indirecto'!P15*'Sup Personal Directo'!P$113","v":21352.324077840371},{"$f":"(('Sup Personal Indirecto'!Q85*(1+SUM('Sup Personal Indirecto'!$D$226,'Sup Personal Indirecto'!$D$242,'Sup Personal Indirecto'!$D$244,'Sup Personal Indirecto'!$D$245)))*12+'Sup Personal Indirecto'!$D$243*12)*'Sup Personal Indirecto'!Q15*'Sup Personal Directo'!Q$113","v":21814.294762132646},{"$f":"(('Sup Personal Indirecto'!R85*(1+SUM('Sup Personal Indirecto'!$D$226,'Sup Personal Indirecto'!$D$242,'Sup Personal Indirecto'!$D$244,'Sup Personal Indirecto'!$D$245)))*12+'Sup Personal Indirecto'!$D$243*12)*'Sup Personal Indirecto'!R15*'Sup Personal Directo'!R$113","v":22305.026257426824},{"$f":"(('Sup Personal Indirecto'!S85*(1+SUM('Sup Personal Indirecto'!$D$226,'Sup Personal Indirecto'!$D$242,'Sup Personal Indirecto'!$D$244,'Sup Personal Indirecto'!$D$245)))*12+'Sup Personal Indirecto'!$D$243*12)*'Sup Personal Indirecto'!S15*'Sup Personal Directo'!S$113","v":22792.659499621506},{"$f":"(('Sup Personal Indirecto'!T85*(1+SUM('Sup Personal Indirecto'!$D$226,'Sup Personal Indirecto'!$D$242,'Sup Personal Indirecto'!$D$244,'Sup Personal Indirecto'!$D$245)))*12+'Sup Personal Indirecto'!$D$243*12)*'Sup Personal Indirecto'!T15*'Sup Personal Directo'!T$113","v":23280.609222726805},{"$f":"(('Sup Personal Indirecto'!U85*(1+SUM('Sup Personal Indirecto'!$D$226,'Sup Personal Indirecto'!$D$242,'Sup Personal Indirecto'!$D$244,'Sup Personal Indirecto'!$D$245)))*12+'Sup Personal Indirecto'!$D$243*12)*'Sup Personal Indirecto'!U15*'Sup Personal Directo'!U$113","v":23775.312375654303},{"$f":"(('Sup Personal Indirecto'!V85*(1+SUM('Sup Personal Indirecto'!$D$226,'Sup Personal Indirecto'!$D$242,'Sup Personal Indirecto'!$D$244,'Sup Personal Indirecto'!$D$245)))*12+'Sup Personal Indirecto'!$D$243*12)*'Sup Personal Indirecto'!V15*'Sup Personal Directo'!V$113","v":24279.819877665963},{"$f":"(('Sup Personal Indirecto'!W85*(1+SUM('Sup Personal Indirecto'!$D$226,'Sup Personal Indirecto'!$D$242,'Sup Personal Indirecto'!$D$244,'Sup Personal Indirecto'!$D$245)))*12+'Sup Personal Indirecto'!$D$243*12)*'Sup Personal Indirecto'!W15*'Sup Personal Directo'!W$113","v":24795.221290934747}]
[null,null,"Gerente general ",{"$f":"(('Sup Personal Indirecto'!D86*(1+SUM('Sup Personal Indirecto'!$D$226,'Sup Personal Indirecto'!$D$242,'Sup Personal Indirecto'!$D$244,'Sup Personal Indirecto'!$D$245)))*12+'Sup Personal Indirecto'!$D$243*12)*'Sup Personal Indirecto'!D16*'Sup Personal Directo'!D$113","v":32829.918032786889},{"$f":"(('Sup Personal Indirecto'!E86*(1+SUM('Sup Personal Indirecto'!$D$226,'Sup Personal Indirecto'!$D$242,'Sup Personal Indirecto'!$D$244,'Sup Personal Indirecto'!$D$245)))*12+'Sup Personal Indirecto'!$D$243*12)*'Sup Personal Indirecto'!E16*'Sup Personal Directo'!E$113","v":33622.038295081969},{"$f":"(('Sup Personal Indirecto'!F86*(1+SUM('Sup Personal Indirecto'!$D$226,'Sup Personal Indirecto'!$D$242,'Sup Personal Indirecto'!$D$244,'Sup Personal Indirecto'!$D$245)))*12+'Sup Personal Indirecto'!$D$243*12)*'Sup Personal Indirecto'!F16*'Sup Personal Directo'!F$113","v":34772.180981080135},{"$f":"(('Sup Personal Indirecto'!G86*(1+SUM('Sup Personal Indirecto'!$D$226,'Sup Personal Indirecto'!$D$242,'Sup Personal Indirecto'!$D$244,'Sup Personal Indirecto'!$D$245)))*12+'Sup Personal Indirecto'!$D$243*12)*'Sup Personal Indirecto'!G16*'Sup Personal Directo'!G$113","v":35201.775977341749},{"$f":"(('Sup Personal Indirecto'!H86*(1+SUM('Sup Personal Indirecto'!$D$226,'Sup Personal Indirecto'!$D$242,'Sup Personal Indirecto'!$D$244,'Sup Personal Indirecto'!$D$245)))*12+'Sup Personal Indirecto'!$D$243*12)*'Sup Personal Indirecto'!H16*'Sup Personal Directo'!H$113","v":35579.195338660415},{"$f":"(('Sup Personal Indirecto'!I86*(1+SUM('Sup Personal Indirecto'!$D$226,'Sup Personal Indirecto'!$D$242,'Sup Personal Indirecto'!$D$244,'Sup Personal Indirecto'!$D$245)))*12+'Sup Personal Indirecto'!$D$243*12)*'Sup Personal Indirecto'!I16*'Sup Personal Directo'!I$113","v":36104.11655500887},{"$f":"(('Sup Personal Indirecto'!J86*(1+SUM('Sup Personal Indirecto'!$D$226,'Sup Personal Indirecto'!$D$242,'Sup Personal Indirecto'!$D$244,'Sup Personal Indirecto'!$D$245)))*12+'Sup Personal Indirecto'!$D$243*12)*'Sup Personal Indirecto'!J16*'Sup Personal Directo'!J$113","v":37099.382128187193},{"$f":"(('Sup Personal Indirecto'!K86*(1+SUM('Sup Personal Indirecto'!$D$226,'Sup Personal Indirecto'!$D$242,'Sup Personal Indirecto'!$D$244,'Sup Personal Indirecto'!$D$245)))*12+'Sup Personal Indirecto'!$D$243*12)*'Sup Personal Indirecto'!K16*'Sup Personal Directo'!K$113","v":38045.146938193255},{"$f":"(('Sup Personal Indirecto'!L86*(1+SUM('Sup Personal Indirecto'!$D$226,'Sup Personal Indirecto'!$D$242,'Sup Personal Indirecto'!$D$244,'Sup Personal Indirecto'!$D$245)))*12+'Sup Personal Indirecto'!$D$243*12)*'Sup Personal Indirecto'!L16*'Sup Personal Directo'!L$113","v":38907.901669290666},{"$f":"(('Sup Personal Indirecto'!M86*(1+SUM('Sup Personal Indirecto'!$D$226,'Sup Personal Indirecto'!$D$242,'Sup Personal Indirecto'!$D$244,'Sup Personal Indirecto'!$D$245)))*12+'Sup Personal Indirecto'!$D$243*12)*'Sup Personal Indirecto'!M16*'Sup Personal Directo'!M$113","v":39743.945746499325},{"$f":"(('Sup Personal Indirecto'!N86*(1+SUM('Sup Personal Indirecto'!$D$226,'Sup Personal Indirecto'!$D$242,'Sup Personal Indirecto'!$D$244,'Sup Personal Indirecto'!$D$245)))*12+'Sup Personal Indirecto'!$D$243*12)*'Sup Personal Indirecto'!N16*'Sup Personal Directo'!N$113","v":40584.837907028683},{"$f":"(('Sup Personal Indirecto'!O86*(1+SUM('Sup Personal Indirecto'!$D$226,'Sup Personal Indirecto'!$D$242,'Sup Personal Indirecto'!$D$244,'Sup Personal Indirecto'!$D$245)))*12+'Sup Personal Indirecto'!$D$243*12)*'Sup Personal Indirecto'!O16*'Sup Personal Directo'!O$113","v":41377.316122785509},{"$f":"(('Sup Personal Indirecto'!P86*(1+SUM('Sup Personal Indirecto'!$D$226,'Sup Personal Indirecto'!$D$242,'Sup Personal Indirecto'!$D$244,'Sup Personal Indirecto'!$D$245)))*12+'Sup Personal Indirecto'!$D$243*12)*'Sup Personal Indirecto'!P16*'Sup Personal Directo'!P$113","v":42222.362879669286},{"$f":"(('Sup Personal Indirecto'!Q86*(1+SUM('Sup Personal Indirecto'!$D$226,'Sup Personal Indirecto'!$D$242,'Sup Personal Indirecto'!$D$244,'Sup Personal Indirecto'!$D$245)))*12+'Sup Personal Indirecto'!$D$243*12)*'Sup Personal Indirecto'!Q16*'Sup Personal Directo'!Q$113","v":43135.869709223291},{"$f":"(('Sup Personal Indirecto'!R86*(1+SUM('Sup Personal Indirecto'!$D$226,'Sup Personal Indirecto'!$D$242,'Sup Personal Indirecto'!$D$244,'Sup Personal Indirecto'!$D$245)))*12+'Sup Personal Indirecto'!$D$243*12)*'Sup Personal Indirecto'!R16*'Sup Personal Directo'!R$113","v":44106.248539895721},{"$f":"(('Sup Personal Indirecto'!S86*(1+SUM('Sup Personal Indirecto'!$D$226,'Sup Personal Indirecto'!$D$242,'Sup Personal Indirecto'!$D$244,'Sup Personal Indirecto'!$D$245)))*12+'Sup Personal Indirecto'!$D$243*12)*'Sup Personal Indirecto'!S16*'Sup Personal Directo'!S$113","v":45070.500844660099},{"$f":"(('Sup Personal Indirecto'!T86*(1+SUM('Sup Personal Indirecto'!$D$226,'Sup Personal Indirecto'!$D$242,'Sup Personal Indirecto'!$D$244,'Sup Personal Indirecto'!$D$245)))*12+'Sup Personal Indirecto'!$D$243*12)*'Sup Personal Indirecto'!T16*'Sup Personal Directo'!T$113","v":46035.378962886462},{"$f":"(('Sup Personal Indirecto'!U86*(1+SUM('Sup Personal Indirecto'!$D$226,'Sup Personal Indirecto'!$D$242,'Sup Personal Indirecto'!$D$244,'Sup Personal Indirecto'!$D$245)))*12+'Sup Personal Indirecto'!$D$243*12)*'Sup Personal Indirecto'!U16*'Sup Personal Directo'!U$113","v":47013.611400932801},{"$f":"(('Sup Personal Indirecto'!V86*(1+SUM('Sup Personal Indirecto'!$D$226,'Sup Personal Indirecto'!$D$242,'Sup Personal Indirecto'!$D$244,'Sup Personal Indirecto'!$D$245)))*12+'Sup Personal Indirecto'!$D$243*12)*'Sup Personal Indirecto'!V16*'Sup Personal Directo'!V$113","v":48011.231086162232},{"$f":"(('Sup Personal Indirecto'!W86*(1+SUM('Sup Personal Indirecto'!$D$226,'Sup Personal Indirecto'!$D$242,'Sup Personal Indirecto'!$D$244,'Sup Personal Indirecto'!$D$245)))*12+'Sup Personal Indirecto'!$D$243*12)*'Sup Personal Indirecto'!W16*'Sup Personal Directo'!W$113","v":49030.39253296292}]
[null,"b) Personal administrativo "]
[null,null,"Administrativo & Financiero",{"$f":"(('Sup Personal Indirecto'!D88*(1+SUM('Sup Personal Indirecto'!$D$226,'Sup Personal Indirecto'!$D$242,'Sup Personal Indirecto'!$D$244,'Sup Personal Indirecto'!$D$245)))*12+'Sup Personal Indirecto'!$D$243*12)*'Sup Personal Indirecto'!D18*'Sup Personal Directo'!D$113","v":24716.188524590172},{"$f":"(('Sup Personal Indirecto'!E88*(1+SUM('Sup Personal Indirecto'!$D$226,'Sup Personal Indirecto'!$D$242,'Sup Personal Indirecto'!$D$244,'Sup Personal Indirecto'!$D$245)))*12+'Sup Personal Indirecto'!$D$243*12)*'Sup Personal Indirecto'!E18*'Sup Personal Directo'!E$113","v":25312.540721311478},{"$f":"(('Sup Personal Indirecto'!F88*(1+SUM('Sup Personal Indirecto'!$D$226,'Sup Personal Indirecto'!$D$242,'Sup Personal Indirecto'!$D$244,'Sup Personal Indirecto'!$D$245)))*12+'Sup Personal Indirecto'!$D$243*12)*'Sup Personal Indirecto'!F18*'Sup Personal Directo'!F$113","v":26178.432114306106},{"$f":"(('Sup Personal Indirecto'!G88*(1+SUM('Sup Personal Indirecto'!$D$226,'Sup Personal Indirecto'!$D$242,'Sup Personal Indirecto'!$D$244,'Sup Personal Indirecto'!$D$245)))*12+'Sup Personal Indirecto'!$D$243*12)*'Sup Personal Indirecto'!G18*'Sup Personal Directo'!G$113","v":26501.855124568228},{"$f":"(('Sup Personal Indirecto'!H88*(1+SUM('Sup Personal Indirecto'!$D$226,'Sup Personal Indirecto'!$D$242,'Sup Personal Indirecto'!$D$244,'Sup Personal Indirecto'!$D$245)))*12+'Sup Personal Indirecto'!$D$243*12)*'Sup Personal Indirecto'!H18*'Sup Personal Directo'!H$113","v":26785.997414471796},{"$f":"(('Sup Personal Indirecto'!I88*(1+SUM('Sup Personal Indirecto'!$D$226,'Sup Personal Indirecto'!$D$242,'Sup Personal Indirecto'!$D$244,'Sup Personal Indirecto'!$D$245)))*12+'Sup Personal Indirecto'!$D$243*12)*'Sup Personal Indirecto'!I18*'Sup Personal Directo'!I$113","v":27181.187305925945},{"$f":"(('Sup Personal Indirecto'!J88*(1+SUM('Sup Personal Indirecto'!$D$226,'Sup Personal Indirecto'!$D$242,'Sup Personal Indirecto'!$D$244,'Sup Personal Indirecto'!$D$245)))*12+'Sup Personal Indirecto'!$D$243*12)*'Sup Personal Indirecto'!J18*'Sup Personal Directo'!J$113","v":27930.478593042248},{"$f":"(('Sup Personal Indirecto'!K88*(1+SUM('Sup Personal Indirecto'!$D$226,'Sup Personal Indirecto'!$D$242,'Sup Personal Indirecto'!$D$244,'Sup Personal Indirecto'!$D$245)))*12+'Sup Personal Indirecto'!$D$243*12)*'Sup Personal Indirecto'!K18*'Sup Personal Directo'!K$113","v":28642.502952064042},{"$f":"(('Sup Personal Indirecto'!L88*(1+SUM('Sup Personal Indirecto'!$D$226,'Sup Personal Indirecto'!$D$242,'Sup Personal Indirecto'!$D$244,'Sup Personal Indirecto'!$D$245)))*12+'Sup Personal Indirecto'!$D$243*12)*'Sup Personal Indirecto'!L18*'Sup Personal Directo'!L$113","v":29292.032706082606},{"$f":"(('Sup Personal Indirecto'!M88*(1+SUM('Sup Personal Indirecto'!$D$226,'Sup Personal Indirecto'!$D$242,'Sup Personal Indirecto'!$D$244,'Sup Personal Indirecto'!$D$245)))*12+'Sup Personal Indirecto'!$D$243*12)*'Sup Personal Indirecto'!M18*'Sup Personal Directo'!M$113","v":29921.453194020451},{"$f":"(('Sup Personal Indirecto'!N88*(1+SUM('Sup Personal Indirecto'!$D$226,'Sup Personal Indirecto'!$D$242,'Sup Personal Indirecto'!$D$244,'Sup Personal Indirecto'!$D$245)))*12+'Sup Personal Indirecto'!$D$243*12)*'Sup Personal Indirecto'!N18*'Sup Personal Directo'!N$113","v":30554.523588766402},{"$f":"(('Sup Personal Indirecto'!O88*(1+SUM('Sup Personal Indirecto'!$D$226,'Sup Personal Indirecto'!$D$242,'Sup Personal Indirecto'!$D$244,'Sup Personal Indirecto'!$D$245)))*12+'Sup Personal Indirecto'!$D$243*12)*'Sup Personal Indirecto'!O18*'Sup Personal Directo'!O$113","v":31151.145272765589},{"$f":"(('Sup Personal Indirecto'!P88*(1+SUM('Sup Personal Indirecto'!$D$226,'Sup Personal Indirecto'!$D$242,'Sup Personal Indirecto'!$D$244,'Sup Personal Indirecto'!$D$245)))*12+'Sup Personal Indirecto'!$D$243*12)*'Sup Personal Indirecto'!P18*'Sup Personal Directo'!P$113","v":31787.343478754832},{"$f":"(('Sup Personal Indirecto'!Q88*(1+SUM('Sup Personal Indirecto'!$D$226,'Sup Personal Indirecto'!$D$242,'Sup Personal Indirecto'!$D$244,'Sup Personal Indirecto'!$D$245)))*12+'Sup Personal Indirecto'!$D$243*12)*'Sup Personal Indirecto'!Q18*'Sup Personal Directo'!Q$113","v":32475.082235677972},{"$f":"(('Sup Personal Indirecto'!R88*(1+SUM('Sup Personal Indirecto'!$D$226,'Sup Personal Indirecto'!$D$242,'Sup Personal Indirecto'!$D$244,'Sup Personal Indirecto'!$D$245)))*12+'Sup Personal Indirecto'!$D$243*12)*'Sup Personal Indirecto'!R18*'Sup Personal Directo'!R$113","v":33205.637398661274},{"$f":"(('Sup Personal Indirecto'!S88*(1+SUM('Sup Personal Indirecto'!$D$226,'Sup Personal Indirecto'!$D$242,'Sup Personal Indirecto'!$D$244,'Sup Personal Indirecto'!$D$245)))*12+'Sup Personal Indirecto'!$D$243*12)*'Sup Personal Indirecto'!S18*'Sup Personal Directo'!S$113","v":33931.580172140806},{"$f":"(('Sup Personal Indirecto'!T88*(1+SUM('Sup Personal Indirecto'!$D$226,'Sup Personal Indirecto'!$D$242,'Sup Personal Indirecto'!$D$244,'Sup Personal Indirecto'!$D$245)))*12+'Sup Personal Indirecto'!$D$243*12)*'Sup Personal Indirecto'!T18*'Sup Personal Directo'!T$113","v":34657.994092806635},{"$f":"(('Sup Personal Indirecto'!U88*(1+SUM('Sup Personal Indirecto'!$D$226,'Sup Personal Indirecto'!$D$242,'Sup Personal Indirecto'!$D$244,'Sup Personal Indirecto'!$D$245)))*12+'Sup Personal Indirecto'!$D$243*12)*'Sup Personal Indirecto'!U18*'Sup Personal Directo'!U$113","v":35394.461888293554},{"$f":"(('Sup Personal Indirecto'!V88*(1+SUM('Sup Personal Indirecto'!$D$226,'Sup Personal Indirecto'!$D$242,'Sup Personal Indirecto'!$D$244,'Sup Personal Indirecto'!$D$245)))*12+'Sup Personal Indirecto'!$D$243*12)*'Sup Personal Indirecto'!V18*'Sup Personal Directo'!V$113","v":36145.525481914105},{"$f":"(('Sup Personal Indirecto'!W88*(1+SUM('Sup Personal Indirecto'!$D$226,'Sup Personal Indirecto'!$D$242,'Sup Personal Indirecto'!$D$244,'Sup Personal Indirecto'!$D$245)))*12+'Sup Personal Indirecto'!$D$243*12)*'Sup Personal Indirecto'!W18*'Sup Personal Directo'!W$113","v":36912.806911948835}]
[null,null,"Contador General",{"$f":"(('Sup Personal Indirecto'!D89*(1+SUM('Sup Personal Indirecto'!$D$226,'Sup Personal Indirecto'!$D$242,'Sup Personal Indirecto'!$D$244,'Sup Personal Indirecto'!$D$245)))*12+'Sup Personal Indirecto'!$D$243*12)*'Sup Personal Indirecto'!D19*'Sup Personal Directo'!D$113","v":13356.967213114762},{"$f":"(('Sup Personal Indirecto'!E89*(1+SUM('Sup Personal Indirecto'!$D$226,'Sup Personal Indirecto'!$D$242,'Sup Personal Indirecto'!$D$244,'Sup Personal Indirecto'!$D$245)))*12+'Sup Personal Indirecto'!$D$243*12)*'Sup Personal Indirecto'!E19*'Sup Personal Directo'!E$113","v":13679.244118032791},{"$f":"(('Sup Personal Indirecto'!F89*(1+SUM('Sup Personal Indirecto'!$D$226,'Sup Personal Indirecto'!$D$242,'Sup Personal Indirecto'!$D$244,'Sup Personal Indirecto'!$D$245)))*12+'Sup Personal Indirecto'!$D$243*12)*'Sup Personal Indirecto'!F19*'Sup Personal Directo'!F$113","v":14147.183700822459},{"$f":"(('Sup Personal Indirecto'!G89*(1+SUM('Sup Personal Indirecto'!$D$226,'Sup Personal Indirecto'!$D$242,'Sup Personal Indirecto'!$D$244,'Sup Personal Indirecto'!$D$245)))*12+'Sup Personal Indirecto'!$D$243*12)*'Sup Personal Indirecto'!G19*'Sup Personal Directo'!G$113","v":14321.965930685294},{"$f":"(('Sup Personal Indirecto'!H89*(1+SUM('Sup Personal Indirecto'!$D$226,'Sup Personal Indirecto'!$D$242,'Sup Personal Indirecto'!$D$244,'Sup Personal Indirecto'!$D$245)))*12+'Sup Personal Indirecto'!$D$243*12)*'Sup Personal Indirecto'!H19*'Sup Personal Directo'!H$113","v":14475.520320607728},{"$f":"(('Sup Personal Indirecto'!I89*(1+SUM('Sup Personal Indirecto'!$D$226,'Sup Personal Indirecto'!$D$242,'Sup Personal Indirecto'!$D$244,'Sup Personal Indirecto'!$D$245)))*12+'Sup Personal Indirecto'!$D$243*12)*'Sup Personal Indirecto'!I19*'Sup Personal Directo'!I$113","v":14689.086357209844},{"$f":"(('Sup Personal Indirecto'!J89*(1+SUM('Sup Personal Indirecto'!$D$226,'Sup Personal Indirecto'!$D$242,'Sup Personal Indirecto'!$D$244,'Sup Personal Indirecto'!$D$245)))*12+'Sup Personal Indirecto'!$D$243*12)*'Sup Personal Indirecto'!J19*'Sup Personal Directo'!J$113","v":15094.013643839326},{"$f":"(('Sup Personal Indirecto'!K89*(1+SUM('Sup Personal Indirecto'!$D$226,'Sup Personal Indirecto'!$D$242,'Sup Personal Indirecto'!$D$244,'Sup Personal Indirecto'!$D$245)))*12+'Sup Personal Indirecto'!$D$243*12)*'Sup Personal Indirecto'!K19*'Sup Personal Directo'!K$113","v":15478.80137148314},{"$f":"(('Sup Personal Indirecto'!L89*(1+SUM('Sup Personal Indirecto'!$D$226,'Sup Personal Indirecto'!$D$242,'Sup Personal Indirecto'!$D$244,'Sup Personal Indirecto'!$D$245)))*12+'Sup Personal Indirecto'!$D$243*12)*'Sup Personal Indirecto'!L19*'Sup Personal Directo'!L$113","v":15829.816157591318},{"$f":"(('Sup Personal Indirecto'!M89*(1+SUM('Sup Personal Indirecto'!$D$226,'Sup Personal Indirecto'!$D$242,'Sup Personal Indirecto'!$D$244,'Sup Personal Indirecto'!$D$245)))*12+'Sup Personal Indirecto'!$D$243*12)*'Sup Personal Indirecto'!M19*'Sup Personal Directo'!M$113","v":16169.963620550026},{"$f":"(('Sup Personal Indirecto'!N89*(1+SUM('Sup Personal Indirecto'!$D$226,'Sup Personal Indirecto'!$D$242,'Sup Personal Indirecto'!$D$244,'Sup Personal Indirecto'!$D$245)))*12+'Sup Personal Indirecto'!$D$243*12)*'Sup Personal Indirecto'!N19*'Sup Personal Directo'!N$113","v":16512.083543199205},{"$f":"(('Sup Personal Indirecto'!O89*(1+SUM('Sup Personal Indirecto'!$D$226,'Sup Personal Indirecto'!$D$242,'Sup Personal Indirecto'!$D$244,'Sup Personal Indirecto'!$D$245)))*12+'Sup Personal Indirecto'!$D$243*12)*'Sup Personal Indirecto'!O19*'Sup Personal Directo'!O$113","v":16834.506082737695},{"$f":"(('Sup Personal Indirecto'!P89*(1+SUM('Sup Personal Indirecto'!$D$226,'Sup Personal Indirecto'!$D$242,'Sup Personal Indirecto'!$D$244,'Sup Personal Indirecto'!$D$245)))*12+'Sup Personal Indirecto'!$D$243*12)*'Sup Personal Indirecto'!P19*'Sup Personal Directo'!P$113","v":17178.316317474593},{"$f":"(('Sup Personal Indirecto'!Q89*(1+SUM('Sup Personal Indirecto'!$D$226,'Sup Personal Indirecto'!$D$242,'Sup Personal Indirecto'!$D$244,'Sup Personal Indirecto'!$D$245)))*12+'Sup Personal Indirecto'!$D$243*12)*'Sup Personal Indirecto'!Q19*'Sup Personal Directo'!Q$113","v":17549.97977271452},{"$f":"(('Sup Personal Indirecto'!R89*(1+SUM('Sup Personal Indirecto'!$D$226,'Sup Personal Indirecto'!$D$242,'Sup Personal Indirecto'!$D$244,'Sup Personal Indirecto'!$D$245)))*12+'Sup Personal Indirecto'!$D$243*12)*'Sup Personal Indirecto'!R19*'Sup Personal Directo'!R$113","v":17944.781800933051},{"$f":"(('Sup Personal Indirecto'!S89*(1+SUM('Sup Personal Indirecto'!$D$226,'Sup Personal Indirecto'!$D$242,'Sup Personal Indirecto'!$D$244,'Sup Personal Indirecto'!$D$245)))*12+'Sup Personal Indirecto'!$D$243*12)*'Sup Personal Indirecto'!S19*'Sup Personal Directo'!S$113","v":18337.091230613791},{"$f":"(('Sup Personal Indirecto'!T89*(1+SUM('Sup Personal Indirecto'!$D$226,'Sup Personal Indirecto'!$D$242,'Sup Personal Indirecto'!$D$244,'Sup Personal Indirecto'!$D$245)))*12+'Sup Personal Indirecto'!$D$243*12)*'Sup Personal Indirecto'!T19*'Sup Personal Directo'!T$113","v":18729.65527469488},{"$f":"(('Sup Personal Indirecto'!U89*(1+SUM('Sup Personal Indirecto'!$D$226,'Sup Personal Indirecto'!$D$242,'Sup Personal Indirecto'!$D$244,'Sup Personal Indirecto'!$D$245)))*12+'Sup Personal Indirecto'!$D$243*12)*'Sup Personal Indirecto'!U19*'Sup Personal Directo'!U$113","v":19127.65257059861},{"$f":"(('Sup Personal Indirecto'!V89*(1+SUM('Sup Personal Indirecto'!$D$226,'Sup Personal Indirecto'!$D$242,'Sup Personal Indirecto'!$D$244,'Sup Personal Indirecto'!$D$245)))*12+'Sup Personal Indirecto'!$D$243*12)*'Sup Personal Indirecto'!V19*'Sup Personal Directo'!V$113","v":19533.537635966717},{"$f":"(('Sup Personal Indirecto'!W89*(1+SUM('Sup Personal Indirecto'!$D$226,'Sup Personal Indirecto'!$D$242,'Sup Personal Indirecto'!$D$244,'Sup Personal Indirecto'!$D$245)))*12+'Sup Personal Indirecto'!$D$243*12)*'Sup Personal Indirecto'!W19*'Sup Personal Directo'!W$113","v":19948.18704252912}]
[null,null,"Asistente de Contabilidad",{"$f":"(('Sup Personal Indirecto'!D90*(1+SUM('Sup Personal Indirecto'!$D$226,'Sup Personal Indirecto'!$D$242,'Sup Personal Indirecto'!$D$244,'Sup Personal Indirecto'!$D$245)))*12+'Sup Personal Indirecto'!$D$243*12)*'Sup Personal Indirecto'!D20*'Sup Personal Directo'!D$113","v":6460.297131147543},{"$f":"(('Sup Personal Indirecto'!E90*(1+SUM('Sup Personal Indirecto'!$D$226,'Sup Personal Indirecto'!$D$242,'Sup Personal Indirecto'!$D$244,'Sup Personal Indirecto'!$D$245)))*12+'Sup Personal Indirecto'!$D$243*12)*'Sup Personal Indirecto'!E20*'Sup Personal Directo'!E$113","v":6616.1711803278695},{"$f":"(('Sup Personal Indirecto'!F90*(1+SUM('Sup Personal Indirecto'!$D$226,'Sup Personal Indirecto'!$D$242,'Sup Personal Indirecto'!$D$244,'Sup Personal Indirecto'!$D$245)))*12+'Sup Personal Indirecto'!$D$243*12)*'Sup Personal Indirecto'!F20*'Sup Personal Directo'!F$113","v":6842.4971640645272},{"$f":"(('Sup Personal Indirecto'!G90*(1+SUM('Sup Personal Indirecto'!$D$226,'Sup Personal Indirecto'!$D$242,'Sup Personal Indirecto'!$D$244,'Sup Personal Indirecto'!$D$245)))*12+'Sup Personal Indirecto'!$D$243*12)*'Sup Personal Indirecto'!G20*'Sup Personal Directo'!G$113","v":6927.0332058277918},{"$f":"(('Sup Personal Indirecto'!H90*(1+SUM('Sup Personal Indirecto'!$D$226,'Sup Personal Indirecto'!$D$242,'Sup Personal Indirecto'!$D$244,'Sup Personal Indirecto'!$D$245)))*12+'Sup Personal Indirecto'!$D$243*12)*'Sup Personal Indirecto'!H20*'Sup Personal Directo'!H$113","v":7001.3020850473949},{"$f":"(('Sup Personal Indirecto'!I90*(1+SUM('Sup Personal Indirecto'!$D$226,'Sup Personal Indirecto'!$D$242,'Sup Personal Indirecto'!$D$244,'Sup Personal Indirecto'!$D$245)))*12+'Sup Personal Indirecto'!$D$243*12)*'Sup Personal Indirecto'!I20*'Sup Personal Directo'!I$113","v":7104.5964954893489},{"$f":"(('Sup Personal Indirecto'!J90*(1+SUM('Sup Personal Indirecto'!$D$226,'Sup Personal Indirecto'!$D$242,'Sup Personal Indirecto'!$D$244,'Sup Personal Indirecto'!$D$245)))*12+'Sup Personal Indirecto'!$D$243*12)*'Sup Personal Indirecto'!J20*'Sup Personal Directo'!J$113","v":7300.4456389661163},{"$f":"(('Sup Personal Indirecto'!K90*(1+SUM('Sup Personal Indirecto'!$D$226,'Sup Personal Indirecto'!$D$242,'Sup Personal Indirecto'!$D$244,'Sup Personal Indirecto'!$D$245)))*12+'Sup Personal Indirecto'!$D$243*12)*'Sup Personal Indirecto'!K20*'Sup Personal Directo'!K$113","v":7486.5539832732993},{"$f":"(('Sup Personal Indirecto'!L90*(1+SUM('Sup Personal Indirecto'!$D$226,'Sup Personal Indirecto'!$D$242,'Sup Personal Indirecto'!$D$244,'Sup Personal Indirecto'!$D$245)))*12+'Sup Personal Indirecto'!$D$243*12)*'Sup Personal Indirecto'!L20*'Sup Personal Directo'!L$113","v":7656.3275388644597},{"$f":"(('Sup Personal Indirecto'!M90*(1+SUM('Sup Personal Indirecto'!$D$226,'Sup Personal Indirecto'!$D$242,'Sup Personal Indirecto'!$D$244,'Sup Personal Indirecto'!$D$245)))*12+'Sup Personal Indirecto'!$D$243*12)*'Sup Personal Indirecto'!M20*'Sup Personal Directo'!M$113","v":7820.8449509429774},{"$f":"(('Sup Personal Indirecto'!N90*(1+SUM('Sup Personal Indirecto'!$D$226,'Sup Personal Indirecto'!$D$242,'Sup Personal Indirecto'!$D$244,'Sup Personal Indirecto'!$D$245)))*12+'Sup Personal Indirecto'!$D$243*12)*'Sup Personal Indirecto'!N20*'Sup Personal Directo'!N$113","v":7986.3163726762577},{"$f":"(('Sup Personal Indirecto'!O90*(1+SUM('Sup Personal Indirecto'!$D$226,'Sup Personal Indirecto'!$D$242,'Sup Personal Indirecto'!$D$244,'Sup Personal Indirecto'!$D$245)))*12+'Sup Personal Indirecto'!$D$243*12)*'Sup Personal Indirecto'!O20*'Sup Personal Directo'!O$113","v":8142.2608602207529},{"$f":"(('Sup Personal Indirecto'!P90*(1+SUM('Sup Personal Indirecto'!$D$226,'Sup Personal Indirecto'!$D$242,'Sup Personal Indirecto'!$D$244,'Sup Personal Indirecto'!$D$245)))*12+'Sup Personal Indirecto'!$D$243*12)*'Sup Personal Indirecto'!P20*'Sup Personal Directo'!P$113","v":8308.5498266972972},{"$f":"(('Sup Personal Indirecto'!Q90*(1+SUM('Sup Personal Indirecto'!$D$226,'Sup Personal Indirecto'!$D$242,'Sup Personal Indirecto'!$D$244,'Sup Personal Indirecto'!$D$245)))*12+'Sup Personal Indirecto'!$D$243*12)*'Sup Personal Indirecto'!Q20*'Sup Personal Directo'!Q$113","v":8488.3104202009908},{"$f":"(('Sup Personal Indirecto'!R90*(1+SUM('Sup Personal Indirecto'!$D$226,'Sup Personal Indirecto'!$D$242,'Sup Personal Indirecto'!$D$244,'Sup Personal Indirecto'!$D$245)))*12+'Sup Personal Indirecto'!$D$243*12)*'Sup Personal Indirecto'!R20*'Sup Personal Directo'!R$113","v":8679.2623308837628},{"$f":"(('Sup Personal Indirecto'!S90*(1+SUM('Sup Personal Indirecto'!$D$226,'Sup Personal Indirecto'!$D$242,'Sup Personal Indirecto'!$D$244,'Sup Personal Indirecto'!$D$245)))*12+'Sup Personal Indirecto'!$D$243*12)*'Sup Personal Indirecto'!S20*'Sup Personal Directo'!S$113","v":8869.0086589723833},{"$f":"(('Sup Personal Indirecto'!T90*(1+SUM('Sup Personal Indirecto'!$D$226,'Sup Personal Indirecto'!$D$242,'Sup Personal Indirecto'!$D$244,'Sup Personal Indirecto'!$D$245)))*12+'Sup Personal Indirecto'!$D$243*12)*'Sup Personal Indirecto'!T20*'Sup Personal Directo'!T$113","v":9058.8781351270172},{"$f":"(('Sup Personal Indirecto'!U90*(1+SUM('Sup Personal Indirecto'!$D$226,'Sup Personal Indirecto'!$D$242,'Sup Personal Indirecto'!$D$244,'Sup Personal Indirecto'!$D$245)))*12+'Sup Personal Indirecto'!$D$243*12)*'Sup Personal Indirecto'!U20*'Sup Personal Directo'!U$113","v":9251.3754848552398},{"$f":"(('Sup Personal Indirecto'!V90*(1+SUM('Sup Personal Indirecto'!$D$226,'Sup Personal Indirecto'!$D$242,'Sup Personal Indirecto'!$D$244,'Sup Personal Indirecto'!$D$245)))*12+'Sup Personal Indirecto'!$D$243*12)*'Sup Personal Indirecto'!V20*'Sup Personal Directo'!V$113","v":9447.6878723557966},{"$f":"(('Sup Personal Indirecto'!W90*(1+SUM('Sup Personal Indirecto'!$D$226,'Sup Personal Indirecto'!$D$242,'Sup Personal Indirecto'!$D$244,'Sup Personal Indirecto'!$D$245)))*12+'Sup Personal Indirecto'!$D$243*12)*'Sup Personal Indirecto'!W20*'Sup Personal Directo'!W$113","v":9648.2392646671397}]
[null,null,"Responsable de RRHH ",{"$f":"(('Sup Personal Indirecto'!D91*(1+SUM('Sup Personal Indirecto'!$D$226,'Sup Personal Indirecto'!$D$242,'Sup Personal Indirecto'!$D$244,'Sup Personal Indirecto'!$D$245)))*12+'Sup Personal Indirecto'!$D$243*12)*'Sup Personal Indirecto'!D21*'Sup Personal Directo'!D$113","v":16602.459016393444},{"$f":"(('Sup Personal Indirecto'!E91*(1+SUM('Sup Personal Indirecto'!$D$226,'Sup Personal Indirecto'!$D$242,'Sup Personal Indirecto'!$D$244,'Sup Personal Indirecto'!$D$245)))*12+'Sup Personal Indirecto'!$D$243*12)*'Sup Personal Indirecto'!E21*'Sup Personal Directo'!E$113","v":17003.043147540986},{"$f":"(('Sup Personal Indirecto'!F91*(1+SUM('Sup Personal Indirecto'!$D$226,'Sup Personal Indirecto'!$D$242,'Sup Personal Indirecto'!$D$244,'Sup Personal Indirecto'!$D$245)))*12+'Sup Personal Indirecto'!$D$243*12)*'Sup Personal Indirecto'!F21*'Sup Personal Directo'!F$113","v":17584.68324753207},{"$f":"(('Sup Personal Indirecto'!G91*(1+SUM('Sup Personal Indirecto'!$D$226,'Sup Personal Indirecto'!$D$242,'Sup Personal Indirecto'!$D$244,'Sup Personal Indirecto'!$D$245)))*12+'Sup Personal Indirecto'!$D$243*12)*'Sup Personal Indirecto'!G21*'Sup Personal Directo'!G$113","v":17801.9342717947},{"$f":"(('Sup Personal Indirecto'!H91*(1+SUM('Sup Personal Indirecto'!$D$226,'Sup Personal Indirecto'!$D$242,'Sup Personal Indirecto'!$D$244,'Sup Personal Indirecto'!$D$245)))*12+'Sup Personal Indirecto'!$D$243*12)*'Sup Personal Indirecto'!H21*'Sup Personal Directo'!H$113","v":17992.799490283171},{"$f":"(('Sup Personal Indirecto'!I91*(1+SUM('Sup Personal Indirecto'!$D$226,'Sup Personal Indirecto'!$D$242,'Sup Personal Indirecto'!$D$244,'Sup Personal Indirecto'!$D$245)))*12+'Sup Personal Indirecto'!$D$243*12)*'Sup Personal Indirecto'!I21*'Sup Personal Directo'!I$113","v":18258.258056843009},{"$f":"(('Sup Personal Indirecto'!J91*(1+SUM('Sup Personal Indirecto'!$D$226,'Sup Personal Indirecto'!$D$242,'Sup Personal Indirecto'!$D$244,'Sup Personal Indirecto'!$D$245)))*12+'Sup Personal Indirecto'!$D$243*12)*'Sup Personal Indirecto'!J21*'Sup Personal Directo'!J$113","v":18761.575057897298},{"$f":"(('Sup Personal Indirecto'!K91*(1+SUM('Sup Personal Indirecto'!$D$226,'Sup Personal Indirecto'!$D$242,'Sup Personal Indirecto'!$D$244,'Sup Personal Indirecto'!$D$245)))*12+'Sup Personal Indirecto'!$D$243*12)*'Sup Personal Indirecto'!K21*'Sup Personal Directo'!K$113","v":19239.858965934822},{"$f":"(('Sup Personal Indirecto'!L91*(1+SUM('Sup Personal Indirecto'!$D$226,'Sup Personal Indirecto'!$D$242,'Sup Personal Indirecto'!$D$244,'Sup Personal Indirecto'!$D$245)))*12+'Sup Personal Indirecto'!$D$243*12)*'Sup Personal Indirecto'!L21*'Sup Personal Directo'!L$113","v":19676.163742874538},{"$f":"(('Sup Personal Indirecto'!M91*(1+SUM('Sup Personal Indirecto'!$D$226,'Sup Personal Indirecto'!$D$242,'Sup Personal Indirecto'!$D$244,'Sup Personal Indirecto'!$D$245)))*12+'Sup Personal Indirecto'!$D$243*12)*'Sup Personal Indirecto'!M21*'Sup Personal Directo'!M$113","v":20098.960641541573},{"$f":"(('Sup Personal Indirecto'!N91*(1+SUM('Sup Personal Indirecto'!$D$226,'Sup Personal Indirecto'!$D$242,'Sup Personal Indirecto'!$D$244,'Sup Personal Indirecto'!$D$245)))*12+'Sup Personal Indirecto'!$D$243*12)*'Sup Personal Indirecto'!N21*'Sup Personal Directo'!N$113","v":20524.209270504114},{"$f":"(('Sup Personal Indirecto'!O91*(1+SUM('Sup Personal Indirecto'!$D$226,'Sup Personal Indirecto'!$D$242,'Sup Personal Indirecto'!$D$244,'Sup Personal Indirecto'!$D$245)))*12+'Sup Personal Indirecto'!$D$243*12)*'Sup Personal Indirecto'!O21*'Sup Personal Directo'!O$113","v":20924.974422745661},{"$f":"(('Sup Personal Indirecto'!P91*(1+SUM('Sup Personal Indirecto'!$D$226,'Sup Personal Indirecto'!$D$242,'Sup Personal Indirecto'!$D$244,'Sup Personal Indirecto'!$D$245)))*12+'Sup Personal Indirecto'!$D$243*12)*'Sup Personal Indirecto'!P21*'Sup Personal Directo'!P$113","v":21352.324077840371},{"$f":"(('Sup Personal Indirecto'!Q91*(1+SUM('Sup Personal Indirecto'!$D$226,'Sup Personal Indirecto'!$D$242,'Sup Personal Indirecto'!$D$244,'Sup Personal Indirecto'!$D$245)))*12+'Sup Personal Indirecto'!$D$243*12)*'Sup Personal Indirecto'!Q21*'Sup Personal Directo'!Q$113","v":21814.294762132646},{"$f":"(('Sup Personal Indirecto'!R91*(1+SUM('Sup Personal Indirecto'!$D$226,'Sup Personal Indirecto'!$D$242,'Sup Personal Indirecto'!$D$244,'Sup Personal Indirecto'!$D$245)))*12+'Sup Personal Indirecto'!$D$243*12)*'Sup Personal Indirecto'!R21*'Sup Personal Directo'!R$113","v":22305.026257426824},{"$f":"(('Sup Personal Indirecto'!S91*(1+SUM('Sup Personal Indirecto'!$D$226,'Sup Personal Indirecto'!$D$242,'Sup Personal Indirecto'!$D$244,'Sup Personal Indirecto'!$D$245)))*12+'Sup Personal Indirecto'!$D$243*12)*'Sup Personal Indirecto'!S21*'Sup Personal Directo'!S$113","v":22792.659499621506},{"$f":"(('Sup Personal Indirecto'!T91*(1+SUM('Sup Personal Indirecto'!$D$226,'Sup Personal Indirecto'!$D$242,'Sup Personal Indirecto'!$D$244,'Sup Personal Indirecto'!$D$245)))*12+'Sup Personal Indirecto'!$D$243*12)*'Sup Personal Indirecto'!T21*'Sup Personal Directo'!T$113","v":23280.609222726805},{"$f":"(('Sup Personal Indirecto'!U91*(1+SUM('Sup Personal Indirecto'!$D$226,'Sup Personal Indirecto'!$D$242,'Sup Personal Indirecto'!$D$244,'Sup Personal Indirecto'!$D$245)))*12+'Sup Personal Indirecto'!$D$243*12)*'Sup Personal Indirecto'!U21*'Sup Personal Directo'!U$113","v":23775.312375654303},{"$f":"(('Sup Personal Indirecto'!V91*(1+SUM('Sup Personal Indirecto'!$D$226,'Sup Personal Indirecto'!$D$242,'Sup Personal Indirecto'!$D$244,'Sup Personal Indirecto'!$D$245)))*12+'Sup Personal Indirecto'!$D$243*12)*'Sup Personal Indirecto'!V21*'Sup Personal Directo'!V$113","v":24279.819877665963},{"$f":"(('Sup Personal Indirecto'!W91*(1+SUM('Sup Personal Indirecto'!$D$226,'Sup Personal Indirecto'!$D$242,'Sup Personal Indirecto'!$D$244,'Sup Personal Indirecto'!$D$245)))*12+'Sup Personal Indirecto'!$D$243*12)*'Sup Personal Indirecto'!W21*'Sup Personal Directo'!W$113","v":24795.221290934747}]
[null,null,"Secretaria",{"$f":"(('Sup Personal Indirecto'!D92*(1+SUM('Sup Personal Indirecto'!$D$226,'Sup Personal Indirecto'!$D$242,'Sup Personal Indirecto'!$D$244,'Sup Personal Indirecto'!$D$245)))*12+'Sup Personal Indirecto'!$D$243*12)*'Sup Personal Indirecto'!D22*'Sup Personal Directo'!D$113","v":6865.9836065573809},{"$f":"(('Sup Personal Indirecto'!E92*(1+SUM('Sup Personal Indirecto'!$D$226,'Sup Personal Indirecto'!$D$242,'Sup Personal Indirecto'!$D$244,'Sup Personal Indirecto'!$D$245)))*12+'Sup Personal Indirecto'!$D$243*12)*'Sup Personal Indirecto'!E22*'Sup Personal Directo'!E$113","v":7031.6460590163961},{"$f":"(('Sup Personal Indirecto'!F92*(1+SUM('Sup Personal Indirecto'!$D$226,'Sup Personal Indirecto'!$D$242,'Sup Personal Indirecto'!$D$244,'Sup Personal Indirecto'!$D$245)))*12+'Sup Personal Indirecto'!$D$243*12)*'Sup Personal Indirecto'!F22*'Sup Personal Directo'!F$113","v":7272.1846074032301},{"$f":"(('Sup Personal Indirecto'!G92*(1+SUM('Sup Personal Indirecto'!$D$226,'Sup Personal Indirecto'!$D$242,'Sup Personal Indirecto'!$D$244,'Sup Personal Indirecto'!$D$245)))*12+'Sup Personal Indirecto'!$D$243*12)*'Sup Personal Indirecto'!G22*'Sup Personal Directo'!G$113","v":7362.0292484664697},{"$f":"(('Sup Personal Indirecto'!H92*(1+SUM('Sup Personal Indirecto'!$D$226,'Sup Personal Indirecto'!$D$242,'Sup Personal Indirecto'!$D$244,'Sup Personal Indirecto'!$D$245)))*12+'Sup Personal Indirecto'!$D$243*12)*'Sup Personal Indirecto'!H22*'Sup Personal Directo'!H$113","v":7440.9619812568271},{"$f":"(('Sup Personal Indirecto'!I92*(1+SUM('Sup Personal Indirecto'!$D$226,'Sup Personal Indirecto'!$D$242,'Sup Personal Indirecto'!$D$244,'Sup Personal Indirecto'!$D$245)))*12+'Sup Personal Indirecto'!$D$243*12)*'Sup Personal Indirecto'!I22*'Sup Personal Directo'!I$113","v":7550.7429579434965},{"$f":"(('Sup Personal Indirecto'!J92*(1+SUM('Sup Personal Indirecto'!$D$226,'Sup Personal Indirecto'!$D$242,'Sup Personal Indirecto'!$D$244,'Sup Personal Indirecto'!$D$245)))*12+'Sup Personal Indirecto'!$D$243*12)*'Sup Personal Indirecto'!J22*'Sup Personal Directo'!J$113","v":7758.8908157233654},{"$f":"(('Sup Personal Indirecto'!K92*(1+SUM('Sup Personal Indirecto'!$D$226,'Sup Personal Indirecto'!$D$242,'Sup Personal Indirecto'!$D$244,'Sup Personal Indirecto'!$D$245)))*12+'Sup Personal Indirecto'!$D$243*12)*'Sup Personal Indirecto'!K22*'Sup Personal Directo'!K$113","v":7956.6861825797623},{"$f":"(('Sup Personal Indirecto'!L92*(1+SUM('Sup Personal Indirecto'!$D$226,'Sup Personal Indirecto'!$D$242,'Sup Personal Indirecto'!$D$244,'Sup Personal Indirecto'!$D$245)))*12+'Sup Personal Indirecto'!$D$243*12)*'Sup Personal Indirecto'!L22*'Sup Personal Directo'!L$113","v":8137.120987024864},{"$f":"(('Sup Personal Indirecto'!M92*(1+SUM('Sup Personal Indirecto'!$D$226,'Sup Personal Indirecto'!$D$242,'Sup Personal Indirecto'!$D$244,'Sup Personal Indirecto'!$D$245)))*12+'Sup Personal Indirecto'!$D$243*12)*'Sup Personal Indirecto'!M22*'Sup Personal Directo'!M$113","v":8311.9695785669228},{"$f":"(('Sup Personal Indirecto'!N92*(1+SUM('Sup Personal Indirecto'!$D$226,'Sup Personal Indirecto'!$D$242,'Sup Personal Indirecto'!$D$244,'Sup Personal Indirecto'!$D$245)))*12+'Sup Personal Indirecto'!$D$243*12)*'Sup Personal Indirecto'!N22*'Sup Personal Directo'!N$113","v":8487.8320885893736},{"$f":"(('Sup Personal Indirecto'!O92*(1+SUM('Sup Personal Indirecto'!$D$226,'Sup Personal Indirecto'!$D$242,'Sup Personal Indirecto'!$D$244,'Sup Personal Indirecto'!$D$245)))*12+'Sup Personal Indirecto'!$D$243*12)*'Sup Personal Indirecto'!O22*'Sup Personal Directo'!O$113","v":8653.5694027217505},{"$f":"(('Sup Personal Indirecto'!P92*(1+SUM('Sup Personal Indirecto'!$D$226,'Sup Personal Indirecto'!$D$242,'Sup Personal Indirecto'!$D$244,'Sup Personal Indirecto'!$D$245)))*12+'Sup Personal Indirecto'!$D$243*12)*'Sup Personal Indirecto'!P22*'Sup Personal Directo'!P$113","v":8830.3007967430221},{"$f":"(('Sup Personal Indirecto'!Q92*(1+SUM('Sup Personal Indirecto'!$D$226,'Sup Personal Indirecto'!$D$242,'Sup Personal Indirecto'!$D$244,'Sup Personal Indirecto'!$D$245)))*12+'Sup Personal Indirecto'!$D$243*12)*'Sup Personal Indirecto'!Q22*'Sup Personal Directo'!Q$113","v":9021.3497938782602},{"$f":"(('Sup Personal Indirecto'!R92*(1+SUM('Sup Personal Indirecto'!$D$226,'Sup Personal Indirecto'!$D$242,'Sup Personal Indirecto'!$D$244,'Sup Personal Indirecto'!$D$245)))*12+'Sup Personal Indirecto'!$D$243*12)*'Sup Personal Indirecto'!R22*'Sup Personal Directo'!R$113","v":9224.2928879454867},{"$f":"(('Sup Personal Indirecto'!S92*(1+SUM('Sup Personal Indirecto'!$D$226,'Sup Personal Indirecto'!$D$242,'Sup Personal Indirecto'!$D$244,'Sup Personal Indirecto'!$D$245)))*12+'Sup Personal Indirecto'!$D$243*12)*'Sup Personal Indirecto'!S22*'Sup Personal Directo'!S$113","v":9425.9546925983504},{"$f":"(('Sup Personal Indirecto'!T92*(1+SUM('Sup Personal Indirecto'!$D$226,'Sup Personal Indirecto'!$D$242,'Sup Personal Indirecto'!$D$244,'Sup Personal Indirecto'!$D$245)))*12+'Sup Personal Indirecto'!$D$243*12)*'Sup Personal Indirecto'!T22*'Sup Personal Directo'!T$113","v":9627.7473786310111},{"$f":"(('Sup Personal Indirecto'!U92*(1+SUM('Sup Personal Indirecto'!$D$226,'Sup Personal Indirecto'!$D$242,'Sup Personal Indirecto'!$D$244,'Sup Personal Indirecto'!$D$245)))*12+'Sup Personal Indirecto'!$D$243*12)*'Sup Personal Indirecto'!U22*'Sup Personal Directo'!U$113","v":9832.3329604872051},{"$f":"(('Sup Personal Indirecto'!V92*(1+SUM('Sup Personal Indirecto'!$D$226,'Sup Personal Indirecto'!$D$242,'Sup Personal Indirecto'!$D$244,'Sup Personal Indirecto'!$D$245)))*12+'Sup Personal Indirecto'!$D$243*12)*'Sup Personal Indirecto'!V22*'Sup Personal Directo'!V$113","v":10040.973152568205},{"$f":"(('Sup Personal Indirecto'!W92*(1+SUM('Sup Personal Indirecto'!$D$226,'Sup Personal Indirecto'!$D$242,'Sup Personal Indirecto'!$D$244,'Sup Personal Indirecto'!$D$245)))*12+'Sup Personal Indirecto'!$D$243*12)*'Sup Personal Indirecto'!W22*'Sup Personal Directo'!W$113","v":10254.118545717845}]
[null,null,"Recaudación General",{"$f":"(('Sup Personal Indirecto'!D93*(1+SUM('Sup Personal Indirecto'!$D$226,'Sup Personal Indirecto'!$D$242,'Sup Personal Indirecto'!$D$244,'Sup Personal Indirecto'!$D$245)))*12+'Sup Personal Indirecto'!$D$243*12)*'Sup Personal Indirecto'!D23*'Sup Personal Directo'!D$113","v":23032.069672131154},{"$f":"(('Sup Personal Indirecto'!E93*(1+SUM('Sup Personal Indirecto'!$D$226,'Sup Personal Indirecto'!$D$242,'Sup Personal Indirecto'!$D$244,'Sup Personal Indirecto'!$D$245)))*12+'Sup Personal Indirecto'!$D$243*12)*'Sup Personal Indirecto'!E23*'Sup Personal Directo'!E$113","v":23587.78744918033},{"$f":"(('Sup Personal Indirecto'!F93*(1+SUM('Sup Personal Indirecto'!$D$226,'Sup Personal Indirecto'!$D$242,'Sup Personal Indirecto'!$D$244,'Sup Personal Indirecto'!$D$245)))*12+'Sup Personal Indirecto'!$D$243*12)*'Sup Personal Indirecto'!F23*'Sup Personal Directo'!F$113","v":24394.678482241896},{"$f":"(('Sup Personal Indirecto'!G93*(1+SUM('Sup Personal Indirecto'!$D$226,'Sup Personal Indirecto'!$D$242,'Sup Personal Indirecto'!$D$244,'Sup Personal Indirecto'!$D$245)))*12+'Sup Personal Indirecto'!$D$243*12)*'Sup Personal Indirecto'!G23*'Sup Personal Directo'!G$113","v":24696.064001231462},{"$f":"(('Sup Personal Indirecto'!H93*(1+SUM('Sup Personal Indirecto'!$D$226,'Sup Personal Indirecto'!$D$242,'Sup Personal Indirecto'!$D$244,'Sup Personal Indirecto'!$D$245)))*12+'Sup Personal Indirecto'!$D$243*12)*'Sup Personal Indirecto'!H23*'Sup Personal Directo'!H$113","v":24960.845321027064},{"$f":"(('Sup Personal Indirecto'!I93*(1+SUM('Sup Personal Indirecto'!$D$226,'Sup Personal Indirecto'!$D$242,'Sup Personal Indirecto'!$D$244,'Sup Personal Indirecto'!$D$245)))*12+'Sup Personal Indirecto'!$D$243*12)*'Sup Personal Indirecto'!I23*'Sup Personal Directo'!I$113","v":25329.107648555364},{"$f":"(('Sup Personal Indirecto'!J93*(1+SUM('Sup Personal Indirecto'!$D$226,'Sup Personal Indirecto'!$D$242,'Sup Personal Indirecto'!$D$244,'Sup Personal Indirecto'!$D$245)))*12+'Sup Personal Indirecto'!$D$243*12)*'Sup Personal Indirecto'!J23*'Sup Personal Directo'!J$113","v":26027.343507713576},{"$f":"(('Sup Personal Indirecto'!K93*(1+SUM('Sup Personal Indirecto'!$D$226,'Sup Personal Indirecto'!$D$242,'Sup Personal Indirecto'!$D$244,'Sup Personal Indirecto'!$D$245)))*12+'Sup Personal Indirecto'!$D$243*12)*'Sup Personal Indirecto'!K23*'Sup Personal Directo'!K$113","v":26690.851743578045},{"$f":"(('Sup Personal Indirecto'!L93*(1+SUM('Sup Personal Indirecto'!$D$226,'Sup Personal Indirecto'!$D$242,'Sup Personal Indirecto'!$D$244,'Sup Personal Indirecto'!$D$245)))*12+'Sup Personal Indirecto'!$D$243*12)*'Sup Personal Indirecto'!L23*'Sup Personal Directo'!L$113","v":27296.123650037007},{"$f":"(('Sup Personal Indirecto'!M93*(1+SUM('Sup Personal Indirecto'!$D$226,'Sup Personal Indirecto'!$D$242,'Sup Personal Indirecto'!$D$244,'Sup Personal Indirecto'!$D$245)))*12+'Sup Personal Indirecto'!$D$243*12)*'Sup Personal Indirecto'!M23*'Sup Personal Directo'!M$113","v":27882.656501444428},{"$f":"(('Sup Personal Indirecto'!N93*(1+SUM('Sup Personal Indirecto'!$D$226,'Sup Personal Indirecto'!$D$242,'Sup Personal Indirecto'!$D$244,'Sup Personal Indirecto'!$D$245)))*12+'Sup Personal Indirecto'!$D$243*12)*'Sup Personal Indirecto'!N23*'Sup Personal Directo'!N$113","v":28472.590561246801},{"$f":"(('Sup Personal Indirecto'!O93*(1+SUM('Sup Personal Indirecto'!$D$226,'Sup Personal Indirecto'!$D$242,'Sup Personal Indirecto'!$D$244,'Sup Personal Indirecto'!$D$245)))*12+'Sup Personal Indirecto'!$D$243*12)*'Sup Personal Indirecto'!O23*'Sup Personal Directo'!O$113","v":29028.559463171227},{"$f":"(('Sup Personal Indirecto'!P93*(1+SUM('Sup Personal Indirecto'!$D$226,'Sup Personal Indirecto'!$D$242,'Sup Personal Indirecto'!$D$244,'Sup Personal Indirecto'!$D$245)))*12+'Sup Personal Indirecto'!$D$243*12)*'Sup Personal Indirecto'!P23*'Sup Personal Directo'!P$113","v":29621.408210503399},{"$f":"(('Sup Personal Indirecto'!Q93*(1+SUM('Sup Personal Indirecto'!$D$226,'Sup Personal Indirecto'!$D$242,'Sup Personal Indirecto'!$D$244,'Sup Personal Indirecto'!$D$245)))*12+'Sup Personal Indirecto'!$D$243*12)*'Sup Personal Indirecto'!Q23*'Sup Personal Directo'!Q$113","v":30262.285623698372},{"$f":"(('Sup Personal Indirecto'!R93*(1+SUM('Sup Personal Indirecto'!$D$226,'Sup Personal Indirecto'!$D$242,'Sup Personal Indirecto'!$D$244,'Sup Personal Indirecto'!$D$245)))*12+'Sup Personal Indirecto'!$D$243*12)*'Sup Personal Indirecto'!R23*'Sup Personal Directo'!R$113","v":30943.06200620679},{"$f":"(('Sup Personal Indirecto'!S93*(1+SUM('Sup Personal Indirecto'!$D$226,'Sup Personal Indirecto'!$D$242,'Sup Personal Indirecto'!$D$244,'Sup Personal Indirecto'!$D$245)))*12+'Sup Personal Indirecto'!$D$243*12)*'Sup Personal Indirecto'!S23*'Sup Personal Directo'!S$113","v":31619.540279550834},{"$f":"(('Sup Personal Indirecto'!T93*(1+SUM('Sup Personal Indirecto'!$D$226,'Sup Personal Indirecto'!$D$242,'Sup Personal Indirecto'!$D$244,'Sup Personal Indirecto'!$D$245)))*12+'Sup Personal Indirecto'!$D$243*12)*'Sup Personal Indirecto'!T23*'Sup Personal Directo'!T$113","v":32296.457596916978},{"$f":"(('Sup Personal Indirecto'!U93*(1+SUM('Sup Personal Indirecto'!$D$226,'Sup Personal Indirecto'!$D$242,'Sup Personal Indirecto'!$D$244,'Sup Personal Indirecto'!$D$245)))*12+'Sup Personal Indirecto'!$D$243*12)*'Sup Personal Indirecto'!U23*'Sup Personal Directo'!U$113","v":32982.743735253382},{"$f":"(('Sup Personal Indirecto'!V93*(1+SUM('Sup Personal Indirecto'!$D$226,'Sup Personal Indirecto'!$D$242,'Sup Personal Indirecto'!$D$244,'Sup Personal Indirecto'!$D$245)))*12+'Sup Personal Indirecto'!$D$243*12)*'Sup Personal Indirecto'!V23*'Sup Personal Directo'!V$113","v":33682.63113897905},{"$f":"(('Sup Personal Indirecto'!W93*(1+SUM('Sup Personal Indirecto'!$D$226,'Sup Personal Indirecto'!$D$242,'Sup Personal Indirecto'!$D$244,'Sup Personal Indirecto'!$D$245)))*12+'Sup Personal Indirecto'!$D$243*12)*'Sup Personal Indirecto'!W23*'Sup Personal Directo'!W$113","v":34397.631323457761}]
[null,null,"Mensajería",{"$f":"(('Sup Personal Indirecto'!D94*(1+SUM('Sup Personal Indirecto'!$D$226,'Sup Personal Indirecto'!$D$242,'Sup Personal Indirecto'!$D$244,'Sup Personal Indirecto'!$D$245)))*12+'Sup Personal Indirecto'!$D$243*12)*'Sup Personal Indirecto'!D24*'Sup Personal Directo'!D$113","v":6460.297131147543},{"$f":"(('Sup Personal Indirecto'!E94*(1+SUM('Sup Personal Indirecto'!$D$226,'Sup Personal Indirecto'!$D$242,'Sup Personal Indirecto'!$D$244,'Sup Personal Indirecto'!$D$245)))*12+'Sup Personal Indirecto'!$D$243*12)*'Sup Personal Indirecto'!E24*'Sup Personal Directo'!E$113","v":6616.1711803278695},{"$f":"(('Sup Personal Indirecto'!F94*(1+SUM('Sup Personal Indirecto'!$D$226,'Sup Personal Indirecto'!$D$242,'Sup Personal Indirecto'!$D$244,'Sup Personal Indirecto'!$D$245)))*12+'Sup Personal Indirecto'!$D$243*12)*'Sup Personal Indirecto'!F24*'Sup Personal Directo'!F$113","v":6842.4971640645272},{"$f":"(('Sup Personal Indirecto'!G94*(1+SUM('Sup Personal Indirecto'!$D$226,'Sup Personal Indirecto'!$D$242,'Sup Personal Indirecto'!$D$244,'Sup Personal Indirecto'!$D$245)))*12+'Sup Personal Indirecto'!$D$243*12)*'Sup Personal Indirecto'!G24*'Sup Personal Directo'!G$113","v":6927.0332058277918},{"$f":"(('Sup Personal Indirecto'!H94*(1+SUM('Sup Personal Indirecto'!$D$226,'Sup Personal Indirecto'!$D$242,'Sup Personal Indirecto'!$D$244,'Sup Personal Indirecto'!$D$245)))*12+'Sup Personal Indirecto'!$D$243*12)*'Sup Personal Indirecto'!H24*'Sup Personal Directo'!H$113","v":7001.3020850473949},{"$f":"(('Sup Personal Indirecto'!I94*(1+SUM('Sup Personal Indirecto'!$D$226,'Sup Personal Indirecto'!$D$242,'Sup Personal Indirecto'!$D$244,'Sup Personal Indirecto'!$D$245)))*12+'Sup Personal Indirecto'!$D$243*12)*'Sup Personal Indirecto'!I24*'Sup Personal Directo'!I$113","v":7104.5964954893489},{"$f":"(('Sup Personal Indirecto'!J94*(1+SUM('Sup Personal Indirecto'!$D$226,'Sup Personal Indirecto'!$D$242,'Sup Personal Indirecto'!$D$244,'Sup Personal Indirecto'!$D$245)))*12+'Sup Personal Indirecto'!$D$243*12)*'Sup Personal Indirecto'!J24*'Sup Personal Directo'!J$113","v":7300.4456389661163},{"$f":"(('Sup Personal Indirecto'!K94*(1+SUM('Sup Personal Indirecto'!$D$226,'Sup Personal Indirecto'!$D$242,'Sup Personal Indirecto'!$D$244,'Sup Personal Indirecto'!$D$245)))*12+'Sup Personal Indirecto'!$D$243*12)*'Sup Personal Indirecto'!K24*'Sup Personal Directo'!K$113","v":7486.5539832732993},{"$f":"(('Sup Personal Indirecto'!L94*(1+SUM('Sup Personal Indirecto'!$D$226,'Sup Personal Indirecto'!$D$242,'Sup Personal Indirecto'!$D$244,'Sup Personal Indirecto'!$D$245)))*12+'Sup Personal Indirecto'!$D$243*12)*'Sup Personal Indirecto'!L24*'Sup Personal Directo'!L$113","v":7656.3275388644597},{"$f":"(('Sup Personal Indirecto'!M94*(1+SUM('Sup Personal Indirecto'!$D$226,'Sup Personal Indirecto'!$D$242,'Sup Personal Indirecto'!$D$244,'Sup Personal Indirecto'!$D$245)))*12+'Sup Personal Indirecto'!$D$243*12)*'Sup Personal Indirecto'!M24*'Sup Personal Directo'!M$113","v":7820.8449509429774},{"$f":"(('Sup Personal Indirecto'!N94*(1+SUM('Sup Personal Indirecto'!$D$226,'Sup Personal Indirecto'!$D$242,'Sup Personal Indirecto'!$D$244,'Sup Personal Indirecto'!$D$245)))*12+'Sup Personal Indirecto'!$D$243*12)*'Sup Personal Indirecto'!N24*'Sup Personal Directo'!N$113","v":7986.3163726762577},{"$f":"(('Sup Personal Indirecto'!O94*(1+SUM('Sup Personal Indirecto'!$D$226,'Sup Personal Indirecto'!$D$242,'Sup Personal Indirecto'!$D$244,'Sup Personal Indirecto'!$D$245)))*12+'Sup Personal Indirecto'!$D$243*12)*'Sup Personal Indirecto'!O24*'Sup Personal Directo'!O$113","v":8142.2608602207529},{"$f":"(('Sup Personal Indirecto'!P94*(1+SUM('Sup Personal Indirecto'!$D$226,'Sup Personal Indirecto'!$D$242,'Sup Personal Indirecto'!$D$244,'Sup Personal Indirecto'!$D$245)))*12+'Sup Personal Indirecto'!$D$243*12)*'Sup Personal Indirecto'!P24*'Sup Personal Directo'!P$113","v":8308.5498266972972},{"$f":"(('Sup Personal Indirecto'!Q94*(1+SUM('Sup Personal Indirecto'!$D$226,'Sup Personal Indirecto'!$D$242,'Sup Personal Indirecto'!$D$244,'Sup Personal Indirecto'!$D$245)))*12+'Sup Personal Indirecto'!$D$243*12)*'Sup Personal Indirecto'!Q24*'Sup Personal Directo'!Q$113","v":8488.3104202009908},{"$f":"(('Sup Personal Indirecto'!R94*(1+SUM('Sup Personal Indirecto'!$D$226,'Sup Personal Indirecto'!$D$242,'Sup Personal Indirecto'!$D$244,'Sup Personal Indirecto'!$D$245)))*12+'Sup Personal Indirecto'!$D$243*12)*'Sup Personal Indirecto'!R24*'Sup Personal Directo'!R$113","v":8679.2623308837628},{"$f":"(('Sup Personal Indirecto'!S94*(1+SUM('Sup Personal Indirecto'!$D$226,'Sup Personal Indirecto'!$D$242,'Sup Personal Indirecto'!$D$244,'Sup Personal Indirecto'!$D$245)))*12+'Sup Personal Indirecto'!$D$243*12)*'Sup Personal Indirecto'!S24*'Sup Personal Directo'!S$113","v":8869.0086589723833},{"$f":"(('Sup Personal Indirecto'!T94*(1+SUM('Sup Personal Indirecto'!$D$226,'Sup Personal Indirecto'!$D$242,'Sup Personal Indirecto'!$D$244,'Sup Personal Indirecto'!$D$245)))*12+'Sup Personal Indirecto'!$D$243*12)*'Sup Personal Indirecto'!T24*'Sup Personal Directo'!T$113","v":9058.8781351270172},{"$f":"(('Sup Personal Indirecto'!U94*(1+SUM('Sup Personal Indirecto'!$D$226,'Sup Personal Indirecto'!$D$242,'Sup Personal Indirecto'!$D$244,'Sup Personal Indirecto'!$D$245)))*12+'Sup Personal Indirecto'!$D$243*12)*'Sup Personal Indirecto'!U24*'Sup Personal Directo'!U$113","v":9251.3754848552398},{"$f":"(('Sup Personal Indirecto'!V94*(1+SUM('Sup Personal Indirecto'!$D$226,'Sup Personal Indirecto'!$D$242,'Sup Personal Indirecto'!$D$244,'Sup Personal Indirecto'!$D$245)))*12+'Sup Personal Indirecto'!$D$243*12)*'Sup Personal Indirecto'!V24*'Sup Personal Directo'!V$113","v":9447.6878723557966},{"$f":"(('Sup Personal Indirecto'!W94*(1+SUM('Sup Personal Indirecto'!$D$226,'Sup Personal Indirecto'!$D$242,'Sup Personal Indirecto'!$D$244,'Sup Personal Indirecto'!$D$245)))*12+'Sup Personal Indirecto'!$D$243*12)*'Sup Personal Indirecto'!W24*'Sup Personal Directo'!W$113","v":9648.2392646671397}]
[null,"c) Personal de operación "]
[null,null,"Jefe de Operaciones",{"$f":"(('Sup Personal Indirecto'!D96*(1+SUM('Sup Personal Indirecto'!$D$226,'Sup Personal Indirecto'!$D$242,'Sup Personal Indirecto'!$D$244,'Sup Personal Indirecto'!$D$245)))*12+'Sup Personal Indirecto'!$D$243*12)*'Sup Personal Indirecto'!D26*'Sup Personal Directo'!D$113","v":24716.188524590172},{"$f":"(('Sup Personal Indirecto'!E96*(1+SUM('Sup Personal Indirecto'!$D$226,'Sup Personal Indirecto'!$D$242,'Sup Personal Indirecto'!$D$244,'Sup Personal Indirecto'!$D$245)))*12+'Sup Personal Indirecto'!$D$243*12)*'Sup Personal Indirecto'!E26*'Sup Personal Directo'!E$113","v":25312.540721311478},{"$f":"(('Sup Personal Indirecto'!F96*(1+SUM('Sup Personal Indirecto'!$D$226,'Sup Personal Indirecto'!$D$242,'Sup Personal Indirecto'!$D$244,'Sup Personal Indirecto'!$D$245)))*12+'Sup Personal Indirecto'!$D$243*12)*'Sup Personal Indirecto'!F26*'Sup Personal Directo'!F$113","v":26178.432114306106},{"$f":"(('Sup Personal Indirecto'!G96*(1+SUM('Sup Personal Indirecto'!$D$226,'Sup Personal Indirecto'!$D$242,'Sup Personal Indirecto'!$D$244,'Sup Personal Indirecto'!$D$245)))*12+'Sup Personal Indirecto'!$D$243*12)*'Sup Personal Indirecto'!G26*'Sup Personal Directo'!G$113","v":26501.855124568228},{"$f":"(('Sup Personal Indirecto'!H96*(1+SUM('Sup Personal Indirecto'!$D$226,'Sup Personal Indirecto'!$D$242,'Sup Personal Indirecto'!$D$244,'Sup Personal Indirecto'!$D$245)))*12+'Sup Personal Indirecto'!$D$243*12)*'Sup Personal Indirecto'!H26*'Sup Personal Directo'!H$113","v":26785.997414471796},{"$f":"(('Sup Personal Indirecto'!I96*(1+SUM('Sup Personal Indirecto'!$D$226,'Sup Personal Indirecto'!$D$242,'Sup Personal Indirecto'!$D$244,'Sup Personal Indirecto'!$D$245)))*12+'Sup Personal Indirecto'!$D$243*12)*'Sup Personal Indirecto'!I26*'Sup Personal Directo'!I$113","v":27181.187305925945},{"$f":"(('Sup Personal Indirecto'!J96*(1+SUM('Sup Personal Indirecto'!$D$226,'Sup Personal Indirecto'!$D$242,'Sup Personal Indirecto'!$D$244,'Sup Personal Indirecto'!$D$245)))*12+'Sup Personal Indirecto'!$D$243*12)*'Sup Personal Indirecto'!J26*'Sup Personal Directo'!J$113","v":27930.478593042248},{"$f":"(('Sup Personal Indirecto'!K96*(1+SUM('Sup Personal Indirecto'!$D$226,'Sup Personal Indirecto'!$D$242,'Sup Personal Indirecto'!$D$244,'Sup Personal Indirecto'!$D$245)))*12+'Sup Personal Indirecto'!$D$243*12)*'Sup Personal Indirecto'!K26*'Sup Personal Directo'!K$113","v":28642.502952064042},{"$f":"(('Sup Personal Indirecto'!L96*(1+SUM('Sup Personal Indirecto'!$D$226,'Sup Personal Indirecto'!$D$242,'Sup Personal Indirecto'!$D$244,'Sup Personal Indirecto'!$D$245)))*12+'Sup Personal Indirecto'!$D$243*12)*'Sup Personal Indirecto'!L26*'Sup Personal Directo'!L$113","v":29292.032706082606},{"$f":"(('Sup Personal Indirecto'!M96*(1+SUM('Sup Personal Indirecto'!$D$226,'Sup Personal Indirecto'!$D$242,'Sup Personal Indirecto'!$D$244,'Sup Personal Indirecto'!$D$245)))*12+'Sup Personal Indirecto'!$D$243*12)*'Sup Personal Indirecto'!M26*'Sup Personal Directo'!M$113","v":29921.453194020451},{"$f":"(('Sup Personal Indirecto'!N96*(1+SUM('Sup Personal Indirecto'!$D$226,'Sup Personal Indirecto'!$D$242,'Sup Personal Indirecto'!$D$244,'Sup Personal Indirecto'!$D$245)))*12+'Sup Personal Indirecto'!$D$243*12)*'Sup Personal Indirecto'!N26*'Sup Personal Directo'!N$113","v":30554.523588766402},{"$f":"(('Sup Personal Indirecto'!O96*(1+SUM('Sup Personal Indirecto'!$D$226,'Sup Personal Indirecto'!$D$242,'Sup Personal Indirecto'!$D$244,'Sup Personal Indirecto'!$D$245)))*12+'Sup Personal Indirecto'!$D$243*12)*'Sup Personal Indirecto'!O26*'Sup Personal Directo'!O$113","v":31151.145272765589},{"$f":"(('Sup Personal Indirecto'!P96*(1+SUM('Sup Personal Indirecto'!$D$226,'Sup Personal Indirecto'!$D$242,'Sup Personal Indirecto'!$D$244,'Sup Personal Indirecto'!$D$245)))*12+'Sup Personal Indirecto'!$D$243*12)*'Sup Personal Indirecto'!P26*'Sup Personal Directo'!P$113","v":31787.343478754832},{"$f":"(('Sup Personal Indirecto'!Q96*(1+SUM('Sup Personal Indirecto'!$D$226,'Sup Personal Indirecto'!$D$242,'Sup Personal Indirecto'!$D$244,'Sup Personal Indirecto'!$D$245)))*12+'Sup Personal Indirecto'!$D$243*12)*'Sup Personal Indirecto'!Q26*'Sup Personal Directo'!Q$113","v":32475.082235677972},{"$f":"(('Sup Personal Indirecto'!R96*(1+SUM('Sup Personal Indirecto'!$D$226,'Sup Personal Indirecto'!$D$242,'Sup Personal Indirecto'!$D$244,'Sup Personal Indirecto'!$D$245)))*12+'Sup Personal Indirecto'!$D$243*12)*'Sup Personal Indirecto'!R26*'Sup Personal Directo'!R$113","v":33205.637398661274},{"$f":"(('Sup Personal Indirecto'!S96*(1+SUM('Sup Personal Indirecto'!$D$226,'Sup Personal Indirecto'!$D$242,'Sup Personal Indirecto'!$D$244,'Sup Personal Indirecto'!$D$245)))*12+'Sup Personal Indirecto'!$D$243*12)*'Sup Personal Indirecto'!S26*'Sup Personal Directo'!S$113","v":33931.580172140806},{"$f":"(('Sup Personal Indirecto'!T96*(1+SUM('Sup Personal Indirecto'!$D$226,'Sup Personal Indirecto'!$D$242,'Sup Personal Indirecto'!$D$244,'Sup Personal Indirecto'!$D$245)))*12+'Sup Personal Indirecto'!$D$243*12)*'Sup Personal Indirecto'!T26*'Sup Personal Directo'!T$113","v":34657.994092806635},{"$f":"(('Sup Personal Indirecto'!U96*(1+SUM('Sup Personal Indirecto'!$D$226,'Sup Personal Indirecto'!$D$242,'Sup Personal Indirecto'!$D$244,'Sup Personal Indirecto'!$D$245)))*12+'Sup Personal Indirecto'!$D$243*12)*'Sup Personal Indirecto'!U26*'Sup Personal Directo'!U$113","v":35394.461888293554},{"$f":"(('Sup Personal Indirecto'!V96*(1+SUM('Sup Personal Indirecto'!$D$226,'Sup Personal Indirecto'!$D$242,'Sup Personal Indirecto'!$D$244,'Sup Personal Indirecto'!$D$245)))*12+'Sup Personal Indirecto'!$D$243*12)*'Sup Personal Indirecto'!V26*'Sup Personal Directo'!V$113","v":36145.525481914105},{"$f":"(('Sup Personal Indirecto'!W96*(1+SUM('Sup Personal Indirecto'!$D$226,'Sup Personal Indirecto'!$D$242,'Sup Personal Indirecto'!$D$244,'Sup Personal Indirecto'!$D$245)))*12+'Sup Personal Indirecto'!$D$243*12)*'Sup Personal Indirecto'!W26*'Sup Personal Directo'!W$113","v":36912.806911948835}]
[null,null,"Despachador de Ruta",{"$f":"(('Sup Personal Indirecto'!D97*(1+SUM('Sup Personal Indirecto'!$D$226,'Sup Personal Indirecto'!$D$242,'Sup Personal Indirecto'!$D$244,'Sup Personal Indirecto'!$D$245)))*12+'Sup Personal Indirecto'!$D$243*12)*'Sup Personal Indirecto'!D27*'Sup Personal Directo'!D$113","v":51682.377049180344},{"$f":"(('Sup Personal Indirecto'!E97*(1+SUM('Sup Personal Indirecto'!$D$226,'Sup Personal Indirecto'!$D$242,'Sup Personal Indirecto'!$D$244,'Sup Personal Indirecto'!$D$245)))*12+'Sup Personal Indirecto'!$D$243*12)*'Sup Personal Indirecto'!E27*'Sup Personal Directo'!E$113","v":52929.369442622956},{"$f":"(('Sup Personal Indirecto'!F97*(1+SUM('Sup Personal Indirecto'!$D$226,'Sup Personal Indirecto'!$D$242,'Sup Personal Indirecto'!$D$244,'Sup Personal Indirecto'!$D$245)))*12+'Sup Personal Indirecto'!$D$243*12)*'Sup Personal Indirecto'!F27*'Sup Personal Directo'!F$113","v":54739.977312516217},{"$f":"(('Sup Personal Indirecto'!G97*(1+SUM('Sup Personal Indirecto'!$D$226,'Sup Personal Indirecto'!$D$242,'Sup Personal Indirecto'!$D$244,'Sup Personal Indirecto'!$D$245)))*12+'Sup Personal Indirecto'!$D$243*12)*'Sup Personal Indirecto'!G27*'Sup Personal Directo'!G$113","v":55416.265646622334},{"$f":"(('Sup Personal Indirecto'!H97*(1+SUM('Sup Personal Indirecto'!$D$226,'Sup Personal Indirecto'!$D$242,'Sup Personal Indirecto'!$D$244,'Sup Personal Indirecto'!$D$245)))*12+'Sup Personal Indirecto'!$D$243*12)*'Sup Personal Indirecto'!H27*'Sup Personal Directo'!H$113","v":56010.41668037916},{"$f":"(('Sup Personal Indirecto'!I97*(1+SUM('Sup Personal Indirecto'!$D$226,'Sup Personal Indirecto'!$D$242,'Sup Personal Indirecto'!$D$244,'Sup Personal Indirecto'!$D$245)))*12+'Sup Personal Indirecto'!$D$243*12)*'Sup Personal Indirecto'!I27*'Sup Personal Directo'!I$113","v":56836.771963914791},{"$f":"(('Sup Personal Indirecto'!J97*(1+SUM('Sup Personal Indirecto'!$D$226,'Sup Personal Indirecto'!$D$242,'Sup Personal Indirecto'!$D$244,'Sup Personal Indirecto'!$D$245)))*12+'Sup Personal Indirecto'!$D$243*12)*'Sup Personal Indirecto'!J27*'Sup Personal Directo'!J$113","v":58403.565111728931},{"$f":"(('Sup Personal Indirecto'!K97*(1+SUM('Sup Personal Indirecto'!$D$226,'Sup Personal Indirecto'!$D$242,'Sup Personal Indirecto'!$D$244,'Sup Personal Indirecto'!$D$245)))*12+'Sup Personal Indirecto'!$D$243*12)*'Sup Personal Indirecto'!K27*'Sup Personal Directo'!K$113","v":59892.431866186394},{"$f":"(('Sup Personal Indirecto'!L97*(1+SUM('Sup Personal Indirecto'!$D$226,'Sup Personal Indirecto'!$D$242,'Sup Personal Indirecto'!$D$244,'Sup Personal Indirecto'!$D$245)))*12+'Sup Personal Indirecto'!$D$243*12)*'Sup Personal Indirecto'!L27*'Sup Personal Directo'!L$113","v":61250.620310915678},{"$f":"(('Sup Personal Indirecto'!M97*(1+SUM('Sup Personal Indirecto'!$D$226,'Sup Personal Indirecto'!$D$242,'Sup Personal Indirecto'!$D$244,'Sup Personal Indirecto'!$D$245)))*12+'Sup Personal Indirecto'!$D$243*12)*'Sup Personal Indirecto'!M27*'Sup Personal Directo'!M$113","v":62566.75960754382},{"$f":"(('Sup Personal Indirecto'!N97*(1+SUM('Sup Personal Indirecto'!$D$226,'Sup Personal Indirecto'!$D$242,'Sup Personal Indirecto'!$D$244,'Sup Personal Indirecto'!$D$245)))*12+'Sup Personal Indirecto'!$D$243*12)*'Sup Personal Indirecto'!N27*'Sup Personal Directo'!N$113","v":63890.530981410062},{"$f":"(('Sup Personal Indirecto'!O97*(1+SUM('Sup Personal Indirecto'!$D$226,'Sup Personal Indirecto'!$D$242,'Sup Personal Indirecto'!$D$244,'Sup Personal Indirecto'!$D$245)))*12+'Sup Personal Indirecto'!$D$243*12)*'Sup Personal Indirecto'!O27*'Sup Personal Directo'!O$113","v":65138.086881766023},{"$f":"(('Sup Personal Indirecto'!P97*(1+SUM('Sup Personal Indirecto'!$D$226,'Sup Personal Indirecto'!$D$242,'Sup Personal Indirecto'!$D$244,'Sup Personal Indirecto'!$D$245)))*12+'Sup Personal Indirecto'!$D$243*12)*'Sup Personal Indirecto'!P27*'Sup Personal Directo'!P$113","v":66468.398613578378},{"$f":"(('Sup Personal Indirecto'!Q97*(1+SUM('Sup Personal Indirecto'!$D$226,'Sup Personal Indirecto'!$D$242,'Sup Personal Indirecto'!$D$244,'Sup Personal Indirecto'!$D$245)))*12+'Sup Personal Indirecto'!$D$243*12)*'Sup Personal Indirecto'!Q27*'Sup Personal Directo'!Q$113","v":67906.483361607927},{"$f":"(('Sup Personal Indirecto'!R97*(1+SUM('Sup Personal Indirecto'!$D$226,'Sup Personal Indirecto'!$D$242,'Sup Personal Indirecto'!$D$244,'Sup Personal Indirecto'!$D$245)))*12+'Sup Personal Indirecto'!$D$243*12)*'Sup Personal Indirecto'!R27*'Sup Personal Directo'!R$113","v":69434.098647070103},{"$f":"(('Sup Personal Indirecto'!S97*(1+SUM('Sup Personal Indirecto'!$D$226,'Sup Personal Indirecto'!$D$242,'Sup Personal Indirecto'!$D$244,'Sup Personal Indirecto'!$D$245)))*12+'Sup Personal Indirecto'!$D$243*12)*'Sup Personal Indirecto'!S27*'Sup Personal Directo'!S$113","v":70952.069271779066},{"$f":"(('Sup Personal Indirecto'!T97*(1+SUM('Sup Personal Indirecto'!$D$226,'Sup Personal Indirecto'!$D$242,'Sup Personal Indirecto'!$D$244,'Sup Personal Indirecto'!$D$245)))*12+'Sup Personal Indirecto'!$D$243*12)*'Sup Personal Indirecto'!T27*'Sup Personal Directo'!T$113","v":72471.025081016138},{"$f":"(('Sup Personal Indirecto'!U97*(1+SUM('Sup Personal Indirecto'!$D$226,'Sup Personal Indirecto'!$D$242,'Sup Personal Indirecto'!$D$244,'Sup Personal Indirecto'!$D$245)))*12+'Sup Personal Indirecto'!$D$243*12)*'Sup Personal Indirecto'!U27*'Sup Personal Directo'!U$113","v":74011.003878841919},{"$f":"(('Sup Personal Indirecto'!V97*(1+SUM('Sup Personal Indirecto'!$D$226,'Sup Personal Indirecto'!$D$242,'Sup Personal Indirecto'!$D$244,'Sup Personal Indirecto'!$D$245)))*12+'Sup Personal Indirecto'!$D$243*12)*'Sup Personal Indirecto'!V27*'Sup Personal Directo'!V$113","v":75581.502978846373},{"$f":"(('Sup Personal Indirecto'!W97*(1+SUM('Sup Personal Indirecto'!$D$226,'Sup Personal Indirecto'!$D$242,'Sup Personal Indirecto'!$D$244,'Sup Personal Indirecto'!$D$245)))*12+'Sup Personal Indirecto'!$D$243*12)*'Sup Personal Indirecto'!W27*'Sup Personal Directo'!W$113","v":77185.914117337117}]
[null,null,"Fiscalizador de Ruta",{"$f":"(('Sup Personal Indirecto'!D98*(1+SUM('Sup Personal Indirecto'!$D$226,'Sup Personal Indirecto'!$D$242,'Sup Personal Indirecto'!$D$244,'Sup Personal Indirecto'!$D$245)))*12+'Sup Personal Indirecto'!$D$243*12)*'Sup Personal Indirecto'!D28*'Sup Personal Directo'!D$113","v":38386.782786885262},{"$f":"(('Sup Personal Indirecto'!E98*(1+SUM('Sup Personal Indirecto'!$D$226,'Sup Personal Indirecto'!$D$242,'Sup Personal Indirecto'!$D$244,'Sup Personal Indirecto'!$D$245)))*12+'Sup Personal Indirecto'!$D$243*12)*'Sup Personal Indirecto'!E28*'Sup Personal Directo'!E$113","v":39312.97908196722},{"$f":"(('Sup Personal Indirecto'!F98*(1+SUM('Sup Personal Indirecto'!$D$226,'Sup Personal Indirecto'!$D$242,'Sup Personal Indirecto'!$D$244,'Sup Personal Indirecto'!$D$245)))*12+'Sup Personal Indirecto'!$D$243*12)*'Sup Personal Indirecto'!F28*'Sup Personal Directo'!F$113","v":40657.797470403166},{"$f":"(('Sup Personal Indirecto'!G98*(1+SUM('Sup Personal Indirecto'!$D$226,'Sup Personal Indirecto'!$D$242,'Sup Personal Indirecto'!$D$244,'Sup Personal Indirecto'!$D$245)))*12+'Sup Personal Indirecto'!$D$243*12)*'Sup Personal Indirecto'!G28*'Sup Personal Directo'!G$113","v":41160.106668719105},{"$f":"(('Sup Personal Indirecto'!H98*(1+SUM('Sup Personal Indirecto'!$D$226,'Sup Personal Indirecto'!$D$242,'Sup Personal Indirecto'!$D$244,'Sup Personal Indirecto'!$D$245)))*12+'Sup Personal Indirecto'!$D$243*12)*'Sup Personal Indirecto'!H28*'Sup Personal Directo'!H$113","v":41601.408868378443},{"$f":"(('Sup Personal Indirecto'!I98*(1+SUM('Sup Personal Indirecto'!$D$226,'Sup Personal Indirecto'!$D$242,'Sup Personal Indirecto'!$D$244,'Sup Personal Indirecto'!$D$245)))*12+'Sup Personal Indirecto'!$D$243*12)*'Sup Personal Indirecto'!I28*'Sup Personal Directo'!I$113","v":42215.179414258942},{"$f":"(('Sup Personal Indirecto'!J98*(1+SUM('Sup Personal Indirecto'!$D$226,'Sup Personal Indirecto'!$D$242,'Sup Personal Indirecto'!$D$244,'Sup Personal Indirecto'!$D$245)))*12+'Sup Personal Indirecto'!$D$243*12)*'Sup Personal Indirecto'!J28*'Sup Personal Directo'!J$113","v":43378.9058461893},{"$f":"(('Sup Personal Indirecto'!K98*(1+SUM('Sup Personal Indirecto'!$D$226,'Sup Personal Indirecto'!$D$242,'Sup Personal Indirecto'!$D$244,'Sup Personal Indirecto'!$D$245)))*12+'Sup Personal Indirecto'!$D$243*12)*'Sup Personal Indirecto'!K28*'Sup Personal Directo'!K$113","v":44484.752905963418},{"$f":"(('Sup Personal Indirecto'!L98*(1+SUM('Sup Personal Indirecto'!$D$226,'Sup Personal Indirecto'!$D$242,'Sup Personal Indirecto'!$D$244,'Sup Personal Indirecto'!$D$245)))*12+'Sup Personal Indirecto'!$D$243*12)*'Sup Personal Indirecto'!L28*'Sup Personal Directo'!L$113","v":45493.539416728352},{"$f":"(('Sup Personal Indirecto'!M98*(1+SUM('Sup Personal Indirecto'!$D$226,'Sup Personal Indirecto'!$D$242,'Sup Personal Indirecto'!$D$244,'Sup Personal Indirecto'!$D$245)))*12+'Sup Personal Indirecto'!$D$243*12)*'Sup Personal Indirecto'!M28*'Sup Personal Directo'!M$113","v":46471.094169074051},{"$f":"(('Sup Personal Indirecto'!N98*(1+SUM('Sup Personal Indirecto'!$D$226,'Sup Personal Indirecto'!$D$242,'Sup Personal Indirecto'!$D$244,'Sup Personal Indirecto'!$D$245)))*12+'Sup Personal Indirecto'!$D$243*12)*'Sup Personal Indirecto'!N28*'Sup Personal Directo'!N$113","v":47454.317602078008},{"$f":"(('Sup Personal Indirecto'!O98*(1+SUM('Sup Personal Indirecto'!$D$226,'Sup Personal Indirecto'!$D$242,'Sup Personal Indirecto'!$D$244,'Sup Personal Indirecto'!$D$245)))*12+'Sup Personal Indirecto'!$D$243*12)*'Sup Personal Indirecto'!O28*'Sup Personal Directo'!O$113","v":48380.932438618715},{"$f":"(('Sup Personal Indirecto'!P98*(1+SUM('Sup Personal Indirecto'!$D$226,'Sup Personal Indirecto'!$D$242,'Sup Personal Indirecto'!$D$244,'Sup Personal Indirecto'!$D$245)))*12+'Sup Personal Indirecto'!$D$243*12)*'Sup Personal Indirecto'!P28*'Sup Personal Directo'!P$113","v":49369.013684172336},{"$f":"(('Sup Personal Indirecto'!Q98*(1+SUM('Sup Personal Indirecto'!$D$226,'Sup Personal Indirecto'!$D$242,'Sup Personal Indirecto'!$D$244,'Sup Personal Indirecto'!$D$245)))*12+'Sup Personal Indirecto'!$D$243*12)*'Sup Personal Indirecto'!Q28*'Sup Personal Directo'!Q$113","v":50437.142706163955},{"$f":"(('Sup Personal Indirecto'!R98*(1+SUM('Sup Personal Indirecto'!$D$226,'Sup Personal Indirecto'!$D$242,'Sup Personal Indirecto'!$D$244,'Sup Personal Indirecto'!$D$245)))*12+'Sup Personal Indirecto'!$D$243*12)*'Sup Personal Indirecto'!R28*'Sup Personal Directo'!R$113","v":51571.770010344655},{"$f":"(('Sup Personal Indirecto'!S98*(1+SUM('Sup Personal Indirecto'!$D$226,'Sup Personal Indirecto'!$D$242,'Sup Personal Indirecto'!$D$244,'Sup Personal Indirecto'!$D$245)))*12+'Sup Personal Indirecto'!$D$243*12)*'Sup Personal Indirecto'!S28*'Sup Personal Directo'!S$113","v":52699.233799251393},{"$f":"(('Sup Personal Indirecto'!T98*(1+SUM('Sup Personal Indirecto'!$D$226,'Sup Personal Indirecto'!$D$242,'Sup Personal Indirecto'!$D$244,'Sup Personal Indirecto'!$D$245)))*12+'Sup Personal Indirecto'!$D$243*12)*'Sup Personal Indirecto'!T28*'Sup Personal Directo'!T$113","v":53827.429328194965},{"$f":"(('Sup Personal Indirecto'!U98*(1+SUM('Sup Personal Indirecto'!$D$226,'Sup Personal Indirecto'!$D$242,'Sup Personal Indirecto'!$D$244,'Sup Personal Indirecto'!$D$245)))*12+'Sup Personal Indirecto'!$D$243*12)*'Sup Personal Indirecto'!U28*'Sup Personal Directo'!U$113","v":54971.239558755646},{"$f":"(('Sup Personal Indirecto'!V98*(1+SUM('Sup Personal Indirecto'!$D$226,'Sup Personal Indirecto'!$D$242,'Sup Personal Indirecto'!$D$244,'Sup Personal Indirecto'!$D$245)))*12+'Sup Personal Indirecto'!$D$243*12)*'Sup Personal Indirecto'!V28*'Sup Personal Directo'!V$113","v":56137.718564965093},{"$f":"(('Sup Personal Indirecto'!W98*(1+SUM('Sup Personal Indirecto'!$D$226,'Sup Personal Indirecto'!$D$242,'Sup Personal Indirecto'!$D$244,'Sup Personal Indirecto'!$D$245)))*12+'Sup Personal Indirecto'!$D$243*12)*'Sup Personal Indirecto'!W28*'Sup Personal Directo'!W$113","v":57329.385539096271}]
[null,null,"Monitoreo & Control de gestión operativa",{"$f":"(('Sup Personal Indirecto'!D99*(1+SUM('Sup Personal Indirecto'!$D$226,'Sup Personal Indirecto'!$D$242,'Sup Personal Indirecto'!$D$244,'Sup Personal Indirecto'!$D$245)))*12+'Sup Personal Indirecto'!$D$243*12)*'Sup Personal Indirecto'!D29*'Sup Personal Directo'!D$113","v":19380.891393442631},{"$f":"(('Sup Personal Indirecto'!E99*(1+SUM('Sup Personal Indirecto'!$D$226,'Sup Personal Indirecto'!$D$242,'Sup Personal Indirecto'!$D$244,'Sup Personal Indirecto'!$D$245)))*12+'Sup Personal Indirecto'!$D$243*12)*'Sup Personal Indirecto'!E29*'Sup Personal Directo'!E$113","v":19848.513540983611},{"$f":"(('Sup Personal Indirecto'!F99*(1+SUM('Sup Personal Indirecto'!$D$226,'Sup Personal Indirecto'!$D$242,'Sup Personal Indirecto'!$D$244,'Sup Personal Indirecto'!$D$245)))*12+'Sup Personal Indirecto'!$D$243*12)*'Sup Personal Indirecto'!F29*'Sup Personal Directo'!F$113","v":20527.491492193582},{"$f":"(('Sup Personal Indirecto'!G99*(1+SUM('Sup Personal Indirecto'!$D$226,'Sup Personal Indirecto'!$D$242,'Sup Personal Indirecto'!$D$244,'Sup Personal Indirecto'!$D$245)))*12+'Sup Personal Indirecto'!$D$243*12)*'Sup Personal Indirecto'!G29*'Sup Personal Directo'!G$113","v":20781.099617483378},{"$f":"(('Sup Personal Indirecto'!H99*(1+SUM('Sup Personal Indirecto'!$D$226,'Sup Personal Indirecto'!$D$242,'Sup Personal Indirecto'!$D$244,'Sup Personal Indirecto'!$D$245)))*12+'Sup Personal Indirecto'!$D$243*12)*'Sup Personal Indirecto'!H29*'Sup Personal Directo'!H$113","v":21003.906255142185},{"$f":"(('Sup Personal Indirecto'!I99*(1+SUM('Sup Personal Indirecto'!$D$226,'Sup Personal Indirecto'!$D$242,'Sup Personal Indirecto'!$D$244,'Sup Personal Indirecto'!$D$245)))*12+'Sup Personal Indirecto'!$D$243*12)*'Sup Personal Indirecto'!I29*'Sup Personal Directo'!I$113","v":21313.789486468049},{"$f":"(('Sup Personal Indirecto'!J99*(1+SUM('Sup Personal Indirecto'!$D$226,'Sup Personal Indirecto'!$D$242,'Sup Personal Indirecto'!$D$244,'Sup Personal Indirecto'!$D$245)))*12+'Sup Personal Indirecto'!$D$243*12)*'Sup Personal Indirecto'!J29*'Sup Personal Directo'!J$113","v":21901.336916898352},{"$f":"(('Sup Personal Indirecto'!K99*(1+SUM('Sup Personal Indirecto'!$D$226,'Sup Personal Indirecto'!$D$242,'Sup Personal Indirecto'!$D$244,'Sup Personal Indirecto'!$D$245)))*12+'Sup Personal Indirecto'!$D$243*12)*'Sup Personal Indirecto'!K29*'Sup Personal Directo'!K$113","v":22459.6619498199},{"$f":"(('Sup Personal Indirecto'!L99*(1+SUM('Sup Personal Indirecto'!$D$226,'Sup Personal Indirecto'!$D$242,'Sup Personal Indirecto'!$D$244,'Sup Personal Indirecto'!$D$245)))*12+'Sup Personal Indirecto'!$D$243*12)*'Sup Personal Indirecto'!L29*'Sup Personal Directo'!L$113","v":22968.982616593381},{"$f":"(('Sup Personal Indirecto'!M99*(1+SUM('Sup Personal Indirecto'!$D$226,'Sup Personal Indirecto'!$D$242,'Sup Personal Indirecto'!$D$244,'Sup Personal Indirecto'!$D$245)))*12+'Sup Personal Indirecto'!$D$243*12)*'Sup Personal Indirecto'!M29*'Sup Personal Directo'!M$113","v":23462.534852828936},{"$f":"(('Sup Personal Indirecto'!N99*(1+SUM('Sup Personal Indirecto'!$D$226,'Sup Personal Indirecto'!$D$242,'Sup Personal Indirecto'!$D$244,'Sup Personal Indirecto'!$D$245)))*12+'Sup Personal Indirecto'!$D$243*12)*'Sup Personal Indirecto'!N29*'Sup Personal Directo'!N$113","v":23958.949118028773},{"$f":"(('Sup Personal Indirecto'!O99*(1+SUM('Sup Personal Indirecto'!$D$226,'Sup Personal Indirecto'!$D$242,'Sup Personal Indirecto'!$D$244,'Sup Personal Indirecto'!$D$245)))*12+'Sup Personal Indirecto'!$D$243*12)*'Sup Personal Indirecto'!O29*'Sup Personal Directo'!O$113","v":24426.78258066226},{"$f":"(('Sup Personal Indirecto'!P99*(1+SUM('Sup Personal Indirecto'!$D$226,'Sup Personal Indirecto'!$D$242,'Sup Personal Indirecto'!$D$244,'Sup Personal Indirecto'!$D$245)))*12+'Sup Personal Indirecto'!$D$243*12)*'Sup Personal Indirecto'!P29*'Sup Personal Directo'!P$113","v":24925.649480091892},{"$f":"(('Sup Personal Indirecto'!Q99*(1+SUM('Sup Personal Indirecto'!$D$226,'Sup Personal Indirecto'!$D$242,'Sup Personal Indirecto'!$D$244,'Sup Personal Indirecto'!$D$245)))*12+'Sup Personal Indirecto'!$D$243*12)*'Sup Personal Indirecto'!Q29*'Sup Personal Directo'!Q$113","v":25464.931260602978},{"$f":"(('Sup Personal Indirecto'!R99*(1+SUM('Sup Personal Indirecto'!$D$226,'Sup Personal Indirecto'!$D$242,'Sup Personal Indirecto'!$D$244,'Sup Personal Indirecto'!$D$245)))*12+'Sup Personal Indirecto'!$D$243*12)*'Sup Personal Indirecto'!R29*'Sup Personal Directo'!R$113","v":26037.78699265129},{"$f":"(('Sup Personal Indirecto'!S99*(1+SUM('Sup Personal Indirecto'!$D$226,'Sup Personal Indirecto'!$D$242,'Sup Personal Indirecto'!$D$244,'Sup Personal Indirecto'!$D$245)))*12+'Sup Personal Indirecto'!$D$243*12)*'Sup Personal Indirecto'!S29*'Sup Personal Directo'!S$113","v":26607.025976917153},{"$f":"(('Sup Personal Indirecto'!T99*(1+SUM('Sup Personal Indirecto'!$D$226,'Sup Personal Indirecto'!$D$242,'Sup Personal Indirecto'!$D$244,'Sup Personal Indirecto'!$D$245)))*12+'Sup Personal Indirecto'!$D$243*12)*'Sup Personal Indirecto'!T29*'Sup Personal Directo'!T$113","v":27176.634405381057},{"$f":"(('Sup Personal Indirecto'!U99*(1+SUM('Sup Personal Indirecto'!$D$226,'Sup Personal Indirecto'!$D$242,'Sup Personal Indirecto'!$D$244,'Sup Personal Indirecto'!$D$245)))*12+'Sup Personal Indirecto'!$D$243*12)*'Sup Personal Indirecto'!U29*'Sup Personal Directo'!U$113","v":27754.126454565721},{"$f":"(('Sup Personal Indirecto'!V99*(1+SUM('Sup Personal Indirecto'!$D$226,'Sup Personal Indirecto'!$D$242,'Sup Personal Indirecto'!$D$244,'Sup Personal Indirecto'!$D$245)))*12+'Sup Personal Indirecto'!$D$243*12)*'Sup Personal Indirecto'!V29*'Sup Personal Directo'!V$113","v":28343.063617067393},{"$f":"(('Sup Personal Indirecto'!W99*(1+SUM('Sup Personal Indirecto'!$D$226,'Sup Personal Indirecto'!$D$242,'Sup Personal Indirecto'!$D$244,'Sup Personal Indirecto'!$D$245)))*12+'Sup Personal Indirecto'!$D$243*12)*'Sup Personal Indirecto'!W29*'Sup Personal Directo'!W$113","v":28944.717794001419}]
[null,"d) Personal de mantenimiento"]
[null,null,"Responsable de Flota & Mantenimiento",{"$f":"(('Sup Personal Indirecto'!D101*(1+SUM('Sup Personal Indirecto'!$D$226,'Sup Personal Indirecto'!$D$242,'Sup Personal Indirecto'!$D$244,'Sup Personal Indirecto'!$D$245)))*12+'Sup Personal Indirecto'!$D$243*12)*'Sup Personal Indirecto'!D31*'Sup Personal Directo'!D$113","v":16602.459016393444},{"$f":"(('Sup Personal Indirecto'!E101*(1+SUM('Sup Personal Indirecto'!$D$226,'Sup Personal Indirecto'!$D$242,'Sup Personal Indirecto'!$D$244,'Sup Personal Indirecto'!$D$245)))*12+'Sup Personal Indirecto'!$D$243*12)*'Sup Personal Indirecto'!E31*'Sup Personal Directo'!E$113","v":17003.043147540986},{"$f":"(('Sup Personal Indirecto'!F101*(1+SUM('Sup Personal Indirecto'!$D$226,'Sup Personal Indirecto'!$D$242,'Sup Personal Indirecto'!$D$244,'Sup Personal Indirecto'!$D$245)))*12+'Sup Personal Indirecto'!$D$243*12)*'Sup Personal Indirecto'!F31*'Sup Personal Directo'!F$113","v":17584.68324753207},{"$f":"(('Sup Personal Indirecto'!G101*(1+SUM('Sup Personal Indirecto'!$D$226,'Sup Personal Indirecto'!$D$242,'Sup Personal Indirecto'!$D$244,'Sup Personal Indirecto'!$D$245)))*12+'Sup Personal Indirecto'!$D$243*12)*'Sup Personal Indirecto'!G31*'Sup Personal Directo'!G$113","v":17801.9342717947},{"$f":"(('Sup Personal Indirecto'!H101*(1+SUM('Sup Personal Indirecto'!$D$226,'Sup Personal Indirecto'!$D$242,'Sup Personal Indirecto'!$D$244,'Sup Personal Indirecto'!$D$245)))*12+'Sup Personal Indirecto'!$D$243*12)*'Sup Personal Indirecto'!H31*'Sup Personal Directo'!H$113","v":17992.799490283171},{"$f":"(('Sup Personal Indirecto'!I101*(1+SUM('Sup Personal Indirecto'!$D$226,'Sup Personal Indirecto'!$D$242,'Sup Personal Indirecto'!$D$244,'Sup Personal Indirecto'!$D$245)))*12+'Sup Personal Indirecto'!$D$243*12)*'Sup Personal Indirecto'!I31*'Sup Personal Directo'!I$113","v":18258.258056843009},{"$f":"(('Sup Personal Indirecto'!J101*(1+SUM('Sup Personal Indirecto'!$D$226,'Sup Personal Indirecto'!$D$242,'Sup Personal Indirecto'!$D$244,'Sup Personal Indirecto'!$D$245)))*12+'Sup Personal Indirecto'!$D$243*12)*'Sup Personal Indirecto'!J31*'Sup Personal Directo'!J$113","v":18761.575057897298},{"$f":"(('Sup Personal Indirecto'!K101*(1+SUM('Sup Personal Indirecto'!$D$226,'Sup Personal Indirecto'!$D$242,'Sup Personal Indirecto'!$D$244,'Sup Personal Indirecto'!$D$245)))*12+'Sup Personal Indirecto'!$D$243*12)*'Sup Personal Indirecto'!K31*'Sup Personal Directo'!K$113","v":19239.858965934822},{"$f":"(('Sup Personal Indirecto'!L101*(1+SUM('Sup Personal Indirecto'!$D$226,'Sup Personal Indirecto'!$D$242,'Sup Personal Indirecto'!$D$244,'Sup Personal Indirecto'!$D$245)))*12+'Sup Personal Indirecto'!$D$243*12)*'Sup Personal Indirecto'!L31*'Sup Personal Directo'!L$113","v":19676.163742874538},{"$f":"(('Sup Personal Indirecto'!M101*(1+SUM('Sup Personal Indirecto'!$D$226,'Sup Personal Indirecto'!$D$242,'Sup Personal Indirecto'!$D$244,'Sup Personal Indirecto'!$D$245)))*12+'Sup Personal Indirecto'!$D$243*12)*'Sup Personal Indirecto'!M31*'Sup Personal Directo'!M$113","v":20098.960641541573},{"$f":"(('Sup Personal Indirecto'!N101*(1+SUM('Sup Personal Indirecto'!$D$226,'Sup Personal Indirecto'!$D$242,'Sup Personal Indirecto'!$D$244,'Sup Personal Indirecto'!$D$245)))*12+'Sup Personal Indirecto'!$D$243*12)*'Sup Personal Indirecto'!N31*'Sup Personal Directo'!N$113","v":20524.209270504114},{"$f":"(('Sup Personal Indirecto'!O101*(1+SUM('Sup Personal Indirecto'!$D$226,'Sup Personal Indirecto'!$D$242,'Sup Personal Indirecto'!$D$244,'Sup Personal Indirecto'!$D$245)))*12+'Sup Personal Indirecto'!$D$243*12)*'Sup Personal Indirecto'!O31*'Sup Personal Directo'!O$113","v":20924.974422745661},{"$f":"(('Sup Personal Indirecto'!P101*(1+SUM('Sup Personal Indirecto'!$D$226,'Sup Personal Indirecto'!$D$242,'Sup Personal Indirecto'!$D$244,'Sup Personal Indirecto'!$D$245)))*12+'Sup Personal Indirecto'!$D$243*12)*'Sup Personal Indirecto'!P31*'Sup Personal Directo'!P$113","v":21352.324077840371},{"$f":"(('Sup Personal Indirecto'!Q101*(1+SUM('Sup Personal Indirecto'!$D$226,'Sup Personal Indirecto'!$D$242,'Sup Personal Indirecto'!$D$244,'Sup Personal Indirecto'!$D$245)))*12+'Sup Personal Indirecto'!$D$243*12)*'Sup Personal Indirecto'!Q31*'Sup Personal Directo'!Q$113","v":21814.294762132646},{"$f":"(('Sup Personal Indirecto'!R101*(1+SUM('Sup Personal Indirecto'!$D$226,'Sup Personal Indirecto'!$D$242,'Sup Personal Indirecto'!$D$244,'Sup Personal Indirecto'!$D$245)))*12+'Sup Personal Indirecto'!$D$243*12)*'Sup Personal Indirecto'!R31*'Sup Personal Directo'!R$113","v":22305.026257426824},{"$f":"(('Sup Personal Indirecto'!S101*(1+SUM('Sup Personal Indirecto'!$D$226,'Sup Personal Indirecto'!$D$242,'Sup Personal Indirecto'!$D$244,'Sup Personal Indirecto'!$D$245)))*12+'Sup Personal Indirecto'!$D$243*12)*'Sup Personal Indirecto'!S31*'Sup Personal Directo'!S$113","v":22792.659499621506},{"$f":"(('Sup Personal Indirecto'!T101*(1+SUM('Sup Personal Indirecto'!$D$226,'Sup Personal Indirecto'!$D$242,'Sup Personal Indirecto'!$D$244,'Sup Personal Indirecto'!$D$245)))*12+'Sup Personal Indirecto'!$D$243*12)*'Sup Personal Indirecto'!T31*'Sup Personal Directo'!T$113","v":23280.609222726805},{"$f":"(('Sup Personal Indirecto'!U101*(1+SUM('Sup Personal Indirecto'!$D$226,'Sup Personal Indirecto'!$D$242,'Sup Personal Indirecto'!$D$244,'Sup Personal Indirecto'!$D$245)))*12+'Sup Personal Indirecto'!$D$243*12)*'Sup Personal Indirecto'!U31*'Sup Personal Directo'!U$113","v":23775.312375654303},{"$f":"(('Sup Personal Indirecto'!V101*(1+SUM('Sup Personal Indirecto'!$D$226,'Sup Personal Indirecto'!$D$242,'Sup Personal Indirecto'!$D$244,'Sup Personal Indirecto'!$D$245)))*12+'Sup Personal Indirecto'!$D$243*12)*'Sup Personal Indirecto'!V31*'Sup Personal Directo'!V$113","v":24279.819877665963},{"$f":"(('Sup Personal Indirecto'!W101*(1+SUM('Sup Personal Indirecto'!$D$226,'Sup Personal Indirecto'!$D$242,'Sup Personal Indirecto'!$D$244,'Sup Personal Indirecto'!$D$245)))*12+'Sup Personal Indirecto'!$D$243*12)*'Sup Personal Indirecto'!W31*'Sup Personal Directo'!W$113","v":24795.221290934747}]
[null,null,"Mecánico ",{"$f":"(('Sup Personal Indirecto'!D102*(1+SUM('Sup Personal Indirecto'!$D$226,'Sup Personal Indirecto'!$D$242,'Sup Personal Indirecto'!$D$244,'Sup Personal Indirecto'!$D$245)))*12+'Sup Personal Indirecto'!$D$243*12)*'Sup Personal Indirecto'!D32*'Sup Personal Directo'!D$113*IF('Actividades Mtto'!$L$1='Actividades Mtto'!$D$6,0,1)","v":25466.188524590165},{"$f":"(('Sup Personal Indirecto'!E102*(1+SUM('Sup Personal Indirecto'!$D$226,'Sup Personal Indirecto'!$D$242,'Sup Personal Indirecto'!$D$244,'Sup Personal Indirecto'!$D$245)))*12+'Sup Personal Indirecto'!$D$243*12)*'Sup Personal Indirecto'!E32*'Sup Personal Directo'!E$113*IF('Actividades Mtto'!$L$1='Actividades Mtto'!$D$6,0,1)","v":26080.636721311475},{"$f":"(('Sup Personal Indirecto'!F102*(1+SUM('Sup Personal Indirecto'!$D$226,'Sup Personal Indirecto'!$D$242,'Sup Personal Indirecto'!$D$244,'Sup Personal Indirecto'!$D$245)))*12+'Sup Personal Indirecto'!$D$243*12)*'Sup Personal Indirecto'!F32*'Sup Personal Directo'!F$113*IF('Actividades Mtto'!$L$1='Actividades Mtto'!$D$6,0,1)","v":26972.803142274101},{"$f":"(('Sup Personal Indirecto'!G102*(1+SUM('Sup Personal Indirecto'!$D$226,'Sup Personal Indirecto'!$D$242,'Sup Personal Indirecto'!$D$244,'Sup Personal Indirecto'!$D$245)))*12+'Sup Personal Indirecto'!$D$243*12)*'Sup Personal Indirecto'!G32*'Sup Personal Directo'!G$113*IF('Actividades Mtto'!$L$1='Actividades Mtto'!$D$6,0,1)","v":27306.040257063516},{"$f":"(('Sup Personal Indirecto'!H102*(1+SUM('Sup Personal Indirecto'!$D$226,'Sup Personal Indirecto'!$D$242,'Sup Personal Indirecto'!$D$244,'Sup Personal Indirecto'!$D$245)))*12+'Sup Personal Indirecto'!$D$243*12)*'Sup Personal Indirecto'!H32*'Sup Personal Directo'!H$113*IF('Actividades Mtto'!$L$1='Actividades Mtto'!$D$6,0,1)","v":27598.804698283646},{"$f":"(('Sup Personal Indirecto'!I102*(1+SUM('Sup Personal Indirecto'!$D$226,'Sup Personal Indirecto'!$D$242,'Sup Personal Indirecto'!$D$244,'Sup Personal Indirecto'!$D$245)))*12+'Sup Personal Indirecto'!$D$243*12)*'Sup Personal Indirecto'!I32*'Sup Personal Directo'!I$113*IF('Actividades Mtto'!$L$1='Actividades Mtto'!$D$6,0,1)","v":28005.986423280239},{"$f":"(('Sup Personal Indirecto'!J102*(1+SUM('Sup Personal Indirecto'!$D$226,'Sup Personal Indirecto'!$D$242,'Sup Personal Indirecto'!$D$244,'Sup Personal Indirecto'!$D$245)))*12+'Sup Personal Indirecto'!$D$243*12)*'Sup Personal Indirecto'!J32*'Sup Personal Directo'!J$113*IF('Actividades Mtto'!$L$1='Actividades Mtto'!$D$6,0,1)","v":28778.014568257055},{"$f":"(('Sup Personal Indirecto'!K102*(1+SUM('Sup Personal Indirecto'!$D$226,'Sup Personal Indirecto'!$D$242,'Sup Personal Indirecto'!$D$244,'Sup Personal Indirecto'!$D$245)))*12+'Sup Personal Indirecto'!$D$243*12)*'Sup Personal Indirecto'!K32*'Sup Personal Directo'!K$113*IF('Actividades Mtto'!$L$1='Actividades Mtto'!$D$6,0,1)","v":29511.644939416805},{"$f":"(('Sup Personal Indirecto'!L102*(1+SUM('Sup Personal Indirecto'!$D$226,'Sup Personal Indirecto'!$D$242,'Sup Personal Indirecto'!$D$244,'Sup Personal Indirecto'!$D$245)))*12+'Sup Personal Indirecto'!$D$243*12)*'Sup Personal Indirecto'!L32*'Sup Personal Directo'!L$113*IF('Actividades Mtto'!$L$1='Actividades Mtto'!$D$6,0,1)","v":30180.884338999422},{"$f":"(('Sup Personal Indirecto'!M102*(1+SUM('Sup Personal Indirecto'!$D$226,'Sup Personal Indirecto'!$D$242,'Sup Personal Indirecto'!$D$244,'Sup Personal Indirecto'!$D$245)))*12+'Sup Personal Indirecto'!$D$243*12)*'Sup Personal Indirecto'!M32*'Sup Personal Directo'!M$113*IF('Actividades Mtto'!$L$1='Actividades Mtto'!$D$6,0,1)","v":30829.404267188085},{"$f":"(('Sup Personal Indirecto'!N102*(1+SUM('Sup Personal Indirecto'!$D$226,'Sup Personal Indirecto'!$D$242,'Sup Personal Indirecto'!$D$244,'Sup Personal Indirecto'!$D$245)))*12+'Sup Personal Indirecto'!$D$243*12)*'Sup Personal Indirecto'!N32*'Sup Personal Directo'!N$113*IF('Actividades Mtto'!$L$1='Actividades Mtto'!$D$6,0,1)","v":31481.684856725482},{"$f":"(('Sup Personal Indirecto'!O102*(1+SUM('Sup Personal Indirecto'!$D$226,'Sup Personal Indirecto'!$D$242,'Sup Personal Indirecto'!$D$244,'Sup Personal Indirecto'!$D$245)))*12+'Sup Personal Indirecto'!$D$243*12)*'Sup Personal Indirecto'!O32*'Sup Personal Directo'!O$113*IF('Actividades Mtto'!$L$1='Actividades Mtto'!$D$6,0,1)","v":32096.410718177198},{"$f":"(('Sup Personal Indirecto'!P102*(1+SUM('Sup Personal Indirecto'!$D$226,'Sup Personal Indirecto'!$D$242,'Sup Personal Indirecto'!$D$244,'Sup Personal Indirecto'!$D$245)))*12+'Sup Personal Indirecto'!$D$243*12)*'Sup Personal Indirecto'!P32*'Sup Personal Directo'!P$113*IF('Actividades Mtto'!$L$1='Actividades Mtto'!$D$6,0,1)","v":32751.914030777731},{"$f":"(('Sup Personal Indirecto'!Q102*(1+SUM('Sup Personal Indirecto'!$D$226,'Sup Personal Indirecto'!$D$242,'Sup Personal Indirecto'!$D$244,'Sup Personal Indirecto'!$D$245)))*12+'Sup Personal Indirecto'!$D$243*12)*'Sup Personal Indirecto'!Q32*'Sup Personal Directo'!Q$113*IF('Actividades Mtto'!$L$1='Actividades Mtto'!$D$6,0,1)","v":33460.521865761963},{"$f":"(('Sup Personal Indirecto'!R102*(1+SUM('Sup Personal Indirecto'!$D$226,'Sup Personal Indirecto'!$D$242,'Sup Personal Indirecto'!$D$244,'Sup Personal Indirecto'!$D$245)))*12+'Sup Personal Indirecto'!$D$243*12)*'Sup Personal Indirecto'!R32*'Sup Personal Directo'!R$113*IF('Actividades Mtto'!$L$1='Actividades Mtto'!$D$6,0,1)","v":34213.245348577118},{"$f":"(('Sup Personal Indirecto'!S102*(1+SUM('Sup Personal Indirecto'!$D$226,'Sup Personal Indirecto'!$D$242,'Sup Personal Indirecto'!$D$244,'Sup Personal Indirecto'!$D$245)))*12+'Sup Personal Indirecto'!$D$243*12)*'Sup Personal Indirecto'!S32*'Sup Personal Directo'!S$113*IF('Actividades Mtto'!$L$1='Actividades Mtto'!$D$6,0,1)","v":34961.216481306619},{"$f":"(('Sup Personal Indirecto'!T102*(1+SUM('Sup Personal Indirecto'!$D$226,'Sup Personal Indirecto'!$D$242,'Sup Personal Indirecto'!$D$244,'Sup Personal Indirecto'!$D$245)))*12+'Sup Personal Indirecto'!$D$243*12)*'Sup Personal Indirecto'!T32*'Sup Personal Directo'!T$113*IF('Actividades Mtto'!$L$1='Actividades Mtto'!$D$6,0,1)","v":35709.67305794092},{"$f":"(('Sup Personal Indirecto'!U102*(1+SUM('Sup Personal Indirecto'!$D$226,'Sup Personal Indirecto'!$D$242,'Sup Personal Indirecto'!$D$244,'Sup Personal Indirecto'!$D$245)))*12+'Sup Personal Indirecto'!$D$243*12)*'Sup Personal Indirecto'!U32*'Sup Personal Directo'!U$113*IF('Actividades Mtto'!$L$1='Actividades Mtto'!$D$6,0,1)","v":36468.488589045148},{"$f":"(('Sup Personal Indirecto'!V102*(1+SUM('Sup Personal Indirecto'!$D$226,'Sup Personal Indirecto'!$D$242,'Sup Personal Indirecto'!$D$244,'Sup Personal Indirecto'!$D$245)))*12+'Sup Personal Indirecto'!$D$243*12)*'Sup Personal Indirecto'!V32*'Sup Personal Directo'!V$113*IF('Actividades Mtto'!$L$1='Actividades Mtto'!$D$6,0,1)","v":37242.342820253485},{"$f":"(('Sup Personal Indirecto'!W102*(1+SUM('Sup Personal Indirecto'!$D$226,'Sup Personal Indirecto'!$D$242,'Sup Personal Indirecto'!$D$244,'Sup Personal Indirecto'!$D$245)))*12+'Sup Personal Indirecto'!$D$243*12)*'Sup Personal Indirecto'!W32*'Sup Personal Directo'!W$113*IF('Actividades Mtto'!$L$1='Actividades Mtto'!$D$6,0,1)","v":38032.907009761977}]
[null,null,"Eléctrico",{"$f":"(('Sup Personal Indirecto'!D103*(1+SUM('Sup Personal Indirecto'!$D$226,'Sup Personal Indirecto'!$D$242,'Sup Personal Indirecto'!$D$244,'Sup Personal Indirecto'!$D$245)))*12+'Sup Personal Indirecto'!$D$243*12)*'Sup Personal Indirecto'!D33*'Sup Personal Directo'!D$113*IF('Actividades Mtto'!$L$1='Actividades Mtto'!$D$6,0,1)","v":16977.459016393444},{"$f":"(('Sup Personal Indirecto'!E103*(1+SUM('Sup Personal Indirecto'!$D$226,'Sup Personal Indirecto'!$D$242,'Sup Personal Indirecto'!$D$244,'Sup Personal Indirecto'!$D$245)))*12+'Sup Personal Indirecto'!$D$243*12)*'Sup Personal Indirecto'!E33*'Sup Personal Directo'!E$113*IF('Actividades Mtto'!$L$1='Actividades Mtto'!$D$6,0,1)","v":17387.091147540985},{"$f":"(('Sup Personal Indirecto'!F103*(1+SUM('Sup Personal Indirecto'!$D$226,'Sup Personal Indirecto'!$D$242,'Sup Personal Indirecto'!$D$244,'Sup Personal Indirecto'!$D$245)))*12+'Sup Personal Indirecto'!$D$243*12)*'Sup Personal Indirecto'!F33*'Sup Personal Directo'!F$113*IF('Actividades Mtto'!$L$1='Actividades Mtto'!$D$6,0,1)","v":17981.868761516071},{"$f":"(('Sup Personal Indirecto'!G103*(1+SUM('Sup Personal Indirecto'!$D$226,'Sup Personal Indirecto'!$D$242,'Sup Personal Indirecto'!$D$244,'Sup Personal Indirecto'!$D$245)))*12+'Sup Personal Indirecto'!$D$243*12)*'Sup Personal Indirecto'!G33*'Sup Personal Directo'!G$113*IF('Actividades Mtto'!$L$1='Actividades Mtto'!$D$6,0,1)","v":18204.026838042344},{"$f":"(('Sup Personal Indirecto'!H103*(1+SUM('Sup Personal Indirecto'!$D$226,'Sup Personal Indirecto'!$D$242,'Sup Personal Indirecto'!$D$244,'Sup Personal Indirecto'!$D$245)))*12+'Sup Personal Indirecto'!$D$243*12)*'Sup Personal Indirecto'!H33*'Sup Personal Directo'!H$113*IF('Actividades Mtto'!$L$1='Actividades Mtto'!$D$6,0,1)","v":18399.203132189097},{"$f":"(('Sup Personal Indirecto'!I103*(1+SUM('Sup Personal Indirecto'!$D$226,'Sup Personal Indirecto'!$D$242,'Sup Personal Indirecto'!$D$244,'Sup Personal Indirecto'!$D$245)))*12+'Sup Personal Indirecto'!$D$243*12)*'Sup Personal Indirecto'!I33*'Sup Personal Directo'!I$113*IF('Actividades Mtto'!$L$1='Actividades Mtto'!$D$6,0,1)","v":18670.657615520162},{"$f":"(('Sup Personal Indirecto'!J103*(1+SUM('Sup Personal Indirecto'!$D$226,'Sup Personal Indirecto'!$D$242,'Sup Personal Indirecto'!$D$244,'Sup Personal Indirecto'!$D$245)))*12+'Sup Personal Indirecto'!$D$243*12)*'Sup Personal Indirecto'!J33*'Sup Personal Directo'!J$113*IF('Actividades Mtto'!$L$1='Actividades Mtto'!$D$6,0,1)","v":19185.343045504706},{"$f":"(('Sup Personal Indirecto'!K103*(1+SUM('Sup Personal Indirecto'!$D$226,'Sup Personal Indirecto'!$D$242,'Sup Personal Indirecto'!$D$244,'Sup Personal Indirecto'!$D$245)))*12+'Sup Personal Indirecto'!$D$243*12)*'Sup Personal Indirecto'!K33*'Sup Personal Directo'!K$113*IF('Actividades Mtto'!$L$1='Actividades Mtto'!$D$6,0,1)","v":19674.429959611207},{"$f":"(('Sup Personal Indirecto'!L103*(1+SUM('Sup Personal Indirecto'!$D$226,'Sup Personal Indirecto'!$D$242,'Sup Personal Indirecto'!$D$244,'Sup Personal Indirecto'!$D$245)))*12+'Sup Personal Indirecto'!$D$243*12)*'Sup Personal Indirecto'!L33*'Sup Personal Directo'!L$113*IF('Actividades Mtto'!$L$1='Actividades Mtto'!$D$6,0,1)","v":20120.589559332948},{"$f":"(('Sup Personal Indirecto'!M103*(1+SUM('Sup Personal Indirecto'!$D$226,'Sup Personal Indirecto'!$D$242,'Sup Personal Indirecto'!$D$244,'Sup Personal Indirecto'!$D$245)))*12+'Sup Personal Indirecto'!$D$243*12)*'Sup Personal Indirecto'!M33*'Sup Personal Directo'!M$113*IF('Actividades Mtto'!$L$1='Actividades Mtto'!$D$6,0,1)","v":20552.93617812539},{"$f":"(('Sup Personal Indirecto'!N103*(1+SUM('Sup Personal Indirecto'!$D$226,'Sup Personal Indirecto'!$D$242,'Sup Personal Indirecto'!$D$244,'Sup Personal Indirecto'!$D$245)))*12+'Sup Personal Indirecto'!$D$243*12)*'Sup Personal Indirecto'!N33*'Sup Personal Directo'!N$113*IF('Actividades Mtto'!$L$1='Actividades Mtto'!$D$6,0,1)","v":20987.789904483656},{"$f":"(('Sup Personal Indirecto'!O103*(1+SUM('Sup Personal Indirecto'!$D$226,'Sup Personal Indirecto'!$D$242,'Sup Personal Indirecto'!$D$244,'Sup Personal Indirecto'!$D$245)))*12+'Sup Personal Indirecto'!$D$243*12)*'Sup Personal Indirecto'!O33*'Sup Personal Directo'!O$113*IF('Actividades Mtto'!$L$1='Actividades Mtto'!$D$6,0,1)","v":21397.607145451468},{"$f":"(('Sup Personal Indirecto'!P103*(1+SUM('Sup Personal Indirecto'!$D$226,'Sup Personal Indirecto'!$D$242,'Sup Personal Indirecto'!$D$244,'Sup Personal Indirecto'!$D$245)))*12+'Sup Personal Indirecto'!$D$243*12)*'Sup Personal Indirecto'!P33*'Sup Personal Directo'!P$113*IF('Actividades Mtto'!$L$1='Actividades Mtto'!$D$6,0,1)","v":21834.609353851822},{"$f":"(('Sup Personal Indirecto'!Q103*(1+SUM('Sup Personal Indirecto'!$D$226,'Sup Personal Indirecto'!$D$242,'Sup Personal Indirecto'!$D$244,'Sup Personal Indirecto'!$D$245)))*12+'Sup Personal Indirecto'!$D$243*12)*'Sup Personal Indirecto'!Q33*'Sup Personal Directo'!Q$113*IF('Actividades Mtto'!$L$1='Actividades Mtto'!$D$6,0,1)","v":22307.014577174643},{"$f":"(('Sup Personal Indirecto'!R103*(1+SUM('Sup Personal Indirecto'!$D$226,'Sup Personal Indirecto'!$D$242,'Sup Personal Indirecto'!$D$244,'Sup Personal Indirecto'!$D$245)))*12+'Sup Personal Indirecto'!$D$243*12)*'Sup Personal Indirecto'!R33*'Sup Personal Directo'!R$113*IF('Actividades Mtto'!$L$1='Actividades Mtto'!$D$6,0,1)","v":22808.830232384749},{"$f":"(('Sup Personal Indirecto'!S103*(1+SUM('Sup Personal Indirecto'!$D$226,'Sup Personal Indirecto'!$D$242,'Sup Personal Indirecto'!$D$244,'Sup Personal Indirecto'!$D$245)))*12+'Sup Personal Indirecto'!$D$243*12)*'Sup Personal Indirecto'!S33*'Sup Personal Directo'!S$113*IF('Actividades Mtto'!$L$1='Actividades Mtto'!$D$6,0,1)","v":23307.477654204413},{"$f":"(('Sup Personal Indirecto'!T103*(1+SUM('Sup Personal Indirecto'!$D$226,'Sup Personal Indirecto'!$D$242,'Sup Personal Indirecto'!$D$244,'Sup Personal Indirecto'!$D$245)))*12+'Sup Personal Indirecto'!$D$243*12)*'Sup Personal Indirecto'!T33*'Sup Personal Directo'!T$113*IF('Actividades Mtto'!$L$1='Actividades Mtto'!$D$6,0,1)","v":23806.448705293948},{"$f":"(('Sup Personal Indirecto'!U103*(1+SUM('Sup Personal Indirecto'!$D$226,'Sup Personal Indirecto'!$D$242,'Sup Personal Indirecto'!$D$244,'Sup Personal Indirecto'!$D$245)))*12+'Sup Personal Indirecto'!$D$243*12)*'Sup Personal Indirecto'!U33*'Sup Personal Directo'!U$113*IF('Actividades Mtto'!$L$1='Actividades Mtto'!$D$6,0,1)","v":24312.325726030103},{"$f":"(('Sup Personal Indirecto'!V103*(1+SUM('Sup Personal Indirecto'!$D$226,'Sup Personal Indirecto'!$D$242,'Sup Personal Indirecto'!$D$244,'Sup Personal Indirecto'!$D$245)))*12+'Sup Personal Indirecto'!$D$243*12)*'Sup Personal Indirecto'!V33*'Sup Personal Directo'!V$113*IF('Actividades Mtto'!$L$1='Actividades Mtto'!$D$6,0,1)","v":24828.22854683566},{"$f":"(('Sup Personal Indirecto'!W103*(1+SUM('Sup Personal Indirecto'!$D$226,'Sup Personal Indirecto'!$D$242,'Sup Personal Indirecto'!$D$244,'Sup Personal Indirecto'!$D$245)))*12+'Sup Personal Indirecto'!$D$243*12)*'Sup Personal Indirecto'!W33*'Sup Personal Directo'!W$113*IF('Actividades Mtto'!$L$1='Actividades Mtto'!$D$6,0,1)","v":25355.271339841322}]
[null,null,"Vulcanizador",{"$f":"(('Sup Personal Indirecto'!D104*(1+SUM('Sup Personal Indirecto'!$D$226,'Sup Personal Indirecto'!$D$242,'Sup Personal Indirecto'!$D$244,'Sup Personal Indirecto'!$D$245)))*12+'Sup Personal Indirecto'!$D$243*12)*'Sup Personal Indirecto'!D34*'Sup Personal Directo'!D$113*IF('Actividades Mtto'!$L$1='Actividades Mtto'!$D$6,0,1)","v":8488.7295081967222},{"$f":"(('Sup Personal Indirecto'!E104*(1+SUM('Sup Personal Indirecto'!$D$226,'Sup Personal Indirecto'!$D$242,'Sup Personal Indirecto'!$D$244,'Sup Personal Indirecto'!$D$245)))*12+'Sup Personal Indirecto'!$D$243*12)*'Sup Personal Indirecto'!E34*'Sup Personal Directo'!E$113*IF('Actividades Mtto'!$L$1='Actividades Mtto'!$D$6,0,1)","v":8693.5455737704924},{"$f":"(('Sup Personal Indirecto'!F104*(1+SUM('Sup Personal Indirecto'!$D$226,'Sup Personal Indirecto'!$D$242,'Sup Personal Indirecto'!$D$244,'Sup Personal Indirecto'!$D$245)))*12+'Sup Personal Indirecto'!$D$243*12)*'Sup Personal Indirecto'!F34*'Sup Personal Directo'!F$113*IF('Actividades Mtto'!$L$1='Actividades Mtto'!$D$6,0,1)","v":8990.9343807580353},{"$f":"(('Sup Personal Indirecto'!G104*(1+SUM('Sup Personal Indirecto'!$D$226,'Sup Personal Indirecto'!$D$242,'Sup Personal Indirecto'!$D$244,'Sup Personal Indirecto'!$D$245)))*12+'Sup Personal Indirecto'!$D$243*12)*'Sup Personal Indirecto'!G34*'Sup Personal Directo'!G$113*IF('Actividades Mtto'!$L$1='Actividades Mtto'!$D$6,0,1)","v":9102.013419021172},{"$f":"(('Sup Personal Indirecto'!H104*(1+SUM('Sup Personal Indirecto'!$D$226,'Sup Personal Indirecto'!$D$242,'Sup Personal Indirecto'!$D$244,'Sup Personal Indirecto'!$D$245)))*12+'Sup Personal Indirecto'!$D$243*12)*'Sup Personal Indirecto'!H34*'Sup Personal Directo'!H$113*IF('Actividades Mtto'!$L$1='Actividades Mtto'!$D$6,0,1)","v":9199.6015660945486},{"$f":"(('Sup Personal Indirecto'!I104*(1+SUM('Sup Personal Indirecto'!$D$226,'Sup Personal Indirecto'!$D$242,'Sup Personal Indirecto'!$D$244,'Sup Personal Indirecto'!$D$245)))*12+'Sup Personal Indirecto'!$D$243*12)*'Sup Personal Indirecto'!I34*'Sup Personal Directo'!I$113*IF('Actividades Mtto'!$L$1='Actividades Mtto'!$D$6,0,1)","v":9335.328807760081},{"$f":"(('Sup Personal Indirecto'!J104*(1+SUM('Sup Personal Indirecto'!$D$226,'Sup Personal Indirecto'!$D$242,'Sup Personal Indirecto'!$D$244,'Sup Personal Indirecto'!$D$245)))*12+'Sup Personal Indirecto'!$D$243*12)*'Sup Personal Indirecto'!J34*'Sup Personal Directo'!J$113*IF('Actividades Mtto'!$L$1='Actividades Mtto'!$D$6,0,1)","v":9592.6715227523528},{"$f":"(('Sup Personal Indirecto'!K104*(1+SUM('Sup Personal Indirecto'!$D$226,'Sup Personal Indirecto'!$D$242,'Sup Personal Indirecto'!$D$244,'Sup Personal Indirecto'!$D$245)))*12+'Sup Personal Indirecto'!$D$243*12)*'Sup Personal Indirecto'!K34*'Sup Personal Directo'!K$113*IF('Actividades Mtto'!$L$1='Actividades Mtto'!$D$6,0,1)","v":9837.2149798056034},{"$f":"(('Sup Personal Indirecto'!L104*(1+SUM('Sup Personal Indirecto'!$D$226,'Sup Personal Indirecto'!$D$242,'Sup Personal Indirecto'!$D$244,'Sup Personal Indirecto'!$D$245)))*12+'Sup Personal Indirecto'!$D$243*12)*'Sup Personal Indirecto'!L34*'Sup Personal Directo'!L$113*IF('Actividades Mtto'!$L$1='Actividades Mtto'!$D$6,0,1)","v":10060.294779666474},{"$f":"(('Sup Personal Indirecto'!M104*(1+SUM('Sup Personal Indirecto'!$D$226,'Sup Personal Indirecto'!$D$242,'Sup Personal Indirecto'!$D$244,'Sup Personal Indirecto'!$D$245)))*12+'Sup Personal Indirecto'!$D$243*12)*'Sup Personal Indirecto'!M34*'Sup Personal Directo'!M$113*IF('Actividades Mtto'!$L$1='Actividades Mtto'!$D$6,0,1)","v":10276.468089062695},{"$f":"(('Sup Personal Indirecto'!N104*(1+SUM('Sup Personal Indirecto'!$D$226,'Sup Personal Indirecto'!$D$242,'Sup Personal Indirecto'!$D$244,'Sup Personal Indirecto'!$D$245)))*12+'Sup Personal Indirecto'!$D$243*12)*'Sup Personal Indirecto'!N34*'Sup Personal Directo'!N$113*IF('Actividades Mtto'!$L$1='Actividades Mtto'!$D$6,0,1)","v":10493.894952241828},{"$f":"(('Sup Personal Indirecto'!O104*(1+SUM('Sup Personal Indirecto'!$D$226,'Sup Personal Indirecto'!$D$242,'Sup Personal Indirecto'!$D$244,'Sup Personal Indirecto'!$D$245)))*12+'Sup Personal Indirecto'!$D$243*12)*'Sup Personal Indirecto'!O34*'Sup Personal Directo'!O$113*IF('Actividades Mtto'!$L$1='Actividades Mtto'!$D$6,0,1)","v":10698.803572725734},{"$f":"(('Sup Personal Indirecto'!P104*(1+SUM('Sup Personal Indirecto'!$D$226,'Sup Personal Indirecto'!$D$242,'Sup Personal Indirecto'!$D$244,'Sup Personal Indirecto'!$D$245)))*12+'Sup Personal Indirecto'!$D$243*12)*'Sup Personal Indirecto'!P34*'Sup Personal Directo'!P$113*IF('Actividades Mtto'!$L$1='Actividades Mtto'!$D$6,0,1)","v":10917.304676925911},{"$f":"(('Sup Personal Indirecto'!Q104*(1+SUM('Sup Personal Indirecto'!$D$226,'Sup Personal Indirecto'!$D$242,'Sup Personal Indirecto'!$D$244,'Sup Personal Indirecto'!$D$245)))*12+'Sup Personal Indirecto'!$D$243*12)*'Sup Personal Indirecto'!Q34*'Sup Personal Directo'!Q$113*IF('Actividades Mtto'!$L$1='Actividades Mtto'!$D$6,0,1)","v":11153.507288587321},{"$f":"(('Sup Personal Indirecto'!R104*(1+SUM('Sup Personal Indirecto'!$D$226,'Sup Personal Indirecto'!$D$242,'Sup Personal Indirecto'!$D$244,'Sup Personal Indirecto'!$D$245)))*12+'Sup Personal Indirecto'!$D$243*12)*'Sup Personal Indirecto'!R34*'Sup Personal Directo'!R$113*IF('Actividades Mtto'!$L$1='Actividades Mtto'!$D$6,0,1)","v":11404.415116192375},{"$f":"(('Sup Personal Indirecto'!S104*(1+SUM('Sup Personal Indirecto'!$D$226,'Sup Personal Indirecto'!$D$242,'Sup Personal Indirecto'!$D$244,'Sup Personal Indirecto'!$D$245)))*12+'Sup Personal Indirecto'!$D$243*12)*'Sup Personal Indirecto'!S34*'Sup Personal Directo'!S$113*IF('Actividades Mtto'!$L$1='Actividades Mtto'!$D$6,0,1)","v":11653.738827102206},{"$f":"(('Sup Personal Indirecto'!T104*(1+SUM('Sup Personal Indirecto'!$D$226,'Sup Personal Indirecto'!$D$242,'Sup Personal Indirecto'!$D$244,'Sup Personal Indirecto'!$D$245)))*12+'Sup Personal Indirecto'!$D$243*12)*'Sup Personal Indirecto'!T34*'Sup Personal Directo'!T$113*IF('Actividades Mtto'!$L$1='Actividades Mtto'!$D$6,0,1)","v":11903.224352646974},{"$f":"(('Sup Personal Indirecto'!U104*(1+SUM('Sup Personal Indirecto'!$D$226,'Sup Personal Indirecto'!$D$242,'Sup Personal Indirecto'!$D$244,'Sup Personal Indirecto'!$D$245)))*12+'Sup Personal Indirecto'!$D$243*12)*'Sup Personal Indirecto'!U34*'Sup Personal Directo'!U$113*IF('Actividades Mtto'!$L$1='Actividades Mtto'!$D$6,0,1)","v":12156.162863015052},{"$f":"(('Sup Personal Indirecto'!V104*(1+SUM('Sup Personal Indirecto'!$D$226,'Sup Personal Indirecto'!$D$242,'Sup Personal Indirecto'!$D$244,'Sup Personal Indirecto'!$D$245)))*12+'Sup Personal Indirecto'!$D$243*12)*'Sup Personal Indirecto'!V34*'Sup Personal Directo'!V$113*IF('Actividades Mtto'!$L$1='Actividades Mtto'!$D$6,0,1)","v":12414.11427341783},{"$f":"(('Sup Personal Indirecto'!W104*(1+SUM('Sup Personal Indirecto'!$D$226,'Sup Personal Indirecto'!$D$242,'Sup Personal Indirecto'!$D$244,'Sup Personal Indirecto'!$D$245)))*12+'Sup Personal Indirecto'!$D$243*12)*'Sup Personal Indirecto'!W34*'Sup Personal Directo'!W$113*IF('Actividades Mtto'!$L$1='Actividades Mtto'!$D$6,0,1)","v":12677.635669920661}]
[null,null,"Carrocero",{"$f":"(('Sup Personal Indirecto'!D105*(1+SUM('Sup Personal Indirecto'!$D$226,'Sup Personal Indirecto'!$D$242,'Sup Personal Indirecto'!$D$244,'Sup Personal Indirecto'!$D$245)))*12+'Sup Personal Indirecto'!$D$243*12)*'Sup Personal Indirecto'!D35*'Sup Personal Directo'!D$113*IF('Actividades Mtto'!$L$1='Actividades Mtto'!$D$6,0,1)","v":8488.7295081967222},{"$f":"(('Sup Personal Indirecto'!E105*(1+SUM('Sup Personal Indirecto'!$D$226,'Sup Personal Indirecto'!$D$242,'Sup Personal Indirecto'!$D$244,'Sup Personal Indirecto'!$D$245)))*12+'Sup Personal Indirecto'!$D$243*12)*'Sup Personal Indirecto'!E35*'Sup Personal Directo'!E$113*IF('Actividades Mtto'!$L$1='Actividades Mtto'!$D$6,0,1)","v":8693.5455737704924},{"$f":"(('Sup Personal Indirecto'!F105*(1+SUM('Sup Personal Indirecto'!$D$226,'Sup Personal Indirecto'!$D$242,'Sup Personal Indirecto'!$D$244,'Sup Personal Indirecto'!$D$245)))*12+'Sup Personal Indirecto'!$D$243*12)*'Sup Personal Indirecto'!F35*'Sup Personal Directo'!F$113*IF('Actividades Mtto'!$L$1='Actividades Mtto'!$D$6,0,1)","v":8990.9343807580353},{"$f":"(('Sup Personal Indirecto'!G105*(1+SUM('Sup Personal Indirecto'!$D$226,'Sup Personal Indirecto'!$D$242,'Sup Personal Indirecto'!$D$244,'Sup Personal Indirecto'!$D$245)))*12+'Sup Personal Indirecto'!$D$243*12)*'Sup Personal Indirecto'!G35*'Sup Personal Directo'!G$113*IF('Actividades Mtto'!$L$1='Actividades Mtto'!$D$6,0,1)","v":9102.013419021172},{"$f":"(('Sup Personal Indirecto'!H105*(1+SUM('Sup Personal Indirecto'!$D$226,'Sup Personal Indirecto'!$D$242,'Sup Personal Indirecto'!$D$244,'Sup Personal Indirecto'!$D$245)))*12+'Sup Personal Indirecto'!$D$243*12)*'Sup Personal Indirecto'!H35*'Sup Personal Directo'!H$113*IF('Actividades Mtto'!$L$1='Actividades Mtto'!$D$6,0,1)","v":9199.6015660945486},{"$f":"(('Sup Personal Indirecto'!I105*(1+SUM('Sup Personal Indirecto'!$D$226,'Sup Personal Indirecto'!$D$242,'Sup Personal Indirecto'!$D$244,'Sup Personal Indirecto'!$D$245)))*12+'Sup Personal Indirecto'!$D$243*12)*'Sup Personal Indirecto'!I35*'Sup Personal Directo'!I$113*IF('Actividades Mtto'!$L$1='Actividades Mtto'!$D$6,0,1)","v":9335.328807760081},{"$f":"(('Sup Personal Indirecto'!J105*(1+SUM('Sup Personal Indirecto'!$D$226,'Sup Personal Indirecto'!$D$242,'Sup Personal Indirecto'!$D$244,'Sup Personal Indirecto'!$D$245)))*12+'Sup Personal Indirecto'!$D$243*12)*'Sup Personal Indirecto'!J35*'Sup Personal Directo'!J$113*IF('Actividades Mtto'!$L$1='Actividades Mtto'!$D$6,0,1)","v":9592.6715227523528},{"$f":"(('Sup Personal Indirecto'!K105*(1+SUM('Sup Personal Indirecto'!$D$226,'Sup Personal Indirecto'!$D$242,'Sup Personal Indirecto'!$D$244,'Sup Personal Indirecto'!$D$245)))*12+'Sup Personal Indirecto'!$D$243*12)*'Sup Personal Indirecto'!K35*'Sup Personal Directo'!K$113*IF('Actividades Mtto'!$L$1='Actividades Mtto'!$D$6,0,1)","v":9837.2149798056034},{"$f":"(('Sup Personal Indirecto'!L105*(1+SUM('Sup Personal Indirecto'!$D$226,'Sup Personal Indirecto'!$D$242,'Sup Personal Indirecto'!$D$244,'Sup Personal Indirecto'!$D$245)))*12+'Sup Personal Indirecto'!$D$243*12)*'Sup Personal Indirecto'!L35*'Sup Personal Directo'!L$113*IF('Actividades Mtto'!$L$1='Actividades Mtto'!$D$6,0,1)","v":10060.294779666474},{"$f":"(('Sup Personal Indirecto'!M105*(1+SUM('Sup Personal Indirecto'!$D$226,'Sup Personal Indirecto'!$D$242,'Sup Personal Indirecto'!$D$244,'Sup Personal Indirecto'!$D$245)))*12+'Sup Personal Indirecto'!$D$243*12)*'Sup Personal Indirecto'!M35*'Sup Personal Directo'!M$113*IF('Actividades Mtto'!$L$1='Actividades Mtto'!$D$6,0,1)","v":10276.468089062695},{"$f":"(('Sup Personal Indirecto'!N105*(1+SUM('Sup Personal Indirecto'!$D$226,'Sup Personal Indirecto'!$D$242,'Sup Personal Indirecto'!$D$244,'Sup Personal Indirecto'!$D$245)))*12+'Sup Personal Indirecto'!$D$243*12)*'Sup Personal Indirecto'!N35*'Sup Personal Directo'!N$113*IF('Actividades Mtto'!$L$1='Actividades Mtto'!$D$6,0,1)","v":10493.894952241828},{"$f":"(('Sup Personal Indirecto'!O105*(1+SUM('Sup Personal Indirecto'!$D$226,'Sup Personal Indirecto'!$D$242,'Sup Personal Indirecto'!$D$244,'Sup Personal Indirecto'!$D$245)))*12+'Sup Personal Indirecto'!$D$243*12)*'Sup Personal Indirecto'!O35*'Sup Personal Directo'!O$113*IF('Actividades Mtto'!$L$1='Actividades Mtto'!$D$6,0,1)","v":10698.803572725734},{"$f":"(('Sup Personal Indirecto'!P105*(1+SUM('Sup Personal Indirecto'!$D$226,'Sup Personal Indirecto'!$D$242,'Sup Personal Indirecto'!$D$244,'Sup Personal Indirecto'!$D$245)))*12+'Sup Personal Indirecto'!$D$243*12)*'Sup Personal Indirecto'!P35*'Sup Personal Directo'!P$113*IF('Actividades Mtto'!$L$1='Actividades Mtto'!$D$6,0,1)","v":10917.304676925911},{"$f":"(('Sup Personal Indirecto'!Q105*(1+SUM('Sup Personal Indirecto'!$D$226,'Sup Personal Indirecto'!$D$242,'Sup Personal Indirecto'!$D$244,'Sup Personal Indirecto'!$D$245)))*12+'Sup Personal Indirecto'!$D$243*12)*'Sup Personal Indirecto'!Q35*'Sup Personal Directo'!Q$113*IF('Actividades Mtto'!$L$1='Actividades Mtto'!$D$6,0,1)","v":11153.507288587321},{"$f":"(('Sup Personal Indirecto'!R105*(1+SUM('Sup Personal Indirecto'!$D$226,'Sup Personal Indirecto'!$D$242,'Sup Personal Indirecto'!$D$244,'Sup Personal Indirecto'!$D$245)))*12+'Sup Personal Indirecto'!$D$243*12)*'Sup Personal Indirecto'!R35*'Sup Personal Directo'!R$113*IF('Actividades Mtto'!$L$1='Actividades Mtto'!$D$6,0,1)","v":11404.415116192375},{"$f":"(('Sup Personal Indirecto'!S105*(1+SUM('Sup Personal Indirecto'!$D$226,'Sup Personal Indirecto'!$D$242,'Sup Personal Indirecto'!$D$244,'Sup Personal Indirecto'!$D$245)))*12+'Sup Personal Indirecto'!$D$243*12)*'Sup Personal Indirecto'!S35*'Sup Personal Directo'!S$113*IF('Actividades Mtto'!$L$1='Actividades Mtto'!$D$6,0,1)","v":11653.738827102206},{"$f":"(('Sup Personal Indirecto'!T105*(1+SUM('Sup Personal Indirecto'!$D$226,'Sup Personal Indirecto'!$D$242,'Sup Personal Indirecto'!$D$244,'Sup Personal Indirecto'!$D$245)))*12+'Sup Personal Indirecto'!$D$243*12)*'Sup Personal Indirecto'!T35*'Sup Personal Directo'!T$113*IF('Actividades Mtto'!$L$1='Actividades Mtto'!$D$6,0,1)","v":11903.224352646974},{"$f":"(('Sup Personal Indirecto'!U105*(1+SUM('Sup Personal Indirecto'!$D$226,'Sup Personal Indirecto'!$D$242,'Sup Personal Indirecto'!$D$244,'Sup Personal Indirecto'!$D$245)))*12+'Sup Personal Indirecto'!$D$243*12)*'Sup Personal Indirecto'!U35*'Sup Personal Directo'!U$113*IF('Actividades Mtto'!$L$1='Actividades Mtto'!$D$6,0,1)","v":12156.162863015052},{"$f":"(('Sup Personal Indirecto'!V105*(1+SUM('Sup Personal Indirecto'!$D$226,'Sup Personal Indirecto'!$D$242,'Sup Personal Indirecto'!$D$244,'Sup Personal Indirecto'!$D$245)))*12+'Sup Personal Indirecto'!$D$243*12)*'Sup Personal Indirecto'!V35*'Sup Personal Directo'!V$113*IF('Actividades Mtto'!$L$1='Actividades Mtto'!$D$6,0,1)","v":12414.11427341783},{"$f":"(('Sup Personal Indirecto'!W105*(1+SUM('Sup Personal Indirecto'!$D$226,'Sup Personal Indirecto'!$D$242,'Sup Personal Indirecto'!$D$244,'Sup Personal Indirecto'!$D$245)))*12+'Sup Personal Indirecto'!$D$243*12)*'Sup Personal Indirecto'!W35*'Sup Personal Directo'!W$113*IF('Actividades Mtto'!$L$1='Actividades Mtto'!$D$6,0,1)","v":12677.635669920661}]
[null,null,"Ayudante de Mecánico",{"$f":"(('Sup Personal Indirecto'!D106*(1+SUM('Sup Personal Indirecto'!$D$226,'Sup Personal Indirecto'!$D$242,'Sup Personal Indirecto'!$D$244,'Sup Personal Indirecto'!$D$245)))*12+'Sup Personal Indirecto'!$D$243*12)*'Sup Personal Indirecto'!D36*'Sup Personal Directo'!D$113*IF('Actividades Mtto'!$L$1='Actividades Mtto'!$D$6,0,1)","v":19380.891393442631},{"$f":"(('Sup Personal Indirecto'!E106*(1+SUM('Sup Personal Indirecto'!$D$226,'Sup Personal Indirecto'!$D$242,'Sup Personal Indirecto'!$D$244,'Sup Personal Indirecto'!$D$245)))*12+'Sup Personal Indirecto'!$D$243*12)*'Sup Personal Indirecto'!E36*'Sup Personal Directo'!E$113*IF('Actividades Mtto'!$L$1='Actividades Mtto'!$D$6,0,1)","v":19848.513540983611},{"$f":"(('Sup Personal Indirecto'!F106*(1+SUM('Sup Personal Indirecto'!$D$226,'Sup Personal Indirecto'!$D$242,'Sup Personal Indirecto'!$D$244,'Sup Personal Indirecto'!$D$245)))*12+'Sup Personal Indirecto'!$D$243*12)*'Sup Personal Indirecto'!F36*'Sup Personal Directo'!F$113*IF('Actividades Mtto'!$L$1='Actividades Mtto'!$D$6,0,1)","v":20527.491492193582},{"$f":"(('Sup Personal Indirecto'!G106*(1+SUM('Sup Personal Indirecto'!$D$226,'Sup Personal Indirecto'!$D$242,'Sup Personal Indirecto'!$D$244,'Sup Personal Indirecto'!$D$245)))*12+'Sup Personal Indirecto'!$D$243*12)*'Sup Personal Indirecto'!G36*'Sup Personal Directo'!G$113*IF('Actividades Mtto'!$L$1='Actividades Mtto'!$D$6,0,1)","v":20781.099617483378},{"$f":"(('Sup Personal Indirecto'!H106*(1+SUM('Sup Personal Indirecto'!$D$226,'Sup Personal Indirecto'!$D$242,'Sup Personal Indirecto'!$D$244,'Sup Personal Indirecto'!$D$245)))*12+'Sup Personal Indirecto'!$D$243*12)*'Sup Personal Indirecto'!H36*'Sup Personal Directo'!H$113*IF('Actividades Mtto'!$L$1='Actividades Mtto'!$D$6,0,1)","v":21003.906255142185},{"$f":"(('Sup Personal Indirecto'!I106*(1+SUM('Sup Personal Indirecto'!$D$226,'Sup Personal Indirecto'!$D$242,'Sup Personal Indirecto'!$D$244,'Sup Personal Indirecto'!$D$245)))*12+'Sup Personal Indirecto'!$D$243*12)*'Sup Personal Indirecto'!I36*'Sup Personal Directo'!I$113*IF('Actividades Mtto'!$L$1='Actividades Mtto'!$D$6,0,1)","v":21313.789486468049},{"$f":"(('Sup Personal Indirecto'!J106*(1+SUM('Sup Personal Indirecto'!$D$226,'Sup Personal Indirecto'!$D$242,'Sup Personal Indirecto'!$D$244,'Sup Personal Indirecto'!$D$245)))*12+'Sup Personal Indirecto'!$D$243*12)*'Sup Personal Indirecto'!J36*'Sup Personal Directo'!J$113*IF('Actividades Mtto'!$L$1='Actividades Mtto'!$D$6,0,1)","v":21901.336916898352},{"$f":"(('Sup Personal Indirecto'!K106*(1+SUM('Sup Personal Indirecto'!$D$226,'Sup Personal Indirecto'!$D$242,'Sup Personal Indirecto'!$D$244,'Sup Personal Indirecto'!$D$245)))*12+'Sup Personal Indirecto'!$D$243*12)*'Sup Personal Indirecto'!K36*'Sup Personal Directo'!K$113*IF('Actividades Mtto'!$L$1='Actividades Mtto'!$D$6,0,1)","v":22459.6619498199},{"$f":"(('Sup Personal Indirecto'!L106*(1+SUM('Sup Personal Indirecto'!$D$226,'Sup Personal Indirecto'!$D$242,'Sup Personal Indirecto'!$D$244,'Sup Personal Indirecto'!$D$245)))*12+'Sup Personal Indirecto'!$D$243*12)*'Sup Personal Indirecto'!L36*'Sup Personal Directo'!L$113*IF('Actividades Mtto'!$L$1='Actividades Mtto'!$D$6,0,1)","v":22968.982616593381},{"$f":"(('Sup Personal Indirecto'!M106*(1+SUM('Sup Personal Indirecto'!$D$226,'Sup Personal Indirecto'!$D$242,'Sup Personal Indirecto'!$D$244,'Sup Personal Indirecto'!$D$245)))*12+'Sup Personal Indirecto'!$D$243*12)*'Sup Personal Indirecto'!M36*'Sup Personal Directo'!M$113*IF('Actividades Mtto'!$L$1='Actividades Mtto'!$D$6,0,1)","v":23462.534852828936},{"$f":"(('Sup Personal Indirecto'!N106*(1+SUM('Sup Personal Indirecto'!$D$226,'Sup Personal Indirecto'!$D$242,'Sup Personal Indirecto'!$D$244,'Sup Personal Indirecto'!$D$245)))*12+'Sup Personal Indirecto'!$D$243*12)*'Sup Personal Indirecto'!N36*'Sup Personal Directo'!N$113*IF('Actividades Mtto'!$L$1='Actividades Mtto'!$D$6,0,1)","v":23958.949118028773},{"$f":"(('Sup Personal Indirecto'!O106*(1+SUM('Sup Personal Indirecto'!$D$226,'Sup Personal Indirecto'!$D$242,'Sup Personal Indirecto'!$D$244,'Sup Personal Indirecto'!$D$245)))*12+'Sup Personal Indirecto'!$D$243*12)*'Sup Personal Indirecto'!O36*'Sup Personal Directo'!O$113*IF('Actividades Mtto'!$L$1='Actividades Mtto'!$D$6,0,1)","v":24426.78258066226},{"$f":"(('Sup Personal Indirecto'!P106*(1+SUM('Sup Personal Indirecto'!$D$226,'Sup Personal Indirecto'!$D$242,'Sup Personal Indirecto'!$D$244,'Sup Personal Indirecto'!$D$245)))*12+'Sup Personal Indirecto'!$D$243*12)*'Sup Personal Indirecto'!P36*'Sup Personal Directo'!P$113*IF('Actividades Mtto'!$L$1='Actividades Mtto'!$D$6,0,1)","v":24925.649480091892},{"$f":"(('Sup Personal Indirecto'!Q106*(1+SUM('Sup Personal Indirecto'!$D$226,'Sup Personal Indirecto'!$D$242,'Sup Personal Indirecto'!$D$244,'Sup Personal Indirecto'!$D$245)))*12+'Sup Personal Indirecto'!$D$243*12)*'Sup Personal Indirecto'!Q36*'Sup Personal Directo'!Q$113*IF('Actividades Mtto'!$L$1='Actividades Mtto'!$D$6,0,1)","v":25464.931260602978},{"$f":"(('Sup Personal Indirecto'!R106*(1+SUM('Sup Personal Indirecto'!$D$226,'Sup Personal Indirecto'!$D$242,'Sup Personal Indirecto'!$D$244,'Sup Personal Indirecto'!$D$245)))*12+'Sup Personal Indirecto'!$D$243*12)*'Sup Personal Indirecto'!R36*'Sup Personal Directo'!R$113*IF('Actividades Mtto'!$L$1='Actividades Mtto'!$D$6,0,1)","v":26037.78699265129},{"$f":"(('Sup Personal Indirecto'!S106*(1+SUM('Sup Personal Indirecto'!$D$226,'Sup Personal Indirecto'!$D$242,'Sup Personal Indirecto'!$D$244,'Sup Personal Indirecto'!$D$245)))*12+'Sup Personal Indirecto'!$D$243*12)*'Sup Personal Indirecto'!S36*'Sup Personal Directo'!S$113*IF('Actividades Mtto'!$L$1='Actividades Mtto'!$D$6,0,1)","v":26607.025976917153},{"$f":"(('Sup Personal Indirecto'!T106*(1+SUM('Sup Personal Indirecto'!$D$226,'Sup Personal Indirecto'!$D$242,'Sup Personal Indirecto'!$D$244,'Sup Personal Indirecto'!$D$245)))*12+'Sup Personal Indirecto'!$D$243*12)*'Sup Personal Indirecto'!T36*'Sup Personal Directo'!T$113*IF('Actividades Mtto'!$L$1='Actividades Mtto'!$D$6,0,1)","v":27176.634405381057},{"$f":"(('Sup Personal Indirecto'!U106*(1+SUM('Sup Personal Indirecto'!$D$226,'Sup Personal Indirecto'!$D$242,'Sup Personal Indirecto'!$D$244,'Sup Personal Indirecto'!$D$245)))*12+'Sup Personal Indirecto'!$D$243*12)*'Sup Personal Indirecto'!U36*'Sup Personal Directo'!U$113*IF('Actividades Mtto'!$L$1='Actividades Mtto'!$D$6,0,1)","v":27754.126454565721},{"$f":"(('Sup Personal Indirecto'!V106*(1+SUM('Sup Personal Indirecto'!$D$226,'Sup Personal Indirecto'!$D$242,'Sup Personal Indirecto'!$D$244,'Sup Personal Indirecto'!$D$245)))*12+'Sup Personal Indirecto'!$D$243*12)*'Sup Personal Indirecto'!V36*'Sup Personal Directo'!V$113*IF('Actividades Mtto'!$L$1='Actividades Mtto'!$D$6,0,1)","v":28343.063617067393},{"$f":"(('Sup Personal Indirecto'!W106*(1+SUM('Sup Personal Indirecto'!$D$226,'Sup Personal Indirecto'!$D$242,'Sup Personal Indirecto'!$D$244,'Sup Personal Indirecto'!$D$245)))*12+'Sup Personal Indirecto'!$D$243*12)*'Sup Personal Indirecto'!W36*'Sup Personal Directo'!W$113*IF('Actividades Mtto'!$L$1='Actividades Mtto'!$D$6,0,1)","v":28944.717794001419}]
[null,"e) Personal externo "]
[null,null,"Auditoria externa",{"$f":"(('Sup Personal Indirecto'!D108*(1+SUM('Sup Personal Indirecto'!$D$226,'Sup Personal Indirecto'!$D$242,'Sup Personal Indirecto'!$D$244,'Sup Personal Indirecto'!$D$245)))*12+'Sup Personal Indirecto'!$D$243*12)*'Sup Personal Indirecto'!D38*'Sup Personal Directo'!D$113","v":5108.0088797814224},{"$f":"(('Sup Personal Indirecto'!E108*(1+SUM('Sup Personal Indirecto'!$D$226,'Sup Personal Indirecto'!$D$242,'Sup Personal Indirecto'!$D$244,'Sup Personal Indirecto'!$D$245)))*12+'Sup Personal Indirecto'!$D$243*12)*'Sup Personal Indirecto'!E38*'Sup Personal Directo'!E$113","v":5231.2549180327878},{"$f":"(('Sup Personal Indirecto'!F108*(1+SUM('Sup Personal Indirecto'!$D$226,'Sup Personal Indirecto'!$D$242,'Sup Personal Indirecto'!$D$244,'Sup Personal Indirecto'!$D$245)))*12+'Sup Personal Indirecto'!$D$243*12)*'Sup Personal Indirecto'!F38*'Sup Personal Directo'!F$113","v":5410.2056862688542},{"$f":"(('Sup Personal Indirecto'!G108*(1+SUM('Sup Personal Indirecto'!$D$226,'Sup Personal Indirecto'!$D$242,'Sup Personal Indirecto'!$D$244,'Sup Personal Indirecto'!$D$245)))*12+'Sup Personal Indirecto'!$D$243*12)*'Sup Personal Indirecto'!G38*'Sup Personal Directo'!G$113","v":5477.0463970322035},{"$f":"(('Sup Personal Indirecto'!H108*(1+SUM('Sup Personal Indirecto'!$D$226,'Sup Personal Indirecto'!$D$242,'Sup Personal Indirecto'!$D$244,'Sup Personal Indirecto'!$D$245)))*12+'Sup Personal Indirecto'!$D$243*12)*'Sup Personal Indirecto'!H38*'Sup Personal Directo'!H$113","v":5535.7690976826234},{"$f":"(('Sup Personal Indirecto'!I108*(1+SUM('Sup Personal Indirecto'!$D$226,'Sup Personal Indirecto'!$D$242,'Sup Personal Indirecto'!$D$244,'Sup Personal Indirecto'!$D$245)))*12+'Sup Personal Indirecto'!$D$243*12)*'Sup Personal Indirecto'!I38*'Sup Personal Directo'!I$113","v":5617.4416206421929},{"$f":"(('Sup Personal Indirecto'!J108*(1+SUM('Sup Personal Indirecto'!$D$226,'Sup Personal Indirecto'!$D$242,'Sup Personal Indirecto'!$D$244,'Sup Personal Indirecto'!$D$245)))*12+'Sup Personal Indirecto'!$D$243*12)*'Sup Personal Indirecto'!J38*'Sup Personal Directo'!J$113","v":5772.2950497752918},{"$f":"(('Sup Personal Indirecto'!K108*(1+SUM('Sup Personal Indirecto'!$D$226,'Sup Personal Indirecto'!$D$242,'Sup Personal Indirecto'!$D$244,'Sup Personal Indirecto'!$D$245)))*12+'Sup Personal Indirecto'!$D$243*12)*'Sup Personal Indirecto'!K38*'Sup Personal Directo'!K$113","v":5919.4466522517623},{"$f":"(('Sup Personal Indirecto'!L108*(1+SUM('Sup Personal Indirecto'!$D$226,'Sup Personal Indirecto'!$D$242,'Sup Personal Indirecto'!$D$244,'Sup Personal Indirecto'!$D$245)))*12+'Sup Personal Indirecto'!$D$243*12)*'Sup Personal Indirecto'!L38*'Sup Personal Directo'!L$113","v":6053.6827116631148},{"$f":"(('Sup Personal Indirecto'!M108*(1+SUM('Sup Personal Indirecto'!$D$226,'Sup Personal Indirecto'!$D$242,'Sup Personal Indirecto'!$D$244,'Sup Personal Indirecto'!$D$245)))*12+'Sup Personal Indirecto'!$D$243*12)*'Sup Personal Indirecto'!M38*'Sup Personal Directo'!M$113","v":6183.7628588631642},{"$f":"(('Sup Personal Indirecto'!N108*(1+SUM('Sup Personal Indirecto'!$D$226,'Sup Personal Indirecto'!$D$242,'Sup Personal Indirecto'!$D$244,'Sup Personal Indirecto'!$D$245)))*12+'Sup Personal Indirecto'!$D$243*12)*'Sup Personal Indirecto'!N38*'Sup Personal Directo'!N$113","v":6314.5973196325431},{"$f":"(('Sup Personal Indirecto'!O108*(1+SUM('Sup Personal Indirecto'!$D$226,'Sup Personal Indirecto'!$D$242,'Sup Personal Indirecto'!$D$244,'Sup Personal Indirecto'!$D$245)))*12+'Sup Personal Indirecto'!$D$243*12)*'Sup Personal Indirecto'!O38*'Sup Personal Directo'!O$113","v":6437.8990518840983},{"$f":"(('Sup Personal Indirecto'!P108*(1+SUM('Sup Personal Indirecto'!$D$226,'Sup Personal Indirecto'!$D$242,'Sup Personal Indirecto'!$D$244,'Sup Personal Indirecto'!$D$245)))*12+'Sup Personal Indirecto'!$D$243*12)*'Sup Personal Indirecto'!P38*'Sup Personal Directo'!P$113","v":6569.379926544887},{"$f":"(('Sup Personal Indirecto'!Q108*(1+SUM('Sup Personal Indirecto'!$D$226,'Sup Personal Indirecto'!$D$242,'Sup Personal Indirecto'!$D$244,'Sup Personal Indirecto'!$D$245)))*12+'Sup Personal Indirecto'!$D$243*12)*'Sup Personal Indirecto'!Q38*'Sup Personal Directo'!Q$113","v":6711.5125079434374},{"$f":"(('Sup Personal Indirecto'!R108*(1+SUM('Sup Personal Indirecto'!$D$226,'Sup Personal Indirecto'!$D$242,'Sup Personal Indirecto'!$D$244,'Sup Personal Indirecto'!$D$245)))*12+'Sup Personal Indirecto'!$D$243*12)*'Sup Personal Indirecto'!R38*'Sup Personal Directo'!R$113","v":6862.4938073446874},{"$f":"(('Sup Personal Indirecto'!S108*(1+SUM('Sup Personal Indirecto'!$D$226,'Sup Personal Indirecto'!$D$242,'Sup Personal Indirecto'!$D$244,'Sup Personal Indirecto'!$D$245)))*12+'Sup Personal Indirecto'!$D$243*12)*'Sup Personal Indirecto'!S38*'Sup Personal Directo'!S$113","v":7012.5218802191666},{"$f":"(('Sup Personal Indirecto'!T108*(1+SUM('Sup Personal Indirecto'!$D$226,'Sup Personal Indirecto'!$D$242,'Sup Personal Indirecto'!$D$244,'Sup Personal Indirecto'!$D$245)))*12+'Sup Personal Indirecto'!$D$243*12)*'Sup Personal Indirecto'!T38*'Sup Personal Directo'!T$113","v":7162.6473234470459},{"$f":"(('Sup Personal Indirecto'!U108*(1+SUM('Sup Personal Indirecto'!$D$226,'Sup Personal Indirecto'!$D$242,'Sup Personal Indirecto'!$D$244,'Sup Personal Indirecto'!$D$245)))*12+'Sup Personal Indirecto'!$D$243*12)*'Sup Personal Indirecto'!U38*'Sup Personal Directo'!U$113","v":7314.850566082031},{"$f":"(('Sup Personal Indirecto'!V108*(1+SUM('Sup Personal Indirecto'!$D$226,'Sup Personal Indirecto'!$D$242,'Sup Personal Indirecto'!$D$244,'Sup Personal Indirecto'!$D$245)))*12+'Sup Personal Indirecto'!$D$243*12)*'Sup Personal Indirecto'!V38*'Sup Personal Directo'!V$113","v":7470.0702716477745},{"$f":"(('Sup Personal Indirecto'!W108*(1+SUM('Sup Personal Indirecto'!$D$226,'Sup Personal Indirecto'!$D$242,'Sup Personal Indirecto'!$D$244,'Sup Personal Indirecto'!$D$245)))*12+'Sup Personal Indirecto'!$D$243*12)*'Sup Personal Indirecto'!W38*'Sup Personal Directo'!W$113","v":7628.641661164791}]
[null,null,"Capacitación Talento Humano",{"$f":"(('Sup Personal Indirecto'!D109*(1+SUM('Sup Personal Indirecto'!$D$226,'Sup Personal Indirecto'!$D$242,'Sup Personal Indirecto'!$D$244,'Sup Personal Indirecto'!$D$245)))*12+'Sup Personal Indirecto'!$D$243*12)*'Sup Personal Indirecto'!D39*'Sup Personal Directo'!D$113","v":8488.7295081967222},{"$f":"(('Sup Personal Indirecto'!E109*(1+SUM('Sup Personal Indirecto'!$D$226,'Sup Personal Indirecto'!$D$242,'Sup Personal Indirecto'!$D$244,'Sup Personal Indirecto'!$D$245)))*12+'Sup Personal Indirecto'!$D$243*12)*'Sup Personal Indirecto'!E39*'Sup Personal Directo'!E$113","v":8693.5455737704924},{"$f":"(('Sup Personal Indirecto'!F109*(1+SUM('Sup Personal Indirecto'!$D$226,'Sup Personal Indirecto'!$D$242,'Sup Personal Indirecto'!$D$244,'Sup Personal Indirecto'!$D$245)))*12+'Sup Personal Indirecto'!$D$243*12)*'Sup Personal Indirecto'!F39*'Sup Personal Directo'!F$113","v":8990.9343807580353},{"$f":"(('Sup Personal Indirecto'!G109*(1+SUM('Sup Personal Indirecto'!$D$226,'Sup Personal Indirecto'!$D$242,'Sup Personal Indirecto'!$D$244,'Sup Personal Indirecto'!$D$245)))*12+'Sup Personal Indirecto'!$D$243*12)*'Sup Personal Indirecto'!G39*'Sup Personal Directo'!G$113","v":9102.013419021172},{"$f":"(('Sup Personal Indirecto'!H109*(1+SUM('Sup Personal Indirecto'!$D$226,'Sup Personal Indirecto'!$D$242,'Sup Personal Indirecto'!$D$244,'Sup Personal Indirecto'!$D$245)))*12+'Sup Personal Indirecto'!$D$243*12)*'Sup Personal Indirecto'!H39*'Sup Personal Directo'!H$113","v":9199.6015660945486},{"$f":"(('Sup Personal Indirecto'!I109*(1+SUM('Sup Personal Indirecto'!$D$226,'Sup Personal Indirecto'!$D$242,'Sup Personal Indirecto'!$D$244,'Sup Personal Indirecto'!$D$245)))*12+'Sup Personal Indirecto'!$D$243*12)*'Sup Personal Indirecto'!I39*'Sup Personal Directo'!I$113","v":9335.328807760081},{"$f":"(('Sup Personal Indirecto'!J109*(1+SUM('Sup Personal Indirecto'!$D$226,'Sup Personal Indirecto'!$D$242,'Sup Personal Indirecto'!$D$244,'Sup Personal Indirecto'!$D$245)))*12+'Sup Personal Indirecto'!$D$243*12)*'Sup Personal Indirecto'!J39*'Sup Personal Directo'!J$113","v":9592.6715227523528},{"$f":"(('Sup Personal Indirecto'!K109*(1+SUM('Sup Personal Indirecto'!$D$226,'Sup Personal Indirecto'!$D$242,'Sup Personal Indirecto'!$D$244,'Sup Personal Indirecto'!$D$245)))*12+'Sup Personal Indirecto'!$D$243*12)*'Sup Personal Indirecto'!K39*'Sup Personal Directo'!K$113","v":9837.2149798056034},{"$f":"(('Sup Personal Indirecto'!L109*(1+SUM('Sup Personal Indirecto'!$D$226,'Sup Personal Indirecto'!$D$242,'Sup Personal Indirecto'!$D$244,'Sup Personal Indirecto'!$D$245)))*12+'Sup Personal Indirecto'!$D$243*12)*'Sup Personal Indirecto'!L39*'Sup Personal Directo'!L$113","v":10060.294779666474},{"$f":"(('Sup Personal Indirecto'!M109*(1+SUM('Sup Personal Indirecto'!$D$226,'Sup Personal Indirecto'!$D$242,'Sup Personal Indirecto'!$D$244,'Sup Personal Indirecto'!$D$245)))*12+'Sup Personal Indirecto'!$D$243*12)*'Sup Personal Indirecto'!M39*'Sup Personal Directo'!M$113","v":10276.468089062695},{"$f":"(('Sup Personal Indirecto'!N109*(1+SUM('Sup Personal Indirecto'!$D$226,'Sup Personal Indirecto'!$D$242,'Sup Personal Indirecto'!$D$244,'Sup Personal Indirecto'!$D$245)))*12+'Sup Personal Indirecto'!$D$243*12)*'Sup Personal Indirecto'!N39*'Sup Personal Directo'!N$113","v":10493.894952241828},{"$f":"(('Sup Personal Indirecto'!O109*(1+SUM('Sup Personal Indirecto'!$D$226,'Sup Personal Indirecto'!$D$242,'Sup Personal Indirecto'!$D$244,'Sup Personal Indirecto'!$D$245)))*12+'Sup Personal Indirecto'!$D$243*12)*'Sup Personal Indirecto'!O39*'Sup Personal Directo'!O$113","v":10698.803572725734},{"$f":"(('Sup Personal Indirecto'!P109*(1+SUM('Sup Personal Indirecto'!$D$226,'Sup Personal Indirecto'!$D$242,'Sup Personal Indirecto'!$D$244,'Sup Personal Indirecto'!$D$245)))*12+'Sup Personal Indirecto'!$D$243*12)*'Sup Personal Indirecto'!P39*'Sup Personal Directo'!P$113","v":10917.304676925911},{"$f":"(('Sup Personal Indirecto'!Q109*(1+SUM('Sup Personal Indirecto'!$D$226,'Sup Personal Indirecto'!$D$242,'Sup Personal Indirecto'!$D$244,'Sup Personal Indirecto'!$D$245)))*12+'Sup Personal Indirecto'!$D$243*12)*'Sup Personal Indirecto'!Q39*'Sup Personal Directo'!Q$113","v":11153.507288587321},{"$f":"(('Sup Personal Indirecto'!R109*(1+SUM('Sup Personal Indirecto'!$D$226,'Sup Personal Indirecto'!$D$242,'Sup Personal Indirecto'!$D$244,'Sup Personal Indirecto'!$D$245)))*12+'Sup Personal Indirecto'!$D$243*12)*'Sup Personal Indirecto'!R39*'Sup Personal Directo'!R$113","v":11404.415116192375},{"$f":"(('Sup Personal Indirecto'!S109*(1+SUM('Sup Personal Indirecto'!$D$226,'Sup Personal Indirecto'!$D$242,'Sup Personal Indirecto'!$D$244,'Sup Personal Indirecto'!$D$245)))*12+'Sup Personal Indirecto'!$D$243*12)*'Sup Personal Indirecto'!S39*'Sup Personal Directo'!S$113","v":11653.738827102206},{"$f":"(('Sup Personal Indirecto'!T109*(1+SUM('Sup Personal Indirecto'!$D$226,'Sup Personal Indirecto'!$D$242,'Sup Personal Indirecto'!$D$244,'Sup Personal Indirecto'!$D$245)))*12+'Sup Personal Indirecto'!$D$243*12)*'Sup Personal Indirecto'!T39*'Sup Personal Directo'!T$113","v":11903.224352646974},{"$f":"(('Sup Personal Indirecto'!U109*(1+SUM('Sup Personal Indirecto'!$D$226,'Sup Personal Indirecto'!$D$242,'Sup Personal Indirecto'!$D$244,'Sup Personal Indirecto'!$D$245)))*12+'Sup Personal Indirecto'!$D$243*12)*'Sup Personal Indirecto'!U39*'Sup Personal Directo'!U$113","v":12156.162863015052},{"$f":"(('Sup Personal Indirecto'!V109*(1+SUM('Sup Personal Indirecto'!$D$226,'Sup Personal Indirecto'!$D$242,'Sup Personal Indirecto'!$D$244,'Sup Personal Indirecto'!$D$245)))*12+'Sup Personal Indirecto'!$D$243*12)*'Sup Personal Indirecto'!V39*'Sup Personal Directo'!V$113","v":12414.11427341783},{"$f":"(('Sup Personal Indirecto'!W109*(1+SUM('Sup Personal Indirecto'!$D$226,'Sup Personal Indirecto'!$D$242,'Sup Personal Indirecto'!$D$244,'Sup Personal Indirecto'!$D$245)))*12+'Sup Personal Indirecto'!$D$243*12)*'Sup Personal Indirecto'!W39*'Sup Personal Directo'!W$113","v":12677.635669920661}]
[null,null,"Asesor Legal",{"$f":"(('Sup Personal Indirecto'!D110*(1+SUM('Sup Personal Indirecto'!$D$226,'Sup Personal Indirecto'!$D$242,'Sup Personal Indirecto'!$D$244,'Sup Personal Indirecto'!$D$245)))*12+'Sup Personal Indirecto'!$D$243*12)*'Sup Personal Indirecto'!D40*'Sup Personal Directo'!D$113","v":8488.7295081967222},{"$f":"(('Sup Personal Indirecto'!E110*(1+SUM('Sup Personal Indirecto'!$D$226,'Sup Personal Indirecto'!$D$242,'Sup Personal Indirecto'!$D$244,'Sup Personal Indirecto'!$D$245)))*12+'Sup Personal Indirecto'!$D$243*12)*'Sup Personal Indirecto'!E40*'Sup Personal Directo'!E$113","v":8693.5455737704924},{"$f":"(('Sup Personal Indirecto'!F110*(1+SUM('Sup Personal Indirecto'!$D$226,'Sup Personal Indirecto'!$D$242,'Sup Personal Indirecto'!$D$244,'Sup Personal Indirecto'!$D$245)))*12+'Sup Personal Indirecto'!$D$243*12)*'Sup Personal Indirecto'!F40*'Sup Personal Directo'!F$113","v":8990.9343807580353},{"$f":"(('Sup Personal Indirecto'!G110*(1+SUM('Sup Personal Indirecto'!$D$226,'Sup Personal Indirecto'!$D$242,'Sup Personal Indirecto'!$D$244,'Sup Personal Indirecto'!$D$245)))*12+'Sup Personal Indirecto'!$D$243*12)*'Sup Personal Indirecto'!G40*'Sup Personal Directo'!G$113","v":9102.013419021172},{"$f":"(('Sup Personal Indirecto'!H110*(1+SUM('Sup Personal Indirecto'!$D$226,'Sup Personal Indirecto'!$D$242,'Sup Personal Indirecto'!$D$244,'Sup Personal Indirecto'!$D$245)))*12+'Sup Personal Indirecto'!$D$243*12)*'Sup Personal Indirecto'!H40*'Sup Personal Directo'!H$113","v":9199.6015660945486},{"$f":"(('Sup Personal Indirecto'!I110*(1+SUM('Sup Personal Indirecto'!$D$226,'Sup Personal Indirecto'!$D$242,'Sup Personal Indirecto'!$D$244,'Sup Personal Indirecto'!$D$245)))*12+'Sup Personal Indirecto'!$D$243*12)*'Sup Personal Indirecto'!I40*'Sup Personal Directo'!I$113","v":9335.328807760081},{"$f":"(('Sup Personal Indirecto'!J110*(1+SUM('Sup Personal Indirecto'!$D$226,'Sup Personal Indirecto'!$D$242,'Sup Personal Indirecto'!$D$244,'Sup Personal Indirecto'!$D$245)))*12+'Sup Personal Indirecto'!$D$243*12)*'Sup Personal Indirecto'!J40*'Sup Personal Directo'!J$113","v":9592.6715227523528},{"$f":"(('Sup Personal Indirecto'!K110*(1+SUM('Sup Personal Indirecto'!$D$226,'Sup Personal Indirecto'!$D$242,'Sup Personal Indirecto'!$D$244,'Sup Personal Indirecto'!$D$245)))*12+'Sup Personal Indirecto'!$D$243*12)*'Sup Personal Indirecto'!K40*'Sup Personal Directo'!K$113","v":9837.2149798056034},{"$f":"(('Sup Personal Indirecto'!L110*(1+SUM('Sup Personal Indirecto'!$D$226,'Sup Personal Indirecto'!$D$242,'Sup Personal Indirecto'!$D$244,'Sup Personal Indirecto'!$D$245)))*12+'Sup Personal Indirecto'!$D$243*12)*'Sup Personal Indirecto'!L40*'Sup Personal Directo'!L$113","v":10060.294779666474},{"$f":"(('Sup Personal Indirecto'!M110*(1+SUM('Sup Personal Indirecto'!$D$226,'Sup Personal Indirecto'!$D$242,'Sup Personal Indirecto'!$D$244,'Sup Personal Indirecto'!$D$245)))*12+'Sup Personal Indirecto'!$D$243*12)*'Sup Personal Indirecto'!M40*'Sup Personal Directo'!M$113","v":10276.468089062695},{"$f":"(('Sup Personal Indirecto'!N110*(1+SUM('Sup Personal Indirecto'!$D$226,'Sup Personal Indirecto'!$D$242,'Sup Personal Indirecto'!$D$244,'Sup Personal Indirecto'!$D$245)))*12+'Sup Personal Indirecto'!$D$243*12)*'Sup Personal Indirecto'!N40*'Sup Personal Directo'!N$113","v":10493.894952241828},{"$f":"(('Sup Personal Indirecto'!O110*(1+SUM('Sup Personal Indirecto'!$D$226,'Sup Personal Indirecto'!$D$242,'Sup Personal Indirecto'!$D$244,'Sup Personal Indirecto'!$D$245)))*12+'Sup Personal Indirecto'!$D$243*12)*'Sup Personal Indirecto'!O40*'Sup Personal Directo'!O$113","v":10698.803572725734},{"$f":"(('Sup Personal Indirecto'!P110*(1+SUM('Sup Personal Indirecto'!$D$226,'Sup Personal Indirecto'!$D$242,'Sup Personal Indirecto'!$D$244,'Sup Personal Indirecto'!$D$245)))*12+'Sup Personal Indirecto'!$D$243*12)*'Sup Personal Indirecto'!P40*'Sup Personal Directo'!P$113","v":10917.304676925911},{"$f":"(('Sup Personal Indirecto'!Q110*(1+SUM('Sup Personal Indirecto'!$D$226,'Sup Personal Indirecto'!$D$242,'Sup Personal Indirecto'!$D$244,'Sup Personal Indirecto'!$D$245)))*12+'Sup Personal Indirecto'!$D$243*12)*'Sup Personal Indirecto'!Q40*'Sup Personal Directo'!Q$113","v":11153.507288587321},{"$f":"(('Sup Personal Indirecto'!R110*(1+SUM('Sup Personal Indirecto'!$D$226,'Sup Personal Indirecto'!$D$242,'Sup Personal Indirecto'!$D$244,'Sup Personal Indirecto'!$D$245)))*12+'Sup Personal Indirecto'!$D$243*12)*'Sup Personal Indirecto'!R40*'Sup Personal Directo'!R$113","v":11404.415116192375},{"$f":"(('Sup Personal Indirecto'!S110*(1+SUM('Sup Personal Indirecto'!$D$226,'Sup Personal Indirecto'!$D$242,'Sup Personal Indirecto'!$D$244,'Sup Personal Indirecto'!$D$245)))*12+'Sup Personal Indirecto'!$D$243*12)*'Sup Personal Indirecto'!S40*'Sup Personal Directo'!S$113","v":11653.738827102206},{"$f":"(('Sup Personal Indirecto'!T110*(1+SUM('Sup Personal Indirecto'!$D$226,'Sup Personal Indirecto'!$D$242,'Sup Personal Indirecto'!$D$244,'Sup Personal Indirecto'!$D$245)))*12+'Sup Personal Indirecto'!$D$243*12)*'Sup Personal Indirecto'!T40*'Sup Personal Directo'!T$113","v":11903.224352646974},{"$f":"(('Sup Personal Indirecto'!U110*(1+SUM('Sup Personal Indirecto'!$D$226,'Sup Personal Indirecto'!$D$242,'Sup Personal Indirecto'!$D$244,'Sup Personal Indirecto'!$D$245)))*12+'Sup Personal Indirecto'!$D$243*12)*'Sup Personal Indirecto'!U40*'Sup Personal Directo'!U$113","v":12156.162863015052},{"$f":"(('Sup Personal Indirecto'!V110*(1+SUM('Sup Personal Indirecto'!$D$226,'Sup Personal Indirecto'!$D$242,'Sup Personal Indirecto'!$D$244,'Sup Personal Indirecto'!$D$245)))*12+'Sup Personal Indirecto'!$D$243*12)*'Sup Personal Indirecto'!V40*'Sup Personal Directo'!V$113","v":12414.11427341783},{"$f":"(('Sup Personal Indirecto'!W110*(1+SUM('Sup Personal Indirecto'!$D$226,'Sup Personal Indirecto'!$D$242,'Sup Personal Indirecto'!$D$244,'Sup Personal Indirecto'!$D$245)))*12+'Sup Personal Indirecto'!$D$243*12)*'Sup Personal Indirecto'!W40*'Sup Personal Directo'!W$113","v":12677.635669920661}]
[null,null,"Servicio de Guardianía",{"$f":"(('Sup Personal Indirecto'!D111*(1+SUM('Sup Personal Indirecto'!$D$226,'Sup Personal Indirecto'!$D$242,'Sup Personal Indirecto'!$D$244,'Sup Personal Indirecto'!$D$245)))*12+'Sup Personal Indirecto'!$D$243*12)*'Sup Personal Indirecto'!D41*'Sup Personal Directo'!D$113","v":40943.64754098362},{"$f":"(('Sup Personal Indirecto'!E111*(1+SUM('Sup Personal Indirecto'!$D$226,'Sup Personal Indirecto'!$D$242,'Sup Personal Indirecto'!$D$244,'Sup Personal Indirecto'!$D$245)))*12+'Sup Personal Indirecto'!$D$243*12)*'Sup Personal Indirecto'!E41*'Sup Personal Directo'!E$113","v":41931.535868852465},{"$f":"(('Sup Personal Indirecto'!F111*(1+SUM('Sup Personal Indirecto'!$D$226,'Sup Personal Indirecto'!$D$242,'Sup Personal Indirecto'!$D$244,'Sup Personal Indirecto'!$D$245)))*12+'Sup Personal Indirecto'!$D$243*12)*'Sup Personal Indirecto'!F41*'Sup Personal Directo'!F$113","v":43365.929847854175},{"$f":"(('Sup Personal Indirecto'!G111*(1+SUM('Sup Personal Indirecto'!$D$226,'Sup Personal Indirecto'!$D$242,'Sup Personal Indirecto'!$D$244,'Sup Personal Indirecto'!$D$245)))*12+'Sup Personal Indirecto'!$D$243*12)*'Sup Personal Indirecto'!G41*'Sup Personal Directo'!G$113","v":43901.696830115281},{"$f":"(('Sup Personal Indirecto'!H111*(1+SUM('Sup Personal Indirecto'!$D$226,'Sup Personal Indirecto'!$D$242,'Sup Personal Indirecto'!$D$244,'Sup Personal Indirecto'!$D$245)))*12+'Sup Personal Indirecto'!$D$243*12)*'Sup Personal Indirecto'!H41*'Sup Personal Directo'!H$113","v":44372.393262849044},{"$f":"(('Sup Personal Indirecto'!I111*(1+SUM('Sup Personal Indirecto'!$D$226,'Sup Personal Indirecto'!$D$242,'Sup Personal Indirecto'!$D$244,'Sup Personal Indirecto'!$D$245)))*12+'Sup Personal Indirecto'!$D$243*12)*'Sup Personal Indirecto'!I41*'Sup Personal Directo'!I$113","v":45027.045804091802},{"$f":"(('Sup Personal Indirecto'!J111*(1+SUM('Sup Personal Indirecto'!$D$226,'Sup Personal Indirecto'!$D$242,'Sup Personal Indirecto'!$D$244,'Sup Personal Indirecto'!$D$245)))*12+'Sup Personal Indirecto'!$D$243*12)*'Sup Personal Indirecto'!J41*'Sup Personal Directo'!J$113","v":46268.285663332143},{"$f":"(('Sup Personal Indirecto'!K111*(1+SUM('Sup Personal Indirecto'!$D$226,'Sup Personal Indirecto'!$D$242,'Sup Personal Indirecto'!$D$244,'Sup Personal Indirecto'!$D$245)))*12+'Sup Personal Indirecto'!$D$243*12)*'Sup Personal Indirecto'!K41*'Sup Personal Directo'!K$113","v":47447.790924322479},{"$f":"(('Sup Personal Indirecto'!L111*(1+SUM('Sup Personal Indirecto'!$D$226,'Sup Personal Indirecto'!$D$242,'Sup Personal Indirecto'!$D$244,'Sup Personal Indirecto'!$D$245)))*12+'Sup Personal Indirecto'!$D$243*12)*'Sup Personal Indirecto'!L41*'Sup Personal Directo'!L$113","v":48523.770632498738},{"$f":"(('Sup Personal Indirecto'!M111*(1+SUM('Sup Personal Indirecto'!$D$226,'Sup Personal Indirecto'!$D$242,'Sup Personal Indirecto'!$D$244,'Sup Personal Indirecto'!$D$245)))*12+'Sup Personal Indirecto'!$D$243*12)*'Sup Personal Indirecto'!M41*'Sup Personal Directo'!M$113","v":49566.438298978203},{"$f":"(('Sup Personal Indirecto'!N111*(1+SUM('Sup Personal Indirecto'!$D$226,'Sup Personal Indirecto'!$D$242,'Sup Personal Indirecto'!$D$244,'Sup Personal Indirecto'!$D$245)))*12+'Sup Personal Indirecto'!$D$243*12)*'Sup Personal Indirecto'!N41*'Sup Personal Directo'!N$113","v":50615.152225290971},{"$f":"(('Sup Personal Indirecto'!O111*(1+SUM('Sup Personal Indirecto'!$D$226,'Sup Personal Indirecto'!$D$242,'Sup Personal Indirecto'!$D$244,'Sup Personal Indirecto'!$D$245)))*12+'Sup Personal Indirecto'!$D$243*12)*'Sup Personal Indirecto'!O41*'Sup Personal Directo'!O$113","v":51603.48697280544},{"$f":"(('Sup Personal Indirecto'!P111*(1+SUM('Sup Personal Indirecto'!$D$226,'Sup Personal Indirecto'!$D$242,'Sup Personal Indirecto'!$D$244,'Sup Personal Indirecto'!$D$245)))*12+'Sup Personal Indirecto'!$D$243*12)*'Sup Personal Indirecto'!P41*'Sup Personal Directo'!P$113","v":52657.382280583748},{"$f":"(('Sup Personal Indirecto'!Q111*(1+SUM('Sup Personal Indirecto'!$D$226,'Sup Personal Indirecto'!$D$242,'Sup Personal Indirecto'!$D$244,'Sup Personal Indirecto'!$D$245)))*12+'Sup Personal Indirecto'!$D$243*12)*'Sup Personal Indirecto'!Q41*'Sup Personal Directo'!Q$113","v":53796.657182768613},{"$f":"(('Sup Personal Indirecto'!R111*(1+SUM('Sup Personal Indirecto'!$D$226,'Sup Personal Indirecto'!$D$242,'Sup Personal Indirecto'!$D$244,'Sup Personal Indirecto'!$D$245)))*12+'Sup Personal Indirecto'!$D$243*12)*'Sup Personal Indirecto'!R41*'Sup Personal Directo'!R$113","v":55006.859681130176},{"$f":"(('Sup Personal Indirecto'!S111*(1+SUM('Sup Personal Indirecto'!$D$226,'Sup Personal Indirecto'!$D$242,'Sup Personal Indirecto'!$D$244,'Sup Personal Indirecto'!$D$245)))*12+'Sup Personal Indirecto'!$D$243*12)*'Sup Personal Indirecto'!S41*'Sup Personal Directo'!S$113","v":56209.421517179399},{"$f":"(('Sup Personal Indirecto'!T111*(1+SUM('Sup Personal Indirecto'!$D$226,'Sup Personal Indirecto'!$D$242,'Sup Personal Indirecto'!$D$244,'Sup Personal Indirecto'!$D$245)))*12+'Sup Personal Indirecto'!$D$243*12)*'Sup Personal Indirecto'!T41*'Sup Personal Directo'!T$113","v":57412.763832966295},{"$f":"(('Sup Personal Indirecto'!U111*(1+SUM('Sup Personal Indirecto'!$D$226,'Sup Personal Indirecto'!$D$242,'Sup Personal Indirecto'!$D$244,'Sup Personal Indirecto'!$D$245)))*12+'Sup Personal Indirecto'!$D$243*12)*'Sup Personal Indirecto'!U41*'Sup Personal Directo'!U$113","v":58632.760913572056},{"$f":"(('Sup Personal Indirecto'!V111*(1+SUM('Sup Personal Indirecto'!$D$226,'Sup Personal Indirecto'!$D$242,'Sup Personal Indirecto'!$D$244,'Sup Personal Indirecto'!$D$245)))*12+'Sup Personal Indirecto'!$D$243*12)*'Sup Personal Indirecto'!V41*'Sup Personal Directo'!V$113","v":59876.936690410374},{"$f":"(('Sup Personal Indirecto'!W111*(1+SUM('Sup Personal Indirecto'!$D$226,'Sup Personal Indirecto'!$D$242,'Sup Personal Indirecto'!$D$244,'Sup Personal Indirecto'!$D$245)))*12+'Sup Personal Indirecto'!$D$243*12)*'Sup Personal Indirecto'!W41*'Sup Personal Directo'!W$113","v":61147.978153977012}]
[null,null,"Comisario",{"$f":"(('Sup Personal Indirecto'!D112*(1+SUM('Sup Personal Indirecto'!$D$226,'Sup Personal Indirecto'!$D$242,'Sup Personal Indirecto'!$D$244,'Sup Personal Indirecto'!$D$245)))*12+'Sup Personal Indirecto'!$D$243*12)*'Sup Personal Indirecto'!D42*'Sup Personal Directo'!D$113","v":6460.297131147543},{"$f":"(('Sup Personal Indirecto'!E112*(1+SUM('Sup Personal Indirecto'!$D$226,'Sup Personal Indirecto'!$D$242,'Sup Personal Indirecto'!$D$244,'Sup Personal Indirecto'!$D$245)))*12+'Sup Personal Indirecto'!$D$243*12)*'Sup Personal Indirecto'!E42*'Sup Personal Directo'!E$113","v":6616.1711803278695},{"$f":"(('Sup Personal Indirecto'!F112*(1+SUM('Sup Personal Indirecto'!$D$226,'Sup Personal Indirecto'!$D$242,'Sup Personal Indirecto'!$D$244,'Sup Personal Indirecto'!$D$245)))*12+'Sup Personal Indirecto'!$D$243*12)*'Sup Personal Indirecto'!F42*'Sup Personal Directo'!F$113","v":6842.4971640645272},{"$f":"(('Sup Personal Indirecto'!G112*(1+SUM('Sup Personal Indirecto'!$D$226,'Sup Personal Indirecto'!$D$242,'Sup Personal Indirecto'!$D$244,'Sup Personal Indirecto'!$D$245)))*12+'Sup Personal Indirecto'!$D$243*12)*'Sup Personal Indirecto'!G42*'Sup Personal Directo'!G$113","v":6927.0332058277918},{"$f":"(('Sup Personal Indirecto'!H112*(1+SUM('Sup Personal Indirecto'!$D$226,'Sup Personal Indirecto'!$D$242,'Sup Personal Indirecto'!$D$244,'Sup Personal Indirecto'!$D$245)))*12+'Sup Personal Indirecto'!$D$243*12)*'Sup Personal Indirecto'!H42*'Sup Personal Directo'!H$113","v":7001.3020850473949},{"$f":"(('Sup Personal Indirecto'!I112*(1+SUM('Sup Personal Indirecto'!$D$226,'Sup Personal Indirecto'!$D$242,'Sup Personal Indirecto'!$D$244,'Sup Personal Indirecto'!$D$245)))*12+'Sup Personal Indirecto'!$D$243*12)*'Sup Personal Indirecto'!I42*'Sup Personal Directo'!I$113","v":7104.5964954893489},{"$f":"(('Sup Personal Indirecto'!J112*(1+SUM('Sup Personal Indirecto'!$D$226,'Sup Personal Indirecto'!$D$242,'Sup Personal Indirecto'!$D$244,'Sup Personal Indirecto'!$D$245)))*12+'Sup Personal Indirecto'!$D$243*12)*'Sup Personal Indirecto'!J42*'Sup Personal Directo'!J$113","v":7300.4456389661163},{"$f":"(('Sup Personal Indirecto'!K112*(1+SUM('Sup Personal Indirecto'!$D$226,'Sup Personal Indirecto'!$D$242,'Sup Personal Indirecto'!$D$244,'Sup Personal Indirecto'!$D$245)))*12+'Sup Personal Indirecto'!$D$243*12)*'Sup Personal Indirecto'!K42*'Sup Personal Directo'!K$113","v":7486.5539832732993},{"$f":"(('Sup Personal Indirecto'!L112*(1+SUM('Sup Personal Indirecto'!$D$226,'Sup Personal Indirecto'!$D$242,'Sup Personal Indirecto'!$D$244,'Sup Personal Indirecto'!$D$245)))*12+'Sup Personal Indirecto'!$D$243*12)*'Sup Personal Indirecto'!L42*'Sup Personal Directo'!L$113","v":7656.3275388644597},{"$f":"(('Sup Personal Indirecto'!M112*(1+SUM('Sup Personal Indirecto'!$D$226,'Sup Personal Indirecto'!$D$242,'Sup Personal Indirecto'!$D$244,'Sup Personal Indirecto'!$D$245)))*12+'Sup Personal Indirecto'!$D$243*12)*'Sup Personal Indirecto'!M42*'Sup Personal Directo'!M$113","v":7820.8449509429774},{"$f":"(('Sup Personal Indirecto'!N112*(1+SUM('Sup Personal Indirecto'!$D$226,'Sup Personal Indirecto'!$D$242,'Sup Personal Indirecto'!$D$244,'Sup Personal Indirecto'!$D$245)))*12+'Sup Personal Indirecto'!$D$243*12)*'Sup Personal Indirecto'!N42*'Sup Personal Directo'!N$113","v":7986.3163726762577},{"$f":"(('Sup Personal Indirecto'!O112*(1+SUM('Sup Personal Indirecto'!$D$226,'Sup Personal Indirecto'!$D$242,'Sup Personal Indirecto'!$D$244,'Sup Personal Indirecto'!$D$245)))*12+'Sup Personal Indirecto'!$D$243*12)*'Sup Personal Indirecto'!O42*'Sup Personal Directo'!O$113","v":8142.2608602207529},{"$f":"(('Sup Personal Indirecto'!P112*(1+SUM('Sup Personal Indirecto'!$D$226,'Sup Personal Indirecto'!$D$242,'Sup Personal Indirecto'!$D$244,'Sup Personal Indirecto'!$D$245)))*12+'Sup Personal Indirecto'!$D$243*12)*'Sup Personal Indirecto'!P42*'Sup Personal Directo'!P$113","v":8308.5498266972972},{"$f":"(('Sup Personal Indirecto'!Q112*(1+SUM('Sup Personal Indirecto'!$D$226,'Sup Personal Indirecto'!$D$242,'Sup Personal Indirecto'!$D$244,'Sup Personal Indirecto'!$D$245)))*12+'Sup Personal Indirecto'!$D$243*12)*'Sup Personal Indirecto'!Q42*'Sup Personal Directo'!Q$113","v":8488.3104202009908},{"$f":"(('Sup Personal Indirecto'!R112*(1+SUM('Sup Personal Indirecto'!$D$226,'Sup Personal Indirecto'!$D$242,'Sup Personal Indirecto'!$D$244,'Sup Personal Indirecto'!$D$245)))*12+'Sup Personal Indirecto'!$D$243*12)*'Sup Personal Indirecto'!R42*'Sup Personal Directo'!R$113","v":8679.2623308837628},{"$f":"(('Sup Personal Indirecto'!S112*(1+SUM('Sup Personal Indirecto'!$D$226,'Sup Personal Indirecto'!$D$242,'Sup Personal Indirecto'!$D$244,'Sup Personal Indirecto'!$D$245)))*12+'Sup Personal Indirecto'!$D$243*12)*'Sup Personal Indirecto'!S42*'Sup Personal Directo'!S$113","v":8869.0086589723833},{"$f":"(('Sup Personal Indirecto'!T112*(1+SUM('Sup Personal Indirecto'!$D$226,'Sup Personal Indirecto'!$D$242,'Sup Personal Indirecto'!$D$244,'Sup Personal Indirecto'!$D$245)))*12+'Sup Personal Indirecto'!$D$243*12)*'Sup Personal Indirecto'!T42*'Sup Personal Directo'!T$113","v":9058.8781351270172},{"$f":"(('Sup Personal Indirecto'!U112*(1+SUM('Sup Personal Indirecto'!$D$226,'Sup Personal Indirecto'!$D$242,'Sup Personal Indirecto'!$D$244,'Sup Personal Indirecto'!$D$245)))*12+'Sup Personal Indirecto'!$D$243*12)*'Sup Personal Indirecto'!U42*'Sup Personal Directo'!U$113","v":9251.3754848552398},{"$f":"(('Sup Personal Indirecto'!V112*(1+SUM('Sup Personal Indirecto'!$D$226,'Sup Personal Indirecto'!$D$242,'Sup Personal Indirecto'!$D$244,'Sup Personal Indirecto'!$D$245)))*12+'Sup Personal Indirecto'!$D$243*12)*'Sup Personal Indirecto'!V42*'Sup Personal Directo'!V$113","v":9447.6878723557966},{"$f":"(('Sup Personal Indirecto'!W112*(1+SUM('Sup Personal Indirecto'!$D$226,'Sup Personal Indirecto'!$D$242,'Sup Personal Indirecto'!$D$244,'Sup Personal Indirecto'!$D$245)))*12+'Sup Personal Indirecto'!$D$243*12)*'Sup Personal Indirecto'!W42*'Sup Personal Directo'!W$113","v":9648.2392646671397}]
[null,null,"Directorio (Se hace provisión para dietas)",{"$f":"(('Sup Personal Indirecto'!D113*(1+SUM('Sup Personal Indirecto'!$D$226,'Sup Personal Indirecto'!$D$242,'Sup Personal Indirecto'!$D$244,'Sup Personal Indirecto'!$D$245)))*12+'Sup Personal Indirecto'!$D$243*12)*'Sup Personal Indirecto'!D43*'Sup Personal Directo'!D$113","v":6460.297131147543},{"$f":"(('Sup Personal Indirecto'!E113*(1+SUM('Sup Personal Indirecto'!$D$226,'Sup Personal Indirecto'!$D$242,'Sup Personal Indirecto'!$D$244,'Sup Personal Indirecto'!$D$245)))*12+'Sup Personal Indirecto'!$D$243*12)*'Sup Personal Indirecto'!E43*'Sup Personal Directo'!E$113","v":6616.1711803278695},{"$f":"(('Sup Personal Indirecto'!F113*(1+SUM('Sup Personal Indirecto'!$D$226,'Sup Personal Indirecto'!$D$242,'Sup Personal Indirecto'!$D$244,'Sup Personal Indirecto'!$D$245)))*12+'Sup Personal Indirecto'!$D$243*12)*'Sup Personal Indirecto'!F43*'Sup Personal Directo'!F$113","v":6842.4971640645272},{"$f":"(('Sup Personal Indirecto'!G113*(1+SUM('Sup Personal Indirecto'!$D$226,'Sup Personal Indirecto'!$D$242,'Sup Personal Indirecto'!$D$244,'Sup Personal Indirecto'!$D$245)))*12+'Sup Personal Indirecto'!$D$243*12)*'Sup Personal Indirecto'!G43*'Sup Personal Directo'!G$113","v":6927.0332058277918},{"$f":"(('Sup Personal Indirecto'!H113*(1+SUM('Sup Personal Indirecto'!$D$226,'Sup Personal Indirecto'!$D$242,'Sup Personal Indirecto'!$D$244,'Sup Personal Indirecto'!$D$245)))*12+'Sup Personal Indirecto'!$D$243*12)*'Sup Personal Indirecto'!H43*'Sup Personal Directo'!H$113","v":7001.3020850473949},{"$f":"(('Sup Personal Indirecto'!I113*(1+SUM('Sup Personal Indirecto'!$D$226,'Sup Personal Indirecto'!$D$242,'Sup Personal Indirecto'!$D$244,'Sup Personal Indirecto'!$D$245)))*12+'Sup Personal Indirecto'!$D$243*12)*'Sup Personal Indirecto'!I43*'Sup Personal Directo'!I$113","v":7104.5964954893489},{"$f":"(('Sup Personal Indirecto'!J113*(1+SUM('Sup Personal Indirecto'!$D$226,'Sup Personal Indirecto'!$D$242,'Sup Personal Indirecto'!$D$244,'Sup Personal Indirecto'!$D$245)))*12+'Sup Personal Indirecto'!$D$243*12)*'Sup Personal Indirecto'!J43*'Sup Personal Directo'!J$113","v":7300.4456389661163},{"$f":"(('Sup Personal Indirecto'!K113*(1+SUM('Sup Personal Indirecto'!$D$226,'Sup Personal Indirecto'!$D$242,'Sup Personal Indirecto'!$D$244,'Sup Personal Indirecto'!$D$245)))*12+'Sup Personal Indirecto'!$D$243*12)*'Sup Personal Indirecto'!K43*'Sup Personal Directo'!K$113","v":7486.5539832732993},{"$f":"(('Sup Personal Indirecto'!L113*(1+SUM('Sup Personal Indirecto'!$D$226,'Sup Personal Indirecto'!$D$242,'Sup Personal Indirecto'!$D$244,'Sup Personal Indirecto'!$D$245)))*12+'Sup Personal Indirecto'!$D$243*12)*'Sup Personal Indirecto'!L43*'Sup Personal Directo'!L$113","v":7656.3275388644597},{"$f":"(('Sup Personal Indirecto'!M113*(1+SUM('Sup Personal Indirecto'!$D$226,'Sup Personal Indirecto'!$D$242,'Sup Personal Indirecto'!$D$244,'Sup Personal Indirecto'!$D$245)))*12+'Sup Personal Indirecto'!$D$243*12)*'Sup Personal Indirecto'!M43*'Sup Personal Directo'!M$113","v":7820.8449509429774},{"$f":"(('Sup Personal Indirecto'!N113*(1+SUM('Sup Personal Indirecto'!$D$226,'Sup Personal Indirecto'!$D$242,'Sup Personal Indirecto'!$D$244,'Sup Personal Indirecto'!$D$245)))*12+'Sup Personal Indirecto'!$D$243*12)*'Sup Personal Indirecto'!N43*'Sup Personal Directo'!N$113","v":7986.3163726762577},{"$f":"(('Sup Personal Indirecto'!O113*(1+SUM('Sup Personal Indirecto'!$D$226,'Sup Personal Indirecto'!$D$242,'Sup Personal Indirecto'!$D$244,'Sup Personal Indirecto'!$D$245)))*12+'Sup Personal Indirecto'!$D$243*12)*'Sup Personal Indirecto'!O43*'Sup Personal Directo'!O$113","v":8142.2608602207529},{"$f":"(('Sup Personal Indirecto'!P113*(1+SUM('Sup Personal Indirecto'!$D$226,'Sup Personal Indirecto'!$D$242,'Sup Personal Indirecto'!$D$244,'Sup Personal Indirecto'!$D$245)))*12+'Sup Personal Indirecto'!$D$243*12)*'Sup Personal Indirecto'!P43*'Sup Personal Directo'!P$113","v":8308.5498266972972},{"$f":"(('Sup Personal Indirecto'!Q113*(1+SUM('Sup Personal Indirecto'!$D$226,'Sup Personal Indirecto'!$D$242,'Sup Personal Indirecto'!$D$244,'Sup Personal Indirecto'!$D$245)))*12+'Sup Personal Indirecto'!$D$243*12)*'Sup Personal Indirecto'!Q43*'Sup Personal Directo'!Q$113","v":8488.3104202009908},{"$f":"(('Sup Personal Indirecto'!R113*(1+SUM('Sup Personal Indirecto'!$D$226,'Sup Personal Indirecto'!$D$242,'Sup Personal Indirecto'!$D$244,'Sup Personal Indirecto'!$D$245)))*12+'Sup Personal Indirecto'!$D$243*12)*'Sup Personal Indirecto'!R43*'Sup Personal Directo'!R$113","v":8679.2623308837628},{"$f":"(('Sup Personal Indirecto'!S113*(1+SUM('Sup Personal Indirecto'!$D$226,'Sup Personal Indirecto'!$D$242,'Sup Personal Indirecto'!$D$244,'Sup Personal Indirecto'!$D$245)))*12+'Sup Personal Indirecto'!$D$243*12)*'Sup Personal Indirecto'!S43*'Sup Personal Directo'!S$113","v":8869.0086589723833},{"$f":"(('Sup Personal Indirecto'!T113*(1+SUM('Sup Personal Indirecto'!$D$226,'Sup Personal Indirecto'!$D$242,'Sup Personal Indirecto'!$D$244,'Sup Personal Indirecto'!$D$245)))*12+'Sup Personal Indirecto'!$D$243*12)*'Sup Personal Indirecto'!T43*'Sup Personal Directo'!T$113","v":9058.8781351270172},{"$f":"(('Sup Personal Indirecto'!U113*(1+SUM('Sup Personal Indirecto'!$D$226,'Sup Personal Indirecto'!$D$242,'Sup Personal Indirecto'!$D$244,'Sup Personal Indirecto'!$D$245)))*12+'Sup Personal Indirecto'!$D$243*12)*'Sup Personal Indirecto'!U43*'Sup Personal Directo'!U$113","v":9251.3754848552398},{"$f":"(('Sup Personal Indirecto'!V113*(1+SUM('Sup Personal Indirecto'!$D$226,'Sup Personal Indirecto'!$D$242,'Sup Personal Indirecto'!$D$244,'Sup Personal Indirecto'!$D$245)))*12+'Sup Personal Indirecto'!$D$243*12)*'Sup Personal Indirecto'!V43*'Sup Personal Directo'!V$113","v":9447.6878723557966},{"$f":"(('Sup Personal Indirecto'!W113*(1+SUM('Sup Personal Indirecto'!$D$226,'Sup Personal Indirecto'!$D$242,'Sup Personal Indirecto'!$D$244,'Sup Personal Indirecto'!$D$245)))*12+'Sup Personal Indirecto'!$D$243*12)*'Sup Personal Indirecto'!W43*'Sup Personal Directo'!W$113","v":9648.2392646671397}]
[null,null,"Limpieza de flota",{"$f":"(('Sup Personal Indirecto'!D114*(1+SUM('Sup Personal Indirecto'!$D$226,'Sup Personal Indirecto'!$D$242,'Sup Personal Indirecto'!$D$244,'Sup Personal Indirecto'!$D$245)))*12+'Sup Personal Indirecto'!$D$243*12)*'Sup Personal Indirecto'!D44*'Sup Personal Directo'!D$113","v":11409.672131147547},{"$f":"(('Sup Personal Indirecto'!E114*(1+SUM('Sup Personal Indirecto'!$D$226,'Sup Personal Indirecto'!$D$242,'Sup Personal Indirecto'!$D$244,'Sup Personal Indirecto'!$D$245)))*12+'Sup Personal Indirecto'!$D$243*12)*'Sup Personal Indirecto'!E44*'Sup Personal Directo'!E$113","v":11684.964700327871},{"$f":"(('Sup Personal Indirecto'!F114*(1+SUM('Sup Personal Indirecto'!$D$226,'Sup Personal Indirecto'!$D$242,'Sup Personal Indirecto'!$D$244,'Sup Personal Indirecto'!$D$245)))*12+'Sup Personal Indirecto'!$D$243*12)*'Sup Personal Indirecto'!F44*'Sup Personal Directo'!F$113","v":12084.683972796691},{"$f":"(('Sup Personal Indirecto'!G114*(1+SUM('Sup Personal Indirecto'!$D$226,'Sup Personal Indirecto'!$D$242,'Sup Personal Indirecto'!$D$244,'Sup Personal Indirecto'!$D$245)))*12+'Sup Personal Indirecto'!$D$243*12)*'Sup Personal Indirecto'!G44*'Sup Personal Directo'!G$113","v":12233.984926019644},{"$f":"(('Sup Personal Indirecto'!H114*(1+SUM('Sup Personal Indirecto'!$D$226,'Sup Personal Indirecto'!$D$242,'Sup Personal Indirecto'!$D$244,'Sup Personal Indirecto'!$D$245)))*12+'Sup Personal Indirecto'!$D$243*12)*'Sup Personal Indirecto'!H44*'Sup Personal Directo'!H$113","v":12365.152818802457},{"$f":"(('Sup Personal Indirecto'!I114*(1+SUM('Sup Personal Indirecto'!$D$226,'Sup Personal Indirecto'!$D$242,'Sup Personal Indirecto'!$D$244,'Sup Personal Indirecto'!$D$245)))*12+'Sup Personal Indirecto'!$D$243*12)*'Sup Personal Indirecto'!I44*'Sup Personal Directo'!I$113","v":12547.583337429938},{"$f":"(('Sup Personal Indirecto'!J114*(1+SUM('Sup Personal Indirecto'!$D$226,'Sup Personal Indirecto'!$D$242,'Sup Personal Indirecto'!$D$244,'Sup Personal Indirecto'!$D$245)))*12+'Sup Personal Indirecto'!$D$243*12)*'Sup Personal Indirecto'!J44*'Sup Personal Directo'!J$113","v":12893.476795404536},{"$f":"(('Sup Personal Indirecto'!K114*(1+SUM('Sup Personal Indirecto'!$D$226,'Sup Personal Indirecto'!$D$242,'Sup Personal Indirecto'!$D$244,'Sup Personal Indirecto'!$D$245)))*12+'Sup Personal Indirecto'!$D$243*12)*'Sup Personal Indirecto'!K44*'Sup Personal Directo'!K$113","v":13222.166814812124},{"$f":"(('Sup Personal Indirecto'!L114*(1+SUM('Sup Personal Indirecto'!$D$226,'Sup Personal Indirecto'!$D$242,'Sup Personal Indirecto'!$D$244,'Sup Personal Indirecto'!$D$245)))*12+'Sup Personal Indirecto'!$D$243*12)*'Sup Personal Indirecto'!L44*'Sup Personal Directo'!L$113","v":13522.007606421381},{"$f":"(('Sup Personal Indirecto'!M114*(1+SUM('Sup Personal Indirecto'!$D$226,'Sup Personal Indirecto'!$D$242,'Sup Personal Indirecto'!$D$244,'Sup Personal Indirecto'!$D$245)))*12+'Sup Personal Indirecto'!$D$243*12)*'Sup Personal Indirecto'!M44*'Sup Personal Directo'!M$113","v":13812.565407955095},{"$f":"(('Sup Personal Indirecto'!N114*(1+SUM('Sup Personal Indirecto'!$D$226,'Sup Personal Indirecto'!$D$242,'Sup Personal Indirecto'!$D$244,'Sup Personal Indirecto'!$D$245)))*12+'Sup Personal Indirecto'!$D$243*12)*'Sup Personal Indirecto'!N44*'Sup Personal Directo'!N$113","v":14104.808106816254},{"$f":"(('Sup Personal Indirecto'!O114*(1+SUM('Sup Personal Indirecto'!$D$226,'Sup Personal Indirecto'!$D$242,'Sup Personal Indirecto'!$D$244,'Sup Personal Indirecto'!$D$245)))*12+'Sup Personal Indirecto'!$D$243*12)*'Sup Personal Indirecto'!O44*'Sup Personal Directo'!O$113","v":14380.22507873291},{"$f":"(('Sup Personal Indirecto'!P114*(1+SUM('Sup Personal Indirecto'!$D$226,'Sup Personal Indirecto'!$D$242,'Sup Personal Indirecto'!$D$244,'Sup Personal Indirecto'!$D$245)))*12+'Sup Personal Indirecto'!$D$243*12)*'Sup Personal Indirecto'!P44*'Sup Personal Directo'!P$113","v":14673.911661255119},{"$f":"(('Sup Personal Indirecto'!Q114*(1+SUM('Sup Personal Indirecto'!$D$226,'Sup Personal Indirecto'!$D$242,'Sup Personal Indirecto'!$D$244,'Sup Personal Indirecto'!$D$245)))*12+'Sup Personal Indirecto'!$D$243*12)*'Sup Personal Indirecto'!Q44*'Sup Personal Directo'!Q$113","v":14991.390779063642},{"$f":"(('Sup Personal Indirecto'!R114*(1+SUM('Sup Personal Indirecto'!$D$226,'Sup Personal Indirecto'!$D$242,'Sup Personal Indirecto'!$D$244,'Sup Personal Indirecto'!$D$245)))*12+'Sup Personal Indirecto'!$D$243*12)*'Sup Personal Indirecto'!R44*'Sup Personal Directo'!R$113","v":15328.63512703678},{"$f":"(('Sup Personal Indirecto'!S114*(1+SUM('Sup Personal Indirecto'!$D$226,'Sup Personal Indirecto'!$D$242,'Sup Personal Indirecto'!$D$244,'Sup Personal Indirecto'!$D$245)))*12+'Sup Personal Indirecto'!$D$243*12)*'Sup Personal Indirecto'!S44*'Sup Personal Directo'!S$113","v":15663.750269209158},{"$f":"(('Sup Personal Indirecto'!T114*(1+SUM('Sup Personal Indirecto'!$D$226,'Sup Personal Indirecto'!$D$242,'Sup Personal Indirecto'!$D$244,'Sup Personal Indirecto'!$D$245)))*12+'Sup Personal Indirecto'!$D$243*12)*'Sup Personal Indirecto'!T44*'Sup Personal Directo'!T$113","v":15999.082905875717},{"$f":"(('Sup Personal Indirecto'!U114*(1+SUM('Sup Personal Indirecto'!$D$226,'Sup Personal Indirecto'!$D$242,'Sup Personal Indirecto'!$D$244,'Sup Personal Indirecto'!$D$245)))*12+'Sup Personal Indirecto'!$D$243*12)*'Sup Personal Indirecto'!U44*'Sup Personal Directo'!U$113","v":16339.056687565186},{"$f":"(('Sup Personal Indirecto'!V114*(1+SUM('Sup Personal Indirecto'!$D$226,'Sup Personal Indirecto'!$D$242,'Sup Personal Indirecto'!$D$244,'Sup Personal Indirecto'!$D$245)))*12+'Sup Personal Indirecto'!$D$243*12)*'Sup Personal Indirecto'!V44*'Sup Personal Directo'!V$113","v":16685.768290947162},{"$f":"(('Sup Personal Indirecto'!W114*(1+SUM('Sup Personal Indirecto'!$D$226,'Sup Personal Indirecto'!$D$242,'Sup Personal Indirecto'!$D$244,'Sup Personal Indirecto'!$D$245)))*12+'Sup Personal Indirecto'!$D$243*12)*'Sup Personal Indirecto'!W44*'Sup Personal Directo'!W$113","v":17039.966493485736}]
[null,null,"Sistemas & Soporte",{"$f":"(('Sup Personal Indirecto'!D115*(1+SUM('Sup Personal Indirecto'!$D$226,'Sup Personal Indirecto'!$D$242,'Sup Personal Indirecto'!$D$244,'Sup Personal Indirecto'!$D$245)))*12+'Sup Personal Indirecto'!$D$243*12)*'Sup Personal Indirecto'!D45*'Sup Personal Directo'!D$113","v":3620.4918032786904},{"$f":"(('Sup Personal Indirecto'!E115*(1+SUM('Sup Personal Indirecto'!$D$226,'Sup Personal Indirecto'!$D$242,'Sup Personal Indirecto'!$D$244,'Sup Personal Indirecto'!$D$245)))*12+'Sup Personal Indirecto'!$D$243*12)*'Sup Personal Indirecto'!E45*'Sup Personal Directo'!E$113","v":3707.8470295081979},{"$f":"(('Sup Personal Indirecto'!F115*(1+SUM('Sup Personal Indirecto'!$D$226,'Sup Personal Indirecto'!$D$242,'Sup Personal Indirecto'!$D$244,'Sup Personal Indirecto'!$D$245)))*12+'Sup Personal Indirecto'!$D$243*12)*'Sup Personal Indirecto'!F45*'Sup Personal Directo'!F$113","v":3834.685060693615},{"$f":"(('Sup Personal Indirecto'!G115*(1+SUM('Sup Personal Indirecto'!$D$226,'Sup Personal Indirecto'!$D$242,'Sup Personal Indirecto'!$D$244,'Sup Personal Indirecto'!$D$245)))*12+'Sup Personal Indirecto'!$D$243*12)*'Sup Personal Indirecto'!G45*'Sup Personal Directo'!G$113","v":3882.0609073570581},{"$f":"(('Sup Personal Indirecto'!H115*(1+SUM('Sup Personal Indirecto'!$D$226,'Sup Personal Indirecto'!$D$242,'Sup Personal Indirecto'!$D$244,'Sup Personal Indirecto'!$D$245)))*12+'Sup Personal Indirecto'!$D$243*12)*'Sup Personal Indirecto'!H45*'Sup Personal Directo'!H$113","v":3923.6828115813773},{"$f":"(('Sup Personal Indirecto'!I115*(1+SUM('Sup Personal Indirecto'!$D$226,'Sup Personal Indirecto'!$D$242,'Sup Personal Indirecto'!$D$244,'Sup Personal Indirecto'!$D$245)))*12+'Sup Personal Indirecto'!$D$243*12)*'Sup Personal Indirecto'!I45*'Sup Personal Directo'!I$113","v":3981.5712583103236},{"$f":"(('Sup Personal Indirecto'!J115*(1+SUM('Sup Personal Indirecto'!$D$226,'Sup Personal Indirecto'!$D$242,'Sup Personal Indirecto'!$D$244,'Sup Personal Indirecto'!$D$245)))*12+'Sup Personal Indirecto'!$D$243*12)*'Sup Personal Indirecto'!J45*'Sup Personal Directo'!J$113","v":4091.3294016653858},{"$f":"(('Sup Personal Indirecto'!K115*(1+SUM('Sup Personal Indirecto'!$D$226,'Sup Personal Indirecto'!$D$242,'Sup Personal Indirecto'!$D$244,'Sup Personal Indirecto'!$D$245)))*12+'Sup Personal Indirecto'!$D$243*12)*'Sup Personal Indirecto'!K45*'Sup Personal Directo'!K$113","v":4195.6285881280737},{"$f":"(('Sup Personal Indirecto'!L115*(1+SUM('Sup Personal Indirecto'!$D$226,'Sup Personal Indirecto'!$D$242,'Sup Personal Indirecto'!$D$244,'Sup Personal Indirecto'!$D$245)))*12+'Sup Personal Indirecto'!$D$243*12)*'Sup Personal Indirecto'!L45*'Sup Personal Directo'!L$113","v":4290.7734017416378},{"$f":"(('Sup Personal Indirecto'!M115*(1+SUM('Sup Personal Indirecto'!$D$226,'Sup Personal Indirecto'!$D$242,'Sup Personal Indirecto'!$D$244,'Sup Personal Indirecto'!$D$245)))*12+'Sup Personal Indirecto'!$D$243*12)*'Sup Personal Indirecto'!M45*'Sup Personal Directo'!M$113","v":4382.9725575753719},{"$f":"(('Sup Personal Indirecto'!N115*(1+SUM('Sup Personal Indirecto'!$D$226,'Sup Personal Indirecto'!$D$242,'Sup Personal Indirecto'!$D$244,'Sup Personal Indirecto'!$D$245)))*12+'Sup Personal Indirecto'!$D$243*12)*'Sup Personal Indirecto'!N45*'Sup Personal Directo'!N$113","v":4475.7063612844577},{"$f":"(('Sup Personal Indirecto'!O115*(1+SUM('Sup Personal Indirecto'!$D$226,'Sup Personal Indirecto'!$D$242,'Sup Personal Indirecto'!$D$244,'Sup Personal Indirecto'!$D$245)))*12+'Sup Personal Indirecto'!$D$243*12)*'Sup Personal Indirecto'!O45*'Sup Personal Directo'!O$113","v":4563.1010627137794},{"$f":"(('Sup Personal Indirecto'!P115*(1+SUM('Sup Personal Indirecto'!$D$226,'Sup Personal Indirecto'!$D$242,'Sup Personal Indirecto'!$D$244,'Sup Personal Indirecto'!$D$245)))*12+'Sup Personal Indirecto'!$D$243*12)*'Sup Personal Indirecto'!P45*'Sup Personal Directo'!P$113","v":4656.2930363772375},{"$f":"(('Sup Personal Indirecto'!Q115*(1+SUM('Sup Personal Indirecto'!$D$226,'Sup Personal Indirecto'!$D$242,'Sup Personal Indirecto'!$D$244,'Sup Personal Indirecto'!$D$245)))*12+'Sup Personal Indirecto'!$D$243*12)*'Sup Personal Indirecto'!Q45*'Sup Personal Directo'!Q$113","v":4757.0348044601296},{"$f":"(('Sup Personal Indirecto'!R115*(1+SUM('Sup Personal Indirecto'!$D$226,'Sup Personal Indirecto'!$D$242,'Sup Personal Indirecto'!$D$244,'Sup Personal Indirecto'!$D$245)))*12+'Sup Personal Indirecto'!$D$243*12)*'Sup Personal Indirecto'!R45*'Sup Personal Directo'!R$113","v":4864.0484314517062},{"$f":"(('Sup Personal Indirecto'!S115*(1+SUM('Sup Personal Indirecto'!$D$226,'Sup Personal Indirecto'!$D$242,'Sup Personal Indirecto'!$D$244,'Sup Personal Indirecto'!$D$245)))*12+'Sup Personal Indirecto'!$D$243*12)*'Sup Personal Indirecto'!S45*'Sup Personal Directo'!S$113","v":4970.3864235906303},{"$f":"(('Sup Personal Indirecto'!T115*(1+SUM('Sup Personal Indirecto'!$D$226,'Sup Personal Indirecto'!$D$242,'Sup Personal Indirecto'!$D$244,'Sup Personal Indirecto'!$D$245)))*12+'Sup Personal Indirecto'!$D$243*12)*'Sup Personal Indirecto'!T45*'Sup Personal Directo'!T$113","v":5076.7934305990784},{"$f":"(('Sup Personal Indirecto'!U115*(1+SUM('Sup Personal Indirecto'!$D$226,'Sup Personal Indirecto'!$D$242,'Sup Personal Indirecto'!$D$244,'Sup Personal Indirecto'!$D$245)))*12+'Sup Personal Indirecto'!$D$243*12)*'Sup Personal Indirecto'!U45*'Sup Personal Directo'!U$113","v":5184.6731554315029},{"$f":"(('Sup Personal Indirecto'!V115*(1+SUM('Sup Personal Indirecto'!$D$226,'Sup Personal Indirecto'!$D$242,'Sup Personal Indirecto'!$D$244,'Sup Personal Indirecto'!$D$245)))*12+'Sup Personal Indirecto'!$D$243*12)*'Sup Personal Indirecto'!V45*'Sup Personal Directo'!V$113","v":5294.6909108689506},{"$f":"(('Sup Personal Indirecto'!W115*(1+SUM('Sup Personal Indirecto'!$D$226,'Sup Personal Indirecto'!$D$242,'Sup Personal Indirecto'!$D$244,'Sup Personal Indirecto'!$D$245)))*12+'Sup Personal Indirecto'!$D$243*12)*'Sup Personal Indirecto'!W45*'Sup Personal Directo'!W$113","v":5407.0842973122099}]
[]
[null,null,"OPERADOR PÚBLICO"]
[null,{"$f":"'Sup Personal Indirecto'!B188","v":"a) Área 1"}]
[null,null,{"$f":"'Sup Personal Indirecto'!C189","v":"Cargo 1"},{"$f":"(('Sup Personal Indirecto'!D119*(1+SUM('Sup Personal Indirecto'!$D$234,'Sup Personal Indirecto'!$D$242,'Sup Personal Indirecto'!$D$244,'Sup Personal Indirecto'!$D$245)))*12+'Sup Personal Indirecto'!$D$243*12)*'Sup Personal Indirecto'!D49*'Sup Personal Directo'!D$113","v":0},{"$f":"(('Sup Personal Indirecto'!E119*(1+SUM('Sup Personal Indirecto'!$D$234,'Sup Personal Indirecto'!$D$242,'Sup Personal Indirecto'!$D$244,'Sup Personal Indirecto'!$D$245)))*12+'Sup Personal Indirecto'!$D$243*12)*'Sup Personal Indirecto'!E49*'Sup Personal Directo'!E$113","v":0},{"$f":"(('Sup Personal Indirecto'!F119*(1+SUM('Sup Personal Indirecto'!$D$234,'Sup Personal Indirecto'!$D$242,'Sup Personal Indirecto'!$D$244,'Sup Personal Indirecto'!$D$245)))*12+'Sup Personal Indirecto'!$D$243*12)*'Sup Personal Indirecto'!F49*'Sup Personal Directo'!F$113","v":0},{"$f":"(('Sup Personal Indirecto'!G119*(1+SUM('Sup Personal Indirecto'!$D$234,'Sup Personal Indirecto'!$D$242,'Sup Personal Indirecto'!$D$244,'Sup Personal Indirecto'!$D$245)))*12+'Sup Personal Indirecto'!$D$243*12)*'Sup Personal Indirecto'!G49*'Sup Personal Directo'!G$113","v":0},{"$f":"(('Sup Personal Indirecto'!H119*(1+SUM('Sup Personal Indirecto'!$D$234,'Sup Personal Indirecto'!$D$242,'Sup Personal Indirecto'!$D$244,'Sup Personal Indirecto'!$D$245)))*12+'Sup Personal Indirecto'!$D$243*12)*'Sup Personal Indirecto'!H49*'Sup Personal Directo'!H$113","v":0},{"$f":"(('Sup Personal Indirecto'!I119*(1+SUM('Sup Personal Indirecto'!$D$234,'Sup Personal Indirecto'!$D$242,'Sup Personal Indirecto'!$D$244,'Sup Personal Indirecto'!$D$245)))*12+'Sup Personal Indirecto'!$D$243*12)*'Sup Personal Indirecto'!I49*'Sup Personal Directo'!I$113","v":0},{"$f":"(('Sup Personal Indirecto'!J119*(1+SUM('Sup Personal Indirecto'!$D$234,'Sup Personal Indirecto'!$D$242,'Sup Personal Indirecto'!$D$244,'Sup Personal Indirecto'!$D$245)))*12+'Sup Personal Indirecto'!$D$243*12)*'Sup Personal Indirecto'!J49*'Sup Personal Directo'!J$113","v":0},{"$f":"(('Sup Personal Indirecto'!K119*(1+SUM('Sup Personal Indirecto'!$D$234,'Sup Personal Indirecto'!$D$242,'Sup Personal Indirecto'!$D$244,'Sup Personal Indirecto'!$D$245)))*12+'Sup Personal Indirecto'!$D$243*12)*'Sup Personal Indirecto'!K49*'Sup Personal Directo'!K$113","v":0},{"$f":"(('Sup Personal Indirecto'!L119*(1+SUM('Sup Personal Indirecto'!$D$234,'Sup Personal Indirecto'!$D$242,'Sup Personal Indirecto'!$D$244,'Sup Personal Indirecto'!$D$245)))*12+'Sup Personal Indirecto'!$D$243*12)*'Sup Personal Indirecto'!L49*'Sup Personal Directo'!L$113","v":0},{"$f":"(('Sup Personal Indirecto'!M119*(1+SUM('Sup Personal Indirecto'!$D$234,'Sup Personal Indirecto'!$D$242,'Sup Personal Indirecto'!$D$244,'Sup Personal Indirecto'!$D$245)))*12+'Sup Personal Indirecto'!$D$243*12)*'Sup Personal Indirecto'!M49*'Sup Personal Directo'!M$113","v":0},{"$f":"(('Sup Personal Indirecto'!N119*(1+SUM('Sup Personal Indirecto'!$D$234,'Sup Personal Indirecto'!$D$242,'Sup Personal Indirecto'!$D$244,'Sup Personal Indirecto'!$D$245)))*12+'Sup Personal Indirecto'!$D$243*12)*'Sup Personal Indirecto'!N49*'Sup Personal Directo'!N$113","v":0},{"$f":"(('Sup Personal Indirecto'!O119*(1+SUM('Sup Personal Indirecto'!$D$234,'Sup Personal Indirecto'!$D$242,'Sup Personal Indirecto'!$D$244,'Sup Personal Indirecto'!$D$245)))*12+'Sup Personal Indirecto'!$D$243*12)*'Sup Personal Indirecto'!O49*'Sup Personal Directo'!O$113","v":0},{"$f":"(('Sup Personal Indirecto'!P119*(1+SUM('Sup Personal Indirecto'!$D$234,'Sup Personal Indirecto'!$D$242,'Sup Personal Indirecto'!$D$244,'Sup Personal Indirecto'!$D$245)))*12+'Sup Personal Indirecto'!$D$243*12)*'Sup Personal Indirecto'!P49*'Sup Personal Directo'!P$113","v":0},{"$f":"(('Sup Personal Indirecto'!Q119*(1+SUM('Sup Personal Indirecto'!$D$234,'Sup Personal Indirecto'!$D$242,'Sup Personal Indirecto'!$D$244,'Sup Personal Indirecto'!$D$245)))*12+'Sup Personal Indirecto'!$D$243*12)*'Sup Personal Indirecto'!Q49*'Sup Personal Directo'!Q$113","v":0},{"$f":"(('Sup Personal Indirecto'!R119*(1+SUM('Sup Personal Indirecto'!$D$234,'Sup Personal Indirecto'!$D$242,'Sup Personal Indirecto'!$D$244,'Sup Personal Indirecto'!$D$245)))*12+'Sup Personal Indirecto'!$D$243*12)*'Sup Personal Indirecto'!R49*'Sup Personal Directo'!R$113","v":0},{"$f":"(('Sup Personal Indirecto'!S119*(1+SUM('Sup Personal Indirecto'!$D$234,'Sup Personal Indirecto'!$D$242,'Sup Personal Indirecto'!$D$244,'Sup Personal Indirecto'!$D$245)))*12+'Sup Personal Indirecto'!$D$243*12)*'Sup Personal Indirecto'!S49*'Sup Personal Directo'!S$113","v":0},{"$f":"(('Sup Personal Indirecto'!T119*(1+SUM('Sup Personal Indirecto'!$D$234,'Sup Personal Indirecto'!$D$242,'Sup Personal Indirecto'!$D$244,'Sup Personal Indirecto'!$D$245)))*12+'Sup Personal Indirecto'!$D$243*12)*'Sup Personal Indirecto'!T49*'Sup Personal Directo'!T$113","v":0},{"$f":"(('Sup Personal Indirecto'!U119*(1+SUM('Sup Personal Indirecto'!$D$234,'Sup Personal Indirecto'!$D$242,'Sup Personal Indirecto'!$D$244,'Sup Personal Indirecto'!$D$245)))*12+'Sup Personal Indirecto'!$D$243*12)*'Sup Personal Indirecto'!U49*'Sup Personal Directo'!U$113","v":0},{"$f":"(('Sup Personal Indirecto'!V119*(1+SUM('Sup Personal Indirecto'!$D$234,'Sup Personal Indirecto'!$D$242,'Sup Personal Indirecto'!$D$244,'Sup Personal Indirecto'!$D$245)))*12+'Sup Personal Indirecto'!$D$243*12)*'Sup Personal Indirecto'!V49*'Sup Personal Directo'!V$113","v":0},{"$f":"(('Sup Personal Indirecto'!W119*(1+SUM('Sup Personal Indirecto'!$D$234,'Sup Personal Indirecto'!$D$242,'Sup Personal Indirecto'!$D$244,'Sup Personal Indirecto'!$D$245)))*12+'Sup Personal Indirecto'!$D$243*12)*'Sup Personal Indirecto'!W49*'Sup Personal Directo'!W$113","v":0}]
[null,null,{"$f":"'Sup Personal Indirecto'!C190","v":"Cargo 2"},{"$f":"(('Sup Personal Indirecto'!D120*(1+SUM('Sup Personal Indirecto'!$D$234,'Sup Personal Indirecto'!$D$242,'Sup Personal Indirecto'!$D$244,'Sup Personal Indirecto'!$D$245)))*12+'Sup Personal Indirecto'!$D$243*12)*'Sup Personal Indirecto'!D50*'Sup Personal Directo'!D$113","v":0},{"$f":"(('Sup Personal Indirecto'!E120*(1+SUM('Sup Personal Indirecto'!$D$234,'Sup Personal Indirecto'!$D$242,'Sup Personal Indirecto'!$D$244,'Sup Personal Indirecto'!$D$245)))*12+'Sup Personal Indirecto'!$D$243*12)*'Sup Personal Indirecto'!E50*'Sup Personal Directo'!E$113","v":0},{"$f":"(('Sup Personal Indirecto'!F120*(1+SUM('Sup Personal Indirecto'!$D$234,'Sup Personal Indirecto'!$D$242,'Sup Personal Indirecto'!$D$244,'Sup Personal Indirecto'!$D$245)))*12+'Sup Personal Indirecto'!$D$243*12)*'Sup Personal Indirecto'!F50*'Sup Personal Directo'!F$113","v":0},{"$f":"(('Sup Personal Indirecto'!G120*(1+SUM('Sup Personal Indirecto'!$D$234,'Sup Personal Indirecto'!$D$242,'Sup Personal Indirecto'!$D$244,'Sup Personal Indirecto'!$D$245)))*12+'Sup Personal Indirecto'!$D$243*12)*'Sup Personal Indirecto'!G50*'Sup Personal Directo'!G$113","v":0},{"$f":"(('Sup Personal Indirecto'!H120*(1+SUM('Sup Personal Indirecto'!$D$234,'Sup Personal Indirecto'!$D$242,'Sup Personal Indirecto'!$D$244,'Sup Personal Indirecto'!$D$245)))*12+'Sup Personal Indirecto'!$D$243*12)*'Sup Personal Indirecto'!H50*'Sup Personal Directo'!H$113","v":0},{"$f":"(('Sup Personal Indirecto'!I120*(1+SUM('Sup Personal Indirecto'!$D$234,'Sup Personal Indirecto'!$D$242,'Sup Personal Indirecto'!$D$244,'Sup Personal Indirecto'!$D$245)))*12+'Sup Personal Indirecto'!$D$243*12)*'Sup Personal Indirecto'!I50*'Sup Personal Directo'!I$113","v":0},{"$f":"(('Sup Personal Indirecto'!J120*(1+SUM('Sup Personal Indirecto'!$D$234,'Sup Personal Indirecto'!$D$242,'Sup Personal Indirecto'!$D$244,'Sup Personal Indirecto'!$D$245)))*12+'Sup Personal Indirecto'!$D$243*12)*'Sup Personal Indirecto'!J50*'Sup Personal Directo'!J$113","v":0},{"$f":"(('Sup Personal Indirecto'!K120*(1+SUM('Sup Personal Indirecto'!$D$234,'Sup Personal Indirecto'!$D$242,'Sup Personal Indirecto'!$D$244,'Sup Personal Indirecto'!$D$245)))*12+'Sup Personal Indirecto'!$D$243*12)*'Sup Personal Indirecto'!K50*'Sup Personal Directo'!K$113","v":0},{"$f":"(('Sup Personal Indirecto'!L120*(1+SUM('Sup Personal Indirecto'!$D$234,'Sup Personal Indirecto'!$D$242,'Sup Personal Indirecto'!$D$244,'Sup Personal Indirecto'!$D$245)))*12+'Sup Personal Indirecto'!$D$243*12)*'Sup Personal Indirecto'!L50*'Sup Personal Directo'!L$113","v":0},{"$f":"(('Sup Personal Indirecto'!M120*(1+SUM('Sup Personal Indirecto'!$D$234,'Sup Personal Indirecto'!$D$242,'Sup Personal Indirecto'!$D$244,'Sup Personal Indirecto'!$D$245)))*12+'Sup Personal Indirecto'!$D$243*12)*'Sup Personal Indirecto'!M50*'Sup Personal Directo'!M$113","v":0},{"$f":"(('Sup Personal Indirecto'!N120*(1+SUM('Sup Personal Indirecto'!$D$234,'Sup Personal Indirecto'!$D$242,'Sup Personal Indirecto'!$D$244,'Sup Personal Indirecto'!$D$245)))*12+'Sup Personal Indirecto'!$D$243*12)*'Sup Personal Indirecto'!N50*'Sup Personal Directo'!N$113","v":0},{"$f":"(('Sup Personal Indirecto'!O120*(1+SUM('Sup Personal Indirecto'!$D$234,'Sup Personal Indirecto'!$D$242,'Sup Personal Indirecto'!$D$244,'Sup Personal Indirecto'!$D$245)))*12+'Sup Personal Indirecto'!$D$243*12)*'Sup Personal Indirecto'!O50*'Sup Personal Directo'!O$113","v":0},{"$f":"(('Sup Personal Indirecto'!P120*(1+SUM('Sup Personal Indirecto'!$D$234,'Sup Personal Indirecto'!$D$242,'Sup Personal Indirecto'!$D$244,'Sup Personal Indirecto'!$D$245)))*12+'Sup Personal Indirecto'!$D$243*12)*'Sup Personal Indirecto'!P50*'Sup Personal Directo'!P$113","v":0},{"$f":"(('Sup Personal Indirecto'!Q120*(1+SUM('Sup Personal Indirecto'!$D$234,'Sup Personal Indirecto'!$D$242,'Sup Personal Indirecto'!$D$244,'Sup Personal Indirecto'!$D$245)))*12+'Sup Personal Indirecto'!$D$243*12)*'Sup Personal Indirecto'!Q50*'Sup Personal Directo'!Q$113","v":0},{"$f":"(('Sup Personal Indirecto'!R120*(1+SUM('Sup Personal Indirecto'!$D$234,'Sup Personal Indirecto'!$D$242,'Sup Personal Indirecto'!$D$244,'Sup Personal Indirecto'!$D$245)))*12+'Sup Personal Indirecto'!$D$243*12)*'Sup Personal Indirecto'!R50*'Sup Personal Directo'!R$113","v":0},{"$f":"(('Sup Personal Indirecto'!S120*(1+SUM('Sup Personal Indirecto'!$D$234,'Sup Personal Indirecto'!$D$242,'Sup Personal Indirecto'!$D$244,'Sup Personal Indirecto'!$D$245)))*12+'Sup Personal Indirecto'!$D$243*12)*'Sup Personal Indirecto'!S50*'Sup Personal Directo'!S$113","v":0},{"$f":"(('Sup Personal Indirecto'!T120*(1+SUM('Sup Personal Indirecto'!$D$234,'Sup Personal Indirecto'!$D$242,'Sup Personal Indirecto'!$D$244,'Sup Personal Indirecto'!$D$245)))*12+'Sup Personal Indirecto'!$D$243*12)*'Sup Personal Indirecto'!T50*'Sup Personal Directo'!T$113","v":0},{"$f":"(('Sup Personal Indirecto'!U120*(1+SUM('Sup Personal Indirecto'!$D$234,'Sup Personal Indirecto'!$D$242,'Sup Personal Indirecto'!$D$244,'Sup Personal Indirecto'!$D$245)))*12+'Sup Personal Indirecto'!$D$243*12)*'Sup Personal Indirecto'!U50*'Sup Personal Directo'!U$113","v":0},{"$f":"(('Sup Personal Indirecto'!V120*(1+SUM('Sup Personal Indirecto'!$D$234,'Sup Personal Indirecto'!$D$242,'Sup Personal Indirecto'!$D$244,'Sup Personal Indirecto'!$D$245)))*12+'Sup Personal Indirecto'!$D$243*12)*'Sup Personal Indirecto'!V50*'Sup Personal Directo'!V$113","v":0},{"$f":"(('Sup Personal Indirecto'!W120*(1+SUM('Sup Personal Indirecto'!$D$234,'Sup Personal Indirecto'!$D$242,'Sup Personal Indirecto'!$D$244,'Sup Personal Indirecto'!$D$245)))*12+'Sup Personal Indirecto'!$D$243*12)*'Sup Personal Indirecto'!W50*'Sup Personal Directo'!W$113","v":0}]
[null,{"$f":"'Sup Personal Indirecto'!B191","v":"b) Área 2"}]
[null,null,{"$f":"'Sup Personal Indirecto'!C192","v":"Cargo 1"},{"$f":"(('Sup Personal Indirecto'!D122*(1+SUM('Sup Personal Indirecto'!$D$234,'Sup Personal Indirecto'!$D$242,'Sup Personal Indirecto'!$D$244,'Sup Personal Indirecto'!$D$245)))*12+'Sup Personal Indirecto'!$D$243*12)*'Sup Personal Indirecto'!D52*'Sup Personal Directo'!D$113","v":0},{"$f":"(('Sup Personal Indirecto'!E122*(1+SUM('Sup Personal Indirecto'!$D$234,'Sup Personal Indirecto'!$D$242,'Sup Personal Indirecto'!$D$244,'Sup Personal Indirecto'!$D$245)))*12+'Sup Personal Indirecto'!$D$243*12)*'Sup Personal Indirecto'!E52*'Sup Personal Directo'!E$113","v":0},{"$f":"(('Sup Personal Indirecto'!F122*(1+SUM('Sup Personal Indirecto'!$D$234,'Sup Personal Indirecto'!$D$242,'Sup Personal Indirecto'!$D$244,'Sup Personal Indirecto'!$D$245)))*12+'Sup Personal Indirecto'!$D$243*12)*'Sup Personal Indirecto'!F52*'Sup Personal Directo'!F$113","v":0},{"$f":"(('Sup Personal Indirecto'!G122*(1+SUM('Sup Personal Indirecto'!$D$234,'Sup Personal Indirecto'!$D$242,'Sup Personal Indirecto'!$D$244,'Sup Personal Indirecto'!$D$245)))*12+'Sup Personal Indirecto'!$D$243*12)*'Sup Personal Indirecto'!G52*'Sup Personal Directo'!G$113","v":0},{"$f":"(('Sup Personal Indirecto'!H122*(1+SUM('Sup Personal Indirecto'!$D$234,'Sup Personal Indirecto'!$D$242,'Sup Personal Indirecto'!$D$244,'Sup Personal Indirecto'!$D$245)))*12+'Sup Personal Indirecto'!$D$243*12)*'Sup Personal Indirecto'!H52*'Sup Personal Directo'!H$113","v":0},{"$f":"(('Sup Personal Indirecto'!I122*(1+SUM('Sup Personal Indirecto'!$D$234,'Sup Personal Indirecto'!$D$242,'Sup Personal Indirecto'!$D$244,'Sup Personal Indirecto'!$D$245)))*12+'Sup Personal Indirecto'!$D$243*12)*'Sup Personal Indirecto'!I52*'Sup Personal Directo'!I$113","v":0},{"$f":"(('Sup Personal Indirecto'!J122*(1+SUM('Sup Personal Indirecto'!$D$234,'Sup Personal Indirecto'!$D$242,'Sup Personal Indirecto'!$D$244,'Sup Personal Indirecto'!$D$245)))*12+'Sup Personal Indirecto'!$D$243*12)*'Sup Personal Indirecto'!J52*'Sup Personal Directo'!J$113","v":0},{"$f":"(('Sup Personal Indirecto'!K122*(1+SUM('Sup Personal Indirecto'!$D$234,'Sup Personal Indirecto'!$D$242,'Sup Personal Indirecto'!$D$244,'Sup Personal Indirecto'!$D$245)))*12+'Sup Personal Indirecto'!$D$243*12)*'Sup Personal Indirecto'!K52*'Sup Personal Directo'!K$113","v":0},{"$f":"(('Sup Personal Indirecto'!L122*(1+SUM('Sup Personal Indirecto'!$D$234,'Sup Personal Indirecto'!$D$242,'Sup Personal Indirecto'!$D$244,'Sup Personal Indirecto'!$D$245)))*12+'Sup Personal Indirecto'!$D$243*12)*'Sup Personal Indirecto'!L52*'Sup Personal Directo'!L$113","v":0},{"$f":"(('Sup Personal Indirecto'!M122*(1+SUM('Sup Personal Indirecto'!$D$234,'Sup Personal Indirecto'!$D$242,'Sup Personal Indirecto'!$D$244,'Sup Personal Indirecto'!$D$245)))*12+'Sup Personal Indirecto'!$D$243*12)*'Sup Personal Indirecto'!M52*'Sup Personal Directo'!M$113","v":0},{"$f":"(('Sup Personal Indirecto'!N122*(1+SUM('Sup Personal Indirecto'!$D$234,'Sup Personal Indirecto'!$D$242,'Sup Personal Indirecto'!$D$244,'Sup Personal Indirecto'!$D$245)))*12+'Sup Personal Indirecto'!$D$243*12)*'Sup Personal Indirecto'!N52*'Sup Personal Directo'!N$113","v":0},{"$f":"(('Sup Personal Indirecto'!O122*(1+SUM('Sup Personal Indirecto'!$D$234,'Sup Personal Indirecto'!$D$242,'Sup Personal Indirecto'!$D$244,'Sup Personal Indirecto'!$D$245)))*12+'Sup Personal Indirecto'!$D$243*12)*'Sup Personal Indirecto'!O52*'Sup Personal Directo'!O$113","v":0},{"$f":"(('Sup Personal Indirecto'!P122*(1+SUM('Sup Personal Indirecto'!$D$234,'Sup Personal Indirecto'!$D$242,'Sup Personal Indirecto'!$D$244,'Sup Personal Indirecto'!$D$245)))*12+'Sup Personal Indirecto'!$D$243*12)*'Sup Personal Indirecto'!P52*'Sup Personal Directo'!P$113","v":0},{"$f":"(('Sup Personal Indirecto'!Q122*(1+SUM('Sup Personal Indirecto'!$D$234,'Sup Personal Indirecto'!$D$242,'Sup Personal Indirecto'!$D$244,'Sup Personal Indirecto'!$D$245)))*12+'Sup Personal Indirecto'!$D$243*12)*'Sup Personal Indirecto'!Q52*'Sup Personal Directo'!Q$113","v":0},{"$f":"(('Sup Personal Indirecto'!R122*(1+SUM('Sup Personal Indirecto'!$D$234,'Sup Personal Indirecto'!$D$242,'Sup Personal Indirecto'!$D$244,'Sup Personal Indirecto'!$D$245)))*12+'Sup Personal Indirecto'!$D$243*12)*'Sup Personal Indirecto'!R52*'Sup Personal Directo'!R$113","v":0},{"$f":"(('Sup Personal Indirecto'!S122*(1+SUM('Sup Personal Indirecto'!$D$234,'Sup Personal Indirecto'!$D$242,'Sup Personal Indirecto'!$D$244,'Sup Personal Indirecto'!$D$245)))*12+'Sup Personal Indirecto'!$D$243*12)*'Sup Personal Indirecto'!S52*'Sup Personal Directo'!S$113","v":0},{"$f":"(('Sup Personal Indirecto'!T122*(1+SUM('Sup Personal Indirecto'!$D$234,'Sup Personal Indirecto'!$D$242,'Sup Personal Indirecto'!$D$244,'Sup Personal Indirecto'!$D$245)))*12+'Sup Personal Indirecto'!$D$243*12)*'Sup Personal Indirecto'!T52*'Sup Personal Directo'!T$113","v":0},{"$f":"(('Sup Personal Indirecto'!U122*(1+SUM('Sup Personal Indirecto'!$D$234,'Sup Personal Indirecto'!$D$242,'Sup Personal Indirecto'!$D$244,'Sup Personal Indirecto'!$D$245)))*12+'Sup Personal Indirecto'!$D$243*12)*'Sup Personal Indirecto'!U52*'Sup Personal Directo'!U$113","v":0},{"$f":"(('Sup Personal Indirecto'!V122*(1+SUM('Sup Personal Indirecto'!$D$234,'Sup Personal Indirecto'!$D$242,'Sup Personal Indirecto'!$D$244,'Sup Personal Indirecto'!$D$245)))*12+'Sup Personal Indirecto'!$D$243*12)*'Sup Personal Indirecto'!V52*'Sup Personal Directo'!V$113","v":0},{"$f":"(('Sup Personal Indirecto'!W122*(1+SUM('Sup Personal Indirecto'!$D$234,'Sup Personal Indirecto'!$D$242,'Sup Personal Indirecto'!$D$244,'Sup Personal Indirecto'!$D$245)))*12+'Sup Personal Indirecto'!$D$243*12)*'Sup Personal Indirecto'!W52*'Sup Personal Directo'!W$113","v":0}]
[null,null,{"$f":"'Sup Personal Indirecto'!C193","v":"Cargo 2"},{"$f":"(('Sup Personal Indirecto'!D123*(1+SUM('Sup Personal Indirecto'!$D$234,'Sup Personal Indirecto'!$D$242,'Sup Personal Indirecto'!$D$244,'Sup Personal Indirecto'!$D$245)))*12+'Sup Personal Indirecto'!$D$243*12)*'Sup Personal Indirecto'!D53*'Sup Personal Directo'!D$113","v":0},{"$f":"(('Sup Personal Indirecto'!E123*(1+SUM('Sup Personal Indirecto'!$D$234,'Sup Personal Indirecto'!$D$242,'Sup Personal Indirecto'!$D$244,'Sup Personal Indirecto'!$D$245)))*12+'Sup Personal Indirecto'!$D$243*12)*'Sup Personal Indirecto'!E53*'Sup Personal Directo'!E$113","v":0},{"$f":"(('Sup Personal Indirecto'!F123*(1+SUM('Sup Personal Indirecto'!$D$234,'Sup Personal Indirecto'!$D$242,'Sup Personal Indirecto'!$D$244,'Sup Personal Indirecto'!$D$245)))*12+'Sup Personal Indirecto'!$D$243*12)*'Sup Personal Indirecto'!F53*'Sup Personal Directo'!F$113","v":0},{"$f":"(('Sup Personal Indirecto'!G123*(1+SUM('Sup Personal Indirecto'!$D$234,'Sup Personal Indirecto'!$D$242,'Sup Personal Indirecto'!$D$244,'Sup Personal Indirecto'!$D$245)))*12+'Sup Personal Indirecto'!$D$243*12)*'Sup Personal Indirecto'!G53*'Sup Personal Directo'!G$113","v":0},{"$f":"(('Sup Personal Indirecto'!H123*(1+SUM('Sup Personal Indirecto'!$D$234,'Sup Personal Indirecto'!$D$242,'Sup Personal Indirecto'!$D$244,'Sup Personal Indirecto'!$D$245)))*12+'Sup Personal Indirecto'!$D$243*12)*'Sup Personal Indirecto'!H53*'Sup Personal Directo'!H$113","v":0},{"$f":"(('Sup Personal Indirecto'!I123*(1+SUM('Sup Personal Indirecto'!$D$234,'Sup Personal Indirecto'!$D$242,'Sup Personal Indirecto'!$D$244,'Sup Personal Indirecto'!$D$245)))*12+'Sup Personal Indirecto'!$D$243*12)*'Sup Personal Indirecto'!I53*'Sup Personal Directo'!I$113","v":0},{"$f":"(('Sup Personal Indirecto'!J123*(1+SUM('Sup Personal Indirecto'!$D$234,'Sup Personal Indirecto'!$D$242,'Sup Personal Indirecto'!$D$244,'Sup Personal Indirecto'!$D$245)))*12+'Sup Personal Indirecto'!$D$243*12)*'Sup Personal Indirecto'!J53*'Sup Personal Directo'!J$113","v":0},{"$f":"(('Sup Personal Indirecto'!K123*(1+SUM('Sup Personal Indirecto'!$D$234,'Sup Personal Indirecto'!$D$242,'Sup Personal Indirecto'!$D$244,'Sup Personal Indirecto'!$D$245)))*12+'Sup Personal Indirecto'!$D$243*12)*'Sup Personal Indirecto'!K53*'Sup Personal Directo'!K$113","v":0},{"$f":"(('Sup Personal Indirecto'!L123*(1+SUM('Sup Personal Indirecto'!$D$234,'Sup Personal Indirecto'!$D$242,'Sup Personal Indirecto'!$D$244,'Sup Personal Indirecto'!$D$245)))*12+'Sup Personal Indirecto'!$D$243*12)*'Sup Personal Indirecto'!L53*'Sup Personal Directo'!L$113","v":0},{"$f":"(('Sup Personal Indirecto'!M123*(1+SUM('Sup Personal Indirecto'!$D$234,'Sup Personal Indirecto'!$D$242,'Sup Personal Indirecto'!$D$244,'Sup Personal Indirecto'!$D$245)))*12+'Sup Personal Indirecto'!$D$243*12)*'Sup Personal Indirecto'!M53*'Sup Personal Directo'!M$113","v":0},{"$f":"(('Sup Personal Indirecto'!N123*(1+SUM('Sup Personal Indirecto'!$D$234,'Sup Personal Indirecto'!$D$242,'Sup Personal Indirecto'!$D$244,'Sup Personal Indirecto'!$D$245)))*12+'Sup Personal Indirecto'!$D$243*12)*'Sup Personal Indirecto'!N53*'Sup Personal Directo'!N$113","v":0},{"$f":"(('Sup Personal Indirecto'!O123*(1+SUM('Sup Personal Indirecto'!$D$234,'Sup Personal Indirecto'!$D$242,'Sup Personal Indirecto'!$D$244,'Sup Personal Indirecto'!$D$245)))*12+'Sup Personal Indirecto'!$D$243*12)*'Sup Personal Indirecto'!O53*'Sup Personal Directo'!O$113","v":0},{"$f":"(('Sup Personal Indirecto'!P123*(1+SUM('Sup Personal Indirecto'!$D$234,'Sup Personal Indirecto'!$D$242,'Sup Personal Indirecto'!$D$244,'Sup Personal Indirecto'!$D$245)))*12+'Sup Personal Indirecto'!$D$243*12)*'Sup Personal Indirecto'!P53*'Sup Personal Directo'!P$113","v":0},{"$f":"(('Sup Personal Indirecto'!Q123*(1+SUM('Sup Personal Indirecto'!$D$234,'Sup Personal Indirecto'!$D$242,'Sup Personal Indirecto'!$D$244,'Sup Personal Indirecto'!$D$245)))*12+'Sup Personal Indirecto'!$D$243*12)*'Sup Personal Indirecto'!Q53*'Sup Personal Directo'!Q$113","v":0},{"$f":"(('Sup Personal Indirecto'!R123*(1+SUM('Sup Personal Indirecto'!$D$234,'Sup Personal Indirecto'!$D$242,'Sup Personal Indirecto'!$D$244,'Sup Personal Indirecto'!$D$245)))*12+'Sup Personal Indirecto'!$D$243*12)*'Sup Personal Indirecto'!R53*'Sup Personal Directo'!R$113","v":0},{"$f":"(('Sup Personal Indirecto'!S123*(1+SUM('Sup Personal Indirecto'!$D$234,'Sup Personal Indirecto'!$D$242,'Sup Personal Indirecto'!$D$244,'Sup Personal Indirecto'!$D$245)))*12+'Sup Personal Indirecto'!$D$243*12)*'Sup Personal Indirecto'!S53*'Sup Personal Directo'!S$113","v":0},{"$f":"(('Sup Personal Indirecto'!T123*(1+SUM('Sup Personal Indirecto'!$D$234,'Sup Personal Indirecto'!$D$242,'Sup Personal Indirecto'!$D$244,'Sup Personal Indirecto'!$D$245)))*12+'Sup Personal Indirecto'!$D$243*12)*'Sup Personal Indirecto'!T53*'Sup Personal Directo'!T$113","v":0},{"$f":"(('Sup Personal Indirecto'!U123*(1+SUM('Sup Personal Indirecto'!$D$234,'Sup Personal Indirecto'!$D$242,'Sup Personal Indirecto'!$D$244,'Sup Personal Indirecto'!$D$245)))*12+'Sup Personal Indirecto'!$D$243*12)*'Sup Personal Indirecto'!U53*'Sup Personal Directo'!U$113","v":0},{"$f":"(('Sup Personal Indirecto'!V123*(1+SUM('Sup Personal Indirecto'!$D$234,'Sup Personal Indirecto'!$D$242,'Sup Personal Indirecto'!$D$244,'Sup Personal Indirecto'!$D$245)))*12+'Sup Personal Indirecto'!$D$243*12)*'Sup Personal Indirecto'!V53*'Sup Personal Directo'!V$113","v":0},{"$f":"(('Sup Personal Indirecto'!W123*(1+SUM('Sup Personal Indirecto'!$D$234,'Sup Personal Indirecto'!$D$242,'Sup Personal Indirecto'!$D$244,'Sup Personal Indirecto'!$D$245)))*12+'Sup Personal Indirecto'!$D$243*12)*'Sup Personal Indirecto'!W53*'Sup Personal Directo'!W$113","v":0}]
[null,null,{"$f":"'Sup Personal Indirecto'!C194","v":"Cargo 3"},{"$f":"(('Sup Personal Indirecto'!D124*(1+SUM('Sup Personal Indirecto'!$D$234,'Sup Personal Indirecto'!$D$242,'Sup Personal Indirecto'!$D$244,'Sup Personal Indirecto'!$D$245)))*12+'Sup Personal Indirecto'!$D$243*12)*'Sup Personal Indirecto'!D54*'Sup Personal Directo'!D$113","v":0},{"$f":"(('Sup Personal Indirecto'!E124*(1+SUM('Sup Personal Indirecto'!$D$234,'Sup Personal Indirecto'!$D$242,'Sup Personal Indirecto'!$D$244,'Sup Personal Indirecto'!$D$245)))*12+'Sup Personal Indirecto'!$D$243*12)*'Sup Personal Indirecto'!E54*'Sup Personal Directo'!E$113","v":0},{"$f":"(('Sup Personal Indirecto'!F124*(1+SUM('Sup Personal Indirecto'!$D$234,'Sup Personal Indirecto'!$D$242,'Sup Personal Indirecto'!$D$244,'Sup Personal Indirecto'!$D$245)))*12+'Sup Personal Indirecto'!$D$243*12)*'Sup Personal Indirecto'!F54*'Sup Personal Directo'!F$113","v":0},{"$f":"(('Sup Personal Indirecto'!G124*(1+SUM('Sup Personal Indirecto'!$D$234,'Sup Personal Indirecto'!$D$242,'Sup Personal Indirecto'!$D$244,'Sup Personal Indirecto'!$D$245)))*12+'Sup Personal Indirecto'!$D$243*12)*'Sup Personal Indirecto'!G54*'Sup Personal Directo'!G$113","v":0},{"$f":"(('Sup Personal Indirecto'!H124*(1+SUM('Sup Personal Indirecto'!$D$234,'Sup Personal Indirecto'!$D$242,'Sup Personal Indirecto'!$D$244,'Sup Personal Indirecto'!$D$245)))*12+'Sup Personal Indirecto'!$D$243*12)*'Sup Personal Indirecto'!H54*'Sup Personal Directo'!H$113","v":0},{"$f":"(('Sup Personal Indirecto'!I124*(1+SUM('Sup Personal Indirecto'!$D$234,'Sup Personal Indirecto'!$D$242,'Sup Personal Indirecto'!$D$244,'Sup Personal Indirecto'!$D$245)))*12+'Sup Personal Indirecto'!$D$243*12)*'Sup Personal Indirecto'!I54*'Sup Personal Directo'!I$113","v":0},{"$f":"(('Sup Personal Indirecto'!J124*(1+SUM('Sup Personal Indirecto'!$D$234,'Sup Personal Indirecto'!$D$242,'Sup Personal Indirecto'!$D$244,'Sup Personal Indirecto'!$D$245)))*12+'Sup Personal Indirecto'!$D$243*12)*'Sup Personal Indirecto'!J54*'Sup Personal Directo'!J$113","v":0},{"$f":"(('Sup Personal Indirecto'!K124*(1+SUM('Sup Personal Indirecto'!$D$234,'Sup Personal Indirecto'!$D$242,'Sup Personal Indirecto'!$D$244,'Sup Personal Indirecto'!$D$245)))*12+'Sup Personal Indirecto'!$D$243*12)*'Sup Personal Indirecto'!K54*'Sup Personal Directo'!K$113","v":0},{"$f":"(('Sup Personal Indirecto'!L124*(1+SUM('Sup Personal Indirecto'!$D$234,'Sup Personal Indirecto'!$D$242,'Sup Personal Indirecto'!$D$244,'Sup Personal Indirecto'!$D$245)))*12+'Sup Personal Indirecto'!$D$243*12)*'Sup Personal Indirecto'!L54*'Sup Personal Directo'!L$113","v":0},{"$f":"(('Sup Personal Indirecto'!M124*(1+SUM('Sup Personal Indirecto'!$D$234,'Sup Personal Indirecto'!$D$242,'Sup Personal Indirecto'!$D$244,'Sup Personal Indirecto'!$D$245)))*12+'Sup Personal Indirecto'!$D$243*12)*'Sup Personal Indirecto'!M54*'Sup Personal Directo'!M$113","v":0},{"$f":"(('Sup Personal Indirecto'!N124*(1+SUM('Sup Personal Indirecto'!$D$234,'Sup Personal Indirecto'!$D$242,'Sup Personal Indirecto'!$D$244,'Sup Personal Indirecto'!$D$245)))*12+'Sup Personal Indirecto'!$D$243*12)*'Sup Personal Indirecto'!N54*'Sup Personal Directo'!N$113","v":0},{"$f":"(('Sup Personal Indirecto'!O124*(1+SUM('Sup Personal Indirecto'!$D$234,'Sup Personal Indirecto'!$D$242,'Sup Personal Indirecto'!$D$244,'Sup Personal Indirecto'!$D$245)))*12+'Sup Personal Indirecto'!$D$243*12)*'Sup Personal Indirecto'!O54*'Sup Personal Directo'!O$113","v":0},{"$f":"(('Sup Personal Indirecto'!P124*(1+SUM('Sup Personal Indirecto'!$D$234,'Sup Personal Indirecto'!$D$242,'Sup Personal Indirecto'!$D$244,'Sup Personal Indirecto'!$D$245)))*12+'Sup Personal Indirecto'!$D$243*12)*'Sup Personal Indirecto'!P54*'Sup Personal Directo'!P$113","v":0},{"$f":"(('Sup Personal Indirecto'!Q124*(1+SUM('Sup Personal Indirecto'!$D$234,'Sup Personal Indirecto'!$D$242,'Sup Personal Indirecto'!$D$244,'Sup Personal Indirecto'!$D$245)))*12+'Sup Personal Indirecto'!$D$243*12)*'Sup Personal Indirecto'!Q54*'Sup Personal Directo'!Q$113","v":0},{"$f":"(('Sup Personal Indirecto'!R124*(1+SUM('Sup Personal Indirecto'!$D$234,'Sup Personal Indirecto'!$D$242,'Sup Personal Indirecto'!$D$244,'Sup Personal Indirecto'!$D$245)))*12+'Sup Personal Indirecto'!$D$243*12)*'Sup Personal Indirecto'!R54*'Sup Personal Directo'!R$113","v":0},{"$f":"(('Sup Personal Indirecto'!S124*(1+SUM('Sup Personal Indirecto'!$D$234,'Sup Personal Indirecto'!$D$242,'Sup Personal Indirecto'!$D$244,'Sup Personal Indirecto'!$D$245)))*12+'Sup Personal Indirecto'!$D$243*12)*'Sup Personal Indirecto'!S54*'Sup Personal Directo'!S$113","v":0},{"$f":"(('Sup Personal Indirecto'!T124*(1+SUM('Sup Personal Indirecto'!$D$234,'Sup Personal Indirecto'!$D$242,'Sup Personal Indirecto'!$D$244,'Sup Personal Indirecto'!$D$245)))*12+'Sup Personal Indirecto'!$D$243*12)*'Sup Personal Indirecto'!T54*'Sup Personal Directo'!T$113","v":0},{"$f":"(('Sup Personal Indirecto'!U124*(1+SUM('Sup Personal Indirecto'!$D$234,'Sup Personal Indirecto'!$D$242,'Sup Personal Indirecto'!$D$244,'Sup Personal Indirecto'!$D$245)))*12+'Sup Personal Indirecto'!$D$243*12)*'Sup Personal Indirecto'!U54*'Sup Personal Directo'!U$113","v":0},{"$f":"(('Sup Personal Indirecto'!V124*(1+SUM('Sup Personal Indirecto'!$D$234,'Sup Personal Indirecto'!$D$242,'Sup Personal Indirecto'!$D$244,'Sup Personal Indirecto'!$D$245)))*12+'Sup Personal Indirecto'!$D$243*12)*'Sup Personal Indirecto'!V54*'Sup Personal Directo'!V$113","v":0},{"$f":"(('Sup Personal Indirecto'!W124*(1+SUM('Sup Personal Indirecto'!$D$234,'Sup Personal Indirecto'!$D$242,'Sup Personal Indirecto'!$D$244,'Sup Personal Indirecto'!$D$245)))*12+'Sup Personal Indirecto'!$D$243*12)*'Sup Personal Indirecto'!W54*'Sup Personal Directo'!W$113","v":0}]
[null,null,{"$f":"'Sup Personal Indirecto'!C195","v":"Cargo 4"},{"$f":"(('Sup Personal Indirecto'!D125*(1+SUM('Sup Personal Indirecto'!$D$234,'Sup Personal Indirecto'!$D$242,'Sup Personal Indirecto'!$D$244,'Sup Personal Indirecto'!$D$245)))*12+'Sup Personal Indirecto'!$D$243*12)*'Sup Personal Indirecto'!D55*'Sup Personal Directo'!D$113","v":0},{"$f":"(('Sup Personal Indirecto'!E125*(1+SUM('Sup Personal Indirecto'!$D$234,'Sup Personal Indirecto'!$D$242,'Sup Personal Indirecto'!$D$244,'Sup Personal Indirecto'!$D$245)))*12+'Sup Personal Indirecto'!$D$243*12)*'Sup Personal Indirecto'!E55*'Sup Personal Directo'!E$113","v":0},{"$f":"(('Sup Personal Indirecto'!F125*(1+SUM('Sup Personal Indirecto'!$D$234,'Sup Personal Indirecto'!$D$242,'Sup Personal Indirecto'!$D$244,'Sup Personal Indirecto'!$D$245)))*12+'Sup Personal Indirecto'!$D$243*12)*'Sup Personal Indirecto'!F55*'Sup Personal Directo'!F$113","v":0},{"$f":"(('Sup Personal Indirecto'!G125*(1+SUM('Sup Personal Indirecto'!$D$234,'Sup Personal Indirecto'!$D$242,'Sup Personal Indirecto'!$D$244,'Sup Personal Indirecto'!$D$245)))*12+'Sup Personal Indirecto'!$D$243*12)*'Sup Personal Indirecto'!G55*'Sup Personal Directo'!G$113","v":0},{"$f":"(('Sup Personal Indirecto'!H125*(1+SUM('Sup Personal Indirecto'!$D$234,'Sup Personal Indirecto'!$D$242,'Sup Personal Indirecto'!$D$244,'Sup Personal Indirecto'!$D$245)))*12+'Sup Personal Indirecto'!$D$243*12)*'Sup Personal Indirecto'!H55*'Sup Personal Directo'!H$113","v":0},{"$f":"(('Sup Personal Indirecto'!I125*(1+SUM('Sup Personal Indirecto'!$D$234,'Sup Personal Indirecto'!$D$242,'Sup Personal Indirecto'!$D$244,'Sup Personal Indirecto'!$D$245)))*12+'Sup Personal Indirecto'!$D$243*12)*'Sup Personal Indirecto'!I55*'Sup Personal Directo'!I$113","v":0},{"$f":"(('Sup Personal Indirecto'!J125*(1+SUM('Sup Personal Indirecto'!$D$234,'Sup Personal Indirecto'!$D$242,'Sup Personal Indirecto'!$D$244,'Sup Personal Indirecto'!$D$245)))*12+'Sup Personal Indirecto'!$D$243*12)*'Sup Personal Indirecto'!J55*'Sup Personal Directo'!J$113","v":0},{"$f":"(('Sup Personal Indirecto'!K125*(1+SUM('Sup Personal Indirecto'!$D$234,'Sup Personal Indirecto'!$D$242,'Sup Personal Indirecto'!$D$244,'Sup Personal Indirecto'!$D$245)))*12+'Sup Personal Indirecto'!$D$243*12)*'Sup Personal Indirecto'!K55*'Sup Personal Directo'!K$113","v":0},{"$f":"(('Sup Personal Indirecto'!L125*(1+SUM('Sup Personal Indirecto'!$D$234,'Sup Personal Indirecto'!$D$242,'Sup Personal Indirecto'!$D$244,'Sup Personal Indirecto'!$D$245)))*12+'Sup Personal Indirecto'!$D$243*12)*'Sup Personal Indirecto'!L55*'Sup Personal Directo'!L$113","v":0},{"$f":"(('Sup Personal Indirecto'!M125*(1+SUM('Sup Personal Indirecto'!$D$234,'Sup Personal Indirecto'!$D$242,'Sup Personal Indirecto'!$D$244,'Sup Personal Indirecto'!$D$245)))*12+'Sup Personal Indirecto'!$D$243*12)*'Sup Personal Indirecto'!M55*'Sup Personal Directo'!M$113","v":0},{"$f":"(('Sup Personal Indirecto'!N125*(1+SUM('Sup Personal Indirecto'!$D$234,'Sup Personal Indirecto'!$D$242,'Sup Personal Indirecto'!$D$244,'Sup Personal Indirecto'!$D$245)))*12+'Sup Personal Indirecto'!$D$243*12)*'Sup Personal Indirecto'!N55*'Sup Personal Directo'!N$113","v":0},{"$f":"(('Sup Personal Indirecto'!O125*(1+SUM('Sup Personal Indirecto'!$D$234,'Sup Personal Indirecto'!$D$242,'Sup Personal Indirecto'!$D$244,'Sup Personal Indirecto'!$D$245)))*12+'Sup Personal Indirecto'!$D$243*12)*'Sup Personal Indirecto'!O55*'Sup Personal Directo'!O$113","v":0},{"$f":"(('Sup Personal Indirecto'!P125*(1+SUM('Sup Personal Indirecto'!$D$234,'Sup Personal Indirecto'!$D$242,'Sup Personal Indirecto'!$D$244,'Sup Personal Indirecto'!$D$245)))*12+'Sup Personal Indirecto'!$D$243*12)*'Sup Personal Indirecto'!P55*'Sup Personal Directo'!P$113","v":0},{"$f":"(('Sup Personal Indirecto'!Q125*(1+SUM('Sup Personal Indirecto'!$D$234,'Sup Personal Indirecto'!$D$242,'Sup Personal Indirecto'!$D$244,'Sup Personal Indirecto'!$D$245)))*12+'Sup Personal Indirecto'!$D$243*12)*'Sup Personal Indirecto'!Q55*'Sup Personal Directo'!Q$113","v":0},{"$f":"(('Sup Personal Indirecto'!R125*(1+SUM('Sup Personal Indirecto'!$D$234,'Sup Personal Indirecto'!$D$242,'Sup Personal Indirecto'!$D$244,'Sup Personal Indirecto'!$D$245)))*12+'Sup Personal Indirecto'!$D$243*12)*'Sup Personal Indirecto'!R55*'Sup Personal Directo'!R$113","v":0},{"$f":"(('Sup Personal Indirecto'!S125*(1+SUM('Sup Personal Indirecto'!$D$234,'Sup Personal Indirecto'!$D$242,'Sup Personal Indirecto'!$D$244,'Sup Personal Indirecto'!$D$245)))*12+'Sup Personal Indirecto'!$D$243*12)*'Sup Personal Indirecto'!S55*'Sup Personal Directo'!S$113","v":0},{"$f":"(('Sup Personal Indirecto'!T125*(1+SUM('Sup Personal Indirecto'!$D$234,'Sup Personal Indirecto'!$D$242,'Sup Personal Indirecto'!$D$244,'Sup Personal Indirecto'!$D$245)))*12+'Sup Personal Indirecto'!$D$243*12)*'Sup Personal Indirecto'!T55*'Sup Personal Directo'!T$113","v":0},{"$f":"(('Sup Personal Indirecto'!U125*(1+SUM('Sup Personal Indirecto'!$D$234,'Sup Personal Indirecto'!$D$242,'Sup Personal Indirecto'!$D$244,'Sup Personal Indirecto'!$D$245)))*12+'Sup Personal Indirecto'!$D$243*12)*'Sup Personal Indirecto'!U55*'Sup Personal Directo'!U$113","v":0},{"$f":"(('Sup Personal Indirecto'!V125*(1+SUM('Sup Personal Indirecto'!$D$234,'Sup Personal Indirecto'!$D$242,'Sup Personal Indirecto'!$D$244,'Sup Personal Indirecto'!$D$245)))*12+'Sup Personal Indirecto'!$D$243*12)*'Sup Personal Indirecto'!V55*'Sup Personal Directo'!V$113","v":0},{"$f":"(('Sup Personal Indirecto'!W125*(1+SUM('Sup Personal Indirecto'!$D$234,'Sup Personal Indirecto'!$D$242,'Sup Personal Indirecto'!$D$244,'Sup Personal Indirecto'!$D$245)))*12+'Sup Personal Indirecto'!$D$243*12)*'Sup Personal Indirecto'!W55*'Sup Personal Directo'!W$113","v":0}]
[null,null,{"$f":"'Sup Personal Indirecto'!C196","v":"Cargo 5"},{"$f":"(('Sup Personal Indirecto'!D126*(1+SUM('Sup Personal Indirecto'!$D$234,'Sup Personal Indirecto'!$D$242,'Sup Personal Indirecto'!$D$244,'Sup Personal Indirecto'!$D$245)))*12+'Sup Personal Indirecto'!$D$243*12)*'Sup Personal Indirecto'!D56*'Sup Personal Directo'!D$113","v":0},{"$f":"(('Sup Personal Indirecto'!E126*(1+SUM('Sup Personal Indirecto'!$D$234,'Sup Personal Indirecto'!$D$242,'Sup Personal Indirecto'!$D$244,'Sup Personal Indirecto'!$D$245)))*12+'Sup Personal Indirecto'!$D$243*12)*'Sup Personal Indirecto'!E56*'Sup Personal Directo'!E$113","v":0},{"$f":"(('Sup Personal Indirecto'!F126*(1+SUM('Sup Personal Indirecto'!$D$234,'Sup Personal Indirecto'!$D$242,'Sup Personal Indirecto'!$D$244,'Sup Personal Indirecto'!$D$245)))*12+'Sup Personal Indirecto'!$D$243*12)*'Sup Personal Indirecto'!F56*'Sup Personal Directo'!F$113","v":0},{"$f":"(('Sup Personal Indirecto'!G126*(1+SUM('Sup Personal Indirecto'!$D$234,'Sup Personal Indirecto'!$D$242,'Sup Personal Indirecto'!$D$244,'Sup Personal Indirecto'!$D$245)))*12+'Sup Personal Indirecto'!$D$243*12)*'Sup Personal Indirecto'!G56*'Sup Personal Directo'!G$113","v":0},{"$f":"(('Sup Personal Indirecto'!H126*(1+SUM('Sup Personal Indirecto'!$D$234,'Sup Personal Indirecto'!$D$242,'Sup Personal Indirecto'!$D$244,'Sup Personal Indirecto'!$D$245)))*12+'Sup Personal Indirecto'!$D$243*12)*'Sup Personal Indirecto'!H56*'Sup Personal Directo'!H$113","v":0},{"$f":"(('Sup Personal Indirecto'!I126*(1+SUM('Sup Personal Indirecto'!$D$234,'Sup Personal Indirecto'!$D$242,'Sup Personal Indirecto'!$D$244,'Sup Personal Indirecto'!$D$245)))*12+'Sup Personal Indirecto'!$D$243*12)*'Sup Personal Indirecto'!I56*'Sup Personal Directo'!I$113","v":0},{"$f":"(('Sup Personal Indirecto'!J126*(1+SUM('Sup Personal Indirecto'!$D$234,'Sup Personal Indirecto'!$D$242,'Sup Personal Indirecto'!$D$244,'Sup Personal Indirecto'!$D$245)))*12+'Sup Personal Indirecto'!$D$243*12)*'Sup Personal Indirecto'!J56*'Sup Personal Directo'!J$113","v":0},{"$f":"(('Sup Personal Indirecto'!K126*(1+SUM('Sup Personal Indirecto'!$D$234,'Sup Personal Indirecto'!$D$242,'Sup Personal Indirecto'!$D$244,'Sup Personal Indirecto'!$D$245)))*12+'Sup Personal Indirecto'!$D$243*12)*'Sup Personal Indirecto'!K56*'Sup Personal Directo'!K$113","v":0},{"$f":"(('Sup Personal Indirecto'!L126*(1+SUM('Sup Personal Indirecto'!$D$234,'Sup Personal Indirecto'!$D$242,'Sup Personal Indirecto'!$D$244,'Sup Personal Indirecto'!$D$245)))*12+'Sup Personal Indirecto'!$D$243*12)*'Sup Personal Indirecto'!L56*'Sup Personal Directo'!L$113","v":0},{"$f":"(('Sup Personal Indirecto'!M126*(1+SUM('Sup Personal Indirecto'!$D$234,'Sup Personal Indirecto'!$D$242,'Sup Personal Indirecto'!$D$244,'Sup Personal Indirecto'!$D$245)))*12+'Sup Personal Indirecto'!$D$243*12)*'Sup Personal Indirecto'!M56*'Sup Personal Directo'!M$113","v":0},{"$f":"(('Sup Personal Indirecto'!N126*(1+SUM('Sup Personal Indirecto'!$D$234,'Sup Personal Indirecto'!$D$242,'Sup Personal Indirecto'!$D$244,'Sup Personal Indirecto'!$D$245)))*12+'Sup Personal Indirecto'!$D$243*12)*'Sup Personal Indirecto'!N56*'Sup Personal Directo'!N$113","v":0},{"$f":"(('Sup Personal Indirecto'!O126*(1+SUM('Sup Personal Indirecto'!$D$234,'Sup Personal Indirecto'!$D$242,'Sup Personal Indirecto'!$D$244,'Sup Personal Indirecto'!$D$245)))*12+'Sup Personal Indirecto'!$D$243*12)*'Sup Personal Indirecto'!O56*'Sup Personal Directo'!O$113","v":0},{"$f":"(('Sup Personal Indirecto'!P126*(1+SUM('Sup Personal Indirecto'!$D$234,'Sup Personal Indirecto'!$D$242,'Sup Personal Indirecto'!$D$244,'Sup Personal Indirecto'!$D$245)))*12+'Sup Personal Indirecto'!$D$243*12)*'Sup Personal Indirecto'!P56*'Sup Personal Directo'!P$113","v":0},{"$f":"(('Sup Personal Indirecto'!Q126*(1+SUM('Sup Personal Indirecto'!$D$234,'Sup Personal Indirecto'!$D$242,'Sup Personal Indirecto'!$D$244,'Sup Personal Indirecto'!$D$245)))*12+'Sup Personal Indirecto'!$D$243*12)*'Sup Personal Indirecto'!Q56*'Sup Personal Directo'!Q$113","v":0},{"$f":"(('Sup Personal Indirecto'!R126*(1+SUM('Sup Personal Indirecto'!$D$234,'Sup Personal Indirecto'!$D$242,'Sup Personal Indirecto'!$D$244,'Sup Personal Indirecto'!$D$245)))*12+'Sup Personal Indirecto'!$D$243*12)*'Sup Personal Indirecto'!R56*'Sup Personal Directo'!R$113","v":0},{"$f":"(('Sup Personal Indirecto'!S126*(1+SUM('Sup Personal Indirecto'!$D$234,'Sup Personal Indirecto'!$D$242,'Sup Personal Indirecto'!$D$244,'Sup Personal Indirecto'!$D$245)))*12+'Sup Personal Indirecto'!$D$243*12)*'Sup Personal Indirecto'!S56*'Sup Personal Directo'!S$113","v":0},{"$f":"(('Sup Personal Indirecto'!T126*(1+SUM('Sup Personal Indirecto'!$D$234,'Sup Personal Indirecto'!$D$242,'Sup Personal Indirecto'!$D$244,'Sup Personal Indirecto'!$D$245)))*12+'Sup Personal Indirecto'!$D$243*12)*'Sup Personal Indirecto'!T56*'Sup Personal Directo'!T$113","v":0},{"$f":"(('Sup Personal Indirecto'!U126*(1+SUM('Sup Personal Indirecto'!$D$234,'Sup Personal Indirecto'!$D$242,'Sup Personal Indirecto'!$D$244,'Sup Personal Indirecto'!$D$245)))*12+'Sup Personal Indirecto'!$D$243*12)*'Sup Personal Indirecto'!U56*'Sup Personal Directo'!U$113","v":0},{"$f":"(('Sup Personal Indirecto'!V126*(1+SUM('Sup Personal Indirecto'!$D$234,'Sup Personal Indirecto'!$D$242,'Sup Personal Indirecto'!$D$244,'Sup Personal Indirecto'!$D$245)))*12+'Sup Personal Indirecto'!$D$243*12)*'Sup Personal Indirecto'!V56*'Sup Personal Directo'!V$113","v":0},{"$f":"(('Sup Personal Indirecto'!W126*(1+SUM('Sup Personal Indirecto'!$D$234,'Sup Personal Indirecto'!$D$242,'Sup Personal Indirecto'!$D$244,'Sup Personal Indirecto'!$D$245)))*12+'Sup Personal Indirecto'!$D$243*12)*'Sup Personal Indirecto'!W56*'Sup Personal Directo'!W$113","v":0}]
[null,null,{"$f":"'Sup Personal Indirecto'!C197","v":"Cargo 6"},{"$f":"(('Sup Personal Indirecto'!D127*(1+SUM('Sup Personal Indirecto'!$D$234,'Sup Personal Indirecto'!$D$242,'Sup Personal Indirecto'!$D$244,'Sup Personal Indirecto'!$D$245)))*12+'Sup Personal Indirecto'!$D$243*12)*'Sup Personal Indirecto'!D57*'Sup Personal Directo'!D$113","v":0},{"$f":"(('Sup Personal Indirecto'!E127*(1+SUM('Sup Personal Indirecto'!$D$234,'Sup Personal Indirecto'!$D$242,'Sup Personal Indirecto'!$D$244,'Sup Personal Indirecto'!$D$245)))*12+'Sup Personal Indirecto'!$D$243*12)*'Sup Personal Indirecto'!E57*'Sup Personal Directo'!E$113","v":0},{"$f":"(('Sup Personal Indirecto'!F127*(1+SUM('Sup Personal Indirecto'!$D$234,'Sup Personal Indirecto'!$D$242,'Sup Personal Indirecto'!$D$244,'Sup Personal Indirecto'!$D$245)))*12+'Sup Personal Indirecto'!$D$243*12)*'Sup Personal Indirecto'!F57*'Sup Personal Directo'!F$113","v":0},{"$f":"(('Sup Personal Indirecto'!G127*(1+SUM('Sup Personal Indirecto'!$D$234,'Sup Personal Indirecto'!$D$242,'Sup Personal Indirecto'!$D$244,'Sup Personal Indirecto'!$D$245)))*12+'Sup Personal Indirecto'!$D$243*12)*'Sup Personal Indirecto'!G57*'Sup Personal Directo'!G$113","v":0},{"$f":"(('Sup Personal Indirecto'!H127*(1+SUM('Sup Personal Indirecto'!$D$234,'Sup Personal Indirecto'!$D$242,'Sup Personal Indirecto'!$D$244,'Sup Personal Indirecto'!$D$245)))*12+'Sup Personal Indirecto'!$D$243*12)*'Sup Personal Indirecto'!H57*'Sup Personal Directo'!H$113","v":0},{"$f":"(('Sup Personal Indirecto'!I127*(1+SUM('Sup Personal Indirecto'!$D$234,'Sup Personal Indirecto'!$D$242,'Sup Personal Indirecto'!$D$244,'Sup Personal Indirecto'!$D$245)))*12+'Sup Personal Indirecto'!$D$243*12)*'Sup Personal Indirecto'!I57*'Sup Personal Directo'!I$113","v":0},{"$f":"(('Sup Personal Indirecto'!J127*(1+SUM('Sup Personal Indirecto'!$D$234,'Sup Personal Indirecto'!$D$242,'Sup Personal Indirecto'!$D$244,'Sup Personal Indirecto'!$D$245)))*12+'Sup Personal Indirecto'!$D$243*12)*'Sup Personal Indirecto'!J57*'Sup Personal Directo'!J$113","v":0},{"$f":"(('Sup Personal Indirecto'!K127*(1+SUM('Sup Personal Indirecto'!$D$234,'Sup Personal Indirecto'!$D$242,'Sup Personal Indirecto'!$D$244,'Sup Personal Indirecto'!$D$245)))*12+'Sup Personal Indirecto'!$D$243*12)*'Sup Personal Indirecto'!K57*'Sup Personal Directo'!K$113","v":0},{"$f":"(('Sup Personal Indirecto'!L127*(1+SUM('Sup Personal Indirecto'!$D$234,'Sup Personal Indirecto'!$D$242,'Sup Personal Indirecto'!$D$244,'Sup Personal Indirecto'!$D$245)))*12+'Sup Personal Indirecto'!$D$243*12)*'Sup Personal Indirecto'!L57*'Sup Personal Directo'!L$113","v":0},{"$f":"(('Sup Personal Indirecto'!M127*(1+SUM('Sup Personal Indirecto'!$D$234,'Sup Personal Indirecto'!$D$242,'Sup Personal Indirecto'!$D$244,'Sup Personal Indirecto'!$D$245)))*12+'Sup Personal Indirecto'!$D$243*12)*'Sup Personal Indirecto'!M57*'Sup Personal Directo'!M$113","v":0},{"$f":"(('Sup Personal Indirecto'!N127*(1+SUM('Sup Personal Indirecto'!$D$234,'Sup Personal Indirecto'!$D$242,'Sup Personal Indirecto'!$D$244,'Sup Personal Indirecto'!$D$245)))*12+'Sup Personal Indirecto'!$D$243*12)*'Sup Personal Indirecto'!N57*'Sup Personal Directo'!N$113","v":0},{"$f":"(('Sup Personal Indirecto'!O127*(1+SUM('Sup Personal Indirecto'!$D$234,'Sup Personal Indirecto'!$D$242,'Sup Personal Indirecto'!$D$244,'Sup Personal Indirecto'!$D$245)))*12+'Sup Personal Indirecto'!$D$243*12)*'Sup Personal Indirecto'!O57*'Sup Personal Directo'!O$113","v":0},{"$f":"(('Sup Personal Indirecto'!P127*(1+SUM('Sup Personal Indirecto'!$D$234,'Sup Personal Indirecto'!$D$242,'Sup Personal Indirecto'!$D$244,'Sup Personal Indirecto'!$D$245)))*12+'Sup Personal Indirecto'!$D$243*12)*'Sup Personal Indirecto'!P57*'Sup Personal Directo'!P$113","v":0},{"$f":"(('Sup Personal Indirecto'!Q127*(1+SUM('Sup Personal Indirecto'!$D$234,'Sup Personal Indirecto'!$D$242,'Sup Personal Indirecto'!$D$244,'Sup Personal Indirecto'!$D$245)))*12+'Sup Personal Indirecto'!$D$243*12)*'Sup Personal Indirecto'!Q57*'Sup Personal Directo'!Q$113","v":0},{"$f":"(('Sup Personal Indirecto'!R127*(1+SUM('Sup Personal Indirecto'!$D$234,'Sup Personal Indirecto'!$D$242,'Sup Personal Indirecto'!$D$244,'Sup Personal Indirecto'!$D$245)))*12+'Sup Personal Indirecto'!$D$243*12)*'Sup Personal Indirecto'!R57*'Sup Personal Directo'!R$113","v":0},{"$f":"(('Sup Personal Indirecto'!S127*(1+SUM('Sup Personal Indirecto'!$D$234,'Sup Personal Indirecto'!$D$242,'Sup Personal Indirecto'!$D$244,'Sup Personal Indirecto'!$D$245)))*12+'Sup Personal Indirecto'!$D$243*12)*'Sup Personal Indirecto'!S57*'Sup Personal Directo'!S$113","v":0},{"$f":"(('Sup Personal Indirecto'!T127*(1+SUM('Sup Personal Indirecto'!$D$234,'Sup Personal Indirecto'!$D$242,'Sup Personal Indirecto'!$D$244,'Sup Personal Indirecto'!$D$245)))*12+'Sup Personal Indirecto'!$D$243*12)*'Sup Personal Indirecto'!T57*'Sup Personal Directo'!T$113","v":0},{"$f":"(('Sup Personal Indirecto'!U127*(1+SUM('Sup Personal Indirecto'!$D$234,'Sup Personal Indirecto'!$D$242,'Sup Personal Indirecto'!$D$244,'Sup Personal Indirecto'!$D$245)))*12+'Sup Personal Indirecto'!$D$243*12)*'Sup Personal Indirecto'!U57*'Sup Personal Directo'!U$113","v":0},{"$f":"(('Sup Personal Indirecto'!V127*(1+SUM('Sup Personal Indirecto'!$D$234,'Sup Personal Indirecto'!$D$242,'Sup Personal Indirecto'!$D$244,'Sup Personal Indirecto'!$D$245)))*12+'Sup Personal Indirecto'!$D$243*12)*'Sup Personal Indirecto'!V57*'Sup Personal Directo'!V$113","v":0},{"$f":"(('Sup Personal Indirecto'!W127*(1+SUM('Sup Personal Indirecto'!$D$234,'Sup Personal Indirecto'!$D$242,'Sup Personal Indirecto'!$D$244,'Sup Personal Indirecto'!$D$245)))*12+'Sup Personal Indirecto'!$D$243*12)*'Sup Personal Indirecto'!W57*'Sup Personal Directo'!W$113","v":0}]
[null,null,{"$f":"'Sup Personal Indirecto'!C198","v":"Cargo 7"},{"$f":"(('Sup Personal Indirecto'!D128*(1+SUM('Sup Personal Indirecto'!$D$234,'Sup Personal Indirecto'!$D$242,'Sup Personal Indirecto'!$D$244,'Sup Personal Indirecto'!$D$245)))*12+'Sup Personal Indirecto'!$D$243*12)*'Sup Personal Indirecto'!D58*'Sup Personal Directo'!D$113","v":0},{"$f":"(('Sup Personal Indirecto'!E128*(1+SUM('Sup Personal Indirecto'!$D$234,'Sup Personal Indirecto'!$D$242,'Sup Personal Indirecto'!$D$244,'Sup Personal Indirecto'!$D$245)))*12+'Sup Personal Indirecto'!$D$243*12)*'Sup Personal Indirecto'!E58*'Sup Personal Directo'!E$113","v":0},{"$f":"(('Sup Personal Indirecto'!F128*(1+SUM('Sup Personal Indirecto'!$D$234,'Sup Personal Indirecto'!$D$242,'Sup Personal Indirecto'!$D$244,'Sup Personal Indirecto'!$D$245)))*12+'Sup Personal Indirecto'!$D$243*12)*'Sup Personal Indirecto'!F58*'Sup Personal Directo'!F$113","v":0},{"$f":"(('Sup Personal Indirecto'!G128*(1+SUM('Sup Personal Indirecto'!$D$234,'Sup Personal Indirecto'!$D$242,'Sup Personal Indirecto'!$D$244,'Sup Personal Indirecto'!$D$245)))*12+'Sup Personal Indirecto'!$D$243*12)*'Sup Personal Indirecto'!G58*'Sup Personal Directo'!G$113","v":0},{"$f":"(('Sup Personal Indirecto'!H128*(1+SUM('Sup Personal Indirecto'!$D$234,'Sup Personal Indirecto'!$D$242,'Sup Personal Indirecto'!$D$244,'Sup Personal Indirecto'!$D$245)))*12+'Sup Personal Indirecto'!$D$243*12)*'Sup Personal Indirecto'!H58*'Sup Personal Directo'!H$113","v":0},{"$f":"(('Sup Personal Indirecto'!I128*(1+SUM('Sup Personal Indirecto'!$D$234,'Sup Personal Indirecto'!$D$242,'Sup Personal Indirecto'!$D$244,'Sup Personal Indirecto'!$D$245)))*12+'Sup Personal Indirecto'!$D$243*12)*'Sup Personal Indirecto'!I58*'Sup Personal Directo'!I$113","v":0},{"$f":"(('Sup Personal Indirecto'!J128*(1+SUM('Sup Personal Indirecto'!$D$234,'Sup Personal Indirecto'!$D$242,'Sup Personal Indirecto'!$D$244,'Sup Personal Indirecto'!$D$245)))*12+'Sup Personal Indirecto'!$D$243*12)*'Sup Personal Indirecto'!J58*'Sup Personal Directo'!J$113","v":0},{"$f":"(('Sup Personal Indirecto'!K128*(1+SUM('Sup Personal Indirecto'!$D$234,'Sup Personal Indirecto'!$D$242,'Sup Personal Indirecto'!$D$244,'Sup Personal Indirecto'!$D$245)))*12+'Sup Personal Indirecto'!$D$243*12)*'Sup Personal Indirecto'!K58*'Sup Personal Directo'!K$113","v":0},{"$f":"(('Sup Personal Indirecto'!L128*(1+SUM('Sup Personal Indirecto'!$D$234,'Sup Personal Indirecto'!$D$242,'Sup Personal Indirecto'!$D$244,'Sup Personal Indirecto'!$D$245)))*12+'Sup Personal Indirecto'!$D$243*12)*'Sup Personal Indirecto'!L58*'Sup Personal Directo'!L$113","v":0},{"$f":"(('Sup Personal Indirecto'!M128*(1+SUM('Sup Personal Indirecto'!$D$234,'Sup Personal Indirecto'!$D$242,'Sup Personal Indirecto'!$D$244,'Sup Personal Indirecto'!$D$245)))*12+'Sup Personal Indirecto'!$D$243*12)*'Sup Personal Indirecto'!M58*'Sup Personal Directo'!M$113","v":0},{"$f":"(('Sup Personal Indirecto'!N128*(1+SUM('Sup Personal Indirecto'!$D$234,'Sup Personal Indirecto'!$D$242,'Sup Personal Indirecto'!$D$244,'Sup Personal Indirecto'!$D$245)))*12+'Sup Personal Indirecto'!$D$243*12)*'Sup Personal Indirecto'!N58*'Sup Personal Directo'!N$113","v":0},{"$f":"(('Sup Personal Indirecto'!O128*(1+SUM('Sup Personal Indirecto'!$D$234,'Sup Personal Indirecto'!$D$242,'Sup Personal Indirecto'!$D$244,'Sup Personal Indirecto'!$D$245)))*12+'Sup Personal Indirecto'!$D$243*12)*'Sup Personal Indirecto'!O58*'Sup Personal Directo'!O$113","v":0},{"$f":"(('Sup Personal Indirecto'!P128*(1+SUM('Sup Personal Indirecto'!$D$234,'Sup Personal Indirecto'!$D$242,'Sup Personal Indirecto'!$D$244,'Sup Personal Indirecto'!$D$245)))*12+'Sup Personal Indirecto'!$D$243*12)*'Sup Personal Indirecto'!P58*'Sup Personal Directo'!P$113","v":0},{"$f":"(('Sup Personal Indirecto'!Q128*(1+SUM('Sup Personal Indirecto'!$D$234,'Sup Personal Indirecto'!$D$242,'Sup Personal Indirecto'!$D$244,'Sup Personal Indirecto'!$D$245)))*12+'Sup Personal Indirecto'!$D$243*12)*'Sup Personal Indirecto'!Q58*'Sup Personal Directo'!Q$113","v":0},{"$f":"(('Sup Personal Indirecto'!R128*(1+SUM('Sup Personal Indirecto'!$D$234,'Sup Personal Indirecto'!$D$242,'Sup Personal Indirecto'!$D$244,'Sup Personal Indirecto'!$D$245)))*12+'Sup Personal Indirecto'!$D$243*12)*'Sup Personal Indirecto'!R58*'Sup Personal Directo'!R$113","v":0},{"$f":"(('Sup Personal Indirecto'!S128*(1+SUM('Sup Personal Indirecto'!$D$234,'Sup Personal Indirecto'!$D$242,'Sup Personal Indirecto'!$D$244,'Sup Personal Indirecto'!$D$245)))*12+'Sup Personal Indirecto'!$D$243*12)*'Sup Personal Indirecto'!S58*'Sup Personal Directo'!S$113","v":0},{"$f":"(('Sup Personal Indirecto'!T128*(1+SUM('Sup Personal Indirecto'!$D$234,'Sup Personal Indirecto'!$D$242,'Sup Personal Indirecto'!$D$244,'Sup Personal Indirecto'!$D$245)))*12+'Sup Personal Indirecto'!$D$243*12)*'Sup Personal Indirecto'!T58*'Sup Personal Directo'!T$113","v":0},{"$f":"(('Sup Personal Indirecto'!U128*(1+SUM('Sup Personal Indirecto'!$D$234,'Sup Personal Indirecto'!$D$242,'Sup Personal Indirecto'!$D$244,'Sup Personal Indirecto'!$D$245)))*12+'Sup Personal Indirecto'!$D$243*12)*'Sup Personal Indirecto'!U58*'Sup Personal Directo'!U$113","v":0},{"$f":"(('Sup Personal Indirecto'!V128*(1+SUM('Sup Personal Indirecto'!$D$234,'Sup Personal Indirecto'!$D$242,'Sup Personal Indirecto'!$D$244,'Sup Personal Indirecto'!$D$245)))*12+'Sup Personal Indirecto'!$D$243*12)*'Sup Personal Indirecto'!V58*'Sup Personal Directo'!V$113","v":0},{"$f":"(('Sup Personal Indirecto'!W128*(1+SUM('Sup Personal Indirecto'!$D$234,'Sup Personal Indirecto'!$D$242,'Sup Personal Indirecto'!$D$244,'Sup Personal Indirecto'!$D$245)))*12+'Sup Personal Indirecto'!$D$243*12)*'Sup Personal Indirecto'!W58*'Sup Personal Directo'!W$113","v":0}]
[null,{"$f":"'Sup Personal Indirecto'!B199","v":"c) Área 3"}]
[null,null,{"$f":"'Sup Personal Indirecto'!C200","v":"Cargo 1"},{"$f":"(('Sup Personal Indirecto'!D130*(1+SUM('Sup Personal Indirecto'!$D$234,'Sup Personal Indirecto'!$D$242,'Sup Personal Indirecto'!$D$244,'Sup Personal Indirecto'!$D$245)))*12+'Sup Personal Indirecto'!$D$243*12)*'Sup Personal Indirecto'!D60*'Sup Personal Directo'!D$113","v":0},{"$f":"(('Sup Personal Indirecto'!E130*(1+SUM('Sup Personal Indirecto'!$D$234,'Sup Personal Indirecto'!$D$242,'Sup Personal Indirecto'!$D$244,'Sup Personal Indirecto'!$D$245)))*12+'Sup Personal Indirecto'!$D$243*12)*'Sup Personal Indirecto'!E60*'Sup Personal Directo'!E$113","v":0},{"$f":"(('Sup Personal Indirecto'!F130*(1+SUM('Sup Personal Indirecto'!$D$234,'Sup Personal Indirecto'!$D$242,'Sup Personal Indirecto'!$D$244,'Sup Personal Indirecto'!$D$245)))*12+'Sup Personal Indirecto'!$D$243*12)*'Sup Personal Indirecto'!F60*'Sup Personal Directo'!F$113","v":0},{"$f":"(('Sup Personal Indirecto'!G130*(1+SUM('Sup Personal Indirecto'!$D$234,'Sup Personal Indirecto'!$D$242,'Sup Personal Indirecto'!$D$244,'Sup Personal Indirecto'!$D$245)))*12+'Sup Personal Indirecto'!$D$243*12)*'Sup Personal Indirecto'!G60*'Sup Personal Directo'!G$113","v":0},{"$f":"(('Sup Personal Indirecto'!H130*(1+SUM('Sup Personal Indirecto'!$D$234,'Sup Personal Indirecto'!$D$242,'Sup Personal Indirecto'!$D$244,'Sup Personal Indirecto'!$D$245)))*12+'Sup Personal Indirecto'!$D$243*12)*'Sup Personal Indirecto'!H60*'Sup Personal Directo'!H$113","v":0},{"$f":"(('Sup Personal Indirecto'!I130*(1+SUM('Sup Personal Indirecto'!$D$234,'Sup Personal Indirecto'!$D$242,'Sup Personal Indirecto'!$D$244,'Sup Personal Indirecto'!$D$245)))*12+'Sup Personal Indirecto'!$D$243*12)*'Sup Personal Indirecto'!I60*'Sup Personal Directo'!I$113","v":0},{"$f":"(('Sup Personal Indirecto'!J130*(1+SUM('Sup Personal Indirecto'!$D$234,'Sup Personal Indirecto'!$D$242,'Sup Personal Indirecto'!$D$244,'Sup Personal Indirecto'!$D$245)))*12+'Sup Personal Indirecto'!$D$243*12)*'Sup Personal Indirecto'!J60*'Sup Personal Directo'!J$113","v":0},{"$f":"(('Sup Personal Indirecto'!K130*(1+SUM('Sup Personal Indirecto'!$D$234,'Sup Personal Indirecto'!$D$242,'Sup Personal Indirecto'!$D$244,'Sup Personal Indirecto'!$D$245)))*12+'Sup Personal Indirecto'!$D$243*12)*'Sup Personal Indirecto'!K60*'Sup Personal Directo'!K$113","v":0},{"$f":"(('Sup Personal Indirecto'!L130*(1+SUM('Sup Personal Indirecto'!$D$234,'Sup Personal Indirecto'!$D$242,'Sup Personal Indirecto'!$D$244,'Sup Personal Indirecto'!$D$245)))*12+'Sup Personal Indirecto'!$D$243*12)*'Sup Personal Indirecto'!L60*'Sup Personal Directo'!L$113","v":0},{"$f":"(('Sup Personal Indirecto'!M130*(1+SUM('Sup Personal Indirecto'!$D$234,'Sup Personal Indirecto'!$D$242,'Sup Personal Indirecto'!$D$244,'Sup Personal Indirecto'!$D$245)))*12+'Sup Personal Indirecto'!$D$243*12)*'Sup Personal Indirecto'!M60*'Sup Personal Directo'!M$113","v":0},{"$f":"(('Sup Personal Indirecto'!N130*(1+SUM('Sup Personal Indirecto'!$D$234,'Sup Personal Indirecto'!$D$242,'Sup Personal Indirecto'!$D$244,'Sup Personal Indirecto'!$D$245)))*12+'Sup Personal Indirecto'!$D$243*12)*'Sup Personal Indirecto'!N60*'Sup Personal Directo'!N$113","v":0},{"$f":"(('Sup Personal Indirecto'!O130*(1+SUM('Sup Personal Indirecto'!$D$234,'Sup Personal Indirecto'!$D$242,'Sup Personal Indirecto'!$D$244,'Sup Personal Indirecto'!$D$245)))*12+'Sup Personal Indirecto'!$D$243*12)*'Sup Personal Indirecto'!O60*'Sup Personal Directo'!O$113","v":0},{"$f":"(('Sup Personal Indirecto'!P130*(1+SUM('Sup Personal Indirecto'!$D$234,'Sup Personal Indirecto'!$D$242,'Sup Personal Indirecto'!$D$244,'Sup Personal Indirecto'!$D$245)))*12+'Sup Personal Indirecto'!$D$243*12)*'Sup Personal Indirecto'!P60*'Sup Personal Directo'!P$113","v":0},{"$f":"(('Sup Personal Indirecto'!Q130*(1+SUM('Sup Personal Indirecto'!$D$234,'Sup Personal Indirecto'!$D$242,'Sup Personal Indirecto'!$D$244,'Sup Personal Indirecto'!$D$245)))*12+'Sup Personal Indirecto'!$D$243*12)*'Sup Personal Indirecto'!Q60*'Sup Personal Directo'!Q$113","v":0},{"$f":"(('Sup Personal Indirecto'!R130*(1+SUM('Sup Personal Indirecto'!$D$234,'Sup Personal Indirecto'!$D$242,'Sup Personal Indirecto'!$D$244,'Sup Personal Indirecto'!$D$245)))*12+'Sup Personal Indirecto'!$D$243*12)*'Sup Personal Indirecto'!R60*'Sup Personal Directo'!R$113","v":0},{"$f":"(('Sup Personal Indirecto'!S130*(1+SUM('Sup Personal Indirecto'!$D$234,'Sup Personal Indirecto'!$D$242,'Sup Personal Indirecto'!$D$244,'Sup Personal Indirecto'!$D$245)))*12+'Sup Personal Indirecto'!$D$243*12)*'Sup Personal Indirecto'!S60*'Sup Personal Directo'!S$113","v":0},{"$f":"(('Sup Personal Indirecto'!T130*(1+SUM('Sup Personal Indirecto'!$D$234,'Sup Personal Indirecto'!$D$242,'Sup Personal Indirecto'!$D$244,'Sup Personal Indirecto'!$D$245)))*12+'Sup Personal Indirecto'!$D$243*12)*'Sup Personal Indirecto'!T60*'Sup Personal Directo'!T$113","v":0},{"$f":"(('Sup Personal Indirecto'!U130*(1+SUM('Sup Personal Indirecto'!$D$234,'Sup Personal Indirecto'!$D$242,'Sup Personal Indirecto'!$D$244,'Sup Personal Indirecto'!$D$245)))*12+'Sup Personal Indirecto'!$D$243*12)*'Sup Personal Indirecto'!U60*'Sup Personal Directo'!U$113","v":0},{"$f":"(('Sup Personal Indirecto'!V130*(1+SUM('Sup Personal Indirecto'!$D$234,'Sup Personal Indirecto'!$D$242,'Sup Personal Indirecto'!$D$244,'Sup Personal Indirecto'!$D$245)))*12+'Sup Personal Indirecto'!$D$243*12)*'Sup Personal Indirecto'!V60*'Sup Personal Directo'!V$113","v":0},{"$f":"(('Sup Personal Indirecto'!W130*(1+SUM('Sup Personal Indirecto'!$D$234,'Sup Personal Indirecto'!$D$242,'Sup Personal Indirecto'!$D$244,'Sup Personal Indirecto'!$D$245)))*12+'Sup Personal Indirecto'!$D$243*12)*'Sup Personal Indirecto'!W60*'Sup Personal Directo'!W$113","v":0}]
[null,null,{"$f":"'Sup Personal Indirecto'!C201","v":"Cargo 2"},{"$f":"(('Sup Personal Indirecto'!D131*(1+SUM('Sup Personal Indirecto'!$D$234,'Sup Personal Indirecto'!$D$242,'Sup Personal Indirecto'!$D$244,'Sup Personal Indirecto'!$D$245)))*12+'Sup Personal Indirecto'!$D$243*12)*'Sup Personal Indirecto'!D61*'Sup Personal Directo'!D$113","v":0},{"$f":"(('Sup Personal Indirecto'!E131*(1+SUM('Sup Personal Indirecto'!$D$234,'Sup Personal Indirecto'!$D$242,'Sup Personal Indirecto'!$D$244,'Sup Personal Indirecto'!$D$245)))*12+'Sup Personal Indirecto'!$D$243*12)*'Sup Personal Indirecto'!E61*'Sup Personal Directo'!E$113","v":0},{"$f":"(('Sup Personal Indirecto'!F131*(1+SUM('Sup Personal Indirecto'!$D$234,'Sup Personal Indirecto'!$D$242,'Sup Personal Indirecto'!$D$244,'Sup Personal Indirecto'!$D$245)))*12+'Sup Personal Indirecto'!$D$243*12)*'Sup Personal Indirecto'!F61*'Sup Personal Directo'!F$113","v":0},{"$f":"(('Sup Personal Indirecto'!G131*(1+SUM('Sup Personal Indirecto'!$D$234,'Sup Personal Indirecto'!$D$242,'Sup Personal Indirecto'!$D$244,'Sup Personal Indirecto'!$D$245)))*12+'Sup Personal Indirecto'!$D$243*12)*'Sup Personal Indirecto'!G61*'Sup Personal Directo'!G$113","v":0},{"$f":"(('Sup Personal Indirecto'!H131*(1+SUM('Sup Personal Indirecto'!$D$234,'Sup Personal Indirecto'!$D$242,'Sup Personal Indirecto'!$D$244,'Sup Personal Indirecto'!$D$245)))*12+'Sup Personal Indirecto'!$D$243*12)*'Sup Personal Indirecto'!H61*'Sup Personal Directo'!H$113","v":0},{"$f":"(('Sup Personal Indirecto'!I131*(1+SUM('Sup Personal Indirecto'!$D$234,'Sup Personal Indirecto'!$D$242,'Sup Personal Indirecto'!$D$244,'Sup Personal Indirecto'!$D$245)))*12+'Sup Personal Indirecto'!$D$243*12)*'Sup Personal Indirecto'!I61*'Sup Personal Directo'!I$113","v":0},{"$f":"(('Sup Personal Indirecto'!J131*(1+SUM('Sup Personal Indirecto'!$D$234,'Sup Personal Indirecto'!$D$242,'Sup Personal Indirecto'!$D$244,'Sup Personal Indirecto'!$D$245)))*12+'Sup Personal Indirecto'!$D$243*12)*'Sup Personal Indirecto'!J61*'Sup Personal Directo'!J$113","v":0},{"$f":"(('Sup Personal Indirecto'!K131*(1+SUM('Sup Personal Indirecto'!$D$234,'Sup Personal Indirecto'!$D$242,'Sup Personal Indirecto'!$D$244,'Sup Personal Indirecto'!$D$245)))*12+'Sup Personal Indirecto'!$D$243*12)*'Sup Personal Indirecto'!K61*'Sup Personal Directo'!K$113","v":0},{"$f":"(('Sup Personal Indirecto'!L131*(1+SUM('Sup Personal Indirecto'!$D$234,'Sup Personal Indirecto'!$D$242,'Sup Personal Indirecto'!$D$244,'Sup Personal Indirecto'!$D$245)))*12+'Sup Personal Indirecto'!$D$243*12)*'Sup Personal Indirecto'!L61*'Sup Personal Directo'!L$113","v":0},{"$f":"(('Sup Personal Indirecto'!M131*(1+SUM('Sup Personal Indirecto'!$D$234,'Sup Personal Indirecto'!$D$242,'Sup Personal Indirecto'!$D$244,'Sup Personal Indirecto'!$D$245)))*12+'Sup Personal Indirecto'!$D$243*12)*'Sup Personal Indirecto'!M61*'Sup Personal Directo'!M$113","v":0},{"$f":"(('Sup Personal Indirecto'!N131*(1+SUM('Sup Personal Indirecto'!$D$234,'Sup Personal Indirecto'!$D$242,'Sup Personal Indirecto'!$D$244,'Sup Personal Indirecto'!$D$245)))*12+'Sup Personal Indirecto'!$D$243*12)*'Sup Personal Indirecto'!N61*'Sup Personal Directo'!N$113","v":0},{"$f":"(('Sup Personal Indirecto'!O131*(1+SUM('Sup Personal Indirecto'!$D$234,'Sup Personal Indirecto'!$D$242,'Sup Personal Indirecto'!$D$244,'Sup Personal Indirecto'!$D$245)))*12+'Sup Personal Indirecto'!$D$243*12)*'Sup Personal Indirecto'!O61*'Sup Personal Directo'!O$113","v":0},{"$f":"(('Sup Personal Indirecto'!P131*(1+SUM('Sup Personal Indirecto'!$D$234,'Sup Personal Indirecto'!$D$242,'Sup Personal Indirecto'!$D$244,'Sup Personal Indirecto'!$D$245)))*12+'Sup Personal Indirecto'!$D$243*12)*'Sup Personal Indirecto'!P61*'Sup Personal Directo'!P$113","v":0},{"$f":"(('Sup Personal Indirecto'!Q131*(1+SUM('Sup Personal Indirecto'!$D$234,'Sup Personal Indirecto'!$D$242,'Sup Personal Indirecto'!$D$244,'Sup Personal Indirecto'!$D$245)))*12+'Sup Personal Indirecto'!$D$243*12)*'Sup Personal Indirecto'!Q61*'Sup Personal Directo'!Q$113","v":0},{"$f":"(('Sup Personal Indirecto'!R131*(1+SUM('Sup Personal Indirecto'!$D$234,'Sup Personal Indirecto'!$D$242,'Sup Personal Indirecto'!$D$244,'Sup Personal Indirecto'!$D$245)))*12+'Sup Personal Indirecto'!$D$243*12)*'Sup Personal Indirecto'!R61*'Sup Personal Directo'!R$113","v":0},{"$f":"(('Sup Personal Indirecto'!S131*(1+SUM('Sup Personal Indirecto'!$D$234,'Sup Personal Indirecto'!$D$242,'Sup Personal Indirecto'!$D$244,'Sup Personal Indirecto'!$D$245)))*12+'Sup Personal Indirecto'!$D$243*12)*'Sup Personal Indirecto'!S61*'Sup Personal Directo'!S$113","v":0},{"$f":"(('Sup Personal Indirecto'!T131*(1+SUM('Sup Personal Indirecto'!$D$234,'Sup Personal Indirecto'!$D$242,'Sup Personal Indirecto'!$D$244,'Sup Personal Indirecto'!$D$245)))*12+'Sup Personal Indirecto'!$D$243*12)*'Sup Personal Indirecto'!T61*'Sup Personal Directo'!T$113","v":0},{"$f":"(('Sup Personal Indirecto'!U131*(1+SUM('Sup Personal Indirecto'!$D$234,'Sup Personal Indirecto'!$D$242,'Sup Personal Indirecto'!$D$244,'Sup Personal Indirecto'!$D$245)))*12+'Sup Personal Indirecto'!$D$243*12)*'Sup Personal Indirecto'!U61*'Sup Personal Directo'!U$113","v":0},{"$f":"(('Sup Personal Indirecto'!V131*(1+SUM('Sup Personal Indirecto'!$D$234,'Sup Personal Indirecto'!$D$242,'Sup Personal Indirecto'!$D$244,'Sup Personal Indirecto'!$D$245)))*12+'Sup Personal Indirecto'!$D$243*12)*'Sup Personal Indirecto'!V61*'Sup Personal Directo'!V$113","v":0},{"$f":"(('Sup Personal Indirecto'!W131*(1+SUM('Sup Personal Indirecto'!$D$234,'Sup Personal Indirecto'!$D$242,'Sup Personal Indirecto'!$D$244,'Sup Personal Indirecto'!$D$245)))*12+'Sup Personal Indirecto'!$D$243*12)*'Sup Personal Indirecto'!W61*'Sup Personal Directo'!W$113","v":0}]
[null,null,{"$f":"'Sup Personal Indirecto'!C202","v":"Cargo 3"},{"$f":"(('Sup Personal Indirecto'!D132*(1+SUM('Sup Personal Indirecto'!$D$234,'Sup Personal Indirecto'!$D$242,'Sup Personal Indirecto'!$D$244,'Sup Personal Indirecto'!$D$245)))*12+'Sup Personal Indirecto'!$D$243*12)*'Sup Personal Indirecto'!D62*'Sup Personal Directo'!D$113","v":0},{"$f":"(('Sup Personal Indirecto'!E132*(1+SUM('Sup Personal Indirecto'!$D$234,'Sup Personal Indirecto'!$D$242,'Sup Personal Indirecto'!$D$244,'Sup Personal Indirecto'!$D$245)))*12+'Sup Personal Indirecto'!$D$243*12)*'Sup Personal Indirecto'!E62*'Sup Personal Directo'!E$113","v":0},{"$f":"(('Sup Personal Indirecto'!F132*(1+SUM('Sup Personal Indirecto'!$D$234,'Sup Personal Indirecto'!$D$242,'Sup Personal Indirecto'!$D$244,'Sup Personal Indirecto'!$D$245)))*12+'Sup Personal Indirecto'!$D$243*12)*'Sup Personal Indirecto'!F62*'Sup Personal Directo'!F$113","v":0},{"$f":"(('Sup Personal Indirecto'!G132*(1+SUM('Sup Personal Indirecto'!$D$234,'Sup Personal Indirecto'!$D$242,'Sup Personal Indirecto'!$D$244,'Sup Personal Indirecto'!$D$245)))*12+'Sup Personal Indirecto'!$D$243*12)*'Sup Personal Indirecto'!G62*'Sup Personal Directo'!G$113","v":0},{"$f":"(('Sup Personal Indirecto'!H132*(1+SUM('Sup Personal Indirecto'!$D$234,'Sup Personal Indirecto'!$D$242,'Sup Personal Indirecto'!$D$244,'Sup Personal Indirecto'!$D$245)))*12+'Sup Personal Indirecto'!$D$243*12)*'Sup Personal Indirecto'!H62*'Sup Personal Directo'!H$113","v":0},{"$f":"(('Sup Personal Indirecto'!I132*(1+SUM('Sup Personal Indirecto'!$D$234,'Sup Personal Indirecto'!$D$242,'Sup Personal Indirecto'!$D$244,'Sup Personal Indirecto'!$D$245)))*12+'Sup Personal Indirecto'!$D$243*12)*'Sup Personal Indirecto'!I62*'Sup Personal Directo'!I$113","v":0},{"$f":"(('Sup Personal Indirecto'!J132*(1+SUM('Sup Personal Indirecto'!$D$234,'Sup Personal Indirecto'!$D$242,'Sup Personal Indirecto'!$D$244,'Sup Personal Indirecto'!$D$245)))*12+'Sup Personal Indirecto'!$D$243*12)*'Sup Personal Indirecto'!J62*'Sup Personal Directo'!J$113","v":0},{"$f":"(('Sup Personal Indirecto'!K132*(1+SUM('Sup Personal Indirecto'!$D$234,'Sup Personal Indirecto'!$D$242,'Sup Personal Indirecto'!$D$244,'Sup Personal Indirecto'!$D$245)))*12+'Sup Personal Indirecto'!$D$243*12)*'Sup Personal Indirecto'!K62*'Sup Personal Directo'!K$113","v":0},{"$f":"(('Sup Personal Indirecto'!L132*(1+SUM('Sup Personal Indirecto'!$D$234,'Sup Personal Indirecto'!$D$242,'Sup Personal Indirecto'!$D$244,'Sup Personal Indirecto'!$D$245)))*12+'Sup Personal Indirecto'!$D$243*12)*'Sup Personal Indirecto'!L62*'Sup Personal Directo'!L$113","v":0},{"$f":"(('Sup Personal Indirecto'!M132*(1+SUM('Sup Personal Indirecto'!$D$234,'Sup Personal Indirecto'!$D$242,'Sup Personal Indirecto'!$D$244,'Sup Personal Indirecto'!$D$245)))*12+'Sup Personal Indirecto'!$D$243*12)*'Sup Personal Indirecto'!M62*'Sup Personal Directo'!M$113","v":0},{"$f":"(('Sup Personal Indirecto'!N132*(1+SUM('Sup Personal Indirecto'!$D$234,'Sup Personal Indirecto'!$D$242,'Sup Personal Indirecto'!$D$244,'Sup Personal Indirecto'!$D$245)))*12+'Sup Personal Indirecto'!$D$243*12)*'Sup Personal Indirecto'!N62*'Sup Personal Directo'!N$113","v":0},{"$f":"(('Sup Personal Indirecto'!O132*(1+SUM('Sup Personal Indirecto'!$D$234,'Sup Personal Indirecto'!$D$242,'Sup Personal Indirecto'!$D$244,'Sup Personal Indirecto'!$D$245)))*12+'Sup Personal Indirecto'!$D$243*12)*'Sup Personal Indirecto'!O62*'Sup Personal Directo'!O$113","v":0},{"$f":"(('Sup Personal Indirecto'!P132*(1+SUM('Sup Personal Indirecto'!$D$234,'Sup Personal Indirecto'!$D$242,'Sup Personal Indirecto'!$D$244,'Sup Personal Indirecto'!$D$245)))*12+'Sup Personal Indirecto'!$D$243*12)*'Sup Personal Indirecto'!P62*'Sup Personal Directo'!P$113","v":0},{"$f":"(('Sup Personal Indirecto'!Q132*(1+SUM('Sup Personal Indirecto'!$D$234,'Sup Personal Indirecto'!$D$242,'Sup Personal Indirecto'!$D$244,'Sup Personal Indirecto'!$D$245)))*12+'Sup Personal Indirecto'!$D$243*12)*'Sup Personal Indirecto'!Q62*'Sup Personal Directo'!Q$113","v":0},{"$f":"(('Sup Personal Indirecto'!R132*(1+SUM('Sup Personal Indirecto'!$D$234,'Sup Personal Indirecto'!$D$242,'Sup Personal Indirecto'!$D$244,'Sup Personal Indirecto'!$D$245)))*12+'Sup Personal Indirecto'!$D$243*12)*'Sup Personal Indirecto'!R62*'Sup Personal Directo'!R$113","v":0},{"$f":"(('Sup Personal Indirecto'!S132*(1+SUM('Sup Personal Indirecto'!$D$234,'Sup Personal Indirecto'!$D$242,'Sup Personal Indirecto'!$D$244,'Sup Personal Indirecto'!$D$245)))*12+'Sup Personal Indirecto'!$D$243*12)*'Sup Personal Indirecto'!S62*'Sup Personal Directo'!S$113","v":0},{"$f":"(('Sup Personal Indirecto'!T132*(1+SUM('Sup Personal Indirecto'!$D$234,'Sup Personal Indirecto'!$D$242,'Sup Personal Indirecto'!$D$244,'Sup Personal Indirecto'!$D$245)))*12+'Sup Personal Indirecto'!$D$243*12)*'Sup Personal Indirecto'!T62*'Sup Personal Directo'!T$113","v":0},{"$f":"(('Sup Personal Indirecto'!U132*(1+SUM('Sup Personal Indirecto'!$D$234,'Sup Personal Indirecto'!$D$242,'Sup Personal Indirecto'!$D$244,'Sup Personal Indirecto'!$D$245)))*12+'Sup Personal Indirecto'!$D$243*12)*'Sup Personal Indirecto'!U62*'Sup Personal Directo'!U$113","v":0},{"$f":"(('Sup Personal Indirecto'!V132*(1+SUM('Sup Personal Indirecto'!$D$234,'Sup Personal Indirecto'!$D$242,'Sup Personal Indirecto'!$D$244,'Sup Personal Indirecto'!$D$245)))*12+'Sup Personal Indirecto'!$D$243*12)*'Sup Personal Indirecto'!V62*'Sup Personal Directo'!V$113","v":0},{"$f":"(('Sup Personal Indirecto'!W132*(1+SUM('Sup Personal Indirecto'!$D$234,'Sup Personal Indirecto'!$D$242,'Sup Personal Indirecto'!$D$244,'Sup Personal Indirecto'!$D$245)))*12+'Sup Personal Indirecto'!$D$243*12)*'Sup Personal Indirecto'!W62*'Sup Personal Directo'!W$113","v":0}]
[null,null,{"$f":"'Sup Personal Indirecto'!C203","v":"Cargo 4"},{"$f":"(('Sup Personal Indirecto'!D133*(1+SUM('Sup Personal Indirecto'!$D$234,'Sup Personal Indirecto'!$D$242,'Sup Personal Indirecto'!$D$244,'Sup Personal Indirecto'!$D$245)))*12+'Sup Personal Indirecto'!$D$243*12)*'Sup Personal Indirecto'!D63*'Sup Personal Directo'!D$113","v":0},{"$f":"(('Sup Personal Indirecto'!E133*(1+SUM('Sup Personal Indirecto'!$D$234,'Sup Personal Indirecto'!$D$242,'Sup Personal Indirecto'!$D$244,'Sup Personal Indirecto'!$D$245)))*12+'Sup Personal Indirecto'!$D$243*12)*'Sup Personal Indirecto'!E63*'Sup Personal Directo'!E$113","v":0},{"$f":"(('Sup Personal Indirecto'!F133*(1+SUM('Sup Personal Indirecto'!$D$234,'Sup Personal Indirecto'!$D$242,'Sup Personal Indirecto'!$D$244,'Sup Personal Indirecto'!$D$245)))*12+'Sup Personal Indirecto'!$D$243*12)*'Sup Personal Indirecto'!F63*'Sup Personal Directo'!F$113","v":0},{"$f":"(('Sup Personal Indirecto'!G133*(1+SUM('Sup Personal Indirecto'!$D$234,'Sup Personal Indirecto'!$D$242,'Sup Personal Indirecto'!$D$244,'Sup Personal Indirecto'!$D$245)))*12+'Sup Personal Indirecto'!$D$243*12)*'Sup Personal Indirecto'!G63*'Sup Personal Directo'!G$113","v":0},{"$f":"(('Sup Personal Indirecto'!H133*(1+SUM('Sup Personal Indirecto'!$D$234,'Sup Personal Indirecto'!$D$242,'Sup Personal Indirecto'!$D$244,'Sup Personal Indirecto'!$D$245)))*12+'Sup Personal Indirecto'!$D$243*12)*'Sup Personal Indirecto'!H63*'Sup Personal Directo'!H$113","v":0},{"$f":"(('Sup Personal Indirecto'!I133*(1+SUM('Sup Personal Indirecto'!$D$234,'Sup Personal Indirecto'!$D$242,'Sup Personal Indirecto'!$D$244,'Sup Personal Indirecto'!$D$245)))*12+'Sup Personal Indirecto'!$D$243*12)*'Sup Personal Indirecto'!I63*'Sup Personal Directo'!I$113","v":0},{"$f":"(('Sup Personal Indirecto'!J133*(1+SUM('Sup Personal Indirecto'!$D$234,'Sup Personal Indirecto'!$D$242,'Sup Personal Indirecto'!$D$244,'Sup Personal Indirecto'!$D$245)))*12+'Sup Personal Indirecto'!$D$243*12)*'Sup Personal Indirecto'!J63*'Sup Personal Directo'!J$113","v":0},{"$f":"(('Sup Personal Indirecto'!K133*(1+SUM('Sup Personal Indirecto'!$D$234,'Sup Personal Indirecto'!$D$242,'Sup Personal Indirecto'!$D$244,'Sup Personal Indirecto'!$D$245)))*12+'Sup Personal Indirecto'!$D$243*12)*'Sup Personal Indirecto'!K63*'Sup Personal Directo'!K$113","v":0},{"$f":"(('Sup Personal Indirecto'!L133*(1+SUM('Sup Personal Indirecto'!$D$234,'Sup Personal Indirecto'!$D$242,'Sup Personal Indirecto'!$D$244,'Sup Personal Indirecto'!$D$245)))*12+'Sup Personal Indirecto'!$D$243*12)*'Sup Personal Indirecto'!L63*'Sup Personal Directo'!L$113","v":0},{"$f":"(('Sup Personal Indirecto'!M133*(1+SUM('Sup Personal Indirecto'!$D$234,'Sup Personal Indirecto'!$D$242,'Sup Personal Indirecto'!$D$244,'Sup Personal Indirecto'!$D$245)))*12+'Sup Personal Indirecto'!$D$243*12)*'Sup Personal Indirecto'!M63*'Sup Personal Directo'!M$113","v":0},{"$f":"(('Sup Personal Indirecto'!N133*(1+SUM('Sup Personal Indirecto'!$D$234,'Sup Personal Indirecto'!$D$242,'Sup Personal Indirecto'!$D$244,'Sup Personal Indirecto'!$D$245)))*12+'Sup Personal Indirecto'!$D$243*12)*'Sup Personal Indirecto'!N63*'Sup Personal Directo'!N$113","v":0},{"$f":"(('Sup Personal Indirecto'!O133*(1+SUM('Sup Personal Indirecto'!$D$234,'Sup Personal Indirecto'!$D$242,'Sup Personal Indirecto'!$D$244,'Sup Personal Indirecto'!$D$245)))*12+'Sup Personal Indirecto'!$D$243*12)*'Sup Personal Indirecto'!O63*'Sup Personal Directo'!O$113","v":0},{"$f":"(('Sup Personal Indirecto'!P133*(1+SUM('Sup Personal Indirecto'!$D$234,'Sup Personal Indirecto'!$D$242,'Sup Personal Indirecto'!$D$244,'Sup Personal Indirecto'!$D$245)))*12+'Sup Personal Indirecto'!$D$243*12)*'Sup Personal Indirecto'!P63*'Sup Personal Directo'!P$113","v":0},{"$f":"(('Sup Personal Indirecto'!Q133*(1+SUM('Sup Personal Indirecto'!$D$234,'Sup Personal Indirecto'!$D$242,'Sup Personal Indirecto'!$D$244,'Sup Personal Indirecto'!$D$245)))*12+'Sup Personal Indirecto'!$D$243*12)*'Sup Personal Indirecto'!Q63*'Sup Personal Directo'!Q$113","v":0},{"$f":"(('Sup Personal Indirecto'!R133*(1+SUM('Sup Personal Indirecto'!$D$234,'Sup Personal Indirecto'!$D$242,'Sup Personal Indirecto'!$D$244,'Sup Personal Indirecto'!$D$245)))*12+'Sup Personal Indirecto'!$D$243*12)*'Sup Personal Indirecto'!R63*'Sup Personal Directo'!R$113","v":0},{"$f":"(('Sup Personal Indirecto'!S133*(1+SUM('Sup Personal Indirecto'!$D$234,'Sup Personal Indirecto'!$D$242,'Sup Personal Indirecto'!$D$244,'Sup Personal Indirecto'!$D$245)))*12+'Sup Personal Indirecto'!$D$243*12)*'Sup Personal Indirecto'!S63*'Sup Personal Directo'!S$113","v":0},{"$f":"(('Sup Personal Indirecto'!T133*(1+SUM('Sup Personal Indirecto'!$D$234,'Sup Personal Indirecto'!$D$242,'Sup Personal Indirecto'!$D$244,'Sup Personal Indirecto'!$D$245)))*12+'Sup Personal Indirecto'!$D$243*12)*'Sup Personal Indirecto'!T63*'Sup Personal Directo'!T$113","v":0},{"$f":"(('Sup Personal Indirecto'!U133*(1+SUM('Sup Personal Indirecto'!$D$234,'Sup Personal Indirecto'!$D$242,'Sup Personal Indirecto'!$D$244,'Sup Personal Indirecto'!$D$245)))*12+'Sup Personal Indirecto'!$D$243*12)*'Sup Personal Indirecto'!U63*'Sup Personal Directo'!U$113","v":0},{"$f":"(('Sup Personal Indirecto'!V133*(1+SUM('Sup Personal Indirecto'!$D$234,'Sup Personal Indirecto'!$D$242,'Sup Personal Indirecto'!$D$244,'Sup Personal Indirecto'!$D$245)))*12+'Sup Personal Indirecto'!$D$243*12)*'Sup Personal Indirecto'!V63*'Sup Personal Directo'!V$113","v":0},{"$f":"(('Sup Personal Indirecto'!W133*(1+SUM('Sup Personal Indirecto'!$D$234,'Sup Personal Indirecto'!$D$242,'Sup Personal Indirecto'!$D$244,'Sup Personal Indirecto'!$D$245)))*12+'Sup Personal Indirecto'!$D$243*12)*'Sup Personal Indirecto'!W63*'Sup Personal Directo'!W$113","v":0}]
[null,{"$f":"'Sup Personal Indirecto'!B204","v":"d) Área 4"}]
[null,null,{"$f":"'Sup Personal Indirecto'!C205","v":"Cargo 1"},{"$f":"(('Sup Personal Indirecto'!D135*(1+SUM('Sup Personal Indirecto'!$D$234,'Sup Personal Indirecto'!$D$242,'Sup Personal Indirecto'!$D$244,'Sup Personal Indirecto'!$D$245)))*12+'Sup Personal Indirecto'!$D$243*12)*'Sup Personal Indirecto'!D65*'Sup Personal Directo'!D$113","v":0},{"$f":"(('Sup Personal Indirecto'!E135*(1+SUM('Sup Personal Indirecto'!$D$234,'Sup Personal Indirecto'!$D$242,'Sup Personal Indirecto'!$D$244,'Sup Personal Indirecto'!$D$245)))*12+'Sup Personal Indirecto'!$D$243*12)*'Sup Personal Indirecto'!E65*'Sup Personal Directo'!E$113","v":0},{"$f":"(('Sup Personal Indirecto'!F135*(1+SUM('Sup Personal Indirecto'!$D$234,'Sup Personal Indirecto'!$D$242,'Sup Personal Indirecto'!$D$244,'Sup Personal Indirecto'!$D$245)))*12+'Sup Personal Indirecto'!$D$243*12)*'Sup Personal Indirecto'!F65*'Sup Personal Directo'!F$113","v":0},{"$f":"(('Sup Personal Indirecto'!G135*(1+SUM('Sup Personal Indirecto'!$D$234,'Sup Personal Indirecto'!$D$242,'Sup Personal Indirecto'!$D$244,'Sup Personal Indirecto'!$D$245)))*12+'Sup Personal Indirecto'!$D$243*12)*'Sup Personal Indirecto'!G65*'Sup Personal Directo'!G$113","v":0},{"$f":"(('Sup Personal Indirecto'!H135*(1+SUM('Sup Personal Indirecto'!$D$234,'Sup Personal Indirecto'!$D$242,'Sup Personal Indirecto'!$D$244,'Sup Personal Indirecto'!$D$245)))*12+'Sup Personal Indirecto'!$D$243*12)*'Sup Personal Indirecto'!H65*'Sup Personal Directo'!H$113","v":0},{"$f":"(('Sup Personal Indirecto'!I135*(1+SUM('Sup Personal Indirecto'!$D$234,'Sup Personal Indirecto'!$D$242,'Sup Personal Indirecto'!$D$244,'Sup Personal Indirecto'!$D$245)))*12+'Sup Personal Indirecto'!$D$243*12)*'Sup Personal Indirecto'!I65*'Sup Personal Directo'!I$113","v":0},{"$f":"(('Sup Personal Indirecto'!J135*(1+SUM('Sup Personal Indirecto'!$D$234,'Sup Personal Indirecto'!$D$242,'Sup Personal Indirecto'!$D$244,'Sup Personal Indirecto'!$D$245)))*12+'Sup Personal Indirecto'!$D$243*12)*'Sup Personal Indirecto'!J65*'Sup Personal Directo'!J$113","v":0},{"$f":"(('Sup Personal Indirecto'!K135*(1+SUM('Sup Personal Indirecto'!$D$234,'Sup Personal Indirecto'!$D$242,'Sup Personal Indirecto'!$D$244,'Sup Personal Indirecto'!$D$245)))*12+'Sup Personal Indirecto'!$D$243*12)*'Sup Personal Indirecto'!K65*'Sup Personal Directo'!K$113","v":0},{"$f":"(('Sup Personal Indirecto'!L135*(1+SUM('Sup Personal Indirecto'!$D$234,'Sup Personal Indirecto'!$D$242,'Sup Personal Indirecto'!$D$244,'Sup Personal Indirecto'!$D$245)))*12+'Sup Personal Indirecto'!$D$243*12)*'Sup Personal Indirecto'!L65*'Sup Personal Directo'!L$113","v":0},{"$f":"(('Sup Personal Indirecto'!M135*(1+SUM('Sup Personal Indirecto'!$D$234,'Sup Personal Indirecto'!$D$242,'Sup Personal Indirecto'!$D$244,'Sup Personal Indirecto'!$D$245)))*12+'Sup Personal Indirecto'!$D$243*12)*'Sup Personal Indirecto'!M65*'Sup Personal Directo'!M$113","v":0},{"$f":"(('Sup Personal Indirecto'!N135*(1+SUM('Sup Personal Indirecto'!$D$234,'Sup Personal Indirecto'!$D$242,'Sup Personal Indirecto'!$D$244,'Sup Personal Indirecto'!$D$245)))*12+'Sup Personal Indirecto'!$D$243*12)*'Sup Personal Indirecto'!N65*'Sup Personal Directo'!N$113","v":0},{"$f":"(('Sup Personal Indirecto'!O135*(1+SUM('Sup Personal Indirecto'!$D$234,'Sup Personal Indirecto'!$D$242,'Sup Personal Indirecto'!$D$244,'Sup Personal Indirecto'!$D$245)))*12+'Sup Personal Indirecto'!$D$243*12)*'Sup Personal Indirecto'!O65*'Sup Personal Directo'!O$113","v":0},{"$f":"(('Sup Personal Indirecto'!P135*(1+SUM('Sup Personal Indirecto'!$D$234,'Sup Personal Indirecto'!$D$242,'Sup Personal Indirecto'!$D$244,'Sup Personal Indirecto'!$D$245)))*12+'Sup Personal Indirecto'!$D$243*12)*'Sup Personal Indirecto'!P65*'Sup Personal Directo'!P$113","v":0},{"$f":"(('Sup Personal Indirecto'!Q135*(1+SUM('Sup Personal Indirecto'!$D$234,'Sup Personal Indirecto'!$D$242,'Sup Personal Indirecto'!$D$244,'Sup Personal Indirecto'!$D$245)))*12+'Sup Personal Indirecto'!$D$243*12)*'Sup Personal Indirecto'!Q65*'Sup Personal Directo'!Q$113","v":0},{"$f":"(('Sup Personal Indirecto'!R135*(1+SUM('Sup Personal Indirecto'!$D$234,'Sup Personal Indirecto'!$D$242,'Sup Personal Indirecto'!$D$244,'Sup Personal Indirecto'!$D$245)))*12+'Sup Personal Indirecto'!$D$243*12)*'Sup Personal Indirecto'!R65*'Sup Personal Directo'!R$113","v":0},{"$f":"(('Sup Personal Indirecto'!S135*(1+SUM('Sup Personal Indirecto'!$D$234,'Sup Personal Indirecto'!$D$242,'Sup Personal Indirecto'!$D$244,'Sup Personal Indirecto'!$D$245)))*12+'Sup Personal Indirecto'!$D$243*12)*'Sup Personal Indirecto'!S65*'Sup Personal Directo'!S$113","v":0},{"$f":"(('Sup Personal Indirecto'!T135*(1+SUM('Sup Personal Indirecto'!$D$234,'Sup Personal Indirecto'!$D$242,'Sup Personal Indirecto'!$D$244,'Sup Personal Indirecto'!$D$245)))*12+'Sup Personal Indirecto'!$D$243*12)*'Sup Personal Indirecto'!T65*'Sup Personal Directo'!T$113","v":0},{"$f":"(('Sup Personal Indirecto'!U135*(1+SUM('Sup Personal Indirecto'!$D$234,'Sup Personal Indirecto'!$D$242,'Sup Personal Indirecto'!$D$244,'Sup Personal Indirecto'!$D$245)))*12+'Sup Personal Indirecto'!$D$243*12)*'Sup Personal Indirecto'!U65*'Sup Personal Directo'!U$113","v":0},{"$f":"(('Sup Personal Indirecto'!V135*(1+SUM('Sup Personal Indirecto'!$D$234,'Sup Personal Indirecto'!$D$242,'Sup Personal Indirecto'!$D$244,'Sup Personal Indirecto'!$D$245)))*12+'Sup Personal Indirecto'!$D$243*12)*'Sup Personal Indirecto'!V65*'Sup Personal Directo'!V$113","v":0},{"$f":"(('Sup Personal Indirecto'!W135*(1+SUM('Sup Personal Indirecto'!$D$234,'Sup Personal Indirecto'!$D$242,'Sup Personal Indirecto'!$D$244,'Sup Personal Indirecto'!$D$245)))*12+'Sup Personal Indirecto'!$D$243*12)*'Sup Personal Indirecto'!W65*'Sup Personal Directo'!W$113","v":0}]
[null,null,{"$f":"'Sup Personal Indirecto'!C206","v":"Cargo 2"},{"$f":"(('Sup Personal Indirecto'!D136*(1+SUM('Sup Personal Indirecto'!$D$234,'Sup Personal Indirecto'!$D$242,'Sup Personal Indirecto'!$D$244,'Sup Personal Indirecto'!$D$245)))*12+'Sup Personal Indirecto'!$D$243*12)*'Sup Personal Indirecto'!D66*'Sup Personal Directo'!D$113*IF('Actividades Mtto'!$L$1='Actividades Mtto'!$D$6,0,1)","v":0},{"$f":"(('Sup Personal Indirecto'!E136*(1+SUM('Sup Personal Indirecto'!$D$234,'Sup Personal Indirecto'!$D$242,'Sup Personal Indirecto'!$D$244,'Sup Personal Indirecto'!$D$245)))*12+'Sup Personal Indirecto'!$D$243*12)*'Sup Personal Indirecto'!E66*'Sup Personal Directo'!E$113*IF('Actividades Mtto'!$L$1='Actividades Mtto'!$D$6,0,1)","v":0},{"$f":"(('Sup Personal Indirecto'!F136*(1+SUM('Sup Personal Indirecto'!$D$234,'Sup Personal Indirecto'!$D$242,'Sup Personal Indirecto'!$D$244,'Sup Personal Indirecto'!$D$245)))*12+'Sup Personal Indirecto'!$D$243*12)*'Sup Personal Indirecto'!F66*'Sup Personal Directo'!F$113*IF('Actividades Mtto'!$L$1='Actividades Mtto'!$D$6,0,1)","v":0},{"$f":"(('Sup Personal Indirecto'!G136*(1+SUM('Sup Personal Indirecto'!$D$234,'Sup Personal Indirecto'!$D$242,'Sup Personal Indirecto'!$D$244,'Sup Personal Indirecto'!$D$245)))*12+'Sup Personal Indirecto'!$D$243*12)*'Sup Personal Indirecto'!G66*'Sup Personal Directo'!G$113*IF('Actividades Mtto'!$L$1='Actividades Mtto'!$D$6,0,1)","v":0},{"$f":"(('Sup Personal Indirecto'!H136*(1+SUM('Sup Personal Indirecto'!$D$234,'Sup Personal Indirecto'!$D$242,'Sup Personal Indirecto'!$D$244,'Sup Personal Indirecto'!$D$245)))*12+'Sup Personal Indirecto'!$D$243*12)*'Sup Personal Indirecto'!H66*'Sup Personal Directo'!H$113*IF('Actividades Mtto'!$L$1='Actividades Mtto'!$D$6,0,1)","v":0},{"$f":"(('Sup Personal Indirecto'!I136*(1+SUM('Sup Personal Indirecto'!$D$234,'Sup Personal Indirecto'!$D$242,'Sup Personal Indirecto'!$D$244,'Sup Personal Indirecto'!$D$245)))*12+'Sup Personal Indirecto'!$D$243*12)*'Sup Personal Indirecto'!I66*'Sup Personal Directo'!I$113*IF('Actividades Mtto'!$L$1='Actividades Mtto'!$D$6,0,1)","v":0},{"$f":"(('Sup Personal Indirecto'!J136*(1+SUM('Sup Personal Indirecto'!$D$234,'Sup Personal Indirecto'!$D$242,'Sup Personal Indirecto'!$D$244,'Sup Personal Indirecto'!$D$245)))*12+'Sup Personal Indirecto'!$D$243*12)*'Sup Personal Indirecto'!J66*'Sup Personal Directo'!J$113*IF('Actividades Mtto'!$L$1='Actividades Mtto'!$D$6,0,1)","v":0},{"$f":"(('Sup Personal Indirecto'!K136*(1+SUM('Sup Personal Indirecto'!$D$234,'Sup Personal Indirecto'!$D$242,'Sup Personal Indirecto'!$D$244,'Sup Personal Indirecto'!$D$245)))*12+'Sup Personal Indirecto'!$D$243*12)*'Sup Personal Indirecto'!K66*'Sup Personal Directo'!K$113*IF('Actividades Mtto'!$L$1='Actividades Mtto'!$D$6,0,1)","v":0},{"$f":"(('Sup Personal Indirecto'!L136*(1+SUM('Sup Personal Indirecto'!$D$234,'Sup Personal Indirecto'!$D$242,'Sup Personal Indirecto'!$D$244,'Sup Personal Indirecto'!$D$245)))*12+'Sup Personal Indirecto'!$D$243*12)*'Sup Personal Indirecto'!L66*'Sup Personal Directo'!L$113*IF('Actividades Mtto'!$L$1='Actividades Mtto'!$D$6,0,1)","v":0},{"$f":"(('Sup Personal Indirecto'!M136*(1+SUM('Sup Personal Indirecto'!$D$234,'Sup Personal Indirecto'!$D$242,'Sup Personal Indirecto'!$D$244,'Sup Personal Indirecto'!$D$245)))*12+'Sup Personal Indirecto'!$D$243*12)*'Sup Personal Indirecto'!M66*'Sup Personal Directo'!M$113*IF('Actividades Mtto'!$L$1='Actividades Mtto'!$D$6,0,1)","v":0},{"$f":"(('Sup Personal Indirecto'!N136*(1+SUM('Sup Personal Indirecto'!$D$234,'Sup Personal Indirecto'!$D$242,'Sup Personal Indirecto'!$D$244,'Sup Personal Indirecto'!$D$245)))*12+'Sup Personal Indirecto'!$D$243*12)*'Sup Personal Indirecto'!N66*'Sup Personal Directo'!N$113*IF('Actividades Mtto'!$L$1='Actividades Mtto'!$D$6,0,1)","v":0},{"$f":"(('Sup Personal Indirecto'!O136*(1+SUM('Sup Personal Indirecto'!$D$234,'Sup Personal Indirecto'!$D$242,'Sup Personal Indirecto'!$D$244,'Sup Personal Indirecto'!$D$245)))*12+'Sup Personal Indirecto'!$D$243*12)*'Sup Personal Indirecto'!O66*'Sup Personal Directo'!O$113*IF('Actividades Mtto'!$L$1='Actividades Mtto'!$D$6,0,1)","v":0},{"$f":"(('Sup Personal Indirecto'!P136*(1+SUM('Sup Personal Indirecto'!$D$234,'Sup Personal Indirecto'!$D$242,'Sup Personal Indirecto'!$D$244,'Sup Personal Indirecto'!$D$245)))*12+'Sup Personal Indirecto'!$D$243*12)*'Sup Personal Indirecto'!P66*'Sup Personal Directo'!P$113*IF('Actividades Mtto'!$L$1='Actividades Mtto'!$D$6,0,1)","v":0},{"$f":"(('Sup Personal Indirecto'!Q136*(1+SUM('Sup Personal Indirecto'!$D$234,'Sup Personal Indirecto'!$D$242,'Sup Personal Indirecto'!$D$244,'Sup Personal Indirecto'!$D$245)))*12+'Sup Personal Indirecto'!$D$243*12)*'Sup Personal Indirecto'!Q66*'Sup Personal Directo'!Q$113*IF('Actividades Mtto'!$L$1='Actividades Mtto'!$D$6,0,1)","v":0},{"$f":"(('Sup Personal Indirecto'!R136*(1+SUM('Sup Personal Indirecto'!$D$234,'Sup Personal Indirecto'!$D$242,'Sup Personal Indirecto'!$D$244,'Sup Personal Indirecto'!$D$245)))*12+'Sup Personal Indirecto'!$D$243*12)*'Sup Personal Indirecto'!R66*'Sup Personal Directo'!R$113*IF('Actividades Mtto'!$L$1='Actividades Mtto'!$D$6,0,1)","v":0},{"$f":"(('Sup Personal Indirecto'!S136*(1+SUM('Sup Personal Indirecto'!$D$234,'Sup Personal Indirecto'!$D$242,'Sup Personal Indirecto'!$D$244,'Sup Personal Indirecto'!$D$245)))*12+'Sup Personal Indirecto'!$D$243*12)*'Sup Personal Indirecto'!S66*'Sup Personal Directo'!S$113*IF('Actividades Mtto'!$L$1='Actividades Mtto'!$D$6,0,1)","v":0},{"$f":"(('Sup Personal Indirecto'!T136*(1+SUM('Sup Personal Indirecto'!$D$234,'Sup Personal Indirecto'!$D$242,'Sup Personal Indirecto'!$D$244,'Sup Personal Indirecto'!$D$245)))*12+'Sup Personal Indirecto'!$D$243*12)*'Sup Personal Indirecto'!T66*'Sup Personal Directo'!T$113*IF('Actividades Mtto'!$L$1='Actividades Mtto'!$D$6,0,1)","v":0},{"$f":"(('Sup Personal Indirecto'!U136*(1+SUM('Sup Personal Indirecto'!$D$234,'Sup Personal Indirecto'!$D$242,'Sup Personal Indirecto'!$D$244,'Sup Personal Indirecto'!$D$245)))*12+'Sup Personal Indirecto'!$D$243*12)*'Sup Personal Indirecto'!U66*'Sup Personal Directo'!U$113*IF('Actividades Mtto'!$L$1='Actividades Mtto'!$D$6,0,1)","v":0},{"$f":"(('Sup Personal Indirecto'!V136*(1+SUM('Sup Personal Indirecto'!$D$234,'Sup Personal Indirecto'!$D$242,'Sup Personal Indirecto'!$D$244,'Sup Personal Indirecto'!$D$245)))*12+'Sup Personal Indirecto'!$D$243*12)*'Sup Personal Indirecto'!V66*'Sup Personal Directo'!V$113*IF('Actividades Mtto'!$L$1='Actividades Mtto'!$D$6,0,1)","v":0},{"$f":"(('Sup Personal Indirecto'!W136*(1+SUM('Sup Personal Indirecto'!$D$234,'Sup Personal Indirecto'!$D$242,'Sup Personal Indirecto'!$D$244,'Sup Personal Indirecto'!$D$245)))*12+'Sup Personal Indirecto'!$D$243*12)*'Sup Personal Indirecto'!W66*'Sup Personal Directo'!W$113*IF('Actividades Mtto'!$L$1='Actividades Mtto'!$D$6,0,1)","v":0}]
[null,null,{"$f":"'Sup Personal Indirecto'!C207","v":"Cargo 3"},{"$f":"(('Sup Personal Indirecto'!D137*(1+SUM('Sup Personal Indirecto'!$D$234,'Sup Personal Indirecto'!$D$242,'Sup Personal Indirecto'!$D$244,'Sup Personal Indirecto'!$D$245)))*12+'Sup Personal Indirecto'!$D$243*12)*'Sup Personal Indirecto'!D67*'Sup Personal Directo'!D$113*IF('Actividades Mtto'!$L$1='Actividades Mtto'!$D$6,0,1)","v":0},{"$f":"(('Sup Personal Indirecto'!E137*(1+SUM('Sup Personal Indirecto'!$D$234,'Sup Personal Indirecto'!$D$242,'Sup Personal Indirecto'!$D$244,'Sup Personal Indirecto'!$D$245)))*12+'Sup Personal Indirecto'!$D$243*12)*'Sup Personal Indirecto'!E67*'Sup Personal Directo'!E$113*IF('Actividades Mtto'!$L$1='Actividades Mtto'!$D$6,0,1)","v":0},{"$f":"(('Sup Personal Indirecto'!F137*(1+SUM('Sup Personal Indirecto'!$D$234,'Sup Personal Indirecto'!$D$242,'Sup Personal Indirecto'!$D$244,'Sup Personal Indirecto'!$D$245)))*12+'Sup Personal Indirecto'!$D$243*12)*'Sup Personal Indirecto'!F67*'Sup Personal Directo'!F$113*IF('Actividades Mtto'!$L$1='Actividades Mtto'!$D$6,0,1)","v":0},{"$f":"(('Sup Personal Indirecto'!G137*(1+SUM('Sup Personal Indirecto'!$D$234,'Sup Personal Indirecto'!$D$242,'Sup Personal Indirecto'!$D$244,'Sup Personal Indirecto'!$D$245)))*12+'Sup Personal Indirecto'!$D$243*12)*'Sup Personal Indirecto'!G67*'Sup Personal Directo'!G$113*IF('Actividades Mtto'!$L$1='Actividades Mtto'!$D$6,0,1)","v":0},{"$f":"(('Sup Personal Indirecto'!H137*(1+SUM('Sup Personal Indirecto'!$D$234,'Sup Personal Indirecto'!$D$242,'Sup Personal Indirecto'!$D$244,'Sup Personal Indirecto'!$D$245)))*12+'Sup Personal Indirecto'!$D$243*12)*'Sup Personal Indirecto'!H67*'Sup Personal Directo'!H$113*IF('Actividades Mtto'!$L$1='Actividades Mtto'!$D$6,0,1)","v":0},{"$f":"(('Sup Personal Indirecto'!I137*(1+SUM('Sup Personal Indirecto'!$D$234,'Sup Personal Indirecto'!$D$242,'Sup Personal Indirecto'!$D$244,'Sup Personal Indirecto'!$D$245)))*12+'Sup Personal Indirecto'!$D$243*12)*'Sup Personal Indirecto'!I67*'Sup Personal Directo'!I$113*IF('Actividades Mtto'!$L$1='Actividades Mtto'!$D$6,0,1)","v":0},{"$f":"(('Sup Personal Indirecto'!J137*(1+SUM('Sup Personal Indirecto'!$D$234,'Sup Personal Indirecto'!$D$242,'Sup Personal Indirecto'!$D$244,'Sup Personal Indirecto'!$D$245)))*12+'Sup Personal Indirecto'!$D$243*12)*'Sup Personal Indirecto'!J67*'Sup Personal Directo'!J$113*IF('Actividades Mtto'!$L$1='Actividades Mtto'!$D$6,0,1)","v":0},{"$f":"(('Sup Personal Indirecto'!K137*(1+SUM('Sup Personal Indirecto'!$D$234,'Sup Personal Indirecto'!$D$242,'Sup Personal Indirecto'!$D$244,'Sup Personal Indirecto'!$D$245)))*12+'Sup Personal Indirecto'!$D$243*12)*'Sup Personal Indirecto'!K67*'Sup Personal Directo'!K$113*IF('Actividades Mtto'!$L$1='Actividades Mtto'!$D$6,0,1)","v":0},{"$f":"(('Sup Personal Indirecto'!L137*(1+SUM('Sup Personal Indirecto'!$D$234,'Sup Personal Indirecto'!$D$242,'Sup Personal Indirecto'!$D$244,'Sup Personal Indirecto'!$D$245)))*12+'Sup Personal Indirecto'!$D$243*12)*'Sup Personal Indirecto'!L67*'Sup Personal Directo'!L$113*IF('Actividades Mtto'!$L$1='Actividades Mtto'!$D$6,0,1)","v":0},{"$f":"(('Sup Personal Indirecto'!M137*(1+SUM('Sup Personal Indirecto'!$D$234,'Sup Personal Indirecto'!$D$242,'Sup Personal Indirecto'!$D$244,'Sup Personal Indirecto'!$D$245)))*12+'Sup Personal Indirecto'!$D$243*12)*'Sup Personal Indirecto'!M67*'Sup Personal Directo'!M$113*IF('Actividades Mtto'!$L$1='Actividades Mtto'!$D$6,0,1)","v":0},{"$f":"(('Sup Personal Indirecto'!N137*(1+SUM('Sup Personal Indirecto'!$D$234,'Sup Personal Indirecto'!$D$242,'Sup Personal Indirecto'!$D$244,'Sup Personal Indirecto'!$D$245)))*12+'Sup Personal Indirecto'!$D$243*12)*'Sup Personal Indirecto'!N67*'Sup Personal Directo'!N$113*IF('Actividades Mtto'!$L$1='Actividades Mtto'!$D$6,0,1)","v":0},{"$f":"(('Sup Personal Indirecto'!O137*(1+SUM('Sup Personal Indirecto'!$D$234,'Sup Personal Indirecto'!$D$242,'Sup Personal Indirecto'!$D$244,'Sup Personal Indirecto'!$D$245)))*12+'Sup Personal Indirecto'!$D$243*12)*'Sup Personal Indirecto'!O67*'Sup Personal Directo'!O$113*IF('Actividades Mtto'!$L$1='Actividades Mtto'!$D$6,0,1)","v":0},{"$f":"(('Sup Personal Indirecto'!P137*(1+SUM('Sup Personal Indirecto'!$D$234,'Sup Personal Indirecto'!$D$242,'Sup Personal Indirecto'!$D$244,'Sup Personal Indirecto'!$D$245)))*12+'Sup Personal Indirecto'!$D$243*12)*'Sup Personal Indirecto'!P67*'Sup Personal Directo'!P$113*IF('Actividades Mtto'!$L$1='Actividades Mtto'!$D$6,0,1)","v":0},{"$f":"(('Sup Personal Indirecto'!Q137*(1+SUM('Sup Personal Indirecto'!$D$234,'Sup Personal Indirecto'!$D$242,'Sup Personal Indirecto'!$D$244,'Sup Personal Indirecto'!$D$245)))*12+'Sup Personal Indirecto'!$D$243*12)*'Sup Personal Indirecto'!Q67*'Sup Personal Directo'!Q$113*IF('Actividades Mtto'!$L$1='Actividades Mtto'!$D$6,0,1)","v":0},{"$f":"(('Sup Personal Indirecto'!R137*(1+SUM('Sup Personal Indirecto'!$D$234,'Sup Personal Indirecto'!$D$242,'Sup Personal Indirecto'!$D$244,'Sup Personal Indirecto'!$D$245)))*12+'Sup Personal Indirecto'!$D$243*12)*'Sup Personal Indirecto'!R67*'Sup Personal Directo'!R$113*IF('Actividades Mtto'!$L$1='Actividades Mtto'!$D$6,0,1)","v":0},{"$f":"(('Sup Personal Indirecto'!S137*(1+SUM('Sup Personal Indirecto'!$D$234,'Sup Personal Indirecto'!$D$242,'Sup Personal Indirecto'!$D$244,'Sup Personal Indirecto'!$D$245)))*12+'Sup Personal Indirecto'!$D$243*12)*'Sup Personal Indirecto'!S67*'Sup Personal Directo'!S$113*IF('Actividades Mtto'!$L$1='Actividades Mtto'!$D$6,0,1)","v":0},{"$f":"(('Sup Personal Indirecto'!T137*(1+SUM('Sup Personal Indirecto'!$D$234,'Sup Personal Indirecto'!$D$242,'Sup Personal Indirecto'!$D$244,'Sup Personal Indirecto'!$D$245)))*12+'Sup Personal Indirecto'!$D$243*12)*'Sup Personal Indirecto'!T67*'Sup Personal Directo'!T$113*IF('Actividades Mtto'!$L$1='Actividades Mtto'!$D$6,0,1)","v":0},{"$f":"(('Sup Personal Indirecto'!U137*(1+SUM('Sup Personal Indirecto'!$D$234,'Sup Personal Indirecto'!$D$242,'Sup Personal Indirecto'!$D$244,'Sup Personal Indirecto'!$D$245)))*12+'Sup Personal Indirecto'!$D$243*12)*'Sup Personal Indirecto'!U67*'Sup Personal Directo'!U$113*IF('Actividades Mtto'!$L$1='Actividades Mtto'!$D$6,0,1)","v":0},{"$f":"(('Sup Personal Indirecto'!V137*(1+SUM('Sup Personal Indirecto'!$D$234,'Sup Personal Indirecto'!$D$242,'Sup Personal Indirecto'!$D$244,'Sup Personal Indirecto'!$D$245)))*12+'Sup Personal Indirecto'!$D$243*12)*'Sup Personal Indirecto'!V67*'Sup Personal Directo'!V$113*IF('Actividades Mtto'!$L$1='Actividades Mtto'!$D$6,0,1)","v":0},{"$f":"(('Sup Personal Indirecto'!W137*(1+SUM('Sup Personal Indirecto'!$D$234,'Sup Personal Indirecto'!$D$242,'Sup Personal Indirecto'!$D$244,'Sup Personal Indirecto'!$D$245)))*12+'Sup Personal Indirecto'!$D$243*12)*'Sup Personal Indirecto'!W67*'Sup Personal Directo'!W$113*IF('Actividades Mtto'!$L$1='Actividades Mtto'!$D$6,0,1)","v":0}]
[null,null,{"$f":"'Sup Personal Indirecto'!C208","v":"Cargo 4"},{"$f":"(('Sup Personal Indirecto'!D138*(1+SUM('Sup Personal Indirecto'!$D$234,'Sup Personal Indirecto'!$D$242,'Sup Personal Indirecto'!$D$244,'Sup Personal Indirecto'!$D$245)))*12+'Sup Personal Indirecto'!$D$243*12)*'Sup Personal Indirecto'!D68*'Sup Personal Directo'!D$113*IF('Actividades Mtto'!$L$1='Actividades Mtto'!$D$6,0,1)","v":0},{"$f":"(('Sup Personal Indirecto'!E138*(1+SUM('Sup Personal Indirecto'!$D$234,'Sup Personal Indirecto'!$D$242,'Sup Personal Indirecto'!$D$244,'Sup Personal Indirecto'!$D$245)))*12+'Sup Personal Indirecto'!$D$243*12)*'Sup Personal Indirecto'!E68*'Sup Personal Directo'!E$113*IF('Actividades Mtto'!$L$1='Actividades Mtto'!$D$6,0,1)","v":0},{"$f":"(('Sup Personal Indirecto'!F138*(1+SUM('Sup Personal Indirecto'!$D$234,'Sup Personal Indirecto'!$D$242,'Sup Personal Indirecto'!$D$244,'Sup Personal Indirecto'!$D$245)))*12+'Sup Personal Indirecto'!$D$243*12)*'Sup Personal Indirecto'!F68*'Sup Personal Directo'!F$113*IF('Actividades Mtto'!$L$1='Actividades Mtto'!$D$6,0,1)","v":0},{"$f":"(('Sup Personal Indirecto'!G138*(1+SUM('Sup Personal Indirecto'!$D$234,'Sup Personal Indirecto'!$D$242,'Sup Personal Indirecto'!$D$244,'Sup Personal Indirecto'!$D$245)))*12+'Sup Personal Indirecto'!$D$243*12)*'Sup Personal Indirecto'!G68*'Sup Personal Directo'!G$113*IF('Actividades Mtto'!$L$1='Actividades Mtto'!$D$6,0,1)","v":0},{"$f":"(('Sup Personal Indirecto'!H138*(1+SUM('Sup Personal Indirecto'!$D$234,'Sup Personal Indirecto'!$D$242,'Sup Personal Indirecto'!$D$244,'Sup Personal Indirecto'!$D$245)))*12+'Sup Personal Indirecto'!$D$243*12)*'Sup Personal Indirecto'!H68*'Sup Personal Directo'!H$113*IF('Actividades Mtto'!$L$1='Actividades Mtto'!$D$6,0,1)","v":0},{"$f":"(('Sup Personal Indirecto'!I138*(1+SUM('Sup Personal Indirecto'!$D$234,'Sup Personal Indirecto'!$D$242,'Sup Personal Indirecto'!$D$244,'Sup Personal Indirecto'!$D$245)))*12+'Sup Personal Indirecto'!$D$243*12)*'Sup Personal Indirecto'!I68*'Sup Personal Directo'!I$113*IF('Actividades Mtto'!$L$1='Actividades Mtto'!$D$6,0,1)","v":0},{"$f":"(('Sup Personal Indirecto'!J138*(1+SUM('Sup Personal Indirecto'!$D$234,'Sup Personal Indirecto'!$D$242,'Sup Personal Indirecto'!$D$244,'Sup Personal Indirecto'!$D$245)))*12+'Sup Personal Indirecto'!$D$243*12)*'Sup Personal Indirecto'!J68*'Sup Personal Directo'!J$113*IF('Actividades Mtto'!$L$1='Actividades Mtto'!$D$6,0,1)","v":0},{"$f":"(('Sup Personal Indirecto'!K138*(1+SUM('Sup Personal Indirecto'!$D$234,'Sup Personal Indirecto'!$D$242,'Sup Personal Indirecto'!$D$244,'Sup Personal Indirecto'!$D$245)))*12+'Sup Personal Indirecto'!$D$243*12)*'Sup Personal Indirecto'!K68*'Sup Personal Directo'!K$113*IF('Actividades Mtto'!$L$1='Actividades Mtto'!$D$6,0,1)","v":0},{"$f":"(('Sup Personal Indirecto'!L138*(1+SUM('Sup Personal Indirecto'!$D$234,'Sup Personal Indirecto'!$D$242,'Sup Personal Indirecto'!$D$244,'Sup Personal Indirecto'!$D$245)))*12+'Sup Personal Indirecto'!$D$243*12)*'Sup Personal Indirecto'!L68*'Sup Personal Directo'!L$113*IF('Actividades Mtto'!$L$1='Actividades Mtto'!$D$6,0,1)","v":0},{"$f":"(('Sup Personal Indirecto'!M138*(1+SUM('Sup Personal Indirecto'!$D$234,'Sup Personal Indirecto'!$D$242,'Sup Personal Indirecto'!$D$244,'Sup Personal Indirecto'!$D$245)))*12+'Sup Personal Indirecto'!$D$243*12)*'Sup Personal Indirecto'!M68*'Sup Personal Directo'!M$113*IF('Actividades Mtto'!$L$1='Actividades Mtto'!$D$6,0,1)","v":0},{"$f":"(('Sup Personal Indirecto'!N138*(1+SUM('Sup Personal Indirecto'!$D$234,'Sup Personal Indirecto'!$D$242,'Sup Personal Indirecto'!$D$244,'Sup Personal Indirecto'!$D$245)))*12+'Sup Personal Indirecto'!$D$243*12)*'Sup Personal Indirecto'!N68*'Sup Personal Directo'!N$113*IF('Actividades Mtto'!$L$1='Actividades Mtto'!$D$6,0,1)","v":0},{"$f":"(('Sup Personal Indirecto'!O138*(1+SUM('Sup Personal Indirecto'!$D$234,'Sup Personal Indirecto'!$D$242,'Sup Personal Indirecto'!$D$244,'Sup Personal Indirecto'!$D$245)))*12+'Sup Personal Indirecto'!$D$243*12)*'Sup Personal Indirecto'!O68*'Sup Personal Directo'!O$113*IF('Actividades Mtto'!$L$1='Actividades Mtto'!$D$6,0,1)","v":0},{"$f":"(('Sup Personal Indirecto'!P138*(1+SUM('Sup Personal Indirecto'!$D$234,'Sup Personal Indirecto'!$D$242,'Sup Personal Indirecto'!$D$244,'Sup Personal Indirecto'!$D$245)))*12+'Sup Personal Indirecto'!$D$243*12)*'Sup Personal Indirecto'!P68*'Sup Personal Directo'!P$113*IF('Actividades Mtto'!$L$1='Actividades Mtto'!$D$6,0,1)","v":0},{"$f":"(('Sup Personal Indirecto'!Q138*(1+SUM('Sup Personal Indirecto'!$D$234,'Sup Personal Indirecto'!$D$242,'Sup Personal Indirecto'!$D$244,'Sup Personal Indirecto'!$D$245)))*12+'Sup Personal Indirecto'!$D$243*12)*'Sup Personal Indirecto'!Q68*'Sup Personal Directo'!Q$113*IF('Actividades Mtto'!$L$1='Actividades Mtto'!$D$6,0,1)","v":0},{"$f":"(('Sup Personal Indirecto'!R138*(1+SUM('Sup Personal Indirecto'!$D$234,'Sup Personal Indirecto'!$D$242,'Sup Personal Indirecto'!$D$244,'Sup Personal Indirecto'!$D$245)))*12+'Sup Personal Indirecto'!$D$243*12)*'Sup Personal Indirecto'!R68*'Sup Personal Directo'!R$113*IF('Actividades Mtto'!$L$1='Actividades Mtto'!$D$6,0,1)","v":0},{"$f":"(('Sup Personal Indirecto'!S138*(1+SUM('Sup Personal Indirecto'!$D$234,'Sup Personal Indirecto'!$D$242,'Sup Personal Indirecto'!$D$244,'Sup Personal Indirecto'!$D$245)))*12+'Sup Personal Indirecto'!$D$243*12)*'Sup Personal Indirecto'!S68*'Sup Personal Directo'!S$113*IF('Actividades Mtto'!$L$1='Actividades Mtto'!$D$6,0,1)","v":0},{"$f":"(('Sup Personal Indirecto'!T138*(1+SUM('Sup Personal Indirecto'!$D$234,'Sup Personal Indirecto'!$D$242,'Sup Personal Indirecto'!$D$244,'Sup Personal Indirecto'!$D$245)))*12+'Sup Personal Indirecto'!$D$243*12)*'Sup Personal Indirecto'!T68*'Sup Personal Directo'!T$113*IF('Actividades Mtto'!$L$1='Actividades Mtto'!$D$6,0,1)","v":0},{"$f":"(('Sup Personal Indirecto'!U138*(1+SUM('Sup Personal Indirecto'!$D$234,'Sup Personal Indirecto'!$D$242,'Sup Personal Indirecto'!$D$244,'Sup Personal Indirecto'!$D$245)))*12+'Sup Personal Indirecto'!$D$243*12)*'Sup Personal Indirecto'!U68*'Sup Personal Directo'!U$113*IF('Actividades Mtto'!$L$1='Actividades Mtto'!$D$6,0,1)","v":0},{"$f":"(('Sup Personal Indirecto'!V138*(1+SUM('Sup Personal Indirecto'!$D$234,'Sup Personal Indirecto'!$D$242,'Sup Personal Indirecto'!$D$244,'Sup Personal Indirecto'!$D$245)))*12+'Sup Personal Indirecto'!$D$243*12)*'Sup Personal Indirecto'!V68*'Sup Personal Directo'!V$113*IF('Actividades Mtto'!$L$1='Actividades Mtto'!$D$6,0,1)","v":0},{"$f":"(('Sup Personal Indirecto'!W138*(1+SUM('Sup Personal Indirecto'!$D$234,'Sup Personal Indirecto'!$D$242,'Sup Personal Indirecto'!$D$244,'Sup Personal Indirecto'!$D$245)))*12+'Sup Personal Indirecto'!$D$243*12)*'Sup Personal Indirecto'!W68*'Sup Personal Directo'!W$113*IF('Actividades Mtto'!$L$1='Actividades Mtto'!$D$6,0,1)","v":0}]
[null,null,{"$f":"'Sup Personal Indirecto'!C209","v":"Cargo 5"},{"$f":"(('Sup Personal Indirecto'!D139*(1+SUM('Sup Personal Indirecto'!$D$234,'Sup Personal Indirecto'!$D$242,'Sup Personal Indirecto'!$D$244,'Sup Personal Indirecto'!$D$245)))*12+'Sup Personal Indirecto'!$D$243*12)*'Sup Personal Indirecto'!D69*'Sup Personal Directo'!D$113*IF('Actividades Mtto'!$L$1='Actividades Mtto'!$D$6,0,1)","v":0},{"$f":"(('Sup Personal Indirecto'!E139*(1+SUM('Sup Personal Indirecto'!$D$234,'Sup Personal Indirecto'!$D$242,'Sup Personal Indirecto'!$D$244,'Sup Personal Indirecto'!$D$245)))*12+'Sup Personal Indirecto'!$D$243*12)*'Sup Personal Indirecto'!E69*'Sup Personal Directo'!E$113*IF('Actividades Mtto'!$L$1='Actividades Mtto'!$D$6,0,1)","v":0},{"$f":"(('Sup Personal Indirecto'!F139*(1+SUM('Sup Personal Indirecto'!$D$234,'Sup Personal Indirecto'!$D$242,'Sup Personal Indirecto'!$D$244,'Sup Personal Indirecto'!$D$245)))*12+'Sup Personal Indirecto'!$D$243*12)*'Sup Personal Indirecto'!F69*'Sup Personal Directo'!F$113*IF('Actividades Mtto'!$L$1='Actividades Mtto'!$D$6,0,1)","v":0},{"$f":"(('Sup Personal Indirecto'!G139*(1+SUM('Sup Personal Indirecto'!$D$234,'Sup Personal Indirecto'!$D$242,'Sup Personal Indirecto'!$D$244,'Sup Personal Indirecto'!$D$245)))*12+'Sup Personal Indirecto'!$D$243*12)*'Sup Personal Indirecto'!G69*'Sup Personal Directo'!G$113*IF('Actividades Mtto'!$L$1='Actividades Mtto'!$D$6,0,1)","v":0},{"$f":"(('Sup Personal Indirecto'!H139*(1+SUM('Sup Personal Indirecto'!$D$234,'Sup Personal Indirecto'!$D$242,'Sup Personal Indirecto'!$D$244,'Sup Personal Indirecto'!$D$245)))*12+'Sup Personal Indirecto'!$D$243*12)*'Sup Personal Indirecto'!H69*'Sup Personal Directo'!H$113*IF('Actividades Mtto'!$L$1='Actividades Mtto'!$D$6,0,1)","v":0},{"$f":"(('Sup Personal Indirecto'!I139*(1+SUM('Sup Personal Indirecto'!$D$234,'Sup Personal Indirecto'!$D$242,'Sup Personal Indirecto'!$D$244,'Sup Personal Indirecto'!$D$245)))*12+'Sup Personal Indirecto'!$D$243*12)*'Sup Personal Indirecto'!I69*'Sup Personal Directo'!I$113*IF('Actividades Mtto'!$L$1='Actividades Mtto'!$D$6,0,1)","v":0},{"$f":"(('Sup Personal Indirecto'!J139*(1+SUM('Sup Personal Indirecto'!$D$234,'Sup Personal Indirecto'!$D$242,'Sup Personal Indirecto'!$D$244,'Sup Personal Indirecto'!$D$245)))*12+'Sup Personal Indirecto'!$D$243*12)*'Sup Personal Indirecto'!J69*'Sup Personal Directo'!J$113*IF('Actividades Mtto'!$L$1='Actividades Mtto'!$D$6,0,1)","v":0},{"$f":"(('Sup Personal Indirecto'!K139*(1+SUM('Sup Personal Indirecto'!$D$234,'Sup Personal Indirecto'!$D$242,'Sup Personal Indirecto'!$D$244,'Sup Personal Indirecto'!$D$245)))*12+'Sup Personal Indirecto'!$D$243*12)*'Sup Personal Indirecto'!K69*'Sup Personal Directo'!K$113*IF('Actividades Mtto'!$L$1='Actividades Mtto'!$D$6,0,1)","v":0},{"$f":"(('Sup Personal Indirecto'!L139*(1+SUM('Sup Personal Indirecto'!$D$234,'Sup Personal Indirecto'!$D$242,'Sup Personal Indirecto'!$D$244,'Sup Personal Indirecto'!$D$245)))*12+'Sup Personal Indirecto'!$D$243*12)*'Sup Personal Indirecto'!L69*'Sup Personal Directo'!L$113*IF('Actividades Mtto'!$L$1='Actividades Mtto'!$D$6,0,1)","v":0},{"$f":"(('Sup Personal Indirecto'!M139*(1+SUM('Sup Personal Indirecto'!$D$234,'Sup Personal Indirecto'!$D$242,'Sup Personal Indirecto'!$D$244,'Sup Personal Indirecto'!$D$245)))*12+'Sup Personal Indirecto'!$D$243*12)*'Sup Personal Indirecto'!M69*'Sup Personal Directo'!M$113*IF('Actividades Mtto'!$L$1='Actividades Mtto'!$D$6,0,1)","v":0},{"$f":"(('Sup Personal Indirecto'!N139*(1+SUM('Sup Personal Indirecto'!$D$234,'Sup Personal Indirecto'!$D$242,'Sup Personal Indirecto'!$D$244,'Sup Personal Indirecto'!$D$245)))*12+'Sup Personal Indirecto'!$D$243*12)*'Sup Personal Indirecto'!N69*'Sup Personal Directo'!N$113*IF('Actividades Mtto'!$L$1='Actividades Mtto'!$D$6,0,1)","v":0},{"$f":"(('Sup Personal Indirecto'!O139*(1+SUM('Sup Personal Indirecto'!$D$234,'Sup Personal Indirecto'!$D$242,'Sup Personal Indirecto'!$D$244,'Sup Personal Indirecto'!$D$245)))*12+'Sup Personal Indirecto'!$D$243*12)*'Sup Personal Indirecto'!O69*'Sup Personal Directo'!O$113*IF('Actividades Mtto'!$L$1='Actividades Mtto'!$D$6,0,1)","v":0},{"$f":"(('Sup Personal Indirecto'!P139*(1+SUM('Sup Personal Indirecto'!$D$234,'Sup Personal Indirecto'!$D$242,'Sup Personal Indirecto'!$D$244,'Sup Personal Indirecto'!$D$245)))*12+'Sup Personal Indirecto'!$D$243*12)*'Sup Personal Indirecto'!P69*'Sup Personal Directo'!P$113*IF('Actividades Mtto'!$L$1='Actividades Mtto'!$D$6,0,1)","v":0},{"$f":"(('Sup Personal Indirecto'!Q139*(1+SUM('Sup Personal Indirecto'!$D$234,'Sup Personal Indirecto'!$D$242,'Sup Personal Indirecto'!$D$244,'Sup Personal Indirecto'!$D$245)))*12+'Sup Personal Indirecto'!$D$243*12)*'Sup Personal Indirecto'!Q69*'Sup Personal Directo'!Q$113*IF('Actividades Mtto'!$L$1='Actividades Mtto'!$D$6,0,1)","v":0},{"$f":"(('Sup Personal Indirecto'!R139*(1+SUM('Sup Personal Indirecto'!$D$234,'Sup Personal Indirecto'!$D$242,'Sup Personal Indirecto'!$D$244,'Sup Personal Indirecto'!$D$245)))*12+'Sup Personal Indirecto'!$D$243*12)*'Sup Personal Indirecto'!R69*'Sup Personal Directo'!R$113*IF('Actividades Mtto'!$L$1='Actividades Mtto'!$D$6,0,1)","v":0},{"$f":"(('Sup Personal Indirecto'!S139*(1+SUM('Sup Personal Indirecto'!$D$234,'Sup Personal Indirecto'!$D$242,'Sup Personal Indirecto'!$D$244,'Sup Personal Indirecto'!$D$245)))*12+'Sup Personal Indirecto'!$D$243*12)*'Sup Personal Indirecto'!S69*'Sup Personal Directo'!S$113*IF('Actividades Mtto'!$L$1='Actividades Mtto'!$D$6,0,1)","v":0},{"$f":"(('Sup Personal Indirecto'!T139*(1+SUM('Sup Personal Indirecto'!$D$234,'Sup Personal Indirecto'!$D$242,'Sup Personal Indirecto'!$D$244,'Sup Personal Indirecto'!$D$245)))*12+'Sup Personal Indirecto'!$D$243*12)*'Sup Personal Indirecto'!T69*'Sup Personal Directo'!T$113*IF('Actividades Mtto'!$L$1='Actividades Mtto'!$D$6,0,1)","v":0},{"$f":"(('Sup Personal Indirecto'!U139*(1+SUM('Sup Personal Indirecto'!$D$234,'Sup Personal Indirecto'!$D$242,'Sup Personal Indirecto'!$D$244,'Sup Personal Indirecto'!$D$245)))*12+'Sup Personal Indirecto'!$D$243*12)*'Sup Personal Indirecto'!U69*'Sup Personal Directo'!U$113*IF('Actividades Mtto'!$L$1='Actividades Mtto'!$D$6,0,1)","v":0},{"$f":"(('Sup Personal Indirecto'!V139*(1+SUM('Sup Personal Indirecto'!$D$234,'Sup Personal Indirecto'!$D$242,'Sup Personal Indirecto'!$D$244,'Sup Personal Indirecto'!$D$245)))*12+'Sup Personal Indirecto'!$D$243*12)*'Sup Personal Indirecto'!V69*'Sup Personal Directo'!V$113*IF('Actividades Mtto'!$L$1='Actividades Mtto'!$D$6,0,1)","v":0},{"$f":"(('Sup Personal Indirecto'!W139*(1+SUM('Sup Personal Indirecto'!$D$234,'Sup Personal Indirecto'!$D$242,'Sup Personal Indirecto'!$D$244,'Sup Personal Indirecto'!$D$245)))*12+'Sup Personal Indirecto'!$D$243*12)*'Sup Personal Indirecto'!W69*'Sup Personal Directo'!W$113*IF('Actividades Mtto'!$L$1='Actividades Mtto'!$D$6,0,1)","v":0}]
[null,null,{"$f":"'Sup Personal Indirecto'!C210","v":"Cargo 6"},{"$f":"(('Sup Personal Indirecto'!D140*(1+SUM('Sup Personal Indirecto'!$D$234,'Sup Personal Indirecto'!$D$242,'Sup Personal Indirecto'!$D$244,'Sup Personal Indirecto'!$D$245)))*12+'Sup Personal Indirecto'!$D$243*12)*'Sup Personal Indirecto'!D70*'Sup Personal Directo'!D$113*IF('Actividades Mtto'!$L$1='Actividades Mtto'!$D$6,0,1)","v":0},{"$f":"(('Sup Personal Indirecto'!E140*(1+SUM('Sup Personal Indirecto'!$D$234,'Sup Personal Indirecto'!$D$242,'Sup Personal Indirecto'!$D$244,'Sup Personal Indirecto'!$D$245)))*12+'Sup Personal Indirecto'!$D$243*12)*'Sup Personal Indirecto'!E70*'Sup Personal Directo'!E$113*IF('Actividades Mtto'!$L$1='Actividades Mtto'!$D$6,0,1)","v":0},{"$f":"(('Sup Personal Indirecto'!F140*(1+SUM('Sup Personal Indirecto'!$D$234,'Sup Personal Indirecto'!$D$242,'Sup Personal Indirecto'!$D$244,'Sup Personal Indirecto'!$D$245)))*12+'Sup Personal Indirecto'!$D$243*12)*'Sup Personal Indirecto'!F70*'Sup Personal Directo'!F$113*IF('Actividades Mtto'!$L$1='Actividades Mtto'!$D$6,0,1)","v":0},{"$f":"(('Sup Personal Indirecto'!G140*(1+SUM('Sup Personal Indirecto'!$D$234,'Sup Personal Indirecto'!$D$242,'Sup Personal Indirecto'!$D$244,'Sup Personal Indirecto'!$D$245)))*12+'Sup Personal Indirecto'!$D$243*12)*'Sup Personal Indirecto'!G70*'Sup Personal Directo'!G$113*IF('Actividades Mtto'!$L$1='Actividades Mtto'!$D$6,0,1)","v":0},{"$f":"(('Sup Personal Indirecto'!H140*(1+SUM('Sup Personal Indirecto'!$D$234,'Sup Personal Indirecto'!$D$242,'Sup Personal Indirecto'!$D$244,'Sup Personal Indirecto'!$D$245)))*12+'Sup Personal Indirecto'!$D$243*12)*'Sup Personal Indirecto'!H70*'Sup Personal Directo'!H$113*IF('Actividades Mtto'!$L$1='Actividades Mtto'!$D$6,0,1)","v":0},{"$f":"(('Sup Personal Indirecto'!I140*(1+SUM('Sup Personal Indirecto'!$D$234,'Sup Personal Indirecto'!$D$242,'Sup Personal Indirecto'!$D$244,'Sup Personal Indirecto'!$D$245)))*12+'Sup Personal Indirecto'!$D$243*12)*'Sup Personal Indirecto'!I70*'Sup Personal Directo'!I$113*IF('Actividades Mtto'!$L$1='Actividades Mtto'!$D$6,0,1)","v":0},{"$f":"(('Sup Personal Indirecto'!J140*(1+SUM('Sup Personal Indirecto'!$D$234,'Sup Personal Indirecto'!$D$242,'Sup Personal Indirecto'!$D$244,'Sup Personal Indirecto'!$D$245)))*12+'Sup Personal Indirecto'!$D$243*12)*'Sup Personal Indirecto'!J70*'Sup Personal Directo'!J$113*IF('Actividades Mtto'!$L$1='Actividades Mtto'!$D$6,0,1)","v":0},{"$f":"(('Sup Personal Indirecto'!K140*(1+SUM('Sup Personal Indirecto'!$D$234,'Sup Personal Indirecto'!$D$242,'Sup Personal Indirecto'!$D$244,'Sup Personal Indirecto'!$D$245)))*12+'Sup Personal Indirecto'!$D$243*12)*'Sup Personal Indirecto'!K70*'Sup Personal Directo'!K$113*IF('Actividades Mtto'!$L$1='Actividades Mtto'!$D$6,0,1)","v":0},{"$f":"(('Sup Personal Indirecto'!L140*(1+SUM('Sup Personal Indirecto'!$D$234,'Sup Personal Indirecto'!$D$242,'Sup Personal Indirecto'!$D$244,'Sup Personal Indirecto'!$D$245)))*12+'Sup Personal Indirecto'!$D$243*12)*'Sup Personal Indirecto'!L70*'Sup Personal Directo'!L$113*IF('Actividades Mtto'!$L$1='Actividades Mtto'!$D$6,0,1)","v":0},{"$f":"(('Sup Personal Indirecto'!M140*(1+SUM('Sup Personal Indirecto'!$D$234,'Sup Personal Indirecto'!$D$242,'Sup Personal Indirecto'!$D$244,'Sup Personal Indirecto'!$D$245)))*12+'Sup Personal Indirecto'!$D$243*12)*'Sup Personal Indirecto'!M70*'Sup Personal Directo'!M$113*IF('Actividades Mtto'!$L$1='Actividades Mtto'!$D$6,0,1)","v":0},{"$f":"(('Sup Personal Indirecto'!N140*(1+SUM('Sup Personal Indirecto'!$D$234,'Sup Personal Indirecto'!$D$242,'Sup Personal Indirecto'!$D$244,'Sup Personal Indirecto'!$D$245)))*12+'Sup Personal Indirecto'!$D$243*12)*'Sup Personal Indirecto'!N70*'Sup Personal Directo'!N$113*IF('Actividades Mtto'!$L$1='Actividades Mtto'!$D$6,0,1)","v":0},{"$f":"(('Sup Personal Indirecto'!O140*(1+SUM('Sup Personal Indirecto'!$D$234,'Sup Personal Indirecto'!$D$242,'Sup Personal Indirecto'!$D$244,'Sup Personal Indirecto'!$D$245)))*12+'Sup Personal Indirecto'!$D$243*12)*'Sup Personal Indirecto'!O70*'Sup Personal Directo'!O$113*IF('Actividades Mtto'!$L$1='Actividades Mtto'!$D$6,0,1)","v":0},{"$f":"(('Sup Personal Indirecto'!P140*(1+SUM('Sup Personal Indirecto'!$D$234,'Sup Personal Indirecto'!$D$242,'Sup Personal Indirecto'!$D$244,'Sup Personal Indirecto'!$D$245)))*12+'Sup Personal Indirecto'!$D$243*12)*'Sup Personal Indirecto'!P70*'Sup Personal Directo'!P$113*IF('Actividades Mtto'!$L$1='Actividades Mtto'!$D$6,0,1)","v":0},{"$f":"(('Sup Personal Indirecto'!Q140*(1+SUM('Sup Personal Indirecto'!$D$234,'Sup Personal Indirecto'!$D$242,'Sup Personal Indirecto'!$D$244,'Sup Personal Indirecto'!$D$245)))*12+'Sup Personal Indirecto'!$D$243*12)*'Sup Personal Indirecto'!Q70*'Sup Personal Directo'!Q$113*IF('Actividades Mtto'!$L$1='Actividades Mtto'!$D$6,0,1)","v":0},{"$f":"(('Sup Personal Indirecto'!R140*(1+SUM('Sup Personal Indirecto'!$D$234,'Sup Personal Indirecto'!$D$242,'Sup Personal Indirecto'!$D$244,'Sup Personal Indirecto'!$D$245)))*12+'Sup Personal Indirecto'!$D$243*12)*'Sup Personal Indirecto'!R70*'Sup Personal Directo'!R$113*IF('Actividades Mtto'!$L$1='Actividades Mtto'!$D$6,0,1)","v":0},{"$f":"(('Sup Personal Indirecto'!S140*(1+SUM('Sup Personal Indirecto'!$D$234,'Sup Personal Indirecto'!$D$242,'Sup Personal Indirecto'!$D$244,'Sup Personal Indirecto'!$D$245)))*12+'Sup Personal Indirecto'!$D$243*12)*'Sup Personal Indirecto'!S70*'Sup Personal Directo'!S$113*IF('Actividades Mtto'!$L$1='Actividades Mtto'!$D$6,0,1)","v":0},{"$f":"(('Sup Personal Indirecto'!T140*(1+SUM('Sup Personal Indirecto'!$D$234,'Sup Personal Indirecto'!$D$242,'Sup Personal Indirecto'!$D$244,'Sup Personal Indirecto'!$D$245)))*12+'Sup Personal Indirecto'!$D$243*12)*'Sup Personal Indirecto'!T70*'Sup Personal Directo'!T$113*IF('Actividades Mtto'!$L$1='Actividades Mtto'!$D$6,0,1)","v":0},{"$f":"(('Sup Personal Indirecto'!U140*(1+SUM('Sup Personal Indirecto'!$D$234,'Sup Personal Indirecto'!$D$242,'Sup Personal Indirecto'!$D$244,'Sup Personal Indirecto'!$D$245)))*12+'Sup Personal Indirecto'!$D$243*12)*'Sup Personal Indirecto'!U70*'Sup Personal Directo'!U$113*IF('Actividades Mtto'!$L$1='Actividades Mtto'!$D$6,0,1)","v":0},{"$f":"(('Sup Personal Indirecto'!V140*(1+SUM('Sup Personal Indirecto'!$D$234,'Sup Personal Indirecto'!$D$242,'Sup Personal Indirecto'!$D$244,'Sup Personal Indirecto'!$D$245)))*12+'Sup Personal Indirecto'!$D$243*12)*'Sup Personal Indirecto'!V70*'Sup Personal Directo'!V$113*IF('Actividades Mtto'!$L$1='Actividades Mtto'!$D$6,0,1)","v":0},{"$f":"(('Sup Personal Indirecto'!W140*(1+SUM('Sup Personal Indirecto'!$D$234,'Sup Personal Indirecto'!$D$242,'Sup Personal Indirecto'!$D$244,'Sup Personal Indirecto'!$D$245)))*12+'Sup Personal Indirecto'!$D$243*12)*'Sup Personal Indirecto'!W70*'Sup Personal Directo'!W$113*IF('Actividades Mtto'!$L$1='Actividades Mtto'!$D$6,0,1)","v":0}]
[null,{"$f":"'Sup Personal Indirecto'!B211","v":"e) Área 5"}]
[null,null,{"$f":"'Sup Personal Indirecto'!C212","v":"Cargo 1"},{"$f":"(('Sup Personal Indirecto'!D142*(1+SUM('Sup Personal Indirecto'!$D$234,'Sup Personal Indirecto'!$D$242,'Sup Personal Indirecto'!$D$244,'Sup Personal Indirecto'!$D$245)))*12+'Sup Personal Indirecto'!$D$243*12)*'Sup Personal Indirecto'!D72*'Sup Personal Directo'!D$113","v":0},{"$f":"(('Sup Personal Indirecto'!E142*(1+SUM('Sup Personal Indirecto'!$D$234,'Sup Personal Indirecto'!$D$242,'Sup Personal Indirecto'!$D$244,'Sup Personal Indirecto'!$D$245)))*12+'Sup Personal Indirecto'!$D$243*12)*'Sup Personal Indirecto'!E72*'Sup Personal Directo'!E$113","v":0},{"$f":"(('Sup Personal Indirecto'!F142*(1+SUM('Sup Personal Indirecto'!$D$234,'Sup Personal Indirecto'!$D$242,'Sup Personal Indirecto'!$D$244,'Sup Personal Indirecto'!$D$245)))*12+'Sup Personal Indirecto'!$D$243*12)*'Sup Personal Indirecto'!F72*'Sup Personal Directo'!F$113","v":0},{"$f":"(('Sup Personal Indirecto'!G142*(1+SUM('Sup Personal Indirecto'!$D$234,'Sup Personal Indirecto'!$D$242,'Sup Personal Indirecto'!$D$244,'Sup Personal Indirecto'!$D$245)))*12+'Sup Personal Indirecto'!$D$243*12)*'Sup Personal Indirecto'!G72*'Sup Personal Directo'!G$113","v":0},{"$f":"(('Sup Personal Indirecto'!H142*(1+SUM('Sup Personal Indirecto'!$D$234,'Sup Personal Indirecto'!$D$242,'Sup Personal Indirecto'!$D$244,'Sup Personal Indirecto'!$D$245)))*12+'Sup Personal Indirecto'!$D$243*12)*'Sup Personal Indirecto'!H72*'Sup Personal Directo'!H$113","v":0},{"$f":"(('Sup Personal Indirecto'!I142*(1+SUM('Sup Personal Indirecto'!$D$234,'Sup Personal Indirecto'!$D$242,'Sup Personal Indirecto'!$D$244,'Sup Personal Indirecto'!$D$245)))*12+'Sup Personal Indirecto'!$D$243*12)*'Sup Personal Indirecto'!I72*'Sup Personal Directo'!I$113","v":0},{"$f":"(('Sup Personal Indirecto'!J142*(1+SUM('Sup Personal Indirecto'!$D$234,'Sup Personal Indirecto'!$D$242,'Sup Personal Indirecto'!$D$244,'Sup Personal Indirecto'!$D$245)))*12+'Sup Personal Indirecto'!$D$243*12)*'Sup Personal Indirecto'!J72*'Sup Personal Directo'!J$113","v":0},{"$f":"(('Sup Personal Indirecto'!K142*(1+SUM('Sup Personal Indirecto'!$D$234,'Sup Personal Indirecto'!$D$242,'Sup Personal Indirecto'!$D$244,'Sup Personal Indirecto'!$D$245)))*12+'Sup Personal Indirecto'!$D$243*12)*'Sup Personal Indirecto'!K72*'Sup Personal Directo'!K$113","v":0},{"$f":"(('Sup Personal Indirecto'!L142*(1+SUM('Sup Personal Indirecto'!$D$234,'Sup Personal Indirecto'!$D$242,'Sup Personal Indirecto'!$D$244,'Sup Personal Indirecto'!$D$245)))*12+'Sup Personal Indirecto'!$D$243*12)*'Sup Personal Indirecto'!L72*'Sup Personal Directo'!L$113","v":0},{"$f":"(('Sup Personal Indirecto'!M142*(1+SUM('Sup Personal Indirecto'!$D$234,'Sup Personal Indirecto'!$D$242,'Sup Personal Indirecto'!$D$244,'Sup Personal Indirecto'!$D$245)))*12+'Sup Personal Indirecto'!$D$243*12)*'Sup Personal Indirecto'!M72*'Sup Personal Directo'!M$113","v":0},{"$f":"(('Sup Personal Indirecto'!N142*(1+SUM('Sup Personal Indirecto'!$D$234,'Sup Personal Indirecto'!$D$242,'Sup Personal Indirecto'!$D$244,'Sup Personal Indirecto'!$D$245)))*12+'Sup Personal Indirecto'!$D$243*12)*'Sup Personal Indirecto'!N72*'Sup Personal Directo'!N$113","v":0},{"$f":"(('Sup Personal Indirecto'!O142*(1+SUM('Sup Personal Indirecto'!$D$234,'Sup Personal Indirecto'!$D$242,'Sup Personal Indirecto'!$D$244,'Sup Personal Indirecto'!$D$245)))*12+'Sup Personal Indirecto'!$D$243*12)*'Sup Personal Indirecto'!O72*'Sup Personal Directo'!O$113","v":0},{"$f":"(('Sup Personal Indirecto'!P142*(1+SUM('Sup Personal Indirecto'!$D$234,'Sup Personal Indirecto'!$D$242,'Sup Personal Indirecto'!$D$244,'Sup Personal Indirecto'!$D$245)))*12+'Sup Personal Indirecto'!$D$243*12)*'Sup Personal Indirecto'!P72*'Sup Personal Directo'!P$113","v":0},{"$f":"(('Sup Personal Indirecto'!Q142*(1+SUM('Sup Personal Indirecto'!$D$234,'Sup Personal Indirecto'!$D$242,'Sup Personal Indirecto'!$D$244,'Sup Personal Indirecto'!$D$245)))*12+'Sup Personal Indirecto'!$D$243*12)*'Sup Personal Indirecto'!Q72*'Sup Personal Directo'!Q$113","v":0},{"$f":"(('Sup Personal Indirecto'!R142*(1+SUM('Sup Personal Indirecto'!$D$234,'Sup Personal Indirecto'!$D$242,'Sup Personal Indirecto'!$D$244,'Sup Personal Indirecto'!$D$245)))*12+'Sup Personal Indirecto'!$D$243*12)*'Sup Personal Indirecto'!R72*'Sup Personal Directo'!R$113","v":0},{"$f":"(('Sup Personal Indirecto'!S142*(1+SUM('Sup Personal Indirecto'!$D$234,'Sup Personal Indirecto'!$D$242,'Sup Personal Indirecto'!$D$244,'Sup Personal Indirecto'!$D$245)))*12+'Sup Personal Indirecto'!$D$243*12)*'Sup Personal Indirecto'!S72*'Sup Personal Directo'!S$113","v":0},{"$f":"(('Sup Personal Indirecto'!T142*(1+SUM('Sup Personal Indirecto'!$D$234,'Sup Personal Indirecto'!$D$242,'Sup Personal Indirecto'!$D$244,'Sup Personal Indirecto'!$D$245)))*12+'Sup Personal Indirecto'!$D$243*12)*'Sup Personal Indirecto'!T72*'Sup Personal Directo'!T$113","v":0},{"$f":"(('Sup Personal Indirecto'!U142*(1+SUM('Sup Personal Indirecto'!$D$234,'Sup Personal Indirecto'!$D$242,'Sup Personal Indirecto'!$D$244,'Sup Personal Indirecto'!$D$245)))*12+'Sup Personal Indirecto'!$D$243*12)*'Sup Personal Indirecto'!U72*'Sup Personal Directo'!U$113","v":0},{"$f":"(('Sup Personal Indirecto'!V142*(1+SUM('Sup Personal Indirecto'!$D$234,'Sup Personal Indirecto'!$D$242,'Sup Personal Indirecto'!$D$244,'Sup Personal Indirecto'!$D$245)))*12+'Sup Personal Indirecto'!$D$243*12)*'Sup Personal Indirecto'!V72*'Sup Personal Directo'!V$113","v":0},{"$f":"(('Sup Personal Indirecto'!W142*(1+SUM('Sup Personal Indirecto'!$D$234,'Sup Personal Indirecto'!$D$242,'Sup Personal Indirecto'!$D$244,'Sup Personal Indirecto'!$D$245)))*12+'Sup Personal Indirecto'!$D$243*12)*'Sup Personal Indirecto'!W72*'Sup Personal Directo'!W$113","v":0}]
[null,null,{"$f":"'Sup Personal Indirecto'!C213","v":"Cargo 2"},{"$f":"(('Sup Personal Indirecto'!D143*(1+SUM('Sup Personal Indirecto'!$D$234,'Sup Personal Indirecto'!$D$242,'Sup Personal Indirecto'!$D$244,'Sup Personal Indirecto'!$D$245)))*12+'Sup Personal Indirecto'!$D$243*12)*'Sup Personal Indirecto'!D73*'Sup Personal Directo'!D$113","v":0},{"$f":"(('Sup Personal Indirecto'!E143*(1+SUM('Sup Personal Indirecto'!$D$234,'Sup Personal Indirecto'!$D$242,'Sup Personal Indirecto'!$D$244,'Sup Personal Indirecto'!$D$245)))*12+'Sup Personal Indirecto'!$D$243*12)*'Sup Personal Indirecto'!E73*'Sup Personal Directo'!E$113","v":0},{"$f":"(('Sup Personal Indirecto'!F143*(1+SUM('Sup Personal Indirecto'!$D$234,'Sup Personal Indirecto'!$D$242,'Sup Personal Indirecto'!$D$244,'Sup Personal Indirecto'!$D$245)))*12+'Sup Personal Indirecto'!$D$243*12)*'Sup Personal Indirecto'!F73*'Sup Personal Directo'!F$113","v":0},{"$f":"(('Sup Personal Indirecto'!G143*(1+SUM('Sup Personal Indirecto'!$D$234,'Sup Personal Indirecto'!$D$242,'Sup Personal Indirecto'!$D$244,'Sup Personal Indirecto'!$D$245)))*12+'Sup Personal Indirecto'!$D$243*12)*'Sup Personal Indirecto'!G73*'Sup Personal Directo'!G$113","v":0},{"$f":"(('Sup Personal Indirecto'!H143*(1+SUM('Sup Personal Indirecto'!$D$234,'Sup Personal Indirecto'!$D$242,'Sup Personal Indirecto'!$D$244,'Sup Personal Indirecto'!$D$245)))*12+'Sup Personal Indirecto'!$D$243*12)*'Sup Personal Indirecto'!H73*'Sup Personal Directo'!H$113","v":0},{"$f":"(('Sup Personal Indirecto'!I143*(1+SUM('Sup Personal Indirecto'!$D$234,'Sup Personal Indirecto'!$D$242,'Sup Personal Indirecto'!$D$244,'Sup Personal Indirecto'!$D$245)))*12+'Sup Personal Indirecto'!$D$243*12)*'Sup Personal Indirecto'!I73*'Sup Personal Directo'!I$113","v":0},{"$f":"(('Sup Personal Indirecto'!J143*(1+SUM('Sup Personal Indirecto'!$D$234,'Sup Personal Indirecto'!$D$242,'Sup Personal Indirecto'!$D$244,'Sup Personal Indirecto'!$D$245)))*12+'Sup Personal Indirecto'!$D$243*12)*'Sup Personal Indirecto'!J73*'Sup Personal Directo'!J$113","v":0},{"$f":"(('Sup Personal Indirecto'!K143*(1+SUM('Sup Personal Indirecto'!$D$234,'Sup Personal Indirecto'!$D$242,'Sup Personal Indirecto'!$D$244,'Sup Personal Indirecto'!$D$245)))*12+'Sup Personal Indirecto'!$D$243*12)*'Sup Personal Indirecto'!K73*'Sup Personal Directo'!K$113","v":0},{"$f":"(('Sup Personal Indirecto'!L143*(1+SUM('Sup Personal Indirecto'!$D$234,'Sup Personal Indirecto'!$D$242,'Sup Personal Indirecto'!$D$244,'Sup Personal Indirecto'!$D$245)))*12+'Sup Personal Indirecto'!$D$243*12)*'Sup Personal Indirecto'!L73*'Sup Personal Directo'!L$113","v":0},{"$f":"(('Sup Personal Indirecto'!M143*(1+SUM('Sup Personal Indirecto'!$D$234,'Sup Personal Indirecto'!$D$242,'Sup Personal Indirecto'!$D$244,'Sup Personal Indirecto'!$D$245)))*12+'Sup Personal Indirecto'!$D$243*12)*'Sup Personal Indirecto'!M73*'Sup Personal Directo'!M$113","v":0},{"$f":"(('Sup Personal Indirecto'!N143*(1+SUM('Sup Personal Indirecto'!$D$234,'Sup Personal Indirecto'!$D$242,'Sup Personal Indirecto'!$D$244,'Sup Personal Indirecto'!$D$245)))*12+'Sup Personal Indirecto'!$D$243*12)*'Sup Personal Indirecto'!N73*'Sup Personal Directo'!N$113","v":0},{"$f":"(('Sup Personal Indirecto'!O143*(1+SUM('Sup Personal Indirecto'!$D$234,'Sup Personal Indirecto'!$D$242,'Sup Personal Indirecto'!$D$244,'Sup Personal Indirecto'!$D$245)))*12+'Sup Personal Indirecto'!$D$243*12)*'Sup Personal Indirecto'!O73*'Sup Personal Directo'!O$113","v":0},{"$f":"(('Sup Personal Indirecto'!P143*(1+SUM('Sup Personal Indirecto'!$D$234,'Sup Personal Indirecto'!$D$242,'Sup Personal Indirecto'!$D$244,'Sup Personal Indirecto'!$D$245)))*12+'Sup Personal Indirecto'!$D$243*12)*'Sup Personal Indirecto'!P73*'Sup Personal Directo'!P$113","v":0},{"$f":"(('Sup Personal Indirecto'!Q143*(1+SUM('Sup Personal Indirecto'!$D$234,'Sup Personal Indirecto'!$D$242,'Sup Personal Indirecto'!$D$244,'Sup Personal Indirecto'!$D$245)))*12+'Sup Personal Indirecto'!$D$243*12)*'Sup Personal Indirecto'!Q73*'Sup Personal Directo'!Q$113","v":0},{"$f":"(('Sup Personal Indirecto'!R143*(1+SUM('Sup Personal Indirecto'!$D$234,'Sup Personal Indirecto'!$D$242,'Sup Personal Indirecto'!$D$244,'Sup Personal Indirecto'!$D$245)))*12+'Sup Personal Indirecto'!$D$243*12)*'Sup Personal Indirecto'!R73*'Sup Personal Directo'!R$113","v":0},{"$f":"(('Sup Personal Indirecto'!S143*(1+SUM('Sup Personal Indirecto'!$D$234,'Sup Personal Indirecto'!$D$242,'Sup Personal Indirecto'!$D$244,'Sup Personal Indirecto'!$D$245)))*12+'Sup Personal Indirecto'!$D$243*12)*'Sup Personal Indirecto'!S73*'Sup Personal Directo'!S$113","v":0},{"$f":"(('Sup Personal Indirecto'!T143*(1+SUM('Sup Personal Indirecto'!$D$234,'Sup Personal Indirecto'!$D$242,'Sup Personal Indirecto'!$D$244,'Sup Personal Indirecto'!$D$245)))*12+'Sup Personal Indirecto'!$D$243*12)*'Sup Personal Indirecto'!T73*'Sup Personal Directo'!T$113","v":0},{"$f":"(('Sup Personal Indirecto'!U143*(1+SUM('Sup Personal Indirecto'!$D$234,'Sup Personal Indirecto'!$D$242,'Sup Personal Indirecto'!$D$244,'Sup Personal Indirecto'!$D$245)))*12+'Sup Personal Indirecto'!$D$243*12)*'Sup Personal Indirecto'!U73*'Sup Personal Directo'!U$113","v":0},{"$f":"(('Sup Personal Indirecto'!V143*(1+SUM('Sup Personal Indirecto'!$D$234,'Sup Personal Indirecto'!$D$242,'Sup Personal Indirecto'!$D$244,'Sup Personal Indirecto'!$D$245)))*12+'Sup Personal Indirecto'!$D$243*12)*'Sup Personal Indirecto'!V73*'Sup Personal Directo'!V$113","v":0},{"$f":"(('Sup Personal Indirecto'!W143*(1+SUM('Sup Personal Indirecto'!$D$234,'Sup Personal Indirecto'!$D$242,'Sup Personal Indirecto'!$D$244,'Sup Personal Indirecto'!$D$245)))*12+'Sup Personal Indirecto'!$D$243*12)*'Sup Personal Indirecto'!W73*'Sup Personal Directo'!W$113","v":0}]
[null,null,{"$f":"'Sup Personal Indirecto'!C214","v":"Cargo 3"},{"$f":"(('Sup Personal Indirecto'!D144*(1+SUM('Sup Personal Indirecto'!$D$234,'Sup Personal Indirecto'!$D$242,'Sup Personal Indirecto'!$D$244,'Sup Personal Indirecto'!$D$245)))*12+'Sup Personal Indirecto'!$D$243*12)*'Sup Personal Indirecto'!D74*'Sup Personal Directo'!D$113","v":0},{"$f":"(('Sup Personal Indirecto'!E144*(1+SUM('Sup Personal Indirecto'!$D$234,'Sup Personal Indirecto'!$D$242,'Sup Personal Indirecto'!$D$244,'Sup Personal Indirecto'!$D$245)))*12+'Sup Personal Indirecto'!$D$243*12)*'Sup Personal Indirecto'!E74*'Sup Personal Directo'!E$113","v":0},{"$f":"(('Sup Personal Indirecto'!F144*(1+SUM('Sup Personal Indirecto'!$D$234,'Sup Personal Indirecto'!$D$242,'Sup Personal Indirecto'!$D$244,'Sup Personal Indirecto'!$D$245)))*12+'Sup Personal Indirecto'!$D$243*12)*'Sup Personal Indirecto'!F74*'Sup Personal Directo'!F$113","v":0},{"$f":"(('Sup Personal Indirecto'!G144*(1+SUM('Sup Personal Indirecto'!$D$234,'Sup Personal Indirecto'!$D$242,'Sup Personal Indirecto'!$D$244,'Sup Personal Indirecto'!$D$245)))*12+'Sup Personal Indirecto'!$D$243*12)*'Sup Personal Indirecto'!G74*'Sup Personal Directo'!G$113","v":0},{"$f":"(('Sup Personal Indirecto'!H144*(1+SUM('Sup Personal Indirecto'!$D$234,'Sup Personal Indirecto'!$D$242,'Sup Personal Indirecto'!$D$244,'Sup Personal Indirecto'!$D$245)))*12+'Sup Personal Indirecto'!$D$243*12)*'Sup Personal Indirecto'!H74*'Sup Personal Directo'!H$113","v":0},{"$f":"(('Sup Personal Indirecto'!I144*(1+SUM('Sup Personal Indirecto'!$D$234,'Sup Personal Indirecto'!$D$242,'Sup Personal Indirecto'!$D$244,'Sup Personal Indirecto'!$D$245)))*12+'Sup Personal Indirecto'!$D$243*12)*'Sup Personal Indirecto'!I74*'Sup Personal Directo'!I$113","v":0},{"$f":"(('Sup Personal Indirecto'!J144*(1+SUM('Sup Personal Indirecto'!$D$234,'Sup Personal Indirecto'!$D$242,'Sup Personal Indirecto'!$D$244,'Sup Personal Indirecto'!$D$245)))*12+'Sup Personal Indirecto'!$D$243*12)*'Sup Personal Indirecto'!J74*'Sup Personal Directo'!J$113","v":0},{"$f":"(('Sup Personal Indirecto'!K144*(1+SUM('Sup Personal Indirecto'!$D$234,'Sup Personal Indirecto'!$D$242,'Sup Personal Indirecto'!$D$244,'Sup Personal Indirecto'!$D$245)))*12+'Sup Personal Indirecto'!$D$243*12)*'Sup Personal Indirecto'!K74*'Sup Personal Directo'!K$113","v":0},{"$f":"(('Sup Personal Indirecto'!L144*(1+SUM('Sup Personal Indirecto'!$D$234,'Sup Personal Indirecto'!$D$242,'Sup Personal Indirecto'!$D$244,'Sup Personal Indirecto'!$D$245)))*12+'Sup Personal Indirecto'!$D$243*12)*'Sup Personal Indirecto'!L74*'Sup Personal Directo'!L$113","v":0},{"$f":"(('Sup Personal Indirecto'!M144*(1+SUM('Sup Personal Indirecto'!$D$234,'Sup Personal Indirecto'!$D$242,'Sup Personal Indirecto'!$D$244,'Sup Personal Indirecto'!$D$245)))*12+'Sup Personal Indirecto'!$D$243*12)*'Sup Personal Indirecto'!M74*'Sup Personal Directo'!M$113","v":0},{"$f":"(('Sup Personal Indirecto'!N144*(1+SUM('Sup Personal Indirecto'!$D$234,'Sup Personal Indirecto'!$D$242,'Sup Personal Indirecto'!$D$244,'Sup Personal Indirecto'!$D$245)))*12+'Sup Personal Indirecto'!$D$243*12)*'Sup Personal Indirecto'!N74*'Sup Personal Directo'!N$113","v":0},{"$f":"(('Sup Personal Indirecto'!O144*(1+SUM('Sup Personal Indirecto'!$D$234,'Sup Personal Indirecto'!$D$242,'Sup Personal Indirecto'!$D$244,'Sup Personal Indirecto'!$D$245)))*12+'Sup Personal Indirecto'!$D$243*12)*'Sup Personal Indirecto'!O74*'Sup Personal Directo'!O$113","v":0},{"$f":"(('Sup Personal Indirecto'!P144*(1+SUM('Sup Personal Indirecto'!$D$234,'Sup Personal Indirecto'!$D$242,'Sup Personal Indirecto'!$D$244,'Sup Personal Indirecto'!$D$245)))*12+'Sup Personal Indirecto'!$D$243*12)*'Sup Personal Indirecto'!P74*'Sup Personal Directo'!P$113","v":0},{"$f":"(('Sup Personal Indirecto'!Q144*(1+SUM('Sup Personal Indirecto'!$D$234,'Sup Personal Indirecto'!$D$242,'Sup Personal Indirecto'!$D$244,'Sup Personal Indirecto'!$D$245)))*12+'Sup Personal Indirecto'!$D$243*12)*'Sup Personal Indirecto'!Q74*'Sup Personal Directo'!Q$113","v":0},{"$f":"(('Sup Personal Indirecto'!R144*(1+SUM('Sup Personal Indirecto'!$D$234,'Sup Personal Indirecto'!$D$242,'Sup Personal Indirecto'!$D$244,'Sup Personal Indirecto'!$D$245)))*12+'Sup Personal Indirecto'!$D$243*12)*'Sup Personal Indirecto'!R74*'Sup Personal Directo'!R$113","v":0},{"$f":"(('Sup Personal Indirecto'!S144*(1+SUM('Sup Personal Indirecto'!$D$234,'Sup Personal Indirecto'!$D$242,'Sup Personal Indirecto'!$D$244,'Sup Personal Indirecto'!$D$245)))*12+'Sup Personal Indirecto'!$D$243*12)*'Sup Personal Indirecto'!S74*'Sup Personal Directo'!S$113","v":0},{"$f":"(('Sup Personal Indirecto'!T144*(1+SUM('Sup Personal Indirecto'!$D$234,'Sup Personal Indirecto'!$D$242,'Sup Personal Indirecto'!$D$244,'Sup Personal Indirecto'!$D$245)))*12+'Sup Personal Indirecto'!$D$243*12)*'Sup Personal Indirecto'!T74*'Sup Personal Directo'!T$113","v":0},{"$f":"(('Sup Personal Indirecto'!U144*(1+SUM('Sup Personal Indirecto'!$D$234,'Sup Personal Indirecto'!$D$242,'Sup Personal Indirecto'!$D$244,'Sup Personal Indirecto'!$D$245)))*12+'Sup Personal Indirecto'!$D$243*12)*'Sup Personal Indirecto'!U74*'Sup Personal Directo'!U$113","v":0},{"$f":"(('Sup Personal Indirecto'!V144*(1+SUM('Sup Personal Indirecto'!$D$234,'Sup Personal Indirecto'!$D$242,'Sup Personal Indirecto'!$D$244,'Sup Personal Indirecto'!$D$245)))*12+'Sup Personal Indirecto'!$D$243*12)*'Sup Personal Indirecto'!V74*'Sup Personal Directo'!V$113","v":0},{"$f":"(('Sup Personal Indirecto'!W144*(1+SUM('Sup Personal Indirecto'!$D$234,'Sup Personal Indirecto'!$D$242,'Sup Personal Indirecto'!$D$244,'Sup Personal Indirecto'!$D$245)))*12+'Sup Personal Indirecto'!$D$243*12)*'Sup Personal Indirecto'!W74*'Sup Personal Directo'!W$113","v":0}]
[null,null,{"$f":"'Sup Personal Indirecto'!C215","v":"Cargo 4"},{"$f":"(('Sup Personal Indirecto'!D145*(1+SUM('Sup Personal Indirecto'!$D$234,'Sup Personal Indirecto'!$D$242,'Sup Personal Indirecto'!$D$244,'Sup Personal Indirecto'!$D$245)))*12+'Sup Personal Indirecto'!$D$243*12)*'Sup Personal Indirecto'!D75*'Sup Personal Directo'!D$113","v":0},{"$f":"(('Sup Personal Indirecto'!E145*(1+SUM('Sup Personal Indirecto'!$D$234,'Sup Personal Indirecto'!$D$242,'Sup Personal Indirecto'!$D$244,'Sup Personal Indirecto'!$D$245)))*12+'Sup Personal Indirecto'!$D$243*12)*'Sup Personal Indirecto'!E75*'Sup Personal Directo'!E$113","v":0},{"$f":"(('Sup Personal Indirecto'!F145*(1+SUM('Sup Personal Indirecto'!$D$234,'Sup Personal Indirecto'!$D$242,'Sup Personal Indirecto'!$D$244,'Sup Personal Indirecto'!$D$245)))*12+'Sup Personal Indirecto'!$D$243*12)*'Sup Personal Indirecto'!F75*'Sup Personal Directo'!F$113","v":0},{"$f":"(('Sup Personal Indirecto'!G145*(1+SUM('Sup Personal Indirecto'!$D$234,'Sup Personal Indirecto'!$D$242,'Sup Personal Indirecto'!$D$244,'Sup Personal Indirecto'!$D$245)))*12+'Sup Personal Indirecto'!$D$243*12)*'Sup Personal Indirecto'!G75*'Sup Personal Directo'!G$113","v":0},{"$f":"(('Sup Personal Indirecto'!H145*(1+SUM('Sup Personal Indirecto'!$D$234,'Sup Personal Indirecto'!$D$242,'Sup Personal Indirecto'!$D$244,'Sup Personal Indirecto'!$D$245)))*12+'Sup Personal Indirecto'!$D$243*12)*'Sup Personal Indirecto'!H75*'Sup Personal Directo'!H$113","v":0},{"$f":"(('Sup Personal Indirecto'!I145*(1+SUM('Sup Personal Indirecto'!$D$234,'Sup Personal Indirecto'!$D$242,'Sup Personal Indirecto'!$D$244,'Sup Personal Indirecto'!$D$245)))*12+'Sup Personal Indirecto'!$D$243*12)*'Sup Personal Indirecto'!I75*'Sup Personal Directo'!I$113","v":0},{"$f":"(('Sup Personal Indirecto'!J145*(1+SUM('Sup Personal Indirecto'!$D$234,'Sup Personal Indirecto'!$D$242,'Sup Personal Indirecto'!$D$244,'Sup Personal Indirecto'!$D$245)))*12+'Sup Personal Indirecto'!$D$243*12)*'Sup Personal Indirecto'!J75*'Sup Personal Directo'!J$113","v":0},{"$f":"(('Sup Personal Indirecto'!K145*(1+SUM('Sup Personal Indirecto'!$D$234,'Sup Personal Indirecto'!$D$242,'Sup Personal Indirecto'!$D$244,'Sup Personal Indirecto'!$D$245)))*12+'Sup Personal Indirecto'!$D$243*12)*'Sup Personal Indirecto'!K75*'Sup Personal Directo'!K$113","v":0},{"$f":"(('Sup Personal Indirecto'!L145*(1+SUM('Sup Personal Indirecto'!$D$234,'Sup Personal Indirecto'!$D$242,'Sup Personal Indirecto'!$D$244,'Sup Personal Indirecto'!$D$245)))*12+'Sup Personal Indirecto'!$D$243*12)*'Sup Personal Indirecto'!L75*'Sup Personal Directo'!L$113","v":0},{"$f":"(('Sup Personal Indirecto'!M145*(1+SUM('Sup Personal Indirecto'!$D$234,'Sup Personal Indirecto'!$D$242,'Sup Personal Indirecto'!$D$244,'Sup Personal Indirecto'!$D$245)))*12+'Sup Personal Indirecto'!$D$243*12)*'Sup Personal Indirecto'!M75*'Sup Personal Directo'!M$113","v":0},{"$f":"(('Sup Personal Indirecto'!N145*(1+SUM('Sup Personal Indirecto'!$D$234,'Sup Personal Indirecto'!$D$242,'Sup Personal Indirecto'!$D$244,'Sup Personal Indirecto'!$D$245)))*12+'Sup Personal Indirecto'!$D$243*12)*'Sup Personal Indirecto'!N75*'Sup Personal Directo'!N$113","v":0},{"$f":"(('Sup Personal Indirecto'!O145*(1+SUM('Sup Personal Indirecto'!$D$234,'Sup Personal Indirecto'!$D$242,'Sup Personal Indirecto'!$D$244,'Sup Personal Indirecto'!$D$245)))*12+'Sup Personal Indirecto'!$D$243*12)*'Sup Personal Indirecto'!O75*'Sup Personal Directo'!O$113","v":0},{"$f":"(('Sup Personal Indirecto'!P145*(1+SUM('Sup Personal Indirecto'!$D$234,'Sup Personal Indirecto'!$D$242,'Sup Personal Indirecto'!$D$244,'Sup Personal Indirecto'!$D$245)))*12+'Sup Personal Indirecto'!$D$243*12)*'Sup Personal Indirecto'!P75*'Sup Personal Directo'!P$113","v":0},{"$f":"(('Sup Personal Indirecto'!Q145*(1+SUM('Sup Personal Indirecto'!$D$234,'Sup Personal Indirecto'!$D$242,'Sup Personal Indirecto'!$D$244,'Sup Personal Indirecto'!$D$245)))*12+'Sup Personal Indirecto'!$D$243*12)*'Sup Personal Indirecto'!Q75*'Sup Personal Directo'!Q$113","v":0},{"$f":"(('Sup Personal Indirecto'!R145*(1+SUM('Sup Personal Indirecto'!$D$234,'Sup Personal Indirecto'!$D$242,'Sup Personal Indirecto'!$D$244,'Sup Personal Indirecto'!$D$245)))*12+'Sup Personal Indirecto'!$D$243*12)*'Sup Personal Indirecto'!R75*'Sup Personal Directo'!R$113","v":0},{"$f":"(('Sup Personal Indirecto'!S145*(1+SUM('Sup Personal Indirecto'!$D$234,'Sup Personal Indirecto'!$D$242,'Sup Personal Indirecto'!$D$244,'Sup Personal Indirecto'!$D$245)))*12+'Sup Personal Indirecto'!$D$243*12)*'Sup Personal Indirecto'!S75*'Sup Personal Directo'!S$113","v":0},{"$f":"(('Sup Personal Indirecto'!T145*(1+SUM('Sup Personal Indirecto'!$D$234,'Sup Personal Indirecto'!$D$242,'Sup Personal Indirecto'!$D$244,'Sup Personal Indirecto'!$D$245)))*12+'Sup Personal Indirecto'!$D$243*12)*'Sup Personal Indirecto'!T75*'Sup Personal Directo'!T$113","v":0},{"$f":"(('Sup Personal Indirecto'!U145*(1+SUM('Sup Personal Indirecto'!$D$234,'Sup Personal Indirecto'!$D$242,'Sup Personal Indirecto'!$D$244,'Sup Personal Indirecto'!$D$245)))*12+'Sup Personal Indirecto'!$D$243*12)*'Sup Personal Indirecto'!U75*'Sup Personal Directo'!U$113","v":0},{"$f":"(('Sup Personal Indirecto'!V145*(1+SUM('Sup Personal Indirecto'!$D$234,'Sup Personal Indirecto'!$D$242,'Sup Personal Indirecto'!$D$244,'Sup Personal Indirecto'!$D$245)))*12+'Sup Personal Indirecto'!$D$243*12)*'Sup Personal Indirecto'!V75*'Sup Personal Directo'!V$113","v":0},{"$f":"(('Sup Personal Indirecto'!W145*(1+SUM('Sup Personal Indirecto'!$D$234,'Sup Personal Indirecto'!$D$242,'Sup Personal Indirecto'!$D$244,'Sup Personal Indirecto'!$D$245)))*12+'Sup Personal Indirecto'!$D$243*12)*'Sup Personal Indirecto'!W75*'Sup Personal Directo'!W$113","v":0}]
[null,null,{"$f":"'Sup Personal Indirecto'!C216","v":"Cargo 5"},{"$f":"(('Sup Personal Indirecto'!D146*(1+SUM('Sup Personal Indirecto'!$D$234,'Sup Personal Indirecto'!$D$242,'Sup Personal Indirecto'!$D$244,'Sup Personal Indirecto'!$D$245)))*12+'Sup Personal Indirecto'!$D$243*12)*'Sup Personal Indirecto'!D76*'Sup Personal Directo'!D$113","v":0},{"$f":"(('Sup Personal Indirecto'!E146*(1+SUM('Sup Personal Indirecto'!$D$234,'Sup Personal Indirecto'!$D$242,'Sup Personal Indirecto'!$D$244,'Sup Personal Indirecto'!$D$245)))*12+'Sup Personal Indirecto'!$D$243*12)*'Sup Personal Indirecto'!E76*'Sup Personal Directo'!E$113","v":0},{"$f":"(('Sup Personal Indirecto'!F146*(1+SUM('Sup Personal Indirecto'!$D$234,'Sup Personal Indirecto'!$D$242,'Sup Personal Indirecto'!$D$244,'Sup Personal Indirecto'!$D$245)))*12+'Sup Personal Indirecto'!$D$243*12)*'Sup Personal Indirecto'!F76*'Sup Personal Directo'!F$113","v":0},{"$f":"(('Sup Personal Indirecto'!G146*(1+SUM('Sup Personal Indirecto'!$D$234,'Sup Personal Indirecto'!$D$242,'Sup Personal Indirecto'!$D$244,'Sup Personal Indirecto'!$D$245)))*12+'Sup Personal Indirecto'!$D$243*12)*'Sup Personal Indirecto'!G76*'Sup Personal Directo'!G$113","v":0},{"$f":"(('Sup Personal Indirecto'!H146*(1+SUM('Sup Personal Indirecto'!$D$234,'Sup Personal Indirecto'!$D$242,'Sup Personal Indirecto'!$D$244,'Sup Personal Indirecto'!$D$245)))*12+'Sup Personal Indirecto'!$D$243*12)*'Sup Personal Indirecto'!H76*'Sup Personal Directo'!H$113","v":0},{"$f":"(('Sup Personal Indirecto'!I146*(1+SUM('Sup Personal Indirecto'!$D$234,'Sup Personal Indirecto'!$D$242,'Sup Personal Indirecto'!$D$244,'Sup Personal Indirecto'!$D$245)))*12+'Sup Personal Indirecto'!$D$243*12)*'Sup Personal Indirecto'!I76*'Sup Personal Directo'!I$113","v":0},{"$f":"(('Sup Personal Indirecto'!J146*(1+SUM('Sup Personal Indirecto'!$D$234,'Sup Personal Indirecto'!$D$242,'Sup Personal Indirecto'!$D$244,'Sup Personal Indirecto'!$D$245)))*12+'Sup Personal Indirecto'!$D$243*12)*'Sup Personal Indirecto'!J76*'Sup Personal Directo'!J$113","v":0},{"$f":"(('Sup Personal Indirecto'!K146*(1+SUM('Sup Personal Indirecto'!$D$234,'Sup Personal Indirecto'!$D$242,'Sup Personal Indirecto'!$D$244,'Sup Personal Indirecto'!$D$245)))*12+'Sup Personal Indirecto'!$D$243*12)*'Sup Personal Indirecto'!K76*'Sup Personal Directo'!K$113","v":0},{"$f":"(('Sup Personal Indirecto'!L146*(1+SUM('Sup Personal Indirecto'!$D$234,'Sup Personal Indirecto'!$D$242,'Sup Personal Indirecto'!$D$244,'Sup Personal Indirecto'!$D$245)))*12+'Sup Personal Indirecto'!$D$243*12)*'Sup Personal Indirecto'!L76*'Sup Personal Directo'!L$113","v":0},{"$f":"(('Sup Personal Indirecto'!M146*(1+SUM('Sup Personal Indirecto'!$D$234,'Sup Personal Indirecto'!$D$242,'Sup Personal Indirecto'!$D$244,'Sup Personal Indirecto'!$D$245)))*12+'Sup Personal Indirecto'!$D$243*12)*'Sup Personal Indirecto'!M76*'Sup Personal Directo'!M$113","v":0},{"$f":"(('Sup Personal Indirecto'!N146*(1+SUM('Sup Personal Indirecto'!$D$234,'Sup Personal Indirecto'!$D$242,'Sup Personal Indirecto'!$D$244,'Sup Personal Indirecto'!$D$245)))*12+'Sup Personal Indirecto'!$D$243*12)*'Sup Personal Indirecto'!N76*'Sup Personal Directo'!N$113","v":0},{"$f":"(('Sup Personal Indirecto'!O146*(1+SUM('Sup Personal Indirecto'!$D$234,'Sup Personal Indirecto'!$D$242,'Sup Personal Indirecto'!$D$244,'Sup Personal Indirecto'!$D$245)))*12+'Sup Personal Indirecto'!$D$243*12)*'Sup Personal Indirecto'!O76*'Sup Personal Directo'!O$113","v":0},{"$f":"(('Sup Personal Indirecto'!P146*(1+SUM('Sup Personal Indirecto'!$D$234,'Sup Personal Indirecto'!$D$242,'Sup Personal Indirecto'!$D$244,'Sup Personal Indirecto'!$D$245)))*12+'Sup Personal Indirecto'!$D$243*12)*'Sup Personal Indirecto'!P76*'Sup Personal Directo'!P$113","v":0},{"$f":"(('Sup Personal Indirecto'!Q146*(1+SUM('Sup Personal Indirecto'!$D$234,'Sup Personal Indirecto'!$D$242,'Sup Personal Indirecto'!$D$244,'Sup Personal Indirecto'!$D$245)))*12+'Sup Personal Indirecto'!$D$243*12)*'Sup Personal Indirecto'!Q76*'Sup Personal Directo'!Q$113","v":0},{"$f":"(('Sup Personal Indirecto'!R146*(1+SUM('Sup Personal Indirecto'!$D$234,'Sup Personal Indirecto'!$D$242,'Sup Personal Indirecto'!$D$244,'Sup Personal Indirecto'!$D$245)))*12+'Sup Personal Indirecto'!$D$243*12)*'Sup Personal Indirecto'!R76*'Sup Personal Directo'!R$113","v":0},{"$f":"(('Sup Personal Indirecto'!S146*(1+SUM('Sup Personal Indirecto'!$D$234,'Sup Personal Indirecto'!$D$242,'Sup Personal Indirecto'!$D$244,'Sup Personal Indirecto'!$D$245)))*12+'Sup Personal Indirecto'!$D$243*12)*'Sup Personal Indirecto'!S76*'Sup Personal Directo'!S$113","v":0},{"$f":"(('Sup Personal Indirecto'!T146*(1+SUM('Sup Personal Indirecto'!$D$234,'Sup Personal Indirecto'!$D$242,'Sup Personal Indirecto'!$D$244,'Sup Personal Indirecto'!$D$245)))*12+'Sup Personal Indirecto'!$D$243*12)*'Sup Personal Indirecto'!T76*'Sup Personal Directo'!T$113","v":0},{"$f":"(('Sup Personal Indirecto'!U146*(1+SUM('Sup Personal Indirecto'!$D$234,'Sup Personal Indirecto'!$D$242,'Sup Personal Indirecto'!$D$244,'Sup Personal Indirecto'!$D$245)))*12+'Sup Personal Indirecto'!$D$243*12)*'Sup Personal Indirecto'!U76*'Sup Personal Directo'!U$113","v":0},{"$f":"(('Sup Personal Indirecto'!V146*(1+SUM('Sup Personal Indirecto'!$D$234,'Sup Personal Indirecto'!$D$242,'Sup Personal Indirecto'!$D$244,'Sup Personal Indirecto'!$D$245)))*12+'Sup Personal Indirecto'!$D$243*12)*'Sup Personal Indirecto'!V76*'Sup Personal Directo'!V$113","v":0},{"$f":"(('Sup Personal Indirecto'!W146*(1+SUM('Sup Personal Indirecto'!$D$234,'Sup Personal Indirecto'!$D$242,'Sup Personal Indirecto'!$D$244,'Sup Personal Indirecto'!$D$245)))*12+'Sup Personal Indirecto'!$D$243*12)*'Sup Personal Indirecto'!W76*'Sup Personal Directo'!W$113","v":0}]
[null,null,{"$f":"'Sup Personal Indirecto'!C217","v":"Cargo 6"},{"$f":"(('Sup Personal Indirecto'!D147*(1+SUM('Sup Personal Indirecto'!$D$234,'Sup Personal Indirecto'!$D$242,'Sup Personal Indirecto'!$D$244,'Sup Personal Indirecto'!$D$245)))*12+'Sup Personal Indirecto'!$D$243*12)*'Sup Personal Indirecto'!D77*'Sup Personal Directo'!D$113","v":0},{"$f":"(('Sup Personal Indirecto'!E147*(1+SUM('Sup Personal Indirecto'!$D$234,'Sup Personal Indirecto'!$D$242,'Sup Personal Indirecto'!$D$244,'Sup Personal Indirecto'!$D$245)))*12+'Sup Personal Indirecto'!$D$243*12)*'Sup Personal Indirecto'!E77*'Sup Personal Directo'!E$113","v":0},{"$f":"(('Sup Personal Indirecto'!F147*(1+SUM('Sup Personal Indirecto'!$D$234,'Sup Personal Indirecto'!$D$242,'Sup Personal Indirecto'!$D$244,'Sup Personal Indirecto'!$D$245)))*12+'Sup Personal Indirecto'!$D$243*12)*'Sup Personal Indirecto'!F77*'Sup Personal Directo'!F$113","v":0},{"$f":"(('Sup Personal Indirecto'!G147*(1+SUM('Sup Personal Indirecto'!$D$234,'Sup Personal Indirecto'!$D$242,'Sup Personal Indirecto'!$D$244,'Sup Personal Indirecto'!$D$245)))*12+'Sup Personal Indirecto'!$D$243*12)*'Sup Personal Indirecto'!G77*'Sup Personal Directo'!G$113","v":0},{"$f":"(('Sup Personal Indirecto'!H147*(1+SUM('Sup Personal Indirecto'!$D$234,'Sup Personal Indirecto'!$D$242,'Sup Personal Indirecto'!$D$244,'Sup Personal Indirecto'!$D$245)))*12+'Sup Personal Indirecto'!$D$243*12)*'Sup Personal Indirecto'!H77*'Sup Personal Directo'!H$113","v":0},{"$f":"(('Sup Personal Indirecto'!I147*(1+SUM('Sup Personal Indirecto'!$D$234,'Sup Personal Indirecto'!$D$242,'Sup Personal Indirecto'!$D$244,'Sup Personal Indirecto'!$D$245)))*12+'Sup Personal Indirecto'!$D$243*12)*'Sup Personal Indirecto'!I77*'Sup Personal Directo'!I$113","v":0},{"$f":"(('Sup Personal Indirecto'!J147*(1+SUM('Sup Personal Indirecto'!$D$234,'Sup Personal Indirecto'!$D$242,'Sup Personal Indirecto'!$D$244,'Sup Personal Indirecto'!$D$245)))*12+'Sup Personal Indirecto'!$D$243*12)*'Sup Personal Indirecto'!J77*'Sup Personal Directo'!J$113","v":0},{"$f":"(('Sup Personal Indirecto'!K147*(1+SUM('Sup Personal Indirecto'!$D$234,'Sup Personal Indirecto'!$D$242,'Sup Personal Indirecto'!$D$244,'Sup Personal Indirecto'!$D$245)))*12+'Sup Personal Indirecto'!$D$243*12)*'Sup Personal Indirecto'!K77*'Sup Personal Directo'!K$113","v":0},{"$f":"(('Sup Personal Indirecto'!L147*(1+SUM('Sup Personal Indirecto'!$D$234,'Sup Personal Indirecto'!$D$242,'Sup Personal Indirecto'!$D$244,'Sup Personal Indirecto'!$D$245)))*12+'Sup Personal Indirecto'!$D$243*12)*'Sup Personal Indirecto'!L77*'Sup Personal Directo'!L$113","v":0},{"$f":"(('Sup Personal Indirecto'!M147*(1+SUM('Sup Personal Indirecto'!$D$234,'Sup Personal Indirecto'!$D$242,'Sup Personal Indirecto'!$D$244,'Sup Personal Indirecto'!$D$245)))*12+'Sup Personal Indirecto'!$D$243*12)*'Sup Personal Indirecto'!M77*'Sup Personal Directo'!M$113","v":0},{"$f":"(('Sup Personal Indirecto'!N147*(1+SUM('Sup Personal Indirecto'!$D$234,'Sup Personal Indirecto'!$D$242,'Sup Personal Indirecto'!$D$244,'Sup Personal Indirecto'!$D$245)))*12+'Sup Personal Indirecto'!$D$243*12)*'Sup Personal Indirecto'!N77*'Sup Personal Directo'!N$113","v":0},{"$f":"(('Sup Personal Indirecto'!O147*(1+SUM('Sup Personal Indirecto'!$D$234,'Sup Personal Indirecto'!$D$242,'Sup Personal Indirecto'!$D$244,'Sup Personal Indirecto'!$D$245)))*12+'Sup Personal Indirecto'!$D$243*12)*'Sup Personal Indirecto'!O77*'Sup Personal Directo'!O$113","v":0},{"$f":"(('Sup Personal Indirecto'!P147*(1+SUM('Sup Personal Indirecto'!$D$234,'Sup Personal Indirecto'!$D$242,'Sup Personal Indirecto'!$D$244,'Sup Personal Indirecto'!$D$245)))*12+'Sup Personal Indirecto'!$D$243*12)*'Sup Personal Indirecto'!P77*'Sup Personal Directo'!P$113","v":0},{"$f":"(('Sup Personal Indirecto'!Q147*(1+SUM('Sup Personal Indirecto'!$D$234,'Sup Personal Indirecto'!$D$242,'Sup Personal Indirecto'!$D$244,'Sup Personal Indirecto'!$D$245)))*12+'Sup Personal Indirecto'!$D$243*12)*'Sup Personal Indirecto'!Q77*'Sup Personal Directo'!Q$113","v":0},{"$f":"(('Sup Personal Indirecto'!R147*(1+SUM('Sup Personal Indirecto'!$D$234,'Sup Personal Indirecto'!$D$242,'Sup Personal Indirecto'!$D$244,'Sup Personal Indirecto'!$D$245)))*12+'Sup Personal Indirecto'!$D$243*12)*'Sup Personal Indirecto'!R77*'Sup Personal Directo'!R$113","v":0},{"$f":"(('Sup Personal Indirecto'!S147*(1+SUM('Sup Personal Indirecto'!$D$234,'Sup Personal Indirecto'!$D$242,'Sup Personal Indirecto'!$D$244,'Sup Personal Indirecto'!$D$245)))*12+'Sup Personal Indirecto'!$D$243*12)*'Sup Personal Indirecto'!S77*'Sup Personal Directo'!S$113","v":0},{"$f":"(('Sup Personal Indirecto'!T147*(1+SUM('Sup Personal Indirecto'!$D$234,'Sup Personal Indirecto'!$D$242,'Sup Personal Indirecto'!$D$244,'Sup Personal Indirecto'!$D$245)))*12+'Sup Personal Indirecto'!$D$243*12)*'Sup Personal Indirecto'!T77*'Sup Personal Directo'!T$113","v":0},{"$f":"(('Sup Personal Indirecto'!U147*(1+SUM('Sup Personal Indirecto'!$D$234,'Sup Personal Indirecto'!$D$242,'Sup Personal Indirecto'!$D$244,'Sup Personal Indirecto'!$D$245)))*12+'Sup Personal Indirecto'!$D$243*12)*'Sup Personal Indirecto'!U77*'Sup Personal Directo'!U$113","v":0},{"$f":"(('Sup Personal Indirecto'!V147*(1+SUM('Sup Personal Indirecto'!$D$234,'Sup Personal Indirecto'!$D$242,'Sup Personal Indirecto'!$D$244,'Sup Personal Indirecto'!$D$245)))*12+'Sup Personal Indirecto'!$D$243*12)*'Sup Personal Indirecto'!V77*'Sup Personal Directo'!V$113","v":0},{"$f":"(('Sup Personal Indirecto'!W147*(1+SUM('Sup Personal Indirecto'!$D$234,'Sup Personal Indirecto'!$D$242,'Sup Personal Indirecto'!$D$244,'Sup Personal Indirecto'!$D$245)))*12+'Sup Personal Indirecto'!$D$243*12)*'Sup Personal Indirecto'!W77*'Sup Personal Directo'!W$113","v":0}]
[null,null,{"$f":"'Sup Personal Indirecto'!C218","v":"Cargo 7"},{"$f":"(('Sup Personal Indirecto'!D148*(1+SUM('Sup Personal Indirecto'!$D$234,'Sup Personal Indirecto'!$D$242,'Sup Personal Indirecto'!$D$244,'Sup Personal Indirecto'!$D$245)))*12+'Sup Personal Indirecto'!$D$243*12)*'Sup Personal Indirecto'!D78*'Sup Personal Directo'!D$113","v":0},{"$f":"(('Sup Personal Indirecto'!E148*(1+SUM('Sup Personal Indirecto'!$D$234,'Sup Personal Indirecto'!$D$242,'Sup Personal Indirecto'!$D$244,'Sup Personal Indirecto'!$D$245)))*12+'Sup Personal Indirecto'!$D$243*12)*'Sup Personal Indirecto'!E78*'Sup Personal Directo'!E$113","v":0},{"$f":"(('Sup Personal Indirecto'!F148*(1+SUM('Sup Personal Indirecto'!$D$234,'Sup Personal Indirecto'!$D$242,'Sup Personal Indirecto'!$D$244,'Sup Personal Indirecto'!$D$245)))*12+'Sup Personal Indirecto'!$D$243*12)*'Sup Personal Indirecto'!F78*'Sup Personal Directo'!F$113","v":0},{"$f":"(('Sup Personal Indirecto'!G148*(1+SUM('Sup Personal Indirecto'!$D$234,'Sup Personal Indirecto'!$D$242,'Sup Personal Indirecto'!$D$244,'Sup Personal Indirecto'!$D$245)))*12+'Sup Personal Indirecto'!$D$243*12)*'Sup Personal Indirecto'!G78*'Sup Personal Directo'!G$113","v":0},{"$f":"(('Sup Personal Indirecto'!H148*(1+SUM('Sup Personal Indirecto'!$D$234,'Sup Personal Indirecto'!$D$242,'Sup Personal Indirecto'!$D$244,'Sup Personal Indirecto'!$D$245)))*12+'Sup Personal Indirecto'!$D$243*12)*'Sup Personal Indirecto'!H78*'Sup Personal Directo'!H$113","v":0},{"$f":"(('Sup Personal Indirecto'!I148*(1+SUM('Sup Personal Indirecto'!$D$234,'Sup Personal Indirecto'!$D$242,'Sup Personal Indirecto'!$D$244,'Sup Personal Indirecto'!$D$245)))*12+'Sup Personal Indirecto'!$D$243*12)*'Sup Personal Indirecto'!I78*'Sup Personal Directo'!I$113","v":0},{"$f":"(('Sup Personal Indirecto'!J148*(1+SUM('Sup Personal Indirecto'!$D$234,'Sup Personal Indirecto'!$D$242,'Sup Personal Indirecto'!$D$244,'Sup Personal Indirecto'!$D$245)))*12+'Sup Personal Indirecto'!$D$243*12)*'Sup Personal Indirecto'!J78*'Sup Personal Directo'!J$113","v":0},{"$f":"(('Sup Personal Indirecto'!K148*(1+SUM('Sup Personal Indirecto'!$D$234,'Sup Personal Indirecto'!$D$242,'Sup Personal Indirecto'!$D$244,'Sup Personal Indirecto'!$D$245)))*12+'Sup Personal Indirecto'!$D$243*12)*'Sup Personal Indirecto'!K78*'Sup Personal Directo'!K$113","v":0},{"$f":"(('Sup Personal Indirecto'!L148*(1+SUM('Sup Personal Indirecto'!$D$234,'Sup Personal Indirecto'!$D$242,'Sup Personal Indirecto'!$D$244,'Sup Personal Indirecto'!$D$245)))*12+'Sup Personal Indirecto'!$D$243*12)*'Sup Personal Indirecto'!L78*'Sup Personal Directo'!L$113","v":0},{"$f":"(('Sup Personal Indirecto'!M148*(1+SUM('Sup Personal Indirecto'!$D$234,'Sup Personal Indirecto'!$D$242,'Sup Personal Indirecto'!$D$244,'Sup Personal Indirecto'!$D$245)))*12+'Sup Personal Indirecto'!$D$243*12)*'Sup Personal Indirecto'!M78*'Sup Personal Directo'!M$113","v":0},{"$f":"(('Sup Personal Indirecto'!N148*(1+SUM('Sup Personal Indirecto'!$D$234,'Sup Personal Indirecto'!$D$242,'Sup Personal Indirecto'!$D$244,'Sup Personal Indirecto'!$D$245)))*12+'Sup Personal Indirecto'!$D$243*12)*'Sup Personal Indirecto'!N78*'Sup Personal Directo'!N$113","v":0},{"$f":"(('Sup Personal Indirecto'!O148*(1+SUM('Sup Personal Indirecto'!$D$234,'Sup Personal Indirecto'!$D$242,'Sup Personal Indirecto'!$D$244,'Sup Personal Indirecto'!$D$245)))*12+'Sup Personal Indirecto'!$D$243*12)*'Sup Personal Indirecto'!O78*'Sup Personal Directo'!O$113","v":0},{"$f":"(('Sup Personal Indirecto'!P148*(1+SUM('Sup Personal Indirecto'!$D$234,'Sup Personal Indirecto'!$D$242,'Sup Personal Indirecto'!$D$244,'Sup Personal Indirecto'!$D$245)))*12+'Sup Personal Indirecto'!$D$243*12)*'Sup Personal Indirecto'!P78*'Sup Personal Directo'!P$113","v":0},{"$f":"(('Sup Personal Indirecto'!Q148*(1+SUM('Sup Personal Indirecto'!$D$234,'Sup Personal Indirecto'!$D$242,'Sup Personal Indirecto'!$D$244,'Sup Personal Indirecto'!$D$245)))*12+'Sup Personal Indirecto'!$D$243*12)*'Sup Personal Indirecto'!Q78*'Sup Personal Directo'!Q$113","v":0},{"$f":"(('Sup Personal Indirecto'!R148*(1+SUM('Sup Personal Indirecto'!$D$234,'Sup Personal Indirecto'!$D$242,'Sup Personal Indirecto'!$D$244,'Sup Personal Indirecto'!$D$245)))*12+'Sup Personal Indirecto'!$D$243*12)*'Sup Personal Indirecto'!R78*'Sup Personal Directo'!R$113","v":0},{"$f":"(('Sup Personal Indirecto'!S148*(1+SUM('Sup Personal Indirecto'!$D$234,'Sup Personal Indirecto'!$D$242,'Sup Personal Indirecto'!$D$244,'Sup Personal Indirecto'!$D$245)))*12+'Sup Personal Indirecto'!$D$243*12)*'Sup Personal Indirecto'!S78*'Sup Personal Directo'!S$113","v":0},{"$f":"(('Sup Personal Indirecto'!T148*(1+SUM('Sup Personal Indirecto'!$D$234,'Sup Personal Indirecto'!$D$242,'Sup Personal Indirecto'!$D$244,'Sup Personal Indirecto'!$D$245)))*12+'Sup Personal Indirecto'!$D$243*12)*'Sup Personal Indirecto'!T78*'Sup Personal Directo'!T$113","v":0},{"$f":"(('Sup Personal Indirecto'!U148*(1+SUM('Sup Personal Indirecto'!$D$234,'Sup Personal Indirecto'!$D$242,'Sup Personal Indirecto'!$D$244,'Sup Personal Indirecto'!$D$245)))*12+'Sup Personal Indirecto'!$D$243*12)*'Sup Personal Indirecto'!U78*'Sup Personal Directo'!U$113","v":0},{"$f":"(('Sup Personal Indirecto'!V148*(1+SUM('Sup Personal Indirecto'!$D$234,'Sup Personal Indirecto'!$D$242,'Sup Personal Indirecto'!$D$244,'Sup Personal Indirecto'!$D$245)))*12+'Sup Personal Indirecto'!$D$243*12)*'Sup Personal Indirecto'!V78*'Sup Personal Directo'!V$113","v":0},{"$f":"(('Sup Personal Indirecto'!W148*(1+SUM('Sup Personal Indirecto'!$D$234,'Sup Personal Indirecto'!$D$242,'Sup Personal Indirecto'!$D$244,'Sup Personal Indirecto'!$D$245)))*12+'Sup Personal Indirecto'!$D$243*12)*'Sup Personal Indirecto'!W78*'Sup Personal Directo'!W$113","v":0}]
[null,null,{"$f":"'Sup Personal Indirecto'!C219","v":"Cargo 8"},{"$f":"(('Sup Personal Indirecto'!D149*(1+SUM('Sup Personal Indirecto'!$D$234,'Sup Personal Indirecto'!$D$242,'Sup Personal Indirecto'!$D$244,'Sup Personal Indirecto'!$D$245)))*12+'Sup Personal Indirecto'!$D$243*12)*'Sup Personal Indirecto'!D79*'Sup Personal Directo'!D$113","v":0},{"$f":"(('Sup Personal Indirecto'!E149*(1+SUM('Sup Personal Indirecto'!$D$234,'Sup Personal Indirecto'!$D$242,'Sup Personal Indirecto'!$D$244,'Sup Personal Indirecto'!$D$245)))*12+'Sup Personal Indirecto'!$D$243*12)*'Sup Personal Indirecto'!E79*'Sup Personal Directo'!E$113","v":0},{"$f":"(('Sup Personal Indirecto'!F149*(1+SUM('Sup Personal Indirecto'!$D$234,'Sup Personal Indirecto'!$D$242,'Sup Personal Indirecto'!$D$244,'Sup Personal Indirecto'!$D$245)))*12+'Sup Personal Indirecto'!$D$243*12)*'Sup Personal Indirecto'!F79*'Sup Personal Directo'!F$113","v":0},{"$f":"(('Sup Personal Indirecto'!G149*(1+SUM('Sup Personal Indirecto'!$D$234,'Sup Personal Indirecto'!$D$242,'Sup Personal Indirecto'!$D$244,'Sup Personal Indirecto'!$D$245)))*12+'Sup Personal Indirecto'!$D$243*12)*'Sup Personal Indirecto'!G79*'Sup Personal Directo'!G$113","v":0},{"$f":"(('Sup Personal Indirecto'!H149*(1+SUM('Sup Personal Indirecto'!$D$234,'Sup Personal Indirecto'!$D$242,'Sup Personal Indirecto'!$D$244,'Sup Personal Indirecto'!$D$245)))*12+'Sup Personal Indirecto'!$D$243*12)*'Sup Personal Indirecto'!H79*'Sup Personal Directo'!H$113","v":0},{"$f":"(('Sup Personal Indirecto'!I149*(1+SUM('Sup Personal Indirecto'!$D$234,'Sup Personal Indirecto'!$D$242,'Sup Personal Indirecto'!$D$244,'Sup Personal Indirecto'!$D$245)))*12+'Sup Personal Indirecto'!$D$243*12)*'Sup Personal Indirecto'!I79*'Sup Personal Directo'!I$113","v":0},{"$f":"(('Sup Personal Indirecto'!J149*(1+SUM('Sup Personal Indirecto'!$D$234,'Sup Personal Indirecto'!$D$242,'Sup Personal Indirecto'!$D$244,'Sup Personal Indirecto'!$D$245)))*12+'Sup Personal Indirecto'!$D$243*12)*'Sup Personal Indirecto'!J79*'Sup Personal Directo'!J$113","v":0},{"$f":"(('Sup Personal Indirecto'!K149*(1+SUM('Sup Personal Indirecto'!$D$234,'Sup Personal Indirecto'!$D$242,'Sup Personal Indirecto'!$D$244,'Sup Personal Indirecto'!$D$245)))*12+'Sup Personal Indirecto'!$D$243*12)*'Sup Personal Indirecto'!K79*'Sup Personal Directo'!K$113","v":0},{"$f":"(('Sup Personal Indirecto'!L149*(1+SUM('Sup Personal Indirecto'!$D$234,'Sup Personal Indirecto'!$D$242,'Sup Personal Indirecto'!$D$244,'Sup Personal Indirecto'!$D$245)))*12+'Sup Personal Indirecto'!$D$243*12)*'Sup Personal Indirecto'!L79*'Sup Personal Directo'!L$113","v":0},{"$f":"(('Sup Personal Indirecto'!M149*(1+SUM('Sup Personal Indirecto'!$D$234,'Sup Personal Indirecto'!$D$242,'Sup Personal Indirecto'!$D$244,'Sup Personal Indirecto'!$D$245)))*12+'Sup Personal Indirecto'!$D$243*12)*'Sup Personal Indirecto'!M79*'Sup Personal Directo'!M$113","v":0},{"$f":"(('Sup Personal Indirecto'!N149*(1+SUM('Sup Personal Indirecto'!$D$234,'Sup Personal Indirecto'!$D$242,'Sup Personal Indirecto'!$D$244,'Sup Personal Indirecto'!$D$245)))*12+'Sup Personal Indirecto'!$D$243*12)*'Sup Personal Indirecto'!N79*'Sup Personal Directo'!N$113","v":0},{"$f":"(('Sup Personal Indirecto'!O149*(1+SUM('Sup Personal Indirecto'!$D$234,'Sup Personal Indirecto'!$D$242,'Sup Personal Indirecto'!$D$244,'Sup Personal Indirecto'!$D$245)))*12+'Sup Personal Indirecto'!$D$243*12)*'Sup Personal Indirecto'!O79*'Sup Personal Directo'!O$113","v":0},{"$f":"(('Sup Personal Indirecto'!P149*(1+SUM('Sup Personal Indirecto'!$D$234,'Sup Personal Indirecto'!$D$242,'Sup Personal Indirecto'!$D$244,'Sup Personal Indirecto'!$D$245)))*12+'Sup Personal Indirecto'!$D$243*12)*'Sup Personal Indirecto'!P79*'Sup Personal Directo'!P$113","v":0},{"$f":"(('Sup Personal Indirecto'!Q149*(1+SUM('Sup Personal Indirecto'!$D$234,'Sup Personal Indirecto'!$D$242,'Sup Personal Indirecto'!$D$244,'Sup Personal Indirecto'!$D$245)))*12+'Sup Personal Indirecto'!$D$243*12)*'Sup Personal Indirecto'!Q79*'Sup Personal Directo'!Q$113","v":0},{"$f":"(('Sup Personal Indirecto'!R149*(1+SUM('Sup Personal Indirecto'!$D$234,'Sup Personal Indirecto'!$D$242,'Sup Personal Indirecto'!$D$244,'Sup Personal Indirecto'!$D$245)))*12+'Sup Personal Indirecto'!$D$243*12)*'Sup Personal Indirecto'!R79*'Sup Personal Directo'!R$113","v":0},{"$f":"(('Sup Personal Indirecto'!S149*(1+SUM('Sup Personal Indirecto'!$D$234,'Sup Personal Indirecto'!$D$242,'Sup Personal Indirecto'!$D$244,'Sup Personal Indirecto'!$D$245)))*12+'Sup Personal Indirecto'!$D$243*12)*'Sup Personal Indirecto'!S79*'Sup Personal Directo'!S$113","v":0},{"$f":"(('Sup Personal Indirecto'!T149*(1+SUM('Sup Personal Indirecto'!$D$234,'Sup Personal Indirecto'!$D$242,'Sup Personal Indirecto'!$D$244,'Sup Personal Indirecto'!$D$245)))*12+'Sup Personal Indirecto'!$D$243*12)*'Sup Personal Indirecto'!T79*'Sup Personal Directo'!T$113","v":0},{"$f":"(('Sup Personal Indirecto'!U149*(1+SUM('Sup Personal Indirecto'!$D$234,'Sup Personal Indirecto'!$D$242,'Sup Personal Indirecto'!$D$244,'Sup Personal Indirecto'!$D$245)))*12+'Sup Personal Indirecto'!$D$243*12)*'Sup Personal Indirecto'!U79*'Sup Personal Directo'!U$113","v":0},{"$f":"(('Sup Personal Indirecto'!V149*(1+SUM('Sup Personal Indirecto'!$D$234,'Sup Personal Indirecto'!$D$242,'Sup Personal Indirecto'!$D$244,'Sup Personal Indirecto'!$D$245)))*12+'Sup Personal Indirecto'!$D$243*12)*'Sup Personal Indirecto'!V79*'Sup Personal Directo'!V$113","v":0},{"$f":"(('Sup Personal Indirecto'!W149*(1+SUM('Sup Personal Indirecto'!$D$234,'Sup Personal Indirecto'!$D$242,'Sup Personal Indirecto'!$D$244,'Sup Personal Indirecto'!$D$245)))*12+'Sup Personal Indirecto'!$D$243*12)*'Sup Personal Indirecto'!W79*'Sup Personal Directo'!W$113","v":0}]

{"sheet":"OPEX Otros Gastos","index":11,"n_rows":85,"n_cols":22,"rows_kept":85,"cut":false,"hidden":false,"merged":[]}
[]
[null,"Estructura de costos Transporte Convencional"]
[null,"OPEX OTROS GASTOS"]
[]
[null,"Año",1,{"$f":"C5+1","v":2},{"$f":"D5+1","v":3},4,5,6,7,8,9,10,11,12,13,14,15,16,17,18,19,20]
[]
[null,"Seguros"]
[]
[null,{"$f":"'Sup fijo'!B14","v":"Intracantonal Rural"}]
[null,"Valor asegurado",{"$f":"+'CAPEX Vehículo'!C14*IF(C$5>'Sup fijo'!$H$51,0,1)","v":90000},{"$f":"+'CAPEX Vehículo'!D14*IF(D$5>'Sup fijo'!$H$51,0,1)","v":84000},{"$f":"+'CAPEX Vehículo'!E14*IF(E$5>'Sup fijo'!$H$51,0,1)","v":78000},{"$f":"+'CAPEX Vehículo'!F14*IF(F$5>'Sup fijo'!$H$51,0,1)","v":72000},{"$f":"+'CAPEX Vehículo'!G14*IF(G$5>'Sup fijo'!$H$51,0,1)","v":66000},{"$f":"+'CAPEX Vehículo'!H14*IF(H$5>'Sup fijo'!$H$51,0,1)","v":60000},{"$f":"+'CAPEX Vehículo'!I14*IF(I$5>'Sup fijo'!$H$51,0,1)","v":54000},{"$f":"+'CAPEX Vehículo'!J14*IF(J$5>'Sup fijo'!$H$51,0,1)","v":48000},{"$f":"+'CAPEX Vehículo'!K14*IF(K$5>'Sup fijo'!$H$51,0,1)","v":42000},{"$f":"+'CAPEX Vehículo'!L14*IF(L$5>'Sup fijo'!$H$51,0,1)","v":36000},{"$f":"+'CAPEX Vehículo'!M14*IF(M$5>'Sup fijo'!$H$51,0,1)","v":30000},{"$f":"+'CAPEX Vehículo'!N14*IF(N$5>'Sup fijo'!$H$51,0,1)","v":24000},{"$f":"+'CAPEX Vehículo'!O14*IF(O$5>'Sup fijo'!$H$51,0,1)","v":0},{"$f":"+'CAPEX Vehículo'!P14*IF(P$5>'Sup fijo'!$H$51,0,1)","v":0},{"$f":"+'CAPEX Vehículo'!Q14*IF(Q$5>'Sup fijo'!$H$51,0,1)","v":0},{"$f":"+'CAPEX Vehículo'!R14*IF(R$5>'Sup fijo'!$H$51,0,1)","v":0},{"$f":"+'CAPEX Vehículo'!S14*IF(S$5>'Sup fijo'!$H$51,0,1)","v":0},{"$f":"+'CAPEX Vehículo'!T14*IF(T$5>'Sup fijo'!$H$51,0,1)","v":0},{"$f":"+'CAPEX Vehículo'!U14*IF(U$5>'Sup fijo'!$H$51,0,1)","v":0},{"$f":"+'CAPEX Vehículo'!V14*IF(V$5>'Sup fijo'!$H$51,0,1)","v":0}]
[null,{"$f":"+'Sup fijo'!B151","v":"Prima de seguros"},{"$f":"+C10*'Sup fijo'!$D$151","v":450},{"$f":"+D10*'Sup fijo'!$D$151","v":420},{"$f":"+E10*'Sup fijo'!$D$151","v":390},{"$f":"+F10*'Sup fijo'!$D$151","v":360},{"$f":"+G10*'Sup fijo'!$D$151","v":330},{"$f":"+H10*'Sup fijo'!$D$151","v":300},{"$f":"+I10*'Sup fijo'!$D$151","v":270},{"$f":"+J10*'Sup fijo'!$D$151","v":240},{"$f":"+K10*'Sup fijo'!$D$151","v":210},{"$f":"+L10*'Sup fijo'!$D$151","v":180},{"$f":"+M10*'Sup fijo'!$D$151","v":150},{"$f":"+N10*'Sup fijo'!$D$151","v":120},{"$f":"+O10*'Sup fijo'!$D$151","v":0},{"$f":"+P10*'Sup fijo'!$D$151","v":0},{"$f":"+Q10*'Sup fijo'!$D$151","v":0},{"$f":"+R10*'Sup fijo'!$D$151","v":0},{"$f":"+S10*'Sup fijo'!$D$151","v":0},{"$f":"+T10*'Sup fijo'!$D$151","v":0},{"$f":"+U10*'Sup fijo'!$D$151","v":0},{"$f":"+V10*'Sup fijo'!$D$151","v":0}]
[null,{"$f":"+'Sup fijo'!B152","v":"Superintendencia de Bancos"},{"$f":"+C11*'Sup fijo'!$D$152","v":15.750000000000002},{"$f":"+D11*'Sup fijo'!$D$152","v":14.700000000000001},{"$f":"+E11*'Sup fijo'!$D$152","v":13.650000000000002},{"$f":"+F11*'Sup fijo'!$D$152","v":12.600000000000001},{"$f":"+G11*'Sup fijo'!$D$152","v":11.55},{"$f":"+H11*'Sup fijo'!$D$152","v":10.500000000000002},{"$f":"+I11*'Sup fijo'!$D$152","v":9.4500000000000011},{"$f":"+J11*'Sup fijo'!$D$152","v":8.4},{"$f":"+K11*'Sup fijo'!$D$152","v":7.3500000000000005},{"$f":"+L11*'Sup fijo'!$D$152","v":6.3000000000000007},{"$f":"+M11*'Sup fijo'!$D$152","v":5.2500000000000009},{"$f":"+N11*'Sup fijo'!$D$152","v":4.2},{"$f":"+O11*'Sup fijo'!$D$152","v":0},{"$f":"+P11*'Sup fijo'!$D$152","v":0},{"$f":"+Q11*'Sup fijo'!$D$152","v":0},{"$f":"+R11*'Sup fijo'!$D$152","v":0},{"$f":"+S11*'Sup fijo'!$D$152","v":0},{"$f":"+T11*'Sup fijo'!$D$152","v":0},{"$f":"+U11*'Sup fijo'!$D$152","v":0},{"$f":"+V11*'Sup fijo'!$D$152","v":0}]
[null,{"$f":"+'Sup fijo'!B153","v":"Seguro Campesino"},{"$f":"+C11*'Sup fijo'!$D$153","v":2.25},{"$f":"+D11*'Sup fijo'!$D$153","v":2.1},{"$f":"+E11*'Sup fijo'!$D$153","v":1.95},{"$f":"+F11*'Sup fijo'!$D$153","v":1.8},{"$f":"+G11*'Sup fijo'!$D$153","v":1.6500000000000001},{"$f":"+H11*'Sup fijo'!$D$153","v":1.5},{"$f":"+I11*'Sup fijo'!$D$153","v":1.35},{"$f":"+J11*'Sup fijo'!$D$153","v":1.2},{"$f":"+K11*'Sup fijo'!$D$153","v":1.05},{"$f":"+L11*'Sup fijo'!$D$153","v":0.9},{"$f":"+M11*'Sup fijo'!$D$153","v":0.75},{"$f":"+N11*'Sup fijo'!$D$153","v":0.6},{"$f":"+O11*'Sup fijo'!$D$153","v":0},{"$f":"+P11*'Sup fijo'!$D$153","v":0},{"$f":"+Q11*'Sup fijo'!$D$153","v":0},{"$f":"+R11*'Sup fijo'!$D$153","v":0},{"$f":"+S11*'Sup fijo'!$D$153","v":0},{"$f":"+T11*'Sup fijo'!$D$153","v":0},{"$f":"+U11*'Sup fijo'!$D$153","v":0},{"$f":"+V11*'Sup fijo'!$D$153","v":0}]
[null,"Total seguros (USD)",{"$f":"+SUM(C11:C13)","v":468},436.8,405.59999999999997,374.40000000000003,343.2,312,280.8,249.6,218.4,187.20000000000002,156,124.8,0,0,0,0,0,0,0,0]
[]
[null,{"$f":"'Sup fijo'!B18","v":"Intracantonal Urbano"}]
[null,"Valor asegurado",{"$f":"'CAPEX Vehículo'!C25*IF(C$5>'Sup fijo'!$H$52,0,1)","v":122000},{"$f":"'CAPEX Vehículo'!D25*IF(D$5>'Sup fijo'!$H$52,0,1)","v":113866.66666666667},{"$f":"'CAPEX Vehículo'!E25*IF(E$5>'Sup fijo'!$H$52,0,1)","v":105733.33333333334},{"$f":"'CAPEX Vehículo'!F25*IF(F$5>'Sup fijo'!$H$52,0,1)","v":97600.000000000015},{"$f":"'CAPEX Vehículo'!G25*IF(G$5>'Sup fijo'!$H$52,0,1)","v":89466.666666666686},{"$f":"'CAPEX Vehículo'!H25*IF(H$5>'Sup fijo'!$H$52,0,1)","v":81333.333333333358},{"$f":"'CAPEX Vehículo'!I25*IF(I$5>'Sup fijo'!$H$52,0,1)","v":73200.000000000029},{"$f":"'CAPEX Vehículo'!J25*IF(J$5>'Sup fijo'!$H$52,0,1)","v":65066.666666666693},{"$f":"'CAPEX Vehículo'!K25*IF(K$5>'Sup fijo'!$H$52,0,1)","v":56933.333333333358},{"$f":"'CAPEX Vehículo'!L25*IF(L$5>'Sup fijo'!$H$52,0,1)","v":48800.000000000022},{"$f":"'CAPEX Vehículo'!M25*IF(M$5>'Sup fijo'!$H$52,0,1)","v":40666.666666666686},{"$f":"'CAPEX Vehículo'!N25*IF(N$5>'Sup fijo'!$H$52,0,1)","v":32533.333333333354},{"$f":"'CAPEX Vehículo'!O25*IF(O$5>'Sup fijo'!$H$52,0,1)","v":0},{"$f":"'CAPEX Vehículo'!P25*IF(P$5>'Sup fijo'!$H$52,0,1)","v":0},{"$f":"'CAPEX Vehículo'!Q25*IF(Q$5>'Sup fijo'!$H$52,0,1)","v":0},{"$f":"'CAPEX Vehículo'!R25*IF(R$5>'Sup fijo'!$H$52,0,1)","v":0},{"$f":"'CAPEX Vehículo'!S25*IF(S$5>'Sup fijo'!$H$52,0,1)","v":0},{"$f":"'CAPEX Vehículo'!T25*IF(T$5>'Sup fijo'!$H$52,0,1)","v":0},{"$f":"'CAPEX Vehículo'!U25*IF(U$5>'Sup fijo'!$H$52,0,1)","v":0},{"$f":"'CAPEX Vehículo'!V25*IF(V$5>'Sup fijo'!$H$52,0,1)","v":0}]
[null,{"$f":"+B11","v":"Prima de seguros"},{"$f":"+C17*'Sup fijo'!$D$151","v":610},{"$f":"+D17*'Sup fijo'!$D$151","v":569.33333333333337},{"$f":"+E17*'Sup fijo'!$D$151","v":528.66666666666674},{"$f":"+F17*'Sup fijo'!$D$151","v":488.00000000000006},{"$f":"+G17*'Sup fijo'!$D$151","v":447.33333333333343},{"$f":"+H17*'Sup fijo'!$D$151","v":406.6666666666668},{"$f":"+I17*'Sup fijo'!$D$151","v":366.00000000000017},{"$f":"+J17*'Sup fijo'!$D$151","v":325.33333333333348},{"$f":"+K17*'Sup fijo'!$D$151","v":284.6666666666668},{"$f":"+L17*'Sup fijo'!$D$151","v":244.00000000000011},{"$f":"+M17*'Sup fijo'!$D$151","v":203.33333333333343},{"$f":"+N17*'Sup fijo'!$D$151","v":162.66666666666677},{"$f":"+O17*'Sup fijo'!$D$151","v":0},{"$f":"+P17*'Sup fijo'!$D$151","v":0},{"$f":"+Q17*'Sup fijo'!$D$151","v":0},{"$f":"+R17*'Sup fijo'!$D$151","v":0},{"$f":"+S17*'Sup fijo'!$D$151","v":0},{"$f":"+T17*'Sup fijo'!$D$151","v":0},{"$f":"+U17*'Sup fijo'!$D$151","v":0},{"$f":"+V17*'Sup fijo'!$D$151","v":0}]
[null,{"$f":"+B12","v":"Superintendencia de Bancos"},{"$f":"+C18*'Sup fijo'!$D$152","v":21.35},{"$f":"+D18*'Sup fijo'!$D$152","v":19.926666666666669},{"$f":"+E18*'Sup fijo'!$D$152","v":18.503333333333337},{"$f":"+F18*'Sup fijo'!$D$152","v":17.080000000000002},{"$f":"+G18*'Sup fijo'!$D$152","v":15.656666666666672},{"$f":"+H18*'Sup fijo'!$D$152","v":14.23333333333334},{"$f":"+I18*'Sup fijo'!$D$152","v":12.810000000000008},{"$f":"+J18*'Sup fijo'!$D$152","v":11.386666666666674},{"$f":"+K18*'Sup fijo'!$D$152","v":9.9633333333333383},{"$f":"+L18*'Sup fijo'!$D$152","v":8.5400000000000045},{"$f":"+M18*'Sup fijo'!$D$152","v":7.1166666666666707},{"$f":"+N18*'Sup fijo'!$D$152","v":5.6933333333333378},{"$f":"+O18*'Sup fijo'!$D$152","v":0},{"$f":"+P18*'Sup fijo'!$D$152","v":0},{"$f":"+Q18*'Sup fijo'!$D$152","v":0},{"$f":"+R18*'Sup fijo'!$D$152","v":0},{"$f":"+S18*'Sup fijo'!$D$152","v":0},{"$f":"+T18*'Sup fijo'!$D$152","v":0},{"$f":"+U18*'Sup fijo'!$D$152","v":0},{"$f":"+V18*'Sup fijo'!$D$152","v":0}]
[null,{"$f":"+B13","v":"Seguro Campesino"},{"$f":"+C18*'Sup fijo'!$D$153","v":3.0500000000000003},{"$f":"+D18*'Sup fijo'!$D$153","v":2.8466666666666671},{"$f":"+E18*'Sup fijo'!$D$153","v":2.643333333333334},{"$f":"+F18*'Sup fijo'!$D$153","v":2.4400000000000004},{"$f":"+G18*'Sup fijo'!$D$153","v":2.2366666666666672},{"$f":"+H18*'Sup fijo'!$D$153","v":2.0333333333333341},{"$f":"+I18*'Sup fijo'!$D$153","v":1.830000000000001},{"$f":"+J18*'Sup fijo'!$D$153","v":1.6266666666666674},{"$f":"+K18*'Sup fijo'!$D$153","v":1.423333333333334},{"$f":"+L18*'Sup fijo'!$D$153","v":1.2200000000000006},{"$f":"+M18*'Sup fijo'!$D$153","v":1.0166666666666671},{"$f":"+N18*'Sup fijo'!$D$153","v":0.81333333333333391},{"$f":"+O18*'Sup fijo'!$D$153","v":0},{"$f":"+P18*'Sup fijo'!$D$153","v":0},{"$f":"+Q18*'Sup fijo'!$D$153","v":0},{"$f":"+R18*'Sup fijo'!$D$153","v":0},{"$f":"+S18*'Sup fijo'!$D$153","v":0},{"$f":"+T18*'Sup fijo'!$D$153","v":0},{"$f":"+U18*'Sup fijo'!$D$153","v":0},{"$f":"+V18*'Sup fijo'!$D$153","v":0}]
[null,{"$f":"+B14","v":"Total seguros (USD)"},{"$f":"+SUM(C18:C20)","v":634.4},592.10666666666668,549.81333333333339,507.52000000000004,465.2266666666668,422.93333333333351,380.64000000000016,338.34666666666681,296.05333333333346,253.7600000000001,211.46666666666678,169.17333333333343,0,0,0,0,0,0,0,0]
[]
[null,{"$f":"'Sup fijo'!B22","v":"Intracantonal Combinado"}]
[null,"Valor asegurado",{"$f":"'CAPEX Vehículo'!C36*IF(C$5>'Sup fijo'!$H$53,0,1)","v":122000},{"$f":"'CAPEX Vehículo'!D36*IF(D$5>'Sup fijo'!$H$53,0,1)","v":113866.66666666667},{"$f":"'CAPEX Vehículo'!E36*IF(E$5>'Sup fijo'!$H$53,0,1)","v":105733.33333333334},{"$f":"'CAPEX Vehículo'!F36*IF(F$5>'Sup fijo'!$H$53,0,1)","v":97600.000000000015},{"$f":"'CAPEX Vehículo'!G36*IF(G$5>'Sup fijo'!$H$53,0,1)","v":89466.666666666686},{"$f":"'CAPEX Vehículo'!H36*IF(H$5>'Sup fijo'!$H$53,0,1)","v":81333.333333333358},{"$f":"'CAPEX Vehículo'!I36*IF(I$5>'Sup fijo'!$H$53,0,1)","v":73200.000000000029},{"$f":"'CAPEX Vehículo'!J36*IF(J$5>'Sup fijo'!$H$53,0,1)","v":65066.666666666693},{"$f":"'CAPEX Vehículo'!K36*IF(K$5>'Sup fijo'!$H$53,0,1)","v":56933.333333333358},{"$f":"'CAPEX Vehículo'!L36*IF(L$5>'Sup fijo'!$H$53,0,1)","v":48800.000000000022},{"$f":"'CAPEX Vehículo'!M36*IF(M$5>'Sup fijo'!$H$53,0,1)","v":40666.666666666686},{"$f":"'CAPEX Vehículo'!N36*IF(N$5>'Sup fijo'!$H$53,0,1)","v":32533.333333333354},{"$f":"'CAPEX Vehículo'!O36*IF(O$5>'Sup fijo'!$H$53,0,1)","v":0},{"$f":"'CAPEX Vehículo'!P36*IF(P$5>'Sup fijo'!$H$53,0,1)","v":0},{"$f":"'CAPEX Vehículo'!Q36*IF(Q$5>'Sup fijo'!$H$53,0,1)","v":0},{"$f":"'CAPEX Vehículo'!R36*IF(R$5>'Sup fijo'!$H$53,0,1)","v":0},{"$f":"'CAPEX Vehículo'!S36*IF(S$5>'Sup fijo'!$H$53,0,1)","v":0},{"$f":"'CAPEX Vehículo'!T36*IF(T$5>'Sup fijo'!$H$53,0,1)","v":0},{"$f":"'CAPEX Vehículo'!U36*IF(U$5>'Sup fijo'!$H$53,0,1)","v":0},{"$f":"'CAPEX Vehículo'!V36*IF(V$5>'Sup fijo'!$H$53,0,1)","v":0}]
[null,{"$f":"+B18","v":"Prima de seguros"},{"$f":"+C24*'Sup fijo'!$D$151","v":610},{"$f":"+D24*'Sup fijo'!$D$151","v":569.33333333333337},{"$f":"+E24*'Sup fijo'!$D$151","v":528.66666666666674},{"$f":"+F24*'Sup fijo'!$D$151","v":488.00000000000006},{"$f":"+G24*'Sup fijo'!$D$151","v":447.33333333333343},{"$f":"+H24*'Sup fijo'!$D$151","v":406.6666666666668},{"$f":"+I24*'Sup fijo'!$D$151","v":366.00000000000017},{"$f":"+J24*'Sup fijo'!$D$151","v":325.33333333333348},{"$f":"+K24*'Sup fijo'!$D$151","v":284.6666666666668},{"$f":"+L24*'Sup fijo'!$D$151","v":244.00000000000011},{"$f":"+M24*'Sup fijo'!$D$151","v":203.33333333333343},{"$f":"+N24*'Sup fijo'!$D$151","v":162.66666666666677},{"$f":"+O24*'Sup fijo'!$D$151","v":0},{"$f":"+P24*'Sup fijo'!$D$151","v":0},{"$f":"+Q24*'Sup fijo'!$D$151","v":0},{"$f":"+R24*'Sup fijo'!$D$151","v":0},{"$f":"+S24*'Sup fijo'!$D$151","v":0},{"$f":"+T24*'Sup fijo'!$D$151","v":0},{"$f":"+U24*'Sup fijo'!$D$151","v":0},{"$f":"+V24*'Sup fijo'!$D$151","v":0}]
[null,{"$f":"+B19","v":"Superintendencia de Bancos"},{"$f":"+C25*'Sup fijo'!$D$152","v":21.35},{"$f":"+D25*'Sup fijo'!$D$152","v":19.926666666666669},{"$f":"+E25*'Sup fijo'!$D$152","v":18.503333333333337},{"$f":"+F25*'Sup fijo'!$D$152","v":17.080000000000002},{"$f":"+G25*'Sup fijo'!$D$152","v":15.656666666666672},{"$f":"+H25*'Sup fijo'!$D$152","v":14.23333333333334},{"$f":"+I25*'Sup fijo'!$D$152","v":12.810000000000008},{"$f":"+J25*'Sup fijo'!$D$152","v":11.386666666666674},{"$f":"+K25*'Sup fijo'!$D$152","v":9.9633333333333383},{"$f":"+L25*'Sup fijo'!$D$152","v":8.5400000000000045},{"$f":"+M25*'Sup fijo'!$D$152","v":7.1166666666666707},{"$f":"+N25*'Sup fijo'!$D$152","v":5.6933333333333378},{"$f":"+O25*'Sup fijo'!$D$152","v":0},{"$f":"+P25*'Sup fijo'!$D$152","v":0},{"$f":"+Q25*'Sup fijo'!$D$152","v":0},{"$f":"+R25*'Sup fijo'!$D$152","v":0},{"$f":"+S25*'Sup fijo'!$D$152","v":0},{"$f":"+T25*'Sup fijo'!$D$152","v":0},{"$f":"+U25*'Sup fijo'!$D$152","v":0},{"$f":"+V25*'Sup fijo'!$D$152","v":0}]
[null,{"$f":"+B20","v":"Seguro Campesino"},{"$f":"+C25*'Sup fijo'!$D$153","v":3.0500000000000003},{"$f":"+D25*'Sup fijo'!$D$153","v":2.8466666666666671},{"$f":"+E25*'Sup fijo'!$D$153","v":2.643333333333334},{"$f":"+F25*'Sup fijo'!$D$153","v":2.4400000000000004},{"$f":"+G25*'Sup fijo'!$D$153","v":2.2366666666666672},{"$f":"+H25*'Sup fijo'!$D$153","v":2.0333333333333341},{"$f":"+I25*'Sup fijo'!$D$153","v":1.830000000000001},{"$f":"+J25*'Sup fijo'!$D$153","v":1.6266666666666674},{"$f":"+K25*'Sup fijo'!$D$153","v":1.423333333333334},{"$f":"+L25*'Sup fijo'!$D$153","v":1.2200000000000006},{"$f":"+M25*'Sup fijo'!$D$153","v":1.0166666666666671},{"$f":"+N25*'Sup fijo'!$D$153","v":0.81333333333333391},{"$f":"+O25*'Sup fijo'!$D$153","v":0},{"$f":"+P25*'Sup fijo'!$D$153","v":0},{"$f":"+Q25*'Sup fijo'!$D$153","v":0},{"$f":"+R25*'Sup fijo'!$D$153","v":0},{"$f":"+S25*'Sup fijo'!$D$153","v":0},{"$f":"+T25*'Sup fijo'!$D$153","v":0},{"$f":"+U25*'Sup fijo'!$D$153","v":0},{"$f":"+V25*'Sup fijo'!$D$153","v":0}]
[null,{"$f":"+B21","v":"Total seguros (USD)"},{"$f":"+SUM(C25:C27)","v":634.4},592.10666666666668,549.81333333333339,507.52000000000004,465.2266666666668,422.93333333333351,380.64000000000016,338.34666666666681,296.05333333333346,253.7600000000001,211.46666666666678,169.17333333333343,0,0,0,0,0,0,0,0]
[]
[null,{"$f":"'Sup fijo'!B26","v":"Otro"}]
[null,"Valor asegurado",{"$f":"'CAPEX Vehículo'!C47*IF(C$5>'Sup fijo'!$H$54,0,1)","v":206078.58000000002},{"$f":"'CAPEX Vehículo'!D47*IF(D$5>'Sup fijo'!$H$54,0,1)","v":192340.008},{"$f":"'CAPEX Vehículo'!E47*IF(E$5>'Sup fijo'!$H$54,0,1)","v":178601.43599999999},{"$f":"'CAPEX Vehículo'!F47*IF(F$5>'Sup fijo'!$H$54,0,1)","v":164862.86399999997},{"$f":"'CAPEX Vehículo'!G47*IF(G$5>'Sup fijo'!$H$54,0,1)","v":151124.29199999996},{"$f":"'CAPEX Vehículo'!H47*IF(H$5>'Sup fijo'!$H$54,0,1)","v":137385.71999999994},{"$f":"'CAPEX Vehículo'!I47*IF(I$5>'Sup fijo'!$H$54,0,1)","v":123647.14799999994},{"$f":"'CAPEX Vehículo'!J47*IF(J$5>'Sup fijo'!$H$54,0,1)","v":109908.57599999994},{"$f":"'CAPEX Vehículo'!K47*IF(K$5>'Sup fijo'!$H$54,0,1)","v":96170.003999999943},{"$f":"'CAPEX Vehículo'!L47*IF(L$5>'Sup fijo'!$H$54,0,1)","v":82431.431999999942},{"$f":"'CAPEX Vehículo'!M47*IF(M$5>'Sup fijo'!$H$54,0,1)","v":68692.859999999942},{"$f":"'CAPEX Vehículo'!N47*IF(N$5>'Sup fijo'!$H$54,0,1)","v":54954.287999999942},{"$f":"'CAPEX Vehículo'!O47*IF(O$5>'Sup fijo'!$H$54,0,1)","v":0},{"$f":"'CAPEX Vehículo'!P47*IF(P$5>'Sup fijo'!$H$54,0,1)","v":0},{"$f":"'CAPEX Vehículo'!Q47*IF(Q$5>'Sup fijo'!$H$54,0,1)","v":0},{"$f":"'CAPEX Vehículo'!R47*IF(R$5>'Sup fijo'!$H$54,0,1)","v":0},{"$f":"'CAPEX Vehículo'!S47*IF(S$5>'Sup fijo'!$H$54,0,1)","v":0},{"$f":"'CAPEX Vehículo'!T47*IF(T$5>'Sup fijo'!$H$54,0,1)","v":0},{"$f":"'CAPEX Vehículo'!U47*IF(U$5>'Sup fijo'!$H$54,0,1)","v":0},{"$f":"'CAPEX Vehículo'!V47*IF(V$5>'Sup fijo'!$H$54,0,1)","v":0}]
[null,{"$f":"+B25","v":"Prima de seguros"},{"$f":"+C31*'Sup fijo'!$D$151","v":1030.3929000000001},{"$f":"+D31*'Sup fijo'!$D$151","v":961.70004000000006},{"$f":"+E31*'Sup fijo'!$D$151","v":893.00717999999995},{"$f":"+F31*'Sup fijo'!$D$151","v":824.31431999999984},{"$f":"+G31*'Sup fijo'!$D$151","v":755.62145999999984},{"$f":"+H31*'Sup fijo'!$D$151","v":686.92859999999973},{"$f":"+I31*'Sup fijo'!$D$151","v":618.23573999999974},{"$f":"+J31*'Sup fijo'!$D$151","v":549.54287999999974},{"$f":"+K31*'Sup fijo'!$D$151","v":480.85001999999974},{"$f":"+L31*'Sup fijo'!$D$151","v":412.15715999999975},{"$f":"+M31*'Sup fijo'!$D$151","v":343.4642999999997},{"$f":"+N31*'Sup fijo'!$D$151","v":274.7714399999997},{"$f":"+O31*'Sup fijo'!$D$151","v":0},{"$f":"+P31*'Sup fijo'!$D$151","v":0},{"$f":"+Q31*'Sup fijo'!$D$151","v":0},{"$f":"+R31*'Sup fijo'!$D$151","v":0},{"$f":"+S31*'Sup fijo'!$D$151","v":0},{"$f":"+T31*'Sup fijo'!$D$151","v":0},{"$f":"+U31*'Sup fijo'!$D$151","v":0},{"$f":"+V31*'Sup fijo'!$D$151","v":0}]
[null,{"$f":"+B26","v":"Superintendencia de Bancos"},{"$f":"+C32*'Sup fijo'!$D$152","v":36.063751500000002},{"$f":"+D32*'Sup fijo'!$D$152","v":33.659501400000003},{"$f":"+E32*'Sup fijo'!$D$152","v":31.255251300000001},{"$f":"+F32*'Sup fijo'!$D$152","v":28.851001199999995},{"$f":"+G32*'Sup fijo'!$D$152","v":26.446751099999997},{"$f":"+H32*'Sup fijo'!$D$152","v":24.042500999999994},{"$f":"+I32*'Sup fijo'!$D$152","v":21.638250899999992},{"$f":"+J32*'Sup fijo'!$D$152","v":19.234000799999993},{"$f":"+K32*'Sup fijo'!$D$152","v":16.829750699999991},{"$f":"+L32*'Sup fijo'!$D$152","v":14.425500599999992},{"$f":"+M32*'Sup fijo'!$D$152","v":12.02125049999999},{"$f":"+N32*'Sup fijo'!$D$152","v":9.6170003999999896},{"$f":"+O32*'Sup fijo'!$D$152","v":0},{"$f":"+P32*'Sup fijo'!$D$152","v":0},{"$f":"+Q32*'Sup fijo'!$D$152","v":0},{"$f":"+R32*'Sup fijo'!$D$152","v":0},{"$f":"+S32*'Sup fijo'!$D$152","v":0},{"$f":"+T32*'Sup fijo'!$D$152","v":0},{"$f":"+U32*'Sup fijo'!$D$152","v":0},{"$f":"+V32*'Sup fijo'!$D$152","v":0}]
[null,{"$f":"+B27","v":"Seguro Campesino"},{"$f":"+C32*'Sup fijo'!$D$153","v":5.1519645000000001},{"$f":"+D32*'Sup fijo'!$D$153","v":4.8085002000000001},{"$f":"+E32*'Sup fijo'!$D$153","v":4.4650359000000002},{"$f":"+F32*'Sup fijo'!$D$153","v":4.1215715999999993},{"$f":"+G32*'Sup fijo'!$D$153","v":3.7781072999999994},{"$f":"+H32*'Sup fijo'!$D$153","v":3.4346429999999986},{"$f":"+I32*'Sup fijo'!$D$153","v":3.0911786999999986},{"$f":"+J32*'Sup fijo'!$D$153","v":2.7477143999999987},{"$f":"+K32*'Sup fijo'!$D$153","v":2.4042500999999987},{"$f":"+L32*'Sup fijo'!$D$153","v":2.0607857999999988},{"$f":"+M32*'Sup fijo'!$D$153","v":1.7173214999999986},{"$f":"+N32*'Sup fijo'!$D$153","v":1.3738571999999984},{"$f":"+O32*'Sup fijo'!$D$153","v":0},{"$f":"+P32*'Sup fijo'!$D$153","v":0},{"$f":"+Q32*'Sup fijo'!$D$153","v":0},{"$f":"+R32*'Sup fijo'!$D$153","v":0},{"$f":"+S32*'Sup fijo'!$D$153","v":0},{"$f":"+T32*'Sup fijo'!$D$153","v":0},{"$f":"+U32*'Sup fijo'!$D$153","v":0},{"$f":"+V32*'Sup fijo'!$D$153","v":0}]
[null,{"$f":"+B28","v":"Total seguros (USD)"},{"$f":"+SUM(C32:C34)","v":1071.6086160000002},1000.1680416,928.72746719999998,857.28689279999992,785.84631839999986,714.4057439999998,642.96516959999974,571.52459519999968,500.08402079999973,428.64344639999973,357.20287199999973,285.76229759999967,0,0,0,0,0,0,0,0]
[]
[null,"Gastos de Administración Sin SITP-Q",{"$f":"SUM(C38:C51)","v":2308.2393600000005},{"$f":"SUM(D38:D51)","v":2345.1711897599994},2406.14564069376,2416.5401898615573,2423.0648483741834,2439.2993828582903,2486.6492330037981,2529.8023106699811,2566.6378628499824,2600.9813385180137,2634.9327691501771,2665.0631731982762,2697.9083517843392,2734.4040286369927,2773.7270046630288,2811.8713479353364,2849.2742470474386,2886.7263157160346,2924.5854031625222,2962.963516788423]
[null,{"$f":"'Sup fijo'!B122","v":"Luz "},{"$f":"'Sup fijo'!$D122/'Sup fijo'!$D$142*12*(1+'Sup Generales'!C$8)","v":24.576000000000001},{"$f":"'Sup fijo'!$D122/'Sup fijo'!$D$142*12*(1+'Sup Generales'!D$8)","v":24.969215999999999},{"$f":"'Sup fijo'!$D122/'Sup fijo'!$D$142*12*(1+'Sup Generales'!E$8)","v":25.618415616},{"$f":"'Sup fijo'!$D122/'Sup fijo'!$D$142*12*(1+'Sup Generales'!F$8)","v":25.729087171461124},{"$f":"'Sup fijo'!$D122/'Sup fijo'!$D$142*12*(1+'Sup Generales'!G$8)","v":25.798555706824068},{"$f":"'Sup fijo'!$D122/'Sup fijo'!$D$142*12*(1+'Sup Generales'!H$8)","v":25.971406030059789},{"$f":"'Sup fijo'!$D122/'Sup fijo'!$D$142*12*(1+'Sup Generales'!I$8)","v":26.475543485360788},{"$f":"'Sup fijo'!$D122/'Sup fijo'!$D$142*12*(1+'Sup Generales'!J$8)","v":26.934997584923543},{"$f":"'Sup fijo'!$D122/'Sup fijo'!$D$142*12*(1+'Sup Generales'!K$8)","v":27.327188510207694},{"$f":"'Sup fijo'!$D122/'Sup fijo'!$D$142*12*(1+'Sup Generales'!L$8)","v":27.692846107354615},{"$f":"'Sup fijo'!$D122/'Sup fijo'!$D$142*12*(1+'Sup Generales'!M$8)","v":28.054329571190898},{"$f":"'Sup fijo'!$D122/'Sup fijo'!$D$142*12*(1+'Sup Generales'!N$8)","v":28.375130274410029},{"$f":"'Sup fijo'!$D122/'Sup fijo'!$D$142*12*(1+'Sup Generales'!O$8)","v":28.72483538858463},{"$f":"'Sup fijo'!$D122/'Sup fijo'!$D$142*12*(1+'Sup Generales'!P$8)","v":29.113407635412095},{"$f":"'Sup fijo'!$D122/'Sup fijo'!$D$142*12*(1+'Sup Generales'!Q$8)","v":29.532082351545458},{"$f":"'Sup fijo'!$D122/'Sup fijo'!$D$142*12*(1+'Sup Generales'!R$8)","v":29.938208075118709},{"$f":"'Sup fijo'!$D122/'Sup fijo'!$D$142*12*(1+'Sup Generales'!S$8)","v":30.336439586333817},{"$f":"'Sup fijo'!$D122/'Sup fijo'!$D$142*12*(1+'Sup Generales'!T$8)","v":30.735194609556117},{"$f":"'Sup fijo'!$D122/'Sup fijo'!$D$142*12*(1+'Sup Generales'!U$8)","v":31.138283192659078},{"$f":"'Sup fijo'!$D122/'Sup fijo'!$D$142*12*(1+'Sup Generales'!V$8)","v":31.546897886964501}]
[null,{"$f":"'Sup fijo'!B123","v":"Agua "},{"$f":"'Sup fijo'!$D123/'Sup fijo'!$D$142*12*(1+'Sup Generales'!C$8)","v":12.288},{"$f":"'Sup fijo'!$D123/'Sup fijo'!$D$142*12*(1+'Sup Generales'!D$8)","v":12.484608},{"$f":"'Sup fijo'!$D123/'Sup fijo'!$D$142*12*(1+'Sup Generales'!E$8)","v":12.809207808},{"$f":"'Sup fijo'!$D123/'Sup fijo'!$D$142*12*(1+'Sup Generales'!F$8)","v":12.864543585730562},{"$f":"'Sup fijo'!$D123/'Sup fijo'!$D$142*12*(1+'Sup Generales'!G$8)","v":12.899277853412034},{"$f":"'Sup fijo'!$D123/'Sup fijo'!$D$142*12*(1+'Sup Generales'!H$8)","v":12.985703015029895},{"$f":"'Sup fijo'!$D123/'Sup fijo'!$D$142*12*(1+'Sup Generales'!I$8)","v":13.237771742680394},{"$f":"'Sup fijo'!$D123/'Sup fijo'!$D$142*12*(1+'Sup Generales'!J$8)","v":13.467498792461772},{"$f":"'Sup fijo'!$D123/'Sup fijo'!$D$142*12*(1+'Sup Generales'!K$8)","v":13.663594255103847},{"$f":"'Sup fijo'!$D123/'Sup fijo'!$D$142*12*(1+'Sup Generales'!L$8)","v":13.846423053677308},{"$f":"'Sup fijo'!$D123/'Sup fijo'!$D$142*12*(1+'Sup Generales'!M$8)","v":14.027164785595449},{"$f":"'Sup fijo'!$D123/'Sup fijo'!$D$142*12*(1+'Sup Generales'!N$8)","v":14.187565137205015},{"$f":"'Sup fijo'!$D123/'Sup fijo'!$D$142*12*(1+'Sup Generales'!O$8)","v":14.362417694292315},{"$f":"'Sup fijo'!$D123/'Sup fijo'!$D$142*12*(1+'Sup Generales'!P$8)","v":14.556703817706047},{"$f":"'Sup fijo'!$D123/'Sup fijo'!$D$142*12*(1+'Sup Generales'!Q$8)","v":14.766041175772729},{"$f":"'Sup fijo'!$D123/'Sup fijo'!$D$142*12*(1+'Sup Generales'!R$8)","v":14.969104037559354},{"$f":"'Sup fijo'!$D123/'Sup fijo'!$D$142*12*(1+'Sup Generales'!S$8)","v":15.168219793166909},{"$f":"'Sup fijo'!$D123/'Sup fijo'!$D$142*12*(1+'Sup Generales'!T$8)","v":15.367597304778059},{"$f":"'Sup fijo'!$D123/'Sup fijo'!$D$142*12*(1+'Sup Generales'!U$8)","v":15.569141596329539},{"$f":"'Sup fijo'!$D123/'Sup fijo'!$D$142*12*(1+'Sup Generales'!V$8)","v":15.773448943482251}]
[null,{"$f":"'Sup fijo'!B124","v":"Teléfonos "},{"$f":"'Sup fijo'!$D124/'Sup fijo'!$D$142*12*(1+'Sup Generales'!C$8)","v":98.304000000000002},{"$f":"'Sup fijo'!$D124/'Sup fijo'!$D$142*12*(1+'Sup Generales'!D$8)","v":99.876863999999998},{"$f":"'Sup fijo'!$D124/'Sup fijo'!$D$142*12*(1+'Sup Generales'!E$8)","v":102.473662464},{"$f":"'Sup fijo'!$D124/'Sup fijo'!$D$142*12*(1+'Sup Generales'!F$8)","v":102.9163486858445},{"$f":"'Sup fijo'!$D124/'Sup fijo'!$D$142*12*(1+'Sup Generales'!G$8)","v":103.19422282729627},{"$f":"'Sup fijo'!$D124/'Sup fijo'!$D$142*12*(1+'Sup Generales'!H$8)","v":103.88562412023916},{"$f":"'Sup fijo'!$D124/'Sup fijo'!$D$142*12*(1+'Sup Generales'!I$8)","v":105.90217394144315},{"$f":"'Sup fijo'!$D124/'Sup fijo'!$D$142*12*(1+'Sup Generales'!J$8)","v":107.73999033969417},{"$f":"'Sup fijo'!$D124/'Sup fijo'!$D$142*12*(1+'Sup Generales'!K$8)","v":109.30875404083078},{"$f":"'Sup fijo'!$D124/'Sup fijo'!$D$142*12*(1+'Sup Generales'!L$8)","v":110.77138442941846},{"$f":"'Sup fijo'!$D124/'Sup fijo'!$D$142*12*(1+'Sup Generales'!M$8)","v":112.21731828476359},{"$f":"'Sup fijo'!$D124/'Sup fijo'!$D$142*12*(1+'Sup Generales'!N$8)","v":113.50052109764012},{"$f":"'Sup fijo'!$D124/'Sup fijo'!$D$142*12*(1+'Sup Generales'!O$8)","v":114.89934155433852},{"$f":"'Sup fijo'!$D124/'Sup fijo'!$D$142*12*(1+'Sup Generales'!P$8)","v":116.45363054164838},{"$f":"'Sup fijo'!$D124/'Sup fijo'!$D$142*12*(1+'Sup Generales'!Q$8)","v":118.12832940618183},{"$f":"'Sup fijo'!$D124/'Sup fijo'!$D$142*12*(1+'Sup Generales'!R$8)","v":119.75283230047484},{"$f":"'Sup fijo'!$D124/'Sup fijo'!$D$142*12*(1+'Sup Generales'!S$8)","v":121.34575834533527},{"$f":"'Sup fijo'!$D124/'Sup fijo'!$D$142*12*(1+'Sup Generales'!T$8)","v":122.94077843822447},{"$f":"'Sup fijo'!$D124/'Sup fijo'!$D$142*12*(1+'Sup Generales'!U$8)","v":124.55313277063631},{"$f":"'Sup fijo'!$D124/'Sup fijo'!$D$142*12*(1+'Sup Generales'!V$8)","v":126.18759154785801}]
[null,{"$f":"'Sup fijo'!B125","v":"Internet"},{"$f":"'Sup fijo'!$D125/'Sup fijo'!$D$142*12*(1+'Sup Generales'!C$8)","v":12.288},{"$f":"'Sup fijo'!$D125/'Sup fijo'!$D$142*12*(1+'Sup Generales'!D$8)","v":12.484608},{"$f":"'Sup fijo'!$D125/'Sup fijo'!$D$142*12*(1+'Sup Generales'!E$8)","v":12.809207808},{"$f":"'Sup fijo'!$D125/'Sup fijo'!$D$142*12*(1+'Sup Generales'!F$8)","v":12.864543585730562},{"$f":"'Sup fijo'!$D125/'Sup fijo'!$D$142*12*(1+'Sup Generales'!G$8)","v":12.899277853412034},{"$f":"'Sup fijo'!$D125/'Sup fijo'!$D$142*12*(1+'Sup Generales'!H$8)","v":12.985703015029895},{"$f":"'Sup fijo'!$D125/'Sup fijo'!$D$142*12*(1+'Sup Generales'!I$8)","v":13.237771742680394},{"$f":"'Sup fijo'!$D125/'Sup fijo'!$D$142*12*(1+'Sup Generales'!J$8)","v":13.467498792461772},{"$f":"'Sup fijo'!$D125/'Sup fijo'!$D$142*12*(1+'Sup Generales'!K$8)","v":13.663594255103847},{"$f":"'Sup fijo'!$D125/'Sup fijo'!$D$142*12*(1+'Sup Generales'!L$8)","v":13.846423053677308},{"$f":"'Sup fijo'!$D125/'Sup fijo'!$D$142*12*(1+'Sup Generales'!M$8)","v":14.027164785595449},{"$f":"'Sup fijo'!$D125/'Sup fijo'!$D$142*12*(1+'Sup Generales'!N$8)","v":14.187565137205015},{"$f":"'Sup fijo'!$D125/'Sup fijo'!$D$142*12*(1+'Sup Generales'!O$8)","v":14.362417694292315},{"$f":"'Sup fijo'!$D125/'Sup fijo'!$D$142*12*(1+'Sup Generales'!P$8)","v":14.556703817706047},{"$f":"'Sup fijo'!$D125/'Sup fijo'!$D$142*12*(1+'Sup Generales'!Q$8)","v":14.766041175772729},{"$f":"'Sup fijo'!$D125/'Sup fijo'!$D$142*12*(1+'Sup Generales'!R$8)","v":14.969104037559354},{"$f":"'Sup fijo'!$D125/'Sup fijo'!$D$142*12*(1+'Sup Generales'!S$8)","v":15.168219793166909},{"$f":"'Sup fijo'!$D125/'Sup fijo'!$D$142*12*(1+'Sup Generales'!T$8)","v":15.367597304778059},{"$f":"'Sup fijo'!$D125/'Sup fijo'!$D$142*12*(1+'Sup Generales'!U$8)","v":15.569141596329539},{"$f":"'Sup fijo'!$D125/'Sup fijo'!$D$142*12*(1+'Sup Generales'!V$8)","v":15.773448943482251}]
[null,{"$f":"'Sup fijo'!B126","v":"Limpieza oficina "},{"$f":"'Sup fijo'!$D126/'Sup fijo'!$D$142*12*(1+'Sup Generales'!C$8)","v":122.88},{"$f":"'Sup fijo'!$D126/'Sup fijo'!$D$142*12*(1+'Sup Generales'!D$8)","v":124.84608},{"$f":"'Sup fijo'!$D126/'Sup fijo'!$D$142*12*(1+'Sup Generales'!E$8)","v":128.09207807999999},{"$f":"'Sup fijo'!$D126/'Sup fijo'!$D$142*12*(1+'Sup Generales'!F$8)","v":128.64543585730561},{"$f":"'Sup fijo'!$D126/'Sup fijo'!$D$142*12*(1+'Sup Generales'!G$8)","v":128.99277853412033},{"$f":"'Sup fijo'!$D126/'Sup fijo'!$D$142*12*(1+'Sup Generales'!H$8)","v":129.85703015029893},{"$f":"'Sup fijo'!$D126/'Sup fijo'!$D$142*12*(1+'Sup Generales'!I$8)","v":132.37771742680394},{"$f":"'Sup fijo'!$D126/'Sup fijo'!$D$142*12*(1+'Sup Generales'!J$8)","v":134.67498792461771},{"$f":"'Sup fijo'!$D126/'Sup fijo'!$D$142*12*(1+'Sup Generales'!K$8)","v":136.63594255103848},{"$f":"'Sup fijo'!$D126/'Sup fijo'!$D$142*12*(1+'Sup Generales'!L$8)","v":138.46423053677307},{"$f":"'Sup fijo'!$D126/'Sup fijo'!$D$142*12*(1+'Sup Generales'!M$8)","v":140.27164785595448},{"$f":"'Sup fijo'!$D126/'Sup fijo'!$D$142*12*(1+'Sup Generales'!N$8)","v":141.87565137205016},{"$f":"'Sup fijo'!$D126/'Sup fijo'!$D$142*12*(1+'Sup Generales'!O$8)","v":143.62417694292316},{"$f":"'Sup fijo'!$D126/'Sup fijo'!$D$142*12*(1+'Sup Generales'!P$8)","v":145.56703817706048},{"$f":"'Sup fijo'!$D126/'Sup fijo'!$D$142*12*(1+'Sup Generales'!Q$8)","v":147.6604117577273},{"$f":"'Sup fijo'!$D126/'Sup fijo'!$D$142*12*(1+'Sup Generales'!R$8)","v":149.69104037559353},{"$f":"'Sup fijo'!$D126/'Sup fijo'!$D$142*12*(1+'Sup Generales'!S$8)","v":151.68219793166909},{"$f":"'Sup fijo'!$D126/'Sup fijo'!$D$142*12*(1+'Sup Generales'!T$8)","v":153.67597304778059},{"$f":"'Sup fijo'!$D126/'Sup fijo'!$D$142*12*(1+'Sup Generales'!U$8)","v":155.69141596329538},{"$f":"'Sup fijo'!$D126/'Sup fijo'!$D$142*12*(1+'Sup Generales'!V$8)","v":157.73448943482251}]
[null,{"$f":"'Sup fijo'!B127","v":"Seguridad alarmas"},{"$f":"'Sup fijo'!$D127/'Sup fijo'!$D$142*12*(1+'Sup Generales'!C$8)","v":12.288},{"$f":"'Sup fijo'!$D127/'Sup fijo'!$D$142*12*(1+'Sup Generales'!D$8)","v":12.484608},{"$f":"'Sup fijo'!$D127/'Sup fijo'!$D$142*12*(1+'Sup Generales'!E$8)","v":12.809207808},{"$f":"'Sup fijo'!$D127/'Sup fijo'!$D$142*12*(1+'Sup Generales'!F$8)","v":12.864543585730562},{"$f":"'Sup fijo'!$D127/'Sup fijo'!$D$142*12*(1+'Sup Generales'!G$8)","v":12.899277853412034},{"$f":"'Sup fijo'!$D127/'Sup fijo'!$D$142*12*(1+'Sup Generales'!H$8)","v":12.985703015029895},{"$f":"'Sup fijo'!$D127/'Sup fijo'!$D$142*12*(1+'Sup Generales'!I$8)","v":13.237771742680394},{"$f":"'Sup fijo'!$D127/'Sup fijo'!$D$142*12*(1+'Sup Generales'!J$8)","v":13.467498792461772},{"$f":"'Sup fijo'!$D127/'Sup fijo'!$D$142*12*(1+'Sup Generales'!K$8)","v":13.663594255103847},{"$f":"'Sup fijo'!$D127/'Sup fijo'!$D$142*12*(1+'Sup Generales'!L$8)","v":13.846423053677308},{"$f":"'Sup fijo'!$D127/'Sup fijo'!$D$142*12*(1+'Sup Generales'!M$8)","v":14.027164785595449},{"$f":"'Sup fijo'!$D127/'Sup fijo'!$D$142*12*(1+'Sup Generales'!N$8)","v":14.187565137205015},{"$f":"'Sup fijo'!$D127/'Sup fijo'!$D$142*12*(1+'Sup Generales'!O$8)","v":14.362417694292315},{"$f":"'Sup fijo'!$D127/'Sup fijo'!$D$142*12*(1+'Sup Generales'!P$8)","v":14.556703817706047},{"$f":"'Sup fijo'!$D127/'Sup fijo'!$D$142*12*(1+'Sup Generales'!Q$8)","v":14.766041175772729},{"$f":"'Sup fijo'!$D127/'Sup fijo'!$D$142*12*(1+'Sup Generales'!R$8)","v":14.969104037559354},{"$f":"'Sup fijo'!$D127/'Sup fijo'!$D$142*12*(1+'Sup Generales'!S$8)","v":15.168219793166909},{"$f":"'Sup fijo'!$D127/'Sup fijo'!$D$142*12*(1+'Sup Generales'!T$8)","v":15.367597304778059},{"$f":"'Sup fijo'!$D127/'Sup fijo'!$D$142*12*(1+'Sup Generales'!U$8)","v":15.569141596329539},{"$f":"'Sup fijo'!$D127/'Sup fijo'!$D$142*12*(1+'Sup Generales'!V$8)","v":15.773448943482251}]
[null,{"$f":"'Sup fijo'!B128","v":"Útiles oficina "},{"$f":"'Sup fijo'!$D128/'Sup fijo'!$D$142*12*(1+'Sup Generales'!C$8)","v":73.728000000000009},{"$f":"'Sup fijo'!$D128/'Sup fijo'!$D$142*12*(1+'Sup Generales'!D$8)","v":74.907647999999995},{"$f":"'Sup fijo'!$D128/'Sup fijo'!$D$142*12*(1+'Sup Generales'!E$8)","v":76.855246848000007},{"$f":"'Sup fijo'!$D128/'Sup fijo'!$D$142*12*(1+'Sup Generales'!F$8)","v":77.18726151438338},{"$f":"'Sup fijo'!$D128/'Sup fijo'!$D$142*12*(1+'Sup Generales'!G$8)","v":77.395667120472211},{"$f":"'Sup fijo'!$D128/'Sup fijo'!$D$142*12*(1+'Sup Generales'!H$8)","v":77.914218090179361},{"$f":"'Sup fijo'!$D128/'Sup fijo'!$D$142*12*(1+'Sup Generales'!I$8)","v":79.426630456082364},{"$f":"'Sup fijo'!$D128/'Sup fijo'!$D$142*12*(1+'Sup Generales'!J$8)","v":80.804992754770623},{"$f":"'Sup fijo'!$D128/'Sup fijo'!$D$142*12*(1+'Sup Generales'!K$8)","v":81.981565530623087},{"$f":"'Sup fijo'!$D128/'Sup fijo'!$D$142*12*(1+'Sup Generales'!L$8)","v":83.078538322063849},{"$f":"'Sup fijo'!$D128/'Sup fijo'!$D$142*12*(1+'Sup Generales'!M$8)","v":84.162988713572688},{"$f":"'Sup fijo'!$D128/'Sup fijo'!$D$142*12*(1+'Sup Generales'!N$8)","v":85.125390823230092},{"$f":"'Sup fijo'!$D128/'Sup fijo'!$D$142*12*(1+'Sup Generales'!O$8)","v":86.174506165753883},{"$f":"'Sup fijo'!$D128/'Sup fijo'!$D$142*12*(1+'Sup Generales'!P$8)","v":87.340222906236278},{"$f":"'Sup fijo'!$D128/'Sup fijo'!$D$142*12*(1+'Sup Generales'!Q$8)","v":88.596247054636379},{"$f":"'Sup fijo'!$D128/'Sup fijo'!$D$142*12*(1+'Sup Generales'!R$8)","v":89.814624225356127},{"$f":"'Sup fijo'!$D128/'Sup fijo'!$D$142*12*(1+'Sup Generales'!S$8)","v":91.009318759001459},{"$f":"'Sup fijo'!$D128/'Sup fijo'!$D$142*12*(1+'Sup Generales'!T$8)","v":92.205583828668352},{"$f":"'Sup fijo'!$D128/'Sup fijo'!$D$142*12*(1+'Sup Generales'!U$8)","v":93.414849577977236},{"$f":"'Sup fijo'!$D128/'Sup fijo'!$D$142*12*(1+'Sup Generales'!V$8)","v":94.640693660893504}]
[null,{"$f":"'Sup fijo'!B136","v":"Medio de pago "},{"$f":"'Sup fijo'!$D136/'Sup fijo'!$D$142*12*(1+'Sup Generales'!C$8)","v":564.01919999999996},{"$f":"'Sup fijo'!$D136/'Sup fijo'!$D$142*12*(1+'Sup Generales'!D$8)","v":573.04350719999991},{"$f":"'Sup fijo'!$D136/'Sup fijo'!$D$142*12*(1+'Sup Generales'!E$8)","v":587.94263838719996},{"$f":"'Sup fijo'!$D136/'Sup fijo'!$D$142*12*(1+'Sup Generales'!F$8)","v":590.48255058503275},{"$f":"'Sup fijo'!$D136/'Sup fijo'!$D$142*12*(1+'Sup Generales'!G$8)","v":592.07685347161237},{"$f":"'Sup fijo'!$D136/'Sup fijo'!$D$142*12*(1+'Sup Generales'!H$8)","v":596.04376838987207},{"$f":"'Sup fijo'!$D136/'Sup fijo'!$D$142*12*(1+'Sup Generales'!I$8)","v":607.61372298903007},{"$f":"'Sup fijo'!$D136/'Sup fijo'!$D$142*12*(1+'Sup Generales'!J$8)","v":618.15819457399527},{"$f":"'Sup fijo'!$D136/'Sup fijo'!$D$142*12*(1+'Sup Generales'!K$8)","v":627.15897630926656},{"$f":"'Sup fijo'!$D136/'Sup fijo'!$D$142*12*(1+'Sup Generales'!L$8)","v":635.55081816378834},{"$f":"'Sup fijo'!$D136/'Sup fijo'!$D$142*12*(1+'Sup Generales'!M$8)","v":643.84686365883101},{"$f":"'Sup fijo'!$D136/'Sup fijo'!$D$142*12*(1+'Sup Generales'!N$8)","v":651.2092397977101},{"$f":"'Sup fijo'!$D136/'Sup fijo'!$D$142*12*(1+'Sup Generales'!O$8)","v":659.23497216801718},{"$f":"'Sup fijo'!$D136/'Sup fijo'!$D$142*12*(1+'Sup Generales'!P$8)","v":668.15270523270749},{"$f":"'Sup fijo'!$D136/'Sup fijo'!$D$142*12*(1+'Sup Generales'!Q$8)","v":677.7612899679682},{"$f":"'Sup fijo'!$D136/'Sup fijo'!$D$142*12*(1+'Sup Generales'!R$8)","v":687.08187532397426},{"$f":"'Sup fijo'!$D136/'Sup fijo'!$D$142*12*(1+'Sup Generales'!S$8)","v":696.22128850636113},{"$f":"'Sup fijo'!$D136/'Sup fijo'!$D$142*12*(1+'Sup Generales'!T$8)","v":705.37271628931285},{"$f":"'Sup fijo'!$D136/'Sup fijo'!$D$142*12*(1+'Sup Generales'!U$8)","v":714.62359927152579},{"$f":"'Sup fijo'!$D136/'Sup fijo'!$D$142*12*(1+'Sup Generales'!V$8)","v":724.00130650583526}]
[null,{"$f":"'Sup fijo'!B129","v":"Mantenimiento oficinas "},{"$f":"'Sup fijo'!$D129/'Sup fijo'!$D$142*12*(1+'Sup Generales'!C$8)","v":24.576000000000001},{"$f":"'Sup fijo'!$D129/'Sup fijo'!$D$142*12*(1+'Sup Generales'!D$8)","v":24.969215999999999},{"$f":"'Sup fijo'!$D129/'Sup fijo'!$D$142*12*(1+'Sup Generales'!E$8)","v":25.618415616},{"$f":"'Sup fijo'!$D129/'Sup fijo'!$D$142*12*(1+'Sup Generales'!F$8)","v":25.729087171461124},{"$f":"'Sup fijo'!$D129/'Sup fijo'!$D$142*12*(1+'Sup Generales'!G$8)","v":25.798555706824068},{"$f":"'Sup fijo'!$D129/'Sup fijo'!$D$142*12*(1+'Sup Generales'!H$8)","v":25.971406030059789},{"$f":"'Sup fijo'!$D129/'Sup fijo'!$D$142*12*(1+'Sup Generales'!I$8)","v":26.475543485360788},{"$f":"'Sup fijo'!$D129/'Sup fijo'!$D$142*12*(1+'Sup Generales'!J$8)","v":26.934997584923543},{"$f":"'Sup fijo'!$D129/'Sup fijo'!$D$142*12*(1+'Sup Generales'!K$8)","v":27.327188510207694},{"$f":"'Sup fijo'!$D129/'Sup fijo'!$D$142*12*(1+'Sup Generales'!L$8)","v":27.692846107354615},{"$f":"'Sup fijo'!$D129/'Sup fijo'!$D$142*12*(1+'Sup Generales'!M$8)","v":28.054329571190898},{"$f":"'Sup fijo'!$D129/'Sup fijo'!$D$142*12*(1+'Sup Generales'!N$8)","v":28.375130274410029},{"$f":"'Sup fijo'!$D129/'Sup fijo'!$D$142*12*(1+'Sup Generales'!O$8)","v":28.72483538858463},{"$f":"'Sup fijo'!$D129/'Sup fijo'!$D$142*12*(1+'Sup Generales'!P$8)","v":29.113407635412095},{"$f":"'Sup fijo'!$D129/'Sup fijo'!$D$142*12*(1+'Sup Generales'!Q$8)","v":29.532082351545458},{"$f":"'Sup fijo'!$D129/'Sup fijo'!$D$142*12*(1+'Sup Generales'!R$8)","v":29.938208075118709},{"$f":"'Sup fijo'!$D129/'Sup fijo'!$D$142*12*(1+'Sup Generales'!S$8)","v":30.336439586333817},{"$f":"'Sup fijo'!$D129/'Sup fijo'!$D$142*12*(1+'Sup Generales'!T$8)","v":30.735194609556117},{"$f":"'Sup fijo'!$D129/'Sup fijo'!$D$142*12*(1+'Sup Generales'!U$8)","v":31.138283192659078},{"$f":"'Sup fijo'!$D129/'Sup fijo'!$D$142*12*(1+'Sup Generales'!V$8)","v":31.546897886964501}]
[null,{"$f":"'Sup fijo'!B130","v":"Comunicación radios "},{"$f":"'Sup fijo'!$D130/'Sup fijo'!$D$142*12*(1+'Sup Generales'!C$8)","v":24.576000000000001},{"$f":"'Sup fijo'!$D130/'Sup fijo'!$D$142*12*(1+'Sup Generales'!D$8)","v":24.969215999999999},{"$f":"'Sup fijo'!$D130/'Sup fijo'!$D$142*12*(1+'Sup Generales'!E$8)","v":25.618415616},{"$f":"'Sup fijo'!$D130/'Sup fijo'!$D$142*12*(1+'Sup Generales'!F$8)","v":25.729087171461124},{"$f":"'Sup fijo'!$D130/'Sup fijo'!$D$142*12*(1+'Sup Generales'!G$8)","v":25.798555706824068},{"$f":"'Sup fijo'!$D130/'Sup fijo'!$D$142*12*(1+'Sup Generales'!H$8)","v":25.971406030059789},{"$f":"'Sup fijo'!$D130/'Sup fijo'!$D$142*12*(1+'Sup Generales'!I$8)","v":26.475543485360788},{"$f":"'Sup fijo'!$D130/'Sup fijo'!$D$142*12*(1+'Sup Generales'!J$8)","v":26.934997584923543},{"$f":"'Sup fijo'!$D130/'Sup fijo'!$D$142*12*(1+'Sup Generales'!K$8)","v":27.327188510207694},{"$f":"'Sup fijo'!$D130/'Sup fijo'!$D$142*12*(1+'Sup Generales'!L$8)","v":27.692846107354615},{"$f":"'Sup fijo'!$D130/'Sup fijo'!$D$142*12*(1+'Sup Generales'!M$8)","v":28.054329571190898},{"$f":"'Sup fijo'!$D130/'Sup fijo'!$D$142*12*(1+'Sup Generales'!N$8)","v":28.375130274410029},{"$f":"'Sup fijo'!$D130/'Sup fijo'!$D$142*12*(1+'Sup Generales'!O$8)","v":28.72483538858463},{"$f":"'Sup fijo'!$D130/'Sup fijo'!$D$142*12*(1+'Sup Generales'!P$8)","v":29.113407635412095},{"$f":"'Sup fijo'!$D130/'Sup fijo'!$D$142*12*(1+'Sup Generales'!Q$8)","v":29.532082351545458},{"$f":"'Sup fijo'!$D130/'Sup fijo'!$D$142*12*(1+'Sup Generales'!R$8)","v":29.938208075118709},{"$f":"'Sup fijo'!$D130/'Sup fijo'!$D$142*12*(1+'Sup Generales'!S$8)","v":30.336439586333817},{"$f":"'Sup fijo'!$D130/'Sup fijo'!$D$142*12*(1+'Sup Generales'!T$8)","v":30.735194609556117},{"$f":"'Sup fijo'!$D130/'Sup fijo'!$D$142*12*(1+'Sup Generales'!U$8)","v":31.138283192659078},{"$f":"'Sup fijo'!$D130/'Sup fijo'!$D$142*12*(1+'Sup Generales'!V$8)","v":31.546897886964501}]
[null,{"$f":"'Sup fijo'!B131","v":"Movilización auxilios "},{"$f":"'Sup fijo'!$D131/'Sup fijo'!$D$142*12*(1+'Sup Generales'!C$8)","v":122.88},{"$f":"'Sup fijo'!$D131/'Sup fijo'!$D$142*12*(1+'Sup Generales'!D$8)","v":124.84608},{"$f":"'Sup fijo'!$D131/'Sup fijo'!$D$142*12*(1+'Sup Generales'!E$8)","v":128.09207807999999},{"$f":"'Sup fijo'!$D131/'Sup fijo'!$D$142*12*(1+'Sup Generales'!F$8)","v":128.64543585730561},{"$f":"'Sup fijo'!$D131/'Sup fijo'!$D$142*12*(1+'Sup Generales'!G$8)","v":128.99277853412033},{"$f":"'Sup fijo'!$D131/'Sup fijo'!$D$142*12*(1+'Sup Generales'!H$8)","v":129.85703015029893},{"$f":"'Sup fijo'!$D131/'Sup fijo'!$D$142*12*(1+'Sup Generales'!I$8)","v":132.37771742680394},{"$f":"'Sup fijo'!$D131/'Sup fijo'!$D$142*12*(1+'Sup Generales'!J$8)","v":134.67498792461771},{"$f":"'Sup fijo'!$D131/'Sup fijo'!$D$142*12*(1+'Sup Generales'!K$8)","v":136.63594255103848},{"$f":"'Sup fijo'!$D131/'Sup fijo'!$D$142*12*(1+'Sup Generales'!L$8)","v":138.46423053677307},{"$f":"'Sup fijo'!$D131/'Sup fijo'!$D$142*12*(1+'Sup Generales'!M$8)","v":140.27164785595448},{"$f":"'Sup fijo'!$D131/'Sup fijo'!$D$142*12*(1+'Sup Generales'!N$8)","v":141.87565137205016},{"$f":"'Sup fijo'!$D131/'Sup fijo'!$D$142*12*(1+'Sup Generales'!O$8)","v":143.62417694292316},{"$f":"'Sup fijo'!$D131/'Sup fijo'!$D$142*12*(1+'Sup Generales'!P$8)","v":145.56703817706048},{"$f":"'Sup fijo'!$D131/'Sup fijo'!$D$142*12*(1+'Sup Generales'!Q$8)","v":147.6604117577273},{"$f":"'Sup fijo'!$D131/'Sup fijo'!$D$142*12*(1+'Sup Generales'!R$8)","v":149.69104037559353},{"$f":"'Sup fijo'!$D131/'Sup fijo'!$D$142*12*(1+'Sup Generales'!S$8)","v":151.68219793166909},{"$f":"'Sup fijo'!$D131/'Sup fijo'!$D$142*12*(1+'Sup Generales'!T$8)","v":153.67597304778059},{"$f":"'Sup fijo'!$D131/'Sup fijo'!$D$142*12*(1+'Sup Generales'!U$8)","v":155.69141596329538},{"$f":"'Sup fijo'!$D131/'Sup fijo'!$D$142*12*(1+'Sup Generales'!V$8)","v":157.73448943482251}]
[null,{"$f":"'Sup fijo'!B132","v":"Arriendo y Mtto de patios "},{"$f":"'Sup fijo'!$D132/'Sup fijo'!$D$142*12*(1+'Sup Generales'!C$8)","v":983.04},{"$f":"'Sup fijo'!$D132/'Sup fijo'!$D$142*12*(1+'Sup Generales'!D$8)","v":998.76864},{"$f":"'Sup fijo'!$D132/'Sup fijo'!$D$142*12*(1+'Sup Generales'!E$8)","v":1024.7366246399999},{"$f":"'Sup fijo'!$D132/'Sup fijo'!$D$142*12*(1+'Sup Generales'!F$8)","v":1029.1634868584449},{"$f":"'Sup fijo'!$D132/'Sup fijo'!$D$142*12*(1+'Sup Generales'!G$8)","v":1031.9422282729627},{"$f":"'Sup fijo'!$D132/'Sup fijo'!$D$142*12*(1+'Sup Generales'!H$8)","v":1038.8562412023914},{"$f":"'Sup fijo'!$D132/'Sup fijo'!$D$142*12*(1+'Sup Generales'!I$8)","v":1059.0217394144315},{"$f":"'Sup fijo'!$D132/'Sup fijo'!$D$142*12*(1+'Sup Generales'!J$8)","v":1077.3999033969417},{"$f":"'Sup fijo'!$D132/'Sup fijo'!$D$142*12*(1+'Sup Generales'!K$8)","v":1093.0875404083079},{"$f":"'Sup fijo'!$D132/'Sup fijo'!$D$142*12*(1+'Sup Generales'!L$8)","v":1107.7138442941846},{"$f":"'Sup fijo'!$D132/'Sup fijo'!$D$142*12*(1+'Sup Generales'!M$8)","v":1122.1731828476359},{"$f":"'Sup fijo'!$D132/'Sup fijo'!$D$142*12*(1+'Sup Generales'!N$8)","v":1135.0052109764013},{"$f":"'Sup fijo'!$D132/'Sup fijo'!$D$142*12*(1+'Sup Generales'!O$8)","v":1148.9934155433853},{"$f":"'Sup fijo'!$D132/'Sup fijo'!$D$142*12*(1+'Sup Generales'!P$8)","v":1164.5363054164839},{"$f":"'Sup fijo'!$D132/'Sup fijo'!$D$142*12*(1+'Sup Generales'!Q$8)","v":1181.2832940618184},{"$f":"'Sup fijo'!$D132/'Sup fijo'!$D$142*12*(1+'Sup Generales'!R$8)","v":1197.5283230047482},{"$f":"'Sup fijo'!$D132/'Sup fijo'!$D$142*12*(1+'Sup Generales'!S$8)","v":1213.4575834533528},{"$f":"'Sup fijo'!$D132/'Sup fijo'!$D$142*12*(1+'Sup Generales'!T$8)","v":1229.4077843822447},{"$f":"'Sup fijo'!$D132/'Sup fijo'!$D$142*12*(1+'Sup Generales'!U$8)","v":1245.5313277063631},{"$f":"'Sup fijo'!$D132/'Sup fijo'!$D$142*12*(1+'Sup Generales'!V$8)","v":1261.8759154785801}]
[null,{"$f":"'Sup fijo'!B137","v":"transporte valores"},{"$f":"'Sup fijo'!$D137/'Sup fijo'!$D$142*12*(1+'Sup Generales'!C$8)","v":122.88},{"$f":"'Sup fijo'!$D137/'Sup fijo'!$D$142*12*(1+'Sup Generales'!D$8)","v":124.84608},{"$f":"'Sup fijo'!$D137/'Sup fijo'!$D$142*12*(1+'Sup Generales'!E$8)","v":128.09207807999999},{"$f":"'Sup fijo'!$D137/'Sup fijo'!$D$142*12*(1+'Sup Generales'!F$8)","v":128.64543585730561},{"$f":"'Sup fijo'!$D137/'Sup fijo'!$D$142*12*(1+'Sup Generales'!G$8)","v":128.99277853412033},{"$f":"'Sup fijo'!$D137/'Sup fijo'!$D$142*12*(1+'Sup Generales'!H$8)","v":129.85703015029893},{"$f":"'Sup fijo'!$D137/'Sup fijo'!$D$142*12*(1+'Sup Generales'!I$8)","v":132.37771742680394},{"$f":"'Sup fijo'!$D137/'Sup fijo'!$D$142*12*(1+'Sup Generales'!J$8)","v":134.67498792461771},{"$f":"'Sup fijo'!$D137/'Sup fijo'!$D$142*12*(1+'Sup Generales'!K$8)","v":136.63594255103848},{"$f":"'Sup fijo'!$D137/'Sup fijo'!$D$142*12*(1+'Sup Generales'!L$8)","v":138.46423053677307},{"$f":"'Sup fijo'!$D137/'Sup fijo'!$D$142*12*(1+'Sup Generales'!M$8)","v":140.27164785595448},{"$f":"'Sup fijo'!$D137/'Sup fijo'!$D$142*12*(1+'Sup Generales'!N$8)","v":141.87565137205016},{"$f":"'Sup fijo'!$D137/'Sup fijo'!$D$142*12*(1+'Sup Generales'!O$8)","v":143.62417694292316},{"$f":"'Sup fijo'!$D137/'Sup fijo'!$D$142*12*(1+'Sup Generales'!P$8)","v":145.56703817706048},{"$f":"'Sup fijo'!$D137/'Sup fijo'!$D$142*12*(1+'Sup Generales'!Q$8)","v":147.6604117577273},{"$f":"'Sup fijo'!$D137/'Sup fijo'!$D$142*12*(1+'Sup Generales'!R$8)","v":149.69104037559353},{"$f":"'Sup fijo'!$D137/'Sup fijo'!$D$142*12*(1+'Sup Generales'!S$8)","v":151.68219793166909},{"$f":"'Sup fijo'!$D137/'Sup fijo'!$D$142*12*(1+'Sup Generales'!T$8)","v":153.67597304778059},{"$f":"'Sup fijo'!$D137/'Sup fijo'!$D$142*12*(1+'Sup Generales'!U$8)","v":155.69141596329538},{"$f":"'Sup fijo'!$D137/'Sup fijo'!$D$142*12*(1+'Sup Generales'!V$8)","v":157.73448943482251}]
[null,{"$f":"'Sup fijo'!B133","v":"Otros "},{"$f":"'Sup fijo'!$D133/'Sup fijo'!$D$142*12*(1+'Sup Generales'!C$8)","v":109.91616},{"$f":"'Sup fijo'!$D133/'Sup fijo'!$D$142*12*(1+'Sup Generales'!D$8)","v":111.67481856000001},{"$f":"'Sup fijo'!$D133/'Sup fijo'!$D$142*12*(1+'Sup Generales'!E$8)","v":114.57836384256001},{"$f":"'Sup fijo'!$D133/'Sup fijo'!$D$142*12*(1+'Sup Generales'!F$8)","v":115.07334237435988},{"$f":"'Sup fijo'!$D133/'Sup fijo'!$D$142*12*(1+'Sup Generales'!G$8)","v":115.38404039877065},{"$f":"'Sup fijo'!$D133/'Sup fijo'!$D$142*12*(1+'Sup Generales'!H$8)","v":116.15711346944241},{"$f":"'Sup fijo'!$D133/'Sup fijo'!$D$142*12*(1+'Sup Generales'!I$8)","v":118.41186823827613},{"$f":"'Sup fijo'!$D133/'Sup fijo'!$D$142*12*(1+'Sup Generales'!J$8)","v":120.46677669857054},{"$f":"'Sup fijo'!$D133/'Sup fijo'!$D$142*12*(1+'Sup Generales'!K$8)","v":122.22085061190391},{"$f":"'Sup fijo'!$D133/'Sup fijo'!$D$142*12*(1+'Sup Generales'!L$8)","v":123.85625421514352},{"$f":"'Sup fijo'!$D133/'Sup fijo'!$D$142*12*(1+'Sup Generales'!M$8)","v":125.47298900715128},{"$f":"'Sup fijo'!$D133/'Sup fijo'!$D$142*12*(1+'Sup Generales'!N$8)","v":126.90777015229887},{"$f":"'Sup fijo'!$D133/'Sup fijo'!$D$142*12*(1+'Sup Generales'!O$8)","v":128.47182627544476},{"$f":"'Sup fijo'!$D133/'Sup fijo'!$D$142*12*(1+'Sup Generales'!P$8)","v":130.2097156493806},{"$f":"'Sup fijo'!$D133/'Sup fijo'!$D$142*12*(1+'Sup Generales'!Q$8)","v":132.08223831728708},{"$f":"'Sup fijo'!$D133/'Sup fijo'!$D$142*12*(1+'Sup Generales'!R$8)","v":133.89863561596843},{"$f":"'Sup fijo'!$D133/'Sup fijo'!$D$142*12*(1+'Sup Generales'!S$8)","v":135.67972604987801},{"$f":"'Sup fijo'!$D133/'Sup fijo'!$D$142*12*(1+'Sup Generales'!T$8)","v":137.46315789123975},{"$f":"'Sup fijo'!$D133/'Sup fijo'!$D$142*12*(1+'Sup Generales'!U$8)","v":139.26597157916774},{"$f":"'Sup fijo'!$D133/'Sup fijo'!$D$142*12*(1+'Sup Generales'!V$8)","v":141.09350079944872}]
[]
[null,"Gastos de Administración Por Bus Con SITP-Q",{"$f":"SUM(C54:C67)","v":2308.2393600000005},{"$f":"SUM(D54:D67)","v":1647.28160256},1690.11092422656,1697.4122034192192,1701.9952163684507,1713.3985843181192,1746.6577925879647,1776.9691281713685,1802.8429439896772,1826.9662898174524,1850.8142576353914,1871.9782820285157,1895.0492026733996,1920.6842852272243,1948.3053029373327,1975.098432235769,2001.3707606094076,2027.6776263789409,2054.270387927701,2081.2277208477653]
[null,{"$f":"B38","v":"Luz "},{"$f":"C38","v":24.576000000000001},{"$f":"D38","v":24.969215999999999},25.618415616,25.729087171461124,25.798555706824068,25.971406030059789,26.475543485360788,26.934997584923543,27.327188510207694,27.692846107354615,28.054329571190898,28.375130274410029,28.72483538858463,29.113407635412095,29.532082351545458,29.938208075118709,30.336439586333817,30.735194609556117,31.138283192659078,31.546897886964501]
[null,{"$f":"B39","v":"Agua "},12.288,12.484608,12.809207808,12.864543585730562,12.899277853412034,12.985703015029895,13.237771742680394,13.467498792461772,13.663594255103847,13.846423053677308,14.027164785595449,14.187565137205015,14.362417694292315,14.556703817706047,14.766041175772729,{"$f":"R39","v":14.969104037559354},15.168219793166909,15.367597304778059,15.569141596329539,15.773448943482251]
[null,"Teléfonos ",98.304000000000002,99.876863999999998,102.473662464,102.9163486858445,103.19422282729627,103.88562412023916,105.90217394144315,107.73999033969417,109.30875404083078,110.77138442941846,112.21731828476359,113.50052109764012,114.89934155433852,116.45363054164838,118.12832940618183,{"$f":"R40","v":119.75283230047484},121.34575834533527,122.94077843822447,124.55313277063631,126.18759154785801]
[null,"Internet",12.288,12.484608,12.809207808,12.864543585730562,12.899277853412034,12.985703015029895,13.237771742680394,13.467498792461772,13.663594255103847,13.846423053677308,14.027164785595449,14.187565137205015,14.362417694292315,14.556703817706047,14.766041175772729,{"$f":"R41","v":14.969104037559354},15.168219793166909,15.367597304778059,15.569141596329539,15.773448943482251]
[null,"Limpieza oficina ",122.88,124.84608,128.09207807999999,128.64543585730561,128.99277853412033,129.85703015029893,132.37771742680394,134.67498792461771,136.63594255103848,138.46423053677307,140.27164785595448,141.87565137205016,143.62417694292316,145.56703817706048,147.6604117577273,{"$f":"R42","v":149.69104037559353},151.68219793166909,153.67597304778059,155.69141596329538,157.73448943482251]
[null,"Seguridad alarmas",12.288,12.484608,12.809207808,12.864543585730562,12.899277853412034,12.985703015029895,13.237771742680394,13.467498792461772,13.663594255103847,13.846423053677308,14.027164785595449,14.187565137205015,14.362417694292315,14.556703817706047,14.766041175772729,{"$f":"R43","v":14.969104037559354},15.168219793166909,15.367597304778059,15.569141596329539,15.773448943482251]
[null,"Útiles oficina ",73.728000000000009,74.907647999999995,76.855246848000007,77.18726151438338,77.395667120472211,77.914218090179361,79.426630456082364,80.804992754770623,81.981565530623087,83.078538322063849,84.162988713572688,85.125390823230092,86.174506165753883,87.340222906236278,88.596247054636379,{"$f":"R44","v":89.814624225356127},91.009318759001459,92.205583828668352,93.414849577977236,94.640693660893504]
[null,"Medio de pago ",564.01919999999996,0,0,0,0,0,0,0,0,0,0,0,0,0,0,0,0,0,0,0]
[null,"Mantenimiento oficinas ",24.576000000000001,24.969215999999999,25.618415616,25.729087171461124,25.798555706824068,25.971406030059789,26.475543485360788,26.934997584923543,27.327188510207694,27.692846107354615,28.054329571190898,28.375130274410029,28.72483538858463,29.113407635412095,29.532082351545458,{"$f":"R46","v":29.938208075118709},30.336439586333817,30.735194609556117,31.138283192659078,31.546897886964501]
[null,"Comunicación radios ",24.576000000000001,24.969215999999999,25.618415616,25.729087171461124,25.798555706824068,25.971406030059789,26.475543485360788,26.934997584923543,27.327188510207694,27.692846107354615,28.054329571190898,28.375130274410029,28.72483538858463,29.113407635412095,29.532082351545458,{"$f":"R47","v":29.938208075118709},30.336439586333817,30.735194609556117,31.138283192659078,31.546897886964501]
[null,"Movilización auxilios ",122.88,124.84608,128.09207807999999,128.64543585730561,128.99277853412033,129.85703015029893,132.37771742680394,134.67498792461771,136.63594255103848,138.46423053677307,140.27164785595448,141.87565137205016,143.62417694292316,145.56703817706048,147.6604117577273,{"$f":"R48","v":149.69104037559353},151.68219793166909,153.67597304778059,155.69141596329538,157.73448943482251]
[null,"Arriendo y Mtto de patios ",983.04,998.76864,1024.7366246399999,1029.1634868584449,1031.9422282729627,1038.8562412023914,1059.0217394144315,1077.3999033969417,1093.0875404083079,1107.7138442941846,1122.1731828476359,1135.0052109764013,1148.9934155433853,1164.5363054164839,1181.2832940618184,{"$f":"R49","v":1197.5283230047482},1213.4575834533528,1229.4077843822447,1245.5313277063631,1261.8759154785801]
[null,"transporte valores",122.88,0,0,0,0,0,0,0,0,0,0,0,0,0,0,0,0,0,0,0]
[null,"Otros ",109.91616,111.67481856000001,114.57836384256001,115.07334237435988,115.38404039877065,116.15711346944241,118.41186823827613,120.46677669857054,122.22085061190391,123.85625421514352,125.47298900715128,126.90777015229887,128.47182627544476,130.2097156493806,132.08223831728708,{"$f":"R51","v":133.89863561596843},135.67972604987801,137.46315789123975,139.26597157916774,141.09350079944872]
[]
[null,"Recaudo por tipo de bus con SITP-Q"]
[null,{"$f":"'Sup fijo'!B14","v":"Intracantonal Rural"}]
[null,"Costo anual de recaudo (USD)",null,{"$f":"D72*D73","v":7171.896786810682},7358.3661032677601,7390.1542448338778,7410.1076612949282,7459.7553826256044,7604.5585592965972,7736.5273556072652,7849.1761803385562,7954.2038490507375,8058.0325833118623,8150.1760263668584,8250.6216705024253,8362.2311038328789,8482.4868560101095,8599.1381666454199,8713.522026182316,8828.056253839788,8943.8352079709966,9061.2014245607625]
[null,"Demanda Anual (pas)",{"$f":"'Sup fijo'!$E$34","v":308124},{"$f":"'Sup fijo'!$E$34","v":308124},{"$f":"'Sup fijo'!$E$34","v":308124},{"$f":"'Sup fijo'!$E$34","v":308124},{"$f":"'Sup fijo'!$E$34","v":308124},{"$f":"'Sup fijo'!$E$34","v":308124},{"$f":"'Sup fijo'!$E$34","v":308124},{"$f":"'Sup fijo'!$E$34","v":308124},{"$f":"'Sup fijo'!$E$34","v":308124},{"$f":"'Sup fijo'!$E$34","v":308124},{"$f":"'Sup fijo'!$E$34","v":308124},{"$f":"'Sup fijo'!$E$34","v":308124},{"$f":"'Sup fijo'!$E$34","v":308124},{"$f":"'Sup fijo'!$E$34","v":308124},{"$f":"'Sup fijo'!$E$34","v":308124},{"$f":"'Sup fijo'!$E$34","v":308124},{"$f":"'Sup fijo'!$E$34","v":308124},{"$f":"'Sup fijo'!$E$34","v":308124},{"$f":"'Sup fijo'!$E$34","v":308124},{"$f":"'Sup fijo'!$E$34","v":308124}]
[null,"Costo por pasajero (USD/pas)",{"$f":"'Sup fijo'!$D$116*(1+'Sup Generales'!C$8)","v":2.2909457005379247E-2},{"$f":"'Sup fijo'!$D$116*(1+'Sup Generales'!D$8)","v":2.3276008317465312E-2},{"$f":"'Sup fijo'!$D$116*(1+'Sup Generales'!E$8)","v":2.3881184533719412E-2},{"$f":"'Sup fijo'!$D$116*(1+'Sup Generales'!F$8)","v":2.3984351250905082E-2},{"$f":"'Sup fijo'!$D$116*(1+'Sup Generales'!G$8)","v":2.4049108999282524E-2},{"$f":"'Sup fijo'!$D$116*(1+'Sup Generales'!H$8)","v":2.4210238029577717E-2},{"$f":"'Sup fijo'!$D$116*(1+'Sup Generales'!I$8)","v":2.4680189012529361E-2},{"$f":"'Sup fijo'!$D$116*(1+'Sup Generales'!J$8)","v":2.5108486698885078E-2},{"$f":"'Sup fijo'!$D$116*(1+'Sup Generales'!K$8)","v":2.5474082448425167E-2},{"$f":"'Sup fijo'!$D$116*(1+'Sup Generales'!L$8)","v":2.5814944142782573E-2},{"$f":"'Sup fijo'!$D$116*(1+'Sup Generales'!M$8)","v":2.6151914759356177E-2},{"$f":"'Sup fijo'!$D$116*(1+'Sup Generales'!N$8)","v":2.6450961386866517E-2},{"$f":"'Sup fijo'!$D$116*(1+'Sup Generales'!O$8)","v":2.6776952364964836E-2},{"$f":"'Sup fijo'!$D$116*(1+'Sup Generales'!P$8)","v":2.7139174825177134E-2},{"$f":"'Sup fijo'!$D$116*(1+'Sup Generales'!Q$8)","v":2.7529458451824945E-2},{"$f":"'Sup fijo'!$D$116*(1+'Sup Generales'!R$8)","v":2.7908044055787343E-2},{"$f":"'Sup fijo'!$D$116*(1+'Sup Generales'!S$8)","v":2.8279270768204735E-2},{"$f":"'Sup fijo'!$D$116*(1+'Sup Generales'!T$8)","v":2.8650985492333567E-2},{"$f":"'Sup fijo'!$D$116*(1+'Sup Generales'!U$8)","v":2.902673990981227E-2},{"$f":"'Sup fijo'!$D$116*(1+'Sup Generales'!V$8)","v":2.940764570290131E-2}]
[null,{"$f":"'Sup fijo'!B18","v":"Intracantonal Urbano"}]
[null,"Costo anual de recaudo (USD)",null,{"$f":"D76*D77","v":7012.5213026593347},7194.8468565284775,7225.9285949486812,7245.4386021550426,7293.9830407894815,7435.5683690900069,7564.6045254826613,7674.7500429977008,7777.4437635162776,7878.9651925716007,7969.0610035587069,8067.2745222690392,8176.4037459699275,8293.9871480987749,8408.0462073866329,8519.8882033782647,8631.8772259766829,8745.0833144605313,8859.8413929038579]
[null,"Demanda Anual (pas)",{"$f":"'Sup fijo'!$E$38","v":301276.80000000005},{"$f":"'Sup fijo'!$E$38","v":301276.80000000005},{"$f":"'Sup fijo'!$E$38","v":301276.80000000005},{"$f":"'Sup fijo'!$E$38","v":301276.80000000005},{"$f":"'Sup fijo'!$E$38","v":301276.80000000005},{"$f":"'Sup fijo'!$E$38","v":301276.80000000005},{"$f":"'Sup fijo'!$E$38","v":301276.80000000005},{"$f":"'Sup fijo'!$E$38","v":301276.80000000005},{"$f":"'Sup fijo'!$E$38","v":301276.80000000005},{"$f":"'Sup fijo'!$E$38","v":301276.80000000005},{"$f":"'Sup fijo'!$E$38","v":301276.80000000005},{"$f":"'Sup fijo'!$E$38","v":301276.80000000005},{"$f":"'Sup fijo'!$E$38","v":301276.80000000005},{"$f":"'Sup fijo'!$E$38","v":301276.80000000005},{"$f":"'Sup fijo'!$E$38","v":301276.80000000005},{"$f":"'Sup fijo'!$E$38","v":301276.80000000005},{"$f":"'Sup fijo'!$E$38","v":301276.80000000005},{"$f":"'Sup fijo'!$E$38","v":301276.80000000005},{"$f":"'Sup fijo'!$E$38","v":301276.80000000005},{"$f":"'Sup fijo'!$E$38","v":301276.80000000005}]
[null,"Costo por pasajero (USD/pas)",{"$f":"'Sup fijo'!$D$116*(1+'Sup Generales'!C$8)","v":2.2909457005379247E-2},{"$f":"'Sup fijo'!$D$116*(1+'Sup Generales'!D$8)","v":2.3276008317465312E-2},{"$f":"'Sup fijo'!$D$116*(1+'Sup Generales'!E$8)","v":2.3881184533719412E-2},{"$f":"'Sup fijo'!$D$116*(1+'Sup Generales'!F$8)","v":2.3984351250905082E-2},{"$f":"'Sup fijo'!$D$116*(1+'Sup Generales'!G$8)","v":2.4049108999282524E-2},{"$f":"'Sup fijo'!$D$116*(1+'Sup Generales'!H$8)","v":2.4210238029577717E-2},{"$f":"'Sup fijo'!$D$116*(1+'Sup Generales'!I$8)","v":2.4680189012529361E-2},{"$f":"'Sup fijo'!$D$116*(1+'Sup Generales'!J$8)","v":2.5108486698885078E-2},{"$f":"'Sup fijo'!$D$116*(1+'Sup Generales'!K$8)","v":2.5474082448425167E-2},{"$f":"'Sup fijo'!$D$116*(1+'Sup Generales'!L$8)","v":2.5814944142782573E-2},{"$f":"'Sup fijo'!$D$116*(1+'Sup Generales'!M$8)","v":2.6151914759356177E-2},{"$f":"'Sup fijo'!$D$116*(1+'Sup Generales'!N$8)","v":2.6450961386866517E-2},{"$f":"'Sup fijo'!$D$116*(1+'Sup Generales'!O$8)","v":2.6776952364964836E-2},{"$f":"'Sup fijo'!$D$116*(1+'Sup Generales'!P$8)","v":2.7139174825177134E-2},{"$f":"'Sup fijo'!$D$116*(1+'Sup Generales'!Q$8)","v":2.7529458451824945E-2},{"$f":"'Sup fijo'!$D$116*(1+'Sup Generales'!R$8)","v":2.7908044055787343E-2},{"$f":"'Sup fijo'!$D$116*(1+'Sup Generales'!S$8)","v":2.8279270768204735E-2},{"$f":"'Sup fijo'!$D$116*(1+'Sup Generales'!T$8)","v":2.8650985492333567E-2},{"$f":"'Sup fijo'!$D$116*(1+'Sup Generales'!U$8)","v":2.902673990981227E-2},{"$f":"'Sup fijo'!$D$116*(1+'Sup Generales'!V$8)","v":2.940764570290131E-2}]
[null,{"$f":"'Sup fijo'!B22","v":"Intracantonal Combinado"}]
[null,"Costo anual de recaudo (USD)",null,{"$f":"D80*D81","v":7171.896786810682},7358.3661032677601,7390.1542448338778,7410.1076612949282,7459.7553826256044,7604.5585592965972,7736.5273556072652,7849.1761803385562,7954.2038490507375,8058.0325833118623,8150.1760263668584,8250.6216705024253,8362.2311038328789,8482.4868560101095,8599.1381666454199,8713.522026182316,8828.056253839788,8943.8352079709966,9061.2014245607625]
[null,"Demanda Anual (pas)",{"$f":"'Sup fijo'!$E$42","v":308124},{"$f":"'Sup fijo'!$E$42","v":308124},{"$f":"'Sup fijo'!$E$42","v":308124},{"$f":"'Sup fijo'!$E$42","v":308124},{"$f":"'Sup fijo'!$E$42","v":308124},{"$f":"'Sup fijo'!$E$42","v":308124},{"$f":"'Sup fijo'!$E$42","v":308124},{"$f":"'Sup fijo'!$E$42","v":308124},{"$f":"'Sup fijo'!$E$42","v":308124},{"$f":"'Sup fijo'!$E$42","v":308124},{"$f":"'Sup fijo'!$E$42","v":308124},{"$f":"'Sup fijo'!$E$42","v":308124},{"$f":"'Sup fijo'!$E$42","v":308124},{"$f":"'Sup fijo'!$E$42","v":308124},{"$f":"'Sup fijo'!$E$42","v":308124},{"$f":"'Sup fijo'!$E$42","v":308124},{"$f":"'Sup fijo'!$E$42","v":308124},{"$f":"'Sup fijo'!$E$42","v":308124},{"$f":"'Sup fijo'!$E$42","v":308124},{"$f":"'Sup fijo'!$E$42","v":308124}]
[null,"Costo por pasajero (USD/pas)",{"$f":"'Sup fijo'!$D$116*(1+'Sup Generales'!C$8)","v":2.2909457005379247E-2},{"$f":"'Sup fijo'!$D$116*(1+'Sup Generales'!D$8)","v":2.3276008317465312E-2},{"$f":"'Sup fijo'!$D$116*(1+'Sup Generales'!E$8)","v":2.3881184533719412E-2},{"$f":"'Sup fijo'!$D$116*(1+'Sup Generales'!F$8)","v":2.3984351250905082E-2},{"$f":"'Sup fijo'!$D$116*(1+'Sup Generales'!G$8)","v":2.4049108999282524E-2},{"$f":"'Sup fijo'!$D$116*(1+'Sup Generales'!H$8)","v":2.4210238029577717E-2},{"$f":"'Sup fijo'!$D$116*(1+'Sup Generales'!I$8)","v":2.4680189012529361E-2},{"$f":"'Sup fijo'!$D$116*(1+'Sup Generales'!J$8)","v":2.5108486698885078E-2},{"$f":"'Sup fijo'!$D$116*(1+'Sup Generales'!K$8)","v":2.5474082448425167E-2},{"$f":"'Sup fijo'!$D$116*(1+'Sup Generales'!L$8)","v":2.5814944142782573E-2},{"$f":"'Sup fijo'!$D$116*(1+'Sup Generales'!M$8)","v":2.6151914759356177E-2},{"$f":"'Sup fijo'!$D$116*(1+'Sup Generales'!N$8)","v":2.6450961386866517E-2},{"$f":"'Sup fijo'!$D$116*(1+'Sup Generales'!O$8)","v":2.6776952364964836E-2},{"$f":"'Sup fijo'!$D$116*(1+'Sup Generales'!P$8)","v":2.7139174825177134E-2},{"$f":"'Sup fijo'!$D$116*(1+'Sup Generales'!Q$8)","v":2.7529458451824945E-2},{"$f":"'Sup fijo'!$D$116*(1+'Sup Generales'!R$8)","v":2.7908044055787343E-2},{"$f":"'Sup fijo'!$D$116*(1+'Sup Generales'!S$8)","v":2.8279270768204735E-2},{"$f":"'Sup fijo'!$D$116*(1+'Sup Generales'!T$8)","v":2.8650985492333567E-2},{"$f":"'Sup fijo'!$D$116*(1+'Sup Generales'!U$8)","v":2.902673990981227E-2},{"$f":"'Sup fijo'!$D$116*(1+'Sup Generales'!V$8)","v":2.940764570290131E-2}]
[null,{"$f":"'Sup fijo'!B26","v":"Otro"}]
[null,"Costo anual de recaudo (USD)",null,{"$f":"D84*D85","v":8116.3441003001544},8327.3690469079593,8363.3432811906023,8385.9243080498163,8442.1100009137499,8605.9819086689877,8755.3293119012269,8882.8125497658566,9001.6710225882834,9119.1726765874992,9223.4502356003541,9337.1232896632391,9463.4302615392662,9599.5221621513592,9731.5349622530466,9860.9817168729915,9990.5986411767153,10121.624206551538,10254.446056601686]
[null,"Demanda Anual (pas)",{"$f":"'Sup fijo'!$E$46","v":348700},{"$f":"'Sup fijo'!$E$46","v":348700},{"$f":"'Sup fijo'!$E$46","v":348700},{"$f":"'Sup fijo'!$E$46","v":348700},{"$f":"'Sup fijo'!$E$46","v":348700},{"$f":"'Sup fijo'!$E$46","v":348700},{"$f":"'Sup fijo'!$E$46","v":348700},{"$f":"'Sup fijo'!$E$46","v":348700},{"$f":"'Sup fijo'!$E$46","v":348700},{"$f":"'Sup fijo'!$E$46","v":348700},{"$f":"'Sup fijo'!$E$46","v":348700},{"$f":"'Sup fijo'!$E$46","v":348700},{"$f":"'Sup fijo'!$E$46","v":348700},{"$f":"'Sup fijo'!$E$46","v":348700},{"$f":"'Sup fijo'!$E$46","v":348700},{"$f":"'Sup fijo'!$E$46","v":348700},{"$f":"'Sup fijo'!$E$46","v":348700},{"$f":"'Sup fijo'!$E$46","v":348700},{"$f":"'Sup fijo'!$E$46","v":348700},{"$f":"'Sup fijo'!$E$46","v":348700}]
[null,"Costo por pasajero (USD/pas)",{"$f":"'Sup fijo'!$D$116*(1+'Sup Generales'!C$8)","v":2.2909457005379247E-2},{"$f":"'Sup fijo'!$D$116*(1+'Sup Generales'!D$8)","v":2.3276008317465312E-2},{"$f":"'Sup fijo'!$D$116*(1+'Sup Generales'!E$8)","v":2.3881184533719412E-2},{"$f":"'Sup fijo'!$D$116*(1+'Sup Generales'!F$8)","v":2.3984351250905082E-2},{"$f":"'Sup fijo'!$D$116*(1+'Sup Generales'!G$8)","v":2.4049108999282524E-2},{"$f":"'Sup fijo'!$D$116*(1+'Sup Generales'!H$8)","v":2.4210238029577717E-2},{"$f":"'Sup fijo'!$D$116*(1+'Sup Generales'!I$8)","v":2.4680189012529361E-2},{"$f":"'Sup fijo'!$D$116*(1+'Sup Generales'!J$8)","v":2.5108486698885078E-2},{"$f":"'Sup fijo'!$D$116*(1+'Sup Generales'!K$8)","v":2.5474082448425167E-2},{"$f":"'Sup fijo'!$D$116*(1+'Sup Generales'!L$8)","v":2.5814944142782573E-2},{"$f":"'Sup fijo'!$D$116*(1+'Sup Generales'!M$8)","v":2.6151914759356177E-2},{"$f":"'Sup fijo'!$D$116*(1+'Sup Generales'!N$8)","v":2.6450961386866517E-2},{"$f":"'Sup fijo'!$D$116*(1+'Sup Generales'!O$8)","v":2.6776952364964836E-2},{"$f":"'Sup fijo'!$D$116*(1+'Sup Generales'!P$8)","v":2.7139174825177134E-2},{"$f":"'Sup fijo'!$D$116*(1+'Sup Generales'!Q$8)","v":2.7529458451824945E-2},{"$f":"'Sup fijo'!$D$116*(1+'Sup Generales'!R$8)","v":2.7908044055787343E-2},{"$f":"'Sup fijo'!$D$116*(1+'Sup Generales'!S$8)","v":2.8279270768204735E-2},{"$f":"'Sup fijo'!$D$116*(1+'Sup Generales'!T$8)","v":2.8650985492333567E-2},{"$f":"'Sup fijo'!$D$116*(1+'Sup Generales'!U$8)","v":2.902673990981227E-2},{"$f":"'Sup fijo'!$D$116*(1+'Sup Generales'!V$8)","v":2.940764570290131E-2}]

{"sheet":"OPEX impuestos","index":12,"n_rows":102,"n_cols":22,"rows_kept":102,"cut":false,"hidden":false,"merged":[]}
[]
[null,"Estructura de costos Transporte Convencional"]
[null,"OPEX IMPUESTOS"]
[]
[null,"Ítem",1,{"$f":"C5+1","v":2},3,4,5,6,7,8,9,10,11,12,13,14,15,16,17,18,19,20]
[]
[null,"Impuesto por Vehículo"]
[]
[null,null,1,{"$f":"+C9+1","v":2},{"$f":"+D9+1","v":3},4,5,6,7,8,9,10,11,12,13,14,15,16,17,18,19,20]
[null,{"$f":"'Sup fijo'!B14","v":"Intracantonal Rural"}]
[null,"Valor vehículo ",{"$f":"'CAPEX Vehículo'!C14","v":90000},{"$f":"C11-C12","v":73800},{"$f":"D11-D12","v":57600},41400,25200,9000,9000,9000,9000,9000,9000,9000,9000,9000,9000,9000,9000,9000,9000,9000]
[null,"Depreciación tributaria ",{"$f":"+((C11*(1-C88))/C87)","v":16200},{"$f":"IF(D9<=$C$87,C12,0)","v":16200},{"$f":"IF(E9<=$C$87,D12,0)","v":16200},16200,16200,0,0,0,0,0,0,0,0,0,0,0,0,0,0,0]
[null,"Base impositiva",{"$f":"C11-(+IF(D$11>'Sup fijo'!$B$165,'Sup fijo'!$B$165,IF(D$11>'Sup fijo'!$B$164,'Sup fijo'!$B$164,IF(D$11>'Sup fijo'!$B$163,'Sup fijo'!$B$163,IF(D$11>'Sup fijo'!$B$162,'Sup fijo'!$B$162,IF(D$11>'Sup fijo'!$B$161,'Sup fijo'!$B$161,IF(D$11>'Sup fijo'!$B$160,'Sup fijo'!$B$160,IF(D$11>'Sup fijo'!$C$159,'Sup fijo'!$B$160,'Sup fijo'!$B$159))))))))","v":65999},{"$f":"D11-(+IF(E$11>'Sup fijo'!$B$165,'Sup fijo'!$B$165,IF(E$11>'Sup fijo'!$B$164,'Sup fijo'!$B$164,IF(E$11>'Sup fijo'!$B$163,'Sup fijo'!$B$163,IF(E$11>'Sup fijo'!$B$162,'Sup fijo'!$B$162,IF(E$11>'Sup fijo'!$B$161,'Sup fijo'!$B$161,IF(E$11>'Sup fijo'!$B$160,'Sup fijo'!$B$160,IF(E$11>'Sup fijo'!$C$159,'Sup fijo'!$B$160,'Sup fijo'!$B$159))))))))","v":49799},{"$f":"E11-(+IF(F$11>'Sup fijo'!$B$165,'Sup fijo'!$B$165,IF(F$11>'Sup fijo'!$B$164,'Sup fijo'!$B$164,IF(F$11>'Sup fijo'!$B$163,'Sup fijo'!$B$163,IF(F$11>'Sup fijo'!$B$162,'Sup fijo'!$B$162,IF(F$11>'Sup fijo'!$B$161,'Sup fijo'!$B$161,IF(F$11>'Sup fijo'!$B$160,'Sup fijo'!$B$160,IF(F$11>'Sup fijo'!$C$159,'Sup fijo'!$B$160,'Sup fijo'!$B$159))))))))","v":33599},{"$f":"F11-(+IF(G$11>'Sup fijo'!$B$165,'Sup fijo'!$B$165,IF(G$11>'Sup fijo'!$B$164,'Sup fijo'!$B$164,IF(G$11>'Sup fijo'!$B$163,'Sup fijo'!$B$163,IF(G$11>'Sup fijo'!$B$162,'Sup fijo'!$B$162,IF(G$11>'Sup fijo'!$B$161,'Sup fijo'!$B$161,IF(G$11>'Sup fijo'!$B$160,'Sup fijo'!$B$160,IF(G$11>'Sup fijo'!$C$159,'Sup fijo'!$B$160,'Sup fijo'!$B$159))))))))","v":17399},{"$f":"G11-(+IF(H$11>'Sup fijo'!$B$165,'Sup fijo'!$B$165,IF(H$11>'Sup fijo'!$B$164,'Sup fijo'!$B$164,IF(H$11>'Sup fijo'!$B$163,'Sup fijo'!$B$163,IF(H$11>'Sup fijo'!$B$162,'Sup fijo'!$B$162,IF(H$11>'Sup fijo'!$B$161,'Sup fijo'!$B$161,IF(H$11>'Sup fijo'!$B$160,'Sup fijo'!$B$160,IF(H$11>'Sup fijo'!$C$159,'Sup fijo'!$B$160,'Sup fijo'!$B$159))))))))","v":17199},{"$f":"H11-(+IF(I$11>'Sup fijo'!$B$165,'Sup fijo'!$B$165,IF(I$11>'Sup fijo'!$B$164,'Sup fijo'!$B$164,IF(I$11>'Sup fijo'!$B$163,'Sup fijo'!$B$163,IF(I$11>'Sup fijo'!$B$162,'Sup fijo'!$B$162,IF(I$11>'Sup fijo'!$B$161,'Sup fijo'!$B$161,IF(I$11>'Sup fijo'!$B$160,'Sup fijo'!$B$160,IF(I$11>'Sup fijo'!$C$159,'Sup fijo'!$B$160,'Sup fijo'!$B$159))))))))","v":999},{"$f":"I11-(+IF(J$11>'Sup fijo'!$B$165,'Sup fijo'!$B$165,IF(J$11>'Sup fijo'!$B$164,'Sup fijo'!$B$164,IF(J$11>'Sup fijo'!$B$163,'Sup fijo'!$B$163,IF(J$11>'Sup fijo'!$B$162,'Sup fijo'!$B$162,IF(J$11>'Sup fijo'!$B$161,'Sup fijo'!$B$161,IF(J$11>'Sup fijo'!$B$160,'Sup fijo'!$B$160,IF(J$11>'Sup fijo'!$C$159,'Sup fijo'!$B$160,'Sup fijo'!$B$159))))))))","v":999},{"$f":"J11-(+IF(K$11>'Sup fijo'!$B$165,'Sup fijo'!$B$165,IF(K$11>'Sup fijo'!$B$164,'Sup fijo'!$B$164,IF(K$11>'Sup fijo'!$B$163,'Sup fijo'!$B$163,IF(K$11>'Sup fijo'!$B$162,'Sup fijo'!$B$162,IF(K$11>'Sup fijo'!$B$161,'Sup fijo'!$B$161,IF(K$11>'Sup fijo'!$B$160,'Sup fijo'!$B$160,IF(K$11>'Sup fijo'!$C$159,'Sup fijo'!$B$160,'Sup fijo'!$B$159))))))))","v":999},{"$f":"K11-(+IF(L$11>'Sup fijo'!$B$165,'Sup fijo'!$B$165,IF(L$11>'Sup fijo'!$B$164,'Sup fijo'!$B$164,IF(L$11>'Sup fijo'!$B$163,'Sup fijo'!$B$163,IF(L$11>'Sup fijo'!$B$162,'Sup fijo'!$B$162,IF(L$11>'Sup fijo'!$B$161,'Sup fijo'!$B$161,IF(L$11>'Sup fijo'!$B$160,'Sup fijo'!$B$160,IF(L$11>'Sup fijo'!$C$159,'Sup fijo'!$B$160,'Sup fijo'!$B$159))))))))","v":999},{"$f":"L11-(+IF(M$11>'Sup fijo'!$B$165,'Sup fijo'!$B$165,IF(M$11>'Sup fijo'!$B$164,'Sup fijo'!$B$164,IF(M$11>'Sup fijo'!$B$163,'Sup fijo'!$B$163,IF(M$11>'Sup fijo'!$B$162,'Sup fijo'!$B$162,IF(M$11>'Sup fijo'!$B$161,'Sup fijo'!$B$161,IF(M$11>'Sup fijo'!$B$160,'Sup fijo'!$B$160,IF(M$11>'Sup fijo'!$C$159,'Sup fijo'!$B$160,'Sup fijo'!$B$159))))))))","v":999},{"$f":"M11-(+IF(N$11>'Sup fijo'!$B$165,'Sup fijo'!$B$165,IF(N$11>'Sup fijo'!$B$164,'Sup fijo'!$B$164,IF(N$11>'Sup fijo'!$B$163,'Sup fijo'!$B$163,IF(N$11>'Sup fijo'!$B$162,'Sup fijo'!$B$162,IF(N$11>'Sup fijo'!$B$161,'Sup fijo'!$B$161,IF(N$11>'Sup fijo'!$B$160,'Sup fijo'!$B$160,IF(N$11>'Sup fijo'!$C$159,'Sup fijo'!$B$160,'Sup fijo'!$B$159))))))))","v":999},{"$f":"N11-(+IF(O$11>'Sup fijo'!$B$165,'Sup fijo'!$B$165,IF(O$11>'Sup fijo'!$B$164,'Sup fijo'!$B$164,IF(O$11>'Sup fijo'!$B$163,'Sup fijo'!$B$163,IF(O$11>'Sup fijo'!$B$162,'Sup fijo'!$B$162,IF(O$11>'Sup fijo'!$B$161,'Sup fijo'!$B$161,IF(O$11>'Sup fijo'!$B$160,'Sup fijo'!$B$160,IF(O$11>'Sup fijo'!$C$159,'Sup fijo'!$B$160,'Sup fijo'!$B$159))))))))","v":999},{"$f":"O11-(+IF(P$11>'Sup fijo'!$B$165,'Sup fijo'!$B$165,IF(P$11>'Sup fijo'!$B$164,'Sup fijo'!$B$164,IF(P$11>'Sup fijo'!$B$163,'Sup fijo'!$B$163,IF(P$11>'Sup fijo'!$B$162,'Sup fijo'!$B$162,IF(P$11>'Sup fijo'!$B$161,'Sup fijo'!$B$161,IF(P$11>'Sup fijo'!$B$160,'Sup fijo'!$B$160,IF(P$11>'Sup fijo'!$C$159,'Sup fijo'!$B$160,'Sup fijo'!$B$159))))))))","v":999},{"$f":"P11-(+IF(Q$11>'Sup fijo'!$B$165,'Sup fijo'!$B$165,IF(Q$11>'Sup fijo'!$B$164,'Sup fijo'!$B$164,IF(Q$11>'Sup fijo'!$B$163,'Sup fijo'!$B$163,IF(Q$11>'Sup fijo'!$B$162,'Sup fijo'!$B$162,IF(Q$11>'Sup fijo'!$B$161,'Sup fijo'!$B$161,IF(Q$11>'Sup fijo'!$B$160,'Sup fijo'!$B$160,IF(Q$11>'Sup fijo'!$C$159,'Sup fijo'!$B$160,'Sup fijo'!$B$159))))))))","v":999},{"$f":"Q11-(+IF(R$11>'Sup fijo'!$B$165,'Sup fijo'!$B$165,IF(R$11>'Sup fijo'!$B$164,'Sup fijo'!$B$164,IF(R$11>'Sup fijo'!$B$163,'Sup fijo'!$B$163,IF(R$11>'Sup fijo'!$B$162,'Sup fijo'!$B$162,IF(R$11>'Sup fijo'!$B$161,'Sup fijo'!$B$161,IF(R$11>'Sup fijo'!$B$160,'Sup fijo'!$B$160,IF(R$11>'Sup fijo'!$C$159,'Sup fijo'!$B$160,'Sup fijo'!$B$159))))))))","v":999},{"$f":"R11-(+IF(S$11>'Sup fijo'!$B$165,'Sup fijo'!$B$165,IF(S$11>'Sup fijo'!$B$164,'Sup fijo'!$B$164,IF(S$11>'Sup fijo'!$B$163,'Sup fijo'!$B$163,IF(S$11>'Sup fijo'!$B$162,'Sup fijo'!$B$162,IF(S$11>'Sup fijo'!$B$161,'Sup fijo'!$B$161,IF(S$11>'Sup fijo'!$B$160,'Sup fijo'!$B$160,IF(S$11>'Sup fijo'!$C$159,'Sup fijo'!$B$160,'Sup fijo'!$B$159))))))))","v":999},{"$f":"S11-(+IF(T$11>'Sup fijo'!$B$165,'Sup fijo'!$B$165,IF(T$11>'Sup fijo'!$B$164,'Sup fijo'!$B$164,IF(T$11>'Sup fijo'!$B$163,'Sup fijo'!$B$163,IF(T$11>'Sup fijo'!$B$162,'Sup fijo'!$B$162,IF(T$11>'Sup fijo'!$B$161,'Sup fijo'!$B$161,IF(T$11>'Sup fijo'!$B$160,'Sup fijo'!$B$160,IF(T$11>'Sup fijo'!$C$159,'Sup fijo'!$B$160,'Sup fijo'!$B$159))))))))","v":999},{"$f":"T11-(+IF(U$11>'Sup fijo'!$B$165,'Sup fijo'!$B$165,IF(U$11>'Sup fijo'!$B$164,'Sup fijo'!$B$164,IF(U$11>'Sup fijo'!$B$163,'Sup fijo'!$B$163,IF(U$11>'Sup fijo'!$B$162,'Sup fijo'!$B$162,IF(U$11>'Sup fijo'!$B$161,'Sup fijo'!$B$161,IF(U$11>'Sup fijo'!$B$160,'Sup fijo'!$B$160,IF(U$11>'Sup fijo'!$C$159,'Sup fijo'!$B$160,'Sup fijo'!$B$159))))))))","v":999},{"$f":"U11-(+IF(V$11>'Sup fijo'!$B$165,'Sup fijo'!$B$165,IF(V$11>'Sup fijo'!$B$164,'Sup fijo'!$B$164,IF(V$11>'Sup fijo'!$B$163,'Sup fijo'!$B$163,IF(V$11>'Sup fijo'!$B$162,'Sup fijo'!$B$162,IF(V$11>'Sup fijo'!$B$161,'Sup fijo'!$B$161,IF(V$11>'Sup fijo'!$B$160,'Sup fijo'!$B$160,IF(V$11>'Sup fijo'!$C$159,'Sup fijo'!$B$160,'Sup fijo'!$B$159))))))))","v":999},{"$f":"V11-(+IF(W$11>'Sup fijo'!$B$165,'Sup fijo'!$B$165,IF(W$11>'Sup fijo'!$B$164,'Sup fijo'!$B$164,IF(W$11>'Sup fijo'!$B$163,'Sup fijo'!$B$163,IF(W$11>'Sup fijo'!$B$162,'Sup fijo'!$B$162,IF(W$11>'Sup fijo'!$B$161,'Sup fijo'!$B$161,IF(W$11>'Sup fijo'!$B$160,'Sup fijo'!$B$160,IF(W$11>'Sup fijo'!$C$159,'Sup fijo'!$B$160,'Sup fijo'!$B$159))))))))","v":9000}]
[]
[null,"Impuesto fracción básica ",{"$f":"+IF(C$11>'Sup fijo'!$B$165,'Sup fijo'!$D$165,IF(C$11>'Sup fijo'!$B$164,'Sup fijo'!$D$164,IF(C$11>'Sup fijo'!$B$163,'Sup fijo'!$D$163,IF(C$11>'Sup fijo'!$B$162,'Sup fijo'!$D$162,IF(C$11>'Sup fijo'!$B$161,'Sup fijo'!$D$161,IF(C$11>'Sup fijo'!$B$160,'Sup fijo'!$D$160,IF(C$11>'Sup fijo'!$C$159,'Sup fijo'!$D$160,'Sup fijo'!$D$159)))))))","v":620},{"$f":"+IF(D$11>'Sup fijo'!$B$165,'Sup fijo'!$D$165,IF(D$11>'Sup fijo'!$B$164,'Sup fijo'!$D$164,IF(D$11>'Sup fijo'!$B$163,'Sup fijo'!$D$163,IF(D$11>'Sup fijo'!$B$162,'Sup fijo'!$D$162,IF(D$11>'Sup fijo'!$B$161,'Sup fijo'!$D$161,IF(D$11>'Sup fijo'!$B$160,'Sup fijo'!$D$160,IF(D$11>'Sup fijo'!$C$159,'Sup fijo'!$D$160,'Sup fijo'!$D$159)))))))","v":620},{"$f":"+IF(E$11>'Sup fijo'!$B$165,'Sup fijo'!$D$165,IF(E$11>'Sup fijo'!$B$164,'Sup fijo'!$D$164,IF(E$11>'Sup fijo'!$B$163,'Sup fijo'!$D$163,IF(E$11>'Sup fijo'!$B$162,'Sup fijo'!$D$162,IF(E$11>'Sup fijo'!$B$161,'Sup fijo'!$D$161,IF(E$11>'Sup fijo'!$B$160,'Sup fijo'!$D$160,IF(E$11>'Sup fijo'!$C$159,'Sup fijo'!$D$160,'Sup fijo'!$D$159)))))))","v":620},{"$f":"+IF(F$11>'Sup fijo'!$B$165,'Sup fijo'!$D$165,IF(F$11>'Sup fijo'!$B$164,'Sup fijo'!$D$164,IF(F$11>'Sup fijo'!$B$163,'Sup fijo'!$D$163,IF(F$11>'Sup fijo'!$B$162,'Sup fijo'!$D$162,IF(F$11>'Sup fijo'!$B$161,'Sup fijo'!$D$161,IF(F$11>'Sup fijo'!$B$160,'Sup fijo'!$D$160,IF(F$11>'Sup fijo'!$C$159,'Sup fijo'!$D$160,'Sup fijo'!$D$159)))))))","v":620},{"$f":"+IF(G$11>'Sup fijo'!$B$165,'Sup fijo'!$D$165,IF(G$11>'Sup fijo'!$B$164,'Sup fijo'!$D$164,IF(G$11>'Sup fijo'!$B$163,'Sup fijo'!$D$163,IF(G$11>'Sup fijo'!$B$162,'Sup fijo'!$D$162,IF(G$11>'Sup fijo'!$B$161,'Sup fijo'!$D$161,IF(G$11>'Sup fijo'!$B$160,'Sup fijo'!$D$160,IF(G$11>'Sup fijo'!$C$159,'Sup fijo'!$D$160,'Sup fijo'!$D$159)))))))","v":620},{"$f":"+IF(H$11>'Sup fijo'!$B$165,'Sup fijo'!$D$165,IF(H$11>'Sup fijo'!$B$164,'Sup fijo'!$D$164,IF(H$11>'Sup fijo'!$B$163,'Sup fijo'!$D$163,IF(H$11>'Sup fijo'!$B$162,'Sup fijo'!$D$162,IF(H$11>'Sup fijo'!$B$161,'Sup fijo'!$D$161,IF(H$11>'Sup fijo'!$B$160,'Sup fijo'!$D$160,IF(H$11>'Sup fijo'!$C$159,'Sup fijo'!$D$160,'Sup fijo'!$D$159)))))))","v":60},{"$f":"+IF(I$11>'Sup fijo'!$B$165,'Sup fijo'!$D$165,IF(I$11>'Sup fijo'!$B$164,'Sup fijo'!$D$164,IF(I$11>'Sup fijo'!$B$163,'Sup fijo'!$D$163,IF(I$11>'Sup fijo'!$B$162,'Sup fijo'!$D$162,IF(I$11>'Sup fijo'!$B$161,'Sup fijo'!$D$161,IF(I$11>'Sup fijo'!$B$160,'Sup fijo'!$D$160,IF(I$11>'Sup fijo'!$C$159,'Sup fijo'!$D$160,'Sup fijo'!$D$159)))))))","v":60},{"$f":"+IF(J$11>'Sup fijo'!$B$165,'Sup fijo'!$D$165,IF(J$11>'Sup fijo'!$B$164,'Sup fijo'!$D$164,IF(J$11>'Sup fijo'!$B$163,'Sup fijo'!$D$163,IF(J$11>'Sup fijo'!$B$162,'Sup fijo'!$D$162,IF(J$11>'Sup fijo'!$B$161,'Sup fijo'!$D$161,IF(J$11>'Sup fijo'!$B$160,'Sup fijo'!$D$160,IF(J$11>'Sup fijo'!$C$159,'Sup fijo'!$D$160,'Sup fijo'!$D$159)))))))","v":60},{"$f":"+IF(K$11>'Sup fijo'!$B$165,'Sup fijo'!$D$165,IF(K$11>'Sup fijo'!$B$164,'Sup fijo'!$D$164,IF(K$11>'Sup fijo'!$B$163,'Sup fijo'!$D$163,IF(K$11>'Sup fijo'!$B$162,'Sup fijo'!$D$162,IF(K$11>'Sup fijo'!$B$161,'Sup fijo'!$D$161,IF(K$11>'Sup fijo'!$B$160,'Sup fijo'!$D$160,IF(K$11>'Sup fijo'!$C$159,'Sup fijo'!$D$160,'Sup fijo'!$D$159)))))))","v":60},{"$f":"+IF(L$11>'Sup fijo'!$B$165,'Sup fijo'!$D$165,IF(L$11>'Sup fijo'!$B$164,'Sup fijo'!$D$164,IF(L$11>'Sup fijo'!$B$163,'Sup fijo'!$D$163,IF(L$11>'Sup fijo'!$B$162,'Sup fijo'!$D$162,IF(L$11>'Sup fijo'!$B$161,'Sup fijo'!$D$161,IF(L$11>'Sup fijo'!$B$160,'Sup fijo'!$D$160,IF(L$11>'Sup fijo'!$C$159,'Sup fijo'!$D$160,'Sup fijo'!$D$159)))))))","v":60},{"$f":"+IF(M$11>'Sup fijo'!$B$165,'Sup fijo'!$D$165,IF(M$11>'Sup fijo'!$B$164,'Sup fijo'!$D$164,IF(M$11>'Sup fijo'!$B$163,'Sup fijo'!$D$163,IF(M$11>'Sup fijo'!$B$162,'Sup fijo'!$D$162,IF(M$11>'Sup fijo'!$B$161,'Sup fijo'!$D$161,IF(M$11>'Sup fijo'!$B$160,'Sup fijo'!$D$160,IF(M$11>'Sup fijo'!$C$159,'Sup fijo'!$D$160,'Sup fijo'!$D$159)))))))","v":60},{"$f":"+IF(N$11>'Sup fijo'!$B$165,'Sup fijo'!$D$165,IF(N$11>'Sup fijo'!$B$164,'Sup fijo'!$D$164,IF(N$11>'Sup fijo'!$B$163,'Sup fijo'!$D$163,IF(N$11>'Sup fijo'!$B$162,'Sup fijo'!$D$162,IF(N$11>'Sup fijo'!$B$161,'Sup fijo'!$D$161,IF(N$11>'Sup fijo'!$B$160,'Sup fijo'!$D$160,IF(N$11>'Sup fijo'!$C$159,'Sup fijo'!$D$160,'Sup fijo'!$D$159)))))))","v":60},{"$f":"+IF(O$11>'Sup fijo'!$B$165,'Sup fijo'!$D$165,IF(O$11>'Sup fijo'!$B$164,'Sup fijo'!$D$164,IF(O$11>'Sup fijo'!$B$163,'Sup fijo'!$D$163,IF(O$11>'Sup fijo'!$B$162,'Sup fijo'!$D$162,IF(O$11>'Sup fijo'!$B$161,'Sup fijo'!$D$161,IF(O$11>'Sup fijo'!$B$160,'Sup fijo'!$D$160,IF(O$11>'Sup fijo'!$C$159,'Sup fijo'!$D$160,'Sup fijo'!$D$159)))))))","v":60},{"$f":"+IF(P$11>'Sup fijo'!$B$165,'Sup fijo'!$D$165,IF(P$11>'Sup fijo'!$B$164,'Sup fijo'!$D$164,IF(P$11>'Sup fijo'!$B$163,'Sup fijo'!$D$163,IF(P$11>'Sup fijo'!$B$162,'Sup fijo'!$D$162,IF(P$11>'Sup fijo'!$B$161,'Sup fijo'!$D$161,IF(P$11>'Sup fijo'!$B$160,'Sup fijo'!$D$160,IF(P$11>'Sup fijo'!$C$159,'Sup fijo'!$D$160,'Sup fijo'!$D$159)))))))","v":60},{"$f":"+IF(Q$11>'Sup fijo'!$B$165,'Sup fijo'!$D$165,IF(Q$11>'Sup fijo'!$B$164,'Sup fijo'!$D$164,IF(Q$11>'Sup fijo'!$B$163,'Sup fijo'!$D$163,IF(Q$11>'Sup fijo'!$B$162,'Sup fijo'!$D$162,IF(Q$11>'Sup fijo'!$B$161,'Sup fijo'!$D$161,IF(Q$11>'Sup fijo'!$B$160,'Sup fijo'!$D$160,IF(Q$11>'Sup fijo'!$C$159,'Sup fijo'!$D$160,'Sup fijo'!$D$159)))))))","v":60},{"$f":"+IF(R$11>'Sup fijo'!$B$165,'Sup fijo'!$D$165,IF(R$11>'Sup fijo'!$B$164,'Sup fijo'!$D$164,IF(R$11>'Sup fijo'!$B$163,'Sup fijo'!$D$163,IF(R$11>'Sup fijo'!$B$162,'Sup fijo'!$D$162,IF(R$11>'Sup fijo'!$B$161,'Sup fijo'!$D$161,IF(R$11>'Sup fijo'!$B$160,'Sup fijo'!$D$160,IF(R$11>'Sup fijo'!$C$159,'Sup fijo'!$D$160,'Sup fijo'!$D$159)))))))","v":60},{"$f":"+IF(S$11>'Sup fijo'!$B$165,'Sup fijo'!$D$165,IF(S$11>'Sup fijo'!$B$164,'Sup fijo'!$D$164,IF(S$11>'Sup fijo'!$B$163,'Sup fijo'!$D$163,IF(S$11>'Sup fijo'!$B$162,'Sup fijo'!$D$162,IF(S$11>'Sup fijo'!$B$161,'Sup fijo'!$D$161,IF(S$11>'Sup fijo'!$B$160,'Sup fijo'!$D$160,IF(S$11>'Sup fijo'!$C$159,'Sup fijo'!$D$160,'Sup fijo'!$D$159)))))))","v":60},{"$f":"+IF(T$11>'Sup fijo'!$B$165,'Sup fijo'!$D$165,IF(T$11>'Sup fijo'!$B$164,'Sup fijo'!$D$164,IF(T$11>'Sup fijo'!$B$163,'Sup fijo'!$D$163,IF(T$11>'Sup fijo'!$B$162,'Sup fijo'!$D$162,IF(T$11>'Sup fijo'!$B$161,'Sup fijo'!$D$161,IF(T$11>'Sup fijo'!$B$160,'Sup fijo'!$D$160,IF(T$11>'Sup fijo'!$C$159,'Sup fijo'!$D$160,'Sup fijo'!$D$159)))))))","v":60},{"$f":"+IF(U$11>'Sup fijo'!$B$165,'Sup fijo'!$D$165,IF(U$11>'Sup fijo'!$B$164,'Sup fijo'!$D$164,IF(U$11>'Sup fijo'!$B$163,'Sup fijo'!$D$163,IF(U$11>'Sup fijo'!$B$162,'Sup fijo'!$D$162,IF(U$11>'Sup fijo'!$B$161,'Sup fijo'!$D$161,IF(U$11>'Sup fijo'!$B$160,'Sup fijo'!$D$160,IF(U$11>'Sup fijo'!$C$159,'Sup fijo'!$D$160,'Sup fijo'!$D$159)))))))","v":60},{"$f":"+IF(V$11>'Sup fijo'!$B$165,'Sup fijo'!$D$165,IF(V$11>'Sup fijo'!$B$164,'Sup fijo'!$D$164,IF(V$11>'Sup fijo'!$B$163,'Sup fijo'!$D$163,IF(V$11>'Sup fijo'!$B$162,'Sup fijo'!$D$162,IF(V$11>'Sup fijo'!$B$161,'Sup fijo'!$D$161,IF(V$11>'Sup fijo'!$B$160,'Sup fijo'!$D$160,IF(V$11>'Sup fijo'!$C$159,'Sup fijo'!$D$160,'Sup fijo'!$D$159)))))))","v":60}]
[null,"Porcentaje sobre base imponible",{"$f":"+IF(C$11>'Sup fijo'!$B$165,'Sup fijo'!$E$165,IF(C$11>'Sup fijo'!$B$164,'Sup fijo'!$E$164,IF(C$11>'Sup fijo'!$B$163,'Sup fijo'!$E$163,IF(C$11>'Sup fijo'!$B$162,'Sup fijo'!$E$162,IF(C$11>'Sup fijo'!$B$161,'Sup fijo'!$E$161,IF(C$11>'Sup fijo'!$B$160,'Sup fijo'!$E$160,IF(C$11>'Sup fijo'!$C$159,'Sup fijo'!$E$160,'Sup fijo'!$E$159)))))))","v":0.06},{"$f":"+IF(D$11>'Sup fijo'!$B$165,'Sup fijo'!$E$165,IF(D$11>'Sup fijo'!$B$164,'Sup fijo'!$E$164,IF(D$11>'Sup fijo'!$B$163,'Sup fijo'!$E$163,IF(D$11>'Sup fijo'!$B$162,'Sup fijo'!$E$162,IF(D$11>'Sup fijo'!$B$161,'Sup fijo'!$E$161,IF(D$11>'Sup fijo'!$B$160,'Sup fijo'!$E$160,IF(D$11>'Sup fijo'!$C$159,'Sup fijo'!$E$160,'Sup fijo'!$E$159)))))))","v":0.06},{"$f":"+IF(E$11>'Sup fijo'!$B$165,'Sup fijo'!$E$165,IF(E$11>'Sup fijo'!$B$164,'Sup fijo'!$E$164,IF(E$11>'Sup fijo'!$B$163,'Sup fijo'!$E$163,IF(E$11>'Sup fijo'!$B$162,'Sup fijo'!$E$162,IF(E$11>'Sup fijo'!$B$161,'Sup fijo'!$E$161,IF(E$11>'Sup fijo'!$B$160,'Sup fijo'!$E$160,IF(E$11>'Sup fijo'!$C$159,'Sup fijo'!$E$160,'Sup fijo'!$E$159)))))))","v":0.06},{"$f":"+IF(F$11>'Sup fijo'!$B$165,'Sup fijo'!$E$165,IF(F$11>'Sup fijo'!$B$164,'Sup fijo'!$E$164,IF(F$11>'Sup fijo'!$B$163,'Sup fijo'!$E$163,IF(F$11>'Sup fijo'!$B$162,'Sup fijo'!$E$162,IF(F$11>'Sup fijo'!$B$161,'Sup fijo'!$E$161,IF(F$11>'Sup fijo'!$B$160,'Sup fijo'!$E$160,IF(F$11>'Sup fijo'!$C$159,'Sup fijo'!$E$160,'Sup fijo'!$E$159)))))))","v":0.06},{"$f":"+IF(G$11>'Sup fijo'!$B$165,'Sup fijo'!$E$165,IF(G$11>'Sup fijo'!$B$164,'Sup fijo'!$E$164,IF(G$11>'Sup fijo'!$B$163,'Sup fijo'!$E$163,IF(G$11>'Sup fijo'!$B$162,'Sup fijo'!$E$162,IF(G$11>'Sup fijo'!$B$161,'Sup fijo'!$E$161,IF(G$11>'Sup fijo'!$B$160,'Sup fijo'!$E$160,IF(G$11>'Sup fijo'!$C$159,'Sup fijo'!$E$160,'Sup fijo'!$E$159)))))))","v":0.06},{"$f":"+IF(H$11>'Sup fijo'!$B$165,'Sup fijo'!$E$165,IF(H$11>'Sup fijo'!$B$164,'Sup fijo'!$E$164,IF(H$11>'Sup fijo'!$B$163,'Sup fijo'!$E$163,IF(H$11>'Sup fijo'!$B$162,'Sup fijo'!$E$162,IF(H$11>'Sup fijo'!$B$161,'Sup fijo'!$E$161,IF(H$11>'Sup fijo'!$B$160,'Sup fijo'!$E$160,IF(H$11>'Sup fijo'!$C$159,'Sup fijo'!$E$160,'Sup fijo'!$E$159)))))))","v":0.02},{"$f":"+IF(I$11>'Sup fijo'!$B$165,'Sup fijo'!$E$165,IF(I$11>'Sup fijo'!$B$164,'Sup fijo'!$E$164,IF(I$11>'Sup fijo'!$B$163,'Sup fijo'!$E$163,IF(I$11>'Sup fijo'!$B$162,'Sup fijo'!$E$162,IF(I$11>'Sup fijo'!$B$161,'Sup fijo'!$E$161,IF(I$11>'Sup fijo'!$B$160,'Sup fijo'!$E$160,IF(I$11>'Sup fijo'!$C$159,'Sup fijo'!$E$160,'Sup fijo'!$E$159)))))))","v":0.02},{"$f":"+IF(J$11>'Sup fijo'!$B$165,'Sup fijo'!$E$165,IF(J$11>'Sup fijo'!$B$164,'Sup fijo'!$E$164,IF(J$11>'Sup fijo'!$B$163,'Sup fijo'!$E$163,IF(J$11>'Sup fijo'!$B$162,'Sup fijo'!$E$162,IF(J$11>'Sup fijo'!$B$161,'Sup fijo'!$E$161,IF(J$11>'Sup fijo'!$B$160,'Sup fijo'!$E$160,IF(J$11>'Sup fijo'!$C$159,'Sup fijo'!$E$160,'Sup fijo'!$E$159)))))))","v":0.02},{"$f":"+IF(K$11>'Sup fijo'!$B$165,'Sup fijo'!$E$165,IF(K$11>'Sup fijo'!$B$164,'Sup fijo'!$E$164,IF(K$11>'Sup fijo'!$B$163,'Sup fijo'!$E$163,IF(K$11>'Sup fijo'!$B$162,'Sup fijo'!$E$162,IF(K$11>'Sup fijo'!$B$161,'Sup fijo'!$E$161,IF(K$11>'Sup fijo'!$B$160,'Sup fijo'!$E$160,IF(K$11>'Sup fijo'!$C$159,'Sup fijo'!$E$160,'Sup fijo'!$E$159)))))))","v":0.02},{"$f":"+IF(L$11>'Sup fijo'!$B$165,'Sup fijo'!$E$165,IF(L$11>'Sup fijo'!$B$164,'Sup fijo'!$E$164,IF(L$11>'Sup fijo'!$B$163,'Sup fijo'!$E$163,IF(L$11>'Sup fijo'!$B$162,'Sup fijo'!$E$162,IF(L$11>'Sup fijo'!$B$161,'Sup fijo'!$E$161,IF(L$11>'Sup fijo'!$B$160,'Sup fijo'!$E$160,IF(L$11>'Sup fijo'!$C$159,'Sup fijo'!$E$160,'Sup fijo'!$E$159)))))))","v":0.02},{"$f":"+IF(M$11>'Sup fijo'!$B$165,'Sup fijo'!$E$165,IF(M$11>'Sup fijo'!$B$164,'Sup fijo'!$E$164,IF(M$11>'Sup fijo'!$B$163,'Sup fijo'!$E$163,IF(M$11>'Sup fijo'!$B$162,'Sup fijo'!$E$162,IF(M$11>'Sup fijo'!$B$161,'Sup fijo'!$E$161,IF(M$11>'Sup fijo'!$B$160,'Sup fijo'!$E$160,IF(M$11>'Sup fijo'!$C$159,'Sup fijo'!$E$160,'Sup fijo'!$E$159)))))))","v":0.02},{"$f":"+IF(N$11>'Sup fijo'!$B$165,'Sup fijo'!$E$165,IF(N$11>'Sup fijo'!$B$164,'Sup fijo'!$E$164,IF(N$11>'Sup fijo'!$B$163,'Sup fijo'!$E$163,IF(N$11>'Sup fijo'!$B$162,'Sup fijo'!$E$162,IF(N$11>'Sup fijo'!$B$161,'Sup fijo'!$E$161,IF(N$11>'Sup fijo'!$B$160,'Sup fijo'!$E$160,IF(N$11>'Sup fijo'!$C$159,'Sup fijo'!$E$160,'Sup fijo'!$E$159)))))))","v":0.02},{"$f":"+IF(O$11>'Sup fijo'!$B$165,'Sup fijo'!$E$165,IF(O$11>'Sup fijo'!$B$164,'Sup fijo'!$E$164,IF(O$11>'Sup fijo'!$B$163,'Sup fijo'!$E$163,IF(O$11>'Sup fijo'!$B$162,'Sup fijo'!$E$162,IF(O$11>'Sup fijo'!$B$161,'Sup fijo'!$E$161,IF(O$11>'Sup fijo'!$B$160,'Sup fijo'!$E$160,IF(O$11>'Sup fijo'!$C$159,'Sup fijo'!$E$160,'Sup fijo'!$E$159)))))))","v":0.02},{"$f":"+IF(P$11>'Sup fijo'!$B$165,'Sup fijo'!$E$165,IF(P$11>'Sup fijo'!$B$164,'Sup fijo'!$E$164,IF(P$11>'Sup fijo'!$B$163,'Sup fijo'!$E$163,IF(P$11>'Sup fijo'!$B$162,'Sup fijo'!$E$162,IF(P$11>'Sup fijo'!$B$161,'Sup fijo'!$E$161,IF(P$11>'Sup fijo'!$B$160,'Sup fijo'!$E$160,IF(P$11>'Sup fijo'!$C$159,'Sup fijo'!$E$160,'Sup fijo'!$E$159)))))))","v":0.02},{"$f":"+IF(Q$11>'Sup fijo'!$B$165,'Sup fijo'!$E$165,IF(Q$11>'Sup fijo'!$B$164,'Sup fijo'!$E$164,IF(Q$11>'Sup fijo'!$B$163,'Sup fijo'!$E$163,IF(Q$11>'Sup fijo'!$B$162,'Sup fijo'!$E$162,IF(Q$11>'Sup fijo'!$B$161,'Sup fijo'!$E$161,IF(Q$11>'Sup fijo'!$B$160,'Sup fijo'!$E$160,IF(Q$11>'Sup fijo'!$C$159,'Sup fijo'!$E$160,'Sup fijo'!$E$159)))))))","v":0.02},{"$f":"+IF(R$11>'Sup fijo'!$B$165,'Sup fijo'!$E$165,IF(R$11>'Sup fijo'!$B$164,'Sup fijo'!$E$164,IF(R$11>'Sup fijo'!$B$163,'Sup fijo'!$E$163,IF(R$11>'Sup fijo'!$B$162,'Sup fijo'!$E$162,IF(R$11>'Sup fijo'!$B$161,'Sup fijo'!$E$161,IF(R$11>'Sup fijo'!$B$160,'Sup fijo'!$E$160,IF(R$11>'Sup fijo'!$C$159,'Sup fijo'!$E$160,'Sup fijo'!$E$159)))))))","v":0.02},{"$f":"+IF(S$11>'Sup fijo'!$B$165,'Sup fijo'!$E$165,IF(S$11>'Sup fijo'!$B$164,'Sup fijo'!$E$164,IF(S$11>'Sup fijo'!$B$163,'Sup fijo'!$E$163,IF(S$11>'Sup fijo'!$B$162,'Sup fijo'!$E$162,IF(S$11>'Sup fijo'!$B$161,'Sup fijo'!$E$161,IF(S$11>'Sup fijo'!$B$160,'Sup fijo'!$E$160,IF(S$11>'Sup fijo'!$C$159,'Sup fijo'!$E$160,'Sup fijo'!$E$159)))))))","v":0.02},{"$f":"+IF(T$11>'Sup fijo'!$B$165,'Sup fijo'!$E$165,IF(T$11>'Sup fijo'!$B$164,'Sup fijo'!$E$164,IF(T$11>'Sup fijo'!$B$163,'Sup fijo'!$E$163,IF(T$11>'Sup fijo'!$B$162,'Sup fijo'!$E$162,IF(T$11>'Sup fijo'!$B$161,'Sup fijo'!$E$161,IF(T$11>'Sup fijo'!$B$160,'Sup fijo'!$E$160,IF(T$11>'Sup fijo'!$C$159,'Sup fijo'!$E$160,'Sup fijo'!$E$159)))))))","v":0.02},{"$f":"+IF(U$11>'Sup fijo'!$B$165,'Sup fijo'!$E$165,IF(U$11>'Sup fijo'!$B$164,'Sup fijo'!$E$164,IF(U$11>'Sup fijo'!$B$163,'Sup fijo'!$E$163,IF(U$11>'Sup fijo'!$B$162,'Sup fijo'!$E$162,IF(U$11>'Sup fijo'!$B$161,'Sup fijo'!$E$161,IF(U$11>'Sup fijo'!$B$160,'Sup fijo'!$E$160,IF(U$11>'Sup fijo'!$C$159,'Sup fijo'!$E$160,'Sup fijo'!$E$159)))))))","v":0.02},{"$f":"+IF(V$11>'Sup fijo'!$B$165,'Sup fijo'!$E$165,IF(V$11>'Sup fijo'!$B$164,'Sup fijo'!$E$164,IF(V$11>'Sup fijo'!$B$163,'Sup fijo'!$E$163,IF(V$11>'Sup fijo'!$B$162,'Sup fijo'!$E$162,IF(V$11>'Sup fijo'!$B$161,'Sup fijo'!$E$161,IF(V$11>'Sup fijo'!$B$160,'Sup fijo'!$E$160,IF(V$11>'Sup fijo'!$C$159,'Sup fijo'!$E$160,'Sup fijo'!$E$159)))))))","v":0.02}]
[]
[null,"Impuesto  vehículo motorizado",{"$f":"(+C13*C16+C15)-(+C13*C16+C15)*'Sup fijo'!$C$166","v":915.98799999999983},{"$f":"(+D13*D16+D15)-(+D13*D16+D15)*'Sup fijo'!$C$166","v":721.58799999999974},{"$f":"(+E13*E16+E15)-(+E13*E16+E15)*'Sup fijo'!$C$166","v":527.18799999999965},{"$f":"(+F13*F16+F15)-(+F13*F16+F15)*'Sup fijo'!$C$166","v":332.78800000000001},{"$f":"(+G13*G16+G15)-(+G13*G16+G15)*'Sup fijo'!$C$166","v":330.38799999999992},{"$f":"(+H13*H16+H15)-(+H13*H16+H15)*'Sup fijo'!$C$166","v":15.995999999999995},{"$f":"(+I13*I16+I15)-(+I13*I16+I15)*'Sup fijo'!$C$166","v":15.995999999999995},{"$f":"(+J13*J16+J15)-(+J13*J16+J15)*'Sup fijo'!$C$166","v":15.995999999999995},{"$f":"(+K13*K16+K15)-(+K13*K16+K15)*'Sup fijo'!$C$166","v":15.995999999999995},{"$f":"(+L13*L16+L15)-(+L13*L16+L15)*'Sup fijo'!$C$166","v":15.995999999999995},{"$f":"(+M13*M16+M15)-(+M13*M16+M15)*'Sup fijo'!$C$166","v":15.995999999999995},{"$f":"(+N13*N16+N15)-(+N13*N16+N15)*'Sup fijo'!$C$166","v":15.995999999999995},{"$f":"(+O13*O16+O15)-(+O13*O16+O15)*'Sup fijo'!$C$166","v":15.995999999999995},{"$f":"(+P13*P16+P15)-(+P13*P16+P15)*'Sup fijo'!$C$166","v":15.995999999999995},{"$f":"(+Q13*Q16+Q15)-(+Q13*Q16+Q15)*'Sup fijo'!$C$166","v":15.995999999999995},{"$f":"(+R13*R16+R15)-(+R13*R16+R15)*'Sup fijo'!$C$166","v":15.995999999999995},{"$f":"(+S13*S16+S15)-(+S13*S16+S15)*'Sup fijo'!$C$166","v":15.995999999999995},{"$f":"(+T13*T16+T15)-(+T13*T16+T15)*'Sup fijo'!$C$166","v":15.995999999999995},{"$f":"(+U13*U16+U15)-(+U13*U16+U15)*'Sup fijo'!$C$166","v":15.995999999999995},{"$f":"(+V13*V16+V15)-(+V13*V16+V15)*'Sup fijo'!$C$166","v":48}]
[null,"Impuesto  rodaje",{"$f":"+IF(C11>'Sup fijo'!$B$177,'Sup fijo'!$D$177,IF(C11>'Sup fijo'!$B$176,'Sup fijo'!$D$176,IF(C11>'Sup fijo'!$B$175,'Sup fijo'!$D$175,IF(C11>'Sup fijo'!$B$174,'Sup fijo'!$D$174,IF(C11>'Sup fijo'!$B$173,'Sup fijo'!$D$173,IF(C11>'Sup fijo'!$B$172,'Sup fijo'!$D$172,IF(C11>'Sup fijo'!$B$171,'Sup fijo'!$D$171,'Sup fijo'!$D$170)))))))","v":70},{"$f":"+IF(D11>'Sup fijo'!$B$177,'Sup fijo'!$D$177,IF(D11>'Sup fijo'!$B$176,'Sup fijo'!$D$176,IF(D11>'Sup fijo'!$B$175,'Sup fijo'!$D$175,IF(D11>'Sup fijo'!$B$174,'Sup fijo'!$D$174,IF(D11>'Sup fijo'!$B$173,'Sup fijo'!$D$173,IF(D11>'Sup fijo'!$B$172,'Sup fijo'!$D$172,IF(D11>'Sup fijo'!$B$171,'Sup fijo'!$D$171,'Sup fijo'!$D$170)))))))","v":70},{"$f":"+IF(E11>'Sup fijo'!$B$177,'Sup fijo'!$D$177,IF(E11>'Sup fijo'!$B$176,'Sup fijo'!$D$176,IF(E11>'Sup fijo'!$B$175,'Sup fijo'!$D$175,IF(E11>'Sup fijo'!$B$174,'Sup fijo'!$D$174,IF(E11>'Sup fijo'!$B$173,'Sup fijo'!$D$173,IF(E11>'Sup fijo'!$B$172,'Sup fijo'!$D$172,IF(E11>'Sup fijo'!$B$171,'Sup fijo'!$D$171,'Sup fijo'!$D$170)))))))","v":70},{"$f":"+IF(F11>'Sup fijo'!$B$177,'Sup fijo'!$D$177,IF(F11>'Sup fijo'!$B$176,'Sup fijo'!$D$176,IF(F11>'Sup fijo'!$B$175,'Sup fijo'!$D$175,IF(F11>'Sup fijo'!$B$174,'Sup fijo'!$D$174,IF(F11>'Sup fijo'!$B$173,'Sup fijo'!$D$173,IF(F11>'Sup fijo'!$B$172,'Sup fijo'!$D$172,IF(F11>'Sup fijo'!$B$171,'Sup fijo'!$D$171,'Sup fijo'!$D$170)))))))","v":70},{"$f":"+IF(G11>'Sup fijo'!$B$177,'Sup fijo'!$D$177,IF(G11>'Sup fijo'!$B$176,'Sup fijo'!$D$176,IF(G11>'Sup fijo'!$B$175,'Sup fijo'!$D$175,IF(G11>'Sup fijo'!$B$174,'Sup fijo'!$D$174,IF(G11>'Sup fijo'!$B$173,'Sup fijo'!$D$173,IF(G11>'Sup fijo'!$B$172,'Sup fijo'!$D$172,IF(G11>'Sup fijo'!$B$171,'Sup fijo'!$D$171,'Sup fijo'!$D$170)))))))","v":30},{"$f":"+IF(H11>'Sup fijo'!$B$177,'Sup fijo'!$D$177,IF(H11>'Sup fijo'!$B$176,'Sup fijo'!$D$176,IF(H11>'Sup fijo'!$B$175,'Sup fijo'!$D$175,IF(H11>'Sup fijo'!$B$174,'Sup fijo'!$D$174,IF(H11>'Sup fijo'!$B$173,'Sup fijo'!$D$173,IF(H11>'Sup fijo'!$B$172,'Sup fijo'!$D$172,IF(H11>'Sup fijo'!$B$171,'Sup fijo'!$D$171,'Sup fijo'!$D$170)))))))","v":15},{"$f":"+IF(I11>'Sup fijo'!$B$177,'Sup fijo'!$D$177,IF(I11>'Sup fijo'!$B$176,'Sup fijo'!$D$176,IF(I11>'Sup fijo'!$B$175,'Sup fijo'!$D$175,IF(I11>'Sup fijo'!$B$174,'Sup fijo'!$D$174,IF(I11>'Sup fijo'!$B$173,'Sup fijo'!$D$173,IF(I11>'Sup fijo'!$B$172,'Sup fijo'!$D$172,IF(I11>'Sup fijo'!$B$171,'Sup fijo'!$D$171,'Sup fijo'!$D$170)))))))","v":15},{"$f":"+IF(J11>'Sup fijo'!$B$177,'Sup fijo'!$D$177,IF(J11>'Sup fijo'!$B$176,'Sup fijo'!$D$176,IF(J11>'Sup fijo'!$B$175,'Sup fijo'!$D$175,IF(J11>'Sup fijo'!$B$174,'Sup fijo'!$D$174,IF(J11>'Sup fijo'!$B$173,'Sup fijo'!$D$173,IF(J11>'Sup fijo'!$B$172,'Sup fijo'!$D$172,IF(J11>'Sup fijo'!$B$171,'Sup fijo'!$D$171,'Sup fijo'!$D$170)))))))","v":15},{"$f":"+IF(K11>'Sup fijo'!$B$177,'Sup fijo'!$D$177,IF(K11>'Sup fijo'!$B$176,'Sup fijo'!$D$176,IF(K11>'Sup fijo'!$B$175,'Sup fijo'!$D$175,IF(K11>'Sup fijo'!$B$174,'Sup fijo'!$D$174,IF(K11>'Sup fijo'!$B$173,'Sup fijo'!$D$173,IF(K11>'Sup fijo'!$B$172,'Sup fijo'!$D$172,IF(K11>'Sup fijo'!$B$171,'Sup fijo'!$D$171,'Sup fijo'!$D$170)))))))","v":15},{"$f":"+IF(L11>'Sup fijo'!$B$177,'Sup fijo'!$D$177,IF(L11>'Sup fijo'!$B$176,'Sup fijo'!$D$176,IF(L11>'Sup fijo'!$B$175,'Sup fijo'!$D$175,IF(L11>'Sup fijo'!$B$174,'Sup fijo'!$D$174,IF(L11>'Sup fijo'!$B$173,'Sup fijo'!$D$173,IF(L11>'Sup fijo'!$B$172,'Sup fijo'!$D$172,IF(L11>'Sup fijo'!$B$171,'Sup fijo'!$D$171,'Sup fijo'!$D$170)))))))","v":15},{"$f":"+IF(M11>'Sup fijo'!$B$177,'Sup fijo'!$D$177,IF(M11>'Sup fijo'!$B$176,'Sup fijo'!$D$176,IF(M11>'Sup fijo'!$B$175,'Sup fijo'!$D$175,IF(M11>'Sup fijo'!$B$174,'Sup fijo'!$D$174,IF(M11>'Sup fijo'!$B$173,'Sup fijo'!$D$173,IF(M11>'Sup fijo'!$B$172,'Sup fijo'!$D$172,IF(M11>'Sup fijo'!$B$171,'Sup fijo'!$D$171,'Sup fijo'!$D$170)))))))","v":15},{"$f":"+IF(N11>'Sup fijo'!$B$177,'Sup fijo'!$D$177,IF(N11>'Sup fijo'!$B$176,'Sup fijo'!$D$176,IF(N11>'Sup fijo'!$B$175,'Sup fijo'!$D$175,IF(N11>'Sup fijo'!$B$174,'Sup fijo'!$D$174,IF(N11>'Sup fijo'!$B$173,'Sup fijo'!$D$173,IF(N11>'Sup fijo'!$B$172,'Sup fijo'!$D$172,IF(N11>'Sup fijo'!$B$171,'Sup fijo'!$D$171,'Sup fijo'!$D$170)))))))","v":15},{"$f":"+IF(O11>'Sup fijo'!$B$177,'Sup fijo'!$D$177,IF(O11>'Sup fijo'!$B$176,'Sup fijo'!$D$176,IF(O11>'Sup fijo'!$B$175,'Sup fijo'!$D$175,IF(O11>'Sup fijo'!$B$174,'Sup fijo'!$D$174,IF(O11>'Sup fijo'!$B$173,'Sup fijo'!$D$173,IF(O11>'Sup fijo'!$B$172,'Sup fijo'!$D$172,IF(O11>'Sup fijo'!$B$171,'Sup fijo'!$D$171,'Sup fijo'!$D$170)))))))","v":15},{"$f":"+IF(P11>'Sup fijo'!$B$177,'Sup fijo'!$D$177,IF(P11>'Sup fijo'!$B$176,'Sup fijo'!$D$176,IF(P11>'Sup fijo'!$B$175,'Sup fijo'!$D$175,IF(P11>'Sup fijo'!$B$174,'Sup fijo'!$D$174,IF(P11>'Sup fijo'!$B$173,'Sup fijo'!$D$173,IF(P11>'Sup fijo'!$B$172,'Sup fijo'!$D$172,IF(P11>'Sup fijo'!$B$171,'Sup fijo'!$D$171,'Sup fijo'!$D$170)))))))","v":15},{"$f":"+IF(Q11>'Sup fijo'!$B$177,'Sup fijo'!$D$177,IF(Q11>'Sup fijo'!$B$176,'Sup fijo'!$D$176,IF(Q11>'Sup fijo'!$B$175,'Sup fijo'!$D$175,IF(Q11>'Sup fijo'!$B$174,'Sup fijo'!$D$174,IF(Q11>'Sup fijo'!$B$173,'Sup fijo'!$D$173,IF(Q11>'Sup fijo'!$B$172,'Sup fijo'!$D$172,IF(Q11>'Sup fijo'!$B$171,'Sup fijo'!$D$171,'Sup fijo'!$D$170)))))))","v":15},{"$f":"+IF(R11>'Sup fijo'!$B$177,'Sup fijo'!$D$177,IF(R11>'Sup fijo'!$B$176,'Sup fijo'!$D$176,IF(R11>'Sup fijo'!$B$175,'Sup fijo'!$D$175,IF(R11>'Sup fijo'!$B$174,'Sup fijo'!$D$174,IF(R11>'Sup fijo'!$B$173,'Sup fijo'!$D$173,IF(R11>'Sup fijo'!$B$172,'Sup fijo'!$D$172,IF(R11>'Sup fijo'!$B$171,'Sup fijo'!$D$171,'Sup fijo'!$D$170)))))))","v":15},{"$f":"+IF(S11>'Sup fijo'!$B$177,'Sup fijo'!$D$177,IF(S11>'Sup fijo'!$B$176,'Sup fijo'!$D$176,IF(S11>'Sup fijo'!$B$175,'Sup fijo'!$D$175,IF(S11>'Sup fijo'!$B$174,'Sup fijo'!$D$174,IF(S11>'Sup fijo'!$B$173,'Sup fijo'!$D$173,IF(S11>'Sup fijo'!$B$172,'Sup fijo'!$D$172,IF(S11>'Sup fijo'!$B$171,'Sup fijo'!$D$171,'Sup fijo'!$D$170)))))))","v":15},{"$f":"+IF(T11>'Sup fijo'!$B$177,'Sup fijo'!$D$177,IF(T11>'Sup fijo'!$B$176,'Sup fijo'!$D$176,IF(T11>'Sup fijo'!$B$175,'Sup fijo'!$D$175,IF(T11>'Sup fijo'!$B$174,'Sup fijo'!$D$174,IF(T11>'Sup fijo'!$B$173,'Sup fijo'!$D$173,IF(T11>'Sup fijo'!$B$172,'Sup fijo'!$D$172,IF(T11>'Sup fijo'!$B$171,'Sup fijo'!$D$171,'Sup fijo'!$D$170)))))))","v":15},{"$f":"+IF(U11>'Sup fijo'!$B$177,'Sup fijo'!$D$177,IF(U11>'Sup fijo'!$B$176,'Sup fijo'!$D$176,IF(U11>'Sup fijo'!$B$175,'Sup fijo'!$D$175,IF(U11>'Sup fijo'!$B$174,'Sup fijo'!$D$174,IF(U11>'Sup fijo'!$B$173,'Sup fijo'!$D$173,IF(U11>'Sup fijo'!$B$172,'Sup fijo'!$D$172,IF(U11>'Sup fijo'!$B$171,'Sup fijo'!$D$171,'Sup fijo'!$D$170)))))))","v":15},{"$f":"+IF(V11>'Sup fijo'!$B$177,'Sup fijo'!$D$177,IF(V11>'Sup fijo'!$B$176,'Sup fijo'!$D$176,IF(V11>'Sup fijo'!$B$175,'Sup fijo'!$D$175,IF(V11>'Sup fijo'!$B$174,'Sup fijo'!$D$174,IF(V11>'Sup fijo'!$B$173,'Sup fijo'!$D$173,IF(V11>'Sup fijo'!$B$172,'Sup fijo'!$D$172,IF(V11>'Sup fijo'!$B$171,'Sup fijo'!$D$171,'Sup fijo'!$D$170)))))))","v":15}]
[null,"Sub-Total ",{"$f":"+C19+C18","v":985.98799999999983},{"$f":"+D19+D18","v":791.58799999999974},597.18799999999965,402.78800000000001,360.38799999999992,30.995999999999995,30.995999999999995,30.995999999999995,30.995999999999995,30.995999999999995,30.995999999999995,30.995999999999995,30.995999999999995,30.995999999999995,30.995999999999995,30.995999999999995,30.995999999999995,30.995999999999995,30.995999999999995,63]
[]
[null,"Valor Revisión Anual ",{"$f":"+'Sup fijo'!$D$180*(1+'Sup Generales'!C$8)","v":71.680000000000007},{"$f":"+'Sup fijo'!$D$180*(1+'Sup Generales'!D$8)","v":72.826880000000003},{"$f":"+'Sup fijo'!$D$180*(1+'Sup Generales'!E$8)","v":74.720378879999998},{"$f":"+'Sup fijo'!$D$180*(1+'Sup Generales'!F$8)","v":75.043170916761611},{"$f":"+'Sup fijo'!$D$180*(1+'Sup Generales'!G$8)","v":75.245787478236863},{"$f":"+'Sup fijo'!$D$180*(1+'Sup Generales'!H$8)","v":75.749934254341042},{"$f":"+'Sup fijo'!$D$180*(1+'Sup Generales'!I$8)","v":77.220335165635632},{"$f":"+'Sup fijo'!$D$180*(1+'Sup Generales'!J$8)","v":78.560409622693669},{"$f":"+'Sup fijo'!$D$180*(1+'Sup Generales'!K$8)","v":79.704299821439108},{"$f":"+'Sup fijo'!$D$180*(1+'Sup Generales'!L$8)","v":80.770801146450964},{"$f":"+'Sup fijo'!$D$180*(1+'Sup Generales'!M$8)","v":81.825127915973454},{"$f":"+'Sup fijo'!$D$180*(1+'Sup Generales'!N$8)","v":82.760796633695918},{"$f":"+'Sup fijo'!$D$180*(1+'Sup Generales'!O$8)","v":83.780769883371832},{"$f":"+'Sup fijo'!$D$180*(1+'Sup Generales'!P$8)","v":84.914105603285279},{"$f":"+'Sup fijo'!$D$180*(1+'Sup Generales'!Q$8)","v":86.135240192007586},{"$f":"+'Sup fijo'!$D$180*(1+'Sup Generales'!R$8)","v":87.319773552429567},{"$f":"+'Sup fijo'!$D$180*(1+'Sup Generales'!S$8)","v":88.481282126806974},{"$f":"+'Sup fijo'!$D$180*(1+'Sup Generales'!T$8)","v":89.644317611205338},{"$f":"+'Sup fijo'!$D$180*(1+'Sup Generales'!U$8)","v":90.819992645255638},{"$f":"+'Sup fijo'!$D$180*(1+'Sup Generales'!V$8)","v":92.01178550364645}]
[null,{"$f":"+'Sup fijo'!B181","v":"Valor SPPAT"},{"$f":"+'Sup fijo'!$D$181*(1+'Sup Generales'!C$8)","v":79.872},{"$f":"+'Sup fijo'!$D$181*(1+'Sup Generales'!D$8)","v":81.149951999999999},{"$f":"+'Sup fijo'!$D$181*(1+'Sup Generales'!E$8)","v":83.259850752000006},{"$f":"+'Sup fijo'!$D$181*(1+'Sup Generales'!F$8)","v":83.619533307248659},{"$f":"+'Sup fijo'!$D$181*(1+'Sup Generales'!G$8)","v":83.845306047178227},{"$f":"+'Sup fijo'!$D$181*(1+'Sup Generales'!H$8)","v":84.407069597694303},{"$f":"+'Sup fijo'!$D$181*(1+'Sup Generales'!I$8)","v":86.045516327422561},{"$f":"+'Sup fijo'!$D$181*(1+'Sup Generales'!J$8)","v":87.538742151001514},{"$f":"+'Sup fijo'!$D$181*(1+'Sup Generales'!K$8)","v":88.813362658175009},{"$f":"+'Sup fijo'!$D$181*(1+'Sup Generales'!L$8)","v":90.001749848902506},{"$f":"+'Sup fijo'!$D$181*(1+'Sup Generales'!M$8)","v":91.176571106370417},{"$f":"+'Sup fijo'!$D$181*(1+'Sup Generales'!N$8)","v":92.219173391832598},{"$f":"+'Sup fijo'!$D$181*(1+'Sup Generales'!O$8)","v":93.355715012900049},{"$f":"+'Sup fijo'!$D$181*(1+'Sup Generales'!P$8)","v":94.618574815089303},{"$f":"+'Sup fijo'!$D$181*(1+'Sup Generales'!Q$8)","v":95.979267642522743},{"$f":"+'Sup fijo'!$D$181*(1+'Sup Generales'!R$8)","v":97.299176244135793},{"$f":"+'Sup fijo'!$D$181*(1+'Sup Generales'!S$8)","v":98.593428655584916},{"$f":"+'Sup fijo'!$D$181*(1+'Sup Generales'!T$8)","v":99.889382481057382},{"$f":"+'Sup fijo'!$D$181*(1+'Sup Generales'!U$8)","v":101.199420376142},{"$f":"+'Sup fijo'!$D$181*(1+'Sup Generales'!V$8)","v":102.52741813263462}]
[null,{"$f":"+'Sup fijo'!B182","v":"Valor permiso de operación"},{"$f":"+'Sup fijo'!$D$182*(1+'Sup Generales'!C$8)","v":25.6},{"$f":"+'Sup fijo'!$D$182*(1+'Sup Generales'!D$8)","v":26.009599999999999},{"$f":"+'Sup fijo'!$D$182*(1+'Sup Generales'!E$8)","v":26.685849600000001},{"$f":"+'Sup fijo'!$D$182*(1+'Sup Generales'!F$8)","v":26.801132470272005},{"$f":"+'Sup fijo'!$D$182*(1+'Sup Generales'!G$8)","v":26.873495527941738},{"$f":"+'Sup fijo'!$D$182*(1+'Sup Generales'!H$8)","v":27.053547947978945},{"$f":"+'Sup fijo'!$D$182*(1+'Sup Generales'!I$8)","v":27.578691130584154},{"$f":"+'Sup fijo'!$D$182*(1+'Sup Generales'!J$8)","v":28.057289150962024},{"$f":"+'Sup fijo'!$D$182*(1+'Sup Generales'!K$8)","v":28.46582136479968},{"$f":"+'Sup fijo'!$D$182*(1+'Sup Generales'!L$8)","v":28.846714695161058},{"$f":"+'Sup fijo'!$D$182*(1+'Sup Generales'!M$8)","v":29.223259969990519},{"$f":"+'Sup fijo'!$D$182*(1+'Sup Generales'!N$8)","v":29.557427369177113},{"$f":"+'Sup fijo'!$D$182*(1+'Sup Generales'!O$8)","v":29.921703529775655},{"$f":"+'Sup fijo'!$D$182*(1+'Sup Generales'!P$8)","v":30.326466286887598},{"$f":"+'Sup fijo'!$D$182*(1+'Sup Generales'!Q$8)","v":30.762585782859851},{"$f":"+'Sup fijo'!$D$182*(1+'Sup Generales'!R$8)","v":31.185633411581986},{"$f":"+'Sup fijo'!$D$182*(1+'Sup Generales'!S$8)","v":31.60045790243106},{"$f":"+'Sup fijo'!$D$182*(1+'Sup Generales'!T$8)","v":32.015827718287618},{"$f":"+'Sup fijo'!$D$182*(1+'Sup Generales'!U$8)","v":32.435711659019873},{"$f":"+'Sup fijo'!$D$182*(1+'Sup Generales'!V$8)","v":32.861351965588021}]
[]
[null,"Costo año (USD)",{"$f":"+C20+C24+C23+C22","v":1163.1399999999999},{"$f":"(D20+D24+D23+D22)*IF(D$5>'Sup fijo'!$H$51,0,1)","v":971.57443199999966},{"$f":"(E20+E24+E23+E22)*IF(E$5>'Sup fijo'!$H$51,0,1)","v":781.85407923199966},{"$f":"(F20+F24+F23+F22)*IF(F$5>'Sup fijo'!$H$51,0,1)","v":588.25183669428225},{"$f":"(G20+G24+G23+G22)*IF(G$5>'Sup fijo'!$H$51,0,1)","v":546.35258905335672},{"$f":"(H20+H24+H23+H22)*IF(H$5>'Sup fijo'!$H$51,0,1)","v":218.20655180001427},{"$f":"(I20+I24+I23+I22)*IF(I$5>'Sup fijo'!$H$51,0,1)","v":221.84054262364236},{"$f":"(J20+J24+J23+J22)*IF(J$5>'Sup fijo'!$H$51,0,1)","v":225.15244092465718},{"$f":"(K20+K24+K23+K22)*IF(K$5>'Sup fijo'!$H$51,0,1)","v":227.97948384441378},{"$f":"(L20+L24+L23+L22)*IF(L$5>'Sup fijo'!$H$51,0,1)","v":230.61526569051452},{"$f":"(M20+M24+M23+M22)*IF(M$5>'Sup fijo'!$H$51,0,1)","v":233.22095899233437},{"$f":"(N20+N24+N23+N22)*IF(N$5>'Sup fijo'!$H$51,0,1)","v":235.53339739470562},{"$f":"(O20+O24+O23+O22)*IF(O$5>'Sup fijo'!$H$51,0,1)","v":0},{"$f":"(P20+P24+P23+P22)*IF(P$5>'Sup fijo'!$H$51,0,1)","v":0},{"$f":"(Q20+Q24+Q23+Q22)*IF(Q$5>'Sup fijo'!$H$51,0,1)","v":0},{"$f":"(R20+R24+R23+R22)*IF(R$5>'Sup fijo'!$H$51,0,1)","v":0},{"$f":"(S20+S24+S23+S22)*IF(S$5>'Sup fijo'!$H$51,0,1)","v":0},{"$f":"(T20+T24+T23+T22)*IF(T$5>'Sup fijo'!$H$51,0,1)","v":0},{"$f":"(U20+U24+U23+U22)*IF(U$5>'Sup fijo'!$H$51,0,1)","v":0},{"$f":"(V20+V24+V23+V22)*IF(V$5>'Sup fijo'!$H$51,0,1)","v":0}]
[]
[null,null,1,{"$f":"+C28+1","v":2},{"$f":"+D28+1","v":3},4,5,6,7,8,9,10,11,12,13,14,15,16,17,18,19,20]
[null,{"$f":"'Sup fijo'!B18","v":"Intracantonal Urbano"}]
[null,"Valor vehículo ",{"$f":"'CAPEX Vehículo'!C25","v":122000},{"$f":"C30-C31","v":100040},{"$f":"D30-D31","v":78080},56120,34160,12200,12200,12200,12200,12200,12200,12200,12200,12200,12200,12200,12200,12200,12200,12200]
[null,"Depreciación tributaria ",{"$f":"+((C30*(1-D88))/D87)","v":21960},{"$f":"IF(D28<=$D$87,C31,0)","v":21960},{"$f":"IF(E28<=$D$87,D31,0)","v":21960},21960,21960,0,0,0,0,0,0,0,0,0,0,0,0,0,0,0]
[null,"Base imponible ",{"$f":"C30-(+IF(D$11>'Sup fijo'!$B$165,'Sup fijo'!$B$165,IF(D$11>'Sup fijo'!$B$164,'Sup fijo'!$B$164,IF(D$11>'Sup fijo'!$B$163,'Sup fijo'!$B$163,IF(D$11>'Sup fijo'!$B$162,'Sup fijo'!$B$162,IF(D$11>'Sup fijo'!$B$161,'Sup fijo'!$B$161,IF(D$11>'Sup fijo'!$B$160,'Sup fijo'!$B$160,IF(D$11>'Sup fijo'!$C$159,'Sup fijo'!$B$160,'Sup fijo'!$B$159))))))))","v":97999},{"$f":"D30-(+IF(E$11>'Sup fijo'!$B$165,'Sup fijo'!$B$165,IF(E$11>'Sup fijo'!$B$164,'Sup fijo'!$B$164,IF(E$11>'Sup fijo'!$B$163,'Sup fijo'!$B$163,IF(E$11>'Sup fijo'!$B$162,'Sup fijo'!$B$162,IF(E$11>'Sup fijo'!$B$161,'Sup fijo'!$B$161,IF(E$11>'Sup fijo'!$B$160,'Sup fijo'!$B$160,IF(E$11>'Sup fijo'!$C$159,'Sup fijo'!$B$160,'Sup fijo'!$B$159))))))))","v":76039},{"$f":"E30-(+IF(F$11>'Sup fijo'!$B$165,'Sup fijo'!$B$165,IF(F$11>'Sup fijo'!$B$164,'Sup fijo'!$B$164,IF(F$11>'Sup fijo'!$B$163,'Sup fijo'!$B$163,IF(F$11>'Sup fijo'!$B$162,'Sup fijo'!$B$162,IF(F$11>'Sup fijo'!$B$161,'Sup fijo'!$B$161,IF(F$11>'Sup fijo'!$B$160,'Sup fijo'!$B$160,IF(F$11>'Sup fijo'!$C$159,'Sup fijo'!$B$160,'Sup fijo'!$B$159))))))))","v":54079},{"$f":"F30-(+IF(G$11>'Sup fijo'!$B$165,'Sup fijo'!$B$165,IF(G$11>'Sup fijo'!$B$164,'Sup fijo'!$B$164,IF(G$11>'Sup fijo'!$B$163,'Sup fijo'!$B$163,IF(G$11>'Sup fijo'!$B$162,'Sup fijo'!$B$162,IF(G$11>'Sup fijo'!$B$161,'Sup fijo'!$B$161,IF(G$11>'Sup fijo'!$B$160,'Sup fijo'!$B$160,IF(G$11>'Sup fijo'!$C$159,'Sup fijo'!$B$160,'Sup fijo'!$B$159))))))))","v":32119},{"$f":"G30-(+IF(H$11>'Sup fijo'!$B$165,'Sup fijo'!$B$165,IF(H$11>'Sup fijo'!$B$164,'Sup fijo'!$B$164,IF(H$11>'Sup fijo'!$B$163,'Sup fijo'!$B$163,IF(H$11>'Sup fijo'!$B$162,'Sup fijo'!$B$162,IF(H$11>'Sup fijo'!$B$161,'Sup fijo'!$B$161,IF(H$11>'Sup fijo'!$B$160,'Sup fijo'!$B$160,IF(H$11>'Sup fijo'!$C$159,'Sup fijo'!$B$160,'Sup fijo'!$B$159))))))))","v":26159},{"$f":"H30-(+IF(I$11>'Sup fijo'!$B$165,'Sup fijo'!$B$165,IF(I$11>'Sup fijo'!$B$164,'Sup fijo'!$B$164,IF(I$11>'Sup fijo'!$B$163,'Sup fijo'!$B$163,IF(I$11>'Sup fijo'!$B$162,'Sup fijo'!$B$162,IF(I$11>'Sup fijo'!$B$161,'Sup fijo'!$B$161,IF(I$11>'Sup fijo'!$B$160,'Sup fijo'!$B$160,IF(I$11>'Sup fijo'!$C$159,'Sup fijo'!$B$160,'Sup fijo'!$B$159))))))))","v":4199},{"$f":"I30-(+IF(J$11>'Sup fijo'!$B$165,'Sup fijo'!$B$165,IF(J$11>'Sup fijo'!$B$164,'Sup fijo'!$B$164,IF(J$11>'Sup fijo'!$B$163,'Sup fijo'!$B$163,IF(J$11>'Sup fijo'!$B$162,'Sup fijo'!$B$162,IF(J$11>'Sup fijo'!$B$161,'Sup fijo'!$B$161,IF(J$11>'Sup fijo'!$B$160,'Sup fijo'!$B$160,IF(J$11>'Sup fijo'!$C$159,'Sup fijo'!$B$160,'Sup fijo'!$B$159))))))))","v":4199},{"$f":"J30-(+IF(K$11>'Sup fijo'!$B$165,'Sup fijo'!$B$165,IF(K$11>'Sup fijo'!$B$164,'Sup fijo'!$B$164,IF(K$11>'Sup fijo'!$B$163,'Sup fijo'!$B$163,IF(K$11>'Sup fijo'!$B$162,'Sup fijo'!$B$162,IF(K$11>'Sup fijo'!$B$161,'Sup fijo'!$B$161,IF(K$11>'Sup fijo'!$B$160,'Sup fijo'!$B$160,IF(K$11>'Sup fijo'!$C$159,'Sup fijo'!$B$160,'Sup fijo'!$B$159))))))))","v":4199},{"$f":"K30-(+IF(L$11>'Sup fijo'!$B$165,'Sup fijo'!$B$165,IF(L$11>'Sup fijo'!$B$164,'Sup fijo'!$B$164,IF(L$11>'Sup fijo'!$B$163,'Sup fijo'!$B$163,IF(L$11>'Sup fijo'!$B$162,'Sup fijo'!$B$162,IF(L$11>'Sup fijo'!$B$161,'Sup fijo'!$B$161,IF(L$11>'Sup fijo'!$B$160,'Sup fijo'!$B$160,IF(L$11>'Sup fijo'!$C$159,'Sup fijo'!$B$160,'Sup fijo'!$B$159))))))))","v":4199},{"$f":"L30-(+IF(M$11>'Sup fijo'!$B$165,'Sup fijo'!$B$165,IF(M$11>'Sup fijo'!$B$164,'Sup fijo'!$B$164,IF(M$11>'Sup fijo'!$B$163,'Sup fijo'!$B$163,IF(M$11>'Sup fijo'!$B$162,'Sup fijo'!$B$162,IF(M$11>'Sup fijo'!$B$161,'Sup fijo'!$B$161,IF(M$11>'Sup fijo'!$B$160,'Sup fijo'!$B$160,IF(M$11>'Sup fijo'!$C$159,'Sup fijo'!$B$160,'Sup fijo'!$B$159))))))))","v":4199},{"$f":"M30-(+IF(N$11>'Sup fijo'!$B$165,'Sup fijo'!$B$165,IF(N$11>'Sup fijo'!$B$164,'Sup fijo'!$B$164,IF(N$11>'Sup fijo'!$B$163,'Sup fijo'!$B$163,IF(N$11>'Sup fijo'!$B$162,'Sup fijo'!$B$162,IF(N$11>'Sup fijo'!$B$161,'Sup fijo'!$B$161,IF(N$11>'Sup fijo'!$B$160,'Sup fijo'!$B$160,IF(N$11>'Sup fijo'!$C$159,'Sup fijo'!$B$160,'Sup fijo'!$B$159))))))))","v":4199},{"$f":"N30-(+IF(O$11>'Sup fijo'!$B$165,'Sup fijo'!$B$165,IF(O$11>'Sup fijo'!$B$164,'Sup fijo'!$B$164,IF(O$11>'Sup fijo'!$B$163,'Sup fijo'!$B$163,IF(O$11>'Sup fijo'!$B$162,'Sup fijo'!$B$162,IF(O$11>'Sup fijo'!$B$161,'Sup fijo'!$B$161,IF(O$11>'Sup fijo'!$B$160,'Sup fijo'!$B$160,IF(O$11>'Sup fijo'!$C$159,'Sup fijo'!$B$160,'Sup fijo'!$B$159))))))))","v":4199},{"$f":"O30-(+IF(P$11>'Sup fijo'!$B$165,'Sup fijo'!$B$165,IF(P$11>'Sup fijo'!$B$164,'Sup fijo'!$B$164,IF(P$11>'Sup fijo'!$B$163,'Sup fijo'!$B$163,IF(P$11>'Sup fijo'!$B$162,'Sup fijo'!$B$162,IF(P$11>'Sup fijo'!$B$161,'Sup fijo'!$B$161,IF(P$11>'Sup fijo'!$B$160,'Sup fijo'!$B$160,IF(P$11>'Sup fijo'!$C$159,'Sup fijo'!$B$160,'Sup fijo'!$B$159))))))))","v":4199},{"$f":"P30-(+IF(Q$11>'Sup fijo'!$B$165,'Sup fijo'!$B$165,IF(Q$11>'Sup fijo'!$B$164,'Sup fijo'!$B$164,IF(Q$11>'Sup fijo'!$B$163,'Sup fijo'!$B$163,IF(Q$11>'Sup fijo'!$B$162,'Sup fijo'!$B$162,IF(Q$11>'Sup fijo'!$B$161,'Sup fijo'!$B$161,IF(Q$11>'Sup fijo'!$B$160,'Sup fijo'!$B$160,IF(Q$11>'Sup fijo'!$C$159,'Sup fijo'!$B$160,'Sup fijo'!$B$159))))))))","v":4199},{"$f":"Q30-(+IF(R$11>'Sup fijo'!$B$165,'Sup fijo'!$B$165,IF(R$11>'Sup fijo'!$B$164,'Sup fijo'!$B$164,IF(R$11>'Sup fijo'!$B$163,'Sup fijo'!$B$163,IF(R$11>'Sup fijo'!$B$162,'Sup fijo'!$B$162,IF(R$11>'Sup fijo'!$B$161,'Sup fijo'!$B$161,IF(R$11>'Sup fijo'!$B$160,'Sup fijo'!$B$160,IF(R$11>'Sup fijo'!$C$159,'Sup fijo'!$B$160,'Sup fijo'!$B$159))))))))","v":4199},{"$f":"R30-(+IF(S$11>'Sup fijo'!$B$165,'Sup fijo'!$B$165,IF(S$11>'Sup fijo'!$B$164,'Sup fijo'!$B$164,IF(S$11>'Sup fijo'!$B$163,'Sup fijo'!$B$163,IF(S$11>'Sup fijo'!$B$162,'Sup fijo'!$B$162,IF(S$11>'Sup fijo'!$B$161,'Sup fijo'!$B$161,IF(S$11>'Sup fijo'!$B$160,'Sup fijo'!$B$160,IF(S$11>'Sup fijo'!$C$159,'Sup fijo'!$B$160,'Sup fijo'!$B$159))))))))","v":4199},{"$f":"S30-(+IF(T$11>'Sup fijo'!$B$165,'Sup fijo'!$B$165,IF(T$11>'Sup fijo'!$B$164,'Sup fijo'!$B$164,IF(T$11>'Sup fijo'!$B$163,'Sup fijo'!$B$163,IF(T$11>'Sup fijo'!$B$162,'Sup fijo'!$B$162,IF(T$11>'Sup fijo'!$B$161,'Sup fijo'!$B$161,IF(T$11>'Sup fijo'!$B$160,'Sup fijo'!$B$160,IF(T$11>'Sup fijo'!$C$159,'Sup fijo'!$B$160,'Sup fijo'!$B$159))))))))","v":4199},{"$f":"T30-(+IF(U$11>'Sup fijo'!$B$165,'Sup fijo'!$B$165,IF(U$11>'Sup fijo'!$B$164,'Sup fijo'!$B$164,IF(U$11>'Sup fijo'!$B$163,'Sup fijo'!$B$163,IF(U$11>'Sup fijo'!$B$162,'Sup fijo'!$B$162,IF(U$11>'Sup fijo'!$B$161,'Sup fijo'!$B$161,IF(U$11>'Sup fijo'!$B$160,'Sup fijo'!$B$160,IF(U$11>'Sup fijo'!$C$159,'Sup fijo'!$B$160,'Sup fijo'!$B$159))))))))","v":4199},{"$f":"U30-(+IF(V$11>'Sup fijo'!$B$165,'Sup fijo'!$B$165,IF(V$11>'Sup fijo'!$B$164,'Sup fijo'!$B$164,IF(V$11>'Sup fijo'!$B$163,'Sup fijo'!$B$163,IF(V$11>'Sup fijo'!$B$162,'Sup fijo'!$B$162,IF(V$11>'Sup fijo'!$B$161,'Sup fijo'!$B$161,IF(V$11>'Sup fijo'!$B$160,'Sup fijo'!$B$160,IF(V$11>'Sup fijo'!$C$159,'Sup fijo'!$B$160,'Sup fijo'!$B$159))))))))","v":4199},{"$f":"V30-(+IF(W$11>'Sup fijo'!$B$165,'Sup fijo'!$B$165,IF(W$11>'Sup fijo'!$B$164,'Sup fijo'!$B$164,IF(W$11>'Sup fijo'!$B$163,'Sup fijo'!$B$163,IF(W$11>'Sup fijo'!$B$162,'Sup fijo'!$B$162,IF(W$11>'Sup fijo'!$B$161,'Sup fijo'!$B$161,IF(W$11>'Sup fijo'!$B$160,'Sup fijo'!$B$160,IF(W$11>'Sup fijo'!$C$159,'Sup fijo'!$B$160,'Sup fijo'!$B$159))))))))","v":12200}]
[]
[null,"Impuesto fracción básica ",{"$f":"+IF(C30>'Sup fijo'!$B$165,'Sup fijo'!$D$165,IF(C30>'Sup fijo'!$B$164,'Sup fijo'!$D$164,IF(C30>'Sup fijo'!$B$163,'Sup fijo'!$D$163,IF(C30>'Sup fijo'!$B$162,'Sup fijo'!$D$162,IF(C30>'Sup fijo'!$B$161,'Sup fijo'!$D$161,IF(C30>'Sup fijo'!$B$160,'Sup fijo'!$D$160,IF(C30>'Sup fijo'!$C$159,'Sup fijo'!$D$160,'Sup fijo'!$D$159)))))))","v":620},{"$f":"+IF(D30>'Sup fijo'!$B$165,'Sup fijo'!$D$165,IF(D30>'Sup fijo'!$B$164,'Sup fijo'!$D$164,IF(D30>'Sup fijo'!$B$163,'Sup fijo'!$D$163,IF(D30>'Sup fijo'!$B$162,'Sup fijo'!$D$162,IF(D30>'Sup fijo'!$B$161,'Sup fijo'!$D$161,IF(D30>'Sup fijo'!$B$160,'Sup fijo'!$D$160,IF(D30>'Sup fijo'!$C$159,'Sup fijo'!$D$160,'Sup fijo'!$D$159)))))))","v":620},{"$f":"+IF(E30>'Sup fijo'!$B$165,'Sup fijo'!$D$165,IF(E30>'Sup fijo'!$B$164,'Sup fijo'!$D$164,IF(E30>'Sup fijo'!$B$163,'Sup fijo'!$D$163,IF(E30>'Sup fijo'!$B$162,'Sup fijo'!$D$162,IF(E30>'Sup fijo'!$B$161,'Sup fijo'!$D$161,IF(E30>'Sup fijo'!$B$160,'Sup fijo'!$D$160,IF(E30>'Sup fijo'!$C$159,'Sup fijo'!$D$160,'Sup fijo'!$D$159)))))))","v":620},{"$f":"+IF(F30>'Sup fijo'!$B$165,'Sup fijo'!$D$165,IF(F30>'Sup fijo'!$B$164,'Sup fijo'!$D$164,IF(F30>'Sup fijo'!$B$163,'Sup fijo'!$D$163,IF(F30>'Sup fijo'!$B$162,'Sup fijo'!$D$162,IF(F30>'Sup fijo'!$B$161,'Sup fijo'!$D$161,IF(F30>'Sup fijo'!$B$160,'Sup fijo'!$D$160,IF(F30>'Sup fijo'!$C$159,'Sup fijo'!$D$160,'Sup fijo'!$D$159)))))))","v":620},{"$f":"+IF(G30>'Sup fijo'!$B$165,'Sup fijo'!$D$165,IF(G30>'Sup fijo'!$B$164,'Sup fijo'!$D$164,IF(G30>'Sup fijo'!$B$163,'Sup fijo'!$D$163,IF(G30>'Sup fijo'!$B$162,'Sup fijo'!$D$162,IF(G30>'Sup fijo'!$B$161,'Sup fijo'!$D$161,IF(G30>'Sup fijo'!$B$160,'Sup fijo'!$D$160,IF(G30>'Sup fijo'!$C$159,'Sup fijo'!$D$160,'Sup fijo'!$D$159)))))))","v":620},{"$f":"+IF(H30>'Sup fijo'!$B$165,'Sup fijo'!$D$165,IF(H30>'Sup fijo'!$B$164,'Sup fijo'!$D$164,IF(H30>'Sup fijo'!$B$163,'Sup fijo'!$D$163,IF(H30>'Sup fijo'!$B$162,'Sup fijo'!$D$162,IF(H30>'Sup fijo'!$B$161,'Sup fijo'!$D$161,IF(H30>'Sup fijo'!$B$160,'Sup fijo'!$D$160,IF(H30>'Sup fijo'!$C$159,'Sup fijo'!$D$160,'Sup fijo'!$D$159)))))))","v":140},{"$f":"+IF(I30>'Sup fijo'!$B$165,'Sup fijo'!$D$165,IF(I30>'Sup fijo'!$B$164,'Sup fijo'!$D$164,IF(I30>'Sup fijo'!$B$163,'Sup fijo'!$D$163,IF(I30>'Sup fijo'!$B$162,'Sup fijo'!$D$162,IF(I30>'Sup fijo'!$B$161,'Sup fijo'!$D$161,IF(I30>'Sup fijo'!$B$160,'Sup fijo'!$D$160,IF(I30>'Sup fijo'!$C$159,'Sup fijo'!$D$160,'Sup fijo'!$D$159)))))))","v":140},{"$f":"+IF(J30>'Sup fijo'!$B$165,'Sup fijo'!$D$165,IF(J30>'Sup fijo'!$B$164,'Sup fijo'!$D$164,IF(J30>'Sup fijo'!$B$163,'Sup fijo'!$D$163,IF(J30>'Sup fijo'!$B$162,'Sup fijo'!$D$162,IF(J30>'Sup fijo'!$B$161,'Sup fijo'!$D$161,IF(J30>'Sup fijo'!$B$160,'Sup fijo'!$D$160,IF(J30>'Sup fijo'!$C$159,'Sup fijo'!$D$160,'Sup fijo'!$D$159)))))))","v":140},{"$f":"+IF(K30>'Sup fijo'!$B$165,'Sup fijo'!$D$165,IF(K30>'Sup fijo'!$B$164,'Sup fijo'!$D$164,IF(K30>'Sup fijo'!$B$163,'Sup fijo'!$D$163,IF(K30>'Sup fijo'!$B$162,'Sup fijo'!$D$162,IF(K30>'Sup fijo'!$B$161,'Sup fijo'!$D$161,IF(K30>'Sup fijo'!$B$160,'Sup fijo'!$D$160,IF(K30>'Sup fijo'!$C$159,'Sup fijo'!$D$160,'Sup fijo'!$D$159)))))))","v":140},{"$f":"+IF(L30>'Sup fijo'!$B$165,'Sup fijo'!$D$165,IF(L30>'Sup fijo'!$B$164,'Sup fijo'!$D$164,IF(L30>'Sup fijo'!$B$163,'Sup fijo'!$D$163,IF(L30>'Sup fijo'!$B$162,'Sup fijo'!$D$162,IF(L30>'Sup fijo'!$B$161,'Sup fijo'!$D$161,IF(L30>'Sup fijo'!$B$160,'Sup fijo'!$D$160,IF(L30>'Sup fijo'!$C$159,'Sup fijo'!$D$160,'Sup fijo'!$D$159)))))))","v":140},{"$f":"+IF(M30>'Sup fijo'!$B$165,'Sup fijo'!$D$165,IF(M30>'Sup fijo'!$B$164,'Sup fijo'!$D$164,IF(M30>'Sup fijo'!$B$163,'Sup fijo'!$D$163,IF(M30>'Sup fijo'!$B$162,'Sup fijo'!$D$162,IF(M30>'Sup fijo'!$B$161,'Sup fijo'!$D$161,IF(M30>'Sup fijo'!$B$160,'Sup fijo'!$D$160,IF(M30>'Sup fijo'!$C$159,'Sup fijo'!$D$160,'Sup fijo'!$D$159)))))))","v":140},{"$f":"+IF(N30>'Sup fijo'!$B$165,'Sup fijo'!$D$165,IF(N30>'Sup fijo'!$B$164,'Sup fijo'!$D$164,IF(N30>'Sup fijo'!$B$163,'Sup fijo'!$D$163,IF(N30>'Sup fijo'!$B$162,'Sup fijo'!$D$162,IF(N30>'Sup fijo'!$B$161,'Sup fijo'!$D$161,IF(N30>'Sup fijo'!$B$160,'Sup fijo'!$D$160,IF(N30>'Sup fijo'!$C$159,'Sup fijo'!$D$160,'Sup fijo'!$D$159)))))))","v":140},{"$f":"+IF(O30>'Sup fijo'!$B$165,'Sup fijo'!$D$165,IF(O30>'Sup fijo'!$B$164,'Sup fijo'!$D$164,IF(O30>'Sup fijo'!$B$163,'Sup fijo'!$D$163,IF(O30>'Sup fijo'!$B$162,'Sup fijo'!$D$162,IF(O30>'Sup fijo'!$B$161,'Sup fijo'!$D$161,IF(O30>'Sup fijo'!$B$160,'Sup fijo'!$D$160,IF(O30>'Sup fijo'!$C$159,'Sup fijo'!$D$160,'Sup fijo'!$D$159)))))))","v":140},{"$f":"+IF(P30>'Sup fijo'!$B$165,'Sup fijo'!$D$165,IF(P30>'Sup fijo'!$B$164,'Sup fijo'!$D$164,IF(P30>'Sup fijo'!$B$163,'Sup fijo'!$D$163,IF(P30>'Sup fijo'!$B$162,'Sup fijo'!$D$162,IF(P30>'Sup fijo'!$B$161,'Sup fijo'!$D$161,IF(P30>'Sup fijo'!$B$160,'Sup fijo'!$D$160,IF(P30>'Sup fijo'!$C$159,'Sup fijo'!$D$160,'Sup fijo'!$D$159)))))))","v":140},{"$f":"+IF(Q30>'Sup fijo'!$B$165,'Sup fijo'!$D$165,IF(Q30>'Sup fijo'!$B$164,'Sup fijo'!$D$164,IF(Q30>'Sup fijo'!$B$163,'Sup fijo'!$D$163,IF(Q30>'Sup fijo'!$B$162,'Sup fijo'!$D$162,IF(Q30>'Sup fijo'!$B$161,'Sup fijo'!$D$161,IF(Q30>'Sup fijo'!$B$160,'Sup fijo'!$D$160,IF(Q30>'Sup fijo'!$C$159,'Sup fijo'!$D$160,'Sup fijo'!$D$159)))))))","v":140},{"$f":"+IF(R30>'Sup fijo'!$B$165,'Sup fijo'!$D$165,IF(R30>'Sup fijo'!$B$164,'Sup fijo'!$D$164,IF(R30>'Sup fijo'!$B$163,'Sup fijo'!$D$163,IF(R30>'Sup fijo'!$B$162,'Sup fijo'!$D$162,IF(R30>'Sup fijo'!$B$161,'Sup fijo'!$D$161,IF(R30>'Sup fijo'!$B$160,'Sup fijo'!$D$160,IF(R30>'Sup fijo'!$C$159,'Sup fijo'!$D$160,'Sup fijo'!$D$159)))))))","v":140},{"$f":"+IF(S30>'Sup fijo'!$B$165,'Sup fijo'!$D$165,IF(S30>'Sup fijo'!$B$164,'Sup fijo'!$D$164,IF(S30>'Sup fijo'!$B$163,'Sup fijo'!$D$163,IF(S30>'Sup fijo'!$B$162,'Sup fijo'!$D$162,IF(S30>'Sup fijo'!$B$161,'Sup fijo'!$D$161,IF(S30>'Sup fijo'!$B$160,'Sup fijo'!$D$160,IF(S30>'Sup fijo'!$C$159,'Sup fijo'!$D$160,'Sup fijo'!$D$159)))))))","v":140},{"$f":"+IF(T30>'Sup fijo'!$B$165,'Sup fijo'!$D$165,IF(T30>'Sup fijo'!$B$164,'Sup fijo'!$D$164,IF(T30>'Sup fijo'!$B$163,'Sup fijo'!$D$163,IF(T30>'Sup fijo'!$B$162,'Sup fijo'!$D$162,IF(T30>'Sup fijo'!$B$161,'Sup fijo'!$D$161,IF(T30>'Sup fijo'!$B$160,'Sup fijo'!$D$160,IF(T30>'Sup fijo'!$C$159,'Sup fijo'!$D$160,'Sup fijo'!$D$159)))))))","v":140},{"$f":"+IF(U30>'Sup fijo'!$B$165,'Sup fijo'!$D$165,IF(U30>'Sup fijo'!$B$164,'Sup fijo'!$D$164,IF(U30>'Sup fijo'!$B$163,'Sup fijo'!$D$163,IF(U30>'Sup fijo'!$B$162,'Sup fijo'!$D$162,IF(U30>'Sup fijo'!$B$161,'Sup fijo'!$D$161,IF(U30>'Sup fijo'!$B$160,'Sup fijo'!$D$160,IF(U30>'Sup fijo'!$C$159,'Sup fijo'!$D$160,'Sup fijo'!$D$159)))))))","v":140},{"$f":"+IF(V30>'Sup fijo'!$B$165,'Sup fijo'!$D$165,IF(V30>'Sup fijo'!$B$164,'Sup fijo'!$D$164,IF(V30>'Sup fijo'!$B$163,'Sup fijo'!$D$163,IF(V30>'Sup fijo'!$B$162,'Sup fijo'!$D$162,IF(V30>'Sup fijo'!$B$161,'Sup fijo'!$D$161,IF(V30>'Sup fijo'!$B$160,'Sup fijo'!$D$160,IF(V30>'Sup fijo'!$C$159,'Sup fijo'!$D$160,'Sup fijo'!$D$159)))))))","v":140}]
[null,"Porcentaje sobre base imponible",{"$f":"+IF(C30>'Sup fijo'!$B$165,'Sup fijo'!$E$165,IF(C30>'Sup fijo'!$B$164,'Sup fijo'!$E$164,IF(C30>'Sup fijo'!$B$163,'Sup fijo'!$E$163,IF(C30>'Sup fijo'!$B$162,'Sup fijo'!$E$162,IF(C30>'Sup fijo'!$B$161,'Sup fijo'!$E$161,IF(C30>'Sup fijo'!$B$160,'Sup fijo'!$E$160,IF(C30>'Sup fijo'!$C$159,'Sup fijo'!$E$160,'Sup fijo'!$E$159)))))))","v":0.06},{"$f":"+IF(D$30>'Sup fijo'!$B$165,'Sup fijo'!$E$165,IF(D$30>'Sup fijo'!$B$164,'Sup fijo'!$E$164,IF(D$30>'Sup fijo'!$B$163,'Sup fijo'!$E$163,IF(D$30>'Sup fijo'!$B$162,'Sup fijo'!$E$162,IF(D$30>'Sup fijo'!$B$161,'Sup fijo'!$E$161,IF(D$30>'Sup fijo'!$B$160,'Sup fijo'!$E$160,IF(D$30>'Sup fijo'!$C$159,'Sup fijo'!$E$160,'Sup fijo'!$E$159)))))))","v":0.06},{"$f":"+IF(E$30>'Sup fijo'!$B$165,'Sup fijo'!$E$165,IF(E$30>'Sup fijo'!$B$164,'Sup fijo'!$E$164,IF(E$30>'Sup fijo'!$B$163,'Sup fijo'!$E$163,IF(E$30>'Sup fijo'!$B$162,'Sup fijo'!$E$162,IF(E$30>'Sup fijo'!$B$161,'Sup fijo'!$E$161,IF(E$30>'Sup fijo'!$B$160,'Sup fijo'!$E$160,IF(E$30>'Sup fijo'!$C$159,'Sup fijo'!$E$160,'Sup fijo'!$E$159)))))))","v":0.06},{"$f":"+IF(F$30>'Sup fijo'!$B$165,'Sup fijo'!$E$165,IF(F$30>'Sup fijo'!$B$164,'Sup fijo'!$E$164,IF(F$30>'Sup fijo'!$B$163,'Sup fijo'!$E$163,IF(F$30>'Sup fijo'!$B$162,'Sup fijo'!$E$162,IF(F$30>'Sup fijo'!$B$161,'Sup fijo'!$E$161,IF(F$30>'Sup fijo'!$B$160,'Sup fijo'!$E$160,IF(F$30>'Sup fijo'!$C$159,'Sup fijo'!$E$160,'Sup fijo'!$E$159)))))))","v":0.06},{"$f":"+IF(G$30>'Sup fijo'!$B$165,'Sup fijo'!$E$165,IF(G$30>'Sup fijo'!$B$164,'Sup fijo'!$E$164,IF(G$30>'Sup fijo'!$B$163,'Sup fijo'!$E$163,IF(G$30>'Sup fijo'!$B$162,'Sup fijo'!$E$162,IF(G$30>'Sup fijo'!$B$161,'Sup fijo'!$E$161,IF(G$30>'Sup fijo'!$B$160,'Sup fijo'!$E$160,IF(G$30>'Sup fijo'!$C$159,'Sup fijo'!$E$160,'Sup fijo'!$E$159)))))))","v":0.06},{"$f":"+IF(H$30>'Sup fijo'!$B$165,'Sup fijo'!$E$165,IF(H$30>'Sup fijo'!$B$164,'Sup fijo'!$E$164,IF(H$30>'Sup fijo'!$B$163,'Sup fijo'!$E$163,IF(H$30>'Sup fijo'!$B$162,'Sup fijo'!$E$162,IF(H$30>'Sup fijo'!$B$161,'Sup fijo'!$E$161,IF(H$30>'Sup fijo'!$B$160,'Sup fijo'!$E$160,IF(H$30>'Sup fijo'!$C$159,'Sup fijo'!$E$160,'Sup fijo'!$E$159)))))))","v":0.03},{"$f":"+IF(I$30>'Sup fijo'!$B$165,'Sup fijo'!$E$165,IF(I$30>'Sup fijo'!$B$164,'Sup fijo'!$E$164,IF(I$30>'Sup fijo'!$B$163,'Sup fijo'!$E$163,IF(I$30>'Sup fijo'!$B$162,'Sup fijo'!$E$162,IF(I$30>'Sup fijo'!$B$161,'Sup fijo'!$E$161,IF(I$30>'Sup fijo'!$B$160,'Sup fijo'!$E$160,IF(I$30>'Sup fijo'!$C$159,'Sup fijo'!$E$160,'Sup fijo'!$E$159)))))))","v":0.03},{"$f":"+IF(J$30>'Sup fijo'!$B$165,'Sup fijo'!$E$165,IF(J$30>'Sup fijo'!$B$164,'Sup fijo'!$E$164,IF(J$30>'Sup fijo'!$B$163,'Sup fijo'!$E$163,IF(J$30>'Sup fijo'!$B$162,'Sup fijo'!$E$162,IF(J$30>'Sup fijo'!$B$161,'Sup fijo'!$E$161,IF(J$30>'Sup fijo'!$B$160,'Sup fijo'!$E$160,IF(J$30>'Sup fijo'!$C$159,'Sup fijo'!$E$160,'Sup fijo'!$E$159)))))))","v":0.03},{"$f":"+IF(K$30>'Sup fijo'!$B$165,'Sup fijo'!$E$165,IF(K$30>'Sup fijo'!$B$164,'Sup fijo'!$E$164,IF(K$30>'Sup fijo'!$B$163,'Sup fijo'!$E$163,IF(K$30>'Sup fijo'!$B$162,'Sup fijo'!$E$162,IF(K$30>'Sup fijo'!$B$161,'Sup fijo'!$E$161,IF(K$30>'Sup fijo'!$B$160,'Sup fijo'!$E$160,IF(K$30>'Sup fijo'!$C$159,'Sup fijo'!$E$160,'Sup fijo'!$E$159)))))))","v":0.03},{"$f":"+IF(L$30>'Sup fijo'!$B$165,'Sup fijo'!$E$165,IF(L$30>'Sup fijo'!$B$164,'Sup fijo'!$E$164,IF(L$30>'Sup fijo'!$B$163,'Sup fijo'!$E$163,IF(L$30>'Sup fijo'!$B$162,'Sup fijo'!$E$162,IF(L$30>'Sup fijo'!$B$161,'Sup fijo'!$E$161,IF(L$30>'Sup fijo'!$B$160,'Sup fijo'!$E$160,IF(L$30>'Sup fijo'!$C$159,'Sup fijo'!$E$160,'Sup fijo'!$E$159)))))))","v":0.03},{"$f":"+IF(M$30>'Sup fijo'!$B$165,'Sup fijo'!$E$165,IF(M$30>'Sup fijo'!$B$164,'Sup fijo'!$E$164,IF(M$30>'Sup fijo'!$B$163,'Sup fijo'!$E$163,IF(M$30>'Sup fijo'!$B$162,'Sup fijo'!$E$162,IF(M$30>'Sup fijo'!$B$161,'Sup fijo'!$E$161,IF(M$30>'Sup fijo'!$B$160,'Sup fijo'!$E$160,IF(M$30>'Sup fijo'!$C$159,'Sup fijo'!$E$160,'Sup fijo'!$E$159)))))))","v":0.03},{"$f":"+IF(N$30>'Sup fijo'!$B$165,'Sup fijo'!$E$165,IF(N$30>'Sup fijo'!$B$164,'Sup fijo'!$E$164,IF(N$30>'Sup fijo'!$B$163,'Sup fijo'!$E$163,IF(N$30>'Sup fijo'!$B$162,'Sup fijo'!$E$162,IF(N$30>'Sup fijo'!$B$161,'Sup fijo'!$E$161,IF(N$30>'Sup fijo'!$B$160,'Sup fijo'!$E$160,IF(N$30>'Sup fijo'!$C$159,'Sup fijo'!$E$160,'Sup fijo'!$E$159)))))))","v":0.03},{"$f":"+IF(O$30>'Sup fijo'!$B$165,'Sup fijo'!$E$165,IF(O$30>'Sup fijo'!$B$164,'Sup fijo'!$E$164,IF(O$30>'Sup fijo'!$B$163,'Sup fijo'!$E$163,IF(O$30>'Sup fijo'!$B$162,'Sup fijo'!$E$162,IF(O$30>'Sup fijo'!$B$161,'Sup fijo'!$E$161,IF(O$30>'Sup fijo'!$B$160,'Sup fijo'!$E$160,IF(O$30>'Sup fijo'!$C$159,'Sup fijo'!$E$160,'Sup fijo'!$E$159)))))))","v":0.03},{"$f":"+IF(P$30>'Sup fijo'!$B$165,'Sup fijo'!$E$165,IF(P$30>'Sup fijo'!$B$164,'Sup fijo'!$E$164,IF(P$30>'Sup fijo'!$B$163,'Sup fijo'!$E$163,IF(P$30>'Sup fijo'!$B$162,'Sup fijo'!$E$162,IF(P$30>'Sup fijo'!$B$161,'Sup fijo'!$E$161,IF(P$30>'Sup fijo'!$B$160,'Sup fijo'!$E$160,IF(P$30>'Sup fijo'!$C$159,'Sup fijo'!$E$160,'Sup fijo'!$E$159)))))))","v":0.03},{"$f":"+IF(Q$30>'Sup fijo'!$B$165,'Sup fijo'!$E$165,IF(Q$30>'Sup fijo'!$B$164,'Sup fijo'!$E$164,IF(Q$30>'Sup fijo'!$B$163,'Sup fijo'!$E$163,IF(Q$30>'Sup fijo'!$B$162,'Sup fijo'!$E$162,IF(Q$30>'Sup fijo'!$B$161,'Sup fijo'!$E$161,IF(Q$30>'Sup fijo'!$B$160,'Sup fijo'!$E$160,IF(Q$30>'Sup fijo'!$C$159,'Sup fijo'!$E$160,'Sup fijo'!$E$159)))))))","v":0.03},{"$f":"+IF(R$30>'Sup fijo'!$B$165,'Sup fijo'!$E$165,IF(R$30>'Sup fijo'!$B$164,'Sup fijo'!$E$164,IF(R$30>'Sup fijo'!$B$163,'Sup fijo'!$E$163,IF(R$30>'Sup fijo'!$B$162,'Sup fijo'!$E$162,IF(R$30>'Sup fijo'!$B$161,'Sup fijo'!$E$161,IF(R$30>'Sup fijo'!$B$160,'Sup fijo'!$E$160,IF(R$30>'Sup fijo'!$C$159,'Sup fijo'!$E$160,'Sup fijo'!$E$159)))))))","v":0.03},{"$f":"+IF(S$30>'Sup fijo'!$B$165,'Sup fijo'!$E$165,IF(S$30>'Sup fijo'!$B$164,'Sup fijo'!$E$164,IF(S$30>'Sup fijo'!$B$163,'Sup fijo'!$E$163,IF(S$30>'Sup fijo'!$B$162,'Sup fijo'!$E$162,IF(S$30>'Sup fijo'!$B$161,'Sup fijo'!$E$161,IF(S$30>'Sup fijo'!$B$160,'Sup fijo'!$E$160,IF(S$30>'Sup fijo'!$C$159,'Sup fijo'!$E$160,'Sup fijo'!$E$159)))))))","v":0.03},{"$f":"+IF(T$30>'Sup fijo'!$B$165,'Sup fijo'!$E$165,IF(T$30>'Sup fijo'!$B$164,'Sup fijo'!$E$164,IF(T$30>'Sup fijo'!$B$163,'Sup fijo'!$E$163,IF(T$30>'Sup fijo'!$B$162,'Sup fijo'!$E$162,IF(T$30>'Sup fijo'!$B$161,'Sup fijo'!$E$161,IF(T$30>'Sup fijo'!$B$160,'Sup fijo'!$E$160,IF(T$30>'Sup fijo'!$C$159,'Sup fijo'!$E$160,'Sup fijo'!$E$159)))))))","v":0.03},{"$f":"+IF(U$30>'Sup fijo'!$B$165,'Sup fijo'!$E$165,IF(U$30>'Sup fijo'!$B$164,'Sup fijo'!$E$164,IF(U$30>'Sup fijo'!$B$163,'Sup fijo'!$E$163,IF(U$30>'Sup fijo'!$B$162,'Sup fijo'!$E$162,IF(U$30>'Sup fijo'!$B$161,'Sup fijo'!$E$161,IF(U$30>'Sup fijo'!$B$160,'Sup fijo'!$E$160,IF(U$30>'Sup fijo'!$C$159,'Sup fijo'!$E$160,'Sup fijo'!$E$159)))))))","v":0.03},{"$f":"+IF(V$30>'Sup fijo'!$B$165,'Sup fijo'!$E$165,IF(V$30>'Sup fijo'!$B$164,'Sup fijo'!$E$164,IF(V$30>'Sup fijo'!$B$163,'Sup fijo'!$E$163,IF(V$30>'Sup fijo'!$B$162,'Sup fijo'!$E$162,IF(V$30>'Sup fijo'!$B$161,'Sup fijo'!$E$161,IF(V$30>'Sup fijo'!$B$160,'Sup fijo'!$E$160,IF(V$30>'Sup fijo'!$C$159,'Sup fijo'!$E$160,'Sup fijo'!$E$159)))))))","v":0.03}]
[]
[null,"Impuesto  vehículo motorizado",{"$f":"(+C32*C35+C34)-(+C32*C35+C34)*'Sup fijo'!$C$166","v":1299.9879999999994},{"$f":"(+D32*D35+D34)-(+D32*D35+D34)*'Sup fijo'!$C$166","v":1036.4679999999998},{"$f":"(+E32*E35+E34)-(+E32*E35+E34)*'Sup fijo'!$C$166","v":772.94799999999987},{"$f":"(+F32*F35+F34)-(+F32*F35+F34)*'Sup fijo'!$C$166","v":509.42799999999988},{"$f":"(+G32*G35+G34)-(+G32*G35+G34)*'Sup fijo'!$C$166","v":437.9079999999999},{"$f":"(+H32*H35+H34)-(+H32*H35+H34)*'Sup fijo'!$C$166","v":53.193999999999988},{"$f":"(+I32*I35+I34)-(+I32*I35+I34)*'Sup fijo'!$C$166","v":53.193999999999988},{"$f":"(+J32*J35+J34)-(+J32*J35+J34)*'Sup fijo'!$C$166","v":53.193999999999988},{"$f":"(+K32*K35+K34)-(+K32*K35+K34)*'Sup fijo'!$C$166","v":53.193999999999988},{"$f":"(+L32*L35+L34)-(+L32*L35+L34)*'Sup fijo'!$C$166","v":53.193999999999988},{"$f":"(+M32*M35+M34)-(+M32*M35+M34)*'Sup fijo'!$C$166","v":53.193999999999988},{"$f":"(+N32*N35+N34)-(+N32*N35+N34)*'Sup fijo'!$C$166","v":53.193999999999988},{"$f":"(+O32*O35+O34)-(+O32*O35+O34)*'Sup fijo'!$C$166","v":53.193999999999988},{"$f":"(+P32*P35+P34)-(+P32*P35+P34)*'Sup fijo'!$C$166","v":53.193999999999988},{"$f":"(+Q32*Q35+Q34)-(+Q32*Q35+Q34)*'Sup fijo'!$C$166","v":53.193999999999988},{"$f":"(+R32*R35+R34)-(+R32*R35+R34)*'Sup fijo'!$C$166","v":53.193999999999988},{"$f":"(+S32*S35+S34)-(+S32*S35+S34)*'Sup fijo'!$C$166","v":53.193999999999988},{"$f":"(+T32*T35+T34)-(+T32*T35+T34)*'Sup fijo'!$C$166","v":53.193999999999988},{"$f":"(+U32*U35+U34)-(+U32*U35+U34)*'Sup fijo'!$C$166","v":53.193999999999988},{"$f":"(+V32*V35+V34)-(+V32*V35+V34)*'Sup fijo'!$C$166","v":101.19999999999999}]
[null,"Impuesto  rodaje",{"$f":"+IF(C30>'Sup fijo'!$B$177,'Sup fijo'!$D$177,IF(C30>'Sup fijo'!$B$176,'Sup fijo'!$D$176,IF(C30>'Sup fijo'!$B$175,'Sup fijo'!$D$175,IF(C30>'Sup fijo'!$B$174,'Sup fijo'!$D$174,IF(C30>'Sup fijo'!$B$173,'Sup fijo'!$D$173,IF(C30>'Sup fijo'!$B$172,'Sup fijo'!$D$172,IF(C30>'Sup fijo'!$B$171,'Sup fijo'!$D$171,'Sup fijo'!$D$170)))))))","v":70},{"$f":"+IF(D30>'Sup fijo'!$B$177,'Sup fijo'!$D$177,IF(D30>'Sup fijo'!$B$176,'Sup fijo'!$D$176,IF(D30>'Sup fijo'!$B$175,'Sup fijo'!$D$175,IF(D30>'Sup fijo'!$B$174,'Sup fijo'!$D$174,IF(D30>'Sup fijo'!$B$173,'Sup fijo'!$D$173,IF(D30>'Sup fijo'!$B$172,'Sup fijo'!$D$172,IF(D30>'Sup fijo'!$B$171,'Sup fijo'!$D$171,'Sup fijo'!$D$170)))))))","v":70},{"$f":"+IF(E30>'Sup fijo'!$B$177,'Sup fijo'!$D$177,IF(E30>'Sup fijo'!$B$176,'Sup fijo'!$D$176,IF(E30>'Sup fijo'!$B$175,'Sup fijo'!$D$175,IF(E30>'Sup fijo'!$B$174,'Sup fijo'!$D$174,IF(E30>'Sup fijo'!$B$173,'Sup fijo'!$D$173,IF(E30>'Sup fijo'!$B$172,'Sup fijo'!$D$172,IF(E30>'Sup fijo'!$B$171,'Sup fijo'!$D$171,'Sup fijo'!$D$170)))))))","v":70},{"$f":"+IF(F30>'Sup fijo'!$B$177,'Sup fijo'!$D$177,IF(F30>'Sup fijo'!$B$176,'Sup fijo'!$D$176,IF(F30>'Sup fijo'!$B$175,'Sup fijo'!$D$175,IF(F30>'Sup fijo'!$B$174,'Sup fijo'!$D$174,IF(F30>'Sup fijo'!$B$173,'Sup fijo'!$D$173,IF(F30>'Sup fijo'!$B$172,'Sup fijo'!$D$172,IF(F30>'Sup fijo'!$B$171,'Sup fijo'!$D$171,'Sup fijo'!$D$170)))))))","v":70},{"$f":"+IF(G30>'Sup fijo'!$B$177,'Sup fijo'!$D$177,IF(G30>'Sup fijo'!$B$176,'Sup fijo'!$D$176,IF(G30>'Sup fijo'!$B$175,'Sup fijo'!$D$175,IF(G30>'Sup fijo'!$B$174,'Sup fijo'!$D$174,IF(G30>'Sup fijo'!$B$173,'Sup fijo'!$D$173,IF(G30>'Sup fijo'!$B$172,'Sup fijo'!$D$172,IF(G30>'Sup fijo'!$B$171,'Sup fijo'!$D$171,'Sup fijo'!$D$170)))))))","v":50},{"$f":"+IF(H30>'Sup fijo'!$B$177,'Sup fijo'!$D$177,IF(H30>'Sup fijo'!$B$176,'Sup fijo'!$D$176,IF(H30>'Sup fijo'!$B$175,'Sup fijo'!$D$175,IF(H30>'Sup fijo'!$B$174,'Sup fijo'!$D$174,IF(H30>'Sup fijo'!$B$173,'Sup fijo'!$D$173,IF(H30>'Sup fijo'!$B$172,'Sup fijo'!$D$172,IF(H30>'Sup fijo'!$B$171,'Sup fijo'!$D$171,'Sup fijo'!$D$170)))))))","v":20},{"$f":"+IF(I30>'Sup fijo'!$B$177,'Sup fijo'!$D$177,IF(I30>'Sup fijo'!$B$176,'Sup fijo'!$D$176,IF(I30>'Sup fijo'!$B$175,'Sup fijo'!$D$175,IF(I30>'Sup fijo'!$B$174,'Sup fijo'!$D$174,IF(I30>'Sup fijo'!$B$173,'Sup fijo'!$D$173,IF(I30>'Sup fijo'!$B$172,'Sup fijo'!$D$172,IF(I30>'Sup fijo'!$B$171,'Sup fijo'!$D$171,'Sup fijo'!$D$170)))))))","v":20},{"$f":"+IF(J30>'Sup fijo'!$B$177,'Sup fijo'!$D$177,IF(J30>'Sup fijo'!$B$176,'Sup fijo'!$D$176,IF(J30>'Sup fijo'!$B$175,'Sup fijo'!$D$175,IF(J30>'Sup fijo'!$B$174,'Sup fijo'!$D$174,IF(J30>'Sup fijo'!$B$173,'Sup fijo'!$D$173,IF(J30>'Sup fijo'!$B$172,'Sup fijo'!$D$172,IF(J30>'Sup fijo'!$B$171,'Sup fijo'!$D$171,'Sup fijo'!$D$170)))))))","v":20},{"$f":"+IF(K30>'Sup fijo'!$B$177,'Sup fijo'!$D$177,IF(K30>'Sup fijo'!$B$176,'Sup fijo'!$D$176,IF(K30>'Sup fijo'!$B$175,'Sup fijo'!$D$175,IF(K30>'Sup fijo'!$B$174,'Sup fijo'!$D$174,IF(K30>'Sup fijo'!$B$173,'Sup fijo'!$D$173,IF(K30>'Sup fijo'!$B$172,'Sup fijo'!$D$172,IF(K30>'Sup fijo'!$B$171,'Sup fijo'!$D$171,'Sup fijo'!$D$170)))))))","v":20},{"$f":"+IF(L30>'Sup fijo'!$B$177,'Sup fijo'!$D$177,IF(L30>'Sup fijo'!$B$176,'Sup fijo'!$D$176,IF(L30>'Sup fijo'!$B$175,'Sup fijo'!$D$175,IF(L30>'Sup fijo'!$B$174,'Sup fijo'!$D$174,IF(L30>'Sup fijo'!$B$173,'Sup fijo'!$D$173,IF(L30>'Sup fijo'!$B$172,'Sup fijo'!$D$172,IF(L30>'Sup fijo'!$B$171,'Sup fijo'!$D$171,'Sup fijo'!$D$170)))))))","v":20},{"$f":"+IF(M30>'Sup fijo'!$B$177,'Sup fijo'!$D$177,IF(M30>'Sup fijo'!$B$176,'Sup fijo'!$D$176,IF(M30>'Sup fijo'!$B$175,'Sup fijo'!$D$175,IF(M30>'Sup fijo'!$B$174,'Sup fijo'!$D$174,IF(M30>'Sup fijo'!$B$173,'Sup fijo'!$D$173,IF(M30>'Sup fijo'!$B$172,'Sup fijo'!$D$172,IF(M30>'Sup fijo'!$B$171,'Sup fijo'!$D$171,'Sup fijo'!$D$170)))))))","v":20},{"$f":"+IF(N30>'Sup fijo'!$B$177,'Sup fijo'!$D$177,IF(N30>'Sup fijo'!$B$176,'Sup fijo'!$D$176,IF(N30>'Sup fijo'!$B$175,'Sup fijo'!$D$175,IF(N30>'Sup fijo'!$B$174,'Sup fijo'!$D$174,IF(N30>'Sup fijo'!$B$173,'Sup fijo'!$D$173,IF(N30>'Sup fijo'!$B$172,'Sup fijo'!$D$172,IF(N30>'Sup fijo'!$B$171,'Sup fijo'!$D$171,'Sup fijo'!$D$170)))))))","v":20},{"$f":"+IF(O30>'Sup fijo'!$B$177,'Sup fijo'!$D$177,IF(O30>'Sup fijo'!$B$176,'Sup fijo'!$D$176,IF(O30>'Sup fijo'!$B$175,'Sup fijo'!$D$175,IF(O30>'Sup fijo'!$B$174,'Sup fijo'!$D$174,IF(O30>'Sup fijo'!$B$173,'Sup fijo'!$D$173,IF(O30>'Sup fijo'!$B$172,'Sup fijo'!$D$172,IF(O30>'Sup fijo'!$B$171,'Sup fijo'!$D$171,'Sup fijo'!$D$170)))))))","v":20},{"$f":"+IF(P30>'Sup fijo'!$B$177,'Sup fijo'!$D$177,IF(P30>'Sup fijo'!$B$176,'Sup fijo'!$D$176,IF(P30>'Sup fijo'!$B$175,'Sup fijo'!$D$175,IF(P30>'Sup fijo'!$B$174,'Sup fijo'!$D$174,IF(P30>'Sup fijo'!$B$173,'Sup fijo'!$D$173,IF(P30>'Sup fijo'!$B$172,'Sup fijo'!$D$172,IF(P30>'Sup fijo'!$B$171,'Sup fijo'!$D$171,'Sup fijo'!$D$170)))))))","v":20},{"$f":"+IF(Q30>'Sup fijo'!$B$177,'Sup fijo'!$D$177,IF(Q30>'Sup fijo'!$B$176,'Sup fijo'!$D$176,IF(Q30>'Sup fijo'!$B$175,'Sup fijo'!$D$175,IF(Q30>'Sup fijo'!$B$174,'Sup fijo'!$D$174,IF(Q30>'Sup fijo'!$B$173,'Sup fijo'!$D$173,IF(Q30>'Sup fijo'!$B$172,'Sup fijo'!$D$172,IF(Q30>'Sup fijo'!$B$171,'Sup fijo'!$D$171,'Sup fijo'!$D$170)))))))","v":20},{"$f":"+IF(R30>'Sup fijo'!$B$177,'Sup fijo'!$D$177,IF(R30>'Sup fijo'!$B$176,'Sup fijo'!$D$176,IF(R30>'Sup fijo'!$B$175,'Sup fijo'!$D$175,IF(R30>'Sup fijo'!$B$174,'Sup fijo'!$D$174,IF(R30>'Sup fijo'!$B$173,'Sup fijo'!$D$173,IF(R30>'Sup fijo'!$B$172,'Sup fijo'!$D$172,IF(R30>'Sup fijo'!$B$171,'Sup fijo'!$D$171,'Sup fijo'!$D$170)))))))","v":20},{"$f":"+IF(S30>'Sup fijo'!$B$177,'Sup fijo'!$D$177,IF(S30>'Sup fijo'!$B$176,'Sup fijo'!$D$176,IF(S30>'Sup fijo'!$B$175,'Sup fijo'!$D$175,IF(S30>'Sup fijo'!$B$174,'Sup fijo'!$D$174,IF(S30>'Sup fijo'!$B$173,'Sup fijo'!$D$173,IF(S30>'Sup fijo'!$B$172,'Sup fijo'!$D$172,IF(S30>'Sup fijo'!$B$171,'Sup fijo'!$D$171,'Sup fijo'!$D$170)))))))","v":20},{"$f":"+IF(T30>'Sup fijo'!$B$177,'Sup fijo'!$D$177,IF(T30>'Sup fijo'!$B$176,'Sup fijo'!$D$176,IF(T30>'Sup fijo'!$B$175,'Sup fijo'!$D$175,IF(T30>'Sup fijo'!$B$174,'Sup fijo'!$D$174,IF(T30>'Sup fijo'!$B$173,'Sup fijo'!$D$173,IF(T30>'Sup fijo'!$B$172,'Sup fijo'!$D$172,IF(T30>'Sup fijo'!$B$171,'Sup fijo'!$D$171,'Sup fijo'!$D$170)))))))","v":20},{"$f":"+IF(U30>'Sup fijo'!$B$177,'Sup fijo'!$D$177,IF(U30>'Sup fijo'!$B$176,'Sup fijo'!$D$176,IF(U30>'Sup fijo'!$B$175,'Sup fijo'!$D$175,IF(U30>'Sup fijo'!$B$174,'Sup fijo'!$D$174,IF(U30>'Sup fijo'!$B$173,'Sup fijo'!$D$173,IF(U30>'Sup fijo'!$B$172,'Sup fijo'!$D$172,IF(U30>'Sup fijo'!$B$171,'Sup fijo'!$D$171,'Sup fijo'!$D$170)))))))","v":20},{"$f":"+IF(V30>'Sup fijo'!$B$177,'Sup fijo'!$D$177,IF(V30>'Sup fijo'!$B$176,'Sup fijo'!$D$176,IF(V30>'Sup fijo'!$B$175,'Sup fijo'!$D$175,IF(V30>'Sup fijo'!$B$174,'Sup fijo'!$D$174,IF(V30>'Sup fijo'!$B$173,'Sup fijo'!$D$173,IF(V30>'Sup fijo'!$B$172,'Sup fijo'!$D$172,IF(V30>'Sup fijo'!$B$171,'Sup fijo'!$D$171,'Sup fijo'!$D$170)))))))","v":20}]
[null,"Sub-Total ",{"$f":"+C38+C37","v":1369.9879999999994},1106.4679999999998,842.94799999999987,579.42799999999988,487.9079999999999,73.193999999999988,73.193999999999988,73.193999999999988,73.193999999999988,73.193999999999988,73.193999999999988,73.193999999999988,73.193999999999988,73.193999999999988,73.193999999999988,73.193999999999988,73.193999999999988,73.193999999999988,73.193999999999988,121.19999999999999]
[]
[null,{"$f":"+B22","v":"Valor Revisión Anual "},{"$f":"+'Sup fijo'!$D$180*(1+'Sup Generales'!C$8)","v":71.680000000000007},{"$f":"+'Sup fijo'!$D$180*(1+'Sup Generales'!D$8)","v":72.826880000000003},{"$f":"+'Sup fijo'!$D$180*(1+'Sup Generales'!E$8)","v":74.720378879999998},{"$f":"+'Sup fijo'!$D$180*(1+'Sup Generales'!F$8)","v":75.043170916761611},{"$f":"+'Sup fijo'!$D$180*(1+'Sup Generales'!G$8)","v":75.245787478236863},{"$f":"+'Sup fijo'!$D$180*(1+'Sup Generales'!H$8)","v":75.749934254341042},{"$f":"+'Sup fijo'!$D$180*(1+'Sup Generales'!I$8)","v":77.220335165635632},{"$f":"+'Sup fijo'!$D$180*(1+'Sup Generales'!J$8)","v":78.560409622693669},{"$f":"+'Sup fijo'!$D$180*(1+'Sup Generales'!K$8)","v":79.704299821439108},{"$f":"+'Sup fijo'!$D$180*(1+'Sup Generales'!L$8)","v":80.770801146450964},{"$f":"+'Sup fijo'!$D$180*(1+'Sup Generales'!M$8)","v":81.825127915973454},{"$f":"+'Sup fijo'!$D$180*(1+'Sup Generales'!N$8)","v":82.760796633695918},{"$f":"+'Sup fijo'!$D$180*(1+'Sup Generales'!O$8)","v":83.780769883371832},{"$f":"+'Sup fijo'!$D$180*(1+'Sup Generales'!P$8)","v":84.914105603285279},{"$f":"+'Sup fijo'!$D$180*(1+'Sup Generales'!Q$8)","v":86.135240192007586},{"$f":"+'Sup fijo'!$D$180*(1+'Sup Generales'!R$8)","v":87.319773552429567},{"$f":"+'Sup fijo'!$D$180*(1+'Sup Generales'!S$8)","v":88.481282126806974},{"$f":"+'Sup fijo'!$D$180*(1+'Sup Generales'!T$8)","v":89.644317611205338},{"$f":"+'Sup fijo'!$D$180*(1+'Sup Generales'!U$8)","v":90.819992645255638},{"$f":"+'Sup fijo'!$D$180*(1+'Sup Generales'!V$8)","v":92.01178550364645}]
[null,{"$f":"+B23","v":"Valor SPPAT"},{"$f":"+'Sup fijo'!$D$181*(1+'Sup Generales'!C$8)","v":79.872},{"$f":"+'Sup fijo'!$D$181*(1+'Sup Generales'!D$8)","v":81.149951999999999},{"$f":"+'Sup fijo'!$D$181*(1+'Sup Generales'!E$8)","v":83.259850752000006},{"$f":"+'Sup fijo'!$D$181*(1+'Sup Generales'!F$8)","v":83.619533307248659},{"$f":"+'Sup fijo'!$D$181*(1+'Sup Generales'!G$8)","v":83.845306047178227},{"$f":"+'Sup fijo'!$D$181*(1+'Sup Generales'!H$8)","v":84.407069597694303},{"$f":"+'Sup fijo'!$D$181*(1+'Sup Generales'!I$8)","v":86.045516327422561},{"$f":"+'Sup fijo'!$D$181*(1+'Sup Generales'!J$8)","v":87.538742151001514},{"$f":"+'Sup fijo'!$D$181*(1+'Sup Generales'!K$8)","v":88.813362658175009},{"$f":"+'Sup fijo'!$D$181*(1+'Sup Generales'!L$8)","v":90.001749848902506},{"$f":"+'Sup fijo'!$D$181*(1+'Sup Generales'!M$8)","v":91.176571106370417},{"$f":"+'Sup fijo'!$D$181*(1+'Sup Generales'!N$8)","v":92.219173391832598},{"$f":"+'Sup fijo'!$D$181*(1+'Sup Generales'!O$8)","v":93.355715012900049},{"$f":"+'Sup fijo'!$D$181*(1+'Sup Generales'!P$8)","v":94.618574815089303},{"$f":"+'Sup fijo'!$D$181*(1+'Sup Generales'!Q$8)","v":95.979267642522743},{"$f":"+'Sup fijo'!$D$181*(1+'Sup Generales'!R$8)","v":97.299176244135793},{"$f":"+'Sup fijo'!$D$181*(1+'Sup Generales'!S$8)","v":98.593428655584916},{"$f":"+'Sup fijo'!$D$181*(1+'Sup Generales'!T$8)","v":99.889382481057382},{"$f":"+'Sup fijo'!$D$181*(1+'Sup Generales'!U$8)","v":101.199420376142},{"$f":"+'Sup fijo'!$D$181*(1+'Sup Generales'!V$8)","v":102.52741813263462}]
[null,{"$f":"+B24","v":"Valor permiso de operación"},{"$f":"+'Sup fijo'!$D$182*(1+'Sup Generales'!C$8)","v":25.6},{"$f":"+'Sup fijo'!$D$182*(1+'Sup Generales'!D$8)","v":26.009599999999999},{"$f":"+'Sup fijo'!$D$182*(1+'Sup Generales'!E$8)","v":26.685849600000001},{"$f":"+'Sup fijo'!$D$182*(1+'Sup Generales'!F$8)","v":26.801132470272005},{"$f":"+'Sup fijo'!$D$182*(1+'Sup Generales'!G$8)","v":26.873495527941738},{"$f":"+'Sup fijo'!$D$182*(1+'Sup Generales'!H$8)","v":27.053547947978945},{"$f":"+'Sup fijo'!$D$182*(1+'Sup Generales'!I$8)","v":27.578691130584154},{"$f":"+'Sup fijo'!$D$182*(1+'Sup Generales'!J$8)","v":28.057289150962024},{"$f":"+'Sup fijo'!$D$182*(1+'Sup Generales'!K$8)","v":28.46582136479968},{"$f":"+'Sup fijo'!$D$182*(1+'Sup Generales'!L$8)","v":28.846714695161058},{"$f":"+'Sup fijo'!$D$182*(1+'Sup Generales'!M$8)","v":29.223259969990519},{"$f":"+'Sup fijo'!$D$182*(1+'Sup Generales'!N$8)","v":29.557427369177113},{"$f":"+'Sup fijo'!$D$182*(1+'Sup Generales'!O$8)","v":29.921703529775655},{"$f":"+'Sup fijo'!$D$182*(1+'Sup Generales'!P$8)","v":30.326466286887598},{"$f":"+'Sup fijo'!$D$182*(1+'Sup Generales'!Q$8)","v":30.762585782859851},{"$f":"+'Sup fijo'!$D$182*(1+'Sup Generales'!R$8)","v":31.185633411581986},{"$f":"+'Sup fijo'!$D$182*(1+'Sup Generales'!S$8)","v":31.60045790243106},{"$f":"+'Sup fijo'!$D$182*(1+'Sup Generales'!T$8)","v":32.015827718287618},{"$f":"+'Sup fijo'!$D$182*(1+'Sup Generales'!U$8)","v":32.435711659019873},{"$f":"+'Sup fijo'!$D$182*(1+'Sup Generales'!V$8)","v":32.861351965588021}]
[]
[null,"Costo año (USD)",{"$f":"+C39+C43+C42+C41","v":1547.1399999999994},{"$f":"(D39+D43+D42+D41)*IF(D$5>'Sup fijo'!$H$52,0,1)","v":1286.454432},{"$f":"(E39+E43+E42+E41)*IF(E$5>'Sup fijo'!$H$52,0,1)","v":1027.6140792319998},{"$f":"(F39+F43+F42+F41)*IF(F$5>'Sup fijo'!$H$52,0,1)","v":764.89183669428212},{"$f":"(G39+G43+G42+G41)*IF(G$5>'Sup fijo'!$H$52,0,1)","v":673.87258905335671},{"$f":"(H39+H43+H42+H41)*IF(H$5>'Sup fijo'!$H$52,0,1)","v":260.40455180001425},{"$f":"(I39+I43+I42+I41)*IF(I$5>'Sup fijo'!$H$52,0,1)","v":264.03854262364234},{"$f":"(J39+J43+J42+J41)*IF(J$5>'Sup fijo'!$H$52,0,1)","v":267.35044092465716},{"$f":"(K39+K43+K42+K41)*IF(K$5>'Sup fijo'!$H$52,0,1)","v":270.17748384441381},{"$f":"(L39+L43+L42+L41)*IF(L$5>'Sup fijo'!$H$52,0,1)","v":272.81326569051453},{"$f":"(M39+M43+M42+M41)*IF(M$5>'Sup fijo'!$H$52,0,1)","v":275.41895899233435},{"$f":"(N39+N43+N42+N41)*IF(N$5>'Sup fijo'!$H$52,0,1)","v":277.7313973947056},{"$f":"(O39+O43+O42+O41)*IF(O$5>'Sup fijo'!$H$52,0,1)","v":0},{"$f":"(P39+P43+P42+P41)*IF(P$5>'Sup fijo'!$H$52,0,1)","v":0},{"$f":"(Q39+Q43+Q42+Q41)*IF(Q$5>'Sup fijo'!$H$52,0,1)","v":0},{"$f":"(R39+R43+R42+R41)*IF(R$5>'Sup fijo'!$H$52,0,1)","v":0},{"$f":"(S39+S43+S42+S41)*IF(S$5>'Sup fijo'!$H$52,0,1)","v":0},{"$f":"(T39+T43+T42+T41)*IF(T$5>'Sup fijo'!$H$52,0,1)","v":0},{"$f":"(U39+U43+U42+U41)*IF(U$5>'Sup fijo'!$H$52,0,1)","v":0},{"$f":"(V39+V43+V42+V41)*IF(V$5>'Sup fijo'!$H$52,0,1)","v":0}]
[]
[null,null,1,{"$f":"+C47+1","v":2},{"$f":"+D47+1","v":3},4,5,6,7,8,9,10,11,12,13,14,15,16,17,18,19,20]
[null,{"$f":"'Sup fijo'!B22","v":"Intracantonal Combinado"}]
[null,"Valor vehículo ",{"$f":"'CAPEX Vehículo'!C36","v":122000},{"$f":"C49-C50","v":100040},{"$f":"D49-D50","v":78080},56120,34160,12200,12200,12200,12200,12200,12200,12200,12200,12200,12200,12200,12200,12200,12200,12200]
[null,"Depreciación tributaria ",{"$f":"+((C49*(1-E88))/E87)","v":21960},{"$f":"IF(D47<=$E$87,C50,0)","v":21960},{"$f":"IF(E47<=$E$87,D50,0)","v":21960},21960,21960,0,0,0,0,0,0,0,0,0,0,0,0,0,0,0]
[null,"Base imponible ",{"$f":"C49-(+IF(D$11>'Sup fijo'!$B$165,'Sup fijo'!$B$165,IF(D$11>'Sup fijo'!$B$164,'Sup fijo'!$B$164,IF(D$11>'Sup fijo'!$B$163,'Sup fijo'!$B$163,IF(D$11>'Sup fijo'!$B$162,'Sup fijo'!$B$162,IF(D$11>'Sup fijo'!$B$161,'Sup fijo'!$B$161,IF(D$11>'Sup fijo'!$B$160,'Sup fijo'!$B$160,IF(D$11>'Sup fijo'!$C$159,'Sup fijo'!$B$160,'Sup fijo'!$B$159))))))))","v":97999},{"$f":"D49-(+IF(E$11>'Sup fijo'!$B$165,'Sup fijo'!$B$165,IF(E$11>'Sup fijo'!$B$164,'Sup fijo'!$B$164,IF(E$11>'Sup fijo'!$B$163,'Sup fijo'!$B$163,IF(E$11>'Sup fijo'!$B$162,'Sup fijo'!$B$162,IF(E$11>'Sup fijo'!$B$161,'Sup fijo'!$B$161,IF(E$11>'Sup fijo'!$B$160,'Sup fijo'!$B$160,IF(E$11>'Sup fijo'!$C$159,'Sup fijo'!$B$160,'Sup fijo'!$B$159))))))))","v":76039},{"$f":"E49-(+IF(F$11>'Sup fijo'!$B$165,'Sup fijo'!$B$165,IF(F$11>'Sup fijo'!$B$164,'Sup fijo'!$B$164,IF(F$11>'Sup fijo'!$B$163,'Sup fijo'!$B$163,IF(F$11>'Sup fijo'!$B$162,'Sup fijo'!$B$162,IF(F$11>'Sup fijo'!$B$161,'Sup fijo'!$B$161,IF(F$11>'Sup fijo'!$B$160,'Sup fijo'!$B$160,IF(F$11>'Sup fijo'!$C$159,'Sup fijo'!$B$160,'Sup fijo'!$B$159))))))))","v":54079},{"$f":"F49-(+IF(G$11>'Sup fijo'!$B$165,'Sup fijo'!$B$165,IF(G$11>'Sup fijo'!$B$164,'Sup fijo'!$B$164,IF(G$11>'Sup fijo'!$B$163,'Sup fijo'!$B$163,IF(G$11>'Sup fijo'!$B$162,'Sup fijo'!$B$162,IF(G$11>'Sup fijo'!$B$161,'Sup fijo'!$B$161,IF(G$11>'Sup fijo'!$B$160,'Sup fijo'!$B$160,IF(G$11>'Sup fijo'!$C$159,'Sup fijo'!$B$160,'Sup fijo'!$B$159))))))))","v":32119},{"$f":"G49-(+IF(H$11>'Sup fijo'!$B$165,'Sup fijo'!$B$165,IF(H$11>'Sup fijo'!$B$164,'Sup fijo'!$B$164,IF(H$11>'Sup fijo'!$B$163,'Sup fijo'!$B$163,IF(H$11>'Sup fijo'!$B$162,'Sup fijo'!$B$162,IF(H$11>'Sup fijo'!$B$161,'Sup fijo'!$B$161,IF(H$11>'Sup fijo'!$B$160,'Sup fijo'!$B$160,IF(H$11>'Sup fijo'!$C$159,'Sup fijo'!$B$160,'Sup fijo'!$B$159))))))))","v":26159},{"$f":"H49-(+IF(I$11>'Sup fijo'!$B$165,'Sup fijo'!$B$165,IF(I$11>'Sup fijo'!$B$164,'Sup fijo'!$B$164,IF(I$11>'Sup fijo'!$B$163,'Sup fijo'!$B$163,IF(I$11>'Sup fijo'!$B$162,'Sup fijo'!$B$162,IF(I$11>'Sup fijo'!$B$161,'Sup fijo'!$B$161,IF(I$11>'Sup fijo'!$B$160,'Sup fijo'!$B$160,IF(I$11>'Sup fijo'!$C$159,'Sup fijo'!$B$160,'Sup fijo'!$B$159))))))))","v":4199},{"$f":"I49-(+IF(J$11>'Sup fijo'!$B$165,'Sup fijo'!$B$165,IF(J$11>'Sup fijo'!$B$164,'Sup fijo'!$B$164,IF(J$11>'Sup fijo'!$B$163,'Sup fijo'!$B$163,IF(J$11>'Sup fijo'!$B$162,'Sup fijo'!$B$162,IF(J$11>'Sup fijo'!$B$161,'Sup fijo'!$B$161,IF(J$11>'Sup fijo'!$B$160,'Sup fijo'!$B$160,IF(J$11>'Sup fijo'!$C$159,'Sup fijo'!$B$160,'Sup fijo'!$B$159))))))))","v":4199},{"$f":"J49-(+IF(K$11>'Sup fijo'!$B$165,'Sup fijo'!$B$165,IF(K$11>'Sup fijo'!$B$164,'Sup fijo'!$B$164,IF(K$11>'Sup fijo'!$B$163,'Sup fijo'!$B$163,IF(K$11>'Sup fijo'!$B$162,'Sup fijo'!$B$162,IF(K$11>'Sup fijo'!$B$161,'Sup fijo'!$B$161,IF(K$11>'Sup fijo'!$B$160,'Sup fijo'!$B$160,IF(K$11>'Sup fijo'!$C$159,'Sup fijo'!$B$160,'Sup fijo'!$B$159))))))))","v":4199},{"$f":"K49-(+IF(L$11>'Sup fijo'!$B$165,'Sup fijo'!$B$165,IF(L$11>'Sup fijo'!$B$164,'Sup fijo'!$B$164,IF(L$11>'Sup fijo'!$B$163,'Sup fijo'!$B$163,IF(L$11>'Sup fijo'!$B$162,'Sup fijo'!$B$162,IF(L$11>'Sup fijo'!$B$161,'Sup fijo'!$B$161,IF(L$11>'Sup fijo'!$B$160,'Sup fijo'!$B$160,IF(L$11>'Sup fijo'!$C$159,'Sup fijo'!$B$160,'Sup fijo'!$B$159))))))))","v":4199},{"$f":"L49-(+IF(M$11>'Sup fijo'!$B$165,'Sup fijo'!$B$165,IF(M$11>'Sup fijo'!$B$164,'Sup fijo'!$B$164,IF(M$11>'Sup fijo'!$B$163,'Sup fijo'!$B$163,IF(M$11>'Sup fijo'!$B$162,'Sup fijo'!$B$162,IF(M$11>'Sup fijo'!$B$161,'Sup fijo'!$B$161,IF(M$11>'Sup fijo'!$B$160,'Sup fijo'!$B$160,IF(M$11>'Sup fijo'!$C$159,'Sup fijo'!$B$160,'Sup fijo'!$B$159))))))))","v":4199},{"$f":"M49-(+IF(N$11>'Sup fijo'!$B$165,'Sup fijo'!$B$165,IF(N$11>'Sup fijo'!$B$164,'Sup fijo'!$B$164,IF(N$11>'Sup fijo'!$B$163,'Sup fijo'!$B$163,IF(N$11>'Sup fijo'!$B$162,'Sup fijo'!$B$162,IF(N$11>'Sup fijo'!$B$161,'Sup fijo'!$B$161,IF(N$11>'Sup fijo'!$B$160,'Sup fijo'!$B$160,IF(N$11>'Sup fijo'!$C$159,'Sup fijo'!$B$160,'Sup fijo'!$B$159))))))))","v":4199},{"$f":"N49-(+IF(O$11>'Sup fijo'!$B$165,'Sup fijo'!$B$165,IF(O$11>'Sup fijo'!$B$164,'Sup fijo'!$B$164,IF(O$11>'Sup fijo'!$B$163,'Sup fijo'!$B$163,IF(O$11>'Sup fijo'!$B$162,'Sup fijo'!$B$162,IF(O$11>'Sup fijo'!$B$161,'Sup fijo'!$B$161,IF(O$11>'Sup fijo'!$B$160,'Sup fijo'!$B$160,IF(O$11>'Sup fijo'!$C$159,'Sup fijo'!$B$160,'Sup fijo'!$B$159))))))))","v":4199},{"$f":"O49-(+IF(P$11>'Sup fijo'!$B$165,'Sup fijo'!$B$165,IF(P$11>'Sup fijo'!$B$164,'Sup fijo'!$B$164,IF(P$11>'Sup fijo'!$B$163,'Sup fijo'!$B$163,IF(P$11>'Sup fijo'!$B$162,'Sup fijo'!$B$162,IF(P$11>'Sup fijo'!$B$161,'Sup fijo'!$B$161,IF(P$11>'Sup fijo'!$B$160,'Sup fijo'!$B$160,IF(P$11>'Sup fijo'!$C$159,'Sup fijo'!$B$160,'Sup fijo'!$B$159))))))))","v":4199},{"$f":"P49-(+IF(Q$11>'Sup fijo'!$B$165,'Sup fijo'!$B$165,IF(Q$11>'Sup fijo'!$B$164,'Sup fijo'!$B$164,IF(Q$11>'Sup fijo'!$B$163,'Sup fijo'!$B$163,IF(Q$11>'Sup fijo'!$B$162,'Sup fijo'!$B$162,IF(Q$11>'Sup fijo'!$B$161,'Sup fijo'!$B$161,IF(Q$11>'Sup fijo'!$B$160,'Sup fijo'!$B$160,IF(Q$11>'Sup fijo'!$C$159,'Sup fijo'!$B$160,'Sup fijo'!$B$159))))))))","v":4199},{"$f":"Q49-(+IF(R$11>'Sup fijo'!$B$165,'Sup fijo'!$B$165,IF(R$11>'Sup fijo'!$B$164,'Sup fijo'!$B$164,IF(R$11>'Sup fijo'!$B$163,'Sup fijo'!$B$163,IF(R$11>'Sup fijo'!$B$162,'Sup fijo'!$B$162,IF(R$11>'Sup fijo'!$B$161,'Sup fijo'!$B$161,IF(R$11>'Sup fijo'!$B$160,'Sup fijo'!$B$160,IF(R$11>'Sup fijo'!$C$159,'Sup fijo'!$B$160,'Sup fijo'!$B$159))))))))","v":4199},{"$f":"R49-(+IF(S$11>'Sup fijo'!$B$165,'Sup fijo'!$B$165,IF(S$11>'Sup fijo'!$B$164,'Sup fijo'!$B$164,IF(S$11>'Sup fijo'!$B$163,'Sup fijo'!$B$163,IF(S$11>'Sup fijo'!$B$162,'Sup fijo'!$B$162,IF(S$11>'Sup fijo'!$B$161,'Sup fijo'!$B$161,IF(S$11>'Sup fijo'!$B$160,'Sup fijo'!$B$160,IF(S$11>'Sup fijo'!$C$159,'Sup fijo'!$B$160,'Sup fijo'!$B$159))))))))","v":4199},{"$f":"S49-(+IF(T$11>'Sup fijo'!$B$165,'Sup fijo'!$B$165,IF(T$11>'Sup fijo'!$B$164,'Sup fijo'!$B$164,IF(T$11>'Sup fijo'!$B$163,'Sup fijo'!$B$163,IF(T$11>'Sup fijo'!$B$162,'Sup fijo'!$B$162,IF(T$11>'Sup fijo'!$B$161,'Sup fijo'!$B$161,IF(T$11>'Sup fijo'!$B$160,'Sup fijo'!$B$160,IF(T$11>'Sup fijo'!$C$159,'Sup fijo'!$B$160,'Sup fijo'!$B$159))))))))","v":4199},{"$f":"T49-(+IF(U$11>'Sup fijo'!$B$165,'Sup fijo'!$B$165,IF(U$11>'Sup fijo'!$B$164,'Sup fijo'!$B$164,IF(U$11>'Sup fijo'!$B$163,'Sup fijo'!$B$163,IF(U$11>'Sup fijo'!$B$162,'Sup fijo'!$B$162,IF(U$11>'Sup fijo'!$B$161,'Sup fijo'!$B$161,IF(U$11>'Sup fijo'!$B$160,'Sup fijo'!$B$160,IF(U$11>'Sup fijo'!$C$159,'Sup fijo'!$B$160,'Sup fijo'!$B$159))))))))","v":4199},{"$f":"U49-(+IF(V$11>'Sup fijo'!$B$165,'Sup fijo'!$B$165,IF(V$11>'Sup fijo'!$B$164,'Sup fijo'!$B$164,IF(V$11>'Sup fijo'!$B$163,'Sup fijo'!$B$163,IF(V$11>'Sup fijo'!$B$162,'Sup fijo'!$B$162,IF(V$11>'Sup fijo'!$B$161,'Sup fijo'!$B$161,IF(V$11>'Sup fijo'!$B$160,'Sup fijo'!$B$160,IF(V$11>'Sup fijo'!$C$159,'Sup fijo'!$B$160,'Sup fijo'!$B$159))))))))","v":4199},{"$f":"V49-(+IF(W$11>'Sup fijo'!$B$165,'Sup fijo'!$B$165,IF(W$11>'Sup fijo'!$B$164,'Sup fijo'!$B$164,IF(W$11>'Sup fijo'!$B$163,'Sup fijo'!$B$163,IF(W$11>'Sup fijo'!$B$162,'Sup fijo'!$B$162,IF(W$11>'Sup fijo'!$B$161,'Sup fijo'!$B$161,IF(W$11>'Sup fijo'!$B$160,'Sup fijo'!$B$160,IF(W$11>'Sup fijo'!$C$159,'Sup fijo'!$B$160,'Sup fijo'!$B$159))))))))","v":12200}]
[]
[null,"Impuesto fracción básica ",{"$f":"+IF(C49>'Sup fijo'!$B$165,'Sup fijo'!$D$165,IF(C49>'Sup fijo'!$B$164,'Sup fijo'!$D$164,IF(C49>'Sup fijo'!$B$163,'Sup fijo'!$D$163,IF(C49>'Sup fijo'!$B$162,'Sup fijo'!$D$162,IF(C49>'Sup fijo'!$B$161,'Sup fijo'!$D$161,IF(C49>'Sup fijo'!$B$160,'Sup fijo'!$D$160,IF(C49>'Sup fijo'!$C$159,'Sup fijo'!$D$160,'Sup fijo'!$D$159)))))))","v":620},{"$f":"+IF(D49>'Sup fijo'!$B$165,'Sup fijo'!$D$165,IF(D49>'Sup fijo'!$B$164,'Sup fijo'!$D$164,IF(D49>'Sup fijo'!$B$163,'Sup fijo'!$D$163,IF(D49>'Sup fijo'!$B$162,'Sup fijo'!$D$162,IF(D49>'Sup fijo'!$B$161,'Sup fijo'!$D$161,IF(D49>'Sup fijo'!$B$160,'Sup fijo'!$D$160,IF(D49>'Sup fijo'!$C$159,'Sup fijo'!$D$160,'Sup fijo'!$D$159)))))))","v":620},{"$f":"+IF(E49>'Sup fijo'!$B$165,'Sup fijo'!$D$165,IF(E49>'Sup fijo'!$B$164,'Sup fijo'!$D$164,IF(E49>'Sup fijo'!$B$163,'Sup fijo'!$D$163,IF(E49>'Sup fijo'!$B$162,'Sup fijo'!$D$162,IF(E49>'Sup fijo'!$B$161,'Sup fijo'!$D$161,IF(E49>'Sup fijo'!$B$160,'Sup fijo'!$D$160,IF(E49>'Sup fijo'!$C$159,'Sup fijo'!$D$160,'Sup fijo'!$D$159)))))))","v":620},{"$f":"+IF(F49>'Sup fijo'!$B$165,'Sup fijo'!$D$165,IF(F49>'Sup fijo'!$B$164,'Sup fijo'!$D$164,IF(F49>'Sup fijo'!$B$163,'Sup fijo'!$D$163,IF(F49>'Sup fijo'!$B$162,'Sup fijo'!$D$162,IF(F49>'Sup fijo'!$B$161,'Sup fijo'!$D$161,IF(F49>'Sup fijo'!$B$160,'Sup fijo'!$D$160,IF(F49>'Sup fijo'!$C$159,'Sup fijo'!$D$160,'Sup fijo'!$D$159)))))))","v":620},{"$f":"+IF(G49>'Sup fijo'!$B$165,'Sup fijo'!$D$165,IF(G49>'Sup fijo'!$B$164,'Sup fijo'!$D$164,IF(G49>'Sup fijo'!$B$163,'Sup fijo'!$D$163,IF(G49>'Sup fijo'!$B$162,'Sup fijo'!$D$162,IF(G49>'Sup fijo'!$B$161,'Sup fijo'!$D$161,IF(G49>'Sup fijo'!$B$160,'Sup fijo'!$D$160,IF(G49>'Sup fijo'!$C$159,'Sup fijo'!$D$160,'Sup fijo'!$D$159)))))))","v":620},{"$f":"+IF(H49>'Sup fijo'!$B$165,'Sup fijo'!$D$165,IF(H49>'Sup fijo'!$B$164,'Sup fijo'!$D$164,IF(H49>'Sup fijo'!$B$163,'Sup fijo'!$D$163,IF(H49>'Sup fijo'!$B$162,'Sup fijo'!$D$162,IF(H49>'Sup fijo'!$B$161,'Sup fijo'!$D$161,IF(H49>'Sup fijo'!$B$160,'Sup fijo'!$D$160,IF(H49>'Sup fijo'!$C$159,'Sup fijo'!$D$160,'Sup fijo'!$D$159)))))))","v":140},{"$f":"+IF(I49>'Sup fijo'!$B$165,'Sup fijo'!$D$165,IF(I49>'Sup fijo'!$B$164,'Sup fijo'!$D$164,IF(I49>'Sup fijo'!$B$163,'Sup fijo'!$D$163,IF(I49>'Sup fijo'!$B$162,'Sup fijo'!$D$162,IF(I49>'Sup fijo'!$B$161,'Sup fijo'!$D$161,IF(I49>'Sup fijo'!$B$160,'Sup fijo'!$D$160,IF(I49>'Sup fijo'!$C$159,'Sup fijo'!$D$160,'Sup fijo'!$D$159)))))))","v":140},{"$f":"+IF(J49>'Sup fijo'!$B$165,'Sup fijo'!$D$165,IF(J49>'Sup fijo'!$B$164,'Sup fijo'!$D$164,IF(J49>'Sup fijo'!$B$163,'Sup fijo'!$D$163,IF(J49>'Sup fijo'!$B$162,'Sup fijo'!$D$162,IF(J49>'Sup fijo'!$B$161,'Sup fijo'!$D$161,IF(J49>'Sup fijo'!$B$160,'Sup fijo'!$D$160,IF(J49>'Sup fijo'!$C$159,'Sup fijo'!$D$160,'Sup fijo'!$D$159)))))))","v":140},{"$f":"+IF(K49>'Sup fijo'!$B$165,'Sup fijo'!$D$165,IF(K49>'Sup fijo'!$B$164,'Sup fijo'!$D$164,IF(K49>'Sup fijo'!$B$163,'Sup fijo'!$D$163,IF(K49>'Sup fijo'!$B$162,'Sup fijo'!$D$162,IF(K49>'Sup fijo'!$B$161,'Sup fijo'!$D$161,IF(K49>'Sup fijo'!$B$160,'Sup fijo'!$D$160,IF(K49>'Sup fijo'!$C$159,'Sup fijo'!$D$160,'Sup fijo'!$D$159)))))))","v":140},{"$f":"+IF(L49>'Sup fijo'!$B$165,'Sup fijo'!$D$165,IF(L49>'Sup fijo'!$B$164,'Sup fijo'!$D$164,IF(L49>'Sup fijo'!$B$163,'Sup fijo'!$D$163,IF(L49>'Sup fijo'!$B$162,'Sup fijo'!$D$162,IF(L49>'Sup fijo'!$B$161,'Sup fijo'!$D$161,IF(L49>'Sup fijo'!$B$160,'Sup fijo'!$D$160,IF(L49>'Sup fijo'!$C$159,'Sup fijo'!$D$160,'Sup fijo'!$D$159)))))))","v":140},{"$f":"+IF(M49>'Sup fijo'!$B$165,'Sup fijo'!$D$165,IF(M49>'Sup fijo'!$B$164,'Sup fijo'!$D$164,IF(M49>'Sup fijo'!$B$163,'Sup fijo'!$D$163,IF(M49>'Sup fijo'!$B$162,'Sup fijo'!$D$162,IF(M49>'Sup fijo'!$B$161,'Sup fijo'!$D$161,IF(M49>'Sup fijo'!$B$160,'Sup fijo'!$D$160,IF(M49>'Sup fijo'!$C$159,'Sup fijo'!$D$160,'Sup fijo'!$D$159)))))))","v":140},{"$f":"+IF(N49>'Sup fijo'!$B$165,'Sup fijo'!$D$165,IF(N49>'Sup fijo'!$B$164,'Sup fijo'!$D$164,IF(N49>'Sup fijo'!$B$163,'Sup fijo'!$D$163,IF(N49>'Sup fijo'!$B$162,'Sup fijo'!$D$162,IF(N49>'Sup fijo'!$B$161,'Sup fijo'!$D$161,IF(N49>'Sup fijo'!$B$160,'Sup fijo'!$D$160,IF(N49>'Sup fijo'!$C$159,'Sup fijo'!$D$160,'Sup fijo'!$D$159)))))))","v":140},{"$f":"+IF(O49>'Sup fijo'!$B$165,'Sup fijo'!$D$165,IF(O49>'Sup fijo'!$B$164,'Sup fijo'!$D$164,IF(O49>'Sup fijo'!$B$163,'Sup fijo'!$D$163,IF(O49>'Sup fijo'!$B$162,'Sup fijo'!$D$162,IF(O49>'Sup fijo'!$B$161,'Sup fijo'!$D$161,IF(O49>'Sup fijo'!$B$160,'Sup fijo'!$D$160,IF(O49>'Sup fijo'!$C$159,'Sup fijo'!$D$160,'Sup fijo'!$D$159)))))))","v":140},{"$f":"+IF(P49>'Sup fijo'!$B$165,'Sup fijo'!$D$165,IF(P49>'Sup fijo'!$B$164,'Sup fijo'!$D$164,IF(P49>'Sup fijo'!$B$163,'Sup fijo'!$D$163,IF(P49>'Sup fijo'!$B$162,'Sup fijo'!$D$162,IF(P49>'Sup fijo'!$B$161,'Sup fijo'!$D$161,IF(P49>'Sup fijo'!$B$160,'Sup fijo'!$D$160,IF(P49>'Sup fijo'!$C$159,'Sup fijo'!$D$160,'Sup fijo'!$D$159)))))))","v":140},{"$f":"+IF(Q49>'Sup fijo'!$B$165,'Sup fijo'!$D$165,IF(Q49>'Sup fijo'!$B$164,'Sup fijo'!$D$164,IF(Q49>'Sup fijo'!$B$163,'Sup fijo'!$D$163,IF(Q49>'Sup fijo'!$B$162,'Sup fijo'!$D$162,IF(Q49>'Sup fijo'!$B$161,'Sup fijo'!$D$161,IF(Q49>'Sup fijo'!$B$160,'Sup fijo'!$D$160,IF(Q49>'Sup fijo'!$C$159,'Sup fijo'!$D$160,'Sup fijo'!$D$159)))))))","v":140},{"$f":"+IF(R49>'Sup fijo'!$B$165,'Sup fijo'!$D$165,IF(R49>'Sup fijo'!$B$164,'Sup fijo'!$D$164,IF(R49>'Sup fijo'!$B$163,'Sup fijo'!$D$163,IF(R49>'Sup fijo'!$B$162,'Sup fijo'!$D$162,IF(R49>'Sup fijo'!$B$161,'Sup fijo'!$D$161,IF(R49>'Sup fijo'!$B$160,'Sup fijo'!$D$160,IF(R49>'Sup fijo'!$C$159,'Sup fijo'!$D$160,'Sup fijo'!$D$159)))))))","v":140},{"$f":"+IF(S49>'Sup fijo'!$B$165,'Sup fijo'!$D$165,IF(S49>'Sup fijo'!$B$164,'Sup fijo'!$D$164,IF(S49>'Sup fijo'!$B$163,'Sup fijo'!$D$163,IF(S49>'Sup fijo'!$B$162,'Sup fijo'!$D$162,IF(S49>'Sup fijo'!$B$161,'Sup fijo'!$D$161,IF(S49>'Sup fijo'!$B$160,'Sup fijo'!$D$160,IF(S49>'Sup fijo'!$C$159,'Sup fijo'!$D$160,'Sup fijo'!$D$159)))))))","v":140},{"$f":"+IF(T49>'Sup fijo'!$B$165,'Sup fijo'!$D$165,IF(T49>'Sup fijo'!$B$164,'Sup fijo'!$D$164,IF(T49>'Sup fijo'!$B$163,'Sup fijo'!$D$163,IF(T49>'Sup fijo'!$B$162,'Sup fijo'!$D$162,IF(T49>'Sup fijo'!$B$161,'Sup fijo'!$D$161,IF(T49>'Sup fijo'!$B$160,'Sup fijo'!$D$160,IF(T49>'Sup fijo'!$C$159,'Sup fijo'!$D$160,'Sup fijo'!$D$159)))))))","v":140},{"$f":"+IF(U49>'Sup fijo'!$B$165,'Sup fijo'!$D$165,IF(U49>'Sup fijo'!$B$164,'Sup fijo'!$D$164,IF(U49>'Sup fijo'!$B$163,'Sup fijo'!$D$163,IF(U49>'Sup fijo'!$B$162,'Sup fijo'!$D$162,IF(U49>'Sup fijo'!$B$161,'Sup fijo'!$D$161,IF(U49>'Sup fijo'!$B$160,'Sup fijo'!$D$160,IF(U49>'Sup fijo'!$C$159,'Sup fijo'!$D$160,'Sup fijo'!$D$159)))))))","v":140},{"$f":"+IF(V49>'Sup fijo'!$B$165,'Sup fijo'!$D$165,IF(V49>'Sup fijo'!$B$164,'Sup fijo'!$D$164,IF(V49>'Sup fijo'!$B$163,'Sup fijo'!$D$163,IF(V49>'Sup fijo'!$B$162,'Sup fijo'!$D$162,IF(V49>'Sup fijo'!$B$161,'Sup fijo'!$D$161,IF(V49>'Sup fijo'!$B$160,'Sup fijo'!$D$160,IF(V49>'Sup fijo'!$C$159,'Sup fijo'!$D$160,'Sup fijo'!$D$159)))))))","v":140}]
[null,"Porcentaje sobre base imponible",{"$f":"+IF(C49>'Sup fijo'!$B$165,'Sup fijo'!$E$165,IF(C49>'Sup fijo'!$B$164,'Sup fijo'!$E$164,IF(C49>'Sup fijo'!$B$163,'Sup fijo'!$E$163,IF(C49>'Sup fijo'!$B$162,'Sup fijo'!$E$162,IF(C49>'Sup fijo'!$B$161,'Sup fijo'!$E$161,IF(C49>'Sup fijo'!$B$160,'Sup fijo'!$E$160,IF(C49>'Sup fijo'!$C$159,'Sup fijo'!$E$160,'Sup fijo'!$E$159)))))))","v":0.06},{"$f":"+IF(D$30>'Sup fijo'!$B$165,'Sup fijo'!$E$165,IF(D$30>'Sup fijo'!$B$164,'Sup fijo'!$E$164,IF(D$30>'Sup fijo'!$B$163,'Sup fijo'!$E$163,IF(D$30>'Sup fijo'!$B$162,'Sup fijo'!$E$162,IF(D$30>'Sup fijo'!$B$161,'Sup fijo'!$E$161,IF(D$30>'Sup fijo'!$B$160,'Sup fijo'!$E$160,IF(D$30>'Sup fijo'!$C$159,'Sup fijo'!$E$160,'Sup fijo'!$E$159)))))))","v":0.06},{"$f":"+IF(E$30>'Sup fijo'!$B$165,'Sup fijo'!$E$165,IF(E$30>'Sup fijo'!$B$164,'Sup fijo'!$E$164,IF(E$30>'Sup fijo'!$B$163,'Sup fijo'!$E$163,IF(E$30>'Sup fijo'!$B$162,'Sup fijo'!$E$162,IF(E$30>'Sup fijo'!$B$161,'Sup fijo'!$E$161,IF(E$30>'Sup fijo'!$B$160,'Sup fijo'!$E$160,IF(E$30>'Sup fijo'!$C$159,'Sup fijo'!$E$160,'Sup fijo'!$E$159)))))))","v":0.06},{"$f":"+IF(F$30>'Sup fijo'!$B$165,'Sup fijo'!$E$165,IF(F$30>'Sup fijo'!$B$164,'Sup fijo'!$E$164,IF(F$30>'Sup fijo'!$B$163,'Sup fijo'!$E$163,IF(F$30>'Sup fijo'!$B$162,'Sup fijo'!$E$162,IF(F$30>'Sup fijo'!$B$161,'Sup fijo'!$E$161,IF(F$30>'Sup fijo'!$B$160,'Sup fijo'!$E$160,IF(F$30>'Sup fijo'!$C$159,'Sup fijo'!$E$160,'Sup fijo'!$E$159)))))))","v":0.06},{"$f":"+IF(G$30>'Sup fijo'!$B$165,'Sup fijo'!$E$165,IF(G$30>'Sup fijo'!$B$164,'Sup fijo'!$E$164,IF(G$30>'Sup fijo'!$B$163,'Sup fijo'!$E$163,IF(G$30>'Sup fijo'!$B$162,'Sup fijo'!$E$162,IF(G$30>'Sup fijo'!$B$161,'Sup fijo'!$E$161,IF(G$30>'Sup fijo'!$B$160,'Sup fijo'!$E$160,IF(G$30>'Sup fijo'!$C$159,'Sup fijo'!$E$160,'Sup fijo'!$E$159)))))))","v":0.06},{"$f":"+IF(H$30>'Sup fijo'!$B$165,'Sup fijo'!$E$165,IF(H$30>'Sup fijo'!$B$164,'Sup fijo'!$E$164,IF(H$30>'Sup fijo'!$B$163,'Sup fijo'!$E$163,IF(H$30>'Sup fijo'!$B$162,'Sup fijo'!$E$162,IF(H$30>'Sup fijo'!$B$161,'Sup fijo'!$E$161,IF(H$30>'Sup fijo'!$B$160,'Sup fijo'!$E$160,IF(H$30>'Sup fijo'!$C$159,'Sup fijo'!$E$160,'Sup fijo'!$E$159)))))))","v":0.03},{"$f":"+IF(I$30>'Sup fijo'!$B$165,'Sup fijo'!$E$165,IF(I$30>'Sup fijo'!$B$164,'Sup fijo'!$E$164,IF(I$30>'Sup fijo'!$B$163,'Sup fijo'!$E$163,IF(I$30>'Sup fijo'!$B$162,'Sup fijo'!$E$162,IF(I$30>'Sup fijo'!$B$161,'Sup fijo'!$E$161,IF(I$30>'Sup fijo'!$B$160,'Sup fijo'!$E$160,IF(I$30>'Sup fijo'!$C$159,'Sup fijo'!$E$160,'Sup fijo'!$E$159)))))))","v":0.03},{"$f":"+IF(J$30>'Sup fijo'!$B$165,'Sup fijo'!$E$165,IF(J$30>'Sup fijo'!$B$164,'Sup fijo'!$E$164,IF(J$30>'Sup fijo'!$B$163,'Sup fijo'!$E$163,IF(J$30>'Sup fijo'!$B$162,'Sup fijo'!$E$162,IF(J$30>'Sup fijo'!$B$161,'Sup fijo'!$E$161,IF(J$30>'Sup fijo'!$B$160,'Sup fijo'!$E$160,IF(J$30>'Sup fijo'!$C$159,'Sup fijo'!$E$160,'Sup fijo'!$E$159)))))))","v":0.03},{"$f":"+IF(K$30>'Sup fijo'!$B$165,'Sup fijo'!$E$165,IF(K$30>'Sup fijo'!$B$164,'Sup fijo'!$E$164,IF(K$30>'Sup fijo'!$B$163,'Sup fijo'!$E$163,IF(K$30>'Sup fijo'!$B$162,'Sup fijo'!$E$162,IF(K$30>'Sup fijo'!$B$161,'Sup fijo'!$E$161,IF(K$30>'Sup fijo'!$B$160,'Sup fijo'!$E$160,IF(K$30>'Sup fijo'!$C$159,'Sup fijo'!$E$160,'Sup fijo'!$E$159)))))))","v":0.03},{"$f":"+IF(L$30>'Sup fijo'!$B$165,'Sup fijo'!$E$165,IF(L$30>'Sup fijo'!$B$164,'Sup fijo'!$E$164,IF(L$30>'Sup fijo'!$B$163,'Sup fijo'!$E$163,IF(L$30>'Sup fijo'!$B$162,'Sup fijo'!$E$162,IF(L$30>'Sup fijo'!$B$161,'Sup fijo'!$E$161,IF(L$30>'Sup fijo'!$B$160,'Sup fijo'!$E$160,IF(L$30>'Sup fijo'!$C$159,'Sup fijo'!$E$160,'Sup fijo'!$E$159)))))))","v":0.03},{"$f":"+IF(M$30>'Sup fijo'!$B$165,'Sup fijo'!$E$165,IF(M$30>'Sup fijo'!$B$164,'Sup fijo'!$E$164,IF(M$30>'Sup fijo'!$B$163,'Sup fijo'!$E$163,IF(M$30>'Sup fijo'!$B$162,'Sup fijo'!$E$162,IF(M$30>'Sup fijo'!$B$161,'Sup fijo'!$E$161,IF(M$30>'Sup fijo'!$B$160,'Sup fijo'!$E$160,IF(M$30>'Sup fijo'!$C$159,'Sup fijo'!$E$160,'Sup fijo'!$E$159)))))))","v":0.03},{"$f":"+IF(N$30>'Sup fijo'!$B$165,'Sup fijo'!$E$165,IF(N$30>'Sup fijo'!$B$164,'Sup fijo'!$E$164,IF(N$30>'Sup fijo'!$B$163,'Sup fijo'!$E$163,IF(N$30>'Sup fijo'!$B$162,'Sup fijo'!$E$162,IF(N$30>'Sup fijo'!$B$161,'Sup fijo'!$E$161,IF(N$30>'Sup fijo'!$B$160,'Sup fijo'!$E$160,IF(N$30>'Sup fijo'!$C$159,'Sup fijo'!$E$160,'Sup fijo'!$E$159)))))))","v":0.03},{"$f":"+IF(O$30>'Sup fijo'!$B$165,'Sup fijo'!$E$165,IF(O$30>'Sup fijo'!$B$164,'Sup fijo'!$E$164,IF(O$30>'Sup fijo'!$B$163,'Sup fijo'!$E$163,IF(O$30>'Sup fijo'!$B$162,'Sup fijo'!$E$162,IF(O$30>'Sup fijo'!$B$161,'Sup fijo'!$E$161,IF(O$30>'Sup fijo'!$B$160,'Sup fijo'!$E$160,IF(O$30>'Sup fijo'!$C$159,'Sup fijo'!$E$160,'Sup fijo'!$E$159)))))))","v":0.03},{"$f":"+IF(P$30>'Sup fijo'!$B$165,'Sup fijo'!$E$165,IF(P$30>'Sup fijo'!$B$164,'Sup fijo'!$E$164,IF(P$30>'Sup fijo'!$B$163,'Sup fijo'!$E$163,IF(P$30>'Sup fijo'!$B$162,'Sup fijo'!$E$162,IF(P$30>'Sup fijo'!$B$161,'Sup fijo'!$E$161,IF(P$30>'Sup fijo'!$B$160,'Sup fijo'!$E$160,IF(P$30>'Sup fijo'!$C$159,'Sup fijo'!$E$160,'Sup fijo'!$E$159)))))))","v":0.03},{"$f":"+IF(Q$30>'Sup fijo'!$B$165,'Sup fijo'!$E$165,IF(Q$30>'Sup fijo'!$B$164,'Sup fijo'!$E$164,IF(Q$30>'Sup fijo'!$B$163,'Sup fijo'!$E$163,IF(Q$30>'Sup fijo'!$B$162,'Sup fijo'!$E$162,IF(Q$30>'Sup fijo'!$B$161,'Sup fijo'!$E$161,IF(Q$30>'Sup fijo'!$B$160,'Sup fijo'!$E$160,IF(Q$30>'Sup fijo'!$C$159,'Sup fijo'!$E$160,'Sup fijo'!$E$159)))))))","v":0.03},{"$f":"+IF(R$30>'Sup fijo'!$B$165,'Sup fijo'!$E$165,IF(R$30>'Sup fijo'!$B$164,'Sup fijo'!$E$164,IF(R$30>'Sup fijo'!$B$163,'Sup fijo'!$E$163,IF(R$30>'Sup fijo'!$B$162,'Sup fijo'!$E$162,IF(R$30>'Sup fijo'!$B$161,'Sup fijo'!$E$161,IF(R$30>'Sup fijo'!$B$160,'Sup fijo'!$E$160,IF(R$30>'Sup fijo'!$C$159,'Sup fijo'!$E$160,'Sup fijo'!$E$159)))))))","v":0.03},{"$f":"+IF(S$30>'Sup fijo'!$B$165,'Sup fijo'!$E$165,IF(S$30>'Sup fijo'!$B$164,'Sup fijo'!$E$164,IF(S$30>'Sup fijo'!$B$163,'Sup fijo'!$E$163,IF(S$30>'Sup fijo'!$B$162,'Sup fijo'!$E$162,IF(S$30>'Sup fijo'!$B$161,'Sup fijo'!$E$161,IF(S$30>'Sup fijo'!$B$160,'Sup fijo'!$E$160,IF(S$30>'Sup fijo'!$C$159,'Sup fijo'!$E$160,'Sup fijo'!$E$159)))))))","v":0.03},{"$f":"+IF(T$30>'Sup fijo'!$B$165,'Sup fijo'!$E$165,IF(T$30>'Sup fijo'!$B$164,'Sup fijo'!$E$164,IF(T$30>'Sup fijo'!$B$163,'Sup fijo'!$E$163,IF(T$30>'Sup fijo'!$B$162,'Sup fijo'!$E$162,IF(T$30>'Sup fijo'!$B$161,'Sup fijo'!$E$161,IF(T$30>'Sup fijo'!$B$160,'Sup fijo'!$E$160,IF(T$30>'Sup fijo'!$C$159,'Sup fijo'!$E$160,'Sup fijo'!$E$159)))))))","v":0.03},{"$f":"+IF(U$30>'Sup fijo'!$B$165,'Sup fijo'!$E$165,IF(U$30>'Sup fijo'!$B$164,'Sup fijo'!$E$164,IF(U$30>'Sup fijo'!$B$163,'Sup fijo'!$E$163,IF(U$30>'Sup fijo'!$B$162,'Sup fijo'!$E$162,IF(U$30>'Sup fijo'!$B$161,'Sup fijo'!$E$161,IF(U$30>'Sup fijo'!$B$160,'Sup fijo'!$E$160,IF(U$30>'Sup fijo'!$C$159,'Sup fijo'!$E$160,'Sup fijo'!$E$159)))))))","v":0.03},{"$f":"+IF(V$30>'Sup fijo'!$B$165,'Sup fijo'!$E$165,IF(V$30>'Sup fijo'!$B$164,'Sup fijo'!$E$164,IF(V$30>'Sup fijo'!$B$163,'Sup fijo'!$E$163,IF(V$30>'Sup fijo'!$B$162,'Sup fijo'!$E$162,IF(V$30>'Sup fijo'!$B$161,'Sup fijo'!$E$161,IF(V$30>'Sup fijo'!$B$160,'Sup fijo'!$E$160,IF(V$30>'Sup fijo'!$C$159,'Sup fijo'!$E$160,'Sup fijo'!$E$159)))))))","v":0.03}]
[]
[null,"Impuesto  vehículo motorizado",{"$f":"(+C51*C54+C53)-(+C51*C54+C53)*'Sup fijo'!$C$166","v":1299.9879999999994},{"$f":"(+D51*D54+D53)-(+D51*D54+D53)*'Sup fijo'!$C$166","v":1036.4679999999998},{"$f":"(+E51*E54+E53)-(+E51*E54+E53)*'Sup fijo'!$C$166","v":772.94799999999987},{"$f":"(+F51*F54+F53)-(+F51*F54+F53)*'Sup fijo'!$C$166","v":509.42799999999988},{"$f":"(+G51*G54+G53)-(+G51*G54+G53)*'Sup fijo'!$C$166","v":437.9079999999999},{"$f":"(+H51*H54+H53)-(+H51*H54+H53)*'Sup fijo'!$C$166","v":53.193999999999988},{"$f":"(+I51*I54+I53)-(+I51*I54+I53)*'Sup fijo'!$C$166","v":53.193999999999988},{"$f":"(+J51*J54+J53)-(+J51*J54+J53)*'Sup fijo'!$C$166","v":53.193999999999988},{"$f":"(+K51*K54+K53)-(+K51*K54+K53)*'Sup fijo'!$C$166","v":53.193999999999988},{"$f":"(+L51*L54+L53)-(+L51*L54+L53)*'Sup fijo'!$C$166","v":53.193999999999988},{"$f":"(+M51*M54+M53)-(+M51*M54+M53)*'Sup fijo'!$C$166","v":53.193999999999988},{"$f":"(+N51*N54+N53)-(+N51*N54+N53)*'Sup fijo'!$C$166","v":53.193999999999988},{"$f":"(+O51*O54+O53)-(+O51*O54+O53)*'Sup fijo'!$C$166","v":53.193999999999988},{"$f":"(+P51*P54+P53)-(+P51*P54+P53)*'Sup fijo'!$C$166","v":53.193999999999988},{"$f":"(+Q51*Q54+Q53)-(+Q51*Q54+Q53)*'Sup fijo'!$C$166","v":53.193999999999988},{"$f":"(+R51*R54+R53)-(+R51*R54+R53)*'Sup fijo'!$C$166","v":53.193999999999988},{"$f":"(+S51*S54+S53)-(+S51*S54+S53)*'Sup fijo'!$C$166","v":53.193999999999988},{"$f":"(+T51*T54+T53)-(+T51*T54+T53)*'Sup fijo'!$C$166","v":53.193999999999988},{"$f":"(+U51*U54+U53)-(+U51*U54+U53)*'Sup fijo'!$C$166","v":53.193999999999988},{"$f":"(+V51*V54+V53)-(+V51*V54+V53)*'Sup fijo'!$C$166","v":101.19999999999999}]
[null,"Impuesto  rodaje",{"$f":"+IF(C49>'Sup fijo'!$B$177,'Sup fijo'!$D$177,IF(C49>'Sup fijo'!$B$176,'Sup fijo'!$D$176,IF(C49>'Sup fijo'!$B$175,'Sup fijo'!$D$175,IF(C49>'Sup fijo'!$B$174,'Sup fijo'!$D$174,IF(C49>'Sup fijo'!$B$173,'Sup fijo'!$D$173,IF(C49>'Sup fijo'!$B$172,'Sup fijo'!$D$172,IF(C49>'Sup fijo'!$B$171,'Sup fijo'!$D$171,'Sup fijo'!$D$170)))))))","v":70},{"$f":"+IF(D49>'Sup fijo'!$B$177,'Sup fijo'!$D$177,IF(D49>'Sup fijo'!$B$176,'Sup fijo'!$D$176,IF(D49>'Sup fijo'!$B$175,'Sup fijo'!$D$175,IF(D49>'Sup fijo'!$B$174,'Sup fijo'!$D$174,IF(D49>'Sup fijo'!$B$173,'Sup fijo'!$D$173,IF(D49>'Sup fijo'!$B$172,'Sup fijo'!$D$172,IF(D49>'Sup fijo'!$B$171,'Sup fijo'!$D$171,'Sup fijo'!$D$170)))))))","v":70},{"$f":"+IF(E49>'Sup fijo'!$B$177,'Sup fijo'!$D$177,IF(E49>'Sup fijo'!$B$176,'Sup fijo'!$D$176,IF(E49>'Sup fijo'!$B$175,'Sup fijo'!$D$175,IF(E49>'Sup fijo'!$B$174,'Sup fijo'!$D$174,IF(E49>'Sup fijo'!$B$173,'Sup fijo'!$D$173,IF(E49>'Sup fijo'!$B$172,'Sup fijo'!$D$172,IF(E49>'Sup fijo'!$B$171,'Sup fijo'!$D$171,'Sup fijo'!$D$170)))))))","v":70},{"$f":"+IF(F49>'Sup fijo'!$B$177,'Sup fijo'!$D$177,IF(F49>'Sup fijo'!$B$176,'Sup fijo'!$D$176,IF(F49>'Sup fijo'!$B$175,'Sup fijo'!$D$175,IF(F49>'Sup fijo'!$B$174,'Sup fijo'!$D$174,IF(F49>'Sup fijo'!$B$173,'Sup fijo'!$D$173,IF(F49>'Sup fijo'!$B$172,'Sup fijo'!$D$172,IF(F49>'Sup fijo'!$B$171,'Sup fijo'!$D$171,'Sup fijo'!$D$170)))))))","v":70},{"$f":"+IF(G49>'Sup fijo'!$B$177,'Sup fijo'!$D$177,IF(G49>'Sup fijo'!$B$176,'Sup fijo'!$D$176,IF(G49>'Sup fijo'!$B$175,'Sup fijo'!$D$175,IF(G49>'Sup fijo'!$B$174,'Sup fijo'!$D$174,IF(G49>'Sup fijo'!$B$173,'Sup fijo'!$D$173,IF(G49>'Sup fijo'!$B$172,'Sup fijo'!$D$172,IF(G49>'Sup fijo'!$B$171,'Sup fijo'!$D$171,'Sup fijo'!$D$170)))))))","v":50},{"$f":"+IF(H49>'Sup fijo'!$B$177,'Sup fijo'!$D$177,IF(H49>'Sup fijo'!$B$176,'Sup fijo'!$D$176,IF(H49>'Sup fijo'!$B$175,'Sup fijo'!$D$175,IF(H49>'Sup fijo'!$B$174,'Sup fijo'!$D$174,IF(H49>'Sup fijo'!$B$173,'Sup fijo'!$D$173,IF(H49>'Sup fijo'!$B$172,'Sup fijo'!$D$172,IF(H49>'Sup fijo'!$B$171,'Sup fijo'!$D$171,'Sup fijo'!$D$170)))))))","v":20},{"$f":"+IF(I49>'Sup fijo'!$B$177,'Sup fijo'!$D$177,IF(I49>'Sup fijo'!$B$176,'Sup fijo'!$D$176,IF(I49>'Sup fijo'!$B$175,'Sup fijo'!$D$175,IF(I49>'Sup fijo'!$B$174,'Sup fijo'!$D$174,IF(I49>'Sup fijo'!$B$173,'Sup fijo'!$D$173,IF(I49>'Sup fijo'!$B$172,'Sup fijo'!$D$172,IF(I49>'Sup fijo'!$B$171,'Sup fijo'!$D$171,'Sup fijo'!$D$170)))))))","v":20},{"$f":"+IF(J49>'Sup fijo'!$B$177,'Sup fijo'!$D$177,IF(J49>'Sup fijo'!$B$176,'Sup fijo'!$D$176,IF(J49>'Sup fijo'!$B$175,'Sup fijo'!$D$175,IF(J49>'Sup fijo'!$B$174,'Sup fijo'!$D$174,IF(J49>'Sup fijo'!$B$173,'Sup fijo'!$D$173,IF(J49>'Sup fijo'!$B$172,'Sup fijo'!$D$172,IF(J49>'Sup fijo'!$B$171,'Sup fijo'!$D$171,'Sup fijo'!$D$170)))))))","v":20},{"$f":"+IF(K49>'Sup fijo'!$B$177,'Sup fijo'!$D$177,IF(K49>'Sup fijo'!$B$176,'Sup fijo'!$D$176,IF(K49>'Sup fijo'!$B$175,'Sup fijo'!$D$175,IF(K49>'Sup fijo'!$B$174,'Sup fijo'!$D$174,IF(K49>'Sup fijo'!$B$173,'Sup fijo'!$D$173,IF(K49>'Sup fijo'!$B$172,'Sup fijo'!$D$172,IF(K49>'Sup fijo'!$B$171,'Sup fijo'!$D$171,'Sup fijo'!$D$170)))))))","v":20},{"$f":"+IF(L49>'Sup fijo'!$B$177,'Sup fijo'!$D$177,IF(L49>'Sup fijo'!$B$176,'Sup fijo'!$D$176,IF(L49>'Sup fijo'!$B$175,'Sup fijo'!$D$175,IF(L49>'Sup fijo'!$B$174,'Sup fijo'!$D$174,IF(L49>'Sup fijo'!$B$173,'Sup fijo'!$D$173,IF(L49>'Sup fijo'!$B$172,'Sup fijo'!$D$172,IF(L49>'Sup fijo'!$B$171,'Sup fijo'!$D$171,'Sup fijo'!$D$170)))))))","v":20},{"$f":"+IF(M49>'Sup fijo'!$B$177,'Sup fijo'!$D$177,IF(M49>'Sup fijo'!$B$176,'Sup fijo'!$D$176,IF(M49>'Sup fijo'!$B$175,'Sup fijo'!$D$175,IF(M49>'Sup fijo'!$B$174,'Sup fijo'!$D$174,IF(M49>'Sup fijo'!$B$173,'Sup fijo'!$D$173,IF(M49>'Sup fijo'!$B$172,'Sup fijo'!$D$172,IF(M49>'Sup fijo'!$B$171,'Sup fijo'!$D$171,'Sup fijo'!$D$170)))))))","v":20},{"$f":"+IF(N49>'Sup fijo'!$B$177,'Sup fijo'!$D$177,IF(N49>'Sup fijo'!$B$176,'Sup fijo'!$D$176,IF(N49>'Sup fijo'!$B$175,'Sup fijo'!$D$175,IF(N49>'Sup fijo'!$B$174,'Sup fijo'!$D$174,IF(N49>'Sup fijo'!$B$173,'Sup fijo'!$D$173,IF(N49>'Sup fijo'!$B$172,'Sup fijo'!$D$172,IF(N49>'Sup fijo'!$B$171,'Sup fijo'!$D$171,'Sup fijo'!$D$170)))))))","v":20},{"$f":"+IF(O49>'Sup fijo'!$B$177,'Sup fijo'!$D$177,IF(O49>'Sup fijo'!$B$176,'Sup fijo'!$D$176,IF(O49>'Sup fijo'!$B$175,'Sup fijo'!$D$175,IF(O49>'Sup fijo'!$B$174,'Sup fijo'!$D$174,IF(O49>'Sup fijo'!$B$173,'Sup fijo'!$D$173,IF(O49>'Sup fijo'!$B$172,'Sup fijo'!$D$172,IF(O49>'Sup fijo'!$B$171,'Sup fijo'!$D$171,'Sup fijo'!$D$170)))))))","v":20},{"$f":"+IF(P49>'Sup fijo'!$B$177,'Sup fijo'!$D$177,IF(P49>'Sup fijo'!$B$176,'Sup fijo'!$D$176,IF(P49>'Sup fijo'!$B$175,'Sup fijo'!$D$175,IF(P49>'Sup fijo'!$B$174,'Sup fijo'!$D$174,IF(P49>'Sup fijo'!$B$173,'Sup fijo'!$D$173,IF(P49>'Sup fijo'!$B$172,'Sup fijo'!$D$172,IF(P49>'Sup fijo'!$B$171,'Sup fijo'!$D$171,'Sup fijo'!$D$170)))))))","v":20},{"$f":"+IF(Q49>'Sup fijo'!$B$177,'Sup fijo'!$D$177,IF(Q49>'Sup fijo'!$B$176,'Sup fijo'!$D$176,IF(Q49>'Sup fijo'!$B$175,'Sup fijo'!$D$175,IF(Q49>'Sup fijo'!$B$174,'Sup fijo'!$D$174,IF(Q49>'Sup fijo'!$B$173,'Sup fijo'!$D$173,IF(Q49>'Sup fijo'!$B$172,'Sup fijo'!$D$172,IF(Q49>'Sup fijo'!$B$171,'Sup fijo'!$D$171,'Sup fijo'!$D$170)))))))","v":20},{"$f":"+IF(R49>'Sup fijo'!$B$177,'Sup fijo'!$D$177,IF(R49>'Sup fijo'!$B$176,'Sup fijo'!$D$176,IF(R49>'Sup fijo'!$B$175,'Sup fijo'!$D$175,IF(R49>'Sup fijo'!$B$174,'Sup fijo'!$D$174,IF(R49>'Sup fijo'!$B$173,'Sup fijo'!$D$173,IF(R49>'Sup fijo'!$B$172,'Sup fijo'!$D$172,IF(R49>'Sup fijo'!$B$171,'Sup fijo'!$D$171,'Sup fijo'!$D$170)))))))","v":20},{"$f":"+IF(S49>'Sup fijo'!$B$177,'Sup fijo'!$D$177,IF(S49>'Sup fijo'!$B$176,'Sup fijo'!$D$176,IF(S49>'Sup fijo'!$B$175,'Sup fijo'!$D$175,IF(S49>'Sup fijo'!$B$174,'Sup fijo'!$D$174,IF(S49>'Sup fijo'!$B$173,'Sup fijo'!$D$173,IF(S49>'Sup fijo'!$B$172,'Sup fijo'!$D$172,IF(S49>'Sup fijo'!$B$171,'Sup fijo'!$D$171,'Sup fijo'!$D$170)))))))","v":20},{"$f":"+IF(T49>'Sup fijo'!$B$177,'Sup fijo'!$D$177,IF(T49>'Sup fijo'!$B$176,'Sup fijo'!$D$176,IF(T49>'Sup fijo'!$B$175,'Sup fijo'!$D$175,IF(T49>'Sup fijo'!$B$174,'Sup fijo'!$D$174,IF(T49>'Sup fijo'!$B$173,'Sup fijo'!$D$173,IF(T49>'Sup fijo'!$B$172,'Sup fijo'!$D$172,IF(T49>'Sup fijo'!$B$171,'Sup fijo'!$D$171,'Sup fijo'!$D$170)))))))","v":20},{"$f":"+IF(U49>'Sup fijo'!$B$177,'Sup fijo'!$D$177,IF(U49>'Sup fijo'!$B$176,'Sup fijo'!$D$176,IF(U49>'Sup fijo'!$B$175,'Sup fijo'!$D$175,IF(U49>'Sup fijo'!$B$174,'Sup fijo'!$D$174,IF(U49>'Sup fijo'!$B$173,'Sup fijo'!$D$173,IF(U49>'Sup fijo'!$B$172,'Sup fijo'!$D$172,IF(U49>'Sup fijo'!$B$171,'Sup fijo'!$D$171,'Sup fijo'!$D$170)))))))","v":20},{"$f":"+IF(V49>'Sup fijo'!$B$177,'Sup fijo'!$D$177,IF(V49>'Sup fijo'!$B$176,'Sup fijo'!$D$176,IF(V49>'Sup fijo'!$B$175,'Sup fijo'!$D$175,IF(V49>'Sup fijo'!$B$174,'Sup fijo'!$D$174,IF(V49>'Sup fijo'!$B$173,'Sup fijo'!$D$173,IF(V49>'Sup fijo'!$B$172,'Sup fijo'!$D$172,IF(V49>'Sup fijo'!$B$171,'Sup fijo'!$D$171,'Sup fijo'!$D$170)))))))","v":20}]
[null,"Sub-Total ",{"$f":"+C57+C56","v":1369.9879999999994},1106.4679999999998,842.94799999999987,579.42799999999988,487.9079999999999,73.193999999999988,73.193999999999988,73.193999999999988,73.193999999999988,73.193999999999988,73.193999999999988,73.193999999999988,73.193999999999988,73.193999999999988,73.193999999999988,73.193999999999988,73.193999999999988,73.193999999999988,73.193999999999988,121.19999999999999]
[]
[null,{"$f":"+B41","v":"Valor Revisión Anual "},{"$f":"+'Sup fijo'!$D$180*(1+'Sup Generales'!C$8)","v":71.680000000000007},{"$f":"+'Sup fijo'!$D$180*(1+'Sup Generales'!D$8)","v":72.826880000000003},{"$f":"+'Sup fijo'!$D$180*(1+'Sup Generales'!E$8)","v":74.720378879999998},{"$f":"+'Sup fijo'!$D$180*(1+'Sup Generales'!F$8)","v":75.043170916761611},{"$f":"+'Sup fijo'!$D$180*(1+'Sup Generales'!G$8)","v":75.245787478236863},{"$f":"+'Sup fijo'!$D$180*(1+'Sup Generales'!H$8)","v":75.749934254341042},{"$f":"+'Sup fijo'!$D$180*(1+'Sup Generales'!I$8)","v":77.220335165635632},{"$f":"+'Sup fijo'!$D$180*(1+'Sup Generales'!J$8)","v":78.560409622693669},{"$f":"+'Sup fijo'!$D$180*(1+'Sup Generales'!K$8)","v":79.704299821439108},{"$f":"+'Sup fijo'!$D$180*(1+'Sup Generales'!L$8)","v":80.770801146450964},{"$f":"+'Sup fijo'!$D$180*(1+'Sup Generales'!M$8)","v":81.825127915973454},{"$f":"+'Sup fijo'!$D$180*(1+'Sup Generales'!N$8)","v":82.760796633695918},{"$f":"+'Sup fijo'!$D$180*(1+'Sup Generales'!O$8)","v":83.780769883371832},{"$f":"+'Sup fijo'!$D$180*(1+'Sup Generales'!P$8)","v":84.914105603285279},{"$f":"+'Sup fijo'!$D$180*(1+'Sup Generales'!Q$8)","v":86.135240192007586},{"$f":"+'Sup fijo'!$D$180*(1+'Sup Generales'!R$8)","v":87.319773552429567},{"$f":"+'Sup fijo'!$D$180*(1+'Sup Generales'!S$8)","v":88.481282126806974},{"$f":"+'Sup fijo'!$D$180*(1+'Sup Generales'!T$8)","v":89.644317611205338},{"$f":"+'Sup fijo'!$D$180*(1+'Sup Generales'!U$8)","v":90.819992645255638},{"$f":"+'Sup fijo'!$D$180*(1+'Sup Generales'!V$8)","v":92.01178550364645}]
[null,{"$f":"+B42","v":"Valor SPPAT"},{"$f":"+'Sup fijo'!$D$181*(1+'Sup Generales'!C$8)","v":79.872},{"$f":"+'Sup fijo'!$D$181*(1+'Sup Generales'!D$8)","v":81.149951999999999},{"$f":"+'Sup fijo'!$D$181*(1+'Sup Generales'!E$8)","v":83.259850752000006},{"$f":"+'Sup fijo'!$D$181*(1+'Sup Generales'!F$8)","v":83.619533307248659},{"$f":"+'Sup fijo'!$D$181*(1+'Sup Generales'!G$8)","v":83.845306047178227},{"$f":"+'Sup fijo'!$D$181*(1+'Sup Generales'!H$8)","v":84.407069597694303},{"$f":"+'Sup fijo'!$D$181*(1+'Sup Generales'!I$8)","v":86.045516327422561},{"$f":"+'Sup fijo'!$D$181*(1+'Sup Generales'!J$8)","v":87.538742151001514},{"$f":"+'Sup fijo'!$D$181*(1+'Sup Generales'!K$8)","v":88.813362658175009},{"$f":"+'Sup fijo'!$D$181*(1+'Sup Generales'!L$8)","v":90.001749848902506},{"$f":"+'Sup fijo'!$D$181*(1+'Sup Generales'!M$8)","v":91.176571106370417},{"$f":"+'Sup fijo'!$D$181*(1+'Sup Generales'!N$8)","v":92.219173391832598},{"$f":"+'Sup fijo'!$D$181*(1+'Sup Generales'!O$8)","v":93.355715012900049},{"$f":"+'Sup fijo'!$D$181*(1+'Sup Generales'!P$8)","v":94.618574815089303},{"$f":"+'Sup fijo'!$D$181*(1+'Sup Generales'!Q$8)","v":95.979267642522743},{"$f":"+'Sup fijo'!$D$181*(1+'Sup Generales'!R$8)","v":97.299176244135793},{"$f":"+'Sup fijo'!$D$181*(1+'Sup Generales'!S$8)","v":98.593428655584916},{"$f":"+'Sup fijo'!$D$181*(1+'Sup Generales'!T$8)","v":99.889382481057382},{"$f":"+'Sup fijo'!$D$181*(1+'Sup Generales'!U$8)","v":101.199420376142},{"$f":"+'Sup fijo'!$D$181*(1+'Sup Generales'!V$8)","v":102.52741813263462}]
[null,{"$f":"+B43","v":"Valor permiso de operación"},{"$f":"+'Sup fijo'!$D$182*(1+'Sup Generales'!C$8)","v":25.6},{"$f":"+'Sup fijo'!$D$182*(1+'Sup Generales'!D$8)","v":26.009599999999999},{"$f":"+'Sup fijo'!$D$182*(1+'Sup Generales'!E$8)","v":26.685849600000001},{"$f":"+'Sup fijo'!$D$182*(1+'Sup Generales'!F$8)","v":26.801132470272005},{"$f":"+'Sup fijo'!$D$182*(1+'Sup Generales'!G$8)","v":26.873495527941738},{"$f":"+'Sup fijo'!$D$182*(1+'Sup Generales'!H$8)","v":27.053547947978945},{"$f":"+'Sup fijo'!$D$182*(1+'Sup Generales'!I$8)","v":27.578691130584154},{"$f":"+'Sup fijo'!$D$182*(1+'Sup Generales'!J$8)","v":28.057289150962024},{"$f":"+'Sup fijo'!$D$182*(1+'Sup Generales'!K$8)","v":28.46582136479968},{"$f":"+'Sup fijo'!$D$182*(1+'Sup Generales'!L$8)","v":28.846714695161058},{"$f":"+'Sup fijo'!$D$182*(1+'Sup Generales'!M$8)","v":29.223259969990519},{"$f":"+'Sup fijo'!$D$182*(1+'Sup Generales'!N$8)","v":29.557427369177113},{"$f":"+'Sup fijo'!$D$182*(1+'Sup Generales'!O$8)","v":29.921703529775655},{"$f":"+'Sup fijo'!$D$182*(1+'Sup Generales'!P$8)","v":30.326466286887598},{"$f":"+'Sup fijo'!$D$182*(1+'Sup Generales'!Q$8)","v":30.762585782859851},{"$f":"+'Sup fijo'!$D$182*(1+'Sup Generales'!R$8)","v":31.185633411581986},{"$f":"+'Sup fijo'!$D$182*(1+'Sup Generales'!S$8)","v":31.60045790243106},{"$f":"+'Sup fijo'!$D$182*(1+'Sup Generales'!T$8)","v":32.015827718287618},{"$f":"+'Sup fijo'!$D$182*(1+'Sup Generales'!U$8)","v":32.435711659019873},{"$f":"+'Sup fijo'!$D$182*(1+'Sup Generales'!V$8)","v":32.861351965588021}]
[]
[null,"Costo año (USD)",{"$f":"+C58+C62+C61+C60","v":1547.1399999999994},{"$f":"(D58+D62+D61+D60)*IF(D$5>'Sup fijo'!$H$53,0,1)","v":1286.454432},{"$f":"(E58+E62+E61+E60)*IF(E$5>'Sup fijo'!$H$53,0,1)","v":1027.6140792319998},{"$f":"(F58+F62+F61+F60)*IF(F$5>'Sup fijo'!$H$53,0,1)","v":764.89183669428212},{"$f":"(G58+G62+G61+G60)*IF(G$5>'Sup fijo'!$H$53,0,1)","v":673.87258905335671},{"$f":"(H58+H62+H61+H60)*IF(H$5>'Sup fijo'!$H$53,0,1)","v":260.40455180001425},{"$f":"(I58+I62+I61+I60)*IF(I$5>'Sup fijo'!$H$53,0,1)","v":264.03854262364234},{"$f":"(J58+J62+J61+J60)*IF(J$5>'Sup fijo'!$H$53,0,1)","v":267.35044092465716},{"$f":"(K58+K62+K61+K60)*IF(K$5>'Sup fijo'!$H$53,0,1)","v":270.17748384441381},{"$f":"(L58+L62+L61+L60)*IF(L$5>'Sup fijo'!$H$53,0,1)","v":272.81326569051453},{"$f":"(M58+M62+M61+M60)*IF(M$5>'Sup fijo'!$H$53,0,1)","v":275.41895899233435},{"$f":"(N58+N62+N61+N60)*IF(N$5>'Sup fijo'!$H$53,0,1)","v":277.7313973947056},{"$f":"(O58+O62+O61+O60)*IF(O$5>'Sup fijo'!$H$53,0,1)","v":0},{"$f":"(P58+P62+P61+P60)*IF(P$5>'Sup fijo'!$H$53,0,1)","v":0},{"$f":"(Q58+Q62+Q61+Q60)*IF(Q$5>'Sup fijo'!$H$53,0,1)","v":0},{"$f":"(R58+R62+R61+R60)*IF(R$5>'Sup fijo'!$H$53,0,1)","v":0},{"$f":"(S58+S62+S61+S60)*IF(S$5>'Sup fijo'!$H$53,0,1)","v":0},{"$f":"(T58+T62+T61+T60)*IF(T$5>'Sup fijo'!$H$53,0,1)","v":0},{"$f":"(U58+U62+U61+U60)*IF(U$5>'Sup fijo'!$H$53,0,1)","v":0},{"$f":"(V58+V62+V61+V60)*IF(V$5>'Sup fijo'!$H$53,0,1)","v":0}]
[]
[null,null,1,{"$f":"+C66+1","v":2},3,4,5,6,7,8,9,10,11,12,13,14,15,16,17,18,19,20]
[null,{"$f":"'Sup fijo'!B26","v":"Otro"}]
[null,"Valor vehículo ",{"$f":"'CAPEX Vehículo'!C47","v":206078.58000000002},{"$f":"C68-C69","v":168984.43560000003},{"$f":"D68-D69","v":131890.29120000004},94796.146800000031,57702.002400000027,20607.858000000022,20607.858000000022,20607.858000000022,20607.858000000022,20607.858000000022,20607.858000000022,20607.858000000022,20607.858000000022,20607.858000000022,20607.858000000022,20607.858000000022,20607.858000000022,20607.858000000022,20607.858000000022,20607.858000000022]
[null,"Depreciación tributaria ",{"$f":"+((C68*(1-F88))/F87)","v":37094.144400000005},{"$f":"IF(D66<=$F$87,C69,0)","v":37094.144400000005},{"$f":"IF(E66<=$F$87,D69,0)","v":37094.144400000005},37094.144400000005,37094.144400000005,0,0,0,0,0,0,0,0,0,0,0,0,0,0,0]
[null,"Base imponible ",{"$f":"C68-(+IF(D$11>'Sup fijo'!$B$165,'Sup fijo'!$B$165,IF(D$11>'Sup fijo'!$B$164,'Sup fijo'!$B$164,IF(D$11>'Sup fijo'!$B$163,'Sup fijo'!$B$163,IF(D$11>'Sup fijo'!$B$162,'Sup fijo'!$B$162,IF(D$11>'Sup fijo'!$B$161,'Sup fijo'!$B$161,IF(D$11>'Sup fijo'!$B$160,'Sup fijo'!$B$160,IF(D$11>'Sup fijo'!$C$159,'Sup fijo'!$B$160,'Sup fijo'!$B$159))))))))","v":182077.58000000002},{"$f":"D68-(+IF(E$11>'Sup fijo'!$B$165,'Sup fijo'!$B$165,IF(E$11>'Sup fijo'!$B$164,'Sup fijo'!$B$164,IF(E$11>'Sup fijo'!$B$163,'Sup fijo'!$B$163,IF(E$11>'Sup fijo'!$B$162,'Sup fijo'!$B$162,IF(E$11>'Sup fijo'!$B$161,'Sup fijo'!$B$161,IF(E$11>'Sup fijo'!$B$160,'Sup fijo'!$B$160,IF(E$11>'Sup fijo'!$C$159,'Sup fijo'!$B$160,'Sup fijo'!$B$159))))))))","v":144983.43560000003},{"$f":"E68-(+IF(F$11>'Sup fijo'!$B$165,'Sup fijo'!$B$165,IF(F$11>'Sup fijo'!$B$164,'Sup fijo'!$B$164,IF(F$11>'Sup fijo'!$B$163,'Sup fijo'!$B$163,IF(F$11>'Sup fijo'!$B$162,'Sup fijo'!$B$162,IF(F$11>'Sup fijo'!$B$161,'Sup fijo'!$B$161,IF(F$11>'Sup fijo'!$B$160,'Sup fijo'!$B$160,IF(F$11>'Sup fijo'!$C$159,'Sup fijo'!$B$160,'Sup fijo'!$B$159))))))))","v":107889.29120000004},{"$f":"F68-(+IF(G$11>'Sup fijo'!$B$165,'Sup fijo'!$B$165,IF(G$11>'Sup fijo'!$B$164,'Sup fijo'!$B$164,IF(G$11>'Sup fijo'!$B$163,'Sup fijo'!$B$163,IF(G$11>'Sup fijo'!$B$162,'Sup fijo'!$B$162,IF(G$11>'Sup fijo'!$B$161,'Sup fijo'!$B$161,IF(G$11>'Sup fijo'!$B$160,'Sup fijo'!$B$160,IF(G$11>'Sup fijo'!$C$159,'Sup fijo'!$B$160,'Sup fijo'!$B$159))))))))","v":70795.146800000031},{"$f":"G68-(+IF(H$11>'Sup fijo'!$B$165,'Sup fijo'!$B$165,IF(H$11>'Sup fijo'!$B$164,'Sup fijo'!$B$164,IF(H$11>'Sup fijo'!$B$163,'Sup fijo'!$B$163,IF(H$11>'Sup fijo'!$B$162,'Sup fijo'!$B$162,IF(H$11>'Sup fijo'!$B$161,'Sup fijo'!$B$161,IF(H$11>'Sup fijo'!$B$160,'Sup fijo'!$B$160,IF(H$11>'Sup fijo'!$C$159,'Sup fijo'!$B$160,'Sup fijo'!$B$159))))))))","v":49701.002400000027},{"$f":"H68-(+IF(I$11>'Sup fijo'!$B$165,'Sup fijo'!$B$165,IF(I$11>'Sup fijo'!$B$164,'Sup fijo'!$B$164,IF(I$11>'Sup fijo'!$B$163,'Sup fijo'!$B$163,IF(I$11>'Sup fijo'!$B$162,'Sup fijo'!$B$162,IF(I$11>'Sup fijo'!$B$161,'Sup fijo'!$B$161,IF(I$11>'Sup fijo'!$B$160,'Sup fijo'!$B$160,IF(I$11>'Sup fijo'!$C$159,'Sup fijo'!$B$160,'Sup fijo'!$B$159))))))))","v":12606.858000000022},{"$f":"I68-(+IF(J$11>'Sup fijo'!$B$165,'Sup fijo'!$B$165,IF(J$11>'Sup fijo'!$B$164,'Sup fijo'!$B$164,IF(J$11>'Sup fijo'!$B$163,'Sup fijo'!$B$163,IF(J$11>'Sup fijo'!$B$162,'Sup fijo'!$B$162,IF(J$11>'Sup fijo'!$B$161,'Sup fijo'!$B$161,IF(J$11>'Sup fijo'!$B$160,'Sup fijo'!$B$160,IF(J$11>'Sup fijo'!$C$159,'Sup fijo'!$B$160,'Sup fijo'!$B$159))))))))","v":12606.858000000022},{"$f":"J68-(+IF(K$11>'Sup fijo'!$B$165,'Sup fijo'!$B$165,IF(K$11>'Sup fijo'!$B$164,'Sup fijo'!$B$164,IF(K$11>'Sup fijo'!$B$163,'Sup fijo'!$B$163,IF(K$11>'Sup fijo'!$B$162,'Sup fijo'!$B$162,IF(K$11>'Sup fijo'!$B$161,'Sup fijo'!$B$161,IF(K$11>'Sup fijo'!$B$160,'Sup fijo'!$B$160,IF(K$11>'Sup fijo'!$C$159,'Sup fijo'!$B$160,'Sup fijo'!$B$159))))))))","v":12606.858000000022},{"$f":"K68-(+IF(L$11>'Sup fijo'!$B$165,'Sup fijo'!$B$165,IF(L$11>'Sup fijo'!$B$164,'Sup fijo'!$B$164,IF(L$11>'Sup fijo'!$B$163,'Sup fijo'!$B$163,IF(L$11>'Sup fijo'!$B$162,'Sup fijo'!$B$162,IF(L$11>'Sup fijo'!$B$161,'Sup fijo'!$B$161,IF(L$11>'Sup fijo'!$B$160,'Sup fijo'!$B$160,IF(L$11>'Sup fijo'!$C$159,'Sup fijo'!$B$160,'Sup fijo'!$B$159))))))))","v":12606.858000000022},{"$f":"L68-(+IF(M$11>'Sup fijo'!$B$165,'Sup fijo'!$B$165,IF(M$11>'Sup fijo'!$B$164,'Sup fijo'!$B$164,IF(M$11>'Sup fijo'!$B$163,'Sup fijo'!$B$163,IF(M$11>'Sup fijo'!$B$162,'Sup fijo'!$B$162,IF(M$11>'Sup fijo'!$B$161,'Sup fijo'!$B$161,IF(M$11>'Sup fijo'!$B$160,'Sup fijo'!$B$160,IF(M$11>'Sup fijo'!$C$159,'Sup fijo'!$B$160,'Sup fijo'!$B$159))))))))","v":12606.858000000022},{"$f":"M68-(+IF(N$11>'Sup fijo'!$B$165,'Sup fijo'!$B$165,IF(N$11>'Sup fijo'!$B$164,'Sup fijo'!$B$164,IF(N$11>'Sup fijo'!$B$163,'Sup fijo'!$B$163,IF(N$11>'Sup fijo'!$B$162,'Sup fijo'!$B$162,IF(N$11>'Sup fijo'!$B$161,'Sup fijo'!$B$161,IF(N$11>'Sup fijo'!$B$160,'Sup fijo'!$B$160,IF(N$11>'Sup fijo'!$C$159,'Sup fijo'!$B$160,'Sup fijo'!$B$159))))))))","v":12606.858000000022},{"$f":"N68-(+IF(O$11>'Sup fijo'!$B$165,'Sup fijo'!$B$165,IF(O$11>'Sup fijo'!$B$164,'Sup fijo'!$B$164,IF(O$11>'Sup fijo'!$B$163,'Sup fijo'!$B$163,IF(O$11>'Sup fijo'!$B$162,'Sup fijo'!$B$162,IF(O$11>'Sup fijo'!$B$161,'Sup fijo'!$B$161,IF(O$11>'Sup fijo'!$B$160,'Sup fijo'!$B$160,IF(O$11>'Sup fijo'!$C$159,'Sup fijo'!$B$160,'Sup fijo'!$B$159))))))))","v":12606.858000000022},{"$f":"O68-(+IF(P$11>'Sup fijo'!$B$165,'Sup fijo'!$B$165,IF(P$11>'Sup fijo'!$B$164,'Sup fijo'!$B$164,IF(P$11>'Sup fijo'!$B$163,'Sup fijo'!$B$163,IF(P$11>'Sup fijo'!$B$162,'Sup fijo'!$B$162,IF(P$11>'Sup fijo'!$B$161,'Sup fijo'!$B$161,IF(P$11>'Sup fijo'!$B$160,'Sup fijo'!$B$160,IF(P$11>'Sup fijo'!$C$159,'Sup fijo'!$B$160,'Sup fijo'!$B$159))))))))","v":12606.858000000022},{"$f":"P68-(+IF(Q$11>'Sup fijo'!$B$165,'Sup fijo'!$B$165,IF(Q$11>'Sup fijo'!$B$164,'Sup fijo'!$B$164,IF(Q$11>'Sup fijo'!$B$163,'Sup fijo'!$B$163,IF(Q$11>'Sup fijo'!$B$162,'Sup fijo'!$B$162,IF(Q$11>'Sup fijo'!$B$161,'Sup fijo'!$B$161,IF(Q$11>'Sup fijo'!$B$160,'Sup fijo'!$B$160,IF(Q$11>'Sup fijo'!$C$159,'Sup fijo'!$B$160,'Sup fijo'!$B$159))))))))","v":12606.858000000022},{"$f":"Q68-(+IF(R$11>'Sup fijo'!$B$165,'Sup fijo'!$B$165,IF(R$11>'Sup fijo'!$B$164,'Sup fijo'!$B$164,IF(R$11>'Sup fijo'!$B$163,'Sup fijo'!$B$163,IF(R$11>'Sup fijo'!$B$162,'Sup fijo'!$B$162,IF(R$11>'Sup fijo'!$B$161,'Sup fijo'!$B$161,IF(R$11>'Sup fijo'!$B$160,'Sup fijo'!$B$160,IF(R$11>'Sup fijo'!$C$159,'Sup fijo'!$B$160,'Sup fijo'!$B$159))))))))","v":12606.858000000022},{"$f":"R68-(+IF(S$11>'Sup fijo'!$B$165,'Sup fijo'!$B$165,IF(S$11>'Sup fijo'!$B$164,'Sup fijo'!$B$164,IF(S$11>'Sup fijo'!$B$163,'Sup fijo'!$B$163,IF(S$11>'Sup fijo'!$B$162,'Sup fijo'!$B$162,IF(S$11>'Sup fijo'!$B$161,'Sup fijo'!$B$161,IF(S$11>'Sup fijo'!$B$160,'Sup fijo'!$B$160,IF(S$11>'Sup fijo'!$C$159,'Sup fijo'!$B$160,'Sup fijo'!$B$159))))))))","v":12606.858000000022},{"$f":"S68-(+IF(T$11>'Sup fijo'!$B$165,'Sup fijo'!$B$165,IF(T$11>'Sup fijo'!$B$164,'Sup fijo'!$B$164,IF(T$11>'Sup fijo'!$B$163,'Sup fijo'!$B$163,IF(T$11>'Sup fijo'!$B$162,'Sup fijo'!$B$162,IF(T$11>'Sup fijo'!$B$161,'Sup fijo'!$B$161,IF(T$11>'Sup fijo'!$B$160,'Sup fijo'!$B$160,IF(T$11>'Sup fijo'!$C$159,'Sup fijo'!$B$160,'Sup fijo'!$B$159))))))))","v":12606.858000000022},{"$f":"T68-(+IF(U$11>'Sup fijo'!$B$165,'Sup fijo'!$B$165,IF(U$11>'Sup fijo'!$B$164,'Sup fijo'!$B$164,IF(U$11>'Sup fijo'!$B$163,'Sup fijo'!$B$163,IF(U$11>'Sup fijo'!$B$162,'Sup fijo'!$B$162,IF(U$11>'Sup fijo'!$B$161,'Sup fijo'!$B$161,IF(U$11>'Sup fijo'!$B$160,'Sup fijo'!$B$160,IF(U$11>'Sup fijo'!$C$159,'Sup fijo'!$B$160,'Sup fijo'!$B$159))))))))","v":12606.858000000022},{"$f":"U68-(+IF(V$11>'Sup fijo'!$B$165,'Sup fijo'!$B$165,IF(V$11>'Sup fijo'!$B$164,'Sup fijo'!$B$164,IF(V$11>'Sup fijo'!$B$163,'Sup fijo'!$B$163,IF(V$11>'Sup fijo'!$B$162,'Sup fijo'!$B$162,IF(V$11>'Sup fijo'!$B$161,'Sup fijo'!$B$161,IF(V$11>'Sup fijo'!$B$160,'Sup fijo'!$B$160,IF(V$11>'Sup fijo'!$C$159,'Sup fijo'!$B$160,'Sup fijo'!$B$159))))))))","v":12606.858000000022},{"$f":"V68-(+IF(W$11>'Sup fijo'!$B$165,'Sup fijo'!$B$165,IF(W$11>'Sup fijo'!$B$164,'Sup fijo'!$B$164,IF(W$11>'Sup fijo'!$B$163,'Sup fijo'!$B$163,IF(W$11>'Sup fijo'!$B$162,'Sup fijo'!$B$162,IF(W$11>'Sup fijo'!$B$161,'Sup fijo'!$B$161,IF(W$11>'Sup fijo'!$B$160,'Sup fijo'!$B$160,IF(W$11>'Sup fijo'!$C$159,'Sup fijo'!$B$160,'Sup fijo'!$B$159))))))))","v":20607.858000000022}]
[]
[null,"Impuesto fracción básica ",{"$f":"+IF(C68>'Sup fijo'!$B$165,'Sup fijo'!$D$165,IF(C68>'Sup fijo'!$B$164,'Sup fijo'!$D$164,IF(C68>'Sup fijo'!$B$163,'Sup fijo'!$D$163,IF(C68>'Sup fijo'!$B$162,'Sup fijo'!$D$162,IF(C68>'Sup fijo'!$B$161,'Sup fijo'!$D$161,IF(C68>'Sup fijo'!$B$160,'Sup fijo'!$D$160,IF(C68>'Sup fijo'!$C$159,'Sup fijo'!$D$160,'Sup fijo'!$D$159)))))))","v":620},{"$f":"+IF(D68>'Sup fijo'!$B$165,'Sup fijo'!$D$165,IF(D68>'Sup fijo'!$B$164,'Sup fijo'!$D$164,IF(D68>'Sup fijo'!$B$163,'Sup fijo'!$D$163,IF(D68>'Sup fijo'!$B$162,'Sup fijo'!$D$162,IF(D68>'Sup fijo'!$B$161,'Sup fijo'!$D$161,IF(D68>'Sup fijo'!$B$160,'Sup fijo'!$D$160,IF(D68>'Sup fijo'!$C$159,'Sup fijo'!$D$160,'Sup fijo'!$D$159)))))))","v":620},{"$f":"+IF(E68>'Sup fijo'!$B$165,'Sup fijo'!$D$165,IF(E68>'Sup fijo'!$B$164,'Sup fijo'!$D$164,IF(E68>'Sup fijo'!$B$163,'Sup fijo'!$D$163,IF(E68>'Sup fijo'!$B$162,'Sup fijo'!$D$162,IF(E68>'Sup fijo'!$B$161,'Sup fijo'!$D$161,IF(E68>'Sup fijo'!$B$160,'Sup fijo'!$D$160,IF(E68>'Sup fijo'!$C$159,'Sup fijo'!$D$160,'Sup fijo'!$D$159)))))))","v":620},{"$f":"+IF(F68>'Sup fijo'!$B$165,'Sup fijo'!$D$165,IF(F68>'Sup fijo'!$B$164,'Sup fijo'!$D$164,IF(F68>'Sup fijo'!$B$163,'Sup fijo'!$D$163,IF(F68>'Sup fijo'!$B$162,'Sup fijo'!$D$162,IF(F68>'Sup fijo'!$B$161,'Sup fijo'!$D$161,IF(F68>'Sup fijo'!$B$160,'Sup fijo'!$D$160,IF(F68>'Sup fijo'!$C$159,'Sup fijo'!$D$160,'Sup fijo'!$D$159)))))))","v":620},{"$f":"+IF(G68>'Sup fijo'!$B$165,'Sup fijo'!$D$165,IF(G68>'Sup fijo'!$B$164,'Sup fijo'!$D$164,IF(G68>'Sup fijo'!$B$163,'Sup fijo'!$D$163,IF(G68>'Sup fijo'!$B$162,'Sup fijo'!$D$162,IF(G68>'Sup fijo'!$B$161,'Sup fijo'!$D$161,IF(G68>'Sup fijo'!$B$160,'Sup fijo'!$D$160,IF(G68>'Sup fijo'!$C$159,'Sup fijo'!$D$160,'Sup fijo'!$D$159)))))))","v":620},{"$f":"+IF(H68>'Sup fijo'!$B$165,'Sup fijo'!$D$165,IF(H68>'Sup fijo'!$B$164,'Sup fijo'!$D$164,IF(H68>'Sup fijo'!$B$163,'Sup fijo'!$D$163,IF(H68>'Sup fijo'!$B$162,'Sup fijo'!$D$162,IF(H68>'Sup fijo'!$B$161,'Sup fijo'!$D$161,IF(H68>'Sup fijo'!$B$160,'Sup fijo'!$D$160,IF(H68>'Sup fijo'!$C$159,'Sup fijo'!$D$160,'Sup fijo'!$D$159)))))))","v":420},{"$f":"+IF(I68>'Sup fijo'!$B$165,'Sup fijo'!$D$165,IF(I68>'Sup fijo'!$B$164,'Sup fijo'!$D$164,IF(I68>'Sup fijo'!$B$163,'Sup fijo'!$D$163,IF(I68>'Sup fijo'!$B$162,'Sup fijo'!$D$162,IF(I68>'Sup fijo'!$B$161,'Sup fijo'!$D$161,IF(I68>'Sup fijo'!$B$160,'Sup fijo'!$D$160,IF(I68>'Sup fijo'!$C$159,'Sup fijo'!$D$160,'Sup fijo'!$D$159)))))))","v":420},{"$f":"+IF(J68>'Sup fijo'!$B$165,'Sup fijo'!$D$165,IF(J68>'Sup fijo'!$B$164,'Sup fijo'!$D$164,IF(J68>'Sup fijo'!$B$163,'Sup fijo'!$D$163,IF(J68>'Sup fijo'!$B$162,'Sup fijo'!$D$162,IF(J68>'Sup fijo'!$B$161,'Sup fijo'!$D$161,IF(J68>'Sup fijo'!$B$160,'Sup fijo'!$D$160,IF(J68>'Sup fijo'!$C$159,'Sup fijo'!$D$160,'Sup fijo'!$D$159)))))))","v":420},{"$f":"+IF(K68>'Sup fijo'!$B$165,'Sup fijo'!$D$165,IF(K68>'Sup fijo'!$B$164,'Sup fijo'!$D$164,IF(K68>'Sup fijo'!$B$163,'Sup fijo'!$D$163,IF(K68>'Sup fijo'!$B$162,'Sup fijo'!$D$162,IF(K68>'Sup fijo'!$B$161,'Sup fijo'!$D$161,IF(K68>'Sup fijo'!$B$160,'Sup fijo'!$D$160,IF(K68>'Sup fijo'!$C$159,'Sup fijo'!$D$160,'Sup fijo'!$D$159)))))))","v":420},{"$f":"+IF(L68>'Sup fijo'!$B$165,'Sup fijo'!$D$165,IF(L68>'Sup fijo'!$B$164,'Sup fijo'!$D$164,IF(L68>'Sup fijo'!$B$163,'Sup fijo'!$D$163,IF(L68>'Sup fijo'!$B$162,'Sup fijo'!$D$162,IF(L68>'Sup fijo'!$B$161,'Sup fijo'!$D$161,IF(L68>'Sup fijo'!$B$160,'Sup fijo'!$D$160,IF(L68>'Sup fijo'!$C$159,'Sup fijo'!$D$160,'Sup fijo'!$D$159)))))))","v":420},{"$f":"+IF(M68>'Sup fijo'!$B$165,'Sup fijo'!$D$165,IF(M68>'Sup fijo'!$B$164,'Sup fijo'!$D$164,IF(M68>'Sup fijo'!$B$163,'Sup fijo'!$D$163,IF(M68>'Sup fijo'!$B$162,'Sup fijo'!$D$162,IF(M68>'Sup fijo'!$B$161,'Sup fijo'!$D$161,IF(M68>'Sup fijo'!$B$160,'Sup fijo'!$D$160,IF(M68>'Sup fijo'!$C$159,'Sup fijo'!$D$160,'Sup fijo'!$D$159)))))))","v":420},{"$f":"+IF(N68>'Sup fijo'!$B$165,'Sup fijo'!$D$165,IF(N68>'Sup fijo'!$B$164,'Sup fijo'!$D$164,IF(N68>'Sup fijo'!$B$163,'Sup fijo'!$D$163,IF(N68>'Sup fijo'!$B$162,'Sup fijo'!$D$162,IF(N68>'Sup fijo'!$B$161,'Sup fijo'!$D$161,IF(N68>'Sup fijo'!$B$160,'Sup fijo'!$D$160,IF(N68>'Sup fijo'!$C$159,'Sup fijo'!$D$160,'Sup fijo'!$D$159)))))))","v":420},{"$f":"+IF(O68>'Sup fijo'!$B$165,'Sup fijo'!$D$165,IF(O68>'Sup fijo'!$B$164,'Sup fijo'!$D$164,IF(O68>'Sup fijo'!$B$163,'Sup fijo'!$D$163,IF(O68>'Sup fijo'!$B$162,'Sup fijo'!$D$162,IF(O68>'Sup fijo'!$B$161,'Sup fijo'!$D$161,IF(O68>'Sup fijo'!$B$160,'Sup fijo'!$D$160,IF(O68>'Sup fijo'!$C$159,'Sup fijo'!$D$160,'Sup fijo'!$D$159)))))))","v":420},{"$f":"+IF(P68>'Sup fijo'!$B$165,'Sup fijo'!$D$165,IF(P68>'Sup fijo'!$B$164,'Sup fijo'!$D$164,IF(P68>'Sup fijo'!$B$163,'Sup fijo'!$D$163,IF(P68>'Sup fijo'!$B$162,'Sup fijo'!$D$162,IF(P68>'Sup fijo'!$B$161,'Sup fijo'!$D$161,IF(P68>'Sup fijo'!$B$160,'Sup fijo'!$D$160,IF(P68>'Sup fijo'!$C$159,'Sup fijo'!$D$160,'Sup fijo'!$D$159)))))))","v":420},{"$f":"+IF(Q68>'Sup fijo'!$B$165,'Sup fijo'!$D$165,IF(Q68>'Sup fijo'!$B$164,'Sup fijo'!$D$164,IF(Q68>'Sup fijo'!$B$163,'Sup fijo'!$D$163,IF(Q68>'Sup fijo'!$B$162,'Sup fijo'!$D$162,IF(Q68>'Sup fijo'!$B$161,'Sup fijo'!$D$161,IF(Q68>'Sup fijo'!$B$160,'Sup fijo'!$D$160,IF(Q68>'Sup fijo'!$C$159,'Sup fijo'!$D$160,'Sup fijo'!$D$159)))))))","v":420},{"$f":"+IF(R68>'Sup fijo'!$B$165,'Sup fijo'!$D$165,IF(R68>'Sup fijo'!$B$164,'Sup fijo'!$D$164,IF(R68>'Sup fijo'!$B$163,'Sup fijo'!$D$163,IF(R68>'Sup fijo'!$B$162,'Sup fijo'!$D$162,IF(R68>'Sup fijo'!$B$161,'Sup fijo'!$D$161,IF(R68>'Sup fijo'!$B$160,'Sup fijo'!$D$160,IF(R68>'Sup fijo'!$C$159,'Sup fijo'!$D$160,'Sup fijo'!$D$159)))))))","v":420},{"$f":"+IF(S68>'Sup fijo'!$B$165,'Sup fijo'!$D$165,IF(S68>'Sup fijo'!$B$164,'Sup fijo'!$D$164,IF(S68>'Sup fijo'!$B$163,'Sup fijo'!$D$163,IF(S68>'Sup fijo'!$B$162,'Sup fijo'!$D$162,IF(S68>'Sup fijo'!$B$161,'Sup fijo'!$D$161,IF(S68>'Sup fijo'!$B$160,'Sup fijo'!$D$160,IF(S68>'Sup fijo'!$C$159,'Sup fijo'!$D$160,'Sup fijo'!$D$159)))))))","v":420},{"$f":"+IF(T68>'Sup fijo'!$B$165,'Sup fijo'!$D$165,IF(T68>'Sup fijo'!$B$164,'Sup fijo'!$D$164,IF(T68>'Sup fijo'!$B$163,'Sup fijo'!$D$163,IF(T68>'Sup fijo'!$B$162,'Sup fijo'!$D$162,IF(T68>'Sup fijo'!$B$161,'Sup fijo'!$D$161,IF(T68>'Sup fijo'!$B$160,'Sup fijo'!$D$160,IF(T68>'Sup fijo'!$C$159,'Sup fijo'!$D$160,'Sup fijo'!$D$159)))))))","v":420},{"$f":"+IF(U68>'Sup fijo'!$B$165,'Sup fijo'!$D$165,IF(U68>'Sup fijo'!$B$164,'Sup fijo'!$D$164,IF(U68>'Sup fijo'!$B$163,'Sup fijo'!$D$163,IF(U68>'Sup fijo'!$B$162,'Sup fijo'!$D$162,IF(U68>'Sup fijo'!$B$161,'Sup fijo'!$D$161,IF(U68>'Sup fijo'!$B$160,'Sup fijo'!$D$160,IF(U68>'Sup fijo'!$C$159,'Sup fijo'!$D$160,'Sup fijo'!$D$159)))))))","v":420},{"$f":"+IF(V68>'Sup fijo'!$B$165,'Sup fijo'!$D$165,IF(V68>'Sup fijo'!$B$164,'Sup fijo'!$D$164,IF(V68>'Sup fijo'!$B$163,'Sup fijo'!$D$163,IF(V68>'Sup fijo'!$B$162,'Sup fijo'!$D$162,IF(V68>'Sup fijo'!$B$161,'Sup fijo'!$D$161,IF(V68>'Sup fijo'!$B$160,'Sup fijo'!$D$160,IF(V68>'Sup fijo'!$C$159,'Sup fijo'!$D$160,'Sup fijo'!$D$159)))))))","v":420}]
[null,"Porcentaje sobre base imponible",{"$f":"+IF(C68>'Sup fijo'!$B$165,'Sup fijo'!$E$165,IF(C68>'Sup fijo'!$B$164,'Sup fijo'!$E$164,IF(C68>'Sup fijo'!$B$163,'Sup fijo'!$E$163,IF(C68>'Sup fijo'!$B$162,'Sup fijo'!$E$162,IF(C68>'Sup fijo'!$B$161,'Sup fijo'!$E$161,IF(C68>'Sup fijo'!$B$160,'Sup fijo'!$E$160,IF(C68>'Sup fijo'!$C$159,'Sup fijo'!$E$160,'Sup fijo'!$E$159)))))))","v":0.06},{"$f":"+IF(D$30>'Sup fijo'!$B$165,'Sup fijo'!$E$165,IF(D$30>'Sup fijo'!$B$164,'Sup fijo'!$E$164,IF(D$30>'Sup fijo'!$B$163,'Sup fijo'!$E$163,IF(D$30>'Sup fijo'!$B$162,'Sup fijo'!$E$162,IF(D$30>'Sup fijo'!$B$161,'Sup fijo'!$E$161,IF(D$30>'Sup fijo'!$B$160,'Sup fijo'!$E$160,IF(D$30>'Sup fijo'!$C$159,'Sup fijo'!$E$160,'Sup fijo'!$E$159)))))))","v":0.06},{"$f":"+IF(E$30>'Sup fijo'!$B$165,'Sup fijo'!$E$165,IF(E$30>'Sup fijo'!$B$164,'Sup fijo'!$E$164,IF(E$30>'Sup fijo'!$B$163,'Sup fijo'!$E$163,IF(E$30>'Sup fijo'!$B$162,'Sup fijo'!$E$162,IF(E$30>'Sup fijo'!$B$161,'Sup fijo'!$E$161,IF(E$30>'Sup fijo'!$B$160,'Sup fijo'!$E$160,IF(E$30>'Sup fijo'!$C$159,'Sup fijo'!$E$160,'Sup fijo'!$E$159)))))))","v":0.06},{"$f":"+IF(F$30>'Sup fijo'!$B$165,'Sup fijo'!$E$165,IF(F$30>'Sup fijo'!$B$164,'Sup fijo'!$E$164,IF(F$30>'Sup fijo'!$B$163,'Sup fijo'!$E$163,IF(F$30>'Sup fijo'!$B$162,'Sup fijo'!$E$162,IF(F$30>'Sup fijo'!$B$161,'Sup fijo'!$E$161,IF(F$30>'Sup fijo'!$B$160,'Sup fijo'!$E$160,IF(F$30>'Sup fijo'!$C$159,'Sup fijo'!$E$160,'Sup fijo'!$E$159)))))))","v":0.06},{"$f":"+IF(G$30>'Sup fijo'!$B$165,'Sup fijo'!$E$165,IF(G$30>'Sup fijo'!$B$164,'Sup fijo'!$E$164,IF(G$30>'Sup fijo'!$B$163,'Sup fijo'!$E$163,IF(G$30>'Sup fijo'!$B$162,'Sup fijo'!$E$162,IF(G$30>'Sup fijo'!$B$161,'Sup fijo'!$E$161,IF(G$30>'Sup fijo'!$B$160,'Sup fijo'!$E$160,IF(G$30>'Sup fijo'!$C$159,'Sup fijo'!$E$160,'Sup fijo'!$E$159)))))))","v":0.06},{"$f":"+IF(H$30>'Sup fijo'!$B$165,'Sup fijo'!$E$165,IF(H$30>'Sup fijo'!$B$164,'Sup fijo'!$E$164,IF(H$30>'Sup fijo'!$B$163,'Sup fijo'!$E$163,IF(H$30>'Sup fijo'!$B$162,'Sup fijo'!$E$162,IF(H$30>'Sup fijo'!$B$161,'Sup fijo'!$E$161,IF(H$30>'Sup fijo'!$B$160,'Sup fijo'!$E$160,IF(H$30>'Sup fijo'!$C$159,'Sup fijo'!$E$160,'Sup fijo'!$E$159)))))))","v":0.03},{"$f":"+IF(I$30>'Sup fijo'!$B$165,'Sup fijo'!$E$165,IF(I$30>'Sup fijo'!$B$164,'Sup fijo'!$E$164,IF(I$30>'Sup fijo'!$B$163,'Sup fijo'!$E$163,IF(I$30>'Sup fijo'!$B$162,'Sup fijo'!$E$162,IF(I$30>'Sup fijo'!$B$161,'Sup fijo'!$E$161,IF(I$30>'Sup fijo'!$B$160,'Sup fijo'!$E$160,IF(I$30>'Sup fijo'!$C$159,'Sup fijo'!$E$160,'Sup fijo'!$E$159)))))))","v":0.03},{"$f":"+IF(J$30>'Sup fijo'!$B$165,'Sup fijo'!$E$165,IF(J$30>'Sup fijo'!$B$164,'Sup fijo'!$E$164,IF(J$30>'Sup fijo'!$B$163,'Sup fijo'!$E$163,IF(J$30>'Sup fijo'!$B$162,'Sup fijo'!$E$162,IF(J$30>'Sup fijo'!$B$161,'Sup fijo'!$E$161,IF(J$30>'Sup fijo'!$B$160,'Sup fijo'!$E$160,IF(J$30>'Sup fijo'!$C$159,'Sup fijo'!$E$160,'Sup fijo'!$E$159)))))))","v":0.03},{"$f":"+IF(K$30>'Sup fijo'!$B$165,'Sup fijo'!$E$165,IF(K$30>'Sup fijo'!$B$164,'Sup fijo'!$E$164,IF(K$30>'Sup fijo'!$B$163,'Sup fijo'!$E$163,IF(K$30>'Sup fijo'!$B$162,'Sup fijo'!$E$162,IF(K$30>'Sup fijo'!$B$161,'Sup fijo'!$E$161,IF(K$30>'Sup fijo'!$B$160,'Sup fijo'!$E$160,IF(K$30>'Sup fijo'!$C$159,'Sup fijo'!$E$160,'Sup fijo'!$E$159)))))))","v":0.03},{"$f":"+IF(L$30>'Sup fijo'!$B$165,'Sup fijo'!$E$165,IF(L$30>'Sup fijo'!$B$164,'Sup fijo'!$E$164,IF(L$30>'Sup fijo'!$B$163,'Sup fijo'!$E$163,IF(L$30>'Sup fijo'!$B$162,'Sup fijo'!$E$162,IF(L$30>'Sup fijo'!$B$161,'Sup fijo'!$E$161,IF(L$30>'Sup fijo'!$B$160,'Sup fijo'!$E$160,IF(L$30>'Sup fijo'!$C$159,'Sup fijo'!$E$160,'Sup fijo'!$E$159)))))))","v":0.03},{"$f":"+IF(M$30>'Sup fijo'!$B$165,'Sup fijo'!$E$165,IF(M$30>'Sup fijo'!$B$164,'Sup fijo'!$E$164,IF(M$30>'Sup fijo'!$B$163,'Sup fijo'!$E$163,IF(M$30>'Sup fijo'!$B$162,'Sup fijo'!$E$162,IF(M$30>'Sup fijo'!$B$161,'Sup fijo'!$E$161,IF(M$30>'Sup fijo'!$B$160,'Sup fijo'!$E$160,IF(M$30>'Sup fijo'!$C$159,'Sup fijo'!$E$160,'Sup fijo'!$E$159)))))))","v":0.03},{"$f":"+IF(N$30>'Sup fijo'!$B$165,'Sup fijo'!$E$165,IF(N$30>'Sup fijo'!$B$164,'Sup fijo'!$E$164,IF(N$30>'Sup fijo'!$B$163,'Sup fijo'!$E$163,IF(N$30>'Sup fijo'!$B$162,'Sup fijo'!$E$162,IF(N$30>'Sup fijo'!$B$161,'Sup fijo'!$E$161,IF(N$30>'Sup fijo'!$B$160,'Sup fijo'!$E$160,IF(N$30>'Sup fijo'!$C$159,'Sup fijo'!$E$160,'Sup fijo'!$E$159)))))))","v":0.03},{"$f":"+IF(O$30>'Sup fijo'!$B$165,'Sup fijo'!$E$165,IF(O$30>'Sup fijo'!$B$164,'Sup fijo'!$E$164,IF(O$30>'Sup fijo'!$B$163,'Sup fijo'!$E$163,IF(O$30>'Sup fijo'!$B$162,'Sup fijo'!$E$162,IF(O$30>'Sup fijo'!$B$161,'Sup fijo'!$E$161,IF(O$30>'Sup fijo'!$B$160,'Sup fijo'!$E$160,IF(O$30>'Sup fijo'!$C$159,'Sup fijo'!$E$160,'Sup fijo'!$E$159)))))))","v":0.03},{"$f":"+IF(P$30>'Sup fijo'!$B$165,'Sup fijo'!$E$165,IF(P$30>'Sup fijo'!$B$164,'Sup fijo'!$E$164,IF(P$30>'Sup fijo'!$B$163,'Sup fijo'!$E$163,IF(P$30>'Sup fijo'!$B$162,'Sup fijo'!$E$162,IF(P$30>'Sup fijo'!$B$161,'Sup fijo'!$E$161,IF(P$30>'Sup fijo'!$B$160,'Sup fijo'!$E$160,IF(P$30>'Sup fijo'!$C$159,'Sup fijo'!$E$160,'Sup fijo'!$E$159)))))))","v":0.03},{"$f":"+IF(Q$30>'Sup fijo'!$B$165,'Sup fijo'!$E$165,IF(Q$30>'Sup fijo'!$B$164,'Sup fijo'!$E$164,IF(Q$30>'Sup fijo'!$B$163,'Sup fijo'!$E$163,IF(Q$30>'Sup fijo'!$B$162,'Sup fijo'!$E$162,IF(Q$30>'Sup fijo'!$B$161,'Sup fijo'!$E$161,IF(Q$30>'Sup fijo'!$B$160,'Sup fijo'!$E$160,IF(Q$30>'Sup fijo'!$C$159,'Sup fijo'!$E$160,'Sup fijo'!$E$159)))))))","v":0.03},{"$f":"+IF(R$30>'Sup fijo'!$B$165,'Sup fijo'!$E$165,IF(R$30>'Sup fijo'!$B$164,'Sup fijo'!$E$164,IF(R$30>'Sup fijo'!$B$163,'Sup fijo'!$E$163,IF(R$30>'Sup fijo'!$B$162,'Sup fijo'!$E$162,IF(R$30>'Sup fijo'!$B$161,'Sup fijo'!$E$161,IF(R$30>'Sup fijo'!$B$160,'Sup fijo'!$E$160,IF(R$30>'Sup fijo'!$C$159,'Sup fijo'!$E$160,'Sup fijo'!$E$159)))))))","v":0.03},{"$f":"+IF(S$30>'Sup fijo'!$B$165,'Sup fijo'!$E$165,IF(S$30>'Sup fijo'!$B$164,'Sup fijo'!$E$164,IF(S$30>'Sup fijo'!$B$163,'Sup fijo'!$E$163,IF(S$30>'Sup fijo'!$B$162,'Sup fijo'!$E$162,IF(S$30>'Sup fijo'!$B$161,'Sup fijo'!$E$161,IF(S$30>'Sup fijo'!$B$160,'Sup fijo'!$E$160,IF(S$30>'Sup fijo'!$C$159,'Sup fijo'!$E$160,'Sup fijo'!$E$159)))))))","v":0.03},{"$f":"+IF(T$30>'Sup fijo'!$B$165,'Sup fijo'!$E$165,IF(T$30>'Sup fijo'!$B$164,'Sup fijo'!$E$164,IF(T$30>'Sup fijo'!$B$163,'Sup fijo'!$E$163,IF(T$30>'Sup fijo'!$B$162,'Sup fijo'!$E$162,IF(T$30>'Sup fijo'!$B$161,'Sup fijo'!$E$161,IF(T$30>'Sup fijo'!$B$160,'Sup fijo'!$E$160,IF(T$30>'Sup fijo'!$C$159,'Sup fijo'!$E$160,'Sup fijo'!$E$159)))))))","v":0.03},{"$f":"+IF(U$30>'Sup fijo'!$B$165,'Sup fijo'!$E$165,IF(U$30>'Sup fijo'!$B$164,'Sup fijo'!$E$164,IF(U$30>'Sup fijo'!$B$163,'Sup fijo'!$E$163,IF(U$30>'Sup fijo'!$B$162,'Sup fijo'!$E$162,IF(U$30>'Sup fijo'!$B$161,'Sup fijo'!$E$161,IF(U$30>'Sup fijo'!$B$160,'Sup fijo'!$E$160,IF(U$30>'Sup fijo'!$C$159,'Sup fijo'!$E$160,'Sup fijo'!$E$159)))))))","v":0.03},{"$f":"+IF(V$30>'Sup fijo'!$B$165,'Sup fijo'!$E$165,IF(V$30>'Sup fijo'!$B$164,'Sup fijo'!$E$164,IF(V$30>'Sup fijo'!$B$163,'Sup fijo'!$E$163,IF(V$30>'Sup fijo'!$B$162,'Sup fijo'!$E$162,IF(V$30>'Sup fijo'!$B$161,'Sup fijo'!$E$161,IF(V$30>'Sup fijo'!$B$160,'Sup fijo'!$E$160,IF(V$30>'Sup fijo'!$C$159,'Sup fijo'!$E$160,'Sup fijo'!$E$159)))))))","v":0.03}]
[]
[null,"Impuesto  vehículo motorizado",{"$f":"(+C70*C73+C72)-(+C70*C73+C72)*'Sup fijo'!$C$166","v":2308.9309599999997},{"$f":"(+D70*D73+D72)-(+D70*D73+D72)*'Sup fijo'!$C$166","v":1863.8012271999996},{"$f":"(+E70*E73+E72)-(+E70*E73+E72)*'Sup fijo'!$C$166","v":1418.6714943999996},{"$f":"(+F70*F73+F72)-(+F70*F73+F72)*'Sup fijo'!$C$166","v":973.54176160000043},{"$f":"(+G70*G73+G72)-(+G70*G73+G72)*'Sup fijo'!$C$166","v":720.41202879999992},{"$f":"(+H70*H73+H72)-(+H70*H73+H72)*'Sup fijo'!$C$166","v":159.64114800000004},{"$f":"(+I70*I73+I72)-(+I70*I73+I72)*'Sup fijo'!$C$166","v":159.64114800000004},{"$f":"(+J70*J73+J72)-(+J70*J73+J72)*'Sup fijo'!$C$166","v":159.64114800000004},{"$f":"(+K70*K73+K72)-(+K70*K73+K72)*'Sup fijo'!$C$166","v":159.64114800000004},{"$f":"(+L70*L73+L72)-(+L70*L73+L72)*'Sup fijo'!$C$166","v":159.64114800000004},{"$f":"(+M70*M73+M72)-(+M70*M73+M72)*'Sup fijo'!$C$166","v":159.64114800000004},{"$f":"(+N70*N73+N72)-(+N70*N73+N72)*'Sup fijo'!$C$166","v":159.64114800000004},{"$f":"(+O70*O73+O72)-(+O70*O73+O72)*'Sup fijo'!$C$166","v":159.64114800000004},{"$f":"(+P70*P73+P72)-(+P70*P73+P72)*'Sup fijo'!$C$166","v":159.64114800000004},{"$f":"(+Q70*Q73+Q72)-(+Q70*Q73+Q72)*'Sup fijo'!$C$166","v":159.64114800000004},{"$f":"(+R70*R73+R72)-(+R70*R73+R72)*'Sup fijo'!$C$166","v":159.64114800000004},{"$f":"(+S70*S73+S72)-(+S70*S73+S72)*'Sup fijo'!$C$166","v":159.64114800000004},{"$f":"(+T70*T73+T72)-(+T70*T73+T72)*'Sup fijo'!$C$166","v":159.64114800000004},{"$f":"(+U70*U73+U72)-(+U70*U73+U72)*'Sup fijo'!$C$166","v":159.64114800000004},{"$f":"(+V70*V73+V72)-(+V70*V73+V72)*'Sup fijo'!$C$166","v":207.64714800000002}]
[null,"Impuesto  rodaje",{"$f":"+IF(C68>'Sup fijo'!$B$177,'Sup fijo'!$D$177,IF(C68>'Sup fijo'!$B$176,'Sup fijo'!$D$176,IF(C68>'Sup fijo'!$B$175,'Sup fijo'!$D$175,IF(C68>'Sup fijo'!$B$174,'Sup fijo'!$D$174,IF(C68>'Sup fijo'!$B$173,'Sup fijo'!$D$173,IF(C68>'Sup fijo'!$B$172,'Sup fijo'!$D$172,IF(C68>'Sup fijo'!$B$171,'Sup fijo'!$D$171,'Sup fijo'!$D$170)))))))","v":70},{"$f":"+IF(D68>'Sup fijo'!$B$177,'Sup fijo'!$D$177,IF(D68>'Sup fijo'!$B$176,'Sup fijo'!$D$176,IF(D68>'Sup fijo'!$B$175,'Sup fijo'!$D$175,IF(D68>'Sup fijo'!$B$174,'Sup fijo'!$D$174,IF(D68>'Sup fijo'!$B$173,'Sup fijo'!$D$173,IF(D68>'Sup fijo'!$B$172,'Sup fijo'!$D$172,IF(D68>'Sup fijo'!$B$171,'Sup fijo'!$D$171,'Sup fijo'!$D$170)))))))","v":70},{"$f":"+IF(E68>'Sup fijo'!$B$177,'Sup fijo'!$D$177,IF(E68>'Sup fijo'!$B$176,'Sup fijo'!$D$176,IF(E68>'Sup fijo'!$B$175,'Sup fijo'!$D$175,IF(E68>'Sup fijo'!$B$174,'Sup fijo'!$D$174,IF(E68>'Sup fijo'!$B$173,'Sup fijo'!$D$173,IF(E68>'Sup fijo'!$B$172,'Sup fijo'!$D$172,IF(E68>'Sup fijo'!$B$171,'Sup fijo'!$D$171,'Sup fijo'!$D$170)))))))","v":70},{"$f":"+IF(F68>'Sup fijo'!$B$177,'Sup fijo'!$D$177,IF(F68>'Sup fijo'!$B$176,'Sup fijo'!$D$176,IF(F68>'Sup fijo'!$B$175,'Sup fijo'!$D$175,IF(F68>'Sup fijo'!$B$174,'Sup fijo'!$D$174,IF(F68>'Sup fijo'!$B$173,'Sup fijo'!$D$173,IF(F68>'Sup fijo'!$B$172,'Sup fijo'!$D$172,IF(F68>'Sup fijo'!$B$171,'Sup fijo'!$D$171,'Sup fijo'!$D$170)))))))","v":70},{"$f":"+IF(G68>'Sup fijo'!$B$177,'Sup fijo'!$D$177,IF(G68>'Sup fijo'!$B$176,'Sup fijo'!$D$176,IF(G68>'Sup fijo'!$B$175,'Sup fijo'!$D$175,IF(G68>'Sup fijo'!$B$174,'Sup fijo'!$D$174,IF(G68>'Sup fijo'!$B$173,'Sup fijo'!$D$173,IF(G68>'Sup fijo'!$B$172,'Sup fijo'!$D$172,IF(G68>'Sup fijo'!$B$171,'Sup fijo'!$D$171,'Sup fijo'!$D$170)))))))","v":70},{"$f":"+IF(H68>'Sup fijo'!$B$177,'Sup fijo'!$D$177,IF(H68>'Sup fijo'!$B$176,'Sup fijo'!$D$176,IF(H68>'Sup fijo'!$B$175,'Sup fijo'!$D$175,IF(H68>'Sup fijo'!$B$174,'Sup fijo'!$D$174,IF(H68>'Sup fijo'!$B$173,'Sup fijo'!$D$173,IF(H68>'Sup fijo'!$B$172,'Sup fijo'!$D$172,IF(H68>'Sup fijo'!$B$171,'Sup fijo'!$D$171,'Sup fijo'!$D$170)))))))","v":30},{"$f":"+IF(I68>'Sup fijo'!$B$177,'Sup fijo'!$D$177,IF(I68>'Sup fijo'!$B$176,'Sup fijo'!$D$176,IF(I68>'Sup fijo'!$B$175,'Sup fijo'!$D$175,IF(I68>'Sup fijo'!$B$174,'Sup fijo'!$D$174,IF(I68>'Sup fijo'!$B$173,'Sup fijo'!$D$173,IF(I68>'Sup fijo'!$B$172,'Sup fijo'!$D$172,IF(I68>'Sup fijo'!$B$171,'Sup fijo'!$D$171,'Sup fijo'!$D$170)))))))","v":30},{"$f":"+IF(J68>'Sup fijo'!$B$177,'Sup fijo'!$D$177,IF(J68>'Sup fijo'!$B$176,'Sup fijo'!$D$176,IF(J68>'Sup fijo'!$B$175,'Sup fijo'!$D$175,IF(J68>'Sup fijo'!$B$174,'Sup fijo'!$D$174,IF(J68>'Sup fijo'!$B$173,'Sup fijo'!$D$173,IF(J68>'Sup fijo'!$B$172,'Sup fijo'!$D$172,IF(J68>'Sup fijo'!$B$171,'Sup fijo'!$D$171,'Sup fijo'!$D$170)))))))","v":30},{"$f":"+IF(K68>'Sup fijo'!$B$177,'Sup fijo'!$D$177,IF(K68>'Sup fijo'!$B$176,'Sup fijo'!$D$176,IF(K68>'Sup fijo'!$B$175,'Sup fijo'!$D$175,IF(K68>'Sup fijo'!$B$174,'Sup fijo'!$D$174,IF(K68>'Sup fijo'!$B$173,'Sup fijo'!$D$173,IF(K68>'Sup fijo'!$B$172,'Sup fijo'!$D$172,IF(K68>'Sup fijo'!$B$171,'Sup fijo'!$D$171,'Sup fijo'!$D$170)))))))","v":30},{"$f":"+IF(L68>'Sup fijo'!$B$177,'Sup fijo'!$D$177,IF(L68>'Sup fijo'!$B$176,'Sup fijo'!$D$176,IF(L68>'Sup fijo'!$B$175,'Sup fijo'!$D$175,IF(L68>'Sup fijo'!$B$174,'Sup fijo'!$D$174,IF(L68>'Sup fijo'!$B$173,'Sup fijo'!$D$173,IF(L68>'Sup fijo'!$B$172,'Sup fijo'!$D$172,IF(L68>'Sup fijo'!$B$171,'Sup fijo'!$D$171,'Sup fijo'!$D$170)))))))","v":30},{"$f":"+IF(M68>'Sup fijo'!$B$177,'Sup fijo'!$D$177,IF(M68>'Sup fijo'!$B$176,'Sup fijo'!$D$176,IF(M68>'Sup fijo'!$B$175,'Sup fijo'!$D$175,IF(M68>'Sup fijo'!$B$174,'Sup fijo'!$D$174,IF(M68>'Sup fijo'!$B$173,'Sup fijo'!$D$173,IF(M68>'Sup fijo'!$B$172,'Sup fijo'!$D$172,IF(M68>'Sup fijo'!$B$171,'Sup fijo'!$D$171,'Sup fijo'!$D$170)))))))","v":30},{"$f":"+IF(N68>'Sup fijo'!$B$177,'Sup fijo'!$D$177,IF(N68>'Sup fijo'!$B$176,'Sup fijo'!$D$176,IF(N68>'Sup fijo'!$B$175,'Sup fijo'!$D$175,IF(N68>'Sup fijo'!$B$174,'Sup fijo'!$D$174,IF(N68>'Sup fijo'!$B$173,'Sup fijo'!$D$173,IF(N68>'Sup fijo'!$B$172,'Sup fijo'!$D$172,IF(N68>'Sup fijo'!$B$171,'Sup fijo'!$D$171,'Sup fijo'!$D$170)))))))","v":30},{"$f":"+IF(O68>'Sup fijo'!$B$177,'Sup fijo'!$D$177,IF(O68>'Sup fijo'!$B$176,'Sup fijo'!$D$176,IF(O68>'Sup fijo'!$B$175,'Sup fijo'!$D$175,IF(O68>'Sup fijo'!$B$174,'Sup fijo'!$D$174,IF(O68>'Sup fijo'!$B$173,'Sup fijo'!$D$173,IF(O68>'Sup fijo'!$B$172,'Sup fijo'!$D$172,IF(O68>'Sup fijo'!$B$171,'Sup fijo'!$D$171,'Sup fijo'!$D$170)))))))","v":30},{"$f":"+IF(P68>'Sup fijo'!$B$177,'Sup fijo'!$D$177,IF(P68>'Sup fijo'!$B$176,'Sup fijo'!$D$176,IF(P68>'Sup fijo'!$B$175,'Sup fijo'!$D$175,IF(P68>'Sup fijo'!$B$174,'Sup fijo'!$D$174,IF(P68>'Sup fijo'!$B$173,'Sup fijo'!$D$173,IF(P68>'Sup fijo'!$B$172,'Sup fijo'!$D$172,IF(P68>'Sup fijo'!$B$171,'Sup fijo'!$D$171,'Sup fijo'!$D$170)))))))","v":30},{"$f":"+IF(Q68>'Sup fijo'!$B$177,'Sup fijo'!$D$177,IF(Q68>'Sup fijo'!$B$176,'Sup fijo'!$D$176,IF(Q68>'Sup fijo'!$B$175,'Sup fijo'!$D$175,IF(Q68>'Sup fijo'!$B$174,'Sup fijo'!$D$174,IF(Q68>'Sup fijo'!$B$173,'Sup fijo'!$D$173,IF(Q68>'Sup fijo'!$B$172,'Sup fijo'!$D$172,IF(Q68>'Sup fijo'!$B$171,'Sup fijo'!$D$171,'Sup fijo'!$D$170)))))))","v":30},{"$f":"+IF(R68>'Sup fijo'!$B$177,'Sup fijo'!$D$177,IF(R68>'Sup fijo'!$B$176,'Sup fijo'!$D$176,IF(R68>'Sup fijo'!$B$175,'Sup fijo'!$D$175,IF(R68>'Sup fijo'!$B$174,'Sup fijo'!$D$174,IF(R68>'Sup fijo'!$B$173,'Sup fijo'!$D$173,IF(R68>'Sup fijo'!$B$172,'Sup fijo'!$D$172,IF(R68>'Sup fijo'!$B$171,'Sup fijo'!$D$171,'Sup fijo'!$D$170)))))))","v":30},{"$f":"+IF(S68>'Sup fijo'!$B$177,'Sup fijo'!$D$177,IF(S68>'Sup fijo'!$B$176,'Sup fijo'!$D$176,IF(S68>'Sup fijo'!$B$175,'Sup fijo'!$D$175,IF(S68>'Sup fijo'!$B$174,'Sup fijo'!$D$174,IF(S68>'Sup fijo'!$B$173,'Sup fijo'!$D$173,IF(S68>'Sup fijo'!$B$172,'Sup fijo'!$D$172,IF(S68>'Sup fijo'!$B$171,'Sup fijo'!$D$171,'Sup fijo'!$D$170)))))))","v":30},{"$f":"+IF(T68>'Sup fijo'!$B$177,'Sup fijo'!$D$177,IF(T68>'Sup fijo'!$B$176,'Sup fijo'!$D$176,IF(T68>'Sup fijo'!$B$175,'Sup fijo'!$D$175,IF(T68>'Sup fijo'!$B$174,'Sup fijo'!$D$174,IF(T68>'Sup fijo'!$B$173,'Sup fijo'!$D$173,IF(T68>'Sup fijo'!$B$172,'Sup fijo'!$D$172,IF(T68>'Sup fijo'!$B$171,'Sup fijo'!$D$171,'Sup fijo'!$D$170)))))))","v":30},{"$f":"+IF(U68>'Sup fijo'!$B$177,'Sup fijo'!$D$177,IF(U68>'Sup fijo'!$B$176,'Sup fijo'!$D$176,IF(U68>'Sup fijo'!$B$175,'Sup fijo'!$D$175,IF(U68>'Sup fijo'!$B$174,'Sup fijo'!$D$174,IF(U68>'Sup fijo'!$B$173,'Sup fijo'!$D$173,IF(U68>'Sup fijo'!$B$172,'Sup fijo'!$D$172,IF(U68>'Sup fijo'!$B$171,'Sup fijo'!$D$171,'Sup fijo'!$D$170)))))))","v":30},{"$f":"+IF(V68>'Sup fijo'!$B$177,'Sup fijo'!$D$177,IF(V68>'Sup fijo'!$B$176,'Sup fijo'!$D$176,IF(V68>'Sup fijo'!$B$175,'Sup fijo'!$D$175,IF(V68>'Sup fijo'!$B$174,'Sup fijo'!$D$174,IF(V68>'Sup fijo'!$B$173,'Sup fijo'!$D$173,IF(V68>'Sup fijo'!$B$172,'Sup fijo'!$D$172,IF(V68>'Sup fijo'!$B$171,'Sup fijo'!$D$171,'Sup fijo'!$D$170)))))))","v":30}]
[null,"Sub-Total ",{"$f":"+C76+C75","v":2378.9309599999997},{"$f":"+D76+D75","v":1933.8012271999996},1488.6714943999996,1043.5417616000004,790.41202879999992,189.64114800000004,189.64114800000004,189.64114800000004,189.64114800000004,189.64114800000004,189.64114800000004,189.64114800000004,189.64114800000004,189.64114800000004,189.64114800000004,189.64114800000004,189.64114800000004,189.64114800000004,189.64114800000004,237.64714800000002]
[]
[null,{"$f":"+B60","v":"Valor Revisión Anual "},{"$f":"+'Sup fijo'!$D$180*(1+'Sup Generales'!C$8)","v":71.680000000000007},{"$f":"+'Sup fijo'!$D$180*(1+'Sup Generales'!D$8)","v":72.826880000000003},{"$f":"+'Sup fijo'!$D$180*(1+'Sup Generales'!E$8)","v":74.720378879999998},{"$f":"+'Sup fijo'!$D$180*(1+'Sup Generales'!F$8)","v":75.043170916761611},{"$f":"+'Sup fijo'!$D$180*(1+'Sup Generales'!G$8)","v":75.245787478236863},{"$f":"+'Sup fijo'!$D$180*(1+'Sup Generales'!H$8)","v":75.749934254341042},{"$f":"+'Sup fijo'!$D$180*(1+'Sup Generales'!I$8)","v":77.220335165635632},{"$f":"+'Sup fijo'!$D$180*(1+'Sup Generales'!J$8)","v":78.560409622693669},{"$f":"+'Sup fijo'!$D$180*(1+'Sup Generales'!K$8)","v":79.704299821439108},{"$f":"+'Sup fijo'!$D$180*(1+'Sup Generales'!L$8)","v":80.770801146450964},{"$f":"+'Sup fijo'!$D$180*(1+'Sup Generales'!M$8)","v":81.825127915973454},{"$f":"+'Sup fijo'!$D$180*(1+'Sup Generales'!N$8)","v":82.760796633695918},{"$f":"+'Sup fijo'!$D$180*(1+'Sup Generales'!O$8)","v":83.780769883371832},{"$f":"+'Sup fijo'!$D$180*(1+'Sup Generales'!P$8)","v":84.914105603285279},{"$f":"+'Sup fijo'!$D$180*(1+'Sup Generales'!Q$8)","v":86.135240192007586},{"$f":"+'Sup fijo'!$D$180*(1+'Sup Generales'!R$8)","v":87.319773552429567},{"$f":"+'Sup fijo'!$D$180*(1+'Sup Generales'!S$8)","v":88.481282126806974},{"$f":"+'Sup fijo'!$D$180*(1+'Sup Generales'!T$8)","v":89.644317611205338},{"$f":"+'Sup fijo'!$D$180*(1+'Sup Generales'!U$8)","v":90.819992645255638},{"$f":"+'Sup fijo'!$D$180*(1+'Sup Generales'!V$8)","v":92.01178550364645}]
[null,{"$f":"+B61","v":"Valor SPPAT"},{"$f":"+'Sup fijo'!$D$181*(1+'Sup Generales'!C$8)","v":79.872},{"$f":"+'Sup fijo'!$D$181*(1+'Sup Generales'!D$8)","v":81.149951999999999},{"$f":"+'Sup fijo'!$D$181*(1+'Sup Generales'!E$8)","v":83.259850752000006},{"$f":"+'Sup fijo'!$D$181*(1+'Sup Generales'!F$8)","v":83.619533307248659},{"$f":"+'Sup fijo'!$D$181*(1+'Sup Generales'!G$8)","v":83.845306047178227},{"$f":"+'Sup fijo'!$D$181*(1+'Sup Generales'!H$8)","v":84.407069597694303},{"$f":"+'Sup fijo'!$D$181*(1+'Sup Generales'!I$8)","v":86.045516327422561},{"$f":"+'Sup fijo'!$D$181*(1+'Sup Generales'!J$8)","v":87.538742151001514},{"$f":"+'Sup fijo'!$D$181*(1+'Sup Generales'!K$8)","v":88.813362658175009},{"$f":"+'Sup fijo'!$D$181*(1+'Sup Generales'!L$8)","v":90.001749848902506},{"$f":"+'Sup fijo'!$D$181*(1+'Sup Generales'!M$8)","v":91.176571106370417},{"$f":"+'Sup fijo'!$D$181*(1+'Sup Generales'!N$8)","v":92.219173391832598},{"$f":"+'Sup fijo'!$D$181*(1+'Sup Generales'!O$8)","v":93.355715012900049},{"$f":"+'Sup fijo'!$D$181*(1+'Sup Generales'!P$8)","v":94.618574815089303},{"$f":"+'Sup fijo'!$D$181*(1+'Sup Generales'!Q$8)","v":95.979267642522743},{"$f":"+'Sup fijo'!$D$181*(1+'Sup Generales'!R$8)","v":97.299176244135793},{"$f":"+'Sup fijo'!$D$181*(1+'Sup Generales'!S$8)","v":98.593428655584916},{"$f":"+'Sup fijo'!$D$181*(1+'Sup Generales'!T$8)","v":99.889382481057382},{"$f":"+'Sup fijo'!$D$181*(1+'Sup Generales'!U$8)","v":101.199420376142},{"$f":"+'Sup fijo'!$D$181*(1+'Sup Generales'!V$8)","v":102.52741813263462}]
[null,{"$f":"+B62","v":"Valor permiso de operación"},{"$f":"+'Sup fijo'!$D$182*(1+'Sup Generales'!C$8)","v":25.6},{"$f":"+'Sup fijo'!$D$182*(1+'Sup Generales'!D$8)","v":26.009599999999999},{"$f":"+'Sup fijo'!$D$182*(1+'Sup Generales'!E$8)","v":26.685849600000001},{"$f":"+'Sup fijo'!$D$182*(1+'Sup Generales'!F$8)","v":26.801132470272005},{"$f":"+'Sup fijo'!$D$182*(1+'Sup Generales'!G$8)","v":26.873495527941738},{"$f":"+'Sup fijo'!$D$182*(1+'Sup Generales'!H$8)","v":27.053547947978945},{"$f":"+'Sup fijo'!$D$182*(1+'Sup Generales'!I$8)","v":27.578691130584154},{"$f":"+'Sup fijo'!$D$182*(1+'Sup Generales'!J$8)","v":28.057289150962024},{"$f":"+'Sup fijo'!$D$182*(1+'Sup Generales'!K$8)","v":28.46582136479968},{"$f":"+'Sup fijo'!$D$182*(1+'Sup Generales'!L$8)","v":28.846714695161058},{"$f":"+'Sup fijo'!$D$182*(1+'Sup Generales'!M$8)","v":29.223259969990519},{"$f":"+'Sup fijo'!$D$182*(1+'Sup Generales'!N$8)","v":29.557427369177113},{"$f":"+'Sup fijo'!$D$182*(1+'Sup Generales'!O$8)","v":29.921703529775655},{"$f":"+'Sup fijo'!$D$182*(1+'Sup Generales'!P$8)","v":30.326466286887598},{"$f":"+'Sup fijo'!$D$182*(1+'Sup Generales'!Q$8)","v":30.762585782859851},{"$f":"+'Sup fijo'!$D$182*(1+'Sup Generales'!R$8)","v":31.185633411581986},{"$f":"+'Sup fijo'!$D$182*(1+'Sup Generales'!S$8)","v":31.60045790243106},{"$f":"+'Sup fijo'!$D$182*(1+'Sup Generales'!T$8)","v":32.015827718287618},{"$f":"+'Sup fijo'!$D$182*(1+'Sup Generales'!U$8)","v":32.435711659019873},{"$f":"+'Sup fijo'!$D$182*(1+'Sup Generales'!V$8)","v":32.861351965588021}]
[]
[null,"Costo año (USD)",{"$f":"+C77+C81+C80+C79","v":2556.0829599999993},{"$f":"(D77+D81+D80+D79)*IF(D$5>'Sup fijo'!$H$54,0,1)","v":2113.7876591999998},{"$f":"(E77+E81+E80+E79)*IF(E$5>'Sup fijo'!$H$54,0,1)","v":1673.3375736319995},{"$f":"(F77+F81+F80+F79)*IF(F$5>'Sup fijo'!$H$54,0,1)","v":1229.0055982942829},{"$f":"(G77+G81+G80+G79)*IF(G$5>'Sup fijo'!$H$54,0,1)","v":976.37661785335672},{"$f":"(H77+H81+H80+H79)*IF(H$5>'Sup fijo'!$H$54,0,1)","v":376.85169980001433},{"$f":"(I77+I81+I80+I79)*IF(I$5>'Sup fijo'!$H$54,0,1)","v":380.48569062364237},{"$f":"(J77+J81+J80+J79)*IF(J$5>'Sup fijo'!$H$54,0,1)","v":383.79758892465725},{"$f":"(K77+K81+K80+K79)*IF(K$5>'Sup fijo'!$H$54,0,1)","v":386.6246318444139},{"$f":"(L77+L81+L80+L79)*IF(L$5>'Sup fijo'!$H$54,0,1)","v":389.26041369051461},{"$f":"(M77+M81+M80+M79)*IF(M$5>'Sup fijo'!$H$54,0,1)","v":391.86610699233444},{"$f":"(N77+N81+N80+N79)*IF(N$5>'Sup fijo'!$H$54,0,1)","v":394.17854539470568},{"$f":"(O77+O81+O80+O79)*IF(O$5>'Sup fijo'!$H$54,0,1)","v":0},{"$f":"(P77+P81+P80+P79)*IF(P$5>'Sup fijo'!$H$54,0,1)","v":0},{"$f":"(Q77+Q81+Q80+Q79)*IF(Q$5>'Sup fijo'!$H$54,0,1)","v":0},{"$f":"(R77+R81+R80+R79)*IF(R$5>'Sup fijo'!$H$54,0,1)","v":0},{"$f":"(S77+S81+S80+S79)*IF(S$5>'Sup fijo'!$H$54,0,1)","v":0},{"$f":"(T77+T81+T80+T79)*IF(T$5>'Sup fijo'!$H$54,0,1)","v":0},{"$f":"(U77+U81+U80+U79)*IF(U$5>'Sup fijo'!$H$54,0,1)","v":0},{"$f":"(V77+V81+V80+V79)*IF(V$5>'Sup fijo'!$H$54,0,1)","v":0}]
[]
[]
[null,"Depreciación y vlr. salvamento para cálculo base impositiva",{"$f":"B10","v":"Intracantonal Rural"},{"$f":"B29","v":"Intracantonal Urbano"},{"$f":"B48","v":"Intracantonal Combinado"},{"$f":"B67","v":"Otro"}]
[null,"Depreciación tributaria años ",{"$f":"+'Sup fijo'!$D$214","v":5},{"$f":"+'Sup fijo'!$D$214","v":5},{"$f":"+'Sup fijo'!$D$214","v":5},{"$f":"+'Sup fijo'!$D$214","v":5}]
[null,{"$f":"+'Sup fijo'!B215","v":"Valor salvamento "},{"$f":"+'Sup fijo'!$D$215","v":0.1},{"$f":"+'Sup fijo'!$D$215","v":0.1},{"$f":"+'Sup fijo'!$D$215","v":0.1},{"$f":"+'Sup fijo'!$D$215","v":0.1}]
[]
[]
[null,"IVA"]
[]
[null,"Seguros"]
[null,{"$f":"'OPEX Otros Gastos'!B9","v":"Intracantonal Rural"},{"$f":"+SUM('OPEX Otros Gastos'!C11:C13)*'Sup fijo'!$D$198","v":65.52000000000001},{"$f":"+SUM('OPEX Otros Gastos'!D11:D13)*'Sup fijo'!$D$198","v":61.152000000000008},{"$f":"+SUM('OPEX Otros Gastos'!E11:E13)*'Sup fijo'!$D$198","v":56.783999999999999},{"$f":"+SUM('OPEX Otros Gastos'!F11:F13)*'Sup fijo'!$D$198","v":52.416000000000011},{"$f":"+SUM('OPEX Otros Gastos'!G11:G13)*'Sup fijo'!$D$198","v":48.048000000000002},{"$f":"+SUM('OPEX Otros Gastos'!H11:H13)*'Sup fijo'!$D$198","v":43.680000000000007},{"$f":"+SUM('OPEX Otros Gastos'!I11:I13)*'Sup fijo'!$D$198","v":39.312000000000005},{"$f":"+SUM('OPEX Otros Gastos'!J11:J13)*'Sup fijo'!$D$198","v":34.944000000000003},{"$f":"+SUM('OPEX Otros Gastos'!K11:K13)*'Sup fijo'!$D$198","v":30.576000000000004},{"$f":"+SUM('OPEX Otros Gastos'!L11:L13)*'Sup fijo'!$D$198","v":26.208000000000006},{"$f":"+SUM('OPEX Otros Gastos'!M11:M13)*'Sup fijo'!$D$198","v":21.840000000000003},{"$f":"+SUM('OPEX Otros Gastos'!N11:N13)*'Sup fijo'!$D$198","v":17.472000000000001},{"$f":"+SUM('OPEX Otros Gastos'!O11:O13)*'Sup fijo'!$D$198","v":0},{"$f":"+SUM('OPEX Otros Gastos'!P11:P13)*'Sup fijo'!$D$198","v":0},{"$f":"+SUM('OPEX Otros Gastos'!Q11:Q13)*'Sup fijo'!$D$198","v":0},{"$f":"+SUM('OPEX Otros Gastos'!R11:R13)*'Sup fijo'!$D$198","v":0},{"$f":"+SUM('OPEX Otros Gastos'!S11:S13)*'Sup fijo'!$D$198","v":0},{"$f":"+SUM('OPEX Otros Gastos'!T11:T13)*'Sup fijo'!$D$198","v":0},{"$f":"+SUM('OPEX Otros Gastos'!U11:U13)*'Sup fijo'!$D$198","v":0},{"$f":"+SUM('OPEX Otros Gastos'!V11:V13)*'Sup fijo'!$D$198","v":0}]
[null,{"$f":"'OPEX Otros Gastos'!B16","v":"Intracantonal Urbano"},{"$f":"+SUM('OPEX Otros Gastos'!C18:C20)*'Sup fijo'!$D$198","v":88.816000000000003},{"$f":"+SUM('OPEX Otros Gastos'!D18:D20)*'Sup fijo'!$D$198","v":82.894933333333341},{"$f":"+SUM('OPEX Otros Gastos'!E18:E20)*'Sup fijo'!$D$198","v":76.97386666666668},{"$f":"+SUM('OPEX Otros Gastos'!F18:F20)*'Sup fijo'!$D$198","v":71.052800000000019},{"$f":"+SUM('OPEX Otros Gastos'!G18:G20)*'Sup fijo'!$D$198","v":65.131733333333358},{"$f":"+SUM('OPEX Otros Gastos'!H18:H20)*'Sup fijo'!$D$198","v":59.210666666666697},{"$f":"+SUM('OPEX Otros Gastos'!I18:I20)*'Sup fijo'!$D$198","v":53.289600000000029},{"$f":"+SUM('OPEX Otros Gastos'!J18:J20)*'Sup fijo'!$D$198","v":47.36853333333336},{"$f":"+SUM('OPEX Otros Gastos'!K18:K20)*'Sup fijo'!$D$198","v":41.447466666666685},{"$f":"+SUM('OPEX Otros Gastos'!L18:L20)*'Sup fijo'!$D$198","v":35.526400000000017},{"$f":"+SUM('OPEX Otros Gastos'!M18:M20)*'Sup fijo'!$D$198","v":29.605333333333352},{"$f":"+SUM('OPEX Otros Gastos'!N18:N20)*'Sup fijo'!$D$198","v":23.684266666666684},{"$f":"+SUM('OPEX Otros Gastos'!O18:O20)*'Sup fijo'!$D$198","v":0},{"$f":"+SUM('OPEX Otros Gastos'!P18:P20)*'Sup fijo'!$D$198","v":0},{"$f":"+SUM('OPEX Otros Gastos'!Q18:Q20)*'Sup fijo'!$D$198","v":0},{"$f":"+SUM('OPEX Otros Gastos'!R18:R20)*'Sup fijo'!$D$198","v":0},{"$f":"+SUM('OPEX Otros Gastos'!S18:S20)*'Sup fijo'!$D$198","v":0},{"$f":"+SUM('OPEX Otros Gastos'!T18:T20)*'Sup fijo'!$D$198","v":0},{"$f":"+SUM('OPEX Otros Gastos'!U18:U20)*'Sup fijo'!$D$198","v":0},{"$f":"+SUM('OPEX Otros Gastos'!V18:V20)*'Sup fijo'!$D$198","v":0}]
[null,{"$f":"'OPEX Otros Gastos'!B23","v":"Intracantonal Combinado"},{"$f":"+SUM('OPEX Otros Gastos'!C25:C27)*'Sup fijo'!$D$198","v":88.816000000000003},{"$f":"+SUM('OPEX Otros Gastos'!D25:D27)*'Sup fijo'!$D$198","v":82.894933333333341},{"$f":"+SUM('OPEX Otros Gastos'!E25:E27)*'Sup fijo'!$D$198","v":76.97386666666668},{"$f":"+SUM('OPEX Otros Gastos'!F25:F27)*'Sup fijo'!$D$198","v":71.052800000000019},{"$f":"+SUM('OPEX Otros Gastos'!G25:G27)*'Sup fijo'!$D$198","v":65.131733333333358},{"$f":"+SUM('OPEX Otros Gastos'!H25:H27)*'Sup fijo'!$D$198","v":59.210666666666697},{"$f":"+SUM('OPEX Otros Gastos'!I25:I27)*'Sup fijo'!$D$198","v":53.289600000000029},{"$f":"+SUM('OPEX Otros Gastos'!J25:J27)*'Sup fijo'!$D$198","v":47.36853333333336},{"$f":"+SUM('OPEX Otros Gastos'!K25:K27)*'Sup fijo'!$D$198","v":41.447466666666685},{"$f":"+SUM('OPEX Otros Gastos'!L25:L27)*'Sup fijo'!$D$198","v":35.526400000000017},{"$f":"+SUM('OPEX Otros Gastos'!M25:M27)*'Sup fijo'!$D$198","v":29.605333333333352},{"$f":"+SUM('OPEX Otros Gastos'!N25:N27)*'Sup fijo'!$D$198","v":23.684266666666684},{"$f":"+SUM('OPEX Otros Gastos'!O25:O27)*'Sup fijo'!$D$198","v":0},{"$f":"+SUM('OPEX Otros Gastos'!P25:P27)*'Sup fijo'!$D$198","v":0},{"$f":"+SUM('OPEX Otros Gastos'!Q25:Q27)*'Sup fijo'!$D$198","v":0},{"$f":"+SUM('OPEX Otros Gastos'!R25:R27)*'Sup fijo'!$D$198","v":0},{"$f":"+SUM('OPEX Otros Gastos'!S25:S27)*'Sup fijo'!$D$198","v":0},{"$f":"+SUM('OPEX Otros Gastos'!T25:T27)*'Sup fijo'!$D$198","v":0},{"$f":"+SUM('OPEX Otros Gastos'!U25:U27)*'Sup fijo'!$D$198","v":0},{"$f":"+SUM('OPEX Otros Gastos'!V25:V27)*'Sup fijo'!$D$198","v":0}]
[null,{"$f":"'OPEX Otros Gastos'!B30","v":"Otro"},{"$f":"+SUM('OPEX Otros Gastos'!C32:C34)*'Sup fijo'!$D$198","v":150.02520624000005},{"$f":"+SUM('OPEX Otros Gastos'!D32:D34)*'Sup fijo'!$D$198","v":140.02352582400002},{"$f":"+SUM('OPEX Otros Gastos'!E32:E34)*'Sup fijo'!$D$198","v":130.02184540800002},{"$f":"+SUM('OPEX Otros Gastos'!F32:F34)*'Sup fijo'!$D$198","v":120.02016499200001},{"$f":"+SUM('OPEX Otros Gastos'!G32:G34)*'Sup fijo'!$D$198","v":110.01848457599999},{"$f":"+SUM('OPEX Otros Gastos'!H32:H34)*'Sup fijo'!$D$198","v":100.01680415999998},{"$f":"+SUM('OPEX Otros Gastos'!I32:I34)*'Sup fijo'!$D$198","v":90.015123743999979},{"$f":"+SUM('OPEX Otros Gastos'!J32:J34)*'Sup fijo'!$D$198","v":80.013443327999966},{"$f":"+SUM('OPEX Otros Gastos'!K32:K34)*'Sup fijo'!$D$198","v":70.011762911999966},{"$f":"+SUM('OPEX Otros Gastos'!L32:L34)*'Sup fijo'!$D$198","v":60.010082495999967},{"$f":"+SUM('OPEX Otros Gastos'!M32:M34)*'Sup fijo'!$D$198","v":50.008402079999968},{"$f":"+SUM('OPEX Otros Gastos'!N32:N34)*'Sup fijo'!$D$198","v":40.006721663999954},{"$f":"+SUM('OPEX Otros Gastos'!O32:O34)*'Sup fijo'!$D$198","v":0},{"$f":"+SUM('OPEX Otros Gastos'!P32:P34)*'Sup fijo'!$D$198","v":0},{"$f":"+SUM('OPEX Otros Gastos'!Q32:Q34)*'Sup fijo'!$D$198","v":0},{"$f":"+SUM('OPEX Otros Gastos'!R32:R34)*'Sup fijo'!$D$198","v":0},{"$f":"+SUM('OPEX Otros Gastos'!S32:S34)*'Sup fijo'!$D$198","v":0},{"$f":"+SUM('OPEX Otros Gastos'!T32:T34)*'Sup fijo'!$D$198","v":0},{"$f":"+SUM('OPEX Otros Gastos'!U32:U34)*'Sup fijo'!$D$198","v":0},{"$f":"+SUM('OPEX Otros Gastos'!V32:V34)*'Sup fijo'!$D$198","v":0}]
[null,"Mantenimiento"]
[null,{"$f":"B94","v":"Intracantonal Rural"},{"$f":"'OPEX Mtto'!C14*'Sup fijo'!$D$198","v":1727.0821239466666},{"$f":"'OPEX Mtto'!D14*'Sup fijo'!$D$198","v":2737.8605897864527},{"$f":"'OPEX Mtto'!E14*'Sup fijo'!$D$198","v":2236.367109492081},{"$f":"'OPEX Mtto'!F14*'Sup fijo'!$D$198","v":3680.9754634143578},{"$f":"'OPEX Mtto'!G14*'Sup fijo'!$D$198","v":1861.3353053708975},{"$f":"'OPEX Mtto'!H14*'Sup fijo'!$D$198","v":3594.9463713016034},{"$f":"'OPEX Mtto'!I14*'Sup fijo'!$D$198","v":3447.709663391734},{"$f":"'OPEX Mtto'!J14*'Sup fijo'!$D$198","v":2515.5777626197046},{"$f":"'OPEX Mtto'!K14*'Sup fijo'!$D$198","v":3487.3001767528444},{"$f":"'OPEX Mtto'!L14*'Sup fijo'!$D$198","v":2349.6617714963577},{"$f":"'OPEX Mtto'!M14*'Sup fijo'!$D$198","v":3872.1762436390145},{"$f":"'OPEX Mtto'!N14*'Sup fijo'!$D$198","v":3710.4304451510334},{"$f":"'OPEX Mtto'!O14*'Sup fijo'!$D$198","v":0},{"$f":"'OPEX Mtto'!P14*'Sup fijo'!$D$198","v":0},{"$f":"'OPEX Mtto'!Q14*'Sup fijo'!$D$198","v":0},{"$f":"'OPEX Mtto'!R14*'Sup fijo'!$D$198","v":0},{"$f":"'OPEX Mtto'!S14*'Sup fijo'!$D$198","v":0},{"$f":"'OPEX Mtto'!T14*'Sup fijo'!$D$198","v":0},{"$f":"'OPEX Mtto'!U14*'Sup fijo'!$D$198","v":0},{"$f":"'OPEX Mtto'!V14*'Sup fijo'!$D$198","v":0}]
[null,{"$f":"B95","v":"Intracantonal Urbano"},{"$f":"'OPEX Mtto'!C24*'Sup fijo'!$D$198","v":1936.3130299733336},{"$f":"'OPEX Mtto'!D24*'Sup fijo'!$D$198","v":2628.5836482696536},{"$f":"'OPEX Mtto'!E24*'Sup fijo'!$D$198","v":2903.2247473658263},{"$f":"'OPEX Mtto'!F24*'Sup fijo'!$D$198","v":3556.6992553768855},{"$f":"'OPEX Mtto'!G24*'Sup fijo'!$D$198","v":2096.44211918769},{"$f":"'OPEX Mtto'!H24*'Sup fijo'!$D$198","v":3541.8169437356682},{"$f":"'OPEX Mtto'!I24*'Sup fijo'!$D$198","v":2134.3686776892951},{"$f":"'OPEX Mtto'!J24*'Sup fijo'!$D$198","v":4594.3907651413865},{"$f":"'OPEX Mtto'!K24*'Sup fijo'!$D$198","v":2382.6600636064036},{"$f":"'OPEX Mtto'!L24*'Sup fijo'!$D$198","v":3629.5160241495391},{"$f":"'OPEX Mtto'!M24*'Sup fijo'!$D$198","v":2919.3733255689003},{"$f":"'OPEX Mtto'!N24*'Sup fijo'!$D$198","v":4209.8948558700085},{"$f":"'OPEX Mtto'!O24*'Sup fijo'!$D$198","v":0},{"$f":"'OPEX Mtto'!P24*'Sup fijo'!$D$198","v":0},{"$f":"'OPEX Mtto'!Q24*'Sup fijo'!$D$198","v":0},{"$f":"'OPEX Mtto'!R24*'Sup fijo'!$D$198","v":0},{"$f":"'OPEX Mtto'!S24*'Sup fijo'!$D$198","v":0},{"$f":"'OPEX Mtto'!T24*'Sup fijo'!$D$198","v":0},{"$f":"'OPEX Mtto'!U24*'Sup fijo'!$D$198","v":0},{"$f":"'OPEX Mtto'!V24*'Sup fijo'!$D$198","v":0}]
[null,"Intracantonal Combinado",{"$f":"'OPEX Mtto'!C34*'Sup fijo'!$D$198","v":3595.9007197866672},{"$f":"'OPEX Mtto'!D34*'Sup fijo'!$D$198","v":5120.2269051289595},{"$f":"'OPEX Mtto'!E34*'Sup fijo'!$D$198","v":6524.49255621673},{"$f":"'OPEX Mtto'!F34*'Sup fijo'!$D$198","v":5305.8638166629571},{"$f":"'OPEX Mtto'!G34*'Sup fijo'!$D$198","v":6580.0249813230139},{"$f":"'OPEX Mtto'!H34*'Sup fijo'!$D$198","v":5706.9155386525445},{"$f":"'OPEX Mtto'!I34*'Sup fijo'!$D$198","v":6991.2763596137484},{"$f":"'OPEX Mtto'!J34*'Sup fijo'!$D$198","v":5554.5471992597741},{"$f":"'OPEX Mtto'!K34*'Sup fijo'!$D$198","v":5569.0525289253983},{"$f":"'OPEX Mtto'!L34*'Sup fijo'!$D$198","v":6437.9230378256143},{"$f":"'OPEX Mtto'!M34*'Sup fijo'!$D$198","v":7050.8337927144121},{"$f":"'OPEX Mtto'!N34*'Sup fijo'!$D$198","v":6629.4206886798474},{"$f":"'OPEX Mtto'!O34*'Sup fijo'!$D$198","v":0},{"$f":"'OPEX Mtto'!P34*'Sup fijo'!$D$198","v":0},{"$f":"'OPEX Mtto'!Q34*'Sup fijo'!$D$198","v":0},{"$f":"'OPEX Mtto'!R34*'Sup fijo'!$D$198","v":0},{"$f":"'OPEX Mtto'!S34*'Sup fijo'!$D$198","v":0},{"$f":"'OPEX Mtto'!T34*'Sup fijo'!$D$198","v":0},{"$f":"'OPEX Mtto'!U34*'Sup fijo'!$D$198","v":0},{"$f":"'OPEX Mtto'!V34*'Sup fijo'!$D$198","v":0}]
[null,"Otro",{"$f":"'OPEX Mtto'!C44*'Sup fijo'!$D$198","v":2680.5505365333338},{"$f":"'OPEX Mtto'!D44*'Sup fijo'!$D$198","v":3349.4136402466133},{"$f":"'OPEX Mtto'!E44*'Sup fijo'!$D$198","v":3976.5042987437264},{"$f":"'OPEX Mtto'!F44*'Sup fijo'!$D$198","v":4384.7228231016252},{"$f":"'OPEX Mtto'!G44*'Sup fijo'!$D$198","v":3803.1915363993871},{"$f":"'OPEX Mtto'!H44*'Sup fijo'!$D$198","v":3885.9745959236911},{"$f":"'OPEX Mtto'!I44*'Sup fijo'!$D$198","v":3109.7336640415883},{"$f":"'OPEX Mtto'!J44*'Sup fijo'!$D$198","v":5456.1001160333772},{"$f":"'OPEX Mtto'!K44*'Sup fijo'!$D$198","v":3221.5113715893749},{"$f":"'OPEX Mtto'!L44*'Sup fijo'!$D$198","v":5410.9676328990763},{"$f":"'OPEX Mtto'!M44*'Sup fijo'!$D$198","v":5738.1142630457234},{"$f":"'OPEX Mtto'!N44*'Sup fijo'!$D$198","v":4161.8766593870787},{"$f":"'OPEX Mtto'!O44*'Sup fijo'!$D$198","v":0},{"$f":"'OPEX Mtto'!P44*'Sup fijo'!$D$198","v":0},{"$f":"'OPEX Mtto'!Q44*'Sup fijo'!$D$198","v":0},{"$f":"'OPEX Mtto'!R44*'Sup fijo'!$D$198","v":0},{"$f":"'OPEX Mtto'!S44*'Sup fijo'!$D$198","v":0},{"$f":"'OPEX Mtto'!T44*'Sup fijo'!$D$198","v":0},{"$f":"'OPEX Mtto'!U44*'Sup fijo'!$D$198","v":0},{"$f":"'OPEX Mtto'!V44*'Sup fijo'!$D$198","v":0}]

{"sheet":"Componentes costos","index":13,"n_rows":175,"n_cols":18,"rows_kept":175,"cut":false,"hidden":false,"merged":[]}
[]
[null,"Estructura de costos Transporte Convencional"]
[null,"COMPONENTES COSTOS"]
[]
[null,"Con SITP-Q ( sobre base de remuneración a nuevo) ",null,null,null,null,null,null,null,null,null,null,null,"Con SITP-Q (Precios corrientes) "]
[]
[null,"Tipología ",{"$f":"+'Sup fijo'!$B$51","v":"Intracantonal Rural"},{"$f":"+'Sup fijo'!$B$52","v":"Intracantonal Urbano"},{"$f":"+'Sup fijo'!$B$53","v":"Intracantonal Combinado"},{"$f":"+'Sup fijo'!$B$54","v":"Otro"},null,"Tipología ",{"$f":"C7","v":"Intracantonal Rural"},{"$f":"D7","v":"Intracantonal Urbano"},{"$f":"E7","v":"Intracantonal Combinado"},{"$f":"F7","v":"Otro"},null,"Tipología ",{"$f":"+'Sup fijo'!$B$51","v":"Intracantonal Rural"},{"$f":"+'Sup fijo'!$B$52","v":"Intracantonal Urbano"},{"$f":"+'Sup fijo'!$B$53","v":"Intracantonal Combinado"},{"$f":"+'Sup fijo'!$B$54","v":"Otro"}]
[null,"Tecnología ",{"$f":"+'Sup fijo'!D51","v":"Euro III"},{"$f":"+'Sup fijo'!D52","v":"Euro III"},{"$f":"+'Sup fijo'!D53","v":"Euro III"},{"$f":"+'Sup fijo'!D54","v":"Euro III"},null,"Tecnología ",{"$f":"+'Sup fijo'!$D51","v":"Euro III"},{"$f":"+'Sup fijo'!$D52","v":"Euro III"},{"$f":"+'Sup fijo'!$D53","v":"Euro III"},{"$f":"+'Sup fijo'!$D53","v":"Euro III"},null,"Tecnología ",{"$f":"C8","v":"Euro III"},{"$f":"D8","v":"Euro III"},{"$f":"E8","v":"Euro III"},{"$f":"F8","v":"Euro III"}]
[null,"Combustible ",{"$f":"+'Sup fijo'!E51","v":"Diésel"},{"$f":"+'Sup fijo'!E52","v":"Diésel"},{"$f":"+'Sup fijo'!E53","v":"Diésel"},{"$f":"+'Sup fijo'!E54","v":"Diésel"},null,"Combustible ",{"$f":"+'Sup fijo'!G51","v":12},{"$f":"+'Sup fijo'!G52","v":12},{"$f":"+'Sup fijo'!G53","v":12},{"$f":"+'Sup fijo'!H53","v":12},null,"Combustible ",{"$f":"C9","v":"Diésel"},"Diésel","Diésel","Diésel"]
[null,null,{"$f":"+C7","v":"Intracantonal Rural"},{"$f":"+D7","v":"Intracantonal Urbano"},{"$f":"+E7","v":"Intracantonal Combinado"},{"$f":"+F7","v":"Otro"},null,null,null,null,null,null,null,null,{"$f":"+O7","v":"Intracantonal Rural"},{"$f":"+P7","v":"Intracantonal Urbano"},{"$f":"+Q7","v":"Intracantonal Combinado"},{"$f":"+R7","v":"Otro"}]
[null,"Costo del vehículo ",{"$f":"IFERROR(C$23*I11,0)","v":608.75365865156618},825.19940394990044,825.19940394990056,1653.5089783430458,null,"Costo del vehículo ",{"$f":"+O11/O$23","v":9.2258859143791477E-2},0.11384841154320882,8.7073402872571801E-2,0.1524143928110506,null,"Costo del vehículo ",{"$f":"SUM('FO con SITPQ'!E54,'FO con SITPQ'!E40)/'Sup fijo'!$H$51/12","v":671.156649670707},{"$f":"SUM('FO con SITPQ'!E117,'FO con SITPQ'!E131)/'Sup fijo'!$H$52/12","v":909.79012510918017},{"$f":"SUM('FO con SITPQ'!E194,'FO con SITPQ'!E208)/'Sup fijo'!$H$53/12","v":909.79012510918017},{"$f":"SUM('FO con SITPQ'!E271,'FO con SITPQ'!G285)/'Sup fijo'!$H$54/12","v":1823.0092424632967}]
[null,"Personal Directo",1207.4824982457537,1207.482498245754,1207.4824982457542,1207.4824982457542,null,"Personal Directo",0.18299842003579855,0.16658999477397901,0.12741115605279235,0.11130130783113029,null,"Personal Directo",{"$f":"'FO con SITPQ'!E26/'Sup fijo'!$H$51/12","v":1331.2608417890294},{"$f":"'FO con SITPQ'!E103/'Sup fijo'!$H$52/12","v":1331.2608417890294},{"$f":"'FO con SITPQ'!E180/'Sup fijo'!$H$53/12","v":1331.2608417890294},{"$f":"'FO con SITPQ'!E257/'Sup fijo'!$H$54/12","v":1331.2608417890294}]
[null,"Combustible ",695.31499021112518,753.2071811623365,1234.0904560730146,1165.9320813582935,null,"Combustible ",0.105377547766283,0.10391602408801069,0.13021877493911199,0.10747134280288206,null,"Combustible ",{"$f":"'FO con SITPQ'!E27/'Sup fijo'!$H$51/12","v":766.5913340539372},{"$f":"'FO con SITPQ'!E104/'Sup fijo'!$H$52/12","v":830.41802054478774},{"$f":"'FO con SITPQ'!E181/'Sup fijo'!$H$53/12","v":1360.5963662267479},{"$f":"'FO con SITPQ'!E258/'Sup fijo'!$H$54/12","v":1285.4511153187516}]
[null,"Costos mantenimiento",1584.6525638792887,1643.6746820832245,3197.3630560590377,2212.6048513731071,null,"Costos mantenimiento",0.2401599326838168,0.22676913089520953,0.33737940209056244,0.20394979971064472,null,"Costos mantenimiento",{"$f":"'FO con SITPQ'!E29/'Sup fijo'!$H$51/12","v":1747.0943961489456},{"$f":"'FO con SITPQ'!E106/'Sup fijo'!$H$52/12","v":1812.1668380919934},{"$f":"'FO con SITPQ'!E183/'Sup fijo'!$H$53/12","v":3525.1229228566299},{"$f":"'FO con SITPQ'!E260/'Sup fijo'!$H$54/12","v":2439.4177151758236}]
[null,"Seguros e Impuestos ",604.11454733915662,753.19309462942533,956.51810534681965,2191.8300901134676,null,"Seguros e Impuestos ",9.155578473751684E-2,0.10391408064332519,0.10092989154271036,0.20203485841630989,null,"Seguros e Impuestos ",{"$f":"('FO con SITPQ'!E28+SUM('FO con SITPQ'!E44:E45))/'Sup fijo'!$H$51/12","v":666.04198569844755},{"$f":"('FO con SITPQ'!E105+SUM('FO con SITPQ'!E121:E122))/'Sup fijo'!$H$52/12","v":830.40249000940651},{"$f":"('FO con SITPQ'!E182+SUM('FO con SITPQ'!E198:E199))/'Sup fijo'!$H$53/12","v":1054.5702318339438},{"$f":"('FO con SITPQ'!E259+SUM('FO con SITPQ'!E275:E276))/'Sup fijo'!$H$54/12","v":2416.5133449653617}]
[null,"Personal Indirecto",759.88625631138973,759.88625631138984,759.88625631139007,759.88625631138996,null,"Personal Indirecto",0.11516356097411551,0.10483750087611513,8.018168919708657E-2,7.0043527962709823E-2,null,"Personal Indirecto",{"$f":"'FO con SITPQ'!E30/'Sup fijo'!$H$51/12","v":837.7817638853486},{"$f":"'FO con SITPQ'!E107/'Sup fijo'!$H$52/12","v":837.7817638853486},{"$f":"'FO con SITPQ'!E184/'Sup fijo'!$H$53/12","v":837.7817638853486},{"$f":"'FO con SITPQ'!E261/'Sup fijo'!$H$54/12","v":837.7817638853486}]
[null,"Gastos administración",136.27161453976086,136.27161453976086,136.27161453976089,136.27161453976089,null,"Gastos administración",2.0652465102171749E-2,1.8800676272328135E-2,1.4379110232169772E-2,1.2561017605282205E-2,null,"Gastos administración",{"$f":"'FO con SITPQ'!E31/'Sup fijo'!$H$51/12","v":150.24074017446333},{"$f":"'FO con SITPQ'!E108/'Sup fijo'!$H$52/12","v":150.24074017446333},{"$f":"'FO con SITPQ'!E185/'Sup fijo'!$H$53/12","v":150.24074017446333},{"$f":"'FO con SITPQ'!E262/'Sup fijo'!$H$54/12","v":150.24074017446333}]
[null,"Rentabilidad",471.84941532861939,651.09592898662981,630.24689151666325,921.46529540864344,null,"Rentabilidad",7.1510516819415365E-2,8.9828272927203967E-2,6.6502400791297961E-2,8.4937291140022089E-2,null,"Rentabilidad",{"$f":"('FO con SITPQ'!E24/'Sup fijo'!$H$51/12)-SUM(O11:O17)","v":520.21843029661341},{"$f":"('FO con SITPQ'!E101/'Sup fijo'!$H$52/12)-SUM(P11:P17)","v":717.83940203474413},{"$f":"('FO con SITPQ'!E178/'Sup fijo'!$H$53/12)-SUM(Q11:Q17)","v":694.85314160191592},{"$f":"('FO con SITPQ'!E255/'Sup fijo'!$H$54/12)-SUM(R11:R17)","v":1015.9241783025991}]
[]
[null,"Subtotal costos operador Mes (USD)",{"$f":"C27*C$25","v":6068.3255445066598},6730.0106599084202,8947.0582820423406,10248.981665693464,null,"Subtotal costos operador Mes (USD)",{"$f":"+O20/O$23","v":0.9196770872629092},0.92850409201938033,0.94407582771830323,0.94471353828003179,null,"Subtotal costos operador Mes (USD)",{"$f":"+SUM(O11:O18)","v":6690.3861417174912},{"$f":"+SUM(P11:P18)","v":7419.9002216389526},{"$f":"+SUM(Q11:Q18)","v":9864.2161334772591},{"$f":"+SUM(R11:R18)","v":11299.598942074676}]
[null,"Costos del SITP-Q Mes",{"$f":"IFERROR(C$23*I21,0)","v":529.99644105771506},{"$f":"IFERROR(D$23*J21,0)","v":518.21874236754377},529.99644105771529,599.79021107354606,null,"Costos del SITP-Q Mes",8.0322912737090815E-2,7.1495907980619597E-2,5.592417228169673E-2,5.5286461719968129E-2,null,"Costos del SITP-Q Mes",{"$f":"'FO con SITPQ'!E74/'Sup fijo'!$H$51/12","v":584.32607453336618},{"$f":"'FO con SITPQ'!E151/'Sup fijo'!$H$52/12","v":571.34105065484698},{"$f":"'FO con SITPQ'!E228/'Sup fijo'!$H$53/12","v":584.32607453336618},{"$f":"'FO con SITPQ'!E305/'Sup fijo'!$H$54/12","v":661.27436418385071}]
[null,"Costos Ente Gestor Mes",{"$f":"IFERROR(C$23*I22,0)","v":0},0,0,0,null,"Costos Ente Gestor Mes",0,0,0,0,null,"Costos Ente Gestor Mes",{"$f":"'FO con SITPQ'!E75/'Sup fijo'!$H$51/12","v":0},{"$f":"'FO con SITPQ'!F75/'Sup fijo'!$H$52/12","v":0},{"$f":"'FO con SITPQ'!G75/'Sup fijo'!$H$53/12","v":0},{"$f":"'FO con SITPQ'!H75/'Sup fijo'!$H$54/12","v":0}]
[null,"Total costos del vehículo (USD)",{"$f":"IFERROR(C20/I20,0)","v":6598.3219855643747},{"$f":"IFERROR(D20/J20,0)","v":7248.2294022759643},9477.0547231000564,10848.77187676701,null,"Total costos del vehículo (USD)",1,1,1,1,null,"Total costos del vehículo (USD)",{"$f":"+SUM(O20:O22)","v":7274.7122162508576},{"$f":"+SUM(P20:P22)","v":7991.2412722937997},10448.542208010625,11960.873306258527]
[]
[null,"Demanda corregida pax mes ",{"$f":"+'Sup fijo'!$E$33","v":25677},{"$f":"+'Sup fijo'!$E$37","v":25106.400000000005},{"$f":"+'Sup fijo'!$E$41","v":25677},{"$f":"+'Sup fijo'!$E$45","v":29058.333333333336},null,null,null,null,null,null,null,"Demanda corregida pax mes ",{"$f":"+'Sup fijo'!$E$33","v":25677},{"$f":"+'Sup fijo'!$E$37","v":25106.400000000005},{"$f":"+'Sup fijo'!$E$41","v":25677},{"$f":"+'Sup fijo'!$E$45","v":29058.333333333336}]
[null,"Costo por pasajero (USD)",null,null,null,null,null,null,null,null,null,null,null,"Costo por pasajero (USD)"]
[null,"Operadores",{"$f":"tobj9mCR","v":0.23633312086718308},{"$f":"tobj12muCR","v":0.26805956488817267},{"$f":"tobj12miCR","v":0.34844640269666782},{"$f":"tobjbus4CR","v":0.3527036994216276},null,null,null,null,null,null,null,"Operadores",{"$f":"+O20/O25","v":0.26055949455611993},{"$f":"+P20/P25","v":0.29553819829362038},{"$f":"+Q20/Q25","v":0.38416544508615724},{"$f":"+R20/R25","v":0.38885915487495293}]
[null,"SITP-Q",{"$f":"IFERROR(C21/C25,0)","v":2.0640902015722828E-2},{"$f":"IFERROR(D21/D25,0)","v":2.0640902015722828E-2},2.0640902015722835E-2,2.0640902015722835E-2,null,null,null,null,null,null,null,"SITP-Q",{"$f":"+O21/O25","v":2.2756789131649576E-2},{"$f":"+P21/P25","v":2.2756789131649573E-2},{"$f":"+Q21/Q25","v":2.2756789131649576E-2},{"$f":"+R21/R25","v":2.275678913164958E-2}]
[null,"Ente Gestor",{"$f":"IFERROR(C22/C25,0)","v":0},{"$f":"IFERROR(D22/D25,0)","v":0},0,0,null,null,null,null,null,null,null,"Ente Gestor",{"$f":"+O22/O25","v":0},{"$f":"+P22/P25","v":0},0,0]
[null,"Total (USD)",{"$f":"SUM(C27:C29)","v":0.25697402288290594},0.2887004669038955,0.36908730471239065,{"$f":"SUM(F27:F29)","v":0.37334460143735043},null,null,null,null,null,null,null,"Total (USD)",{"$f":"+SUM(O27:O29)","v":0.28331628368776951},{"$f":"+SUM(P27:P29)","v":0.31829498742526996},0.40692223421780682,0.41161594400660251]
[]
[null,"Costo por KM (USD)",{"$f":"+C20/'Sup fijo'!E16","v":1.0342855230247407},{"$f":"+D20/'Sup fijo'!E20","v":1.2653170795428357},{"$f":"+E20/'Sup fijo'!E24","v":0.954200211384028},{"$f":"+F20/'Sup fijo'!E28","v":1.869115197390905},null,null,null,null,null,null,null,"Costo por KM (USD)",{"$f":"+O20/'Sup fijo'!E16","v":1.1403095432294106},{"$f":"+P20/'Sup fijo'!E20","v":1.3950240130928997},{"$f":"+Q20/'Sup fijo'!E24","v":1.0520147318804731},{"$f":"+R20/'Sup fijo'!E28","v":2.0607171322932536}]
[]
[]
[null,null,null,null,null,null,null,"Canasta de Costos operador"]
[null,null,null,null,null,null,null,null,null,null,null,null,"Canasta de costos por vehículo "]
[]
[null,null,null,null,null,null,null,null,null,null,null,null,"Tipología",{"$f":"+Resultados!D69","v":"Intracantonal Rural"},{"$f":"+Resultados!E69","v":"Intracantonal Urbano"},{"$f":"+Resultados!F69","v":"Intracantonal Combinado"},{"$f":"+Resultados!G69","v":"Otro"}]
[null,null,null,null,null,null,null,null,null,null,null,null,"Costo del vehículo ",{"$f":"+'Componentes costos'!O11/'Componentes costos'!O$20","v":0.10031657896182569},{"$f":"+'Componentes costos'!P11/'Componentes costos'!P$20","v":0.1226148732372334},{"$f":"+'Componentes costos'!Q11/'Componentes costos'!Q$20","v":9.2231365655252306E-2},{"$f":"+'Componentes costos'!R11/'Componentes costos'!R$20","v":0.16133397758704709}]
[null,null,null,null,null,null,null,null,null,null,null,null,"Personal Directo",{"$f":"+'Componentes costos'!O12/'Componentes costos'!O$20","v":0.1989811669446154},{"$f":"+'Componentes costos'!P12/'Componentes costos'!P$20","v":0.17941762045621854},{"$f":"+'Componentes costos'!Q12/'Componentes costos'!Q$20","v":0.13495860429000386},{"$f":"+'Componentes costos'!R12/'Componentes costos'!R$20","v":0.11781487543172942}]
[null,null,null,null,null,null,null,null,null,null,null,null,"Combustible ",{"$f":"+'Componentes costos'!O13/'Componentes costos'!O$20","v":0.11458102982635099},{"$f":"+'Componentes costos'!P13/'Componentes costos'!P$20","v":0.11191768025707494},{"$f":"+'Componentes costos'!Q13/'Componentes costos'!Q$20","v":0.13793253795495666},{"$f":"+'Componentes costos'!R13/'Componentes costos'!R$20","v":0.11376077344942784}]
[null,null,null,null,null,null,null,null,null,null,null,null,"Costos mantenimiento",{"$f":"+'Componentes costos'!O14/'Componentes costos'!O$20","v":0.26113506143614729},{"$f":"+'Componentes costos'!P14/'Componentes costos'!P$20","v":0.24423062089259617},{"$f":"+'Componentes costos'!Q14/'Componentes costos'!Q$20","v":0.35736472874849512},{"$f":"+'Componentes costos'!R14/'Componentes costos'!R$20","v":0.21588533607971855}]
[null,null,null,null,null,null,null,null,null,null,null,null,"Seguros e Impuestos ",{"$f":"+'Componentes costos'!O15/'Componentes costos'!O$20","v":9.9552099324340004E-2},{"$f":"+'Componentes costos'!P15/'Componentes costos'!P$20","v":0.11191558716486111},{"$f":"+'Componentes costos'!Q15/'Componentes costos'!Q$20","v":0.1069086704472071},{"$f":"+'Componentes costos'!R15/'Componentes costos'!R$20","v":0.21385832872061875}]
[null,null,null,null,null,null,null,null,null,null,null,null,"Personal Indirecto",{"$f":"+'Componentes costos'!O16/'Componentes costos'!O$20","v":0.12522173550812141},{"$f":"+'Componentes costos'!P16/'Componentes costos'!P$20","v":0.11291011184248705},{"$f":"+'Componentes costos'!Q16/'Componentes costos'!Q$20","v":8.4931407883701765E-2},{"$f":"+'Componentes costos'!R16/'Componentes costos'!R$20","v":7.4142610563444192E-2}]
[null,null,null,null,null,null,null,null,null,null,null,null,"Gastos administración",{"$f":"+'Componentes costos'!O17/'Componentes costos'!O$20","v":2.2456213586484409E-2},{"$f":"+'Componentes costos'!P17/'Componentes costos'!P$20","v":2.0248350474620969E-2},{"$f":"+'Componentes costos'!Q17/'Componentes costos'!Q$20","v":1.5230884861147258E-2},{"$f":"+'Componentes costos'!R17/'Componentes costos'!R$20","v":1.3296112627062692E-2}]
[null,null,null,null,null,null,null,null,null,null,null,null,"Rentabilidad",{"$f":"+'Componentes costos'!O18/'Componentes costos'!O$20","v":7.7756114412114927E-2},{"$f":"+'Componentes costos'!P18/'Componentes costos'!P$20","v":9.6745155674907907E-2},{"$f":"+'Componentes costos'!Q18/'Componentes costos'!Q$20","v":7.0441800159235915E-2},{"$f":"+'Componentes costos'!R18/'Componentes costos'!R$20","v":8.9907985540951349E-2}]
[]
[]
[]
[]
[]
[]
[]
[]
[]
[]
[null,"Sin SITP-Q ( sobre base de remuneración a nuevo) ",null,null,null,null,null,null,null,null,null,null,null,"Sin SITP-Q (Precios corrientes) "]
[]
[null,"Tipología ",{"$f":"+'Sup fijo'!$B$51","v":"Intracantonal Rural"},{"$f":"+'Sup fijo'!$B$52","v":"Intracantonal Urbano"},{"$f":"+'Sup fijo'!$B$53","v":"Intracantonal Combinado"},{"$f":"+'Sup fijo'!$B$54","v":"Otro"},null,"Tipología ",{"$f":"C59","v":"Intracantonal Rural"},{"$f":"D59","v":"Intracantonal Urbano"},{"$f":"E59","v":"Intracantonal Combinado"},{"$f":"F59","v":"Otro"},null,"Tipología ",{"$f":"C59","v":"Intracantonal Rural"},{"$f":"D59","v":"Intracantonal Urbano"},"Intracantonal Combinado","Otro"]
[null,"Tecnología ",{"$f":"+'Sup fijo'!D51","v":"Euro III"},{"$f":"+'Sup fijo'!D52","v":"Euro III"},{"$f":"+'Sup fijo'!D53","v":"Euro III"},{"$f":"+'Sup fijo'!D54","v":"Euro III"},null,"Tecnología ",{"$f":"+'Sup fijo'!$D51","v":"Euro III"},{"$f":"+'Sup fijo'!$D52","v":"Euro III"},{"$f":"+'Sup fijo'!$D53","v":"Euro III"},{"$f":"+'Sup fijo'!$D53","v":"Euro III"},null,"Tecnología ",{"$f":"+'Sup fijo'!P51","v":0},{"$f":"+'Sup fijo'!P52","v":0},{"$f":"+'Sup fijo'!P53","v":0},{"$f":"+'Sup fijo'!P54","v":0}]
[null,"Combustible ",{"$f":"+'Sup fijo'!E51","v":"Diésel"},{"$f":"+'Sup fijo'!E52","v":"Diésel"},{"$f":"+'Sup fijo'!E53","v":"Diésel"},{"$f":"+'Sup fijo'!E54","v":"Diésel"},null,"Combustible ",{"$f":"+'Sup fijo'!G51","v":12},{"$f":"+'Sup fijo'!G52","v":12},{"$f":"+'Sup fijo'!G53","v":12},{"$f":"+'Sup fijo'!H53","v":12},null,"Combustible ",{"$f":"+'Sup fijo'!Q51","v":0},{"$f":"+'Sup fijo'!Q52","v":0},{"$f":"+'Sup fijo'!Q53","v":0},{"$f":"+'Sup fijo'!Q54","v":0}]
[null,null,null,null,null,null,null,null,null,null,null,null,null,null,{"$f":"+C59","v":"Intracantonal Rural"},{"$f":"+D59","v":"Intracantonal Urbano"},{"$f":"+E59","v":"Intracantonal Combinado"},{"$f":"+F59","v":"Otro"}]
[null,"Costo del vehículo ",{"$f":"IFERROR(C$75*I63,0)","v":608.75365865156618},825.19940394990056,825.19940394990044,1393.9009949413266,null,"Costo del vehículo ",{"$f":"+O63/O$75","v":9.6171132409892654E-2},0.12003691653902464,9.3916734163045773E-2,0.15633480950182188,null,"Costo del vehículo ",{"$f":"SUM('FO sin SITPQ'!E39,'FO sin SITPQ'!E53)/'Sup fijo'!$H$51/12","v":671.156649670707},{"$f":"SUM('FO sin SITPQ'!E112,'FO sin SITPQ'!E126)/'Sup fijo'!$H$52/12","v":909.79012510918017},{"$f":"SUM('FO sin SITPQ'!E185,'FO sin SITPQ'!E199)/'Sup fijo'!$H$53/12","v":909.79012510918017},{"$f":"SUM('FO sin SITPQ'!E258,'FO sin SITPQ'!E272)/'Sup fijo'!$H$54/12","v":1536.7889924632964}]
[null,"Personal Directo",2050.4305148704975,2050.4305148704975,2050.4305148704975,2050.4305148704975,null,"Personal Directo",0.32392778546857554,0.29826409884019028,0.23336145986428861,0.22996874606040066,null,"Personal Directo",{"$f":"'FO sin SITPQ'!E25/'Sup fijo'!$H$51/12","v":2260.6189797550637},{"$f":"'FO sin SITPQ'!E98/'Sup fijo'!$H$52/12","v":2260.6189797550637},{"$f":"'FO sin SITPQ'!E171/'Sup fijo'!$H$53/12","v":2260.6189797550637},{"$f":"'FO sin SITPQ'!E244/'Sup fijo'!$H$54/12","v":2260.6189797550637}]
[null,"Combustible ",695.31499021112529,753.2071811623365,1234.0904560730141,1165.9320813582933,null,"Combustible ",0.1098461241913479,0.10956463020817514,0.14045301625447831,0.13076665451328126,null,"Combustible ",{"$f":"'FO sin SITPQ'!E26/'Sup fijo'!$H$51/12","v":766.5913340539372},{"$f":"'FO sin SITPQ'!E99/'Sup fijo'!$H$52/12","v":830.41802054478774},{"$f":"'FO sin SITPQ'!E172/'Sup fijo'!$H$53/12","v":1360.5963662267479},{"$f":"'FO sin SITPQ'!E245/'Sup fijo'!$H$54/12","v":1285.4511153187516}]
[null,"Costos mantenimiento",1267.7220511034309,1314.9397456665797,2557.8904448472299,1770.0838810984851,null,"Costos mantenimiento",0.20027520738958124,0.19127657115225979,0.29111596030854253,0.19852609859527748,null,"Costos mantenimiento",{"$f":"'FO sin SITPQ'!E28/'Sup fijo'!$H$51/12","v":1397.6755169191565},{"$f":"'FO sin SITPQ'!E101/'Sup fijo'!$H$52/12","v":1449.7334704735949},{"$f":"'FO sin SITPQ'!E174/'Sup fijo'!$H$53/12","v":2820.0983382853042},{"$f":"'FO sin SITPQ'!E247/'Sup fijo'!$H$54/12","v":1951.5341721406585}]
[null,"Seguros e Impuestos ",282.93973522471856,310.01015136961962,527.52652372623345,439.11650882029926,null,"Seguros e Impuestos ",4.4698926000034112E-2,4.5095358149900795E-2,6.0038298689513131E-2,4.9249692772058186E-2,null,"Seguros e Impuestos ",{"$f":"('FO sin SITPQ'!E27+SUM('FO sin SITPQ'!E43:E44))/'Sup fijo'!$H$51/12","v":311.94372642092128},{"$f":"('FO sin SITPQ'!E100+SUM('FO sin SITPQ'!E116:E117))/'Sup fijo'!$H$52/12","v":341.78911551517018},{"$f":"('FO sin SITPQ'!E173+SUM('FO sin SITPQ'!E189:E190))/'Sup fijo'!$H$53/12","v":581.60296738221939},{"$f":"('FO sin SITPQ'!E246+SUM('FO sin SITPQ'!E262:E263))/'Sup fijo'!$H$54/12","v":484.1300921751286}]
[null,"Personal Indirecto",796.21330867597601,796.21330867597612,796.21330867597612,796.21330867597612,null,"Personal Indirecto",0.12578607856716661,0.11582047929666385,9.061779891026274E-2,8.9300356615294313E-2,null,"Personal Indirecto",{"$f":"'FO sin SITPQ'!E29/'Sup fijo'!$H$51/12","v":877.83268170888016},{"$f":"'FO sin SITPQ'!E102/'Sup fijo'!$H$52/12","v":877.83268170888016},{"$f":"'FO sin SITPQ'!E175/'Sup fijo'!$H$53/12","v":877.83268170888016},{"$f":"'FO sin SITPQ'!E248/'Sup fijo'!$H$54/12","v":877.83268170888016}]
[null,"Gastos administración",187.84499999999997,187.845,187.845,187.84499999999997,null,"Gastos administración",2.9675823891641438E-2,2.7324710220757789E-2,2.1378819282240297E-2,2.1068004397332293E-2,null,"Gastos administración",{"$f":"'FO sin SITPQ'!E30/'Sup fijo'!$H$51/12","v":207.1008840204029},{"$f":"'FO sin SITPQ'!E103/'Sup fijo'!$H$52/12","v":207.1008840204029},{"$f":"'FO sin SITPQ'!E176/'Sup fijo'!$H$53/12","v":207.1008840204029},{"$f":"'FO sin SITPQ'!E249/'Sup fijo'!$H$54/12","v":207.1008840204029}]
[null,"Rentabilidad",440.68082039440066,636.70152325186439,607.30455257358074,1112.6045752829368,null,"Rentabilidad",6.9618922081760529E-2,9.2617235593027605E-2,6.9117912527628556E-2,0.12478563754453377,null,"Rentabilidad",{"$f":"('FO sin SITPQ'!E23/'Sup fijo'!$H$51/12)-SUM(O63:O69)","v":485.85476043821654},{"$f":"('FO sin SITPQ'!E96/'Sup fijo'!$H$52/12)-SUM(P63:P69)","v":701.96943396203369},{"$f":"('FO sin SITPQ'!E169/'Sup fijo'!$H$53/12)-SUM(Q63:Q69)","v":669.55899655356188},{"$f":"('FO sin SITPQ'!E242/'Sup fijo'!$H$54/12)-SUM(R63:R69)","v":1226.6570369519613}]
[]
[null,"Subtotal costos operador Mes (USD)",{"$f":"C79*C$77","v":6329.9000791317148},{"$f":"D79*D$77","v":6874.5468289467753},8786.5002047164326,8916.126865047816,null,"Subtotal costos operador Mes",{"$f":"+O72/O$75","v":1},1,1,1,null,"Subtotal costos operador Mes (USD)",{"$f":"+SUM(O63:O70)","v":6978.7745329872851},{"$f":"+SUM(P63:P70)","v":7579.2527110891142},{"$f":"+SUM(Q63:Q70)","v":9687.1993390413609},{"$f":"+SUM(R63:R70)","v":9830.1139545341448}]
[null,"Costos del SITP-Q Mes",0,{"$f":"+C73","v":0},{"$f":"+D73","v":0},{"$f":"+E73","v":0},null,"Costos del SITP-Q Mes",0,0,0,0,null,"Costos del SITP-Q Mes",0,{"$f":"+O73","v":0},{"$f":"+P73","v":0},{"$f":"+Q73","v":0}]
[null,"Costos Ente Gestor Mes",{"$f":"IFERROR(C$75*I74,0)","v":0},{"$f":"IFERROR(D$75*J74,0)","v":0},0,0,null,"Costos Ente Gestor Mes",{"$f":"+O74/O$75","v":0},{"$f":"+P74/P$75","v":0},0,0,null,"Costos Ente Gestor Mes",{"$f":"'FO sin SITPQ'!E71/'Sup fijo'!$H$51/12","v":0},{"$f":"'FO sin SITPQ'!E144/'Sup fijo'!$H$52/12","v":0},{"$f":"'FO sin SITPQ'!E217/'Sup fijo'!$H$53/12","v":0},{"$f":"'FO sin SITPQ'!E290/'Sup fijo'!$H$54/12","v":0}]
[null,"Total costos del vehículo (USD)",{"$f":"IFERROR(C72/I72,0)","v":6329.9000791317148},{"$f":"IFERROR(D72/J72,0)","v":6874.5468289467753},{"$f":"IFERROR(E72/K72,0)","v":8786.5002047164326},{"$f":"IFERROR(F72/L72,0)","v":8916.126865047816},null,"Total costos del vehículo",{"$f":"+O75/O$75","v":1},{"$f":"+P75/P$75","v":1},{"$f":"+Q75/Q$75","v":1},{"$f":"+R75/R$75","v":1},null,"Total costos del vehículo (USD)",{"$f":"+SUM(O72:O73)","v":6978.7745329872851},{"$f":"+SUM(P72:P73)","v":7579.2527110891142},{"$f":"+SUM(Q72:Q73)","v":9687.1993390413609},{"$f":"+SUM(R72:R73)","v":9830.1139545341448}]
[]
[null,"Demanda corregida pax mes ",{"$f":"+'Sup fijo'!$E$33","v":25677},{"$f":"+'Sup fijo'!$E$37","v":25106.400000000005},{"$f":"+'Sup fijo'!$E$41","v":25677},{"$f":"+'Sup fijo'!$E$45","v":29058.333333333336},null,null,null,null,null,null,null,"Demanda corregida pax mes ",{"$f":"+'Sup fijo'!$E$33","v":25677},{"$f":"+'Sup fijo'!$E$37","v":25106.400000000005},{"$f":"+'Sup fijo'!$E$41","v":25677},{"$f":"+'Sup fijo'!$E$45","v":29058.333333333336}]
[null,"Costo por pasajero (USD)",null,null,null,null,null,null,null,null,null,null,null,"Costo por pasajero (USD)"]
[null,"Operadores",{"$f":"tobj9mSR","v":0.24652023519615668},{"$f":"tobj12muSR","v":0.273816510090924},{"$f":"tobj12miSR","v":0.34219341062882863},{"$f":"tobjbus4SR","v":0.30683545276906737},null,null,null,null,null,null,null,"Operadores",{"$f":"+O72/O77","v":0.27179088417600517},{"$f":"+P72/P77","v":0.30188528467200049},{"$f":"+Q72/Q77","v":0.37727146236092068},{"$f":"+R72/R77","v":0.33828898036825272}]
[null,"SITP-Q",{"$f":"+C73/C77","v":0},{"$f":"+D73/D77","v":0},{"$f":"+E73/E77","v":0},{"$f":"+F73/F77","v":0},null,null,null,null,null,null,null,"SITP-Q",{"$f":"+O73/O77","v":0},{"$f":"+P73/P77","v":0},{"$f":"+Q73/Q77","v":0},{"$f":"+R73/R77","v":0}]
[null,"Ente Gestor",{"$f":"IFERROR(C74/C77,0)","v":0},{"$f":"IFERROR(D74/D77,0)","v":0},0,0,null,null,null,null,null,null,null,"Ente Gestor",{"$f":"+O74/O77","v":0},{"$f":"+P74/P77","v":0},0,0]
[null,"Total (USD)",{"$f":"+SUM(C79:C81)","v":0.24652023519615668},{"$f":"+SUM(D79:D81)","v":0.273816510090924},{"$f":"+SUM(E79:E81)","v":0.34219341062882863},{"$f":"+SUM(F79:F81)","v":0.30683545276906737},null,null,null,null,null,null,null,"Total (USD)",{"$f":"+SUM(O79:O81)","v":0.27179088417600517},{"$f":"+SUM(P79:P81)","v":0.30188528467200049},0.37727146236092068,0.33828898036825272]
[]
[null,"Costo por KM (USD)",{"$f":"+C72/'Sup fijo'!E16","v":1.0788682917589489},{"$f":"+D72/'Sup fijo'!E20","v":1.2924914916704995},{"$f":"+E72/'Sup fijo'!E24","v":0.93707675622209041},{"$f":"+F72/'Sup fijo'!E28","v":1.626041373564951},null,null,null,null,null,null,null,"Costo por KM (USD)",{"$f":"+O72/'Sup fijo'!E16","v":1.1894624662080988},{"$f":"+P72/'Sup fijo'!E20","v":1.4249840587389051},{"$f":"+Q72/'Sup fijo'!E24","v":1.0331359610773059},{"$f":"+R72/'Sup fijo'!E28","v":1.792725949155163}]
[]
[]
[]
[]
[null,null,null,null,null,null,null,null,null,null,null,null,"Canasta de costos por vehículo "]
[null,null,null,null,null,null,null,"Canasta de Costos operador"]
[null,null,null,null,null,null,null,null,null,null,null,null,"Tipología",{"$f":"+Resultados!D41","v":"Intracantonal Rural"},{"$f":"+Resultados!E41","v":"Intracantonal Urbano"},{"$f":"+Resultados!F41","v":"Intracantonal Combinado"},{"$f":"+Resultados!G41","v":"Otro"}]
[null,null,null,null,null,null,null,null,null,null,null,null,"Costo del vehículo ",{"$f":"+O63/'Componentes costos'!O$72","v":9.6171132409892654E-2},{"$f":"+P63/'Componentes costos'!P$72","v":0.12003691653902464},{"$f":"+Q63/'Componentes costos'!Q$72","v":9.3916734163045773E-2},{"$f":"+R63/'Componentes costos'!R$72","v":0.15633480950182188}]
[null,null,null,null,null,null,null,null,null,null,null,null,"Personal Directo",{"$f":"+O64/'Componentes costos'!O$72","v":0.32392778546857554},{"$f":"+P64/'Componentes costos'!P$72","v":0.29826409884019028},{"$f":"+Q64/'Componentes costos'!Q$72","v":0.23336145986428861},{"$f":"+R64/'Componentes costos'!R$72","v":0.22996874606040066}]
[null,null,null,null,null,null,null,null,null,null,null,null,"Combustible ",{"$f":"+O65/'Componentes costos'!O$72","v":0.1098461241913479},{"$f":"+P65/'Componentes costos'!P$72","v":0.10956463020817514},{"$f":"+Q65/'Componentes costos'!Q$72","v":0.14045301625447831},{"$f":"+R65/'Componentes costos'!R$72","v":0.13076665451328126}]
[null,null,null,null,null,null,null,null,null,null,null,null,"Costos mantenimiento",{"$f":"+O66/'Componentes costos'!O$72","v":0.20027520738958124},{"$f":"+P66/'Componentes costos'!P$72","v":0.19127657115225979},{"$f":"+Q66/'Componentes costos'!Q$72","v":0.29111596030854253},{"$f":"+R66/'Componentes costos'!R$72","v":0.19852609859527748}]
[null,null,null,null,null,null,null,null,null,null,null,null,"Seguros e Impuestos ",{"$f":"+O67/'Componentes costos'!O$72","v":4.4698926000034112E-2},{"$f":"+P67/'Componentes costos'!P$72","v":4.5095358149900795E-2},{"$f":"+Q67/'Componentes costos'!Q$72","v":6.0038298689513131E-2},{"$f":"+R67/'Componentes costos'!R$72","v":4.9249692772058186E-2}]
[null,null,null,null,null,null,null,null,null,null,null,null,"Personal Indirecto",{"$f":"+O68/'Componentes costos'!O$72","v":0.12578607856716661},{"$f":"+P68/'Componentes costos'!P$72","v":0.11582047929666385},{"$f":"+Q68/'Componentes costos'!Q$72","v":9.061779891026274E-2},{"$f":"+R68/'Componentes costos'!R$72","v":8.9300356615294313E-2}]
[null,null,null,null,null,null,null,null,null,null,null,null,"Gastos administración",{"$f":"+O69/'Componentes costos'!O$72","v":2.9675823891641438E-2},{"$f":"+P69/'Componentes costos'!P$72","v":2.7324710220757789E-2},{"$f":"+Q69/'Componentes costos'!Q$72","v":2.1378819282240297E-2},{"$f":"+R69/'Componentes costos'!R$72","v":2.1068004397332293E-2}]
[null,null,null,null,null,null,null,null,null,null,null,null,"Rentabilidad",{"$f":"+O70/'Componentes costos'!O$72","v":6.9618922081760529E-2},{"$f":"+P70/'Componentes costos'!P$72","v":9.2617235593027605E-2},{"$f":"+Q70/'Componentes costos'!Q$72","v":6.9117912527628556E-2},{"$f":"+R70/'Componentes costos'!R$72","v":0.12478563754453377}]
[]
[]
[]
[]
[]
[]
[]
[]
[]
[null,null,"Tarifa actual eq.","Incentivo caja común (eq. por pas)","T. Actual +Caja Común"]
[null,"T. Actual +Caja Común",{"$f":"0.25*0.893481776513347*100","v":22.337044412833677},{"$f":"1000/$D$77*100","v":3.9830481470860013},{"$f":"D110+C110","v":26.320092559919679}]
[null,"T. Actual estimada",{"$f":"D79*100","v":27.381651009092401}]
[null,"T. 100% IESS ",0]
[null,"T. 100% IESS + SITP-Q",0]
[null,"Diferencia",{"$f":"C111-E110","v":1.0615584491727219}]
[]
[]
[]
[]
[]
[]
[]
[]
[]
[]
[]
[]
[]
[]
[]
[]
[]
[]
[]
[]
[]
[null,null,null,null,null,null,null,"Tipología ","Intracantonal Rural","Intracantonal Urbano","Intracantonal Combinado"]
[null,null,null,null,null,null,null,"Tecnología ","Euro III","Euro III","Euro III"]
[null,null,null,null,null,null,null,"Combustible ",12,12,12]
[]
[null,null,null,null,null,null,null,"Costo del vehículo ",{"$f":"I63","v":9.6171132409892654E-2},{"$f":"J11","v":0.11384841154320882},{"$f":"K63","v":9.3916734163045773E-2}]
[null,null,null,null,null,null,null,"Personal Directo",{"$f":"I64","v":0.32392778546857554},{"$f":"J12","v":0.16658999477397901},0.23336145986428861]
[null,null,null,null,null,null,null,"Combustible ",0.1098461241913479,0.10391602408801069,0.14045301625447831]
[null,null,null,null,null,null,null,"Costos mantenimiento",0.20027520738958124,0.22676913089520953,0.29111596030854253]
[null,null,null,null,null,null,null,"Seguros e Impuestos ",4.4698926000034112E-2,0.10391408064332519,6.0038298689513131E-2]
[null,null,null,null,null,null,null,"Personal Indirecto",0.12578607856716661,0.10483750087611513,9.061779891026274E-2]
[null,null,null,null,null,null,null,"Gastos administración",2.9675823891641438E-2,1.8800676272328135E-2,2.1378819282240297E-2]
[null,null,null,null,null,null,null,"Rentabilidad",6.9618922081760529E-2,8.9828272927203967E-2,6.9117912527628556E-2]
[]
[null,null,null,null,null,null,null,"Subtotal costos operador Mes",1,0.92850409201938033,1]
[null,null,null,null,null,null,null,"Costos del SITP-Q Mes",0,7.1495907980619597E-2,0]
[null,null,null,null,null,null,null,"Costos Ente Gestor Mes",0,0,0]
[null,null,null,null,null,null,null,"Total costos del vehículo",1,1,1]
[]
[]
[]
[]
[]
[null,null,null,null,null,null,null,"Subsistema","Intracantonal Rural","Intracantonal Urbano","Intracantonal Combinado"]
[null,null,null,null,null,null,null,"Esquema Actual"]
[null,null,null,null,null,null,null,"Rentabilidad 19%",0.26775886377646491,0.28719790759871877,0.37908503030855711]
[null,null,null,null,null,null,null,"Rentabilidad 13%",0.26056137265738366,0.27690437801586398,0.36940152566667089]
[null,null,null,null,null,null,null,"Diferencia",{"$f":"I160-I161","v":7.1974911190812452E-3},{"$f":"J160-J161","v":1.0293529582854788E-2},9.6835046418862203E-3]
[null,null,null,null,null,null,null,"% variación",{"$f":"I162/I161","v":2.7623016587901315E-2},{"$f":"J162/J161","v":3.7173589152371823E-2},2.6214035322160854E-2]
[null,null,null,null,null,null,null,"Esquema Propuesto"]
[null,null,null,null,null,null,null,"Rentabilidad 19%",0.33945034376273753,0.35750255525097285,0.45313303110147951]
[null,null,null,null,null,null,null,"Rentabilidad 13%",0.33228285711743494,0.33850515851086727,0.43185587513410345]
[null,null,null,null,null,null,null,"Diferencia",{"$f":"I165-I166","v":7.1674866453025898E-3},{"$f":"J165-J166","v":1.8997396740105588E-2},{"$f":"K165-K166","v":2.127715596737606E-2}]
[null,null,null,null,null,null,null,"% variación",{"$f":"I167/I166","v":2.157043763100143E-2},{"$f":"J167/J166","v":5.612143940044477E-2},{"$f":"K167/K166","v":4.9269113128931966E-2}]
[]
[]
[]
[]
[]
[null,null,null,null,null,null,0.1,0.09]
[null,null,null,null,null,null,{"$f":"G174/0.23","v":0.43478260869565216},{"$f":"H174/0.23","v":0.39130434782608692}]

{"sheet":"FO con SITPQ","index":14,"n_rows":368,"n_cols":27,"rows_kept":368,"cut":false,"hidden":false,"merged":[]}
[]
[null,"Estructura de costos Transporte Convencional"]
[null,"FLUJO DE CAJA (precios constantes)"]
[]
[]
[null,null,null,null,"Año",null,0,1,{"$f":"H6+1","v":2},{"$f":"I6+1","v":3},4,5,6,7,8,9,10,11,12,13,14,15,16,17,18,19,20]
[]
[null,{"$f":"'Sup fijo'!B14","v":"Intracantonal Rural"}]
[null,null,{"$f":"C19/0.893481776513347","v":0.26450804826644686}]
[null,"Supuestos"]
[null,"Demanda Anual",null,null,{"$f":"+SUM(H11:AA11)","v":6162480},null,null,{"$f":"'Sup fijo'!E34","v":308124},{"$f":"'Sup fijo'!F34","v":308124},{"$f":"'Sup fijo'!G34","v":308124},{"$f":"'Sup fijo'!H34","v":308124},{"$f":"'Sup fijo'!I34","v":308124},{"$f":"'Sup fijo'!J34","v":308124},{"$f":"'Sup fijo'!K34","v":308124},{"$f":"'Sup fijo'!L34","v":308124},{"$f":"'Sup fijo'!M34","v":308124},{"$f":"'Sup fijo'!N34","v":308124},{"$f":"'Sup fijo'!O34","v":308124},{"$f":"'Sup fijo'!P34","v":308124},{"$f":"'Sup fijo'!Q34","v":308124},{"$f":"'Sup fijo'!R34","v":308124},{"$f":"'Sup fijo'!S34","v":308124},{"$f":"'Sup fijo'!T34","v":308124},{"$f":"'Sup fijo'!U34","v":308124},{"$f":"'Sup fijo'!V34","v":308124},{"$f":"'Sup fijo'!W34","v":308124},{"$f":"'Sup fijo'!X34","v":308124}]
[null,"kilómetros Anual",null,null,{"$f":"+SUM(H12:AA12)","v":1408120.0000000002},null,null,{"$f":"'Sup fijo'!E17","v":70406.000000000015},{"$f":"'Sup fijo'!F17","v":70406.000000000015},{"$f":"'Sup fijo'!G17","v":70406.000000000015},{"$f":"'Sup fijo'!H17","v":70406.000000000015},{"$f":"'Sup fijo'!I17","v":70406.000000000015},{"$f":"'Sup fijo'!J17","v":70406.000000000015},{"$f":"'Sup fijo'!K17","v":70406.000000000015},{"$f":"'Sup fijo'!L17","v":70406.000000000015},{"$f":"'Sup fijo'!M17","v":70406.000000000015},{"$f":"'Sup fijo'!N17","v":70406.000000000015},{"$f":"'Sup fijo'!O17","v":70406.000000000015},{"$f":"'Sup fijo'!P17","v":70406.000000000015},{"$f":"'Sup fijo'!Q17","v":70406.000000000015},{"$f":"'Sup fijo'!R17","v":70406.000000000015},{"$f":"'Sup fijo'!S17","v":70406.000000000015},{"$f":"'Sup fijo'!T17","v":70406.000000000015},{"$f":"'Sup fijo'!U17","v":70406.000000000015},{"$f":"'Sup fijo'!V17","v":70406.000000000015},{"$f":"'Sup fijo'!W17","v":70406.000000000015},{"$f":"'Sup fijo'!X17","v":70406.000000000015}]
[null,"Tir accionista ",{"$f":"IFERROR(+IRR(G66:AA66),0)","v":0.1299999999998811}]
[]
[null,"Aportes capital ",{"$f":"E68","v":41743.334721261628}]
[]
[null,"Resultados Tarifas"]
[null,"Tarifa técnica por pasajero",{"$f":"SUM(C19:C20)","v":0.23633312086718308},null,null,null,null,{"$f":"SUM(H19:H20)","v":0.24200511576799549},{"$f":"SUM(I19:I20)","v":0.26915320593774872},0.27615118929213017,0.27734416242987225,0.27809299166843288,0.27995621471261134,0.28539051478545158,0.29034315502367758,0.29457073849605897,0.29851230856968836,0.30240888398419147,0.30586692358537532,0.28285958307417958,0.28668593689814237,0.29080871616030823,0.29480792281516277,0.29872939347654281,0.30265601927235913,0.30662531855696973,0.31064903463769433]
[null,"Tarifa operador privado",0.23633312086718308,null,null,null,null,{"$f":"$C19*(1+'Sup Generales'!C$8)","v":0.24200511576799549},{"$f":"$C19*(1+'Sup Generales'!D$8)","v":0.2458771976202834},{"$f":"$C19*(1+'Sup Generales'!E$8)","v":0.25227000475841077},{"$f":"$C19*(1+'Sup Generales'!F$8)","v":0.25335981117896716},{"$f":"$C19*(1+'Sup Generales'!G$8)","v":0.25404388266915034},{"$f":"$C19*(1+'Sup Generales'!H$8)","v":0.25574597668303362},{"$f":"$C19*(1+'Sup Generales'!I$8)","v":0.26071032577292219},{"$f":"$C19*(1+'Sup Generales'!J$8)","v":0.26523466832479248},{"$f":"$C19*(1+'Sup Generales'!K$8)","v":0.26909665604763383},{"$f":"$C19*(1+'Sup Generales'!L$8)","v":0.27269736442690579},{"$f":"$C19*(1+'Sup Generales'!M$8)","v":0.27625696922483528},{"$f":"$C19*(1+'Sup Generales'!N$8)","v":0.27941596219850878},{"$f":"$C19*(1+'Sup Generales'!O$8)","v":0.28285958307417958},{"$f":"$C19*(1+'Sup Generales'!P$8)","v":0.28668593689814237},{"$f":"$C19*(1+'Sup Generales'!Q$8)","v":0.29080871616030823},{"$f":"$C19*(1+'Sup Generales'!R$8)","v":0.29480792281516277},{"$f":"$C19*(1+'Sup Generales'!S$8)","v":0.29872939347654281},{"$f":"$C19*(1+'Sup Generales'!T$8)","v":0.30265601927235913},{"$f":"$C19*(1+'Sup Generales'!U$8)","v":0.30662531855696973},{"$f":"$C19*(1+'Sup Generales'!V$8)","v":0.31064903463769433}]
[null,"Costo SITP-Q",{"$f":"H20","v":0},null,null,null,null,{"$f":"H74/H$11","v":0},{"$f":"I74/I$11","v":2.3276008317465312E-2},2.3881184533719412E-2,2.3984351250905082E-2,2.4049108999282524E-2,2.4210238029577717E-2,2.4680189012529361E-2,2.5108486698885078E-2,2.5474082448425167E-2,2.5814944142782573E-2,2.6151914759356177E-2,2.6450961386866517E-2,0,0,0,0,0,0,0,0]
[null,"Costo Ente Gestor",{"$f":"H21","v":0},null,null,null,null,{"$f":"H75/H11","v":0},{"$f":"I75/I11","v":0},0,0,0,0,0,0,0,0,0,0,0,0,0,0,0,0,0,0]
[]
[null,"P&G",null,null,"Total "]
[null,"(+) Ingresos ",null,null,{"$f":"+SUM(H24:AA24)","v":963415.60440731863},null,null,{"$f":"+H11*H19*IF(H$6>'Sup fijo'!$H$51,0,1)","v":74567.584290897837},{"$f":"+I11*I19*IF(I$6>'Sup fijo'!$H$51,0,1)","v":75760.6656395522},{"$f":"+J11*J19*IF(J$6>'Sup fijo'!$H$51,0,1)","v":77730.442946180556},{"$f":"+K11*K19*IF(K$6>'Sup fijo'!$H$51,0,1)","v":78066.238459708082},{"$f":"+L11*L19*IF(L$6>'Sup fijo'!$H$51,0,1)","v":78277.017303549277},{"$f":"+M11*M19*IF(M$6>'Sup fijo'!$H$51,0,1)","v":78801.473319483048},{"$f":"+N11*N19*IF(N$6>'Sup fijo'!$H$51,0,1)","v":80331.108418455871},{"$f":"+O11*O19*IF(O$6>'Sup fijo'!$H$51,0,1)","v":81725.166942908356},{"$f":"+P11*P19*IF(P$6>'Sup fijo'!$H$51,0,1)","v":82915.138048021123},{"$f":"+Q11*Q19*IF(Q$6>'Sup fijo'!$H$51,0,1)","v":84024.602716675916},{"$f":"+R11*R19*IF(R$6>'Sup fijo'!$H$51,0,1)","v":85121.402385433146},{"$f":"+S11*S19*IF(S$6>'Sup fijo'!$H$51,0,1)","v":86094.763936453324},{"$f":"+T11*T19*IF(T$6>'Sup fijo'!$H$51,0,1)","v":0},{"$f":"+U11*U19*IF(U$6>'Sup fijo'!$H$51,0,1)","v":0},{"$f":"+V11*V19*IF(V$6>'Sup fijo'!$H$51,0,1)","v":0},{"$f":"+W11*W19*IF(W$6>'Sup fijo'!$H$51,0,1)","v":0},{"$f":"+X11*X19*IF(X$6>'Sup fijo'!$H$51,0,1)","v":0},{"$f":"+Y11*Y19*IF(Y$6>'Sup fijo'!$H$51,0,1)","v":0},{"$f":"+Z11*Z19*IF(Z$6>'Sup fijo'!$H$51,0,1)","v":0},{"$f":"+AA11*AA19*IF(AA$6>'Sup fijo'!$H$51,0,1)","v":0}]
[]
[null,"(-) Costo conductores ",null,null,{"$f":"+SUM(H26:AA26)","v":191701.56121762024},null,null,{"$f":"IF(H24=0,0,'OPEX Personal Directo'!C9)","v":24077.204571428578},{"$f":"IF(I24=0,0,'OPEX Personal Directo'!D9)","v":13711.322953728},{"$f":"IF(J24=0,0,'OPEX Personal Directo'!E9)","v":14180.359889329133},{"$f":"IF(K24=0,0,'OPEX Personal Directo'!F9)","v":14355.551996403441},{"$f":"IF(L24=0,0,'OPEX Personal Directo'!G9)","v":14509.466482688078},{"$f":"IF(M24=0,0,'OPEX Personal Directo'!H9)","v":14723.533347387063},{"$f":"IF(N24=0,0,'OPEX Personal Directo'!I9)","v":15129.410218349147},{"$f":"IF(O24=0,0,'OPEX Personal Directo'!J9)","v":15515.100301575339},{"$f":"IF(P24=0,0,'OPEX Personal Directo'!K9)","v":15866.938243228735},{"$f":"IF(Q24=0,0,'OPEX Personal Directo'!L9)","v":16207.88337705889},{"$f":"IF(R24=0,0,'OPEX Personal Directo'!M9)","v":16550.805596142873},{"$f":"IF(S24=0,0,'OPEX Personal Directo'!N9)","v":16873.984240300964},{"$f":"IF(T24=0,0,'OPEX Personal Directo'!O9)","v":0},{"$f":"IF(U24=0,0,'OPEX Personal Directo'!P9)","v":0},{"$f":"IF(V24=0,0,'OPEX Personal Directo'!Q9)","v":0},{"$f":"IF(W24=0,0,'OPEX Personal Directo'!R9)","v":0},{"$f":"IF(X24=0,0,'OPEX Personal Directo'!S9)","v":0},{"$f":"IF(Y24=0,0,'OPEX Personal Directo'!T9)","v":0},{"$f":"IF(Z24=0,0,'OPEX Personal Directo'!U9)","v":0},{"$f":"IF(AA24=0,0,'OPEX Personal Directo'!V9)","v":0}]
[null,"(-) Costo combustible ",null,null,110389.15210376696,null,null,{"$f":"IF(H24=0,0,'OPEX Combustible '!H14)","v":8403.3274145139912},{"$f":"IF(I24=0,0,'OPEX Combustible '!I14)","v":8621.813927291354},{"$f":"IF(J24=0,0,'OPEX Combustible '!J14)","v":8659.060163457254},{"$f":"IF(K24=0,0,'OPEX Combustible '!K14)","v":8725.8518240280791},{"$f":"IF(L24=0,0,'OPEX Combustible '!L14)","v":8828.2366064053112},{"$f":"IF(M24=0,0,'OPEX Combustible '!M14)","v":9044.6017328025537},{"$f":"IF(N24=0,0,'OPEX Combustible '!N14)","v":9247.568707858909},{"$f":"IF(O24=0,0,'OPEX Combustible '!O14)","v":9429.1303649353122},{"$f":"IF(P24=0,0,'OPEX Combustible '!P14)","v":9603.0754610897675},{"$f":"IF(Q24=0,0,'OPEX Combustible '!Q14)","v":9777.0695742946336},{"$f":"IF(R24=0,0,'OPEX Combustible '!R14)","v":9938.3145221640825},{"$f":"IF(S24=0,0,'OPEX Combustible '!S14)","v":10111.101804925696},{"$f":"IF(T24=0,0,'OPEX Combustible '!T14)","v":0},{"$f":"IF(U24=0,0,'OPEX Combustible '!U14)","v":0},{"$f":"IF(V24=0,0,'OPEX Combustible '!V14)","v":0},{"$f":"IF(W24=0,0,'OPEX Combustible '!W14)","v":0},{"$f":"IF(X24=0,0,'OPEX Combustible '!X14)","v":0},{"$f":"IF(Y24=0,0,'OPEX Combustible '!Y14)","v":0},{"$f":"IF(Z24=0,0,'OPEX Combustible '!Z14)","v":0},{"$f":"IF(AA24=0,0,'OPEX Combustible '!AA14)","v":0}]
[null,"(-) Costo impuestos + seguros ",null,null,44919.896604612666,null,null,{"$f":"+'OPEX impuestos'!C26+'OPEX impuestos'!C94+'OPEX impuestos'!C99+'OPEX Otros Gastos'!C14","v":3423.7421239466667},{"$f":"+'OPEX impuestos'!D26+'OPEX impuestos'!D94+'OPEX impuestos'!D99+'OPEX Otros Gastos'!D14","v":4207.3870217864524},{"$f":"+'OPEX impuestos'!E26+'OPEX impuestos'!E94+'OPEX impuestos'!E99+'OPEX Otros Gastos'!E14","v":3480.6051887240806},{"$f":"+'OPEX impuestos'!F26+'OPEX impuestos'!F94+'OPEX impuestos'!F99+'OPEX Otros Gastos'!F14","v":4696.0433001086394},{"$f":"+'OPEX impuestos'!G26+'OPEX impuestos'!G94+'OPEX impuestos'!G99+'OPEX Otros Gastos'!G14","v":2798.935894424254},{"$f":"+'OPEX impuestos'!H26+'OPEX impuestos'!H94+'OPEX impuestos'!H99+'OPEX Otros Gastos'!H14","v":4168.8329231016178},{"$f":"+'OPEX impuestos'!I26+'OPEX impuestos'!I94+'OPEX impuestos'!I99+'OPEX Otros Gastos'!I14","v":3989.6622060153768},{"$f":"+'OPEX impuestos'!J26+'OPEX impuestos'!J94+'OPEX impuestos'!J99+'OPEX Otros Gastos'!J14","v":3025.2742035443616},{"$f":"+'OPEX impuestos'!K26+'OPEX impuestos'!K94+'OPEX impuestos'!K99+'OPEX Otros Gastos'!K14","v":3964.2556605972582},{"$f":"+'OPEX impuestos'!L26+'OPEX impuestos'!L94+'OPEX impuestos'!L99+'OPEX Otros Gastos'!L14","v":2793.6850371868723},{"$f":"+'OPEX impuestos'!M26+'OPEX impuestos'!M94+'OPEX impuestos'!M99+'OPEX Otros Gastos'!M14","v":4283.2372026313487},{"$f":"+'OPEX impuestos'!N26+'OPEX impuestos'!N94+'OPEX impuestos'!N99+'OPEX Otros Gastos'!N14","v":4088.2358425457392},{"$f":"+'OPEX impuestos'!O26+'OPEX impuestos'!O94+'OPEX impuestos'!O99+'OPEX Otros Gastos'!O14","v":0},{"$f":"+'OPEX impuestos'!P26+'OPEX impuestos'!P94+'OPEX impuestos'!P99+'OPEX Otros Gastos'!P14","v":0},{"$f":"+'OPEX impuestos'!Q26+'OPEX impuestos'!Q94+'OPEX impuestos'!Q99+'OPEX Otros Gastos'!Q14","v":0},{"$f":"+'OPEX impuestos'!R26+'OPEX impuestos'!R94+'OPEX impuestos'!R99+'OPEX Otros Gastos'!R14","v":0},{"$f":"+'OPEX impuestos'!S26+'OPEX impuestos'!S94+'OPEX impuestos'!S99+'OPEX Otros Gastos'!S14","v":0},{"$f":"+'OPEX impuestos'!T26+'OPEX impuestos'!T94+'OPEX impuestos'!T99+'OPEX Otros Gastos'!T14","v":0},{"$f":"+'OPEX impuestos'!U26+'OPEX impuestos'!U94+'OPEX impuestos'!U99+'OPEX Otros Gastos'!U14","v":0},{"$f":"+'OPEX impuestos'!V26+'OPEX impuestos'!V94+'OPEX impuestos'!V99+'OPEX Otros Gastos'!V14","v":0}]
[null,"(-) Costo Mantenimiento ",null,null,251581.59304544819,null,null,{"$f":"+'OPEX Mtto'!C14","v":12336.300885333332},{"$f":"+'OPEX Mtto'!D14","v":19556.147069903232},{"$f":"+'OPEX Mtto'!E14","v":15974.050782086291},{"$f":"+'OPEX Mtto'!F14","v":26292.681881531124},{"$f":"+'OPEX Mtto'!G14","v":13295.252181220694},{"$f":"+'OPEX Mtto'!H14","v":25678.188366440023},{"$f":"+'OPEX Mtto'!I14","v":24626.497595655241},{"$f":"+'OPEX Mtto'!J14","v":17968.412590140746},{"$f":"+'OPEX Mtto'!K14","v":24909.28697680603},{"$f":"+'OPEX Mtto'!L14","v":16783.298367831125},{"$f":"+'OPEX Mtto'!M14","v":27658.401740278674},{"$f":"+'OPEX Mtto'!N14","v":26503.074608221665},{"$f":"+'OPEX Mtto'!O14","v":0},{"$f":"+'OPEX Mtto'!P14","v":0},{"$f":"+'OPEX Mtto'!Q14","v":0},{"$f":"+'OPEX Mtto'!R14","v":0},{"$f":"+'OPEX Mtto'!S14","v":0},{"$f":"+'OPEX Mtto'!T14","v":0},{"$f":"+'OPEX Mtto'!U14","v":0},{"$f":"+'OPEX Mtto'!V14","v":0}]
[null,"(-) Costo personal ",null,null,120640.5739994902,null,null,{"$f":"'OPEX Personal Indirecto'!D$9*IF(H$6>'Sup fijo'!$H$51,0,1)","v":9349.5441939890716},{"$f":"'OPEX Personal Indirecto'!E$9*IF(I$6>'Sup fijo'!$H$51,0,1)","v":9103.3742473180355},{"$f":"'OPEX Personal Indirecto'!F$9*IF(J$6>'Sup fijo'!$H$51,0,1)","v":9414.7824735702925},{"$f":"'OPEX Personal Indirecto'!G$9*IF(K$6>'Sup fijo'!$H$51,0,1)","v":9531.0979685269631},{"$f":"'OPEX Personal Indirecto'!H$9*IF(L$6>'Sup fijo'!$H$51,0,1)","v":9633.286588506322},{"$f":"'OPEX Personal Indirecto'!I$9*IF(M$6>'Sup fijo'!$H$51,0,1)","v":9775.4122455185097},{"$f":"'OPEX Personal Indirecto'!J$9*IF(N$6>'Sup fijo'!$H$51,0,1)","v":10044.886538201084},{"$f":"'OPEX Personal Indirecto'!K$9*IF(O$6>'Sup fijo'!$H$51,0,1)","v":10300.958193936724},{"$f":"'OPEX Personal Indirecto'!L$9*IF(P$6>'Sup fijo'!$H$51,0,1)","v":10534.554358806146},{"$f":"'OPEX Personal Indirecto'!M$9*IF(Q$6>'Sup fijo'!$H$51,0,1)","v":10760.918449385317},{"$f":"'OPEX Personal Indirecto'!N$9*IF(R$6>'Sup fijo'!$H$51,0,1)","v":10988.595188426279},{"$f":"'OPEX Personal Indirecto'!O$9*IF(S$6>'Sup fijo'!$H$51,0,1)","v":11203.163553305467},{"$f":"'OPEX Personal Indirecto'!P$9*IF(T$6>'Sup fijo'!$H$51,0,1)","v":0},{"$f":"'OPEX Personal Indirecto'!Q$9*IF(U$6>'Sup fijo'!$H$51,0,1)","v":0},{"$f":"'OPEX Personal Indirecto'!R$9*IF(V$6>'Sup fijo'!$H$51,0,1)","v":0},{"$f":"'OPEX Personal Indirecto'!S$9*IF(W$6>'Sup fijo'!$H$51,0,1)","v":0},{"$f":"'OPEX Personal Indirecto'!T$9*IF(X$6>'Sup fijo'!$H$51,0,1)","v":0},{"$f":"'OPEX Personal Indirecto'!U$9*IF(Y$6>'Sup fijo'!$H$51,0,1)","v":0},{"$f":"'OPEX Personal Indirecto'!V$9*IF(Z$6>'Sup fijo'!$H$51,0,1)","v":0},{"$f":"'OPEX Personal Indirecto'!W$9*IF(AA$6>'Sup fijo'!$H$51,0,1)","v":0}]
[null,"(-) Administración y otros ",null,null,21634.666585122719,null,null,{"$f":"'OPEX Otros Gastos'!C$53","v":2308.2393600000005},{"$f":"'OPEX Otros Gastos'!D$53*IF(I$6>'Sup fijo'!$H$51,0,1)","v":1647.28160256},{"$f":"'OPEX Otros Gastos'!E$53*IF(J$6>'Sup fijo'!$H$51,0,1)","v":1690.11092422656},{"$f":"'OPEX Otros Gastos'!F$53*IF(K$6>'Sup fijo'!$H$51,0,1)","v":1697.4122034192192},{"$f":"'OPEX Otros Gastos'!G$53*IF(L$6>'Sup fijo'!$H$51,0,1)","v":1701.9952163684507},{"$f":"'OPEX Otros Gastos'!H$53*IF(M$6>'Sup fijo'!$H$51,0,1)","v":1713.3985843181192},{"$f":"'OPEX Otros Gastos'!I$53*IF(N$6>'Sup fijo'!$H$51,0,1)","v":1746.6577925879647},{"$f":"'OPEX Otros Gastos'!J$53*IF(O$6>'Sup fijo'!$H$51,0,1)","v":1776.9691281713685},{"$f":"'OPEX Otros Gastos'!K$53*IF(P$6>'Sup fijo'!$H$51,0,1)","v":1802.8429439896772},{"$f":"'OPEX Otros Gastos'!L$53*IF(Q$6>'Sup fijo'!$H$51,0,1)","v":1826.9662898174524},{"$f":"'OPEX Otros Gastos'!M$53*IF(R$6>'Sup fijo'!$H$51,0,1)","v":1850.8142576353914},{"$f":"'OPEX Otros Gastos'!N$53*IF(S$6>'Sup fijo'!$H$51,0,1)","v":1871.9782820285157},{"$f":"'OPEX Otros Gastos'!O$53*IF(T$6>'Sup fijo'!$H$51,0,1)","v":0},{"$f":"'OPEX Otros Gastos'!P$53*IF(U$6>'Sup fijo'!$H$51,0,1)","v":0},{"$f":"'OPEX Otros Gastos'!Q$53*IF(V$6>'Sup fijo'!$H$51,0,1)","v":0},{"$f":"'OPEX Otros Gastos'!R$53*IF(W$6>'Sup fijo'!$H$51,0,1)","v":0},{"$f":"'OPEX Otros Gastos'!S$53*IF(X$6>'Sup fijo'!$H$51,0,1)","v":0},{"$f":"'OPEX Otros Gastos'!T$53*IF(Y$6>'Sup fijo'!$H$51,0,1)","v":0},{"$f":"'OPEX Otros Gastos'!U$53*IF(Z$6>'Sup fijo'!$H$51,0,1)","v":0},{"$f":"'OPEX Otros Gastos'!V$53*IF(AA$6>'Sup fijo'!$H$51,0,1)","v":0}]
[null,"Total OPEX",null,null,740867.44355606101,null,null,{"$f":"+SUM(H26:H31)","v":59898.35854921164},56847.326822587063,53398.969421393609,65298.639174017466,50767.172969613108,65103.967199567887,64784.683058667724,58015.844782303851,66680.95364451762,58149.821095574283,71270.168507278649,70651.538331328047,0,0,0,0,0,0,0,0]
[]
[null,"EBITDA",null,null,{"$f":"+SUM(H34:AA34)","v":222548.16085125782},null,null,{"$f":"+H24-H32","v":14669.225741686198},18913.338816965137,24331.473524786947,12767.599285690616,27509.844333936169,13697.506119915161,15546.425359788147,23709.322160604504,16234.184403503503,25874.781621101632,13851.233878154497,15443.225605125277,0,0,0,0,0,0,0,0]
[]
[null,"(-) Depreciación",null,null,{"$f":"+SUM(H36:AA36)","v":72000},null,null,{"$f":"'CAPEX Vehículo'!D15","v":6000},{"$f":"'CAPEX Vehículo'!E15","v":6000},{"$f":"'CAPEX Vehículo'!F15","v":6000},{"$f":"'CAPEX Vehículo'!G15","v":6000},{"$f":"'CAPEX Vehículo'!H15","v":6000},{"$f":"'CAPEX Vehículo'!I15","v":6000},{"$f":"'CAPEX Vehículo'!J15","v":6000},{"$f":"'CAPEX Vehículo'!K15","v":6000},{"$f":"'CAPEX Vehículo'!L15","v":6000},{"$f":"'CAPEX Vehículo'!M15","v":6000},{"$f":"'CAPEX Vehículo'!N15","v":6000},{"$f":"'CAPEX Vehículo'!O15","v":6000},{"$f":"'CAPEX Vehículo'!P15","v":0},{"$f":"'CAPEX Vehículo'!Q15","v":0},{"$f":"'CAPEX Vehículo'!R15","v":0},{"$f":"'CAPEX Vehículo'!S15","v":0},{"$f":"'CAPEX Vehículo'!T15","v":0},{"$f":"'CAPEX Vehículo'!U15","v":0},{"$f":"'CAPEX Vehículo'!V15","v":0},{"$f":"'CAPEX Vehículo'!W15","v":0}]
[]
[null,"EBIT",null,null,{"$f":"+SUM(H38:AA38)","v":150548.16085125777},null,null,{"$f":"+H34-H36","v":8669.2257416861976},{"$f":"+I34-I36","v":12913.338816965137},18331.473524786947,6767.5992856906159,21509.844333936169,7697.5061199151605,9546.425359788147,17709.322160604504,10234.184403503503,19874.781621101632,7851.2338781544968,9443.2256051252771,0,0,0,0,0,0,0,0]
[]
[null,"(-) Intereses",null,null,{"$f":"+SUM(H40:AA40)","v":24646.557552581806},null,null,{"$f":"'CAPEX Vehículo'!D12","v":7560.0000000000009},{"$f":"'CAPEX Vehículo'!E12","v":6416.2963885277122},{"$f":"'CAPEX Vehículo'!F12","v":5112.4742714493041},{"$f":"'CAPEX Vehículo'!G12","v":3626.1170579799173},{"$f":"'CAPEX Vehículo'!H12","v":1931.6698346248168},{"$f":"'CAPEX Vehículo'!I12","v":2.2919266484677796E-12},{"$f":"'CAPEX Vehículo'!J12","v":2.2919266484677796E-12},{"$f":"'CAPEX Vehículo'!K12","v":2.2919266484677796E-12},{"$f":"'CAPEX Vehículo'!L12","v":2.2919266484677796E-12},{"$f":"'CAPEX Vehículo'!M12","v":2.2919266484677796E-12},{"$f":"'CAPEX Vehículo'!N12","v":2.2919266484677796E-12},{"$f":"'CAPEX Vehículo'!O12","v":2.2919266484677796E-12},{"$f":"'CAPEX Vehículo'!P12","v":2.2919266484677796E-12},{"$f":"'CAPEX Vehículo'!Q12","v":2.2919266484677796E-12},{"$f":"'CAPEX Vehículo'!R12","v":2.2919266484677796E-12},{"$f":"'CAPEX Vehículo'!S12","v":2.2919266484677796E-12},{"$f":"'CAPEX Vehículo'!T12","v":2.2919266484677796E-12},{"$f":"'CAPEX Vehículo'!U12","v":2.2919266484677796E-12},{"$f":"'CAPEX Vehículo'!V12","v":2.2919266484677796E-12},{"$f":"'CAPEX Vehículo'!W12","v":2.2919266484677796E-12}]
[]
[null,"EBT",null,null,{"$f":"+SUM(H42:AA42)","v":125901.60329867604},null,null,{"$f":"+H38-H40","v":1109.2257416861967},{"$f":"+I38-I40","v":6497.0424284374249},13218.999253337643,3141.4822277106987,19578.174499311353,7697.5061199151578,9546.4253597881452,17709.322160604501,10234.184403503501,19874.781621101629,7851.2338781544941,9443.2256051252753,-2.2919266484677796E-12,-2.2919266484677796E-12,-2.2919266484677796E-12,-2.2919266484677796E-12,-2.2919266484677796E-12,-2.2919266484677796E-12,-2.2919266484677796E-12,-2.2919266484677796E-12]
[]
[null,"(-) Participación empleados ",null,null,{"$f":"+SUM(H44:AA44)","v":18885.240494801401},null,null,{"$f":"+IF(H42<0,0,H42*'Sup fijo'!$D$196)","v":166.38386125292951},{"$f":"+IF(I42<0,0,I42*'Sup fijo'!$D$196)","v":974.55636426561364},{"$f":"+IF(J42<0,0,J42*'Sup fijo'!$D$196)","v":1982.8498880006464},{"$f":"+IF(K42<0,0,K42*'Sup fijo'!$D$196)","v":471.2223341566048},{"$f":"+IF(L42<0,0,L42*'Sup fijo'!$D$196)","v":2936.726174896703},{"$f":"+IF(M42<0,0,M42*'Sup fijo'!$D$196)","v":1154.6259179872736},{"$f":"+IF(N42<0,0,N42*'Sup fijo'!$D$196)","v":1431.9638039682218},{"$f":"+IF(O42<0,0,O42*'Sup fijo'!$D$196)","v":2656.398324090675},{"$f":"+IF(P42<0,0,P42*'Sup fijo'!$D$196)","v":1535.127660525525},{"$f":"+IF(Q42<0,0,Q42*'Sup fijo'!$D$196)","v":2981.2172431652443},{"$f":"+IF(R42<0,0,R42*'Sup fijo'!$D$196)","v":1177.6850817231741},{"$f":"+IF(S42<0,0,S42*'Sup fijo'!$D$196)","v":1416.4838407687912},{"$f":"+IF(T42<0,0,T42*'Sup fijo'!$D$196)","v":0},{"$f":"+IF(U42<0,0,U42*'Sup fijo'!$D$196)","v":0},{"$f":"+IF(V42<0,0,V42*'Sup fijo'!$D$196)","v":0},{"$f":"+IF(W42<0,0,W42*'Sup fijo'!$D$196)","v":0},{"$f":"+IF(X42<0,0,X42*'Sup fijo'!$D$196)","v":0},{"$f":"+IF(Y42<0,0,Y42*'Sup fijo'!$D$196)","v":0},{"$f":"+IF(Z42<0,0,Z42*'Sup fijo'!$D$196)","v":0},{"$f":"+IF(AA42<0,0,AA42*'Sup fijo'!$D$196)","v":0}]
[null,"(-) Impuesto renta ",null,null,{"$f":"+SUM(H45:AA45)","v":32104.908841162385},null,null,{"$f":"IF((+H42-H44)<0,0,(+H42-H44)*'Sup fijo'!$D$197)","v":282.85256412998012},{"$f":"IF((+I42-I44)<0,0,(+I42-I44)*'Sup fijo'!$D$197)","v":1656.7458192515435},{"$f":"IF((+J42-J44)<0,0,(+J42-J44)*'Sup fijo'!$D$197)","v":3370.8448096010989},{"$f":"IF((+K42-K44)<0,0,(+K42-K44)*'Sup fijo'!$D$197)","v":801.0779680662281},{"$f":"IF((+L42-L44)<0,0,(+L42-L44)*'Sup fijo'!$D$197)","v":4992.4344973243951},{"$f":"IF((+M42-M44)<0,0,(+M42-M44)*'Sup fijo'!$D$197)","v":1962.8640605783653},{"$f":"IF((+N42-N44)<0,0,(+N42-N44)*'Sup fijo'!$D$197)","v":2434.3384667459773},{"$f":"IF((+O42-O44)<0,0,(+O42-O44)*'Sup fijo'!$D$197)","v":4515.8771509541475},{"$f":"IF((+P42-P44)<0,0,(+P42-P44)*'Sup fijo'!$D$197)","v":2609.7170228933928},{"$f":"IF((+Q42-Q44)<0,0,(+Q42-Q44)*'Sup fijo'!$D$197)","v":5068.0693133809154},{"$f":"IF((+R42-R44)<0,0,(+R42-R44)*'Sup fijo'!$D$197)","v":2002.0646389293959},{"$f":"IF((+S42-S44)<0,0,(+S42-S44)*'Sup fijo'!$D$197)","v":2408.0225293069452},{"$f":"IF((+T42-T44)<0,0,(+T42-T44)*'Sup fijo'!$D$197)","v":0},{"$f":"IF((+U42-U44)<0,0,(+U42-U44)*'Sup fijo'!$D$197)","v":0},{"$f":"IF((+V42-V44)<0,0,(+V42-V44)*'Sup fijo'!$D$197)","v":0},{"$f":"IF((+W42-W44)<0,0,(+W42-W44)*'Sup fijo'!$D$197)","v":0},{"$f":"IF((+X42-X44)<0,0,(+X42-X44)*'Sup fijo'!$D$197)","v":0},{"$f":"IF((+Y42-Y44)<0,0,(+Y42-Y44)*'Sup fijo'!$D$197)","v":0},{"$f":"IF((+Z42-Z44)<0,0,(+Z42-Z44)*'Sup fijo'!$D$197)","v":0},{"$f":"IF((+AA42-AA44)<0,0,(+AA42-AA44)*'Sup fijo'!$D$197)","v":0}]
[]
[null,"Utilidad Neta",null,null,{"$f":"+SUM(H47:AA47)","v":74911.453962712229},null,null,{"$f":"+H42-H44-H45","v":659.98931630328707},{"$f":"+I42-I44-I45","v":3865.7402449202682},7865.3045557358973,1869.1819254878656,11649.013827090255,4580.0161413495189,5680.1230890739462,10537.046685559679,6089.3397200845839,11825.495064555471,4671.4841575019236,5618.7192350495388,-2.2919266484677796E-12,-2.2919266484677796E-12,-2.2919266484677796E-12,-2.2919266484677796E-12,-2.2919266484677796E-12,-2.2919266484677796E-12,-2.2919266484677796E-12,-2.2919266484677796E-12]
[]
[null,"FLUJO DE CAJA PROYECTO"]
[]
[null,"(+) Utilidad Neta",null,null,{"$f":"SUM(G51:AA51)","v":74911.453962712229},null,null,{"$f":"H47","v":659.98931630328707},3865.7402449202682,7865.3045557358973,1869.1819254878656,11649.013827090255,4580.0161413495189,5680.1230890739462,10537.046685559679,6089.3397200845839,11825.495064555471,4671.4841575019236,5618.7192350495388,-2.2919266484677796E-12,-2.2919266484677796E-12,-2.2919266484677796E-12,-2.2919266484677796E-12,-2.2919266484677796E-12,-2.2919266484677796E-12,-2.2919266484677796E-12,-2.2919266484677796E-12]
[null,"(+) NCC (Non Cash Charges)",null,null,{"$f":"SUM(G52:AA52)","v":72000},null,null,{"$f":"H36","v":6000},{"$f":"I36","v":6000},6000,6000,6000,6000,6000,6000,6000,6000,6000,6000,0,0,0,0,0,0,0,0]
[null,"(+) Int*(1-Impuestos)",null,null,13555.606653919991,null,null,{"$f":"H40*(1-SUM('Sup fijo'!$D$196:$D$197))","v":4158.0000000000009},{"$f":"I40*(1-SUM('Sup fijo'!$D$196:$D$197))","v":3528.963013690242},{"$f":"J40*(1-SUM('Sup fijo'!$D$196:$D$197))","v":2811.8608492971175},{"$f":"K40*(1-SUM('Sup fijo'!$D$196:$D$197))","v":1994.3643818889548},{"$f":"L40*(1-SUM('Sup fijo'!$D$196:$D$197))","v":1062.4184090436493},{"$f":"M40*(1-SUM('Sup fijo'!$D$196:$D$197))","v":1.2605596566572788E-12},{"$f":"N40*(1-SUM('Sup fijo'!$D$196:$D$197))","v":1.2605596566572788E-12},{"$f":"O40*(1-SUM('Sup fijo'!$D$196:$D$197))","v":1.2605596566572788E-12},{"$f":"P40*(1-SUM('Sup fijo'!$D$196:$D$197))","v":1.2605596566572788E-12},{"$f":"Q40*(1-SUM('Sup fijo'!$D$196:$D$197))","v":1.2605596566572788E-12},{"$f":"R40*(1-SUM('Sup fijo'!$D$196:$D$197))","v":1.2605596566572788E-12},{"$f":"S40*(1-SUM('Sup fijo'!$D$196:$D$197))","v":1.2605596566572788E-12},{"$f":"T40*(1-SUM('Sup fijo'!$D$196:$D$197))","v":1.2605596566572788E-12},{"$f":"U40*(1-SUM('Sup fijo'!$D$196:$D$197))","v":1.2605596566572788E-12},{"$f":"V40*(1-SUM('Sup fijo'!$D$196:$D$197))","v":1.2605596566572788E-12},{"$f":"W40*(1-SUM('Sup fijo'!$D$196:$D$197))","v":1.2605596566572788E-12},{"$f":"X40*(1-SUM('Sup fijo'!$D$196:$D$197))","v":1.2605596566572788E-12},{"$f":"Y40*(1-SUM('Sup fijo'!$D$196:$D$197))","v":1.2605596566572788E-12},{"$f":"Z40*(1-SUM('Sup fijo'!$D$196:$D$197))","v":1.2605596566572788E-12},{"$f":"AA40*(1-SUM('Sup fijo'!$D$196:$D$197))","v":1.2605596566572788E-12}]
[null,"(-) CAPEX",null,null,72000,null,{"$f":"'CAPEX Vehículo'!C14","v":90000},{"$f":"IF(H$6='Sup fijo'!$H$51,-'Sup fijo'!$I$51*$G54,0)","v":0},{"$f":"IF(I$6='Sup fijo'!$H$51,-'Sup fijo'!$I$51*$G54,0)","v":0},{"$f":"IF(J$6='Sup fijo'!$H$51,-'Sup fijo'!$I$51*$G54,0)","v":0},{"$f":"IF(K$6='Sup fijo'!$H$51,-'Sup fijo'!$I$51*$G54,0)","v":0},{"$f":"IF(L$6='Sup fijo'!$H$51,-'Sup fijo'!$I$51*$G54,0)","v":0},{"$f":"IF(M$6='Sup fijo'!$H$51,-'Sup fijo'!$I$51*$G54,0)","v":0},{"$f":"IF(N$6='Sup fijo'!$H$51,-'Sup fijo'!$I$51*$G54,0)","v":0},{"$f":"IF(O$6='Sup fijo'!$H$51,-'Sup fijo'!$I$51*$G54,0)","v":0},{"$f":"IF(P$6='Sup fijo'!$H$51,-'Sup fijo'!$I$51*$G54,0)","v":0},{"$f":"IF(Q$6='Sup fijo'!$H$51,-'Sup fijo'!$I$51*$G54,0)","v":0},{"$f":"IF(R$6='Sup fijo'!$H$51,-'Sup fijo'!$I$51*$G54,0)","v":0},{"$f":"IF(S$6='Sup fijo'!$H$51,-'Sup fijo'!$I$51*$G54,0)","v":-18000},{"$f":"IF(T$6='Sup fijo'!$H$51,-'Sup fijo'!$I$51*$G54,0)","v":0},{"$f":"IF(U$6='Sup fijo'!$H$51,-'Sup fijo'!$I$51*$G54,0)","v":0},{"$f":"IF(V$6='Sup fijo'!$H$51,-'Sup fijo'!$I$51*$G54,0)","v":0},{"$f":"IF(W$6='Sup fijo'!$H$51,-'Sup fijo'!$I$51*$G54,0)","v":0},{"$f":"IF(X$6='Sup fijo'!$H$51,-'Sup fijo'!$I$51*$G54,0)","v":0},{"$f":"IF(Y$6='Sup fijo'!$H$51,-'Sup fijo'!$I$51*$G54,0)","v":0},{"$f":"IF(Z$6='Sup fijo'!$H$51,-'Sup fijo'!$I$51*$G54,0)","v":0},{"$f":"IF(AA$6='Sup fijo'!$H$51,-'Sup fijo'!$I$51*$G54,0)","v":0}]
[]
[null,"Flujo de caja libre",null,null,{"$f":"+SUM(H56:AA56)","v":178467.0606166322},null,{"$f":"G51+G52+G53-G54","v":-90000},{"$f":"H51+H52+H53-H54","v":10817.989316303287},13394.703258610509,16677.165405033014,9863.5463073768206,18711.432236133904,10580.016141349521,11680.123089073948,16537.046685559679,12089.339720084585,17825.495064555471,10671.484157501925,29618.719235049539,-1.0313669918105007E-12,-1.0313669918105007E-12,-1.0313669918105007E-12,-1.0313669918105007E-12,-1.0313669918105007E-12,-1.0313669918105007E-12,-1.0313669918105007E-12,-1.0313669918105007E-12]
[]
[null,"FLUJO DE CAJA DEL CONCESIONARIO"]
[]
[null,"(+) FCFF",null,null,{"$f":"SUM(G60:AA60)","v":88467.060616632196},null,{"$f":"G56","v":-90000},{"$f":"H56","v":10817.989316303287},13394.703258610509,16677.165405033014,9863.5463073768206,18711.432236133904,10580.016141349521,11680.123089073948,16537.046685559679,12089.339720084585,17825.495064555471,10671.484157501925,29618.719235049539,-1.0313669918105007E-12,-1.0313669918105007E-12,-1.0313669918105007E-12,-1.0313669918105007E-12,-1.0313669918105007E-12,-1.0313669918105007E-12,-1.0313669918105007E-12,-1.0313669918105007E-12]
[null,"(-) Int*(1-Impuestos)",null,null,13555.606653919991,null,{"$f":"G53","v":0},{"$f":"H53","v":4158.0000000000009},3528.963013690242,2811.8608492971175,1994.3643818889548,1062.4184090436493,1.2605596566572788E-12,1.2605596566572788E-12,1.2605596566572788E-12,1.2605596566572788E-12,1.2605596566572788E-12,1.2605596566572788E-12,1.2605596566572788E-12,1.2605596566572788E-12,1.2605596566572788E-12,1.2605596566572788E-12,1.2605596566572788E-12,1.2605596566572788E-12,1.2605596566572788E-12,1.2605596566572788E-12,1.2605596566572788E-12]
[null,"(+) Endeudamiento Neto",null,null,1.6370904631912708E-11,null,{"$f":"G63-G64","v":54000},{"$f":"H63-H64","v":-8169.311510516347},-9313.0151219886357,-10616.837239067045,-12103.194452536431,-13797.641675891531,0,0,0,0,0,0,0,0,0,0,0,0,0,0,0]
[null,"Desembolsos",null,null,null,null,{"$f":"'CAPEX Vehículo'!C9","v":54000}]
[null,"Amortizaciones",null,null,null,null,{"$f":"'CAPEX Vehículo'!C10","v":0},{"$f":"'CAPEX Vehículo'!D10","v":8169.311510516347},{"$f":"'CAPEX Vehículo'!E10","v":9313.0151219886357},{"$f":"'CAPEX Vehículo'!F10","v":10616.837239067045},{"$f":"'CAPEX Vehículo'!G10","v":12103.194452536431},{"$f":"'CAPEX Vehículo'!H10","v":13797.641675891531},{"$f":"'CAPEX Vehículo'!I10","v":0},{"$f":"'CAPEX Vehículo'!J10","v":0},{"$f":"'CAPEX Vehículo'!K10","v":0},{"$f":"'CAPEX Vehículo'!L10","v":0},{"$f":"'CAPEX Vehículo'!M10","v":0},{"$f":"'CAPEX Vehículo'!N10","v":0},{"$f":"'CAPEX Vehículo'!O10","v":0},{"$f":"'CAPEX Vehículo'!P10","v":0},{"$f":"'CAPEX Vehículo'!Q10","v":0},{"$f":"'CAPEX Vehículo'!R10","v":0},{"$f":"'CAPEX Vehículo'!S10","v":0},{"$f":"'CAPEX Vehículo'!T10","v":0},{"$f":"'CAPEX Vehículo'!U10","v":0},{"$f":"'CAPEX Vehículo'!V10","v":0},{"$f":"'CAPEX Vehículo'!W10","v":0}]
[]
[null,"FCFE",null,null,{"$f":"+SUM(H66:AA66)","v":110911.45396271223},null,{"$f":"G60+G62-G61","v":-36000},{"$f":"H60+H62-H61","v":-1509.3221942130613},552.72512293163118,3248.4673166688522,-4234.0125270485651,3851.3721511987233,10580.016141349519,11680.123089073946,16537.046685559679,12089.339720084583,17825.495064555471,10671.484157501924,29618.719235049539,-2.2919266484677796E-12,-2.2919266484677796E-12,-2.2919266484677796E-12,-2.2919266484677796E-12,-2.2919266484677796E-12,-2.2919266484677796E-12,-2.2919266484677796E-12,-2.2919266484677796E-12]
[]
[null,"(+) Equity",null,null,{"$f":"SUM(G68:AA68)","v":41743.334721261628},null,{"$f":"IF(G66<0,-G66,0)","v":36000},{"$f":"IF(H66<0,-H66,0)","v":1509.3221942130613},0,0,4234.0125270485651,0,0,0,0,0,0,0,0,2.2919266484677796E-12,2.2919266484677796E-12,2.2919266484677796E-12,2.2919266484677796E-12,2.2919266484677796E-12,2.2919266484677796E-12,2.2919266484677796E-12,2.2919266484677796E-12]
[null,"(-) Dividendos",null,null,116654.78868397386,null,{"$f":"IF(G66>0,G66,0)","v":0},{"$f":"IF(H66>0,H66,0)","v":0},552.72512293163118,3248.4673166688522,0,3851.3721511987233,10580.016141349519,11680.123089073946,16537.046685559679,12089.339720084583,17825.495064555471,10671.484157501924,29618.719235049539,0,0,0,0,0,0,0,0]
[null,"Cambio neto en caja",null,null,{"$f":"+SUM(H70:AA70)","v":0},null,{"$f":"G66+G68-G69","v":0},{"$f":"H66+H68-H69","v":0},0,0,0,0,0,0,0,0,0,0,0,0,0,0,0,0,0,0,0]
[]
[null,"Otros"]
[]
[null,"Remuneración Operador SITP-Q",null,null,{"$f":"+SUM(H74:AA74)","v":84142.954732804734},null,null,{"$f":"IF(H24=0,0,'OPEX Otros Gastos'!C71)","v":0},{"$f":"IF(I24=0,0,'OPEX Otros Gastos'!D71)","v":7171.896786810682},{"$f":"IF(J24=0,0,'OPEX Otros Gastos'!E71)","v":7358.3661032677601},{"$f":"IF(K24=0,0,'OPEX Otros Gastos'!F71)","v":7390.1542448338778},{"$f":"IF(L24=0,0,'OPEX Otros Gastos'!G71)","v":7410.1076612949282},{"$f":"IF(M24=0,0,'OPEX Otros Gastos'!H71)","v":7459.7553826256044},{"$f":"IF(N24=0,0,'OPEX Otros Gastos'!I71)","v":7604.5585592965972},{"$f":"IF(O24=0,0,'OPEX Otros Gastos'!J71)","v":7736.5273556072652},{"$f":"IF(P24=0,0,'OPEX Otros Gastos'!K71)","v":7849.1761803385562},{"$f":"IF(Q24=0,0,'OPEX Otros Gastos'!L71)","v":7954.2038490507375},{"$f":"IF(R24=0,0,'OPEX Otros Gastos'!M71)","v":8058.0325833118623},{"$f":"IF(S24=0,0,'OPEX Otros Gastos'!N71)","v":8150.1760263668584},{"$f":"IF(T24=0,0,'OPEX Otros Gastos'!O71)","v":0},{"$f":"IF(U24=0,0,'OPEX Otros Gastos'!P71)","v":0},{"$f":"IF(V24=0,0,'OPEX Otros Gastos'!Q71)","v":0},{"$f":"IF(W24=0,0,'OPEX Otros Gastos'!R71)","v":0},{"$f":"IF(X24=0,0,'OPEX Otros Gastos'!S71)","v":0},{"$f":"IF(Y24=0,0,'OPEX Otros Gastos'!T71)","v":0},{"$f":"IF(Z24=0,0,'OPEX Otros Gastos'!U71)","v":0},{"$f":"IF(AA24=0,0,'OPEX Otros Gastos'!V71)","v":0}]
[null,"Gastos del ente Gestor",null,null,{"$f":"+SUM(H75:AA75)","v":0},null,null,{"$f":"IF(H25=0,0,'OPEX Personal Indirecto'!D$14)","v":0},{"$f":"IF(I25=0,0,'OPEX Personal Indirecto'!E$14)","v":0},{"$f":"IF(J25=0,0,'OPEX Personal Indirecto'!F$14)","v":0},{"$f":"IF(K25=0,0,'OPEX Personal Indirecto'!G$14)","v":0},{"$f":"IF(L25=0,0,'OPEX Personal Indirecto'!H$14)","v":0},{"$f":"IF(M25=0,0,'OPEX Personal Indirecto'!I$14)","v":0},{"$f":"IF(N25=0,0,'OPEX Personal Indirecto'!J$14)","v":0},{"$f":"IF(O25=0,0,'OPEX Personal Indirecto'!K$14)","v":0},{"$f":"IF(P25=0,0,'OPEX Personal Indirecto'!L$14)","v":0},{"$f":"IF(Q25=0,0,'OPEX Personal Indirecto'!M$14)","v":0},{"$f":"IF(R25=0,0,'OPEX Personal Indirecto'!N$14)","v":0},{"$f":"IF(S25=0,0,'OPEX Personal Indirecto'!O$14)","v":0},{"$f":"IF(T25=0,0,'OPEX Personal Indirecto'!P$14)","v":0},{"$f":"IF(U25=0,0,'OPEX Personal Indirecto'!Q$14)","v":0},{"$f":"IF(V25=0,0,'OPEX Personal Indirecto'!R$14)","v":0},{"$f":"IF(W25=0,0,'OPEX Personal Indirecto'!S$14)","v":0},{"$f":"IF(X25=0,0,'OPEX Personal Indirecto'!T$14)","v":0},{"$f":"IF(Y25=0,0,'OPEX Personal Indirecto'!U$14)","v":0},{"$f":"IF(Z25=0,0,'OPEX Personal Indirecto'!V$14)","v":0},{"$f":"IF(AA25=0,0,'OPEX Personal Indirecto'!W$14)","v":0}]
[]
[null,"Costo del Proyecto",null,null,{"$f":"+SUM(H77:AA77)","v":-1047558.5591401234},null,null,{"$f":"-H24-H74-H75","v":-74567.584290897837},{"$f":"-I24-I74-I75","v":-82932.562426362885},-85088.809049448319,-85456.392704541955,-85687.124964844203,-86261.228702108652,-87935.666977752466,-89461.69429851562,-90764.314228359683,-91978.806565726656,-93179.434968745016,-94244.939962820179,0,0,0,0,0,0,0,0]
[]
[]
[]
[]
[null,null,null,null,null,null,{"$f":"G66","v":-36000},{"$f":"H66/(1+rentabilidadobj)^COUNTA($H$6:H$6)","v":-1335.6833577106738},{"$f":"I66/(1+rentabilidadobj)^COUNTA($H$6:I$6)","v":432.86484684128067},{"$f":"J66/(1+rentabilidadobj)^COUNTA($H$6:J$6)","v":2251.3508009711391},{"$f":"K66/(1+rentabilidadobj)^COUNTA($H$6:K$6)","v":-2596.7991760679688},{"$f":"L66/(1+rentabilidadobj)^COUNTA($H$6:L$6)","v":2090.3705022946779},{"$f":"M66/(1+rentabilidadobj)^COUNTA($H$6:M$6)","v":5081.7777732318573},{"$f":"N66/(1+rentabilidadobj)^COUNTA($H$6:N$6)","v":4964.7606392759481},{"$f":"O66/(1+rentabilidadobj)^COUNTA($H$6:O$6)","v":6220.5731945345142},{"$f":"P66/(1+rentabilidadobj)^COUNTA($H$6:P$6)","v":4024.3578384250591},{"$f":"Q66/(1+rentabilidadobj)^COUNTA($H$6:Q$6)","v":5251.183145597799},{"$f":"R66/(1+rentabilidadobj)^COUNTA($H$6:R$6)","v":2782.0308761173542},{"$f":"S66/(1+rentabilidadobj)^COUNTA($H$6:S$6)","v":6833.2129164889548},{"$f":"T66/(1+rentabilidadobj)^COUNTA($H$6:T$6)","v":-4.6793006389116516E-13},{"$f":"U66/(1+rentabilidadobj)^COUNTA($H$6:U$6)","v":-4.140974016735976E-13},{"$f":"V66/(1+rentabilidadobj)^COUNTA($H$6:V$6)","v":-3.6645787758725452E-13},{"$f":"W66/(1+rentabilidadobj)^COUNTA($H$6:W$6)","v":-3.2429900671438454E-13},{"$f":"X66/(1+rentabilidadobj)^COUNTA($H$6:X$6)","v":-2.8699027142865894E-13},{"$f":"Y66/(1+rentabilidadobj)^COUNTA($H$6:Y$6)","v":-2.5397369152978669E-13},{"$f":"Z66/(1+rentabilidadobj)^COUNTA($H$6:Z$6)","v":-2.247554792298998E-13},{"$f":"AA66/(1+rentabilidadobj)^COUNTA($H$6:AA$6)","v":-1.9889865418575202E-13}]
[null,null,null,null,null,null,null,{"$f":"SUM(G82:AA82)","v":-5.6197589850843259E-11}]
[]
[null,{"$f":"'Sup fijo'!B18","v":"Intracantonal Urbano"}]
[null,null,{"$f":"C96/0.893481776513347","v":0.3000168239963743}]
[null,"Supuestos"]
[null,"Demanda Anual",null,null,{"$f":"+SUM(H88:AA88)","v":6025535.9999999981},null,null,{"$f":"'Sup fijo'!E38","v":301276.80000000005},{"$f":"'Sup fijo'!F38","v":301276.80000000005},{"$f":"'Sup fijo'!G38","v":301276.80000000005},{"$f":"'Sup fijo'!H38","v":301276.80000000005},{"$f":"'Sup fijo'!I38","v":301276.80000000005},{"$f":"'Sup fijo'!J38","v":301276.80000000005},{"$f":"'Sup fijo'!K38","v":301276.80000000005},{"$f":"'Sup fijo'!L38","v":301276.80000000005},{"$f":"'Sup fijo'!M38","v":301276.80000000005},{"$f":"'Sup fijo'!N38","v":301276.80000000005},{"$f":"'Sup fijo'!O38","v":301276.80000000005},{"$f":"'Sup fijo'!P38","v":301276.80000000005},{"$f":"'Sup fijo'!Q38","v":301276.80000000005},{"$f":"'Sup fijo'!R38","v":301276.80000000005},{"$f":"'Sup fijo'!S38","v":301276.80000000005},{"$f":"'Sup fijo'!T38","v":301276.80000000005},{"$f":"'Sup fijo'!U38","v":301276.80000000005},{"$f":"'Sup fijo'!V38","v":301276.80000000005},{"$f":"'Sup fijo'!W38","v":301276.80000000005},{"$f":"'Sup fijo'!X38","v":301276.80000000005}]
[null,"kilómetros Anual",null,null,{"$f":"+SUM(H89:AA89)","v":1276520.0000000002},null,null,{"$f":"'Sup fijo'!E21","v":63826.000000000007},{"$f":"'Sup fijo'!F21","v":63826.000000000007},{"$f":"'Sup fijo'!G21","v":63826.000000000007},{"$f":"'Sup fijo'!H21","v":63826.000000000007},{"$f":"'Sup fijo'!I21","v":63826.000000000007},{"$f":"'Sup fijo'!J21","v":63826.000000000007},{"$f":"'Sup fijo'!K21","v":63826.000000000007},{"$f":"'Sup fijo'!L21","v":63826.000000000007},{"$f":"'Sup fijo'!M21","v":63826.000000000007},{"$f":"'Sup fijo'!N21","v":63826.000000000007},{"$f":"'Sup fijo'!O21","v":63826.000000000007},{"$f":"'Sup fijo'!P21","v":63826.000000000007},{"$f":"'Sup fijo'!Q21","v":63826.000000000007},{"$f":"'Sup fijo'!R21","v":63826.000000000007},{"$f":"'Sup fijo'!S21","v":63826.000000000007},{"$f":"'Sup fijo'!T21","v":63826.000000000007},{"$f":"'Sup fijo'!U21","v":63826.000000000007},{"$f":"'Sup fijo'!V21","v":63826.000000000007},{"$f":"'Sup fijo'!W21","v":63826.000000000007},{"$f":"'Sup fijo'!X21","v":63826.000000000007}]
[null,"Tir accionista ",{"$f":"IFERROR(+IRR(G143:AA143),0)","v":0.12999999999987444}]
[]
[null,"Aportes capital ",{"$f":"E145","v":54284.128156456849}]
[]
[null,"Resultados Tarifas"]
[null,"Tarifa técnica por pasajero",{"$f":"SUM(C96:C97)","v":0.26805956488817267},null,null,null,null,{"$f":"SUM(H96:H97)","v":0.2744929944454888},{"$f":"SUM(I96:I97)","v":0.30216089067408192},0.31001707383160809,0.31135634759056069,0.31219700972905517,0.31428872969423982,0.32038946679851721,0.3259494755688262,0.33069551001773123,0.33512045572830779,0.33949488884614065,0.34337700617868189,0.32083195315618251,0.32517197429835709,0.32984821439153994,0.33438429292282912,0.33883219982370755,0.34328595390795513,0.34778811016620387,0.35235198838130488]
[null,"Tarifa operador privado",0.26805956488817267,null,null,null,null,{"$f":"$C96*(1+'Sup Generales'!C$8)","v":0.2744929944454888},{"$f":"$C96*(1+'Sup Generales'!D$8)","v":0.27888488235661663},{"$f":"$C96*(1+'Sup Generales'!E$8)","v":0.28613588929788869},{"$f":"$C96*(1+'Sup Generales'!F$8)","v":0.2873719963396556},{"$f":"$C96*(1+'Sup Generales'!G$8)","v":0.28814790072977264},{"$f":"$C96*(1+'Sup Generales'!H$8)","v":0.2900784916646621},{"$f":"$C96*(1+'Sup Generales'!I$8)","v":0.29570927778598782},{"$f":"$C96*(1+'Sup Generales'!J$8)","v":0.3008409888699411},{"$f":"$C96*(1+'Sup Generales'!K$8)","v":0.30522142756930609},{"$f":"$C96*(1+'Sup Generales'!L$8)","v":0.30930551158552522},{"$f":"$C96*(1+'Sup Generales'!M$8)","v":0.31334297408678446},{"$f":"$C96*(1+'Sup Generales'!N$8)","v":0.31692604479181535},{"$f":"$C96*(1+'Sup Generales'!O$8)","v":0.32083195315618251},{"$f":"$C96*(1+'Sup Generales'!P$8)","v":0.32517197429835709},{"$f":"$C96*(1+'Sup Generales'!Q$8)","v":0.32984821439153994},{"$f":"$C96*(1+'Sup Generales'!R$8)","v":0.33438429292282912},{"$f":"$C96*(1+'Sup Generales'!S$8)","v":0.33883219982370755},{"$f":"$C96*(1+'Sup Generales'!T$8)","v":0.34328595390795513},{"$f":"$C96*(1+'Sup Generales'!U$8)","v":0.34778811016620387},{"$f":"$C96*(1+'Sup Generales'!V$8)","v":0.35235198838130488}]
[null,"Costo SITP-Q",{"$f":"H97","v":0},null,null,null,null,{"$f":"H151/H88","v":0},2.3276008317465312E-2,2.3881184533719412E-2,2.3984351250905082E-2,2.4049108999282524E-2,2.4210238029577717E-2,2.4680189012529361E-2,2.5108486698885078E-2,2.5474082448425167E-2,2.5814944142782573E-2,2.6151914759356177E-2,2.6450961386866517E-2,0,0,0,0,0,0,0,0]
[null,"Costo Ente Gestor",{"$f":"H98","v":0},null,null,null,null,{"$f":"H152/H88","v":0},{"$f":"I152/I88","v":0},0,0,0,0,0,0,0,0,0,0,0,0,0,0,0,0,0,0]
[]
[null,"P&G",null,null,"Total "]
[null,"(+) Ingresos ",null,null,{"$f":"+SUM(H101:AA101)","v":1068465.6319160091},null,null,{"$f":"+H88*H96*IF(H$6>'Sup fijo'!$H$51,0,1)","v":82698.370988954659},{"$f":"+I88*I96*IF(I$6>'Sup fijo'!$H$51,0,1)","v":84021.544924777932},{"$f":"+J88*J96*IF(J$6>'Sup fijo'!$H$51,0,1)","v":86206.105092822167},{"$f":"+K88*K96*IF(K$6>'Sup fijo'!$H$51,0,1)","v":86578.51546682317},{"$f":"+L88*L96*IF(L$6>'Sup fijo'!$H$51,0,1)","v":86812.277458583587},{"$f":"+M88*M96*IF(M$6>'Sup fijo'!$H$51,0,1)","v":87393.919717556084},{"$f":"+N88*N96*IF(N$6>'Sup fijo'!$H$51,0,1)","v":89090.344941673509},{"$f":"+O88*O96*IF(O$6>'Sup fijo'!$H$51,0,1)","v":90636.410435571481},{"$f":"+P88*P96*IF(P$6>'Sup fijo'!$H$51,0,1)","v":91956.134989512328},{"$f":"+Q88*Q96*IF(Q$6>'Sup fijo'!$H$51,0,1)","v":93186.574752849978},{"$f":"+R88*R96*IF(R$6>'Sup fijo'!$H$51,0,1)","v":94402.968535349355},{"$f":"+S88*S96*IF(S$6>'Sup fijo'!$H$51,0,1)","v":95482.464611534815},{"$f":"+T88*T96*IF(T$6>'Sup fijo'!$H$51,0,1)","v":0},{"$f":"+U88*U96*IF(U$6>'Sup fijo'!$H$51,0,1)","v":0},{"$f":"+V88*V96*IF(V$6>'Sup fijo'!$H$51,0,1)","v":0},{"$f":"+W88*W96*IF(W$6>'Sup fijo'!$H$51,0,1)","v":0},{"$f":"+X88*X96*IF(X$6>'Sup fijo'!$H$51,0,1)","v":0},{"$f":"+Y88*Y96*IF(Y$6>'Sup fijo'!$H$51,0,1)","v":0},{"$f":"+Z88*Z96*IF(Z$6>'Sup fijo'!$H$51,0,1)","v":0},{"$f":"+AA88*AA96*IF(AA$6>'Sup fijo'!$H$51,0,1)","v":0}]
[]
[null,"(-) Costo conductores ",null,null,{"$f":"+SUM(H103:AA103)","v":191701.56121762024},null,null,{"$f":"IF(H101=0,0,'OPEX Personal Directo'!C16)","v":24077.204571428578},{"$f":"IF(I101=0,0,'OPEX Personal Directo'!D16)","v":13711.322953728},{"$f":"IF(J101=0,0,'OPEX Personal Directo'!E16)","v":14180.359889329133},{"$f":"IF(K101=0,0,'OPEX Personal Directo'!F16)","v":14355.551996403441},{"$f":"IF(L101=0,0,'OPEX Personal Directo'!G16)","v":14509.466482688078},{"$f":"IF(M101=0,0,'OPEX Personal Directo'!H16)","v":14723.533347387063},{"$f":"IF(N101=0,0,'OPEX Personal Directo'!I16)","v":15129.410218349147},{"$f":"IF(O101=0,0,'OPEX Personal Directo'!J16)","v":15515.100301575339},{"$f":"IF(P101=0,0,'OPEX Personal Directo'!K16)","v":15866.938243228735},{"$f":"IF(Q101=0,0,'OPEX Personal Directo'!L16)","v":16207.88337705889},{"$f":"IF(R101=0,0,'OPEX Personal Directo'!M16)","v":16550.805596142873},{"$f":"IF(S101=0,0,'OPEX Personal Directo'!N16)","v":16873.984240300964},{"$f":"IF(T101=0,0,'OPEX Personal Directo'!O16)","v":0},{"$f":"IF(U101=0,0,'OPEX Personal Directo'!P16)","v":0},{"$f":"IF(V101=0,0,'OPEX Personal Directo'!Q16)","v":0},{"$f":"IF(W101=0,0,'OPEX Personal Directo'!R16)","v":0},{"$f":"IF(X101=0,0,'OPEX Personal Directo'!S16)","v":0},{"$f":"IF(Y101=0,0,'OPEX Personal Directo'!T16)","v":0},{"$f":"IF(Z101=0,0,'OPEX Personal Directo'!U16)","v":0},{"$f":"IF(AA101=0,0,'OPEX Personal Directo'!V16)","v":0}]
[null,"(-) Costo combustible ",null,null,{"$f":"+SUM(H104:AA104)","v":119580.19495844943},null,null,{"$f":"IF(H101=0,0,'OPEX Combustible '!H31)","v":9102.9916561246537},{"$f":"IF(I101=0,0,'OPEX Combustible '!I31)","v":9339.6694391838937},{"$f":"IF(J101=0,0,'OPEX Combustible '!J31)","v":9380.0168111611692},{"$f":"IF(K101=0,0,'OPEX Combustible '!K31)","v":9452.3695708340601},{"$f":"IF(L101=0,0,'OPEX Combustible '!L31)","v":9563.27894919344},{"$f":"IF(M101=0,0,'OPEX Combustible '!M31)","v":9797.6587184344517},{"$f":"IF(N101=0,0,'OPEX Combustible '!N31)","v":10017.524801150175},{"$f":"IF(O101=0,0,'OPEX Combustible '!O31)","v":10214.203350957017},{"$f":"IF(P101=0,0,'OPEX Combustible '!P31)","v":10402.631182078168},{"$f":"IF(Q101=0,0,'OPEX Combustible '!Q31)","v":10591.112111428025},{"$f":"IF(R101=0,0,'OPEX Combustible '!R31)","v":10765.782375080096},{"$f":"IF(S101=0,0,'OPEX Combustible '!S31)","v":10952.955992824278},{"$f":"IF(T101=0,0,'OPEX Combustible '!T31)","v":0},{"$f":"IF(U101=0,0,'OPEX Combustible '!U31)","v":0},{"$f":"IF(V101=0,0,'OPEX Combustible '!V31)","v":0},{"$f":"IF(W101=0,0,'OPEX Combustible '!W31)","v":0},{"$f":"IF(X101=0,0,'OPEX Combustible '!X31)","v":0},{"$f":"IF(Y101=0,0,'OPEX Combustible '!Y31)","v":0},{"$f":"IF(Z101=0,0,'OPEX Combustible '!Z31)","v":0},{"$f":"IF(AA101=0,0,'OPEX Combustible '!AA31)","v":0}]
[null,"(-) Costo impuestos + seguros ",null,null,49217.632634184505,null,null,{"$f":"+'OPEX impuestos'!C45+'OPEX impuestos'!C95+'OPEX impuestos'!C100+'OPEX Otros Gastos'!C21","v":4206.6690299733327},{"$f":"+'OPEX impuestos'!D45+'OPEX impuestos'!D95+'OPEX impuestos'!D100+'OPEX Otros Gastos'!D21","v":4590.0396802696532},{"$f":"+'OPEX impuestos'!E45+'OPEX impuestos'!E95+'OPEX impuestos'!E100+'OPEX Otros Gastos'!E21","v":4557.6260265978262},{"$f":"+'OPEX impuestos'!F45+'OPEX impuestos'!F95+'OPEX impuestos'!F100+'OPEX Otros Gastos'!F21","v":4900.1638920711684},{"$f":"+'OPEX impuestos'!G45+'OPEX impuestos'!G95+'OPEX impuestos'!G100+'OPEX Otros Gastos'!G21","v":3300.673108241047},{"$f":"+'OPEX impuestos'!H45+'OPEX impuestos'!H95+'OPEX impuestos'!H100+'OPEX Otros Gastos'!H21","v":4284.3654955356824},{"$f":"+'OPEX impuestos'!I45+'OPEX impuestos'!I95+'OPEX impuestos'!I100+'OPEX Otros Gastos'!I21","v":2832.3368203129376},{"$f":"+'OPEX impuestos'!J45+'OPEX impuestos'!J95+'OPEX impuestos'!J100+'OPEX Otros Gastos'!J21","v":5247.4564060660432},{"$f":"+'OPEX impuestos'!K45+'OPEX impuestos'!K95+'OPEX impuestos'!K100+'OPEX Otros Gastos'!K21","v":2990.3383474508173},{"$f":"+'OPEX impuestos'!L45+'OPEX impuestos'!L95+'OPEX impuestos'!L100+'OPEX Otros Gastos'!L21","v":4191.6156898400541},{"$f":"+'OPEX impuestos'!M45+'OPEX impuestos'!M95+'OPEX impuestos'!M100+'OPEX Otros Gastos'!M21","v":3435.8642845612349},{"$f":"+'OPEX impuestos'!N45+'OPEX impuestos'!N95+'OPEX impuestos'!N100+'OPEX Otros Gastos'!N21","v":4680.4838532647136},{"$f":"+'OPEX impuestos'!O45+'OPEX impuestos'!O95+'OPEX impuestos'!O100+'OPEX Otros Gastos'!O21","v":0},{"$f":"+'OPEX impuestos'!P45+'OPEX impuestos'!P95+'OPEX impuestos'!P100+'OPEX Otros Gastos'!P21","v":0},{"$f":"+'OPEX impuestos'!Q45+'OPEX impuestos'!Q95+'OPEX impuestos'!Q100+'OPEX Otros Gastos'!Q21","v":0},{"$f":"+'OPEX impuestos'!R45+'OPEX impuestos'!R95+'OPEX impuestos'!R100+'OPEX Otros Gastos'!R21","v":0},{"$f":"+'OPEX impuestos'!S45+'OPEX impuestos'!S95+'OPEX impuestos'!S100+'OPEX Otros Gastos'!S21","v":0},{"$f":"+'OPEX impuestos'!T45+'OPEX impuestos'!T95+'OPEX impuestos'!T100+'OPEX Otros Gastos'!T21","v":0},{"$f":"+'OPEX impuestos'!U45+'OPEX impuestos'!U95+'OPEX impuestos'!U100+'OPEX Otros Gastos'!U21","v":0},{"$f":"+'OPEX impuestos'!V45+'OPEX impuestos'!V95+'OPEX impuestos'!V100+'OPEX Otros Gastos'!V21","v":0}]
[null,"(-) Costo Mantenimiento ",null,null,260952.02468524704,null,null,{"$f":"+'OPEX Mtto'!C24","v":13830.807356952382},{"$f":"+'OPEX Mtto'!D24","v":18775.597487640382},{"$f":"+'OPEX Mtto'!E24","v":20737.319624041615},{"$f":"+'OPEX Mtto'!F24","v":25404.994681263466},{"$f":"+'OPEX Mtto'!G24","v":14974.586565626356},{"$f":"+'OPEX Mtto'!H24","v":25298.692455254772},{"$f":"+'OPEX Mtto'!I24","v":15245.490554923535},{"$f":"+'OPEX Mtto'!J24","v":32817.076893867044},{"$f":"+'OPEX Mtto'!K24","v":17019.000454331454},{"$f":"+'OPEX Mtto'!L24","v":25925.114458210992},{"$f":"+'OPEX Mtto'!M24","v":20852.66661120643},{"$f":"+'OPEX Mtto'!N24","v":30070.677541928631},{"$f":"+'OPEX Mtto'!O24","v":0},{"$f":"+'OPEX Mtto'!P24","v":0},{"$f":"+'OPEX Mtto'!Q24","v":0},{"$f":"+'OPEX Mtto'!R24","v":0},{"$f":"+'OPEX Mtto'!S24","v":0},{"$f":"+'OPEX Mtto'!T24","v":0},{"$f":"+'OPEX Mtto'!U24","v":0},{"$f":"+'OPEX Mtto'!V24","v":0}]
[null,"(-) Costo personal ",null,null,120640.5739994902,null,null,{"$f":"'OPEX Personal Indirecto'!D$9*IF(H$6>'Sup fijo'!$H$52,0,1)","v":9349.5441939890716},{"$f":"'OPEX Personal Indirecto'!E$9*IF(I$6>'Sup fijo'!$H$52,0,1)","v":9103.3742473180355},{"$f":"'OPEX Personal Indirecto'!F$9*IF(J$6>'Sup fijo'!$H$52,0,1)","v":9414.7824735702925},{"$f":"'OPEX Personal Indirecto'!G$9*IF(K$6>'Sup fijo'!$H$52,0,1)","v":9531.0979685269631},{"$f":"'OPEX Personal Indirecto'!H$9*IF(L$6>'Sup fijo'!$H$52,0,1)","v":9633.286588506322},{"$f":"'OPEX Personal Indirecto'!I$9*IF(M$6>'Sup fijo'!$H$52,0,1)","v":9775.4122455185097},{"$f":"'OPEX Personal Indirecto'!J$9*IF(N$6>'Sup fijo'!$H$52,0,1)","v":10044.886538201084},{"$f":"'OPEX Personal Indirecto'!K$9*IF(O$6>'Sup fijo'!$H$52,0,1)","v":10300.958193936724},{"$f":"'OPEX Personal Indirecto'!L$9*IF(P$6>'Sup fijo'!$H$52,0,1)","v":10534.554358806146},{"$f":"'OPEX Personal Indirecto'!M$9*IF(Q$6>'Sup fijo'!$H$52,0,1)","v":10760.918449385317},{"$f":"'OPEX Personal Indirecto'!N$9*IF(R$6>'Sup fijo'!$H$52,0,1)","v":10988.595188426279},{"$f":"'OPEX Personal Indirecto'!O$9*IF(S$6>'Sup fijo'!$H$52,0,1)","v":11203.163553305467},{"$f":"'OPEX Personal Indirecto'!P$9*IF(T$6>'Sup fijo'!$H$52,0,1)","v":0},{"$f":"'OPEX Personal Indirecto'!Q$9*IF(U$6>'Sup fijo'!$H$52,0,1)","v":0},{"$f":"'OPEX Personal Indirecto'!R$9*IF(V$6>'Sup fijo'!$H$52,0,1)","v":0},{"$f":"'OPEX Personal Indirecto'!S$9*IF(W$6>'Sup fijo'!$H$52,0,1)","v":0},{"$f":"'OPEX Personal Indirecto'!T$9*IF(X$6>'Sup fijo'!$H$52,0,1)","v":0},{"$f":"'OPEX Personal Indirecto'!U$9*IF(Y$6>'Sup fijo'!$H$52,0,1)","v":0},{"$f":"'OPEX Personal Indirecto'!V$9*IF(Z$6>'Sup fijo'!$H$52,0,1)","v":0},{"$f":"'OPEX Personal Indirecto'!W$9*IF(AA$6>'Sup fijo'!$H$52,0,1)","v":0}]
[null,"(-) Administración y otros ",null,null,{"$f":"+SUM(H108:AA108)","v":21634.666585122719},null,null,{"$f":"'OPEX Otros Gastos'!C$53","v":2308.2393600000005},{"$f":"'OPEX Otros Gastos'!D$53*IF(I$6>'Sup fijo'!$H$51,0,1)","v":1647.28160256},{"$f":"'OPEX Otros Gastos'!E$53*IF(J$6>'Sup fijo'!$H$51,0,1)","v":1690.11092422656},{"$f":"'OPEX Otros Gastos'!F$53*IF(K$6>'Sup fijo'!$H$51,0,1)","v":1697.4122034192192},{"$f":"'OPEX Otros Gastos'!G$53*IF(L$6>'Sup fijo'!$H$51,0,1)","v":1701.9952163684507},{"$f":"'OPEX Otros Gastos'!H$53*IF(M$6>'Sup fijo'!$H$51,0,1)","v":1713.3985843181192},{"$f":"'OPEX Otros Gastos'!I$53*IF(N$6>'Sup fijo'!$H$51,0,1)","v":1746.6577925879647},{"$f":"'OPEX Otros Gastos'!J$53*IF(O$6>'Sup fijo'!$H$51,0,1)","v":1776.9691281713685},{"$f":"'OPEX Otros Gastos'!K$53*IF(P$6>'Sup fijo'!$H$51,0,1)","v":1802.8429439896772},{"$f":"'OPEX Otros Gastos'!L$53*IF(Q$6>'Sup fijo'!$H$51,0,1)","v":1826.9662898174524},{"$f":"'OPEX Otros Gastos'!M$53*IF(R$6>'Sup fijo'!$H$51,0,1)","v":1850.8142576353914},{"$f":"'OPEX Otros Gastos'!N$53*IF(S$6>'Sup fijo'!$H$51,0,1)","v":1871.9782820285157},{"$f":"'OPEX Otros Gastos'!O$53*IF(T$6>'Sup fijo'!$H$51,0,1)","v":0},{"$f":"'OPEX Otros Gastos'!P$53*IF(U$6>'Sup fijo'!$H$51,0,1)","v":0},{"$f":"'OPEX Otros Gastos'!Q$53*IF(V$6>'Sup fijo'!$H$51,0,1)","v":0},{"$f":"'OPEX Otros Gastos'!R$53*IF(W$6>'Sup fijo'!$H$51,0,1)","v":0},{"$f":"'OPEX Otros Gastos'!S$53*IF(X$6>'Sup fijo'!$H$51,0,1)","v":0},{"$f":"'OPEX Otros Gastos'!T$53*IF(Y$6>'Sup fijo'!$H$51,0,1)","v":0},{"$f":"'OPEX Otros Gastos'!U$53*IF(Z$6>'Sup fijo'!$H$51,0,1)","v":0},{"$f":"'OPEX Otros Gastos'!V$53*IF(AA$6>'Sup fijo'!$H$51,0,1)","v":0}]
[null,"Total OPEX",null,null,763726.65408011398,null,null,{"$f":"+SUM(H103:H108)","v":62875.456168468016},57167.285410699966,59960.215748926588,65341.590312518318,53683.28691062369,65593.060846448599,55016.306725524846,75871.764274573536,58616.305529884994,69503.610375740725,64444.528313052309,75653.243463652572,0,0,0,0,0,0,0,0]
[]
[null,"EBITDA",null,null,{"$f":"+SUM(H111:AA111)","v":304738.97783589491},null,null,{"$f":"+H101-H109","v":19822.914820486643},26854.259514077967,26245.889343895578,21236.925154304852,33128.990547959897,21800.858871107484,34074.038216148663,14764.646160997945,33339.829459627334,23682.964377109252,29958.440222297046,19829.221147882243,0,0,0,0,0,0,0,0]
[]
[null,"(-) Depreciación",null,null,{"$f":"+SUM(H113:AA113)","v":97599.999999999985},null,null,{"$f":"'CAPEX Vehículo'!D26","v":8133.333333333333},{"$f":"'CAPEX Vehículo'!E26","v":8133.333333333333},{"$f":"'CAPEX Vehículo'!F26","v":8133.333333333333},{"$f":"'CAPEX Vehículo'!G26","v":8133.333333333333},{"$f":"'CAPEX Vehículo'!H26","v":8133.333333333333},{"$f":"'CAPEX Vehículo'!I26","v":8133.333333333333},{"$f":"'CAPEX Vehículo'!J26","v":8133.333333333333},{"$f":"'CAPEX Vehículo'!K26","v":8133.333333333333},{"$f":"'CAPEX Vehículo'!L26","v":8133.333333333333},{"$f":"'CAPEX Vehículo'!M26","v":8133.333333333333},{"$f":"'CAPEX Vehículo'!N26","v":8133.333333333333},{"$f":"'CAPEX Vehículo'!O26","v":8133.333333333333},{"$f":"'CAPEX Vehículo'!P26","v":0},{"$f":"'CAPEX Vehículo'!Q26","v":0},{"$f":"'CAPEX Vehículo'!R26","v":0},{"$f":"'CAPEX Vehículo'!S26","v":0},{"$f":"'CAPEX Vehículo'!T26","v":0},{"$f":"'CAPEX Vehículo'!U26","v":0},{"$f":"'CAPEX Vehículo'!V26","v":0},{"$f":"'CAPEX Vehículo'!W26","v":0}]
[]
[null,"EBIT",null,null,{"$f":"+SUM(H115:AA115)","v":207138.97783589491},null,null,{"$f":"+H111-H113","v":11689.581487153311},{"$f":"+I111-I113","v":18720.926180744635},18112.556010562246,13103.59182097152,24995.657214626564,13667.525537774152,25940.704882815331,6631.3128276646121,25206.496126294001,15549.63104377592,21825.106888963714,11695.887814548911,0,0,0,0,0,0,0,0]
[]
[null,"(-) Intereses",null,null,{"$f":"+SUM(H117:AA117)","v":33409.778015721931},null,null,{"$f":"'CAPEX Vehículo'!D23","v":10248.000000000002},{"$f":"'CAPEX Vehículo'!E23","v":8697.6462155597874},{"$f":"'CAPEX Vehículo'!F23","v":6930.2429012979446},{"$f":"'CAPEX Vehículo'!G23","v":4915.403123039443},{"$f":"'CAPEX Vehículo'!H23","v":2618.4857758247508},{"$f":"'CAPEX Vehículo'!I23","v":0},{"$f":"'CAPEX Vehículo'!J23","v":0},{"$f":"'CAPEX Vehículo'!K23","v":0},{"$f":"'CAPEX Vehículo'!L23","v":0},{"$f":"'CAPEX Vehículo'!M23","v":0},{"$f":"'CAPEX Vehículo'!N23","v":0},{"$f":"'CAPEX Vehículo'!O23","v":0},{"$f":"'CAPEX Vehículo'!P23","v":0},{"$f":"'CAPEX Vehículo'!Q23","v":0},{"$f":"'CAPEX Vehículo'!R23","v":0},{"$f":"'CAPEX Vehículo'!S23","v":0},{"$f":"'CAPEX Vehículo'!T23","v":0},{"$f":"'CAPEX Vehículo'!U23","v":0},{"$f":"'CAPEX Vehículo'!V23","v":0},{"$f":"'CAPEX Vehículo'!W23","v":0}]
[]
[null,"EBT",null,null,{"$f":"+SUM(H119:AA119)","v":173729.199820173},null,null,{"$f":"+H115-H117","v":1441.5814871533094},{"$f":"+I115-I117","v":10023.279965184847},11182.313109264302,8188.188697932077,22377.171438801815,13667.525537774152,25940.704882815331,6631.3128276646121,25206.496126294001,15549.63104377592,21825.106888963714,11695.887814548911,0,0,0,0,0,0,0,0]
[]
[null,"Participación empleados ",null,null,{"$f":"+SUM(H121:AA121)","v":26059.379973025949},null,null,{"$f":"+IF(H119<0,0,H119*'Sup fijo'!$D$196)","v":216.23722307299639},{"$f":"+IF(I119<0,0,I119*'Sup fijo'!$D$196)","v":1503.4919947777271},{"$f":"+IF(J119<0,0,J119*'Sup fijo'!$D$196)","v":1677.3469663896451},{"$f":"+IF(K119<0,0,K119*'Sup fijo'!$D$196)","v":1228.2283046898115},{"$f":"+IF(L119<0,0,L119*'Sup fijo'!$D$196)","v":3356.5757158202723},{"$f":"+IF(M119<0,0,M119*'Sup fijo'!$D$196)","v":2050.1288306661227},{"$f":"+IF(N119<0,0,N119*'Sup fijo'!$D$196)","v":3891.1057324222993},{"$f":"+IF(O119<0,0,O119*'Sup fijo'!$D$196)","v":994.69692414969177},{"$f":"+IF(P119<0,0,P119*'Sup fijo'!$D$196)","v":3780.9744189440999},{"$f":"+IF(Q119<0,0,Q119*'Sup fijo'!$D$196)","v":2332.4446565663879},{"$f":"+IF(R119<0,0,R119*'Sup fijo'!$D$196)","v":3273.7660333445569},{"$f":"+IF(S119<0,0,S119*'Sup fijo'!$D$196)","v":1754.3831721823365},{"$f":"+IF(T119<0,0,T119*'Sup fijo'!$D$196)","v":0},{"$f":"+IF(U119<0,0,U119*'Sup fijo'!$D$196)","v":0},{"$f":"+IF(V119<0,0,V119*'Sup fijo'!$D$196)","v":0},{"$f":"+IF(W119<0,0,W119*'Sup fijo'!$D$196)","v":0},{"$f":"+IF(X119<0,0,X119*'Sup fijo'!$D$196)","v":0},{"$f":"+IF(Y119<0,0,Y119*'Sup fijo'!$D$196)","v":0},{"$f":"+IF(Z119<0,0,Z119*'Sup fijo'!$D$196)","v":0},{"$f":"+IF(AA119<0,0,AA119*'Sup fijo'!$D$196)","v":0}]
[null,"Impuesto renta ",null,null,{"$f":"+SUM(H122:AA122)","v":44300.945954144103},null,null,{"$f":"IF((+H119-H121)<0,0,(+H119-H121)*'Sup fijo'!$D$197)","v":367.60327922409391},{"$f":"IF((+I119-I121)<0,0,(+I119-I121)*'Sup fijo'!$D$197)","v":2555.9363911221358},{"$f":"IF((+J119-J121)<0,0,(+J119-J121)*'Sup fijo'!$D$197)","v":2851.4898428623969},{"$f":"IF((+K119-K121)<0,0,(+K119-K121)*'Sup fijo'!$D$197)","v":2087.9881179726794},{"$f":"IF((+L119-L121)<0,0,(+L119-L121)*'Sup fijo'!$D$197)","v":5706.1787168944629},{"$f":"IF((+M119-M121)<0,0,(+M119-M121)*'Sup fijo'!$D$197)","v":3485.2190121324088},{"$f":"IF((+N119-N121)<0,0,(+N119-N121)*'Sup fijo'!$D$197)","v":6614.8797451179089},{"$f":"IF((+O119-O121)<0,0,(+O119-O121)*'Sup fijo'!$D$197)","v":1690.9847710544761},{"$f":"IF((+P119-P121)<0,0,(+P119-P121)*'Sup fijo'!$D$197)","v":6427.6565122049697},{"$f":"IF((+Q119-Q121)<0,0,(+Q119-Q121)*'Sup fijo'!$D$197)","v":3965.1559161628597},{"$f":"IF((+R119-R121)<0,0,(+R119-R121)*'Sup fijo'!$D$197)","v":5565.4022566857466},{"$f":"IF((+S119-S121)<0,0,(+S119-S121)*'Sup fijo'!$D$197)","v":2982.451392709972},{"$f":"IF((+T119-T121)<0,0,(+T119-T121)*'Sup fijo'!$D$197)","v":0},{"$f":"IF((+U119-U121)<0,0,(+U119-U121)*'Sup fijo'!$D$197)","v":0},{"$f":"IF((+V119-V121)<0,0,(+V119-V121)*'Sup fijo'!$D$197)","v":0},{"$f":"IF((+W119-W121)<0,0,(+W119-W121)*'Sup fijo'!$D$197)","v":0},{"$f":"IF((+X119-X121)<0,0,(+X119-X121)*'Sup fijo'!$D$197)","v":0},{"$f":"IF((+Y119-Y121)<0,0,(+Y119-Y121)*'Sup fijo'!$D$197)","v":0},{"$f":"IF((+Z119-Z121)<0,0,(+Z119-Z121)*'Sup fijo'!$D$197)","v":0},{"$f":"IF((+AA119-AA121)<0,0,(+AA119-AA121)*'Sup fijo'!$D$197)","v":0}]
[]
[null,"Utilidad Neta",null,null,{"$f":"+SUM(H124:AA124)","v":103368.87389300294},null,null,{"$f":"+H119-H121-H122","v":857.74098485621903},{"$f":"+I119-I121-I122","v":5963.8515792849848},6653.4763000122603,4871.9722752695852,13314.41700608708,8132.1776949756204,15434.719405275122,3945.631132460444,14997.865195144932,9252.0304710466735,12985.938598933411,6959.0532496566011,0,0,0,0,0,0,0,0]
[]
[null,"FLUJO DE CAJA PROYECTO"]
[]
[null,"(+) Utilidad Neta",null,null,{"$f":"SUM(G128:AA128)","v":103368.87389300294},null,null,{"$f":"H124","v":857.74098485621903},5963.8515792849848,6653.4763000122603,4871.9722752695852,13314.41700608708,8132.1776949756204,15434.719405275122,3945.631132460444,14997.865195144932,9252.0304710466735,12985.938598933411,6959.0532496566011,0,0,0,0,0,0,0,0]
[null,"(+) NCC (Non Cash Charges)",null,null,{"$f":"SUM(G129:AA129)","v":97599.999999999985},null,null,{"$f":"H113","v":8133.333333333333},{"$f":"I113","v":8133.333333333333},8133.333333333333,8133.333333333333,8133.333333333333,8133.333333333333,8133.333333333333,8133.333333333333,8133.333333333333,8133.333333333333,8133.333333333333,8133.333333333333,0,0,0,0,0,0,0,0]
[null,"(+) Int*(1-Impuestos)",null,null,18375.377908647064,null,null,{"$f":"H117*(1-SUM('Sup fijo'!$D$196:$D$197))","v":5636.4000000000015},{"$f":"I117*(1-SUM('Sup fijo'!$D$196:$D$197))","v":4783.7054185578836},{"$f":"J117*(1-SUM('Sup fijo'!$D$196:$D$197))","v":3811.6335957138699},{"$f":"K117*(1-SUM('Sup fijo'!$D$196:$D$197))","v":2703.471717671694},{"$f":"L117*(1-SUM('Sup fijo'!$D$196:$D$197))","v":1440.167176703613},{"$f":"M117*(1-SUM('Sup fijo'!$D$196:$D$197))","v":0},{"$f":"N117*(1-SUM('Sup fijo'!$D$196:$D$197))","v":0},{"$f":"O117*(1-SUM('Sup fijo'!$D$196:$D$197))","v":0},{"$f":"P117*(1-SUM('Sup fijo'!$D$196:$D$197))","v":0},{"$f":"Q117*(1-SUM('Sup fijo'!$D$196:$D$197))","v":0},{"$f":"R117*(1-SUM('Sup fijo'!$D$196:$D$197))","v":0},{"$f":"S117*(1-SUM('Sup fijo'!$D$196:$D$197))","v":0},{"$f":"T117*(1-SUM('Sup fijo'!$D$196:$D$197))","v":0},{"$f":"U117*(1-SUM('Sup fijo'!$D$196:$D$197))","v":0},{"$f":"V117*(1-SUM('Sup fijo'!$D$196:$D$197))","v":0},{"$f":"W117*(1-SUM('Sup fijo'!$D$196:$D$197))","v":0},{"$f":"X117*(1-SUM('Sup fijo'!$D$196:$D$197))","v":0},{"$f":"Y117*(1-SUM('Sup fijo'!$D$196:$D$197))","v":0},{"$f":"Z117*(1-SUM('Sup fijo'!$D$196:$D$197))","v":0},{"$f":"AA117*(1-SUM('Sup fijo'!$D$196:$D$197))","v":0}]
[null,"(-) CAPEX",null,null,97600,null,{"$f":"'CAPEX Vehículo'!C25","v":122000},{"$f":"IF(H$6='Sup fijo'!$H$52,-'Sup fijo'!$I$52*$G131,0)","v":0},{"$f":"IF(I$6='Sup fijo'!$H$52,-'Sup fijo'!$I$52*$G131,0)","v":0},{"$f":"IF(J$6='Sup fijo'!$H$52,-'Sup fijo'!$I$52*$G131,0)","v":0},{"$f":"IF(K$6='Sup fijo'!$H$52,-'Sup fijo'!$I$52*$G131,0)","v":0},{"$f":"IF(L$6='Sup fijo'!$H$52,-'Sup fijo'!$I$52*$G131,0)","v":0},{"$f":"IF(M$6='Sup fijo'!$H$52,-'Sup fijo'!$I$52*$G131,0)","v":0},{"$f":"IF(N$6='Sup fijo'!$H$52,-'Sup fijo'!$I$52*$G131,0)","v":0},{"$f":"IF(O$6='Sup fijo'!$H$52,-'Sup fijo'!$I$52*$G131,0)","v":0},{"$f":"IF(P$6='Sup fijo'!$H$52,-'Sup fijo'!$I$52*$G131,0)","v":0},{"$f":"IF(Q$6='Sup fijo'!$H$52,-'Sup fijo'!$I$52*$G131,0)","v":0},{"$f":"IF(R$6='Sup fijo'!$H$52,-'Sup fijo'!$I$52*$G131,0)","v":0},{"$f":"IF(S$6='Sup fijo'!$H$52,-'Sup fijo'!$I$52*$G131,0)","v":-24400},{"$f":"IF(T$6='Sup fijo'!$H$52,-'Sup fijo'!$I$52*$G131,0)","v":0},{"$f":"IF(U$6='Sup fijo'!$H$52,-'Sup fijo'!$I$52*$G131,0)","v":0},{"$f":"IF(V$6='Sup fijo'!$H$52,-'Sup fijo'!$I$52*$G131,0)","v":0},{"$f":"IF(W$6='Sup fijo'!$H$52,-'Sup fijo'!$I$52*$G131,0)","v":0},{"$f":"IF(X$6='Sup fijo'!$H$52,-'Sup fijo'!$I$52*$G131,0)","v":0},{"$f":"IF(Y$6='Sup fijo'!$H$52,-'Sup fijo'!$I$52*$G131,0)","v":0},{"$f":"IF(Z$6='Sup fijo'!$H$52,-'Sup fijo'!$I$52*$G131,0)","v":0},{"$f":"IF(AA$6='Sup fijo'!$H$52,-'Sup fijo'!$I$52*$G131,0)","v":0}]
[]
[null,"Flujo de caja libre",null,null,{"$f":"+SUM(H133:AA133)","v":243744.25180164998},null,{"$f":"G128+G129+G130-G131","v":-122000},{"$f":"H128+H129+H130-H131","v":14627.474318189554},18880.890331176204,18598.443229059463,15708.777326274612,22887.917516124027,16265.511028308953,23568.052738608454,12078.964465793777,23131.198528478264,17385.363804380006,21119.271932266744,39492.38658298993,0,0,0,0,0,0,0,0]
[]
[null,"FLUJO DE CAJA DEL CONCESIONARIO"]
[]
[null,"(+) FCFF",null,null,{"$f":"SUM(G137:AA137)","v":121744.25180164997},null,{"$f":"G133","v":-122000},{"$f":"H133","v":14627.474318189554},18880.890331176204,18598.443229059463,15708.777326274612,22887.917516124027,16265.511028308953,23568.052738608454,12078.964465793777,23131.198528478264,17385.363804380006,21119.271932266744,39492.38658298993,0,0,0,0,0,0,0,0]
[null,"(-) Int*(1-Impuestos)",null,null,18375.377908647064,null,{"$f":"G130","v":0},{"$f":"H130","v":5636.4000000000015},4783.7054185578836,3811.6335957138699,2703.471717671694,1440.167176703613,0,0,0,0,0,0,0,0,0,0,0,0,0,0,0]
[null,"(+) Endeudamiento Neto",null,null,1.8189894035458565E-11,null,{"$f":"G140-G141","v":73200},{"$f":"H140-H141","v":-11073.955603144383},{"$f":"I140-I141","v":-12624.309387584593},{"$f":"J140-J141","v":-14391.71270184644},{"$f":"K140-K141","v":-16406.55248010494},{"$f":"L140-L141","v":-18703.46982731963},{"$f":"M140-M141","v":0},{"$f":"N140-N141","v":0},{"$f":"O140-O141","v":0},{"$f":"P140-P141","v":0},{"$f":"Q140-Q141","v":0},{"$f":"R140-R141","v":0},{"$f":"S140-S141","v":0},{"$f":"T140-T141","v":0},{"$f":"U140-U141","v":0},{"$f":"V140-V141","v":0},{"$f":"W140-W141","v":0},{"$f":"X140-X141","v":0},{"$f":"Y140-Y141","v":0},{"$f":"Z140-Z141","v":0},{"$f":"AA140-AA141","v":0}]
[null,"Desembolsos",null,null,null,null,{"$f":"'CAPEX Vehículo'!C20","v":73200}]
[null,"Amortizaciones",null,null,null,null,{"$f":"'CAPEX Vehículo'!C21","v":0},{"$f":"'CAPEX Vehículo'!D21","v":11073.955603144383},{"$f":"'CAPEX Vehículo'!E21","v":12624.309387584593},{"$f":"'CAPEX Vehículo'!F21","v":14391.71270184644},{"$f":"'CAPEX Vehículo'!G21","v":16406.55248010494},{"$f":"'CAPEX Vehículo'!H21","v":18703.46982731963},{"$f":"'CAPEX Vehículo'!I21","v":0},{"$f":"'CAPEX Vehículo'!J21","v":0},{"$f":"'CAPEX Vehículo'!K21","v":0},{"$f":"'CAPEX Vehículo'!L21","v":0},{"$f":"'CAPEX Vehículo'!M21","v":0},{"$f":"'CAPEX Vehículo'!N21","v":0},{"$f":"'CAPEX Vehículo'!O21","v":0},{"$f":"'CAPEX Vehículo'!P21","v":0},{"$f":"'CAPEX Vehículo'!Q21","v":0},{"$f":"'CAPEX Vehículo'!R21","v":0},{"$f":"'CAPEX Vehículo'!S21","v":0},{"$f":"'CAPEX Vehículo'!T21","v":0},{"$f":"'CAPEX Vehículo'!U21","v":0},{"$f":"'CAPEX Vehículo'!V21","v":0},{"$f":"'CAPEX Vehículo'!W21","v":0}]
[]
[null,"FCFE",null,null,{"$f":"+SUM(H143:AA143)","v":152168.87389300292},null,{"$f":"G137+G139-G138","v":-48800},{"$f":"H137+H139-H138","v":-2082.8812849548303},1472.8755250337272,395.09693149915347,-3401.2468715020213,2744.2805121007841,16265.511028308953,23568.052738608454,12078.964465793777,23131.198528478264,17385.363804380006,21119.271932266744,39492.38658298993,0,0,0,0,0,0,0,0]
[]
[null,"(+) Equity",null,null,{"$f":"SUM(G145:AA145)","v":54284.128156456849},null,{"$f":"IF(G143<0,-G143,0)","v":48800},{"$f":"IF(H143<0,-H143,0)","v":2082.8812849548303},0,0,3401.2468715020213,0,0,0,0,0,0,0,0,0,0,0,0,0,0,0,0]
[null,"(-) Dividendos",null,null,157653.00204945978,null,{"$f":"IF(G143>0,G143,0)","v":0},{"$f":"IF(H143>0,H143,0)","v":0},1472.8755250337272,395.09693149915347,0,2744.2805121007841,16265.511028308953,23568.052738608454,12078.964465793777,23131.198528478264,17385.363804380006,21119.271932266744,39492.38658298993,0,0,0,0,0,0,0,0]
[null,"Cambio neto en caja",null,null,{"$f":"+SUM(H147:AA147)","v":0},null,{"$f":"G143+G145-G146","v":0},{"$f":"H143+H145-H146","v":0},{"$f":"I143+I145-I146","v":0},{"$f":"J143+J145-J146","v":0},{"$f":"K143+K145-K146","v":0},{"$f":"L143+L145-L146","v":0},{"$f":"M143+M145-M146","v":0},{"$f":"N143+N145-N146","v":0},{"$f":"O143+O145-O146","v":0},{"$f":"P143+P145-P146","v":0},{"$f":"Q143+Q145-Q146","v":0},{"$f":"R143+R145-R146","v":0},{"$f":"S143+S145-S146","v":0},{"$f":"T143+T145-T146","v":0},{"$f":"U143+U145-U146","v":0},{"$f":"V143+V145-V146","v":0},{"$f":"W143+W145-W146","v":0},{"$f":"X143+X145-X146","v":0},{"$f":"Y143+Y145-Y146","v":0},{"$f":"Z143+Z145-Z146","v":0},{"$f":"AA143+AA145-AA146","v":0}]
[]
[null,"Otros"]
[]
[null,"Remuneración Operador SITP-Q",null,null,{"$f":"+SUM(H151:AA151)","v":82273.111294297967},null,null,{"$f":"IF(H101=0,0,'OPEX Otros Gastos'!C75)","v":0},{"$f":"IF(I101=0,0,'OPEX Otros Gastos'!D75)","v":7012.5213026593347},{"$f":"IF(J101=0,0,'OPEX Otros Gastos'!E75)","v":7194.8468565284775},{"$f":"IF(K101=0,0,'OPEX Otros Gastos'!F75)","v":7225.9285949486812},{"$f":"IF(L101=0,0,'OPEX Otros Gastos'!G75)","v":7245.4386021550426},{"$f":"IF(M101=0,0,'OPEX Otros Gastos'!H75)","v":7293.9830407894815},{"$f":"IF(N101=0,0,'OPEX Otros Gastos'!I75)","v":7435.5683690900069},{"$f":"IF(O101=0,0,'OPEX Otros Gastos'!J75)","v":7564.6045254826613},{"$f":"IF(P101=0,0,'OPEX Otros Gastos'!K75)","v":7674.7500429977008},{"$f":"IF(Q101=0,0,'OPEX Otros Gastos'!L75)","v":7777.4437635162776},{"$f":"IF(R101=0,0,'OPEX Otros Gastos'!M75)","v":7878.9651925716007},{"$f":"IF(S101=0,0,'OPEX Otros Gastos'!N75)","v":7969.0610035587069},{"$f":"IF(T101=0,0,'OPEX Otros Gastos'!O75)","v":0},{"$f":"IF(U101=0,0,'OPEX Otros Gastos'!P75)","v":0},{"$f":"IF(V101=0,0,'OPEX Otros Gastos'!Q75)","v":0},{"$f":"IF(W101=0,0,'OPEX Otros Gastos'!R75)","v":0},{"$f":"IF(X101=0,0,'OPEX Otros Gastos'!S75)","v":0},{"$f":"IF(Y101=0,0,'OPEX Otros Gastos'!T75)","v":0},{"$f":"IF(Z101=0,0,'OPEX Otros Gastos'!U75)","v":0},{"$f":"IF(AA101=0,0,'OPEX Otros Gastos'!V75)","v":0}]
[null,"Gastos del ente Gestor",null,null,{"$f":"+SUM(H152:AA152)","v":0},null,null,{"$f":"IF(H102=0,0,'OPEX Personal Indirecto'!D$14)","v":0},{"$f":"IF(I102=0,0,'OPEX Personal Indirecto'!E$14)","v":0},{"$f":"IF(J102=0,0,'OPEX Personal Indirecto'!F$14)","v":0},{"$f":"IF(K102=0,0,'OPEX Personal Indirecto'!G$14)","v":0},{"$f":"IF(L102=0,0,'OPEX Personal Indirecto'!H$14)","v":0},{"$f":"IF(M102=0,0,'OPEX Personal Indirecto'!I$14)","v":0},{"$f":"IF(N102=0,0,'OPEX Personal Indirecto'!J$14)","v":0},{"$f":"IF(O102=0,0,'OPEX Personal Indirecto'!K$14)","v":0},{"$f":"IF(P102=0,0,'OPEX Personal Indirecto'!L$14)","v":0},{"$f":"IF(Q102=0,0,'OPEX Personal Indirecto'!M$14)","v":0},{"$f":"IF(R102=0,0,'OPEX Personal Indirecto'!N$14)","v":0},{"$f":"IF(S102=0,0,'OPEX Personal Indirecto'!O$14)","v":0},{"$f":"IF(T102=0,0,'OPEX Personal Indirecto'!P$14)","v":0},{"$f":"IF(U102=0,0,'OPEX Personal Indirecto'!Q$14)","v":0},{"$f":"IF(V102=0,0,'OPEX Personal Indirecto'!R$14)","v":0},{"$f":"IF(W102=0,0,'OPEX Personal Indirecto'!S$14)","v":0},{"$f":"IF(X102=0,0,'OPEX Personal Indirecto'!T$14)","v":0},{"$f":"IF(Y102=0,0,'OPEX Personal Indirecto'!U$14)","v":0},{"$f":"IF(Z102=0,0,'OPEX Personal Indirecto'!V$14)","v":0},{"$f":"IF(AA102=0,0,'OPEX Personal Indirecto'!W$14)","v":0}]
[]
[null,"Costo del Proyecto",null,null,{"$f":"+SUM(H154:AA154)","v":-1150738.7432103071},null,null,{"$f":"-H101-H151-H152","v":-82698.370988954659},{"$f":"-I101-I151-I152","v":-91034.066227437273},-93400.951949350638,-93804.44406177185,-94057.716060738632,-94687.902758345561,-96525.913310763513,-98201.014961054141,-99630.885032510036,-100964.01851636625,-102281.93372792096,-103451.52561509352,0,0,0,0,0,0,0,0]
[]
[]
[]
[]
[null,null,null,null,null,null,{"$f":"G143","v":-48800},{"$f":"H143/(1+rentabilidadobj)^COUNTA($H$6:H$6)","v":-1843.2577742963101},{"$f":"I143/(1+rentabilidadobj)^COUNTA($H$6:I$6)","v":1153.4775824526021},{"$f":"J143/(1+rentabilidadobj)^COUNTA($H$6:J$6)","v":273.82199249090797},{"$f":"K143/(1+rentabilidadobj)^COUNTA($H$6:K$6)","v":-2086.0484037530805},{"$f":"L143/(1+rentabilidadobj)^COUNTA($H$6:L$6)","v":1489.4855151123556},{"$f":"M143/(1+rentabilidadobj)^COUNTA($H$6:M$6)","v":7812.6263050648622},{"$f":"N143/(1+rentabilidadobj)^COUNTA($H$6:N$6)","v":10017.851668915935},{"$f":"O143/(1+rentabilidadobj)^COUNTA($H$6:O$6)","v":4543.6216032009534},{"$f":"P143/(1+rentabilidadobj)^COUNTA($H$6:P$6)","v":7700.0251680905203},{"$f":"Q143/(1+rentabilidadobj)^COUNTA($H$6:Q$6)","v":5121.5256047040393},{"$f":"R143/(1+rentabilidadobj)^COUNTA($H$6:R$6)","v":5505.7446302238122},{"$f":"S143/(1+rentabilidadobj)^COUNTA($H$6:S$6)","v":9111.1261077933814},{"$f":"T143/(1+rentabilidadobj)^COUNTA($H$6:T$6)","v":0},{"$f":"U143/(1+rentabilidadobj)^COUNTA($H$6:U$6)","v":0},{"$f":"V143/(1+rentabilidadobj)^COUNTA($H$6:V$6)","v":0},{"$f":"W143/(1+rentabilidadobj)^COUNTA($H$6:W$6)","v":0},{"$f":"X143/(1+rentabilidadobj)^COUNTA($H$6:X$6)","v":0},{"$f":"Y143/(1+rentabilidadobj)^COUNTA($H$6:Y$6)","v":0},{"$f":"Z143/(1+rentabilidadobj)^COUNTA($H$6:Z$6)","v":0},{"$f":"AA143/(1+rentabilidadobj)^COUNTA($H$6:AA$6)","v":0}]
[null,null,null,null,null,null,null,{"$f":"SUM(G159:AA159)","v":-1.8189894035458565E-11}]
[]
[null,{"$f":"'Sup fijo'!B22","v":"Intracantonal Combinado"}]
[null,null,{"$f":"C173/0.893481776513347","v":0.38998714003593632}]
[null,"Supuestos"]
[null,"Demanda Anual",null,null,{"$f":"+SUM(H165:AA165)","v":6162480},null,null,{"$f":"'Sup fijo'!E42","v":308124},{"$f":"'Sup fijo'!F42","v":308124},{"$f":"'Sup fijo'!G42","v":308124},{"$f":"'Sup fijo'!H42","v":308124},{"$f":"'Sup fijo'!I42","v":308124},{"$f":"'Sup fijo'!J42","v":308124},{"$f":"'Sup fijo'!K42","v":308124},{"$f":"'Sup fijo'!L42","v":308124},{"$f":"'Sup fijo'!M42","v":308124},{"$f":"'Sup fijo'!N42","v":308124},{"$f":"'Sup fijo'!O42","v":308124},{"$f":"'Sup fijo'!P42","v":308124},{"$f":"'Sup fijo'!Q42","v":308124},{"$f":"'Sup fijo'!R42","v":308124},{"$f":"'Sup fijo'!S42","v":308124},{"$f":"'Sup fijo'!T42","v":308124},{"$f":"'Sup fijo'!U42","v":308124},{"$f":"'Sup fijo'!V42","v":308124},{"$f":"'Sup fijo'!W42","v":308124},{"$f":"'Sup fijo'!X42","v":308124}]
[null,"kilómetros Anual",null,null,{"$f":"+SUM(H166:AA166)","v":2250360.0000000005},null,null,{"$f":"'Sup fijo'!E25","v":112518.00000000003},{"$f":"'Sup fijo'!F25","v":112518.00000000003},{"$f":"'Sup fijo'!G25","v":112518.00000000003},{"$f":"'Sup fijo'!H25","v":112518.00000000003},{"$f":"'Sup fijo'!I25","v":112518.00000000003},{"$f":"'Sup fijo'!J25","v":112518.00000000003},{"$f":"'Sup fijo'!K25","v":112518.00000000003},{"$f":"'Sup fijo'!L25","v":112518.00000000003},{"$f":"'Sup fijo'!M25","v":112518.00000000003},{"$f":"'Sup fijo'!N25","v":112518.00000000003},{"$f":"'Sup fijo'!O25","v":112518.00000000003},{"$f":"'Sup fijo'!P25","v":112518.00000000003},{"$f":"'Sup fijo'!Q25","v":112518.00000000003},{"$f":"'Sup fijo'!R25","v":112518.00000000003},{"$f":"'Sup fijo'!S25","v":112518.00000000003},{"$f":"'Sup fijo'!T25","v":112518.00000000003},{"$f":"'Sup fijo'!U25","v":112518.00000000003},{"$f":"'Sup fijo'!V25","v":112518.00000000003},{"$f":"'Sup fijo'!W25","v":112518.00000000003},{"$f":"'Sup fijo'!X25","v":112518.00000000003}]
[null,"Tir accionista ",{"$f":"IFERROR(+IRR(G220:AA220),0)","v":0.12999999999985468}]
[]
[null,"Aportes capital ",{"$f":"E222","v":58211.55542819963}]
[]
[null,"Resultados Tarifas"]
[null,"Tarifa técnica por pasajero",{"$f":"SUM(C173:C174)","v":0.34844640269666782},null,null,null,null,{"$f":"SUM(H173:H174)","v":0.35680911636138785},{"$f":"SUM(I173:I174)","v":0.38579407054063536},0.39582471637469185,0.39753467914943064,0.39860802278313406,0.40127869653578102,0.40906801763391126,0.41616694566180357,0.42222660462324113,0.4278763027486216,0.43346150722386534,0.43841813097717852,0.41704439830026063,0.42268592336671029,0.42876449414740692,0.43466087112331026,0.44044263518678373,0.4462319999117435,0.4520842818596737,0.45801679520632882]
[null,"Tarifa operador privado",0.34844640269666782,null,null,null,null,{"$f":"$C173*(1+'Sup Generales'!C$8)","v":0.35680911636138785},{"$f":"$C173*(1+'Sup Generales'!D$8)","v":0.36251806222317007},{"$f":"$C173*(1+'Sup Generales'!E$8)","v":0.37194353184097245},{"$f":"$C173*(1+'Sup Generales'!F$8)","v":0.37355032789852555},{"$f":"$C173*(1+'Sup Generales'!G$8)","v":0.37455891378385153},{"$f":"$C173*(1+'Sup Generales'!H$8)","v":0.3770684585062033},{"$f":"$C173*(1+'Sup Generales'!I$8)","v":0.38438782862138188},{"$f":"$C173*(1+'Sup Generales'!J$8)","v":0.39105845896291846},{"$f":"$C173*(1+'Sup Generales'!K$8)","v":0.39675252217481599},{"$f":"$C173*(1+'Sup Generales'!L$8)","v":0.40206135860583903},{"$f":"$C173*(1+'Sup Generales'!M$8)","v":0.40730959246450915},{"$f":"$C173*(1+'Sup Generales'!N$8)","v":0.41196716959031199},{"$f":"$C173*(1+'Sup Generales'!O$8)","v":0.41704439830026063},{"$f":"$C173*(1+'Sup Generales'!P$8)","v":0.42268592336671029},{"$f":"$C173*(1+'Sup Generales'!Q$8)","v":0.42876449414740692},{"$f":"$C173*(1+'Sup Generales'!R$8)","v":0.43466087112331026},{"$f":"$C173*(1+'Sup Generales'!S$8)","v":0.44044263518678373},{"$f":"$C173*(1+'Sup Generales'!T$8)","v":0.4462319999117435},{"$f":"$C173*(1+'Sup Generales'!U$8)","v":0.4520842818596737},{"$f":"$C173*(1+'Sup Generales'!V$8)","v":0.45801679520632882}]
[null,"Costo SITP-Q",{"$f":"H174","v":0},null,null,null,null,{"$f":"H228/H165","v":0},2.3276008317465312E-2,2.3881184533719412E-2,2.3984351250905082E-2,2.4049108999282524E-2,2.4210238029577717E-2,2.4680189012529361E-2,2.5108486698885078E-2,2.5474082448425167E-2,2.5814944142782573E-2,2.6151914759356177E-2,2.6450961386866517E-2,0,0,0,0,0,0,0,0]
[null,"Costo Ente Gestor",{"$f":"H175","v":0},null,null,null,null,{"$f":"H229/H165","v":0},{"$f":"I229/I165","v":0},0,0,0,0,0,0,0,0,0,0,0,0,0,0,0,0,0,0]
[]
[null,"P&G",null,null,"Total "]
[null,"(+) Ingresos ",null,null,{"$f":"+SUM(H178:AA178)","v":1420447.1232207252},null,null,{"$f":"+H165*H173*IF(H$6>'Sup fijo'!$H$51,0,1)","v":109941.45216973627},{"$f":"+I165*I173*IF(I$6>'Sup fijo'!$H$51,0,1)","v":111700.51540445206},{"$f":"+J165*J173*IF(J$6>'Sup fijo'!$H$51,0,1)","v":114604.7288049678},{"$f":"+K165*K173*IF(K$6>'Sup fijo'!$H$51,0,1)","v":115099.82123340528},{"$f":"+L165*L173*IF(L$6>'Sup fijo'!$H$51,0,1)","v":115410.59075073547},{"$f":"+M165*M173*IF(M$6>'Sup fijo'!$H$51,0,1)","v":116183.84170876538},{"$f":"+N165*N173*IF(N$6>'Sup fijo'!$H$51,0,1)","v":118439.11530613467},{"$f":"+O165*O173*IF(O$6>'Sup fijo'!$H$51,0,1)","v":120494.49660949029},{"$f":"+P165*P173*IF(P$6>'Sup fijo'!$H$51,0,1)","v":122248.974142593},{"$f":"+Q165*Q173*IF(Q$6>'Sup fijo'!$H$51,0,1)","v":123884.75405906554},{"$f":"+R165*R173*IF(R$6>'Sup fijo'!$H$51,0,1)","v":125501.86086853442},{"$f":"+S165*S173*IF(S$6>'Sup fijo'!$H$51,0,1)","v":126936.9721628453},{"$f":"+T165*T173*IF(T$6>'Sup fijo'!$H$51,0,1)","v":0},{"$f":"+U165*U173*IF(U$6>'Sup fijo'!$H$51,0,1)","v":0},{"$f":"+V165*V173*IF(V$6>'Sup fijo'!$H$51,0,1)","v":0},{"$f":"+W165*W173*IF(W$6>'Sup fijo'!$H$51,0,1)","v":0},{"$f":"+X165*X173*IF(X$6>'Sup fijo'!$H$51,0,1)","v":0},{"$f":"+Y165*Y173*IF(Y$6>'Sup fijo'!$H$51,0,1)","v":0},{"$f":"+Z165*Z173*IF(Z$6>'Sup fijo'!$H$51,0,1)","v":0},{"$f":"+AA165*AA173*IF(AA$6>'Sup fijo'!$H$51,0,1)","v":0}]
[]
[null,"(-) Costo conductores ",null,null,{"$f":"+SUM(H180:AA180)","v":191701.56121762024},null,null,{"$f":"IF(H178=0,0,'OPEX Personal Directo'!C23)","v":24077.204571428578},{"$f":"IF(I178=0,0,'OPEX Personal Directo'!D23)","v":13711.322953728},{"$f":"IF(J178=0,0,'OPEX Personal Directo'!E23)","v":14180.359889329133},{"$f":"IF(K178=0,0,'OPEX Personal Directo'!F23)","v":14355.551996403441},{"$f":"IF(L178=0,0,'OPEX Personal Directo'!G23)","v":14509.466482688078},{"$f":"IF(M178=0,0,'OPEX Personal Directo'!H23)","v":14723.533347387063},{"$f":"IF(N178=0,0,'OPEX Personal Directo'!I23)","v":15129.410218349147},{"$f":"IF(O178=0,0,'OPEX Personal Directo'!J23)","v":15515.100301575339},{"$f":"IF(P178=0,0,'OPEX Personal Directo'!K23)","v":15866.938243228735},{"$f":"IF(Q178=0,0,'OPEX Personal Directo'!L23)","v":16207.88337705889},{"$f":"IF(R178=0,0,'OPEX Personal Directo'!M23)","v":16550.805596142873},{"$f":"IF(S178=0,0,'OPEX Personal Directo'!N23)","v":16873.984240300964},{"$f":"IF(T178=0,0,'OPEX Personal Directo'!O23)","v":0},{"$f":"IF(U178=0,0,'OPEX Personal Directo'!P23)","v":0},{"$f":"IF(V178=0,0,'OPEX Personal Directo'!Q23)","v":0},{"$f":"IF(W178=0,0,'OPEX Personal Directo'!R23)","v":0},{"$f":"IF(X178=0,0,'OPEX Personal Directo'!S23)","v":0},{"$f":"IF(Y178=0,0,'OPEX Personal Directo'!T23)","v":0},{"$f":"IF(Z178=0,0,'OPEX Personal Directo'!U23)","v":0},{"$f":"IF(AA178=0,0,'OPEX Personal Directo'!V23)","v":0}]
[null,"(-) Costo combustible ",null,null,195925.8767366517,null,null,{"$f":"IF(H178=0,0,'OPEX Combustible '!H48)","v":14914.774321720795},{"$f":"IF(I178=0,0,'OPEX Combustible '!I48)","v":15302.558454085536},{"$f":"IF(J178=0,0,'OPEX Combustible '!J48)","v":15368.665506607185},{"$f":"IF(K178=0,0,'OPEX Combustible '!K48)","v":15487.211707992397},{"$f":"IF(L178=0,0,'OPEX Combustible '!L48)","v":15668.930906568123},{"$f":"IF(M178=0,0,'OPEX Combustible '!M48)","v":16052.949863836386},{"$f":"IF(N178=0,0,'OPEX Combustible '!N48)","v":16413.188907063399},{"$f":"IF(O178=0,0,'OPEX Combustible '!O48)","v":16735.43639394522},{"$f":"IF(P178=0,0,'OPEX Combustible '!P48)","v":17044.165511060521},{"$f":"IF(Q178=0,0,'OPEX Combustible '!Q48)","v":17352.981626838227},{"$f":"IF(R178=0,0,'OPEX Combustible '!R48)","v":17639.169691322866},{"$f":"IF(S178=0,0,'OPEX Combustible '!S48)","v":17945.843845611056},{"$f":"IF(T178=0,0,'OPEX Combustible '!T48)","v":0},{"$f":"IF(U178=0,0,'OPEX Combustible '!U48)","v":0},{"$f":"IF(V178=0,0,'OPEX Combustible '!V48)","v":0},{"$f":"IF(W178=0,0,'OPEX Combustible '!W48)","v":0},{"$f":"IF(X178=0,0,'OPEX Combustible '!X48)","v":0},{"$f":"IF(Y178=0,0,'OPEX Combustible '!Y48)","v":0},{"$f":"IF(Z178=0,0,'OPEX Combustible '!Z48)","v":0},{"$f":"IF(AA178=0,0,'OPEX Combustible '!AA48)","v":0}]
[null,"(-) Costo impuestos + seguros ",null,null,83750.827303039594,null,null,{"$f":"+'OPEX impuestos'!C64+'OPEX impuestos'!C96+'OPEX impuestos'!C101+'OPEX Otros Gastos'!C28","v":5866.2567197866665},{"$f":"+'OPEX impuestos'!D64+'OPEX impuestos'!D96+'OPEX impuestos'!D101+'OPEX Otros Gastos'!D28","v":7081.6829371289596},{"$f":"+'OPEX impuestos'!E64+'OPEX impuestos'!E96+'OPEX impuestos'!E101+'OPEX Otros Gastos'!E28","v":8178.89383544873},{"$f":"+'OPEX impuestos'!F64+'OPEX impuestos'!F96+'OPEX impuestos'!F101+'OPEX Otros Gastos'!F28","v":6649.3284533572396},{"$f":"+'OPEX impuestos'!G64+'OPEX impuestos'!G96+'OPEX impuestos'!G101+'OPEX Otros Gastos'!G28","v":7784.25597037637},{"$f":"+'OPEX impuestos'!H64+'OPEX impuestos'!H96+'OPEX impuestos'!H101+'OPEX Otros Gastos'!H28","v":6449.4640904525586},{"$f":"+'OPEX impuestos'!I64+'OPEX impuestos'!I96+'OPEX impuestos'!I101+'OPEX Otros Gastos'!I28","v":7689.2445022373913},{"$f":"+'OPEX impuestos'!J64+'OPEX impuestos'!J96+'OPEX impuestos'!J101+'OPEX Otros Gastos'!J28","v":6207.6128401844308},{"$f":"+'OPEX impuestos'!K64+'OPEX impuestos'!K96+'OPEX impuestos'!K101+'OPEX Otros Gastos'!K28","v":6176.7308127698125},{"$f":"+'OPEX impuestos'!L64+'OPEX impuestos'!L96+'OPEX impuestos'!L101+'OPEX Otros Gastos'!L28","v":7000.0227035161288},{"$f":"+'OPEX impuestos'!M64+'OPEX impuestos'!M96+'OPEX impuestos'!M101+'OPEX Otros Gastos'!M28","v":7567.3247517067466},{"$f":"+'OPEX impuestos'!N64+'OPEX impuestos'!N96+'OPEX impuestos'!N101+'OPEX Otros Gastos'!N28","v":7100.0096860745525},{"$f":"+'OPEX impuestos'!O64+'OPEX impuestos'!O96+'OPEX impuestos'!O101+'OPEX Otros Gastos'!O28","v":0},{"$f":"+'OPEX impuestos'!P64+'OPEX impuestos'!P96+'OPEX impuestos'!P101+'OPEX Otros Gastos'!P28","v":0},{"$f":"+'OPEX impuestos'!Q64+'OPEX impuestos'!Q96+'OPEX impuestos'!Q101+'OPEX Otros Gastos'!Q28","v":0},{"$f":"+'OPEX impuestos'!R64+'OPEX impuestos'!R96+'OPEX impuestos'!R101+'OPEX Otros Gastos'!R28","v":0},{"$f":"+'OPEX impuestos'!S64+'OPEX impuestos'!S96+'OPEX impuestos'!S101+'OPEX Otros Gastos'!S28","v":0},{"$f":"+'OPEX impuestos'!T64+'OPEX impuestos'!T96+'OPEX impuestos'!T101+'OPEX Otros Gastos'!T28","v":0},{"$f":"+'OPEX impuestos'!U64+'OPEX impuestos'!U96+'OPEX impuestos'!U101+'OPEX Otros Gastos'!U28","v":0},{"$f":"+'OPEX impuestos'!V64+'OPEX impuestos'!V96+'OPEX impuestos'!V101+'OPEX Otros Gastos'!V28","v":0}]
[null,"(-) Costo Mantenimiento ",null,null,507617.7008913547,null,null,{"$f":"+'OPEX Mtto'!C34","v":25685.005141333335},{"$f":"+'OPEX Mtto'!D34","v":36573.049322349711},{"$f":"+'OPEX Mtto'!E34","v":46603.518258690921},{"$f":"+'OPEX Mtto'!F34","v":37899.027261878262},{"$f":"+'OPEX Mtto'!G34","v":47000.178438021525},{"$f":"+'OPEX Mtto'!H34","v":40763.682418946744},{"$f":"+'OPEX Mtto'!I34","v":49937.688282955343},{"$f":"+'OPEX Mtto'!J34","v":39675.337137569812},{"$f":"+'OPEX Mtto'!K34","v":39778.946635181412},{"$f":"+'OPEX Mtto'!L34","v":45985.164555897238},{"$f":"+'OPEX Mtto'!M34","v":50363.098519388652},{"$f":"+'OPEX Mtto'!N34","v":47353.004919141764},{"$f":"+'OPEX Mtto'!O34","v":0},{"$f":"+'OPEX Mtto'!P34","v":0},{"$f":"+'OPEX Mtto'!Q34","v":0},{"$f":"+'OPEX Mtto'!R34","v":0},{"$f":"+'OPEX Mtto'!S34","v":0},{"$f":"+'OPEX Mtto'!T34","v":0},{"$f":"+'OPEX Mtto'!U34","v":0},{"$f":"+'OPEX Mtto'!V34","v":0}]
[null,"(-) Costo personal ",null,null,120640.5739994902,null,null,{"$f":"'OPEX Personal Indirecto'!D$9*IF(H$6>'Sup fijo'!$H$53,0,1)","v":9349.5441939890716},{"$f":"'OPEX Personal Indirecto'!E$9*IF(I$6>'Sup fijo'!$H$53,0,1)","v":9103.3742473180355},{"$f":"'OPEX Personal Indirecto'!F$9*IF(J$6>'Sup fijo'!$H$53,0,1)","v":9414.7824735702925},{"$f":"'OPEX Personal Indirecto'!G$9*IF(K$6>'Sup fijo'!$H$53,0,1)","v":9531.0979685269631},{"$f":"'OPEX Personal Indirecto'!H$9*IF(L$6>'Sup fijo'!$H$53,0,1)","v":9633.286588506322},{"$f":"'OPEX Personal Indirecto'!I$9*IF(M$6>'Sup fijo'!$H$53,0,1)","v":9775.4122455185097},{"$f":"'OPEX Personal Indirecto'!J$9*IF(N$6>'Sup fijo'!$H$53,0,1)","v":10044.886538201084},{"$f":"'OPEX Personal Indirecto'!K$9*IF(O$6>'Sup fijo'!$H$53,0,1)","v":10300.958193936724},{"$f":"'OPEX Personal Indirecto'!L$9*IF(P$6>'Sup fijo'!$H$53,0,1)","v":10534.554358806146},{"$f":"'OPEX Personal Indirecto'!M$9*IF(Q$6>'Sup fijo'!$H$53,0,1)","v":10760.918449385317},{"$f":"'OPEX Personal Indirecto'!N$9*IF(R$6>'Sup fijo'!$H$53,0,1)","v":10988.595188426279},{"$f":"'OPEX Personal Indirecto'!O$9*IF(S$6>'Sup fijo'!$H$53,0,1)","v":11203.163553305467},{"$f":"'OPEX Personal Indirecto'!P$9*IF(T$6>'Sup fijo'!$H$53,0,1)","v":0},{"$f":"'OPEX Personal Indirecto'!Q$9*IF(U$6>'Sup fijo'!$H$53,0,1)","v":0},{"$f":"'OPEX Personal Indirecto'!R$9*IF(V$6>'Sup fijo'!$H$53,0,1)","v":0},{"$f":"'OPEX Personal Indirecto'!S$9*IF(W$6>'Sup fijo'!$H$53,0,1)","v":0},{"$f":"'OPEX Personal Indirecto'!T$9*IF(X$6>'Sup fijo'!$H$53,0,1)","v":0},{"$f":"'OPEX Personal Indirecto'!U$9*IF(Y$6>'Sup fijo'!$H$53,0,1)","v":0},{"$f":"'OPEX Personal Indirecto'!V$9*IF(Z$6>'Sup fijo'!$H$53,0,1)","v":0},{"$f":"'OPEX Personal Indirecto'!W$9*IF(AA$6>'Sup fijo'!$H$53,0,1)","v":0}]
[null,"(-) Administración y otros ",null,null,21634.666585122719,null,null,{"$f":"'OPEX Otros Gastos'!C$53","v":2308.2393600000005},{"$f":"'OPEX Otros Gastos'!D$53*IF(I$6>'Sup fijo'!$H$51,0,1)","v":1647.28160256},{"$f":"'OPEX Otros Gastos'!E$53*IF(J$6>'Sup fijo'!$H$51,0,1)","v":1690.11092422656},{"$f":"'OPEX Otros Gastos'!F$53*IF(K$6>'Sup fijo'!$H$51,0,1)","v":1697.4122034192192},{"$f":"'OPEX Otros Gastos'!G$53*IF(L$6>'Sup fijo'!$H$51,0,1)","v":1701.9952163684507},{"$f":"'OPEX Otros Gastos'!H$53*IF(M$6>'Sup fijo'!$H$51,0,1)","v":1713.3985843181192},{"$f":"'OPEX Otros Gastos'!I$53*IF(N$6>'Sup fijo'!$H$51,0,1)","v":1746.6577925879647},{"$f":"'OPEX Otros Gastos'!J$53*IF(O$6>'Sup fijo'!$H$51,0,1)","v":1776.9691281713685},{"$f":"'OPEX Otros Gastos'!K$53*IF(P$6>'Sup fijo'!$H$51,0,1)","v":1802.8429439896772},{"$f":"'OPEX Otros Gastos'!L$53*IF(Q$6>'Sup fijo'!$H$51,0,1)","v":1826.9662898174524},{"$f":"'OPEX Otros Gastos'!M$53*IF(R$6>'Sup fijo'!$H$51,0,1)","v":1850.8142576353914},{"$f":"'OPEX Otros Gastos'!N$53*IF(S$6>'Sup fijo'!$H$51,0,1)","v":1871.9782820285157},{"$f":"'OPEX Otros Gastos'!O$53*IF(T$6>'Sup fijo'!$H$51,0,1)","v":0},{"$f":"'OPEX Otros Gastos'!P$53*IF(U$6>'Sup fijo'!$H$51,0,1)","v":0},{"$f":"'OPEX Otros Gastos'!Q$53*IF(V$6>'Sup fijo'!$H$51,0,1)","v":0},{"$f":"'OPEX Otros Gastos'!R$53*IF(W$6>'Sup fijo'!$H$51,0,1)","v":0},{"$f":"'OPEX Otros Gastos'!S$53*IF(X$6>'Sup fijo'!$H$51,0,1)","v":0},{"$f":"'OPEX Otros Gastos'!T$53*IF(Y$6>'Sup fijo'!$H$51,0,1)","v":0},{"$f":"'OPEX Otros Gastos'!U$53*IF(Z$6>'Sup fijo'!$H$51,0,1)","v":0},{"$f":"'OPEX Otros Gastos'!V$53*IF(AA$6>'Sup fijo'!$H$51,0,1)","v":0}]
[null,"Total OPEX",null,null,1121271.2067332792,null,null,{"$f":"+SUM(H180:H185)","v":82201.024308258464},83419.269517170236,95436.330887872828,85619.629591577541,96298.113602528872,89478.440550459389,100961.07624139434,90211.4139953829,91204.178505036296,99133.937002513252,104959.8080046228,102347.98452646233,0,0,0,0,0,0,0,0]
[]
[null,"EBITDA",null,null,{"$f":"+SUM(H188:AA188)","v":299175.91648744623},null,null,{"$f":"+H178-H186","v":27740.427861477801},28281.245887281824,19168.397917094975,29480.19164182774,19112.477148206599,26705.401158305991,17478.039064740326,30283.082614107392,31044.795637556701,24750.817056552289,20542.052863911624,24588.987636382968,0,0,0,0,0,0,0,0]
[]
[null,"(-) Depreciación",null,null,{"$f":"+SUM(H190:AA190)","v":97599.999999999985},null,null,{"$f":"'CAPEX Vehículo'!D37","v":8133.333333333333},{"$f":"'CAPEX Vehículo'!E37","v":8133.333333333333},{"$f":"'CAPEX Vehículo'!F37","v":8133.333333333333},{"$f":"'CAPEX Vehículo'!G37","v":8133.333333333333},{"$f":"'CAPEX Vehículo'!H37","v":8133.333333333333},{"$f":"'CAPEX Vehículo'!I37","v":8133.333333333333},{"$f":"'CAPEX Vehículo'!J37","v":8133.333333333333},{"$f":"'CAPEX Vehículo'!K37","v":8133.333333333333},{"$f":"'CAPEX Vehículo'!L37","v":8133.333333333333},{"$f":"'CAPEX Vehículo'!M37","v":8133.333333333333},{"$f":"'CAPEX Vehículo'!N37","v":8133.333333333333},{"$f":"'CAPEX Vehículo'!O37","v":8133.333333333333},{"$f":"'CAPEX Vehículo'!P37","v":0},{"$f":"'CAPEX Vehículo'!Q37","v":0},{"$f":"'CAPEX Vehículo'!R37","v":0},{"$f":"'CAPEX Vehículo'!S37","v":0},{"$f":"'CAPEX Vehículo'!T37","v":0},{"$f":"'CAPEX Vehículo'!U37","v":0},{"$f":"'CAPEX Vehículo'!V37","v":0},{"$f":"'CAPEX Vehículo'!W37","v":0}]
[]
[null,"EBIT",null,null,{"$f":"+SUM(H192:AA192)","v":201575.91648744626},null,null,{"$f":"+H188-H190","v":19607.094528144469},{"$f":"+I188-I190","v":20147.912553948492},11035.064583761643,21346.858308494408,10979.143814873267,18572.067824972659,9344.7057314069934,22149.74928077406,22911.462304223369,16617.483723218957,12408.719530578292,16455.654303049636,0,0,0,0,0,0,0,0]
[]
[null,"(-) Intereses",null,null,{"$f":"+SUM(H194:AA194)","v":33409.778015721931},null,null,{"$f":"'CAPEX Vehículo'!D34","v":10248.000000000002},{"$f":"'CAPEX Vehículo'!E34","v":8697.6462155597874},{"$f":"'CAPEX Vehículo'!F34","v":6930.2429012979446},{"$f":"'CAPEX Vehículo'!G34","v":4915.403123039443},{"$f":"'CAPEX Vehículo'!H34","v":2618.4857758247508},{"$f":"'CAPEX Vehículo'!I34","v":0},{"$f":"'CAPEX Vehículo'!J34","v":0},{"$f":"'CAPEX Vehículo'!K34","v":0},{"$f":"'CAPEX Vehículo'!L34","v":0},{"$f":"'CAPEX Vehículo'!M34","v":0},{"$f":"'CAPEX Vehículo'!N34","v":0},{"$f":"'CAPEX Vehículo'!O34","v":0},{"$f":"'CAPEX Vehículo'!P34","v":0},{"$f":"'CAPEX Vehículo'!Q34","v":0},{"$f":"'CAPEX Vehículo'!R34","v":0},{"$f":"'CAPEX Vehículo'!S34","v":0},{"$f":"'CAPEX Vehículo'!T34","v":0},{"$f":"'CAPEX Vehículo'!U34","v":0},{"$f":"'CAPEX Vehículo'!V34","v":0},{"$f":"'CAPEX Vehículo'!W34","v":0}]
[]
[null,"EBT",null,null,{"$f":"+SUM(H196:AA196)","v":168166.13847172432},null,null,{"$f":"+H192-H194","v":9359.0945281444674},{"$f":"+I192-I194","v":11450.266338388705},4104.8216824636984,16431.455185454965,8360.658039048516,18572.067824972659,9344.7057314069934,22149.74928077406,22911.462304223369,16617.483723218957,12408.719530578292,16455.654303049636,0,0,0,0,0,0,0,0]
[]
[null,"Participación empleados ",null,null,{"$f":"+SUM(H198:AA198)","v":25224.920770758647},null,null,{"$f":"+IF(H196<0,0,H196*'Sup fijo'!$D$196)","v":1403.8641792216702},{"$f":"+IF(I196<0,0,I196*'Sup fijo'!$D$196)","v":1717.5399507583056},{"$f":"+IF(J196<0,0,J196*'Sup fijo'!$D$196)","v":615.72325236955476},{"$f":"+IF(K196<0,0,K196*'Sup fijo'!$D$196)","v":2464.7182778182446},{"$f":"+IF(L196<0,0,L196*'Sup fijo'!$D$196)","v":1254.0987058572773},{"$f":"+IF(M196<0,0,M196*'Sup fijo'!$D$196)","v":2785.8101737458987},{"$f":"+IF(N196<0,0,N196*'Sup fijo'!$D$196)","v":1401.705859711049},{"$f":"+IF(O196<0,0,O196*'Sup fijo'!$D$196)","v":3322.4623921161087},{"$f":"+IF(P196<0,0,P196*'Sup fijo'!$D$196)","v":3436.7193456335053},{"$f":"+IF(Q196<0,0,Q196*'Sup fijo'!$D$196)","v":2492.6225584828435},{"$f":"+IF(R196<0,0,R196*'Sup fijo'!$D$196)","v":1861.3079295867437},{"$f":"+IF(S196<0,0,S196*'Sup fijo'!$D$196)","v":2468.3481454574453},{"$f":"+IF(T196<0,0,T196*'Sup fijo'!$D$196)","v":0},{"$f":"+IF(U196<0,0,U196*'Sup fijo'!$D$196)","v":0},{"$f":"+IF(V196<0,0,V196*'Sup fijo'!$D$196)","v":0},{"$f":"+IF(W196<0,0,W196*'Sup fijo'!$D$196)","v":0},{"$f":"+IF(X196<0,0,X196*'Sup fijo'!$D$196)","v":0},{"$f":"+IF(Y196<0,0,Y196*'Sup fijo'!$D$196)","v":0},{"$f":"+IF(Z196<0,0,Z196*'Sup fijo'!$D$196)","v":0},{"$f":"+IF(AA196<0,0,AA196*'Sup fijo'!$D$196)","v":0}]
[null,"Impuesto renta ",null,null,{"$f":"+SUM(H199:AA199)","v":42882.365310289701},null,null,{"$f":"IF((+H196-H198)<0,0,(+H196-H198)*'Sup fijo'!$D$197)","v":2386.5691046768388},{"$f":"IF((+I196-I198)<0,0,(+I196-I198)*'Sup fijo'!$D$197)","v":2919.8179162891197},{"$f":"IF((+J196-J198)<0,0,(+J196-J198)*'Sup fijo'!$D$197)","v":1046.729529028243},{"$f":"IF((+K196-K198)<0,0,(+K196-K198)*'Sup fijo'!$D$197)","v":4190.021072291016},{"$f":"IF((+L196-L198)<0,0,(+L196-L198)*'Sup fijo'!$D$197)","v":2131.9677999573714},{"$f":"IF((+M196-M198)<0,0,(+M196-M198)*'Sup fijo'!$D$197)","v":4735.8772953680282},{"$f":"IF((+N196-N198)<0,0,(+N196-N198)*'Sup fijo'!$D$197)","v":2382.8999615087832},{"$f":"IF((+O196-O198)<0,0,(+O196-O198)*'Sup fijo'!$D$197)","v":5648.1860665973854},{"$f":"IF((+P196-P198)<0,0,(+P196-P198)*'Sup fijo'!$D$197)","v":5842.4228875769595},{"$f":"IF((+Q196-Q198)<0,0,(+Q196-Q198)*'Sup fijo'!$D$197)","v":4237.4583494208337},{"$f":"IF((+R196-R198)<0,0,(+R196-R198)*'Sup fijo'!$D$197)","v":3164.2234802974644},{"$f":"IF((+S196-S198)<0,0,(+S196-S198)*'Sup fijo'!$D$197)","v":4196.191847277657},{"$f":"IF((+T196-T198)<0,0,(+T196-T198)*'Sup fijo'!$D$197)","v":0},{"$f":"IF((+U196-U198)<0,0,(+U196-U198)*'Sup fijo'!$D$197)","v":0},{"$f":"IF((+V196-V198)<0,0,(+V196-V198)*'Sup fijo'!$D$197)","v":0},{"$f":"IF((+W196-W198)<0,0,(+W196-W198)*'Sup fijo'!$D$197)","v":0},{"$f":"IF((+X196-X198)<0,0,(+X196-X198)*'Sup fijo'!$D$197)","v":0},{"$f":"IF((+Y196-Y198)<0,0,(+Y196-Y198)*'Sup fijo'!$D$197)","v":0},{"$f":"IF((+Z196-Z198)<0,0,(+Z196-Z198)*'Sup fijo'!$D$197)","v":0},{"$f":"IF((+AA196-AA198)<0,0,(+AA196-AA198)*'Sup fijo'!$D$197)","v":0}]
[]
[null,"Utilidad Neta",null,null,{"$f":"+SUM(H201:AA201)","v":100058.85239067597},null,null,{"$f":"+H196-H198-H199","v":5568.6612442459582},{"$f":"+I196-I198-I199","v":6812.9084713412794},2442.3689010659009,9776.7158353457035,4974.5915332338673,11050.380355858731,5560.0999101871612,13179.100822060567,13632.320071012906,9887.4028153152794,7383.1881206940843,9791.1143103145332,0,0,0,0,0,0,0,0]
[]
[null,"FLUJO DE CAJA PROYECTO"]
[]
[null,"(+) Utilidad Neta",null,null,{"$f":"SUM(G205:AA205)","v":100058.85239067597},null,null,{"$f":"H201","v":5568.6612442459582},6812.9084713412794,2442.3689010659009,9776.7158353457035,4974.5915332338673,11050.380355858731,5560.0999101871612,13179.100822060567,13632.320071012906,9887.4028153152794,7383.1881206940843,9791.1143103145332,0,0,0,0,0,0,0,0]
[null,"(+) NCC (Non Cash Charges)",null,null,{"$f":"SUM(G206:AA206)","v":97599.999999999985},null,null,{"$f":"H190","v":8133.333333333333},{"$f":"I190","v":8133.333333333333},8133.333333333333,8133.333333333333,8133.333333333333,8133.333333333333,8133.333333333333,8133.333333333333,8133.333333333333,8133.333333333333,8133.333333333333,8133.333333333333,0,0,0,0,0,0,0,0]
[null,"(+) Int*(1-Impuestos)",null,null,18375.377908647064,null,null,{"$f":"H194*(1-SUM('Sup fijo'!$D$196:$D$197))","v":5636.4000000000015},{"$f":"I194*(1-SUM('Sup fijo'!$D$196:$D$197))","v":4783.7054185578836},{"$f":"J194*(1-SUM('Sup fijo'!$D$196:$D$197))","v":3811.6335957138699},{"$f":"K194*(1-SUM('Sup fijo'!$D$196:$D$197))","v":2703.471717671694},{"$f":"L194*(1-SUM('Sup fijo'!$D$196:$D$197))","v":1440.167176703613},{"$f":"M194*(1-SUM('Sup fijo'!$D$196:$D$197))","v":0},{"$f":"N194*(1-SUM('Sup fijo'!$D$196:$D$197))","v":0},{"$f":"O194*(1-SUM('Sup fijo'!$D$196:$D$197))","v":0},{"$f":"P194*(1-SUM('Sup fijo'!$D$196:$D$197))","v":0},{"$f":"Q194*(1-SUM('Sup fijo'!$D$196:$D$197))","v":0},{"$f":"R194*(1-SUM('Sup fijo'!$D$196:$D$197))","v":0},{"$f":"S194*(1-SUM('Sup fijo'!$D$196:$D$197))","v":0},{"$f":"T194*(1-SUM('Sup fijo'!$D$196:$D$197))","v":0},{"$f":"U194*(1-SUM('Sup fijo'!$D$196:$D$197))","v":0},{"$f":"V194*(1-SUM('Sup fijo'!$D$196:$D$197))","v":0},{"$f":"W194*(1-SUM('Sup fijo'!$D$196:$D$197))","v":0},{"$f":"X194*(1-SUM('Sup fijo'!$D$196:$D$197))","v":0},{"$f":"Y194*(1-SUM('Sup fijo'!$D$196:$D$197))","v":0},{"$f":"Z194*(1-SUM('Sup fijo'!$D$196:$D$197))","v":0},{"$f":"AA194*(1-SUM('Sup fijo'!$D$196:$D$197))","v":0}]
[null,"(-) CAPEX",null,null,97600,null,{"$f":"'CAPEX Vehículo'!C36","v":122000},{"$f":"IF(H$6='Sup fijo'!$H$53,-'Sup fijo'!$I$53*$G208,0)","v":0},{"$f":"IF(I$6='Sup fijo'!$H$53,-'Sup fijo'!$I$53*$G208,0)","v":0},{"$f":"IF(J$6='Sup fijo'!$H$53,-'Sup fijo'!$I$53*$G208,0)","v":0},{"$f":"IF(K$6='Sup fijo'!$H$53,-'Sup fijo'!$I$53*$G208,0)","v":0},{"$f":"IF(L$6='Sup fijo'!$H$53,-'Sup fijo'!$I$53*$G208,0)","v":0},{"$f":"IF(M$6='Sup fijo'!$H$53,-'Sup fijo'!$I$53*$G208,0)","v":0},{"$f":"IF(N$6='Sup fijo'!$H$53,-'Sup fijo'!$I$53*$G208,0)","v":0},{"$f":"IF(O$6='Sup fijo'!$H$53,-'Sup fijo'!$I$53*$G208,0)","v":0},{"$f":"IF(P$6='Sup fijo'!$H$53,-'Sup fijo'!$I$53*$G208,0)","v":0},{"$f":"IF(Q$6='Sup fijo'!$H$53,-'Sup fijo'!$I$53*$G208,0)","v":0},{"$f":"IF(R$6='Sup fijo'!$H$53,-'Sup fijo'!$I$53*$G208,0)","v":0},{"$f":"IF(S$6='Sup fijo'!$H$53,-'Sup fijo'!$I$53*$G208,0)","v":-24400},{"$f":"IF(T$6='Sup fijo'!$H$53,-'Sup fijo'!$I$53*$G208,0)","v":0},{"$f":"IF(U$6='Sup fijo'!$H$53,-'Sup fijo'!$I$53*$G208,0)","v":0},{"$f":"IF(V$6='Sup fijo'!$H$53,-'Sup fijo'!$I$53*$G208,0)","v":0},{"$f":"IF(W$6='Sup fijo'!$H$53,-'Sup fijo'!$I$53*$G208,0)","v":0},{"$f":"IF(X$6='Sup fijo'!$H$53,-'Sup fijo'!$I$53*$G208,0)","v":0},{"$f":"IF(Y$6='Sup fijo'!$H$53,-'Sup fijo'!$I$53*$G208,0)","v":0},{"$f":"IF(Z$6='Sup fijo'!$H$53,-'Sup fijo'!$I$53*$G208,0)","v":0},{"$f":"IF(AA$6='Sup fijo'!$H$53,-'Sup fijo'!$I$53*$G208,0)","v":0}]
[]
[null,"Flujo de caja libre",null,null,{"$f":"+SUM(H210:AA210)","v":240434.23029932301},null,{"$f":"G205+G206+G207-G208","v":-122000},{"$f":"H205+H206+H207-H208","v":19338.394577579293},19729.947223232499,14387.335830113105,20613.520886350732,14548.092043270814,19183.713689192064,13693.433243520494,21312.434155393901,21765.653404346238,18020.736148648612,15516.521454027417,42324.447643647865,0,0,0,0,0,0,0,0]
[]
[null,"FLUJO DE CAJA DEL CONCESIONARIO"]
[]
[null,"(+) FCFF",null,null,{"$f":"SUM(G214:AA214)","v":118434.23029932304},null,{"$f":"G210","v":-122000},{"$f":"H210","v":19338.394577579293},19729.947223232499,14387.335830113105,20613.520886350732,14548.092043270814,19183.713689192064,13693.433243520494,21312.434155393901,21765.653404346238,18020.736148648612,15516.521454027417,42324.447643647865,0,0,0,0,0,0,0,0]
[null,"(-) Int*(1-Impuestos)",null,null,18375.377908647064,null,{"$f":"G207","v":0},{"$f":"H207","v":5636.4000000000015},4783.7054185578836,3811.6335957138699,2703.471717671694,1440.167176703613,0,0,0,0,0,0,0,0,0,0,0,0,0,0,0]
[null,"(+) Endeudamiento Neto",null,null,1.8189894035458565E-11,null,{"$f":"G217-G218","v":73200},{"$f":"H217-H218","v":-11073.955603144383},{"$f":"I217-I218","v":-12624.309387584593},{"$f":"J217-J218","v":-14391.71270184644},{"$f":"K217-K218","v":-16406.55248010494},{"$f":"L217-L218","v":-18703.46982731963},{"$f":"M217-M218","v":0},{"$f":"N217-N218","v":0},{"$f":"O217-O218","v":0},{"$f":"P217-P218","v":0},{"$f":"Q217-Q218","v":0},{"$f":"R217-R218","v":0},{"$f":"S217-S218","v":0},{"$f":"T217-T218","v":0},{"$f":"U217-U218","v":0},{"$f":"V217-V218","v":0},{"$f":"W217-W218","v":0},{"$f":"X217-X218","v":0},{"$f":"Y217-Y218","v":0},{"$f":"Z217-Z218","v":0},{"$f":"AA217-AA218","v":0}]
[null,"Desembolsos",null,null,null,null,{"$f":"'CAPEX Vehículo'!C31","v":73200}]
[null,"Amortizaciones",null,null,null,null,{"$f":"'CAPEX Vehículo'!C32","v":0},{"$f":"'CAPEX Vehículo'!D32","v":11073.955603144383},{"$f":"'CAPEX Vehículo'!E32","v":12624.309387584593},{"$f":"'CAPEX Vehículo'!F32","v":14391.71270184644},{"$f":"'CAPEX Vehículo'!G32","v":16406.55248010494},{"$f":"'CAPEX Vehículo'!H32","v":18703.46982731963},{"$f":"'CAPEX Vehículo'!I32","v":0},{"$f":"'CAPEX Vehículo'!J32","v":0},{"$f":"'CAPEX Vehículo'!K32","v":0},{"$f":"'CAPEX Vehículo'!L32","v":0},{"$f":"'CAPEX Vehículo'!M32","v":0},{"$f":"'CAPEX Vehículo'!N32","v":0},{"$f":"'CAPEX Vehículo'!O32","v":0},{"$f":"'CAPEX Vehículo'!P32","v":0},{"$f":"'CAPEX Vehículo'!Q32","v":0},{"$f":"'CAPEX Vehículo'!R32","v":0},{"$f":"'CAPEX Vehículo'!S32","v":0},{"$f":"'CAPEX Vehículo'!T32","v":0},{"$f":"'CAPEX Vehículo'!U32","v":0},{"$f":"'CAPEX Vehículo'!V32","v":0},{"$f":"'CAPEX Vehículo'!W32","v":0}]
[]
[null,"FCFE",null,null,{"$f":"+SUM(H220:AA220)","v":148858.85239067598},null,{"$f":"G214+G216-G215","v":-48800},{"$f":"H214+H216-H215","v":2628.0389744349086},2321.9324170900218,-3816.010467447205,1503.4966885740987,-5595.5449607524297,19183.713689192064,13693.433243520494,21312.434155393901,21765.653404346238,18020.736148648612,15516.521454027417,42324.447643647865,0,0,0,0,0,0,0,0]
[]
[null,"(+) Equity",null,null,{"$f":"SUM(G222:AA222)","v":58211.55542819963},null,{"$f":"IF(G220<0,-G220,0)","v":48800},{"$f":"IF(H220<0,-H220,0)","v":0},0,3816.010467447205,0,5595.5449607524297,0,0,0,0,0,0,0,0,0,0,0,0,0,0,0]
[null,"(-) Dividendos",null,null,158270.40781887562,null,{"$f":"IF(G220>0,G220,0)","v":0},{"$f":"IF(H220>0,H220,0)","v":2628.0389744349086},2321.9324170900218,0,1503.4966885740987,0,19183.713689192064,13693.433243520494,21312.434155393901,21765.653404346238,18020.736148648612,15516.521454027417,42324.447643647865,0,0,0,0,0,0,0,0]
[null,"Cambio neto en caja",null,null,{"$f":"+SUM(F224:AA224)","v":0},null,{"$f":"G220+G222-G223","v":0},{"$f":"H220+H222-H223","v":0},{"$f":"I220+I222-I223","v":0},{"$f":"J220+J222-J223","v":0},{"$f":"K220+K222-K223","v":0},{"$f":"L220+L222-L223","v":0},{"$f":"M220+M222-M223","v":0},{"$f":"N220+N222-N223","v":0},{"$f":"O220+O222-O223","v":0},{"$f":"P220+P222-P223","v":0},{"$f":"Q220+Q222-Q223","v":0},{"$f":"R220+R222-R223","v":0},{"$f":"S220+S222-S223","v":0},{"$f":"T220+T222-T223","v":0},{"$f":"U220+U222-U223","v":0},{"$f":"V220+V222-V223","v":0},{"$f":"W220+W222-W223","v":0},{"$f":"X220+X222-X223","v":0},{"$f":"Y220+Y222-Y223","v":0},{"$f":"Z220+Z222-Z223","v":0},{"$f":"AA220+AA222-AA223","v":0}]
[]
[null,"Otros"]
[]
[null,"Remuneración Operador SITP-Q",null,null,{"$f":"+SUM(H228:AA228)","v":84142.954732804734},null,null,{"$f":"IF(H178=0,0,'OPEX Otros Gastos'!C79)","v":0},{"$f":"IF(I178=0,0,'OPEX Otros Gastos'!D79)","v":7171.896786810682},{"$f":"IF(J178=0,0,'OPEX Otros Gastos'!E79)","v":7358.3661032677601},{"$f":"IF(K178=0,0,'OPEX Otros Gastos'!F79)","v":7390.1542448338778},{"$f":"IF(L178=0,0,'OPEX Otros Gastos'!G79)","v":7410.1076612949282},{"$f":"IF(M178=0,0,'OPEX Otros Gastos'!H79)","v":7459.7553826256044},{"$f":"IF(N178=0,0,'OPEX Otros Gastos'!I79)","v":7604.5585592965972},{"$f":"IF(O178=0,0,'OPEX Otros Gastos'!J79)","v":7736.5273556072652},{"$f":"IF(P178=0,0,'OPEX Otros Gastos'!K79)","v":7849.1761803385562},{"$f":"IF(Q178=0,0,'OPEX Otros Gastos'!L79)","v":7954.2038490507375},{"$f":"IF(R178=0,0,'OPEX Otros Gastos'!M79)","v":8058.0325833118623},{"$f":"IF(S178=0,0,'OPEX Otros Gastos'!N79)","v":8150.1760263668584},{"$f":"IF(T178=0,0,'OPEX Otros Gastos'!O79)","v":0},{"$f":"IF(U178=0,0,'OPEX Otros Gastos'!P79)","v":0},{"$f":"IF(V178=0,0,'OPEX Otros Gastos'!Q79)","v":0},{"$f":"IF(W178=0,0,'OPEX Otros Gastos'!R79)","v":0},{"$f":"IF(X178=0,0,'OPEX Otros Gastos'!S79)","v":0},{"$f":"IF(Y178=0,0,'OPEX Otros Gastos'!T79)","v":0},{"$f":"IF(Z178=0,0,'OPEX Otros Gastos'!U79)","v":0},{"$f":"IF(AA178=0,0,'OPEX Otros Gastos'!V79)","v":0}]
[null,"Gastos del ente Gestor",null,null,{"$f":"+SUM(H229:AA229)","v":0},null,null,{"$f":"IF(H179=0,0,'OPEX Personal Indirecto'!D$14)","v":0},{"$f":"IF(I179=0,0,'OPEX Personal Indirecto'!E$14)","v":0},{"$f":"IF(J179=0,0,'OPEX Personal Indirecto'!F$14)","v":0},{"$f":"IF(K179=0,0,'OPEX Personal Indirecto'!G$14)","v":0},{"$f":"IF(L179=0,0,'OPEX Personal Indirecto'!H$14)","v":0},{"$f":"IF(M179=0,0,'OPEX Personal Indirecto'!I$14)","v":0},{"$f":"IF(N179=0,0,'OPEX Personal Indirecto'!J$14)","v":0},{"$f":"IF(O179=0,0,'OPEX Personal Indirecto'!K$14)","v":0},{"$f":"IF(P179=0,0,'OPEX Personal Indirecto'!L$14)","v":0},{"$f":"IF(Q179=0,0,'OPEX Personal Indirecto'!M$14)","v":0},{"$f":"IF(R179=0,0,'OPEX Personal Indirecto'!N$14)","v":0},{"$f":"IF(S179=0,0,'OPEX Personal Indirecto'!O$14)","v":0},{"$f":"IF(T179=0,0,'OPEX Personal Indirecto'!P$14)","v":0},{"$f":"IF(U179=0,0,'OPEX Personal Indirecto'!Q$14)","v":0},{"$f":"IF(V179=0,0,'OPEX Personal Indirecto'!R$14)","v":0},{"$f":"IF(W179=0,0,'OPEX Personal Indirecto'!S$14)","v":0},{"$f":"IF(X179=0,0,'OPEX Personal Indirecto'!T$14)","v":0},{"$f":"IF(Y179=0,0,'OPEX Personal Indirecto'!U$14)","v":0},{"$f":"IF(Z179=0,0,'OPEX Personal Indirecto'!V$14)","v":0},{"$f":"IF(AA179=0,0,'OPEX Personal Indirecto'!W$14)","v":0}]
[]
[null,"Flujo del PROYECTO",null,null,{"$f":"+SUM(H231:AA231)","v":-1504590.07795353},null,null,{"$f":"-H178-H228-H229","v":-109941.45216973627},{"$f":"-I178-I228-I229","v":-118872.41219126275},-121963.09490823557,-122489.97547823915,-122820.6984120304,-123643.59709139098,-126043.67386543126,-128231.02396509756,-130098.15032293156,-131838.95790811628,-133559.89345184629,-135087.14818921217,0,0,0,0,0,0,0,0]
[]
[]
[]
[]
[null,null,null,null,null,null,{"$f":"G220","v":-48800},{"$f":"H220/(1+rentabilidadobj)^COUNTA($H$6:H$6)","v":2325.6982074645211},{"$f":"I220/(1+rentabilidadobj)^COUNTA($H$6:I$6)","v":1818.4136714621523},{"$f":"J220/(1+rentabilidadobj)^COUNTA($H$6:J$6)","v":-2644.6866737176711},{"$f":"K220/(1+rentabilidadobj)^COUNTA($H$6:K$6)","v":922.12267610642243},{"$f":"L220/(1+rentabilidadobj)^COUNTA($H$6:L$6)","v":-3037.0376247800259},{"$f":"M220/(1+rentabilidadobj)^COUNTA($H$6:M$6)","v":9214.2931098917106},{"$f":"N220/(1+rentabilidadobj)^COUNTA($H$6:N$6)","v":5820.5395495856428},{"$f":"O220/(1+rentabilidadobj)^COUNTA($H$6:O$6)","v":8016.8822848575192},{"$f":"P220/(1+rentabilidadobj)^COUNTA($H$6:P$6)","v":7245.4559069675151},{"$f":"Q220/(1+rentabilidadobj)^COUNTA($H$6:Q$6)","v":5308.698894047152},{"$f":"R220/(1+rentabilidadobj)^COUNTA($H$6:R$6)","v":4045.1207290314378},{"$f":"S220/(1+rentabilidadobj)^COUNTA($H$6:S$6)","v":9764.4992690836516},{"$f":"T220/(1+rentabilidadobj)^COUNTA($H$6:T$6)","v":0},{"$f":"U220/(1+rentabilidadobj)^COUNTA($H$6:U$6)","v":0},{"$f":"V220/(1+rentabilidadobj)^COUNTA($H$6:V$6)","v":0},{"$f":"W220/(1+rentabilidadobj)^COUNTA($H$6:W$6)","v":0},{"$f":"X220/(1+rentabilidadobj)^COUNTA($H$6:X$6)","v":0},{"$f":"Y220/(1+rentabilidadobj)^COUNTA($H$6:Y$6)","v":0},{"$f":"Z220/(1+rentabilidadobj)^COUNTA($H$6:Z$6)","v":0},{"$f":"AA220/(1+rentabilidadobj)^COUNTA($H$6:AA$6)","v":0}]
[null,null,null,null,null,null,null,{"$f":"SUM(G236:AA236)","v":3.2741809263825417E-11}]
[]
[null,{"$f":"'Sup fijo'!B26","v":"Otro"}]
[null,null,{"$f":"C250/0.893481776513347","v":0.39475197893569891}]
[null,"Supuestos"]
[null,"Demanda Anual",null,null,{"$f":"+SUM(H242:AA242)","v":6974000},null,null,{"$f":"'Sup fijo'!E46","v":348700},{"$f":"'Sup fijo'!F46","v":348700},{"$f":"'Sup fijo'!G46","v":348700},{"$f":"'Sup fijo'!H46","v":348700},{"$f":"'Sup fijo'!I46","v":348700},{"$f":"'Sup fijo'!J46","v":348700},{"$f":"'Sup fijo'!K46","v":348700},{"$f":"'Sup fijo'!L46","v":348700},{"$f":"'Sup fijo'!M46","v":348700},{"$f":"'Sup fijo'!N46","v":348700},{"$f":"'Sup fijo'!O46","v":348700},{"$f":"'Sup fijo'!P46","v":348700},{"$f":"'Sup fijo'!Q46","v":348700},{"$f":"'Sup fijo'!R46","v":348700},{"$f":"'Sup fijo'!S46","v":348700},{"$f":"'Sup fijo'!T46","v":348700},{"$f":"'Sup fijo'!U46","v":348700},{"$f":"'Sup fijo'!V46","v":348700},{"$f":"'Sup fijo'!W46","v":348700},{"$f":"'Sup fijo'!X46","v":348700}]
[null,"kilómetros Anual",null,null,{"$f":"+SUM(H243:AA243)","v":1316000},null,null,{"$f":"'Sup fijo'!E29","v":65800},{"$f":"'Sup fijo'!F29","v":65800},{"$f":"'Sup fijo'!G29","v":65800},{"$f":"'Sup fijo'!H29","v":65800},{"$f":"'Sup fijo'!I29","v":65800},{"$f":"'Sup fijo'!J29","v":65800},{"$f":"'Sup fijo'!K29","v":65800},{"$f":"'Sup fijo'!L29","v":65800},{"$f":"'Sup fijo'!M29","v":65800},{"$f":"'Sup fijo'!N29","v":65800},{"$f":"'Sup fijo'!O29","v":65800},{"$f":"'Sup fijo'!P29","v":65800},{"$f":"'Sup fijo'!Q29","v":65800},{"$f":"'Sup fijo'!R29","v":65800},{"$f":"'Sup fijo'!S29","v":65800},{"$f":"'Sup fijo'!T29","v":65800},{"$f":"'Sup fijo'!U29","v":65800},{"$f":"'Sup fijo'!V29","v":65800},{"$f":"'Sup fijo'!W29","v":65800},{"$f":"'Sup fijo'!X29","v":65800}]
[null,"Tir accionista ",{"$f":"IFERROR(+IRR(G297:AA297),0)","v":0.12999999999999967}]
[]
[null,"Aportes capital ",{"$f":"E299","v":97212.247458186655}]
[]
[null,"Resultados Tarifas"]
[null,"Tarifa técnica por pasajero",{"$f":"SUM(C250:C251)","v":0.3527036994216276},null,null,null,null,{"$f":"SUM(H250:H251)","v":0.36116858820774667},{"$f":"SUM(I250:I251)","v":0.39022329393653588},0.40036909957888583,0.40209869408906673,0.40318436056310719,0.40588569577887995,0.41376444449106781,0.42094487387034918,0.42707410254602729,0.43278866370852392,0.43843799078238088,0.44345152052665987,0.42213982111796189,0.42785027399082104,0.43400311237559347,0.43997153092286723,0.4458239362241937,0.45168403505142124,0.45760781982038107,0.46361281625036277]
[null,"Tarifa operador privado",0.3527036994216276,null,null,null,null,{"$f":"$C250*(1+'Sup Generales'!C$8)","v":0.36116858820774667},{"$f":"$C250*(1+'Sup Generales'!D$8)","v":0.36694728561907058},{"$f":"$C250*(1+'Sup Generales'!E$8)","v":0.37648791504516643},{"$f":"$C250*(1+'Sup Generales'!F$8)","v":0.37811434283816164},{"$f":"$C250*(1+'Sup Generales'!G$8)","v":0.37913525156382466},{"$f":"$C250*(1+'Sup Generales'!H$8)","v":0.38167545774930223},{"$f":"$C250*(1+'Sup Generales'!I$8)","v":0.38908425547853842},{"$f":"$C250*(1+'Sup Generales'!J$8)","v":0.39583638717146408},{"$f":"$C250*(1+'Sup Generales'!K$8)","v":0.4016000200976021},{"$f":"$C250*(1+'Sup Generales'!L$8)","v":0.40697371956574135},{"$f":"$C250*(1+'Sup Generales'!M$8)","v":0.41228607602302469},{"$f":"$C250*(1+'Sup Generales'!N$8)","v":0.41700055913979334},{"$f":"$C250*(1+'Sup Generales'!O$8)","v":0.42213982111796189},{"$f":"$C250*(1+'Sup Generales'!P$8)","v":0.42785027399082104},{"$f":"$C250*(1+'Sup Generales'!Q$8)","v":0.43400311237559347},{"$f":"$C250*(1+'Sup Generales'!R$8)","v":0.43997153092286723},{"$f":"$C250*(1+'Sup Generales'!S$8)","v":0.4458239362241937},{"$f":"$C250*(1+'Sup Generales'!T$8)","v":0.45168403505142124},{"$f":"$C250*(1+'Sup Generales'!U$8)","v":0.45760781982038107},{"$f":"$C250*(1+'Sup Generales'!V$8)","v":0.46361281625036277}]
[null,"Costo SITP-Q",{"$f":"H251","v":0},null,null,null,null,{"$f":"H305/H242","v":0},2.3276008317465312E-2,2.3881184533719412E-2,2.3984351250905082E-2,2.4049108999282524E-2,2.4210238029577717E-2,2.4680189012529361E-2,2.5108486698885078E-2,2.5474082448425171E-2,2.5814944142782573E-2,2.6151914759356177E-2,2.6450961386866517E-2,0,0,0,0,0,0,0,0]
[null,"Costo Ente Gestor",{"$f":"H252","v":0},null,null,null,null,{"$f":"H306/H242","v":0},{"$f":"I306/I242","v":0},0,0,0,0,0,0,0,0,0,0,0,0,0,0,0,0,0,0]
[]
[null,"P&G",null,null,"Total "]
[null,"(+) Ingresos ",null,null,{"$f":"+SUM(H255:AA255)","v":1627142.2476587533},null,null,{"$f":"+H242*H250*IF(H$6>'Sup fijo'!$H$51,0,1)","v":125939.48670804127},{"$f":"+I242*I250*IF(I$6>'Sup fijo'!$H$51,0,1)","v":127954.51849536991},{"$f":"+J242*J250*IF(J$6>'Sup fijo'!$H$51,0,1)","v":131281.33597624954},{"$f":"+K242*K250*IF(K$6>'Sup fijo'!$H$51,0,1)","v":131848.47134766696},{"$f":"+L242*L250*IF(L$6>'Sup fijo'!$H$51,0,1)","v":132204.46222030566},{"$f":"+M242*M250*IF(M$6>'Sup fijo'!$H$51,0,1)","v":133090.23211718167},{"$f":"+N242*N250*IF(N$6>'Sup fijo'!$H$51,0,1)","v":135673.67988536635},{"$f":"+O242*O250*IF(O$6>'Sup fijo'!$H$51,0,1)","v":138028.14820668951},{"$f":"+P242*P250*IF(P$6>'Sup fijo'!$H$51,0,1)","v":140037.92700803385},{"$f":"+Q242*Q250*IF(Q$6>'Sup fijo'!$H$51,0,1)","v":141911.73601257402},{"$f":"+R242*R250*IF(R$6>'Sup fijo'!$H$51,0,1)","v":143764.15470922872},{"$f":"+S242*S250*IF(S$6>'Sup fijo'!$H$51,0,1)","v":145408.09497204595},{"$f":"+T242*T250*IF(T$6>'Sup fijo'!$H$51,0,1)","v":0},{"$f":"+U242*U250*IF(U$6>'Sup fijo'!$H$51,0,1)","v":0},{"$f":"+V242*V250*IF(V$6>'Sup fijo'!$H$51,0,1)","v":0},{"$f":"+W242*W250*IF(W$6>'Sup fijo'!$H$51,0,1)","v":0},{"$f":"+X242*X250*IF(X$6>'Sup fijo'!$H$51,0,1)","v":0},{"$f":"+Y242*Y250*IF(Y$6>'Sup fijo'!$H$51,0,1)","v":0},{"$f":"+Z242*Z250*IF(Z$6>'Sup fijo'!$H$51,0,1)","v":0},{"$f":"+AA242*AA250*IF(AA$6>'Sup fijo'!$H$51,0,1)","v":0}]
[]
[null,"(-) Costo conductores ",null,null,{"$f":"+SUM(H257:AA257)","v":191701.56121762024},null,null,{"$f":"IF(H255=0,0,'OPEX Personal Directo'!C30)","v":24077.204571428578},{"$f":"IF(I255=0,0,'OPEX Personal Directo'!D30)","v":13711.322953728},{"$f":"IF(J255=0,0,'OPEX Personal Directo'!E30)","v":14180.359889329133},{"$f":"IF(K255=0,0,'OPEX Personal Directo'!F30)","v":14355.551996403441},{"$f":"IF(L255=0,0,'OPEX Personal Directo'!G30)","v":14509.466482688078},{"$f":"IF(M255=0,0,'OPEX Personal Directo'!H30)","v":14723.533347387063},{"$f":"IF(N255=0,0,'OPEX Personal Directo'!I30)","v":15129.410218349147},{"$f":"IF(O255=0,0,'OPEX Personal Directo'!J30)","v":15515.100301575339},{"$f":"IF(P255=0,0,'OPEX Personal Directo'!K30)","v":15866.938243228735},{"$f":"IF(Q255=0,0,'OPEX Personal Directo'!L30)","v":16207.88337705889},{"$f":"IF(R255=0,0,'OPEX Personal Directo'!M30)","v":16550.805596142873},{"$f":"IF(S255=0,0,'OPEX Personal Directo'!N30)","v":16873.984240300964},{"$f":"IF(T255=0,0,'OPEX Personal Directo'!O30)","v":0},{"$f":"IF(U255=0,0,'OPEX Personal Directo'!P30)","v":0},{"$f":"IF(V255=0,0,'OPEX Personal Directo'!Q30)","v":0},{"$f":"IF(W255=0,0,'OPEX Personal Directo'!R30)","v":0},{"$f":"IF(X255=0,0,'OPEX Personal Directo'!S30)","v":0},{"$f":"IF(Y255=0,0,'OPEX Personal Directo'!T30)","v":0},{"$f":"IF(Z255=0,0,'OPEX Personal Directo'!U30)","v":0},{"$f":"IF(AA255=0,0,'OPEX Personal Directo'!V30)","v":0}]
[null,"(-) Costo combustible ",null,null,185104.96060590024,null,null,{"$f":"IF(H255=0,0,'OPEX Combustible '!H65)","v":14091.036667805092},{"$f":"IF(I255=0,0,'OPEX Combustible '!I65)","v":14457.403621168023},{"$f":"IF(J255=0,0,'OPEX Combustible '!J65)","v":14519.85960481147},{"$f":"IF(K255=0,0,'OPEX Combustible '!K65)","v":14631.85854187318},{"$f":"IF(L255=0,0,'OPEX Combustible '!L65)","v":14803.541454074248},{"$f":"IF(M255=0,0,'OPEX Combustible '!M65)","v":15166.35118161527},{"$f":"IF(N255=0,0,'OPEX Combustible '!N65)","v":15506.694351266477},{"$f":"IF(O255=0,0,'OPEX Combustible '!O65)","v":15811.144224647858},{"$f":"IF(P255=0,0,'OPEX Combustible '!P65)","v":16102.822342992251},{"$f":"IF(Q255=0,0,'OPEX Combustible '!Q65)","v":16394.582655094026},{"$f":"IF(R255=0,0,'OPEX Combustible '!R65)","v":16664.964655086362},{"$f":"IF(S255=0,0,'OPEX Combustible '!S65)","v":16954.701305465958},{"$f":"IF(T255=0,0,'OPEX Combustible '!T65)","v":0},{"$f":"IF(U255=0,0,'OPEX Combustible '!U65)","v":0},{"$f":"IF(V255=0,0,'OPEX Combustible '!V65)","v":0},{"$f":"IF(W255=0,0,'OPEX Combustible '!W65)","v":0},{"$f":"IF(X255=0,0,'OPEX Combustible '!X65)","v":0},{"$f":"IF(Y255=0,0,'OPEX Combustible '!Y65)","v":0},{"$f":"IF(Z255=0,0,'OPEX Combustible '!Z65)","v":0},{"$f":"IF(AA255=0,0,'OPEX Combustible '!AA65)","v":0}]
[null,"(-) Costo impuestos + seguros ",null,null,69714.733273218517,null,null,{"$f":"+'OPEX impuestos'!C83+'OPEX impuestos'!C97+'OPEX impuestos'!C102+'OPEX Otros Gastos'!C35","v":6458.2673187733335},{"$f":"+'OPEX impuestos'!D83+'OPEX impuestos'!D97+'OPEX impuestos'!D102+'OPEX Otros Gastos'!D35","v":6603.392866870613},{"$f":"+'OPEX impuestos'!E83+'OPEX impuestos'!E97+'OPEX impuestos'!E102+'OPEX Otros Gastos'!E35","v":6708.5911849837266},{"$f":"+'OPEX impuestos'!F83+'OPEX impuestos'!F97+'OPEX impuestos'!F102+'OPEX Otros Gastos'!F35","v":6591.0354791879081},{"$f":"+'OPEX impuestos'!G83+'OPEX impuestos'!G97+'OPEX impuestos'!G102+'OPEX Otros Gastos'!G35","v":5675.4329572287443},{"$f":"+'OPEX impuestos'!H83+'OPEX impuestos'!H97+'OPEX impuestos'!H102+'OPEX Otros Gastos'!H35","v":5077.2488438837054},{"$f":"+'OPEX impuestos'!I83+'OPEX impuestos'!I97+'OPEX impuestos'!I102+'OPEX Otros Gastos'!I35","v":4223.1996480092303},{"$f":"+'OPEX impuestos'!J83+'OPEX impuestos'!J97+'OPEX impuestos'!J102+'OPEX Otros Gastos'!J35","v":6491.435743486034},{"$f":"+'OPEX impuestos'!K83+'OPEX impuestos'!K97+'OPEX impuestos'!K102+'OPEX Otros Gastos'!K35","v":4178.231787145789},{"$f":"+'OPEX impuestos'!L83+'OPEX impuestos'!L97+'OPEX impuestos'!L102+'OPEX Otros Gastos'!L35","v":6288.8815754855905},{"$f":"+'OPEX impuestos'!M83+'OPEX impuestos'!M97+'OPEX impuestos'!M102+'OPEX Otros Gastos'!M35","v":6537.1916441180574},{"$f":"+'OPEX impuestos'!N83+'OPEX impuestos'!N97+'OPEX impuestos'!N102+'OPEX Otros Gastos'!N35","v":4881.8242240457839},{"$f":"+'OPEX impuestos'!O83+'OPEX impuestos'!O97+'OPEX impuestos'!O102+'OPEX Otros Gastos'!O35","v":0},{"$f":"+'OPEX impuestos'!P83+'OPEX impuestos'!P97+'OPEX impuestos'!P102+'OPEX Otros Gastos'!P35","v":0},{"$f":"+'OPEX impuestos'!Q83+'OPEX impuestos'!Q97+'OPEX impuestos'!Q102+'OPEX Otros Gastos'!Q35","v":0},{"$f":"+'OPEX impuestos'!R83+'OPEX impuestos'!R97+'OPEX impuestos'!R102+'OPEX Otros Gastos'!R35","v":0},{"$f":"+'OPEX impuestos'!S83+'OPEX impuestos'!S97+'OPEX impuestos'!S102+'OPEX Otros Gastos'!S35","v":0},{"$f":"+'OPEX impuestos'!T83+'OPEX impuestos'!T97+'OPEX impuestos'!T102+'OPEX Otros Gastos'!T35","v":0},{"$f":"+'OPEX impuestos'!U83+'OPEX impuestos'!U97+'OPEX impuestos'!U102+'OPEX Otros Gastos'!U35","v":0},{"$f":"+'OPEX impuestos'!V83+'OPEX impuestos'!V97+'OPEX impuestos'!V102+'OPEX Otros Gastos'!V35","v":0}]
[null,"(-) Costo Mantenimiento ",null,null,351276.15098531859,null,null,{"$f":"+'OPEX Mtto'!C44","v":19146.789546666667},{"$f":"+'OPEX Mtto'!D44","v":23924.383144618663},{"$f":"+'OPEX Mtto'!E44","v":28403.602133883756},{"$f":"+'OPEX Mtto'!F44","v":31319.448736440179},{"$f":"+'OPEX Mtto'!G44","v":27165.653831424192},{"$f":"+'OPEX Mtto'!H44","v":27756.961399454933},{"$f":"+'OPEX Mtto'!I44","v":22212.38331458277},{"$f":"+'OPEX Mtto'!J44","v":38972.143685952688},{"$f":"+'OPEX Mtto'!K44","v":23010.795511352677},{"$f":"+'OPEX Mtto'!L44","v":38649.768806421969},{"$f":"+'OPEX Mtto'!M44","v":40986.530450326594},{"$f":"+'OPEX Mtto'!N44","v":29727.690424193413},{"$f":"+'OPEX Mtto'!O44","v":0},{"$f":"+'OPEX Mtto'!P44","v":0},{"$f":"+'OPEX Mtto'!Q44","v":0},{"$f":"+'OPEX Mtto'!R44","v":0},{"$f":"+'OPEX Mtto'!S44","v":0},{"$f":"+'OPEX Mtto'!T44","v":0},{"$f":"+'OPEX Mtto'!U44","v":0},{"$f":"+'OPEX Mtto'!V44","v":0}]
[null,"(-) Costo personal ",null,null,120640.5739994902,null,null,{"$f":"'OPEX Personal Indirecto'!D$9*IF(H$6>'Sup fijo'!$H$54,0,1)","v":9349.5441939890716},{"$f":"'OPEX Personal Indirecto'!E$9*IF(I$6>'Sup fijo'!$H$54,0,1)","v":9103.3742473180355},{"$f":"'OPEX Personal Indirecto'!F$9*IF(J$6>'Sup fijo'!$H$54,0,1)","v":9414.7824735702925},{"$f":"'OPEX Personal Indirecto'!G$9*IF(K$6>'Sup fijo'!$H$54,0,1)","v":9531.0979685269631},{"$f":"'OPEX Personal Indirecto'!H$9*IF(L$6>'Sup fijo'!$H$54,0,1)","v":9633.286588506322},{"$f":"'OPEX Personal Indirecto'!I$9*IF(M$6>'Sup fijo'!$H$54,0,1)","v":9775.4122455185097},{"$f":"'OPEX Personal Indirecto'!J$9*IF(N$6>'Sup fijo'!$H$54,0,1)","v":10044.886538201084},{"$f":"'OPEX Personal Indirecto'!K$9*IF(O$6>'Sup fijo'!$H$54,0,1)","v":10300.958193936724},{"$f":"'OPEX Personal Indirecto'!L$9*IF(P$6>'Sup fijo'!$H$54,0,1)","v":10534.554358806146},{"$f":"'OPEX Personal Indirecto'!M$9*IF(Q$6>'Sup fijo'!$H$54,0,1)","v":10760.918449385317},{"$f":"'OPEX Personal Indirecto'!N$9*IF(R$6>'Sup fijo'!$H$54,0,1)","v":10988.595188426279},{"$f":"'OPEX Personal Indirecto'!O$9*IF(S$6>'Sup fijo'!$H$54,0,1)","v":11203.163553305467},{"$f":"'OPEX Personal Indirecto'!P$9*IF(T$6>'Sup fijo'!$H$54,0,1)","v":0},{"$f":"'OPEX Personal Indirecto'!Q$9*IF(U$6>'Sup fijo'!$H$54,0,1)","v":0},{"$f":"'OPEX Personal Indirecto'!R$9*IF(V$6>'Sup fijo'!$H$54,0,1)","v":0},{"$f":"'OPEX Personal Indirecto'!S$9*IF(W$6>'Sup fijo'!$H$54,0,1)","v":0},{"$f":"'OPEX Personal Indirecto'!T$9*IF(X$6>'Sup fijo'!$H$54,0,1)","v":0},{"$f":"'OPEX Personal Indirecto'!U$9*IF(Y$6>'Sup fijo'!$H$54,0,1)","v":0},{"$f":"'OPEX Personal Indirecto'!V$9*IF(Z$6>'Sup fijo'!$H$54,0,1)","v":0},{"$f":"'OPEX Personal Indirecto'!W$9*IF(AA$6>'Sup fijo'!$H$54,0,1)","v":0}]
[null,"(-) Administración y otros ",null,null,21634.666585122719,null,null,{"$f":"'OPEX Otros Gastos'!C$53","v":2308.2393600000005},{"$f":"'OPEX Otros Gastos'!D$53*IF(I$6>'Sup fijo'!$H$51,0,1)","v":1647.28160256},{"$f":"'OPEX Otros Gastos'!E$53*IF(J$6>'Sup fijo'!$H$51,0,1)","v":1690.11092422656},{"$f":"'OPEX Otros Gastos'!F$53*IF(K$6>'Sup fijo'!$H$51,0,1)","v":1697.4122034192192},{"$f":"'OPEX Otros Gastos'!G$53*IF(L$6>'Sup fijo'!$H$51,0,1)","v":1701.9952163684507},{"$f":"'OPEX Otros Gastos'!H$53*IF(M$6>'Sup fijo'!$H$51,0,1)","v":1713.3985843181192},{"$f":"'OPEX Otros Gastos'!I$53*IF(N$6>'Sup fijo'!$H$51,0,1)","v":1746.6577925879647},{"$f":"'OPEX Otros Gastos'!J$53*IF(O$6>'Sup fijo'!$H$51,0,1)","v":1776.9691281713685},{"$f":"'OPEX Otros Gastos'!K$53*IF(P$6>'Sup fijo'!$H$51,0,1)","v":1802.8429439896772},{"$f":"'OPEX Otros Gastos'!L$53*IF(Q$6>'Sup fijo'!$H$51,0,1)","v":1826.9662898174524},{"$f":"'OPEX Otros Gastos'!M$53*IF(R$6>'Sup fijo'!$H$51,0,1)","v":1850.8142576353914},{"$f":"'OPEX Otros Gastos'!N$53*IF(S$6>'Sup fijo'!$H$51,0,1)","v":1871.9782820285157},{"$f":"'OPEX Otros Gastos'!O$53*IF(T$6>'Sup fijo'!$H$51,0,1)","v":0},{"$f":"'OPEX Otros Gastos'!P$53*IF(U$6>'Sup fijo'!$H$51,0,1)","v":0},{"$f":"'OPEX Otros Gastos'!Q$53*IF(V$6>'Sup fijo'!$H$51,0,1)","v":0},{"$f":"'OPEX Otros Gastos'!R$53*IF(W$6>'Sup fijo'!$H$51,0,1)","v":0},{"$f":"'OPEX Otros Gastos'!S$53*IF(X$6>'Sup fijo'!$H$51,0,1)","v":0},{"$f":"'OPEX Otros Gastos'!T$53*IF(Y$6>'Sup fijo'!$H$51,0,1)","v":0},{"$f":"'OPEX Otros Gastos'!U$53*IF(Z$6>'Sup fijo'!$H$51,0,1)","v":0},{"$f":"'OPEX Otros Gastos'!V$53*IF(AA$6>'Sup fijo'!$H$51,0,1)","v":0}]
[null,"Total OPEX",null,null,940072.64666667045,null,null,{"$f":"+SUM(H257:H262)","v":75431.081658662748},69447.158436263329,74917.306210804949,78126.404925850889,73489.376530290043,74212.90560217759,68863.231862996676,88867.751277770018,71496.185187515264,90129.001153263249,93578.901791735538,81513.3420293401,0,0,0,0,0,0,0,0]
[]
[null,"EBITDA",null,null,{"$f":"+SUM(H265:AA265)","v":687069.60099208308},null,null,{"$f":"+H255-H263","v":50508.405049378518},58507.360059106577,56364.029765444589,53722.066421816067,58715.085690015621,58877.326515004082,66810.448022369674,49160.396928919494,68541.741820518582,51782.734859310774,50185.252917493184,63894.752942705847,0,0,0,0,0,0,0,0]
[]
[null,"(-) Depreciación",null,null,{"$f":"+SUM(H267:AA267)","v":164862.86400000006},null,null,{"$f":"'CAPEX Vehículo'!D48","v":13738.572000000002},{"$f":"'CAPEX Vehículo'!E48","v":13738.572000000002},{"$f":"'CAPEX Vehículo'!F48","v":13738.572000000002},{"$f":"'CAPEX Vehículo'!G48","v":13738.572000000002},{"$f":"'CAPEX Vehículo'!H48","v":13738.572000000002},{"$f":"'CAPEX Vehículo'!I48","v":13738.572000000002},{"$f":"'CAPEX Vehículo'!J48","v":13738.572000000002},{"$f":"'CAPEX Vehículo'!K48","v":13738.572000000002},{"$f":"'CAPEX Vehículo'!L48","v":13738.572000000002},{"$f":"'CAPEX Vehículo'!M48","v":13738.572000000002},{"$f":"'CAPEX Vehículo'!N48","v":13738.572000000002},{"$f":"'CAPEX Vehículo'!O48","v":13738.572000000002},{"$f":"'CAPEX Vehículo'!P48","v":0},{"$f":"'CAPEX Vehículo'!Q48","v":0},{"$f":"'CAPEX Vehículo'!R48","v":0},{"$f":"'CAPEX Vehículo'!S48","v":0},{"$f":"'CAPEX Vehículo'!T48","v":0},{"$f":"'CAPEX Vehículo'!U48","v":0},{"$f":"'CAPEX Vehículo'!V48","v":0},{"$f":"'CAPEX Vehículo'!W48","v":0}]
[]
[null,"EBIT",null,null,{"$f":"+SUM(H269:AA269)","v":522206.73699208302},null,null,{"$f":"+H265-H267","v":36769.833049378518},{"$f":"+I265-I267","v":44768.788059106577},42625.457765444589,39983.494421816067,44976.513690015621,45138.754515004082,53071.876022369674,35421.824928919494,54803.169820518582,38044.162859310774,36446.680917493184,50156.180942705847,0,0,0,0,0,0,0,0]
[]
[null,"(-) Intereses",null,null,{"$f":"+SUM(H271:AA271)","v":56434.750914714677},null,null,{"$f":"'CAPEX Vehículo'!D45","v":17310.600720000002},{"$f":"'CAPEX Vehículo'!E45","v":14691.79165118799},{"$f":"'CAPEX Vehículo'!F45","v":11706.349312742297},{"$f":"'CAPEX Vehículo'!G45","v":8302.9450469142066},{"$f":"'CAPEX Vehículo'!H45","v":4423.0641838701858},{"$f":"'CAPEX Vehículo'!I45","v":0},{"$f":"'CAPEX Vehículo'!J45","v":0},{"$f":"'CAPEX Vehículo'!K45","v":0},{"$f":"'CAPEX Vehículo'!L45","v":0},{"$f":"'CAPEX Vehículo'!M45","v":0},{"$f":"'CAPEX Vehículo'!N45","v":0},{"$f":"'CAPEX Vehículo'!O45","v":0},{"$f":"'CAPEX Vehículo'!P45","v":0},{"$f":"'CAPEX Vehículo'!Q45","v":0},{"$f":"'CAPEX Vehículo'!R45","v":0},{"$f":"'CAPEX Vehículo'!S45","v":0},{"$f":"'CAPEX Vehículo'!T45","v":0},{"$f":"'CAPEX Vehículo'!U45","v":0},{"$f":"'CAPEX Vehículo'!V45","v":0},{"$f":"'CAPEX Vehículo'!W45","v":0}]
[]
[null,"EBT",null,null,{"$f":"+SUM(H273:AA273)","v":465771.98607736838},null,null,{"$f":"+H269-H271","v":19459.232329378516},{"$f":"+I269-I271","v":30076.996407918588},30919.10845270229,31680.549374901861,40553.449506145436,45138.754515004082,53071.876022369674,35421.824928919494,54803.169820518582,38044.162859310774,36446.680917493184,50156.180942705847,0,0,0,0,0,0,0,0]
[]
[null,"Participación empleados ",null,null,{"$f":"+SUM(H275:AA275)","v":103060.44014881244},null,null,{"$f":"+IF(H265<0,0,H265*'Sup fijo'!$D$196)","v":7576.260757406777},{"$f":"+IF(I265<0,0,I265*'Sup fijo'!$D$196)","v":8776.1040088659865},{"$f":"+IF(J265<0,0,J265*'Sup fijo'!$D$196)","v":8454.6044648166881},{"$f":"+IF(K265<0,0,K265*'Sup fijo'!$D$196)","v":8058.3099632724097},{"$f":"+IF(L265<0,0,L265*'Sup fijo'!$D$196)","v":8807.2628535023432},{"$f":"+IF(M265<0,0,M265*'Sup fijo'!$D$196)","v":8831.5989772506127},{"$f":"+IF(N265<0,0,N265*'Sup fijo'!$D$196)","v":10021.567203355451},{"$f":"+IF(O265<0,0,O265*'Sup fijo'!$D$196)","v":7374.0595393379235},{"$f":"+IF(P265<0,0,P265*'Sup fijo'!$D$196)","v":10281.261273077787},{"$f":"+IF(Q265<0,0,Q265*'Sup fijo'!$D$196)","v":7767.410228896616},{"$f":"+IF(R265<0,0,R265*'Sup fijo'!$D$196)","v":7527.7879376239771},{"$f":"+IF(S265<0,0,S265*'Sup fijo'!$D$196)","v":9584.2129414058763},{"$f":"+IF(T265<0,0,T265*'Sup fijo'!$D$196)","v":0},{"$f":"+IF(U265<0,0,U265*'Sup fijo'!$D$196)","v":0},{"$f":"+IF(V265<0,0,V265*'Sup fijo'!$D$196)","v":0},{"$f":"+IF(W265<0,0,W265*'Sup fijo'!$D$196)","v":0},{"$f":"+IF(X265<0,0,X265*'Sup fijo'!$D$196)","v":0},{"$f":"+IF(Y265<0,0,Y265*'Sup fijo'!$D$196)","v":0},{"$f":"+IF(Z265<0,0,Z265*'Sup fijo'!$D$196)","v":0},{"$f":"+IF(AA265<0,0,AA265*'Sup fijo'!$D$196)","v":0}]
[null,"Impuesto renta ",null,null,{"$f":"+SUM(H276:AA276)","v":175202.74825298114},null,null,{"$f":"IF((+H265-H275)<0,0,(+H265-H275)*'Sup fijo'!$D$197)","v":12879.643287591522},{"$f":"IF((+I265-I275)<0,0,(+I265-I275)*'Sup fijo'!$D$197)","v":14919.376815072177},{"$f":"IF((+J265-J275)<0,0,(+J265-J275)*'Sup fijo'!$D$197)","v":14372.82759018837},{"$f":"IF((+K265-K275)<0,0,(+K265-K275)*'Sup fijo'!$D$197)","v":13699.126937563096},{"$f":"IF((+L265-L275)<0,0,(+L265-L275)*'Sup fijo'!$D$197)","v":14972.346850953983},{"$f":"IF((+M265-M275)<0,0,(+M265-M275)*'Sup fijo'!$D$197)","v":15013.718261326039},{"$f":"IF((+N265-N275)<0,0,(+N265-N275)*'Sup fijo'!$D$197)","v":17036.664245704265},{"$f":"IF((+O265-O275)<0,0,(+O265-O275)*'Sup fijo'!$D$197)","v":12535.90121687447},{"$f":"IF((+P265-P275)<0,0,(+P265-P275)*'Sup fijo'!$D$197)","v":17478.144164232235},{"$f":"IF((+Q265-Q275)<0,0,(+Q265-Q275)*'Sup fijo'!$D$197)","v":13204.597389124247},{"$f":"IF((+R265-R275)<0,0,(+R265-R275)*'Sup fijo'!$D$197)","v":12797.23949396076},{"$f":"IF((+S265-S275)<0,0,(+S265-S275)*'Sup fijo'!$D$197)","v":16293.162000389992},{"$f":"IF((+T265-T275)<0,0,(+T265-T275)*'Sup fijo'!$D$197)","v":0},{"$f":"IF((+U265-U275)<0,0,(+U265-U275)*'Sup fijo'!$D$197)","v":0},{"$f":"IF((+V265-V275)<0,0,(+V265-V275)*'Sup fijo'!$D$197)","v":0},{"$f":"IF((+W265-W275)<0,0,(+W265-W275)*'Sup fijo'!$D$197)","v":0},{"$f":"IF((+X265-X275)<0,0,(+X265-X275)*'Sup fijo'!$D$197)","v":0},{"$f":"IF((+Y265-Y275)<0,0,(+Y265-Y275)*'Sup fijo'!$D$197)","v":0},{"$f":"IF((+Z265-Z275)<0,0,(+Z265-Z275)*'Sup fijo'!$D$197)","v":0},{"$f":"IF((+AA265-AA275)<0,0,(+AA265-AA275)*'Sup fijo'!$D$197)","v":0}]
[]
[null,"Utilidad Neta",null,null,{"$f":"+SUM(H278:AA278)","v":187508.79767557469},null,null,{"$f":"+H273-H275-H276","v":-996.67171561978284},{"$f":"+I273-I275-I276","v":6381.5155839804247},8091.6763976972343,9923.1124740663563,16773.839801689108,21293.43727642743,26013.644573309957,15511.864172707101,27043.764383208556,17072.155241289911,16121.653485908448,24278.806000909983,0,0,0,0,0,0,0,0]
[]
[null,"FLUJO DE CAJA PROYECTO"]
[]
[null,"(+) Utilidad Neta",null,null,{"$f":"SUM(G282:AA282)","v":187508.79767557469},null,null,{"$f":"H278","v":-996.67171561978284},6381.5155839804247,8091.6763976972343,9923.1124740663563,16773.839801689108,21293.43727642743,26013.644573309957,15511.864172707101,27043.764383208556,17072.155241289911,16121.653485908448,24278.806000909983,0,0,0,0,0,0,0,0]
[null,"(+) NCC (Non Cash Charges)",null,null,{"$f":"SUM(G283:AA283)","v":164862.86400000006},null,null,{"$f":"H267","v":13738.572000000002},{"$f":"I267","v":13738.572000000002},13738.572000000002,13738.572000000002,13738.572000000002,13738.572000000002,13738.572000000002,13738.572000000002,13738.572000000002,13738.572000000002,13738.572000000002,13738.572000000002,0,0,0,0,0,0,0,0]
[null,"(+) Int*(1-Impuestos)",null,null,31039.11300309308,null,null,{"$f":"H271*(1-SUM('Sup fijo'!$D$196:$D$197))","v":9520.8303960000012},{"$f":"I271*(1-SUM('Sup fijo'!$D$196:$D$197))","v":8080.4854081533949},{"$f":"J271*(1-SUM('Sup fijo'!$D$196:$D$197))","v":6438.4921220082642},{"$f":"K271*(1-SUM('Sup fijo'!$D$196:$D$197))","v":4566.6197758028138},{"$f":"L271*(1-SUM('Sup fijo'!$D$196:$D$197))","v":2432.6853011286025},{"$f":"M271*(1-SUM('Sup fijo'!$D$196:$D$197))","v":0},{"$f":"N271*(1-SUM('Sup fijo'!$D$196:$D$197))","v":0},{"$f":"O271*(1-SUM('Sup fijo'!$D$196:$D$197))","v":0},{"$f":"P271*(1-SUM('Sup fijo'!$D$196:$D$197))","v":0},{"$f":"Q271*(1-SUM('Sup fijo'!$D$196:$D$197))","v":0},{"$f":"R271*(1-SUM('Sup fijo'!$D$196:$D$197))","v":0},{"$f":"S271*(1-SUM('Sup fijo'!$D$196:$D$197))","v":0},{"$f":"T271*(1-SUM('Sup fijo'!$D$196:$D$197))","v":0},{"$f":"U271*(1-SUM('Sup fijo'!$D$196:$D$197))","v":0},{"$f":"V271*(1-SUM('Sup fijo'!$D$196:$D$197))","v":0},{"$f":"W271*(1-SUM('Sup fijo'!$D$196:$D$197))","v":0},{"$f":"X271*(1-SUM('Sup fijo'!$D$196:$D$197))","v":0},{"$f":"Y271*(1-SUM('Sup fijo'!$D$196:$D$197))","v":0},{"$f":"Z271*(1-SUM('Sup fijo'!$D$196:$D$197))","v":0},{"$f":"AA271*(1-SUM('Sup fijo'!$D$196:$D$197))","v":0}]
[null,"(-) CAPEX",null,null,164862.864,null,{"$f":"'CAPEX Vehículo'!C47","v":206078.58000000002},{"$f":"IF(H$6='Sup fijo'!$H$54,-'Sup fijo'!$I$54*$G285,0)","v":0},{"$f":"IF(I$6='Sup fijo'!$H$54,-'Sup fijo'!$I$54*$G285,0)","v":0},{"$f":"IF(J$6='Sup fijo'!$H$54,-'Sup fijo'!$I$54*$G285,0)","v":0},{"$f":"IF(K$6='Sup fijo'!$H$54,-'Sup fijo'!$I$54*$G285,0)","v":0},{"$f":"IF(L$6='Sup fijo'!$H$54,-'Sup fijo'!$I$54*$G285,0)","v":0},{"$f":"IF(M$6='Sup fijo'!$H$54,-'Sup fijo'!$I$54*$G285,0)","v":0},{"$f":"IF(N$6='Sup fijo'!$H$54,-'Sup fijo'!$I$54*$G285,0)","v":0},{"$f":"IF(O$6='Sup fijo'!$H$54,-'Sup fijo'!$I$54*$G285,0)","v":0},{"$f":"IF(P$6='Sup fijo'!$H$54,-'Sup fijo'!$I$54*$G285,0)","v":0},{"$f":"IF(Q$6='Sup fijo'!$H$54,-'Sup fijo'!$I$54*$G285,0)","v":0},{"$f":"IF(R$6='Sup fijo'!$H$54,-'Sup fijo'!$I$54*$G285,0)","v":0},{"$f":"IF(S$6='Sup fijo'!$H$54,-'Sup fijo'!$I$54*$G285,0)","v":-41215.716000000008},{"$f":"IF(T$6='Sup fijo'!$H$54,-'Sup fijo'!$I$54*$G285,0)","v":0},{"$f":"IF(U$6='Sup fijo'!$H$54,-'Sup fijo'!$I$54*$G285,0)","v":0},{"$f":"IF(V$6='Sup fijo'!$H$54,-'Sup fijo'!$I$54*$G285,0)","v":0},{"$f":"IF(W$6='Sup fijo'!$H$54,-'Sup fijo'!$I$54*$G285,0)","v":0},{"$f":"IF(X$6='Sup fijo'!$H$54,-'Sup fijo'!$I$54*$G285,0)","v":0},{"$f":"IF(Y$6='Sup fijo'!$H$54,-'Sup fijo'!$I$54*$G285,0)","v":0},{"$f":"IF(Z$6='Sup fijo'!$H$54,-'Sup fijo'!$I$54*$G285,0)","v":0},{"$f":"IF(AA$6='Sup fijo'!$H$54,-'Sup fijo'!$I$54*$G285,0)","v":0}]
[]
[null,"Flujo de caja libre",null,null,{"$f":"+SUM(H287:AA287)","v":424626.49067866785},null,{"$f":"G282+G283+G284-G285","v":-206078.58000000002},{"$f":"H282+H283+H284-H285","v":22262.73068038022},28200.572992133824,28268.740519705501,28228.304249869172,32945.097102817708,35032.00927642743,39752.216573309961,29250.436172707101,40782.33638320856,30810.727241289911,29860.22548590845,79233.094000910001,0,0,0,0,0,0,0,0]
[]
[null,"FLUJO DE CAJA DEL CONCESIONARIO"]
[]
[null,"(+) FCFF",null,null,{"$f":"SUM(G291:AA291)","v":218547.91067866783},null,{"$f":"G287","v":-206078.58000000002},{"$f":"H287","v":22262.73068038022},28200.572992133824,28268.740519705501,28228.304249869172,32945.097102817708,35032.00927642743,39752.216573309961,29250.436172707101,40782.33638320856,30810.727241289911,29860.22548590845,79233.094000910001,0,0,0,0,0,0,0,0]
[null,"(-) Int*(1-Impuestos)",null,null,31039.11300309308,null,{"$f":"G284","v":0},{"$f":"H284","v":9520.8303960000012},8080.4854081533949,6438.4921220082642,4566.6197758028138,2432.6853011286025,0,0,0,0,0,0,0,0,0,0,0,0,0,0,0]
[null,"(+) Endeudamiento Neto",null,null,3.637978807091713E-12,null,{"$f":"G294-G295","v":123647.148},{"$f":"H294-H295","v":-18705.779062942933},{"$f":"I294-I295","v":-21324.588131754943},{"$f":"J294-J295","v":-24310.030470200636},{"$f":"K294-K295","v":-27713.434736028725},{"$f":"L294-L295","v":-31593.315599072746},{"$f":"M294-M295","v":0},{"$f":"N294-N295","v":0},{"$f":"O294-O295","v":0},{"$f":"P294-P295","v":0},{"$f":"Q294-Q295","v":0},{"$f":"R294-R295","v":0},{"$f":"S294-S295","v":0},{"$f":"T294-T295","v":0},{"$f":"U294-U295","v":0},{"$f":"V294-V295","v":0},{"$f":"W294-W295","v":0},{"$f":"X294-X295","v":0},{"$f":"Y294-Y295","v":0},{"$f":"Z294-Z295","v":0},{"$f":"AA294-AA295","v":0}]
[null,"Desembolsos",null,null,null,null,{"$f":"'CAPEX Vehículo'!C42","v":123647.148}]
[null,"Amortizaciones",null,null,null,null,{"$f":"'CAPEX Vehículo'!C43","v":0},{"$f":"'CAPEX Vehículo'!D43","v":18705.779062942933},{"$f":"'CAPEX Vehículo'!E43","v":21324.588131754943},{"$f":"'CAPEX Vehículo'!F43","v":24310.030470200636},{"$f":"'CAPEX Vehículo'!G43","v":27713.434736028725},{"$f":"'CAPEX Vehículo'!H43","v":31593.315599072746},{"$f":"'CAPEX Vehículo'!I43","v":0},{"$f":"'CAPEX Vehículo'!J43","v":0},{"$f":"'CAPEX Vehículo'!K43","v":0},{"$f":"'CAPEX Vehículo'!L43","v":0},{"$f":"'CAPEX Vehículo'!M43","v":0},{"$f":"'CAPEX Vehículo'!N43","v":0},{"$f":"'CAPEX Vehículo'!O43","v":0},{"$f":"'CAPEX Vehículo'!P43","v":0},{"$f":"'CAPEX Vehículo'!Q43","v":0},{"$f":"'CAPEX Vehículo'!R43","v":0},{"$f":"'CAPEX Vehículo'!S43","v":0},{"$f":"'CAPEX Vehículo'!T43","v":0},{"$f":"'CAPEX Vehículo'!U43","v":0},{"$f":"'CAPEX Vehículo'!V43","v":0},{"$f":"'CAPEX Vehículo'!W43","v":0}]
[]
[null,"FCFE",null,null,{"$f":"+SUM(H297:AA297)","v":269940.22967557481},null,{"$f":"G291+G293-G292","v":-82431.432000000015},{"$f":"H291+H293-H292","v":-5963.8787785627137},-1204.5005477745135,-2479.7820725033989,-4051.7502619623665,-1080.9037973836407,35032.00927642743,39752.216573309961,29250.436172707101,40782.33638320856,30810.727241289911,29860.22548590845,79233.094000910001,0,0,0,0,0,0,0,0]
[]
[null,"(+) Equity",null,null,{"$f":"SUM(G299:AA299)","v":97212.247458186655},null,{"$f":"IF(G297<0,-G297,0)","v":82431.432000000015},{"$f":"IF(H297<0,-H297,0)","v":5963.8787785627137},1204.5005477745135,2479.7820725033989,4051.7502619623665,1080.9037973836407,0,0,0,0,0,0,0,0,0,0,0,0,0,0,0]
[null,"(-) Dividendos",null,null,284721.04513376142,null,{"$f":"IF(G297>0,G297,0)","v":0},{"$f":"IF(H297>0,H297,0)","v":0},0,0,0,0,35032.00927642743,39752.216573309961,29250.436172707101,40782.33638320856,30810.727241289911,29860.22548590845,79233.094000910001,0,0,0,0,0,0,0,0]
[null,"Cambio neto en caja",null,null,{"$f":"+SUM(H301:AA301)","v":0},null,{"$f":"G297+G299-G300","v":0},{"$f":"H297+H299-H300","v":0},{"$f":"I297+I299-I300","v":0},{"$f":"J297+J299-J300","v":0},{"$f":"K297+K299-K300","v":0},{"$f":"L297+L299-L300","v":0},{"$f":"M297+M299-M300","v":0},{"$f":"N297+N299-N300","v":0},{"$f":"O297+O299-O300","v":0},{"$f":"P297+P299-P300","v":0},{"$f":"Q297+Q299-Q300","v":0},{"$f":"R297+R299-R300","v":0},{"$f":"S297+S299-S300","v":0},{"$f":"T297+T299-T300","v":0},{"$f":"U297+U299-U300","v":0},{"$f":"V297+V299-V300","v":0},{"$f":"W297+W299-W300","v":0},{"$f":"X297+X299-X300","v":0},{"$f":"Y297+Y299-Y300","v":0},{"$f":"Z297+Z299-Z300","v":0},{"$f":"AA297+AA299-AA300","v":0}]
[]
[null,"Otros"]
[]
[null,"Remuneración Operador SITP-Q",null,null,{"$f":"+SUM(H305:AA305)","v":95223.5084424745},null,null,{"$f":"IF(H255=0,0,'OPEX Otros Gastos'!C83)","v":0},{"$f":"IF(I255=0,0,'OPEX Otros Gastos'!D83)","v":8116.3441003001544},{"$f":"IF(J255=0,0,'OPEX Otros Gastos'!E83)","v":8327.3690469079593},{"$f":"IF(K255=0,0,'OPEX Otros Gastos'!F83)","v":8363.3432811906023},{"$f":"IF(L255=0,0,'OPEX Otros Gastos'!G83)","v":8385.9243080498163},{"$f":"IF(M255=0,0,'OPEX Otros Gastos'!H83)","v":8442.1100009137499},{"$f":"IF(N255=0,0,'OPEX Otros Gastos'!I83)","v":8605.9819086689877},{"$f":"IF(O255=0,0,'OPEX Otros Gastos'!J83)","v":8755.3293119012269},{"$f":"IF(P255=0,0,'OPEX Otros Gastos'!K83)","v":8882.8125497658566},{"$f":"IF(Q255=0,0,'OPEX Otros Gastos'!L83)","v":9001.6710225882834},{"$f":"IF(R255=0,0,'OPEX Otros Gastos'!M83)","v":9119.1726765874992},{"$f":"IF(S255=0,0,'OPEX Otros Gastos'!N83)","v":9223.4502356003541},{"$f":"IF(T255=0,0,'OPEX Otros Gastos'!O83)","v":0},{"$f":"IF(U255=0,0,'OPEX Otros Gastos'!P83)","v":0},{"$f":"IF(V255=0,0,'OPEX Otros Gastos'!Q83)","v":0},{"$f":"IF(W255=0,0,'OPEX Otros Gastos'!R83)","v":0},{"$f":"IF(X255=0,0,'OPEX Otros Gastos'!S83)","v":0},{"$f":"IF(Y255=0,0,'OPEX Otros Gastos'!T83)","v":0},{"$f":"IF(Z255=0,0,'OPEX Otros Gastos'!U83)","v":0},{"$f":"IF(AA255=0,0,'OPEX Otros Gastos'!V83)","v":0}]
[null,"Gastos del ente Gestor",null,null,{"$f":"+SUM(H306:AA306)","v":0},null,null,{"$f":"IF(H256=0,0,'OPEX Personal Indirecto'!D$14)","v":0},{"$f":"IF(I256=0,0,'OPEX Personal Indirecto'!E$14)","v":0},{"$f":"IF(J256=0,0,'OPEX Personal Indirecto'!F$14)","v":0},{"$f":"IF(K256=0,0,'OPEX Personal Indirecto'!G$14)","v":0},{"$f":"IF(L256=0,0,'OPEX Personal Indirecto'!H$14)","v":0},{"$f":"IF(M256=0,0,'OPEX Personal Indirecto'!I$14)","v":0},{"$f":"IF(N256=0,0,'OPEX Personal Indirecto'!J$14)","v":0},{"$f":"IF(O256=0,0,'OPEX Personal Indirecto'!K$14)","v":0},{"$f":"IF(P256=0,0,'OPEX Personal Indirecto'!L$14)","v":0},{"$f":"IF(Q256=0,0,'OPEX Personal Indirecto'!M$14)","v":0},{"$f":"IF(R256=0,0,'OPEX Personal Indirecto'!N$14)","v":0},{"$f":"IF(S256=0,0,'OPEX Personal Indirecto'!O$14)","v":0},{"$f":"IF(T256=0,0,'OPEX Personal Indirecto'!P$14)","v":0},{"$f":"IF(U256=0,0,'OPEX Personal Indirecto'!Q$14)","v":0},{"$f":"IF(V256=0,0,'OPEX Personal Indirecto'!R$14)","v":0},{"$f":"IF(W256=0,0,'OPEX Personal Indirecto'!S$14)","v":0},{"$f":"IF(X256=0,0,'OPEX Personal Indirecto'!T$14)","v":0},{"$f":"IF(Y256=0,0,'OPEX Personal Indirecto'!U$14)","v":0},{"$f":"IF(Z256=0,0,'OPEX Personal Indirecto'!V$14)","v":0},{"$f":"IF(AA256=0,0,'OPEX Personal Indirecto'!W$14)","v":0}]
[]
[null,"Flujo del PROYECTO",null,null,{"$f":"+SUM(H308:AA308)","v":-1722365.7561012276},null,null,{"$f":"-H255-H305-H306","v":-125939.48670804127},{"$f":"-I255-I305-I306","v":-136070.86259567007},-139608.7050231575,-140211.81462885757,-140590.38652835548,-141532.34211809543,-144279.66179403535,-146783.47751859075,-148920.73955779971,-150913.40703516229,-152883.32738581623,-154631.5452076463,0,0,0,0,0,0,0,0]
[]
[]
[]
[]
[null,null,null,null,null,null,{"$f":"G297","v":-82431.432000000015},{"$f":"H297/(1+rentabilidadobj)^COUNTA($H$6:H$6)","v":-5277.7688305864731},{"$f":"I297/(1+rentabilidadobj)^COUNTA($H$6:I$6)","v":-943.30060911153089},{"$f":"J297/(1+rentabilidadobj)^COUNTA($H$6:J$6)","v":-1718.6133677618013},{"$f":"K297/(1+rentabilidadobj)^COUNTA($H$6:K$6)","v":-2485.0143155413402},{"$f":"L297/(1+rentabilidadobj)^COUNTA($H$6:L$6)","v":-586.67127588950575},{"$f":"M297/(1+rentabilidadobj)^COUNTA($H$6:M$6)","v":16826.523108677738},{"$f":"N297/(1+rentabilidadobj)^COUNTA($H$6:N$6)","v":16897.102766987187},{"$f":"O297/(1+rentabilidadobj)^COUNTA($H$6:O$6)","v":11002.840026040991},{"$f":"P297/(1+rentabilidadobj)^COUNTA($H$6:P$6)","v":13575.821251874337},{"$f":"Q297/(1+rentabilidadobj)^COUNTA($H$6:Q$6)","v":9076.481242576212},{"$f":"R297/(1+rentabilidadobj)^COUNTA($H$6:R$6)","v":7784.4907084667302},{"$f":"S297/(1+rentabilidadobj)^COUNTA($H$6:S$6)","v":18279.541294267452},{"$f":"T297/(1+rentabilidadobj)^COUNTA($H$6:T$6)","v":0},{"$f":"U297/(1+rentabilidadobj)^COUNTA($H$6:U$6)","v":0},{"$f":"V297/(1+rentabilidadobj)^COUNTA($H$6:V$6)","v":0},{"$f":"W297/(1+rentabilidadobj)^COUNTA($H$6:W$6)","v":0},{"$f":"X297/(1+rentabilidadobj)^COUNTA($H$6:X$6)","v":0},{"$f":"Y297/(1+rentabilidadobj)^COUNTA($H$6:Y$6)","v":0},{"$f":"Z297/(1+rentabilidadobj)^COUNTA($H$6:Z$6)","v":0},{"$f":"AA297/(1+rentabilidadobj)^COUNTA($H$6:AA$6)","v":0}]
[null,null,null,null,null,null,null,{"$f":"SUM(G313:AA313)","v":-1.4551915228366852E-11}]
[]
[]
[]
[]
[]
[]
[]
[]
[]
[]
[]
[]
[]
[]
[]
[]
[]
[]
[]
[]
[]
[]
[]
[]
[]
[]
[]
[]
[]
[]
[]
[]
[]
[]
[]
[]
[]
[]
[]
[]
[]
[]
[]
[]
[]
[]
[]
[]
[]
[]
[]
[]
[null,null,null,null,null,null,null,0]
[null,null,null,null,null,null,null,{"$f":"H367","v":0}]

{"sheet":"FO sin SITPQ","index":15,"n_rows":298,"n_cols":27,"rows_kept":298,"cut":false,"hidden":false,"merged":[]}
[]
[null,"Estructura de costos Transporte Convencional"]
[null,"FLUJO DE CAJA (precios constantes)"]
[]
[]
[null,null,null,null,"Año",null,0,1,{"$f":"H6+1","v":2},{"$f":"I6+1","v":3},4,5,6,7,8,9,10,11,12,13,14,15,16,17,18,19,20]
[]
[null,{"$f":"'Sup fijo'!B14","v":"Intracantonal Rural"}]
[null,null,{"$f":"C19/0.893481776513347","v":0.27590963987889922}]
[null,"Supuestos"]
[null,"Demanda Anual",null,null,{"$f":"+SUM(H11:AA11)","v":6162480},null,null,{"$f":"'Sup fijo'!E34","v":308124},{"$f":"'Sup fijo'!F34","v":308124},{"$f":"'Sup fijo'!G34","v":308124},{"$f":"'Sup fijo'!H34","v":308124},{"$f":"'Sup fijo'!I34","v":308124},{"$f":"'Sup fijo'!J34","v":308124},{"$f":"'Sup fijo'!K34","v":308124},{"$f":"'Sup fijo'!L34","v":308124},{"$f":"'Sup fijo'!M34","v":308124},{"$f":"'Sup fijo'!N34","v":308124},{"$f":"'Sup fijo'!O34","v":308124},{"$f":"'Sup fijo'!P34","v":308124},{"$f":"'Sup fijo'!Q34","v":308124},{"$f":"'Sup fijo'!R34","v":308124},{"$f":"'Sup fijo'!S34","v":308124},{"$f":"'Sup fijo'!T34","v":308124},{"$f":"'Sup fijo'!U34","v":308124},{"$f":"'Sup fijo'!V34","v":308124},{"$f":"'Sup fijo'!W34","v":308124},{"$f":"'Sup fijo'!X34","v":308124}]
[null,"kilómetros Anual",null,null,{"$f":"+SUM(H12:AA12)","v":1408120.0000000002},null,null,{"$f":"'Sup fijo'!E17","v":70406.000000000015},{"$f":"'Sup fijo'!F17","v":70406.000000000015},{"$f":"'Sup fijo'!G17","v":70406.000000000015},{"$f":"'Sup fijo'!H17","v":70406.000000000015},{"$f":"'Sup fijo'!I17","v":70406.000000000015},{"$f":"'Sup fijo'!J17","v":70406.000000000015},{"$f":"'Sup fijo'!K17","v":70406.000000000015},{"$f":"'Sup fijo'!L17","v":70406.000000000015},{"$f":"'Sup fijo'!M17","v":70406.000000000015},{"$f":"'Sup fijo'!N17","v":70406.000000000015},{"$f":"'Sup fijo'!O17","v":70406.000000000015},{"$f":"'Sup fijo'!P17","v":70406.000000000015},{"$f":"'Sup fijo'!Q17","v":70406.000000000015},{"$f":"'Sup fijo'!R17","v":70406.000000000015},{"$f":"'Sup fijo'!S17","v":70406.000000000015},{"$f":"'Sup fijo'!T17","v":70406.000000000015},{"$f":"'Sup fijo'!U17","v":70406.000000000015},{"$f":"'Sup fijo'!V17","v":70406.000000000015},{"$f":"'Sup fijo'!W17","v":70406.000000000015},{"$f":"'Sup fijo'!X17","v":70406.000000000015}]
[null,"Tir accionista ",{"$f":"IFERROR(+IRR(G65:Z65),0)","v":0.12999999999987621}]
[]
[null,"Aportes capital ",{"$f":"E67","v":44767.892212613835}]
[]
[null,"Resultados Tarifas"]
[null,"Tarifa técnica por pasajero",{"$f":"SUM(C19:C19)","v":0.24652023519615668},null,null,null,null,{"$f":"SUM(H19:H19)","v":0.25243672084086444},0.25647570837431827,0.26314407679205054,0.26428085920379224,0.2649944175236425,0.26676988012105085,0.27194821695655064,0.27666758081846932,0.28069603911608798,0.28445195565150133,0.28816499684001973,0.29146015787371443,0.29505221566519862,0.29904350406847391,0.30334399529730227,0.30751558733457252,0.31160609257654215,0.31570197516447585,0.31984237067745203,0.32403952861681778]
[null,"Tarifa operador privado",0.24652023519615668,null,null,null,null,{"$f":"$C19*(1+'Sup Generales'!C$8)","v":0.25243672084086444},{"$f":"$C19*(1+'Sup Generales'!D$8)","v":0.25647570837431827},{"$f":"$C19*(1+'Sup Generales'!E$8)","v":0.26314407679205054},{"$f":"$C19*(1+'Sup Generales'!F$8)","v":0.26428085920379224},{"$f":"$C19*(1+'Sup Generales'!G$8)","v":0.2649944175236425},{"$f":"$C19*(1+'Sup Generales'!H$8)","v":0.26676988012105085},{"$f":"$C19*(1+'Sup Generales'!I$8)","v":0.27194821695655064},{"$f":"$C19*(1+'Sup Generales'!J$8)","v":0.27666758081846932},{"$f":"$C19*(1+'Sup Generales'!K$8)","v":0.28069603911608798},{"$f":"$C19*(1+'Sup Generales'!L$8)","v":0.28445195565150133},{"$f":"$C19*(1+'Sup Generales'!M$8)","v":0.28816499684001973},{"$f":"$C19*(1+'Sup Generales'!N$8)","v":0.29146015787371443},{"$f":"$C19*(1+'Sup Generales'!O$8)","v":0.29505221566519862},{"$f":"$C19*(1+'Sup Generales'!P$8)","v":0.29904350406847391},{"$f":"$C19*(1+'Sup Generales'!Q$8)","v":0.30334399529730227},{"$f":"$C19*(1+'Sup Generales'!R$8)","v":0.30751558733457252},{"$f":"$C19*(1+'Sup Generales'!S$8)","v":0.31160609257654215},{"$f":"$C19*(1+'Sup Generales'!T$8)","v":0.31570197516447585},{"$f":"$C19*(1+'Sup Generales'!U$8)","v":0.31984237067745203},{"$f":"$C19*(1+'Sup Generales'!V$8)","v":0.32403952861681778}]
[null,"Costo ente gestor",{"$f":"H20","v":0},null,null,null,null,{"$f":"H71/H11","v":0},{"$f":"I71/I11","v":0},0,0,0,0,0,0,0,0,0,0,0,0,0,0,0,0,0,0]
[]
[null,"P&G",null,null,"Total "]
[null,"(+) Ingresos ",null,null,{"$f":"+SUM(H23:AA23)","v":1004943.532750169},null,null,{"$f":"+H11*H19*IF(H$6>'Sup fijo'!$H$51,0,1)","v":77781.812172370512},{"$f":"+I11*I19*IF(I$6>'Sup fijo'!$H$51,0,1)","v":79026.321167128437},{"$f":"+J11*J19*IF(J$6>'Sup fijo'!$H$51,0,1)","v":81081.005517473779},{"$f":"+K11*K19*IF(K$6>'Sup fijo'!$H$51,0,1)","v":81431.275461309284},{"$f":"+L11*L19*IF(L$6>'Sup fijo'!$H$51,0,1)","v":81651.139905054821},{"$f":"+M11*M19*IF(M$6>'Sup fijo'!$H$51,0,1)","v":82198.202542418672},{"$f":"+N11*N19*IF(N$6>'Sup fijo'!$H$51,0,1)","v":83793.772401520211},{"$f":"+O11*O19*IF(O$6>'Sup fijo'!$H$51,0,1)","v":85247.921672110038},{"$f":"+P11*P19*IF(P$6>'Sup fijo'!$H$51,0,1)","v":86489.186356605496},{"$f":"+Q11*Q19*IF(Q$6>'Sup fijo'!$H$51,0,1)","v":87646.474383163193},{"$f":"+R11*R19*IF(R$6>'Sup fijo'!$H$51,0,1)","v":88790.55148633424},{"$f":"+S11*S19*IF(S$6>'Sup fijo'!$H$51,0,1)","v":89805.86968468038},{"$f":"+T11*T19*IF(T$6>'Sup fijo'!$H$51,0,1)","v":0},{"$f":"+U11*U19*IF(U$6>'Sup fijo'!$H$51,0,1)","v":0},{"$f":"+V11*V19*IF(V$6>'Sup fijo'!$H$51,0,1)","v":0},{"$f":"+W11*W19*IF(W$6>'Sup fijo'!$H$51,0,1)","v":0},{"$f":"+X11*X19*IF(X$6>'Sup fijo'!$H$51,0,1)","v":0},{"$f":"+Y11*Y19*IF(Y$6>'Sup fijo'!$H$51,0,1)","v":0},{"$f":"+Z11*Z19*IF(Z$6>'Sup fijo'!$H$51,0,1)","v":0},{"$f":"+AA11*AA19*IF(AA$6>'Sup fijo'!$H$51,0,1)","v":0}]
[]
[null,"(-) Costo conductores ",null,null,{"$f":"+SUM(H25:AA25)","v":325529.13308472914},null,null,{"$f":"+'OPEX Personal Directo'!C8","v":24077.204571428578},{"$f":"+'OPEX Personal Directo'!D8","v":24658.139363328002},{"$f":"+'OPEX Personal Directo'!E8","v":25501.644994668735},{"$f":"+'OPEX Personal Directo'!F8","v":25816.706597854063},{"$f":"+'OPEX Personal Directo'!G8","v":26093.502999313612},{"$f":"+'OPEX Personal Directo'!H8","v":26478.476105164289},{"$f":"+'OPEX Personal Directo'!I8","v":27208.396075856344},{"$f":"+'OPEX Personal Directo'!J8","v":27902.012574814184},{"$f":"+'OPEX Personal Directo'!K8","v":28534.750132515506},{"$f":"+'OPEX Personal Directo'!L8","v":29147.898306007155},{"$f":"+'OPEX Personal Directo'!M8","v":29764.602025807988},{"$f":"+'OPEX Personal Directo'!N8","v":30345.7993379707},{"$f":"+'OPEX Personal Directo'!O8","v":0},{"$f":"+'OPEX Personal Directo'!P8","v":0},{"$f":"+'OPEX Personal Directo'!Q8","v":0},{"$f":"+'OPEX Personal Directo'!R8","v":0},{"$f":"+'OPEX Personal Directo'!S8","v":0},{"$f":"+'OPEX Personal Directo'!T8","v":0},{"$f":"+'OPEX Personal Directo'!U8","v":0},{"$f":"+'OPEX Personal Directo'!V8","v":0}]
[null,"(-) Costo combustible ",null,null,{"$f":"+SUM(H26:AA26)","v":110389.15210376696},null,null,{"$f":"IF(H23=0,0,'OPEX Combustible '!H14)","v":8403.3274145139912},{"$f":"IF(I23=0,0,'OPEX Combustible '!I14)","v":8621.813927291354},{"$f":"IF(J23=0,0,'OPEX Combustible '!J14)","v":8659.060163457254},{"$f":"IF(K23=0,0,'OPEX Combustible '!K14)","v":8725.8518240280791},{"$f":"IF(L23=0,0,'OPEX Combustible '!L14)","v":8828.2366064053112},{"$f":"IF(M23=0,0,'OPEX Combustible '!M14)","v":9044.6017328025537},{"$f":"IF(N23=0,0,'OPEX Combustible '!N14)","v":9247.568707858909},{"$f":"IF(O23=0,0,'OPEX Combustible '!O14)","v":9429.1303649353122},{"$f":"IF(P23=0,0,'OPEX Combustible '!P14)","v":9603.0754610897675},{"$f":"IF(Q23=0,0,'OPEX Combustible '!Q14)","v":9777.0695742946336},{"$f":"IF(R23=0,0,'OPEX Combustible '!R14)","v":9938.3145221640825},{"$f":"IF(S23=0,0,'OPEX Combustible '!S14)","v":10111.101804925696},{"$f":"IF(T23=0,0,'OPEX Combustible '!T14)","v":0},{"$f":"IF(U23=0,0,'OPEX Combustible '!U14)","v":0},{"$f":"IF(V23=0,0,'OPEX Combustible '!V14)","v":0},{"$f":"IF(W23=0,0,'OPEX Combustible '!W14)","v":0},{"$f":"IF(X23=0,0,'OPEX Combustible '!X14)","v":0},{"$f":"IF(Y23=0,0,'OPEX Combustible '!Y14)","v":0},{"$f":"IF(Z23=0,0,'OPEX Combustible '!Z14)","v":0},{"$f":"IF(AA23=0,0,'OPEX Combustible '!AA14)","v":0}]
[null,"(-) Costo impuestos + seguros ",null,null,44919.896604612666,null,null,{"$f":"+'OPEX impuestos'!C26+'OPEX impuestos'!C94+'OPEX impuestos'!C99+'OPEX Otros Gastos'!C14","v":3423.7421239466667},{"$f":"+'OPEX impuestos'!D26+'OPEX impuestos'!D94+'OPEX impuestos'!D99+'OPEX Otros Gastos'!D14","v":4207.3870217864524},{"$f":"+'OPEX impuestos'!E26+'OPEX impuestos'!E94+'OPEX impuestos'!E99+'OPEX Otros Gastos'!E14","v":3480.6051887240806},{"$f":"+'OPEX impuestos'!F26+'OPEX impuestos'!F94+'OPEX impuestos'!F99+'OPEX Otros Gastos'!F14","v":4696.0433001086394},{"$f":"+'OPEX impuestos'!G26+'OPEX impuestos'!G94+'OPEX impuestos'!G99+'OPEX Otros Gastos'!G14","v":2798.935894424254},{"$f":"+'OPEX impuestos'!H26+'OPEX impuestos'!H94+'OPEX impuestos'!H99+'OPEX Otros Gastos'!H14","v":4168.8329231016178},{"$f":"+'OPEX impuestos'!I26+'OPEX impuestos'!I94+'OPEX impuestos'!I99+'OPEX Otros Gastos'!I14","v":3989.6622060153768},{"$f":"+'OPEX impuestos'!J26+'OPEX impuestos'!J94+'OPEX impuestos'!J99+'OPEX Otros Gastos'!J14","v":3025.2742035443616},{"$f":"+'OPEX impuestos'!K26+'OPEX impuestos'!K94+'OPEX impuestos'!K99+'OPEX Otros Gastos'!K14","v":3964.2556605972582},{"$f":"+'OPEX impuestos'!L26+'OPEX impuestos'!L94+'OPEX impuestos'!L99+'OPEX Otros Gastos'!L14","v":2793.6850371868723},{"$f":"+'OPEX impuestos'!M26+'OPEX impuestos'!M94+'OPEX impuestos'!M99+'OPEX Otros Gastos'!M14","v":4283.2372026313487},{"$f":"+'OPEX impuestos'!N26+'OPEX impuestos'!N94+'OPEX impuestos'!N99+'OPEX Otros Gastos'!N14","v":4088.2358425457392},{"$f":"+'OPEX impuestos'!O26+'OPEX impuestos'!O94+'OPEX impuestos'!O99+'OPEX Otros Gastos'!O14","v":0},{"$f":"+'OPEX impuestos'!P26+'OPEX impuestos'!P94+'OPEX impuestos'!P99+'OPEX Otros Gastos'!P14","v":0},{"$f":"+'OPEX impuestos'!Q26+'OPEX impuestos'!Q94+'OPEX impuestos'!Q99+'OPEX Otros Gastos'!Q14","v":0},{"$f":"+'OPEX impuestos'!R26+'OPEX impuestos'!R94+'OPEX impuestos'!R99+'OPEX Otros Gastos'!R14","v":0},{"$f":"+'OPEX impuestos'!S26+'OPEX impuestos'!S94+'OPEX impuestos'!S99+'OPEX Otros Gastos'!S14","v":0},{"$f":"+'OPEX impuestos'!T26+'OPEX impuestos'!T94+'OPEX impuestos'!T99+'OPEX Otros Gastos'!T14","v":0},{"$f":"+'OPEX impuestos'!U26+'OPEX impuestos'!U94+'OPEX impuestos'!U99+'OPEX Otros Gastos'!U14","v":0},{"$f":"+'OPEX impuestos'!V26+'OPEX impuestos'!V94+'OPEX impuestos'!V99+'OPEX Otros Gastos'!V14","v":0}]
[null,"(-) Costo Mantenimiento ",null,null,201265.27443635854,null,null,{"$f":"+'OPEX Mtto'!C15","v":9869.0407082666661},{"$f":"+'OPEX Mtto'!D15","v":15644.917655922587},{"$f":"+'OPEX Mtto'!E15","v":12779.240625669034},{"$f":"+'OPEX Mtto'!F15","v":21034.1455052249},{"$f":"+'OPEX Mtto'!G15","v":10636.201744976555},{"$f":"+'OPEX Mtto'!H15","v":20542.550693152021},{"$f":"+'OPEX Mtto'!I15","v":19701.198076524193},{"$f":"+'OPEX Mtto'!J15","v":14374.730072112598},{"$f":"+'OPEX Mtto'!K15","v":19927.429581444827},{"$f":"+'OPEX Mtto'!L15","v":13426.638694264901},{"$f":"+'OPEX Mtto'!M15","v":22126.721392222942},{"$f":"+'OPEX Mtto'!N15","v":21202.459686577335},{"$f":"+'OPEX Mtto'!O15","v":0},{"$f":"+'OPEX Mtto'!P15","v":0},{"$f":"+'OPEX Mtto'!Q15","v":0},{"$f":"+'OPEX Mtto'!R15","v":0},{"$f":"+'OPEX Mtto'!S15","v":0},{"$f":"+'OPEX Mtto'!T15","v":0},{"$f":"+'OPEX Mtto'!U15","v":0},{"$f":"+'OPEX Mtto'!V15","v":0}]
[null,"(-) Costo personal ",null,null,126407.90616607876,null,null,{"$f":"'OPEX Personal Indirecto'!D$8*IF(H$6>'Sup fijo'!$H$51,0,1)","v":9349.5441939890716},{"$f":"'OPEX Personal Indirecto'!E$8*IF(I$6>'Sup fijo'!$H$51,0,1)","v":9575.1299963016409},{"$f":"'OPEX Personal Indirecto'!F$8*IF(J$6>'Sup fijo'!$H$51,0,1)","v":9902.6760432151295},{"$f":"'OPEX Personal Indirecto'!G$8*IF(K$6>'Sup fijo'!$H$51,0,1)","v":10025.019248551593},{"$f":"'OPEX Personal Indirecto'!H$8*IF(L$6>'Sup fijo'!$H$51,0,1)","v":10132.503494926863},{"$f":"'OPEX Personal Indirecto'!I$8*IF(M$6>'Sup fijo'!$H$51,0,1)","v":10281.994398489616},{"$f":"'OPEX Personal Indirecto'!J$8*IF(N$6>'Sup fijo'!$H$51,0,1)","v":10565.433408355357},{"$f":"'OPEX Personal Indirecto'!K$8*IF(O$6>'Sup fijo'!$H$51,0,1)","v":10834.775228808285},{"$f":"'OPEX Personal Indirecto'!L$8*IF(P$6>'Sup fijo'!$H$51,0,1)","v":11080.476831806887},{"$f":"'OPEX Personal Indirecto'!M$8*IF(Q$6>'Sup fijo'!$H$51,0,1)","v":11318.571579414205},{"$f":"'OPEX Personal Indirecto'!N$8*IF(R$6>'Sup fijo'!$H$51,0,1)","v":11558.046999651217},{"$f":"'OPEX Personal Indirecto'!O$8*IF(S$6>'Sup fijo'!$H$51,0,1)","v":11783.734742568889},{"$f":"'OPEX Personal Indirecto'!P$8*IF(T$6>'Sup fijo'!$H$51,0,1)","v":0},{"$f":"'OPEX Personal Indirecto'!Q$8*IF(U$6>'Sup fijo'!$H$51,0,1)","v":0},{"$f":"'OPEX Personal Indirecto'!R$8*IF(V$6>'Sup fijo'!$H$51,0,1)","v":0},{"$f":"'OPEX Personal Indirecto'!S$8*IF(W$6>'Sup fijo'!$H$51,0,1)","v":0},{"$f":"'OPEX Personal Indirecto'!T$8*IF(X$6>'Sup fijo'!$H$51,0,1)","v":0},{"$f":"'OPEX Personal Indirecto'!U$8*IF(Y$6>'Sup fijo'!$H$51,0,1)","v":0},{"$f":"'OPEX Personal Indirecto'!V$8*IF(Z$6>'Sup fijo'!$H$51,0,1)","v":0},{"$f":"'OPEX Personal Indirecto'!W$8*IF(AA$6>'Sup fijo'!$H$51,0,1)","v":0}]
[null,"(-) Administración y otros ",null,null,29822.527298938021,null,null,{"$f":"'OPEX Otros Gastos'!C$37","v":2308.2393600000005},{"$f":"'OPEX Otros Gastos'!D$37*IF(I$6>'Sup fijo'!$H$51,0,1)","v":2345.1711897599994},{"$f":"'OPEX Otros Gastos'!E$37*IF(J$6>'Sup fijo'!$H$51,0,1)","v":2406.14564069376},{"$f":"'OPEX Otros Gastos'!F$37*IF(K$6>'Sup fijo'!$H$51,0,1)","v":2416.5401898615573},{"$f":"'OPEX Otros Gastos'!G$37*IF(L$6>'Sup fijo'!$H$51,0,1)","v":2423.0648483741834},{"$f":"'OPEX Otros Gastos'!H$37*IF(M$6>'Sup fijo'!$H$51,0,1)","v":2439.2993828582903},{"$f":"'OPEX Otros Gastos'!I$37*IF(N$6>'Sup fijo'!$H$51,0,1)","v":2486.6492330037981},{"$f":"'OPEX Otros Gastos'!J$37*IF(O$6>'Sup fijo'!$H$51,0,1)","v":2529.8023106699811},{"$f":"'OPEX Otros Gastos'!K$37*IF(P$6>'Sup fijo'!$H$51,0,1)","v":2566.6378628499824},{"$f":"'OPEX Otros Gastos'!L$37*IF(Q$6>'Sup fijo'!$H$51,0,1)","v":2600.9813385180137},{"$f":"'OPEX Otros Gastos'!M$37*IF(R$6>'Sup fijo'!$H$51,0,1)","v":2634.9327691501771},{"$f":"'OPEX Otros Gastos'!N$37*IF(S$6>'Sup fijo'!$H$51,0,1)","v":2665.0631731982762},{"$f":"'OPEX Otros Gastos'!O$37*IF(T$6>'Sup fijo'!$H$51,0,1)","v":0},{"$f":"'OPEX Otros Gastos'!P$37*IF(U$6>'Sup fijo'!$H$51,0,1)","v":0},{"$f":"'OPEX Otros Gastos'!Q$37*IF(V$6>'Sup fijo'!$H$51,0,1)","v":0},{"$f":"'OPEX Otros Gastos'!R$37*IF(W$6>'Sup fijo'!$H$51,0,1)","v":0},{"$f":"'OPEX Otros Gastos'!S$37*IF(X$6>'Sup fijo'!$H$51,0,1)","v":0},{"$f":"'OPEX Otros Gastos'!T$37*IF(Y$6>'Sup fijo'!$H$51,0,1)","v":0},{"$f":"'OPEX Otros Gastos'!U$37*IF(Z$6>'Sup fijo'!$H$51,0,1)","v":0},{"$f":"'OPEX Otros Gastos'!V$37*IF(AA$6>'Sup fijo'!$H$51,0,1)","v":0}]
[null,"Total OPEX",null,null,838333.88969448418,null,null,{"$f":"+SUM(H25:H30)","v":57431.098372144974},65052.559154390037,62729.372656427993,72714.306665628828,60912.445588420785,72955.755235568373,73198.90770761398,68095.724754884723,75676.625530304227,69064.844529685783,80305.854911627743,80196.39458778665,0,0,0,0,0,0,0,0]
[]
[null,"EBITDA",null,null,{"$f":"+SUM(H33:AA33)","v":166609.64305568495},null,null,{"$f":"+H23-H31","v":20350.713800225538},13973.7620127384,18351.632861045786,8716.9687956804555,20738.694316634035,9242.4473068502994,10594.864693906231,17152.196917225316,10812.560826301269,18581.629853477411,8484.6965747064969,9609.4750968937296,0,0,0,0,0,0,0,0]
[]
[null,"(-) Depreciación",null,null,{"$f":"+SUM(H35:AA35)","v":72000},null,null,{"$f":"'CAPEX Vehículo'!D15","v":6000},{"$f":"'CAPEX Vehículo'!E15","v":6000},{"$f":"'CAPEX Vehículo'!F15","v":6000},{"$f":"'CAPEX Vehículo'!G15","v":6000},{"$f":"'CAPEX Vehículo'!H15","v":6000},{"$f":"'CAPEX Vehículo'!I15","v":6000},{"$f":"'CAPEX Vehículo'!J15","v":6000},{"$f":"'CAPEX Vehículo'!K15","v":6000},{"$f":"'CAPEX Vehículo'!L15","v":6000},{"$f":"'CAPEX Vehículo'!M15","v":6000},{"$f":"'CAPEX Vehículo'!N15","v":6000},{"$f":"'CAPEX Vehículo'!O15","v":6000},{"$f":"'CAPEX Vehículo'!P15","v":0},{"$f":"'CAPEX Vehículo'!Q15","v":0},{"$f":"'CAPEX Vehículo'!R15","v":0},{"$f":"'CAPEX Vehículo'!S15","v":0},{"$f":"'CAPEX Vehículo'!T15","v":0},{"$f":"'CAPEX Vehículo'!U15","v":0},{"$f":"'CAPEX Vehículo'!V15","v":0},{"$f":"'CAPEX Vehículo'!W15","v":0}]
[]
[null,"EBIT",null,null,{"$f":"+SUM(H37:AA37)","v":94609.643055684966},null,null,{"$f":"H33-H35","v":14350.713800225538},{"$f":"I33-I35","v":7973.7620127383998},12351.632861045786,2716.9687956804555,14738.694316634035,3242.4473068502994,4594.864693906231,11152.196917225316,4812.5608263012691,12581.629853477411,2484.6965747064969,3609.4750968937296,0,0,0,0,0,0,0,0]
[]
[null,"(-) Intereses",null,null,{"$f":"+SUM(H39:AA39)","v":24646.557552581806},null,null,{"$f":"'CAPEX Vehículo'!D12","v":7560.0000000000009},{"$f":"'CAPEX Vehículo'!E12","v":6416.2963885277122},{"$f":"'CAPEX Vehículo'!F12","v":5112.4742714493041},{"$f":"'CAPEX Vehículo'!G12","v":3626.1170579799173},{"$f":"'CAPEX Vehículo'!H12","v":1931.6698346248168},{"$f":"'CAPEX Vehículo'!I12","v":2.2919266484677796E-12},{"$f":"'CAPEX Vehículo'!J12","v":2.2919266484677796E-12},{"$f":"'CAPEX Vehículo'!K12","v":2.2919266484677796E-12},{"$f":"'CAPEX Vehículo'!L12","v":2.2919266484677796E-12},{"$f":"'CAPEX Vehículo'!M12","v":2.2919266484677796E-12},{"$f":"'CAPEX Vehículo'!N12","v":2.2919266484677796E-12},{"$f":"'CAPEX Vehículo'!O12","v":2.2919266484677796E-12},{"$f":"'CAPEX Vehículo'!P12","v":2.2919266484677796E-12},{"$f":"'CAPEX Vehículo'!Q12","v":2.2919266484677796E-12},{"$f":"'CAPEX Vehículo'!R12","v":2.2919266484677796E-12},{"$f":"'CAPEX Vehículo'!S12","v":2.2919266484677796E-12},{"$f":"'CAPEX Vehículo'!T12","v":2.2919266484677796E-12},{"$f":"'CAPEX Vehículo'!U12","v":2.2919266484677796E-12},{"$f":"'CAPEX Vehículo'!V12","v":2.2919266484677796E-12},{"$f":"'CAPEX Vehículo'!W12","v":2.2919266484677796E-12}]
[]
[null,"EBT",null,null,{"$f":"+SUM(H41:AA41)","v":69963.085503103212},null,null,{"$f":"+H37-H39","v":6790.7138002255369},{"$f":"+I37-I39","v":1557.4656242106876},7239.1585895964818,-909.14826229946175,12807.024482009219,3242.4473068502971,4594.8646939062282,11152.196917225314,4812.5608263012664,12581.629853477409,2484.6965747064946,3609.4750968937274,-2.2919266484677796E-12,-2.2919266484677796E-12,-2.2919266484677796E-12,-2.2919266484677796E-12,-2.2919266484677796E-12,-2.2919266484677796E-12,-2.2919266484677796E-12,-2.2919266484677796E-12]
[]
[null,"Participación empleados ",null,null,{"$f":"+SUM(G43:Z43)","v":0},null,{"$f":"+IF(G41<0,0,G41*'Sup fijo'!$D$196)*IF('Sup fijo'!$D$200=\"No\",0,1)","v":0},{"$f":"+IF(H41<0,0,H41*'Sup fijo'!$D$196)*IF('Sup fijo'!$D$200=\"No\",0,1)","v":0},{"$f":"+IF(I41<0,0,I41*'Sup fijo'!$D$196)*IF('Sup fijo'!$D$200=\"No\",0,1)","v":0},{"$f":"+IF(J41<0,0,J41*'Sup fijo'!$D$196)*IF('Sup fijo'!$D$200=\"No\",0,1)","v":0},{"$f":"+IF(K41<0,0,K41*'Sup fijo'!$D$196)*IF('Sup fijo'!$D$200=\"No\",0,1)","v":0},{"$f":"+IF(L41<0,0,L41*'Sup fijo'!$D$196)*IF('Sup fijo'!$D$200=\"No\",0,1)","v":0},{"$f":"+IF(M41<0,0,M41*'Sup fijo'!$D$196)*IF('Sup fijo'!$D$200=\"No\",0,1)","v":0},{"$f":"+IF(N41<0,0,N41*'Sup fijo'!$D$196)*IF('Sup fijo'!$D$200=\"No\",0,1)","v":0},{"$f":"+IF(O41<0,0,O41*'Sup fijo'!$D$196)*IF('Sup fijo'!$D$200=\"No\",0,1)","v":0},{"$f":"+IF(P41<0,0,P41*'Sup fijo'!$D$196)*IF('Sup fijo'!$D$200=\"No\",0,1)","v":0},{"$f":"+IF(Q41<0,0,Q41*'Sup fijo'!$D$196)*IF('Sup fijo'!$D$200=\"No\",0,1)","v":0},{"$f":"+IF(R41<0,0,R41*'Sup fijo'!$D$196)*IF('Sup fijo'!$D$200=\"No\",0,1)","v":0},{"$f":"+IF(S41<0,0,S41*'Sup fijo'!$D$196)*IF('Sup fijo'!$D$200=\"No\",0,1)","v":0},{"$f":"+IF(T41<0,0,T41*'Sup fijo'!$D$196)*IF('Sup fijo'!$D$200=\"No\",0,1)","v":0},{"$f":"+IF(U41<0,0,U41*'Sup fijo'!$D$196)*IF('Sup fijo'!$D$200=\"No\",0,1)","v":0},{"$f":"+IF(V41<0,0,V41*'Sup fijo'!$D$196)*IF('Sup fijo'!$D$200=\"No\",0,1)","v":0},{"$f":"+IF(W41<0,0,W41*'Sup fijo'!$D$196)*IF('Sup fijo'!$D$200=\"No\",0,1)","v":0},{"$f":"+IF(X41<0,0,X41*'Sup fijo'!$D$196)*IF('Sup fijo'!$D$200=\"No\",0,1)","v":0},{"$f":"+IF(Y41<0,0,Y41*'Sup fijo'!$D$196)*IF('Sup fijo'!$D$200=\"No\",0,1)","v":0},{"$f":"+IF(Z41<0,0,Z41*'Sup fijo'!$D$196)*IF('Sup fijo'!$D$200=\"No\",0,1)","v":0},{"$f":"+IF(AA41<0,0,AA41*'Sup fijo'!$D$196)*IF('Sup fijo'!$D$200=\"No\",0,1)","v":0}]
[null,"Impuesto renta ",null,null,{"$f":"+SUM(G44:Z44)","v":0},null,{"$f":"IF((+G41-G43)<0,0,(+G41-G43)*'Sup fijo'!$D$197)*IF('Sup fijo'!$D$200=\"No\",0,1)","v":0},{"$f":"IF((+H41-H43)<0,0,(+H41-H43)*'Sup fijo'!$D$197)*IF('Sup fijo'!$D$200=\"No\",0,1)","v":0},{"$f":"IF((+I41-I43)<0,0,(+I41-I43)*'Sup fijo'!$D$197)*IF('Sup fijo'!$D$200=\"No\",0,1)","v":0},{"$f":"IF((+J41-J43)<0,0,(+J41-J43)*'Sup fijo'!$D$197)*IF('Sup fijo'!$D$200=\"No\",0,1)","v":0},{"$f":"IF((+K41-K43)<0,0,(+K41-K43)*'Sup fijo'!$D$197)*IF('Sup fijo'!$D$200=\"No\",0,1)","v":0},{"$f":"IF((+L41-L43)<0,0,(+L41-L43)*'Sup fijo'!$D$197)*IF('Sup fijo'!$D$200=\"No\",0,1)","v":0},{"$f":"IF((+M41-M43)<0,0,(+M41-M43)*'Sup fijo'!$D$197)*IF('Sup fijo'!$D$200=\"No\",0,1)","v":0},{"$f":"IF((+N41-N43)<0,0,(+N41-N43)*'Sup fijo'!$D$197)*IF('Sup fijo'!$D$200=\"No\",0,1)","v":0},{"$f":"IF((+O41-O43)<0,0,(+O41-O43)*'Sup fijo'!$D$197)*IF('Sup fijo'!$D$200=\"No\",0,1)","v":0},{"$f":"IF((+P41-P43)<0,0,(+P41-P43)*'Sup fijo'!$D$197)*IF('Sup fijo'!$D$200=\"No\",0,1)","v":0},{"$f":"IF((+Q41-Q43)<0,0,(+Q41-Q43)*'Sup fijo'!$D$197)*IF('Sup fijo'!$D$200=\"No\",0,1)","v":0},{"$f":"IF((+R41-R43)<0,0,(+R41-R43)*'Sup fijo'!$D$197)*IF('Sup fijo'!$D$200=\"No\",0,1)","v":0},{"$f":"IF((+S41-S43)<0,0,(+S41-S43)*'Sup fijo'!$D$197)*IF('Sup fijo'!$D$200=\"No\",0,1)","v":0},{"$f":"IF((+T41-T43)<0,0,(+T41-T43)*'Sup fijo'!$D$197)*IF('Sup fijo'!$D$200=\"No\",0,1)","v":0},{"$f":"IF((+U41-U43)<0,0,(+U41-U43)*'Sup fijo'!$D$197)*IF('Sup fijo'!$D$200=\"No\",0,1)","v":0},{"$f":"IF((+V41-V43)<0,0,(+V41-V43)*'Sup fijo'!$D$197)*IF('Sup fijo'!$D$200=\"No\",0,1)","v":0},{"$f":"IF((+W41-W43)<0,0,(+W41-W43)*'Sup fijo'!$D$197)*IF('Sup fijo'!$D$200=\"No\",0,1)","v":0},{"$f":"IF((+X41-X43)<0,0,(+X41-X43)*'Sup fijo'!$D$197)*IF('Sup fijo'!$D$200=\"No\",0,1)","v":0},{"$f":"IF((+Y41-Y43)<0,0,(+Y41-Y43)*'Sup fijo'!$D$197)*IF('Sup fijo'!$D$200=\"No\",0,1)","v":0},{"$f":"IF((+Z41-Z43)<0,0,(+Z41-Z43)*'Sup fijo'!$D$197)*IF('Sup fijo'!$D$200=\"No\",0,1)","v":0},{"$f":"IF((+AA41-AA43)<0,0,(+AA41-AA43)*'Sup fijo'!$D$197)*IF('Sup fijo'!$D$200=\"No\",0,1)","v":0}]
[]
[null,"Utilidad Neta",null,null,{"$f":"+SUM(G46:Z46)","v":69963.085503103212},null,{"$f":"+G41-G43-G44","v":0},{"$f":"+H41-H43-H44","v":6790.7138002255369},1557.4656242106876,7239.1585895964818,-909.14826229946175,12807.024482009219,3242.4473068502971,4594.8646939062282,11152.196917225314,4812.5608263012664,12581.629853477409,2484.6965747064946,3609.4750968937274,-2.2919266484677796E-12,-2.2919266484677796E-12,-2.2919266484677796E-12,-2.2919266484677796E-12,-2.2919266484677796E-12,-2.2919266484677796E-12,-2.2919266484677796E-12,-2.2919266484677796E-12]
[]
[null,"FLUJO DE CAJA PROYECTO"]
[]
[null,"(+) Utilidad Neta",null,null,{"$f":"SUM(G50:AA50)","v":69963.085503103212},null,null,{"$f":"H46","v":6790.7138002255369},1557.4656242106876,7239.1585895964818,-909.14826229946175,12807.024482009219,3242.4473068502971,4594.8646939062282,11152.196917225314,4812.5608263012664,12581.629853477409,2484.6965747064946,3609.4750968937274,-2.2919266484677796E-12,-2.2919266484677796E-12,-2.2919266484677796E-12,-2.2919266484677796E-12,-2.2919266484677796E-12,-2.2919266484677796E-12,-2.2919266484677796E-12,-2.2919266484677796E-12]
[null,"(+) NCC (Non Cash Charges)",null,null,{"$f":"SUM(G51:AA51)","v":72000},null,null,{"$f":"H35","v":6000},6000,6000,6000,6000,6000,6000,6000,6000,6000,6000,6000,0,0,0,0,0,0,0,0]
[null,"(+) Int*(1-Impuestos)",null,null,{"$f":"SUM(G52:AA52)","v":13555.606653919991},null,null,{"$f":"H39*(1-SUM('Sup fijo'!$D$196:$D$197))","v":4158.0000000000009},{"$f":"I39*(1-SUM('Sup fijo'!$D$196:$D$197))","v":3528.963013690242},{"$f":"J39*(1-SUM('Sup fijo'!$D$196:$D$197))","v":2811.8608492971175},{"$f":"K39*(1-SUM('Sup fijo'!$D$196:$D$197))","v":1994.3643818889548},{"$f":"L39*(1-SUM('Sup fijo'!$D$196:$D$197))","v":1062.4184090436493},{"$f":"M39*(1-SUM('Sup fijo'!$D$196:$D$197))","v":1.2605596566572788E-12},{"$f":"N39*(1-SUM('Sup fijo'!$D$196:$D$197))","v":1.2605596566572788E-12},{"$f":"O39*(1-SUM('Sup fijo'!$D$196:$D$197))","v":1.2605596566572788E-12},{"$f":"P39*(1-SUM('Sup fijo'!$D$196:$D$197))","v":1.2605596566572788E-12},{"$f":"Q39*(1-SUM('Sup fijo'!$D$196:$D$197))","v":1.2605596566572788E-12},{"$f":"R39*(1-SUM('Sup fijo'!$D$196:$D$197))","v":1.2605596566572788E-12},{"$f":"S39*(1-SUM('Sup fijo'!$D$196:$D$197))","v":1.2605596566572788E-12},{"$f":"T39*(1-SUM('Sup fijo'!$D$196:$D$197))","v":1.2605596566572788E-12},{"$f":"U39*(1-SUM('Sup fijo'!$D$196:$D$197))","v":1.2605596566572788E-12},{"$f":"V39*(1-SUM('Sup fijo'!$D$196:$D$197))","v":1.2605596566572788E-12},{"$f":"W39*(1-SUM('Sup fijo'!$D$196:$D$197))","v":1.2605596566572788E-12},{"$f":"X39*(1-SUM('Sup fijo'!$D$196:$D$197))","v":1.2605596566572788E-12},{"$f":"Y39*(1-SUM('Sup fijo'!$D$196:$D$197))","v":1.2605596566572788E-12},{"$f":"Z39*(1-SUM('Sup fijo'!$D$196:$D$197))","v":1.2605596566572788E-12},{"$f":"AA39*(1-SUM('Sup fijo'!$D$196:$D$197))","v":1.2605596566572788E-12}]
[null,"(-) CAPEX",null,null,{"$f":"SUM(G53:AA53)","v":72000},null,{"$f":"'CAPEX Vehículo'!C14","v":90000},{"$f":"IF(H$6='Sup fijo'!$H$51,-'Sup fijo'!$I$51*$G53,0)","v":0},{"$f":"IF(I$6='Sup fijo'!$H$51,-'Sup fijo'!$I$51*$G53,0)","v":0},{"$f":"IF(J$6='Sup fijo'!$H$51,-'Sup fijo'!$I$51*$G53,0)","v":0},{"$f":"IF(K$6='Sup fijo'!$H$51,-'Sup fijo'!$I$51*$G53,0)","v":0},{"$f":"IF(L$6='Sup fijo'!$H$51,-'Sup fijo'!$I$51*$G53,0)","v":0},{"$f":"IF(M$6='Sup fijo'!$H$51,-'Sup fijo'!$I$51*$G53,0)","v":0},{"$f":"IF(N$6='Sup fijo'!$H$51,-'Sup fijo'!$I$51*$G53,0)","v":0},{"$f":"IF(O$6='Sup fijo'!$H$51,-'Sup fijo'!$I$51*$G53,0)","v":0},{"$f":"IF(P$6='Sup fijo'!$H$51,-'Sup fijo'!$I$51*$G53,0)","v":0},{"$f":"IF(Q$6='Sup fijo'!$H$51,-'Sup fijo'!$I$51*$G53,0)","v":0},{"$f":"IF(R$6='Sup fijo'!$H$51,-'Sup fijo'!$I$51*$G53,0)","v":0},{"$f":"IF(S$6='Sup fijo'!$H$51,-'Sup fijo'!$I$51*$G53,0)","v":-18000},{"$f":"IF(T$6='Sup fijo'!$H$51,-'Sup fijo'!$I$51*$G53,0)","v":0},{"$f":"IF(U$6='Sup fijo'!$H$51,-'Sup fijo'!$I$51*$G53,0)","v":0},{"$f":"IF(V$6='Sup fijo'!$H$51,-'Sup fijo'!$I$51*$G53,0)","v":0},{"$f":"IF(W$6='Sup fijo'!$H$51,-'Sup fijo'!$I$51*$G53,0)","v":0},{"$f":"IF(X$6='Sup fijo'!$H$51,-'Sup fijo'!$I$51*$G53,0)","v":0},{"$f":"IF(Y$6='Sup fijo'!$H$51,-'Sup fijo'!$I$51*$G53,0)","v":0},{"$f":"IF(Z$6='Sup fijo'!$H$51,-'Sup fijo'!$I$51*$G53,0)","v":0},{"$f":"IF(AA$6='Sup fijo'!$H$51,-'Sup fijo'!$I$51*$G53,0)","v":0}]
[]
[null,"Flujo de caja libre",null,null,{"$f":"+SUM(H55:AA55)","v":173518.69215702318},null,{"$f":"G50+G51+G52-G53","v":-90000},{"$f":"H50+H51+H52-H53","v":16948.713800225538},11086.42863790093,16051.0194388936,7085.2161195894932,19869.44289105287,9242.4473068502994,10594.864693906229,17152.196917225316,10812.560826301267,18581.629853477411,8484.6965747064969,27609.47509689373,-1.0313669918105007E-12,-1.0313669918105007E-12,-1.0313669918105007E-12,-1.0313669918105007E-12,-1.0313669918105007E-12,-1.0313669918105007E-12,-1.0313669918105007E-12,-1.0313669918105007E-12]
[]
[null,"FLUJO DE CAJA DEL CONCESIONARIO"]
[]
[null,"(+) FCFF",null,null,{"$f":"SUM(G59:AA59)","v":83518.692157023179},null,{"$f":"G55","v":-90000},16948.713800225538,11086.42863790093,16051.0194388936,7085.2161195894932,19869.44289105287,9242.4473068502994,10594.864693906229,17152.196917225316,10812.560826301267,18581.629853477411,8484.6965747064969,27609.47509689373,-1.0313669918105007E-12,-1.0313669918105007E-12,-1.0313669918105007E-12,-1.0313669918105007E-12,-1.0313669918105007E-12,-1.0313669918105007E-12,-1.0313669918105007E-12,-1.0313669918105007E-12]
[null,"(-) Int*(1-Impuestos)",null,null,{"$f":"SUM(G60:AA60)","v":13555.606653919991},null,{"$f":"G52","v":0},4158.0000000000009,3528.963013690242,2811.8608492971175,1994.3643818889548,1062.4184090436493,1.2605596566572788E-12,1.2605596566572788E-12,1.2605596566572788E-12,1.2605596566572788E-12,1.2605596566572788E-12,1.2605596566572788E-12,1.2605596566572788E-12,1.2605596566572788E-12,1.2605596566572788E-12,1.2605596566572788E-12,1.2605596566572788E-12,1.2605596566572788E-12,1.2605596566572788E-12,1.2605596566572788E-12,1.2605596566572788E-12]
[null,"(+) Endeudamiento Neto",null,null,{"$f":"SUM(G61:AA61)","v":1.6370904631912708E-11},null,{"$f":"G62-G63","v":54000},{"$f":"H62-H63","v":-8169.311510516347},-9313.0151219886357,-10616.837239067045,-12103.194452536431,-13797.641675891531,0,0,0,0,0,0,0,0,0,0,0,0,0,0,0]
[null,"Desembolsos",null,null,null,null,{"$f":"'CAPEX Vehículo'!C9","v":54000}]
[null,"Amortizaciones",null,null,null,null,{"$f":"'CAPEX Vehículo'!C10","v":0},{"$f":"'CAPEX Vehículo'!D10","v":8169.311510516347},{"$f":"'CAPEX Vehículo'!E10","v":9313.0151219886357},{"$f":"'CAPEX Vehículo'!F10","v":10616.837239067045},{"$f":"'CAPEX Vehículo'!G10","v":12103.194452536431},{"$f":"'CAPEX Vehículo'!H10","v":13797.641675891531},{"$f":"'CAPEX Vehículo'!I10","v":0},{"$f":"'CAPEX Vehículo'!J10","v":0},{"$f":"'CAPEX Vehículo'!K10","v":0},{"$f":"'CAPEX Vehículo'!L10","v":0},{"$f":"'CAPEX Vehículo'!M10","v":0},{"$f":"'CAPEX Vehículo'!N10","v":0},{"$f":"'CAPEX Vehículo'!O10","v":0},{"$f":"'CAPEX Vehículo'!P10","v":0},{"$f":"'CAPEX Vehículo'!Q10","v":0},{"$f":"'CAPEX Vehículo'!R10","v":0},{"$f":"'CAPEX Vehículo'!S10","v":0},{"$f":"'CAPEX Vehículo'!T10","v":0},{"$f":"'CAPEX Vehículo'!U10","v":0},{"$f":"'CAPEX Vehículo'!V10","v":0},{"$f":"'CAPEX Vehículo'!W10","v":0}]
[]
[null,"FCFE",null,null,{"$f":"+SUM(H65:AA65)","v":105963.08550310323},null,{"$f":"G59+G61-G60","v":-36000},{"$f":"H59+H61-H60","v":4621.40228970919},-1755.5494977779476,2622.3213505294375,-7012.3427148358924,5009.3828061176891,9242.4473068502975,10594.864693906227,17152.196917225316,10812.560826301265,18581.629853477411,8484.6965747064951,27609.47509689373,-2.2919266484677796E-12,-2.2919266484677796E-12,-2.2919266484677796E-12,-2.2919266484677796E-12,-2.2919266484677796E-12,-2.2919266484677796E-12,-2.2919266484677796E-12,-2.2919266484677796E-12]
[]
[null,"(+) Equity",null,null,{"$f":"SUM(G67:AA67)","v":44767.892212613835},null,{"$f":"IF(G65<0,-G65,0)","v":36000},{"$f":"IF(H65<0,-H65,0)","v":0},1755.5494977779476,0,7012.3427148358924,0,0,0,0,0,0,0,0,2.2919266484677796E-12,2.2919266484677796E-12,2.2919266484677796E-12,2.2919266484677796E-12,2.2919266484677796E-12,2.2919266484677796E-12,2.2919266484677796E-12,2.2919266484677796E-12]
[null,"(-) Dividendos",null,null,{"$f":"SUM(G68:AA68)","v":114730.97771571706},null,{"$f":"IF(G65>0,G65,0)","v":0},{"$f":"IF(H65>0,H65,0)","v":4621.40228970919},0,2622.3213505294375,0,5009.3828061176891,9242.4473068502975,10594.864693906227,17152.196917225316,10812.560826301265,18581.629853477411,8484.6965747064951,27609.47509689373,0,0,0,0,0,0,0,0]
[null,"Cambio neto en caja",null,null,{"$f":"+SUM(H69:AA69)","v":0},null,{"$f":"G65+G67-G68","v":0},{"$f":"H65+H67-H68","v":0},0,0,0,0,0,0,0,0,0,0,0,0,0,0,0,0,0,0,0]
[]
[null,{"$f":"'FO con SITPQ'!B75","v":"Gastos del ente Gestor"},null,null,{"$f":"SUM(H71:AA71)","v":0},null,null,{"$f":"IF(H23=0,0,'OPEX Personal Indirecto'!D$13)","v":0},{"$f":"IF(I23=0,0,'OPEX Personal Indirecto'!E$13)","v":0},{"$f":"IF(J23=0,0,'OPEX Personal Indirecto'!F$13)","v":0},{"$f":"IF(K23=0,0,'OPEX Personal Indirecto'!G$13)","v":0},{"$f":"IF(L23=0,0,'OPEX Personal Indirecto'!H$13)","v":0},{"$f":"IF(M23=0,0,'OPEX Personal Indirecto'!I$13)","v":0},{"$f":"IF(N23=0,0,'OPEX Personal Indirecto'!J$13)","v":0},{"$f":"IF(O23=0,0,'OPEX Personal Indirecto'!K$13)","v":0},{"$f":"IF(P23=0,0,'OPEX Personal Indirecto'!L$13)","v":0},{"$f":"IF(Q23=0,0,'OPEX Personal Indirecto'!M$13)","v":0},{"$f":"IF(R23=0,0,'OPEX Personal Indirecto'!N$13)","v":0},{"$f":"IF(S23=0,0,'OPEX Personal Indirecto'!O$13)","v":0},{"$f":"IF(T23=0,0,'OPEX Personal Indirecto'!P$13)","v":0},{"$f":"IF(U23=0,0,'OPEX Personal Indirecto'!Q$13)","v":0},{"$f":"IF(V23=0,0,'OPEX Personal Indirecto'!R$13)","v":0},{"$f":"IF(W23=0,0,'OPEX Personal Indirecto'!S$13)","v":0},{"$f":"IF(X23=0,0,'OPEX Personal Indirecto'!T$13)","v":0},{"$f":"IF(Y23=0,0,'OPEX Personal Indirecto'!U$13)","v":0},{"$f":"IF(Z23=0,0,'OPEX Personal Indirecto'!V$13)","v":0},{"$f":"IF(AA23=0,0,'OPEX Personal Indirecto'!W$13)","v":0}]
[]
[null,"Costo del Proyecto",null,null,{"$f":"+SUM(G73:Z73)","v":-1004943.532750169},null,{"$f":"-G23-G71","v":0},-77781.812172370512,-79026.321167128437,-81081.005517473779,-81431.275461309284,-81651.139905054821,-82198.202542418672,-83793.772401520211,-85247.921672110038,-86489.186356605496,-87646.474383163193,-88790.55148633424,-89805.86968468038,0,0,0,0,0,0,0,0]
[]
[]
[]
[]
[null,null,null,null,null,null,{"$f":"G65","v":-36000},{"$f":"H65/(1+rentabilidadobj)^COUNTA($H$6:H$6)","v":4089.7365395656552},{"$f":"I65/(1+rentabilidadobj)^COUNTA($H$6:I$6)","v":-1374.8527666833331},{"$f":"J65/(1+rentabilidadobj)^COUNTA($H$6:J$6)","v":1817.400237528693},{"$f":"K65/(1+rentabilidadobj)^COUNTA($H$6:K$6)","v":-4300.8011119148969},{"$f":"L65/(1+rentabilidadobj)^COUNTA($H$6:L$6)","v":2718.8922912451753},{"$f":"M65/(1+rentabilidadobj)^COUNTA($H$6:M$6)","v":4439.3186803047292},{"$f":"N65/(1+rentabilidadobj)^COUNTA($H$6:N$6)","v":4503.4600071950526},{"$f":"O65/(1+rentabilidadobj)^COUNTA($H$6:O$6)","v":6451.9680206162702},{"$f":"P65/(1+rentabilidadobj)^COUNTA($H$6:P$6)","v":3599.3375091016787},{"$f":"Q65/(1+rentabilidadobj)^COUNTA($H$6:Q$6)","v":5473.9316440270104},{"$f":"R65/(1+rentabilidadobj)^COUNTA($H$6:R$6)","v":2211.9404852160906},{"$f":"S65/(1+rentabilidadobj)^COUNTA($H$6:S$6)","v":6369.6684637977332},{"$f":"T65/(1+rentabilidadobj)^COUNTA($H$6:T$6)","v":-4.6793006389116516E-13},{"$f":"U65/(1+rentabilidadobj)^COUNTA($H$6:U$6)","v":-4.140974016735976E-13},{"$f":"V65/(1+rentabilidadobj)^COUNTA($H$6:V$6)","v":-3.6645787758725452E-13},{"$f":"W65/(1+rentabilidadobj)^COUNTA($H$6:W$6)","v":-3.2429900671438454E-13},{"$f":"X65/(1+rentabilidadobj)^COUNTA($H$6:X$6)","v":-2.8699027142865894E-13},{"$f":"Y65/(1+rentabilidadobj)^COUNTA($H$6:Y$6)","v":-2.5397369152978669E-13},{"$f":"Z65/(1+rentabilidadobj)^COUNTA($H$6:Z$6)","v":-2.247554792298998E-13},{"$f":"AA65/(1+rentabilidadobj)^COUNTA($H$6:AA$6)","v":-1.9889865418575202E-13}]
[null,null,null,null,null,null,null,{"$f":"SUM(G78:AA78)","v":-1.4441857592281726E-10}]
[]
[null,{"$f":"'Sup fijo'!B18","v":"Intracantonal Urbano"}]
[null,null,{"$f":"C92/0.893481776513347","v":0.30646009497747567}]
[null,"Supuestos"]
[null,"Demanda Anual",null,null,{"$f":"+SUM(H84:AA84)","v":6025535.9999999981},null,null,{"$f":"'Sup fijo'!E38","v":301276.80000000005},{"$f":"'Sup fijo'!F38","v":301276.80000000005},{"$f":"'Sup fijo'!G38","v":301276.80000000005},{"$f":"'Sup fijo'!H38","v":301276.80000000005},{"$f":"'Sup fijo'!I38","v":301276.80000000005},{"$f":"'Sup fijo'!J38","v":301276.80000000005},{"$f":"'Sup fijo'!K38","v":301276.80000000005},{"$f":"'Sup fijo'!L38","v":301276.80000000005},{"$f":"'Sup fijo'!M38","v":301276.80000000005},{"$f":"'Sup fijo'!N38","v":301276.80000000005},{"$f":"'Sup fijo'!O38","v":301276.80000000005},{"$f":"'Sup fijo'!P38","v":301276.80000000005},{"$f":"'Sup fijo'!Q38","v":301276.80000000005},{"$f":"'Sup fijo'!R38","v":301276.80000000005},{"$f":"'Sup fijo'!S38","v":301276.80000000005},{"$f":"'Sup fijo'!T38","v":301276.80000000005},{"$f":"'Sup fijo'!U38","v":301276.80000000005},{"$f":"'Sup fijo'!V38","v":301276.80000000005},{"$f":"'Sup fijo'!W38","v":301276.80000000005},{"$f":"'Sup fijo'!X38","v":301276.80000000005}]
[null,"kilómetros Anual",null,null,{"$f":"+SUM(H85:AA85)","v":1276520.0000000002},null,null,{"$f":"'Sup fijo'!E21","v":63826.000000000007},{"$f":"'Sup fijo'!F21","v":63826.000000000007},{"$f":"'Sup fijo'!G21","v":63826.000000000007},{"$f":"'Sup fijo'!H21","v":63826.000000000007},{"$f":"'Sup fijo'!I21","v":63826.000000000007},{"$f":"'Sup fijo'!J21","v":63826.000000000007},{"$f":"'Sup fijo'!K21","v":63826.000000000007},{"$f":"'Sup fijo'!L21","v":63826.000000000007},{"$f":"'Sup fijo'!M21","v":63826.000000000007},{"$f":"'Sup fijo'!N21","v":63826.000000000007},{"$f":"'Sup fijo'!O21","v":63826.000000000007},{"$f":"'Sup fijo'!P21","v":63826.000000000007},{"$f":"'Sup fijo'!Q21","v":63826.000000000007},{"$f":"'Sup fijo'!R21","v":63826.000000000007},{"$f":"'Sup fijo'!S21","v":63826.000000000007},{"$f":"'Sup fijo'!T21","v":63826.000000000007},{"$f":"'Sup fijo'!U21","v":63826.000000000007},{"$f":"'Sup fijo'!V21","v":63826.000000000007},{"$f":"'Sup fijo'!W21","v":63826.000000000007},{"$f":"'Sup fijo'!X21","v":63826.000000000007}]
[null,"Tir accionista ",{"$f":"IFERROR(+IRR(G138:AA138),0)","v":0.12999999999986689}]
[]
[null,"Aportes capital ",{"$f":"E140","v":57245.826360159954}]
[]
[null,"Resultados Tarifas"]
[null,"Tarifa técnica por pasajero",{"$f":"SUM(C92:C92)","v":0.273816510090924},null,null,null,null,{"$f":"SUM(H92:H92)","v":0.28038810633310618},0.28487431603443586,0.29228104825133122,0.29354370237977701,0.29433627037620241,0.29630832338772295,0.30206003833008288,0.3073019599171346,0.31177647451924451,0.31594826981670293,0.32007244233850418,0.32373246437976155,0.3277222574599381,0.332155486482625,0.33693215521741443,0.34156565222937185,0.34610908400475338,0.35065848853975146,0.35525733475153265,0.35991922848347352]
[null,"Tarifa operador privado",0.273816510090924,null,null,null,null,{"$f":"$C92*(1+'Sup Generales'!C$8)","v":0.28038810633310618},{"$f":"$C92*(1+'Sup Generales'!D$8)","v":0.28487431603443586},{"$f":"$C92*(1+'Sup Generales'!E$8)","v":0.29228104825133122},{"$f":"$C92*(1+'Sup Generales'!F$8)","v":0.29354370237977701},{"$f":"$C92*(1+'Sup Generales'!G$8)","v":0.29433627037620241},{"$f":"$C92*(1+'Sup Generales'!H$8)","v":0.29630832338772295},{"$f":"$C92*(1+'Sup Generales'!I$8)","v":0.30206003833008288},{"$f":"$C92*(1+'Sup Generales'!J$8)","v":0.3073019599171346},{"$f":"$C92*(1+'Sup Generales'!K$8)","v":0.31177647451924451},{"$f":"$C92*(1+'Sup Generales'!L$8)","v":0.31594826981670293},{"$f":"$C92*(1+'Sup Generales'!M$8)","v":0.32007244233850418},{"$f":"$C92*(1+'Sup Generales'!N$8)","v":0.32373246437976155},{"$f":"$C92*(1+'Sup Generales'!O$8)","v":0.3277222574599381},{"$f":"$C92*(1+'Sup Generales'!P$8)","v":0.332155486482625},{"$f":"$C92*(1+'Sup Generales'!Q$8)","v":0.33693215521741443},{"$f":"$C92*(1+'Sup Generales'!R$8)","v":0.34156565222937185},{"$f":"$C92*(1+'Sup Generales'!S$8)","v":0.34610908400475338},{"$f":"$C92*(1+'Sup Generales'!T$8)","v":0.35065848853975146},{"$f":"$C92*(1+'Sup Generales'!U$8)","v":0.35525733475153265},{"$f":"$C92*(1+'Sup Generales'!V$8)","v":0.35991922848347352}]
[null,"Costo ente gestor",{"$f":"H93","v":0},null,null,null,null,{"$f":"H144/H84","v":0},{"$f":"I144/I84","v":0},0,0,0,0,0,0,0,0,0,0,0,0,0,0,0,0,0,0]
[]
[null,"P&G",null,null,"Total "]
[null,"(+) Ingresos ",null,null,{"$f":"+SUM(H96:AA96)","v":1091412.3903968325},null,null,{"$f":"+H84*H92*IF(H$6>'Sup fijo'!$H$51,0,1)","v":84474.431434097976},{"$f":"+I84*I92*IF(I$6>'Sup fijo'!$H$51,0,1)","v":85826.022337043541},{"$f":"+J84*J92*IF(J$6>'Sup fijo'!$H$51,0,1)","v":88057.498917806675},{"$f":"+K84*K92*IF(K$6>'Sup fijo'!$H$51,0,1)","v":88437.907313131611},{"$f":"+L84*L92*IF(L$6>'Sup fijo'!$H$51,0,1)","v":88676.689662877077},{"$f":"+M84*M92*IF(M$6>'Sup fijo'!$H$51,0,1)","v":89270.82348361834},{"$f":"+N84*N92*IF(N$6>'Sup fijo'!$H$51,0,1)","v":91003.681755964732},{"$f":"+O84*O92*IF(O$6>'Sup fijo'!$H$51,0,1)","v":92582.951117562596},{"$f":"+P84*P92*IF(P$6>'Sup fijo'!$H$51,0,1)","v":93931.018558439537},{"$f":"+Q84*Q92*IF(Q$6>'Sup fijo'!$H$51,0,1)","v":95187.883695912868},{"$f":"+R84*R92*IF(R$6>'Sup fijo'!$H$51,0,1)","v":96430.401195929066},{"$f":"+S84*S92*IF(S$6>'Sup fijo'!$H$51,0,1)","v":97533.080924448557},{"$f":"+T84*T92*IF(T$6>'Sup fijo'!$H$51,0,1)","v":0},{"$f":"+U84*U92*IF(U$6>'Sup fijo'!$H$51,0,1)","v":0},{"$f":"+V84*V92*IF(V$6>'Sup fijo'!$H$51,0,1)","v":0},{"$f":"+W84*W92*IF(W$6>'Sup fijo'!$H$51,0,1)","v":0},{"$f":"+X84*X92*IF(X$6>'Sup fijo'!$H$51,0,1)","v":0},{"$f":"+Y84*Y92*IF(Y$6>'Sup fijo'!$H$51,0,1)","v":0},{"$f":"+Z84*Z92*IF(Z$6>'Sup fijo'!$H$51,0,1)","v":0},{"$f":"+AA84*AA92*IF(AA$6>'Sup fijo'!$H$51,0,1)","v":0}]
[]
[null,"(-) Costo conductores ",null,null,{"$f":"+SUM(H98:AA98)","v":325529.13308472914},null,null,{"$f":"+'OPEX Personal Directo'!C15","v":24077.204571428578},{"$f":"+'OPEX Personal Directo'!D15","v":24658.139363328002},{"$f":"+'OPEX Personal Directo'!E15","v":25501.644994668735},{"$f":"+'OPEX Personal Directo'!F15","v":25816.706597854063},{"$f":"+'OPEX Personal Directo'!G15","v":26093.502999313612},{"$f":"+'OPEX Personal Directo'!H15","v":26478.476105164289},{"$f":"+'OPEX Personal Directo'!I15","v":27208.396075856344},{"$f":"+'OPEX Personal Directo'!J15","v":27902.012574814184},{"$f":"+'OPEX Personal Directo'!K15","v":28534.750132515506},{"$f":"+'OPEX Personal Directo'!L15","v":29147.898306007155},{"$f":"+'OPEX Personal Directo'!M15","v":29764.602025807988},{"$f":"+'OPEX Personal Directo'!N15","v":30345.7993379707},{"$f":"+'OPEX Personal Directo'!O15","v":0},{"$f":"+'OPEX Personal Directo'!P15","v":0},{"$f":"+'OPEX Personal Directo'!Q15","v":0},{"$f":"+'OPEX Personal Directo'!R15","v":0},{"$f":"+'OPEX Personal Directo'!S15","v":0},{"$f":"+'OPEX Personal Directo'!T15","v":0},{"$f":"+'OPEX Personal Directo'!U15","v":0},{"$f":"+'OPEX Personal Directo'!V15","v":0}]
[null,"(-) Costo combustible ",null,null,{"$f":"+SUM(H99:AA99)","v":119580.19495844943},null,null,{"$f":"IF(H96=0,0,'OPEX Combustible '!H31)","v":9102.9916561246537},{"$f":"IF(I96=0,0,'OPEX Combustible '!I31)","v":9339.6694391838937},{"$f":"IF(J96=0,0,'OPEX Combustible '!J31)","v":9380.0168111611692},{"$f":"IF(K96=0,0,'OPEX Combustible '!K31)","v":9452.3695708340601},{"$f":"IF(L96=0,0,'OPEX Combustible '!L31)","v":9563.27894919344},{"$f":"IF(M96=0,0,'OPEX Combustible '!M31)","v":9797.6587184344517},{"$f":"IF(N96=0,0,'OPEX Combustible '!N31)","v":10017.524801150175},{"$f":"IF(O96=0,0,'OPEX Combustible '!O31)","v":10214.203350957017},{"$f":"IF(P96=0,0,'OPEX Combustible '!P31)","v":10402.631182078168},{"$f":"IF(Q96=0,0,'OPEX Combustible '!Q31)","v":10591.112111428025},{"$f":"IF(R96=0,0,'OPEX Combustible '!R31)","v":10765.782375080096},{"$f":"IF(S96=0,0,'OPEX Combustible '!S31)","v":10952.955992824278},{"$f":"IF(T96=0,0,'OPEX Combustible '!T31)","v":0},{"$f":"IF(U96=0,0,'OPEX Combustible '!U31)","v":0},{"$f":"IF(V96=0,0,'OPEX Combustible '!V31)","v":0},{"$f":"IF(W96=0,0,'OPEX Combustible '!W31)","v":0},{"$f":"IF(X96=0,0,'OPEX Combustible '!X31)","v":0},{"$f":"IF(Y96=0,0,'OPEX Combustible '!Y31)","v":0},{"$f":"IF(Z96=0,0,'OPEX Combustible '!Z31)","v":0},{"$f":"IF(AA96=0,0,'OPEX Combustible '!AA31)","v":0}]
[null,"(-) Costo impuestos + seguros ",null,null,49217.632634184505,null,null,{"$f":"+'OPEX impuestos'!C45+'OPEX impuestos'!C95+'OPEX impuestos'!C100+'OPEX Otros Gastos'!C21","v":4206.6690299733327},{"$f":"+'OPEX impuestos'!D45+'OPEX impuestos'!D95+'OPEX impuestos'!D100+'OPEX Otros Gastos'!D21","v":4590.0396802696532},{"$f":"+'OPEX impuestos'!E45+'OPEX impuestos'!E95+'OPEX impuestos'!E100+'OPEX Otros Gastos'!E21","v":4557.6260265978262},{"$f":"+'OPEX impuestos'!F45+'OPEX impuestos'!F95+'OPEX impuestos'!F100+'OPEX Otros Gastos'!F21","v":4900.1638920711684},{"$f":"+'OPEX impuestos'!G45+'OPEX impuestos'!G95+'OPEX impuestos'!G100+'OPEX Otros Gastos'!G21","v":3300.673108241047},{"$f":"+'OPEX impuestos'!H45+'OPEX impuestos'!H95+'OPEX impuestos'!H100+'OPEX Otros Gastos'!H21","v":4284.3654955356824},{"$f":"+'OPEX impuestos'!I45+'OPEX impuestos'!I95+'OPEX impuestos'!I100+'OPEX Otros Gastos'!I21","v":2832.3368203129376},{"$f":"+'OPEX impuestos'!J45+'OPEX impuestos'!J95+'OPEX impuestos'!J100+'OPEX Otros Gastos'!J21","v":5247.4564060660432},{"$f":"+'OPEX impuestos'!K45+'OPEX impuestos'!K95+'OPEX impuestos'!K100+'OPEX Otros Gastos'!K21","v":2990.3383474508173},{"$f":"+'OPEX impuestos'!L45+'OPEX impuestos'!L95+'OPEX impuestos'!L100+'OPEX Otros Gastos'!L21","v":4191.6156898400541},{"$f":"+'OPEX impuestos'!M45+'OPEX impuestos'!M95+'OPEX impuestos'!M100+'OPEX Otros Gastos'!M21","v":3435.8642845612349},{"$f":"+'OPEX impuestos'!N45+'OPEX impuestos'!N95+'OPEX impuestos'!N100+'OPEX Otros Gastos'!N21","v":4680.4838532647136},{"$f":"+'OPEX impuestos'!O45+'OPEX impuestos'!O95+'OPEX impuestos'!O100+'OPEX Otros Gastos'!O21","v":0},{"$f":"+'OPEX impuestos'!P45+'OPEX impuestos'!P95+'OPEX impuestos'!P100+'OPEX Otros Gastos'!P21","v":0},{"$f":"+'OPEX impuestos'!Q45+'OPEX impuestos'!Q95+'OPEX impuestos'!Q100+'OPEX Otros Gastos'!Q21","v":0},{"$f":"+'OPEX impuestos'!R45+'OPEX impuestos'!R95+'OPEX impuestos'!R100+'OPEX Otros Gastos'!R21","v":0},{"$f":"+'OPEX impuestos'!S45+'OPEX impuestos'!S95+'OPEX impuestos'!S100+'OPEX Otros Gastos'!S21","v":0},{"$f":"+'OPEX impuestos'!T45+'OPEX impuestos'!T95+'OPEX impuestos'!T100+'OPEX Otros Gastos'!T21","v":0},{"$f":"+'OPEX impuestos'!U45+'OPEX impuestos'!U95+'OPEX impuestos'!U100+'OPEX Otros Gastos'!U21","v":0},{"$f":"+'OPEX impuestos'!V45+'OPEX impuestos'!V95+'OPEX impuestos'!V100+'OPEX Otros Gastos'!V21","v":0}]
[null,"(-) Costo Mantenimiento ",null,null,208761.61974819767,null,null,{"$f":"+'OPEX Mtto'!C25","v":11064.645885561906},{"$f":"+'OPEX Mtto'!D25","v":15020.477990112306},{"$f":"+'OPEX Mtto'!E25","v":16589.855699233292},{"$f":"+'OPEX Mtto'!F25","v":20323.995745010776},{"$f":"+'OPEX Mtto'!G25","v":11979.669252501086},{"$f":"+'OPEX Mtto'!H25","v":20238.953964203818},{"$f":"+'OPEX Mtto'!I25","v":12196.392443938828},{"$f":"+'OPEX Mtto'!J25","v":26253.661515093638},{"$f":"+'OPEX Mtto'!K25","v":13615.200363465163},{"$f":"+'OPEX Mtto'!L25","v":20740.091566568793},{"$f":"+'OPEX Mtto'!M25","v":16682.133288965146},{"$f":"+'OPEX Mtto'!N25","v":24056.542033542908},{"$f":"+'OPEX Mtto'!O25","v":0},{"$f":"+'OPEX Mtto'!P25","v":0},{"$f":"+'OPEX Mtto'!Q25","v":0},{"$f":"+'OPEX Mtto'!R25","v":0},{"$f":"+'OPEX Mtto'!S25","v":0},{"$f":"+'OPEX Mtto'!T25","v":0},{"$f":"+'OPEX Mtto'!U25","v":0},{"$f":"+'OPEX Mtto'!V25","v":0}]
[null,"(-) Costo personal ",null,null,126407.90616607876,null,null,{"$f":"'OPEX Personal Indirecto'!D$8*IF(H$6>'Sup fijo'!$H$52,0,1)","v":9349.5441939890716},{"$f":"'OPEX Personal Indirecto'!E$8*IF(I$6>'Sup fijo'!$H$52,0,1)","v":9575.1299963016409},{"$f":"'OPEX Personal Indirecto'!F$8*IF(J$6>'Sup fijo'!$H$52,0,1)","v":9902.6760432151295},{"$f":"'OPEX Personal Indirecto'!G$8*IF(K$6>'Sup fijo'!$H$52,0,1)","v":10025.019248551593},{"$f":"'OPEX Personal Indirecto'!H$8*IF(L$6>'Sup fijo'!$H$52,0,1)","v":10132.503494926863},{"$f":"'OPEX Personal Indirecto'!I$8*IF(M$6>'Sup fijo'!$H$52,0,1)","v":10281.994398489616},{"$f":"'OPEX Personal Indirecto'!J$8*IF(N$6>'Sup fijo'!$H$52,0,1)","v":10565.433408355357},{"$f":"'OPEX Personal Indirecto'!K$8*IF(O$6>'Sup fijo'!$H$52,0,1)","v":10834.775228808285},{"$f":"'OPEX Personal Indirecto'!L$8*IF(P$6>'Sup fijo'!$H$52,0,1)","v":11080.476831806887},{"$f":"'OPEX Personal Indirecto'!M$8*IF(Q$6>'Sup fijo'!$H$52,0,1)","v":11318.571579414205},{"$f":"'OPEX Personal Indirecto'!N$8*IF(R$6>'Sup fijo'!$H$52,0,1)","v":11558.046999651217},{"$f":"'OPEX Personal Indirecto'!O$8*IF(S$6>'Sup fijo'!$H$52,0,1)","v":11783.734742568889},{"$f":"'OPEX Personal Indirecto'!P$8*IF(T$6>'Sup fijo'!$H$52,0,1)","v":0},{"$f":"'OPEX Personal Indirecto'!Q$8*IF(U$6>'Sup fijo'!$H$52,0,1)","v":0},{"$f":"'OPEX Personal Indirecto'!R$8*IF(V$6>'Sup fijo'!$H$52,0,1)","v":0},{"$f":"'OPEX Personal Indirecto'!S$8*IF(W$6>'Sup fijo'!$H$52,0,1)","v":0},{"$f":"'OPEX Personal Indirecto'!T$8*IF(X$6>'Sup fijo'!$H$52,0,1)","v":0},{"$f":"'OPEX Personal Indirecto'!U$8*IF(Y$6>'Sup fijo'!$H$52,0,1)","v":0},{"$f":"'OPEX Personal Indirecto'!V$8*IF(Z$6>'Sup fijo'!$H$52,0,1)","v":0},{"$f":"'OPEX Personal Indirecto'!W$8*IF(AA$6>'Sup fijo'!$H$52,0,1)","v":0}]
[null,"(-) Administración y otros ",null,null,29822.527298938021,null,null,{"$f":"'OPEX Otros Gastos'!C$37","v":2308.2393600000005},{"$f":"'OPEX Otros Gastos'!D$37*IF(I$6>'Sup fijo'!$H$52,0,1)","v":2345.1711897599994},{"$f":"'OPEX Otros Gastos'!E$37*IF(J$6>'Sup fijo'!$H$52,0,1)","v":2406.14564069376},{"$f":"'OPEX Otros Gastos'!F$37*IF(K$6>'Sup fijo'!$H$52,0,1)","v":2416.5401898615573},{"$f":"'OPEX Otros Gastos'!G$37*IF(L$6>'Sup fijo'!$H$52,0,1)","v":2423.0648483741834},{"$f":"'OPEX Otros Gastos'!H$37*IF(M$6>'Sup fijo'!$H$52,0,1)","v":2439.2993828582903},{"$f":"'OPEX Otros Gastos'!I$37*IF(N$6>'Sup fijo'!$H$52,0,1)","v":2486.6492330037981},{"$f":"'OPEX Otros Gastos'!J$37*IF(O$6>'Sup fijo'!$H$52,0,1)","v":2529.8023106699811},{"$f":"'OPEX Otros Gastos'!K$37*IF(P$6>'Sup fijo'!$H$52,0,1)","v":2566.6378628499824},{"$f":"'OPEX Otros Gastos'!L$37*IF(Q$6>'Sup fijo'!$H$52,0,1)","v":2600.9813385180137},{"$f":"'OPEX Otros Gastos'!M$37*IF(R$6>'Sup fijo'!$H$52,0,1)","v":2634.9327691501771},{"$f":"'OPEX Otros Gastos'!N$37*IF(S$6>'Sup fijo'!$H$52,0,1)","v":2665.0631731982762},{"$f":"'OPEX Otros Gastos'!O$37*IF(T$6>'Sup fijo'!$H$52,0,1)","v":0},{"$f":"'OPEX Otros Gastos'!P$37*IF(U$6>'Sup fijo'!$H$52,0,1)","v":0},{"$f":"'OPEX Otros Gastos'!Q$37*IF(V$6>'Sup fijo'!$H$52,0,1)","v":0},{"$f":"'OPEX Otros Gastos'!R$37*IF(W$6>'Sup fijo'!$H$52,0,1)","v":0},{"$f":"'OPEX Otros Gastos'!S$37*IF(X$6>'Sup fijo'!$H$52,0,1)","v":0},{"$f":"'OPEX Otros Gastos'!T$37*IF(Y$6>'Sup fijo'!$H$52,0,1)","v":0},{"$f":"'OPEX Otros Gastos'!U$37*IF(Z$6>'Sup fijo'!$H$52,0,1)","v":0},{"$f":"'OPEX Otros Gastos'!V$37*IF(AA$6>'Sup fijo'!$H$52,0,1)","v":0}]
[null,"Total OPEX",null,null,859319.01389057736,null,null,{"$f":"+SUM(H98:H103)","v":60109.294697077537},65528.627658955491,68337.96521556993,72934.795244183217,63492.692652550235,73520.748064686151,65306.73278261743,82981.911386409149,69190.034720166514,78590.270591776251,74841.361743215864,84484.579133369771,0,0,0,0,0,0,0,0]
[]
[null,"EBITDA",null,null,{"$f":"+SUM(H106:AA106)","v":232093.37650625507},null,null,{"$f":"+H96-H104","v":24365.136737020439},20297.394678088051,19719.533702236746,15503.112068948394,25183.997010326842,15750.075418932189,25696.948973347302,9601.0397311534471,24740.983838273023,16597.613104136617,21589.039452713201,13048.501791078786,0,0,0,0,0,0,0,0]
[]
[null,"(-) Depreciación",null,null,{"$f":"+SUM(H108:AA108)","v":97599.999999999985},null,null,{"$f":"'CAPEX Vehículo'!D26","v":8133.333333333333},{"$f":"'CAPEX Vehículo'!E26","v":8133.333333333333},{"$f":"'CAPEX Vehículo'!F26","v":8133.333333333333},{"$f":"'CAPEX Vehículo'!G26","v":8133.333333333333},{"$f":"'CAPEX Vehículo'!H26","v":8133.333333333333},{"$f":"'CAPEX Vehículo'!I26","v":8133.333333333333},{"$f":"'CAPEX Vehículo'!J26","v":8133.333333333333},{"$f":"'CAPEX Vehículo'!K26","v":8133.333333333333},{"$f":"'CAPEX Vehículo'!L26","v":8133.333333333333},{"$f":"'CAPEX Vehículo'!M26","v":8133.333333333333},{"$f":"'CAPEX Vehículo'!N26","v":8133.333333333333},{"$f":"'CAPEX Vehículo'!O26","v":8133.333333333333},{"$f":"'CAPEX Vehículo'!P26","v":0},{"$f":"'CAPEX Vehículo'!Q26","v":0},{"$f":"'CAPEX Vehículo'!R26","v":0},{"$f":"'CAPEX Vehículo'!S26","v":0},{"$f":"'CAPEX Vehículo'!T26","v":0},{"$f":"'CAPEX Vehículo'!U26","v":0},{"$f":"'CAPEX Vehículo'!V26","v":0},{"$f":"'CAPEX Vehículo'!W26","v":0}]
[]
[null,"EBIT",null,null,{"$f":"+SUM(H110:AA110)","v":134493.37650625507},null,null,{"$f":"H106-H108","v":16231.803403687107},{"$f":"I106-I108","v":12164.061344754718},11586.200368903414,7369.7787356150611,17050.66367699351,7616.7420855988557,17563.61564001397,1467.706397820114,16607.650504939691,8464.2797708032849,13455.706119379869,4915.1684577454535,0,0,0,0,0,0,0,0]
[]
[null,"(-) Intereses",null,null,{"$f":"+SUM(H112:AA112)","v":33409.778015721931},null,null,{"$f":"'CAPEX Vehículo'!D23","v":10248.000000000002},{"$f":"'CAPEX Vehículo'!E23","v":8697.6462155597874},{"$f":"'CAPEX Vehículo'!F23","v":6930.2429012979446},{"$f":"'CAPEX Vehículo'!G23","v":4915.403123039443},{"$f":"'CAPEX Vehículo'!H23","v":2618.4857758247508},{"$f":"'CAPEX Vehículo'!I23","v":0},{"$f":"'CAPEX Vehículo'!J23","v":0},{"$f":"'CAPEX Vehículo'!K23","v":0},{"$f":"'CAPEX Vehículo'!L23","v":0},{"$f":"'CAPEX Vehículo'!M23","v":0},{"$f":"'CAPEX Vehículo'!N23","v":0},{"$f":"'CAPEX Vehículo'!O23","v":0},{"$f":"'CAPEX Vehículo'!P23","v":0},{"$f":"'CAPEX Vehículo'!Q23","v":0},{"$f":"'CAPEX Vehículo'!R23","v":0},{"$f":"'CAPEX Vehículo'!S23","v":0},{"$f":"'CAPEX Vehículo'!T23","v":0},{"$f":"'CAPEX Vehículo'!U23","v":0},{"$f":"'CAPEX Vehículo'!V23","v":0},{"$f":"'CAPEX Vehículo'!W23","v":0}]
[]
[null,"EBT",null,null,{"$f":"+SUM(H114:AA114)","v":101083.59849053313},null,null,{"$f":"+H110-H112","v":5983.8034036871049},{"$f":"+I110-I112","v":3466.4151291949311},4655.957467605469,2454.3756125756181,14432.177901168759,7616.7420855988557,17563.61564001397,1467.706397820114,16607.650504939691,8464.2797708032849,13455.706119379869,4915.1684577454535,0,0,0,0,0,0,0,0]
[]
[null,"Participación empleados ",null,null,{"$f":"+SUM(H116:AA116)","v":0},null,null,{"$f":"+IF(H114<0,0,H114*'Sup fijo'!$D$196)*IF('Sup fijo'!$D$200=\"No\",0,1)","v":0},{"$f":"+IF(I114<0,0,I114*'Sup fijo'!$D$196)*IF('Sup fijo'!$D$200=\"No\",0,1)","v":0},{"$f":"+IF(J114<0,0,J114*'Sup fijo'!$D$196)*IF('Sup fijo'!$D$200=\"No\",0,1)","v":0},{"$f":"+IF(K114<0,0,K114*'Sup fijo'!$D$196)*IF('Sup fijo'!$D$200=\"No\",0,1)","v":0},{"$f":"+IF(L114<0,0,L114*'Sup fijo'!$D$196)*IF('Sup fijo'!$D$200=\"No\",0,1)","v":0},{"$f":"+IF(M114<0,0,M114*'Sup fijo'!$D$196)*IF('Sup fijo'!$D$200=\"No\",0,1)","v":0},{"$f":"+IF(N114<0,0,N114*'Sup fijo'!$D$196)*IF('Sup fijo'!$D$200=\"No\",0,1)","v":0},{"$f":"+IF(O114<0,0,O114*'Sup fijo'!$D$196)*IF('Sup fijo'!$D$200=\"No\",0,1)","v":0},{"$f":"+IF(P114<0,0,P114*'Sup fijo'!$D$196)*IF('Sup fijo'!$D$200=\"No\",0,1)","v":0},{"$f":"+IF(Q114<0,0,Q114*'Sup fijo'!$D$196)*IF('Sup fijo'!$D$200=\"No\",0,1)","v":0},{"$f":"+IF(R114<0,0,R114*'Sup fijo'!$D$196)*IF('Sup fijo'!$D$200=\"No\",0,1)","v":0},{"$f":"+IF(S114<0,0,S114*'Sup fijo'!$D$196)*IF('Sup fijo'!$D$200=\"No\",0,1)","v":0},{"$f":"+IF(T114<0,0,T114*'Sup fijo'!$D$196)*IF('Sup fijo'!$D$200=\"No\",0,1)","v":0},{"$f":"+IF(U114<0,0,U114*'Sup fijo'!$D$196)*IF('Sup fijo'!$D$200=\"No\",0,1)","v":0},{"$f":"+IF(V114<0,0,V114*'Sup fijo'!$D$196)*IF('Sup fijo'!$D$200=\"No\",0,1)","v":0},{"$f":"+IF(W114<0,0,W114*'Sup fijo'!$D$196)*IF('Sup fijo'!$D$200=\"No\",0,1)","v":0},{"$f":"+IF(X114<0,0,X114*'Sup fijo'!$D$196)*IF('Sup fijo'!$D$200=\"No\",0,1)","v":0},{"$f":"+IF(Y114<0,0,Y114*'Sup fijo'!$D$196)*IF('Sup fijo'!$D$200=\"No\",0,1)","v":0},{"$f":"+IF(Z114<0,0,Z114*'Sup fijo'!$D$196)*IF('Sup fijo'!$D$200=\"No\",0,1)","v":0},{"$f":"+IF(AA114<0,0,AA114*'Sup fijo'!$D$196)*IF('Sup fijo'!$D$200=\"No\",0,1)","v":0}]
[null,"Impuesto renta ",null,null,{"$f":"+SUM(H117:AA117)","v":0},null,null,{"$f":"IF((+H114-H116)<0,0,(+H114-H116)*'Sup fijo'!$D$197)*IF('Sup fijo'!$D$200=\"No\",0,1)","v":0},{"$f":"IF((+I114-I116)<0,0,(+I114-I116)*'Sup fijo'!$D$197)*IF('Sup fijo'!$D$200=\"No\",0,1)","v":0},{"$f":"IF((+J114-J116)<0,0,(+J114-J116)*'Sup fijo'!$D$197)*IF('Sup fijo'!$D$200=\"No\",0,1)","v":0},{"$f":"IF((+K114-K116)<0,0,(+K114-K116)*'Sup fijo'!$D$197)*IF('Sup fijo'!$D$200=\"No\",0,1)","v":0},{"$f":"IF((+L114-L116)<0,0,(+L114-L116)*'Sup fijo'!$D$197)*IF('Sup fijo'!$D$200=\"No\",0,1)","v":0},{"$f":"IF((+M114-M116)<0,0,(+M114-M116)*'Sup fijo'!$D$197)*IF('Sup fijo'!$D$200=\"No\",0,1)","v":0},{"$f":"IF((+N114-N116)<0,0,(+N114-N116)*'Sup fijo'!$D$197)*IF('Sup fijo'!$D$200=\"No\",0,1)","v":0},{"$f":"IF((+O114-O116)<0,0,(+O114-O116)*'Sup fijo'!$D$197)*IF('Sup fijo'!$D$200=\"No\",0,1)","v":0},{"$f":"IF((+P114-P116)<0,0,(+P114-P116)*'Sup fijo'!$D$197)*IF('Sup fijo'!$D$200=\"No\",0,1)","v":0},{"$f":"IF((+Q114-Q116)<0,0,(+Q114-Q116)*'Sup fijo'!$D$197)*IF('Sup fijo'!$D$200=\"No\",0,1)","v":0},{"$f":"IF((+R114-R116)<0,0,(+R114-R116)*'Sup fijo'!$D$197)*IF('Sup fijo'!$D$200=\"No\",0,1)","v":0},{"$f":"IF((+S114-S116)<0,0,(+S114-S116)*'Sup fijo'!$D$197)*IF('Sup fijo'!$D$200=\"No\",0,1)","v":0},{"$f":"IF((+T114-T116)<0,0,(+T114-T116)*'Sup fijo'!$D$197)*IF('Sup fijo'!$D$200=\"No\",0,1)","v":0},{"$f":"IF((+U114-U116)<0,0,(+U114-U116)*'Sup fijo'!$D$197)*IF('Sup fijo'!$D$200=\"No\",0,1)","v":0},{"$f":"IF((+V114-V116)<0,0,(+V114-V116)*'Sup fijo'!$D$197)*IF('Sup fijo'!$D$200=\"No\",0,1)","v":0},{"$f":"IF((+W114-W116)<0,0,(+W114-W116)*'Sup fijo'!$D$197)*IF('Sup fijo'!$D$200=\"No\",0,1)","v":0},{"$f":"IF((+X114-X116)<0,0,(+X114-X116)*'Sup fijo'!$D$197)*IF('Sup fijo'!$D$200=\"No\",0,1)","v":0},{"$f":"IF((+Y114-Y116)<0,0,(+Y114-Y116)*'Sup fijo'!$D$197)*IF('Sup fijo'!$D$200=\"No\",0,1)","v":0},{"$f":"IF((+Z114-Z116)<0,0,(+Z114-Z116)*'Sup fijo'!$D$197)*IF('Sup fijo'!$D$200=\"No\",0,1)","v":0},{"$f":"IF((+AA114-AA116)<0,0,(+AA114-AA116)*'Sup fijo'!$D$197)*IF('Sup fijo'!$D$200=\"No\",0,1)","v":0}]
[]
[null,"Utilidad Neta",null,null,{"$f":"+SUM(H119:AA119)","v":101083.59849053313},null,null,{"$f":"+H114-H116-H117","v":5983.8034036871049},{"$f":"+I114-I116-I117","v":3466.4151291949311},4655.957467605469,2454.3756125756181,14432.177901168759,7616.7420855988557,17563.61564001397,1467.706397820114,16607.650504939691,8464.2797708032849,13455.706119379869,4915.1684577454535,0,0,0,0,0,0,0,0]
[]
[null,"FLUJO DE CAJA PROYECTO"]
[]
[null,"(+) Utilidad Neta",null,null,{"$f":"SUM(G123:AA123)","v":101083.59849053313},null,null,{"$f":"H119","v":5983.8034036871049},3466.4151291949311,4655.957467605469,2454.3756125756181,14432.177901168759,7616.7420855988557,17563.61564001397,1467.706397820114,16607.650504939691,8464.2797708032849,13455.706119379869,4915.1684577454535,0,0,0,0,0,0,0,0]
[null,"(+) NCC (Non Cash Charges)",null,null,{"$f":"SUM(G124:AA124)","v":97599.999999999985},null,null,{"$f":"H108","v":8133.333333333333},8133.333333333333,8133.333333333333,8133.333333333333,8133.333333333333,8133.333333333333,8133.333333333333,8133.333333333333,8133.333333333333,8133.333333333333,8133.333333333333,8133.333333333333,0,0,0,0,0,0,0,0]
[null,"(+) Int*(1-Impuestos)",null,null,{"$f":"SUM(G125:AA125)","v":18375.377908647064},null,null,{"$f":"H112*(1-SUM('Sup fijo'!$D$196:$D$197))","v":5636.4000000000015},{"$f":"I112*(1-SUM('Sup fijo'!$D$196:$D$197))","v":4783.7054185578836},{"$f":"J112*(1-SUM('Sup fijo'!$D$196:$D$197))","v":3811.6335957138699},{"$f":"K112*(1-SUM('Sup fijo'!$D$196:$D$197))","v":2703.471717671694},{"$f":"L112*(1-SUM('Sup fijo'!$D$196:$D$197))","v":1440.167176703613},{"$f":"M112*(1-SUM('Sup fijo'!$D$196:$D$197))","v":0},{"$f":"N112*(1-SUM('Sup fijo'!$D$196:$D$197))","v":0},{"$f":"O112*(1-SUM('Sup fijo'!$D$196:$D$197))","v":0},{"$f":"P112*(1-SUM('Sup fijo'!$D$196:$D$197))","v":0},{"$f":"Q112*(1-SUM('Sup fijo'!$D$196:$D$197))","v":0},{"$f":"R112*(1-SUM('Sup fijo'!$D$196:$D$197))","v":0},{"$f":"S112*(1-SUM('Sup fijo'!$D$196:$D$197))","v":0},{"$f":"T112*(1-SUM('Sup fijo'!$D$196:$D$197))","v":0},{"$f":"U112*(1-SUM('Sup fijo'!$D$196:$D$197))","v":0},{"$f":"V112*(1-SUM('Sup fijo'!$D$196:$D$197))","v":0},{"$f":"W112*(1-SUM('Sup fijo'!$D$196:$D$197))","v":0},{"$f":"X112*(1-SUM('Sup fijo'!$D$196:$D$197))","v":0},{"$f":"Y112*(1-SUM('Sup fijo'!$D$196:$D$197))","v":0},{"$f":"Z112*(1-SUM('Sup fijo'!$D$196:$D$197))","v":0},{"$f":"AA112*(1-SUM('Sup fijo'!$D$196:$D$197))","v":0}]
[null,"(-) CAPEX",null,null,{"$f":"SUM(G126:AA126)","v":97600},null,{"$f":"'CAPEX Vehículo'!C25","v":122000},{"$f":"IF(H$6='Sup fijo'!$H$52,-'Sup fijo'!$I$52*$G126,0)","v":0},{"$f":"IF(I$6='Sup fijo'!$H$52,-'Sup fijo'!$I$52*$G126,0)","v":0},{"$f":"IF(J$6='Sup fijo'!$H$52,-'Sup fijo'!$I$52*$G126,0)","v":0},{"$f":"IF(K$6='Sup fijo'!$H$52,-'Sup fijo'!$I$52*$G126,0)","v":0},{"$f":"IF(L$6='Sup fijo'!$H$52,-'Sup fijo'!$I$52*$G126,0)","v":0},{"$f":"IF(M$6='Sup fijo'!$H$52,-'Sup fijo'!$I$52*$G126,0)","v":0},{"$f":"IF(N$6='Sup fijo'!$H$52,-'Sup fijo'!$I$52*$G126,0)","v":0},{"$f":"IF(O$6='Sup fijo'!$H$52,-'Sup fijo'!$I$52*$G126,0)","v":0},{"$f":"IF(P$6='Sup fijo'!$H$52,-'Sup fijo'!$I$52*$G126,0)","v":0},{"$f":"IF(Q$6='Sup fijo'!$H$52,-'Sup fijo'!$I$52*$G126,0)","v":0},{"$f":"IF(R$6='Sup fijo'!$H$52,-'Sup fijo'!$I$52*$G126,0)","v":0},{"$f":"IF(S$6='Sup fijo'!$H$52,-'Sup fijo'!$I$52*$G126,0)","v":-24400},{"$f":"IF(T$6='Sup fijo'!$H$52,-'Sup fijo'!$I$52*$G126,0)","v":0},{"$f":"IF(U$6='Sup fijo'!$H$52,-'Sup fijo'!$I$52*$G126,0)","v":0},{"$f":"IF(V$6='Sup fijo'!$H$52,-'Sup fijo'!$I$52*$G126,0)","v":0},{"$f":"IF(W$6='Sup fijo'!$H$52,-'Sup fijo'!$I$52*$G126,0)","v":0},{"$f":"IF(X$6='Sup fijo'!$H$52,-'Sup fijo'!$I$52*$G126,0)","v":0},{"$f":"IF(Y$6='Sup fijo'!$H$52,-'Sup fijo'!$I$52*$G126,0)","v":0},{"$f":"IF(Z$6='Sup fijo'!$H$52,-'Sup fijo'!$I$52*$G126,0)","v":0},{"$f":"IF(AA$6='Sup fijo'!$H$52,-'Sup fijo'!$I$52*$G126,0)","v":0}]
[]
[null,"Flujo de caja libre",null,null,{"$f":"+SUM(H128:AA128)","v":241458.97639918019},null,{"$f":"G123+G124+G125-G126","v":-122000},{"$f":"H123+H124+H125-H126","v":19753.53673702044},16383.453881086147,16600.92439665267,13291.180663580646,24005.678411205707,15750.075418932189,25696.948973347302,9601.0397311534471,24740.983838273023,16597.613104136617,21589.039452713201,37448.501791078786,0,0,0,0,0,0,0,0]
[]
[null,"FLUJO DE CAJA DEL CONCESIONARIO"]
[]
[null,"(+) FCFF",null,null,{"$f":"SUM(G132:AA132)","v":119458.97639918017},null,{"$f":"G128","v":-122000},19753.53673702044,16383.453881086147,16600.92439665267,13291.180663580646,24005.678411205707,15750.075418932189,25696.948973347302,9601.0397311534471,24740.983838273023,16597.613104136617,21589.039452713201,37448.501791078786,0,0,0,0,0,0,0,0]
[null,"(-) Int*(1-Impuestos)",null,null,{"$f":"SUM(G133:AA133)","v":18375.377908647064},null,{"$f":"G125","v":0},5636.4000000000015,4783.7054185578836,3811.6335957138699,2703.471717671694,1440.167176703613,0,0,0,0,0,0,0,0,0,0,0,0,0,0,0]
[null,"(+) Endeudamiento Neto",null,null,{"$f":"SUM(G134:AA134)","v":1.8189894035458565E-11},null,{"$f":"G135-G136","v":73200},{"$f":"H135-H136","v":-11073.955603144383},-12624.309387584593,-14391.71270184644,-16406.55248010494,-18703.46982731963,0,0,0,0,0,0,0,0,0,0,0,0,0,0,0]
[null,"Desembolsos",null,null,null,null,{"$f":"'CAPEX Vehículo'!C20","v":73200}]
[null,"Amortizaciones",null,null,null,null,{"$f":"'CAPEX Vehículo'!C21","v":0},{"$f":"'CAPEX Vehículo'!D21","v":11073.955603144383},{"$f":"'CAPEX Vehículo'!E21","v":12624.309387584593},{"$f":"'CAPEX Vehículo'!F21","v":14391.71270184644},{"$f":"'CAPEX Vehículo'!G21","v":16406.55248010494},{"$f":"'CAPEX Vehículo'!H21","v":18703.46982731963},{"$f":"'CAPEX Vehículo'!I21","v":0},{"$f":"'CAPEX Vehículo'!J21","v":0},{"$f":"'CAPEX Vehículo'!K21","v":0},{"$f":"'CAPEX Vehículo'!L21","v":0},{"$f":"'CAPEX Vehículo'!M21","v":0},{"$f":"'CAPEX Vehículo'!N21","v":0},{"$f":"'CAPEX Vehículo'!O21","v":0},{"$f":"'CAPEX Vehículo'!P21","v":0},{"$f":"'CAPEX Vehículo'!Q21","v":0},{"$f":"'CAPEX Vehículo'!R21","v":0},{"$f":"'CAPEX Vehículo'!S21","v":0},{"$f":"'CAPEX Vehículo'!T21","v":0},{"$f":"'CAPEX Vehículo'!U21","v":0},{"$f":"'CAPEX Vehículo'!V21","v":0},{"$f":"'CAPEX Vehículo'!W21","v":0}]
[]
[null,"FCFE",null,null,{"$f":"+SUM(H138:AA138)","v":149883.59849053313},null,{"$f":"G132+G134-G133","v":-48800},{"$f":"H132+H134-H133","v":3043.1811338760563},-1024.5609250563302,-1602.4219009076396,-5818.8435341959876,3862.0414071824634,15750.075418932189,25696.948973347302,9601.0397311534471,24740.983838273023,16597.613104136617,21589.039452713201,37448.501791078786,0,0,0,0,0,0,0,0]
[]
[null,"(+) Equity",null,null,{"$f":"SUM(G140:AA140)","v":57245.826360159954},null,{"$f":"IF(G138<0,-G138,0)","v":48800},{"$f":"IF(H138<0,-H138,0)","v":0},1024.5609250563302,1602.4219009076396,5818.8435341959876,0,0,0,0,0,0,0,0,0,0,0,0,0,0,0,0]
[null,"(-) Dividendos",null,null,{"$f":"SUM(G141:AA141)","v":158329.42485069309},null,{"$f":"IF(G138>0,G138,0)","v":0},{"$f":"IF(H138>0,H138,0)","v":3043.1811338760563},0,0,0,3862.0414071824634,15750.075418932189,25696.948973347302,9601.0397311534471,24740.983838273023,16597.613104136617,21589.039452713201,37448.501791078786,0,0,0,0,0,0,0,0]
[null,"Cambio neto en caja",null,null,{"$f":"+SUM(H142:AA142)","v":0},null,{"$f":"G138+G140-G141","v":0},{"$f":"H138+H140-H141","v":0},0,0,0,0,0,0,0,0,0,0,0,0,0,0,0,0,0,0,0]
[]
[null,{"$f":"B71","v":"Gastos del ente Gestor"},null,null,{"$f":"SUM(H144:AA144)","v":0},null,null,{"$f":"IF(H96=0,0,'OPEX Personal Indirecto'!D$13)","v":0},{"$f":"IF(I96=0,0,'OPEX Personal Indirecto'!E$13)","v":0},{"$f":"IF(J96=0,0,'OPEX Personal Indirecto'!F$13)","v":0},{"$f":"IF(K96=0,0,'OPEX Personal Indirecto'!G$13)","v":0},{"$f":"IF(L96=0,0,'OPEX Personal Indirecto'!H$13)","v":0},{"$f":"IF(M96=0,0,'OPEX Personal Indirecto'!I$13)","v":0},{"$f":"IF(N96=0,0,'OPEX Personal Indirecto'!J$13)","v":0},{"$f":"IF(O96=0,0,'OPEX Personal Indirecto'!K$13)","v":0},{"$f":"IF(P96=0,0,'OPEX Personal Indirecto'!L$13)","v":0},{"$f":"IF(Q96=0,0,'OPEX Personal Indirecto'!M$13)","v":0},{"$f":"IF(R96=0,0,'OPEX Personal Indirecto'!N$13)","v":0},{"$f":"IF(S96=0,0,'OPEX Personal Indirecto'!O$13)","v":0},{"$f":"IF(T96=0,0,'OPEX Personal Indirecto'!P$13)","v":0},{"$f":"IF(U96=0,0,'OPEX Personal Indirecto'!Q$13)","v":0},{"$f":"IF(V96=0,0,'OPEX Personal Indirecto'!R$13)","v":0},{"$f":"IF(W96=0,0,'OPEX Personal Indirecto'!S$13)","v":0},{"$f":"IF(X96=0,0,'OPEX Personal Indirecto'!T$13)","v":0},{"$f":"IF(Y96=0,0,'OPEX Personal Indirecto'!U$13)","v":0},{"$f":"IF(Z96=0,0,'OPEX Personal Indirecto'!V$13)","v":0},{"$f":"IF(AA96=0,0,'OPEX Personal Indirecto'!W$13)","v":0}]
[]
[null,"Costo del Proyecto",null,null,{"$f":"+SUM(H146:AA146)","v":-1091412.3903968325},null,null,{"$f":"-H96-H144","v":-84474.431434097976},-85826.022337043541,-88057.498917806675,-88437.907313131611,-88676.689662877077,-89270.82348361834,-91003.681755964732,-92582.951117562596,-93931.018558439537,-95187.883695912868,-96430.401195929066,-97533.080924448557,0,0,0,0,0,0,0,0]
[]
[]
[]
[]
[null,null,null,null,null,null,{"$f":"G138/(1+rentabilidadobj)^COUNTA(G$6:$G$6)","v":-43185.840707964606},{"$f":"H138/(1+rentabilidadobj)^COUNTA($G$6:H$6)","v":2383.2572119007418},{"$f":"I138/(1+rentabilidadobj)^COUNTA($G$6:I$6)","v":-710.07211537367573},{"$f":"J138/(1+rentabilidadobj)^COUNTA($G$6:J$6)","v":-982.79536147024203},{"$f":"K138/(1+rentabilidadobj)^COUNTA($G$6:K$6)","v":-3158.2351442110194},{"$f":"L138/(1+rentabilidadobj)^COUNTA($G$6:L$6)","v":1855.0100415836944},{"$f":"M138/(1+rentabilidadobj)^COUNTA($G$6:M$6)","v":6694.7371966216033},{"$f":"N138/(1+rentabilidadobj)^COUNTA($G$6:N$6)","v":9666.160772498024},{"$f":"O138/(1+rentabilidadobj)^COUNTA($G$6:O$6)","v":3196.0405112039871},{"$f":"P138/(1+rentabilidadobj)^COUNTA($G$6:P$6)","v":7288.4055599320181},{"$f":"Q138/(1+rentabilidadobj)^COUNTA($G$6:Q$6)","v":4326.9587851187089},{"$f":"R138/(1+rentabilidadobj)^COUNTA($G$6:R$6)","v":4980.7185135911477},{"$f":"S138/(1+rentabilidadobj)^COUNTA($G$6:S$6)","v":7645.6547365696615},{"$f":"T138/(1+rentabilidadobj)^COUNTA($G$6:T$6)","v":0},{"$f":"U138/(1+rentabilidadobj)^COUNTA($G$6:U$6)","v":0},{"$f":"V138/(1+rentabilidadobj)^COUNTA($G$6:V$6)","v":0},{"$f":"W138/(1+rentabilidadobj)^COUNTA($G$6:W$6)","v":0},{"$f":"X138/(1+rentabilidadobj)^COUNTA($G$6:X$6)","v":0},{"$f":"Y138/(1+rentabilidadobj)^COUNTA($G$6:Y$6)","v":0},{"$f":"Z138/(1+rentabilidadobj)^COUNTA($G$6:Z$6)","v":0},{"$f":"AA138/(1+rentabilidadobj)^COUNTA($G$6:AA$6)","v":0}]
[null,null,null,null,null,null,null,{"$f":"SUM(G151:AA151)","v":5.0022208597511053E-11}]
[]
[null,{"$f":"'Sup fijo'!B22","v":"Intracantonal Combinado"}]
[null,null,{"$f":"C165/0.893481776513347","v":0.38298868496700322}]
[null,"Supuestos"]
[null,"Demanda Anual",null,null,{"$f":"+SUM(H157:AA157)","v":6162480},null,null,{"$f":"'Sup fijo'!E42","v":308124},{"$f":"'Sup fijo'!F42","v":308124},{"$f":"'Sup fijo'!G42","v":308124},{"$f":"'Sup fijo'!H42","v":308124},{"$f":"'Sup fijo'!I42","v":308124},{"$f":"'Sup fijo'!J42","v":308124},{"$f":"'Sup fijo'!K42","v":308124},{"$f":"'Sup fijo'!L42","v":308124},{"$f":"'Sup fijo'!M42","v":308124},{"$f":"'Sup fijo'!N42","v":308124},{"$f":"'Sup fijo'!O42","v":308124},{"$f":"'Sup fijo'!P42","v":308124},{"$f":"'Sup fijo'!Q42","v":308124},{"$f":"'Sup fijo'!R42","v":308124},{"$f":"'Sup fijo'!S42","v":308124},{"$f":"'Sup fijo'!T42","v":308124},{"$f":"'Sup fijo'!U42","v":308124},{"$f":"'Sup fijo'!V42","v":308124},{"$f":"'Sup fijo'!W42","v":308124},{"$f":"'Sup fijo'!X42","v":308124}]
[null,"kilómetros Anual",null,null,{"$f":"+SUM(H158:AA158)","v":2250360.0000000005},null,null,{"$f":"'Sup fijo'!E25","v":112518.00000000003},{"$f":"'Sup fijo'!F25","v":112518.00000000003},{"$f":"'Sup fijo'!G25","v":112518.00000000003},{"$f":"'Sup fijo'!H25","v":112518.00000000003},{"$f":"'Sup fijo'!I25","v":112518.00000000003},{"$f":"'Sup fijo'!J25","v":112518.00000000003},{"$f":"'Sup fijo'!K25","v":112518.00000000003},{"$f":"'Sup fijo'!L25","v":112518.00000000003},{"$f":"'Sup fijo'!M25","v":112518.00000000003},{"$f":"'Sup fijo'!N25","v":112518.00000000003},{"$f":"'Sup fijo'!O25","v":112518.00000000003},{"$f":"'Sup fijo'!P25","v":112518.00000000003},{"$f":"'Sup fijo'!Q25","v":112518.00000000003},{"$f":"'Sup fijo'!R25","v":112518.00000000003},{"$f":"'Sup fijo'!S25","v":112518.00000000003},{"$f":"'Sup fijo'!T25","v":112518.00000000003},{"$f":"'Sup fijo'!U25","v":112518.00000000003},{"$f":"'Sup fijo'!V25","v":112518.00000000003},{"$f":"'Sup fijo'!W25","v":112518.00000000003},{"$f":"'Sup fijo'!X25","v":112518.00000000003}]
[null,"Tir accionista ",{"$f":"IFERROR(+IRR(G211:AA211),0)","v":0.12999999999983558}]
[]
[null,"Aportes capital ",{"$f":"E213","v":63899.538276905114}]
[]
[null,"Resultados Tarifas"]
[null,"Tarifa técnica por pasajero",{"$f":"SUM(C165:C165)","v":0.34219341062882863},null,null,null,null,{"$f":"SUM(H165:H165)","v":0.35040605248392054},0.35601254932366322,0.36526887560607851,0.36684683714869681,0.36783732360899829,0.37030183367717856,0.37748985514614469,0.38404077870267705,0.38963265996687124,0.39484622747895654,0.400000279952959,0.40457427523490408,0.40956039130714367,0.41510067724121025,0.42107016595194907,0.42686073038918371,0.43253873868262421,0.43822421124103317,0.44397147195093084,0.44979752427915703]
[null,"Tarifa operador privado",0.34219341062882863,null,null,null,null,{"$f":"$C165*(1+'Sup Generales'!C$8)","v":0.35040605248392054},{"$f":"$C165*(1+'Sup Generales'!D$8)","v":0.35601254932366322},{"$f":"$C165*(1+'Sup Generales'!E$8)","v":0.36526887560607851},{"$f":"$C165*(1+'Sup Generales'!F$8)","v":0.36684683714869681},{"$f":"$C165*(1+'Sup Generales'!G$8)","v":0.36783732360899829},{"$f":"$C165*(1+'Sup Generales'!H$8)","v":0.37030183367717856},{"$f":"$C165*(1+'Sup Generales'!I$8)","v":0.37748985514614469},{"$f":"$C165*(1+'Sup Generales'!J$8)","v":0.38404077870267705},{"$f":"$C165*(1+'Sup Generales'!K$8)","v":0.38963265996687124},{"$f":"$C165*(1+'Sup Generales'!L$8)","v":0.39484622747895654},{"$f":"$C165*(1+'Sup Generales'!M$8)","v":0.400000279952959},{"$f":"$C165*(1+'Sup Generales'!N$8)","v":0.40457427523490408},{"$f":"$C165*(1+'Sup Generales'!O$8)","v":0.40956039130714367},{"$f":"$C165*(1+'Sup Generales'!P$8)","v":0.41510067724121025},{"$f":"$C165*(1+'Sup Generales'!Q$8)","v":0.42107016595194907},{"$f":"$C165*(1+'Sup Generales'!R$8)","v":0.42686073038918371},{"$f":"$C165*(1+'Sup Generales'!S$8)","v":0.43253873868262421},{"$f":"$C165*(1+'Sup Generales'!T$8)","v":0.43822421124103317},{"$f":"$C165*(1+'Sup Generales'!U$8)","v":0.44397147195093084},{"$f":"$C165*(1+'Sup Generales'!V$8)","v":0.44979752427915703}]
[null,"Costo ente gestor",{"$f":"H166","v":0},null,null,null,null,{"$f":"H217/H157","v":0},{"$f":"I217/I157","v":0},0,0,0,0,0,0,0,0,0,0,0,0,0,0,0,0,0,0]
[]
[null,"P&G",null,null,"Total "]
[null,"(+) Ingresos ",null,null,{"$f":"+SUM(H169:AA169)","v":1394956.7048219559},null,null,{"$f":"+H157*H165*IF(H$6>'Sup fijo'!$H$51,0,1)","v":107968.51451555554},{"$f":"+I157*I165*IF(I$6>'Sup fijo'!$H$51,0,1)","v":109696.01074780441},{"$f":"+J157*J165*IF(J$6>'Sup fijo'!$H$51,0,1)","v":112548.10702724733},{"$f":"+K157*K165*IF(K$6>'Sup fijo'!$H$51,0,1)","v":113034.31484960506},{"$f":"+L157*L165*IF(L$6>'Sup fijo'!$H$51,0,1)","v":113339.50749969899},{"$f":"+M157*M165*IF(M$6>'Sup fijo'!$H$51,0,1)","v":114098.88219994697},{"$f":"+N157*N165*IF(N$6>'Sup fijo'!$H$51,0,1)","v":116313.68412705068},{"$f":"+O157*O165*IF(O$6>'Sup fijo'!$H$51,0,1)","v":118332.18089698367},{"$f":"+P157*P165*IF(P$6>'Sup fijo'!$H$51,0,1)","v":120055.17371963224},{"$f":"+Q157*Q165*IF(Q$6>'Sup fijo'!$H$51,0,1)","v":121661.598995726},{"$f":"+R157*R165*IF(R$6>'Sup fijo'!$H$51,0,1)","v":123249.68626022554},{"$f":"+S157*S165*IF(S$6>'Sup fijo'!$H$51,0,1)","v":124659.04398247959},{"$f":"+T157*T165*IF(T$6>'Sup fijo'!$H$51,0,1)","v":0},{"$f":"+U157*U165*IF(U$6>'Sup fijo'!$H$51,0,1)","v":0},{"$f":"+V157*V165*IF(V$6>'Sup fijo'!$H$51,0,1)","v":0},{"$f":"+W157*W165*IF(W$6>'Sup fijo'!$H$51,0,1)","v":0},{"$f":"+X157*X165*IF(X$6>'Sup fijo'!$H$51,0,1)","v":0},{"$f":"+Y157*Y165*IF(Y$6>'Sup fijo'!$H$51,0,1)","v":0},{"$f":"+Z157*Z165*IF(Z$6>'Sup fijo'!$H$51,0,1)","v":0},{"$f":"+AA157*AA165*IF(AA$6>'Sup fijo'!$H$51,0,1)","v":0}]
[]
[null,"(-) Costo conductores ",null,null,{"$f":"+SUM(H171:AA171)","v":325529.13308472914},null,null,{"$f":"+'OPEX Personal Directo'!C22","v":24077.204571428578},{"$f":"+'OPEX Personal Directo'!D22","v":24658.139363328002},{"$f":"+'OPEX Personal Directo'!E22","v":25501.644994668735},{"$f":"+'OPEX Personal Directo'!F22","v":25816.706597854063},{"$f":"+'OPEX Personal Directo'!G22","v":26093.502999313612},{"$f":"+'OPEX Personal Directo'!H22","v":26478.476105164289},{"$f":"+'OPEX Personal Directo'!I22","v":27208.396075856344},{"$f":"+'OPEX Personal Directo'!J22","v":27902.012574814184},{"$f":"+'OPEX Personal Directo'!K22","v":28534.750132515506},{"$f":"+'OPEX Personal Directo'!L22","v":29147.898306007155},{"$f":"+'OPEX Personal Directo'!M22","v":29764.602025807988},{"$f":"+'OPEX Personal Directo'!N22","v":30345.7993379707},{"$f":"+'OPEX Personal Directo'!O22","v":0},{"$f":"+'OPEX Personal Directo'!P22","v":0},{"$f":"+'OPEX Personal Directo'!Q22","v":0},{"$f":"+'OPEX Personal Directo'!R22","v":0},{"$f":"+'OPEX Personal Directo'!S22","v":0},{"$f":"+'OPEX Personal Directo'!T22","v":0},{"$f":"+'OPEX Personal Directo'!U22","v":0},{"$f":"+'OPEX Personal Directo'!V22","v":0}]
[null,"(-) Costo combustible ",null,null,{"$f":"+SUM(H172:AA172)","v":195925.8767366517},null,null,{"$f":"IF(H169=0,0,'OPEX Combustible '!H48)","v":14914.774321720795},{"$f":"IF(I169=0,0,'OPEX Combustible '!I48)","v":15302.558454085536},{"$f":"IF(J169=0,0,'OPEX Combustible '!J48)","v":15368.665506607185},{"$f":"IF(K169=0,0,'OPEX Combustible '!K48)","v":15487.211707992397},{"$f":"IF(L169=0,0,'OPEX Combustible '!L48)","v":15668.930906568123},{"$f":"IF(M169=0,0,'OPEX Combustible '!M48)","v":16052.949863836386},{"$f":"IF(N169=0,0,'OPEX Combustible '!N48)","v":16413.188907063399},{"$f":"IF(O169=0,0,'OPEX Combustible '!O48)","v":16735.43639394522},{"$f":"IF(P169=0,0,'OPEX Combustible '!P48)","v":17044.165511060521},{"$f":"IF(Q169=0,0,'OPEX Combustible '!Q48)","v":17352.981626838227},{"$f":"IF(R169=0,0,'OPEX Combustible '!R48)","v":17639.169691322866},{"$f":"IF(S169=0,0,'OPEX Combustible '!S48)","v":17945.843845611056},{"$f":"IF(T169=0,0,'OPEX Combustible '!T48)","v":0},{"$f":"IF(U169=0,0,'OPEX Combustible '!U48)","v":0},{"$f":"IF(V169=0,0,'OPEX Combustible '!V48)","v":0},{"$f":"IF(W169=0,0,'OPEX Combustible '!W48)","v":0},{"$f":"IF(X169=0,0,'OPEX Combustible '!X48)","v":0},{"$f":"IF(Y169=0,0,'OPEX Combustible '!Y48)","v":0},{"$f":"IF(Z169=0,0,'OPEX Combustible '!Z48)","v":0},{"$f":"IF(AA169=0,0,'OPEX Combustible '!AA48)","v":0}]
[null,"(-) Costo impuestos + seguros ",null,null,83750.827303039594,null,null,{"$f":"+'OPEX impuestos'!C64+'OPEX impuestos'!C96+'OPEX impuestos'!C101+'OPEX Otros Gastos'!C28","v":5866.2567197866665},{"$f":"+'OPEX impuestos'!D64+'OPEX impuestos'!D96+'OPEX impuestos'!D101+'OPEX Otros Gastos'!D28","v":7081.6829371289596},{"$f":"+'OPEX impuestos'!E64+'OPEX impuestos'!E96+'OPEX impuestos'!E101+'OPEX Otros Gastos'!E28","v":8178.89383544873},{"$f":"+'OPEX impuestos'!F64+'OPEX impuestos'!F96+'OPEX impuestos'!F101+'OPEX Otros Gastos'!F28","v":6649.3284533572396},{"$f":"+'OPEX impuestos'!G64+'OPEX impuestos'!G96+'OPEX impuestos'!G101+'OPEX Otros Gastos'!G28","v":7784.25597037637},{"$f":"+'OPEX impuestos'!H64+'OPEX impuestos'!H96+'OPEX impuestos'!H101+'OPEX Otros Gastos'!H28","v":6449.4640904525586},{"$f":"+'OPEX impuestos'!I64+'OPEX impuestos'!I96+'OPEX impuestos'!I101+'OPEX Otros Gastos'!I28","v":7689.2445022373913},{"$f":"+'OPEX impuestos'!J64+'OPEX impuestos'!J96+'OPEX impuestos'!J101+'OPEX Otros Gastos'!J28","v":6207.6128401844308},{"$f":"+'OPEX impuestos'!K64+'OPEX impuestos'!K96+'OPEX impuestos'!K101+'OPEX Otros Gastos'!K28","v":6176.7308127698125},{"$f":"+'OPEX impuestos'!L64+'OPEX impuestos'!L96+'OPEX impuestos'!L101+'OPEX Otros Gastos'!L28","v":7000.0227035161288},{"$f":"+'OPEX impuestos'!M64+'OPEX impuestos'!M96+'OPEX impuestos'!M101+'OPEX Otros Gastos'!M28","v":7567.3247517067466},{"$f":"+'OPEX impuestos'!N64+'OPEX impuestos'!N96+'OPEX impuestos'!N101+'OPEX Otros Gastos'!N28","v":7100.0096860745525},{"$f":"+'OPEX impuestos'!O64+'OPEX impuestos'!O96+'OPEX impuestos'!O101+'OPEX Otros Gastos'!O28","v":0},{"$f":"+'OPEX impuestos'!P64+'OPEX impuestos'!P96+'OPEX impuestos'!P101+'OPEX Otros Gastos'!P28","v":0},{"$f":"+'OPEX impuestos'!Q64+'OPEX impuestos'!Q96+'OPEX impuestos'!Q101+'OPEX Otros Gastos'!Q28","v":0},{"$f":"+'OPEX impuestos'!R64+'OPEX impuestos'!R96+'OPEX impuestos'!R101+'OPEX Otros Gastos'!R28","v":0},{"$f":"+'OPEX impuestos'!S64+'OPEX impuestos'!S96+'OPEX impuestos'!S101+'OPEX Otros Gastos'!S28","v":0},{"$f":"+'OPEX impuestos'!T64+'OPEX impuestos'!T96+'OPEX impuestos'!T101+'OPEX Otros Gastos'!T28","v":0},{"$f":"+'OPEX impuestos'!U64+'OPEX impuestos'!U96+'OPEX impuestos'!U101+'OPEX Otros Gastos'!U28","v":0},{"$f":"+'OPEX impuestos'!V64+'OPEX impuestos'!V96+'OPEX impuestos'!V101+'OPEX Otros Gastos'!V28","v":0}]
[null,"(-) Costo Mantenimiento ",null,null,406094.16071308375,null,null,{"$f":"+'OPEX Mtto'!C35","v":20548.004113066669},{"$f":"+'OPEX Mtto'!D35","v":29258.439457879769},{"$f":"+'OPEX Mtto'!E35","v":37282.814606952736},{"$f":"+'OPEX Mtto'!F35","v":30319.221809502611},{"$f":"+'OPEX Mtto'!G35","v":37600.142750417224},{"$f":"+'OPEX Mtto'!H35","v":32610.945935157397},{"$f":"+'OPEX Mtto'!I35","v":39950.15062636428},{"$f":"+'OPEX Mtto'!J35","v":31740.269710055851},{"$f":"+'OPEX Mtto'!K35","v":31823.157308145132},{"$f":"+'OPEX Mtto'!L35","v":36788.131644717789},{"$f":"+'OPEX Mtto'!M35","v":40290.478815510927},{"$f":"+'OPEX Mtto'!N35","v":37882.403935313414},{"$f":"+'OPEX Mtto'!O35","v":0},{"$f":"+'OPEX Mtto'!P35","v":0},{"$f":"+'OPEX Mtto'!Q35","v":0},{"$f":"+'OPEX Mtto'!R35","v":0},{"$f":"+'OPEX Mtto'!S35","v":0},{"$f":"+'OPEX Mtto'!T35","v":0},{"$f":"+'OPEX Mtto'!U35","v":0},{"$f":"+'OPEX Mtto'!V35","v":0}]
[null,"(-) Costo personal ",null,null,126407.90616607876,null,null,{"$f":"'OPEX Personal Indirecto'!D$8*IF(H$6>'Sup fijo'!$H$53,0,1)","v":9349.5441939890716},{"$f":"'OPEX Personal Indirecto'!E$8*IF(I$6>'Sup fijo'!$H$53,0,1)","v":9575.1299963016409},{"$f":"'OPEX Personal Indirecto'!F$8*IF(J$6>'Sup fijo'!$H$53,0,1)","v":9902.6760432151295},{"$f":"'OPEX Personal Indirecto'!G$8*IF(K$6>'Sup fijo'!$H$53,0,1)","v":10025.019248551593},{"$f":"'OPEX Personal Indirecto'!H$8*IF(L$6>'Sup fijo'!$H$53,0,1)","v":10132.503494926863},{"$f":"'OPEX Personal Indirecto'!I$8*IF(M$6>'Sup fijo'!$H$53,0,1)","v":10281.994398489616},{"$f":"'OPEX Personal Indirecto'!J$8*IF(N$6>'Sup fijo'!$H$53,0,1)","v":10565.433408355357},{"$f":"'OPEX Personal Indirecto'!K$8*IF(O$6>'Sup fijo'!$H$53,0,1)","v":10834.775228808285},{"$f":"'OPEX Personal Indirecto'!L$8*IF(P$6>'Sup fijo'!$H$53,0,1)","v":11080.476831806887},{"$f":"'OPEX Personal Indirecto'!M$8*IF(Q$6>'Sup fijo'!$H$53,0,1)","v":11318.571579414205},{"$f":"'OPEX Personal Indirecto'!N$8*IF(R$6>'Sup fijo'!$H$53,0,1)","v":11558.046999651217},{"$f":"'OPEX Personal Indirecto'!O$8*IF(S$6>'Sup fijo'!$H$53,0,1)","v":11783.734742568889},{"$f":"'OPEX Personal Indirecto'!P$8*IF(T$6>'Sup fijo'!$H$53,0,1)","v":0},{"$f":"'OPEX Personal Indirecto'!Q$8*IF(U$6>'Sup fijo'!$H$53,0,1)","v":0},{"$f":"'OPEX Personal Indirecto'!R$8*IF(V$6>'Sup fijo'!$H$53,0,1)","v":0},{"$f":"'OPEX Personal Indirecto'!S$8*IF(W$6>'Sup fijo'!$H$53,0,1)","v":0},{"$f":"'OPEX Personal Indirecto'!T$8*IF(X$6>'Sup fijo'!$H$53,0,1)","v":0},{"$f":"'OPEX Personal Indirecto'!U$8*IF(Y$6>'Sup fijo'!$H$53,0,1)","v":0},{"$f":"'OPEX Personal Indirecto'!V$8*IF(Z$6>'Sup fijo'!$H$53,0,1)","v":0},{"$f":"'OPEX Personal Indirecto'!W$8*IF(AA$6>'Sup fijo'!$H$53,0,1)","v":0}]
[null,"(-) Administración y otros ",null,null,29822.527298938021,null,null,{"$f":"'OPEX Otros Gastos'!C$37","v":2308.2393600000005},{"$f":"'OPEX Otros Gastos'!D$37*IF(I$6>'Sup fijo'!$H$53,0,1)","v":2345.1711897599994},{"$f":"'OPEX Otros Gastos'!E$37*IF(J$6>'Sup fijo'!$H$53,0,1)","v":2406.14564069376},{"$f":"'OPEX Otros Gastos'!F$37*IF(K$6>'Sup fijo'!$H$53,0,1)","v":2416.5401898615573},{"$f":"'OPEX Otros Gastos'!G$37*IF(L$6>'Sup fijo'!$H$53,0,1)","v":2423.0648483741834},{"$f":"'OPEX Otros Gastos'!H$37*IF(M$6>'Sup fijo'!$H$53,0,1)","v":2439.2993828582903},{"$f":"'OPEX Otros Gastos'!I$37*IF(N$6>'Sup fijo'!$H$53,0,1)","v":2486.6492330037981},{"$f":"'OPEX Otros Gastos'!J$37*IF(O$6>'Sup fijo'!$H$53,0,1)","v":2529.8023106699811},{"$f":"'OPEX Otros Gastos'!K$37*IF(P$6>'Sup fijo'!$H$53,0,1)","v":2566.6378628499824},{"$f":"'OPEX Otros Gastos'!L$37*IF(Q$6>'Sup fijo'!$H$53,0,1)","v":2600.9813385180137},{"$f":"'OPEX Otros Gastos'!M$37*IF(R$6>'Sup fijo'!$H$53,0,1)","v":2634.9327691501771},{"$f":"'OPEX Otros Gastos'!N$37*IF(S$6>'Sup fijo'!$H$53,0,1)","v":2665.0631731982762},{"$f":"'OPEX Otros Gastos'!O$37*IF(T$6>'Sup fijo'!$H$53,0,1)","v":0},{"$f":"'OPEX Otros Gastos'!P$37*IF(U$6>'Sup fijo'!$H$53,0,1)","v":0},{"$f":"'OPEX Otros Gastos'!Q$37*IF(V$6>'Sup fijo'!$H$53,0,1)","v":0},{"$f":"'OPEX Otros Gastos'!R$37*IF(W$6>'Sup fijo'!$H$53,0,1)","v":0},{"$f":"'OPEX Otros Gastos'!S$37*IF(X$6>'Sup fijo'!$H$53,0,1)","v":0},{"$f":"'OPEX Otros Gastos'!T$37*IF(Y$6>'Sup fijo'!$H$53,0,1)","v":0},{"$f":"'OPEX Otros Gastos'!U$37*IF(Z$6>'Sup fijo'!$H$53,0,1)","v":0},{"$f":"'OPEX Otros Gastos'!V$37*IF(AA$6>'Sup fijo'!$H$53,0,1)","v":0}]
[null,"Total OPEX",null,null,1167530.4313025207,null,null,{"$f":"+SUM(H171:H176)","v":77064.023279991787},88221.121398483898,98640.840627586294,90714.028007119443,99702.40096997637,94313.129775958529,104313.06275288056,95949.909058477948,97225.918459147826,104208.58719901153,109454.55505314992,107722.8547207369,0,0,0,0,0,0,0,0]
[]
[null,"EBITDA",null,null,{"$f":"+SUM(H179:AA179)","v":227426.27351943502},null,null,{"$f":"+H169-H177","v":30904.49123556375},21474.889349320511,13907.266399661035,22320.286842485613,13637.106529722616,19785.752423988437,12000.621374170121,22382.271838505723,22829.25526048441,17453.011796714476,13795.131207075625,16936.189261742693,0,0,0,0,0,0,0,0]
[]
[null,"(-) Depreciación",null,null,{"$f":"+SUM(H181:AA181)","v":97599.999999999985},null,null,{"$f":"'CAPEX Vehículo'!D37","v":8133.333333333333},{"$f":"'CAPEX Vehículo'!E37","v":8133.333333333333},{"$f":"'CAPEX Vehículo'!F37","v":8133.333333333333},{"$f":"'CAPEX Vehículo'!G37","v":8133.333333333333},{"$f":"'CAPEX Vehículo'!H37","v":8133.333333333333},{"$f":"'CAPEX Vehículo'!I37","v":8133.333333333333},{"$f":"'CAPEX Vehículo'!J37","v":8133.333333333333},{"$f":"'CAPEX Vehículo'!K37","v":8133.333333333333},{"$f":"'CAPEX Vehículo'!L37","v":8133.333333333333},{"$f":"'CAPEX Vehículo'!M37","v":8133.333333333333},{"$f":"'CAPEX Vehículo'!N37","v":8133.333333333333},{"$f":"'CAPEX Vehículo'!O37","v":8133.333333333333},{"$f":"'CAPEX Vehículo'!P37","v":0},{"$f":"'CAPEX Vehículo'!Q37","v":0},{"$f":"'CAPEX Vehículo'!R37","v":0},{"$f":"'CAPEX Vehículo'!S37","v":0},{"$f":"'CAPEX Vehículo'!T37","v":0},{"$f":"'CAPEX Vehículo'!U37","v":0},{"$f":"'CAPEX Vehículo'!V37","v":0},{"$f":"'CAPEX Vehículo'!W37","v":0}]
[]
[null,"EBIT",null,null,{"$f":"+SUM(H183:AA183)","v":129826.27351943504},null,null,{"$f":"H179-H181","v":22771.157902230418},{"$f":"I179-I181","v":13341.556015987178},5773.9330663277024,14186.953509152281,5503.7731963892829,11652.419090655105,3867.2880408367882,14248.938505172391,14695.921927151077,9319.678463381144,5661.7978737422918,8802.8559284093608,0,0,0,0,0,0,0,0]
[]
[null,"(-) Intereses",null,null,{"$f":"+SUM(H185:AA185)","v":33409.778015721931},null,null,{"$f":"'CAPEX Vehículo'!D23","v":10248.000000000002},{"$f":"'CAPEX Vehículo'!E23","v":8697.6462155597874},{"$f":"'CAPEX Vehículo'!F23","v":6930.2429012979446},{"$f":"'CAPEX Vehículo'!G23","v":4915.403123039443},{"$f":"'CAPEX Vehículo'!H23","v":2618.4857758247508},{"$f":"'CAPEX Vehículo'!I23","v":0},{"$f":"'CAPEX Vehículo'!J23","v":0},{"$f":"'CAPEX Vehículo'!K23","v":0},{"$f":"'CAPEX Vehículo'!L23","v":0},{"$f":"'CAPEX Vehículo'!M23","v":0},{"$f":"'CAPEX Vehículo'!N23","v":0},{"$f":"'CAPEX Vehículo'!O23","v":0},{"$f":"'CAPEX Vehículo'!P23","v":0},{"$f":"'CAPEX Vehículo'!Q23","v":0},{"$f":"'CAPEX Vehículo'!R23","v":0},{"$f":"'CAPEX Vehículo'!S23","v":0},{"$f":"'CAPEX Vehículo'!T23","v":0},{"$f":"'CAPEX Vehículo'!U23","v":0},{"$f":"'CAPEX Vehículo'!V23","v":0},{"$f":"'CAPEX Vehículo'!W23","v":0}]
[]
[null,"EBT",null,null,{"$f":"+SUM(H187:AA187)","v":96416.4955037131},null,null,{"$f":"+H183-H185","v":12523.157902230416},{"$f":"+I183-I185","v":4643.909800427391},-1156.3098349702423,9271.5503861128382,2885.2874205645321,11652.419090655105,3867.2880408367882,14248.938505172391,14695.921927151077,9319.678463381144,5661.7978737422918,8802.8559284093608,0,0,0,0,0,0,0,0]
[]
[null,"Participación empleados ",null,null,{"$f":"+SUM(H189:AA189)","v":0},null,null,{"$f":"+IF(H187<0,0,H187*'Sup fijo'!$D$196)*IF('Sup fijo'!$D$200=\"No\",0,1)","v":0},{"$f":"+IF(I187<0,0,I187*'Sup fijo'!$D$196)*IF('Sup fijo'!$D$200=\"No\",0,1)","v":0},{"$f":"+IF(J187<0,0,J187*'Sup fijo'!$D$196)*IF('Sup fijo'!$D$200=\"No\",0,1)","v":0},{"$f":"+IF(K187<0,0,K187*'Sup fijo'!$D$196)*IF('Sup fijo'!$D$200=\"No\",0,1)","v":0},{"$f":"+IF(L187<0,0,L187*'Sup fijo'!$D$196)*IF('Sup fijo'!$D$200=\"No\",0,1)","v":0},{"$f":"+IF(M187<0,0,M187*'Sup fijo'!$D$196)*IF('Sup fijo'!$D$200=\"No\",0,1)","v":0},{"$f":"+IF(N187<0,0,N187*'Sup fijo'!$D$196)*IF('Sup fijo'!$D$200=\"No\",0,1)","v":0},{"$f":"+IF(O187<0,0,O187*'Sup fijo'!$D$196)*IF('Sup fijo'!$D$200=\"No\",0,1)","v":0},{"$f":"+IF(P187<0,0,P187*'Sup fijo'!$D$196)*IF('Sup fijo'!$D$200=\"No\",0,1)","v":0},{"$f":"+IF(Q187<0,0,Q187*'Sup fijo'!$D$196)*IF('Sup fijo'!$D$200=\"No\",0,1)","v":0},{"$f":"+IF(R187<0,0,R187*'Sup fijo'!$D$196)*IF('Sup fijo'!$D$200=\"No\",0,1)","v":0},{"$f":"+IF(S187<0,0,S187*'Sup fijo'!$D$196)*IF('Sup fijo'!$D$200=\"No\",0,1)","v":0},{"$f":"+IF(T187<0,0,T187*'Sup fijo'!$D$196)*IF('Sup fijo'!$D$200=\"No\",0,1)","v":0},{"$f":"+IF(U187<0,0,U187*'Sup fijo'!$D$196)*IF('Sup fijo'!$D$200=\"No\",0,1)","v":0},{"$f":"+IF(V187<0,0,V187*'Sup fijo'!$D$196)*IF('Sup fijo'!$D$200=\"No\",0,1)","v":0},{"$f":"+IF(W187<0,0,W187*'Sup fijo'!$D$196)*IF('Sup fijo'!$D$200=\"No\",0,1)","v":0},{"$f":"+IF(X187<0,0,X187*'Sup fijo'!$D$196)*IF('Sup fijo'!$D$200=\"No\",0,1)","v":0},{"$f":"+IF(Y187<0,0,Y187*'Sup fijo'!$D$196)*IF('Sup fijo'!$D$200=\"No\",0,1)","v":0},{"$f":"+IF(Z187<0,0,Z187*'Sup fijo'!$D$196)*IF('Sup fijo'!$D$200=\"No\",0,1)","v":0},{"$f":"+IF(AA187<0,0,AA187*'Sup fijo'!$D$196)*IF('Sup fijo'!$D$200=\"No\",0,1)","v":0}]
[null,"Impuesto renta ",null,null,{"$f":"+SUM(H190:AA190)","v":0},null,null,{"$f":"IF((+H187-H189)<0,0,(+H187-H189)*'Sup fijo'!$D$197)*IF('Sup fijo'!$D$200=\"No\",0,1)","v":0},{"$f":"IF((+I187-I189)<0,0,(+I187-I189)*'Sup fijo'!$D$197)*IF('Sup fijo'!$D$200=\"No\",0,1)","v":0},{"$f":"IF((+J187-J189)<0,0,(+J187-J189)*'Sup fijo'!$D$197)*IF('Sup fijo'!$D$200=\"No\",0,1)","v":0},{"$f":"IF((+K187-K189)<0,0,(+K187-K189)*'Sup fijo'!$D$197)*IF('Sup fijo'!$D$200=\"No\",0,1)","v":0},{"$f":"IF((+L187-L189)<0,0,(+L187-L189)*'Sup fijo'!$D$197)*IF('Sup fijo'!$D$200=\"No\",0,1)","v":0},{"$f":"IF((+M187-M189)<0,0,(+M187-M189)*'Sup fijo'!$D$197)*IF('Sup fijo'!$D$200=\"No\",0,1)","v":0},{"$f":"IF((+N187-N189)<0,0,(+N187-N189)*'Sup fijo'!$D$197)*IF('Sup fijo'!$D$200=\"No\",0,1)","v":0},{"$f":"IF((+O187-O189)<0,0,(+O187-O189)*'Sup fijo'!$D$197)*IF('Sup fijo'!$D$200=\"No\",0,1)","v":0},{"$f":"IF((+P187-P189)<0,0,(+P187-P189)*'Sup fijo'!$D$197)*IF('Sup fijo'!$D$200=\"No\",0,1)","v":0},{"$f":"IF((+Q187-Q189)<0,0,(+Q187-Q189)*'Sup fijo'!$D$197)*IF('Sup fijo'!$D$200=\"No\",0,1)","v":0},{"$f":"IF((+R187-R189)<0,0,(+R187-R189)*'Sup fijo'!$D$197)*IF('Sup fijo'!$D$200=\"No\",0,1)","v":0},{"$f":"IF((+S187-S189)<0,0,(+S187-S189)*'Sup fijo'!$D$197)*IF('Sup fijo'!$D$200=\"No\",0,1)","v":0},{"$f":"IF((+T187-T189)<0,0,(+T187-T189)*'Sup fijo'!$D$197)*IF('Sup fijo'!$D$200=\"No\",0,1)","v":0},{"$f":"IF((+U187-U189)<0,0,(+U187-U189)*'Sup fijo'!$D$197)*IF('Sup fijo'!$D$200=\"No\",0,1)","v":0},{"$f":"IF((+V187-V189)<0,0,(+V187-V189)*'Sup fijo'!$D$197)*IF('Sup fijo'!$D$200=\"No\",0,1)","v":0},{"$f":"IF((+W187-W189)<0,0,(+W187-W189)*'Sup fijo'!$D$197)*IF('Sup fijo'!$D$200=\"No\",0,1)","v":0},{"$f":"IF((+X187-X189)<0,0,(+X187-X189)*'Sup fijo'!$D$197)*IF('Sup fijo'!$D$200=\"No\",0,1)","v":0},{"$f":"IF((+Y187-Y189)<0,0,(+Y187-Y189)*'Sup fijo'!$D$197)*IF('Sup fijo'!$D$200=\"No\",0,1)","v":0},{"$f":"IF((+Z187-Z189)<0,0,(+Z187-Z189)*'Sup fijo'!$D$197)*IF('Sup fijo'!$D$200=\"No\",0,1)","v":0},{"$f":"IF((+AA187-AA189)<0,0,(+AA187-AA189)*'Sup fijo'!$D$197)*IF('Sup fijo'!$D$200=\"No\",0,1)","v":0}]
[]
[null,"Utilidad Neta",null,null,{"$f":"+SUM(H192:AA192)","v":96416.4955037131},null,null,{"$f":"+H187-H189-H190","v":12523.157902230416},{"$f":"+I187-I189-I190","v":4643.909800427391},-1156.3098349702423,9271.5503861128382,2885.2874205645321,11652.419090655105,3867.2880408367882,14248.938505172391,14695.921927151077,9319.678463381144,5661.7978737422918,8802.8559284093608,0,0,0,0,0,0,0,0]
[]
[null,"FLUJO DE CAJA PROYECTO"]
[]
[null,"(+) Utilidad Neta",null,null,{"$f":"SUM(G196:AA196)","v":96416.4955037131},null,null,{"$f":"H192","v":12523.157902230416},4643.909800427391,-1156.3098349702423,9271.5503861128382,2885.2874205645321,11652.419090655105,3867.2880408367882,14248.938505172391,14695.921927151077,9319.678463381144,5661.7978737422918,8802.8559284093608,0,0,0,0,0,0,0,0]
[null,"(+) NCC (Non Cash Charges)",null,null,{"$f":"SUM(G197:AA197)","v":97599.999999999985},null,null,{"$f":"H181","v":8133.333333333333},8133.333333333333,8133.333333333333,8133.333333333333,8133.333333333333,8133.333333333333,8133.333333333333,8133.333333333333,8133.333333333333,8133.333333333333,8133.333333333333,8133.333333333333,0,0,0,0,0,0,0,0]
[null,"(+) Int*(1-Impuestos)",null,null,{"$f":"SUM(G198:AA198)","v":18375.377908647064},null,null,{"$f":"H185*(1-SUM('Sup fijo'!$D$196:$D$197))","v":5636.4000000000015},{"$f":"I185*(1-SUM('Sup fijo'!$D$196:$D$197))","v":4783.7054185578836},{"$f":"J185*(1-SUM('Sup fijo'!$D$196:$D$197))","v":3811.6335957138699},{"$f":"K185*(1-SUM('Sup fijo'!$D$196:$D$197))","v":2703.471717671694},{"$f":"L185*(1-SUM('Sup fijo'!$D$196:$D$197))","v":1440.167176703613},{"$f":"M185*(1-SUM('Sup fijo'!$D$196:$D$197))","v":0},{"$f":"N185*(1-SUM('Sup fijo'!$D$196:$D$197))","v":0},{"$f":"O185*(1-SUM('Sup fijo'!$D$196:$D$197))","v":0},{"$f":"P185*(1-SUM('Sup fijo'!$D$196:$D$197))","v":0},{"$f":"Q185*(1-SUM('Sup fijo'!$D$196:$D$197))","v":0},{"$f":"R185*(1-SUM('Sup fijo'!$D$196:$D$197))","v":0},{"$f":"S185*(1-SUM('Sup fijo'!$D$196:$D$197))","v":0},{"$f":"T185*(1-SUM('Sup fijo'!$D$196:$D$197))","v":0},{"$f":"U185*(1-SUM('Sup fijo'!$D$196:$D$197))","v":0},{"$f":"V185*(1-SUM('Sup fijo'!$D$196:$D$197))","v":0},{"$f":"W185*(1-SUM('Sup fijo'!$D$196:$D$197))","v":0},{"$f":"X185*(1-SUM('Sup fijo'!$D$196:$D$197))","v":0},{"$f":"Y185*(1-SUM('Sup fijo'!$D$196:$D$197))","v":0},{"$f":"Z185*(1-SUM('Sup fijo'!$D$196:$D$197))","v":0},{"$f":"AA185*(1-SUM('Sup fijo'!$D$196:$D$197))","v":0}]
[null,"(-) CAPEX",null,null,{"$f":"SUM(G199:AA199)","v":97600},null,{"$f":"'CAPEX Vehículo'!C36","v":122000},{"$f":"IF(H$6='Sup fijo'!$H$53,-'Sup fijo'!$I$53*$G199,0)","v":0},{"$f":"IF(I$6='Sup fijo'!$H$53,-'Sup fijo'!$I$53*$G199,0)","v":0},{"$f":"IF(J$6='Sup fijo'!$H$53,-'Sup fijo'!$I$53*$G199,0)","v":0},{"$f":"IF(K$6='Sup fijo'!$H$53,-'Sup fijo'!$I$53*$G199,0)","v":0},{"$f":"IF(L$6='Sup fijo'!$H$53,-'Sup fijo'!$I$53*$G199,0)","v":0},{"$f":"IF(M$6='Sup fijo'!$H$53,-'Sup fijo'!$I$53*$G199,0)","v":0},{"$f":"IF(N$6='Sup fijo'!$H$53,-'Sup fijo'!$I$53*$G199,0)","v":0},{"$f":"IF(O$6='Sup fijo'!$H$53,-'Sup fijo'!$I$53*$G199,0)","v":0},{"$f":"IF(P$6='Sup fijo'!$H$53,-'Sup fijo'!$I$53*$G199,0)","v":0},{"$f":"IF(Q$6='Sup fijo'!$H$53,-'Sup fijo'!$I$53*$G199,0)","v":0},{"$f":"IF(R$6='Sup fijo'!$H$53,-'Sup fijo'!$I$53*$G199,0)","v":0},{"$f":"IF(S$6='Sup fijo'!$H$53,-'Sup fijo'!$I$53*$G199,0)","v":-24400},{"$f":"IF(T$6='Sup fijo'!$H$53,-'Sup fijo'!$I$53*$G199,0)","v":0},{"$f":"IF(U$6='Sup fijo'!$H$53,-'Sup fijo'!$I$53*$G199,0)","v":0},{"$f":"IF(V$6='Sup fijo'!$H$53,-'Sup fijo'!$I$53*$G199,0)","v":0},{"$f":"IF(W$6='Sup fijo'!$H$53,-'Sup fijo'!$I$53*$G199,0)","v":0},{"$f":"IF(X$6='Sup fijo'!$H$53,-'Sup fijo'!$I$53*$G199,0)","v":0},{"$f":"IF(Y$6='Sup fijo'!$H$53,-'Sup fijo'!$I$53*$G199,0)","v":0},{"$f":"IF(Z$6='Sup fijo'!$H$53,-'Sup fijo'!$I$53*$G199,0)","v":0},{"$f":"IF(AA$6='Sup fijo'!$H$53,-'Sup fijo'!$I$53*$G199,0)","v":0}]
[]
[null,"Flujo de caja libre",null,null,{"$f":"+SUM(H201:AA201)","v":236791.87341236015},null,{"$f":"G196+G197+G198-G199","v":-122000},{"$f":"H196+H197+H198-H199","v":26292.891235563751},17560.948552318609,10788.65709407696,20108.355437117865,12458.787930601478,19785.752423988437,12000.621374170121,22382.271838505723,22829.25526048441,17453.011796714476,13795.131207075625,41336.189261742693,0,0,0,0,0,0,0,0]
[]
[null,"FLUJO DE CAJA DEL CONCESIONARIO"]
[]
[null,"(+) FCFF",null,null,{"$f":"SUM(G205:AA205)","v":114791.87341236016},null,{"$f":"G201","v":-122000},26292.891235563751,17560.948552318609,10788.65709407696,20108.355437117865,12458.787930601478,19785.752423988437,12000.621374170121,22382.271838505723,22829.25526048441,17453.011796714476,13795.131207075625,41336.189261742693,0,0,0,0,0,0,0,0]
[null,"(-) Int*(1-Impuestos)",null,null,{"$f":"SUM(G206:AA206)","v":18375.377908647064},null,{"$f":"G198","v":0},5636.4000000000015,4783.7054185578836,3811.6335957138699,2703.471717671694,1440.167176703613,0,0,0,0,0,0,0,0,0,0,0,0,0,0,0]
[null,"(+) Endeudamiento Neto",null,null,{"$f":"SUM(G207:AA207)","v":1.8189894035458565E-11},null,{"$f":"G208-G209","v":73200},{"$f":"H208-H209","v":-11073.955603144383},-12624.309387584593,-14391.71270184644,-16406.55248010494,-18703.46982731963,0,0,0,0,0,0,0,0,0,0,0,0,0,0,0]
[null,"Desembolsos",null,null,null,null,{"$f":"'CAPEX Vehículo'!C31","v":73200}]
[null,"Amortizaciones",null,null,null,null,{"$f":"'CAPEX Vehículo'!C32","v":0},{"$f":"'CAPEX Vehículo'!D32","v":11073.955603144383},{"$f":"'CAPEX Vehículo'!E32","v":12624.309387584593},{"$f":"'CAPEX Vehículo'!F32","v":14391.71270184644},{"$f":"'CAPEX Vehículo'!G32","v":16406.55248010494},{"$f":"'CAPEX Vehículo'!H32","v":18703.46982731963},{"$f":"'CAPEX Vehículo'!I32","v":0},{"$f":"'CAPEX Vehículo'!J32","v":0},{"$f":"'CAPEX Vehículo'!K32","v":0},{"$f":"'CAPEX Vehículo'!L32","v":0},{"$f":"'CAPEX Vehículo'!M32","v":0},{"$f":"'CAPEX Vehículo'!N32","v":0},{"$f":"'CAPEX Vehículo'!O32","v":0},{"$f":"'CAPEX Vehículo'!P32","v":0},{"$f":"'CAPEX Vehículo'!Q32","v":0},{"$f":"'CAPEX Vehículo'!R32","v":0},{"$f":"'CAPEX Vehículo'!S32","v":0},{"$f":"'CAPEX Vehículo'!T32","v":0},{"$f":"'CAPEX Vehículo'!U32","v":0},{"$f":"'CAPEX Vehículo'!V32","v":0},{"$f":"'CAPEX Vehículo'!W32","v":0}]
[]
[null,"FCFE",null,null,{"$f":"+SUM(G211:AA211)","v":96416.495503713115},null,{"$f":"G205+G207-G206","v":-48800},{"$f":"H205+H207-H206","v":9582.5356324193672},152.93374617613154,-7414.68920348335,998.33123934123159,-7684.8490734217648,19785.752423988437,12000.621374170121,22382.271838505723,22829.25526048441,17453.011796714476,13795.131207075625,41336.189261742693,0,0,0,0,0,0,0,0]
[]
[null,"(+) Equity",null,null,{"$f":"SUM(G213:AA213)","v":63899.538276905114},null,{"$f":"IF(G211<0,-G211,0)","v":48800},{"$f":"IF(H211<0,-H211,0)","v":0},0,7414.68920348335,0,7684.8490734217648,0,0,0,0,0,0,0,0,0,0,0,0,0,0,0]
[null,"(-) Dividendos",null,null,{"$f":"SUM(G214:AA214)","v":160316.03378061822},null,{"$f":"IF(G211>0,G211,0)","v":0},{"$f":"IF(H211>0,H211,0)","v":9582.5356324193672},152.93374617613154,0,998.33123934123159,0,19785.752423988437,12000.621374170121,22382.271838505723,22829.25526048441,17453.011796714476,13795.131207075625,41336.189261742693,0,0,0,0,0,0,0,0]
[null,"Cambio neto en caja",null,null,{"$f":"+SUM(H215:AA215)","v":0},null,{"$f":"G211+G213-G214","v":0},{"$f":"H211+H213-H214","v":0},0,0,0,0,0,0,0,0,0,0,0,0,0,0,0,0,0,0,0]
[]
[null,{"$f":"B144","v":"Gastos del ente Gestor"},null,null,{"$f":"SUM(H217:AA217)","v":0},null,null,{"$f":"IF(H169=0,0,'OPEX Personal Indirecto'!D$13)","v":0},{"$f":"IF(I169=0,0,'OPEX Personal Indirecto'!E$13)","v":0},{"$f":"IF(J169=0,0,'OPEX Personal Indirecto'!F$13)","v":0},{"$f":"IF(K169=0,0,'OPEX Personal Indirecto'!G$13)","v":0},{"$f":"IF(L169=0,0,'OPEX Personal Indirecto'!H$13)","v":0},{"$f":"IF(M169=0,0,'OPEX Personal Indirecto'!I$13)","v":0},{"$f":"IF(N169=0,0,'OPEX Personal Indirecto'!J$13)","v":0},{"$f":"IF(O169=0,0,'OPEX Personal Indirecto'!K$13)","v":0},{"$f":"IF(P169=0,0,'OPEX Personal Indirecto'!L$13)","v":0},{"$f":"IF(Q169=0,0,'OPEX Personal Indirecto'!M$13)","v":0},{"$f":"IF(R169=0,0,'OPEX Personal Indirecto'!N$13)","v":0},{"$f":"IF(S169=0,0,'OPEX Personal Indirecto'!O$13)","v":0},{"$f":"IF(T169=0,0,'OPEX Personal Indirecto'!P$13)","v":0},{"$f":"IF(U169=0,0,'OPEX Personal Indirecto'!Q$13)","v":0},{"$f":"IF(V169=0,0,'OPEX Personal Indirecto'!R$13)","v":0},{"$f":"IF(W169=0,0,'OPEX Personal Indirecto'!S$13)","v":0},{"$f":"IF(X169=0,0,'OPEX Personal Indirecto'!T$13)","v":0},{"$f":"IF(Y169=0,0,'OPEX Personal Indirecto'!U$13)","v":0},{"$f":"IF(Z169=0,0,'OPEX Personal Indirecto'!V$13)","v":0},{"$f":"IF(AA169=0,0,'OPEX Personal Indirecto'!W$13)","v":0}]
[]
[null,"Flujo del PROYECTO",null,null,{"$f":"+SUM(H219:AA219)","v":-1394956.7048219559},null,null,{"$f":"-H169-H217","v":-107968.51451555554},{"$f":"-I169-I217","v":-109696.01074780441},-112548.10702724733,-113034.31484960506,-113339.50749969899,-114098.88219994697,-116313.68412705068,-118332.18089698367,-120055.17371963224,-121661.598995726,-123249.68626022554,-124659.04398247959,0,0,0,0,0,0,0,0]
[]
[]
[]
[]
[null,null,null,null,null,null,{"$f":"G211","v":-48800},{"$f":"H211/(1+rentabilidadobj)^COUNTA($H$6:H$6)","v":8480.1200286897056},{"$f":"I211/(1+rentabilidadobj)^COUNTA($H$6:I$6)","v":119.76955609376738},{"$f":"J211/(1+rentabilidadobj)^COUNTA($H$6:J$6)","v":-5138.7515557128145},{"$f":"K211/(1+rentabilidadobj)^COUNTA($H$6:K$6)","v":612.29524551533962},{"$f":"L211/(1+rentabilidadobj)^COUNTA($H$6:L$6)","v":-4171.0281912558194},{"$f":"M211/(1+rentabilidadobj)^COUNTA($H$6:M$6)","v":9503.4634684468147},{"$f":"N211/(1+rentabilidadobj)^COUNTA($H$6:N$6)","v":5100.9918466584631},{"$f":"O211/(1+rentabilidadobj)^COUNTA($H$6:O$6)","v":8419.3122798021141},{"$f":"P211/(1+rentabilidadobj)^COUNTA($H$6:P$6)","v":7599.5128336334119},{"$f":"Q211/(1+rentabilidadobj)^COUNTA($H$6:Q$6)","v":5141.4539150198998},{"$f":"R211/(1+rentabilidadobj)^COUNTA($H$6:R$6)","v":3596.3583313943122},{"$f":"S211/(1+rentabilidadobj)^COUNTA($H$6:S$6)","v":9536.5022417148339},{"$f":"T211/(1+rentabilidadobj)^COUNTA($H$6:T$6)","v":0},{"$f":"U211/(1+rentabilidadobj)^COUNTA($H$6:U$6)","v":0},{"$f":"V211/(1+rentabilidadobj)^COUNTA($H$6:V$6)","v":0},{"$f":"W211/(1+rentabilidadobj)^COUNTA($H$6:W$6)","v":0},{"$f":"X211/(1+rentabilidadobj)^COUNTA($H$6:X$6)","v":0},{"$f":"Y211/(1+rentabilidadobj)^COUNTA($H$6:Y$6)","v":0},{"$f":"Z211/(1+rentabilidadobj)^COUNTA($H$6:Z$6)","v":0},{"$f":"AA211/(1+rentabilidadobj)^COUNTA($H$6:AA$6)","v":0}]
[null,null,null,null,null,null,null,{"$f":"SUM(G224:AA224)","v":2.9103830456733704E-11}]
[]
[null,{"$f":"'Sup fijo'!B26","v":"Otro"}]
[null,null,{"$f":"C238/0.893481776513347","v":0.34341545718642175}]
[null,"Supuestos"]
[null,"Demanda Anual",null,null,{"$f":"+SUM(H230:AA230)","v":6974000},null,null,{"$f":"'Sup fijo'!E46","v":348700},{"$f":"'Sup fijo'!F46","v":348700},{"$f":"'Sup fijo'!G46","v":348700},{"$f":"'Sup fijo'!H46","v":348700},{"$f":"'Sup fijo'!I46","v":348700},{"$f":"'Sup fijo'!J46","v":348700},{"$f":"'Sup fijo'!K46","v":348700},{"$f":"'Sup fijo'!L46","v":348700},{"$f":"'Sup fijo'!M46","v":348700},{"$f":"'Sup fijo'!N46","v":348700},{"$f":"'Sup fijo'!O46","v":348700},{"$f":"'Sup fijo'!P46","v":348700},{"$f":"'Sup fijo'!Q46","v":348700},{"$f":"'Sup fijo'!R46","v":348700},{"$f":"'Sup fijo'!S46","v":348700},{"$f":"'Sup fijo'!T46","v":348700},{"$f":"'Sup fijo'!U46","v":348700},{"$f":"'Sup fijo'!V46","v":348700},{"$f":"'Sup fijo'!W46","v":348700},{"$f":"'Sup fijo'!X46","v":348700}]
[null,"kilómetros Anual",null,null,{"$f":"+SUM(H231:AA231)","v":1316000},null,null,{"$f":"'Sup fijo'!E29","v":65800},{"$f":"'Sup fijo'!F29","v":65800},{"$f":"'Sup fijo'!G29","v":65800},{"$f":"'Sup fijo'!H29","v":65800},{"$f":"'Sup fijo'!I29","v":65800},{"$f":"'Sup fijo'!J29","v":65800},{"$f":"'Sup fijo'!K29","v":65800},{"$f":"'Sup fijo'!L29","v":65800},{"$f":"'Sup fijo'!M29","v":65800},{"$f":"'Sup fijo'!N29","v":65800},{"$f":"'Sup fijo'!O29","v":65800},{"$f":"'Sup fijo'!P29","v":65800},{"$f":"'Sup fijo'!Q29","v":65800},{"$f":"'Sup fijo'!R29","v":65800},{"$f":"'Sup fijo'!S29","v":65800},{"$f":"'Sup fijo'!T29","v":65800},{"$f":"'Sup fijo'!U29","v":65800},{"$f":"'Sup fijo'!V29","v":65800},{"$f":"'Sup fijo'!W29","v":65800},{"$f":"'Sup fijo'!X29","v":65800}]
[null,"Tir accionista ",{"$f":"IFERROR(+IRR(G284:AA284),\"N/A\")","v":0.12999999999985801}]
[]
[null,"Aportes capital ",{"$f":"E286","v":95198.410600798074}]
[]
[null,"Resultados Tarifas"]
[null,"Tarifa técnica por pasajero",{"$f":"SUM(C238:C238)","v":0.30683545276906737},null,null,null,null,{"$f":"SUM(H238:H238)","v":0.31419950363552501},0.31922669569369339,0.32752658978172944,0.32894150464958655,0.32982964671214043,0.33203950534511173,0.33848480719324209,0.34435884080432294,0.34937292747646809,0.3540477905755941,0.35866928817120808,0.36277066438041133,0.36724157800722057,0.37220940056092056,0.3775620774812431,0.38275431790931658,0.38784563232809149,0.39294363974868957,0.39809705091129122,0.4033211123585953]
[null,"Tarifa operador privado",0.30683545276906737,null,null,null,null,{"$f":"$C238*(1+'Sup Generales'!C$8)","v":0.31419950363552501},{"$f":"$C238*(1+'Sup Generales'!D$8)","v":0.31922669569369339},{"$f":"$C238*(1+'Sup Generales'!E$8)","v":0.32752658978172944},{"$f":"$C238*(1+'Sup Generales'!F$8)","v":0.32894150464958655},{"$f":"$C238*(1+'Sup Generales'!G$8)","v":0.32982964671214043},{"$f":"$C238*(1+'Sup Generales'!H$8)","v":0.33203950534511173},{"$f":"$C238*(1+'Sup Generales'!I$8)","v":0.33848480719324209},{"$f":"$C238*(1+'Sup Generales'!J$8)","v":0.34435884080432294},{"$f":"$C238*(1+'Sup Generales'!K$8)","v":0.34937292747646809},{"$f":"$C238*(1+'Sup Generales'!L$8)","v":0.3540477905755941},{"$f":"$C238*(1+'Sup Generales'!M$8)","v":0.35866928817120808},{"$f":"$C238*(1+'Sup Generales'!N$8)","v":0.36277066438041133},{"$f":"$C238*(1+'Sup Generales'!O$8)","v":0.36724157800722057},{"$f":"$C238*(1+'Sup Generales'!P$8)","v":0.37220940056092056},{"$f":"$C238*(1+'Sup Generales'!Q$8)","v":0.3775620774812431},{"$f":"$C238*(1+'Sup Generales'!R$8)","v":0.38275431790931658},{"$f":"$C238*(1+'Sup Generales'!S$8)","v":0.38784563232809149},{"$f":"$C238*(1+'Sup Generales'!T$8)","v":0.39294363974868957},{"$f":"$C238*(1+'Sup Generales'!U$8)","v":0.39809705091129122},{"$f":"$C238*(1+'Sup Generales'!V$8)","v":0.4033211123585953}]
[null,"Costo ente gestor",{"$f":"H239","v":0},null,null,null,null,{"$f":"H290/H230","v":0},{"$f":"I290/I230","v":0},0,0,0,0,0,0,0,0,0,0,0,0,0,0,0,0,0,0]
[]
[null,"P&G",null,null,"Total "]
[null,"(+) Ingresos ",null,null,{"$f":"+SUM(H242:AA242)","v":1415536.4094529168},null,null,{"$f":"+H230*H238*IF(H$6>'Sup fijo'!$H$51,0,1)","v":109561.36691770758},{"$f":"+I230*I238*IF(I$6>'Sup fijo'!$H$51,0,1)","v":111314.34878839088},{"$f":"+J230*J238*IF(J$6>'Sup fijo'!$H$51,0,1)","v":114208.52185688906},{"$f":"+K230*K238*IF(K$6>'Sup fijo'!$H$51,0,1)","v":114701.90267131083},{"$f":"+L230*L238*IF(L$6>'Sup fijo'!$H$51,0,1)","v":115011.59780852337},{"$f":"+M230*M238*IF(M$6>'Sup fijo'!$H$51,0,1)","v":115782.17551384046},{"$f":"+N230*N238*IF(N$6>'Sup fijo'!$H$51,0,1)","v":118029.65226828352},{"$f":"+O230*O238*IF(O$6>'Sup fijo'!$H$51,0,1)","v":120077.92778846741},{"$f":"+P230*P238*IF(P$6>'Sup fijo'!$H$51,0,1)","v":121826.33981104443},{"$f":"+Q230*Q238*IF(Q$6>'Sup fijo'!$H$51,0,1)","v":123456.46457370966},{"$f":"+R230*R238*IF(R$6>'Sup fijo'!$H$51,0,1)","v":125067.98078530026},{"$f":"+S230*S238*IF(S$6>'Sup fijo'!$H$51,0,1)","v":126498.13066944943},{"$f":"+T230*T238*IF(T$6>'Sup fijo'!$H$51,0,1)","v":0},{"$f":"+U230*U238*IF(U$6>'Sup fijo'!$H$51,0,1)","v":0},{"$f":"+V230*V238*IF(V$6>'Sup fijo'!$H$51,0,1)","v":0},{"$f":"+W230*W238*IF(W$6>'Sup fijo'!$H$51,0,1)","v":0},{"$f":"+X230*X238*IF(X$6>'Sup fijo'!$H$51,0,1)","v":0},{"$f":"+Y230*Y238*IF(Y$6>'Sup fijo'!$H$51,0,1)","v":0},{"$f":"+Z230*Z238*IF(Z$6>'Sup fijo'!$H$51,0,1)","v":0},{"$f":"+AA230*AA238*IF(AA$6>'Sup fijo'!$H$51,0,1)","v":0}]
[]
[null,"(-) Costo conductores ",null,null,{"$f":"+SUM(H244:AA244)","v":325529.13308472914},null,null,{"$f":"+'OPEX Personal Directo'!C29","v":24077.204571428578},{"$f":"+'OPEX Personal Directo'!D29","v":24658.139363328002},{"$f":"+'OPEX Personal Directo'!E29","v":25501.644994668735},{"$f":"+'OPEX Personal Directo'!F29","v":25816.706597854063},{"$f":"+'OPEX Personal Directo'!G29","v":26093.502999313612},{"$f":"+'OPEX Personal Directo'!H29","v":26478.476105164289},{"$f":"+'OPEX Personal Directo'!I29","v":27208.396075856344},{"$f":"+'OPEX Personal Directo'!J29","v":27902.012574814184},{"$f":"+'OPEX Personal Directo'!K29","v":28534.750132515506},{"$f":"+'OPEX Personal Directo'!L29","v":29147.898306007155},{"$f":"+'OPEX Personal Directo'!M29","v":29764.602025807988},{"$f":"+'OPEX Personal Directo'!N29","v":30345.7993379707},{"$f":"+'OPEX Personal Directo'!O29","v":0},{"$f":"+'OPEX Personal Directo'!P29","v":0},{"$f":"+'OPEX Personal Directo'!Q29","v":0},{"$f":"+'OPEX Personal Directo'!R29","v":0},{"$f":"+'OPEX Personal Directo'!S29","v":0},{"$f":"+'OPEX Personal Directo'!T29","v":0},{"$f":"+'OPEX Personal Directo'!U29","v":0},{"$f":"+'OPEX Personal Directo'!V29","v":0}]
[null,"(-) Costo combustible ",null,null,{"$f":"+SUM(H245:AA245)","v":185104.96060590024},null,null,{"$f":"IF(H242=0,0,'OPEX Combustible '!H65)","v":14091.036667805092},{"$f":"IF(I242=0,0,'OPEX Combustible '!I65)","v":14457.403621168023},{"$f":"IF(J242=0,0,'OPEX Combustible '!J65)","v":14519.85960481147},{"$f":"IF(K242=0,0,'OPEX Combustible '!K65)","v":14631.85854187318},{"$f":"IF(L242=0,0,'OPEX Combustible '!L65)","v":14803.541454074248},{"$f":"IF(M242=0,0,'OPEX Combustible '!M65)","v":15166.35118161527},{"$f":"IF(N242=0,0,'OPEX Combustible '!N65)","v":15506.694351266477},{"$f":"IF(O242=0,0,'OPEX Combustible '!O65)","v":15811.144224647858},{"$f":"IF(P242=0,0,'OPEX Combustible '!P65)","v":16102.822342992251},{"$f":"IF(Q242=0,0,'OPEX Combustible '!Q65)","v":16394.582655094026},{"$f":"IF(R242=0,0,'OPEX Combustible '!R65)","v":16664.964655086362},{"$f":"IF(S242=0,0,'OPEX Combustible '!S65)","v":16954.701305465958},{"$f":"IF(T242=0,0,'OPEX Combustible '!T65)","v":0},{"$f":"IF(U242=0,0,'OPEX Combustible '!U65)","v":0},{"$f":"IF(V242=0,0,'OPEX Combustible '!V65)","v":0},{"$f":"IF(W242=0,0,'OPEX Combustible '!W65)","v":0},{"$f":"IF(X242=0,0,'OPEX Combustible '!X65)","v":0},{"$f":"IF(Y242=0,0,'OPEX Combustible '!Y65)","v":0},{"$f":"IF(Z242=0,0,'OPEX Combustible '!Z65)","v":0},{"$f":"IF(AA242=0,0,'OPEX Combustible '!AA65)","v":0}]
[null,"(-) Costo impuestos + seguros ",null,null,69714.733273218517,null,null,{"$f":"+'OPEX impuestos'!C83+'OPEX impuestos'!C97+'OPEX impuestos'!C102+'OPEX Otros Gastos'!C35","v":6458.2673187733335},{"$f":"+'OPEX impuestos'!D83+'OPEX impuestos'!D97+'OPEX impuestos'!D102+'OPEX Otros Gastos'!D35","v":6603.392866870613},{"$f":"+'OPEX impuestos'!E83+'OPEX impuestos'!E97+'OPEX impuestos'!E102+'OPEX Otros Gastos'!E35","v":6708.5911849837266},{"$f":"+'OPEX impuestos'!F83+'OPEX impuestos'!F97+'OPEX impuestos'!F102+'OPEX Otros Gastos'!F35","v":6591.0354791879081},{"$f":"+'OPEX impuestos'!G83+'OPEX impuestos'!G97+'OPEX impuestos'!G102+'OPEX Otros Gastos'!G35","v":5675.4329572287443},{"$f":"+'OPEX impuestos'!H83+'OPEX impuestos'!H97+'OPEX impuestos'!H102+'OPEX Otros Gastos'!H35","v":5077.2488438837054},{"$f":"+'OPEX impuestos'!I83+'OPEX impuestos'!I97+'OPEX impuestos'!I102+'OPEX Otros Gastos'!I35","v":4223.1996480092303},{"$f":"+'OPEX impuestos'!J83+'OPEX impuestos'!J97+'OPEX impuestos'!J102+'OPEX Otros Gastos'!J35","v":6491.435743486034},{"$f":"+'OPEX impuestos'!K83+'OPEX impuestos'!K97+'OPEX impuestos'!K102+'OPEX Otros Gastos'!K35","v":4178.231787145789},{"$f":"+'OPEX impuestos'!L83+'OPEX impuestos'!L97+'OPEX impuestos'!L102+'OPEX Otros Gastos'!L35","v":6288.8815754855905},{"$f":"+'OPEX impuestos'!M83+'OPEX impuestos'!M97+'OPEX impuestos'!M102+'OPEX Otros Gastos'!M35","v":6537.1916441180574},{"$f":"+'OPEX impuestos'!N83+'OPEX impuestos'!N97+'OPEX impuestos'!N102+'OPEX Otros Gastos'!N35","v":4881.8242240457839},{"$f":"+'OPEX impuestos'!O83+'OPEX impuestos'!O97+'OPEX impuestos'!O102+'OPEX Otros Gastos'!O35","v":0},{"$f":"+'OPEX impuestos'!P83+'OPEX impuestos'!P97+'OPEX impuestos'!P102+'OPEX Otros Gastos'!P35","v":0},{"$f":"+'OPEX impuestos'!Q83+'OPEX impuestos'!Q97+'OPEX impuestos'!Q102+'OPEX Otros Gastos'!Q35","v":0},{"$f":"+'OPEX impuestos'!R83+'OPEX impuestos'!R97+'OPEX impuestos'!R102+'OPEX Otros Gastos'!R35","v":0},{"$f":"+'OPEX impuestos'!S83+'OPEX impuestos'!S97+'OPEX impuestos'!S102+'OPEX Otros Gastos'!S35","v":0},{"$f":"+'OPEX impuestos'!T83+'OPEX impuestos'!T97+'OPEX impuestos'!T102+'OPEX Otros Gastos'!T35","v":0},{"$f":"+'OPEX impuestos'!U83+'OPEX impuestos'!U97+'OPEX impuestos'!U102+'OPEX Otros Gastos'!U35","v":0},{"$f":"+'OPEX impuestos'!V83+'OPEX impuestos'!V97+'OPEX impuestos'!V102+'OPEX Otros Gastos'!V35","v":0}]
[null,"(-) Costo Mantenimiento ",null,null,281020.92078825482,null,null,{"$f":"+'OPEX Mtto'!C45","v":15317.431637333335},{"$f":"+'OPEX Mtto'!D45","v":19139.506515694931},{"$f":"+'OPEX Mtto'!E45","v":22722.881707107008},{"$f":"+'OPEX Mtto'!F45","v":25055.558989152145},{"$f":"+'OPEX Mtto'!G45","v":21732.523065139354},{"$f":"+'OPEX Mtto'!H45","v":22205.569119563948},{"$f":"+'OPEX Mtto'!I45","v":17769.906651666217},{"$f":"+'OPEX Mtto'!J45","v":31177.71494876215},{"$f":"+'OPEX Mtto'!K45","v":18408.636409082141},{"$f":"+'OPEX Mtto'!L45","v":30919.815045137577},{"$f":"+'OPEX Mtto'!M45","v":32789.22436026128},{"$f":"+'OPEX Mtto'!N45","v":23782.152339354732},{"$f":"+'OPEX Mtto'!O45","v":0},{"$f":"+'OPEX Mtto'!P45","v":0},{"$f":"+'OPEX Mtto'!Q45","v":0},{"$f":"+'OPEX Mtto'!R45","v":0},{"$f":"+'OPEX Mtto'!S45","v":0},{"$f":"+'OPEX Mtto'!T45","v":0},{"$f":"+'OPEX Mtto'!U45","v":0},{"$f":"+'OPEX Mtto'!V45","v":0}]
[null,"(-) Costo personal ",null,null,126407.90616607876,null,null,{"$f":"'OPEX Personal Indirecto'!D$8*IF(H$6>'Sup fijo'!$H$54,0,1)","v":9349.5441939890716},{"$f":"'OPEX Personal Indirecto'!E$8*IF(I$6>'Sup fijo'!$H$54,0,1)","v":9575.1299963016409},{"$f":"'OPEX Personal Indirecto'!F$8*IF(J$6>'Sup fijo'!$H$54,0,1)","v":9902.6760432151295},{"$f":"'OPEX Personal Indirecto'!G$8*IF(K$6>'Sup fijo'!$H$54,0,1)","v":10025.019248551593},{"$f":"'OPEX Personal Indirecto'!H$8*IF(L$6>'Sup fijo'!$H$54,0,1)","v":10132.503494926863},{"$f":"'OPEX Personal Indirecto'!I$8*IF(M$6>'Sup fijo'!$H$54,0,1)","v":10281.994398489616},{"$f":"'OPEX Personal Indirecto'!J$8*IF(N$6>'Sup fijo'!$H$54,0,1)","v":10565.433408355357},{"$f":"'OPEX Personal Indirecto'!K$8*IF(O$6>'Sup fijo'!$H$54,0,1)","v":10834.775228808285},{"$f":"'OPEX Personal Indirecto'!L$8*IF(P$6>'Sup fijo'!$H$54,0,1)","v":11080.476831806887},{"$f":"'OPEX Personal Indirecto'!M$8*IF(Q$6>'Sup fijo'!$H$54,0,1)","v":11318.571579414205},{"$f":"'OPEX Personal Indirecto'!N$8*IF(R$6>'Sup fijo'!$H$54,0,1)","v":11558.046999651217},{"$f":"'OPEX Personal Indirecto'!O$8*IF(S$6>'Sup fijo'!$H$54,0,1)","v":11783.734742568889},{"$f":"'OPEX Personal Indirecto'!P$8*IF(T$6>'Sup fijo'!$H$54,0,1)","v":0},{"$f":"'OPEX Personal Indirecto'!Q$8*IF(U$6>'Sup fijo'!$H$54,0,1)","v":0},{"$f":"'OPEX Personal Indirecto'!R$8*IF(V$6>'Sup fijo'!$H$54,0,1)","v":0},{"$f":"'OPEX Personal Indirecto'!S$8*IF(W$6>'Sup fijo'!$H$54,0,1)","v":0},{"$f":"'OPEX Personal Indirecto'!T$8*IF(X$6>'Sup fijo'!$H$54,0,1)","v":0},{"$f":"'OPEX Personal Indirecto'!U$8*IF(Y$6>'Sup fijo'!$H$54,0,1)","v":0},{"$f":"'OPEX Personal Indirecto'!V$8*IF(Z$6>'Sup fijo'!$H$54,0,1)","v":0},{"$f":"'OPEX Personal Indirecto'!W$8*IF(AA$6>'Sup fijo'!$H$54,0,1)","v":0}]
[null,"(-) Administración y otros ",null,null,29822.527298938021,null,null,{"$f":"'OPEX Otros Gastos'!C$37","v":2308.2393600000005},{"$f":"'OPEX Otros Gastos'!D$37*IF(I$6>'Sup fijo'!$H$54,0,1)","v":2345.1711897599994},{"$f":"'OPEX Otros Gastos'!E$37*IF(J$6>'Sup fijo'!$H$54,0,1)","v":2406.14564069376},{"$f":"'OPEX Otros Gastos'!F$37*IF(K$6>'Sup fijo'!$H$54,0,1)","v":2416.5401898615573},{"$f":"'OPEX Otros Gastos'!G$37*IF(L$6>'Sup fijo'!$H$54,0,1)","v":2423.0648483741834},{"$f":"'OPEX Otros Gastos'!H$37*IF(M$6>'Sup fijo'!$H$54,0,1)","v":2439.2993828582903},{"$f":"'OPEX Otros Gastos'!I$37*IF(N$6>'Sup fijo'!$H$54,0,1)","v":2486.6492330037981},{"$f":"'OPEX Otros Gastos'!J$37*IF(O$6>'Sup fijo'!$H$54,0,1)","v":2529.8023106699811},{"$f":"'OPEX Otros Gastos'!K$37*IF(P$6>'Sup fijo'!$H$54,0,1)","v":2566.6378628499824},{"$f":"'OPEX Otros Gastos'!L$37*IF(Q$6>'Sup fijo'!$H$54,0,1)","v":2600.9813385180137},{"$f":"'OPEX Otros Gastos'!M$37*IF(R$6>'Sup fijo'!$H$54,0,1)","v":2634.9327691501771},{"$f":"'OPEX Otros Gastos'!N$37*IF(S$6>'Sup fijo'!$H$54,0,1)","v":2665.0631731982762},{"$f":"'OPEX Otros Gastos'!O$37*IF(T$6>'Sup fijo'!$H$54,0,1)","v":0},{"$f":"'OPEX Otros Gastos'!P$37*IF(U$6>'Sup fijo'!$H$54,0,1)","v":0},{"$f":"'OPEX Otros Gastos'!Q$37*IF(V$6>'Sup fijo'!$H$54,0,1)","v":0},{"$f":"'OPEX Otros Gastos'!R$37*IF(W$6>'Sup fijo'!$H$54,0,1)","v":0},{"$f":"'OPEX Otros Gastos'!S$37*IF(X$6>'Sup fijo'!$H$54,0,1)","v":0},{"$f":"'OPEX Otros Gastos'!T$37*IF(Y$6>'Sup fijo'!$H$54,0,1)","v":0},{"$f":"'OPEX Otros Gastos'!U$37*IF(Z$6>'Sup fijo'!$H$54,0,1)","v":0},{"$f":"'OPEX Otros Gastos'!V$37*IF(AA$6>'Sup fijo'!$H$54,0,1)","v":0}]
[null,"Total OPEX",null,null,1017600.1812171194,null,null,{"$f":"+SUM(H244:H249)","v":71601.723749329409},76778.743553123204,81761.799175479842,84536.719046480444,80860.568819057007,81648.939031575122,77760.279368157426,94746.885031188503,80871.555366392553,96670.730499656565,99948.962454075081,90413.275122604347,0,0,0,0,0,0,0,0]
[]
[null,"EBITDA",null,null,{"$f":"+SUM(H252:AA252)","v":397936.22823579732},null,null,{"$f":"+H242-H250","v":37959.64316837817},34535.605235267678,32446.722681409214,30165.183624830388,34151.028989466358,34133.236482265333,40269.372900126094,25331.042757278905,40954.784444651872,26785.734074053093,25119.018331225176,36084.85554684508,0,0,0,0,0,0,0,0]
[]
[null,"(-) Depreciación",null,null,{"$f":"+SUM(H254:AA254)","v":164862.86400000006},null,null,{"$f":"'CAPEX Vehículo'!D48","v":13738.572000000002},{"$f":"'CAPEX Vehículo'!E48","v":13738.572000000002},{"$f":"'CAPEX Vehículo'!F48","v":13738.572000000002},{"$f":"'CAPEX Vehículo'!G48","v":13738.572000000002},{"$f":"'CAPEX Vehículo'!H48","v":13738.572000000002},{"$f":"'CAPEX Vehículo'!I48","v":13738.572000000002},{"$f":"'CAPEX Vehículo'!J48","v":13738.572000000002},{"$f":"'CAPEX Vehículo'!K48","v":13738.572000000002},{"$f":"'CAPEX Vehículo'!L48","v":13738.572000000002},{"$f":"'CAPEX Vehículo'!M48","v":13738.572000000002},{"$f":"'CAPEX Vehículo'!N48","v":13738.572000000002},{"$f":"'CAPEX Vehículo'!O48","v":13738.572000000002},{"$f":"'CAPEX Vehículo'!P48","v":0},{"$f":"'CAPEX Vehículo'!Q48","v":0},{"$f":"'CAPEX Vehículo'!R48","v":0},{"$f":"'CAPEX Vehículo'!S48","v":0},{"$f":"'CAPEX Vehículo'!T48","v":0},{"$f":"'CAPEX Vehículo'!U48","v":0},{"$f":"'CAPEX Vehículo'!V48","v":0},{"$f":"'CAPEX Vehículo'!W48","v":0}]
[]
[null,"EBIT",null,null,{"$f":"+SUM(H256:AA256)","v":233073.36423579731},null,null,{"$f":"H252-H254","v":24221.07116837817},{"$f":"I252-I254","v":20797.033235267678},18708.150681409214,16426.611624830388,20412.456989466358,20394.664482265332,26530.800900126094,11592.470757278903,27216.212444651872,13047.162074053091,11380.446331225174,22346.283546845079,0,0,0,0,0,0,0,0]
[]
[null,"(-) Intereses",null,null,{"$f":"+SUM(H258:AA258)","v":56434.750914714677},null,null,{"$f":"'CAPEX Vehículo'!D45","v":17310.600720000002},{"$f":"'CAPEX Vehículo'!E45","v":14691.79165118799},{"$f":"'CAPEX Vehículo'!F45","v":11706.349312742297},{"$f":"'CAPEX Vehículo'!G45","v":8302.9450469142066},{"$f":"'CAPEX Vehículo'!H45","v":4423.0641838701858},{"$f":"'CAPEX Vehículo'!I45","v":0},{"$f":"'CAPEX Vehículo'!J45","v":0},{"$f":"'CAPEX Vehículo'!K45","v":0},{"$f":"'CAPEX Vehículo'!L45","v":0},{"$f":"'CAPEX Vehículo'!M45","v":0},{"$f":"'CAPEX Vehículo'!N45","v":0},{"$f":"'CAPEX Vehículo'!O45","v":0},{"$f":"'CAPEX Vehículo'!P45","v":0},{"$f":"'CAPEX Vehículo'!Q45","v":0},{"$f":"'CAPEX Vehículo'!R45","v":0},{"$f":"'CAPEX Vehículo'!S45","v":0},{"$f":"'CAPEX Vehículo'!T45","v":0},{"$f":"'CAPEX Vehículo'!U45","v":0},{"$f":"'CAPEX Vehículo'!V45","v":0},{"$f":"'CAPEX Vehículo'!W45","v":0}]
[]
[null,"EBT",null,null,{"$f":"+SUM(H260:AA260)","v":176638.61332108267},null,null,{"$f":"+H256-H258","v":6910.4704483781679},{"$f":"+I256-I258","v":6105.2415840796875},7001.8013686669165,8123.6665779161813,15989.392805596173,20394.664482265332,26530.800900126094,11592.470757278903,27216.212444651872,13047.162074053091,11380.446331225174,22346.283546845079,0,0,0,0,0,0,0,0]
[]
[null,"Participación empleados ",null,null,{"$f":"+SUM(H262:AA262)","v":0},null,null,{"$f":"+IF(H260<0,0,H260*'Sup fijo'!$D$196)*IF('Sup fijo'!$D$200=\"No\",0,1)","v":0},{"$f":"+IF(I260<0,0,I260*'Sup fijo'!$D$196)*IF('Sup fijo'!$D$200=\"No\",0,1)","v":0},{"$f":"+IF(J260<0,0,J260*'Sup fijo'!$D$196)*IF('Sup fijo'!$D$200=\"No\",0,1)","v":0},{"$f":"+IF(K260<0,0,K260*'Sup fijo'!$D$196)*IF('Sup fijo'!$D$200=\"No\",0,1)","v":0},{"$f":"+IF(L260<0,0,L260*'Sup fijo'!$D$196)*IF('Sup fijo'!$D$200=\"No\",0,1)","v":0},{"$f":"+IF(M260<0,0,M260*'Sup fijo'!$D$196)*IF('Sup fijo'!$D$200=\"No\",0,1)","v":0},{"$f":"+IF(N260<0,0,N260*'Sup fijo'!$D$196)*IF('Sup fijo'!$D$200=\"No\",0,1)","v":0},{"$f":"+IF(O260<0,0,O260*'Sup fijo'!$D$196)*IF('Sup fijo'!$D$200=\"No\",0,1)","v":0},{"$f":"+IF(P260<0,0,P260*'Sup fijo'!$D$196)*IF('Sup fijo'!$D$200=\"No\",0,1)","v":0},{"$f":"+IF(Q260<0,0,Q260*'Sup fijo'!$D$196)*IF('Sup fijo'!$D$200=\"No\",0,1)","v":0},{"$f":"+IF(R260<0,0,R260*'Sup fijo'!$D$196)*IF('Sup fijo'!$D$200=\"No\",0,1)","v":0},{"$f":"+IF(S260<0,0,S260*'Sup fijo'!$D$196)*IF('Sup fijo'!$D$200=\"No\",0,1)","v":0},{"$f":"+IF(T260<0,0,T260*'Sup fijo'!$D$196)*IF('Sup fijo'!$D$200=\"No\",0,1)","v":0},{"$f":"+IF(U260<0,0,U260*'Sup fijo'!$D$196)*IF('Sup fijo'!$D$200=\"No\",0,1)","v":0},{"$f":"+IF(V260<0,0,V260*'Sup fijo'!$D$196)*IF('Sup fijo'!$D$200=\"No\",0,1)","v":0},{"$f":"+IF(W260<0,0,W260*'Sup fijo'!$D$196)*IF('Sup fijo'!$D$200=\"No\",0,1)","v":0},{"$f":"+IF(X260<0,0,X260*'Sup fijo'!$D$196)*IF('Sup fijo'!$D$200=\"No\",0,1)","v":0},{"$f":"+IF(Y260<0,0,Y260*'Sup fijo'!$D$196)*IF('Sup fijo'!$D$200=\"No\",0,1)","v":0},{"$f":"+IF(Z260<0,0,Z260*'Sup fijo'!$D$196)*IF('Sup fijo'!$D$200=\"No\",0,1)","v":0},{"$f":"+IF(AA260<0,0,AA260*'Sup fijo'!$D$196)*IF('Sup fijo'!$D$200=\"No\",0,1)","v":0}]
[null,"Impuesto renta ",null,null,{"$f":"+SUM(H263:AA263)","v":0},null,null,{"$f":"IF((+H260-H262)<0,0,(+H260-H262)*'Sup fijo'!$D$197)*IF('Sup fijo'!$D$200=\"No\",0,1)","v":0},{"$f":"IF((+I260-I262)<0,0,(+I260-I262)*'Sup fijo'!$D$197)*IF('Sup fijo'!$D$200=\"No\",0,1)","v":0},{"$f":"IF((+J260-J262)<0,0,(+J260-J262)*'Sup fijo'!$D$197)*IF('Sup fijo'!$D$200=\"No\",0,1)","v":0},{"$f":"IF((+K260-K262)<0,0,(+K260-K262)*'Sup fijo'!$D$197)*IF('Sup fijo'!$D$200=\"No\",0,1)","v":0},{"$f":"IF((+L260-L262)<0,0,(+L260-L262)*'Sup fijo'!$D$197)*IF('Sup fijo'!$D$200=\"No\",0,1)","v":0},{"$f":"IF((+M260-M262)<0,0,(+M260-M262)*'Sup fijo'!$D$197)*IF('Sup fijo'!$D$200=\"No\",0,1)","v":0},{"$f":"IF((+N260-N262)<0,0,(+N260-N262)*'Sup fijo'!$D$197)*IF('Sup fijo'!$D$200=\"No\",0,1)","v":0},{"$f":"IF((+O260-O262)<0,0,(+O260-O262)*'Sup fijo'!$D$197)*IF('Sup fijo'!$D$200=\"No\",0,1)","v":0},{"$f":"IF((+P260-P262)<0,0,(+P260-P262)*'Sup fijo'!$D$197)*IF('Sup fijo'!$D$200=\"No\",0,1)","v":0},{"$f":"IF((+Q260-Q262)<0,0,(+Q260-Q262)*'Sup fijo'!$D$197)*IF('Sup fijo'!$D$200=\"No\",0,1)","v":0},{"$f":"IF((+R260-R262)<0,0,(+R260-R262)*'Sup fijo'!$D$197)*IF('Sup fijo'!$D$200=\"No\",0,1)","v":0},{"$f":"IF((+S260-S262)<0,0,(+S260-S262)*'Sup fijo'!$D$197)*IF('Sup fijo'!$D$200=\"No\",0,1)","v":0},{"$f":"IF((+T260-T262)<0,0,(+T260-T262)*'Sup fijo'!$D$197)*IF('Sup fijo'!$D$200=\"No\",0,1)","v":0},{"$f":"IF((+U260-U262)<0,0,(+U260-U262)*'Sup fijo'!$D$197)*IF('Sup fijo'!$D$200=\"No\",0,1)","v":0},{"$f":"IF((+V260-V262)<0,0,(+V260-V262)*'Sup fijo'!$D$197)*IF('Sup fijo'!$D$200=\"No\",0,1)","v":0},{"$f":"IF((+W260-W262)<0,0,(+W260-W262)*'Sup fijo'!$D$197)*IF('Sup fijo'!$D$200=\"No\",0,1)","v":0},{"$f":"IF((+X260-X262)<0,0,(+X260-X262)*'Sup fijo'!$D$197)*IF('Sup fijo'!$D$200=\"No\",0,1)","v":0},{"$f":"IF((+Y260-Y262)<0,0,(+Y260-Y262)*'Sup fijo'!$D$197)*IF('Sup fijo'!$D$200=\"No\",0,1)","v":0},{"$f":"IF((+Z260-Z262)<0,0,(+Z260-Z262)*'Sup fijo'!$D$197)*IF('Sup fijo'!$D$200=\"No\",0,1)","v":0},{"$f":"IF((+AA260-AA262)<0,0,(+AA260-AA262)*'Sup fijo'!$D$197)*IF('Sup fijo'!$D$200=\"No\",0,1)","v":0}]
[]
[null,"Utilidad Neta",null,null,{"$f":"+SUM(H265:AA265)","v":176638.61332108267},null,null,{"$f":"+H260-H262-H263","v":6910.4704483781679},{"$f":"+I260-I262-I263","v":6105.2415840796875},7001.8013686669165,8123.6665779161813,15989.392805596173,20394.664482265332,26530.800900126094,11592.470757278903,27216.212444651872,13047.162074053091,11380.446331225174,22346.283546845079,0,0,0,0,0,0,0,0]
[]
[null,"FLUJO DE CAJA PROYECTO"]
[]
[null,"(+) Utilidad Neta",null,null,{"$f":"SUM(G269:AA269)","v":176638.61332108267},null,null,{"$f":"H265","v":6910.4704483781679},6105.2415840796875,7001.8013686669165,8123.6665779161813,15989.392805596173,20394.664482265332,26530.800900126094,11592.470757278903,27216.212444651872,13047.162074053091,11380.446331225174,22346.283546845079,0,0,0,0,0,0,0,0]
[null,"(+) NCC (Non Cash Charges)",null,null,{"$f":"SUM(G270:AA270)","v":164862.86400000006},null,null,{"$f":"H254","v":13738.572000000002},13738.572000000002,13738.572000000002,13738.572000000002,13738.572000000002,13738.572000000002,13738.572000000002,13738.572000000002,13738.572000000002,13738.572000000002,13738.572000000002,13738.572000000002,0,0,0,0,0,0,0,0]
[null,"(+) Int*(1-Impuestos)",null,null,{"$f":"SUM(G271:AA271)","v":31039.11300309308},null,null,{"$f":"H258*(1-SUM('Sup fijo'!$D$196:$D$197))","v":9520.8303960000012},{"$f":"I258*(1-SUM('Sup fijo'!$D$196:$D$197))","v":8080.4854081533949},{"$f":"J258*(1-SUM('Sup fijo'!$D$196:$D$197))","v":6438.4921220082642},{"$f":"K258*(1-SUM('Sup fijo'!$D$196:$D$197))","v":4566.6197758028138},{"$f":"L258*(1-SUM('Sup fijo'!$D$196:$D$197))","v":2432.6853011286025},{"$f":"M258*(1-SUM('Sup fijo'!$D$196:$D$197))","v":0},{"$f":"N258*(1-SUM('Sup fijo'!$D$196:$D$197))","v":0},{"$f":"O258*(1-SUM('Sup fijo'!$D$196:$D$197))","v":0},{"$f":"P258*(1-SUM('Sup fijo'!$D$196:$D$197))","v":0},{"$f":"Q258*(1-SUM('Sup fijo'!$D$196:$D$197))","v":0},{"$f":"R258*(1-SUM('Sup fijo'!$D$196:$D$197))","v":0},{"$f":"S258*(1-SUM('Sup fijo'!$D$196:$D$197))","v":0},{"$f":"T258*(1-SUM('Sup fijo'!$D$196:$D$197))","v":0},{"$f":"U258*(1-SUM('Sup fijo'!$D$196:$D$197))","v":0},{"$f":"V258*(1-SUM('Sup fijo'!$D$196:$D$197))","v":0},{"$f":"W258*(1-SUM('Sup fijo'!$D$196:$D$197))","v":0},{"$f":"X258*(1-SUM('Sup fijo'!$D$196:$D$197))","v":0},{"$f":"Y258*(1-SUM('Sup fijo'!$D$196:$D$197))","v":0},{"$f":"Z258*(1-SUM('Sup fijo'!$D$196:$D$197))","v":0},{"$f":"AA258*(1-SUM('Sup fijo'!$D$196:$D$197))","v":0}]
[null,"(-) CAPEX",null,null,{"$f":"SUM(G272:AA272)","v":164862.864},null,{"$f":"'CAPEX Vehículo'!C47","v":206078.58000000002},{"$f":"IF(H$6='Sup fijo'!$H$54,-'Sup fijo'!$I$54*$G272,0)","v":0},{"$f":"IF(I$6='Sup fijo'!$H$54,-'Sup fijo'!$I$54*$G272,0)","v":0},{"$f":"IF(J$6='Sup fijo'!$H$54,-'Sup fijo'!$I$54*$G272,0)","v":0},{"$f":"IF(K$6='Sup fijo'!$H$54,-'Sup fijo'!$I$54*$G272,0)","v":0},{"$f":"IF(L$6='Sup fijo'!$H$54,-'Sup fijo'!$I$54*$G272,0)","v":0},{"$f":"IF(M$6='Sup fijo'!$H$54,-'Sup fijo'!$I$54*$G272,0)","v":0},{"$f":"IF(N$6='Sup fijo'!$H$54,-'Sup fijo'!$I$54*$G272,0)","v":0},{"$f":"IF(O$6='Sup fijo'!$H$54,-'Sup fijo'!$I$54*$G272,0)","v":0},{"$f":"IF(P$6='Sup fijo'!$H$54,-'Sup fijo'!$I$54*$G272,0)","v":0},{"$f":"IF(Q$6='Sup fijo'!$H$54,-'Sup fijo'!$I$54*$G272,0)","v":0},{"$f":"IF(R$6='Sup fijo'!$H$54,-'Sup fijo'!$I$54*$G272,0)","v":0},{"$f":"IF(S$6='Sup fijo'!$H$54,-'Sup fijo'!$I$54*$G272,0)","v":-41215.716000000008},{"$f":"IF(T$6='Sup fijo'!$H$54,-'Sup fijo'!$I$54*$G272,0)","v":0},{"$f":"IF(U$6='Sup fijo'!$H$54,-'Sup fijo'!$I$54*$G272,0)","v":0},{"$f":"IF(V$6='Sup fijo'!$H$54,-'Sup fijo'!$I$54*$G272,0)","v":0},{"$f":"IF(W$6='Sup fijo'!$H$54,-'Sup fijo'!$I$54*$G272,0)","v":0},{"$f":"IF(X$6='Sup fijo'!$H$54,-'Sup fijo'!$I$54*$G272,0)","v":0},{"$f":"IF(Y$6='Sup fijo'!$H$54,-'Sup fijo'!$I$54*$G272,0)","v":0},{"$f":"IF(Z$6='Sup fijo'!$H$54,-'Sup fijo'!$I$54*$G272,0)","v":0},{"$f":"IF(AA$6='Sup fijo'!$H$54,-'Sup fijo'!$I$54*$G272,0)","v":0}]
[]
[null,"Flujo de caja libre",null,null,{"$f":"+SUM(H274:AA274)","v":413756.30632417573},null,{"$f":"G269+G270+G271-G272","v":-206078.58000000002},{"$f":"H269+H270+H271-H272","v":30169.872844378169},27924.298992233085,27178.865490675184,26428.858353718999,32160.650106724777,34133.236482265333,40269.372900126094,25331.042757278905,40954.784444651872,26785.734074053093,25119.018331225176,77300.57154684508,0,0,0,0,0,0,0,0]
[]
[null,"FLUJO DE CAJA DEL CONCESIONARIO"]
[]
[null,"(+) FCFF",null,null,{"$f":"SUM(G278:AA278)","v":207677.72632417575},null,{"$f":"G274","v":-206078.58000000002},30169.872844378169,27924.298992233085,27178.865490675184,26428.858353718999,32160.650106724777,34133.236482265333,40269.372900126094,25331.042757278905,40954.784444651872,26785.734074053093,25119.018331225176,77300.57154684508,0,0,0,0,0,0,0,0]
[null,"(-) Int*(1-Impuestos)",null,null,{"$f":"SUM(G279:AA279)","v":31039.11300309308},null,{"$f":"G271","v":0},9520.8303960000012,8080.4854081533949,6438.4921220082642,4566.6197758028138,2432.6853011286025,0,0,0,0,0,0,0,0,0,0,0,0,0,0,0]
[null,"(+) Endeudamiento Neto",null,null,{"$f":"SUM(G280:AA280)","v":3.637978807091713E-12},null,{"$f":"G281-G282","v":123647.148},{"$f":"H281-H282","v":-18705.779062942933},-21324.588131754943,-24310.030470200636,-27713.434736028725,-31593.315599072746,0,0,0,0,0,0,0,0,0,0,0,0,0,0,0]
[null,"Desembolsos",null,null,null,null,{"$f":"'CAPEX Vehículo'!C42","v":123647.148}]
[null,"Amortizaciones",null,null,null,null,{"$f":"'CAPEX Vehículo'!C43","v":0},{"$f":"'CAPEX Vehículo'!D43","v":18705.779062942933},{"$f":"'CAPEX Vehículo'!E43","v":21324.588131754943},{"$f":"'CAPEX Vehículo'!F43","v":24310.030470200636},{"$f":"'CAPEX Vehículo'!G43","v":27713.434736028725},{"$f":"'CAPEX Vehículo'!H43","v":31593.315599072746},{"$f":"'CAPEX Vehículo'!I43","v":0},{"$f":"'CAPEX Vehículo'!J43","v":0},{"$f":"'CAPEX Vehículo'!K43","v":0},{"$f":"'CAPEX Vehículo'!L43","v":0},{"$f":"'CAPEX Vehículo'!M43","v":0},{"$f":"'CAPEX Vehículo'!N43","v":0},{"$f":"'CAPEX Vehículo'!O43","v":0},{"$f":"'CAPEX Vehículo'!P43","v":0},{"$f":"'CAPEX Vehículo'!Q43","v":0},{"$f":"'CAPEX Vehículo'!R43","v":0},{"$f":"'CAPEX Vehículo'!S43","v":0},{"$f":"'CAPEX Vehículo'!T43","v":0},{"$f":"'CAPEX Vehículo'!U43","v":0},{"$f":"'CAPEX Vehículo'!V43","v":0},{"$f":"'CAPEX Vehículo'!W43","v":0}]
[]
[null,"FCFE",null,null,{"$f":"+SUM(G284:AA284)","v":176638.61332108272},null,{"$f":"G278+G280-G279","v":-82431.432000000015},{"$f":"H278+H280-H279","v":1943.2633854352353},-1480.7745476752525,-3569.6571015337167,-5851.1961581125397,-1865.3507934765717,34133.236482265333,40269.372900126094,25331.042757278905,40954.784444651872,26785.734074053093,25119.018331225176,77300.57154684508,0,0,0,0,0,0,0,0]
[]
[null,"(+) Equity",null,null,{"$f":"SUM(G286:AA286)","v":95198.410600798074},null,{"$f":"IF(G284<0,-G284,0)","v":82431.432000000015},{"$f":"IF(H284<0,-H284,0)","v":0},1480.7745476752525,3569.6571015337167,5851.1961581125397,1865.3507934765717,0,0,0,0,0,0,0,0,0,0,0,0,0,0,0]
[null,"(-) Dividendos",null,null,{"$f":"SUM(G287:AA287)","v":271837.02392188075},null,{"$f":"IF(G284>0,G284,0)","v":0},{"$f":"IF(H284>0,H284,0)","v":1943.2633854352353},0,0,0,0,34133.236482265333,40269.372900126094,25331.042757278905,40954.784444651872,26785.734074053093,25119.018331225176,77300.57154684508,0,0,0,0,0,0,0,0]
[null,"Cambio neto en caja",null,null,{"$f":"+SUM(G288:AA288)","v":0},null,{"$f":"G284+G286-G287","v":0},{"$f":"H284+H286-H287","v":0},0,0,0,0,0,0,0,0,0,0,0,0,0,0,0,0,0,0,0]
[]
[null,{"$f":"B217","v":"Gastos del ente Gestor"},null,null,{"$f":"SUM(H290:AA290)","v":0},null,null,{"$f":"IF(H242=0,0,'OPEX Personal Indirecto'!D$13)","v":0},{"$f":"IF(I242=0,0,'OPEX Personal Indirecto'!E$13)","v":0},{"$f":"IF(J242=0,0,'OPEX Personal Indirecto'!F$13)","v":0},{"$f":"IF(K242=0,0,'OPEX Personal Indirecto'!G$13)","v":0},{"$f":"IF(L242=0,0,'OPEX Personal Indirecto'!H$13)","v":0},{"$f":"IF(M242=0,0,'OPEX Personal Indirecto'!I$13)","v":0},{"$f":"IF(N242=0,0,'OPEX Personal Indirecto'!J$13)","v":0},{"$f":"IF(O242=0,0,'OPEX Personal Indirecto'!K$13)","v":0},{"$f":"IF(P242=0,0,'OPEX Personal Indirecto'!L$13)","v":0},{"$f":"IF(Q242=0,0,'OPEX Personal Indirecto'!M$13)","v":0},{"$f":"IF(R242=0,0,'OPEX Personal Indirecto'!N$13)","v":0},{"$f":"IF(S242=0,0,'OPEX Personal Indirecto'!O$13)","v":0},{"$f":"IF(T242=0,0,'OPEX Personal Indirecto'!P$13)","v":0},{"$f":"IF(U242=0,0,'OPEX Personal Indirecto'!Q$13)","v":0},{"$f":"IF(V242=0,0,'OPEX Personal Indirecto'!R$13)","v":0},{"$f":"IF(W242=0,0,'OPEX Personal Indirecto'!S$13)","v":0},{"$f":"IF(X242=0,0,'OPEX Personal Indirecto'!T$13)","v":0},{"$f":"IF(Y242=0,0,'OPEX Personal Indirecto'!U$13)","v":0},{"$f":"IF(Z242=0,0,'OPEX Personal Indirecto'!V$13)","v":0},{"$f":"IF(AA242=0,0,'OPEX Personal Indirecto'!W$13)","v":0}]
[]
[null,"Flujo del PROYECTO",null,null,{"$f":"+SUM(H292:AA292)","v":-1415536.4094529168},null,null,{"$f":"-H242-H290","v":-109561.36691770758},{"$f":"-I242-I290","v":-111314.34878839088},-114208.52185688906,-114701.90267131083,-115011.59780852337,-115782.17551384046,-118029.65226828352,-120077.92778846741,-121826.33981104443,-123456.46457370966,-125067.98078530026,-126498.13066944943,0,0,0,0,0,0,0,0]
[]
[]
[]
[]
[null,null,null,null,null,null,{"$f":"G284","v":-82431.432000000015},{"$f":"H284/(1+rentabilidadobj)^COUNTA($H$6:H$6)","v":1719.702111004633},{"$f":"I284/(1+rentabilidadobj)^COUNTA($H$6:I$6)","v":-1159.6636758362072},{"$f":"J284/(1+rentabilidadobj)^COUNTA($H$6:J$6)","v":-2473.9514334936716},{"$f":"K284/(1+rentabilidadobj)^COUNTA($H$6:K$6)","v":-3588.6481830960406},{"$f":"L284/(1+rentabilidadobj)^COUNTA($H$6:L$6)","v":-1012.4376772838647},{"$f":"M284/(1+rentabilidadobj)^COUNTA($H$6:M$6)","v":16394.825883688831},{"$f":"N284/(1+rentabilidadobj)^COUNTA($H$6:N$6)","v":17116.925568181043},{"$f":"O284/(1+rentabilidadobj)^COUNTA($H$6:O$6)","v":9528.5215408584245},{"$f":"P284/(1+rentabilidadobj)^COUNTA($H$6:P$6)","v":13633.226596075034},{"$f":"Q284/(1+rentabilidadobj)^COUNTA($H$6:Q$6)","v":7890.7651542209751},{"$f":"R284/(1+rentabilidadobj)^COUNTA($H$6:R$6)","v":6548.469129863267},{"$f":"S284/(1+rentabilidadobj)^COUNTA($H$6:S$6)","v":17833.696985817587},{"$f":"T284/(1+rentabilidadobj)^COUNTA($H$6:T$6)","v":0},{"$f":"U284/(1+rentabilidadobj)^COUNTA($H$6:U$6)","v":0},{"$f":"V284/(1+rentabilidadobj)^COUNTA($H$6:V$6)","v":0},{"$f":"W284/(1+rentabilidadobj)^COUNTA($H$6:W$6)","v":0},{"$f":"X284/(1+rentabilidadobj)^COUNTA($H$6:X$6)","v":0},{"$f":"Y284/(1+rentabilidadobj)^COUNTA($H$6:Y$6)","v":0},{"$f":"Z284/(1+rentabilidadobj)^COUNTA($H$6:Z$6)","v":0},{"$f":"AA284/(1+rentabilidadobj)^COUNTA($H$6:AA$6)","v":0}]
[null,null,null,null,null,null,null,{"$f":"SUM(G297:AA297)","v":1.4551915228366852E-11}]

{"sheet":"Tarifa usuario","index":16,"n_rows":22,"n_cols":4,"rows_kept":22,"cut":false,"hidden":false,"merged":[]}
[]
[null,"Tarifa Usuario para los Cuatro Subsistemas"]
[null,"INPUT TARIFA USUARIO"]
[]
[]
[null,"Tarifas por tipo de usuario"]
[]
[null,"Parámetros","Unidad","Valor"]
[null,"% de usuarios"]
[null,"Tarifa completa","%",0.88490000000000002]
[null,"Tarifa reducida","%",0.1148]
[null,"Tarifa para discapacitados","%",2.9999999999999997E-4]
[null,"% de tarifa"]
[null,"Tarifa completa","%",1]
[null,"Tarifa reducida","%",0.5]
[null,"Tarifa para discapacitados","%",{"$f":"0.1/0.25","v":0.4}]
[null,"Tarifa Ponderada","%",{"$f":"SUMPRODUCT(D10:D12,D14:D16)","v":0.94242000000000004}]
[]
[]
[null,"Resultados","Unidad","Valor"]
[null,"Tarifa técnica año 1",null,{"$f":"'FO sin SITPQ'!H91","v":0.28038810633310618}]
[null,"Tarifa de usuario en escenario sin integración",null,{"$f":"D21/D17","v":0.29751926564918629}]

{"sheet":"Resultados","index":17,"n_rows":267,"n_cols":10,"rows_kept":267,"cut":false,"hidden":false,"merged":[[244,2,244,3],[156,4,156,5],[242,2,242,3],[105,8,105,9],[105,3,105,7]]}
[]
[null,null,"Estructura de costos Transporte Convencional"]
[null,null,"RESULTADOS"]
[]
[]
[null,1,{"$f":"B21","v":"Composición de la flota a remunerar "}]
[null,2,{"$f":"B37","v":"Tarifa Técnica sin implementación del SITP-Q"}]
[null,3,{"$f":"B64","v":"Tarifa Técnica con implementación del SITP-Q"}]
[null,4,{"$f":"$B93","v":"Características y precios de los vehículos por tipo servicio y tipología"}]
[null,5,{"$f":"$B104","v":"Rendimientos y costos de combustible por tipología de vehículo"}]
[null,6,{"$f":"B133","v":"Costos de mantenimiento de acuerdo a actividades por tipología de vehículo"}]
[null,7,{"$f":"$B152","v":"Parámetros para la remuneración del personal directo (conductores y ayudantes)"}]
[null,8,{"$f":"$B191","v":"Parametros para la remuneración de personal administrativo y de mantenimiento"}]
[null,9,{"$f":"$B229","v":"Resumen de seguros e impuestos contemplados"}]
[null,10,{"$f":"B250","v":"Gastos de Administración"}]
[]
[]
[]
[]
[]
[null,"Composición de la flota a remunerar ",null,null,null,null,null,"Edad Promedio de la Flota"]
[]
[null,null,"Antigüedad del vehículo (años)","Número de vehículos","Porcentaje"]
[null,null,0,14,{"$f":"+D24/SUM($D$24:$D$29)","v":5.8700209643605871E-3}]
[null,null,"1-5",561,0.23522012578616353]
[null,null,"6-10",1000,0.41928721174004191]
[null,null,"11-15",617,0.25870020964360585]
[null,null,"16-19",132,5.5345911949685536E-2]
[null,null,"20-21",61,2.5576519916142557E-2]
[]
[]
[]
[]
[]
[null,null,"Costos totales -->","Ir"]
[]
[null,"Tarifa Técnica sin implementación del SITP-Q"]
[]
[null,null,"Tarifa técnica por tipología de bus "]
[]
[null,null,"Tipología ",{"$f":"'Componentes costos'!C7","v":"Intracantonal Rural"},{"$f":"'Componentes costos'!D7","v":"Intracantonal Urbano"},{"$f":"'Componentes costos'!E7","v":"Intracantonal Combinado"},{"$f":"'Componentes costos'!F7","v":"Otro"}]
[null,null,"Costo por bus  mes",{"$f":"+'Componentes costos'!C75","v":6329.9000791317148},{"$f":"+'Componentes costos'!D75","v":6874.5468289467753},{"$f":"+'Componentes costos'!E75","v":8786.5002047164326},{"$f":"+'Componentes costos'!F75","v":8916.126865047816}]
[null,null,"Demanda por mes (pax)",{"$f":"+'Componentes costos'!C77","v":25677},{"$f":"+'Componentes costos'!D77","v":25106.400000000005},{"$f":"+'Componentes costos'!E77","v":25677},{"$f":"+'Componentes costos'!F77","v":29058.333333333336}]
[]
[null,null,"Tarifa técnica operacional ",{"$f":"+('Componentes costos'!C75-'Componentes costos'!C73)/'Componentes costos'!C77","v":0.24652023519615668},{"$f":"+('Componentes costos'!D75-'Componentes costos'!D73)/'Componentes costos'!D77","v":0.273816510090924},{"$f":"+('Componentes costos'!E75-'Componentes costos'!E73)/'Componentes costos'!E77","v":0.34219341062882863},{"$f":"+('Componentes costos'!F75-'Componentes costos'!F73)/'Componentes costos'!F77","v":0.30683545276906732}]
[]
[null,null,"Tarifa técnica",{"$f":"+D42/D43","v":0.24652023519615668},{"$f":"+E42/E43","v":0.273816510090924},{"$f":"+F42/F43","v":0.34219341062882863},{"$f":"+G42/G43","v":0.30683545276906732}]
[null,null,"Tarifa técnica sin SITP-Q",{"$f":"+(D42-'Componentes costos'!C73)/Resultados!D43","v":0.24652023519615668},{"$f":"+(E42-'Componentes costos'!D73)/Resultados!E43","v":0.273816510090924},{"$f":"+(F42-'Componentes costos'!E73)/Resultados!F43","v":0.34219341062882863},{"$f":"+(G42-'Componentes costos'!F73)/Resultados!G43","v":0.30683545276906732}]
[null,null,"Delta frente tarifa vigente",{"$f":"+D47-$D$52","v":1.6520235196156668E-2},{"$f":"+E47-$D$52","v":4.3816510090923994E-2},{"$f":"+F47-$D$52","v":0.11219341062882862},{"$f":"+G47-$D$52","v":7.6835452769067308E-2}]
[null,null,"Delta frente tarifa vigente %",{"$f":"+D49/$D$52","v":7.1827109548507254E-2},{"$f":"+E49/$D$52","v":0.19050656561271301},{"$f":"+F49/$D$52","v":0.48779743751664617},{"$f":"+G49/$D$52","v":0.33406718595246654}]
[]
[null,null,"Tarifa hoy ",0.23,"* Tarifa viaje hoy "]
[]
[null,null,"Tarifa propuesta "]
[]
[null,null,"Antigüedad del vehículo (años)",{"$f":"D41","v":"Intracantonal Rural"},{"$f":"E41","v":"Intracantonal Urbano"},"Intracantonal Combinado","Otro","Ajuste "]
[null,null,0,{"$f":"+D$47*$H57","v":0.24652023519615668},0.273816510090924,0.34219341062882863,0.30683545276906732,1]
[null,null,"1-5",0.23419422343634883,0.2601256845863778,0.32508374009738716,0.29149368013061394,{"$f":"+H57-5%","v":0.95}]
[null,null,"6-10",0.221868211676541,0.24643485908183158,0.30797406956594575,0.27615190749216056,{"$f":"+H58-5%","v":0.89999999999999991}]
[null,null,"11-15",0.20954219991673315,0.23274403357728538,0.29086439903450428,0.26081013485370719,{"$f":"+H59-5%","v":0.84999999999999987}]
[null,null,"16-19",0.19721618815692529,0.21905320807273915,0.27375472850306287,0.24546836221525381,{"$f":"+H60-5%","v":0.79999999999999982}]
[null,null,"20-21",0.18489017639711747,0.20536238256819295,0.2566450579716214,0.23012658957680043,{"$f":"+H61-5%","v":0.74999999999999978}]
[]
[null,"Tarifa Técnica con implementación del SITP-Q"]
[]
[]
[null,null,"Tarifa técnica por tipología de bus "]
[]
[null,null,"Tipología ",{"$f":"D56","v":"Intracantonal Rural"},{"$f":"E56","v":"Intracantonal Urbano"},"Intracantonal Combinado","Otro"]
[null,null,"Costo por bus  mes",{"$f":"+'Componentes costos'!C23","v":6598.3219855643747},{"$f":"+'Componentes costos'!D23","v":7248.2294022759643},{"$f":"+'Componentes costos'!E23","v":9477.0547231000564},{"$f":"+'Componentes costos'!F23","v":10848.77187676701}]
[null,null,"Demanda por mes (pax)",{"$f":"+'Componentes costos'!C25","v":25677},{"$f":"+'Componentes costos'!D25","v":25106.400000000005},{"$f":"+'Componentes costos'!E25","v":25677},{"$f":"+'Componentes costos'!F25","v":29058.333333333336}]
[]
[null,null,"Tarifa técnica operacional ",{"$f":"+('Componentes costos'!C23-'Componentes costos'!C21)/'Componentes costos'!C25","v":0.23633312086718308},{"$f":"+('Componentes costos'!D23-'Componentes costos'!D21)/'Componentes costos'!D25","v":0.26805956488817267},{"$f":"+('Componentes costos'!E23-'Componentes costos'!E21)/'Componentes costos'!E25","v":0.34844640269666788},{"$f":"+('Componentes costos'!F23-'Componentes costos'!F21)/'Componentes costos'!F25","v":0.3527036994216276}]
[]
[null,null,"Tarifa técnica",{"$f":"+D70/D71","v":0.25697402288290588},{"$f":"+E70/E71","v":0.28870046690389556},{"$f":"+F70/F71","v":0.36908730471239071},{"$f":"+G70/G71","v":0.37334460143735049}]
[null,null,"Tarifa técnica sin SITP-Q",{"$f":"+(D70-'Componentes costos'!C21)/Resultados!D71","v":0.23633312086718308},{"$f":"+(E70-'Componentes costos'!D21)/Resultados!E71","v":0.26805956488817267},{"$f":"+(F70-'Componentes costos'!E21)/Resultados!F71","v":0.34844640269666788},{"$f":"+(G70-'Componentes costos'!F21)/Resultados!G71","v":0.3527036994216276}]
[null,null,"Delta frente tarifa vigente",{"$f":"+D75-$D$80","v":2.6974022882905874E-2},{"$f":"+E75-$D$80","v":5.8700466903895548E-2},{"$f":"+F75-$D$80","v":0.1390873047123907},{"$f":"+G75-$D$80","v":0.14334460143735048}]
[null,null,"Delta frente tarifa vigente %",{"$f":"+D77/$D$80","v":0.11727836036046031},{"$f":"+E77/$D$80","v":0.255219421321285},{"$f":"+F77/$D$80","v":0.60472741179300304},{"$f":"+G77/$D$80","v":0.62323739755369767}]
[]
[null,null,"Tarifa hoy ",0.23,"* Tarifa viaje hoy "]
[]
[null,null,"Tarifa propuesta "]
[]
[null,null,"Antigüedad del vehículo (años)",{"$f":"+D69","v":"Intracantonal Rural"},{"$f":"+E69","v":"Intracantonal Urbano"},{"$f":"+F69","v":"Intracantonal Combinado"},{"$f":"+G69","v":"Otro"},null,"Ajuste "]
[null,null,0,{"$f":"+D$75*$I85","v":0.25697402288290588},0.28870046690389556,0.36908730471239071,0.37334460143735049,null,1]
[null,null,"1-5",0.24412532173876059,0.27426544355870075,0.35063293947677115,0.35467737136548294,null,{"$f":"+I85-5%","v":0.95}]
[null,null,"6-10",0.23127662059461526,0.259830420213506,0.3321785742411516,0.33601014129361539,null,{"$f":"+I86-5%","v":0.89999999999999991}]
[null,null,"11-15",0.21842791945046997,0.24539539686831119,0.31372420900553205,0.31734291122174785,null,{"$f":"+I87-5%","v":0.84999999999999987}]
[null,null,"16-19",0.20557921830632467,0.23096037352311641,0.2952698437699125,0.2986756811498803,null,{"$f":"+I88-5%","v":0.79999999999999982}]
[null,null,"20-21",0.19273051716217934,0.2165253501779216,0.27681547853429295,0.28000845107801281,null,{"$f":"+I89-5%","v":0.74999999999999978}]
[]
[]
[null,"Características y precios de los vehículos por tipo servicio y tipología"]
[]
[]
[null,null,"Valor de mercado y valor a remunerar por tipología"]
[]
[null,null,"Vehículo","Precio de mercado de venta sin IVA (USD)","Valor a remunerar según flujo caja","Valor a remunerar mes"]
[null,null,{"$f":"D$41","v":"Intracantonal Rural"},{"$f":"'Sup fijo'!$F51","v":90000},{"$f":"'FO con SITPQ'!E40+'FO con SITPQ'!E54","v":96646.557552581799},{"$f":"'Componentes costos'!C$11","v":608.75365865156618}]
[null,null,{"$f":"E$41","v":"Intracantonal Urbano"},{"$f":"'Sup fijo'!$F52","v":122000},{"$f":"'FO con SITPQ'!E117+'FO con SITPQ'!E131","v":131009.77801572194},{"$f":"'Componentes costos'!D$11","v":825.19940394990044}]
[null,null,{"$f":"F$41","v":"Intracantonal Combinado"},{"$f":"'Sup fijo'!$F53","v":122000},{"$f":"'FO con SITPQ'!E194+'FO con SITPQ'!E208","v":131009.77801572194},{"$f":"'Componentes costos'!E$11","v":825.19940394990056}]
[null,null,{"$f":"G$41","v":"Otro"},{"$f":"'Sup fijo'!$F54","v":206078.58000000002},{"$f":"'FO con SITPQ'!E271+'FO con SITPQ'!E285","v":221297.61491471468},{"$f":"'Componentes costos'!F$11","v":1653.5089783430458}]
[]
[null,"Rendimientos y costos de combustible por tipología de vehículo"]
[]
[null,null,null,"Km/ Galón",null,null,null,null,"Otros "]
[null,null,"Tecnología","Euro III","Euro IV ","Euro V","Euro VI","Híbrido ","Eléctrico (kwh/km)","Gas (m3/km)  "]
[null,null,{"$f":"'Sup fijo'!B97","v":"Intracantonal Rural"},{"$f":"'Sup fijo'!C97","v":9.7357477693177721},{"$f":"'Sup fijo'!D97","v":11.072564705882352},{"$f":"'Sup fijo'!E97","v":11.139066596007773}]
[null,null,{"$f":"'Sup fijo'!B98","v":"Intracantonal Urbano"},{"$f":"'Sup fijo'!C98","v":8.1475007815265261},{"$f":"'Sup fijo'!D98","v":9.2662352941176476},{"$f":"'Sup fijo'!E98","v":9.3218883589471844},{"$f":"'Sup fijo'!F98","v":9.3218883589471844},{"$f":"'Sup fijo'!G98","v":12.118454866631341},{"$f":"'Sup fijo'!I98","v":1},{"$f":"'Sup fijo'!J98","v":3}]
[null,null,{"$f":"'Sup fijo'!B99","v":"Intracantonal Combinado"},{"$f":"'Sup fijo'!C99","v":8.7662983092374027},{"$f":"'Sup fijo'!D99","v":9.9700000000000006},{"$f":"'Sup fijo'!E99","v":10.029879879879882},{"$f":"'Sup fijo'!F99","v":10.029879879879882},{"$f":"'Sup fijo'!G99","v":13.038843843843846},{"$f":"'Sup fijo'!I99","v":1},{"$f":"'Sup fijo'!J99","v":2.4000000000000004}]
[null,null,{"$f":"'Sup fijo'!B100","v":"Otro"},{"$f":"'Sup fijo'!C100","v":5.4261760000000008},{"$f":"'Sup fijo'!D100","v":6.66},{"$f":"'Sup fijo'!E100","v":6.7},{"$f":"'Sup fijo'!F100","v":6.740240240240241},{"$f":"'Sup fijo'!G100","v":8.7100000000000009},null,{"$f":"'Sup fijo'!J100","v":1.9200000000000004}]
[]
[null,null,"Urea para diésel ",{"$f":"'Sup fijo'!D103","v":0.05},"* Solo aplica para euro V y Euro VI "]
[null,null,"Pérdida eficiencia vejez ",{"$f":"'Sup fijo'!D104","v":5.0000000000000001E-3},"* Aplica del tercer año en adelante "]
[]
[]
[null,null,"Kilometraje recorrido por tipología"]
[]
[null,null,"Recorrido",{"$f":"C108","v":"Intracantonal Rural"},{"$f":"C109","v":"Intracantonal Urbano"},{"$f":"C110","v":"Intracantonal Combinado"},{"$f":"C111","v":"Otro"}]
[null,null,"Diario en Km ",{"$f":"'Sup fijo'!$E15","v":214},{"$f":"'Sup fijo'!$E19","v":194},{"$f":"'Sup fijo'!$E23","v":342},{"$f":"'Sup fijo'!$E27","v":200}]
[null,null,"Mensual en Km ",{"$f":"'Sup fijo'!$E16","v":5867.1666666666679},{"$f":"'Sup fijo'!$E20","v":5318.8333333333339},{"$f":"'Sup fijo'!$E24","v":9376.5000000000018},{"$f":"'Sup fijo'!$E28","v":5483.3333333333339}]
[null,null,"Anual en Km ",{"$f":"'Sup fijo'!$E17","v":70406.000000000015},{"$f":"'Sup fijo'!$E21","v":63826.000000000007},{"$f":"'Sup fijo'!$E25","v":112518.00000000003},{"$f":"'Sup fijo'!$E29","v":65800}]
[]
[null,null,"Consumo de combustible a remunerar por tipología"]
[]
[null,null,"Vehículo","Combustible","Tecnología","Km/ Galón","Urea","Costo mes US","Costo año US"]
[null,null,{"$f":"C99","v":"Intracantonal Rural"},{"$f":"'Sup fijo'!E51","v":"Diésel"},{"$f":"'Sup fijo'!D51","v":"Euro III"},{"$f":"'OPEX Combustible '!D10","v":9.7357477693177721},{"$f":"'OPEX Combustible '!E10","v":0},{"$f":"'Componentes costos'!C$13","v":695.31499021112518},{"$f":"H127*12","v":8343.7798825335012}]
[null,null,{"$f":"C100","v":"Intracantonal Urbano"},{"$f":"'Sup fijo'!E52","v":"Diésel"},{"$f":"'Sup fijo'!D52","v":"Euro III"},{"$f":"'OPEX Combustible '!D27","v":8.1475007815265261},{"$f":"'OPEX Combustible '!E27","v":0},{"$f":"'Componentes costos'!D$13","v":753.2071811623365},{"$f":"H128*12","v":9038.4861739480384}]
[null,null,"Intracantonal Combinado",{"$f":"'Sup fijo'!E53","v":"Diésel"},{"$f":"'Sup fijo'!D53","v":"Euro III"},{"$f":"'OPEX Combustible '!D44","v":8.7662983092374027},{"$f":"'OPEX Combustible '!E44","v":0},{"$f":"'Componentes costos'!E$13","v":1234.0904560730146},{"$f":"H129*12","v":14809.085472876175}]
[null,null,"Otro",{"$f":"'Sup fijo'!E54","v":"Diésel"},{"$f":"'Sup fijo'!D54","v":"Euro III"},{"$f":"'OPEX Combustible '!D61","v":5.4261760000000008},{"$f":"'OPEX Combustible '!E61","v":0},{"$f":"'Componentes costos'!F$13","v":1165.9320813582935},{"$f":"H130*12","v":13991.184976299523}]
[]
[]
[null,"Costos de mantenimiento de acuerdo a actividades por tipología de vehículo"]
[]
[]
[null,null,"Grupos"]
[null,null,"Carrocería "]
[null,null,"Costo de mantenimiento eléctrico "]
[null,null,"Costo de mantenimiento mecánico"]
[null,null,"Neumáticos "]
[null,null,"Aceites y filtros "]
[null,null,"Total "]
[]
[]
[]
[]
[]
[]
[]
[]
[]
[null,"Parámetros para la remuneración del personal directo (conductores y ayudantes)"]
[]
[]
[null,null,"Esquema de contratación laboral actual"]
[]
[null,null,null,null,"Conductor",null,"Ayudante"]
[null,null,null,"%","Contrato por día","Contrato con prestaciones","Contrato por día"]
[null,null,"Remuneración",null,{"$f":"'Sup Personal Directo'!D19","v":779.40000000000009},{"$f":"'Sup Personal Directo'!E19","v":779.40000000000009},{"$f":"'Sup Personal Directo'!F19","v":649.5}]
[null,null,null,null,null,{"$f":"'Sup Personal Directo'!E20","v":566}]
[null,null,"Fondo de Reserva",{"$f":"'Sup Personal Directo'!C21","v":8.3333333333333329E-2},null,{"$f":"'Sup Personal Directo'!E21","v":47.166666666666664}]
[null,null,"Décimo tercero",{"$f":"'Sup Personal Directo'!C22","v":8.3333333333333329E-2}]
[null,null,"Décimo cuarto",{"$f":"'Sup Personal Directo'!C23","v":8.3333333333333329E-2}]
[null,null,"Vacaciones",{"$f":"'Sup Personal Directo'!C24","v":4.1666666666666664E-2},null,{"$f":"'Sup Personal Directo'!E24","v":23.583333333333332}]
[null,null,"IESS",{"$f":"'Sup Personal Directo'!C26","v":0.1115},null,{"$f":"'Sup Personal Directo'!E26","v":63.109000000000002}]
[null,null,"Auxilio Alimentación",null,{"$f":"'Sup Personal Directo'!D27","v":129.89999999999998},{"$f":"'Sup Personal Directo'!E27","v":129.89999999999998},{"$f":"'Sup Personal Directo'!F27","v":129.89999999999998}]
[]
[null,null,"Costo unitario total ",null,{"$f":"'Sup Personal Directo'!D29","v":909.30000000000007},{"$f":"'Sup Personal Directo'!E29","v":1043.1590000000001},{"$f":"'Sup Personal Directo'!F29","v":779.4}]
[null,null,"Factor salario total ",null,{"$f":"'Sup Personal Directo'!D30","v":0},{"$f":"'Sup Personal Directo'!E30","v":0.17174621503720811},{"$f":"'Sup Personal Directo'!F30","v":0}]
[]
[null,null,"Número de empleados por bus",null,{"$f":"'Sup Personal Directo'!D32","v":1.142857142857143},{"$f":"'Sup Personal Directo'!E32","v":1.142857142857143},{"$f":"'Sup Personal Directo'!F32","v":1.142857142857143}]
[]
[null,null,"Esquema de contratación laboral propuesto"]
[]
[null,null,null,"%","Conductor","Ayudante"]
[null,null,"Remuneración",null,{"$f":"'Sup Personal Directo'!H19","v":600},{"$f":"'Sup Personal Directo'!I19","v":375}]
[]
[null,null,"Fondo de Reserva",{"$f":"'Sup Personal Directo'!C21","v":8.3333333333333329E-2},{"$f":"'Sup Personal Directo'!H21","v":50},{"$f":"'Sup Personal Directo'!I21","v":31.25}]
[null,null,"Décimo tercero",{"$f":"'Sup Personal Directo'!C22","v":8.3333333333333329E-2},{"$f":"'Sup Personal Directo'!H22","v":50},{"$f":"'Sup Personal Directo'!I22","v":31.25}]
[null,null,"Décimo cuarto",{"$f":"'Sup Personal Directo'!C23","v":8.3333333333333329E-2},{"$f":"'Sup Personal Directo'!H23","v":30.5},{"$f":"'Sup Personal Directo'!I23","v":30.5}]
[null,null,"Vacaciones",{"$f":"'Sup Personal Directo'!C24","v":4.1666666666666664E-2},{"$f":"'Sup Personal Directo'!H24","v":25},{"$f":"'Sup Personal Directo'!I24","v":15.625}]
[null,null,"IESS",{"$f":"'Sup Personal Directo'!C26","v":0.1115},{"$f":"'Sup Personal Directo'!H26","v":66.900000000000006},{"$f":"'Sup Personal Directo'!I26","v":41.8125}]
[null,null,"Auxilio Alimentación",null,{"$f":"'Sup Personal Directo'!H27","v":129.89999999999998},{"$f":"'Sup Personal Directo'!I27","v":129.89999999999998}]
[]
[null,null,"Costo unitario total",null,{"$f":"'Sup Personal Directo'!H29","v":987.82631578947371},{"$f":"'Sup Personal Directo'!I29","v":677.54144736842102}]
[null,null,"Factor salario total",null,{"$f":"'Sup Personal Directo'!H30","v":0.42987719298245625},{"$f":"'Sup Personal Directo'!I30","v":0.46037719298245611}]
[]
[null,null,"Número de empleados",null,{"$f":"'Sup Personal Directo'!H32","v":2.2000000000000002},{"$f":"'Sup Personal Directo'!I32","v":2.2000000000000002}]
[]
[]
[null,"Parametros para la remuneración de personal administrativo y de mantenimiento"]
[]
[]
[null,null,"Cargo","Cantidad personas","Salario promedio (mes/USD)"]
[null,null,{"$f":"'Sup Personal Indirecto'!B154","v":"a) Personal directivo "}]
[null,null,{"$f":"'Sup Personal Indirecto'!C155","v":"Presidente "},{"$f":"'Sup Personal Indirecto'!D155","v":1},{"$f":"'Sup Personal Indirecto'!E155","v":1000}]
[null,null,{"$f":"'Sup Personal Indirecto'!C156","v":"Gerente general "},{"$f":"'Sup Personal Indirecto'!D156","v":1},{"$f":"'Sup Personal Indirecto'!E156","v":2000}]
[null,null,{"$f":"'Sup Personal Indirecto'!B157","v":"b) Personal administrativo "}]
[null,null,{"$f":"'Sup Personal Indirecto'!C158","v":"Administrativo & Financiero"},{"$f":"'Sup Personal Indirecto'!D158","v":1},{"$f":"'Sup Personal Indirecto'!E158","v":1500}]
[null,null,{"$f":"'Sup Personal Indirecto'!C159","v":"Contador General"},{"$f":"'Sup Personal Indirecto'!D159","v":1},{"$f":"'Sup Personal Indirecto'!E159","v":800}]
[null,null,{"$f":"'Sup Personal Indirecto'!C160","v":"Asistente de Contabilidad"},{"$f":"'Sup Personal Indirecto'!D160","v":1},{"$f":"'Sup Personal Indirecto'!E160","v":375}]
[null,null,{"$f":"'Sup Personal Indirecto'!C161","v":"Responsable de RRHH "},{"$f":"'Sup Personal Indirecto'!D161","v":1},{"$f":"'Sup Personal Indirecto'!E161","v":1000}]
[null,null,{"$f":"'Sup Personal Indirecto'!C162","v":"Secretaria"},{"$f":"'Sup Personal Indirecto'!D162","v":1},{"$f":"'Sup Personal Indirecto'!E162","v":400}]
[null,null,{"$f":"'Sup Personal Indirecto'!C163","v":"Recaudación General"},{"$f":"'Sup Personal Indirecto'!D163","v":3},{"$f":"'Sup Personal Indirecto'!E163","v":450}]
[null,null,{"$f":"'Sup Personal Indirecto'!C164","v":"Mensajería"},{"$f":"'Sup Personal Indirecto'!D164","v":1},{"$f":"'Sup Personal Indirecto'!E164","v":375}]
[null,null,{"$f":"'Sup Personal Indirecto'!B165","v":"c) Personal de operación "}]
[null,null,{"$f":"'Sup Personal Indirecto'!C166","v":"Jefe de Operaciones"},{"$f":"'Sup Personal Indirecto'!D166","v":1},{"$f":"'Sup Personal Indirecto'!E166","v":1500}]
[null,null,{"$f":"'Sup Personal Indirecto'!C167","v":"Despachador de Ruta"},{"$f":"'Sup Personal Indirecto'!D167","v":8},{"$f":"'Sup Personal Indirecto'!E167","v":375}]
[null,null,{"$f":"'Sup Personal Indirecto'!C168","v":"Fiscalizador de Ruta"},{"$f":"'Sup Personal Indirecto'!D168","v":5},{"$f":"'Sup Personal Indirecto'!E168","v":450}]
[null,null,{"$f":"'Sup Personal Indirecto'!C169","v":"Monitoreo & Control de gestión operativa"},{"$f":"'Sup Personal Indirecto'!D169","v":3},{"$f":"'Sup Personal Indirecto'!E169","v":375}]
[null,null,{"$f":"'Sup Personal Indirecto'!B170","v":"d) Personal de mantenimiento"}]
[null,null,{"$f":"'Sup Personal Indirecto'!C171","v":"Responsable de Flota & Mantenimiento"},{"$f":"'Sup Personal Indirecto'!D171","v":1},{"$f":"'Sup Personal Indirecto'!E171","v":1000}]
[null,null,{"$f":"'Sup Personal Indirecto'!C172","v":"Mecánico "},{"$f":"'Sup Personal Indirecto'!D172","v":3},{"$f":"'Sup Personal Indirecto'!E172","v":500}]
[null,null,{"$f":"'Sup Personal Indirecto'!C173","v":"Eléctrico"},{"$f":"'Sup Personal Indirecto'!D173","v":2},{"$f":"'Sup Personal Indirecto'!E173","v":500}]
[null,null,{"$f":"'Sup Personal Indirecto'!C174","v":"Vulcanizador"},{"$f":"'Sup Personal Indirecto'!D174","v":1},{"$f":"'Sup Personal Indirecto'!E174","v":500}]
[null,null,{"$f":"'Sup Personal Indirecto'!C175","v":"Carrocero"},{"$f":"'Sup Personal Indirecto'!D175","v":1},{"$f":"'Sup Personal Indirecto'!E175","v":500}]
[null,null,{"$f":"'Sup Personal Indirecto'!C176","v":"Ayudante de Mecánico"},{"$f":"'Sup Personal Indirecto'!D176","v":3},{"$f":"'Sup Personal Indirecto'!E176","v":375}]
[null,null,{"$f":"'Sup Personal Indirecto'!B177","v":"e) Personal externo "}]
[null,null,{"$f":"'Sup Personal Indirecto'!C178","v":"Auditoría externa"},{"$f":"'Sup Personal Indirecto'!D178","v":1},{"$f":"'Sup Personal Indirecto'!E178","v":291.66666666666669}]
[null,null,{"$f":"'Sup Personal Indirecto'!C179","v":"Capacitación Talento Humano"},{"$f":"'Sup Personal Indirecto'!D179","v":1},{"$f":"'Sup Personal Indirecto'!E179","v":500}]
[null,null,{"$f":"'Sup Personal Indirecto'!C180","v":"Asesor Legal"},{"$f":"'Sup Personal Indirecto'!D180","v":1},{"$f":"'Sup Personal Indirecto'!E180","v":500}]
[null,null,{"$f":"'Sup Personal Indirecto'!C181","v":"Servicio de Guardianía"},{"$f":"'Sup Personal Indirecto'!D181","v":1},{"$f":"'Sup Personal Indirecto'!E181","v":2500}]
[null,null,{"$f":"'Sup Personal Indirecto'!C182","v":"Comisario"},{"$f":"'Sup Personal Indirecto'!D182","v":1},{"$f":"'Sup Personal Indirecto'!E182","v":375}]
[null,null,{"$f":"'Sup Personal Indirecto'!C183","v":"Directorio (Se hace provisión para dietas)"},{"$f":"'Sup Personal Indirecto'!D183","v":1},{"$f":"'Sup Personal Indirecto'!E183","v":375}]
[null,null,{"$f":"'Sup Personal Indirecto'!C184","v":"Limpieza de flota"},{"$f":"'Sup Personal Indirecto'!D184","v":1},{"$f":"'Sup Personal Indirecto'!E184","v":680}]
[null,null,{"$f":"'Sup Personal Indirecto'!C185","v":"Sistemas & Soporte"},{"$f":"'Sup Personal Indirecto'!D185","v":1},{"$f":"'Sup Personal Indirecto'!E185","v":200}]
[]
[]
[null,"Resumen de seguros e impuestos contemplados"]
[]
[]
[null,null,"Seguros Obligatorios"]
[]
[null,null,"Item","Minibús y Bus tipo Metros"]
[null,null,"Valor Revisión Anual (una Semestral)",{"$f":"'Sup fijo'!D180","v":70}]
[null,null,"Valor SPPAT",{"$f":"'Sup fijo'!D181","v":78}]
[null,null,"Valor permiso de operación",{"$f":"'Sup fijo'!D182","v":25}]
[]
[]
[]
[null,null,"Impuestos"]
[]
[null,null,"Participación Empleados",null,{"$f":"'Sup fijo'!D196","v":0.15}]
[null,null,"Impuesto a la Renta",null,{"$f":"'Sup fijo'!D197","v":0.3}]
[null,null,"Depreciación tributaria ",null,"5 Años"]
[null,null,"Valor salvamento ",null,{"$f":"'Sup fijo'!D215","v":0.1}]
[null,null,"IVA ",null,{"$f":"'Sup fijo'!D198","v":0.14000000000000001}]
[]
[]
[null,"Gastos de Administración"]
[]
[]
[null,null,"Conceptos","Gasto mes (USD) "]
[null,null,"Luz ",{"$f":"'Sup fijo'!D122","v":100}]
[null,null,"Agua ",{"$f":"'Sup fijo'!D123","v":50}]
[null,null,"Teléfonos ",{"$f":"'Sup fijo'!D124","v":400}]
[null,null,"Internet",{"$f":"'Sup fijo'!D125","v":50}]
[null,null,"Limpieza oficina ",{"$f":"'Sup fijo'!D126","v":500}]
[null,null,"Seguridad alarmas",{"$f":"'Sup fijo'!D127","v":50}]
[null,null,"Útiles oficina ",{"$f":"'Sup fijo'!D128","v":300}]
[null,null,"Medio de pago ",{"$f":"'Sup fijo'!D136","v":2295}]
[null,null,"Mantenimiento oficinas ",{"$f":"'Sup fijo'!D129","v":100}]
[null,null,"Comunicación radios ",{"$f":"'Sup fijo'!D130","v":100}]
[null,null,"Movilización auxilios ",{"$f":"'Sup fijo'!D131","v":500}]
[null,null,"Arriendo y mantenimiento de patios ",{"$f":"'Sup fijo'!D132","v":4000}]
[null,null,"Transporte valores",{"$f":"'Sup fijo'!D137","v":500}]
[null,null,"Otros ",{"$f":"'Sup fijo'!D133","v":447.25}]

{"sheet":"Indicadores","index":18,"n_rows":51,"n_cols":22,"rows_kept":51,"cut":false,"hidden":false,"merged":[]}
[]
[null,"Estructura de costos Transporte Convencional"]
[null,"INDICADORES"]
[]
[null,"Año",1,{"$f":"C5+1","v":2},{"$f":"D5+1","v":3},4,5,6,7,8,9,10,11,12,13,14,15,16,17,18,19,20]
[]
[null,"Demanda Anual"]
[null,{"$f":"'Sup fijo'!B14","v":"Intracantonal Rural"},{"$f":"'Sup fijo'!E34","v":308124},{"$f":"'Sup fijo'!F34","v":308124},{"$f":"'Sup fijo'!G34","v":308124},{"$f":"'Sup fijo'!H34","v":308124},{"$f":"'Sup fijo'!I34","v":308124},{"$f":"'Sup fijo'!J34","v":308124},{"$f":"'Sup fijo'!K34","v":308124},{"$f":"'Sup fijo'!L34","v":308124},{"$f":"'Sup fijo'!M34","v":308124},{"$f":"'Sup fijo'!N34","v":308124},{"$f":"'Sup fijo'!O34","v":308124},{"$f":"'Sup fijo'!P34","v":308124},{"$f":"'Sup fijo'!Q34","v":308124},{"$f":"'Sup fijo'!R34","v":308124},{"$f":"'Sup fijo'!S34","v":308124},{"$f":"'Sup fijo'!T34","v":308124},{"$f":"'Sup fijo'!U34","v":308124},{"$f":"'Sup fijo'!V34","v":308124},{"$f":"'Sup fijo'!W34","v":308124},{"$f":"'Sup fijo'!X34","v":308124}]
[null,{"$f":"'Sup fijo'!B18","v":"Intracantonal Urbano"},{"$f":"'Sup fijo'!E38","v":301276.80000000005},{"$f":"'Sup fijo'!F38","v":301276.80000000005},{"$f":"'Sup fijo'!G38","v":301276.80000000005},{"$f":"'Sup fijo'!H38","v":301276.80000000005},{"$f":"'Sup fijo'!I38","v":301276.80000000005},{"$f":"'Sup fijo'!J38","v":301276.80000000005},{"$f":"'Sup fijo'!K38","v":301276.80000000005},{"$f":"'Sup fijo'!L38","v":301276.80000000005},{"$f":"'Sup fijo'!M38","v":301276.80000000005},{"$f":"'Sup fijo'!N38","v":301276.80000000005},{"$f":"'Sup fijo'!O38","v":301276.80000000005},{"$f":"'Sup fijo'!P38","v":301276.80000000005},{"$f":"'Sup fijo'!Q38","v":301276.80000000005},{"$f":"'Sup fijo'!R38","v":301276.80000000005},{"$f":"'Sup fijo'!S38","v":301276.80000000005},{"$f":"'Sup fijo'!T38","v":301276.80000000005},{"$f":"'Sup fijo'!U38","v":301276.80000000005},{"$f":"'Sup fijo'!V38","v":301276.80000000005},{"$f":"'Sup fijo'!W38","v":301276.80000000005},{"$f":"'Sup fijo'!X38","v":301276.80000000005}]
[null,{"$f":"'Sup fijo'!B22","v":"Intracantonal Combinado"},{"$f":"'Sup fijo'!E42","v":308124},{"$f":"'Sup fijo'!F42","v":308124},{"$f":"'Sup fijo'!G42","v":308124},{"$f":"'Sup fijo'!H42","v":308124},{"$f":"'Sup fijo'!I42","v":308124},{"$f":"'Sup fijo'!J42","v":308124},{"$f":"'Sup fijo'!K42","v":308124},{"$f":"'Sup fijo'!L42","v":308124},{"$f":"'Sup fijo'!M42","v":308124},{"$f":"'Sup fijo'!N42","v":308124},{"$f":"'Sup fijo'!O42","v":308124},{"$f":"'Sup fijo'!P42","v":308124},{"$f":"'Sup fijo'!Q42","v":308124},{"$f":"'Sup fijo'!R42","v":308124},{"$f":"'Sup fijo'!S42","v":308124},{"$f":"'Sup fijo'!T42","v":308124},{"$f":"'Sup fijo'!U42","v":308124},{"$f":"'Sup fijo'!V42","v":308124},{"$f":"'Sup fijo'!W42","v":308124},{"$f":"'Sup fijo'!X42","v":308124}]
[null,{"$f":"'Sup fijo'!B26","v":"Otro"},{"$f":"'Sup fijo'!E46","v":348700},{"$f":"'Sup fijo'!F46","v":348700},{"$f":"'Sup fijo'!G46","v":348700},{"$f":"'Sup fijo'!H46","v":348700},{"$f":"'Sup fijo'!I46","v":348700},{"$f":"'Sup fijo'!J46","v":348700},{"$f":"'Sup fijo'!K46","v":348700},{"$f":"'Sup fijo'!L46","v":348700},{"$f":"'Sup fijo'!M46","v":348700},{"$f":"'Sup fijo'!N46","v":348700},{"$f":"'Sup fijo'!O46","v":348700},{"$f":"'Sup fijo'!P46","v":348700},{"$f":"'Sup fijo'!Q46","v":348700},{"$f":"'Sup fijo'!R46","v":348700},{"$f":"'Sup fijo'!S46","v":348700},{"$f":"'Sup fijo'!T46","v":348700},{"$f":"'Sup fijo'!U46","v":348700},{"$f":"'Sup fijo'!V46","v":348700},{"$f":"'Sup fijo'!W46","v":348700},{"$f":"'Sup fijo'!X46","v":348700}]
[null,"Kilometraje Anual"]
[null,{"$f":"B8","v":"Intracantonal Rural"},{"$f":"'Sup fijo'!E17","v":70406.000000000015},{"$f":"'Sup fijo'!F17","v":70406.000000000015},{"$f":"'Sup fijo'!G17","v":70406.000000000015},{"$f":"'Sup fijo'!H17","v":70406.000000000015},{"$f":"'Sup fijo'!I17","v":70406.000000000015},{"$f":"'Sup fijo'!J17","v":70406.000000000015},{"$f":"'Sup fijo'!K17","v":70406.000000000015},{"$f":"'Sup fijo'!L17","v":70406.000000000015},{"$f":"'Sup fijo'!M17","v":70406.000000000015},{"$f":"'Sup fijo'!N17","v":70406.000000000015},{"$f":"'Sup fijo'!O17","v":70406.000000000015},{"$f":"'Sup fijo'!P17","v":70406.000000000015},{"$f":"'Sup fijo'!Q17","v":70406.000000000015},{"$f":"'Sup fijo'!R17","v":70406.000000000015},{"$f":"'Sup fijo'!S17","v":70406.000000000015},{"$f":"'Sup fijo'!T17","v":70406.000000000015},{"$f":"'Sup fijo'!U17","v":70406.000000000015},{"$f":"'Sup fijo'!V17","v":70406.000000000015},{"$f":"'Sup fijo'!W17","v":70406.000000000015},{"$f":"'Sup fijo'!X17","v":70406.000000000015}]
[null,{"$f":"B9","v":"Intracantonal Urbano"},{"$f":"'Sup fijo'!E21","v":63826.000000000007},{"$f":"'Sup fijo'!F21","v":63826.000000000007},{"$f":"'Sup fijo'!G21","v":63826.000000000007},{"$f":"'Sup fijo'!H21","v":63826.000000000007},{"$f":"'Sup fijo'!I21","v":63826.000000000007},{"$f":"'Sup fijo'!J21","v":63826.000000000007},{"$f":"'Sup fijo'!K21","v":63826.000000000007},{"$f":"'Sup fijo'!L21","v":63826.000000000007},{"$f":"'Sup fijo'!M21","v":63826.000000000007},{"$f":"'Sup fijo'!N21","v":63826.000000000007},{"$f":"'Sup fijo'!O21","v":63826.000000000007},{"$f":"'Sup fijo'!P21","v":63826.000000000007},{"$f":"'Sup fijo'!Q21","v":63826.000000000007},{"$f":"'Sup fijo'!R21","v":63826.000000000007},{"$f":"'Sup fijo'!S21","v":63826.000000000007},{"$f":"'Sup fijo'!T21","v":63826.000000000007},{"$f":"'Sup fijo'!U21","v":63826.000000000007},{"$f":"'Sup fijo'!V21","v":63826.000000000007},{"$f":"'Sup fijo'!W21","v":63826.000000000007},{"$f":"'Sup fijo'!X21","v":63826.000000000007}]
[null,"Intracantonal Combinado",{"$f":"'Sup fijo'!E25","v":112518.00000000003},{"$f":"'Sup fijo'!F25","v":112518.00000000003},{"$f":"'Sup fijo'!G25","v":112518.00000000003},{"$f":"'Sup fijo'!H25","v":112518.00000000003},{"$f":"'Sup fijo'!I25","v":112518.00000000003},{"$f":"'Sup fijo'!J25","v":112518.00000000003},{"$f":"'Sup fijo'!K25","v":112518.00000000003},{"$f":"'Sup fijo'!L25","v":112518.00000000003},{"$f":"'Sup fijo'!M25","v":112518.00000000003},{"$f":"'Sup fijo'!N25","v":112518.00000000003},{"$f":"'Sup fijo'!O25","v":112518.00000000003},{"$f":"'Sup fijo'!P25","v":112518.00000000003},{"$f":"'Sup fijo'!Q25","v":112518.00000000003},{"$f":"'Sup fijo'!R25","v":112518.00000000003},{"$f":"'Sup fijo'!S25","v":112518.00000000003},{"$f":"'Sup fijo'!T25","v":112518.00000000003},{"$f":"'Sup fijo'!U25","v":112518.00000000003},{"$f":"'Sup fijo'!V25","v":112518.00000000003},{"$f":"'Sup fijo'!W25","v":112518.00000000003},{"$f":"'Sup fijo'!X25","v":112518.00000000003}]
[null,"Otro",{"$f":"'Sup fijo'!E29","v":65800},{"$f":"'Sup fijo'!F29","v":65800},{"$f":"'Sup fijo'!G29","v":65800},{"$f":"'Sup fijo'!H29","v":65800},{"$f":"'Sup fijo'!I29","v":65800},{"$f":"'Sup fijo'!J29","v":65800},{"$f":"'Sup fijo'!K29","v":65800},{"$f":"'Sup fijo'!L29","v":65800},{"$f":"'Sup fijo'!M29","v":65800},{"$f":"'Sup fijo'!N29","v":65800},{"$f":"'Sup fijo'!O29","v":65800},{"$f":"'Sup fijo'!P29","v":65800},{"$f":"'Sup fijo'!Q29","v":65800},{"$f":"'Sup fijo'!R29","v":65800},{"$f":"'Sup fijo'!S29","v":65800},{"$f":"'Sup fijo'!T29","v":65800},{"$f":"'Sup fijo'!U29","v":65800},{"$f":"'Sup fijo'!V29","v":65800},{"$f":"'Sup fijo'!W29","v":65800},{"$f":"'Sup fijo'!X29","v":65800}]
[null,"IPK"]
[null,{"$f":"B13","v":"Intracantonal Rural"},{"$f":"+'Sup fijo'!E34/'Sup fijo'!E17","v":4.3763883759906816},{"$f":"+'Sup fijo'!F34/'Sup fijo'!F17","v":4.3763883759906816},{"$f":"+'Sup fijo'!G34/'Sup fijo'!G17","v":4.3763883759906816},{"$f":"+'Sup fijo'!H34/'Sup fijo'!H17","v":4.3763883759906816},{"$f":"+'Sup fijo'!I34/'Sup fijo'!I17","v":4.3763883759906816},{"$f":"+'Sup fijo'!J34/'Sup fijo'!J17","v":4.3763883759906816},{"$f":"+'Sup fijo'!K34/'Sup fijo'!K17","v":4.3763883759906816},{"$f":"+'Sup fijo'!L34/'Sup fijo'!L17","v":4.3763883759906816},{"$f":"+'Sup fijo'!M34/'Sup fijo'!M17","v":4.3763883759906816},{"$f":"+'Sup fijo'!N34/'Sup fijo'!N17","v":4.3763883759906816},{"$f":"+'Sup fijo'!O34/'Sup fijo'!O17","v":4.3763883759906816},{"$f":"+'Sup fijo'!P34/'Sup fijo'!P17","v":4.3763883759906816},{"$f":"+'Sup fijo'!Q34/'Sup fijo'!Q17","v":4.3763883759906816},{"$f":"+'Sup fijo'!R34/'Sup fijo'!R17","v":4.3763883759906816},{"$f":"+'Sup fijo'!S34/'Sup fijo'!S17","v":4.3763883759906816},{"$f":"+'Sup fijo'!T34/'Sup fijo'!T17","v":4.3763883759906816},{"$f":"+'Sup fijo'!U34/'Sup fijo'!U17","v":4.3763883759906816},{"$f":"+'Sup fijo'!V34/'Sup fijo'!V17","v":4.3763883759906816},{"$f":"+'Sup fijo'!W34/'Sup fijo'!W17","v":4.3763883759906816},{"$f":"+'Sup fijo'!X34/'Sup fijo'!X17","v":4.3763883759906816}]
[null,{"$f":"B14","v":"Intracantonal Urbano"},{"$f":"+'Sup fijo'!E38/'Sup fijo'!E21","v":4.7202832701406949},{"$f":"+'Sup fijo'!F38/'Sup fijo'!F21","v":4.7202832701406949},{"$f":"+'Sup fijo'!G38/'Sup fijo'!G21","v":4.7202832701406949},{"$f":"+'Sup fijo'!H38/'Sup fijo'!H21","v":4.7202832701406949},{"$f":"+'Sup fijo'!I38/'Sup fijo'!I21","v":4.7202832701406949},{"$f":"+'Sup fijo'!J38/'Sup fijo'!J21","v":4.7202832701406949},{"$f":"+'Sup fijo'!K38/'Sup fijo'!K21","v":4.7202832701406949},{"$f":"+'Sup fijo'!L38/'Sup fijo'!L21","v":4.7202832701406949},{"$f":"+'Sup fijo'!M38/'Sup fijo'!M21","v":4.7202832701406949},{"$f":"+'Sup fijo'!N38/'Sup fijo'!N21","v":4.7202832701406949},{"$f":"+'Sup fijo'!O38/'Sup fijo'!O21","v":4.7202832701406949},{"$f":"+'Sup fijo'!P38/'Sup fijo'!P21","v":4.7202832701406949},{"$f":"+'Sup fijo'!Q38/'Sup fijo'!Q21","v":4.7202832701406949},{"$f":"+'Sup fijo'!R38/'Sup fijo'!R21","v":4.7202832701406949},{"$f":"+'Sup fijo'!S38/'Sup fijo'!S21","v":4.7202832701406949},{"$f":"+'Sup fijo'!T38/'Sup fijo'!T21","v":4.7202832701406949},{"$f":"+'Sup fijo'!U38/'Sup fijo'!U21","v":4.7202832701406949},{"$f":"+'Sup fijo'!V38/'Sup fijo'!V21","v":4.7202832701406949},{"$f":"+'Sup fijo'!W38/'Sup fijo'!W21","v":4.7202832701406949},{"$f":"+'Sup fijo'!X38/'Sup fijo'!X21","v":4.7202832701406949}]
[null,"Intracantonal Combinado",{"$f":"+'Sup fijo'!E42/'Sup fijo'!E25","v":2.7384418493041105},{"$f":"+'Sup fijo'!F42/'Sup fijo'!F25","v":2.7384418493041105},{"$f":"+'Sup fijo'!G42/'Sup fijo'!G25","v":2.7384418493041105},{"$f":"+'Sup fijo'!H42/'Sup fijo'!H25","v":2.7384418493041105},{"$f":"+'Sup fijo'!I42/'Sup fijo'!I25","v":2.7384418493041105},{"$f":"+'Sup fijo'!J42/'Sup fijo'!J25","v":2.7384418493041105},{"$f":"+'Sup fijo'!K42/'Sup fijo'!K25","v":2.7384418493041105},{"$f":"+'Sup fijo'!L42/'Sup fijo'!L25","v":2.7384418493041105},{"$f":"+'Sup fijo'!M42/'Sup fijo'!M25","v":2.7384418493041105},{"$f":"+'Sup fijo'!N42/'Sup fijo'!N25","v":2.7384418493041105},{"$f":"+'Sup fijo'!O42/'Sup fijo'!O25","v":2.7384418493041105},{"$f":"+'Sup fijo'!P42/'Sup fijo'!P25","v":2.7384418493041105},{"$f":"+'Sup fijo'!Q42/'Sup fijo'!Q25","v":2.7384418493041105},{"$f":"+'Sup fijo'!R42/'Sup fijo'!R25","v":2.7384418493041105},{"$f":"+'Sup fijo'!S42/'Sup fijo'!S25","v":2.7384418493041105},{"$f":"+'Sup fijo'!T42/'Sup fijo'!T25","v":2.7384418493041105},{"$f":"+'Sup fijo'!U42/'Sup fijo'!U25","v":2.7384418493041105},{"$f":"+'Sup fijo'!V42/'Sup fijo'!V25","v":2.7384418493041105},{"$f":"+'Sup fijo'!W42/'Sup fijo'!W25","v":2.7384418493041105},{"$f":"+'Sup fijo'!X42/'Sup fijo'!X25","v":2.7384418493041105}]
[null,"Otro",{"$f":"+'Sup fijo'!E46/'Sup fijo'!E29","v":5.2993920972644375},{"$f":"+'Sup fijo'!F46/'Sup fijo'!F29","v":5.2993920972644375},{"$f":"+'Sup fijo'!G46/'Sup fijo'!G29","v":5.2993920972644375},{"$f":"+'Sup fijo'!H46/'Sup fijo'!H29","v":5.2993920972644375},{"$f":"+'Sup fijo'!I46/'Sup fijo'!I29","v":5.2993920972644375},{"$f":"+'Sup fijo'!J46/'Sup fijo'!J29","v":5.2993920972644375},{"$f":"+'Sup fijo'!K46/'Sup fijo'!K29","v":5.2993920972644375},{"$f":"+'Sup fijo'!L46/'Sup fijo'!L29","v":5.2993920972644375},{"$f":"+'Sup fijo'!M46/'Sup fijo'!M29","v":5.2993920972644375},{"$f":"+'Sup fijo'!N46/'Sup fijo'!N29","v":5.2993920972644375},{"$f":"+'Sup fijo'!O46/'Sup fijo'!O29","v":5.2993920972644375},{"$f":"+'Sup fijo'!P46/'Sup fijo'!P29","v":5.2993920972644375},{"$f":"+'Sup fijo'!Q46/'Sup fijo'!Q29","v":5.2993920972644375},{"$f":"+'Sup fijo'!R46/'Sup fijo'!R29","v":5.2993920972644375},{"$f":"+'Sup fijo'!S46/'Sup fijo'!S29","v":5.2993920972644375},{"$f":"+'Sup fijo'!T46/'Sup fijo'!T29","v":5.2993920972644375},{"$f":"+'Sup fijo'!U46/'Sup fijo'!U29","v":5.2993920972644375},{"$f":"+'Sup fijo'!V46/'Sup fijo'!V29","v":5.2993920972644375},{"$f":"+'Sup fijo'!W46/'Sup fijo'!W29","v":5.2993920972644375},{"$f":"+'Sup fijo'!X46/'Sup fijo'!X29","v":5.2993920972644375}]
[null,"Costos operativos buses /km"]
[null,{"$f":"B13","v":"Intracantonal Rural"},{"$f":"'FO con SITPQ'!H$32/C13","v":0.85075644901303338},{"$f":"'FO con SITPQ'!I$32/D13","v":0.80742162347792878},{"$f":"'FO con SITPQ'!J$32/E13","v":0.75844344830545118},{"$f":"'FO con SITPQ'!K$32/F13","v":0.92745844351358486},{"$f":"'FO con SITPQ'!L$32/G13","v":0.7210631617988964},{"$f":"'FO con SITPQ'!M$32/H13","v":0.92469345225645361},{"$f":"'FO con SITPQ'!N$32/I13","v":0.92015855266124635},{"$f":"'FO con SITPQ'!O$32/J13","v":0.82401847544674944},{"$f":"'FO con SITPQ'!P$32/K13","v":0.94709191893471589},{"$f":"'FO con SITPQ'!Q$32/L13","v":0.82592138589856368},{"$f":"'FO con SITPQ'!R$32/M13","v":1.0122740747561094},{"$f":"'FO con SITPQ'!S$32/N13","v":1.0034874631612083},{"$f":"'FO con SITPQ'!T$32/O13","v":0},{"$f":"'FO con SITPQ'!U$32/P13","v":0},{"$f":"'FO con SITPQ'!V$32/Q13","v":0},{"$f":"'FO con SITPQ'!W$32/R13","v":0},{"$f":"'FO con SITPQ'!X$32/S13","v":0},{"$f":"'FO con SITPQ'!Y$32/T13","v":0},{"$f":"'FO con SITPQ'!Z$32/U13","v":0},{"$f":"'FO con SITPQ'!AA$32/V13","v":0}]
[null,{"$f":"B14","v":"Intracantonal Urbano"},{"$f":"'FO con SITPQ'!H$109/C14","v":0.98510726300360363},{"$f":"'FO con SITPQ'!I$109/D14","v":0.89567394808855261},{"$f":"'FO con SITPQ'!J$109/E14","v":0.93943245305873124},{"$f":"'FO con SITPQ'!K$109/F14","v":1.0237456571384438},{"$f":"'FO con SITPQ'!L$109/G14","v":0.84108806615836307},{"$f":"'FO con SITPQ'!M$109/H14","v":1.0276855959397204},{"$f":"'FO con SITPQ'!N$109/I14","v":0.8619732824479811},{"$f":"'FO con SITPQ'!O$109/J14","v":1.1887281715064946},{"$f":"'FO con SITPQ'!P$109/K14","v":0.9183766103137434},{"$f":"'FO con SITPQ'!Q$109/L14","v":1.0889545071873643},{"$f":"'FO con SITPQ'!R$109/M14","v":1.0096908518950318},{"$f":"'FO con SITPQ'!S$109/N14","v":1.1853044756627795},{"$f":"'FO con SITPQ'!T$109/O14","v":0},{"$f":"'FO con SITPQ'!U$109/P14","v":0},{"$f":"'FO con SITPQ'!V$109/Q14","v":0},{"$f":"'FO con SITPQ'!W$109/R14","v":0},{"$f":"'FO con SITPQ'!X$109/S14","v":0},{"$f":"'FO con SITPQ'!Y$109/T14","v":0},{"$f":"'FO con SITPQ'!Z$109/U14","v":0},{"$f":"'FO con SITPQ'!AA$109/V14","v":0}]
[null,{"$f":"B15","v":"Intracantonal Combinado"},{"$f":"'FO con SITPQ'!H$186/C15","v":0.73055888220781073},{"$f":"'FO con SITPQ'!I$186/D15","v":0.74138599617101453},{"$f":"'FO con SITPQ'!J$186/E15","v":0.84818723126853302},{"$f":"'FO con SITPQ'!K$186/F15","v":0.76094162348759775},{"$f":"'FO con SITPQ'!L$186/G15","v":0.85584629661502021},{"$f":"'FO con SITPQ'!M$186/H15","v":0.79523667813558152},{"$f":"'FO con SITPQ'!N$186/I15","v":0.89728822269676245},{"$f":"'FO con SITPQ'!O$186/J15","v":0.80175095536165664},{"$f":"'FO con SITPQ'!P$186/K15","v":0.81057411707492377},{"$f":"'FO con SITPQ'!Q$186/L15","v":0.88104958320013893},{"$f":"'FO con SITPQ'!R$186/M15","v":0.93282681886118457},{"$f":"'FO con SITPQ'!S$186/N15","v":0.90961432416557619},{"$f":"'FO con SITPQ'!T$186/O15","v":0},{"$f":"'FO con SITPQ'!U$186/P15","v":0},{"$f":"'FO con SITPQ'!V$186/Q15","v":0},{"$f":"'FO con SITPQ'!W$186/R15","v":0},{"$f":"'FO con SITPQ'!X$186/S15","v":0},{"$f":"'FO con SITPQ'!Y$186/T15","v":0},{"$f":"'FO con SITPQ'!Z$186/U15","v":0},{"$f":"'FO con SITPQ'!AA$186/V15","v":0}]
[null,{"$f":"B16","v":"Otro"},{"$f":"'FO con SITPQ'!H$263/C16","v":1.1463690221681269},{"$f":"'FO con SITPQ'!I$263/D16","v":1.0554279397608408},{"$f":"'FO con SITPQ'!J$263/E16","v":1.1385608846626891},{"$f":"'FO con SITPQ'!K$263/F16","v":1.1873313818518372},{"$f":"'FO con SITPQ'!L$263/G16","v":1.1168598256882984},{"$f":"'FO con SITPQ'!M$263/H16","v":1.1278557082397811},{"$f":"'FO con SITPQ'!N$263/I16","v":1.0465536757294327},{"$f":"'FO con SITPQ'!O$263/J16","v":1.3505737276256842},{"$f":"'FO con SITPQ'!P$263/K16","v":1.086568163944001},{"$f":"'FO con SITPQ'!Q$263/L16","v":1.3697416588641831},{"$f":"'FO con SITPQ'!R$263/M16","v":1.4221717597528196},{"$f":"'FO con SITPQ'!S$263/N16","v":1.2388045901115516},{"$f":"'FO con SITPQ'!T$263/O16","v":0},{"$f":"'FO con SITPQ'!U$263/P16","v":0},{"$f":"'FO con SITPQ'!V$263/Q16","v":0},{"$f":"'FO con SITPQ'!W$263/R16","v":0},{"$f":"'FO con SITPQ'!X$263/S16","v":0},{"$f":"'FO con SITPQ'!Y$263/T16","v":0},{"$f":"'FO con SITPQ'!Z$263/U16","v":0},{"$f":"'FO con SITPQ'!AA$263/V16","v":0}]
[null,"Costos operativos buses /pas"]
[null,{"$f":"B23","v":"Intracantonal Rural"},{"$f":"'FO con SITPQ'!H$32/C8","v":0.19439692639720255},{"$f":"'FO con SITPQ'!I$32/D8","v":0.18449496573647967},{"$f":"'FO con SITPQ'!J$32/E8","v":0.17330350580089057},{"$f":"'FO con SITPQ'!K$32/F8","v":0.21192324899721368},{"$f":"'FO con SITPQ'!L$32/G8","v":0.164762150853595},{"$f":"'FO con SITPQ'!M$32/H8","v":0.21129145149215214},{"$f":"'FO con SITPQ'!N$32/I8","v":0.21025523185038403},{"$f":"'FO con SITPQ'!O$32/J8","v":0.18828732842071325},{"$f":"'FO con SITPQ'!P$32/K8","v":0.2164094768486636},{"$f":"'FO con SITPQ'!Q$32/L8","v":0.1887221413962375},{"$f":"'FO con SITPQ'!R$32/M8","v":0.23130352879775237},{"$f":"'FO con SITPQ'!S$32/N8","v":0.22929579757282148},{"$f":"'FO con SITPQ'!T$32/O8","v":0},{"$f":"'FO con SITPQ'!U$32/P8","v":0},{"$f":"'FO con SITPQ'!V$32/Q8","v":0},{"$f":"'FO con SITPQ'!W$32/R8","v":0},{"$f":"'FO con SITPQ'!X$32/S8","v":0},{"$f":"'FO con SITPQ'!Y$32/T8","v":0},{"$f":"'FO con SITPQ'!Z$32/U8","v":0},{"$f":"'FO con SITPQ'!AA$32/V8","v":0}]
[null,{"$f":"B24","v":"Intracantonal Urbano"},{"$f":"'FO con SITPQ'!H$109/C9","v":0.20869664099083635},{"$f":"'FO con SITPQ'!I$109/D9","v":0.18975004185752092},{"$f":"'FO con SITPQ'!J$109/E9","v":0.19902035519803243},{"$f":"'FO con SITPQ'!K$109/F9","v":0.21688225018494059},{"$f":"'FO con SITPQ'!L$109/G9","v":0.17818593038237157},{"$f":"'FO con SITPQ'!M$109/H9","v":0.21771693288845537},{"$f":"'FO con SITPQ'!N$109/I9","v":0.18261049880218072},{"$f":"'FO con SITPQ'!O$109/J9","v":0.25183407509165501},{"$f":"'FO con SITPQ'!P$109/K9","v":0.19455963927486281},{"$f":"'FO con SITPQ'!Q$109/L9","v":0.23069685543573457},{"$f":"'FO con SITPQ'!R$109/M9","v":0.21390471590594529},{"$f":"'FO con SITPQ'!S$109/N9","v":0.25110875933245624},{"$f":"'FO con SITPQ'!T$109/O9","v":0},{"$f":"'FO con SITPQ'!U$109/P9","v":0},{"$f":"'FO con SITPQ'!V$109/Q9","v":0},{"$f":"'FO con SITPQ'!W$109/R9","v":0},{"$f":"'FO con SITPQ'!X$109/S9","v":0},{"$f":"'FO con SITPQ'!Y$109/T9","v":0},{"$f":"'FO con SITPQ'!Z$109/U9","v":0},{"$f":"'FO con SITPQ'!AA$109/V9","v":0}]
[null,"Intracantonal Combinado",{"$f":"'FO con SITPQ'!H$186/C10","v":0.26677903801150987},{"$f":"'FO con SITPQ'!I$186/D10","v":0.27073278782947852},{"$f":"'FO con SITPQ'!J$186/E10","v":0.30973351925806764},{"$f":"'FO con SITPQ'!K$186/F10","v":0.27787393903615926},{"$f":"'FO con SITPQ'!L$186/G10","v":0.31253038907235031},{"$f":"'FO con SITPQ'!M$186/H10","v":0.29039750409075371},{"$f":"'FO con SITPQ'!N$186/I10","v":0.32766378549348424},{"$f":"'FO con SITPQ'!O$186/J10","v":0.29277633029359251},{"$f":"'FO con SITPQ'!P$186/K10","v":0.29599829453413656},{"$f":"'FO con SITPQ'!Q$186/L10","v":0.3217339025928303},{"$f":"'FO con SITPQ'!R$186/M10","v":0.34064145605218288},{"$f":"'FO con SITPQ'!S$186/N10","v":0.33216492232498063},{"$f":"'FO con SITPQ'!T$186/O10","v":0},{"$f":"'FO con SITPQ'!U$186/P10","v":0},{"$f":"'FO con SITPQ'!V$186/Q10","v":0},{"$f":"'FO con SITPQ'!W$186/R10","v":0},{"$f":"'FO con SITPQ'!X$186/S10","v":0},{"$f":"'FO con SITPQ'!Y$186/T10","v":0},{"$f":"'FO con SITPQ'!Z$186/U10","v":0},{"$f":"'FO con SITPQ'!AA$186/V10","v":0}]
[null,"Otro",{"$f":"'FO con SITPQ'!H$263/C11","v":0.21632085362392528},{"$f":"'FO con SITPQ'!I$263/D11","v":0.19916019052556161},{"$f":"'FO con SITPQ'!J$263/E11","v":0.21484745113508733},{"$f":"'FO con SITPQ'!K$263/F11","v":0.22405048731244878},{"$f":"'FO con SITPQ'!L$263/G11","v":0.21075244201402363},{"$f":"'FO con SITPQ'!M$263/H11","v":0.21282737482700773},{"$f":"'FO con SITPQ'!N$263/I11","v":0.19748560901346909},{"$f":"'FO con SITPQ'!O$263/J11","v":0.25485446308508752},{"$f":"'FO con SITPQ'!P$263/K11","v":0.20503637851309223},{"$f":"'FO con SITPQ'!Q$263/L11","v":0.25847146875039645},{"$f":"'FO con SITPQ'!R$263/M11","v":0.26836507539929894},{"$f":"'FO con SITPQ'!S$263/N11","v":0.23376352747158044},{"$f":"'FO con SITPQ'!T$263/O11","v":0},{"$f":"'FO con SITPQ'!U$263/P11","v":0},{"$f":"'FO con SITPQ'!V$263/Q11","v":0},{"$f":"'FO con SITPQ'!W$263/R11","v":0},{"$f":"'FO con SITPQ'!X$263/S11","v":0},{"$f":"'FO con SITPQ'!Y$263/T11","v":0},{"$f":"'FO con SITPQ'!Z$263/U11","v":0},{"$f":"'FO con SITPQ'!AA$263/V11","v":0}]
[null,"Costos totales buses /km"]
[null,{"$f":"B28","v":"Intracantonal Rural"},{"$f":"('FO con SITPQ'!H$32+SUM('FO con SITPQ'!H$44:H$45))/C13","v":0.85713710443136293},{"$f":"('FO con SITPQ'!I$32+SUM('FO con SITPQ'!I$44:I$45))/D13","v":0.84479488972678762},{"$f":"('FO con SITPQ'!J$32+SUM('FO con SITPQ'!J$44:J$45))/E13","v":0.83448376727829077},{"$f":"('FO con SITPQ'!K$32+SUM('FO con SITPQ'!K$44:K$45))/F13","v":0.94552935085419254},{"$f":"('FO con SITPQ'!L$32+SUM('FO con SITPQ'!L$44:L$45))/G13","v":0.83368368664366954},{"$f":"('FO con SITPQ'!M$32+SUM('FO con SITPQ'!M$44:M$45))/H13","v":0.96897220660360639},{"$f":"('FO con SITPQ'!N$32+SUM('FO con SITPQ'!N$44:N$45))/I13","v":0.97507293880325407},{"$f":"('FO con SITPQ'!O$32+SUM('FO con SITPQ'!O$44:O$45))/J13","v":0.92588870632259557},{"$f":"('FO con SITPQ'!P$32+SUM('FO con SITPQ'!P$44:P$45))/K13","v":1.0059625362602127},{"$f":"('FO con SITPQ'!Q$32+SUM('FO con SITPQ'!Q$44:Q$45))/L13","v":0.94024809891373495},{"$f":"('FO con SITPQ'!R$32+SUM('FO con SITPQ'!R$44:R$45))/M13","v":1.0574371250735903},{"$f":"('FO con SITPQ'!S$32+SUM('FO con SITPQ'!S$44:S$45))/N13","v":1.0578082081272018},{"$f":"('FO con SITPQ'!T$32+SUM('FO con SITPQ'!T$44:T$45))/O13","v":0},{"$f":"('FO con SITPQ'!U$32+SUM('FO con SITPQ'!U$44:U$45))/P13","v":0},{"$f":"('FO con SITPQ'!V$32+SUM('FO con SITPQ'!V$44:V$45))/Q13","v":0},{"$f":"('FO con SITPQ'!W$32+SUM('FO con SITPQ'!W$44:W$45))/R13","v":0},{"$f":"('FO con SITPQ'!X$32+SUM('FO con SITPQ'!X$44:X$45))/S13","v":0},{"$f":"('FO con SITPQ'!Y$32+SUM('FO con SITPQ'!Y$44:Y$45))/T13","v":0},{"$f":"('FO con SITPQ'!Z$32+SUM('FO con SITPQ'!Z$44:Z$45))/U13","v":0},{"$f":"('FO con SITPQ'!AA$32+SUM('FO con SITPQ'!AA$44:AA$45))/V13","v":0}]
[null,{"$f":"B29","v":"Intracantonal Urbano"},{"$f":"('FO con SITPQ'!H$109+SUM('FO con SITPQ'!H$121:H$122))/C14","v":0.9942546402839767},{"$f":"('FO con SITPQ'!I$109+SUM('FO con SITPQ'!I$121:I$122))/D14","v":0.95927543315576436},{"$f":"('FO con SITPQ'!J$109+SUM('FO con SITPQ'!J$121:J$122))/E14","v":1.010388439792226},{"$f":"('FO con SITPQ'!K$109+SUM('FO con SITPQ'!K$121:K$122))/F14","v":1.0757027972171342},{"$f":"('FO con SITPQ'!L$109+SUM('FO con SITPQ'!L$121:L$122))/G14","v":0.98307964377116563},{"$f":"('FO con SITPQ'!M$109+SUM('FO con SITPQ'!M$121:M$122))/H14","v":1.114411191195549},{"$f":"('FO con SITPQ'!N$109+SUM('FO con SITPQ'!N$121:N$122))/I14","v":1.0265768214060891},{"$f":"('FO con SITPQ'!O$109+SUM('FO con SITPQ'!O$121:O$122))/J14","v":1.2308063480365008},{"$f":"('FO con SITPQ'!P$109+SUM('FO con SITPQ'!P$121:P$122))/K14","v":1.0783213182877518},{"$f":"('FO con SITPQ'!Q$109+SUM('FO con SITPQ'!Q$121:Q$122))/L14","v":1.1876227704770779},{"$f":"('FO con SITPQ'!R$109+SUM('FO con SITPQ'!R$121:R$122))/M14","v":1.1481793720910383},{"$f":"('FO con SITPQ'!S$109+SUM('FO con SITPQ'!S$121:S$122))/N14","v":1.259519287258247},{"$f":"('FO con SITPQ'!T$109+SUM('FO con SITPQ'!T$121:T$122))/O14","v":0},{"$f":"('FO con SITPQ'!U$109+SUM('FO con SITPQ'!U$121:U$122))/P14","v":0},{"$f":"('FO con SITPQ'!V$109+SUM('FO con SITPQ'!V$121:V$122))/Q14","v":0},{"$f":"('FO con SITPQ'!W$109+SUM('FO con SITPQ'!W$121:W$122))/R14","v":0},{"$f":"('FO con SITPQ'!X$109+SUM('FO con SITPQ'!X$121:X$122))/S14","v":0},{"$f":"('FO con SITPQ'!Y$109+SUM('FO con SITPQ'!Y$121:Y$122))/T14","v":0},{"$f":"('FO con SITPQ'!Z$109+SUM('FO con SITPQ'!Z$121:Z$122))/U14","v":0},{"$f":"('FO con SITPQ'!AA$109+SUM('FO con SITPQ'!AA$121:AA$122))/V14","v":0}]
[null,"Intracantonal Combinado",{"$f":"('FO con SITPQ'!H$186+SUM('FO con SITPQ'!H$198:H$199))/C15","v":0.76424623253307877},{"$f":"('FO con SITPQ'!I$186+SUM('FO con SITPQ'!I$198:I$199))/D15","v":0.78260036069089067},{"$f":"('FO con SITPQ'!J$186+SUM('FO con SITPQ'!J$198:J$199))/E15","v":0.86296222532635303},{"$f":"('FO con SITPQ'!K$186+SUM('FO con SITPQ'!K$198:K$199))/F15","v":0.82008539915112943},{"$f":"('FO con SITPQ'!L$186+SUM('FO con SITPQ'!L$198:L$199))/G15","v":0.88593985058695945},{"$f":"('FO con SITPQ'!M$186+SUM('FO con SITPQ'!M$198:M$199))/H15","v":0.86208542650574382},{"$f":"('FO con SITPQ'!N$186+SUM('FO con SITPQ'!N$198:N$199))/I15","v":0.93092378164039657},{"$f":"('FO con SITPQ'!O$186+SUM('FO con SITPQ'!O$198:O$199))/J15","v":0.88147729655785179},{"$f":"('FO con SITPQ'!P$186+SUM('FO con SITPQ'!P$198:P$199))/K15","v":0.89304218647902323},{"$f":"('FO con SITPQ'!Q$186+SUM('FO con SITPQ'!Q$198:Q$199))/L15","v":0.94086295446432489},{"$f":"('FO con SITPQ'!R$186+SUM('FO con SITPQ'!R$198:R$199))/M15","v":0.97749106289222143},{"$f":"('FO con SITPQ'!S$186+SUM('FO con SITPQ'!S$198:S$199))/N15","v":0.96884520271598684},{"$f":"('FO con SITPQ'!T$186+SUM('FO con SITPQ'!T$198:T$199))/O15","v":0},{"$f":"('FO con SITPQ'!U$186+SUM('FO con SITPQ'!U$198:U$199))/P15","v":0},{"$f":"('FO con SITPQ'!V$186+SUM('FO con SITPQ'!V$198:V$199))/Q15","v":0},{"$f":"('FO con SITPQ'!W$186+SUM('FO con SITPQ'!W$198:W$199))/R15","v":0},{"$f":"('FO con SITPQ'!X$186+SUM('FO con SITPQ'!X$198:X$199))/S15","v":0},{"$f":"('FO con SITPQ'!Y$186+SUM('FO con SITPQ'!Y$198:Y$199))/T15","v":0},{"$f":"('FO con SITPQ'!Z$186+SUM('FO con SITPQ'!Z$198:Z$199))/U15","v":0},{"$f":"('FO con SITPQ'!AA$186+SUM('FO con SITPQ'!AA$198:AA$199))/V15","v":0}]
[null,"Otro",{"$f":"('FO con SITPQ'!H$263+SUM('FO con SITPQ'!H$275:H$276))/C16","v":1.4572490228519916},{"$f":"('FO con SITPQ'!I$263+SUM('FO con SITPQ'!I$275:I$276))/D16","v":1.4155416300942476},{"$f":"('FO con SITPQ'!J$263+SUM('FO con SITPQ'!J$275:J$276))/E16","v":1.4854823444651977},{"$f":"('FO con SITPQ'!K$263+SUM('FO con SITPQ'!K$275:K$276))/F16","v":1.5179915171228937},{"$f":"('FO con SITPQ'!L$263+SUM('FO con SITPQ'!L$275:L$276))/G16","v":1.4782520704368751},{"$f":"('FO con SITPQ'!M$263+SUM('FO con SITPQ'!M$275:M$276))/H16","v":1.4902465477318274},{"$f":"('FO con SITPQ'!N$263+SUM('FO con SITPQ'!N$275:N$276))/I16","v":1.4577729986634711},{"$f":"('FO con SITPQ'!O$263+SUM('FO con SITPQ'!O$275:O$276))/J16","v":1.6531567178416782},{"$f":"('FO con SITPQ'!P$263+SUM('FO con SITPQ'!P$275:P$276))/K16","v":1.5084436265171017},{"$f":"('FO con SITPQ'!Q$263+SUM('FO con SITPQ'!Q$275:Q$276))/L16","v":1.6884651788948952},{"$f":"('FO con SITPQ'!R$263+SUM('FO con SITPQ'!R$275:R$276))/M16","v":1.7310627541538035},{"$f":"('FO con SITPQ'!S$263+SUM('FO con SITPQ'!S$275:S$276))/N16","v":1.6320777655187837},{"$f":"('FO con SITPQ'!T$263+SUM('FO con SITPQ'!T$275:T$276))/O16","v":0},{"$f":"('FO con SITPQ'!U$263+SUM('FO con SITPQ'!U$275:U$276))/P16","v":0},{"$f":"('FO con SITPQ'!V$263+SUM('FO con SITPQ'!V$275:V$276))/Q16","v":0},{"$f":"('FO con SITPQ'!W$263+SUM('FO con SITPQ'!W$275:W$276))/R16","v":0},{"$f":"('FO con SITPQ'!X$263+SUM('FO con SITPQ'!X$275:X$276))/S16","v":0},{"$f":"('FO con SITPQ'!Y$263+SUM('FO con SITPQ'!Y$275:Y$276))/T16","v":0},{"$f":"('FO con SITPQ'!Z$263+SUM('FO con SITPQ'!Z$275:Z$276))/U16","v":0},{"$f":"('FO con SITPQ'!AA$263+SUM('FO con SITPQ'!AA$275:AA$276))/V16","v":0}]
[null,"Costos totales buses /pas"]
[null,{"$f":"B33","v":"Intracantonal Rural"},{"$f":"('FO con SITPQ'!H$32+SUM('FO con SITPQ'!H$44:H$45))/C8","v":0.19585489924379323},{"$f":"('FO con SITPQ'!I$32+SUM('FO con SITPQ'!I$44:I$45))/D8","v":0.19303471656250154},{"$f":"('FO con SITPQ'!J$32+SUM('FO con SITPQ'!J$44:J$45))/E8","v":0.19067863626006201},{"$f":"('FO con SITPQ'!K$32+SUM('FO con SITPQ'!K$44:K$45))/F8","v":0.21605243173605526},{"$f":"('FO con SITPQ'!L$32+SUM('FO con SITPQ'!L$44:L$45))/G8","v":0.19049581870232182},{"$f":"('FO con SITPQ'!M$32+SUM('FO con SITPQ'!M$44:M$45))/H8","v":0.22140909886322885},{"$f":"('FO con SITPQ'!N$32+SUM('FO con SITPQ'!N$44:N$45))/I8","v":0.22280310955778165},{"$f":"('FO con SITPQ'!O$32+SUM('FO con SITPQ'!O$44:O$45))/J8","v":0.21156456575063504},{"$f":"('FO con SITPQ'!P$32+SUM('FO con SITPQ'!P$44:P$45))/K8","v":0.22986134909301625},{"$f":"('FO con SITPQ'!Q$32+SUM('FO con SITPQ'!Q$44:Q$45))/L8","v":0.21484567139242786},{"$f":"('FO con SITPQ'!R$32+SUM('FO con SITPQ'!R$44:R$45))/M8","v":0.24162323683949066},{"$f":"('FO con SITPQ'!S$32+SUM('FO con SITPQ'!S$44:S$45))/N8","v":0.24170802891499454},{"$f":"('FO con SITPQ'!T$32+SUM('FO con SITPQ'!T$44:T$45))/O8","v":0},{"$f":"('FO con SITPQ'!U$32+SUM('FO con SITPQ'!U$44:U$45))/P8","v":0},{"$f":"('FO con SITPQ'!V$32+SUM('FO con SITPQ'!V$44:V$45))/Q8","v":0},{"$f":"('FO con SITPQ'!W$32+SUM('FO con SITPQ'!W$44:W$45))/R8","v":0},{"$f":"('FO con SITPQ'!X$32+SUM('FO con SITPQ'!X$44:X$45))/S8","v":0},{"$f":"('FO con SITPQ'!Y$32+SUM('FO con SITPQ'!Y$44:Y$45))/T8","v":0},{"$f":"('FO con SITPQ'!Z$32+SUM('FO con SITPQ'!Z$44:Z$45))/U8","v":0},{"$f":"('FO con SITPQ'!AA$32+SUM('FO con SITPQ'!AA$44:AA$45))/V8","v":0}]
[null,{"$f":"B34","v":"Intracantonal Urbano"},{"$f":"('FO con SITPQ'!H$109+SUM('FO con SITPQ'!H$121:H$122))/C9","v":0.21063452834989319},{"$f":"('FO con SITPQ'!I$109+SUM('FO con SITPQ'!I$121:I$122))/D9","v":0.20322412411642654},{"$f":"('FO con SITPQ'!J$109+SUM('FO con SITPQ'!J$121:J$122))/E9","v":0.21405250108265428},{"$f":"('FO con SITPQ'!K$109+SUM('FO con SITPQ'!K$121:K$122))/F9","v":0.22788945824962561},{"$f":"('FO con SITPQ'!L$109+SUM('FO con SITPQ'!L$121:L$122))/G9","v":0.20826708642463812},{"$f":"('FO con SITPQ'!M$109+SUM('FO con SITPQ'!M$121:M$122))/H9","v":0.23608989702906799},{"$f":"('FO con SITPQ'!N$109+SUM('FO con SITPQ'!N$121:N$122))/I9","v":0.2174820371268715},{"$f":"('FO con SITPQ'!O$109+SUM('FO con SITPQ'!O$121:O$122))/J9","v":0.26074840800810978},{"$f":"('FO con SITPQ'!P$109+SUM('FO con SITPQ'!P$121:P$122))/K9","v":0.22844419637036123},{"$f":"('FO con SITPQ'!Q$109+SUM('FO con SITPQ'!Q$121:Q$122))/L9","v":0.25159989401264871},{"$f":"('FO con SITPQ'!R$109+SUM('FO con SITPQ'!R$121:R$122))/M9","v":0.24324374330543408},{"$f":"('FO con SITPQ'!S$109+SUM('FO con SITPQ'!S$121:S$122))/N9","v":0.26683129277974565},{"$f":"('FO con SITPQ'!T$109+SUM('FO con SITPQ'!T$121:T$122))/O9","v":0},{"$f":"('FO con SITPQ'!U$109+SUM('FO con SITPQ'!U$121:U$122))/P9","v":0},{"$f":"('FO con SITPQ'!V$109+SUM('FO con SITPQ'!V$121:V$122))/Q9","v":0},{"$f":"('FO con SITPQ'!W$109+SUM('FO con SITPQ'!W$121:W$122))/R9","v":0},{"$f":"('FO con SITPQ'!X$109+SUM('FO con SITPQ'!X$121:X$122))/S9","v":0},{"$f":"('FO con SITPQ'!Y$109+SUM('FO con SITPQ'!Y$121:Y$122))/T9","v":0},{"$f":"('FO con SITPQ'!Z$109+SUM('FO con SITPQ'!Z$121:Z$122))/U9","v":0},{"$f":"('FO con SITPQ'!AA$109+SUM('FO con SITPQ'!AA$121:AA$122))/V9","v":0}]
[null,"Intracantonal Combinado",{"$f":"('FO con SITPQ'!H$186+SUM('FO con SITPQ'!H$198:H$199))/C10","v":0.27908068697069027},{"$f":"('FO con SITPQ'!I$186+SUM('FO con SITPQ'!I$198:I$199))/D10","v":0.28578308532998942},{"$f":"('FO con SITPQ'!J$186+SUM('FO con SITPQ'!J$198:J$199))/E10","v":0.31512892104889789},{"$f":"('FO con SITPQ'!K$186+SUM('FO con SITPQ'!K$198:K$199))/F10","v":0.29947154048917579},{"$f":"('FO con SITPQ'!L$186+SUM('FO con SITPQ'!L$198:L$199))/G10","v":0.32351968723093144},{"$f":"('FO con SITPQ'!M$186+SUM('FO con SITPQ'!M$198:M$199))/H10","v":0.31480873940223192},{"$f":"('FO con SITPQ'!N$186+SUM('FO con SITPQ'!N$198:N$199))/I10","v":0.33994652173350393},{"$f":"('FO con SITPQ'!O$186+SUM('FO con SITPQ'!O$198:O$199))/J10","v":0.32189009117789069},{"$f":"('FO con SITPQ'!P$186+SUM('FO con SITPQ'!P$198:P$199))/K10","v":0.3261132555018329},{"$f":"('FO con SITPQ'!Q$186+SUM('FO con SITPQ'!Q$198:Q$199))/L10","v":0.34357602105132007},{"$f":"('FO con SITPQ'!R$186+SUM('FO con SITPQ'!R$198:R$199))/M10","v":0.35695155007239621},{"$f":"('FO con SITPQ'!S$186+SUM('FO con SITPQ'!S$198:S$199))/N10","v":0.35379433124066101},{"$f":"('FO con SITPQ'!T$186+SUM('FO con SITPQ'!T$198:T$199))/O10","v":0},{"$f":"('FO con SITPQ'!U$186+SUM('FO con SITPQ'!U$198:U$199))/P10","v":0},{"$f":"('FO con SITPQ'!V$186+SUM('FO con SITPQ'!V$198:V$199))/Q10","v":0},{"$f":"('FO con SITPQ'!W$186+SUM('FO con SITPQ'!W$198:W$199))/R10","v":0},{"$f":"('FO con SITPQ'!X$186+SUM('FO con SITPQ'!X$198:X$199))/S10","v":0},{"$f":"('FO con SITPQ'!Y$186+SUM('FO con SITPQ'!Y$198:Y$199))/T10","v":0},{"$f":"('FO con SITPQ'!Z$186+SUM('FO con SITPQ'!Z$198:Z$199))/U10","v":0},{"$f":"('FO con SITPQ'!AA$186+SUM('FO con SITPQ'!AA$198:AA$199))/V10","v":0}]
[null,"Otro",{"$f":"('FO con SITPQ'!H$263+SUM('FO con SITPQ'!H$275:H$276))/C11","v":0.27498418613037295},{"$f":"('FO con SITPQ'!I$263+SUM('FO con SITPQ'!I$275:I$276))/D11","v":0.26711396403843274},{"$f":"('FO con SITPQ'!J$263+SUM('FO con SITPQ'!J$275:J$276))/E11","v":0.28031183901866935},{"$f":"('FO con SITPQ'!K$263+SUM('FO con SITPQ'!K$275:K$276))/F11","v":0.28644634880036252},{"$f":"('FO con SITPQ'!L$263+SUM('FO con SITPQ'!L$275:L$276))/G11","v":0.27894747988169311},{"$f":"('FO con SITPQ'!M$263+SUM('FO con SITPQ'!M$275:M$276))/H11","v":0.28121084841053695},{"$f":"('FO con SITPQ'!N$263+SUM('FO con SITPQ'!N$275:N$276))/I11","v":0.27508306083182216},{"$f":"('FO con SITPQ'!O$263+SUM('FO con SITPQ'!O$275:O$276))/J11","v":0.31195214234007002},{"$f":"('FO con SITPQ'!P$263+SUM('FO con SITPQ'!P$275:P$276))/K11","v":0.2846446533548187},{"$f":"('FO con SITPQ'!Q$263+SUM('FO con SITPQ'!Q$275:Q$276))/L11","v":0.31861488033061114},{"$f":"('FO con SITPQ'!R$263+SUM('FO con SITPQ'!R$275:R$276))/M11","v":0.32665308065190785},{"$f":"('FO con SITPQ'!S$263+SUM('FO con SITPQ'!S$275:S$276))/N11","v":0.30797452529720665},{"$f":"('FO con SITPQ'!T$263+SUM('FO con SITPQ'!T$275:T$276))/O11","v":0},{"$f":"('FO con SITPQ'!U$263+SUM('FO con SITPQ'!U$275:U$276))/P11","v":0},{"$f":"('FO con SITPQ'!V$263+SUM('FO con SITPQ'!V$275:V$276))/Q11","v":0},{"$f":"('FO con SITPQ'!W$263+SUM('FO con SITPQ'!W$275:W$276))/R11","v":0},{"$f":"('FO con SITPQ'!X$263+SUM('FO con SITPQ'!X$275:X$276))/S11","v":0},{"$f":"('FO con SITPQ'!Y$263+SUM('FO con SITPQ'!Y$275:Y$276))/T11","v":0},{"$f":"('FO con SITPQ'!Z$263+SUM('FO con SITPQ'!Z$275:Z$276))/U11","v":0},{"$f":"('FO con SITPQ'!AA$263+SUM('FO con SITPQ'!AA$275:AA$276))/V11","v":0}]
[null,"Costos totales con recaudo /km"]
[null,{"$f":"B38","v":"Intracantonal Rural"},{"$f":"('FO con SITPQ'!H$32+SUM('FO con SITPQ'!H$44:H$45,'FO con SITPQ'!H$74))/C13","v":0.85713710443136293},{"$f":"('FO con SITPQ'!I$32+SUM('FO con SITPQ'!I$44:I$45,'FO con SITPQ'!I$74))/D13","v":0.94665974196680536},{"$f":"('FO con SITPQ'!J$32+SUM('FO con SITPQ'!J$44:J$45,'FO con SITPQ'!J$74))/E13","v":0.93899710567654893},{"$f":"('FO con SITPQ'!K$32+SUM('FO con SITPQ'!K$44:K$45,'FO con SITPQ'!K$74))/F13","v":1.0504941868743312},{"$f":"('FO con SITPQ'!L$32+SUM('FO con SITPQ'!L$44:L$45,'FO con SITPQ'!L$74))/G13","v":0.93893192772106238},{"$f":"('FO con SITPQ'!M$32+SUM('FO con SITPQ'!M$44:M$45,'FO con SITPQ'!M$74))/H13","v":1.0749256108962177},{"$f":"('FO con SITPQ'!N$32+SUM('FO con SITPQ'!N$44:N$45,'FO con SITPQ'!N$74))/I13","v":1.0830830311149404},{"$f":"('FO con SITPQ'!O$32+SUM('FO con SITPQ'!O$44:O$45,'FO con SITPQ'!O$74))/J13","v":1.0357731956503129},{"$f":"('FO con SITPQ'!P$32+SUM('FO con SITPQ'!P$44:P$45,'FO con SITPQ'!P$74))/K13","v":1.1174470145765285},{"$f":"('FO con SITPQ'!Q$32+SUM('FO con SITPQ'!Q$44:Q$45,'FO con SITPQ'!Q$74))/L13","v":1.0532243203870575},{"$f":"('FO con SITPQ'!R$32+SUM('FO con SITPQ'!R$44:R$45,'FO con SITPQ'!R$74))/M13","v":1.1718880608363358},{"$f":"('FO con SITPQ'!S$32+SUM('FO con SITPQ'!S$44:S$45,'FO con SITPQ'!S$74))/N13","v":1.1735678880744629},{"$f":"('FO con SITPQ'!T$32+SUM('FO con SITPQ'!T$44:T$45,'FO con SITPQ'!T$74))/O13","v":0},{"$f":"('FO con SITPQ'!U$32+SUM('FO con SITPQ'!U$44:U$45,'FO con SITPQ'!U$74))/P13","v":0},{"$f":"('FO con SITPQ'!V$32+SUM('FO con SITPQ'!V$44:V$45,'FO con SITPQ'!V$74))/Q13","v":0},{"$f":"('FO con SITPQ'!W$32+SUM('FO con SITPQ'!W$44:W$45,'FO con SITPQ'!W$74))/R13","v":0},{"$f":"('FO con SITPQ'!X$32+SUM('FO con SITPQ'!X$44:X$45,'FO con SITPQ'!X$74))/S13","v":0},{"$f":"('FO con SITPQ'!Y$32+SUM('FO con SITPQ'!Y$44:Y$45,'FO con SITPQ'!Y$74))/T13","v":0},{"$f":"('FO con SITPQ'!Z$32+SUM('FO con SITPQ'!Z$44:Z$45,'FO con SITPQ'!Z$74))/U13","v":0},{"$f":"('FO con SITPQ'!AA$32+SUM('FO con SITPQ'!AA$44:AA$45,'FO con SITPQ'!AA$74))/V13","v":0}]
[null,{"$f":"B39","v":"Intracantonal Urbano"},{"$f":"('FO con SITPQ'!H$109+SUM('FO con SITPQ'!H$121:H$122,'FO con SITPQ'!H$151))/C14","v":0.9942546402839767},{"$f":"('FO con SITPQ'!I$109+SUM('FO con SITPQ'!I$121:I$122,'FO con SITPQ'!I$151))/D14","v":1.0691447858123517},{"$f":"('FO con SITPQ'!J$109+SUM('FO con SITPQ'!J$121:J$122,'FO con SITPQ'!J$151))/E14","v":1.1231143956178846},{"$f":"('FO con SITPQ'!K$109+SUM('FO con SITPQ'!K$121:K$122,'FO con SITPQ'!K$151))/F14","v":1.1889157291719594},{"$f":"('FO con SITPQ'!L$109+SUM('FO con SITPQ'!L$121:L$122,'FO con SITPQ'!L$151))/G14","v":1.0965982506422689},{"$f":"('FO con SITPQ'!M$109+SUM('FO con SITPQ'!M$121:M$122,'FO con SITPQ'!M$151))/H14","v":1.228690372732689},{"$f":"('FO con SITPQ'!N$109+SUM('FO con SITPQ'!N$121:N$122,'FO con SITPQ'!N$151))/I14","v":1.1430743047058418},{"$f":"('FO con SITPQ'!O$109+SUM('FO con SITPQ'!O$121:O$122,'FO con SITPQ'!O$151))/J14","v":1.3493255177397983},{"$f":"('FO con SITPQ'!P$109+SUM('FO con SITPQ'!P$121:P$122,'FO con SITPQ'!P$151))/K14","v":1.1985662034912379},{"$f":"('FO con SITPQ'!Q$109+SUM('FO con SITPQ'!Q$121:Q$122,'FO con SITPQ'!Q$151))/L14","v":1.3094766194338709},{"$f":"('FO con SITPQ'!R$109+SUM('FO con SITPQ'!R$121:R$122,'FO con SITPQ'!R$151))/M14","v":1.2716238178117727},{"$f":"('FO con SITPQ'!S$109+SUM('FO con SITPQ'!S$121:S$122,'FO con SITPQ'!S$151))/N14","v":1.3843753177718106},{"$f":"('FO con SITPQ'!T$109+SUM('FO con SITPQ'!T$121:T$122,'FO con SITPQ'!T$151))/O14","v":0},{"$f":"('FO con SITPQ'!U$109+SUM('FO con SITPQ'!U$121:U$122,'FO con SITPQ'!U$151))/P14","v":0},{"$f":"('FO con SITPQ'!V$109+SUM('FO con SITPQ'!V$121:V$122,'FO con SITPQ'!V$151))/Q14","v":0},{"$f":"('FO con SITPQ'!W$109+SUM('FO con SITPQ'!W$121:W$122,'FO con SITPQ'!W$151))/R14","v":0},{"$f":"('FO con SITPQ'!X$109+SUM('FO con SITPQ'!X$121:X$122,'FO con SITPQ'!X$151))/S14","v":0},{"$f":"('FO con SITPQ'!Y$109+SUM('FO con SITPQ'!Y$121:Y$122,'FO con SITPQ'!Y$151))/T14","v":0},{"$f":"('FO con SITPQ'!Z$109+SUM('FO con SITPQ'!Z$121:Z$122,'FO con SITPQ'!Z$151))/U14","v":0},{"$f":"('FO con SITPQ'!AA$109+SUM('FO con SITPQ'!AA$121:AA$122,'FO con SITPQ'!AA$151))/V14","v":0}]
[null,"Intracantonal Combinado",{"$f":"('FO con SITPQ'!H$186+SUM('FO con SITPQ'!H$198:H$199,'FO con SITPQ'!H$228))/C15","v":0.76424623253307877},{"$f":"('FO con SITPQ'!I$186+SUM('FO con SITPQ'!I$198:I$199,'FO con SITPQ'!I$228))/D15","v":0.84634035595218826},{"$f":"('FO con SITPQ'!J$186+SUM('FO con SITPQ'!J$198:J$199,'FO con SITPQ'!J$228))/E15","v":0.9283594604644444},{"$f":"('FO con SITPQ'!K$186+SUM('FO con SITPQ'!K$198:K$199,'FO con SITPQ'!K$228))/F15","v":0.88576515034501724},{"$f":"('FO con SITPQ'!L$186+SUM('FO con SITPQ'!L$198:L$199,'FO con SITPQ'!L$228))/G15","v":0.95179693710907076},{"$f":"('FO con SITPQ'!M$186+SUM('FO con SITPQ'!M$198:M$199,'FO con SITPQ'!M$228))/H15","v":0.92838375550755337},{"$f":"('FO con SITPQ'!N$186+SUM('FO con SITPQ'!N$198:N$199,'FO con SITPQ'!N$228))/I15","v":0.99850904408104257},{"$f":"('FO con SITPQ'!O$186+SUM('FO con SITPQ'!O$198:O$199,'FO con SITPQ'!O$228))/J15","v":0.95023542730677424},{"$f":"('FO con SITPQ'!P$186+SUM('FO con SITPQ'!P$198:P$199,'FO con SITPQ'!P$228))/K15","v":0.96280147992841414},{"$f":"('FO con SITPQ'!Q$186+SUM('FO con SITPQ'!Q$198:Q$199,'FO con SITPQ'!Q$228))/L15","v":1.0115556778423687},{"$f":"('FO con SITPQ'!R$186+SUM('FO con SITPQ'!R$198:R$199,'FO con SITPQ'!R$228))/M15","v":1.0491065607086763},{"$f":"('FO con SITPQ'!S$186+SUM('FO con SITPQ'!S$198:S$199,'FO con SITPQ'!S$228))/N15","v":1.0412796223321092},{"$f":"('FO con SITPQ'!T$186+SUM('FO con SITPQ'!T$198:T$199,'FO con SITPQ'!T$228))/O15","v":0},{"$f":"('FO con SITPQ'!U$186+SUM('FO con SITPQ'!U$198:U$199,'FO con SITPQ'!U$228))/P15","v":0},{"$f":"('FO con SITPQ'!V$186+SUM('FO con SITPQ'!V$198:V$199,'FO con SITPQ'!V$228))/Q15","v":0},{"$f":"('FO con SITPQ'!W$186+SUM('FO con SITPQ'!W$198:W$199,'FO con SITPQ'!W$228))/R15","v":0},{"$f":"('FO con SITPQ'!X$186+SUM('FO con SITPQ'!X$198:X$199,'FO con SITPQ'!X$228))/S15","v":0},{"$f":"('FO con SITPQ'!Y$186+SUM('FO con SITPQ'!Y$198:Y$199,'FO con SITPQ'!Y$228))/T15","v":0},{"$f":"('FO con SITPQ'!Z$186+SUM('FO con SITPQ'!Z$198:Z$199,'FO con SITPQ'!Z$228))/U15","v":0},{"$f":"('FO con SITPQ'!AA$186+SUM('FO con SITPQ'!AA$198:AA$199,'FO con SITPQ'!AA$228))/V15","v":0}]
[null,"Otro",{"$f":"('FO con SITPQ'!H$263+SUM('FO con SITPQ'!H$275:H$276,'FO con SITPQ'!H$305))/C16","v":1.4572490228519916},{"$f":"('FO con SITPQ'!I$263+SUM('FO con SITPQ'!I$275:I$276,'FO con SITPQ'!I$305))/D16","v":1.5388903246276846},{"$f":"('FO con SITPQ'!J$263+SUM('FO con SITPQ'!J$275:J$276,'FO con SITPQ'!J$305))/E16","v":1.612038105056504},{"$f":"('FO con SITPQ'!K$263+SUM('FO con SITPQ'!K$275:K$276,'FO con SITPQ'!K$305))/F16","v":1.6450939985999544},{"$f":"('FO con SITPQ'!L$263+SUM('FO con SITPQ'!L$275:L$276,'FO con SITPQ'!L$305))/G16","v":1.6056977286139238},{"$f":"('FO con SITPQ'!M$263+SUM('FO con SITPQ'!M$275:M$276,'FO con SITPQ'!M$305))/H16","v":1.6185460918186625},{"$f":"('FO con SITPQ'!N$263+SUM('FO con SITPQ'!N$275:N$276,'FO con SITPQ'!N$305))/I16","v":1.5885629972754616},{"$f":"('FO con SITPQ'!O$263+SUM('FO con SITPQ'!O$275:O$276,'FO con SITPQ'!O$305))/J16","v":1.7862164338280189},{"$f":"('FO con SITPQ'!P$263+SUM('FO con SITPQ'!P$275:P$276,'FO con SITPQ'!P$305))/K16","v":1.6434407777293485},{"$f":"('FO con SITPQ'!Q$263+SUM('FO con SITPQ'!Q$275:Q$276,'FO con SITPQ'!Q$305))/L16","v":1.8252686898764803},{"$f":"('FO con SITPQ'!R$263+SUM('FO con SITPQ'!R$275:R$276,'FO con SITPQ'!R$305))/M16","v":1.8696520045578691},{"$f":"('FO con SITPQ'!S$263+SUM('FO con SITPQ'!S$275:S$276,'FO con SITPQ'!S$305))/N16","v":1.772251781257391},{"$f":"('FO con SITPQ'!T$263+SUM('FO con SITPQ'!T$275:T$276,'FO con SITPQ'!T$305))/O16","v":0},{"$f":"('FO con SITPQ'!U$263+SUM('FO con SITPQ'!U$275:U$276,'FO con SITPQ'!U$305))/P16","v":0},{"$f":"('FO con SITPQ'!V$263+SUM('FO con SITPQ'!V$275:V$276,'FO con SITPQ'!V$305))/Q16","v":0},{"$f":"('FO con SITPQ'!W$263+SUM('FO con SITPQ'!W$275:W$276,'FO con SITPQ'!W$305))/R16","v":0},{"$f":"('FO con SITPQ'!X$263+SUM('FO con SITPQ'!X$275:X$276,'FO con SITPQ'!X$305))/S16","v":0},{"$f":"('FO con SITPQ'!Y$263+SUM('FO con SITPQ'!Y$275:Y$276,'FO con SITPQ'!Y$305))/T16","v":0},{"$f":"('FO con SITPQ'!Z$263+SUM('FO con SITPQ'!Z$275:Z$276,'FO con SITPQ'!Z$305))/U16","v":0},{"$f":"('FO con SITPQ'!AA$263+SUM('FO con SITPQ'!AA$275:AA$276,'FO con SITPQ'!AA$305))/V16","v":0}]
[null,"Costos totales con recaudo /pas"]
[null,{"$f":"B43","v":"Intracantonal Rural"},{"$f":"('FO con SITPQ'!H$32+SUM('FO con SITPQ'!H$44:H$45,'FO con SITPQ'!H$74))/C8","v":0.19585489924379323},{"$f":"('FO con SITPQ'!I$32+SUM('FO con SITPQ'!I$44:I$45,'FO con SITPQ'!I$74))/D8","v":0.21631072487996686},{"$f":"('FO con SITPQ'!J$32+SUM('FO con SITPQ'!J$44:J$45,'FO con SITPQ'!J$74))/E8","v":0.21455982079378144},{"$f":"('FO con SITPQ'!K$32+SUM('FO con SITPQ'!K$44:K$45,'FO con SITPQ'!K$74))/F8","v":0.24003678298696035},{"$f":"('FO con SITPQ'!L$32+SUM('FO con SITPQ'!L$44:L$45,'FO con SITPQ'!L$74))/G8","v":0.21454492770160433},{"$f":"('FO con SITPQ'!M$32+SUM('FO con SITPQ'!M$44:M$45,'FO con SITPQ'!M$74))/H8","v":0.24561933689280657},{"$f":"('FO con SITPQ'!N$32+SUM('FO con SITPQ'!N$44:N$45,'FO con SITPQ'!N$74))/I8","v":0.24748329857031101},{"$f":"('FO con SITPQ'!O$32+SUM('FO con SITPQ'!O$44:O$45,'FO con SITPQ'!O$74))/J8","v":0.23667305244952014},{"$f":"('FO con SITPQ'!P$32+SUM('FO con SITPQ'!P$44:P$45,'FO con SITPQ'!P$74))/K8","v":0.25533543154144139},{"$f":"('FO con SITPQ'!Q$32+SUM('FO con SITPQ'!Q$44:Q$45,'FO con SITPQ'!Q$74))/L8","v":0.24066061553521043},{"$f":"('FO con SITPQ'!R$32+SUM('FO con SITPQ'!R$44:R$45,'FO con SITPQ'!R$74))/M8","v":0.26777515159884679},{"$f":"('FO con SITPQ'!S$32+SUM('FO con SITPQ'!S$44:S$45,'FO con SITPQ'!S$74))/N8","v":0.26815899030186108},{"$f":"('FO con SITPQ'!T$32+SUM('FO con SITPQ'!T$44:T$45,'FO con SITPQ'!T$74))/O8","v":0},{"$f":"('FO con SITPQ'!U$32+SUM('FO con SITPQ'!U$44:U$45,'FO con SITPQ'!U$74))/P8","v":0},{"$f":"('FO con SITPQ'!V$32+SUM('FO con SITPQ'!V$44:V$45,'FO con SITPQ'!V$74))/Q8","v":0},{"$f":"('FO con SITPQ'!W$32+SUM('FO con SITPQ'!W$44:W$45,'FO con SITPQ'!W$74))/R8","v":0},{"$f":"('FO con SITPQ'!X$32+SUM('FO con SITPQ'!X$44:X$45,'FO con SITPQ'!X$74))/S8","v":0},{"$f":"('FO con SITPQ'!Y$32+SUM('FO con SITPQ'!Y$44:Y$45,'FO con SITPQ'!Y$74))/T8","v":0},{"$f":"('FO con SITPQ'!Z$32+SUM('FO con SITPQ'!Z$44:Z$45,'FO con SITPQ'!Z$74))/U8","v":0},{"$f":"('FO con SITPQ'!AA$32+SUM('FO con SITPQ'!AA$44:AA$45,'FO con SITPQ'!AA$74))/V8","v":0}]
[null,{"$f":"B44","v":"Intracantonal Urbano"},{"$f":"('FO con SITPQ'!H$109+SUM('FO con SITPQ'!H$121:H$122,'FO con SITPQ'!H$151))/C9","v":0.21063452834989319},{"$f":"('FO con SITPQ'!I$109+SUM('FO con SITPQ'!I$121:I$122,'FO con SITPQ'!I$151))/D9","v":0.22650013243389189},{"$f":"('FO con SITPQ'!J$109+SUM('FO con SITPQ'!J$121:J$122,'FO con SITPQ'!J$151))/E9","v":0.23793368561637371},{"$f":"('FO con SITPQ'!K$109+SUM('FO con SITPQ'!K$121:K$122,'FO con SITPQ'!K$151))/F9","v":0.25187380950053068},{"$f":"('FO con SITPQ'!L$109+SUM('FO con SITPQ'!L$121:L$122,'FO con SITPQ'!L$151))/G9","v":0.23231619542392065},{"$f":"('FO con SITPQ'!M$109+SUM('FO con SITPQ'!M$121:M$122,'FO con SITPQ'!M$151))/H9","v":0.26030013505864574},{"$f":"('FO con SITPQ'!N$109+SUM('FO con SITPQ'!N$121:N$122,'FO con SITPQ'!N$151))/I9","v":0.24216222613940092},{"$f":"('FO con SITPQ'!O$109+SUM('FO con SITPQ'!O$121:O$122,'FO con SITPQ'!O$151))/J9","v":0.28585689470699488},{"$f":"('FO con SITPQ'!P$109+SUM('FO con SITPQ'!P$121:P$122,'FO con SITPQ'!P$151))/K9","v":0.25391827881878642},{"$f":"('FO con SITPQ'!Q$109+SUM('FO con SITPQ'!Q$121:Q$122,'FO con SITPQ'!Q$151))/L9","v":0.27741483815543128},{"$f":"('FO con SITPQ'!R$109+SUM('FO con SITPQ'!R$121:R$122,'FO con SITPQ'!R$151))/M9","v":0.26939565806479027},{"$f":"('FO con SITPQ'!S$109+SUM('FO con SITPQ'!S$121:S$122,'FO con SITPQ'!S$151))/N9","v":0.29328225416661213},{"$f":"('FO con SITPQ'!T$109+SUM('FO con SITPQ'!T$121:T$122,'FO con SITPQ'!T$151))/O9","v":0},{"$f":"('FO con SITPQ'!U$109+SUM('FO con SITPQ'!U$121:U$122,'FO con SITPQ'!U$151))/P9","v":0},{"$f":"('FO con SITPQ'!V$109+SUM('FO con SITPQ'!V$121:V$122,'FO con SITPQ'!V$151))/Q9","v":0},{"$f":"('FO con SITPQ'!W$109+SUM('FO con SITPQ'!W$121:W$122,'FO con SITPQ'!W$151))/R9","v":0},{"$f":"('FO con SITPQ'!X$109+SUM('FO con SITPQ'!X$121:X$122,'FO con SITPQ'!X$151))/S9","v":0},{"$f":"('FO con SITPQ'!Y$109+SUM('FO con SITPQ'!Y$121:Y$122,'FO con SITPQ'!Y$151))/T9","v":0},{"$f":"('FO con SITPQ'!Z$109+SUM('FO con SITPQ'!Z$121:Z$122,'FO con SITPQ'!Z$151))/U9","v":0},{"$f":"('FO con SITPQ'!AA$109+SUM('FO con SITPQ'!AA$121:AA$122,'FO con SITPQ'!AA$151))/V9","v":0}]
[null,"Intracantonal Combinado",{"$f":"('FO con SITPQ'!H$186+SUM('FO con SITPQ'!H$198:H$199,'FO con SITPQ'!H$228))/C10","v":0.27908068697069027},{"$f":"('FO con SITPQ'!I$186+SUM('FO con SITPQ'!I$198:I$199,'FO con SITPQ'!I$228))/D10","v":0.30905909364745476},{"$f":"('FO con SITPQ'!J$186+SUM('FO con SITPQ'!J$198:J$199,'FO con SITPQ'!J$228))/E10","v":0.33901010558261735},{"$f":"('FO con SITPQ'!K$186+SUM('FO con SITPQ'!K$198:K$199,'FO con SITPQ'!K$228))/F10","v":0.32345589174008088},{"$f":"('FO con SITPQ'!L$186+SUM('FO con SITPQ'!L$198:L$199,'FO con SITPQ'!L$228))/G10","v":0.34756879623021397},{"$f":"('FO con SITPQ'!M$186+SUM('FO con SITPQ'!M$198:M$199,'FO con SITPQ'!M$228))/H10","v":0.33901897743180964},{"$f":"('FO con SITPQ'!N$186+SUM('FO con SITPQ'!N$198:N$199,'FO con SITPQ'!N$228))/I10","v":0.36462671074603337},{"$f":"('FO con SITPQ'!O$186+SUM('FO con SITPQ'!O$198:O$199,'FO con SITPQ'!O$228))/J10","v":0.34699857787677574},{"$f":"('FO con SITPQ'!P$186+SUM('FO con SITPQ'!P$198:P$199,'FO con SITPQ'!P$228))/K10","v":0.35158733795025809},{"$f":"('FO con SITPQ'!Q$186+SUM('FO con SITPQ'!Q$198:Q$199,'FO con SITPQ'!Q$228))/L10","v":0.36939096519410258},{"$f":"('FO con SITPQ'!R$186+SUM('FO con SITPQ'!R$198:R$199,'FO con SITPQ'!R$228))/M10","v":0.38310346483175239},{"$f":"('FO con SITPQ'!S$186+SUM('FO con SITPQ'!S$198:S$199,'FO con SITPQ'!S$228))/N10","v":0.38024529262752754},{"$f":"('FO con SITPQ'!T$186+SUM('FO con SITPQ'!T$198:T$199,'FO con SITPQ'!T$228))/O10","v":0},{"$f":"('FO con SITPQ'!U$186+SUM('FO con SITPQ'!U$198:U$199,'FO con SITPQ'!U$228))/P10","v":0},{"$f":"('FO con SITPQ'!V$186+SUM('FO con SITPQ'!V$198:V$199,'FO con SITPQ'!V$228))/Q10","v":0},{"$f":"('FO con SITPQ'!W$186+SUM('FO con SITPQ'!W$198:W$199,'FO con SITPQ'!W$228))/R10","v":0},{"$f":"('FO con SITPQ'!X$186+SUM('FO con SITPQ'!X$198:X$199,'FO con SITPQ'!X$228))/S10","v":0},{"$f":"('FO con SITPQ'!Y$186+SUM('FO con SITPQ'!Y$198:Y$199,'FO con SITPQ'!Y$228))/T10","v":0},{"$f":"('FO con SITPQ'!Z$186+SUM('FO con SITPQ'!Z$198:Z$199,'FO con SITPQ'!Z$228))/U10","v":0},{"$f":"('FO con SITPQ'!AA$186+SUM('FO con SITPQ'!AA$198:AA$199,'FO con SITPQ'!AA$228))/V10","v":0}]
[null,"Otro",{"$f":"('FO con SITPQ'!H$263+SUM('FO con SITPQ'!H$275:H$276,'FO con SITPQ'!H$305))/C11","v":0.27498418613037295},{"$f":"('FO con SITPQ'!I$263+SUM('FO con SITPQ'!I$275:I$276,'FO con SITPQ'!I$305))/D11","v":0.29038997235589803},{"$f":"('FO con SITPQ'!J$263+SUM('FO con SITPQ'!J$275:J$276,'FO con SITPQ'!J$305))/E11","v":0.30419302355238881},{"$f":"('FO con SITPQ'!K$263+SUM('FO con SITPQ'!K$275:K$276,'FO con SITPQ'!K$305))/F11","v":0.31043070005126755},{"$f":"('FO con SITPQ'!L$263+SUM('FO con SITPQ'!L$275:L$276,'FO con SITPQ'!L$305))/G11","v":0.30299658888097558},{"$f":"('FO con SITPQ'!M$263+SUM('FO con SITPQ'!M$275:M$276,'FO con SITPQ'!M$305))/H11","v":0.30542108644011468},{"$f":"('FO con SITPQ'!N$263+SUM('FO con SITPQ'!N$275:N$276,'FO con SITPQ'!N$305))/I11","v":0.29976324984435154},{"$f":"('FO con SITPQ'!O$263+SUM('FO con SITPQ'!O$275:O$276,'FO con SITPQ'!O$305))/J11","v":0.33706062903895512},{"$f":"('FO con SITPQ'!P$263+SUM('FO con SITPQ'!P$275:P$276,'FO con SITPQ'!P$305))/K11","v":0.31011873580324384},{"$f":"('FO con SITPQ'!Q$263+SUM('FO con SITPQ'!Q$275:Q$276,'FO con SITPQ'!Q$305))/L11","v":0.34442982447339376},{"$f":"('FO con SITPQ'!R$263+SUM('FO con SITPQ'!R$275:R$276,'FO con SITPQ'!R$305))/M11","v":0.35280499541126409},{"$f":"('FO con SITPQ'!S$263+SUM('FO con SITPQ'!S$275:S$276,'FO con SITPQ'!S$305))/N11","v":0.33442548668407318},{"$f":"('FO con SITPQ'!T$263+SUM('FO con SITPQ'!T$275:T$276,'FO con SITPQ'!T$305))/O11","v":0},{"$f":"('FO con SITPQ'!U$263+SUM('FO con SITPQ'!U$275:U$276,'FO con SITPQ'!U$305))/P11","v":0},{"$f":"('FO con SITPQ'!V$263+SUM('FO con SITPQ'!V$275:V$276,'FO con SITPQ'!V$305))/Q11","v":0},{"$f":"('FO con SITPQ'!W$263+SUM('FO con SITPQ'!W$275:W$276,'FO con SITPQ'!W$305))/R11","v":0},{"$f":"('FO con SITPQ'!X$263+SUM('FO con SITPQ'!X$275:X$276,'FO con SITPQ'!X$305))/S11","v":0},{"$f":"('FO con SITPQ'!Y$263+SUM('FO con SITPQ'!Y$275:Y$276,'FO con SITPQ'!Y$305))/T11","v":0},{"$f":"('FO con SITPQ'!Z$263+SUM('FO con SITPQ'!Z$275:Z$276,'FO con SITPQ'!Z$305))/U11","v":0},{"$f":"('FO con SITPQ'!AA$263+SUM('FO con SITPQ'!AA$275:AA$276,'FO con SITPQ'!AA$305))/V11","v":0}]

{"sheet":"Datos Históricos","index":19,"n_rows":210,"n_cols":24,"rows_kept":210,"cut":false,"hidden":false,"merged":[]}
[]
[null,null,null,"Estructura de costos Transporte Convencional"]
[null,null,null,"DATOS HISTÓRICOS"]
[]
[null,"Usuario","Fecha simulación","Ítem",1,{"$f":"E5+1","v":2},{"$f":"F5+1","v":3},4,5,6,7,8,9,10,11,12,13,14,15,16,17,18,19,20]
[]
[null,null,null,"ESCENARIO SIMULADO"]
[]
[null,"a",{"$f":"TODAY()","v":"2017-06-26"},"Operación",{"$f":"\"\"","v":""},{"$f":"\"\"","v":""},{"$f":"\"\"","v":""},{"$f":"\"\"","v":""},{"$f":"\"\"","v":""},{"$f":"\"\"","v":""},{"$f":"\"\"","v":""},{"$f":"\"\"","v":""},{"$f":"\"\"","v":""},{"$f":"\"\"","v":""},{"$f":"\"\"","v":""},{"$f":"\"\"","v":""},{"$f":"\"\"","v":""},{"$f":"\"\"","v":""},{"$f":"\"\"","v":""},{"$f":"\"\"","v":""},{"$f":"\"\"","v":""},{"$f":"\"\"","v":""},{"$f":"\"\"","v":""},{"$f":"\"\"","v":""}]
[null,"a",{"$f":"TODAY()","v":"2017-06-26"},"Numero de usuarios",{"$f":"\"\"","v":""},{"$f":"\"\"","v":""},{"$f":"\"\"","v":""},{"$f":"\"\"","v":""},{"$f":"\"\"","v":""},{"$f":"\"\"","v":""},{"$f":"\"\"","v":""},{"$f":"\"\"","v":""},{"$f":"\"\"","v":""},{"$f":"\"\"","v":""},{"$f":"\"\"","v":""},{"$f":"\"\"","v":""},{"$f":"\"\"","v":""},{"$f":"\"\"","v":""},{"$f":"\"\"","v":""},{"$f":"\"\"","v":""},{"$f":"\"\"","v":""},{"$f":"\"\"","v":""},{"$f":"\"\"","v":""},{"$f":"\"\"","v":""}]
[null,"a","2017-06-26",{"$f":"'Sup fijo'!B14","v":"Intracantonal Rural"},{"$f":"'Sup fijo'!E34","v":308124},{"$f":"'Sup fijo'!F34","v":308124},{"$f":"'Sup fijo'!G34","v":308124},{"$f":"'Sup fijo'!H34","v":308124},{"$f":"'Sup fijo'!I34","v":308124},{"$f":"'Sup fijo'!J34","v":308124},{"$f":"'Sup fijo'!K34","v":308124},{"$f":"'Sup fijo'!L34","v":308124},{"$f":"'Sup fijo'!M34","v":308124},{"$f":"'Sup fijo'!N34","v":308124},{"$f":"'Sup fijo'!O34","v":308124},{"$f":"'Sup fijo'!P34","v":308124},{"$f":"'Sup fijo'!Q34","v":308124},{"$f":"'Sup fijo'!R34","v":308124},{"$f":"'Sup fijo'!S34","v":308124},{"$f":"'Sup fijo'!T34","v":308124},{"$f":"'Sup fijo'!U34","v":308124},{"$f":"'Sup fijo'!V34","v":308124},{"$f":"'Sup fijo'!W34","v":308124},{"$f":"'Sup fijo'!X34","v":308124}]
[null,"a","2017-06-26",{"$f":"'Sup fijo'!B18","v":"Intracantonal Urbano"},{"$f":"'Sup fijo'!E38","v":301276.80000000005},{"$f":"'Sup fijo'!F38","v":301276.80000000005},{"$f":"'Sup fijo'!G38","v":301276.80000000005},{"$f":"'Sup fijo'!H38","v":301276.80000000005},{"$f":"'Sup fijo'!I38","v":301276.80000000005},{"$f":"'Sup fijo'!J38","v":301276.80000000005},{"$f":"'Sup fijo'!K38","v":301276.80000000005},{"$f":"'Sup fijo'!L38","v":301276.80000000005},{"$f":"'Sup fijo'!M38","v":301276.80000000005},{"$f":"'Sup fijo'!N38","v":301276.80000000005},{"$f":"'Sup fijo'!O38","v":301276.80000000005},{"$f":"'Sup fijo'!P38","v":301276.80000000005},{"$f":"'Sup fijo'!Q38","v":301276.80000000005},{"$f":"'Sup fijo'!R38","v":301276.80000000005},{"$f":"'Sup fijo'!S38","v":301276.80000000005},{"$f":"'Sup fijo'!T38","v":301276.80000000005},{"$f":"'Sup fijo'!U38","v":301276.80000000005},{"$f":"'Sup fijo'!V38","v":301276.80000000005},{"$f":"'Sup fijo'!W38","v":301276.80000000005},{"$f":"'Sup fijo'!X38","v":301276.80000000005}]
[null,"a","2017-06-26",{"$f":"'Sup fijo'!B22","v":"Intracantonal Combinado"},{"$f":"'Sup fijo'!E42","v":308124},{"$f":"'Sup fijo'!F42","v":308124},{"$f":"'Sup fijo'!G42","v":308124},{"$f":"'Sup fijo'!H42","v":308124},{"$f":"'Sup fijo'!I42","v":308124},{"$f":"'Sup fijo'!J42","v":308124},{"$f":"'Sup fijo'!K42","v":308124},{"$f":"'Sup fijo'!L42","v":308124},{"$f":"'Sup fijo'!M42","v":308124},{"$f":"'Sup fijo'!N42","v":308124},{"$f":"'Sup fijo'!O42","v":308124},{"$f":"'Sup fijo'!P42","v":308124},{"$f":"'Sup fijo'!Q42","v":308124},{"$f":"'Sup fijo'!R42","v":308124},{"$f":"'Sup fijo'!S42","v":308124},{"$f":"'Sup fijo'!T42","v":308124},{"$f":"'Sup fijo'!U42","v":308124},{"$f":"'Sup fijo'!V42","v":308124},{"$f":"'Sup fijo'!W42","v":308124},{"$f":"'Sup fijo'!X42","v":308124}]
[null,"a","2017-06-26",{"$f":"'Sup fijo'!B26","v":"Otro"},{"$f":"'Sup fijo'!E46","v":348700},{"$f":"'Sup fijo'!F46","v":348700},{"$f":"'Sup fijo'!G46","v":348700},{"$f":"'Sup fijo'!H46","v":348700},{"$f":"'Sup fijo'!I46","v":348700},{"$f":"'Sup fijo'!J46","v":348700},{"$f":"'Sup fijo'!K46","v":348700},{"$f":"'Sup fijo'!L46","v":348700},{"$f":"'Sup fijo'!M46","v":348700},{"$f":"'Sup fijo'!N46","v":348700},{"$f":"'Sup fijo'!O46","v":348700},{"$f":"'Sup fijo'!P46","v":348700},{"$f":"'Sup fijo'!Q46","v":348700},{"$f":"'Sup fijo'!R46","v":348700},{"$f":"'Sup fijo'!S46","v":348700},{"$f":"'Sup fijo'!T46","v":348700},{"$f":"'Sup fijo'!U46","v":348700},{"$f":"'Sup fijo'!V46","v":348700},{"$f":"'Sup fijo'!W46","v":348700},{"$f":"'Sup fijo'!X46","v":348700}]
[null,"a","2017-06-26","Kilometraje Anual",{"$f":"\"\"","v":""},{"$f":"\"\"","v":""},{"$f":"\"\"","v":""},{"$f":"\"\"","v":""},{"$f":"\"\"","v":""},{"$f":"\"\"","v":""},{"$f":"\"\"","v":""},{"$f":"\"\"","v":""},{"$f":"\"\"","v":""},{"$f":"\"\"","v":""},{"$f":"\"\"","v":""},{"$f":"\"\"","v":""},{"$f":"\"\"","v":""},{"$f":"\"\"","v":""},{"$f":"\"\"","v":""},{"$f":"\"\"","v":""},{"$f":"\"\"","v":""},{"$f":"\"\"","v":""},{"$f":"\"\"","v":""},{"$f":"\"\"","v":""}]
[null,"a","2017-06-26",{"$f":"D11","v":"Intracantonal Rural"},{"$f":"'Sup fijo'!E17","v":70406.000000000015},{"$f":"'Sup fijo'!F17","v":70406.000000000015},{"$f":"'Sup fijo'!G17","v":70406.000000000015},{"$f":"'Sup fijo'!H17","v":70406.000000000015},{"$f":"'Sup fijo'!I17","v":70406.000000000015},{"$f":"'Sup fijo'!J17","v":70406.000000000015},{"$f":"'Sup fijo'!K17","v":70406.000000000015},{"$f":"'Sup fijo'!L17","v":70406.000000000015},{"$f":"'Sup fijo'!M17","v":70406.000000000015},{"$f":"'Sup fijo'!N17","v":70406.000000000015},{"$f":"'Sup fijo'!O17","v":70406.000000000015},{"$f":"'Sup fijo'!P17","v":70406.000000000015},{"$f":"'Sup fijo'!Q17","v":70406.000000000015},{"$f":"'Sup fijo'!R17","v":70406.000000000015},{"$f":"'Sup fijo'!S17","v":70406.000000000015},{"$f":"'Sup fijo'!T17","v":70406.000000000015},{"$f":"'Sup fijo'!U17","v":70406.000000000015},{"$f":"'Sup fijo'!V17","v":70406.000000000015},{"$f":"'Sup fijo'!W17","v":70406.000000000015},{"$f":"'Sup fijo'!X17","v":70406.000000000015}]
[null,"a","2017-06-26",{"$f":"D12","v":"Intracantonal Urbano"},{"$f":"'Sup fijo'!E21","v":63826.000000000007},{"$f":"'Sup fijo'!F21","v":63826.000000000007},{"$f":"'Sup fijo'!G21","v":63826.000000000007},{"$f":"'Sup fijo'!H21","v":63826.000000000007},{"$f":"'Sup fijo'!I21","v":63826.000000000007},{"$f":"'Sup fijo'!J21","v":63826.000000000007},{"$f":"'Sup fijo'!K21","v":63826.000000000007},{"$f":"'Sup fijo'!L21","v":63826.000000000007},{"$f":"'Sup fijo'!M21","v":63826.000000000007},{"$f":"'Sup fijo'!N21","v":63826.000000000007},{"$f":"'Sup fijo'!O21","v":63826.000000000007},{"$f":"'Sup fijo'!P21","v":63826.000000000007},{"$f":"'Sup fijo'!Q21","v":63826.000000000007},{"$f":"'Sup fijo'!R21","v":63826.000000000007},{"$f":"'Sup fijo'!S21","v":63826.000000000007},{"$f":"'Sup fijo'!T21","v":63826.000000000007},{"$f":"'Sup fijo'!U21","v":63826.000000000007},{"$f":"'Sup fijo'!V21","v":63826.000000000007},{"$f":"'Sup fijo'!W21","v":63826.000000000007},{"$f":"'Sup fijo'!X21","v":63826.000000000007}]
[null,"a","2017-06-26","Intracantonal Combinado",{"$f":"'Sup fijo'!E25","v":112518.00000000003},{"$f":"'Sup fijo'!F25","v":112518.00000000003},{"$f":"'Sup fijo'!G25","v":112518.00000000003},{"$f":"'Sup fijo'!H25","v":112518.00000000003},{"$f":"'Sup fijo'!I25","v":112518.00000000003},{"$f":"'Sup fijo'!J25","v":112518.00000000003},{"$f":"'Sup fijo'!K25","v":112518.00000000003},{"$f":"'Sup fijo'!L25","v":112518.00000000003},{"$f":"'Sup fijo'!M25","v":112518.00000000003},{"$f":"'Sup fijo'!N25","v":112518.00000000003},{"$f":"'Sup fijo'!O25","v":112518.00000000003},{"$f":"'Sup fijo'!P25","v":112518.00000000003},{"$f":"'Sup fijo'!Q25","v":112518.00000000003},{"$f":"'Sup fijo'!R25","v":112518.00000000003},{"$f":"'Sup fijo'!S25","v":112518.00000000003},{"$f":"'Sup fijo'!T25","v":112518.00000000003},{"$f":"'Sup fijo'!U25","v":112518.00000000003},{"$f":"'Sup fijo'!V25","v":112518.00000000003},{"$f":"'Sup fijo'!W25","v":112518.00000000003},{"$f":"'Sup fijo'!X25","v":112518.00000000003}]
[null,"a","2017-06-26","Otro",{"$f":"'Sup fijo'!E29","v":65800},{"$f":"'Sup fijo'!F29","v":65800},{"$f":"'Sup fijo'!G29","v":65800},{"$f":"'Sup fijo'!H29","v":65800},{"$f":"'Sup fijo'!I29","v":65800},{"$f":"'Sup fijo'!J29","v":65800},{"$f":"'Sup fijo'!K29","v":65800},{"$f":"'Sup fijo'!L29","v":65800},{"$f":"'Sup fijo'!M29","v":65800},{"$f":"'Sup fijo'!N29","v":65800},{"$f":"'Sup fijo'!O29","v":65800},{"$f":"'Sup fijo'!P29","v":65800},{"$f":"'Sup fijo'!Q29","v":65800},{"$f":"'Sup fijo'!R29","v":65800},{"$f":"'Sup fijo'!S29","v":65800},{"$f":"'Sup fijo'!T29","v":65800},{"$f":"'Sup fijo'!U29","v":65800},{"$f":"'Sup fijo'!V29","v":65800},{"$f":"'Sup fijo'!W29","v":65800},{"$f":"'Sup fijo'!X29","v":65800}]
[null,"a","2017-06-26","Ingreso Operador Privado",{"$f":"\"\"","v":""},{"$f":"\"\"","v":""},{"$f":"\"\"","v":""},{"$f":"\"\"","v":""},{"$f":"\"\"","v":""},{"$f":"\"\"","v":""},{"$f":"\"\"","v":""},{"$f":"\"\"","v":""},{"$f":"\"\"","v":""},{"$f":"\"\"","v":""},{"$f":"\"\"","v":""},{"$f":"\"\"","v":""},{"$f":"\"\"","v":""},{"$f":"\"\"","v":""},{"$f":"\"\"","v":""},{"$f":"\"\"","v":""},{"$f":"\"\"","v":""},{"$f":"\"\"","v":""},{"$f":"\"\"","v":""},{"$f":"\"\"","v":""}]
[null,"a","2017-06-26",{"$f":"D16","v":"Intracantonal Rural"},{"$f":"'FO con SITPQ'!H24","v":74567.584290897837},{"$f":"'FO con SITPQ'!I24","v":75760.6656395522},{"$f":"'FO con SITPQ'!J24","v":77730.442946180556},{"$f":"'FO con SITPQ'!K24","v":78066.238459708082},{"$f":"'FO con SITPQ'!L24","v":78277.017303549277},{"$f":"'FO con SITPQ'!M24","v":78801.473319483048},{"$f":"'FO con SITPQ'!N24","v":80331.108418455871},{"$f":"'FO con SITPQ'!O24","v":81725.166942908356},{"$f":"'FO con SITPQ'!P24","v":82915.138048021123},{"$f":"'FO con SITPQ'!Q24","v":84024.602716675916},{"$f":"'FO con SITPQ'!R24","v":85121.402385433146},{"$f":"'FO con SITPQ'!S24","v":86094.763936453324},{"$f":"'FO con SITPQ'!T24","v":0},{"$f":"'FO con SITPQ'!U24","v":0},{"$f":"'FO con SITPQ'!V24","v":0},{"$f":"'FO con SITPQ'!W24","v":0},{"$f":"'FO con SITPQ'!X24","v":0},{"$f":"'FO con SITPQ'!Y24","v":0},{"$f":"'FO con SITPQ'!Z24","v":0},{"$f":"'FO con SITPQ'!AA24","v":0}]
[null,"a","2017-06-26",{"$f":"D17","v":"Intracantonal Urbano"},{"$f":"'FO con SITPQ'!H101","v":82698.370988954659},{"$f":"'FO con SITPQ'!I101","v":84021.544924777932},{"$f":"'FO con SITPQ'!J101","v":86206.105092822167},{"$f":"'FO con SITPQ'!K101","v":86578.51546682317},{"$f":"'FO con SITPQ'!L101","v":86812.277458583587},{"$f":"'FO con SITPQ'!M101","v":87393.919717556084},{"$f":"'FO con SITPQ'!N101","v":89090.344941673509},{"$f":"'FO con SITPQ'!O101","v":90636.410435571481},{"$f":"'FO con SITPQ'!P101","v":91956.134989512328},{"$f":"'FO con SITPQ'!Q101","v":93186.574752849978},{"$f":"'FO con SITPQ'!R101","v":94402.968535349355},{"$f":"'FO con SITPQ'!S101","v":95482.464611534815},{"$f":"'FO con SITPQ'!T101","v":0},{"$f":"'FO con SITPQ'!U101","v":0},{"$f":"'FO con SITPQ'!V101","v":0},{"$f":"'FO con SITPQ'!W101","v":0},{"$f":"'FO con SITPQ'!X101","v":0},{"$f":"'FO con SITPQ'!Y101","v":0},{"$f":"'FO con SITPQ'!Z101","v":0},{"$f":"'FO con SITPQ'!AA101","v":0}]
[null,"a","2017-06-26",{"$f":"D18","v":"Intracantonal Combinado"},{"$f":"'FO con SITPQ'!H178","v":109941.45216973627},{"$f":"'FO con SITPQ'!I178","v":111700.51540445206},{"$f":"'FO con SITPQ'!J178","v":114604.7288049678},{"$f":"'FO con SITPQ'!K178","v":115099.82123340528},{"$f":"'FO con SITPQ'!L178","v":115410.59075073547},{"$f":"'FO con SITPQ'!M178","v":116183.84170876538},{"$f":"'FO con SITPQ'!N178","v":118439.11530613467},{"$f":"'FO con SITPQ'!O178","v":120494.49660949029},{"$f":"'FO con SITPQ'!P178","v":122248.974142593},{"$f":"'FO con SITPQ'!Q178","v":123884.75405906554},{"$f":"'FO con SITPQ'!R178","v":125501.86086853442},{"$f":"'FO con SITPQ'!S178","v":126936.9721628453},{"$f":"'FO con SITPQ'!T178","v":0},{"$f":"'FO con SITPQ'!U178","v":0},{"$f":"'FO con SITPQ'!V178","v":0},{"$f":"'FO con SITPQ'!W178","v":0},{"$f":"'FO con SITPQ'!X178","v":0},{"$f":"'FO con SITPQ'!Y178","v":0},{"$f":"'FO con SITPQ'!Z178","v":0},{"$f":"'FO con SITPQ'!AA178","v":0}]
[null,"a","2017-06-26",{"$f":"D19","v":"Otro"},{"$f":"'FO con SITPQ'!H255","v":125939.48670804127},{"$f":"'FO con SITPQ'!I255","v":127954.51849536991},{"$f":"'FO con SITPQ'!J255","v":131281.33597624954},{"$f":"'FO con SITPQ'!K255","v":131848.47134766696},{"$f":"'FO con SITPQ'!L255","v":132204.46222030566},{"$f":"'FO con SITPQ'!M255","v":133090.23211718167},{"$f":"'FO con SITPQ'!N255","v":135673.67988536635},{"$f":"'FO con SITPQ'!O255","v":138028.14820668951},{"$f":"'FO con SITPQ'!P255","v":140037.92700803385},{"$f":"'FO con SITPQ'!Q255","v":141911.73601257402},{"$f":"'FO con SITPQ'!R255","v":143764.15470922872},{"$f":"'FO con SITPQ'!S255","v":145408.09497204595},{"$f":"'FO con SITPQ'!T255","v":0},{"$f":"'FO con SITPQ'!U255","v":0},{"$f":"'FO con SITPQ'!V255","v":0},{"$f":"'FO con SITPQ'!W255","v":0},{"$f":"'FO con SITPQ'!X255","v":0},{"$f":"'FO con SITPQ'!Y255","v":0},{"$f":"'FO con SITPQ'!Z255","v":0},{"$f":"'FO con SITPQ'!AA255","v":0}]
[null,"a","2017-06-26","Costos Operador Privado",{"$f":"\"\"","v":""},{"$f":"\"\"","v":""},{"$f":"\"\"","v":""},{"$f":"\"\"","v":""},{"$f":"\"\"","v":""},{"$f":"\"\"","v":""},{"$f":"\"\"","v":""},{"$f":"\"\"","v":""},{"$f":"\"\"","v":""},{"$f":"\"\"","v":""},{"$f":"\"\"","v":""},{"$f":"\"\"","v":""},{"$f":"\"\"","v":""},{"$f":"\"\"","v":""},{"$f":"\"\"","v":""},{"$f":"\"\"","v":""},{"$f":"\"\"","v":""},{"$f":"\"\"","v":""},{"$f":"\"\"","v":""},{"$f":"\"\"","v":""}]
[null,"a","2017-06-26"," Costo conductores ",{"$f":"\"\"","v":""},{"$f":"\"\"","v":""},{"$f":"\"\"","v":""},{"$f":"\"\"","v":""},{"$f":"\"\"","v":""},{"$f":"\"\"","v":""},{"$f":"\"\"","v":""},{"$f":"\"\"","v":""},{"$f":"\"\"","v":""},{"$f":"\"\"","v":""},{"$f":"\"\"","v":""},{"$f":"\"\"","v":""},{"$f":"\"\"","v":""},{"$f":"\"\"","v":""},{"$f":"\"\"","v":""},{"$f":"\"\"","v":""},{"$f":"\"\"","v":""},{"$f":"\"\"","v":""},{"$f":"\"\"","v":""},{"$f":"\"\"","v":""}]
[null,"a","2017-06-26",{"$f":"D21","v":"Intracantonal Rural"},{"$f":"'FO con SITPQ'!H26","v":24077.204571428578},{"$f":"'FO con SITPQ'!I26","v":13711.322953728},{"$f":"'FO con SITPQ'!J26","v":14180.359889329133},{"$f":"'FO con SITPQ'!K26","v":14355.551996403441},{"$f":"'FO con SITPQ'!L26","v":14509.466482688078},{"$f":"'FO con SITPQ'!M26","v":14723.533347387063},{"$f":"'FO con SITPQ'!N26","v":15129.410218349147},{"$f":"'FO con SITPQ'!O26","v":15515.100301575339},{"$f":"'FO con SITPQ'!P26","v":15866.938243228735},{"$f":"'FO con SITPQ'!Q26","v":16207.88337705889},{"$f":"'FO con SITPQ'!R26","v":16550.805596142873},{"$f":"'FO con SITPQ'!S26","v":16873.984240300964},{"$f":"'FO con SITPQ'!T26","v":0},{"$f":"'FO con SITPQ'!U26","v":0},{"$f":"'FO con SITPQ'!V26","v":0},{"$f":"'FO con SITPQ'!W26","v":0},{"$f":"'FO con SITPQ'!X26","v":0},{"$f":"'FO con SITPQ'!Y26","v":0},{"$f":"'FO con SITPQ'!Z26","v":0},{"$f":"'FO con SITPQ'!AA26","v":0}]
[null,"a","2017-06-26",{"$f":"D22","v":"Intracantonal Urbano"},{"$f":"'FO con SITPQ'!H103","v":24077.204571428578},{"$f":"'FO con SITPQ'!I103","v":13711.322953728},{"$f":"'FO con SITPQ'!J103","v":14180.359889329133},{"$f":"'FO con SITPQ'!K103","v":14355.551996403441},{"$f":"'FO con SITPQ'!L103","v":14509.466482688078},{"$f":"'FO con SITPQ'!M103","v":14723.533347387063},{"$f":"'FO con SITPQ'!N103","v":15129.410218349147},{"$f":"'FO con SITPQ'!O103","v":15515.100301575339},{"$f":"'FO con SITPQ'!P103","v":15866.938243228735},{"$f":"'FO con SITPQ'!Q103","v":16207.88337705889},{"$f":"'FO con SITPQ'!R103","v":16550.805596142873},{"$f":"'FO con SITPQ'!S103","v":16873.984240300964},{"$f":"'FO con SITPQ'!T103","v":0},{"$f":"'FO con SITPQ'!U103","v":0},{"$f":"'FO con SITPQ'!V103","v":0},{"$f":"'FO con SITPQ'!W103","v":0},{"$f":"'FO con SITPQ'!X103","v":0},{"$f":"'FO con SITPQ'!Y103","v":0},{"$f":"'FO con SITPQ'!Z103","v":0},{"$f":"'FO con SITPQ'!AA103","v":0}]
[null,"a","2017-06-26","Intracantonal Combinado",{"$f":"'FO con SITPQ'!H180","v":24077.204571428578},{"$f":"'FO con SITPQ'!I180","v":13711.322953728},{"$f":"'FO con SITPQ'!J180","v":14180.359889329133},{"$f":"'FO con SITPQ'!K180","v":14355.551996403441},{"$f":"'FO con SITPQ'!L180","v":14509.466482688078},{"$f":"'FO con SITPQ'!M180","v":14723.533347387063},{"$f":"'FO con SITPQ'!N180","v":15129.410218349147},{"$f":"'FO con SITPQ'!O180","v":15515.100301575339},{"$f":"'FO con SITPQ'!P180","v":15866.938243228735},{"$f":"'FO con SITPQ'!Q180","v":16207.88337705889},{"$f":"'FO con SITPQ'!R180","v":16550.805596142873},{"$f":"'FO con SITPQ'!S180","v":16873.984240300964},{"$f":"'FO con SITPQ'!T180","v":0},{"$f":"'FO con SITPQ'!U180","v":0},{"$f":"'FO con SITPQ'!V180","v":0},{"$f":"'FO con SITPQ'!W180","v":0},{"$f":"'FO con SITPQ'!X180","v":0},{"$f":"'FO con SITPQ'!Y180","v":0},{"$f":"'FO con SITPQ'!Z180","v":0},{"$f":"'FO con SITPQ'!AA180","v":0}]
[null,"a","2017-06-26","Otro",{"$f":"'FO con SITPQ'!H257","v":24077.204571428578},{"$f":"'FO con SITPQ'!I257","v":13711.322953728},{"$f":"'FO con SITPQ'!J257","v":14180.359889329133},{"$f":"'FO con SITPQ'!K257","v":14355.551996403441},{"$f":"'FO con SITPQ'!L257","v":14509.466482688078},{"$f":"'FO con SITPQ'!M257","v":14723.533347387063},{"$f":"'FO con SITPQ'!N257","v":15129.410218349147},{"$f":"'FO con SITPQ'!O257","v":15515.100301575339},{"$f":"'FO con SITPQ'!P257","v":15866.938243228735},{"$f":"'FO con SITPQ'!Q257","v":16207.88337705889},{"$f":"'FO con SITPQ'!R257","v":16550.805596142873},{"$f":"'FO con SITPQ'!S257","v":16873.984240300964},{"$f":"'FO con SITPQ'!T257","v":0},{"$f":"'FO con SITPQ'!U257","v":0},{"$f":"'FO con SITPQ'!V257","v":0},{"$f":"'FO con SITPQ'!W257","v":0},{"$f":"'FO con SITPQ'!X257","v":0},{"$f":"'FO con SITPQ'!Y257","v":0},{"$f":"'FO con SITPQ'!Z257","v":0},{"$f":"'FO con SITPQ'!AA257","v":0}]
[null,"a","2017-06-26"," Costo combustible ",{"$f":"\"\"","v":""},{"$f":"\"\"","v":""},{"$f":"\"\"","v":""},{"$f":"\"\"","v":""},{"$f":"\"\"","v":""},{"$f":"\"\"","v":""},{"$f":"\"\"","v":""},{"$f":"\"\"","v":""},{"$f":"\"\"","v":""},{"$f":"\"\"","v":""},{"$f":"\"\"","v":""},{"$f":"\"\"","v":""},{"$f":"\"\"","v":""},{"$f":"\"\"","v":""},{"$f":"\"\"","v":""},{"$f":"\"\"","v":""},{"$f":"\"\"","v":""},{"$f":"\"\"","v":""},{"$f":"\"\"","v":""},{"$f":"\"\"","v":""}]
[null,"a","2017-06-26",{"$f":"D27","v":"Intracantonal Rural"},{"$f":"'FO con SITPQ'!H27","v":8403.3274145139912},{"$f":"'FO con SITPQ'!I27","v":8621.813927291354},{"$f":"'FO con SITPQ'!J27","v":8659.060163457254},{"$f":"'FO con SITPQ'!K27","v":8725.8518240280791},{"$f":"'FO con SITPQ'!L27","v":8828.2366064053112},{"$f":"'FO con SITPQ'!M27","v":9044.6017328025537},{"$f":"'FO con SITPQ'!N27","v":9247.568707858909},{"$f":"'FO con SITPQ'!O27","v":9429.1303649353122},{"$f":"'FO con SITPQ'!P27","v":9603.0754610897675},{"$f":"'FO con SITPQ'!Q27","v":9777.0695742946336},{"$f":"'FO con SITPQ'!R27","v":9938.3145221640825},{"$f":"'FO con SITPQ'!S27","v":10111.101804925696},{"$f":"'FO con SITPQ'!T27","v":0},{"$f":"'FO con SITPQ'!U27","v":0},{"$f":"'FO con SITPQ'!V27","v":0},{"$f":"'FO con SITPQ'!W27","v":0},{"$f":"'FO con SITPQ'!X27","v":0},{"$f":"'FO con SITPQ'!Y27","v":0},{"$f":"'FO con SITPQ'!Z27","v":0},{"$f":"'FO con SITPQ'!AA27","v":0}]
[null,"a","2017-06-26",{"$f":"D28","v":"Intracantonal Urbano"},{"$f":"'FO con SITPQ'!H104","v":9102.9916561246537},{"$f":"'FO con SITPQ'!I104","v":9339.6694391838937},{"$f":"'FO con SITPQ'!J104","v":9380.0168111611692},{"$f":"'FO con SITPQ'!K104","v":9452.3695708340601},{"$f":"'FO con SITPQ'!L104","v":9563.27894919344},{"$f":"'FO con SITPQ'!M104","v":9797.6587184344517},{"$f":"'FO con SITPQ'!N104","v":10017.524801150175},{"$f":"'FO con SITPQ'!O104","v":10214.203350957017},{"$f":"'FO con SITPQ'!P104","v":10402.631182078168},{"$f":"'FO con SITPQ'!Q104","v":10591.112111428025},{"$f":"'FO con SITPQ'!R104","v":10765.782375080096},{"$f":"'FO con SITPQ'!S104","v":10952.955992824278},{"$f":"'FO con SITPQ'!T104","v":0},{"$f":"'FO con SITPQ'!U104","v":0},{"$f":"'FO con SITPQ'!V104","v":0},{"$f":"'FO con SITPQ'!W104","v":0},{"$f":"'FO con SITPQ'!X104","v":0},{"$f":"'FO con SITPQ'!Y104","v":0},{"$f":"'FO con SITPQ'!Z104","v":0},{"$f":"'FO con SITPQ'!AA104","v":0}]
[null,"a","2017-06-26","Intracantonal Combinado",{"$f":"'FO con SITPQ'!H181","v":14914.774321720795},{"$f":"'FO con SITPQ'!I181","v":15302.558454085536},{"$f":"'FO con SITPQ'!J181","v":15368.665506607185},{"$f":"'FO con SITPQ'!K181","v":15487.211707992397},{"$f":"'FO con SITPQ'!L181","v":15668.930906568123},{"$f":"'FO con SITPQ'!M181","v":16052.949863836386},{"$f":"'FO con SITPQ'!N181","v":16413.188907063399},{"$f":"'FO con SITPQ'!O181","v":16735.43639394522},{"$f":"'FO con SITPQ'!P181","v":17044.165511060521},{"$f":"'FO con SITPQ'!Q181","v":17352.981626838227},{"$f":"'FO con SITPQ'!R181","v":17639.169691322866},{"$f":"'FO con SITPQ'!S181","v":17945.843845611056},{"$f":"'FO con SITPQ'!T181","v":0},{"$f":"'FO con SITPQ'!U181","v":0},{"$f":"'FO con SITPQ'!V181","v":0},{"$f":"'FO con SITPQ'!W181","v":0},{"$f":"'FO con SITPQ'!X181","v":0},{"$f":"'FO con SITPQ'!Y181","v":0},{"$f":"'FO con SITPQ'!Z181","v":0},{"$f":"'FO con SITPQ'!AA181","v":0}]
[null,"a","2017-06-26","Otro",{"$f":"'FO con SITPQ'!H258","v":14091.036667805092},{"$f":"'FO con SITPQ'!I258","v":14457.403621168023},{"$f":"'FO con SITPQ'!J258","v":14519.85960481147},{"$f":"'FO con SITPQ'!K258","v":14631.85854187318},{"$f":"'FO con SITPQ'!L258","v":14803.541454074248},{"$f":"'FO con SITPQ'!M258","v":15166.35118161527},{"$f":"'FO con SITPQ'!N258","v":15506.694351266477},{"$f":"'FO con SITPQ'!O258","v":15811.144224647858},{"$f":"'FO con SITPQ'!P258","v":16102.822342992251},{"$f":"'FO con SITPQ'!Q258","v":16394.582655094026},{"$f":"'FO con SITPQ'!R258","v":16664.964655086362},{"$f":"'FO con SITPQ'!S258","v":16954.701305465958},{"$f":"'FO con SITPQ'!T258","v":0},{"$f":"'FO con SITPQ'!U258","v":0},{"$f":"'FO con SITPQ'!V258","v":0},{"$f":"'FO con SITPQ'!W258","v":0},{"$f":"'FO con SITPQ'!X258","v":0},{"$f":"'FO con SITPQ'!Y258","v":0},{"$f":"'FO con SITPQ'!Z258","v":0},{"$f":"'FO con SITPQ'!AA258","v":0}]
[null,"a","2017-06-26"," Costo impuestos + seguros ",{"$f":"\"\"","v":""},{"$f":"\"\"","v":""},{"$f":"\"\"","v":""},{"$f":"\"\"","v":""},{"$f":"\"\"","v":""},{"$f":"\"\"","v":""},{"$f":"\"\"","v":""},{"$f":"\"\"","v":""},{"$f":"\"\"","v":""},{"$f":"\"\"","v":""},{"$f":"\"\"","v":""},{"$f":"\"\"","v":""},{"$f":"\"\"","v":""},{"$f":"\"\"","v":""},{"$f":"\"\"","v":""},{"$f":"\"\"","v":""},{"$f":"\"\"","v":""},{"$f":"\"\"","v":""},{"$f":"\"\"","v":""},{"$f":"\"\"","v":""}]
[null,"a","2017-06-26",{"$f":"D32","v":"Intracantonal Rural"},{"$f":"'FO con SITPQ'!H28+SUM('FO con SITPQ'!H44:H45)","v":3872.9785493295763},{"$f":"'FO con SITPQ'!I28+SUM('FO con SITPQ'!I44:I45)","v":6838.6892053036099},{"$f":"'FO con SITPQ'!J28+SUM('FO con SITPQ'!J44:J45)","v":8834.2998863258254},{"$f":"'FO con SITPQ'!K28+SUM('FO con SITPQ'!K44:K45)","v":5968.3436023314725},{"$f":"'FO con SITPQ'!L28+SUM('FO con SITPQ'!L44:L45)","v":10728.096566645352},{"$f":"'FO con SITPQ'!M28+SUM('FO con SITPQ'!M44:M45)","v":7286.3229016672567},{"$f":"'FO con SITPQ'!N28+SUM('FO con SITPQ'!N44:N45)","v":7855.9644767295758},{"$f":"'FO con SITPQ'!O28+SUM('FO con SITPQ'!O44:O45)","v":10197.549678589185},{"$f":"'FO con SITPQ'!P28+SUM('FO con SITPQ'!P44:P45)","v":8109.1003440161767},{"$f":"'FO con SITPQ'!Q28+SUM('FO con SITPQ'!Q44:Q45)","v":10842.971593733033},{"$f":"'FO con SITPQ'!R28+SUM('FO con SITPQ'!R44:R45)","v":7462.9869232839192},{"$f":"'FO con SITPQ'!S28+SUM('FO con SITPQ'!S44:S45)","v":7912.7422126214751},{"$f":"'FO con SITPQ'!T28+SUM('FO con SITPQ'!T44:T45)","v":0},{"$f":"'FO con SITPQ'!U28+SUM('FO con SITPQ'!U44:U45)","v":0},{"$f":"'FO con SITPQ'!V28+SUM('FO con SITPQ'!V44:V45)","v":0},{"$f":"'FO con SITPQ'!W28+SUM('FO con SITPQ'!W44:W45)","v":0},{"$f":"'FO con SITPQ'!X28+SUM('FO con SITPQ'!X44:X45)","v":0},{"$f":"'FO con SITPQ'!Y28+SUM('FO con SITPQ'!Y44:Y45)","v":0},{"$f":"'FO con SITPQ'!Z28+SUM('FO con SITPQ'!Z44:Z45)","v":0},{"$f":"'FO con SITPQ'!AA28+SUM('FO con SITPQ'!AA44:AA45)","v":0}]
[null,"a","2017-06-26",{"$f":"D33","v":"Intracantonal Urbano"},{"$f":"'FO con SITPQ'!H105+SUM('FO con SITPQ'!H121:H122)","v":4790.5095322704228},{"$f":"'FO con SITPQ'!I105+SUM('FO con SITPQ'!I121:I122)","v":8649.4680661695165},{"$f":"'FO con SITPQ'!J105+SUM('FO con SITPQ'!J121:J122)","v":9086.4628358498685},{"$f":"'FO con SITPQ'!K105+SUM('FO con SITPQ'!K121:K122)","v":8216.3803147336585},{"$f":"'FO con SITPQ'!L105+SUM('FO con SITPQ'!L121:L122)","v":12363.427540955781},{"$f":"'FO con SITPQ'!M105+SUM('FO con SITPQ'!M121:M122)","v":9819.7133383342152},{"$f":"'FO con SITPQ'!N105+SUM('FO con SITPQ'!N121:N122)","v":13338.322297853147},{"$f":"'FO con SITPQ'!O105+SUM('FO con SITPQ'!O121:O122)","v":7933.1381012702113},{"$f":"'FO con SITPQ'!P105+SUM('FO con SITPQ'!P121:P122)","v":13198.969278599887},{"$f":"'FO con SITPQ'!Q105+SUM('FO con SITPQ'!Q121:Q122)","v":10489.216262569302},{"$f":"'FO con SITPQ'!R105+SUM('FO con SITPQ'!R121:R122)","v":12275.03257459154},{"$f":"'FO con SITPQ'!S105+SUM('FO con SITPQ'!S121:S122)","v":9417.3184181570214},{"$f":"'FO con SITPQ'!T105+SUM('FO con SITPQ'!T121:T122)","v":0},{"$f":"'FO con SITPQ'!U105+SUM('FO con SITPQ'!U121:U122)","v":0},{"$f":"'FO con SITPQ'!V105+SUM('FO con SITPQ'!V121:V122)","v":0},{"$f":"'FO con SITPQ'!W105+SUM('FO con SITPQ'!W121:W122)","v":0},{"$f":"'FO con SITPQ'!X105+SUM('FO con SITPQ'!X121:X122)","v":0},{"$f":"'FO con SITPQ'!Y105+SUM('FO con SITPQ'!Y121:Y122)","v":0},{"$f":"'FO con SITPQ'!Z105+SUM('FO con SITPQ'!Z121:Z122)","v":0},{"$f":"'FO con SITPQ'!AA105+SUM('FO con SITPQ'!AA121:AA122)","v":0}]
[null,"a","2017-06-26","Intracantonal Combinado",{"$f":"'FO con SITPQ'!H182+SUM('FO con SITPQ'!H198:H199)","v":9656.6900036851766},{"$f":"'FO con SITPQ'!I182+SUM('FO con SITPQ'!I198:I199)","v":11719.040804176384},{"$f":"'FO con SITPQ'!J182+SUM('FO con SITPQ'!J198:J199)","v":9841.3466168465275},{"$f":"'FO con SITPQ'!K182+SUM('FO con SITPQ'!K198:K199)","v":13304.0678034665},{"$f":"'FO con SITPQ'!L182+SUM('FO con SITPQ'!L198:L199)","v":11170.322476191019},{"$f":"'FO con SITPQ'!M182+SUM('FO con SITPQ'!M198:M199)","v":13971.151559566486},{"$f":"'FO con SITPQ'!N182+SUM('FO con SITPQ'!N198:N199)","v":11473.850323457224},{"$f":"'FO con SITPQ'!O182+SUM('FO con SITPQ'!O198:O199)","v":15178.261298897925},{"$f":"'FO con SITPQ'!P182+SUM('FO con SITPQ'!P198:P199)","v":15455.873045980277},{"$f":"'FO con SITPQ'!Q182+SUM('FO con SITPQ'!Q198:Q199)","v":13730.103611419807},{"$f":"'FO con SITPQ'!R182+SUM('FO con SITPQ'!R198:R199)","v":12592.856161590955},{"$f":"'FO con SITPQ'!S182+SUM('FO con SITPQ'!S198:S199)","v":13764.549678809655},{"$f":"'FO con SITPQ'!T182+SUM('FO con SITPQ'!T198:T199)","v":0},{"$f":"'FO con SITPQ'!U182+SUM('FO con SITPQ'!U198:U199)","v":0},{"$f":"'FO con SITPQ'!V182+SUM('FO con SITPQ'!V198:V199)","v":0},{"$f":"'FO con SITPQ'!W182+SUM('FO con SITPQ'!W198:W199)","v":0},{"$f":"'FO con SITPQ'!X182+SUM('FO con SITPQ'!X198:X199)","v":0},{"$f":"'FO con SITPQ'!Y182+SUM('FO con SITPQ'!Y198:Y199)","v":0},{"$f":"'FO con SITPQ'!Z182+SUM('FO con SITPQ'!Z198:Z199)","v":0},{"$f":"'FO con SITPQ'!AA182+SUM('FO con SITPQ'!AA198:AA199)","v":0}]
[null,"a","2017-06-26","Otro",{"$f":"'FO con SITPQ'!H259+SUM('FO con SITPQ'!H275:H276)","v":26914.171363771635},{"$f":"'FO con SITPQ'!I259+SUM('FO con SITPQ'!I275:I276)","v":30298.873690808778},{"$f":"'FO con SITPQ'!J259+SUM('FO con SITPQ'!J275:J276)","v":29536.023239988783},{"$f":"'FO con SITPQ'!K259+SUM('FO con SITPQ'!K275:K276)","v":28348.472380023413},{"$f":"'FO con SITPQ'!L259+SUM('FO con SITPQ'!L275:L276)","v":29455.042661685075},{"$f":"'FO con SITPQ'!M259+SUM('FO con SITPQ'!M275:M276)","v":28922.566082460358},{"$f":"'FO con SITPQ'!N259+SUM('FO con SITPQ'!N275:N276)","v":31281.431097068948},{"$f":"'FO con SITPQ'!O259+SUM('FO con SITPQ'!O275:O276)","v":26401.396499698429},{"$f":"'FO con SITPQ'!P259+SUM('FO con SITPQ'!P275:P276)","v":31937.637224455812},{"$f":"'FO con SITPQ'!Q259+SUM('FO con SITPQ'!Q275:Q276)","v":27260.889193506453},{"$f":"'FO con SITPQ'!R259+SUM('FO con SITPQ'!R275:R276)","v":26862.219075702797},{"$f":"'FO con SITPQ'!S259+SUM('FO con SITPQ'!S275:S276)","v":30759.199165841652},{"$f":"'FO con SITPQ'!T259+SUM('FO con SITPQ'!T275:T276)","v":0},{"$f":"'FO con SITPQ'!U259+SUM('FO con SITPQ'!U275:U276)","v":0},{"$f":"'FO con SITPQ'!V259+SUM('FO con SITPQ'!V275:V276)","v":0},{"$f":"'FO con SITPQ'!W259+SUM('FO con SITPQ'!W275:W276)","v":0},{"$f":"'FO con SITPQ'!X259+SUM('FO con SITPQ'!X275:X276)","v":0},{"$f":"'FO con SITPQ'!Y259+SUM('FO con SITPQ'!Y275:Y276)","v":0},{"$f":"'FO con SITPQ'!Z259+SUM('FO con SITPQ'!Z275:Z276)","v":0},{"$f":"'FO con SITPQ'!AA259+SUM('FO con SITPQ'!AA275:AA276)","v":0}]
[null,"a","2017-06-26"," Costo Mantenimiento ",{"$f":"\"\"","v":""},{"$f":"\"\"","v":""},{"$f":"\"\"","v":""},{"$f":"\"\"","v":""},{"$f":"\"\"","v":""},{"$f":"\"\"","v":""},{"$f":"\"\"","v":""},{"$f":"\"\"","v":""},{"$f":"\"\"","v":""},{"$f":"\"\"","v":""},{"$f":"\"\"","v":""},{"$f":"\"\"","v":""},{"$f":"\"\"","v":""},{"$f":"\"\"","v":""},{"$f":"\"\"","v":""},{"$f":"\"\"","v":""},{"$f":"\"\"","v":""},{"$f":"\"\"","v":""},{"$f":"\"\"","v":""},{"$f":"\"\"","v":""}]
[null,"a","2017-06-26",{"$f":"D37","v":"Intracantonal Rural"},{"$f":"'FO con SITPQ'!H29","v":12336.300885333332},{"$f":"'FO con SITPQ'!I29","v":19556.147069903232},{"$f":"'FO con SITPQ'!J29","v":15974.050782086291},{"$f":"'FO con SITPQ'!K29","v":26292.681881531124},{"$f":"'FO con SITPQ'!L29","v":13295.252181220694},{"$f":"'FO con SITPQ'!M29","v":25678.188366440023},{"$f":"'FO con SITPQ'!N29","v":24626.497595655241},{"$f":"'FO con SITPQ'!O29","v":17968.412590140746},{"$f":"'FO con SITPQ'!P29","v":24909.28697680603},{"$f":"'FO con SITPQ'!Q29","v":16783.298367831125},{"$f":"'FO con SITPQ'!R29","v":27658.401740278674},{"$f":"'FO con SITPQ'!S29","v":26503.074608221665},{"$f":"'FO con SITPQ'!T29","v":0},{"$f":"'FO con SITPQ'!U29","v":0},{"$f":"'FO con SITPQ'!V29","v":0},{"$f":"'FO con SITPQ'!W29","v":0},{"$f":"'FO con SITPQ'!X29","v":0},{"$f":"'FO con SITPQ'!Y29","v":0},{"$f":"'FO con SITPQ'!Z29","v":0},{"$f":"'FO con SITPQ'!AA29","v":0}]
[null,"a","2017-06-26",{"$f":"D38","v":"Intracantonal Urbano"},{"$f":"'FO con SITPQ'!H106","v":13830.807356952382},{"$f":"'FO con SITPQ'!I106","v":18775.597487640382},{"$f":"'FO con SITPQ'!J106","v":20737.319624041615},{"$f":"'FO con SITPQ'!K106","v":25404.994681263466},{"$f":"'FO con SITPQ'!L106","v":14974.586565626356},{"$f":"'FO con SITPQ'!M106","v":25298.692455254772},{"$f":"'FO con SITPQ'!N106","v":15245.490554923535},{"$f":"'FO con SITPQ'!O106","v":32817.076893867044},{"$f":"'FO con SITPQ'!P106","v":17019.000454331454},{"$f":"'FO con SITPQ'!Q106","v":25925.114458210992},{"$f":"'FO con SITPQ'!R106","v":20852.66661120643},{"$f":"'FO con SITPQ'!S106","v":30070.677541928631},{"$f":"'FO con SITPQ'!T106","v":0},{"$f":"'FO con SITPQ'!U106","v":0},{"$f":"'FO con SITPQ'!V106","v":0},{"$f":"'FO con SITPQ'!W106","v":0},{"$f":"'FO con SITPQ'!X106","v":0},{"$f":"'FO con SITPQ'!Y106","v":0},{"$f":"'FO con SITPQ'!Z106","v":0},{"$f":"'FO con SITPQ'!AA106","v":0}]
[null,"a","2017-06-26","Intracantonal Combinado",{"$f":"'FO con SITPQ'!H183","v":25685.005141333335},{"$f":"'FO con SITPQ'!I183","v":36573.049322349711},{"$f":"'FO con SITPQ'!J183","v":46603.518258690921},{"$f":"'FO con SITPQ'!K183","v":37899.027261878262},{"$f":"'FO con SITPQ'!L183","v":47000.178438021525},{"$f":"'FO con SITPQ'!M183","v":40763.682418946744},{"$f":"'FO con SITPQ'!N183","v":49937.688282955343},{"$f":"'FO con SITPQ'!O183","v":39675.337137569812},{"$f":"'FO con SITPQ'!P183","v":39778.946635181412},{"$f":"'FO con SITPQ'!Q183","v":45985.164555897238},{"$f":"'FO con SITPQ'!R183","v":50363.098519388652},{"$f":"'FO con SITPQ'!S183","v":47353.004919141764},{"$f":"'FO con SITPQ'!T183","v":0},{"$f":"'FO con SITPQ'!U183","v":0},{"$f":"'FO con SITPQ'!V183","v":0},{"$f":"'FO con SITPQ'!W183","v":0},{"$f":"'FO con SITPQ'!X183","v":0},{"$f":"'FO con SITPQ'!Y183","v":0},{"$f":"'FO con SITPQ'!Z183","v":0},{"$f":"'FO con SITPQ'!AA183","v":0}]
[null,"a","2017-06-26","Otro",{"$f":"'FO con SITPQ'!H260","v":19146.789546666667},{"$f":"'FO con SITPQ'!I260","v":23924.383144618663},{"$f":"'FO con SITPQ'!J260","v":28403.602133883756},{"$f":"'FO con SITPQ'!K260","v":31319.448736440179},{"$f":"'FO con SITPQ'!L260","v":27165.653831424192},{"$f":"'FO con SITPQ'!M260","v":27756.961399454933},{"$f":"'FO con SITPQ'!N260","v":22212.38331458277},{"$f":"'FO con SITPQ'!O260","v":38972.143685952688},{"$f":"'FO con SITPQ'!P260","v":23010.795511352677},{"$f":"'FO con SITPQ'!Q260","v":38649.768806421969},{"$f":"'FO con SITPQ'!R260","v":40986.530450326594},{"$f":"'FO con SITPQ'!S260","v":29727.690424193413},{"$f":"'FO con SITPQ'!T260","v":0},{"$f":"'FO con SITPQ'!U260","v":0},{"$f":"'FO con SITPQ'!V260","v":0},{"$f":"'FO con SITPQ'!W260","v":0},{"$f":"'FO con SITPQ'!X260","v":0},{"$f":"'FO con SITPQ'!Y260","v":0},{"$f":"'FO con SITPQ'!Z260","v":0},{"$f":"'FO con SITPQ'!AA260","v":0}]
[null,"a","2017-06-26"," Costo vehículo ",{"$f":"\"\"","v":""},{"$f":"\"\"","v":""},{"$f":"\"\"","v":""},{"$f":"\"\"","v":""},{"$f":"\"\"","v":""},{"$f":"\"\"","v":""},{"$f":"\"\"","v":""},{"$f":"\"\"","v":""},{"$f":"\"\"","v":""},{"$f":"\"\"","v":""},{"$f":"\"\"","v":""},{"$f":"\"\"","v":""},{"$f":"\"\"","v":""},{"$f":"\"\"","v":""},{"$f":"\"\"","v":""},{"$f":"\"\"","v":""},{"$f":"\"\"","v":""},{"$f":"\"\"","v":""},{"$f":"\"\"","v":""},{"$f":"\"\"","v":""}]
[null,"a","2017-06-26",{"$f":"D42","v":"Intracantonal Rural"},{"$f":"'Componentes costos'!$O$11*12","v":8053.8797960484844},{"$f":"'Componentes costos'!$O$11*12","v":8053.8797960484844},{"$f":"'Componentes costos'!$O$11*12","v":8053.8797960484844},{"$f":"'Componentes costos'!$O$11*12","v":8053.8797960484844},{"$f":"'Componentes costos'!$O$11*12","v":8053.8797960484844},{"$f":"'Componentes costos'!$O$11*12","v":8053.8797960484844},{"$f":"'Componentes costos'!$O$11*12","v":8053.8797960484844},{"$f":"'Componentes costos'!$O$11*12","v":8053.8797960484844},{"$f":"'Componentes costos'!$O$11*12","v":8053.8797960484844},{"$f":"'Componentes costos'!$O$11*12","v":8053.8797960484844},{"$f":"'Componentes costos'!$O$11*12","v":8053.8797960484844},{"$f":"'Componentes costos'!$O$11*12","v":8053.8797960484844},{"$f":"'Componentes costos'!$O$11*12","v":8053.8797960484844},{"$f":"'Componentes costos'!$O$11*12","v":8053.8797960484844},{"$f":"'Componentes costos'!$O$11*12","v":8053.8797960484844},{"$f":"'Componentes costos'!$O$11*12","v":8053.8797960484844},{"$f":"'Componentes costos'!$O$11*12","v":8053.8797960484844},{"$f":"'Componentes costos'!$O$11*12","v":8053.8797960484844},{"$f":"'Componentes costos'!$O$11*12","v":8053.8797960484844},{"$f":"'Componentes costos'!$O$11*12","v":8053.8797960484844}]
[null,"a","2017-06-26",{"$f":"D43","v":"Intracantonal Urbano"},{"$f":"'Componentes costos'!$P$11*12","v":10917.481501310162},{"$f":"'Componentes costos'!$P$11*12","v":10917.481501310162},{"$f":"'Componentes costos'!$P$11*12","v":10917.481501310162},{"$f":"'Componentes costos'!$P$11*12","v":10917.481501310162},{"$f":"'Componentes costos'!$P$11*12","v":10917.481501310162},{"$f":"'Componentes costos'!$P$11*12","v":10917.481501310162},{"$f":"'Componentes costos'!$P$11*12","v":10917.481501310162},{"$f":"'Componentes costos'!$P$11*12","v":10917.481501310162},{"$f":"'Componentes costos'!$P$11*12","v":10917.481501310162},{"$f":"'Componentes costos'!$P$11*12","v":10917.481501310162},{"$f":"'Componentes costos'!$P$11*12","v":10917.481501310162},{"$f":"'Componentes costos'!$P$11*12","v":10917.481501310162},{"$f":"'Componentes costos'!$P$11*12","v":10917.481501310162},{"$f":"'Componentes costos'!$P$11*12","v":10917.481501310162},{"$f":"'Componentes costos'!$P$11*12","v":10917.481501310162},{"$f":"'Componentes costos'!$P$11*12","v":10917.481501310162},{"$f":"'Componentes costos'!$P$11*12","v":10917.481501310162},{"$f":"'Componentes costos'!$P$11*12","v":10917.481501310162},{"$f":"'Componentes costos'!$P$11*12","v":10917.481501310162},{"$f":"'Componentes costos'!$P$11*12","v":10917.481501310162}]
[null,"a","2017-06-26","Intracantonal Combinado",{"$f":"'Componentes costos'!$Q$11*12","v":10917.481501310162},{"$f":"'Componentes costos'!$Q$11*12","v":10917.481501310162},{"$f":"'Componentes costos'!$Q$11*12","v":10917.481501310162},{"$f":"'Componentes costos'!$Q$11*12","v":10917.481501310162},{"$f":"'Componentes costos'!$Q$11*12","v":10917.481501310162},{"$f":"'Componentes costos'!$Q$11*12","v":10917.481501310162},{"$f":"'Componentes costos'!$Q$11*12","v":10917.481501310162},{"$f":"'Componentes costos'!$Q$11*12","v":10917.481501310162},{"$f":"'Componentes costos'!$Q$11*12","v":10917.481501310162},{"$f":"'Componentes costos'!$Q$11*12","v":10917.481501310162},{"$f":"'Componentes costos'!$Q$11*12","v":10917.481501310162},{"$f":"'Componentes costos'!$Q$11*12","v":10917.481501310162},{"$f":"'Componentes costos'!$Q$11*12","v":10917.481501310162},{"$f":"'Componentes costos'!$Q$11*12","v":10917.481501310162},{"$f":"'Componentes costos'!$Q$11*12","v":10917.481501310162},{"$f":"'Componentes costos'!$Q$11*12","v":10917.481501310162},{"$f":"'Componentes costos'!$Q$11*12","v":10917.481501310162},{"$f":"'Componentes costos'!$Q$11*12","v":10917.481501310162},{"$f":"'Componentes costos'!$Q$11*12","v":10917.481501310162},{"$f":"'Componentes costos'!$Q$11*12","v":10917.481501310162}]
[null,"a","2017-06-26","Otro",{"$f":"'Componentes costos'!$R$11*12","v":21876.11090955956},{"$f":"'Componentes costos'!$R$11*12","v":21876.11090955956},{"$f":"'Componentes costos'!$R$11*12","v":21876.11090955956},{"$f":"'Componentes costos'!$R$11*12","v":21876.11090955956},{"$f":"'Componentes costos'!$R$11*12","v":21876.11090955956},{"$f":"'Componentes costos'!$R$11*12","v":21876.11090955956},{"$f":"'Componentes costos'!$R$11*12","v":21876.11090955956},{"$f":"'Componentes costos'!$R$11*12","v":21876.11090955956},{"$f":"'Componentes costos'!$R$11*12","v":21876.11090955956},{"$f":"'Componentes costos'!$R$11*12","v":21876.11090955956},{"$f":"'Componentes costos'!$R$11*12","v":21876.11090955956},{"$f":"'Componentes costos'!$R$11*12","v":21876.11090955956},{"$f":"'Componentes costos'!$R$11*12","v":21876.11090955956},{"$f":"'Componentes costos'!$R$11*12","v":21876.11090955956},{"$f":"'Componentes costos'!$R$11*12","v":21876.11090955956},{"$f":"'Componentes costos'!$R$11*12","v":21876.11090955956},{"$f":"'Componentes costos'!$R$11*12","v":21876.11090955956},{"$f":"'Componentes costos'!$R$11*12","v":21876.11090955956},{"$f":"'Componentes costos'!$R$11*12","v":21876.11090955956},{"$f":"'Componentes costos'!$R$11*12","v":21876.11090955956}]
[null,"a","2017-06-26"," Costo personal ",{"$f":"\"\"","v":""},{"$f":"\"\"","v":""},{"$f":"\"\"","v":""},{"$f":"\"\"","v":""},{"$f":"\"\"","v":""},{"$f":"\"\"","v":""},{"$f":"\"\"","v":""},{"$f":"\"\"","v":""},{"$f":"\"\"","v":""},{"$f":"\"\"","v":""},{"$f":"\"\"","v":""},{"$f":"\"\"","v":""},{"$f":"\"\"","v":""},{"$f":"\"\"","v":""},{"$f":"\"\"","v":""},{"$f":"\"\"","v":""},{"$f":"\"\"","v":""},{"$f":"\"\"","v":""},{"$f":"\"\"","v":""},{"$f":"\"\"","v":""}]
[null,"a","2017-06-26",{"$f":"D47","v":"Intracantonal Rural"},{"$f":"'FO con SITPQ'!H30","v":9349.5441939890716},{"$f":"'FO con SITPQ'!I30","v":9103.3742473180355},{"$f":"'FO con SITPQ'!J30","v":9414.7824735702925},{"$f":"'FO con SITPQ'!K30","v":9531.0979685269631},{"$f":"'FO con SITPQ'!L30","v":9633.286588506322},{"$f":"'FO con SITPQ'!M30","v":9775.4122455185097},{"$f":"'FO con SITPQ'!N30","v":10044.886538201084},{"$f":"'FO con SITPQ'!O30","v":10300.958193936724},{"$f":"'FO con SITPQ'!P30","v":10534.554358806146},{"$f":"'FO con SITPQ'!Q30","v":10760.918449385317},{"$f":"'FO con SITPQ'!R30","v":10988.595188426279},{"$f":"'FO con SITPQ'!S30","v":11203.163553305467},{"$f":"'FO con SITPQ'!T30","v":0},{"$f":"'FO con SITPQ'!U30","v":0},{"$f":"'FO con SITPQ'!V30","v":0},{"$f":"'FO con SITPQ'!W30","v":0},{"$f":"'FO con SITPQ'!X30","v":0},{"$f":"'FO con SITPQ'!Y30","v":0},{"$f":"'FO con SITPQ'!Z30","v":0},{"$f":"'FO con SITPQ'!AA30","v":0}]
[null,"a","2017-06-26",{"$f":"D48","v":"Intracantonal Urbano"},{"$f":"'FO con SITPQ'!H107","v":9349.5441939890716},{"$f":"'FO con SITPQ'!I107","v":9103.3742473180355},{"$f":"'FO con SITPQ'!J107","v":9414.7824735702925},{"$f":"'FO con SITPQ'!K107","v":9531.0979685269631},{"$f":"'FO con SITPQ'!L107","v":9633.286588506322},{"$f":"'FO con SITPQ'!M107","v":9775.4122455185097},{"$f":"'FO con SITPQ'!N107","v":10044.886538201084},{"$f":"'FO con SITPQ'!O107","v":10300.958193936724},{"$f":"'FO con SITPQ'!P107","v":10534.554358806146},{"$f":"'FO con SITPQ'!Q107","v":10760.918449385317},{"$f":"'FO con SITPQ'!R107","v":10988.595188426279},{"$f":"'FO con SITPQ'!S107","v":11203.163553305467},{"$f":"'FO con SITPQ'!T107","v":0},{"$f":"'FO con SITPQ'!U107","v":0},{"$f":"'FO con SITPQ'!V107","v":0},{"$f":"'FO con SITPQ'!W107","v":0},{"$f":"'FO con SITPQ'!X107","v":0},{"$f":"'FO con SITPQ'!Y107","v":0},{"$f":"'FO con SITPQ'!Z107","v":0},{"$f":"'FO con SITPQ'!AA107","v":0}]
[null,"a","2017-06-26","Intracantonal Combinado",{"$f":"'FO con SITPQ'!H184","v":9349.5441939890716},{"$f":"'FO con SITPQ'!I184","v":9103.3742473180355},{"$f":"'FO con SITPQ'!J184","v":9414.7824735702925},{"$f":"'FO con SITPQ'!K184","v":9531.0979685269631},{"$f":"'FO con SITPQ'!L184","v":9633.286588506322},{"$f":"'FO con SITPQ'!M184","v":9775.4122455185097},{"$f":"'FO con SITPQ'!N184","v":10044.886538201084},{"$f":"'FO con SITPQ'!O184","v":10300.958193936724},{"$f":"'FO con SITPQ'!P184","v":10534.554358806146},{"$f":"'FO con SITPQ'!Q184","v":10760.918449385317},{"$f":"'FO con SITPQ'!R184","v":10988.595188426279},{"$f":"'FO con SITPQ'!S184","v":11203.163553305467},{"$f":"'FO con SITPQ'!T184","v":0},{"$f":"'FO con SITPQ'!U184","v":0},{"$f":"'FO con SITPQ'!V184","v":0},{"$f":"'FO con SITPQ'!W184","v":0},{"$f":"'FO con SITPQ'!X184","v":0},{"$f":"'FO con SITPQ'!Y184","v":0},{"$f":"'FO con SITPQ'!Z184","v":0},{"$f":"'FO con SITPQ'!AA184","v":0}]
[null,"a","2017-06-26","Otro",{"$f":"'FO con SITPQ'!H261","v":9349.5441939890716},{"$f":"'FO con SITPQ'!I261","v":9103.3742473180355},{"$f":"'FO con SITPQ'!J261","v":9414.7824735702925},{"$f":"'FO con SITPQ'!K261","v":9531.0979685269631},{"$f":"'FO con SITPQ'!L261","v":9633.286588506322},{"$f":"'FO con SITPQ'!M261","v":9775.4122455185097},{"$f":"'FO con SITPQ'!N261","v":10044.886538201084},{"$f":"'FO con SITPQ'!O261","v":10300.958193936724},{"$f":"'FO con SITPQ'!P261","v":10534.554358806146},{"$f":"'FO con SITPQ'!Q261","v":10760.918449385317},{"$f":"'FO con SITPQ'!R261","v":10988.595188426279},{"$f":"'FO con SITPQ'!S261","v":11203.163553305467},{"$f":"'FO con SITPQ'!T261","v":0},{"$f":"'FO con SITPQ'!U261","v":0},{"$f":"'FO con SITPQ'!V261","v":0},{"$f":"'FO con SITPQ'!W261","v":0},{"$f":"'FO con SITPQ'!X261","v":0},{"$f":"'FO con SITPQ'!Y261","v":0},{"$f":"'FO con SITPQ'!Z261","v":0},{"$f":"'FO con SITPQ'!AA261","v":0}]
[null,"a","2017-06-26"," Administración y otros ",{"$f":"\"\"","v":""},{"$f":"\"\"","v":""},{"$f":"\"\"","v":""},{"$f":"\"\"","v":""},{"$f":"\"\"","v":""},{"$f":"\"\"","v":""},{"$f":"\"\"","v":""},{"$f":"\"\"","v":""},{"$f":"\"\"","v":""},{"$f":"\"\"","v":""},{"$f":"\"\"","v":""},{"$f":"\"\"","v":""},{"$f":"\"\"","v":""},{"$f":"\"\"","v":""},{"$f":"\"\"","v":""},{"$f":"\"\"","v":""},{"$f":"\"\"","v":""},{"$f":"\"\"","v":""},{"$f":"\"\"","v":""},{"$f":"\"\"","v":""}]
[null,"a","2017-06-26",{"$f":"D52","v":"Intracantonal Rural"},{"$f":"'FO con SITPQ'!H31","v":2308.2393600000005},{"$f":"'FO con SITPQ'!I31","v":1647.28160256},{"$f":"'FO con SITPQ'!J31","v":1690.11092422656},{"$f":"'FO con SITPQ'!K31","v":1697.4122034192192},{"$f":"'FO con SITPQ'!L31","v":1701.9952163684507},{"$f":"'FO con SITPQ'!M31","v":1713.3985843181192},{"$f":"'FO con SITPQ'!N31","v":1746.6577925879647},{"$f":"'FO con SITPQ'!O31","v":1776.9691281713685},{"$f":"'FO con SITPQ'!P31","v":1802.8429439896772},{"$f":"'FO con SITPQ'!Q31","v":1826.9662898174524},{"$f":"'FO con SITPQ'!R31","v":1850.8142576353914},{"$f":"'FO con SITPQ'!S31","v":1871.9782820285157},{"$f":"'FO con SITPQ'!T31","v":0},{"$f":"'FO con SITPQ'!U31","v":0},{"$f":"'FO con SITPQ'!V31","v":0},{"$f":"'FO con SITPQ'!W31","v":0},{"$f":"'FO con SITPQ'!X31","v":0},{"$f":"'FO con SITPQ'!Y31","v":0},{"$f":"'FO con SITPQ'!Z31","v":0},{"$f":"'FO con SITPQ'!AA31","v":0}]
[null,"a","2017-06-26",{"$f":"D53","v":"Intracantonal Urbano"},{"$f":"'FO con SITPQ'!H108","v":2308.2393600000005},{"$f":"'FO con SITPQ'!I108","v":1647.28160256},{"$f":"'FO con SITPQ'!J108","v":1690.11092422656},{"$f":"'FO con SITPQ'!K108","v":1697.4122034192192},{"$f":"'FO con SITPQ'!L108","v":1701.9952163684507},{"$f":"'FO con SITPQ'!M108","v":1713.3985843181192},{"$f":"'FO con SITPQ'!N108","v":1746.6577925879647},{"$f":"'FO con SITPQ'!O108","v":1776.9691281713685},{"$f":"'FO con SITPQ'!P108","v":1802.8429439896772},{"$f":"'FO con SITPQ'!Q108","v":1826.9662898174524},{"$f":"'FO con SITPQ'!R108","v":1850.8142576353914},{"$f":"'FO con SITPQ'!S108","v":1871.9782820285157},{"$f":"'FO con SITPQ'!T108","v":0},{"$f":"'FO con SITPQ'!U108","v":0},{"$f":"'FO con SITPQ'!V108","v":0},{"$f":"'FO con SITPQ'!W108","v":0},{"$f":"'FO con SITPQ'!X108","v":0},{"$f":"'FO con SITPQ'!Y108","v":0},{"$f":"'FO con SITPQ'!Z108","v":0},{"$f":"'FO con SITPQ'!AA108","v":0}]
[null,"a","2017-06-26","Intracantonal Combinado",{"$f":"'FO con SITPQ'!H185","v":2308.2393600000005},{"$f":"'FO con SITPQ'!I185","v":1647.28160256},{"$f":"'FO con SITPQ'!J185","v":1690.11092422656},{"$f":"'FO con SITPQ'!K185","v":1697.4122034192192},{"$f":"'FO con SITPQ'!L185","v":1701.9952163684507},{"$f":"'FO con SITPQ'!M185","v":1713.3985843181192},{"$f":"'FO con SITPQ'!N185","v":1746.6577925879647},{"$f":"'FO con SITPQ'!O185","v":1776.9691281713685},{"$f":"'FO con SITPQ'!P185","v":1802.8429439896772},{"$f":"'FO con SITPQ'!Q185","v":1826.9662898174524},{"$f":"'FO con SITPQ'!R185","v":1850.8142576353914},{"$f":"'FO con SITPQ'!S185","v":1871.9782820285157},{"$f":"'FO con SITPQ'!T185","v":0},{"$f":"'FO con SITPQ'!U185","v":0},{"$f":"'FO con SITPQ'!V185","v":0},{"$f":"'FO con SITPQ'!W185","v":0},{"$f":"'FO con SITPQ'!X185","v":0},{"$f":"'FO con SITPQ'!Y185","v":0},{"$f":"'FO con SITPQ'!Z185","v":0},{"$f":"'FO con SITPQ'!AA185","v":0}]
[null,"a","2017-06-26","Otro",{"$f":"'FO con SITPQ'!H262","v":2308.2393600000005},{"$f":"'FO con SITPQ'!I262","v":1647.28160256},{"$f":"'FO con SITPQ'!J262","v":1690.11092422656},{"$f":"'FO con SITPQ'!K262","v":1697.4122034192192},{"$f":"'FO con SITPQ'!L262","v":1701.9952163684507},{"$f":"'FO con SITPQ'!M262","v":1713.3985843181192},{"$f":"'FO con SITPQ'!N262","v":1746.6577925879647},{"$f":"'FO con SITPQ'!O262","v":1776.9691281713685},{"$f":"'FO con SITPQ'!P262","v":1802.8429439896772},{"$f":"'FO con SITPQ'!Q262","v":1826.9662898174524},{"$f":"'FO con SITPQ'!R262","v":1850.8142576353914},{"$f":"'FO con SITPQ'!S262","v":1871.9782820285157},{"$f":"'FO con SITPQ'!T262","v":0},{"$f":"'FO con SITPQ'!U262","v":0},{"$f":"'FO con SITPQ'!V262","v":0},{"$f":"'FO con SITPQ'!W262","v":0},{"$f":"'FO con SITPQ'!X262","v":0},{"$f":"'FO con SITPQ'!Y262","v":0},{"$f":"'FO con SITPQ'!Z262","v":0},{"$f":"'FO con SITPQ'!AA262","v":0}]
[null,"a","2017-06-26","Total",{"$f":"\"\"","v":""},{"$f":"\"\"","v":""},{"$f":"\"\"","v":""},{"$f":"\"\"","v":""},{"$f":"\"\"","v":""},{"$f":"\"\"","v":""},{"$f":"\"\"","v":""},{"$f":"\"\"","v":""},{"$f":"\"\"","v":""},{"$f":"\"\"","v":""},{"$f":"\"\"","v":""},{"$f":"\"\"","v":""},{"$f":"\"\"","v":""},{"$f":"\"\"","v":""},{"$f":"\"\"","v":""},{"$f":"\"\"","v":""},{"$f":"\"\"","v":""},{"$f":"\"\"","v":""},{"$f":"\"\"","v":""},{"$f":"\"\"","v":""}]
[null,"a","2017-06-26",{"$f":"D57","v":"Intracantonal Rural"},{"$f":"SUMIF($D$27:$D$60,$D62,E$27:E$60)","v":68401.474770643035},{"$f":"SUMIF($D$27:$D$60,$D62,F$27:F$60)","v":67532.508802152719},66806.543915043847,74624.819272288791,66750.213437882689,76275.336974182006,76704.865125430413,73242.000053397162,78879.67812398501,74252.987448168933,82503.798023979689,82529.924497452273,8053.8797960484844,8053.8797960484844,8053.8797960484844,8053.8797960484844,8053.8797960484844,8053.8797960484844,8053.8797960484844,8053.8797960484844]
[null,"a","2017-06-26",{"$f":"D58","v":"Intracantonal Urbano"},{"$f":"SUMIF($D$27:$D$60,$D63,E$27:E$60)","v":74376.778172075268},72144.195297909988,75406.534059488811,79575.288236490975,73663.522844648585,82045.8901905573,76439.773704375228,89474.927471087867,79742.417962344218,86718.692449780137,84201.178104392762,91307.559529855032,10917.481501310162,10917.481501310162,10917.481501310162,10917.481501310162,10917.481501310162,10917.481501310162,10917.481501310162,10917.481501310162]
[null,"a","2017-06-26","Intracantonal Combinado",96908.939093467139,98974.108885527821,108016.26517058078,103191.85044299695,110601.66160965367,107917.60952088347,115663.16356392433,110099.54395540655,111400.80223955691,116781.49941172711,120902.82091581718,119930.00602050759,10917.481501310162,10917.481501310162,10917.481501310162,10917.481501310162,10917.481501310162,10917.481501310162,10917.481501310162,10917.481501310162]
[null,"a","2017-06-26","Otro",117763.09661322061,115018.75016976106,119620.84917536956,121759.95273624596,119145.09714430592,119934.3337503138,117797.57422161596,130653.82294354198,121131.70153438485,132977.11968084367,135780.04013287986,129266.82788069553,21876.11090955956,21876.11090955956,21876.11090955956,21876.11090955956,21876.11090955956,21876.11090955956,21876.11090955956,21876.11090955956]
[null,"a","2017-06-26","Flujo del Operador Privado",{"$f":"\"\"","v":""},{"$f":"\"\"","v":""},{"$f":"\"\"","v":""},{"$f":"\"\"","v":""},{"$f":"\"\"","v":""},{"$f":"\"\"","v":""},{"$f":"\"\"","v":""},{"$f":"\"\"","v":""},{"$f":"\"\"","v":""},{"$f":"\"\"","v":""},{"$f":"\"\"","v":""},{"$f":"\"\"","v":""},{"$f":"\"\"","v":""},{"$f":"\"\"","v":""},{"$f":"\"\"","v":""},{"$f":"\"\"","v":""},{"$f":"\"\"","v":""},{"$f":"\"\"","v":""},{"$f":"\"\"","v":""},{"$f":"\"\"","v":""}]
[null,"a","2017-06-26",{"$f":"D62","v":"Intracantonal Rural"},{"$f":"'FO con SITPQ'!H47","v":659.98931630328707},{"$f":"'FO con SITPQ'!I47","v":3865.7402449202682},{"$f":"'FO con SITPQ'!J47","v":7865.3045557358973},{"$f":"'FO con SITPQ'!K47","v":1869.1819254878656},{"$f":"'FO con SITPQ'!L47","v":11649.013827090255},{"$f":"'FO con SITPQ'!M47","v":4580.0161413495189},{"$f":"'FO con SITPQ'!N47","v":5680.1230890739462},{"$f":"'FO con SITPQ'!O47","v":10537.046685559679},{"$f":"'FO con SITPQ'!P47","v":6089.3397200845839},{"$f":"'FO con SITPQ'!Q47","v":11825.495064555471},{"$f":"'FO con SITPQ'!R47","v":4671.4841575019236},{"$f":"'FO con SITPQ'!S47","v":5618.7192350495388},{"$f":"'FO con SITPQ'!T47","v":-2.2919266484677796E-12},{"$f":"'FO con SITPQ'!U47","v":-2.2919266484677796E-12},{"$f":"'FO con SITPQ'!V47","v":-2.2919266484677796E-12},{"$f":"'FO con SITPQ'!W47","v":-2.2919266484677796E-12},{"$f":"'FO con SITPQ'!X47","v":-2.2919266484677796E-12},{"$f":"'FO con SITPQ'!Y47","v":-2.2919266484677796E-12},{"$f":"'FO con SITPQ'!Z47","v":-2.2919266484677796E-12},{"$f":"'FO con SITPQ'!AA47","v":-2.2919266484677796E-12}]
[null,"a","2017-06-26",{"$f":"D63","v":"Intracantonal Urbano"},{"$f":"'FO con SITPQ'!H124","v":857.74098485621903},{"$f":"'FO con SITPQ'!I124","v":5963.8515792849848},{"$f":"'FO con SITPQ'!J124","v":6653.4763000122603},{"$f":"'FO con SITPQ'!K124","v":4871.9722752695852},{"$f":"'FO con SITPQ'!L124","v":13314.41700608708},{"$f":"'FO con SITPQ'!M124","v":8132.1776949756204},{"$f":"'FO con SITPQ'!N124","v":15434.719405275122},{"$f":"'FO con SITPQ'!O124","v":3945.631132460444},{"$f":"'FO con SITPQ'!P124","v":14997.865195144932},{"$f":"'FO con SITPQ'!Q124","v":9252.0304710466735},{"$f":"'FO con SITPQ'!R124","v":12985.938598933411},{"$f":"'FO con SITPQ'!S124","v":6959.0532496566011},{"$f":"'FO con SITPQ'!T124","v":0},{"$f":"'FO con SITPQ'!U124","v":0},{"$f":"'FO con SITPQ'!V124","v":0},{"$f":"'FO con SITPQ'!W124","v":0},{"$f":"'FO con SITPQ'!X124","v":0},{"$f":"'FO con SITPQ'!Y124","v":0},{"$f":"'FO con SITPQ'!Z124","v":0},{"$f":"'FO con SITPQ'!AA124","v":0}]
[null,"a","2017-06-26",{"$f":"D64","v":"Intracantonal Combinado"},{"$f":"'FO con SITPQ'!H201","v":5568.6612442459582},{"$f":"'FO con SITPQ'!I201","v":6812.9084713412794},{"$f":"'FO con SITPQ'!J201","v":2442.3689010659009},{"$f":"'FO con SITPQ'!K201","v":9776.7158353457035},{"$f":"'FO con SITPQ'!L201","v":4974.5915332338673},{"$f":"'FO con SITPQ'!M201","v":11050.380355858731},{"$f":"'FO con SITPQ'!N201","v":5560.0999101871612},{"$f":"'FO con SITPQ'!O201","v":13179.100822060567},{"$f":"'FO con SITPQ'!P201","v":13632.320071012906},{"$f":"'FO con SITPQ'!Q201","v":9887.4028153152794},{"$f":"'FO con SITPQ'!R201","v":7383.1881206940843},{"$f":"'FO con SITPQ'!S201","v":9791.1143103145332},{"$f":"'FO con SITPQ'!T201","v":0},{"$f":"'FO con SITPQ'!U201","v":0},{"$f":"'FO con SITPQ'!V201","v":0},{"$f":"'FO con SITPQ'!W201","v":0},{"$f":"'FO con SITPQ'!X201","v":0},{"$f":"'FO con SITPQ'!Y201","v":0},{"$f":"'FO con SITPQ'!Z201","v":0},{"$f":"'FO con SITPQ'!AA201","v":0}]
[null,"a","2017-06-26",{"$f":"D65","v":"Otro"},{"$f":"'FO con SITPQ'!H278","v":-996.67171561978284},{"$f":"'FO con SITPQ'!I278","v":6381.5155839804247},{"$f":"'FO con SITPQ'!J278","v":8091.6763976972343},{"$f":"'FO con SITPQ'!K278","v":9923.1124740663563},{"$f":"'FO con SITPQ'!L278","v":16773.839801689108},{"$f":"'FO con SITPQ'!M278","v":21293.43727642743},{"$f":"'FO con SITPQ'!N278","v":26013.644573309957},{"$f":"'FO con SITPQ'!O278","v":15511.864172707101},{"$f":"'FO con SITPQ'!P278","v":27043.764383208556},{"$f":"'FO con SITPQ'!Q278","v":17072.155241289911},{"$f":"'FO con SITPQ'!R278","v":16121.653485908448},{"$f":"'FO con SITPQ'!S278","v":24278.806000909983},{"$f":"'FO con SITPQ'!T278","v":0},{"$f":"'FO con SITPQ'!U278","v":0},{"$f":"'FO con SITPQ'!V278","v":0},{"$f":"'FO con SITPQ'!W278","v":0},{"$f":"'FO con SITPQ'!X278","v":0},{"$f":"'FO con SITPQ'!Y278","v":0},{"$f":"'FO con SITPQ'!Z278","v":0},{"$f":"'FO con SITPQ'!AA278","v":0}]
[null,"a","2017-06-26","Costo SITP-Q",{"$f":"\"\"","v":""},{"$f":"\"\"","v":""},{"$f":"\"\"","v":""},{"$f":"\"\"","v":""},{"$f":"\"\"","v":""},{"$f":"\"\"","v":""},{"$f":"\"\"","v":""},{"$f":"\"\"","v":""},{"$f":"\"\"","v":""},{"$f":"\"\"","v":""},{"$f":"\"\"","v":""},{"$f":"\"\"","v":""},{"$f":"\"\"","v":""},{"$f":"\"\"","v":""},{"$f":"\"\"","v":""},{"$f":"\"\"","v":""},{"$f":"\"\"","v":""},{"$f":"\"\"","v":""},{"$f":"\"\"","v":""},{"$f":"\"\"","v":""}]
[null,"a","2017-06-26",{"$f":"D67","v":"Intracantonal Rural"},{"$f":"'FO con SITPQ'!H74","v":0},{"$f":"'FO con SITPQ'!I74","v":7171.896786810682},{"$f":"'FO con SITPQ'!J74","v":7358.3661032677601},{"$f":"'FO con SITPQ'!K74","v":7390.1542448338778},{"$f":"'FO con SITPQ'!L74","v":7410.1076612949282},{"$f":"'FO con SITPQ'!M74","v":7459.7553826256044},{"$f":"'FO con SITPQ'!N74","v":7604.5585592965972},{"$f":"'FO con SITPQ'!O74","v":7736.5273556072652},{"$f":"'FO con SITPQ'!P74","v":7849.1761803385562},{"$f":"'FO con SITPQ'!Q74","v":7954.2038490507375},{"$f":"'FO con SITPQ'!R74","v":8058.0325833118623},{"$f":"'FO con SITPQ'!S74","v":8150.1760263668584},{"$f":"'FO con SITPQ'!T74","v":0},{"$f":"'FO con SITPQ'!U74","v":0},{"$f":"'FO con SITPQ'!V74","v":0},{"$f":"'FO con SITPQ'!W74","v":0},{"$f":"'FO con SITPQ'!X74","v":0},{"$f":"'FO con SITPQ'!Y74","v":0},{"$f":"'FO con SITPQ'!Z74","v":0},{"$f":"'FO con SITPQ'!AA74","v":0}]
[null,"a","2017-06-26",{"$f":"D68","v":"Intracantonal Urbano"},{"$f":"'FO con SITPQ'!H151","v":0},{"$f":"'FO con SITPQ'!I151","v":7012.5213026593347},{"$f":"'FO con SITPQ'!J151","v":7194.8468565284775},{"$f":"'FO con SITPQ'!K151","v":7225.9285949486812},{"$f":"'FO con SITPQ'!L151","v":7245.4386021550426},{"$f":"'FO con SITPQ'!M151","v":7293.9830407894815},{"$f":"'FO con SITPQ'!N151","v":7435.5683690900069},{"$f":"'FO con SITPQ'!O151","v":7564.6045254826613},{"$f":"'FO con SITPQ'!P151","v":7674.7500429977008},{"$f":"'FO con SITPQ'!Q151","v":7777.4437635162776},{"$f":"'FO con SITPQ'!R151","v":7878.9651925716007},{"$f":"'FO con SITPQ'!S151","v":7969.0610035587069},{"$f":"'FO con SITPQ'!T151","v":0},{"$f":"'FO con SITPQ'!U151","v":0},{"$f":"'FO con SITPQ'!V151","v":0},{"$f":"'FO con SITPQ'!W151","v":0},{"$f":"'FO con SITPQ'!X151","v":0},{"$f":"'FO con SITPQ'!Y151","v":0},{"$f":"'FO con SITPQ'!Z151","v":0},{"$f":"'FO con SITPQ'!AA151","v":0}]
[null,"a",{"$f":"TODAY()","v":"2017-06-26"},{"$f":"D69","v":"Intracantonal Combinado"},{"$f":"'FO con SITPQ'!H228","v":0},{"$f":"'FO con SITPQ'!I228","v":7171.896786810682},{"$f":"'FO con SITPQ'!J228","v":7358.3661032677601},{"$f":"'FO con SITPQ'!K228","v":7390.1542448338778},{"$f":"'FO con SITPQ'!L228","v":7410.1076612949282},{"$f":"'FO con SITPQ'!M228","v":7459.7553826256044},{"$f":"'FO con SITPQ'!N228","v":7604.5585592965972},{"$f":"'FO con SITPQ'!O228","v":7736.5273556072652},{"$f":"'FO con SITPQ'!P228","v":7849.1761803385562},{"$f":"'FO con SITPQ'!Q228","v":7954.2038490507375},{"$f":"'FO con SITPQ'!R228","v":8058.0325833118623},{"$f":"'FO con SITPQ'!S228","v":8150.1760263668584},{"$f":"'FO con SITPQ'!T228","v":0},{"$f":"'FO con SITPQ'!U228","v":0},{"$f":"'FO con SITPQ'!V228","v":0},{"$f":"'FO con SITPQ'!W228","v":0},{"$f":"'FO con SITPQ'!X228","v":0},{"$f":"'FO con SITPQ'!Y228","v":0},{"$f":"'FO con SITPQ'!Z228","v":0},{"$f":"'FO con SITPQ'!AA228","v":0}]
[null,"a","2017-06-26",{"$f":"D70","v":"Otro"},{"$f":"'FO con SITPQ'!H305","v":0},{"$f":"'FO con SITPQ'!I305","v":8116.3441003001544},{"$f":"'FO con SITPQ'!J305","v":8327.3690469079593},{"$f":"'FO con SITPQ'!K305","v":8363.3432811906023},{"$f":"'FO con SITPQ'!L305","v":8385.9243080498163},{"$f":"'FO con SITPQ'!M305","v":8442.1100009137499},{"$f":"'FO con SITPQ'!N305","v":8605.9819086689877},{"$f":"'FO con SITPQ'!O305","v":8755.3293119012269},{"$f":"'FO con SITPQ'!P305","v":8882.8125497658566},{"$f":"'FO con SITPQ'!Q305","v":9001.6710225882834},{"$f":"'FO con SITPQ'!R305","v":9119.1726765874992},{"$f":"'FO con SITPQ'!S305","v":9223.4502356003541},{"$f":"'FO con SITPQ'!T305","v":0},{"$f":"'FO con SITPQ'!U305","v":0},{"$f":"'FO con SITPQ'!V305","v":0},{"$f":"'FO con SITPQ'!W305","v":0},{"$f":"'FO con SITPQ'!X305","v":0},{"$f":"'FO con SITPQ'!Y305","v":0},{"$f":"'FO con SITPQ'!Z305","v":0},{"$f":"'FO con SITPQ'!AA305","v":0}]
[null,"a","2017-06-26","Tarifa Técnica por Km",{"$f":"\"\"","v":""},{"$f":"\"\"","v":""},{"$f":"\"\"","v":""},{"$f":"\"\"","v":""},{"$f":"\"\"","v":""},{"$f":"\"\"","v":""},{"$f":"\"\"","v":""},{"$f":"\"\"","v":""},{"$f":"\"\"","v":""},{"$f":"\"\"","v":""},{"$f":"\"\"","v":""},{"$f":"\"\"","v":""},{"$f":"\"\"","v":""},{"$f":"\"\"","v":""},{"$f":"\"\"","v":""},{"$f":"\"\"","v":""},{"$f":"\"\"","v":""},{"$f":"\"\"","v":""},{"$f":"\"\"","v":""},{"$f":"\"\"","v":""}]
[null,"a","2017-06-26","Operadores",{"$f":"\"\"","v":""},{"$f":"\"\"","v":""},{"$f":"\"\"","v":""},{"$f":"\"\"","v":""},{"$f":"\"\"","v":""},{"$f":"\"\"","v":""},{"$f":"\"\"","v":""},{"$f":"\"\"","v":""},{"$f":"\"\"","v":""},{"$f":"\"\"","v":""},{"$f":"\"\"","v":""},{"$f":"\"\"","v":""},{"$f":"\"\"","v":""},{"$f":"\"\"","v":""},{"$f":"\"\"","v":""},{"$f":"\"\"","v":""},{"$f":"\"\"","v":""},{"$f":"\"\"","v":""},{"$f":"\"\"","v":""},{"$f":"\"\"","v":""}]
[null,"a","2017-06-26",{"$f":"D72","v":"Intracantonal Rural"},{"$f":"E94*E11/E16","v":1.1403095432294106}]
[null,"a","2017-06-26",{"$f":"D73","v":"Intracantonal Urbano"},{"$f":"E95*E12/E17","v":1.3950240130928995}]
[null,"a","2017-06-26","Intracantonal Combinado",1.0520147318804731]
[null,"a","2017-06-26","Otro",2.0607171322932536]
[null,"a","2017-06-26","SITP-Q",{"$f":"\"\"","v":""},{"$f":"\"\"","v":""},{"$f":"\"\"","v":""},{"$f":"\"\"","v":""},{"$f":"\"\"","v":""},{"$f":"\"\"","v":""},{"$f":"\"\"","v":""},{"$f":"\"\"","v":""},{"$f":"\"\"","v":""},{"$f":"\"\"","v":""},{"$f":"\"\"","v":""},{"$f":"\"\"","v":""},{"$f":"\"\"","v":""},{"$f":"\"\"","v":""},{"$f":"\"\"","v":""},{"$f":"\"\"","v":""},{"$f":"\"\"","v":""},{"$f":"\"\"","v":""},{"$f":"\"\"","v":""},{"$f":"\"\"","v":""}]
[null,"a","2017-06-26",{"$f":"D78","v":"Intracantonal Rural"},{"$f":"E99*E11/E16","v":9.9592547430622291E-2}]
[null,"a","2017-06-26",{"$f":"D79","v":"Intracantonal Urbano"},{"$f":"E100*E12/E17","v":0.10741849102024507}]
[null,"a","2017-06-26","Intracantonal Combinado",6.2318143713898155E-2]
[null,"a","2017-06-26","Otro",0.12059714848337702]
[null,"a","2017-06-26","Total",{"$f":"\"\"","v":""},{"$f":"\"\"","v":""},{"$f":"\"\"","v":""},{"$f":"\"\"","v":""},{"$f":"\"\"","v":""},{"$f":"\"\"","v":""},{"$f":"\"\"","v":""},{"$f":"\"\"","v":""},{"$f":"\"\"","v":""},{"$f":"\"\"","v":""},{"$f":"\"\"","v":""},{"$f":"\"\"","v":""},{"$f":"\"\"","v":""},{"$f":"\"\"","v":""},{"$f":"\"\"","v":""},{"$f":"\"\"","v":""},{"$f":"\"\"","v":""},{"$f":"\"\"","v":""},{"$f":"\"\"","v":""},{"$f":"\"\"","v":""}]
[null,"a","2017-06-26",{"$f":"D83","v":"Intracantonal Rural"},{"$f":"E104*E11/E16","v":1.2399020906600329}]
[null,"a","2017-06-26",{"$f":"D84","v":"Intracantonal Urbano"},{"$f":"E105*E12/E17","v":1.5024425041131446}]
[null,"a","2017-06-26","Intracantonal Combinado",1.1143328755943713]
[null,"a","2017-06-26","Otro",2.1813142807766304]
[null,"a","2017-06-26","Tarifa Técnica por Pasajero",{"$f":"\"\"","v":""},{"$f":"\"\"","v":""},{"$f":"\"\"","v":""},{"$f":"\"\"","v":""},{"$f":"\"\"","v":""},{"$f":"\"\"","v":""},{"$f":"\"\"","v":""},{"$f":"\"\"","v":""},{"$f":"\"\"","v":""},{"$f":"\"\"","v":""},{"$f":"\"\"","v":""},{"$f":"\"\"","v":""},{"$f":"\"\"","v":""},{"$f":"\"\"","v":""},{"$f":"\"\"","v":""},{"$f":"\"\"","v":""},{"$f":"\"\"","v":""},{"$f":"\"\"","v":""},{"$f":"\"\"","v":""},{"$f":"\"\"","v":""}]
[null,"a","2017-06-26","Operadores",{"$f":"\"\"","v":""},{"$f":"\"\"","v":""},{"$f":"\"\"","v":""},{"$f":"\"\"","v":""},{"$f":"\"\"","v":""},{"$f":"\"\"","v":""},{"$f":"\"\"","v":""},{"$f":"\"\"","v":""},{"$f":"\"\"","v":""},{"$f":"\"\"","v":""},{"$f":"\"\"","v":""},{"$f":"\"\"","v":""},{"$f":"\"\"","v":""},{"$f":"\"\"","v":""},{"$f":"\"\"","v":""},{"$f":"\"\"","v":""},{"$f":"\"\"","v":""},{"$f":"\"\"","v":""},{"$f":"\"\"","v":""},{"$f":"\"\"","v":""}]
[null,"a","2017-06-26",{"$f":"D72","v":"Intracantonal Rural"},{"$f":"'Componentes costos'!O$27","v":0.26055949455611993}]
[null,"a","2017-06-26",{"$f":"D73","v":"Intracantonal Urbano"},{"$f":"'Componentes costos'!P$27","v":0.29553819829362038}]
[null,"a","2017-06-26",{"$f":"D74","v":"Intracantonal Combinado"},{"$f":"'Componentes costos'!Q$27","v":0.38416544508615724}]
[null,"a","2017-06-26",{"$f":"D75","v":"Otro"},{"$f":"'Componentes costos'!R$27","v":0.38885915487495293}]
[null,"a","2017-06-26","SITP-Q",{"$f":"\"\"","v":""},{"$f":"\"\"","v":""},{"$f":"\"\"","v":""},{"$f":"\"\"","v":""},{"$f":"\"\"","v":""},{"$f":"\"\"","v":""},{"$f":"\"\"","v":""},{"$f":"\"\"","v":""},{"$f":"\"\"","v":""},{"$f":"\"\"","v":""},{"$f":"\"\"","v":""},{"$f":"\"\"","v":""},{"$f":"\"\"","v":""},{"$f":"\"\"","v":""},{"$f":"\"\"","v":""},{"$f":"\"\"","v":""},{"$f":"\"\"","v":""},{"$f":"\"\"","v":""},{"$f":"\"\"","v":""},{"$f":"\"\"","v":""}]
[null,"a","2017-06-26",{"$f":"D94","v":"Intracantonal Rural"},{"$f":"'Componentes costos'!O$28","v":2.2756789131649576E-2}]
[null,"a","2017-06-26",{"$f":"D95","v":"Intracantonal Urbano"},{"$f":"'Componentes costos'!P$28","v":2.2756789131649573E-2}]
[null,"a","2017-06-26","Intracantonal Combinado",{"$f":"'Componentes costos'!Q$28","v":2.2756789131649576E-2}]
[null,"a","2017-06-26","Otro",{"$f":"'Componentes costos'!R$28","v":2.275678913164958E-2}]
[null,"a","2017-06-26","Total",{"$f":"\"\"","v":""},{"$f":"\"\"","v":""},{"$f":"\"\"","v":""},{"$f":"\"\"","v":""},{"$f":"\"\"","v":""},{"$f":"\"\"","v":""},{"$f":"\"\"","v":""},{"$f":"\"\"","v":""},{"$f":"\"\"","v":""},{"$f":"\"\"","v":""},{"$f":"\"\"","v":""},{"$f":"\"\"","v":""},{"$f":"\"\"","v":""},{"$f":"\"\"","v":""},{"$f":"\"\"","v":""},{"$f":"\"\"","v":""},{"$f":"\"\"","v":""},{"$f":"\"\"","v":""},{"$f":"\"\"","v":""},{"$f":"\"\"","v":""}]
[null,"a","2017-06-26",{"$f":"D99","v":"Intracantonal Rural"},{"$f":"'Componentes costos'!O$30","v":0.28331628368776951}]
[null,"a","2017-06-26",{"$f":"D100","v":"Intracantonal Urbano"},{"$f":"'Componentes costos'!P$30","v":0.31829498742526996}]
[null,"a","2017-06-26","Intracantonal Combinado",{"$f":"'Componentes costos'!Q$30","v":0.40692223421780682}]
[null,"a","2017-06-26","Otro",{"$f":"'Componentes costos'!R$30","v":0.41161594400660251}]
[]
[]
[null,null,null,"ALMACENAMIENTO DE SIMULACIONES"]
[]
[null,"P1","2016-10-05T18:22:17","Operación","","","","","","","","","","","","","","","","","","","",""]
[null,"P1","2016-10-05T18:22:17","Numero de usuarios","","","","","","","","","","","","","","","","","","","",""]
[null,"P1","2016-10-05T18:22:17","Intraparroquial",303264,303264,303264,303264,303264,303264,303264,303264,303264,303264,303264,303264,303264,303264,303264,303264,303264,303264,303264,303264]
[null,"P1","2016-10-05T18:22:17","Urbano",269568,269568,269568,269568,269568,269568,269568,269568,269568,269568,269568,269568,269568,269568,269568,269568,269568,269568,269568,269568]
[null,"P1","2016-10-05T18:22:17","Interparroquial",303264,303264,303264,303264,303264,303264,303264,303264,303264,303264,303264,303264,303264,303264,303264,303264,303264,303264,303264,303264]
[null,"P1","2016-10-05T18:22:17","Otro",343200,343200,343200,343200,343200,343200,343200,343200,343200,343200,343200,343200,343200,343200,343200,343200,343200,343200,343200,343200]
[null,"P1","2016-10-05T18:22:17","Kilometraje Anual","","","","","","","","","","","","","","","","","","","",""]
[null,"P1","2016-10-05T18:22:17","Intraparroquial",66768,66768,66768,66768,66768,66768,66768,66768,66768,66768,66768,66768,66768,66768,66768,66768,66768,66768,66768,66768]
[null,"P1","2016-10-05T18:22:17","Urbano",60528,60528,60528,60528,60528,60528,60528,60528,60528,60528,60528,60528,60528,60528,60528,60528,60528,60528,60528,60528]
[null,"P1","2016-10-05T18:22:17","Interparroquial",102960,102960,102960,102960,102960,102960,102960,102960,102960,102960,102960,102960,102960,102960,102960,102960,102960,102960,102960,102960]
[null,"P1","2016-10-05T18:22:17","Otro",62400,62400,62400,62400,62400,62400,62400,62400,62400,62400,62400,62400,62400,62400,62400,62400,62400,62400,62400,62400]
[null,"P1","2016-10-05T18:22:17","Ingreso Operador Privado","","","","","","","","","","","","","","","","","","","",""]
[null,"P1","2016-10-05T18:22:17","Intraparroquial",84712.68481277088,84712.68481277088,84712.68481277088,84712.68481277088,84712.68481277088,84712.68481277088,84712.68481277088,84712.68481277088,84712.68481277088,84712.68481277088,84712.68481277088,84712.68481277088,84712.68481277088,84712.68481277088,84712.68481277088,84712.68481277088,84712.68481277088,84712.68481277088,84712.68481277088,84712.68481277088]
[null,"P1","2016-10-05T18:22:17","Urbano",92834.476919316381,92834.476919316381,92834.476919316381,92834.476919316381,92834.476919316381,92834.476919316381,92834.476919316381,92834.476919316381,92834.476919316381,92834.476919316381,92834.476919316381,92834.476919316381,92834.476919316381,92834.476919316381,92834.476919316381,92834.476919316381,92834.476919316381,92834.476919316381,92834.476919316381,92834.476919316381]
[null,"P1","2016-10-05T18:22:17","Interparroquial",114688.42006852607,114688.42006852607,114688.42006852607,114688.42006852607,114688.42006852607,114688.42006852607,114688.42006852607,114688.42006852607,114688.42006852607,114688.42006852607,114688.42006852607,114688.42006852607,114688.42006852607,114688.42006852607,114688.42006852607,114688.42006852607,114688.42006852607,114688.42006852607,114688.42006852607,114688.42006852607]
[null,"P1","2016-10-05T18:22:17","Otro",116479.13288687918,116479.13288687918,116479.13288687918,116479.13288687918,116479.13288687918,116479.13288687918,116479.13288687918,116479.13288687918,116479.13288687918,116479.13288687918,116479.13288687918,116479.13288687918,116479.13288687918,116479.13288687918,116479.13288687918,116479.13288687918,116479.13288687918,116479.13288687918,116479.13288687918,116479.13288687918]
[null,"P1","2016-10-05T18:22:17","Costos Operador Privado","","","","","","","","","","","","","","","","","","","",""]
[null,"P1","2016-10-05T18:22:17"," Costo conductores ","","","","","","","","","","","","","","","","","","","",""]
[null,"P1","2016-10-05T18:22:17","Intraparroquial",42128.037599999996,42549.317976000006,25646.048472000002,25902.508956719998,26161.534046287201,26423.149386750076,26687.38088061758,26954.254689423753,27223.797236317994,27496.035208681169,27770.995560767984,28048.705516375659,28329.192571539425,28612.484497254816,28898.609342227363,29187.595435649637,29479.471390006132,29774.266103906193,30072.008764945254,30372.728852594708]
[null,"P1","2016-10-05T18:22:17","Urbano",42128.037599999996,42549.317976000006,25646.048472000002,25902.508956719998,26161.534046287201,26423.149386750076,26687.38088061758,26954.254689423753,27223.797236317994,27496.035208681169,27770.995560767984,28048.705516375659,28329.192571539425,28612.484497254816,28898.609342227363,29187.595435649637,29479.471390006132,29774.266103906193,30072.008764945254,30372.728852594708]
[null,"P1","2016-10-05T18:22:17","Interparroquial",42128.037599999996,42549.317976000006,25646.048472000002,25902.508956719998,26161.534046287201,26423.149386750076,26687.38088061758,26954.254689423753,27223.797236317994,27496.035208681169,27770.995560767984,28048.705516375659,28329.192571539425,28612.484497254816,28898.609342227363,29187.595435649637,29479.471390006132,29774.266103906193,30072.008764945254,30372.728852594708]
[null,"P1","2016-10-05T18:22:17","Otro",42128.037599999996,42549.317976000006,25646.048472000002,25902.508956719998,26161.534046287201,26423.149386750076,26687.38088061758,26954.254689423753,27223.797236317994,27496.035208681169,27770.995560767984,28048.705516375659,28329.192571539425,28612.484497254816,28898.609342227363,29187.595435649637,29479.471390006132,29774.266103906193,30072.008764945254,30372.728852594708]
[null,"P1","2016-10-05T18:22:17"," Costo combustible ","","","","","","","","","","","","","","","","","","","",""]
[null,"P1","2016-10-05T18:22:17","Intraparroquial",7355.7966101694919,7355.7966101694919,7355.7966101694919,7392.5755932203383,7429.5384711864381,7466.6861635423702,7504.019594360082,7541.5396923318813,7579.2473907935382,7617.1436277475059,7655.2293458862423,7693.5054926156736,7731.9730200787499,7770.6328851791441,7809.4860496050378,7848.533479853063,7887.7761472523262,7927.2150279885882,7966.8511031285307,8006.685358644173]
[null,"P1","2016-10-05T18:22:17","Urbano",8460.9032258064508,8460.9032258064508,8460.9032258064508,8503.2077419354828,8545.7237806451576,8588.4523995483833,8631.3946615461264,8674.5516348538549,8717.9243930281227,8761.5140149932631,8805.3215850682282,8849.3481929935679,8893.594933958535,8938.0629086283261,8982.7532231714667,9027.6669892873233,9072.8053242337592,9118.169350854927,9163.7601976091992,9209.578998597246]
[null,"P1","2016-10-05T18:22:17","Interparroquial",12597.45882352941,12597.45882352941,12597.45882352941,12660.446117647058,12723.748348235291,12787.367089976466,12851.303925426348,12915.560445053476,12980.138247278743,13045.038938515134,13110.264133207709,13175.815453873747,13241.694531143114,13307.903003798827,13374.442518817819,13441.314731411907,13508.521305068964,13576.063911594309,13643.94423115228,13712.163952308039]
[null,"P1","2016-10-05T18:22:17","Otro",11959.803736554066,11959.803736554066,11959.803736554066,12019.602755236834,12079.700769013018,12140.099272858082,12200.799769222371,12261.803768068481,12323.112786908821,12384.728350843363,12446.651992597581,12508.885252560567,12571.429678823368,12634.286827217484,12697.458261353569,12760.945552660336,12824.750280423636,12888.874031825751,12953.318401984881,13018.084993994806]
[null,"P1","2016-10-05T18:22:17"," Costo impuestos + seguros ","","","","","","","","","","","","","","","","","","","",""]
[null,"P1","2016-10-05T18:22:17","Intraparroquial",5997.9827866666665,6250.0046699999994,9790.1443628817797,7558.7566988146918,8952.8592324618021,12027.018552452359,12816.043491065591,10270.226685910344,7915.0021160335837,12909.361891146676,9036.3016042684158,11413.090406598774,10810.645990825558,10189.807579199656,8271.9350466262076,10516.55416794546,9213.7029488674161,5289.7925766666667,10102.946073341302,9966.8868559379225]
[null,"P1","2016-10-05T18:22:17","Urbano",7773.2146933333333,7890.9914906666654,12115.816506479136,8262.6595386666668,11235.711866679096,14706.63491811371,14978.797715752837,12606.338996473683,15158.576031564739,11265.67547323307,14995.182093091114,11108.167429417132,13126.565445434222,12786.112870862711,13287.200728462256,10374.470889546941,11977.129012775626,11058.330206650637,12505.192420205656,7975.6738204159501]
[null,"P1","2016-10-05T18:22:17","Interparroquial",9292.7461466666664,10012.305994,11886.104588936021,13792.958379733103,10173.035742666667,16077.644816689306,14792.136992435087,19458.630543601332,15000.438095696973,14577.327618515214,16684.162714634072,12448.051253926302,15496.01716601392,11068.88950933906,17331.067717817314,14468.44984208546,12207.598866257775,11806.247569314455,11600.505963905391,14820.290815269198]
[null,"P1","2016-10-05T18:22:17","Otro",12450.528226773335,12241.655705034827,15085.209144934101,13510.422963694857,15408.624493225116,20725.432499641429,23984.456609101799,20416.501543962135,20570.769489896928,20211.92696799781,22412.111289701155,16565.478162520172,21082.978396376573,20075.457348284013,18350.836780445239,17393.997476167286,19786.147357575785,16048.114270094677,19246.157014724693,14967.373511825128]
[null,"P1","2016-10-05T18:22:17"," Costo Mantenimiento ","","","","","","","","","","","","","","","","","","","",""]
[null,"P1","2016-10-05T18:22:17","Intraparroquial",11699.105619047619,15996.792785714286,16306.667452380952,21551.802285714286,15725.092023809524,17734.681833333332,14497.895904761905,21622.684785714286,28150.239547619047,11826.885619047618,23062.909785714284,14866.442452380952,15925.910285714286,17037.537023809524,22175.908833333335,14370.115904761904,17586.4185,32314.285833333332,13139.33061904762,16171.193499999999]
[null,"P1","2016-10-05T18:22:17","Urbano",13506.647809523811,17733.452476190476,15243.07280952381,27159.307904761903,13930.62780952381,19045.897476190476,17306.61123809524,23783.324476190475,14946.872809523811,26140.179119047621,13634.42780952381,24799.569476190478,17602.811238095237,17733.452476190476,15243.07280952381,23359.344476190472,17434.391238095239,19342.097476190476,13890.873523809525,31708.287904761903]
[null,"P1","2016-10-05T18:22:17","Interparroquial",24360.443904761902,32885.69892857143,38262.202047619045,30181.139285714286,42961.822619047613,37010.69892857143,40086.979428571431,24656.643904761906,37585.319499999998,37966.00204761904,30477.339285714286,42700.545261904765,32276.155714285713,45082.799999999996,24656.643904761906,32589.498928571429,38646.427761904764,38917.734142857138,38575.545261904765,32276.155714285713]
[null,"P1","2016-10-05T18:22:17","Otro",18348.530952380956,22575.335619047622,26584.235380952381,28201.227619047622,19192.899166666666,30037.554333333337,18723.036666666667,28625.207619047622,26951.971214285713,26868.755619047621,18825.816666666666,35791.226333333332,20534.749928571429,22447.55561904762,26584.235380952381,28329.007619047621,19658.172500000001,30037.554333333337,18850.816666666666,38772.201333333331]
[null,"P1","2016-10-05T18:22:17"," Costo vehículo ","","","","","","","","","","","","","","","","","","","",""]
[null,"P1","2016-10-05T18:22:17","Intraparroquial",44601.311510516345,8944.4225939580356,9335.5692290815568,9781.4763931223733,10289.810560128903,1.6043486539274456E-12,1.6043486539274456E-12,1.6043486539274456E-12,1.6043486539274456E-12,1.6043486539274456E-12,1.6043486539274456E-12,1.6043486539274456E-12,1.6043486539274456E-12,1.6043486539274456E-12,1.6043486539274456E-12,1.6043486539274456E-12,1.6043486539274456E-12,1.6043486539274456E-12,1.6043486539274456E-12,-2699.9999999999986]
[null,"P1","2016-10-05T18:22:17","Urbano",60459.555603144392,12124.661738476443,12654.882732755003,13259.334666232549,13948.409870396954,0,0,0,0,0,0,0,0,0,0,0,0,0,0,-3660]
[null,"P1","2016-10-05T18:22:17","Interparroquial",60459.555603144392,12124.661738476443,12654.882732755003,13259.334666232549,13948.409870396954,0,0,0,0,0,0,0,0,0,0,0,0,0,0,-3660]
[null,"P1","2016-10-05T18:22:17","Otro",102126.38824694295,20480.598967586535,21376.231669120243,22397.252948868671,23561.217207781876,0,0,0,0,0,0,0,0,0,0,0,0,0,0,-6182.3574000000845]
[null,"P1","2016-10-05T18:22:17"," Costo personal ","","","","","","","","","","","","","","","","","","","",""]
[null,"P1","2016-10-05T18:22:17","Intraparroquial",8866.0109333333348,8954.6710426666632,9044.2177530933332,9134.6599306242661,9226.0065299305079,9318.2665952298175,9411.4492611821115,9505.5637537939328,9600.6193913318748,9696.6255852451905,9793.591841097641,9891.5277595086227,9990.4430371037051,10090.347467474743,10191.250942149494,10293.163451570983,10396.095086086694,10500.056036947564,10605.056597317038,10711.107163290211]
[null,"P1","2016-10-05T18:22:17","Urbano",8866.0109333333348,8954.6710426666632,9044.2177530933332,9134.6599306242661,9226.0065299305079,9318.2665952298175,9411.4492611821115,9505.5637537939328,9600.6193913318748,9696.6255852451905,9793.591841097641,9891.5277595086227,9990.4430371037051,10090.347467474743,10191.250942149494,10293.163451570983,10396.095086086694,10500.056036947564,10605.056597317038,10711.107163290211]
[null,"P1","2016-10-05T18:22:17","Interparroquial",8866.0109333333348,8954.6710426666632,9044.2177530933332,9134.6599306242661,9226.0065299305079,9318.2665952298175,9411.4492611821115,9505.5637537939328,9600.6193913318748,9696.6255852451905,9793.591841097641,9891.5277595086227,9990.4430371037051,10090.347467474743,10191.250942149494,10293.163451570983,10396.095086086694,10500.056036947564,10605.056597317038,10711.107163290211]
[null,"P1","2016-10-05T18:22:17","Otro",8866.0109333333348,8954.6710426666632,9044.2177530933332,9134.6599306242661,9226.0065299305079,9318.2665952298175,9411.4492611821115,9505.5637537939328,9600.6193913318748,9696.6255852451905,9793.591841097641,9891.5277595086227,9990.4430371037051,10090.347467474743,10191.250942149494,10293.163451570983,10396.095086086694,10500.056036947564,10605.056597317038,10711.107163290211]
[null,"P1","2016-10-05T18:22:17"," Administración y otros ","","","","","","","","","","","","","","","","","","","",""]
[null,"P1","2016-10-05T18:22:17","Intraparroquial",2254.1400000000003,2254.1400000000003,1583.34,1583.34,1583.34,1583.34,1583.34,1583.34,1583.34,1583.34,1583.34,1583.34,1583.34,1583.34,1583.34,1583.34,1583.34,1583.34,1583.34,1583.34]
[null,"P1","2016-10-05T18:22:17","Urbano",2254.1400000000003,2254.1400000000003,2254.1400000000003,2254.1400000000003,2254.1400000000003,2254.1400000000003,2254.1400000000003,2254.1400000000003,2254.1400000000003,2254.1400000000003,2254.1400000000003,2254.1400000000003,2254.1400000000003,2254.1400000000003,2254.1400000000003,2254.1400000000003,2254.1400000000003,2254.1400000000003,2254.1400000000003,2254.1400000000003]
[null,"P1","2016-10-05T18:22:17","Interparroquial",2254.1400000000003,2254.1400000000003,2254.1400000000003,2254.1400000000003,2254.1400000000003,2254.1400000000003,2254.1400000000003,2254.1400000000003,2254.1400000000003,2254.1400000000003,2254.1400000000003,2254.1400000000003,2254.1400000000003,2254.1400000000003,2254.1400000000003,2254.1400000000003,2254.1400000000003,2254.1400000000003,2254.1400000000003,2254.1400000000003]
[null,"P1","2016-10-05T18:22:17","Otro",2254.1400000000003,2254.1400000000003,2254.1400000000003,2254.1400000000003,2254.1400000000003,2254.1400000000003,2254.1400000000003,2254.1400000000003,2254.1400000000003,2254.1400000000003,2254.1400000000003,2254.1400000000003,2254.1400000000003,2254.1400000000003,2254.1400000000003,2254.1400000000003,2254.1400000000003,2254.1400000000003,2254.1400000000003,2254.1400000000003]
[null,"P1","2016-10-05T18:22:17","Total","","","","","","","","","","","","","","","","","","","",""]
[null,"P1","2016-10-05T18:22:17","Intraparroquial",122902.38505973345,92305.145678508488,79061.78387960713,82905.119858215956,79368.180863804373,74553.142531307953,72500.129131987269,77477.609607174192,82052.245682096036,71129.391931868158,78902.368137734578,73496.611627479666,74371.504905261725,75284.149452917874,78930.530213941427,73799.302439781051,76146.804072212573,87388.955578842346,73469.533157779748,74111.941730467006]
[null,"P1","2016-10-05T18:22:17","Urbano",143448.50986514133,99968.137949806711,85419.081499657725,94475.81873894087,85302.15390346272,80336.540775832458,79269.773757193892,83778.173550735708,77901.929861766548,85614.169401200314,77253.65888954878,84951.458374485461,80196.74722613112,80414.60022041107,78857.027045534385,84496.381242245363,80614.032051197442,82047.05917454981,78491.031503886668,88571.516739660015]
[null,"P1","2016-10-05T18:22:17","Interparroquial",159958.39301143572,121378.25450324395,112345.05441793283,107185.18733667127,117448.69715656423,103871.26681721708,106083.39048823256,95744.793336634393,104644.45247062558,105035.16939857574,100090.4935354217,108518.7852455891,101587.64302008587,110416.56447786745,96706.154425773901,102234.16238928941,106492.25440932433,106828.50776461964,106751.20081922474,100486.58649774786]
[null,"P1","2016-10-05T18:22:17","Otro",198133.43969598468,121015.52304688972,111949.88615665412,113419.81517419225,107884.12221290437,100898.64208781274,93261.263186790529,100017.47137429591,98924.410118741333,98912.211731815143,93503.307350831019,105059.96302429835,94762.93361241449,96114.271759278665,98976.53070712804,100218.84953509587,94398.776614092247,101503.00477610751,93981.497445638539,103913.2784550381]
[null,"P1","2016-10-05T18:22:17","Flujo del Operador Privado","","","","","","","","","","","","","","","","","","","",""]
[null,"P1","2016-10-05T18:22:17","Intraparroquial",-38189.700246962573,-7592.4608657376084,5650.9009331637662,1807.5649545549165,5344.503948966516,10159.542281462931,12212.555680783607,7235.0752055966768,2660.4391306748525,13583.292880902729,5810.3166750363143,11216.073185291203,10341.179907509155,9428.535359852991,5782.1545988294474,10913.382372989832,8565.8807405583029,-2676.2707660714659,11243.151654991132,10600.743082303863]
[null,"P1","2016-10-05T18:22:17","Urbano",-50614.032945824947,-7133.6610304903297,7415.3954196586492,-1641.3418196244893,7532.3230158536535,12497.936143483927,13564.70316212248,9056.3033685806804,14932.547057549844,7220.307518116073,15580.818029767604,7883.0185448309312,12637.729693185256,12419.876698905304,13977.449873781999,8338.0956770710218,12220.444868118924,10787.417744766572,14343.445415429709,4262.9601796563547]
[null,"P1","2016-10-05T18:22:17","Interparroquial",-45269.972942909648,-6689.834434717879,2343.3656505932495,7503.2327318548087,-2760.2770880381577,10817.153251308981,8605.0295802935216,18943.626731891669,10043.96759790049,9653.2506699503356,14597.926533104377,6169.6348229369924,13100.777048440206,4271.8555906586216,17982.265642752183,12454.25767923666,8196.1656592017498,7859.9123039064225,7937.2192493013354,14201.833570778204]
[null,"P1","2016-10-05T18:22:17","Otro",-81654.306809105503,-4536.3901600105455,4529.2467302250534,3059.3177126869277,8595.0106739747862,15580.490799066436,23217.869700088657,16461.661512583247,17554.72276813785,17566.921155064028,22975.825536048149,11419.169862580811,21716.199274464681,20364.861127600503,17502.602179751135,16260.283351783306,22080.356272786928,14976.128110771666,22497.635441240654,12565.854431841075]
[null,"P1","2016-10-05T18:22:17","Costo SITP-Q","","","","","","","","","","","","","","","","","","","",""]
[null,"P1","2016-10-05T18:22:17","Intraparroquial",0,0,6784.7788762493474,6784.7788762493474,6784.7788762493474,6784.7788762493474,6784.7788762493474,6784.7788762493474,6784.7788762493474,6784.7788762493474,6784.7788762493474,6784.7788762493474,6784.7788762493474,6784.7788762493474,6784.7788762493474,6784.7788762493474,6784.7788762493474,6784.7788762493474,6784.7788762493474,6784.7788762493474]
[null,"P1","2016-10-05T18:22:17","Urbano",0,0,6030.9145566660864,6030.9145566660864,6030.9145566660864,6030.9145566660864,6030.9145566660864,6030.9145566660864,6030.9145566660864,6030.9145566660864,6030.9145566660864,6030.9145566660864,6030.9145566660864,6030.9145566660864,6030.9145566660864,6030.9145566660864,6030.9145566660864,6030.9145566660864,6030.9145566660864,6030.9145566660864]
[null,"P1","2016-10-05T18:22:18","Interparroquial",0,0,6784.7788762493474,6784.7788762493474,6784.7788762493474,6784.7788762493474,6784.7788762493474,6784.7788762493474,6784.7788762493474,6784.7788762493474,6784.7788762493474,6784.7788762493474,6784.7788762493474,6784.7788762493474,6784.7788762493474,6784.7788762493474,6784.7788762493474,6784.7788762493474,6784.7788762493474,6784.7788762493474]
[null,"P1","2016-10-05T18:22:18","Otro",0,0,7678.2476994591379,7678.2476994591379,7678.2476994591379,7678.2476994591379,7678.2476994591379,7678.2476994591379,7678.2476994591379,7678.2476994591379,7678.2476994591379,7678.2476994591379,7678.2476994591379,7678.2476994591379,7678.2476994591379,7678.2476994591379,7678.2476994591379,7678.2476994591379,7678.2476994591379,7678.2476994591379]
[null,"P1","2016-10-05T18:22:18","Tarifa Técnica por Km","","","","","","","","","","","","","","","","","","","",""]
[null,"P1","2016-10-05T18:22:18","Operadores","","","","","","","","","","","","","","","","","","","",""]
[null,"P1","2016-10-05T18:22:18","Intraparroquial",1.2687617543249892]
[null,"P1","2016-10-05T18:22:18","Urbano",1.5337443318681665]
[null,"P1","2016-10-05T18:22:18","Interparroquial",1.1139123938279534]
[null,"P1","2016-10-05T18:22:18","Otro",1.8666527706230638]
[null,"P1","2016-10-05T18:22:18","SITP-Q","","","","","","","","","","","","","","","","","","","",""]
[null,"P1","2016-10-05T18:22:18","Intraparroquial",9.1455502465618413E-2]
[null,"P1","2016-10-05T18:22:18","Urbano",8.9674582028143643E-2]
[null,"P1","2016-10-05T18:22:18","Interparroquial",5.9307507659522238E-2]
[null,"P1","2016-10-05T18:22:18","Otro",0.1107439572037376]
[null,"P1","2016-10-05T18:22:18","Total","","","","","","","","","","","","","","","","","","","",""]
[null,"P1","2016-10-05T18:22:18","Intraparroquial",1.3602172567906077]
[null,"P1","2016-10-05T18:22:18","Urbano",1.6234189138963102]
[null,"P1","2016-10-05T18:22:18","Interparroquial",1.1732199014874756]
[null,"P1","2016-10-05T18:22:18","Otro",1.977396727826801]
[null,"P1","2016-10-05T18:22:18","Tarifa Técnica por Pasajero","","","","","","","","","","","","","","","","","","","",""]
[null,"P1","2016-10-05T18:22:18","Operadores","","","","","","","","","","","","","","","","","","","",""]
[null,"P1","2016-10-05T18:22:18","Intraparroquial",0.27933643562299143]
[null,"P1","2016-10-05T18:22:18","Urbano",0.3443824078500281]
[null,"P1","2016-10-05T18:22:18","Interparroquial",0.37818013370702119]
[null,"P1","2016-10-05T18:22:18","Otro",0.33939141284055702]
[null,"P1","2016-10-05T18:22:18","SITP-Q","","","","","","","","","","","","","","","","","","","",""]
[null,"P1","2016-10-05T18:22:18","Intraparroquial",2.0135264946134095E-2]
[null,"P1","2016-10-05T18:22:18","Urbano",2.0135264946134105E-2]
[null,"P1","2016-10-05T18:22:18","Interparroquial",2.0135264946134095E-2]
[null,"P1","2016-10-05T18:22:18","Otro",2.0135264946134108E-2]
[null,"P1","2016-10-05T18:22:18","Total","","","","","","","","","","","","","","","","","","","",""]
[null,"P1","2016-10-05T18:22:18","Intraparroquial",0.29947170056912553]
[null,"P1","2016-10-05T18:22:18","Urbano",0.36451767279616221]
[null,"P1","2016-10-05T18:22:18","Interparroquial",0.39831539865315529]
[null,"P1","2016-10-05T18:22:18","Otro",0.35952667778669112]

{"sheet":"LogUsuarios","index":20,"n_rows":164,"n_cols":6,"rows_kept":164,"cut":false,"hidden":false,"merged":[]}
[]
[null,"Usuario","Nombre","Apellido","Entidad","Fecha de Ingreso"]
[null,"Admin","Admin","Admin","Admin","2016-09-20T15:54:17"]
[null,"DTDude","David","Tovar","Otro","2016-09-20T15:54:31"]
[null,"Admin","Admin","Admin","Admin","2016-09-20T17:22:26"]
[null,"DTDude","David","Tovar","Otro","2016-09-21T10:42:53"]
[null,"DTDude","David","Tovar","Otro","2016-09-23T16:10:08"]
[null,"DTDude","David","Tovar","Otro","2016-09-23T16:11:53"]
[null,"DTDude","David","Tovar","Otro","2016-09-23T16:32:26"]
[null,"DTDude","David","Tovar","Otro","2016-09-23T16:38:43"]
[null,"DTDude","David","Tovar","Otro","2016-09-23T16:46:09"]
[null,"DTDude","David","Tovar","Otro","2016-09-23T17:08:27"]
[null,"DTDude","David","Tovar","Otro","2016-09-23T17:14:55"]
[null,"DTDude","David","Tovar","Otro","2016-09-23T17:18:32"]
[null,"DTDude","David","Tovar","Otro","2016-09-23T17:20:29"]
[null,"DTDude","David","Tovar","Otro","2016-09-23T17:27:25"]
[null,"DTDude","David","Tovar","Otro","2016-09-23T17:28:52"]
[null,"DTDude","David","Tovar","Otro","2016-09-23T17:29:35"]
[null,"DTDude","David","Tovar","Otro","2016-09-23T17:30:10"]
[null,"DTDude","David","Tovar","Otro","2016-09-23T17:31:00"]
[null,"DTDude","David","Tovar","Otro","2016-09-23T17:32:06"]
[null,"DTDude","David","Tovar","Otro","2016-09-23T17:59:35"]
[null,"Admin","Admin","Admin","Admin","2016-09-23T18:07:58"]
[null,"DTDude","David","Tovar","Otro","2016-09-23T18:23:10"]
[null,"DTDude","David","Tovar","Otro","2016-09-26T09:16:52"]
[null,"DTDude","David","Tovar","Otro","2016-09-26T09:20:03"]
[null,"DTDude","David","Tovar","Otro","2016-09-26T09:22:09"]
[null,"DTDude","David","Tovar","Otro","2016-09-26T09:23:38"]
[null,"DTDude","David","Tovar","Otro","2016-09-26T09:24:11"]
[null,"DTDude","David","Tovar","Otro","2016-09-26T09:33:24"]
[null,"DTDude","David","Tovar","Otro","2016-09-26T09:33:59"]
[null,"DTDude","David","Tovar","Otro","2016-09-26T09:40:01"]
[null,"DTDude","David","Tovar","Otro","2016-09-26T09:40:50"]
[null,"DTDude","David","Tovar","Otro","2016-09-26T09:45:51"]
[null,"DTDude","David","Tovar","Otro","2016-09-26T09:46:11"]
[null,"DTDude","David","Tovar","Otro","2016-09-26T09:53:28"]
[null,"DTDude","David","Tovar","Otro","2016-09-26T09:54:16"]
[null,"DTDude","David","Tovar","Otro","2016-09-26T09:55:53"]
[null,"DTDude","David","Tovar","Otro","2016-09-26T09:56:42"]
[null,"DTDude","David","Tovar","Otro","2016-09-26T10:00:36"]
[null,"DTDude","David","Tovar","Otro","2016-09-26T10:02:31"]
[null,"DTDude","David","Tovar","Otro","2016-09-26T10:03:20"]
[null,"DTDude","David","Tovar","Otro","2016-09-26T10:14:00"]
[null,"DTDude","David","Tovar","Otro","2016-09-26T10:16:03"]
[null,"DTDude","David","Tovar","Otro","2016-09-26T10:24:21"]
[null,"DTDude","David","Tovar","Otro","2016-09-26T10:35:15"]
[null,"DTDude","David","Tovar","Otro","2016-09-26T10:36:43"]
[null,"DTDude","David","Tovar","Otro","2016-09-26T10:41:16"]
[null,"DTDude","David","Tovar","Otro","2016-09-26T10:56:36"]
[null,"DTDude","David","Tovar","Otro","2016-09-26T11:05:13"]
[null,"DTDude","David","Tovar","Otro","2016-09-26T11:06:31"]
[null,"DTDude","David","Tovar","Otro","2016-09-26T11:08:00"]
[null,"DTDude","David","Tovar","Otro","2016-09-26T11:09:02"]
[null,"DTDude","David","Tovar","Otro","2016-09-26T11:25:24"]
[null,"DTDude","David","Tovar","Otro","2016-09-26T11:26:08"]
[null,"DTDude","David","Tovar","Otro","2016-09-26T11:28:58"]
[null,"DTDude","David","Tovar","Otro","2016-09-26T11:30:03"]
[null,"DTDude","David","Tovar","Otro","2016-09-26T11:33:14"]
[null,"DTDude","David","Tovar","Otro","2016-09-26T11:40:17"]
[null,"DTDude","David","Tovar","Otro","2016-09-26T11:41:37"]
[null,"DTDude","David","Tovar","Otro","2016-09-26T11:42:30"]
[null,"DTDude","David","Tovar","Otro","2016-09-26T11:43:45"]
[null,"DTDude","David","Tovar","Otro","2016-09-26T11:45:13"]
[null,"DTDude","David","Tovar","Otro","2016-09-26T11:46:39"]
[null,"DTDude","David","Tovar","Otro","2016-09-26T11:47:06"]
[null,"DTDude","David","Tovar","Otro","2016-09-26T11:48:27"]
[null,"DTDude","David","Tovar","Otro","2016-09-26T11:50:11"]
[null,"DTDude","David","Tovar","Otro","2016-09-26T11:50:58"]
[null,"DTDude","David","Tovar","Otro","2016-09-26T11:52:42"]
[null,"DTDude","David","Tovar","Otro","2016-09-26T11:59:23"]
[null,"DTDude","David","Tovar","Otro","2016-09-26T12:00:45"]
[null,"DTDude","David","Tovar","Otro","2016-09-26T12:03:28"]
[null,"DTDude","David","Tovar","Otro","2016-09-26T12:12:08"]
[null,"DTDude","David","Tovar","Otro","2016-09-26T12:14:07"]
[null,"DTDude","David","Tovar","Otro","2016-09-26T12:14:57"]
[null,"DTDude","David","Tovar","Otro","2016-09-26T12:23:05"]
[null,"DTDude","David","Tovar","Otro","2016-09-26T12:24:00"]
[null,"DTDude","David","Tovar","Otro","2016-09-26T12:27:14"]
[null,"DTDude","David","Tovar","Otro","2016-09-26T12:28:22"]
[null,"DTDude","David","Tovar","Otro","2016-09-26T12:30:10"]
[null,"DTDude","David","Tovar","Otro","2016-09-26T12:30:48"]
[null,"DTDude","David","Tovar","Otro","2016-09-26T12:39:32"]
[null,"DTDude","David","Tovar","Otro","2016-09-26T12:40:35"]
[null,"DTDude","David","Tovar","Otro","2016-09-26T12:45:09"]
[null,"DTDude","David","Tovar","Otro","2016-09-26T12:45:41"]
[null,"DTDude","David","Tovar","Otro","2016-09-26T12:47:40"]
[null,"DTDude","David","Tovar","Otro","2016-09-26T12:48:34"]
[null,"DTDude","David","Tovar","Otro","2016-09-26T12:49:03"]
[null,"DTDude","David","Tovar","Otro","2016-09-26T12:51:56"]
[null,"DTDude","David","Tovar","Otro","2016-09-26T12:53:18"]
[null,"DTDude","David","Tovar","Otro","2016-09-26T12:54:24"]
[null,"DTDude","David","Tovar","Otro","2016-09-26T12:54:43"]
[null,"DTDude","David","Tovar","Otro","2016-09-26T14:35:28"]
[null,"DTDude","David","Tovar","Otro","2016-09-26T14:36:27"]
[null,"DTDude","David","Tovar","Otro","2016-09-26T14:37:06"]
[null,"DTDude","David","Tovar","Otro","2016-09-26T14:39:45"]
[null,"DTDude","David","Tovar","Otro","2016-09-26T14:41:56"]
[null,"DTDude","David","Tovar","Otro","2016-09-26T14:42:33"]
[null,"DTDude","David","Tovar","Otro","2016-09-26T14:43:46"]
[null,"DTDude","David","Tovar","Otro","2016-09-26T14:44:20"]
[null,"DTDude","David","Tovar","Otro","2016-09-26T14:44:46"]
[null,"DTDude","David","Tovar","Otro","2016-09-26T14:50:26"]
[null,"DTDude","David","Tovar","Otro","2016-09-26T14:51:08"]
[null,"DTDude","David","Tovar","Otro","2016-09-26T14:52:31"]
[null,"DTDude","David","Tovar","Otro","2016-09-26T16:14:03"]
[null,"DTDude","David","Tovar","Otro","2016-09-26T16:15:00"]
[null,"DTDude","David","Tovar","Otro","2016-09-26T16:15:59"]
[null,"DTDude","David","Tovar","Otro","2016-09-26T16:18:19"]
[null,"DTDude","David","Tovar","Otro","2016-09-26T16:28:24"]
[null,"DTDude","David","Tovar","Otro","2016-09-26T16:33:01"]
[null,"DTDude","David","Tovar","Otro","2016-09-26T16:34:14"]
[null,"DTDude","David","Tovar","Otro","2016-09-26T16:34:33"]
[null,"DTDude","David","Tovar","Otro","2016-09-27T10:15:06"]
[null,"DTDude","David","Tovar","Otro","2016-09-27T10:15:28"]
[null,"DTDude","David","Tovar","Otro","2016-09-27T10:16:00"]
[null,"DTDude","David","Tovar","Otro","2016-09-27T10:19:19"]
[null,"DTDude","David","Tovar","Otro","2016-09-27T10:38:46"]
[null,"DTDude","David","Tovar","Otro","2016-09-27T10:45:41"]
[null,"DTDude","David","Tovar","Otro","2016-09-27T10:47:25"]
[null,"DTDude","David","Tovar","Otro","2016-09-27T11:01:21"]
[null,"DTDude","David","Tovar","Otro","2016-09-27T11:02:05"]
[null,"DTDude","David","Tovar","Otro","2016-09-27T11:12:14"]
[null,"DTDude","David","Tovar","Otro","2016-09-27T11:13:20"]
[null,"DTDude","David","Tovar","Otro","2016-09-27T11:18:52"]
[null,"DTDude","David","Tovar","Otro","2016-09-27T11:20:34"]
[null,"DTDude","David","Tovar","Otro","2016-09-27T11:23:02"]
[null,"DTDude","David","Tovar","Otro","2016-09-27T11:24:02"]
[null,"DTDude","David","Tovar","Otro","2016-09-27T11:25:25"]
[null,"DTDude","David","Tovar","Otro","2016-09-27T11:26:29"]
[null,"DTDude","David","Tovar","Otro","2016-09-27T11:28:45"]
[null,"Admin","Admin","Admin","Admin","2016-09-27T12:06:41"]
[null,"DTDude","David","Tovar","Otro","2016-09-27T12:31:59"]
[null,"DTDude"]
[null,"DTDude","David","Tovar","Otro","2016-09-27T12:40:44"]
[null,"Admin","Admin","Admin","Admin","2016-09-27T12:56:07"]
[null,"DTDude","David","Tovar","Otro","2016-09-27T12:58:59"]
[null,"DTDude","David","Tovar","Otro","2016-09-28T16:04:25"]
[null,"DTDude","David","Tovar","Otro","2016-09-28T16:05:23"]
[null,"DTDude","David","Tovar","Otro","2016-09-28T16:14:21"]
[null,"DTDude","David","Tovar","Otro","2016-09-28T16:22:15"]
[null,"DTDude","David","Tovar","Otro","2016-09-28T16:29:22"]
[null,"DTDude","David","Tovar","Otro","2016-09-28T16:31:27"]
[null,"DTDude","David","Tovar","Otro","2016-09-28T16:32:56"]
[null,"DTDude","David","Tovar","Otro","2016-09-28T16:33:39"]
[null,"DTDude","David","Tovar","Otro","2016-09-28T16:39:51"]
[null,"DTDude","David","Tovar","Otro","2016-09-28T16:41:14"]
[null,"DTDude","David","Tovar","Otro","2016-09-28T16:52:56"]
[null,"LBUSTOS","Leonardo","Bustos","Otro","2016-09-29T09:21:45"]
[null,"Admin","Admin","Admin","Admin","2016-10-03T11:06:01"]
[null,"P1","Prueba",1,"Otro","2016-10-05T18:22:14"]
[null,"P1","Prueba",1,"Otro","2016-10-05T18:51:45"]
[null,"P1","Prueba",1,"Otro","2016-10-26T08:50:59"]
[null,"DTDude","David","Tovar","Otro","2016-12-13T18:45:59"]
[null,"DTDude","David","Tovar","Otro","2016-12-13T18:51:38"]
[null,"DTDude","David","Tovar","Otro","2016-12-13T18:52:42"]
[null,"DTDude","David","Tovar","Otro","2016-12-13T19:03:33"]
[null,"DTDude","David","Tovar","Otro","2016-12-13T19:14:58"]
[null,"DTDude","David","Tovar","Otro","2016-12-13T19:16:07"]
[null,"DTDude","David","Tovar","Otro","2016-12-13T19:18:03"]
[null,"DTDude","David","Tovar","Otro","2016-12-13T19:20:30"]
[null,"DTDude","David","Tovar","Otro","2016-12-13T19:22:24"]
[null,"DTDude","David","Tovar","Otro","2016-12-13T19:23:37"]
[null,"DTDude","David","Tovar","Otro","2016-12-13T19:24:54"]
[null,"Admin","Admin","Admin","Admin","2017-01-12T08:34:15"]

{"sheet":"Resultados TT-TU","index":21,"n_rows":39,"n_cols":6,"rows_kept":39,"cut":false,"hidden":false,"merged":[]}
[]
[{"$f":"'Componentes costos'!C7","v":"Intracantonal Rural"}]
["Demanda"]
["Demanda por Bus mes",{"$f":"'Sup fijo'!E33","v":25677},{"$f":"'Sup fijo'!F33","v":25677},{"$f":"'Sup fijo'!G33","v":25677},{"$f":"'Sup fijo'!H33","v":25677},{"$f":"'Sup fijo'!I33","v":25677}]
["Demanda por Bus día",{"$f":"'Sup fijo'!E32","v":972},{"$f":"'Sup fijo'!F32","v":972},{"$f":"'Sup fijo'!G32","v":972},{"$f":"'Sup fijo'!H32","v":972},{"$f":"'Sup fijo'!I32","v":972}]
[]
["Tarifa Técnica con SITP-Q ",{"$f":"SUM(B8:B9)","v":0.24200511576799549},{"$f":"SUM(C8:C9)","v":0.26915320593774872},0.27615118929213017,0.27734416242987225,0.27809299166843288]
[{"$f":"'Componentes costos'!B27","v":"Operadores"},{"$f":"'FO con SITPQ'!H19","v":0.24200511576799549},{"$f":"'FO con SITPQ'!I19","v":0.2458771976202834},{"$f":"'FO con SITPQ'!J19","v":0.25227000475841077},{"$f":"'FO con SITPQ'!K19","v":0.25335981117896716},{"$f":"'FO con SITPQ'!L19","v":0.25404388266915034}]
[{"$f":"'Componentes costos'!B28","v":"SITP-Q"},{"$f":"'FO con SITPQ'!H20","v":0},{"$f":"'FO con SITPQ'!I20","v":2.3276008317465312E-2},{"$f":"'FO con SITPQ'!J20","v":2.3881184533719412E-2},{"$f":"'FO con SITPQ'!K20","v":2.3984351250905082E-2},{"$f":"'FO con SITPQ'!L20","v":2.4049108999282524E-2}]
[]
["Tarifa Técnica sin SITP-Q",{"$f":"SUM(B12:B13)","v":0.25243672084086444},{"$f":"SUM(C12:C13)","v":0.25647570837431827},{"$f":"SUM(D12:D13)","v":0.26314407679205054},{"$f":"SUM(E12:E13)","v":0.26428085920379224},{"$f":"SUM(F12:F13)","v":0.2649944175236425}]
[{"$f":"A8","v":"Operadores"},{"$f":"'FO sin SITPQ'!H19","v":0.25243672084086444},{"$f":"'FO sin SITPQ'!I19","v":0.25647570837431827},{"$f":"'FO sin SITPQ'!J19","v":0.26314407679205054},{"$f":"'FO sin SITPQ'!K19","v":0.26428085920379224},{"$f":"'FO sin SITPQ'!L19","v":0.2649944175236425}]
[{"$f":"A9","v":"SITP-Q"},0,0,0,0,0]
[]
[{"$f":"'Componentes costos'!D7","v":"Intracantonal Urbano"}]
[{"$f":"A3","v":"Demanda"}]
[{"$f":"A4","v":"Demanda por Bus mes"},{"$f":"'Sup fijo'!E37","v":25106.400000000005},{"$f":"'Sup fijo'!F37","v":25106.400000000005},{"$f":"'Sup fijo'!G37","v":25106.400000000005},{"$f":"'Sup fijo'!H37","v":25106.400000000005},{"$f":"'Sup fijo'!I37","v":25106.400000000005}]
["Demanda por Bus día",{"$f":"'Sup fijo'!E36","v":950.40000000000009},{"$f":"'Sup fijo'!F36","v":950.40000000000009},{"$f":"'Sup fijo'!G36","v":950.40000000000009},{"$f":"'Sup fijo'!H36","v":950.40000000000009},{"$f":"'Sup fijo'!I36","v":950.40000000000009}]
[]
["Tarifa Técnica con SITP-Q ",{"$f":"SUM(B21:B22)","v":0.2744929944454888},{"$f":"SUM(C21:C22)","v":0.30216089067408192},{"$f":"SUM(D21:D22)","v":0.31001707383160809},{"$f":"SUM(E21:E22)","v":0.31135634759056069},{"$f":"SUM(F21:F22)","v":0.31219700972905517}]
["Operadores",{"$f":"'FO con SITPQ'!H96","v":0.2744929944454888},{"$f":"'FO con SITPQ'!I96","v":0.27888488235661663},{"$f":"'FO con SITPQ'!J96","v":0.28613588929788869},{"$f":"'FO con SITPQ'!K96","v":0.2873719963396556},{"$f":"'FO con SITPQ'!L96","v":0.28814790072977264}]
["SITP-Q",{"$f":"'FO con SITPQ'!H97","v":0},{"$f":"'FO con SITPQ'!I97","v":2.3276008317465312E-2},{"$f":"'FO con SITPQ'!J97","v":2.3881184533719412E-2},{"$f":"'FO con SITPQ'!K97","v":2.3984351250905082E-2},{"$f":"'FO con SITPQ'!L97","v":2.4049108999282524E-2}]
[]
["Tarifa Técnica sin SITP-Q",{"$f":"SUM(B25:B26)","v":0.29329388649307703},{"$f":"SUM(C25:C26)","v":0.29798658867696626},{"$f":"SUM(D25:D26)","v":0.30573423998256738},{"$f":"SUM(E25:E26)","v":0.30705501189929213},{"$f":"SUM(F25:F26)","v":0.30788406043142019}]
["Operadores",0.29329388649307703,0.29798658867696626,0.30573423998256738,0.30705501189929213,0.30788406043142019]
["SITP-Q",0,0,0,0,0]
[]
[{"$f":"'Componentes costos'!E7","v":"Intracantonal Combinado"}]
[{"$f":"A16","v":"Demanda"}]
[{"$f":"A17","v":"Demanda por Bus mes"},{"$f":"'Sup fijo'!E41","v":25677},{"$f":"'Sup fijo'!F41","v":25677},{"$f":"'Sup fijo'!G41","v":25677},{"$f":"'Sup fijo'!H41","v":25677},{"$f":"'Sup fijo'!I41","v":25677}]
["Demanda por Bus día",{"$f":"'Sup fijo'!E40","v":972},{"$f":"'Sup fijo'!F40","v":972},{"$f":"'Sup fijo'!G40","v":972},{"$f":"'Sup fijo'!H40","v":972},{"$f":"'Sup fijo'!I40","v":972}]
[]
["Tarifa Técnica con SITP-Q ",{"$f":"SUM(B34:B35)","v":0.38579407054063536},{"$f":"SUM(C34:C35)","v":0.39582471637469185},{"$f":"SUM(D34:D35)","v":0.39753467914943064},{"$f":"SUM(E34:E35)","v":0.39860802278313406},{"$f":"SUM(F34:F35)","v":0.40127869653578102}]
["Operadores",{"$f":"'FO con SITPQ'!I173","v":0.36251806222317007},{"$f":"'FO con SITPQ'!J173","v":0.37194353184097245},{"$f":"'FO con SITPQ'!K173","v":0.37355032789852555},{"$f":"'FO con SITPQ'!L173","v":0.37455891378385153},{"$f":"'FO con SITPQ'!M173","v":0.3770684585062033}]
["SITP-Q",{"$f":"'FO con SITPQ'!I174","v":2.3276008317465312E-2},{"$f":"'FO con SITPQ'!J174","v":2.3881184533719412E-2},{"$f":"'FO con SITPQ'!K174","v":2.3984351250905082E-2},{"$f":"'FO con SITPQ'!L174","v":2.4049108999282524E-2},{"$f":"'FO con SITPQ'!M174","v":2.4210238029577717E-2}]
[]
["Tarifa Técnica sin SITP-Q",{"$f":"SUM(B38:B39)","v":0.35040605248392054},{"$f":"SUM(C38:C39)","v":0.35601254932366322},{"$f":"SUM(D38:D39)","v":0.36526887560607851},{"$f":"SUM(E38:E39)","v":0.36684683714869681},{"$f":"SUM(F38:F39)","v":0.36783732360899829}]
["Operadores",{"$f":"'FO sin SITPQ'!H165","v":0.35040605248392054},{"$f":"'FO sin SITPQ'!I165","v":0.35601254932366322},{"$f":"'FO sin SITPQ'!J165","v":0.36526887560607851},{"$f":"'FO sin SITPQ'!K165","v":0.36684683714869681},{"$f":"'FO sin SITPQ'!L165","v":0.36783732360899829}]
["SITP-Q",0,0,0,0,0]

{"sheet":"RegistroUsuarios","index":22,"n_rows":8,"n_cols":10,"rows_kept":8,"cut":false,"hidden":true,"merged":[]}
[]
[null,"Usuario","Contraseña","Nombre","Apellido","Entidad",null,"Usuario Actual",null,"Entidades Permitidas"]
[null,"Admin","A12345","Administrador","Sistema","Alcaldía de Quito",null,"Admin",null,"Alcaldía de Quito"]
[null,"DTDude","dt7777","David","Tovar","Otro",null,null,null,"Secretaría de Movilidad"]
[null,"Juancho","Juan1","Juan","Cho","Operador de Transporte",null,null,null,"Operador de Transporte"]
[null,"LBUSTOS","PRUEBA","Leonardo","Bustos","Otro",null,null,null,"Otro"]
[null,"P1","P1","Prueba",1,"Otro"]
[null,"P1","P1","Prueba",1,"Otro"]